{"text_format":"1","workbook":"xlsx","n_sheets":11,"sheets":["Risk Summary","RiskRGCGSR26C11","CGS","Corps & Bureau O&M","F&W Expense","Src Proforma","NR_to_Cash","Output","rsklibSimData","Study Table","Reference"],"not_rendered":{"charts":0,"images":0,"macros":0,"external_links":1,"defined_names":159,"comments":6,"pivot_tables":0},"unopened":[],"bounds":{"document_bytes":16777216,"sheet_cells":100000,"rows_first":2000,"rows_last":500,"rows_between":2000,"halvings":0,"cell_chars":16384,"cell_head_chars":4096},"cells_cut":123,"cells_raw":0,"read":"whole","date_system":"1900"}

{"sheet":"Risk Summary","index":0,"n_rows":24,"n_cols":15,"rows_kept":24,"cut":false,"hidden":false,"merged":[]}
[]
[]
[null,null,"FY25","FY25","FY26","FY26","FY27","FY27","FY28","FY28",null,{"$f":"D3","v":"FY25"},{"$f":"F3","v":"FY26"},{"$f":"H3","v":"FY27"},{"$f":"I3","v":"FY28"}]
[null,null,"Forecast","Modeled","Forecast","Modeled","Forecast","Modeled","Forecast","Modeled",null,"Delta","Delta","Delta","Delta"]
[null,"Expense"]
[null,"Columbia Generating Station",{"$f":"IF(CategoryColumn=\"\",\"\",VLOOKUP(CategoryColumn,ProForma,MATCH(YearRow,ProFormaYears,0)+1,FALSE))","v":381842.34097999998},{"$f":"CGS!D4","v":{"$error":"#NAME?"}},{"$f":"IF(CategoryColumn=\"\",\"\",VLOOKUP(CategoryColumn,ProForma,MATCH(YearRow,ProFormaYears,0)+1,FALSE))","v":348985.04602000001},{"$f":"CGS!E4","v":{"$error":"#NAME?"}},{"$f":"IF(CategoryColumn=\"\",\"\",VLOOKUP(CategoryColumn,ProForma,MATCH(YearRow,ProFormaYears,0)+1,FALSE))","v":413666.16600999999},{"$f":"CGS!F4","v":{"$error":"#NAME?"}},380973.51395999995,{"$f":"CGS!G4","v":{"$error":"#NAME?"}},null,{"$f":"IF(COUNT(C6:D6)>0,D6-C6,\"\")","v":{"$error":"#NAME?"}},{"$f":"IF(COUNT(E6:F6)>0,F6-E6,\"\")","v":{"$error":"#NAME?"}},{"$f":"IF(COUNT(G6:H6)>0,H6-G6,\"\")","v":{"$error":"#NAME?"}},{"$f":"IF(COUNT(I6:J6)>0,J6-I6,\"\")","v":{"$error":"#NAME?"}}]
[null,"Bureau Of Reclamation",{"$f":"IF(CategoryColumn=\"\",\"\",VLOOKUP(CategoryColumn,ProForma,MATCH(YearRow,ProFormaYears,0)+1,FALSE))","v":180760.00002000001},{"$f":"'Corps & Bureau O&M'!D21","v":{"$error":"#NAME?"}},195235.00005999999,{"$f":"'Corps & Bureau O&M'!F21","v":{"$error":"#NAME?"}},206763.00003999998,{"$f":"'Corps & Bureau O&M'!H21","v":{"$error":"#NAME?"}},208089.00005999999,{"$f":"'Corps & Bureau O&M'!J21","v":{"$error":"#NAME?"}},null,{"$f":"IF(COUNT(C7:D7)>0,D7-C7,\"\")","v":{"$error":"#NAME?"}},{"$f":"IF(COUNT(E7:F7)>0,F7-E7,\"\")","v":{"$error":"#NAME?"}},{"$f":"IF(COUNT(G7:H7)>0,H7-G7,\"\")","v":{"$error":"#NAME?"}},{"$error":"#NAME?"}]
[null,"Corps of Engineers",{"$f":"IF(CategoryColumn=\"\",\"\",VLOOKUP(CategoryColumn,ProForma,MATCH(YearRow,ProFormaYears,0)+1,FALSE))","v":278292.03000000009},{"$f":"'Corps & Bureau O&M'!D5","v":{"$error":"#NAME?"}},292351.00003,{"$f":"'Corps & Bureau O&M'!F5","v":{"$error":"#NAME?"}},316276.00004000001,{"$f":"'Corps & Bureau O&M'!H5","v":{"$error":"#NAME?"}},341040.00005000003,{"$f":"'Corps & Bureau O&M'!J5","v":{"$error":"#NAME?"}},null,{"$error":"#NAME?"},{"$error":"#NAME?"},{"$error":"#NAME?"},{"$error":"#NAME?"}]
[null,"Conservation Purchases",{"$f":"IF(CategoryColumn=\"\",\"\",VLOOKUP(CategoryColumn,ProForma,MATCH(YearRow,ProFormaYears,0)+1,FALSE))","v":69027.249000000011},{"$f":"_xll.RiskPert(C9*0.9,C9,C9*1.05)","v":{"$error":"#NAME?"}},65384.523999999998,{"$f":"_xll.RiskPert(E9*0.9,E9,E9*1.05)","v":{"$error":"#NAME?"}},65384.523999999998,{"$f":"_xll.RiskPert(G9*0.9,G9,G9*1.05)","v":{"$error":"#NAME?"}},86512.69898999999,{"$f":"_xll.RiskPert(I9*0.9,I9,I9*1.05)","v":{"$error":"#NAME?"}},null,{"$error":"#NAME?"},{"$error":"#NAME?"},{"$error":"#NAME?"},{"$error":"#NAME?"}]
[null,"Low Income Weatherization & Tribal",{"$f":"IF(CategoryColumn=\"\",\"\",VLOOKUP(CategoryColumn,ProForma,MATCH(YearRow,ProFormaYears,0)+1,FALSE))","v":6005.0000099999997},{"$f":"_xll.RiskPert(C10*0.95,C10,C10*1.05)","v":{"$error":"#NAME?"}},6005.0000099999997,{"$f":"_xll.RiskPert(E10*0.95,E10,E10*1.05)","v":{"$error":"#NAME?"}},6005.0000099999997,{"$f":"_xll.RiskPert(G10*0.95,G10,G10*1.05)","v":{"$error":"#NAME?"}},6005.0000099999997,{"$f":"_xll.RiskPert(I10*0.95,I10,I10*1.05)","v":{"$error":"#NAME?"}},null,{"$error":"#NAME?"},{"$error":"#NAME?"},{"$error":"#NAME?"},{"$error":"#NAME?"}]
[null,"3rd Party GTA Wheeling",{"$f":"IF(CategoryColumn=\"\",\"\",VLOOKUP(CategoryColumn,ProForma,MATCH(YearRow,ProFormaYears,0)+1,FALSE))","v":92597.798999999999},{"$f":"_xll.RiskPert(C11*0.96,C11,C11*1.02)","v":{"$error":"#NAME?"}},92597.8,{"$f":"_xll.RiskPert(E11*0.96,E11,E11*1.02)","v":{"$error":"#NAME?"}},94644.300010000006,{"$f":"_xll.RiskPert(G11*0.96,G11,G11*1.03)","v":{"$error":"#NAME?"}},96736,{"$f":"_xll.RiskPert(I11*0.96,I11,I11*1.03)","v":{"$error":"#NAME?"}},null,{"$error":"#NAME?"},{"$error":"#NAME?"},{"$error":"#NAME?"},{"$error":"#NAME?"}]
[null,"PS - 3rd Party Trans & Ancillary Svcs",3299.9999900000003,{"$f":"_xll.RiskPert(C12,C12,C12*1.05)","v":{"$error":"#NAME?"}},{"$f":"IF(CategoryColumn=\"\",\"\",VLOOKUP(CategoryColumn,ProForma,MATCH(YearRow,ProFormaYears,0)+1,FALSE))","v":3299.9999900000003},{"$f":"_xll.RiskPert(E12,E12,E12*1.05^2)","v":{"$error":"#NAME?"}},3299.9999900000003,{"$f":"_xll.RiskPert(G12,G12,G12*1.05^3)","v":{"$error":"#NAME?"}},3299.9999900000003,{"$f":"_xll.RiskPert(I12,I12,I12*1.05^3)","v":{"$error":"#NAME?"}},null,{"$error":"#NAME?"},{"$error":"#NAME?"},{"$error":"#NAME?"},{"$error":"#NAME?"}]
[null,"Fish & Wildlife",264691.40234000003,{"$f":"'F&W Expense'!D6","v":{"$error":"#NAME?"}},275484.40437,{"$f":"'F&W Expense'!F6","v":{"$error":"#NAME?"}},282484.00938,{"$f":"'F&W Expense'!H6","v":{"$error":"#NAME?"}},289505.02122000005,{"$f":"'F&W Expense'!J6","v":{"$error":"#NAME?"}},null,{"$f":"IF(COUNT(C13:D13)>0,D13-C13,\"\")","v":{"$error":"#NAME?"}},{"$f":"IF(COUNT(E13:F13)>0,F13-E13,\"\")","v":{"$error":"#NAME?"}},{"$f":"IF(COUNT(G13:H13)>0,H13-G13,\"\")","v":{"$error":"#NAME?"}},{"$error":"#NAME?"}]
[null,"USF&W Lower Snake Hatcheries",32934.828999999998,{"$f":"'F&W Expense'!D24","v":{"$error":"#NAME?"}},33776.71299,{"$f":"'F&W Expense'!F24","v":{"$error":"#NAME?"}},34706.836990000003,{"$f":"'F&W Expense'!H24","v":{"$error":"#NAME?"}},35668.559999999998,{"$f":"'F&W Expense'!J24","v":{"$error":"#NAME?"}},null,{"$f":"IF(COUNT(C14:D14)>0,D14-C14,\"\")","v":{"$error":"#NAME?"}},{"$f":"IF(COUNT(E14:F14)>0,F14-E14,\"\")","v":{"$error":"#NAME?"}},{"$f":"IF(COUNT(G14:H14)>0,H14-G14,\"\")","v":{"$error":"#NAME?"}},{"$error":"#NAME?"}]
[null,"Non-Federal Interest Expense",216672.09887999998,{"$f":"_xll.RiskNormal(C15,1700)","v":{"$error":"#NAME?"}},254601.42300000004,{"$f":"_xll.RiskNormal(E15,2200)","v":{"$error":"#NAME?"}},260748.62899999999,{"$f":"_xll.RiskNormal(G15,3800)","v":{"$error":"#NAME?"}},264382.01700000005,{"$f":"_xll.RiskNormal(I15,3800)","v":{"$error":"#NAME?"}},null,{"$f":"IF(COUNT(C15:D15)>0,D15-C15,\"\")","v":{"$error":"#NAME?"}},{"$f":"IF(COUNT(E15:F15)>0,F15-E15,\"\")","v":{"$error":"#NAME?"}},{"$f":"IF(COUNT(G15:H15)>0,H15-G15,\"\")","v":{"$error":"#NAME?"}},{"$error":"#NAME?"}]
[null,"Interest Income",-32748.031080000001,{"$f":"_xll.RiskUniform(C16,0)","v":{"$error":"#NAME?"}},-40116.016600146533,{"$f":"_xll.RiskUniform(E16,0)","v":{"$error":"#NAME?"}},-40348.070665717954,{"$f":"_xll.RiskUniform(G16,0)","v":{"$error":"#NAME?"}},-41962.12502335864,{"$f":"_xll.RiskUniform(I16,0)","v":{"$error":"#NAME?"}},null,{"$error":"#NAME?"},{"$error":"#NAME?"},{"$error":"#NAME?"},{"$error":"#NAME?"}]
[]
[null,"Base Expenses Delta","Decreases Net Revenue",null,null,null,null,null,null,null,null,{"$f":"SUM(L6:L16)","v":{"$error":"#NAME?"}},{"$f":"SUM(M6:M16)","v":{"$error":"#NAME?"}},{"$f":"SUM(N6:N16)","v":{"$error":"#NAME?"}},{"$f":"SUM(O6:O16)","v":{"$error":"#NAME?"}}]
[null,"Expense Slice True-up","Decreases Net Revenue",null,null,null,null,null,null,null,null,{"$f":"(L18*Slice0*-1)","v":{"$error":"#NAME?"}},{"$f":"(M18*Slice1*-1)","v":{"$error":"#NAME?"}},{"$f":"(N18*Slice2*-1)","v":{"$error":"#NAME?"}},{"$f":"(O18*Slice3*-1)","v":{"$error":"#NAME?"}}]
[]
[null,"Revenue Delta",null,null,null,null,null,null,null,null,null,{"$f":"-L18-L19","v":{"$error":"#NAME?"}},{"$f":"-M18-M19","v":{"$error":"#NAME?"}},{"$error":"#NAME?"},{"$error":"#NAME?"}]
[]
[null,null,null,null,null,null,null,null,null,null,null,"Slice0","Slice1","Slice2","Slice3"]
[null,null,null,null,null,null,null,null,null,null,null,0.26600000000000001,0.11749999999999999,{"$f":"Slice1","v":0.11749999999999999},{"$f":"Slice1","v":0.11749999999999999}]

{"sheet":"RiskRGCGSR26C11","index":1,"n_rows":2821,"n_cols":6,"rows_kept":2821,"cut":false,"hidden":true,"merged":[]}
[]
[]
[]
[]
[]
[]
[]
[]
[]
[]
[]
[]
[]
[]
[]
[]
[]
[]
[]
[]
[]
[]
[]
[]
[]
[]
[]
[]
[]
[]
[]
[]
["Del X","Del Y",null,null,"X1","Y1"]
[291056.5337796972,0.09,null,null,288867.20558004774,0.03]
[308900.89646924601,0.09,null,null,290113.37561995775,0.03]
[288028.26688984863,0.09,null,null,291359.54565986776,4.0000000000000008E-2]
[299978.71512447158,0.09,null,null,292605.71569977776,7.0000000000000007E-2]
[311950.44823462301,0.09,null,null,293851.88573968771,4.9999999999999989E-2]
[null,null,null,null,295098.05577959772,7.9999999999999988E-2]
[null,null,null,null,296344.22581950773,8.0000000000000016E-2]
[null,null,null,null,297590.39585941774,8.0000000000000016E-2]
[null,null,null,null,298836.56589932775,8.0000000000000016E-2]
[null,null,null,null,300082.73593923775,6.9999999999999951E-2]
[null,null,null,null,301328.90597914776,7.999999999999996E-2]
[null,null,null,null,302575.07601905771,7.0000000000000062E-2]
[null,null,null,null,303821.24605896772,5.9999999999999942E-2]
[null,null,null,null,305067.41609887773,4.0000000000000036E-2]
[null,null,null,null,306313.58613878774,5.0000000000000044E-2]
[null,null,null,null,307559.75617869775,2.9999999999999916E-2]
[null,null,null,null,308805.92621860775,2.0000000000000018E-2]
[null,null,null,null,310052.0962585177,2.0000000000000018E-2]
[null,null,null,null,311298.26629842771,1.0000000000000009E-2]
[null,null,null,null,312544.43633833772,1.0000000000000009E-2]
[null,null,null,null,313790.60637824773,0]
[]
[]
[]
[]
[]
[]
[]
[]
[]
[]
[]
[]
[]
[]
[]
[]
[]
[]
[]
[]
[]
[]
[]
[]
[]
[]
[]
[]
[]
[]
[]
[]
[]
[]
[]
[]
[]
[]
[]
[]
[]
[]
[]
[]
[]
[]
[]
[]
[]
[]
[]
[]
[]
[]
[]
[]
[]
[]
[]
[]
[]
[]
[]
[]
[]
[]
[]
[]
[]
[]
[]
[]
[]
[]
[]
[]
[]
[]
[]
[]
[]
[]
[]
[]
[]
[]
[]
[]
[]
[]
[]
[]
[]
[]
[]
[]
[]
[]
[]
[]
[]
[]
[]
[]
[]
[]
[]
[]
[]
[]
[]
[]
[]
[]
[]
[]
[]
[]
[]
[]
[]
[]
[]
[]
[]
[]
[]
[]
[]
[]
[]
[]
[]
[]
[]
[]
[]
[]
[]
[]
[]
[]
[]
[]
[]
[]
[]
[]
[]
[]
[]
[]
[]
[]
[]
[]
[]
[]
[]
[]
[]
[]
[]
[]
[]
[]
[]
[]
[]
[]
[]
[]
[]
[]
[]
[]
[]
[]
[]
[]
[]
[]
[]
[]
[]
[]
[]
[]
[]
[]
[]
[]
[]
[]
[]
[]
[]
[]
[]
[]
[]
[]
[]
[]
[]
[]
[]
[]
[]
[]
[]
[]
[]
[]
[]
[]
[]
[]
[]
[]
[]
[]
[]
[]
[]
[]
[]
[]
[]
[]
[]
[]
[]
[]
[]
[]
[]
[]
[]
[]
[]
[]
[]
[]
[]
[]
[]
[]
[]
[]
[]
[]
[]
[]
[]
[]
[]
[]
[]
[]
[]
[]
[]
[]
[]
[]
[]
[]
[]
[]
[]
[]
[]
[]
[]
[]
[]
[]
[]
[]
[]
[]
[]
[]
[]
[]
[]
[]
[]
[]
[]
[]
[]
[]
[]
[]
[]
[]
[]
[]
[]
[]
[]
[]
[]
[]
[]
[]
[]
[]
[]
[]
[]
[]
[]
[]
[]
[]
[]
[]
[]
[]
[]
[]
[]
[]
[]
[]
[]
[]
[]
[]
[]
[]
[]
[]
[]
[]
[]
[]
[]
[]
[]
[]
[]
[]
[]
[]
[]
[]
[]
[]
[]
[]
[]
[]
[]
[]
[]
[]
[]
[]
[]
[]
[]
[]
[]
[]
[]
[]
[]
[]
[]
[]
[]
[]
[]
[]
[]
[]
[]
[]
[]
[]
[]
[]
[]
[]
[]
[]
[]
[]
[]
[]
[]
[]
[]
[]
[]
[]
[]
[]
[]
[]
[]
[]
[]
[]
[]
[]
[]
[]
[]
[]
[]
[]
[]
[]
[]
[]
[]
[]
[]
[]
[]
[]
[]
[]
[]
[]
[]
[]
[]
[]
[]
[]
[]
[]
[]
[]
[]
[]
[]
[]
[]
[]
[]
[]
[]
[]
[]
[]
[]
[]
[]
[]
[]
[]
[]
[]
[]
[]
[]
[]
[]
[]
[]
[]
[]
[]
[]
[]
[]
[]
[]
[]
[]
[]
[]
[]
[]
[]
[]
[]
[]
[]
[]
[]
[]
[]
[]
[]
[]
[]
[]
[]
[]
[]
[]
[]
[]
[]
[]
[]
[]
[]
[]
[]
[]
[]
[]
[]
[]
[]
[]
[]
[]
[]
[]
[]
[]
[]
[]
[]
[]
[]
[]
[]
[]
[]
[]
[]
[]
[]
[]
[]
[]
[]
[]
[]
[]
[]
[]
[]
[]
[]
[]
[]
[]
[]
[]
[]
[]
[]
[]
[]
[]
[]
[]
[]
[]
[]
[]
[]
[]
[]
[]
[]
[]
[]
[]
[]
[]
[]
[]
[]
[]
[]
[]
[]
[]
[]
[]
[]
[]
[]
[]
[]
[]
[]
[]
[]
[]
[]
[]
[]
[]
[]
[]
[]
[]
[]
[]
[]
[]
[]
[]
[]
[]
[]
[]
[]
[]
[]
[]
[]
[]
[]
[]
[]
[]
[]
[]
[]
[]
[]
[]
[]
[]
[]
[]
[]
[]
[]
[]
[]
[]
[]
[]
[]
[]
[]
[]
[]
[]
[]
[]
[]
[]
[]
[]
[]
[]
[]
[]
[]
[]
[]
[]
[]
[]
[]
[]
[]
[]
[]
[]
[]
[]
[]
[]
[]
[]
[]
[]
[]
[]
[]
[]
[]
[]
[]
[]
[]
[]
[]
[]
[]
[]
[]
[]
[]
[]
[]
[]
[]
[]
[]
[]
[]
[]
[]
[]
[]
[]
[]
[]
[]
[]
[]
[]
[]
[]
[]
[]
[]
[]
[]
[]
[]
[]
[]
[]
[]
[]
[]
[]
[]
[]
[]
[]
[]
[]
[]
[]
[]
[]
[]
[]
[]
[]
[]
[]
[]
[]
[]
[]
[]
[]
[]
[]
[]
[]
[]
[]
[]
[]
[]
[]
[]
[]
[]
[]
[]
[]
[]
[]
[]
[]
[]
[]
[]
[]
[]
[]
[]
[]
[]
[]
[]
[]
[]
[]
[]
[]
[]
[]
[]
[]
[]
[]
[]
[]
[]
[]
[]
[]
[]
[]
[]
[]
[]
[]
[]
[]
[]
[]
[]
[]
[]
[]
[]
[]
[]
[]
[]
[]
[]
[]
[]
[]
[]
[]
[]
[]
[]
[]
[]
[]
[]
[]
[]
[]
[]
[]
[]
[]
[]
[]
[]
[]
[]
[]
[]
[]
[]
[]
[]
[]
[]
[]
[]
[]
[]
[]
[]
[]
[]
[]
[]
[]
[]
[]
[]
[]
[]
[]
[]
[]
[]
[]
[]
[]
[]
[]
[]
[]
[]
[]
[]
[]
[]
[]
[]
[]
[]
[]
[]
[]
[]
[]
[]
[]
[]
[]
[]
[]
[]
[]
[]
[]
[]
[]
[]
[]
[]
[]
[]
[]
[]
[]
[]
[]
[]
[]
[]
[]
[]
[]
[]
[]
[]
[]
[]
[]
[]
[]
[]
[]
[]
[]
[]
[]
[]
[]
[]
[]
[]
[]
[]
[]
[]
[]
[]
[]
[]
[]
[]
[]
[]
[]
[]
[]
[]
[]
[]
[]
[]
[]
[]
[]
[]
[]
[]
[]
[]
[]
[]
[]
[]
[]
[]
[]
[]
[]
[]
[]
[]
[]
[]
[]
[]
[]
[]
[]
[]
[]
[]
[]
[]
[]
[]
[]
[]
[]
[]
[]
[]
[]
[]
[]
[]
[]
[]
[]
[]
[]
[]
[]
[]
[]
[]
[]
[]
[]
[]
[]
[]
[]
[]
[]
[]
[]
[]
[]
[]
[]
[]
[]
[]
[]
[]
[]
[]
[]
[]
[]
[]
[]
[]
[]
[]
[]
[]
[]
[]
[]
[]
[]
[]
[]
[]
[]
[]
[]
[]
[]
[]
[]
[]
[]
[]
[]
[]
[]
[]
[]
[]
[]
[]
[]
[]
[]
[]
[]
[]
[]
[]
[]
[]
[]
[]
[]
[]
[]
[]
[]
[]
[]
[]
[]
[]
[]
[]
[]
[]
[]
[]
[]
[]
[]
[]
[]
[]
[]
[]
[]
[]
[]
[]
[]
[]
[]
[]
[]
[]
[]
[]
[]
[]
[]
[]
[]
[]
[]
[]
[]
[]
[]
[]
[]
[]
[]
[]
[]
[]
[]
[]
[]
[]
[]
[]
[]
[]
[]
[]
[]
[]
[]
[]
[]
[]
[]
[]
[]
[]
[]
[]
[]
[]
[]
[]
[]
[]
[]
[]
[]
[]
[]
[]
[]
[]
[]
[]
[]
[]
[]
[]
[]
[]
[]
[]
[]
[]
[]
[]
[]
[]
[]
[]
[]
[]
[]
[]
[]
[]
[]
[]
[]
[]
[]
[]
[]
[]
[]
[]
[]
[]
[]
[]
[]
[]
[]
[]
[]
[]
[]
[]
[]
[]
[]
[]
[]
[]
[]
[]
[]
[]
[]
[]
[]
[]
[]
[]
[]
[]
[]
[]
[]
[]
[]
[]
[]
[]
[]
[]
[]
[]
[]
[]
[]
[]
[]
[]
[]
[]
[]
[]
[]
[]
[]
[]
[]
[]
[]
[]
[]
[]
[]
[]
[]
[]
[]
[]
[]
[]
[]
[]
[]
[]
[]
[]
[]
[]
[]
[]
[]
[]
[]
[]
[]
[]
[]
[]
[]
[]
[]
[]
[]
[]
[]
[]
[]
[]
[]
[]
[]
[]
[]
[]
[]
[]
[]
[]
[]
[]
[]
[]
[]
[]
[]
[]
[]
[]
[]
[]
[]
[]
[]
[]
[]
[]
[]
[]
[]
[]
[]
[]
[]
[]
[]
[]
[]
[]
[]
[]
[]
[]
[]
[]
[]
[]
[]
[]
[]
[]
[]
[]
[]
[]
[]
[]
[]
[]
[]
[]
[]
[]
[]
[]
[]
[]
[]
[]
[]
[]
[]
[]
[]
[]
[]
[]
[]
[]
[]
[]
[]
[]
[]
[]
[]
[]
[]
[]
[]
[]
[]
[]
[]
[]
[]
[]
[]
[]
[]
[]
[]
[]
[]
[]
[]
[]
[]
[]
[]
[]
[]
[]
[]
[]
[]
[]
[]
[]
[]
[]
[]
[]
[]
[]
[]
[]
[]
[]
[]
[]
[]
[]
[]
[]
[]
[]
[]
[]
[]
[]
[]
[]
[]
[]
[]
[]
[]
[]
[]
[]
[]
[]
[]
[]
[]
[]
[]
[]
[]
[]
[]
[]
[]
[]
[]
[]
[]
[]
[]
[]
[]
[]
[]
[]
[]
[]
[]
[]
[]
[]
[]
[]
[]
[]
[]
[]
[]
[]
[]
[]
[]
[]
[]
[]
[]
[]
[]
[]
[]
[]
[]
[]
[]
[]
[]
[]
[]
[]
[]
[]
[]
[]
[]
[]
[]
[]
[]
[]
[]
[]
[]
[]
[]
[]
[]
[]
[]
[]
[]
[]
[]
[]
[]
[]
[]
[]
[]
[]
[]
[]
[]
[]
[]
[]
[]
[]
[]
[]
[]
[]
[]
[]
[]
[]
[]
[]
[]
[]
[]
[]
[]
[]
[]
[]
[]
[]
[]
[]
[]
[]
[]
[]
[]
[]
[]
[]
[]
[]
[]
[]
[]
[]
[]
[]
[]
[]
[]
[]
[]
[]
[]
[]
[]
[]
[]
[]
[]
[]
[]
[]
[]
[]
[]
[]
[]
[]
[]
[]
[]
[]
[]
[]
[]
[]
[]
[]
[]
[]
[]
[]
[]
[]
[]
[]
[]
[]
[]
[]
[]
[]
[]
[]
[]
[]
[]
[]
[]
[]
[]
[]
[]
[]
[]
[]
[]
[]
[]
[]
[]
[]
[]
[]
[]
[]
[]
[]
[]
[]
[]
[]
[]
[]
[]
[]
[]
[]
[]
[]
[]
[]
[]
[]
[]
[]
[]
[]
[]
[]
[]
[]
[]
[]
[]
[]
[]
[]
[]
[]
[]
[]
[]
[]
[]
[]
[]
[]
[]
[]
[]
[]
[]
[]
[]
[]
[]
[]
[]
[]
[]
[]
[]
[]
[]
[]
[]
[]
[]
[]
[]
[]
[]
[]
[]
[]
[]
[]
[]
[]
[]
[]
[]
[]
[]
[]
[]
[]
[]
[]
[]
[]
[]
[]
[]
[]
[]
[]
[]
[]
[]
[]
[]
[]
[]
[]
[]
[]
[]
[]
[]
[]
[]
[]
[]
[]
[]
[]
[]
[]
[]
[]
[]
[]
[]
[]
[]
[]
[]
[]
[]
[]
[]
[]
[]
[]
[]
[]
[]
[]
[]
[]
[]
[]
[]
[]
[]
[]
[]
[]
[]
[]
[]
[]
[]
[]
[]
[]
[]
[]
[]
[]
[]
[]
[]
[]
[]
[]
[]
[]
[]
[]
[]
[]
[]
[]
[]
[]
[]
[]
[]
[]
[]
[]
[]
[]
[]
[]
[]
[]
[]
[]
[]
[]
[]
[]
[]
[]
[]
[]
[]
[]
[]
[]
[]
[]
[]
[]
[]
[]
[]
[]
[]
[]
[]
[]
[]
[]
[]
[]
[]
[]
[]
[]
[]
[]
[]
[]
[]
[]
[]
[]
[]
[]
[]
[]
[]
[]
[]
[]
[]
[]
[]
[]
[]
[]
[]
[]
[]
[]
[]
[]
[]
[]
[]
[]
[]
[]
[]
[]
[]
[]
[]
[]
[]
[]
[]
[]
[]
[]
[]
[]
[]
[]
[]
[]
[]
[]
[]
[]
[]
[]
[]
[]
[]
[]
[]
[]
[]
[]
[]
[]
[]
[]
[]
[]
[]
[]
[]
[]
[]
[]
[]
[]
[]
[]
[]
[]
[]
[]
[]
[]
[]
[]
[]
[]
[]
[]
[]
[]
[]
[]
[]
[]
[]
[]
[]
[]
[]
[]
[]
[]
[]
[]
[]
[]
[]
[]
[]
[]
[]
[]
[]
[]
[]
[]
[]
[]
[]
[]
[]
[]
[]
[]
[]
[]
[]
[]
[]
[]
[]
[]
[]
[]
[]
[]
[]
[]
[]
[]
[]
[]
[]
[]
[]
[]
[]
[]
[]
[]
[]
[]
[]
[]
[]
[]
[]
[]
[]
[]
[]
[]
[]
[]
[]
[]
[]
[]
[]
[]
[]
[]
[]
[]
[]
[]
[]
[]
[]
[]
[]
[]
[]
[]
[]
[]
[]
[]
[]
[]
[]
[]
[]
[]
[]
[]
[]
[]
[]
[]
[]
[]
[]
[]
[]
[]
[]
[]
[]
[]
[]
[]
[]
[]
[]
[]
[]
[]
[]
[]
[]
[]
[]
[]
[]
[]
[]
[]
[]
[]
[]
[]
[]
[]
[]
[]
[]
[]
[]
[]
[]
[]
[]
[]
[]
[]
[]
[]
[]
[]
[]
[]
[]
[]
[]
[]
[]
[]
[]
[]
[]
[]
[]
[]
[]
[]
[]
[]
[]
[]
[]
[]
[]
[]
[]
[]
[]
[]
[]
[]
[]
[]
[]
[]
[]
[]
[]
[]
[]
[]
[]
[]
[]
[]
[]
[]
[]
[]
[]
[]
[]
[]
[]
[]
[]
[]
[]
[]
[]
[]
[]
[]
[]
[]
[]
[]
[]
[]
[]
[]
[]
[]
[]
[]
[]
[]
[]
[]
[]
[]
[]
[]
[]
[]
[]
[]
[]
[]
[]
[]
[]
[]
[]
[]
[]
[]
[]
[]
[]
[]
[]
[]
[]
[]
[]
[]
[]
[]
[]
[]
[]
[]
[]
[]
[]
[]
[]
[]
[]
[]
[]
[]
[]
[]
[]
[]
[]
[]
[]
[]
[]
[]
[]
[]
[]
[]
[]
[]
[]
[]
[]
[]
[]
[]
[]
[]
[]
[]
[]
[]
[]
[]
[]
[]
[]
[]
[]
[]
[]
[]
[]
[]
[]
[]
[]
[]
[]
[]
[]
[]
[]
[]
[]
[]
[]
[]
[]
[]
[]
[]
[]
[]
[]
[]
[]
[]
[]
[]
[]
[]
[]
[]
[]
[]
[]
[]
[]
[]
[]
[]
[]
[]
[]
[]
[]
[]
[]
[]
[]
[]
[]
[]
[]
[]
[]
[]
[]
[]
[]
[]
[]
[]
[]
[]
[]
[]
[]
[]
[]
[]
[]
[]
[]
[]
[]
[]
[]
[]
[]
[]
[]
[]
[]
[]
[]
[]
[]
[]
[]
[]
[]
[]
[]
[]
[]
[]
[]
[]
[]
[]
[]
[]
[]
[]
[]
[]
[]
[]
[]
[]
[]
[]
[]
[]
[]
[]
[]
[]
[]
[]
[]
[]
[]
[]
[]
[]
[]
[]
[]
[]
[]
[]
[]
[]
[]
[]
[]
[]
[]
[]
[]
[]
[]
[]
[]
[]
[]
[]
[]
[]
[]
[]
[null,"XFill1",{"$f":"\"CGS Total O&M / FY14\"","v":"CGS Total O&M / FY14"},"XLine1",{"$f":"\"CGS Total O&M / FY14\"","v":"CGS Total O&M / FY14"}]
[null,288867.20558004774,{"$f":"0","v":0},288867.20558004774,0]
[null,288867.20558004774,{"$f":"$F$34","v":0.03},288867.20558004774,0]
[null,288966.89918324054,0.03,288867.20558004774,{"$f":"$F$34","v":0.03}]
[null,289066.59278643335,0.03,290113.37561995775,{"$f":"$F$34","v":0.03}]
[null,289166.28638962616,0.03,290113.37561995775,0]
[null,289265.97999281896,0.03,290113.37561995775,{"$f":"$F$35","v":0.03}]
[null,289365.67359601177,0.03,291359.54565986776,{"$f":"$F$35","v":0.03}]
[null,289465.36719920451,0.03,291359.54565986776,0]
[null,289565.06080239732,0.03,291359.54565986776,{"$f":"$F$36","v":4.0000000000000008E-2}]
[null,289664.75440559012,0.03,292605.71569977776,{"$f":"$F$36","v":4.0000000000000008E-2}]
[null,289764.44800878293,0.03,292605.71569977776,0]
[null,289864.14161197573,0.03,292605.71569977776,{"$f":"$F$37","v":7.0000000000000007E-2}]
[null,289963.83521516854,0.03,293851.88573968771,{"$f":"$F$37","v":7.0000000000000007E-2}]
[null,290063.52881836134,0.03,293851.88573968771,0]
[null,290113.37561995775,0.03,293851.88573968771,{"$f":"$F$38","v":4.9999999999999989E-2}]
[null,290113.37561995775,0,295098.05577959772,{"$f":"$F$38","v":4.9999999999999989E-2}]
[null,290113.37561995775,{"$f":"0","v":0},295098.05577959772,0]
[null,290113.37561995775,{"$f":"$F$35","v":0.03},295098.05577959772,{"$f":"$F$39","v":7.9999999999999988E-2}]
[null,290213.06922315055,0.03,296344.22581950773,{"$f":"$F$39","v":7.9999999999999988E-2}]
[null,290312.76282634336,0.03,296344.22581950773,0]
[null,290412.45642953616,0.03,296344.22581950773,{"$f":"$F$40","v":8.0000000000000016E-2}]
[null,290512.15003272897,0.03,297590.39585941774,{"$f":"$F$40","v":8.0000000000000016E-2}]
[null,290611.84363592177,0.03,297590.39585941774,0]
[null,290711.53723911452,0.03,297590.39585941774,{"$f":"$F$41","v":8.0000000000000016E-2}]
[null,290811.23084230733,0.03,298836.56589932775,{"$f":"$F$41","v":8.0000000000000016E-2}]
[null,290910.92444550013,0.03,298836.56589932775,0]
[null,291010.61804869294,0.03,298836.56589932775,{"$f":"$F$42","v":8.0000000000000016E-2}]
[null,291110.31165188574,0.03,300082.73593923775,{"$f":"$F$42","v":8.0000000000000016E-2}]
[null,291210.00525507855,0.03,300082.73593923775,0]
[null,291309.69885827135,0.03,300082.73593923775,{"$f":"$F$43","v":6.9999999999999951E-2}]
[null,291359.54565986776,0.03,301328.90597914776,{"$f":"$F$43","v":6.9999999999999951E-2}]
[null,291359.54565986776,0,301328.90597914776,0]
[null,291359.54565986776,{"$f":"0","v":0},301328.90597914776,{"$f":"$F$44","v":7.999999999999996E-2}]
[null,291359.54565986776,{"$f":"$F$36","v":4.0000000000000008E-2},302575.07601905771,{"$f":"$F$44","v":7.999999999999996E-2}]
[null,291459.23926306056,4.0000000000000008E-2,302575.07601905771,0]
[null,291558.93286625337,4.0000000000000008E-2,302575.07601905771,{"$f":"$F$45","v":7.0000000000000062E-2}]
[null,291658.62646944617,4.0000000000000008E-2,303821.24605896772,{"$f":"$F$45","v":7.0000000000000062E-2}]
[null,291758.32007263898,4.0000000000000008E-2,303821.24605896772,0]
[null,291858.01367583178,4.0000000000000008E-2,303821.24605896772,{"$f":"$F$46","v":5.9999999999999942E-2}]
[null,291957.70727902453,4.0000000000000008E-2,305067.41609887773,{"$f":"$F$46","v":5.9999999999999942E-2}]
[null,292057.40088221733,4.0000000000000008E-2,305067.41609887773,0]
[null,292157.09448541014,4.0000000000000008E-2,305067.41609887773,{"$f":"$F$47","v":4.0000000000000036E-2}]
[null,292256.78808860295,4.0000000000000008E-2,306313.58613878774,{"$f":"$F$47","v":4.0000000000000036E-2}]
[null,292356.48169179575,4.0000000000000008E-2,306313.58613878774,0]
[null,292456.17529498856,4.0000000000000008E-2,306313.58613878774,{"$f":"$F$48","v":5.0000000000000044E-2}]
[null,292555.86889818136,4.0000000000000008E-2,307559.75617869775,{"$f":"$F$48","v":5.0000000000000044E-2}]
[null,292605.71569977776,4.0000000000000008E-2,307559.75617869775,0]
[null,292605.71569977776,0,307559.75617869775,{"$f":"$F$49","v":2.9999999999999916E-2}]
[null,292605.71569977776,{"$f":"0","v":0},308805.92621860775,{"$f":"$F$49","v":2.9999999999999916E-2}]
[null,292605.71569977776,{"$f":"$F$37","v":7.0000000000000007E-2},308805.92621860775,0]
[null,292705.40930297057,7.0000000000000007E-2,308805.92621860775,{"$f":"$F$50","v":2.0000000000000018E-2}]
[null,292805.10290616337,7.0000000000000007E-2,310052.0962585177,{"$f":"$F$50","v":2.0000000000000018E-2}]
[null,292904.79650935618,7.0000000000000007E-2,310052.0962585177,0]
[null,293004.49011254899,7.0000000000000007E-2,310052.0962585177,{"$f":"$F$51","v":2.0000000000000018E-2}]
[null,293104.18371574179,7.0000000000000007E-2,311298.26629842771,{"$f":"$F$51","v":2.0000000000000018E-2}]
[null,293203.87731893454,7.0000000000000007E-2,311298.26629842771,0]
[null,293303.57092212734,7.0000000000000007E-2,311298.26629842771,{"$f":"$F$52","v":1.0000000000000009E-2}]
[null,293403.26452532015,7.0000000000000007E-2,312544.43633833772,{"$f":"$F$52","v":1.0000000000000009E-2}]
[null,293502.95812851295,7.0000000000000007E-2,312544.43633833772,0]
[null,293602.65173170576,7.0000000000000007E-2,312544.43633833772,{"$f":"$F$53","v":1.0000000000000009E-2}]
[null,293702.34533489856,7.0000000000000007E-2,313790.60637824773,{"$f":"$F$53","v":1.0000000000000009E-2}]
[null,293802.03893809137,7.0000000000000007E-2,313790.60637824773,0]
[null,293851.88573968771,7.0000000000000007E-2,313790.60637824773,{"$f":"$F$54","v":0}]
[null,293851.88573968771,0,null,{"$f":"$F$54","v":0}]
[null,293851.88573968771,{"$f":"0","v":0},null,0]
[null,293851.88573968771,{"$f":"$F$38","v":4.9999999999999989E-2}]
[null,293951.57934288052,4.9999999999999989E-2]
[null,294051.27294607332,4.9999999999999989E-2]
[null,294150.96654926613,4.9999999999999989E-2]
[null,294250.66015245894,4.9999999999999989E-2]
[null,294350.35375565174,4.9999999999999989E-2]
[null,294450.04735884449,4.9999999999999989E-2]
[null,294549.74096203729,4.9999999999999989E-2]
[null,294649.4345652301,4.9999999999999989E-2]
[null,294749.1281684229,4.9999999999999989E-2]
[null,294848.82177161571,4.9999999999999989E-2]
[null,294948.51537480851,4.9999999999999989E-2]
[null,295048.20897800132,4.9999999999999989E-2]
[null,295098.05577959772,4.9999999999999989E-2]
[null,295098.05577959772,0]
[null,295098.05577959772,{"$f":"0","v":0}]
[null,295098.05577959772,{"$f":"$F$39","v":7.9999999999999988E-2}]
[null,295197.74938279053,7.9999999999999988E-2]
[null,295297.44298598333,7.9999999999999988E-2]
[null,295397.13658917614,7.9999999999999988E-2]
[null,295496.83019236894,7.9999999999999988E-2]
[null,295596.52379556175,7.9999999999999988E-2]
[null,295696.2173987545,7.9999999999999988E-2]
[null,295795.9110019473,7.9999999999999988E-2]
[null,295895.60460514011,7.9999999999999988E-2]
[null,295995.29820833291,7.9999999999999988E-2]
[null,296094.99181152572,7.9999999999999988E-2]
[null,296194.68541471852,7.9999999999999988E-2]
[null,296294.37901791133,7.9999999999999988E-2]
[null,296344.22581950773,7.9999999999999988E-2]
[null,296344.22581950773,0]
[null,296344.22581950773,{"$f":"0","v":0}]
[null,296344.22581950773,{"$f":"$F$40","v":8.0000000000000016E-2}]
[null,296443.91942270054,8.0000000000000016E-2]
[null,296543.61302589334,8.0000000000000016E-2]
[null,296643.30662908615,8.0000000000000016E-2]
[null,296743.00023227895,8.0000000000000016E-2]
[null,296842.69383547176,8.0000000000000016E-2]
[null,296942.3874386645,8.0000000000000016E-2]
[null,297042.08104185731,8.0000000000000016E-2]
[null,297141.77464505011,8.0000000000000016E-2]
[null,297241.46824824292,8.0000000000000016E-2]
[null,297341.16185143573,8.0000000000000016E-2]
[null,297440.85545462853,8.0000000000000016E-2]
[null,297540.54905782134,8.0000000000000016E-2]
[null,297590.39585941774,8.0000000000000016E-2]
[null,297590.39585941774,0]
[null,297590.39585941774,{"$f":"0","v":0}]
[null,297590.39585941774,{"$f":"$F$41","v":8.0000000000000016E-2}]
[null,297690.08946261054,8.0000000000000016E-2]
[null,297789.78306580335,8.0000000000000016E-2]
[null,297889.47666899615,8.0000000000000016E-2]
[null,297989.17027218896,8.0000000000000016E-2]
[null,298088.86387538176,8.0000000000000016E-2]
[null,298188.55747857451,8.0000000000000016E-2]
[null,298288.25108176732,8.0000000000000016E-2]
[null,298387.94468496012,8.0000000000000016E-2]
[null,298487.63828815293,8.0000000000000016E-2]
[null,298587.33189134573,8.0000000000000016E-2]
[null,298687.02549453854,8.0000000000000016E-2]
[null,298786.71909773134,8.0000000000000016E-2]
[null,298836.56589932775,8.0000000000000016E-2]
[null,298836.56589932775,0]
[null,298836.56589932775,{"$f":"0","v":0}]
[null,298836.56589932775,{"$f":"$F$42","v":8.0000000000000016E-2}]
[null,298936.25950252055,8.0000000000000016E-2]
[null,299035.95310571336,8.0000000000000016E-2]
[null,299135.64670890616,8.0000000000000016E-2]
[null,299235.34031209897,8.0000000000000016E-2]
[null,299335.03391529177,8.0000000000000016E-2]
[null,299434.72751848452,8.0000000000000016E-2]
[null,299534.42112167733,8.0000000000000016E-2]
[null,299634.11472487013,8.0000000000000016E-2]
[null,299733.80832806294,8.0000000000000016E-2]
[null,299833.50193125574,8.0000000000000016E-2]
[null,299933.19553444855,8.0000000000000016E-2]
[null,300032.88913764135,8.0000000000000016E-2]
[null,300082.73593923775,8.0000000000000016E-2]
[null,300082.73593923775,0]
[null,300082.73593923775,{"$f":"0","v":0}]
[null,300082.73593923775,{"$f":"$F$43","v":6.9999999999999951E-2}]
[null,300182.42954243056,6.9999999999999951E-2]
[null,300282.12314562337,6.9999999999999951E-2]
[null,300381.81674881617,6.9999999999999951E-2]
[null,300481.51035200898,6.9999999999999951E-2]
[null,300581.20395520178,6.9999999999999951E-2]
[null,300680.89755839453,6.9999999999999951E-2]
[null,300780.59116158733,6.9999999999999951E-2]
[null,300880.28476478014,6.9999999999999951E-2]
[null,300979.97836797294,6.9999999999999951E-2]
[null,301079.67197116575,6.9999999999999951E-2]
[null,301179.36557435856,6.9999999999999951E-2]
[null,301279.05917755136,6.9999999999999951E-2]
[null,301328.90597914776,6.9999999999999951E-2]
[null,301328.90597914776,0]
[null,301328.90597914776,{"$f":"0","v":0}]
[null,301328.90597914776,{"$f":"$F$44","v":7.999999999999996E-2}]
[null,301428.59958234057,7.999999999999996E-2]
[null,301528.29318553337,7.999999999999996E-2]
[null,301627.98678872618,7.999999999999996E-2]
[null,301727.68039191898,7.999999999999996E-2]
[null,301827.37399511179,7.999999999999996E-2]
[null,301927.06759830454,7.999999999999996E-2]
[null,302026.76120149734,7.999999999999996E-2]
[null,302126.45480469015,7.999999999999996E-2]
[null,302226.14840788295,7.999999999999996E-2]
[null,302325.84201107576,7.999999999999996E-2]
[null,302425.53561426856,7.999999999999996E-2]
[null,302525.22921746137,7.999999999999996E-2]
[null,302575.07601905771,7.999999999999996E-2]
[null,302575.07601905771,0]
[null,302575.07601905771,{"$f":"0","v":0}]
[null,302575.07601905771,{"$f":"$F$45","v":7.0000000000000062E-2}]
[null,302674.76962225052,7.0000000000000062E-2]
[null,302774.46322544332,7.0000000000000062E-2]
[null,302874.15682863613,7.0000000000000062E-2]
[null,302973.85043182893,7.0000000000000062E-2]
[null,303073.54403502174,7.0000000000000062E-2]
[null,303173.23763821449,7.0000000000000062E-2]
[null,303272.93124140729,7.0000000000000062E-2]
[null,303372.6248446001,7.0000000000000062E-2]
[null,303472.3184477929,7.0000000000000062E-2]
[null,303572.01205098571,7.0000000000000062E-2]
[null,303671.70565417851,7.0000000000000062E-2]
[null,303771.39925737132,7.0000000000000062E-2]
[null,303821.24605896772,7.0000000000000062E-2]
[null,303821.24605896772,0]
[null,303821.24605896772,{"$f":"0","v":0}]
[null,303821.24605896772,{"$f":"$F$46","v":5.9999999999999942E-2}]
[null,303920.93966216053,5.9999999999999942E-2]
[null,304020.63326535333,5.9999999999999942E-2]
[null,304120.32686854614,5.9999999999999942E-2]
[null,304220.02047173894,5.9999999999999942E-2]
[null,304319.71407493175,5.9999999999999942E-2]
[null,304419.40767812449,5.9999999999999942E-2]
[null,304519.1012813173,5.9999999999999942E-2]
[null,304618.79488451011,5.9999999999999942E-2]
[null,304718.48848770291,5.9999999999999942E-2]
[null,304818.18209089572,5.9999999999999942E-2]
[null,304917.87569408852,5.9999999999999942E-2]
[null,305017.56929728133,5.9999999999999942E-2]
[null,305067.41609887773,5.9999999999999942E-2]
[null,305067.41609887773,0]
[null,305067.41609887773,{"$f":"0","v":0}]
[null,305067.41609887773,{"$f":"$F$47","v":4.0000000000000036E-2}]
[null,305167.10970207053,4.0000000000000036E-2]
[null,305266.80330526334,4.0000000000000036E-2]
[null,305366.49690845615,4.0000000000000036E-2]
[null,305466.19051164895,4.0000000000000036E-2]
[null,305565.88411484176,4.0000000000000036E-2]
[null,305665.5777180345,4.0000000000000036E-2]
[null,305765.27132122731,4.0000000000000036E-2]
[null,305864.96492442011,4.0000000000000036E-2]
[null,305964.65852761292,4.0000000000000036E-2]
[null,306064.35213080572,4.0000000000000036E-2]
[null,306164.04573399853,4.0000000000000036E-2]
[null,306263.73933719133,4.0000000000000036E-2]
[null,306313.58613878774,4.0000000000000036E-2]
[null,306313.58613878774,0]
[null,306313.58613878774,{"$f":"0","v":0}]
[null,306313.58613878774,{"$f":"$F$48","v":5.0000000000000044E-2}]
[null,306413.27974198054,5.0000000000000044E-2]
[null,306512.97334517335,5.0000000000000044E-2]
[null,306612.66694836615,5.0000000000000044E-2]
[null,306712.36055155896,5.0000000000000044E-2]
[null,306812.05415475176,5.0000000000000044E-2]
[null,306911.74775794451,5.0000000000000044E-2]
[null,307011.44136113732,5.0000000000000044E-2]
[null,307111.13496433012,5.0000000000000044E-2]
[null,307210.82856752293,5.0000000000000044E-2]
[null,307310.52217071573,5.0000000000000044E-2]
[null,307410.21577390854,5.0000000000000044E-2]
[null,307509.90937710134,5.0000000000000044E-2]
[null,307559.75617869775,5.0000000000000044E-2]
[null,307559.75617869775,0]
[null,307559.75617869775,{"$f":"0","v":0}]
[null,307559.75617869775,{"$f":"$F$49","v":2.9999999999999916E-2}]
[null,307659.44978189055,2.9999999999999916E-2]
[null,307759.14338508336,2.9999999999999916E-2]
[null,307858.83698827616,2.9999999999999916E-2]
[null,307958.53059146897,2.9999999999999916E-2]
[null,308058.22419466177,2.9999999999999916E-2]
[null,308157.91779785452,2.9999999999999916E-2]
[null,308257.61140104732,2.9999999999999916E-2]
[null,308357.30500424013,2.9999999999999916E-2]
[null,308456.99860743294,2.9999999999999916E-2]
[null,308556.69221062574,2.9999999999999916E-2]
[null,308656.38581381855,2.9999999999999916E-2]
[null,308756.07941701135,2.9999999999999916E-2]
[null,308805.92621860775,2.9999999999999916E-2]
[null,308805.92621860775,0]
[null,308805.92621860775,{"$f":"0","v":0}]
[null,308805.92621860775,{"$f":"$F$50","v":2.0000000000000018E-2}]
[null,308905.61982180056,2.0000000000000018E-2]
[null,309005.31342499336,2.0000000000000018E-2]
[null,309105.00702818617,2.0000000000000018E-2]
[null,309204.70063137898,2.0000000000000018E-2]
[null,309304.39423457178,2.0000000000000018E-2]
[null,309404.08783776453,2.0000000000000018E-2]
[null,309503.78144095733,2.0000000000000018E-2]
[null,309603.47504415014,2.0000000000000018E-2]
[null,309703.16864734294,2.0000000000000018E-2]
[null,309802.86225053575,2.0000000000000018E-2]
[null,309902.55585372855,2.0000000000000018E-2]
[null,310002.24945692136,2.0000000000000018E-2]
[null,310052.0962585177,2.0000000000000018E-2]
[null,310052.0962585177,0]
[null,310052.0962585177,{"$f":"0","v":0}]
[null,310052.0962585177,{"$f":"$F$51","v":2.0000000000000018E-2}]
[null,310151.78986171051,2.0000000000000018E-2]
[null,310251.48346490331,2.0000000000000018E-2]
[null,310351.17706809612,2.0000000000000018E-2]
[null,310450.87067128893,2.0000000000000018E-2]
[null,310550.56427448173,2.0000000000000018E-2]
[null,310650.25787767448,2.0000000000000018E-2]
[null,310749.95148086728,2.0000000000000018E-2]
[null,310849.64508406009,2.0000000000000018E-2]
[null,310949.33868725289,2.0000000000000018E-2]
[null,311049.0322904457,2.0000000000000018E-2]
[null,311148.7258936385,2.0000000000000018E-2]
[null,311248.41949683131,2.0000000000000018E-2]
[null,311298.26629842771,2.0000000000000018E-2]
[null,311298.26629842771,0]
[null,311298.26629842771,{"$f":"0","v":0}]
[null,311298.26629842771,{"$f":"$F$52","v":1.0000000000000009E-2}]
[null,311397.95990162052,1.0000000000000009E-2]
[null,311497.65350481332,1.0000000000000009E-2]
[null,311597.34710800613,1.0000000000000009E-2]
[null,311697.04071119893,1.0000000000000009E-2]
[null,311796.73431439174,1.0000000000000009E-2]
[null,311896.42791758449,1.0000000000000009E-2]
[null,311996.12152077729,1.0000000000000009E-2]
[null,312095.8151239701,1.0000000000000009E-2]
[null,312195.5087271629,1.0000000000000009E-2]
[null,312295.20233035571,1.0000000000000009E-2]
[null,312394.89593354851,1.0000000000000009E-2]
[null,312494.58953674132,1.0000000000000009E-2]
[null,312544.43633833772,1.0000000000000009E-2]
[null,312544.43633833772,0]
[null,312544.43633833772,{"$f":"0","v":0}]
[null,312544.43633833772,{"$f":"$F$53","v":1.0000000000000009E-2}]
[null,312644.12994153053,1.0000000000000009E-2]
[null,312743.82354472333,1.0000000000000009E-2]
[null,312843.51714791614,1.0000000000000009E-2]
[null,312943.21075110894,1.0000000000000009E-2]
[null,313042.90435430175,1.0000000000000009E-2]
[null,313142.59795749449,1.0000000000000009E-2]
[null,313242.2915606873,1.0000000000000009E-2]
[null,313341.9851638801,1.0000000000000009E-2]
[null,313441.67876707291,1.0000000000000009E-2]
[null,313541.37237026572,1.0000000000000009E-2]
[null,313641.06597345852,1.0000000000000009E-2]
[null,313740.75957665133,1.0000000000000009E-2]
[null,313790.60637824773,1.0000000000000009E-2]
[null,313790.60637824773,0]

{"sheet":"CGS","index":2,"n_rows":28,"n_cols":8,"rows_kept":28,"cut":false,"hidden":false,"merged":[]}
[]
[null,"($000)",null,"@Risk"]
[null,null,null,"FY25","FY26","FY27","FY28",{"$f":"E3&\" through \"&G3","v":"FY26 through FY28"}]
["CGS",null,"CGS Total O&M",{"$f":"D5+D15","v":{"$error":"#NAME?"}},{"$f":"_xll.RiskOutput(\"CGS Total O&M / FY14\")+(E5+E15)","v":{"$error":"#NAME?"}},{"$f":"_xll.RiskOutput(\"CGS Total O&M / FY15\")+(F5+F15)","v":{"$error":"#NAME?"}},{"$f":"_xll.RiskOutput(\"CGS Total O&M / FY15\")+(G5+G15)","v":{"$error":"#NAME?"}},{"$f":"_xll.RiskOutput(\"CGS Total O&M / FY14 and FY 15\")+(E4+F4+G4)","v":{"$error":"#NAME?"}}]
[null,"Pert","CGS Base O&M",{"$f":"_xll.RiskPert(D8,D10,D12)","v":{"$error":"#NAME?"}},{"$f":"_xll.RiskPert(E8,E10,E12)","v":{"$error":"#NAME?"}},{"$f":"_xll.RiskPert(F8,F10,F12)","v":{"$error":"#NAME?"}},{"$f":"_xll.RiskPert(G8,G10,G12)","v":{"$error":"#NAME?"}}]
[null,null,"Rates Values",{"$f":"'Risk Summary'!C6","v":381842.34097999998},{"$f":"'Risk Summary'!E6","v":348985.04602000001},{"$f":"'Risk Summary'!G6","v":413666.16600999999},{"$f":"'Risk Summary'!I6","v":380973.51395999995}]
[null,null,"Min percent of forecast",0.96,0.96,0.96,0.96]
[null,null,"Min",{"$f":"(D$6-D$16)*(D7)","v":363111.84574367997},{"$f":"(E$6-E$16)*(E7)","v":331392.00002879999},{"$f":"(F$6-F$16)*(F7)","v":393336.00001919997},{"$f":"(G$6-G$16)*(G7)","v":361799.99999999994}]
[null,null,"Expected percent of forecast",1,1,1,1]
[null,null,"Expected",{"$f":"(D$6-D$16)*(D9)","v":378241.50598299998},{"$f":"(E$6-E$16)*(E9)","v":345200.00003},{"$f":"(F$6-F$16)*(F9)","v":409725.00001999998},{"$f":"(G$6-G$16)*(G9)","v":376874.99999999994}]
[null,null,"Max Percent of forecast",1.06,1.06,1.06,1.06]
[null,null,"Max",{"$f":"(D$6-D$16)*(D11)","v":400935.99634198},{"$f":"(E$6-E$16)*(E11)","v":365912.00003180001},{"$f":"(F$6-F$16)*(F11)","v":434308.50002119999},{"$f":"(G$6-G$16)*(G11)","v":399487.49999999994}]
[]
[]
[null,"Normal","NEIL Premium",{"$f":"_xll.RiskNormal(D16+D17,D18)","v":{"$error":"#NAME?"}},{"$f":"_xll.RiskNormal(E16+E17,E18)","v":{"$error":"#NAME?"}},{"$f":"_xll.RiskNormal(F16+F17,F18)","v":{"$error":"#NAME?"}},{"$f":"_xll.RiskNormal(G16+G17,G18)","v":{"$error":"#NAME?"}}]
[null,null,"Base Value",3600.8349969999999,3785.0459900000001,3941.1659900000004,4098.5139600000002]
[null,null,"EV Credit",{"$f":"-AVERAGE(F22:F28)/1000","v":-2532.1692857142857},{"$f":"D17","v":-2532.1692857142857},{"$f":"E17","v":-2532.1692857142857},-2532.1692857142857]
[null,null,"Credit StDev",{"$f":"STDEV(F22:F28)/1000","v":1248.7802915482123},{"$f":"D18","v":1248.7802915482123},1248.7802915482123,1248.7802915482123]
[]
[]
[null,null,null,"Primary distr. ","Secondary distr.","Total"]
[null,null,"2023/paid in 2024",1384688,440669,1825357]
[null,null,"2022/paid in 2023",686033,229765,915798]
[null,null,"2021/paid in 2022",2795304,948000,3743304]
[null,null,"2020/paid in 2021",1863973,671119,2535092]
[null,null,"2019/paid in 2020",3342201,1240093,4582295]
[null,null,"2018/paid in 2019",1377030,427869,1804899]
[null,null,"2017/paid in 2018",1532765,785675,2318440]

{"sheet":"Corps & Bureau O&M","index":3,"n_rows":92,"n_cols":11,"rows_kept":92,"cut":false,"hidden":false,"merged":[[65,0,65,10],[35,0,35,10]]}
[]
[null,null,"FY25",{"$f":"C2","v":"FY25"},"FY26","FY26","FY27","FY27","FY28","FY28"]
[null,null,"Input","@risk","Input","@risk","Input","@risk","Input","@risk"]
[null,null,null,"CORPOM-1",null,"CORPOM-1",null,"CORPOM-2",null,"CORPOM-2"]
["CORPS O&M",null,{"$f":"'Risk Summary'!C8","v":278292.03000000009},{"$f":"D37+(D40+D45)+D51+D56+D62","v":{"$error":"#NAME?"}},{"$f":"'Risk Summary'!E8","v":292351.00003},{"$f":"F37+(F40+F45)+F51+F56+F62","v":{"$error":"#NAME?"}},{"$f":"'Risk Summary'!G8","v":316276.00004000001},{"$f":"H37+(H40+H45)+H51+H56+H62","v":{"$error":"#NAME?"}},{"$f":"'Risk Summary'!I8","v":341040.00005000003},{"$f":"J37+(J40+J45)+J51+J56+J62","v":{"$error":"#NAME?"}}]
["Fish Passage"]
["= Base O&M","Deterministic",null,{"$f":"D37","v":278292.03000000009},null,{"$f":"F37","v":292351.00003},null,{"$f":"H37","v":316276.00004000001},null,{"$f":"J37","v":341040.00005000003}]
[]
["+ Added Security costs if event occurs","RiskDiscrete",null,{"$f":"D40","v":{"$error":"#NAME?"}},null,{"$f":"F40","v":{"$error":"#NAME?"}},null,{"$f":"H40","v":{"$error":"#NAME?"}},null,{"$f":"J40","v":{"$error":"#NAME?"}}]
[]
["+ Added Fish Environmental Compliance costs if event occurs","RiskDiscrete",null,{"$f":"D45","v":{"$error":"#NAME?"}},null,{"$f":"F45","v":{"$error":"#NAME?"}},null,{"$f":"H45","v":{"$error":"#NAME?"}},null,{"$f":"J45","v":{"$error":"#NAME?"}}]
[]
["- Non-Routine Extraordinary Maintenance Costs Reduction","RiskDiscrete",null,{"$f":"D51","v":{"$error":"#NAME?"}},null,{"$f":"F51","v":{"$error":"#NAME?"}},null,{"$f":"H51","v":{"$error":"#NAME?"}},null,{"$f":"J51","v":{"$error":"#NAME?"}}]
[]
["+ Catastrophic Event Cost","RiskDiscrete",null,{"$f":"D56","v":{"$error":"#NAME?"}},null,{"$f":"F56","v":{"$error":"#NAME?"}},null,{"$f":"H56","v":{"$error":"#NAME?"}},null,{"$f":"J56","v":{"$error":"#NAME?"}}]
[]
["+ Additional System Needs Costs","RiskDiscrete",null,{"$f":"D62","v":{"$error":"#NAME?"}},null,{"$f":"F62","v":{"$error":"#NAME?"}},null,{"$f":"H62","v":{"$error":"#NAME?"}},null,{"$f":"J62","v":{"$error":"#NAME?"}}]
[]
[]
[null,null,null,"BUROM-1",null,"BUROM-1",null,"BUROM-2",null,"BUROM-2"]
["BUREAU O&M",null,{"$f":"'Risk Summary'!C7","v":180760.00002000001},{"$f":"D67+(D70+D73)+D79+D90","v":{"$error":"#NAME?"}},{"$f":"'Risk Summary'!E7","v":195235.00005999999},{"$f":"F67+(F70+F73)+F79+F90","v":{"$error":"#NAME?"}},{"$f":"'Risk Summary'!G7","v":206763.00003999998},{"$f":"H67+(H70+H73)+H79+H90","v":{"$error":"#NAME?"}},{"$f":"'Risk Summary'!I7","v":208089.00005999999},{"$f":"J67+(J70+J73)+J79+J90","v":{"$error":"#NAME?"}}]
[]
["= Base O&M","RiskPert",null,{"$f":"D67","v":180760.00002000001},null,{"$f":"F67","v":195235.00005999999},null,{"$f":"H67","v":206763.00003999998},null,{"$f":"J67","v":208089.00005999999}]
[]
["+ Added Security costs if event occurs","RiskDiscrete",null,{"$f":"D70","v":{"$error":"#NAME?"}},null,{"$f":"F70","v":{"$error":"#NAME?"}},null,{"$f":"H70","v":{"$error":"#NAME?"}},null,{"$f":"J70","v":{"$error":"#NAME?"}}]
[]
["+ Added Fish Environmental Compliance costs if event occurs","RiskDiscrete",null,{"$f":"D73","v":{"$error":"#NAME?"}},null,{"$f":"F73","v":{"$error":"#NAME?"}},null,{"$f":"H73","v":{"$error":"#NAME?"}},null,{"$f":"J73","v":{"$error":"#NAME?"}}]
[]
["- Non-Routine Extraordinary Maintenance Costs Reduction","RiskDiscrete",null,{"$f":"D79","v":{"$error":"#NAME?"}},null,{"$f":"F79","v":{"$error":"#NAME?"}},null,{"$f":"H79","v":{"$error":"#NAME?"}},null,{"$f":"J79","v":{"$error":"#NAME?"}}]
[]
["+ Catastrophic Event Cost","RiskDiscrete",null,{"$f":"D84","v":{"$error":"#NAME?"}},null,{"$f":"F84","v":{"$error":"#NAME?"}},null,{"$f":"H84","v":{"$error":"#NAME?"}},null,{"$f":"J84","v":{"$error":"#NAME?"}}]
[]
["+ Additional System Needs Costs","RiskDiscrete",null,{"$f":"D90","v":{"$error":"#NAME?"}},null,{"$f":"F90","v":{"$error":"#NAME?"}},null,{"$f":"H90","v":{"$error":"#NAME?"}},null,{"$f":"J90","v":{"$error":"#NAME?"}}]
[]
[]
["Corps of Engineers"]
["Base O&M","Deterministic",null,{"$f":"C5","v":278292.03000000009},null,{"$f":"E5","v":292351.00003},null,{"$f":"G5","v":316276.00004000001},null,{"$f":"I5","v":341040.00005000003}]
[]
["Security",null,null,"CORPO&MSEC-1",null,"CORPO&MSEC-1",null,"CORPO&MSEC-2",null,"CORPO&MSEC-2"]
[null,null,null,{"$f":"_xll.RiskDiscrete(D41:E41,D42:E42)","v":{"$error":"#NAME?"}},null,{"$f":"_xll.RiskDiscrete(F41:G41,F42:G42)","v":{"$error":"#NAME?"}},null,{"$f":"_xll.RiskDiscrete(H41:K41,H42:K42)","v":{"$error":"#NAME?"}},null,{"$f":"_xll.RiskDiscrete(J41:K41,J42:K42)","v":{"$error":"#NAME?"}}]
[null,"Cost of an Event",null,3000,0,3000,0,3000,0,3000,0]
[null,"Probability of an event",null,0.02,{"$f":"1-D42","v":0.98},0.02,{"$f":"1-F42","v":0.98},0.02,{"$f":"1-H42","v":0.98},0.02,{"$f":"1-H42","v":0.98}]
[]
["Fish - Environmental Compliance",null,null,"CORPO&Mecomp-1",null,"CORPO&Mecomp-1",null,"CORPO&Mecomp-2",null,"CORPO&Mecomp-2"]
[null,null,null,{"$f":"_xll.RiskDiscrete(D46:E46,D47:E47)","v":{"$error":"#NAME?"}},null,{"$f":"_xll.RiskDiscrete(F46:G46,F47:G47)","v":{"$error":"#NAME?"}},null,{"$f":"_xll.RiskDiscrete(H46:K46,H47:K47)","v":{"$error":"#NAME?"}},null,{"$f":"_xll.RiskDiscrete(J46:K46,J47:K47)","v":{"$error":"#NAME?"}}]
[null,"Cost of an Event",null,2000,0,2000,0,2000,0,2000,0]
[null,"Probability of an event",null,0.02,{"$f":"1-D47","v":0.98},0.02,{"$f":"1-F47","v":0.98},0.02,{"$f":"1-H47","v":0.98},0.02,{"$f":"1-H47","v":0.98}]
[]
["Non-Routine Extraordinary Maintenance"]
[null,null,null,"CORPO&MNREMsav-1",null,"CORPO&MNREMsav-1",null,"CORPO&MNREMsav-2",null,"CORPO&MNREMsav-2"]
[null,"EV Additional Annual Cost",null,{"$f":"_xll.RiskDiscrete(D52:E52,D53:E53)","v":{"$error":"#NAME?"}},null,{"$f":"_xll.RiskDiscrete(F52:G52,F53:G53)","v":{"$error":"#NAME?"}},null,{"$f":"_xll.RiskDiscrete(H52:K52,H53:K53)","v":{"$error":"#NAME?"}},null,{"$f":"_xll.RiskDiscrete(J52:K52,J53:K53)","v":{"$error":"#NAME?"}}]
[null,"Annual Cost (Additional)",null,5000,0,5000,0,5000,0,5000,0]
[null,"Probability that Additional Costs will be provided",null,2.5000000000000001E-2,{"$f":"1-D53","v":0.97499999999999998},2.5000000000000001E-2,{"$f":"1-F53","v":0.97499999999999998},2.5000000000000001E-2,{"$f":"1-H53","v":0.97499999999999998},2.5000000000000001E-2,{"$f":"1-H53","v":0.97499999999999998}]
[]
["Catastrophic Event",null,null,"CORPO&MNREM-1",null,"CORPO&MNREM-1",null,"CORPO&MNREM-2",null,"CORPO&MNREM-2"]
[null,"EV Event Cost",null,{"$f":"_xll.RiskDiscrete(D57:E57,D58:E58)","v":{"$error":"#NAME?"}},null,{"$f":"_xll.RiskDiscrete(F57:G57,F58:G58)","v":{"$error":"#NAME?"}},null,{"$f":"_xll.RiskDiscrete(H57:K57,H58:K58)","v":{"$error":"#NAME?"}},null,{"$f":"_xll.RiskDiscrete(J57:K57,J58:K58)","v":{"$error":"#NAME?"}}]
[null,"Event Cost",null,30000,0,30000,0,30000,0,30000,0]
[null,"Event Probability",null,0.01,{"$f":"1-D58","v":0.99},0.01,{"$f":"1-F58","v":0.99},0.01,{"$f":"1-H58","v":0.99},0.01,{"$f":"1-H58","v":0.99}]
[]
["New System Requirements/Needs (e.g. for compliance/regulations, etc.) "]
[null,null,null,"CORPO&MNREM-1",null,"CORPO&MNREM-1",null,"CORPO&MNREM-1",null,"CORPO&MNREM-1"]
[null,"EV Additional Annual Cost",null,{"$f":"_xll.RiskDiscrete(D63:E63,D64:E64)","v":{"$error":"#NAME?"}},null,{"$f":"_xll.RiskDiscrete(F63:G63,F64:G64)","v":{"$error":"#NAME?"}},null,{"$f":"_xll.RiskDiscrete(H63:K63,H64:K64)","v":{"$error":"#NAME?"}},null,{"$f":"_xll.RiskDiscrete(J63:K63,J64:K64)","v":{"$error":"#NAME?"}}]
[null,"Annual Cost (Additional)",null,5000,0,5000,0,5000,0,5000,0]
[null,"Probability of Additional Costs",null,0.1,{"$f":"1-D64","v":0.9},0.1,{"$f":"1-F64","v":0.9},0.1,{"$f":"1-H64","v":0.9},0.1,{"$f":"1-H64","v":0.9}]
[]
["Bureau"]
["Base O&M","RiskPert",null,{"$f":"C21","v":180760.00002000001},null,{"$f":"E21","v":195235.00005999999},null,{"$f":"G21","v":206763.00003999998},null,{"$f":"I21","v":208089.00005999999}]
[]
["Security",null,null,"BURO&MSEC-1",null,"BURO&MSEC-1",null,"BURO&MSEC-2",null,"BURO&MSEC-2"]
[null,null,null,{"$f":"D40","v":{"$error":"#NAME?"}},null,{"$f":"F40","v":{"$error":"#NAME?"}},null,{"$f":"H40","v":{"$error":"#NAME?"}},null,{"$f":"J40","v":{"$error":"#NAME?"}}]
[]
["Fish - Environmental Compliance",null,null,"BURO&Mecomp-1",null,"BURO&Mecomp-1",null,"BURO&Mecomp-2",null,"BURO&Mecomp-2"]
[null,null,null,{"$f":"_xll.RiskDiscrete(D74:E74,D75:E75)","v":{"$error":"#NAME?"}},null,{"$f":"_xll.RiskDiscrete(F74:G74,F75:G75)","v":{"$error":"#NAME?"}},null,{"$f":"_xll.RiskDiscrete(H74:K74,H75:K75)","v":{"$error":"#NAME?"}},null,{"$f":"_xll.RiskDiscrete(J74:K74,J75:K75)","v":{"$error":"#NAME?"}}]
[null,"Cost of an Event",null,2000,0,2000,0,2000,0,2000,0]
[null,"Probability of an event",null,0.02,{"$f":"1-D75","v":0.98},0.02,{"$f":"1-F75","v":0.98},0.02,{"$f":"1-H75","v":0.98},0.02,{"$f":"1-H75","v":0.98}]
[]
["Non-Routine Extraordinary Maintenance"]
[null,null,null,"BURO&MNREMsav-1",null,"BURO&MNREMsav-1",null,"BURO&MNREMsav-2",null,"BURO&MNREMsav-2"]
[null,"EV Additional Annual Cost",null,{"$f":"_xll.RiskDiscrete(D80:E80,D81:E81)","v":{"$error":"#NAME?"}},null,{"$f":"_xll.RiskDiscrete(F80:G80,F81:G81)","v":{"$error":"#NAME?"}},null,{"$f":"_xll.RiskDiscrete(H80:K80,H81:K81)","v":{"$error":"#NAME?"}},null,{"$f":"_xll.RiskDiscrete(J80:K80,J81:K81)","v":{"$error":"#NAME?"}}]
[null,"Annual Cost (Additional)",null,5000,0,5000,0,5000,0,5000,0]
[null,"Probability that Additional Costs will be provided",null,2.5000000000000001E-2,{"$f":"1-D81","v":0.97499999999999998},2.5000000000000001E-2,{"$f":"1-F81","v":0.97499999999999998},2.5000000000000001E-2,{"$f":"1-H81","v":0.97499999999999998},2.5000000000000001E-2,{"$f":"1-H81","v":0.97499999999999998}]
[]
["Catastrophic Event",null,null,"BURO&MNREM-1",null,"BURO&MNREM-1",null,"BURO&MNREM-2",null,"BURO&MNREM-2"]
[null,"EV Event Cost",null,{"$f":"_xll.RiskDiscrete(D85:E85,D86:E86)","v":{"$error":"#NAME?"}},null,{"$f":"_xll.RiskDiscrete(F85:G85,F86:G86)","v":{"$error":"#NAME?"}},null,{"$f":"_xll.RiskDiscrete(H85:K85,H86:K86)","v":{"$error":"#NAME?"}},null,{"$f":"_xll.RiskDiscrete(J85:K85,J86:K86)","v":{"$error":"#NAME?"}}]
[null,"Event Cost",null,30000,0,30000,0,30000,0,30000,0]
[null,"Event Probability",null,0.01,{"$f":"1-D86","v":0.99},0.01,{"$f":"1-F86","v":0.99},0.01,{"$f":"1-H86","v":0.99},0.01,{"$f":"1-H86","v":0.99}]
[]
["New System Requirements/Needs (e.g. for compliance/regulations, etc.) "]
[null,null,null,"BURO&Mnsneedinc-1",null,"BURO&Mnsneedinc-1",null,"BURO&Mnsneedinc-2",null,"BURO&Mnsneedinc-2"]
[null,"EV Additional Annual Cost",null,{"$f":"_xll.RiskDiscrete(D91:E91,D92:E92)","v":{"$error":"#NAME?"}},null,{"$f":"_xll.RiskDiscrete(F91:G91,F92:G92)","v":{"$error":"#NAME?"}},null,{"$f":"_xll.RiskDiscrete(H91:K91,H92:K92)","v":{"$error":"#NAME?"}},null,{"$f":"_xll.RiskDiscrete(J91:K91,J92:K92)","v":{"$error":"#NAME?"}}]
[null,"Annual Cost (Additional)",null,5000,0,5000,0,5000,0,5000,0]
[null,"Probability of Additional Costs",null,0.1,{"$f":"1-D92","v":0.9},0.1,{"$f":"1-F92","v":0.9},0.1,{"$f":"1-H92","v":0.9},0.1,{"$f":"1-H92","v":0.9}]

{"sheet":"F&W Expense","index":4,"n_rows":27,"n_cols":10,"rows_kept":27,"cut":false,"hidden":false,"merged":[]}
[]
[]
[]
[null,null,null,"@risk",null,"@risk",null,"@risk",null,"@risk"]
[null,null,null,"FY25",null,"FY26",null,"FY27",null,"FY28"]
[null,"F&W Roll Up (excludes Lower Snake Hatch)",null,{"$f":"D9+D14+D18","v":{"$error":"#NAME?"}},null,{"$f":"F9+F14+F18","v":{"$error":"#NAME?"}},null,{"$f":"H9+H14+H18","v":{"$error":"#NAME?"}},null,{"$f":"J9+J14+J18","v":{"$error":"#NAME?"}}]
[]
[]
["RiskPert","F&W Direct Program Cost",{"$f":"'Risk Summary'!C13","v":264691.40234000003},{"$f":"_xll.RiskPert(C10,C11,C12)","v":{"$error":"#NAME?"}},{"$f":"'Risk Summary'!E13","v":275484.40437},{"$f":"_xll.RiskPert(E10,E11,E12)","v":{"$error":"#NAME?"}},{"$f":"'Risk Summary'!G13","v":282484.00938},{"$f":"_xll.RiskPert(G10,G11,G12)","v":{"$error":"#NAME?"}},{"$f":"'Risk Summary'!I13","v":289505.02122000005},{"$f":"_xll.RiskPert(I10,I11,I12)","v":{"$error":"#NAME?"}}]
[null,"Min",{"$f":"C9*0.95","v":251456.832223},null,{"$f":"E9*0.95","v":261710.1841515},null,{"$f":"G9*0.95","v":268359.80891099997},null,{"$f":"I9*0.95","v":275029.77015900007}]
[null,"Most Likely",{"$f":"C9","v":264691.40234000003},null,{"$f":"E9*0.975","v":268597.29426075},null,{"$f":"G9*0.975","v":275421.90914549999},null,{"$f":"I9*0.975","v":282267.39568950003}]
[null,"Max",{"$f":"C9*1.05","v":277925.97245700005},null,{"$f":"E9","v":275484.40437},null,{"$f":"G9","v":282484.00938},null,{"$f":"I9","v":289505.02122000005}]
[]
["RiskDiscrete","Reclamation - Leavenworth Complex O&M",0,{"$f":"_xll.RiskDiscrete(C16:D16,C15:D15)","v":{"$error":"#NAME?"}},0,{"$f":"_xll.RiskDiscrete(E16:F16,E15:F15)","v":{"$error":"#NAME?"}},0,{"$f":"_xll.RiskDiscrete(G16:H16,G15:H15)","v":{"$error":"#NAME?"}},0,{"$f":"_xll.RiskDiscrete(I16:J16,I15:J15)","v":{"$error":"#NAME?"}}]
[null,"P",{"$f":"1%/2","v":5.0000000000000001E-3},{"$f":"1-C15","v":0.995},0.01,{"$f":"1-E15","v":0.99},0.01,{"$f":"1-G15","v":0.99},0.01,{"$f":"1-I15","v":0.99}]
[null,"Value",1000,0,1000,0,1000,0,1000,0]
[null,null,null," "]
["RiskDiscrete","COE - Fish Passage Facilities",0,{"$f":"_xll.RiskDiscrete(C20:D20,C19:D19)","v":{"$error":"#NAME?"}},0,{"$f":"_xll.RiskDiscrete(E20:F20,E19:F19)","v":{"$error":"#NAME?"}},0,{"$f":"_xll.RiskDiscrete(G20:H20,G19:H19)","v":{"$error":"#NAME?"}},0,{"$f":"_xll.RiskDiscrete(I20:J20,I19:J19)","v":{"$error":"#NAME?"}}]
[null,"P",{"$f":"1%/2","v":5.0000000000000001E-3},{"$f":"1-C19","v":0.995},0.01,{"$f":"1-E19","v":0.99},0.01,{"$f":"1-G19","v":0.99},0.01,{"$f":"1-I19","v":0.99}]
[null,"Value",1000,0,1000,0,1000,0,1000,0]
[]
[]
[null,null,null,{"$f":"D5","v":"FY25"},null,{"$f":"F5","v":"FY26"},null,{"$f":"H5","v":"FY27"},null,{"$f":"J5","v":"FY28"}]
["RiskPert","              USF&W Lower Snake Hatcheries",{"$f":"'Risk Summary'!C14","v":32934.828999999998},{"$f":"_xll.RiskPert(C25,C26,C27)","v":{"$error":"#NAME?"}},{"$f":"'Risk Summary'!E14","v":33776.71299},{"$f":"_xll.RiskPert(E25,E26,E27)","v":{"$error":"#NAME?"}},{"$f":"'Risk Summary'!G14","v":34706.836990000003},{"$f":"_xll.RiskPert(G25,G26,G27)","v":{"$error":"#NAME?"}},{"$f":"'Risk Summary'!I14","v":35668.559999999998},{"$f":"_xll.RiskPert(I25,I26,I27)","v":{"$error":"#NAME?"}}]
[null,"Min",{"$f":"C27*0.95","v":32852.491927499999},null,{"$f":"E27*0.9","v":30399.041691000002},null,{"$f":"G27*0.9","v":31236.153291000002},null,{"$f":"I27*0.9","v":32101.703999999998}]
[null,"Most Likely",{"$f":"C27","v":34581.570449999999},null,{"$f":"E27*0.95","v":32087.877340499999},null,{"$f":"G27*0.95","v":32971.495140500003},null,{"$f":"I27*0.95","v":33885.131999999998}]
[null,"Max",{"$f":"C24*1.05","v":34581.570449999999},null,{"$f":"E24","v":33776.71299},null,{"$f":"G24","v":34706.836990000003},null,{"$f":"I24","v":35668.559999999998}]

{"sheet":"Src Proforma","index":5,"n_rows":261,"n_cols":7,"rows_kept":261,"cut":false,"hidden":false,"merged":[]}
[null,null,"Power Services Revenue Forecast"]
[null,null,"BP-26 Rate Case Initial Proposal - Revenue at Current Rates","FY25","FY26","FY27","FY28"]
[null,null,"CategoryEnergy","$ (000's)","$ (000's)","$ (000's)","$ (000's)"]
[null,null,"Composite Revenue57",2374067.5397517593,2463225.9497092203,2473880.0706016184,2482548.5162801864]
[null,null,"Non-Slice Revenue",-330791.96399999992,-344840.32445337845,-346542.52511345205,-347927.47597940295]
[null,null,"Slice58",0,0,0,0]
[null,null,"Tier 260",198941.44400000005,330300.93276845315,341899.54364938609,367549.47140326939]
[null,null,"Load Shaping Revenue59",64669.429000000011,72092.997268773921,76823.689872071162,72723.916378083828]
[null,null,"Demand Revenue5",62636.256999999998,141637.48298624638,148211.92895702826,156467.58776619966]
[null,null,"Irrigation Rate Discount",-21770.165000000001,-22579.254527999998,-22579.254527999998,-22579.254527999998]
[null,null,"Low Density Discount",-27982.243000000002,-42904.231326880108,-44060.316987512386,-49181.316423884789]
[null,null,"RSS (Non-Federal)/ Other63",1011.6720000000001,1090.0000000000002,1087.9999999999998,1087.9999999999998]
[null,null,"PF customers (TRM) sub-total",2320781.969751759,2598023.5524244355,2628721.1364511386,2660689.4448964521]
[null,null,"New Resource Firm Power6A",0,7442.40494111308,19880.114927012204,28019.774949723898]
[null,null,"NR Revenues from ESS Energy and Capacity Charges",0,3850.2465217999998,4658.0032013999999,5668.2410510000009]
[null,null,"NR sub-total",0,11292.65146291308,24538.118128412203,33688.016000723903]
[null,null,"DSI - Alcoa6B",0]
[null,null,"DSI - Port Townsend7A",4356.1760399999994]
[null,null,"DSIs sub-total7",4356.1760399999994,4492.7357168998378,4492.7374658717772,4507.0377433645381]
[null,null,"FPS Other",9206.0582063501988,9766.8029037496617,9975.247905529628,10255.814524525173]
[null,null,"Firm Water Transition Power",2584.2673599999998,0,0,0]
[null,null,"FPS sub-total",11790.325566350199,9766.8029037496617,9975.247905529628,10255.814524525173]
[null,null,"Firm Surplus Sale (Rate Case Only and includes Tier 2 sale)",0,239235,144245,188595]
[null,null,"Committed sales (TF)9",40764.535999999993,11688,2358,0]
[null,null,"Balancing sales (unadjusted)",239324.94944402727,380692.35230488161,362553.36425384646,351373.812305931]
[null,null,"PRSC Revenue",0,0,0,0]
[null,null,"Fin Settled Tx Losses Revenue",74079.797226978131,44921,44921,44921]
[null,null,"Forward DSI and other secondary sales",21389.582000000002,0,0,0]
[null,null,"Cal ISO sales",0,42415.891260258322,38410.783509602908,33984.086422944674]
[null,null,"Forward DSI sale",0,0,0,0]
[null,null,"Balancing sales10",375558.8646710054,479717.24356513983,448243.14776344941,430278.89872887568]
[null,null,"Short-term market sales sub-total",375558.8646710054,718952.24356513983,592488.14776344947,618873.89872887568]
[null,null,"PG&E (Wind Energy Exchange Delivery to BPA) 08PB-1198422",0,0,0,0]
[null,null,"PG&E (Wind Energy Exchange Delivery to PG&E) 08PB-1198423",0,0,0,0]
[null,null,"Other Locational/Seasonal Exchange",0,0,0,0]
[null,null,"Avista (WNP-3 Exchange)DE-MS79-85BP9218629",0,0,0,0]
[null,null,"WNP3 Settlement",0,0,0,0]
[null,null,"Long Term Contractual Obligations sub-total",0,0,0,0]
[null,null,"Canadian Entitlement Return for Canada (Total)34",0,0,0,0]
[null,null,"Canadian Entitlement Return",0,0,0,0]
[null,null,"Miscellaneous Credits46",0,0,0,0]
[null,null,"Revenues from Slice Product Conversion",0,0,0,0]
[null,null,"Slice True up",25226.987338074348,0,0,0]
[null,null,"Surcharge/RDC (Reserves)",0,0,0,0]
[null,null,"Liquidated Damages",0,0,0,0]
[null,null,"Load Shaping True up",0,0,0,0]
[null,null,"Other Sales sub-total",25226.987338074348,0,0,0]
[null,null,"Gross Sales (400001)",2737714.3233671887,3342527.9860731377,3260215.3877144018,3328014.2118939417]
[null,null,"Bookouts47",0,0,0,0]
[null,null,"Bookout adjustment to Sales (400001)",0,0,0,0]
[null,null,"Lookback Adjustments",0,0,0,0]
[null,null,"Provisions for Rate Refunds (449101)",0,0,0,0]
[null,null,"GTA Delivery charge",3100.0010000000002,3100.0010000000002,3100.0010000000002,3100.0010000000002]
[null,null,"Energy Efficiency Revenues",0,0,0,0]
[null,null,"Financial Swap Revenues",0,0,0,0]
[null,null,"Upper Baker revenues50A",509.94373282106915,484.55756657813492,475.91834438096055,456.25621264704148]
[null,null,"Miscellaneous US Bureau of Reclamation Revenues",0,0,0,0]
[null,null,"Miscellaneous US Corps of Engineers Revenues",0,0,0,0]
[null,null,"Irrigation Pumping Power48",1225.0893799999999,1206.5213866666666,1206.5213866666666,1206.5213866666666]
[null,null,"Reserve Energy49",10637.227076666666,10482.219999999999,10482.219999999999,10482.219999999999]
[null,null,"USBR Owyhee Wheeling Project",1601.8726666666669,1732.0536666666674,1732.0536666666674,1732.0536666666674]
[null,null,"Downstream Benefits50",7428.8879999999981,7772.3530000000001,7772.3530000000001,7772.3530000000001]
[null,null,"Downstream Benefits - Financial accrual (redist to FERC payment)",0,0,0,0]
[null,null,"Downstream Benefits (ASPRJ Bureau)",0,0,0,0]
[null,null,"Downstream Benefits (ASPRJ CORP)",0,0,0,0]
[null,null,"Downstream Benefits subtotal",7428.8879999999981,7772.3530000000001,7772.3530000000001,7772.3530000000001]
[null,null,"Miscellaneous Revenues (400002)",24503.021856154402,24777.706619911467,24769.067397714294,24749.405265980375]
[null,null,"Balancing Reserve Capacity Balancing Reserve Capacity",60889.719999999994,63544.443880000006,86018.17,93988.779999999984]
[null,null,"ACS Risk Share",0,0,0,0]
[null,null,"Risk Mitigation Tool",0,0,0,0]
[null,null,"Operating Reserve - Energy",27917.504177746225,29225.607750000003,31107.288619999999,32233.83294]
[null,null,"Operating Reserve - Spinning",17144.359412059919,15112.51633,16085.53059,16668.064920000001]
[null,null,"Operating Reserve - Supplemental",0,0,0,0]
[null,null,"Operating Reserve - Spinning Adjustment for WNP-3 Settlement Agreement",0,0,0,0]
[null,null,"Operating Reserve - Supplemental Adjustment for WNP-3 Settlement Agreement",0,0,0,0]
[null,null,"Energy Imbalance",0,0,0,0]
[null,null,"Generation Imbalance",0,0,0,0]
[null,null,"Energy Imbalance Persistent Deviation",0,0,0,0]
[null,null,"Generation Imbalance Persistent Deviation",0,0,0,0]
[null,null,"FFI Penalty",0,0,0,0]
[null,null,"Imbalance Adjustment for Third-Party Deployed Energy",0,0,0,0]
[null,null,"Settlement Annual Budget Adjustment",1291.7570000000003,1636.87608,1636.87608,1636.87608]
[null,null,"Synchronous Condensing",602.93000000000052,714.37511999999981,714.37511999999981,714.37511999999981]
[null,null,"Generation Dropping",332.14700000000011,244.88280000000006,244.88280000000006,244.88280000000006]
[null,null,"Redispatch",8160.9999999999991,7695.9999599999974,7695.9999599999974,7695.9999599999974]
[null,null,"COE/Reclamation Network/Delivery Facilities Segmentation",3306.9440000000009,3249.528960000001,3249.528960000001,3249.528960000001]
[null,null,"Station Service52",582.01811320000002,0,0,0]
[null,null,"168hr in-kind Delay Losses Service",0,0,0,0]
[null,null,"Inter-Business Unit / Gen Inputs for Ancillary and Other Services (400003)",120228.37970300614,121424.23088,146752.65212999997,156432.34077999997]
[null,null,"4(h)(10)(c)",128472.98549155422,124910.88880932544,131116.87107740354,132162.76663060204]
[null,null,"Colville and Spokane Settlements",4600,4600,4600,4600]
[null,null,"Treasury Credits (400005 and 400006)",133072.98549155419,129510.88880932544,135716.87107740354,136762.76663060204]
[null,null,"TOTAL OPERATING REVENUES",3015518.710417904,3618240.8123823749,3567453.9783195192,3645958.7245705239]
[null,null,"Augmentation Purchases61",0,0,0,0]
[null,null,"Augmentation Power Purchase total",0,0,0,0]
[null,null,"Other Augmentation",null,10808.753000312616,17044.572873449997,21197.118419329305]
[null,null,"Balancing Purchases (unadjusted)",103516.96068089077,78914.791208011462,58314.726650328557,73737.90843222072]
[null,null,"(Transmission re-dispatch for Gen Inputs adjustment)",0,244.88280999999358,244.88280999999358,244.88280999999358]
[null,null,"Balancing Purchases53",103516.96068089077,79159.674018011458,58559.609460328553,73982.791242220701]
[null,null,"SILS Power Purchases (within year included in balancing purchases)",0,24232.409760072893,24232.409760072893,24232.409760072893]
[null,null,"Committed Purchases (TF)54",38447.148999999998,0,0,0]
[null,null,"PRSC Expense",null,0,0,0]
[null,null,"Non Treaty Storage Agreement expense (TF)",0,0,0,0]
[null,null,"Libby Coordination Agreement (TF)",0,0,0,0]
[null,null,"Balancing Power Purchase sub-total",141964.10968089075,103392.08377808434,82792.019220401446,98215.201002293586]
[null,null,"Non-Treaty Storage Agreement Expense - slice portion",0,0,0,0]
[null,null,"Libby Coordination Agreement Expense - slice portion",0,0,0,0]
[null,null,"Rocky Brook Power Purchase",0,0,0,0]
[null,null,"Tier 2 Short-Term Power Purchase",191890.86134148005,0,0,0]
[null,null,"Tier 2 Short-Term Forecasted Power Purchase",0,311915.12634483847,321121.55736337748,345118.69373782078]
[null,null,"Tier 2 Load Growth Term Power Purchase12PM-10174",0,0,0,0]
[null,null,"Tier 2 Load Growth Term Power Purchase17PM-1397460B",0,9532.7739113821044,10450.745767243287,11237.305379781521]
[null,null,"Tier 2 Load Growth Forecasted Power Purchase",8522.8819695999991,0,0,0]
[null,null,"Tier 2 Vintage Power Purchase12PM-1017460E",0,0,0,0]
[null,null,"Tier 2 Vintage Power Purchase13PM-1113660C",0,0,0,0]
[null,null,"Tier 2 VintageForecast Power Purchase",0,0,0,0]
[null,null,"Tier 2 Vintage Losses 201417PM-13974",0,0,0,0]
[null,null,"Tier 2 Vintage Losses 201617PM-13974",0,0,0,0]
[null,null,"Tier 2 VintageForecast Power Purchase",0,0,0,0]
[null,null,"Tier 2 Purchases",200413.74331108,321447.90025622048,331572.30313062086,356355.99911760236]
[null,null,"Foote Creek I Wind Project (PacifiCorp)94MS-94375",0,0,0,0]
[null,null,"Foote Creek I Wind Project (Storage for EWEB Amount)94MS-94375",0,0,0,0]
[null,null,"Foote Creek I Wind Project (Transmission for EWEB Amount)94MS-94375",0,0,0,0]
[null,null,"Foote Creek I Wind Project (EWEB)94MS-94375",0,0,0,0]
[null,null,"Foote Creek I Wind Project (Settlement Credit to EWEB)15PM-12909",0,0,0,0]
[null,null,"Foote Creek IV Wind Project (SeaWest Windpower Inc.)00PB-10652",0,0,0,0]
[null,null,"Foote Creek IV Wind Project (PacifiCorp) (Storage, Generation Control)00PB-10708",0,0,0,0]
[null,null,"Foote Creek IV Wind Project (PacifiCorp) (UFT)00PB-10708",0,0,0,0]
[null,null,"Condon Wind Project (Condon Wind Power, LLC for energy) 00PB-10692",0,0,0,0]
[null,null,"Condon Wind Project (Condon Wind Power, LLC for generation imbalance)",0,0,0,0]
[null,null,"Condon Wind Project (Condon Wind Power, LLC for VERBS) 00PB-10692",0,0,0,0]
[null,null,"Stateline Wind Project (Exelon Generation Company, LLC for energy) 01PB-10761",9835.7017444210069,10081.594288031534,2295.1876722723337,0]
[null,null,"Stateline Wind Project (Exelon Generation Company, LLC for monthly true-up aka generation imbalance)",0,0,0,0]
[null,null,"Stateline Wind Project (Exelon Generation Company, LLC for VERBS) 01PB-10761",661.87440000000004,661.87440000000004,165.46859999999998,0]
[null,null,"Klondike Wind Project (PPM/Northwestern Wind Power LLC)02PB-11093",0,0,0,0]
[null,null,"Klondike Wind Project Tx Loss Adjustment/Gen Imbalance02PB-11093",0,0,0,0]
[null,null,"Ashland Solar 00PB-10651",0,0,0,0]
[null,null,"Fourmile Hill Geothermal (Calpine Siskiyou Partners)93956",0,0,0,0]
[null,null,"Risk adjustment for Foote Creek I and IV, Condon, Stateline and Klondike I for energy output above critical, generation imbalance and contractual true-up costs.",7340.8680377783794,5029.5877997797515,2306.9505375391145,0]
[null,null,"Renewable Purchases - general (excl. Klondike III)",10497.576144421007,15773.056487811284,4767.6068098114483,0]
[null,null,"Klondike III Wind Project07PB-11860",6755.8853999999992,6755.8853999999992,6755.8853999999992,1049.6046000000001]
[null,null,"Klondike III Wind Project (Monthly True Up)07PB-11860",0,0,0,0]
[null,null,"Klondike III Wind Project (Wind Balancing Service)07PB-11860",300,300,300,50]
[null,null,"Critical Wind Quantity Expense Adjustment for Klondike III",1872.6704178006075,1283.0581121887126,588.50779018854962,1112.3953999999999]
[null,null,"Renewable Purchases - Klondike III",8928.5558178006086,8338.9435121887127,7644.3931901885499,2212]
[null,null,"Critical Wind Quantity Expense Adjustment",0,0,0,0]
[null,null,"Total Renewable Purchases",19426.131962221618,24111.999999999996,12411.999999999998,2212]
[null,null,"Power Purchases",342377.85299197072,424839.98403430486,414364.32235102227,454571.20011989598]
[null,null,"Columbia Generating Station",381842.34097999998,348985.04602000001,413666.16600999999,380973.51395999995]
[null,null,"Bureau Of Reclamation",180760.00002000001,195235.00005999999,206763.00003999998,208089.00005999999]
[null,null,"Corps of Engineers",278292.03000000009,292351.00003,316276.00004000001,341040.00005000003]
[null,null,"CRFM Studies",12871.99999,12510,12914.000039999999,13329]
[null,null,"Long-Term Contract Generating Projects",23223.256970000006,30481.73704,35637.272980000002,32549.688059999997]
[null,null,"Operating Generation",876989.62795999995,879562.78315000003,985256.43910999992,975981.20212999987]
[null,null,"Colville Generation Settlement",27523.000000000004,27523.359960000002,28131.999960000001,28760.000039999999]
[null,null,"Spokane Generation Settlement",6881.0000400000026,6880.8399600000002,7032.9999600000001,7190.0000399999999]
[null,null,"Amortization of P2IP Settlement Payments",0,14222.222222222223,14222.222222222223,14222.222222222223]
[null,null,"Amortization of 6S Settlement Payments",0,13900,13900,13900]
[null,null,"Operating Generation Settlements and Other Payments",34404.000039999999,62526.422142222218,63287.222142222221,64072.222302222217]
[null,null,"Trojan Decommissioning",1199.9999600000001,1299.9999599999999,1329,1359]
[null,null,"WNP-1&3 Decommissioning",1175.0000199999999,1400.0000400000001,1431,1463.0000400000001]
[null,null,"Non-Operating Generation",2374.9999800000005,2700,2760,2822.0000399999999]
[null,null,"PNCA Headwater Benefits",3099.9999800000001,0,0,0]
[null,null,"Purchases for Service at Tier 2 Rates",200413.74299000006,321447.90025622048,331572.30313062086,356355.99911760236]
[null,null,"Other Power Purchases (e.g. Trading Floor)",141964.10968089075,103392.08377808434,82792.019220401446,98215.201002293586]
[null,null,"Gross Contracted Power Purchases (excluding bookout adjustments) <Note 1",345477.85265089071,424839.98403430486,414364.32235102227,454571.20011989598]
[null,null,"Bookout Adjustments to Contracted Power Purchases <Note 1",0,0,0,0]
[null,null,"Augmentation Power Purchases",0,0,0,0]
[null,null,"Other Augmentation",0,10808.753000312616,17044.572873449997,21197.118419329305]
[null,null,"Augmentation Power Purchases",0,10808.753000312616,17044.572873449997,21197.118419329305]
[null,null,"Residential Exchange Program",274819.87800000008,291689.21615138429,291771.94178235746,292671.11892303202]
[null,null,"Other Settlements",0,0,0,0]
[null,null,"Exchanges & Settlements",274819.87800000008,291689.21615138429,291771.94178235746,292671.11892303202]
[null,null,"Renewable Conservation Rate Credit",0,0,0,0]
[null,null,"Renewables",23136.999989999997,24112.000010000003,12412,2211.9999800000001]
[null,null,"Renewable Generation",23136.999989999997,24112.000010000003,12412,2211.9999800000001]
[null,null,"DSM Technology",0,0,0,0]
[null,null,"Conservation Purchases",69027.249000000011,65384.523999999998,65384.523999999998,86512.69898999999]
[null,null,"Conservation Infrastructure",24348.094029999997,32443.039499999999,32492.09086,32497.389480000002]
[null,null,"Low Income Weatherization & Tribal",6005.0000099999997,6005.0000099999997,6005.0000099999997,6005.0000099999997]
[null,null,"Energy Efficiency Development",0,0,0,0]
[null,null,"Legacy",589.99998999999991,0,0,0]
[null,null,"Market Transformation",14499.999999999998,14999.999980000001,14999.999980000001,14999.999980000001]
[null,null,"Conservation Rate Credit (CRC)",0,0,0,0]
[null,null,"Distributed Energy Resources",215,500.00002000000001,500.00002000000001,500.00002000000001]
[null,null,"Generation Conservation",114685.34302999999,119332.56351000001,119381.61487000002,140515.08848000001]
[null,null,"Power System Generation Sub-Total",1671888.7016508908,1815571.721998224,1906278.1131290519,1954041.9503944793]
[null,null,"Information Technology",0,0,0,0]
[null,null,"Generation Project Coordination",3897.1437799999999,4500.6040899999998,4615.2552599999999,4732.0010000000002]
[null,null,"Asset Mgmt Enterprise Svcs",895.35017999999991,0,0,0]
[null,null,"Slice Implementation",730.80848000000003,835.08947999999998,862.90631999999994,891.23112000000003]
[null,null,"Power Services System Operations",5523.3024400000013,5335.6935699999995,5478.16158,5623.2321200000006]
[null,null,"Operations Scheduling",12051.8838,12027.767099999999,12516.38601,13038.209789999999]
[null,null,"Operations Planning",10623.11911,11860.934160000001,12170.092199999999,12499.243560000001]
[null,null,"Power Services Scheduling",22675.002909999999,23888.701260000002,24686.478210000001,25537.45335]
[null,null,"Commercial Enterprise Svcs",6150.80188,0,0,0]
[null,null,"Operations Enterprise Svcs",5525.5983199999991,0,0,0]
[null,null,"EIM Internal Support",0,0,0,0]
[null,null,"Power R&D",2028.58393,2155.58394,2155.58394,2155.58394]
[null,null,"Sales & Support",14687.90588,14504.106099999999,15022.43576,15566.93996]
[null,null,"Strategy, Finance & Risk Mgmt",0,0,0,0]
[null,null,"Executive & Administrative Services",0,0,0,0]
[null,null,"Conservation Support",10143.20156,9554.5612300000012,9869.0417500000003,10189.26727]
[null,null,"Grid Mod",0,323.96724,350.91552000000001,378.03636]
[null,null,"Power Internal Support",19199.004669999998,23322.512309999998,24013.686840000002,24747.242449999998]
[null,null,"Strategic Projects Comm Act",500.00004000000007,4063.4993999999997,6080.4901200000004,5833.3171199999997]
[null,null,"Strategic Projects Ops",0,321.70752000000005,415.01340000000005,531.01643999999999]
[null,null,"Power Services Marketing and Business Support",58235.096279999998,54245.937740000001,57907.167330000004,59401.403539999999]
[null,null,"Power Non-Generation Operations",86433.401629999993,83470.332569999999,88071.807120000012,90562.089009999996]
[null,null,"PS Transmission & Ancillary Services",61412.362953286305,88428.655801844827,88104.295044998464,89653.465594624504]
[null,null,"3rd Party GTA Wheeling",92597.798999999999,92597.8,94644.300010000006,96736]
[null,null,"PS - 3rd Party Trans & Ancillary Svcs",3299.9999900000003,3299.9999900000003,3299.9999900000003,3299.9999900000003]
[null,null,"Generation Integration",20193.999980000001,24253,24415,25543]
[null,null,"Wind Integration Team",0,0,0,0]
[null,null,"Telemetering/Equip Replacemt",0,0,0,0]
[null,null,"EESC Charges (Composite)",0,0,0,0]
[null,null,"EESC Charges (NonSlice)",0,0,0,0]
[null,null,"Power Srvcs Trans Acquisition and Ancillary Services Sub-Total",177504.1619232863,208579.45579184484,210463.59504499848,215232.46558462453]
[null,null,"Fish & Wildlife",264691.40234000003,275484.40437,282484.00938,289505.02122000005]
[null,null,"USF&W Lower Snake Hatcheries",32934.828999999998,33776.71299,34706.836990000003,35668.559999999998]
[null,null,"Planning Council",11982.999959999996,12040.632,11875.66999,12051.928]
[null,null,"Long Term Funding Agreements",18379.116000000005,18116.181960000002,18074.950960000002,19062.60196]
[null,null,"Fish & Wildlife RDC Funds",5000.000039999999,0,0,0]
[null,null,"Lower Snake Hatcheries RDC Funds",5900.000039999999,0,0,0]
[null,null,"Environmental Requirements",0,0,0,0]
[null,null,"Fish and Wildlife/USF&W/Planning Council Sub-Total",338888.34738000005,339417.93132000003,347141.46732,356288.11118000007]
[null,null,"Additional Post-Retirement Contribution",15190.623240000003,16442.499960000001,17182.270559999997,17926.8858]
[null,null,"Agency Services G&A (Excludes Direct Project Support)",86701.602480000001,141885.10037999999,152697.60863,158623.17203999998]
[null,null,"BPA Internal Support Sub-Total",101892.22572,158327.60034,169879.87919000001,176550.05783999996]
[null,null,"Bad Debt Expense",0,0,0,0]
[null,null,"Undistributed Reduction",0,0,0,0]
[null,null,"Other Income, Expenses, Adjustments",0,0,0,0]
[null,null,"Columbia Generating Station Debt Svc",0,0,0]
[null,null,"WNP-1 Debt Svc",0,0,0]
[null,null,"WNP-3 Debt Svc",0,0,0]
[null,null,"En Retired Debt",0,0,0]
[null,null,"En Libor Interest Rate Swap",0,0,0]
[null,null,"Energy Northwest Debt Service",0,0,0]
[null,null,"Trojan Debt Svc",0,0,0]
[null,null,"Conservation Debt Svc",0,0,0]
[null,null,"Cowlitz Falls Debt Svc",0,0,0]
[null,null,"Northern Wasco Debt Svc",0,0,0]
[null,null,"Non-Energy Northwest Debt Service",0,0,0]
[null,null,"Non-Federal Debt Service Sub-Total",0,0,0,0]
[null,null,"Depreciation",147856.00008,148079.97333333333,151705.13333333333,155344.45333333334]
[null,null,"Amortization",322605,335151.08500324021,360724.00298676419,387768.71561636205]
[null,null,"Accretion (CGS)",39585.999960000008,42606.896970000002,44438.368590000005,46349.537130000004]
[null,null,"TOTAL OPERATING EXPENSES",2886653.8383441768,3131204.9973266423,3278702.3667141479,3382137.3800887992]
[null,null,"Federal Appropriation",39860.911920000013,27969,29836,30004]
[null,null,"Capitalization Adjustment",-45936.999960000008,-45937,-45937,-45937]
[null,null,"Borrowings from US Treasury",52402.353000000003,39440,33722,32673]
[null,null,"Customer Prepaid Power Purchases",4538.673960000001,3329.4561240459848,2064.1223967866927,740.06799552841198]
[null,null,"Non-Federal Interest Expense",216672.09887999998,254601.42300000004,260748.62899999999,264382.01700000005]
[null,null,"AFUDC",-25599.999960000005,-20002.446005000002,-20294.606894619999,-20498.180160688382]
[null,null,"Interest Income",-32748.031080000001,-40116.016600146533,-40348.070665717954,-41962.12502335864]
[null,null,"Irrigation Assistance",13393.856000000002,20662,6370,11634]
[null,null,"Other Expense and (Income) (Gains/Losses)",-11123.700000000003,-41845.383831990228,-43801.762871990228,-45349.534498656896]
[null,null,"Net Interest Expense (Income)",211459.16276000009,198101.03268690925,182359.31096445851,185686.24531282453]
[null,null,"TOTAL EXPENSES (incl. interest)",3098113.0011041765,3329306.0300135515,3461061.6776786065,3567823.6254016235]
[null,null,"NET REVENUES",-82594.290686272987,288934.78236882342,106392.30064091273,78135.0991689004]
[null,null,null,null,288957,106538,78379]

{"sheet":"NR_to_Cash","index":6,"n_rows":17,"n_cols":6,"rows_kept":17,"cut":false,"hidden":false,"merged":[[19,0,19,4]]}
[]
[]
[" TOOLKIT NET REVENUE TO CASH ADJUSTMENTS"]
["(in $Thousands)"]
[]
[null,null,"FY 2025","FY 2026","FY 2027","FY2028"]
[]
[1,"Input NRTC Adjustment",-155327,-283877,-105647,-78023]
[7,"Net Revenue to Cash Adjustment",{"$f":"C8","v":-155327},{"$f":"D8","v":-283877},{"$f":"E8","v":-105647},{"$f":"F8","v":-78023}]
[]
[]
[null,"(in $Thousands)",{"$f":"C6","v":"FY 2025"},{"$f":"D6","v":"FY 2026"},{"$f":"E6","v":"FY 2027"},{"$f":"F6","v":"FY2028"}]
[null,"PS NR",{"$f":"'Src Proforma'!D260","v":-82594.290686272987},{"$f":"'Src Proforma'!E260","v":288934.78236882342},{"$f":"'Src Proforma'!F260","v":106392.30064091273},{"$f":"'Src Proforma'!G260","v":78135.0991689004}]
[]
[]
[null,"BOY Reserves for risk",508000,{"$f":"C17","v":270078.70931372698},{"$f":"D17","v":275136.4916825504},{"$f":"E17","v":275881.79232346313}]
[null,"EOY Reserves for risk",{"$f":"C16+C13+C9","v":270078.70931372698},{"$f":"D16+D13+D9","v":275136.4916825504},{"$f":"E16+E13+E9","v":275881.79232346313},{"$f":"F16+F13+F9","v":275993.89149236353}]

{"sheet":"Output","index":7,"n_rows":2714,"n_cols":21,"rows_kept":2714,"cut":false,"hidden":false,"merged":[[5,1,5,3],[5,6,5,8],[5,12,5,14],[5,17,5,19]]}
[]
[]
[]
[]
[null,null,null,null,null,null,null,null,null,null,null,null,"Static Pasted values"]
[null,"Net Revenue ($000)",null,null,null,null,"ATC ($000)",null,null,null,null,null,"Net Revenue ($000)",null,null,null,null,"ATC ($000)"]
["Game",2025,2026,2027,2028,null,2025,2026,2027,2028,null,"Game",2025,2026,2027,2028,null,2025,2026,2027,2028]
[1,{"$f":"_xll.RiskData('Risk Summary'!L$21,1)","v":{"$error":"#NAME?"}},{"$f":"_xll.RiskData('Risk Summary'!M$21,1)","v":{"$error":"#NAME?"}},{"$f":"_xll.RiskData('Risk Summary'!N$21,1)","v":{"$error":"#NAME?"}},{"$f":"_xll.RiskData('Risk Summary'!O$21,1)","v":{"$error":"#NAME?"}},null,{"$f":"NR_to_Cash!C$9","v":-155327},{"$f":"NR_to_Cash!D$9","v":-283877},{"$f":"NR_to_Cash!E$9","v":-105647},{"$f":"NR_to_Cash!F$9","v":-78023},null,1,-21236.955046562038,-9172.5396162173784,-21273.239647189839,-5100.7789778281622,null,-155327,-283877,-105647,-78023]
[2,{"$error":"#NAME?"},{"$error":"#NAME?"},{"$error":"#NAME?"},{"$error":"#NAME?"},null,{"$f":"NR_to_Cash!C$9","v":-155327},{"$f":"NR_to_Cash!D$9","v":-283877},{"$f":"NR_to_Cash!E$9","v":-105647},{"$f":"NR_to_Cash!F$9","v":-78023},null,2,-14301.268275608434,14452.777455125801,-7441.0089045483064,-5680.0933412266204,null,-155327,-283877,-105647,-78023]
[3,{"$error":"#NAME?"},{"$error":"#NAME?"},{"$error":"#NAME?"},{"$error":"#NAME?"},null,{"$f":"NR_to_Cash!C$9","v":-155327},{"$f":"NR_to_Cash!D$9","v":-283877},{"$f":"NR_to_Cash!E$9","v":-105647},{"$f":"NR_to_Cash!F$9","v":-78023},null,3,1063.1383824119696,-26607.318172123389,-1026.6305680366991,-7140.7898349089128,null,-155327,-283877,-105647,-78023]
[4,{"$error":"#NAME?"},{"$error":"#NAME?"},{"$error":"#NAME?"},{"$error":"#NAME?"},null,{"$f":"NR_to_Cash!C$9","v":-155327},{"$f":"NR_to_Cash!D$9","v":-283877},{"$f":"NR_to_Cash!E$9","v":-105647},{"$f":"NR_to_Cash!F$9","v":-78023},null,4,-21066.634210198124,1662.3753851281319,-7594.2037831165217,-18158.358443332341,null,-155327,-283877,-105647,-78023]
[5,{"$error":"#NAME?"},{"$error":"#NAME?"},{"$error":"#NAME?"},{"$error":"#NAME?"},null,{"$f":"NR_to_Cash!C$9","v":-155327},{"$f":"NR_to_Cash!D$9","v":-283877},{"$f":"NR_to_Cash!E$9","v":-105647},{"$f":"NR_to_Cash!F$9","v":-78023},null,5,-14424.992562469663,805.60728670103208,-13226.275045106788,-5705.5030838882085,null,-155327,-283877,-105647,-78023]
[6,{"$error":"#NAME?"},{"$error":"#NAME?"},{"$error":"#NAME?"},{"$error":"#NAME?"},null,{"$f":"NR_to_Cash!C$9","v":-155327},{"$f":"NR_to_Cash!D$9","v":-283877},{"$f":"NR_to_Cash!E$9","v":-105647},{"$f":"NR_to_Cash!F$9","v":-78023},null,6,-20920.836426910737,-14514.767185434106,-20756.27995892254,-1689.8025692900471,null,-155327,-283877,-105647,-78023]
[7,{"$error":"#NAME?"},{"$error":"#NAME?"},{"$error":"#NAME?"},{"$error":"#NAME?"},null,{"$f":"NR_to_Cash!C$9","v":-155327},{"$f":"NR_to_Cash!D$9","v":-283877},{"$f":"NR_to_Cash!E$9","v":-105647},{"$f":"NR_to_Cash!F$9","v":-78023},null,7,-5068.9786058077198,10778.183864490098,-19965.678288070114,-21724.765869341267,null,-155327,-283877,-105647,-78023]
[8,{"$error":"#NAME?"},{"$error":"#NAME?"},{"$error":"#NAME?"},{"$error":"#NAME?"},null,{"$f":"NR_to_Cash!C$9","v":-155327},{"$f":"NR_to_Cash!D$9","v":-283877},{"$f":"NR_to_Cash!E$9","v":-105647},{"$f":"NR_to_Cash!F$9","v":-78023},null,8,-18043.025128350098,574.75161897393411,-15096.532170552404,12285.027659892436,null,-155327,-283877,-105647,-78023]
[9,{"$error":"#NAME?"},{"$error":"#NAME?"},{"$error":"#NAME?"},{"$error":"#NAME?"},null,{"$f":"NR_to_Cash!C$9","v":-155327},{"$f":"NR_to_Cash!D$9","v":-283877},{"$f":"NR_to_Cash!E$9","v":-105647},{"$f":"NR_to_Cash!F$9","v":-78023},null,9,-16925.093872077457,-13252.704098758861,-19332.711452762775,-8127.7458585096711,null,-155327,-283877,-105647,-78023]
[10,{"$error":"#NAME?"},{"$error":"#NAME?"},{"$error":"#NAME?"},{"$error":"#NAME?"},null,{"$f":"NR_to_Cash!C$9","v":-155327},{"$f":"NR_to_Cash!D$9","v":-283877},{"$f":"NR_to_Cash!E$9","v":-105647},{"$f":"NR_to_Cash!F$9","v":-78023},null,10,-2789.297704458545,-28079.8229647431,-17657.129143580503,16613.105521904843,null,-155327,-283877,-105647,-78023]
[11,{"$error":"#NAME?"},{"$error":"#NAME?"},{"$error":"#NAME?"},{"$error":"#NAME?"},null,{"$f":"NR_to_Cash!C$9","v":-155327},{"$f":"NR_to_Cash!D$9","v":-283877},{"$f":"NR_to_Cash!E$9","v":-105647},{"$f":"NR_to_Cash!F$9","v":-78023},null,11,-10883.667764301525,-27586.494041821872,-29282.28912776391,-23047.950840561884,null,-155327,-283877,-105647,-78023]
[12,{"$error":"#NAME?"},{"$error":"#NAME?"},{"$error":"#NAME?"},{"$error":"#NAME?"},null,{"$f":"NR_to_Cash!C$9","v":-155327},{"$f":"NR_to_Cash!D$9","v":-283877},{"$f":"NR_to_Cash!E$9","v":-105647},{"$f":"NR_to_Cash!F$9","v":-78023},null,12,-2137.7677617041518,-469.98716963850995,6156.3453742688971,11940.72529523374,null,-155327,-283877,-105647,-78023]
[13,{"$error":"#NAME?"},{"$error":"#NAME?"},{"$error":"#NAME?"},{"$error":"#NAME?"},null,{"$f":"NR_to_Cash!C$9","v":-155327},{"$f":"NR_to_Cash!D$9","v":-283877},{"$f":"NR_to_Cash!E$9","v":-105647},{"$f":"NR_to_Cash!F$9","v":-78023},null,13,-4577.9724832977754,-16890.765942793219,-19246.957798411819,-14270.526287906872,null,-155327,-283877,-105647,-78023]
[14,{"$error":"#NAME?"},{"$error":"#NAME?"},{"$error":"#NAME?"},{"$error":"#NAME?"},null,{"$f":"NR_to_Cash!C$9","v":-155327},{"$f":"NR_to_Cash!D$9","v":-283877},{"$f":"NR_to_Cash!E$9","v":-105647},{"$f":"NR_to_Cash!F$9","v":-78023},null,14,-6878.2161707708165,8647.6835810500525,15046.248092228023,-5596.8178714240412,null,-155327,-283877,-105647,-78023]
[15,{"$error":"#NAME?"},{"$error":"#NAME?"},{"$error":"#NAME?"},{"$error":"#NAME?"},null,{"$f":"NR_to_Cash!C$9","v":-155327},{"$f":"NR_to_Cash!D$9","v":-283877},{"$f":"NR_to_Cash!E$9","v":-105647},{"$f":"NR_to_Cash!F$9","v":-78023},null,15,-11447.411678198165,-12527.214499030173,2679.9255160645794,-17432.951941590087,null,-155327,-283877,-105647,-78023]
[16,{"$error":"#NAME?"},{"$error":"#NAME?"},{"$error":"#NAME?"},{"$error":"#NAME?"},null,{"$f":"NR_to_Cash!C$9","v":-155327},{"$f":"NR_to_Cash!D$9","v":-283877},{"$f":"NR_to_Cash!E$9","v":-105647},{"$f":"NR_to_Cash!F$9","v":-78023},null,16,-19374.065208774049,-120.46726296751663,9217.4423787211272,3907.3048489543662,null,-155327,-283877,-105647,-78023]
[17,{"$error":"#NAME?"},{"$error":"#NAME?"},{"$error":"#NAME?"},{"$error":"#NAME?"},null,{"$f":"NR_to_Cash!C$9","v":-155327},{"$f":"NR_to_Cash!D$9","v":-283877},{"$f":"NR_to_Cash!E$9","v":-105647},{"$f":"NR_to_Cash!F$9","v":-78023},null,17,-5804.0277289810256,-21169.910270793524,3069.5101289040094,23902.709276952475,null,-155327,-283877,-105647,-78023]
[18,{"$error":"#NAME?"},{"$error":"#NAME?"},{"$error":"#NAME?"},{"$error":"#NAME?"},null,{"$f":"NR_to_Cash!C$9","v":-155327},{"$f":"NR_to_Cash!D$9","v":-283877},{"$f":"NR_to_Cash!E$9","v":-105647},{"$f":"NR_to_Cash!F$9","v":-78023},null,18,-8659.4848671392974,-15048.072380060446,-17618.353163209689,-33719.598137227957,null,-155327,-283877,-105647,-78023]
[19,{"$error":"#NAME?"},{"$error":"#NAME?"},{"$error":"#NAME?"},{"$error":"#NAME?"},null,{"$f":"NR_to_Cash!C$9","v":-155327},{"$f":"NR_to_Cash!D$9","v":-283877},{"$f":"NR_to_Cash!E$9","v":-105647},{"$f":"NR_to_Cash!F$9","v":-78023},null,19,-16546.95214552019,3173.6297278581656,-11391.211908304802,14967.893220989881,null,-155327,-283877,-105647,-78023]
[20,{"$error":"#NAME?"},{"$error":"#NAME?"},{"$error":"#NAME?"},{"$error":"#NAME?"},null,{"$f":"NR_to_Cash!C$9","v":-155327},{"$f":"NR_to_Cash!D$9","v":-283877},{"$f":"NR_to_Cash!E$9","v":-105647},{"$f":"NR_to_Cash!F$9","v":-78023},null,20,-12787.133392593718,-9109.4254032165572,-644.42427654543519,-13219.386062011612,null,-155327,-283877,-105647,-78023]
[21,{"$error":"#NAME?"},{"$error":"#NAME?"},{"$error":"#NAME?"},{"$error":"#NAME?"},null,{"$f":"NR_to_Cash!C$9","v":-155327},{"$f":"NR_to_Cash!D$9","v":-283877},{"$f":"NR_to_Cash!E$9","v":-105647},{"$f":"NR_to_Cash!F$9","v":-78023},null,21,-236.06876352456078,9305.6286586141396,-9464.570245822415,-24068.398344445857,null,-155327,-283877,-105647,-78023]
[22,{"$error":"#NAME?"},{"$error":"#NAME?"},{"$error":"#NAME?"},{"$error":"#NAME?"},null,{"$f":"NR_to_Cash!C$9","v":-155327},{"$f":"NR_to_Cash!D$9","v":-283877},{"$f":"NR_to_Cash!E$9","v":-105647},{"$f":"NR_to_Cash!F$9","v":-78023},null,22,-11338.719942046921,-5620.6471116412749,1491.5024392227642,-8154.8615784485255,null,-155327,-283877,-105647,-78023]
[23,{"$error":"#NAME?"},{"$error":"#NAME?"},{"$error":"#NAME?"},{"$error":"#NAME?"},null,{"$f":"NR_to_Cash!C$9","v":-155327},{"$f":"NR_to_Cash!D$9","v":-283877},{"$f":"NR_to_Cash!E$9","v":-105647},{"$f":"NR_to_Cash!F$9","v":-78023},null,23,-19703.580326930256,-20331.415989525321,-25364.157828094088,-9483.9761588864585,null,-155327,-283877,-105647,-78023]
[24,{"$error":"#NAME?"},{"$error":"#NAME?"},{"$error":"#NAME?"},{"$error":"#NAME?"},null,{"$f":"NR_to_Cash!C$9","v":-155327},{"$f":"NR_to_Cash!D$9","v":-283877},{"$f":"NR_to_Cash!E$9","v":-105647},{"$f":"NR_to_Cash!F$9","v":-78023},null,24,-27356.935353745794,-18862.746518294109,-3026.9424032012762,-16242.529406417692,null,-155327,-283877,-105647,-78023]
[25,{"$error":"#NAME?"},{"$error":"#NAME?"},{"$error":"#NAME?"},{"$error":"#NAME?"},null,{"$f":"NR_to_Cash!C$9","v":-155327},{"$f":"NR_to_Cash!D$9","v":-283877},{"$f":"NR_to_Cash!E$9","v":-105647},{"$f":"NR_to_Cash!F$9","v":-78023},null,25,-16847.557696094231,6163.8013927508046,1658.8394949085723,1375.979427026218,null,-155327,-283877,-105647,-78023]
[26,{"$error":"#NAME?"},{"$error":"#NAME?"},{"$error":"#NAME?"},{"$error":"#NAME?"},null,{"$f":"NR_to_Cash!C$9","v":-155327},{"$f":"NR_to_Cash!D$9","v":-283877},{"$f":"NR_to_Cash!E$9","v":-105647},{"$f":"NR_to_Cash!F$9","v":-78023},null,26,-14625.688600300706,-9635.5761986626567,-42010.571626298806,-20214.007258931622,null,-155327,-283877,-105647,-78023]
[27,{"$error":"#NAME?"},{"$error":"#NAME?"},{"$error":"#NAME?"},{"$error":"#NAME?"},null,{"$f":"NR_to_Cash!C$9","v":-155327},{"$f":"NR_to_Cash!D$9","v":-283877},{"$f":"NR_to_Cash!E$9","v":-105647},{"$f":"NR_to_Cash!F$9","v":-78023},null,27,-20676.660089737612,-16002.689309551388,-11943.14990478712,-19728.313102187443,null,-155327,-283877,-105647,-78023]
[28,{"$error":"#NAME?"},{"$error":"#NAME?"},{"$error":"#NAME?"},{"$error":"#NAME?"},null,{"$f":"NR_to_Cash!C$9","v":-155327},{"$f":"NR_to_Cash!D$9","v":-283877},{"$f":"NR_to_Cash!E$9","v":-105647},{"$f":"NR_to_Cash!F$9","v":-78023},null,28,-2744.5620838073833,-14448.944179514327,-6923.541115318505,-14526.77211337032,null,-155327,-283877,-105647,-78023]
[29,{"$error":"#NAME?"},{"$error":"#NAME?"},{"$error":"#NAME?"},{"$error":"#NAME?"},null,{"$f":"NR_to_Cash!C$9","v":-155327},{"$f":"NR_to_Cash!D$9","v":-283877},{"$f":"NR_to_Cash!E$9","v":-105647},{"$f":"NR_to_Cash!F$9","v":-78023},null,29,-10830.162977093416,-9517.5423436218134,-7487.866906051242,-32993.024563067389,null,-155327,-283877,-105647,-78023]
[30,{"$error":"#NAME?"},{"$error":"#NAME?"},{"$error":"#NAME?"},{"$error":"#NAME?"},null,{"$f":"NR_to_Cash!C$9","v":-155327},{"$f":"NR_to_Cash!D$9","v":-283877},{"$f":"NR_to_Cash!E$9","v":-105647},{"$f":"NR_to_Cash!F$9","v":-78023},null,30,-24892.198747327384,-7969.6025854942482,-2742.8205085356876,-3330.7705844347561,null,-155327,-283877,-105647,-78023]
[31,{"$error":"#NAME?"},{"$error":"#NAME?"},{"$error":"#NAME?"},{"$error":"#NAME?"},null,{"$f":"NR_to_Cash!C$9","v":-155327},{"$f":"NR_to_Cash!D$9","v":-283877},{"$f":"NR_to_Cash!E$9","v":-105647},{"$f":"NR_to_Cash!F$9","v":-78023},null,31,-5009.3239818404718,-19205.960638562239,1663.1828678845677,-21607.724911993162,null,-155327,-283877,-105647,-78023]
[32,{"$error":"#NAME?"},{"$error":"#NAME?"},{"$error":"#NAME?"},{"$error":"#NAME?"},null,{"$f":"NR_to_Cash!C$9","v":-155327},{"$f":"NR_to_Cash!D$9","v":-283877},{"$f":"NR_to_Cash!E$9","v":-105647},{"$f":"NR_to_Cash!F$9","v":-78023},null,32,-17704.925984672762,12204.951691264989,-77.442327889905059,-7089.0113129253468,null,-155327,-283877,-105647,-78023]
[33,{"$error":"#NAME?"},{"$error":"#NAME?"},{"$error":"#NAME?"},{"$error":"#NAME?"},null,{"$f":"NR_to_Cash!C$9","v":-155327},{"$f":"NR_to_Cash!D$9","v":-283877},{"$f":"NR_to_Cash!E$9","v":-105647},{"$f":"NR_to_Cash!F$9","v":-78023},null,33,-11326.354114284608,-7130.5202742971696,-12200.236339183184,459.67784194829005,null,-155327,-283877,-105647,-78023]
[34,{"$error":"#NAME?"},{"$error":"#NAME?"},{"$error":"#NAME?"},{"$error":"#NAME?"},null,{"$f":"NR_to_Cash!C$9","v":-155327},{"$f":"NR_to_Cash!D$9","v":-283877},{"$f":"NR_to_Cash!E$9","v":-105647},{"$f":"NR_to_Cash!F$9","v":-78023},null,34,-9539.9025500303578,-4347.2949278988617,-27388.991645412716,-9234.4224713448548,null,-155327,-283877,-105647,-78023]
[35,{"$error":"#NAME?"},{"$error":"#NAME?"},{"$error":"#NAME?"},{"$error":"#NAME?"},null,{"$f":"NR_to_Cash!C$9","v":-155327},{"$f":"NR_to_Cash!D$9","v":-283877},{"$f":"NR_to_Cash!E$9","v":-105647},{"$f":"NR_to_Cash!F$9","v":-78023},null,35,-9546.2544090709343,-33.343869616292338,3060.9529582427308,-26870.81871457534,null,-155327,-283877,-105647,-78023]
[36,{"$error":"#NAME?"},{"$error":"#NAME?"},{"$error":"#NAME?"},{"$error":"#NAME?"},null,{"$f":"NR_to_Cash!C$9","v":-155327},{"$f":"NR_to_Cash!D$9","v":-283877},{"$f":"NR_to_Cash!E$9","v":-105647},{"$f":"NR_to_Cash!F$9","v":-78023},null,36,-4774.1789347645581,-10180.161197920821,-2731.2064554537515,14349.861964650545,null,-155327,-283877,-105647,-78023]
[37,{"$error":"#NAME?"},{"$error":"#NAME?"},{"$error":"#NAME?"},{"$error":"#NAME?"},null,{"$f":"NR_to_Cash!C$9","v":-155327},{"$f":"NR_to_Cash!D$9","v":-283877},{"$f":"NR_to_Cash!E$9","v":-105647},{"$f":"NR_to_Cash!F$9","v":-78023},null,37,-20597.437097102047,-31957.835401156692,-22193.621486383374,4208.9303086631307,null,-155327,-283877,-105647,-78023]
[38,{"$error":"#NAME?"},{"$error":"#NAME?"},{"$error":"#NAME?"},{"$error":"#NAME?"},null,{"$f":"NR_to_Cash!C$9","v":-155327},{"$f":"NR_to_Cash!D$9","v":-283877},{"$f":"NR_to_Cash!E$9","v":-105647},{"$f":"NR_to_Cash!F$9","v":-78023},null,38,-26277.041704529598,-11085.814447451312,-11839.959566273532,-7332.2502709716227,null,-155327,-283877,-105647,-78023]
[39,{"$error":"#NAME?"},{"$error":"#NAME?"},{"$error":"#NAME?"},{"$error":"#NAME?"},null,{"$f":"NR_to_Cash!C$9","v":-155327},{"$f":"NR_to_Cash!D$9","v":-283877},{"$f":"NR_to_Cash!E$9","v":-105647},{"$f":"NR_to_Cash!F$9","v":-78023},null,39,3740.6292934702565,-30422.520682331651,-25454.916797817219,-18666.791888097971,null,-155327,-283877,-105647,-78023]
[40,{"$error":"#NAME?"},{"$error":"#NAME?"},{"$error":"#NAME?"},{"$error":"#NAME?"},null,{"$f":"NR_to_Cash!C$9","v":-155327},{"$f":"NR_to_Cash!D$9","v":-283877},{"$f":"NR_to_Cash!E$9","v":-105647},{"$f":"NR_to_Cash!F$9","v":-78023},null,40,-13380.687963659309,6779.8529304343901,-23547.343646822115,1633.258866983821,null,-155327,-283877,-105647,-78023]
[41,{"$error":"#NAME?"},{"$error":"#NAME?"},{"$error":"#NAME?"},{"$error":"#NAME?"},null,{"$f":"NR_to_Cash!C$9","v":-155327},{"$f":"NR_to_Cash!D$9","v":-283877},{"$f":"NR_to_Cash!E$9","v":-105647},{"$f":"NR_to_Cash!F$9","v":-78023},null,41,-9332.6108935288357,-3786.3912566996855,-16558.582449183425,-9210.6431488184244,null,-155327,-283877,-105647,-78023]
[42,{"$error":"#NAME?"},{"$error":"#NAME?"},{"$error":"#NAME?"},{"$error":"#NAME?"},null,{"$f":"NR_to_Cash!C$9","v":-155327},{"$f":"NR_to_Cash!D$9","v":-283877},{"$f":"NR_to_Cash!E$9","v":-105647},{"$f":"NR_to_Cash!F$9","v":-78023},null,42,-26502.857899422055,1474.1827343691505,-8412.1225025763397,-2982.1478551479095,null,-155327,-283877,-105647,-78023]
[43,{"$error":"#NAME?"},{"$error":"#NAME?"},{"$error":"#NAME?"},{"$error":"#NAME?"},null,{"$f":"NR_to_Cash!C$9","v":-155327},{"$f":"NR_to_Cash!D$9","v":-283877},{"$f":"NR_to_Cash!E$9","v":-105647},{"$f":"NR_to_Cash!F$9","v":-78023},null,43,-31177.48031967417,7545.3034025104898,-4279.1158257479055,-7197.473756410468,null,-155327,-283877,-105647,-78023]
[44,{"$error":"#NAME?"},{"$error":"#NAME?"},{"$error":"#NAME?"},{"$error":"#NAME?"},null,{"$f":"NR_to_Cash!C$9","v":-155327},{"$f":"NR_to_Cash!D$9","v":-283877},{"$f":"NR_to_Cash!E$9","v":-105647},{"$f":"NR_to_Cash!F$9","v":-78023},null,44,-21581.396147140149,-14955.944360034066,-8646.2751903124445,-7599.4146488527249,null,-155327,-283877,-105647,-78023]
[45,{"$error":"#NAME?"},{"$error":"#NAME?"},{"$error":"#NAME?"},{"$error":"#NAME?"},null,{"$f":"NR_to_Cash!C$9","v":-155327},{"$f":"NR_to_Cash!D$9","v":-283877},{"$f":"NR_to_Cash!E$9","v":-105647},{"$f":"NR_to_Cash!F$9","v":-78023},null,45,-24881.06794156973,1621.7563549231929,1912.6494571024641,-40681.843430222303,null,-155327,-283877,-105647,-78023]
[46,{"$error":"#NAME?"},{"$error":"#NAME?"},{"$error":"#NAME?"},{"$error":"#NAME?"},null,{"$f":"NR_to_Cash!C$9","v":-155327},{"$f":"NR_to_Cash!D$9","v":-283877},{"$f":"NR_to_Cash!E$9","v":-105647},{"$f":"NR_to_Cash!F$9","v":-78023},null,46,-16363.44752900377,23942.46273128115,-24755.853581099043,-4077.9979660414665,null,-155327,-283877,-105647,-78023]
[47,{"$error":"#NAME?"},{"$error":"#NAME?"},{"$error":"#NAME?"},{"$error":"#NAME?"},null,{"$f":"NR_to_Cash!C$9","v":-155327},{"$f":"NR_to_Cash!D$9","v":-283877},{"$f":"NR_to_Cash!E$9","v":-105647},{"$f":"NR_to_Cash!F$9","v":-78023},null,47,-20096.975106107842,-31068.570995554473,-17323.960856643447,-20127.21102524157,null,-155327,-283877,-105647,-78023]
[48,{"$error":"#NAME?"},{"$error":"#NAME?"},{"$error":"#NAME?"},{"$error":"#NAME?"},null,{"$f":"NR_to_Cash!C$9","v":-155327},{"$f":"NR_to_Cash!D$9","v":-283877},{"$f":"NR_to_Cash!E$9","v":-105647},{"$f":"NR_to_Cash!F$9","v":-78023},null,48,-9190.1673860520204,-23852.637970259351,-10557.556102508141,-8834.0730516753501,null,-155327,-283877,-105647,-78023]
[49,{"$error":"#NAME?"},{"$error":"#NAME?"},{"$error":"#NAME?"},{"$error":"#NAME?"},null,{"$f":"NR_to_Cash!C$9","v":-155327},{"$f":"NR_to_Cash!D$9","v":-283877},{"$f":"NR_to_Cash!E$9","v":-105647},{"$f":"NR_to_Cash!F$9","v":-78023},null,49,-23615.396121266374,-6149.1837428148601,-18358.62424304954,-15337.837582101234,null,-155327,-283877,-105647,-78023]
[50,{"$error":"#NAME?"},{"$error":"#NAME?"},{"$error":"#NAME?"},{"$error":"#NAME?"},null,{"$f":"NR_to_Cash!C$9","v":-155327},{"$f":"NR_to_Cash!D$9","v":-283877},{"$f":"NR_to_Cash!E$9","v":-105647},{"$f":"NR_to_Cash!F$9","v":-78023},null,50,-24362.793464590621,-22250.02182230365,-35009.299539446438,8905.7945904238495,null,-155327,-283877,-105647,-78023]
[51,{"$error":"#NAME?"},{"$error":"#NAME?"},{"$error":"#NAME?"},{"$error":"#NAME?"},null,{"$f":"NR_to_Cash!C$9","v":-155327},{"$f":"NR_to_Cash!D$9","v":-283877},{"$f":"NR_to_Cash!E$9","v":-105647},{"$f":"NR_to_Cash!F$9","v":-78023},null,51,-6835.9095417266626,-505.25332806545595,-22858.43599758745,-22793.884859880378,null,-155327,-283877,-105647,-78023]
[52,{"$error":"#NAME?"},{"$error":"#NAME?"},{"$error":"#NAME?"},{"$error":"#NAME?"},null,{"$f":"NR_to_Cash!C$9","v":-155327},{"$f":"NR_to_Cash!D$9","v":-283877},{"$f":"NR_to_Cash!E$9","v":-105647},{"$f":"NR_to_Cash!F$9","v":-78023},null,52,-8999.8082576255365,-20264.134969985644,-24039.258019411842,-16077.05348481462,null,-155327,-283877,-105647,-78023]
[53,{"$error":"#NAME?"},{"$error":"#NAME?"},{"$error":"#NAME?"},{"$error":"#NAME?"},null,{"$f":"NR_to_Cash!C$9","v":-155327},{"$f":"NR_to_Cash!D$9","v":-283877},{"$f":"NR_to_Cash!E$9","v":-105647},{"$f":"NR_to_Cash!F$9","v":-78023},null,53,-26244.149669747523,-24674.975834118457,-22343.721244164084,-9625.5966315395981,null,-155327,-283877,-105647,-78023]
[54,{"$error":"#NAME?"},{"$error":"#NAME?"},{"$error":"#NAME?"},{"$error":"#NAME?"},null,{"$f":"NR_to_Cash!C$9","v":-155327},{"$f":"NR_to_Cash!D$9","v":-283877},{"$f":"NR_to_Cash!E$9","v":-105647},{"$f":"NR_to_Cash!F$9","v":-78023},null,54,-15001.024959506414,4015.7233288294792,-11587.621352714574,-28828.327545245495,null,-155327,-283877,-105647,-78023]
[55,{"$error":"#NAME?"},{"$error":"#NAME?"},{"$error":"#NAME?"},{"$error":"#NAME?"},null,{"$f":"NR_to_Cash!C$9","v":-155327},{"$f":"NR_to_Cash!D$9","v":-283877},{"$f":"NR_to_Cash!E$9","v":-105647},{"$f":"NR_to_Cash!F$9","v":-78023},null,55,-1807.0172926555829,-21627.573376149154,-29444.458238164629,-10460.34645255678,null,-155327,-283877,-105647,-78023]
[56,{"$error":"#NAME?"},{"$error":"#NAME?"},{"$error":"#NAME?"},{"$error":"#NAME?"},null,{"$f":"NR_to_Cash!C$9","v":-155327},{"$f":"NR_to_Cash!D$9","v":-283877},{"$f":"NR_to_Cash!E$9","v":-105647},{"$f":"NR_to_Cash!F$9","v":-78023},null,56,-23071.363516089634,-22201.873229497753,-2811.2935594983201,1448.7582932629898,null,-155327,-283877,-105647,-78023]
[57,{"$error":"#NAME?"},{"$error":"#NAME?"},{"$error":"#NAME?"},{"$error":"#NAME?"},null,{"$f":"NR_to_Cash!C$9","v":-155327},{"$f":"NR_to_Cash!D$9","v":-283877},{"$f":"NR_to_Cash!E$9","v":-105647},{"$f":"NR_to_Cash!F$9","v":-78023},null,57,-25199.085427028149,4549.6214836495992,-8298.9871685367398,13352.512309659618,null,-155327,-283877,-105647,-78023]
[58,{"$error":"#NAME?"},{"$error":"#NAME?"},{"$error":"#NAME?"},{"$error":"#NAME?"},null,{"$f":"NR_to_Cash!C$9","v":-155327},{"$f":"NR_to_Cash!D$9","v":-283877},{"$f":"NR_to_Cash!E$9","v":-105647},{"$f":"NR_to_Cash!F$9","v":-78023},null,58,-4137.9297691558568,-28473.071487921094,-7756.9131645162943,-6689.0162883572284,null,-155327,-283877,-105647,-78023]
[59,{"$error":"#NAME?"},{"$error":"#NAME?"},{"$error":"#NAME?"},{"$error":"#NAME?"},null,{"$f":"NR_to_Cash!C$9","v":-155327},{"$f":"NR_to_Cash!D$9","v":-283877},{"$f":"NR_to_Cash!E$9","v":-105647},{"$f":"NR_to_Cash!F$9","v":-78023},null,59,-19522.762976624013,-311.30451173091114,-8711.1291170422137,-17590.78090756914,null,-155327,-283877,-105647,-78023]
[60,{"$error":"#NAME?"},{"$error":"#NAME?"},{"$error":"#NAME?"},{"$error":"#NAME?"},null,{"$f":"NR_to_Cash!C$9","v":-155327},{"$f":"NR_to_Cash!D$9","v":-283877},{"$f":"NR_to_Cash!E$9","v":-105647},{"$f":"NR_to_Cash!F$9","v":-78023},null,60,-14168.003486697111,422.36074478924979,2108.0274176850803,7450.0565711698564,null,-155327,-283877,-105647,-78023]
[61,{"$error":"#NAME?"},{"$error":"#NAME?"},{"$error":"#NAME?"},{"$error":"#NAME?"},null,{"$f":"NR_to_Cash!C$9","v":-155327},{"$f":"NR_to_Cash!D$9","v":-283877},{"$f":"NR_to_Cash!E$9","v":-105647},{"$f":"NR_to_Cash!F$9","v":-78023},null,61,422.12891976612678,-6039.2494983847591,-18000.009322021997,10721.375001763339,null,-155327,-283877,-105647,-78023]
[62,{"$error":"#NAME?"},{"$error":"#NAME?"},{"$error":"#NAME?"},{"$error":"#NAME?"},null,{"$f":"NR_to_Cash!C$9","v":-155327},{"$f":"NR_to_Cash!D$9","v":-283877},{"$f":"NR_to_Cash!E$9","v":-105647},{"$f":"NR_to_Cash!F$9","v":-78023},null,62,-13512.662326393471,-21378.900978152065,-31176.247572025033,-3081.5508967340038,null,-155327,-283877,-105647,-78023]
[63,{"$error":"#NAME?"},{"$error":"#NAME?"},{"$error":"#NAME?"},{"$error":"#NAME?"},null,{"$f":"NR_to_Cash!C$9","v":-155327},{"$f":"NR_to_Cash!D$9","v":-283877},{"$f":"NR_to_Cash!E$9","v":-105647},{"$f":"NR_to_Cash!F$9","v":-78023},null,63,-10549.371965915896,-774.55883093230318,-327.06517360361426,-8592.415980601867,null,-155327,-283877,-105647,-78023]
[64,{"$error":"#NAME?"},{"$error":"#NAME?"},{"$error":"#NAME?"},{"$error":"#NAME?"},null,{"$f":"NR_to_Cash!C$9","v":-155327},{"$f":"NR_to_Cash!D$9","v":-283877},{"$f":"NR_to_Cash!E$9","v":-105647},{"$f":"NR_to_Cash!F$9","v":-78023},null,64,-3608.3994774154658,-18346.004633728266,-12165.644078380568,-32034.808953474821,null,-155327,-283877,-105647,-78023]
[65,{"$error":"#NAME?"},{"$error":"#NAME?"},{"$error":"#NAME?"},{"$error":"#NAME?"},null,{"$f":"NR_to_Cash!C$9","v":-155327},{"$f":"NR_to_Cash!D$9","v":-283877},{"$f":"NR_to_Cash!E$9","v":-105647},{"$f":"NR_to_Cash!F$9","v":-78023},null,65,-511.71164413098074,-12456.921164516114,-29750.390518420612,-13854.375553500948,null,-155327,-283877,-105647,-78023]
[66,{"$error":"#NAME?"},{"$error":"#NAME?"},{"$error":"#NAME?"},{"$error":"#NAME?"},null,{"$f":"NR_to_Cash!C$9","v":-155327},{"$f":"NR_to_Cash!D$9","v":-283877},{"$f":"NR_to_Cash!E$9","v":-105647},{"$f":"NR_to_Cash!F$9","v":-78023},null,66,-8185.278956167238,15153.082631870297,-5378.6787923301708,-29968.977917138996,null,-155327,-283877,-105647,-78023]
[67,{"$error":"#NAME?"},{"$error":"#NAME?"},{"$error":"#NAME?"},{"$error":"#NAME?"},null,{"$f":"NR_to_Cash!C$9","v":-155327},{"$f":"NR_to_Cash!D$9","v":-283877},{"$f":"NR_to_Cash!E$9","v":-105647},{"$f":"NR_to_Cash!F$9","v":-78023},null,67,-21216.655808888056,10852.640147890022,2519.7028462323447,-16470.057100223141,null,-155327,-283877,-105647,-78023]
[68,{"$error":"#NAME?"},{"$error":"#NAME?"},{"$error":"#NAME?"},{"$error":"#NAME?"},null,{"$f":"NR_to_Cash!C$9","v":-155327},{"$f":"NR_to_Cash!D$9","v":-283877},{"$f":"NR_to_Cash!E$9","v":-105647},{"$f":"NR_to_Cash!F$9","v":-78023},null,68,-11356.846658772134,-2931.1062649073187,-8700.1393378254561,-10846.363457017977,null,-155327,-283877,-105647,-78023]
[69,{"$error":"#NAME?"},{"$error":"#NAME?"},{"$error":"#NAME?"},{"$error":"#NAME?"},null,{"$f":"NR_to_Cash!C$9","v":-155327},{"$f":"NR_to_Cash!D$9","v":-283877},{"$f":"NR_to_Cash!E$9","v":-105647},{"$f":"NR_to_Cash!F$9","v":-78023},null,69,-18339.69920267873,-537.30793096173795,12208.880514860834,1613.9138297867601,null,-155327,-283877,-105647,-78023]
[70,{"$error":"#NAME?"},{"$error":"#NAME?"},{"$error":"#NAME?"},{"$error":"#NAME?"},null,{"$f":"NR_to_Cash!C$9","v":-155327},{"$f":"NR_to_Cash!D$9","v":-283877},{"$f":"NR_to_Cash!E$9","v":-105647},{"$f":"NR_to_Cash!F$9","v":-78023},null,70,-10305.388707389586,2640.8217015622727,-13252.165291869807,1477.7890360963365,null,-155327,-283877,-105647,-78023]
[71,{"$error":"#NAME?"},{"$error":"#NAME?"},{"$error":"#NAME?"},{"$error":"#NAME?"},null,{"$f":"NR_to_Cash!C$9","v":-155327},{"$f":"NR_to_Cash!D$9","v":-283877},{"$f":"NR_to_Cash!E$9","v":-105647},{"$f":"NR_to_Cash!F$9","v":-78023},null,71,-18253.931674558964,1257.257565205324,-4354.1707223936683,-16505.001319858537,null,-155327,-283877,-105647,-78023]
[72,{"$error":"#NAME?"},{"$error":"#NAME?"},{"$error":"#NAME?"},{"$error":"#NAME?"},null,{"$f":"NR_to_Cash!C$9","v":-155327},{"$f":"NR_to_Cash!D$9","v":-283877},{"$f":"NR_to_Cash!E$9","v":-105647},{"$f":"NR_to_Cash!F$9","v":-78023},null,72,-14816.943779418272,6619.1658684158356,-18359.189787022999,-9338.9322564174618,null,-155327,-283877,-105647,-78023]
[73,{"$error":"#NAME?"},{"$error":"#NAME?"},{"$error":"#NAME?"},{"$error":"#NAME?"},null,{"$f":"NR_to_Cash!C$9","v":-155327},{"$f":"NR_to_Cash!D$9","v":-283877},{"$f":"NR_to_Cash!E$9","v":-105647},{"$f":"NR_to_Cash!F$9","v":-78023},null,73,-3503.04387620125,2328.2531075662559,-21332.244087340085,-35287.241874045147,null,-155327,-283877,-105647,-78023]
[74,{"$error":"#NAME?"},{"$error":"#NAME?"},{"$error":"#NAME?"},{"$error":"#NAME?"},null,{"$f":"NR_to_Cash!C$9","v":-155327},{"$f":"NR_to_Cash!D$9","v":-283877},{"$f":"NR_to_Cash!E$9","v":-105647},{"$f":"NR_to_Cash!F$9","v":-78023},null,74,-4698.499594181867,-16394.04327871792,-9787.0730785065207,-19819.025949180512,null,-155327,-283877,-105647,-78023]
[75,{"$error":"#NAME?"},{"$error":"#NAME?"},{"$error":"#NAME?"},{"$error":"#NAME?"},null,{"$f":"NR_to_Cash!C$9","v":-155327},{"$f":"NR_to_Cash!D$9","v":-283877},{"$f":"NR_to_Cash!E$9","v":-105647},{"$f":"NR_to_Cash!F$9","v":-78023},null,75,4693.8419739759047,-13842.778562150639,9176.815608669307,-24445.299808507465,null,-155327,-283877,-105647,-78023]
[76,{"$error":"#NAME?"},{"$error":"#NAME?"},{"$error":"#NAME?"},{"$error":"#NAME?"},null,{"$f":"NR_to_Cash!C$9","v":-155327},{"$f":"NR_to_Cash!D$9","v":-283877},{"$f":"NR_to_Cash!E$9","v":-105647},{"$f":"NR_to_Cash!F$9","v":-78023},null,76,3498.120058784848,-10707.534566006412,1579.3038026876693,-8215.9280301397739,null,-155327,-283877,-105647,-78023]
[77,{"$error":"#NAME?"},{"$error":"#NAME?"},{"$error":"#NAME?"},{"$error":"#NAME?"},null,{"$f":"NR_to_Cash!C$9","v":-155327},{"$f":"NR_to_Cash!D$9","v":-283877},{"$f":"NR_to_Cash!E$9","v":-105647},{"$f":"NR_to_Cash!F$9","v":-78023},null,77,-28807.399160788074,-17212.600289376867,-14317.323801091728,-7008.159768559075,null,-155327,-283877,-105647,-78023]
[78,{"$error":"#NAME?"},{"$error":"#NAME?"},{"$error":"#NAME?"},{"$error":"#NAME?"},null,{"$f":"NR_to_Cash!C$9","v":-155327},{"$f":"NR_to_Cash!D$9","v":-283877},{"$f":"NR_to_Cash!E$9","v":-105647},{"$f":"NR_to_Cash!F$9","v":-78023},null,78,-32901.09758980175,-14778.209215393294,-42060.026200791544,-23059.178150694232,null,-155327,-283877,-105647,-78023]
[79,{"$error":"#NAME?"},{"$error":"#NAME?"},{"$error":"#NAME?"},{"$error":"#NAME?"},null,{"$f":"NR_to_Cash!C$9","v":-155327},{"$f":"NR_to_Cash!D$9","v":-283877},{"$f":"NR_to_Cash!E$9","v":-105647},{"$f":"NR_to_Cash!F$9","v":-78023},null,79,-8241.2525303233051,-1838.1121849879762,-12454.030056121177,1991.7922899114099,null,-155327,-283877,-105647,-78023]
[80,{"$error":"#NAME?"},{"$error":"#NAME?"},{"$error":"#NAME?"},{"$error":"#NAME?"},null,{"$f":"NR_to_Cash!C$9","v":-155327},{"$f":"NR_to_Cash!D$9","v":-283877},{"$f":"NR_to_Cash!E$9","v":-105647},{"$f":"NR_to_Cash!F$9","v":-78023},null,80,-5622.3726803548907,-5972.8051897631767,-38412.088695769686,-13883.481503034393,null,-155327,-283877,-105647,-78023]
[81,{"$error":"#NAME?"},{"$error":"#NAME?"},{"$error":"#NAME?"},{"$error":"#NAME?"},null,{"$f":"NR_to_Cash!C$9","v":-155327},{"$f":"NR_to_Cash!D$9","v":-283877},{"$f":"NR_to_Cash!E$9","v":-105647},{"$f":"NR_to_Cash!F$9","v":-78023},null,81,-20232.48852498117,-26066.248361840542,-6458.592449732022,-1875.5317733574773,null,-155327,-283877,-105647,-78023]
[82,{"$error":"#NAME?"},{"$error":"#NAME?"},{"$error":"#NAME?"},{"$error":"#NAME?"},null,{"$f":"NR_to_Cash!C$9","v":-155327},{"$f":"NR_to_Cash!D$9","v":-283877},{"$f":"NR_to_Cash!E$9","v":-105647},{"$f":"NR_to_Cash!F$9","v":-78023},null,82,-27446.594848590466,-24951.345041446795,-11460.912176866677,-32189.39665157882,null,-155327,-283877,-105647,-78023]
[83,{"$error":"#NAME?"},{"$error":"#NAME?"},{"$error":"#NAME?"},{"$error":"#NAME?"},null,{"$f":"NR_to_Cash!C$9","v":-155327},{"$f":"NR_to_Cash!D$9","v":-283877},{"$f":"NR_to_Cash!E$9","v":-105647},{"$f":"NR_to_Cash!F$9","v":-78023},null,83,-12728.876315559777,15957.793446844484,-23773.097394180935,-17637.366745127572,null,-155327,-283877,-105647,-78023]
[84,{"$error":"#NAME?"},{"$error":"#NAME?"},{"$error":"#NAME?"},{"$error":"#NAME?"},null,{"$f":"NR_to_Cash!C$9","v":-155327},{"$f":"NR_to_Cash!D$9","v":-283877},{"$f":"NR_to_Cash!E$9","v":-105647},{"$f":"NR_to_Cash!F$9","v":-78023},null,84,70.317476126863227,-24200.711611154671,-14999.911897628175,-19835.865051498731,null,-155327,-283877,-105647,-78023]
[85,{"$error":"#NAME?"},{"$error":"#NAME?"},{"$error":"#NAME?"},{"$error":"#NAME?"},null,{"$f":"NR_to_Cash!C$9","v":-155327},{"$f":"NR_to_Cash!D$9","v":-283877},{"$f":"NR_to_Cash!E$9","v":-105647},{"$f":"NR_to_Cash!F$9","v":-78023},null,85,-24268.180673034814,-6730.1688895713387,-10744.844719041816,-27727.605930941074,null,-155327,-283877,-105647,-78023]
[86,{"$error":"#NAME?"},{"$error":"#NAME?"},{"$error":"#NAME?"},{"$error":"#NAME?"},null,{"$f":"NR_to_Cash!C$9","v":-155327},{"$f":"NR_to_Cash!D$9","v":-283877},{"$f":"NR_to_Cash!E$9","v":-105647},{"$f":"NR_to_Cash!F$9","v":-78023},null,86,-12821.083227537936,-9428.1268078884477,13918.394256492993,-15375.979716329823,null,-155327,-283877,-105647,-78023]
[87,{"$error":"#NAME?"},{"$error":"#NAME?"},{"$error":"#NAME?"},{"$error":"#NAME?"},null,{"$f":"NR_to_Cash!C$9","v":-155327},{"$f":"NR_to_Cash!D$9","v":-283877},{"$f":"NR_to_Cash!E$9","v":-105647},{"$f":"NR_to_Cash!F$9","v":-78023},null,87,-18127.457647095092,-10520.234647498826,-28156.305868515403,-3317.2301395748941,null,-155327,-283877,-105647,-78023]
[88,{"$error":"#NAME?"},{"$error":"#NAME?"},{"$error":"#NAME?"},{"$error":"#NAME?"},null,{"$f":"NR_to_Cash!C$9","v":-155327},{"$f":"NR_to_Cash!D$9","v":-283877},{"$f":"NR_to_Cash!E$9","v":-105647},{"$f":"NR_to_Cash!F$9","v":-78023},null,88,-20421.134931948236,-28964.386873379088,-1655.1802662031698,-15137.118252506114,null,-155327,-283877,-105647,-78023]
[89,{"$error":"#NAME?"},{"$error":"#NAME?"},{"$error":"#NAME?"},{"$error":"#NAME?"},null,{"$f":"NR_to_Cash!C$9","v":-155327},{"$f":"NR_to_Cash!D$9","v":-283877},{"$f":"NR_to_Cash!E$9","v":-105647},{"$f":"NR_to_Cash!F$9","v":-78023},null,89,-11326.064066911484,-6549.2814761123436,7612.3701554292184,-6909.4635405574809,null,-155327,-283877,-105647,-78023]
[90,{"$error":"#NAME?"},{"$error":"#NAME?"},{"$error":"#NAME?"},{"$error":"#NAME?"},null,{"$f":"NR_to_Cash!C$9","v":-155327},{"$f":"NR_to_Cash!D$9","v":-283877},{"$f":"NR_to_Cash!E$9","v":-105647},{"$f":"NR_to_Cash!F$9","v":-78023},null,90,-17619.935066276405,-25518.788106842505,-5704.728986557845,-5305.7585801274799,null,-155327,-283877,-105647,-78023]
[91,{"$error":"#NAME?"},{"$error":"#NAME?"},{"$error":"#NAME?"},{"$error":"#NAME?"},null,{"$f":"NR_to_Cash!C$9","v":-155327},{"$f":"NR_to_Cash!D$9","v":-283877},{"$f":"NR_to_Cash!E$9","v":-105647},{"$f":"NR_to_Cash!F$9","v":-78023},null,91,-15639.175064150584,-449.86089744248255,20264.997277425111,5670.4640036128994,null,-155327,-283877,-105647,-78023]
[92,{"$error":"#NAME?"},{"$error":"#NAME?"},{"$error":"#NAME?"},{"$error":"#NAME?"},null,{"$f":"NR_to_Cash!C$9","v":-155327},{"$f":"NR_to_Cash!D$9","v":-283877},{"$f":"NR_to_Cash!E$9","v":-105647},{"$f":"NR_to_Cash!F$9","v":-78023},null,92,-4316.2663384166754,11858.225051320296,-8607.4457675493195,-12735.201986200391,null,-155327,-283877,-105647,-78023]
[93,{"$error":"#NAME?"},{"$error":"#NAME?"},{"$error":"#NAME?"},{"$error":"#NAME?"},null,{"$f":"NR_to_Cash!C$9","v":-155327},{"$f":"NR_to_Cash!D$9","v":-283877},{"$f":"NR_to_Cash!E$9","v":-105647},{"$f":"NR_to_Cash!F$9","v":-78023},null,93,-7255.6661668234447,4123.4397468646066,-1062.162319445918,-25976.85539361776,null,-155327,-283877,-105647,-78023]
[94,{"$error":"#NAME?"},{"$error":"#NAME?"},{"$error":"#NAME?"},{"$error":"#NAME?"},null,{"$f":"NR_to_Cash!C$9","v":-155327},{"$f":"NR_to_Cash!D$9","v":-283877},{"$f":"NR_to_Cash!E$9","v":-105647},{"$f":"NR_to_Cash!F$9","v":-78023},null,94,-2574.1395494620065,-13645.906905062056,-18701.629711120488,10816.186117600268,null,-155327,-283877,-105647,-78023]
[95,{"$error":"#NAME?"},{"$error":"#NAME?"},{"$error":"#NAME?"},{"$error":"#NAME?"},null,{"$f":"NR_to_Cash!C$9","v":-155327},{"$f":"NR_to_Cash!D$9","v":-283877},{"$f":"NR_to_Cash!E$9","v":-105647},{"$f":"NR_to_Cash!F$9","v":-78023},null,95,-3174.8023840707428,-6583.2948849050872,224.94736103242184,-2557.0252769531203,null,-155327,-283877,-105647,-78023]
[96,{"$error":"#NAME?"},{"$error":"#NAME?"},{"$error":"#NAME?"},{"$error":"#NAME?"},null,{"$f":"NR_to_Cash!C$9","v":-155327},{"$f":"NR_to_Cash!D$9","v":-283877},{"$f":"NR_to_Cash!E$9","v":-105647},{"$f":"NR_to_Cash!F$9","v":-78023},null,96,-8334.1932654927441,-11442.697804107276,-6907.2745015121218,-46466.81969341627,null,-155327,-283877,-105647,-78023]
[97,{"$error":"#NAME?"},{"$error":"#NAME?"},{"$error":"#NAME?"},{"$error":"#NAME?"},null,{"$f":"NR_to_Cash!C$9","v":-155327},{"$f":"NR_to_Cash!D$9","v":-283877},{"$f":"NR_to_Cash!E$9","v":-105647},{"$f":"NR_to_Cash!F$9","v":-78023},null,97,-17880.932198042323,-19519.495548640585,-22995.785196979206,-19882.338395330702,null,-155327,-283877,-105647,-78023]
[98,{"$error":"#NAME?"},{"$error":"#NAME?"},{"$error":"#NAME?"},{"$error":"#NAME?"},null,{"$f":"NR_to_Cash!C$9","v":-155327},{"$f":"NR_to_Cash!D$9","v":-283877},{"$f":"NR_to_Cash!E$9","v":-105647},{"$f":"NR_to_Cash!F$9","v":-78023},null,98,-14423.955238292307,1595.7875720644947,-2134.3391559874644,5464.6327302404534,null,-155327,-283877,-105647,-78023]
[99,{"$error":"#NAME?"},{"$error":"#NAME?"},{"$error":"#NAME?"},{"$error":"#NAME?"},null,{"$f":"NR_to_Cash!C$9","v":-155327},{"$f":"NR_to_Cash!D$9","v":-283877},{"$f":"NR_to_Cash!E$9","v":-105647},{"$f":"NR_to_Cash!F$9","v":-78023},null,99,-14944.749809806137,-8758.2533751193914,6988.9525877019187,16365.956981382082,null,-155327,-283877,-105647,-78023]
[100,{"$error":"#NAME?"},{"$error":"#NAME?"},{"$error":"#NAME?"},{"$error":"#NAME?"},null,{"$f":"NR_to_Cash!C$9","v":-155327},{"$f":"NR_to_Cash!D$9","v":-283877},{"$f":"NR_to_Cash!E$9","v":-105647},{"$f":"NR_to_Cash!F$9","v":-78023},null,100,-19157.892626390538,-24274.80068456275,-16349.03393045124,5317.3207696042809,null,-155327,-283877,-105647,-78023]
[101,{"$error":"#NAME?"},{"$error":"#NAME?"},{"$error":"#NAME?"},{"$error":"#NAME?"},null,{"$f":"NR_to_Cash!C$9","v":-155327},{"$f":"NR_to_Cash!D$9","v":-283877},{"$f":"NR_to_Cash!E$9","v":-105647},{"$f":"NR_to_Cash!F$9","v":-78023},null,101,2493.234928806598,6133.9514883017282,-11613.075203535906,-18526.650523899436,null,-155327,-283877,-105647,-78023]
[102,{"$error":"#NAME?"},{"$error":"#NAME?"},{"$error":"#NAME?"},{"$error":"#NAME?"},null,{"$f":"NR_to_Cash!C$9","v":-155327},{"$f":"NR_to_Cash!D$9","v":-283877},{"$f":"NR_to_Cash!E$9","v":-105647},{"$f":"NR_to_Cash!F$9","v":-78023},null,102,-15285.990650947158,-11580.808695292068,-14355.206494914848,3502.1590041848449,null,-155327,-283877,-105647,-78023]
[103,{"$error":"#NAME?"},{"$error":"#NAME?"},{"$error":"#NAME?"},{"$error":"#NAME?"},null,{"$f":"NR_to_Cash!C$9","v":-155327},{"$f":"NR_to_Cash!D$9","v":-283877},{"$f":"NR_to_Cash!E$9","v":-105647},{"$f":"NR_to_Cash!F$9","v":-78023},null,103,-16994.462338993595,-22243.231424455837,-12051.983656502065,-18182.676921529357,null,-155327,-283877,-105647,-78023]
[104,{"$error":"#NAME?"},{"$error":"#NAME?"},{"$error":"#NAME?"},{"$error":"#NAME?"},null,{"$f":"NR_to_Cash!C$9","v":-155327},{"$f":"NR_to_Cash!D$9","v":-283877},{"$f":"NR_to_Cash!E$9","v":-105647},{"$f":"NR_to_Cash!F$9","v":-78023},null,104,-15791.873957601158,-6157.8147668787697,1973.8467149850026,-18401.743394781366,null,-155327,-283877,-105647,-78023]
[105,{"$error":"#NAME?"},{"$error":"#NAME?"},{"$error":"#NAME?"},{"$error":"#NAME?"},null,{"$f":"NR_to_Cash!C$9","v":-155327},{"$f":"NR_to_Cash!D$9","v":-283877},{"$f":"NR_to_Cash!E$9","v":-105647},{"$f":"NR_to_Cash!F$9","v":-78023},null,105,-13547.009120296563,13799.071694341514,-16086.187860379847,-2639.8668988498266,null,-155327,-283877,-105647,-78023]
[106,{"$error":"#NAME?"},{"$error":"#NAME?"},{"$error":"#NAME?"},{"$error":"#NAME?"},null,{"$f":"NR_to_Cash!C$9","v":-155327},{"$f":"NR_to_Cash!D$9","v":-283877},{"$f":"NR_to_Cash!E$9","v":-105647},{"$f":"NR_to_Cash!F$9","v":-78023},null,106,-23075.159397107956,-10003.657475636519,7760.3828621999537,-19074.155016579898,null,-155327,-283877,-105647,-78023]
[107,{"$error":"#NAME?"},{"$error":"#NAME?"},{"$error":"#NAME?"},{"$error":"#NAME?"},null,{"$f":"NR_to_Cash!C$9","v":-155327},{"$f":"NR_to_Cash!D$9","v":-283877},{"$f":"NR_to_Cash!E$9","v":-105647},{"$f":"NR_to_Cash!F$9","v":-78023},null,107,-9900.9090448443658,-19469.76499031089,-11458.367352622232,-1560.2513296733662,null,-155327,-283877,-105647,-78023]
[108,{"$error":"#NAME?"},{"$error":"#NAME?"},{"$error":"#NAME?"},{"$error":"#NAME?"},null,{"$f":"NR_to_Cash!C$9","v":-155327},{"$f":"NR_to_Cash!D$9","v":-283877},{"$f":"NR_to_Cash!E$9","v":-105647},{"$f":"NR_to_Cash!F$9","v":-78023},null,108,-14176.806165751486,-8229.7014077119984,2555.9138905435311,2260.2978241050641,null,-155327,-283877,-105647,-78023]
[109,{"$error":"#NAME?"},{"$error":"#NAME?"},{"$error":"#NAME?"},{"$error":"#NAME?"},null,{"$f":"NR_to_Cash!C$9","v":-155327},{"$f":"NR_to_Cash!D$9","v":-283877},{"$f":"NR_to_Cash!E$9","v":-105647},{"$f":"NR_to_Cash!F$9","v":-78023},null,109,-5050.8390176809007,-6582.3202470837105,7302.3530099302079,4633.3879316858829,null,-155327,-283877,-105647,-78023]
[110,{"$error":"#NAME?"},{"$error":"#NAME?"},{"$error":"#NAME?"},{"$error":"#NAME?"},null,{"$f":"NR_to_Cash!C$9","v":-155327},{"$f":"NR_to_Cash!D$9","v":-283877},{"$f":"NR_to_Cash!E$9","v":-105647},{"$f":"NR_to_Cash!F$9","v":-78023},null,110,-10605.711796812813,-24005.654011973107,-21437.125642501927,-19098.321137823445,null,-155327,-283877,-105647,-78023]
[111,{"$error":"#NAME?"},{"$error":"#NAME?"},{"$error":"#NAME?"},{"$error":"#NAME?"},null,{"$f":"NR_to_Cash!C$9","v":-155327},{"$f":"NR_to_Cash!D$9","v":-283877},{"$f":"NR_to_Cash!E$9","v":-105647},{"$f":"NR_to_Cash!F$9","v":-78023},null,111,-812.97660730520465,-9318.8464556958115,-19853.181112200167,-29180.778204738319,null,-155327,-283877,-105647,-78023]
[112,{"$error":"#NAME?"},{"$error":"#NAME?"},{"$error":"#NAME?"},{"$error":"#NAME?"},null,{"$f":"NR_to_Cash!C$9","v":-155327},{"$f":"NR_to_Cash!D$9","v":-283877},{"$f":"NR_to_Cash!E$9","v":-105647},{"$f":"NR_to_Cash!F$9","v":-78023},null,112,-5111.5241372025275,10351.154695723179,-9842.5605857531027,-18162.281701436918,null,-155327,-283877,-105647,-78023]
[113,{"$error":"#NAME?"},{"$error":"#NAME?"},{"$error":"#NAME?"},{"$error":"#NAME?"},null,{"$f":"NR_to_Cash!C$9","v":-155327},{"$f":"NR_to_Cash!D$9","v":-283877},{"$f":"NR_to_Cash!E$9","v":-105647},{"$f":"NR_to_Cash!F$9","v":-78023},null,113,-18816.597145217973,10980.089466557845,-14874.73612535871,-17678.018352533509,null,-155327,-283877,-105647,-78023]
[114,{"$error":"#NAME?"},{"$error":"#NAME?"},{"$error":"#NAME?"},{"$error":"#NAME?"},null,{"$f":"NR_to_Cash!C$9","v":-155327},{"$f":"NR_to_Cash!D$9","v":-283877},{"$f":"NR_to_Cash!E$9","v":-105647},{"$f":"NR_to_Cash!F$9","v":-78023},null,114,1456.6159594469914,-12526.581088714989,-1394.8701906232975,-14574.688257631373,null,-155327,-283877,-105647,-78023]
[115,{"$error":"#NAME?"},{"$error":"#NAME?"},{"$error":"#NAME?"},{"$error":"#NAME?"},null,{"$f":"NR_to_Cash!C$9","v":-155327},{"$f":"NR_to_Cash!D$9","v":-283877},{"$f":"NR_to_Cash!E$9","v":-105647},{"$f":"NR_to_Cash!F$9","v":-78023},null,115,-27272.972200337434,-9773.3864250895494,-9373.2997092605747,-6494.5664275060826,null,-155327,-283877,-105647,-78023]
[116,{"$error":"#NAME?"},{"$error":"#NAME?"},{"$error":"#NAME?"},{"$error":"#NAME?"},null,{"$f":"NR_to_Cash!C$9","v":-155327},{"$f":"NR_to_Cash!D$9","v":-283877},{"$f":"NR_to_Cash!E$9","v":-105647},{"$f":"NR_to_Cash!F$9","v":-78023},null,116,-14014.560829863538,-3703.3994318758628,-10631.039547717388,-12210.845343314733,null,-155327,-283877,-105647,-78023]
[117,{"$error":"#NAME?"},{"$error":"#NAME?"},{"$error":"#NAME?"},{"$error":"#NAME?"},null,{"$f":"NR_to_Cash!C$9","v":-155327},{"$f":"NR_to_Cash!D$9","v":-283877},{"$f":"NR_to_Cash!E$9","v":-105647},{"$f":"NR_to_Cash!F$9","v":-78023},null,117,-23225.535019580675,-22618.860006696021,-25856.954241756524,4710.7596398983278,null,-155327,-283877,-105647,-78023]
[118,{"$error":"#NAME?"},{"$error":"#NAME?"},{"$error":"#NAME?"},{"$error":"#NAME?"},null,{"$f":"NR_to_Cash!C$9","v":-155327},{"$f":"NR_to_Cash!D$9","v":-283877},{"$f":"NR_to_Cash!E$9","v":-105647},{"$f":"NR_to_Cash!F$9","v":-78023},null,118,-19315.364426369168,-5331.617336210099,-22801.113026712726,-6102.2637506726778,null,-155327,-283877,-105647,-78023]
[119,{"$error":"#NAME?"},{"$error":"#NAME?"},{"$error":"#NAME?"},{"$error":"#NAME?"},null,{"$f":"NR_to_Cash!C$9","v":-155327},{"$f":"NR_to_Cash!D$9","v":-283877},{"$f":"NR_to_Cash!E$9","v":-105647},{"$f":"NR_to_Cash!F$9","v":-78023},null,119,-2571.1401902738521,431.73998010779599,-2845.1888661344692,-20463.36446450141,null,-155327,-283877,-105647,-78023]
[120,{"$error":"#NAME?"},{"$error":"#NAME?"},{"$error":"#NAME?"},{"$error":"#NAME?"},null,{"$f":"NR_to_Cash!C$9","v":-155327},{"$f":"NR_to_Cash!D$9","v":-283877},{"$f":"NR_to_Cash!E$9","v":-105647},{"$f":"NR_to_Cash!F$9","v":-78023},null,120,-32093.87014317287,-19883.031559282768,-16567.921908671746,-16273.426709889576,null,-155327,-283877,-105647,-78023]
[121,{"$error":"#NAME?"},{"$error":"#NAME?"},{"$error":"#NAME?"},{"$error":"#NAME?"},null,{"$f":"NR_to_Cash!C$9","v":-155327},{"$f":"NR_to_Cash!D$9","v":-283877},{"$f":"NR_to_Cash!E$9","v":-105647},{"$f":"NR_to_Cash!F$9","v":-78023},null,121,-28522.432999564717,-8356.8057784734428,-12017.429350539784,-26600.297260848547,null,-155327,-283877,-105647,-78023]
[122,{"$error":"#NAME?"},{"$error":"#NAME?"},{"$error":"#NAME?"},{"$error":"#NAME?"},null,{"$f":"NR_to_Cash!C$9","v":-155327},{"$f":"NR_to_Cash!D$9","v":-283877},{"$f":"NR_to_Cash!E$9","v":-105647},{"$f":"NR_to_Cash!F$9","v":-78023},null,122,-26107.765448074548,-18374.773297517415,-13212.229993032703,-24723.906924763538,null,-155327,-283877,-105647,-78023]
[123,{"$error":"#NAME?"},{"$error":"#NAME?"},{"$error":"#NAME?"},{"$error":"#NAME?"},null,{"$f":"NR_to_Cash!C$9","v":-155327},{"$f":"NR_to_Cash!D$9","v":-283877},{"$f":"NR_to_Cash!E$9","v":-105647},{"$f":"NR_to_Cash!F$9","v":-78023},null,123,9747.6010274712517,441.52899976513646,-15144.435432209048,-9125.8223977398575,null,-155327,-283877,-105647,-78023]
[124,{"$error":"#NAME?"},{"$error":"#NAME?"},{"$error":"#NAME?"},{"$error":"#NAME?"},null,{"$f":"NR_to_Cash!C$9","v":-155327},{"$f":"NR_to_Cash!D$9","v":-283877},{"$f":"NR_to_Cash!E$9","v":-105647},{"$f":"NR_to_Cash!F$9","v":-78023},null,124,-10745.497498874329,3833.2201885054878,-20874.107151372271,-21571.429270082168,null,-155327,-283877,-105647,-78023]
[125,{"$error":"#NAME?"},{"$error":"#NAME?"},{"$error":"#NAME?"},{"$error":"#NAME?"},null,{"$f":"NR_to_Cash!C$9","v":-155327},{"$f":"NR_to_Cash!D$9","v":-283877},{"$f":"NR_to_Cash!E$9","v":-105647},{"$f":"NR_to_Cash!F$9","v":-78023},null,125,-16699.925545770639,-15480.410020858271,-28552.105359943827,4997.9152225591524,null,-155327,-283877,-105647,-78023]
[126,{"$error":"#NAME?"},{"$error":"#NAME?"},{"$error":"#NAME?"},{"$error":"#NAME?"},null,{"$f":"NR_to_Cash!C$9","v":-155327},{"$f":"NR_to_Cash!D$9","v":-283877},{"$f":"NR_to_Cash!E$9","v":-105647},{"$f":"NR_to_Cash!F$9","v":-78023},null,126,-12216.459705415338,-47.67658555911531,7946.1550708972773,-16626.461212971888,null,-155327,-283877,-105647,-78023]
[127,{"$error":"#NAME?"},{"$error":"#NAME?"},{"$error":"#NAME?"},{"$error":"#NAME?"},null,{"$f":"NR_to_Cash!C$9","v":-155327},{"$f":"NR_to_Cash!D$9","v":-283877},{"$f":"NR_to_Cash!E$9","v":-105647},{"$f":"NR_to_Cash!F$9","v":-78023},null,127,-33826.892690351233,-30101.556393077899,-11653.258773154985,732.05817493177051,null,-155327,-283877,-105647,-78023]
[128,{"$error":"#NAME?"},{"$error":"#NAME?"},{"$error":"#NAME?"},{"$error":"#NAME?"},null,{"$f":"NR_to_Cash!C$9","v":-155327},{"$f":"NR_to_Cash!D$9","v":-283877},{"$f":"NR_to_Cash!E$9","v":-105647},{"$f":"NR_to_Cash!F$9","v":-78023},null,128,-5932.0969045442007,-25836.619947764924,4120.7329217329489,5714.3828959946659,null,-155327,-283877,-105647,-78023]
[129,{"$error":"#NAME?"},{"$error":"#NAME?"},{"$error":"#NAME?"},{"$error":"#NAME?"},null,{"$f":"NR_to_Cash!C$9","v":-155327},{"$f":"NR_to_Cash!D$9","v":-283877},{"$f":"NR_to_Cash!E$9","v":-105647},{"$f":"NR_to_Cash!F$9","v":-78023},null,129,-27240.687743018687,-21490.440344236824,-15449.502642855594,-21246.308258209716,null,-155327,-283877,-105647,-78023]
[130,{"$error":"#NAME?"},{"$error":"#NAME?"},{"$error":"#NAME?"},{"$error":"#NAME?"},null,{"$f":"NR_to_Cash!C$9","v":-155327},{"$f":"NR_to_Cash!D$9","v":-283877},{"$f":"NR_to_Cash!E$9","v":-105647},{"$f":"NR_to_Cash!F$9","v":-78023},null,130,-8949.3219548221587,-24031.848025789492,-16502.045519388546,8821.3819791372534,null,-155327,-283877,-105647,-78023]
[131,{"$error":"#NAME?"},{"$error":"#NAME?"},{"$error":"#NAME?"},{"$error":"#NAME?"},null,{"$f":"NR_to_Cash!C$9","v":-155327},{"$f":"NR_to_Cash!D$9","v":-283877},{"$f":"NR_to_Cash!E$9","v":-105647},{"$f":"NR_to_Cash!F$9","v":-78023},null,131,-23361.386666297672,-21558.27628276328,-15528.753778976985,1199.0146657002563,null,-155327,-283877,-105647,-78023]
[132,{"$error":"#NAME?"},{"$error":"#NAME?"},{"$error":"#NAME?"},{"$error":"#NAME?"},null,{"$f":"NR_to_Cash!C$9","v":-155327},{"$f":"NR_to_Cash!D$9","v":-283877},{"$f":"NR_to_Cash!E$9","v":-105647},{"$f":"NR_to_Cash!F$9","v":-78023},null,132,-12951.946897896702,-11761.015092709235,-4727.449175403277,8335.4750570175802,null,-155327,-283877,-105647,-78023]
[133,{"$error":"#NAME?"},{"$error":"#NAME?"},{"$error":"#NAME?"},{"$error":"#NAME?"},null,{"$f":"NR_to_Cash!C$9","v":-155327},{"$f":"NR_to_Cash!D$9","v":-283877},{"$f":"NR_to_Cash!E$9","v":-105647},{"$f":"NR_to_Cash!F$9","v":-78023},null,133,-2125.964250506473,5375.8222788047497,-19335.483152533372,-4307.8886042510785,null,-155327,-283877,-105647,-78023]
[134,{"$error":"#NAME?"},{"$error":"#NAME?"},{"$error":"#NAME?"},{"$error":"#NAME?"},null,{"$f":"NR_to_Cash!C$9","v":-155327},{"$f":"NR_to_Cash!D$9","v":-283877},{"$f":"NR_to_Cash!E$9","v":-105647},{"$f":"NR_to_Cash!F$9","v":-78023},null,134,-11875.236186573689,-23304.641232523405,-13252.534696959912,-16663.00262659034,null,-155327,-283877,-105647,-78023]
[135,{"$error":"#NAME?"},{"$error":"#NAME?"},{"$error":"#NAME?"},{"$error":"#NAME?"},null,{"$f":"NR_to_Cash!C$9","v":-155327},{"$f":"NR_to_Cash!D$9","v":-283877},{"$f":"NR_to_Cash!E$9","v":-105647},{"$f":"NR_to_Cash!F$9","v":-78023},null,135,-18730.623482546358,-12467.142891600646,5541.2638169410129,-31489.719074315151,null,-155327,-283877,-105647,-78023]
[136,{"$error":"#NAME?"},{"$error":"#NAME?"},{"$error":"#NAME?"},{"$error":"#NAME?"},null,{"$f":"NR_to_Cash!C$9","v":-155327},{"$f":"NR_to_Cash!D$9","v":-283877},{"$f":"NR_to_Cash!E$9","v":-105647},{"$f":"NR_to_Cash!F$9","v":-78023},null,136,-859.50381412688535,-27424.174770406244,-10701.176247047091,-1771.568189132734,null,-155327,-283877,-105647,-78023]
[137,{"$error":"#NAME?"},{"$error":"#NAME?"},{"$error":"#NAME?"},{"$error":"#NAME?"},null,{"$f":"NR_to_Cash!C$9","v":-155327},{"$f":"NR_to_Cash!D$9","v":-283877},{"$f":"NR_to_Cash!E$9","v":-105647},{"$f":"NR_to_Cash!F$9","v":-78023},null,137,-19759.606111415196,6459.5548243662797,-1338.1363647935773,195.62201821065594,null,-155327,-283877,-105647,-78023]
[138,{"$error":"#NAME?"},{"$error":"#NAME?"},{"$error":"#NAME?"},{"$error":"#NAME?"},null,{"$f":"NR_to_Cash!C$9","v":-155327},{"$f":"NR_to_Cash!D$9","v":-283877},{"$f":"NR_to_Cash!E$9","v":-105647},{"$f":"NR_to_Cash!F$9","v":-78023},null,138,-7171.823093886258,-15824.540354590377,-10846.999724777612,6978.5240046904037,null,-155327,-283877,-105647,-78023]
[139,{"$error":"#NAME?"},{"$error":"#NAME?"},{"$error":"#NAME?"},{"$error":"#NAME?"},null,{"$f":"NR_to_Cash!C$9","v":-155327},{"$f":"NR_to_Cash!D$9","v":-283877},{"$f":"NR_to_Cash!E$9","v":-105647},{"$f":"NR_to_Cash!F$9","v":-78023},null,139,-3744.4705666218861,-8469.985859364444,-7970.5143168588402,-15588.064340435531,null,-155327,-283877,-105647,-78023]
[140,{"$error":"#NAME?"},{"$error":"#NAME?"},{"$error":"#NAME?"},{"$error":"#NAME?"},null,{"$f":"NR_to_Cash!C$9","v":-155327},{"$f":"NR_to_Cash!D$9","v":-283877},{"$f":"NR_to_Cash!E$9","v":-105647},{"$f":"NR_to_Cash!F$9","v":-78023},null,140,-12359.727426361813,11684.193204644811,6289.7624592069469,-26197.187006224976,null,-155327,-283877,-105647,-78023]
[141,{"$error":"#NAME?"},{"$error":"#NAME?"},{"$error":"#NAME?"},{"$error":"#NAME?"},null,{"$f":"NR_to_Cash!C$9","v":-155327},{"$f":"NR_to_Cash!D$9","v":-283877},{"$f":"NR_to_Cash!E$9","v":-105647},{"$f":"NR_to_Cash!F$9","v":-78023},null,141,-20267.7309895941,-11108.539236952543,-4290.7950040220439,2583.6468577738979,null,-155327,-283877,-105647,-78023]
[142,{"$error":"#NAME?"},{"$error":"#NAME?"},{"$error":"#NAME?"},{"$error":"#NAME?"},null,{"$f":"NR_to_Cash!C$9","v":-155327},{"$f":"NR_to_Cash!D$9","v":-283877},{"$f":"NR_to_Cash!E$9","v":-105647},{"$f":"NR_to_Cash!F$9","v":-78023},null,142,-5826.5433883383848,5683.958962991208,-9420.6397847881908,-26738.983373581988,null,-155327,-283877,-105647,-78023]
[143,{"$error":"#NAME?"},{"$error":"#NAME?"},{"$error":"#NAME?"},{"$error":"#NAME?"},null,{"$f":"NR_to_Cash!C$9","v":-155327},{"$f":"NR_to_Cash!D$9","v":-283877},{"$f":"NR_to_Cash!E$9","v":-105647},{"$f":"NR_to_Cash!F$9","v":-78023},null,143,-13173.641752981443,-19316.665605577986,-15067.042729856643,8988.6063057912488,null,-155327,-283877,-105647,-78023]
[144,{"$error":"#NAME?"},{"$error":"#NAME?"},{"$error":"#NAME?"},{"$error":"#NAME?"},null,{"$f":"NR_to_Cash!C$9","v":-155327},{"$f":"NR_to_Cash!D$9","v":-283877},{"$f":"NR_to_Cash!E$9","v":-105647},{"$f":"NR_to_Cash!F$9","v":-78023},null,144,-12261.868630877038,7829.4627301231785,-26444.46315777551,-24478.158045840068,null,-155327,-283877,-105647,-78023]
[145,{"$error":"#NAME?"},{"$error":"#NAME?"},{"$error":"#NAME?"},{"$error":"#NAME?"},null,{"$f":"NR_to_Cash!C$9","v":-155327},{"$f":"NR_to_Cash!D$9","v":-283877},{"$f":"NR_to_Cash!E$9","v":-105647},{"$f":"NR_to_Cash!F$9","v":-78023},null,145,-12131.024914360307,-8107.6421105282461,-13325.353008454122,-33016.573988766926,null,-155327,-283877,-105647,-78023]
[146,{"$error":"#NAME?"},{"$error":"#NAME?"},{"$error":"#NAME?"},{"$error":"#NAME?"},null,{"$f":"NR_to_Cash!C$9","v":-155327},{"$f":"NR_to_Cash!D$9","v":-283877},{"$f":"NR_to_Cash!E$9","v":-105647},{"$f":"NR_to_Cash!F$9","v":-78023},null,146,5003.6309248574289,-41122.159572965538,-23378.058270917445,-14028.209285212155,null,-155327,-283877,-105647,-78023]
[147,{"$error":"#NAME?"},{"$error":"#NAME?"},{"$error":"#NAME?"},{"$error":"#NAME?"},null,{"$f":"NR_to_Cash!C$9","v":-155327},{"$f":"NR_to_Cash!D$9","v":-283877},{"$f":"NR_to_Cash!E$9","v":-105647},{"$f":"NR_to_Cash!F$9","v":-78023},null,147,-11683.663041899708,4874.5915361761636,-2816.4324105566138,-7434.0109523133497,null,-155327,-283877,-105647,-78023]
[148,{"$error":"#NAME?"},{"$error":"#NAME?"},{"$error":"#NAME?"},{"$error":"#NAME?"},null,{"$f":"NR_to_Cash!C$9","v":-155327},{"$f":"NR_to_Cash!D$9","v":-283877},{"$f":"NR_to_Cash!E$9","v":-105647},{"$f":"NR_to_Cash!F$9","v":-78023},null,148,-3759.8355980697515,-4520.1463602941249,-30733.962073939871,-10787.718797308309,null,-155327,-283877,-105647,-78023]
[149,{"$error":"#NAME?"},{"$error":"#NAME?"},{"$error":"#NAME?"},{"$error":"#NAME?"},null,{"$f":"NR_to_Cash!C$9","v":-155327},{"$f":"NR_to_Cash!D$9","v":-283877},{"$f":"NR_to_Cash!E$9","v":-105647},{"$f":"NR_to_Cash!F$9","v":-78023},null,149,-20613.626156923903,1873.6614273243681,832.29359172436023,-3910.000416990646,null,-155327,-283877,-105647,-78023]
[150,{"$error":"#NAME?"},{"$error":"#NAME?"},{"$error":"#NAME?"},{"$error":"#NAME?"},null,{"$f":"NR_to_Cash!C$9","v":-155327},{"$f":"NR_to_Cash!D$9","v":-283877},{"$f":"NR_to_Cash!E$9","v":-105647},{"$f":"NR_to_Cash!F$9","v":-78023},null,150,-27586.500541609268,3893.5907355997674,-8311.274819994891,-13414.058748055106,null,-155327,-283877,-105647,-78023]
[151,{"$error":"#NAME?"},{"$error":"#NAME?"},{"$error":"#NAME?"},{"$error":"#NAME?"},null,{"$f":"NR_to_Cash!C$9","v":-155327},{"$f":"NR_to_Cash!D$9","v":-283877},{"$f":"NR_to_Cash!E$9","v":-105647},{"$f":"NR_to_Cash!F$9","v":-78023},null,151,-3078.2325746895995,-14190.127793815687,-27137.976057810793,-19680.463435836347,null,-155327,-283877,-105647,-78023]
[152,{"$error":"#NAME?"},{"$error":"#NAME?"},{"$error":"#NAME?"},{"$error":"#NAME?"},null,{"$f":"NR_to_Cash!C$9","v":-155327},{"$f":"NR_to_Cash!D$9","v":-283877},{"$f":"NR_to_Cash!E$9","v":-105647},{"$f":"NR_to_Cash!F$9","v":-78023},null,152,-7081.1099706295781,-28346.023932164913,-18850.241375096157,-6842.1754659846301,null,-155327,-283877,-105647,-78023]
[153,{"$error":"#NAME?"},{"$error":"#NAME?"},{"$error":"#NAME?"},{"$error":"#NAME?"},null,{"$f":"NR_to_Cash!C$9","v":-155327},{"$f":"NR_to_Cash!D$9","v":-283877},{"$f":"NR_to_Cash!E$9","v":-105647},{"$f":"NR_to_Cash!F$9","v":-78023},null,153,12006.616099147082,5260.4368435408569,10658.697023854727,4869.4684282732096,null,-155327,-283877,-105647,-78023]
[154,{"$error":"#NAME?"},{"$error":"#NAME?"},{"$error":"#NAME?"},{"$error":"#NAME?"},null,{"$f":"NR_to_Cash!C$9","v":-155327},{"$f":"NR_to_Cash!D$9","v":-283877},{"$f":"NR_to_Cash!E$9","v":-105647},{"$f":"NR_to_Cash!F$9","v":-78023},null,154,-5186.7173437365045,-27407.946426393333,-12606.91972974401,2846.6160404461648,null,-155327,-283877,-105647,-78023]
[155,{"$error":"#NAME?"},{"$error":"#NAME?"},{"$error":"#NAME?"},{"$error":"#NAME?"},null,{"$f":"NR_to_Cash!C$9","v":-155327},{"$f":"NR_to_Cash!D$9","v":-283877},{"$f":"NR_to_Cash!E$9","v":-105647},{"$f":"NR_to_Cash!F$9","v":-78023},null,155,-23277.254176236933,-21429.112853280345,-8936.6182828674027,-11818.609835243029,null,-155327,-283877,-105647,-78023]
[156,{"$error":"#NAME?"},{"$error":"#NAME?"},{"$error":"#NAME?"},{"$error":"#NAME?"},null,{"$f":"NR_to_Cash!C$9","v":-155327},{"$f":"NR_to_Cash!D$9","v":-283877},{"$f":"NR_to_Cash!E$9","v":-105647},{"$f":"NR_to_Cash!F$9","v":-78023},null,156,-14228.002721997156,-21089.145147414911,8897.4630339376708,-24821.355281851011,null,-155327,-283877,-105647,-78023]
[157,{"$error":"#NAME?"},{"$error":"#NAME?"},{"$error":"#NAME?"},{"$error":"#NAME?"},null,{"$f":"NR_to_Cash!C$9","v":-155327},{"$f":"NR_to_Cash!D$9","v":-283877},{"$f":"NR_to_Cash!E$9","v":-105647},{"$f":"NR_to_Cash!F$9","v":-78023},null,157,-8871.9304626447192,579.58847935690721,-16245.896006375251,-5414.1888541577009,null,-155327,-283877,-105647,-78023]
[158,{"$error":"#NAME?"},{"$error":"#NAME?"},{"$error":"#NAME?"},{"$error":"#NAME?"},null,{"$f":"NR_to_Cash!C$9","v":-155327},{"$f":"NR_to_Cash!D$9","v":-283877},{"$f":"NR_to_Cash!E$9","v":-105647},{"$f":"NR_to_Cash!F$9","v":-78023},null,158,-11356.4386299699,2438.662681563007,202.64391011406235,-13331.678777202658,null,-155327,-283877,-105647,-78023]
[159,{"$error":"#NAME?"},{"$error":"#NAME?"},{"$error":"#NAME?"},{"$error":"#NAME?"},null,{"$f":"NR_to_Cash!C$9","v":-155327},{"$f":"NR_to_Cash!D$9","v":-283877},{"$f":"NR_to_Cash!E$9","v":-105647},{"$f":"NR_to_Cash!F$9","v":-78023},null,159,-43514.999022501797,3027.821951185239,2503.0644528643784,16409.684218304756,null,-155327,-283877,-105647,-78023]
[160,{"$error":"#NAME?"},{"$error":"#NAME?"},{"$error":"#NAME?"},{"$error":"#NAME?"},null,{"$f":"NR_to_Cash!C$9","v":-155327},{"$f":"NR_to_Cash!D$9","v":-283877},{"$f":"NR_to_Cash!E$9","v":-105647},{"$f":"NR_to_Cash!F$9","v":-78023},null,160,-6649.2053218583942,-12874.918220329397,-11708.681037397229,-25658.88655969765,null,-155327,-283877,-105647,-78023]
[161,{"$error":"#NAME?"},{"$error":"#NAME?"},{"$error":"#NAME?"},{"$error":"#NAME?"},null,{"$f":"NR_to_Cash!C$9","v":-155327},{"$f":"NR_to_Cash!D$9","v":-283877},{"$f":"NR_to_Cash!E$9","v":-105647},{"$f":"NR_to_Cash!F$9","v":-78023},null,161,-15943.626855075214,-4135.0140281592285,1439.2232005110711,-9057.5479987576873,null,-155327,-283877,-105647,-78023]
[162,{"$error":"#NAME?"},{"$error":"#NAME?"},{"$error":"#NAME?"},{"$error":"#NAME?"},null,{"$f":"NR_to_Cash!C$9","v":-155327},{"$f":"NR_to_Cash!D$9","v":-283877},{"$f":"NR_to_Cash!E$9","v":-105647},{"$f":"NR_to_Cash!F$9","v":-78023},null,162,-27531.281046563501,6319.662137914991,-15126.179584194031,-30215.090905808509,null,-155327,-283877,-105647,-78023]
[163,{"$error":"#NAME?"},{"$error":"#NAME?"},{"$error":"#NAME?"},{"$error":"#NAME?"},null,{"$f":"NR_to_Cash!C$9","v":-155327},{"$f":"NR_to_Cash!D$9","v":-283877},{"$f":"NR_to_Cash!E$9","v":-105647},{"$f":"NR_to_Cash!F$9","v":-78023},null,163,-21025.769167009119,-1494.1120356412471,-14164.151579751828,-19042.816685488939,null,-155327,-283877,-105647,-78023]
[164,{"$error":"#NAME?"},{"$error":"#NAME?"},{"$error":"#NAME?"},{"$error":"#NAME?"},null,{"$f":"NR_to_Cash!C$9","v":-155327},{"$f":"NR_to_Cash!D$9","v":-283877},{"$f":"NR_to_Cash!E$9","v":-105647},{"$f":"NR_to_Cash!F$9","v":-78023},null,164,-23500.17235107928,-14793.250721099104,-42929.655411016865,-3383.4973690891725,null,-155327,-283877,-105647,-78023]
[165,{"$error":"#NAME?"},{"$error":"#NAME?"},{"$error":"#NAME?"},{"$error":"#NAME?"},null,{"$f":"NR_to_Cash!C$9","v":-155327},{"$f":"NR_to_Cash!D$9","v":-283877},{"$f":"NR_to_Cash!E$9","v":-105647},{"$f":"NR_to_Cash!F$9","v":-78023},null,165,-10280.01152551941,-26423.871646253152,-458.41748465305312,-35148.498343061321,null,-155327,-283877,-105647,-78023]
[166,{"$error":"#NAME?"},{"$error":"#NAME?"},{"$error":"#NAME?"},{"$error":"#NAME?"},null,{"$f":"NR_to_Cash!C$9","v":-155327},{"$f":"NR_to_Cash!D$9","v":-283877},{"$f":"NR_to_Cash!E$9","v":-105647},{"$f":"NR_to_Cash!F$9","v":-78023},null,166,-14943.190693334569,-12571.486940790954,-25544.680604335081,-13563.175957200558,null,-155327,-283877,-105647,-78023]
[167,{"$error":"#NAME?"},{"$error":"#NAME?"},{"$error":"#NAME?"},{"$error":"#NAME?"},null,{"$f":"NR_to_Cash!C$9","v":-155327},{"$f":"NR_to_Cash!D$9","v":-283877},{"$f":"NR_to_Cash!E$9","v":-105647},{"$f":"NR_to_Cash!F$9","v":-78023},null,167,-22920.911071513641,1956.0164636652237,-16185.117721745648,-13206.154283388121,null,-155327,-283877,-105647,-78023]
[168,{"$error":"#NAME?"},{"$error":"#NAME?"},{"$error":"#NAME?"},{"$error":"#NAME?"},null,{"$f":"NR_to_Cash!C$9","v":-155327},{"$f":"NR_to_Cash!D$9","v":-283877},{"$f":"NR_to_Cash!E$9","v":-105647},{"$f":"NR_to_Cash!F$9","v":-78023},null,168,-27310.599883126684,-11001.530544675317,173.7196195540285,-24266.580048209049,null,-155327,-283877,-105647,-78023]
[169,{"$error":"#NAME?"},{"$error":"#NAME?"},{"$error":"#NAME?"},{"$error":"#NAME?"},null,{"$f":"NR_to_Cash!C$9","v":-155327},{"$f":"NR_to_Cash!D$9","v":-283877},{"$f":"NR_to_Cash!E$9","v":-105647},{"$f":"NR_to_Cash!F$9","v":-78023},null,169,-23522.819838580232,-5200.9703693335141,-26040.169487600393,-19185.385900740595,null,-155327,-283877,-105647,-78023]
[170,{"$error":"#NAME?"},{"$error":"#NAME?"},{"$error":"#NAME?"},{"$error":"#NAME?"},null,{"$f":"NR_to_Cash!C$9","v":-155327},{"$f":"NR_to_Cash!D$9","v":-283877},{"$f":"NR_to_Cash!E$9","v":-105647},{"$f":"NR_to_Cash!F$9","v":-78023},null,170,-6932.7620513409547,8801.857572621604,3616.3987328508465,-16515.36377881634,null,-155327,-283877,-105647,-78023]
[171,{"$error":"#NAME?"},{"$error":"#NAME?"},{"$error":"#NAME?"},{"$error":"#NAME?"},null,{"$f":"NR_to_Cash!C$9","v":-155327},{"$f":"NR_to_Cash!D$9","v":-283877},{"$f":"NR_to_Cash!E$9","v":-105647},{"$f":"NR_to_Cash!F$9","v":-78023},null,171,-5034.883132833148,8141.3350805038563,-19543.08781839268,-10835.994781840887,null,-155327,-283877,-105647,-78023]
[172,{"$error":"#NAME?"},{"$error":"#NAME?"},{"$error":"#NAME?"},{"$error":"#NAME?"},null,{"$f":"NR_to_Cash!C$9","v":-155327},{"$f":"NR_to_Cash!D$9","v":-283877},{"$f":"NR_to_Cash!E$9","v":-105647},{"$f":"NR_to_Cash!F$9","v":-78023},null,172,-7346.6147197710634,-9000.9566583388678,-6034.5007576096668,-12433.951236424453,null,-155327,-283877,-105647,-78023]
[173,{"$error":"#NAME?"},{"$error":"#NAME?"},{"$error":"#NAME?"},{"$error":"#NAME?"},null,{"$f":"NR_to_Cash!C$9","v":-155327},{"$f":"NR_to_Cash!D$9","v":-283877},{"$f":"NR_to_Cash!E$9","v":-105647},{"$f":"NR_to_Cash!F$9","v":-78023},null,173,-333.01975278924516,-1290.4306921083089,-8080.8193480879227,-12838.030108323137,null,-155327,-283877,-105647,-78023]
[174,{"$error":"#NAME?"},{"$error":"#NAME?"},{"$error":"#NAME?"},{"$error":"#NAME?"},null,{"$f":"NR_to_Cash!C$9","v":-155327},{"$f":"NR_to_Cash!D$9","v":-283877},{"$f":"NR_to_Cash!E$9","v":-105647},{"$f":"NR_to_Cash!F$9","v":-78023},null,174,8205.0473661601336,-2534.7846319946157,-23565.604070163456,-8767.9902634290411,null,-155327,-283877,-105647,-78023]
[175,{"$error":"#NAME?"},{"$error":"#NAME?"},{"$error":"#NAME?"},{"$error":"#NAME?"},null,{"$f":"NR_to_Cash!C$9","v":-155327},{"$f":"NR_to_Cash!D$9","v":-283877},{"$f":"NR_to_Cash!E$9","v":-105647},{"$f":"NR_to_Cash!F$9","v":-78023},null,175,-18767.029124679095,-23057.411735536563,1072.1059934580931,3969.3279326711795,null,-155327,-283877,-105647,-78023]
[176,{"$error":"#NAME?"},{"$error":"#NAME?"},{"$error":"#NAME?"},{"$error":"#NAME?"},null,{"$f":"NR_to_Cash!C$9","v":-155327},{"$f":"NR_to_Cash!D$9","v":-283877},{"$f":"NR_to_Cash!E$9","v":-105647},{"$f":"NR_to_Cash!F$9","v":-78023},null,176,-21166.352531851731,-12190.992267186743,579.57251206086767,-26979.635278278161,null,-155327,-283877,-105647,-78023]
[177,{"$error":"#NAME?"},{"$error":"#NAME?"},{"$error":"#NAME?"},{"$error":"#NAME?"},null,{"$f":"NR_to_Cash!C$9","v":-155327},{"$f":"NR_to_Cash!D$9","v":-283877},{"$f":"NR_to_Cash!E$9","v":-105647},{"$f":"NR_to_Cash!F$9","v":-78023},null,177,6878.4485644391279,-21692.130907167484,-5378.9562822106027,6880.4777880835099,null,-155327,-283877,-105647,-78023]
[178,{"$error":"#NAME?"},{"$error":"#NAME?"},{"$error":"#NAME?"},{"$error":"#NAME?"},null,{"$f":"NR_to_Cash!C$9","v":-155327},{"$f":"NR_to_Cash!D$9","v":-283877},{"$f":"NR_to_Cash!E$9","v":-105647},{"$f":"NR_to_Cash!F$9","v":-78023},null,178,5279.5974322747652,-16451.733754741341,-16602.957832870412,29668.19172389511,null,-155327,-283877,-105647,-78023]
[179,{"$error":"#NAME?"},{"$error":"#NAME?"},{"$error":"#NAME?"},{"$error":"#NAME?"},null,{"$f":"NR_to_Cash!C$9","v":-155327},{"$f":"NR_to_Cash!D$9","v":-283877},{"$f":"NR_to_Cash!E$9","v":-105647},{"$f":"NR_to_Cash!F$9","v":-78023},null,179,-20821.585832795416,-19433.742927897183,-26059.194739482155,-37177.901857609468,null,-155327,-283877,-105647,-78023]
[180,{"$error":"#NAME?"},{"$error":"#NAME?"},{"$error":"#NAME?"},{"$error":"#NAME?"},null,{"$f":"NR_to_Cash!C$9","v":-155327},{"$f":"NR_to_Cash!D$9","v":-283877},{"$f":"NR_to_Cash!E$9","v":-105647},{"$f":"NR_to_Cash!F$9","v":-78023},null,180,-18777.868422524891,9407.0683772292905,-11977.762629101588,-39721.025938229162,null,-155327,-283877,-105647,-78023]
[181,{"$error":"#NAME?"},{"$error":"#NAME?"},{"$error":"#NAME?"},{"$error":"#NAME?"},null,{"$f":"NR_to_Cash!C$9","v":-155327},{"$f":"NR_to_Cash!D$9","v":-283877},{"$f":"NR_to_Cash!E$9","v":-105647},{"$f":"NR_to_Cash!F$9","v":-78023},null,181,-2545.8878327002699,-18019.453065055026,-1205.4081654379597,24884.711018848939,null,-155327,-283877,-105647,-78023]
[182,{"$error":"#NAME?"},{"$error":"#NAME?"},{"$error":"#NAME?"},{"$error":"#NAME?"},null,{"$f":"NR_to_Cash!C$9","v":-155327},{"$f":"NR_to_Cash!D$9","v":-283877},{"$f":"NR_to_Cash!E$9","v":-105647},{"$f":"NR_to_Cash!F$9","v":-78023},null,182,-6544.5929870274758,-6142.3844573939277,-1582.4332965457666,-20090.653647934447,null,-155327,-283877,-105647,-78023]
[183,{"$error":"#NAME?"},{"$error":"#NAME?"},{"$error":"#NAME?"},{"$error":"#NAME?"},null,{"$f":"NR_to_Cash!C$9","v":-155327},{"$f":"NR_to_Cash!D$9","v":-283877},{"$f":"NR_to_Cash!E$9","v":-105647},{"$f":"NR_to_Cash!F$9","v":-78023},null,183,-12914.049590814586,4760.6998141276272,-29098.145319447191,10452.496304260852,null,-155327,-283877,-105647,-78023]
[184,{"$error":"#NAME?"},{"$error":"#NAME?"},{"$error":"#NAME?"},{"$error":"#NAME?"},null,{"$f":"NR_to_Cash!C$9","v":-155327},{"$f":"NR_to_Cash!D$9","v":-283877},{"$f":"NR_to_Cash!E$9","v":-105647},{"$f":"NR_to_Cash!F$9","v":-78023},null,184,-18908.328211976761,-13762.561839735268,4898.0235977199382,-23888.973774712973,null,-155327,-283877,-105647,-78023]
[185,{"$error":"#NAME?"},{"$error":"#NAME?"},{"$error":"#NAME?"},{"$error":"#NAME?"},null,{"$f":"NR_to_Cash!C$9","v":-155327},{"$f":"NR_to_Cash!D$9","v":-283877},{"$f":"NR_to_Cash!E$9","v":-105647},{"$f":"NR_to_Cash!F$9","v":-78023},null,185,21.834142284182526,-7010.6797414128623,-22811.766077945991,111.7508355019116,null,-155327,-283877,-105647,-78023]
[186,{"$error":"#NAME?"},{"$error":"#NAME?"},{"$error":"#NAME?"},{"$error":"#NAME?"},null,{"$f":"NR_to_Cash!C$9","v":-155327},{"$f":"NR_to_Cash!D$9","v":-283877},{"$f":"NR_to_Cash!E$9","v":-105647},{"$f":"NR_to_Cash!F$9","v":-78023},null,186,-10470.288504150831,-21660.561894497561,-10598.221926931492,12990.347171748168,null,-155327,-283877,-105647,-78023]
[187,{"$error":"#NAME?"},{"$error":"#NAME?"},{"$error":"#NAME?"},{"$error":"#NAME?"},null,{"$f":"NR_to_Cash!C$9","v":-155327},{"$f":"NR_to_Cash!D$9","v":-283877},{"$f":"NR_to_Cash!E$9","v":-105647},{"$f":"NR_to_Cash!F$9","v":-78023},null,187,-28769.286178187322,6524.0105900322051,-9766.9712414325404,-24125.040863113758,null,-155327,-283877,-105647,-78023]
[188,{"$error":"#NAME?"},{"$error":"#NAME?"},{"$error":"#NAME?"},{"$error":"#NAME?"},null,{"$f":"NR_to_Cash!C$9","v":-155327},{"$f":"NR_to_Cash!D$9","v":-283877},{"$f":"NR_to_Cash!E$9","v":-105647},{"$f":"NR_to_Cash!F$9","v":-78023},null,188,-39733.319672902864,-20807.786925436976,-20048.494961003067,-9022.6776409668219,null,-155327,-283877,-105647,-78023]
[189,{"$error":"#NAME?"},{"$error":"#NAME?"},{"$error":"#NAME?"},{"$error":"#NAME?"},null,{"$f":"NR_to_Cash!C$9","v":-155327},{"$f":"NR_to_Cash!D$9","v":-283877},{"$f":"NR_to_Cash!E$9","v":-105647},{"$f":"NR_to_Cash!F$9","v":-78023},null,189,-19615.611691204504,-30108.721081308438,-1170.4694736890169,-97.203992780319354,null,-155327,-283877,-105647,-78023]
[190,{"$error":"#NAME?"},{"$error":"#NAME?"},{"$error":"#NAME?"},{"$error":"#NAME?"},null,{"$f":"NR_to_Cash!C$9","v":-155327},{"$f":"NR_to_Cash!D$9","v":-283877},{"$f":"NR_to_Cash!E$9","v":-105647},{"$f":"NR_to_Cash!F$9","v":-78023},null,190,-8729.782387115456,903.13024170335007,11192.095059333238,-9545.8839280200009,null,-155327,-283877,-105647,-78023]
[191,{"$error":"#NAME?"},{"$error":"#NAME?"},{"$error":"#NAME?"},{"$error":"#NAME?"},null,{"$f":"NR_to_Cash!C$9","v":-155327},{"$f":"NR_to_Cash!D$9","v":-283877},{"$f":"NR_to_Cash!E$9","v":-105647},{"$f":"NR_to_Cash!F$9","v":-78023},null,191,-18141.565705224064,-13586.229743129868,-10392.393813794453,1998.8845393948241,null,-155327,-283877,-105647,-78023]
[192,{"$error":"#NAME?"},{"$error":"#NAME?"},{"$error":"#NAME?"},{"$error":"#NAME?"},null,{"$f":"NR_to_Cash!C$9","v":-155327},{"$f":"NR_to_Cash!D$9","v":-283877},{"$f":"NR_to_Cash!E$9","v":-105647},{"$f":"NR_to_Cash!F$9","v":-78023},null,192,-5579.7024824837272,15492.179381329452,13929.978018483896,-18525.706554552162,null,-155327,-283877,-105647,-78023]
[193,{"$error":"#NAME?"},{"$error":"#NAME?"},{"$error":"#NAME?"},{"$error":"#NAME?"},null,{"$f":"NR_to_Cash!C$9","v":-155327},{"$f":"NR_to_Cash!D$9","v":-283877},{"$f":"NR_to_Cash!E$9","v":-105647},{"$f":"NR_to_Cash!F$9","v":-78023},null,193,-40461.051745714263,-24390.709122965382,-2926.136361368207,-19528.985262215665,null,-155327,-283877,-105647,-78023]
[194,{"$error":"#NAME?"},{"$error":"#NAME?"},{"$error":"#NAME?"},{"$error":"#NAME?"},null,{"$f":"NR_to_Cash!C$9","v":-155327},{"$f":"NR_to_Cash!D$9","v":-283877},{"$f":"NR_to_Cash!E$9","v":-105647},{"$f":"NR_to_Cash!F$9","v":-78023},null,194,9896.7836894570501,-21817.425436305206,-27994.167814165346,3770.7825016958072,null,-155327,-283877,-105647,-78023]
[195,{"$error":"#NAME?"},{"$error":"#NAME?"},{"$error":"#NAME?"},{"$error":"#NAME?"},null,{"$f":"NR_to_Cash!C$9","v":-155327},{"$f":"NR_to_Cash!D$9","v":-283877},{"$f":"NR_to_Cash!E$9","v":-105647},{"$f":"NR_to_Cash!F$9","v":-78023},null,195,-14137.558253543128,-5123.5301635600645,-60033.128211639203,-11948.342846797274,null,-155327,-283877,-105647,-78023]
[196,{"$error":"#NAME?"},{"$error":"#NAME?"},{"$error":"#NAME?"},{"$error":"#NAME?"},null,{"$f":"NR_to_Cash!C$9","v":-155327},{"$f":"NR_to_Cash!D$9","v":-283877},{"$f":"NR_to_Cash!E$9","v":-105647},{"$f":"NR_to_Cash!F$9","v":-78023},null,196,-2405.6787475325063,167.86694946586093,-35510.595144237945,-28148.974167915418,null,-155327,-283877,-105647,-78023]
[197,{"$error":"#NAME?"},{"$error":"#NAME?"},{"$error":"#NAME?"},{"$error":"#NAME?"},null,{"$f":"NR_to_Cash!C$9","v":-155327},{"$f":"NR_to_Cash!D$9","v":-283877},{"$f":"NR_to_Cash!E$9","v":-105647},{"$f":"NR_to_Cash!F$9","v":-78023},null,197,-36981.320320741957,-587.92312994366137,-13558.348179560893,-7210.235807179406,null,-155327,-283877,-105647,-78023]
[198,{"$error":"#NAME?"},{"$error":"#NAME?"},{"$error":"#NAME?"},{"$error":"#NAME?"},null,{"$f":"NR_to_Cash!C$9","v":-155327},{"$f":"NR_to_Cash!D$9","v":-283877},{"$f":"NR_to_Cash!E$9","v":-105647},{"$f":"NR_to_Cash!F$9","v":-78023},null,198,-36813.944447585905,2261.3976905831942,17757.578397335074,8409.1526128526475,null,-155327,-283877,-105647,-78023]
[199,{"$error":"#NAME?"},{"$error":"#NAME?"},{"$error":"#NAME?"},{"$error":"#NAME?"},null,{"$f":"NR_to_Cash!C$9","v":-155327},{"$f":"NR_to_Cash!D$9","v":-283877},{"$f":"NR_to_Cash!E$9","v":-105647},{"$f":"NR_to_Cash!F$9","v":-78023},null,199,-10571.956462442862,14430.631976249575,3446.3858865501761,-6543.0458480030793,null,-155327,-283877,-105647,-78023]
[200,{"$error":"#NAME?"},{"$error":"#NAME?"},{"$error":"#NAME?"},{"$error":"#NAME?"},null,{"$f":"NR_to_Cash!C$9","v":-155327},{"$f":"NR_to_Cash!D$9","v":-283877},{"$f":"NR_to_Cash!E$9","v":-105647},{"$f":"NR_to_Cash!F$9","v":-78023},null,200,-22343.542882741829,-28340.853661016023,-11776.88416390265,-12443.822365052209,null,-155327,-283877,-105647,-78023]
[201,{"$error":"#NAME?"},{"$error":"#NAME?"},{"$error":"#NAME?"},{"$error":"#NAME?"},null,{"$f":"NR_to_Cash!C$9","v":-155327},{"$f":"NR_to_Cash!D$9","v":-283877},{"$f":"NR_to_Cash!E$9","v":-105647},{"$f":"NR_to_Cash!F$9","v":-78023},null,201,-15176.807289829254,4273.1486481970569,9341.4355422236822,-1285.0407129553371,null,-155327,-283877,-105647,-78023]
[202,{"$error":"#NAME?"},{"$error":"#NAME?"},{"$error":"#NAME?"},{"$error":"#NAME?"},null,{"$f":"NR_to_Cash!C$9","v":-155327},{"$f":"NR_to_Cash!D$9","v":-283877},{"$f":"NR_to_Cash!E$9","v":-105647},{"$f":"NR_to_Cash!F$9","v":-78023},null,202,-30060.319238697313,-13789.368524505724,6451.4662593771072,-30631.926242092079,null,-155327,-283877,-105647,-78023]
[203,{"$error":"#NAME?"},{"$error":"#NAME?"},{"$error":"#NAME?"},{"$error":"#NAME?"},null,{"$f":"NR_to_Cash!C$9","v":-155327},{"$f":"NR_to_Cash!D$9","v":-283877},{"$f":"NR_to_Cash!E$9","v":-105647},{"$f":"NR_to_Cash!F$9","v":-78023},null,203,-18880.066002594474,-31018.664330132156,1685.585955220037,-28543.973248703802,null,-155327,-283877,-105647,-78023]
[204,{"$error":"#NAME?"},{"$error":"#NAME?"},{"$error":"#NAME?"},{"$error":"#NAME?"},null,{"$f":"NR_to_Cash!C$9","v":-155327},{"$f":"NR_to_Cash!D$9","v":-283877},{"$f":"NR_to_Cash!E$9","v":-105647},{"$f":"NR_to_Cash!F$9","v":-78023},null,204,-24165.382003511357,-10856.49417174593,-7678.4343114644362,12812.774239576251,null,-155327,-283877,-105647,-78023]
[205,{"$error":"#NAME?"},{"$error":"#NAME?"},{"$error":"#NAME?"},{"$error":"#NAME?"},null,{"$f":"NR_to_Cash!C$9","v":-155327},{"$f":"NR_to_Cash!D$9","v":-283877},{"$f":"NR_to_Cash!E$9","v":-105647},{"$f":"NR_to_Cash!F$9","v":-78023},null,205,-4185.7348077221004,-11757.359136350347,-15099.283813441632,-29906.105298816961,null,-155327,-283877,-105647,-78023]
[206,{"$error":"#NAME?"},{"$error":"#NAME?"},{"$error":"#NAME?"},{"$error":"#NAME?"},null,{"$f":"NR_to_Cash!C$9","v":-155327},{"$f":"NR_to_Cash!D$9","v":-283877},{"$f":"NR_to_Cash!E$9","v":-105647},{"$f":"NR_to_Cash!F$9","v":-78023},null,206,-11580.181407291271,4492.1316837983422,-24175.793971711191,4390.5991767225942,null,-155327,-283877,-105647,-78023]
[207,{"$error":"#NAME?"},{"$error":"#NAME?"},{"$error":"#NAME?"},{"$error":"#NAME?"},null,{"$f":"NR_to_Cash!C$9","v":-155327},{"$f":"NR_to_Cash!D$9","v":-283877},{"$f":"NR_to_Cash!E$9","v":-105647},{"$f":"NR_to_Cash!F$9","v":-78023},null,207,-1868.9797726335923,-9271.3571550969518,2172.6882870179716,-6601.0847071924491,null,-155327,-283877,-105647,-78023]
[208,{"$error":"#NAME?"},{"$error":"#NAME?"},{"$error":"#NAME?"},{"$error":"#NAME?"},null,{"$f":"NR_to_Cash!C$9","v":-155327},{"$f":"NR_to_Cash!D$9","v":-283877},{"$f":"NR_to_Cash!E$9","v":-105647},{"$f":"NR_to_Cash!F$9","v":-78023},null,208,-9780.3197336465964,-17755.429989567278,-6490.2352533884832,-32130.561329536795,null,-155327,-283877,-105647,-78023]
[209,{"$error":"#NAME?"},{"$error":"#NAME?"},{"$error":"#NAME?"},{"$error":"#NAME?"},null,{"$f":"NR_to_Cash!C$9","v":-155327},{"$f":"NR_to_Cash!D$9","v":-283877},{"$f":"NR_to_Cash!E$9","v":-105647},{"$f":"NR_to_Cash!F$9","v":-78023},null,209,-35053.081828449787,-1966.6675186915766,-2721.1075493844901,-28420.189360047025,null,-155327,-283877,-105647,-78023]
[210,{"$error":"#NAME?"},{"$error":"#NAME?"},{"$error":"#NAME?"},{"$error":"#NAME?"},null,{"$f":"NR_to_Cash!C$9","v":-155327},{"$f":"NR_to_Cash!D$9","v":-283877},{"$f":"NR_to_Cash!E$9","v":-105647},{"$f":"NR_to_Cash!F$9","v":-78023},null,210,-1016.2246851068079,-11123.739201770981,-6677.5957399940407,3995.9993894915287,null,-155327,-283877,-105647,-78023]
[211,{"$error":"#NAME?"},{"$error":"#NAME?"},{"$error":"#NAME?"},{"$error":"#NAME?"},null,{"$f":"NR_to_Cash!C$9","v":-155327},{"$f":"NR_to_Cash!D$9","v":-283877},{"$f":"NR_to_Cash!E$9","v":-105647},{"$f":"NR_to_Cash!F$9","v":-78023},null,211,-4263.8563466564538,-6931.4570334081627,4762.904951441089,-228.77047883636112,null,-155327,-283877,-105647,-78023]
[212,{"$error":"#NAME?"},{"$error":"#NAME?"},{"$error":"#NAME?"},{"$error":"#NAME?"},null,{"$f":"NR_to_Cash!C$9","v":-155327},{"$f":"NR_to_Cash!D$9","v":-283877},{"$f":"NR_to_Cash!E$9","v":-105647},{"$f":"NR_to_Cash!F$9","v":-78023},null,212,-17860.682372174069,-11257.222922296931,-3277.3469875633268,-11822.425977439189,null,-155327,-283877,-105647,-78023]
[213,{"$error":"#NAME?"},{"$error":"#NAME?"},{"$error":"#NAME?"},{"$error":"#NAME?"},null,{"$f":"NR_to_Cash!C$9","v":-155327},{"$f":"NR_to_Cash!D$9","v":-283877},{"$f":"NR_to_Cash!E$9","v":-105647},{"$f":"NR_to_Cash!F$9","v":-78023},null,213,-15981.525368188974,-13826.270833028757,-9878.26778858121,-15190.566200959549,null,-155327,-283877,-105647,-78023]
[214,{"$error":"#NAME?"},{"$error":"#NAME?"},{"$error":"#NAME?"},{"$error":"#NAME?"},null,{"$f":"NR_to_Cash!C$9","v":-155327},{"$f":"NR_to_Cash!D$9","v":-283877},{"$f":"NR_to_Cash!E$9","v":-105647},{"$f":"NR_to_Cash!F$9","v":-78023},null,214,631.40344002038034,-10820.279400686311,1828.5824087335013,-9857.9746225275467,null,-155327,-283877,-105647,-78023]
[215,{"$error":"#NAME?"},{"$error":"#NAME?"},{"$error":"#NAME?"},{"$error":"#NAME?"},null,{"$f":"NR_to_Cash!C$9","v":-155327},{"$f":"NR_to_Cash!D$9","v":-283877},{"$f":"NR_to_Cash!E$9","v":-105647},{"$f":"NR_to_Cash!F$9","v":-78023},null,215,-4943.4135424075048,-12121.894314652538,-15721.906112219924,-808.40259385829472,null,-155327,-283877,-105647,-78023]
[216,{"$error":"#NAME?"},{"$error":"#NAME?"},{"$error":"#NAME?"},{"$error":"#NAME?"},null,{"$f":"NR_to_Cash!C$9","v":-155327},{"$f":"NR_to_Cash!D$9","v":-283877},{"$f":"NR_to_Cash!E$9","v":-105647},{"$f":"NR_to_Cash!F$9","v":-78023},null,216,-3456.6486934581299,-22389.588965508497,-1462.1980187236982,-20957.568986085294,null,-155327,-283877,-105647,-78023]
[217,{"$error":"#NAME?"},{"$error":"#NAME?"},{"$error":"#NAME?"},{"$error":"#NAME?"},null,{"$f":"NR_to_Cash!C$9","v":-155327},{"$f":"NR_to_Cash!D$9","v":-283877},{"$f":"NR_to_Cash!E$9","v":-105647},{"$f":"NR_to_Cash!F$9","v":-78023},null,217,-21269.26769297801,11527.119873592332,-335.09613275453358,-20108.130492869914,null,-155327,-283877,-105647,-78023]
[218,{"$error":"#NAME?"},{"$error":"#NAME?"},{"$error":"#NAME?"},{"$error":"#NAME?"},null,{"$f":"NR_to_Cash!C$9","v":-155327},{"$f":"NR_to_Cash!D$9","v":-283877},{"$f":"NR_to_Cash!E$9","v":-105647},{"$f":"NR_to_Cash!F$9","v":-78023},null,218,-18634.507556810899,-15568.364252669973,-3458.0216700115202,-26534.606125460894,null,-155327,-283877,-105647,-78023]
[219,{"$error":"#NAME?"},{"$error":"#NAME?"},{"$error":"#NAME?"},{"$error":"#NAME?"},null,{"$f":"NR_to_Cash!C$9","v":-155327},{"$f":"NR_to_Cash!D$9","v":-283877},{"$f":"NR_to_Cash!E$9","v":-105647},{"$f":"NR_to_Cash!F$9","v":-78023},null,219,-4567.512788239389,-26100.213269717762,12208.825534056567,-2507.7656559842753,null,-155327,-283877,-105647,-78023]
[220,{"$error":"#NAME?"},{"$error":"#NAME?"},{"$error":"#NAME?"},{"$error":"#NAME?"},null,{"$f":"NR_to_Cash!C$9","v":-155327},{"$f":"NR_to_Cash!D$9","v":-283877},{"$f":"NR_to_Cash!E$9","v":-105647},{"$f":"NR_to_Cash!F$9","v":-78023},null,220,-7961.7903164362169,-1052.7623628609163,-1707.9614467235313,-5481.8818714984809,null,-155327,-283877,-105647,-78023]
[221,{"$error":"#NAME?"},{"$error":"#NAME?"},{"$error":"#NAME?"},{"$error":"#NAME?"},null,{"$f":"NR_to_Cash!C$9","v":-155327},{"$f":"NR_to_Cash!D$9","v":-283877},{"$f":"NR_to_Cash!E$9","v":-105647},{"$f":"NR_to_Cash!F$9","v":-78023},null,221,-6270.9456277807185,76.620257909779596,-6774.1988243803662,4585.2533163592771,null,-155327,-283877,-105647,-78023]
[222,{"$error":"#NAME?"},{"$error":"#NAME?"},{"$error":"#NAME?"},{"$error":"#NAME?"},null,{"$f":"NR_to_Cash!C$9","v":-155327},{"$f":"NR_to_Cash!D$9","v":-283877},{"$f":"NR_to_Cash!E$9","v":-105647},{"$f":"NR_to_Cash!F$9","v":-78023},null,222,-3926.7638316583534,-20131.123131679171,-23424.949696689622,17176.181845468342,null,-155327,-283877,-105647,-78023]
[223,{"$error":"#NAME?"},{"$error":"#NAME?"},{"$error":"#NAME?"},{"$error":"#NAME?"},null,{"$f":"NR_to_Cash!C$9","v":-155327},{"$f":"NR_to_Cash!D$9","v":-283877},{"$f":"NR_to_Cash!E$9","v":-105647},{"$f":"NR_to_Cash!F$9","v":-78023},null,223,-12478.338225031835,1025.0392638449318,-328.09418550552272,-33238.53239761947,null,-155327,-283877,-105647,-78023]
[224,{"$error":"#NAME?"},{"$error":"#NAME?"},{"$error":"#NAME?"},{"$error":"#NAME?"},null,{"$f":"NR_to_Cash!C$9","v":-155327},{"$f":"NR_to_Cash!D$9","v":-283877},{"$f":"NR_to_Cash!E$9","v":-105647},{"$f":"NR_to_Cash!F$9","v":-78023},null,224,-18825.61658569987,-37100.515272127843,-1111.8692219488205,1982.4348849650785,null,-155327,-283877,-105647,-78023]
[225,{"$error":"#NAME?"},{"$error":"#NAME?"},{"$error":"#NAME?"},{"$error":"#NAME?"},null,{"$f":"NR_to_Cash!C$9","v":-155327},{"$f":"NR_to_Cash!D$9","v":-283877},{"$f":"NR_to_Cash!E$9","v":-105647},{"$f":"NR_to_Cash!F$9","v":-78023},null,225,-16735.580071778866,-20733.518303326739,-23124.085935277821,4612.2863038895357,null,-155327,-283877,-105647,-78023]
[226,{"$error":"#NAME?"},{"$error":"#NAME?"},{"$error":"#NAME?"},{"$error":"#NAME?"},null,{"$f":"NR_to_Cash!C$9","v":-155327},{"$f":"NR_to_Cash!D$9","v":-283877},{"$f":"NR_to_Cash!E$9","v":-105647},{"$f":"NR_to_Cash!F$9","v":-78023},null,226,-12003.18755533209,-19217.795927572948,-11239.525709774865,-140.00758509188009,null,-155327,-283877,-105647,-78023]
[227,{"$error":"#NAME?"},{"$error":"#NAME?"},{"$error":"#NAME?"},{"$error":"#NAME?"},null,{"$f":"NR_to_Cash!C$9","v":-155327},{"$f":"NR_to_Cash!D$9","v":-283877},{"$f":"NR_to_Cash!E$9","v":-105647},{"$f":"NR_to_Cash!F$9","v":-78023},null,227,-30812.971247334193,-8440.577636465865,7749.5269622353871,-30450.315064926959,null,-155327,-283877,-105647,-78023]
[228,{"$error":"#NAME?"},{"$error":"#NAME?"},{"$error":"#NAME?"},{"$error":"#NAME?"},null,{"$f":"NR_to_Cash!C$9","v":-155327},{"$f":"NR_to_Cash!D$9","v":-283877},{"$f":"NR_to_Cash!E$9","v":-105647},{"$f":"NR_to_Cash!F$9","v":-78023},null,228,-10746.844299162958,-16017.519033383538,-28173.002500848772,5490.6818883878768,null,-155327,-283877,-105647,-78023]
[229,{"$error":"#NAME?"},{"$error":"#NAME?"},{"$error":"#NAME?"},{"$error":"#NAME?"},null,{"$f":"NR_to_Cash!C$9","v":-155327},{"$f":"NR_to_Cash!D$9","v":-283877},{"$f":"NR_to_Cash!E$9","v":-105647},{"$f":"NR_to_Cash!F$9","v":-78023},null,229,-20052.539640228715,779.5986653970607,-16938.734816051947,-3801.7828832909322,null,-155327,-283877,-105647,-78023]
[230,{"$error":"#NAME?"},{"$error":"#NAME?"},{"$error":"#NAME?"},{"$error":"#NAME?"},null,{"$f":"NR_to_Cash!C$9","v":-155327},{"$f":"NR_to_Cash!D$9","v":-283877},{"$f":"NR_to_Cash!E$9","v":-105647},{"$f":"NR_to_Cash!F$9","v":-78023},null,230,-253.94058508890348,-8551.4950821706334,-4594.5528953867361,-34690.019150848268,null,-155327,-283877,-105647,-78023]
[231,{"$error":"#NAME?"},{"$error":"#NAME?"},{"$error":"#NAME?"},{"$error":"#NAME?"},null,{"$f":"NR_to_Cash!C$9","v":-155327},{"$f":"NR_to_Cash!D$9","v":-283877},{"$f":"NR_to_Cash!E$9","v":-105647},{"$f":"NR_to_Cash!F$9","v":-78023},null,231,-670.33468821506483,-22671.606607488142,-24649.477167822224,-20292.708870317274,null,-155327,-283877,-105647,-78023]
[232,{"$error":"#NAME?"},{"$error":"#NAME?"},{"$error":"#NAME?"},{"$error":"#NAME?"},null,{"$f":"NR_to_Cash!C$9","v":-155327},{"$f":"NR_to_Cash!D$9","v":-283877},{"$f":"NR_to_Cash!E$9","v":-105647},{"$f":"NR_to_Cash!F$9","v":-78023},null,232,-5831.621856222675,-14101.611480705084,-23409.724402406577,-9549.0102417603102,null,-155327,-283877,-105647,-78023]
[233,{"$error":"#NAME?"},{"$error":"#NAME?"},{"$error":"#NAME?"},{"$error":"#NAME?"},null,{"$f":"NR_to_Cash!C$9","v":-155327},{"$f":"NR_to_Cash!D$9","v":-283877},{"$f":"NR_to_Cash!E$9","v":-105647},{"$f":"NR_to_Cash!F$9","v":-78023},null,233,-7280.5737577124228,-10149.220950922447,15276.249078311066,-13974.487018239201,null,-155327,-283877,-105647,-78023]
[234,{"$error":"#NAME?"},{"$error":"#NAME?"},{"$error":"#NAME?"},{"$error":"#NAME?"},null,{"$f":"NR_to_Cash!C$9","v":-155327},{"$f":"NR_to_Cash!D$9","v":-283877},{"$f":"NR_to_Cash!E$9","v":-105647},{"$f":"NR_to_Cash!F$9","v":-78023},null,234,-24399.12366045345,6956.420148516524,-14425.999132420071,-11771.952813585052,null,-155327,-283877,-105647,-78023]
[235,{"$error":"#NAME?"},{"$error":"#NAME?"},{"$error":"#NAME?"},{"$error":"#NAME?"},null,{"$f":"NR_to_Cash!C$9","v":-155327},{"$f":"NR_to_Cash!D$9","v":-283877},{"$f":"NR_to_Cash!E$9","v":-105647},{"$f":"NR_to_Cash!F$9","v":-78023},null,235,-27619.619072213089,-6805.4892827247659,-16437.095252790339,6182.0516267453577,null,-155327,-283877,-105647,-78023]
[236,{"$error":"#NAME?"},{"$error":"#NAME?"},{"$error":"#NAME?"},{"$error":"#NAME?"},null,{"$f":"NR_to_Cash!C$9","v":-155327},{"$f":"NR_to_Cash!D$9","v":-283877},{"$f":"NR_to_Cash!E$9","v":-105647},{"$f":"NR_to_Cash!F$9","v":-78023},null,236,-2056.9432443741453,-14382.124747452157,-2721.3212643222068,-22230.694724840865,null,-155327,-283877,-105647,-78023]
[237,{"$error":"#NAME?"},{"$error":"#NAME?"},{"$error":"#NAME?"},{"$error":"#NAME?"},null,{"$f":"NR_to_Cash!C$9","v":-155327},{"$f":"NR_to_Cash!D$9","v":-283877},{"$f":"NR_to_Cash!E$9","v":-105647},{"$f":"NR_to_Cash!F$9","v":-78023},null,237,-1365.538203195611,1163.9133417503283,-25783.452590262892,-11322.687830778046,null,-155327,-283877,-105647,-78023]
[238,{"$error":"#NAME?"},{"$error":"#NAME?"},{"$error":"#NAME?"},{"$error":"#NAME?"},null,{"$f":"NR_to_Cash!C$9","v":-155327},{"$f":"NR_to_Cash!D$9","v":-283877},{"$f":"NR_to_Cash!E$9","v":-105647},{"$f":"NR_to_Cash!F$9","v":-78023},null,238,-1107.1922603938629,-16725.258045779534,-3024.7264538082964,20619.888794646395,null,-155327,-283877,-105647,-78023]
[239,{"$error":"#NAME?"},{"$error":"#NAME?"},{"$error":"#NAME?"},{"$error":"#NAME?"},null,{"$f":"NR_to_Cash!C$9","v":-155327},{"$f":"NR_to_Cash!D$9","v":-283877},{"$f":"NR_to_Cash!E$9","v":-105647},{"$f":"NR_to_Cash!F$9","v":-78023},null,239,-15857.037829094348,5226.1023644309535,11720.567656352894,-12648.378568247583,null,-155327,-283877,-105647,-78023]
[240,{"$error":"#NAME?"},{"$error":"#NAME?"},{"$error":"#NAME?"},{"$error":"#NAME?"},null,{"$f":"NR_to_Cash!C$9","v":-155327},{"$f":"NR_to_Cash!D$9","v":-283877},{"$f":"NR_to_Cash!E$9","v":-105647},{"$f":"NR_to_Cash!F$9","v":-78023},null,240,-4837.6574967332363,-35816.795425548131,10334.018492232586,-4630.8244957385477,null,-155327,-283877,-105647,-78023]
[241,{"$error":"#NAME?"},{"$error":"#NAME?"},{"$error":"#NAME?"},{"$error":"#NAME?"},null,{"$f":"NR_to_Cash!C$9","v":-155327},{"$f":"NR_to_Cash!D$9","v":-283877},{"$f":"NR_to_Cash!E$9","v":-105647},{"$f":"NR_to_Cash!F$9","v":-78023},null,241,-11350.350368255025,-23883.445983334521,-19610.758041849265,-13261.548451181618,null,-155327,-283877,-105647,-78023]
[242,{"$error":"#NAME?"},{"$error":"#NAME?"},{"$error":"#NAME?"},{"$error":"#NAME?"},null,{"$f":"NR_to_Cash!C$9","v":-155327},{"$f":"NR_to_Cash!D$9","v":-283877},{"$f":"NR_to_Cash!E$9","v":-105647},{"$f":"NR_to_Cash!F$9","v":-78023},null,242,3133.1240388398082,1109.6289116347616,-37090.157466563425,7817.0410098511857,null,-155327,-283877,-105647,-78023]
[243,{"$error":"#NAME?"},{"$error":"#NAME?"},{"$error":"#NAME?"},{"$error":"#NAME?"},null,{"$f":"NR_to_Cash!C$9","v":-155327},{"$f":"NR_to_Cash!D$9","v":-283877},{"$f":"NR_to_Cash!E$9","v":-105647},{"$f":"NR_to_Cash!F$9","v":-78023},null,243,-15663.671547269998,-23931.006405474887,-812.13765269908993,-22922.958511782002,null,-155327,-283877,-105647,-78023]
[244,{"$error":"#NAME?"},{"$error":"#NAME?"},{"$error":"#NAME?"},{"$error":"#NAME?"},null,{"$f":"NR_to_Cash!C$9","v":-155327},{"$f":"NR_to_Cash!D$9","v":-283877},{"$f":"NR_to_Cash!E$9","v":-105647},{"$f":"NR_to_Cash!F$9","v":-78023},null,244,-2852.8790611365143,-20786.131126040065,-26365.984193379991,-1338.6337338833575,null,-155327,-283877,-105647,-78023]
[245,{"$error":"#NAME?"},{"$error":"#NAME?"},{"$error":"#NAME?"},{"$error":"#NAME?"},null,{"$f":"NR_to_Cash!C$9","v":-155327},{"$f":"NR_to_Cash!D$9","v":-283877},{"$f":"NR_to_Cash!E$9","v":-105647},{"$f":"NR_to_Cash!F$9","v":-78023},null,245,-15505.646944756507,13368.051265908402,12165.273945028892,-15586.878657828263,null,-155327,-283877,-105647,-78023]
[246,{"$error":"#NAME?"},{"$error":"#NAME?"},{"$error":"#NAME?"},{"$error":"#NAME?"},null,{"$f":"NR_to_Cash!C$9","v":-155327},{"$f":"NR_to_Cash!D$9","v":-283877},{"$f":"NR_to_Cash!E$9","v":-105647},{"$f":"NR_to_Cash!F$9","v":-78023},null,246,-6693.2123062500696,3099.8776521408304,-15675.124946246207,-10601.584678367779,null,-155327,-283877,-105647,-78023]
[247,{"$error":"#NAME?"},{"$error":"#NAME?"},{"$error":"#NAME?"},{"$error":"#NAME?"},null,{"$f":"NR_to_Cash!C$9","v":-155327},{"$f":"NR_to_Cash!D$9","v":-283877},{"$f":"NR_to_Cash!E$9","v":-105647},{"$f":"NR_to_Cash!F$9","v":-78023},null,247,-26011.067785908708,-27116.52200591204,2753.4607387709571,-19.954151438750081,null,-155327,-283877,-105647,-78023]
[248,{"$error":"#NAME?"},{"$error":"#NAME?"},{"$error":"#NAME?"},{"$error":"#NAME?"},null,{"$f":"NR_to_Cash!C$9","v":-155327},{"$f":"NR_to_Cash!D$9","v":-283877},{"$f":"NR_to_Cash!E$9","v":-105647},{"$f":"NR_to_Cash!F$9","v":-78023},null,248,-11466.681092185099,-13955.648613428479,-23177.785715299593,19289.62087178848,null,-155327,-283877,-105647,-78023]
[249,{"$error":"#NAME?"},{"$error":"#NAME?"},{"$error":"#NAME?"},{"$error":"#NAME?"},null,{"$f":"NR_to_Cash!C$9","v":-155327},{"$f":"NR_to_Cash!D$9","v":-283877},{"$f":"NR_to_Cash!E$9","v":-105647},{"$f":"NR_to_Cash!F$9","v":-78023},null,249,2568.5537342147427,-11256.847000838337,-2616.9741777829854,-9813.8922945897102,null,-155327,-283877,-105647,-78023]
[250,{"$error":"#NAME?"},{"$error":"#NAME?"},{"$error":"#NAME?"},{"$error":"#NAME?"},null,{"$f":"NR_to_Cash!C$9","v":-155327},{"$f":"NR_to_Cash!D$9","v":-283877},{"$f":"NR_to_Cash!E$9","v":-105647},{"$f":"NR_to_Cash!F$9","v":-78023},null,250,-8659.8887805468767,-13341.144330454086,-1136.9539567050767,3013.3238449361784,null,-155327,-283877,-105647,-78023]
[251,{"$error":"#NAME?"},{"$error":"#NAME?"},{"$error":"#NAME?"},{"$error":"#NAME?"},null,{"$f":"NR_to_Cash!C$9","v":-155327},{"$f":"NR_to_Cash!D$9","v":-283877},{"$f":"NR_to_Cash!E$9","v":-105647},{"$f":"NR_to_Cash!F$9","v":-78023},null,251,-13322.097241212232,83.176917864485148,-9177.6276990396909,-23183.293260051698,null,-155327,-283877,-105647,-78023]
[252,{"$error":"#NAME?"},{"$error":"#NAME?"},{"$error":"#NAME?"},{"$error":"#NAME?"},null,{"$f":"NR_to_Cash!C$9","v":-155327},{"$f":"NR_to_Cash!D$9","v":-283877},{"$f":"NR_to_Cash!E$9","v":-105647},{"$f":"NR_to_Cash!F$9","v":-78023},null,252,-2696.7208312394164,-17136.434842681607,-18035.497832552734,-1572.4514179558093,null,-155327,-283877,-105647,-78023]
[253,{"$error":"#NAME?"},{"$error":"#NAME?"},{"$error":"#NAME?"},{"$error":"#NAME?"},null,{"$f":"NR_to_Cash!C$9","v":-155327},{"$f":"NR_to_Cash!D$9","v":-283877},{"$f":"NR_to_Cash!E$9","v":-105647},{"$f":"NR_to_Cash!F$9","v":-78023},null,253,-8749.971168239179,-13803.961817806725,-15493.626688764205,-26076.592320100732,null,-155327,-283877,-105647,-78023]
[254,{"$error":"#NAME?"},{"$error":"#NAME?"},{"$error":"#NAME?"},{"$error":"#NAME?"},null,{"$f":"NR_to_Cash!C$9","v":-155327},{"$f":"NR_to_Cash!D$9","v":-283877},{"$f":"NR_to_Cash!E$9","v":-105647},{"$f":"NR_to_Cash!F$9","v":-78023},null,254,-14260.216047223519,591.11528228429233,4014.4586595075689,-13823.013061085578,null,-155327,-283877,-105647,-78023]
[255,{"$error":"#NAME?"},{"$error":"#NAME?"},{"$error":"#NAME?"},{"$error":"#NAME?"},null,{"$f":"NR_to_Cash!C$9","v":-155327},{"$f":"NR_to_Cash!D$9","v":-283877},{"$f":"NR_to_Cash!E$9","v":-105647},{"$f":"NR_to_Cash!F$9","v":-78023},null,255,-25529.802638262503,-33226.581857741796,-25723.726725474779,6304.4950501118301,null,-155327,-283877,-105647,-78023]
[256,{"$error":"#NAME?"},{"$error":"#NAME?"},{"$error":"#NAME?"},{"$error":"#NAME?"},null,{"$f":"NR_to_Cash!C$9","v":-155327},{"$f":"NR_to_Cash!D$9","v":-283877},{"$f":"NR_to_Cash!E$9","v":-105647},{"$f":"NR_to_Cash!F$9","v":-78023},null,256,-17998.501611486812,-4764.2742017437504,-16625.993063194914,-1216.1808405477773,null,-155327,-283877,-105647,-78023]
[257,{"$error":"#NAME?"},{"$error":"#NAME?"},{"$error":"#NAME?"},{"$error":"#NAME?"},null,{"$f":"NR_to_Cash!C$9","v":-155327},{"$f":"NR_to_Cash!D$9","v":-283877},{"$f":"NR_to_Cash!E$9","v":-105647},{"$f":"NR_to_Cash!F$9","v":-78023},null,257,1270.3098185586409,5489.1062187981315,3410.4304863431098,-13411.498704624148,null,-155327,-283877,-105647,-78023]
[258,{"$error":"#NAME?"},{"$error":"#NAME?"},{"$error":"#NAME?"},{"$error":"#NAME?"},null,{"$f":"NR_to_Cash!C$9","v":-155327},{"$f":"NR_to_Cash!D$9","v":-283877},{"$f":"NR_to_Cash!E$9","v":-105647},{"$f":"NR_to_Cash!F$9","v":-78023},null,258,689.50853577176042,-6007.2646259073153,-25293.918204854977,-11972.039645864708,null,-155327,-283877,-105647,-78023]
[259,{"$error":"#NAME?"},{"$error":"#NAME?"},{"$error":"#NAME?"},{"$error":"#NAME?"},null,{"$f":"NR_to_Cash!C$9","v":-155327},{"$f":"NR_to_Cash!D$9","v":-283877},{"$f":"NR_to_Cash!E$9","v":-105647},{"$f":"NR_to_Cash!F$9","v":-78023},null,259,6458.4168911539964,-6056.4400643240924,-12583.742497893916,-7150.6555856528603,null,-155327,-283877,-105647,-78023]
[260,{"$error":"#NAME?"},{"$error":"#NAME?"},{"$error":"#NAME?"},{"$error":"#NAME?"},null,{"$f":"NR_to_Cash!C$9","v":-155327},{"$f":"NR_to_Cash!D$9","v":-283877},{"$f":"NR_to_Cash!E$9","v":-105647},{"$f":"NR_to_Cash!F$9","v":-78023},null,260,-17649.378772677039,-26842.527049119893,-256.06791563508239,-7874.5299115275957,null,-155327,-283877,-105647,-78023]
[261,{"$error":"#NAME?"},{"$error":"#NAME?"},{"$error":"#NAME?"},{"$error":"#NAME?"},null,{"$f":"NR_to_Cash!C$9","v":-155327},{"$f":"NR_to_Cash!D$9","v":-283877},{"$f":"NR_to_Cash!E$9","v":-105647},{"$f":"NR_to_Cash!F$9","v":-78023},null,261,-4783.3167372028747,-15176.807199999377,-9279.3550489023164,-14393.253025495154,null,-155327,-283877,-105647,-78023]
[262,{"$error":"#NAME?"},{"$error":"#NAME?"},{"$error":"#NAME?"},{"$error":"#NAME?"},null,{"$f":"NR_to_Cash!C$9","v":-155327},{"$f":"NR_to_Cash!D$9","v":-283877},{"$f":"NR_to_Cash!E$9","v":-105647},{"$f":"NR_to_Cash!F$9","v":-78023},null,262,-9670.0860529372785,-114.76903811928679,-33969.992864768763,-22093.354597034446,null,-155327,-283877,-105647,-78023]
[263,{"$error":"#NAME?"},{"$error":"#NAME?"},{"$error":"#NAME?"},{"$error":"#NAME?"},null,{"$f":"NR_to_Cash!C$9","v":-155327},{"$f":"NR_to_Cash!D$9","v":-283877},{"$f":"NR_to_Cash!E$9","v":-105647},{"$f":"NR_to_Cash!F$9","v":-78023},null,263,-3536.0610702796512,-12896.231389735174,-15809.185732784579,-11304.969631377646,null,-155327,-283877,-105647,-78023]
[264,{"$error":"#NAME?"},{"$error":"#NAME?"},{"$error":"#NAME?"},{"$error":"#NAME?"},null,{"$f":"NR_to_Cash!C$9","v":-155327},{"$f":"NR_to_Cash!D$9","v":-283877},{"$f":"NR_to_Cash!E$9","v":-105647},{"$f":"NR_to_Cash!F$9","v":-78023},null,264,-21325.646064742257,-29705.010412714437,-18808.421424684089,-19715.391561149878,null,-155327,-283877,-105647,-78023]
[265,{"$error":"#NAME?"},{"$error":"#NAME?"},{"$error":"#NAME?"},{"$error":"#NAME?"},null,{"$f":"NR_to_Cash!C$9","v":-155327},{"$f":"NR_to_Cash!D$9","v":-283877},{"$f":"NR_to_Cash!E$9","v":-105647},{"$f":"NR_to_Cash!F$9","v":-78023},null,265,1696.5061564482826,-13380.198559131839,-31221.449887138642,-17342.403300630624,null,-155327,-283877,-105647,-78023]
[266,{"$error":"#NAME?"},{"$error":"#NAME?"},{"$error":"#NAME?"},{"$error":"#NAME?"},null,{"$f":"NR_to_Cash!C$9","v":-155327},{"$f":"NR_to_Cash!D$9","v":-283877},{"$f":"NR_to_Cash!E$9","v":-105647},{"$f":"NR_to_Cash!F$9","v":-78023},null,266,-2716.6522105518707,-12846.60846543192,-5559.9460387840209,-10062.717742632765,null,-155327,-283877,-105647,-78023]
[267,{"$error":"#NAME?"},{"$error":"#NAME?"},{"$error":"#NAME?"},{"$error":"#NAME?"},null,{"$f":"NR_to_Cash!C$9","v":-155327},{"$f":"NR_to_Cash!D$9","v":-283877},{"$f":"NR_to_Cash!E$9","v":-105647},{"$f":"NR_to_Cash!F$9","v":-78023},null,267,709.12011535813042,-24746.682892500521,3239.6981249675196,-21807.704680126884,null,-155327,-283877,-105647,-78023]
[268,{"$error":"#NAME?"},{"$error":"#NAME?"},{"$error":"#NAME?"},{"$error":"#NAME?"},null,{"$f":"NR_to_Cash!C$9","v":-155327},{"$f":"NR_to_Cash!D$9","v":-283877},{"$f":"NR_to_Cash!E$9","v":-105647},{"$f":"NR_to_Cash!F$9","v":-78023},null,268,-8592.2821741640146,-11600.56831423489,-27226.444537252057,-23677.649026278927,null,-155327,-283877,-105647,-78023]
[269,{"$error":"#NAME?"},{"$error":"#NAME?"},{"$error":"#NAME?"},{"$error":"#NAME?"},null,{"$f":"NR_to_Cash!C$9","v":-155327},{"$f":"NR_to_Cash!D$9","v":-283877},{"$f":"NR_to_Cash!E$9","v":-105647},{"$f":"NR_to_Cash!F$9","v":-78023},null,269,-16658.30030841261,5393.6132167191381,-8767.4800559283485,5526.1077493192797,null,-155327,-283877,-105647,-78023]
[270,{"$error":"#NAME?"},{"$error":"#NAME?"},{"$error":"#NAME?"},{"$error":"#NAME?"},null,{"$f":"NR_to_Cash!C$9","v":-155327},{"$f":"NR_to_Cash!D$9","v":-283877},{"$f":"NR_to_Cash!E$9","v":-105647},{"$f":"NR_to_Cash!F$9","v":-78023},null,270,-7213.8868740727576,-2070.1274725345429,-9716.9737882753398,-21859.587316607092,null,-155327,-283877,-105647,-78023]
[271,{"$error":"#NAME?"},{"$error":"#NAME?"},{"$error":"#NAME?"},{"$error":"#NAME?"},null,{"$f":"NR_to_Cash!C$9","v":-155327},{"$f":"NR_to_Cash!D$9","v":-283877},{"$f":"NR_to_Cash!E$9","v":-105647},{"$f":"NR_to_Cash!F$9","v":-78023},null,271,-34044.517216981789,11111.155726711218,-16018.69738247581,-17054.5848867399,null,-155327,-283877,-105647,-78023]
[272,{"$error":"#NAME?"},{"$error":"#NAME?"},{"$error":"#NAME?"},{"$error":"#NAME?"},null,{"$f":"NR_to_Cash!C$9","v":-155327},{"$f":"NR_to_Cash!D$9","v":-283877},{"$f":"NR_to_Cash!E$9","v":-105647},{"$f":"NR_to_Cash!F$9","v":-78023},null,272,3676.3367768674689,-31905.175571737611,10926.203395128574,10241.681257691744,null,-155327,-283877,-105647,-78023]
[273,{"$error":"#NAME?"},{"$error":"#NAME?"},{"$error":"#NAME?"},{"$error":"#NAME?"},null,{"$f":"NR_to_Cash!C$9","v":-155327},{"$f":"NR_to_Cash!D$9","v":-283877},{"$f":"NR_to_Cash!E$9","v":-105647},{"$f":"NR_to_Cash!F$9","v":-78023},null,273,254.65225848924899,-34400.966419678523,-12597.167048941359,18494.884124259235,null,-155327,-283877,-105647,-78023]
[274,{"$error":"#NAME?"},{"$error":"#NAME?"},{"$error":"#NAME?"},{"$error":"#NAME?"},null,{"$f":"NR_to_Cash!C$9","v":-155327},{"$f":"NR_to_Cash!D$9","v":-283877},{"$f":"NR_to_Cash!E$9","v":-105647},{"$f":"NR_to_Cash!F$9","v":-78023},null,274,-22801.309700628146,7204.256136923239,-15853.419834219561,4479.7209887688568,null,-155327,-283877,-105647,-78023]
[275,{"$error":"#NAME?"},{"$error":"#NAME?"},{"$error":"#NAME?"},{"$error":"#NAME?"},null,{"$f":"NR_to_Cash!C$9","v":-155327},{"$f":"NR_to_Cash!D$9","v":-283877},{"$f":"NR_to_Cash!E$9","v":-105647},{"$f":"NR_to_Cash!F$9","v":-78023},null,275,2518.3989940954716,-37669.437073487505,-10538.922256657181,-4591.734582380318,null,-155327,-283877,-105647,-78023]
[276,{"$error":"#NAME?"},{"$error":"#NAME?"},{"$error":"#NAME?"},{"$error":"#NAME?"},null,{"$f":"NR_to_Cash!C$9","v":-155327},{"$f":"NR_to_Cash!D$9","v":-283877},{"$f":"NR_to_Cash!E$9","v":-105647},{"$f":"NR_to_Cash!F$9","v":-78023},null,276,-3760.8256270691063,4987.0913153695783,-13470.554337384188,-13401.326957602218,null,-155327,-283877,-105647,-78023]
[277,{"$error":"#NAME?"},{"$error":"#NAME?"},{"$error":"#NAME?"},{"$error":"#NAME?"},null,{"$f":"NR_to_Cash!C$9","v":-155327},{"$f":"NR_to_Cash!D$9","v":-283877},{"$f":"NR_to_Cash!E$9","v":-105647},{"$f":"NR_to_Cash!F$9","v":-78023},null,277,-32801.530103813144,10977.268208423553,-13705.992631630343,-16670.576974020332,null,-155327,-283877,-105647,-78023]
[278,{"$error":"#NAME?"},{"$error":"#NAME?"},{"$error":"#NAME?"},{"$error":"#NAME?"},null,{"$f":"NR_to_Cash!C$9","v":-155327},{"$f":"NR_to_Cash!D$9","v":-283877},{"$f":"NR_to_Cash!E$9","v":-105647},{"$f":"NR_to_Cash!F$9","v":-78023},null,278,-6851.7816233590747,-11650.162849009854,8062.5784341119861,3045.269392293631,null,-155327,-283877,-105647,-78023]
[279,{"$error":"#NAME?"},{"$error":"#NAME?"},{"$error":"#NAME?"},{"$error":"#NAME?"},null,{"$f":"NR_to_Cash!C$9","v":-155327},{"$f":"NR_to_Cash!D$9","v":-283877},{"$f":"NR_to_Cash!E$9","v":-105647},{"$f":"NR_to_Cash!F$9","v":-78023},null,279,-21398.800264288693,-5238.9345675523373,-10447.349277823603,-32899.236192404293,null,-155327,-283877,-105647,-78023]
[280,{"$error":"#NAME?"},{"$error":"#NAME?"},{"$error":"#NAME?"},{"$error":"#NAME?"},null,{"$f":"NR_to_Cash!C$9","v":-155327},{"$f":"NR_to_Cash!D$9","v":-283877},{"$f":"NR_to_Cash!E$9","v":-105647},{"$f":"NR_to_Cash!F$9","v":-78023},null,280,4645.7017267044184,-20414.686612968038,-21722.797515055292,-25968.784312505763,null,-155327,-283877,-105647,-78023]
[281,{"$error":"#NAME?"},{"$error":"#NAME?"},{"$error":"#NAME?"},{"$error":"#NAME?"},null,{"$f":"NR_to_Cash!C$9","v":-155327},{"$f":"NR_to_Cash!D$9","v":-283877},{"$f":"NR_to_Cash!E$9","v":-105647},{"$f":"NR_to_Cash!F$9","v":-78023},null,281,4334.6800483492852,-20173.010028170913,-22151.884683009353,2654.4169071408783,null,-155327,-283877,-105647,-78023]
[282,{"$error":"#NAME?"},{"$error":"#NAME?"},{"$error":"#NAME?"},{"$error":"#NAME?"},null,{"$f":"NR_to_Cash!C$9","v":-155327},{"$f":"NR_to_Cash!D$9","v":-283877},{"$f":"NR_to_Cash!E$9","v":-105647},{"$f":"NR_to_Cash!F$9","v":-78023},null,282,-14913.407643450071,-18339.613669187016,-6293.4113488410121,-27456.7499703627,null,-155327,-283877,-105647,-78023]
[283,{"$error":"#NAME?"},{"$error":"#NAME?"},{"$error":"#NAME?"},{"$error":"#NAME?"},null,{"$f":"NR_to_Cash!C$9","v":-155327},{"$f":"NR_to_Cash!D$9","v":-283877},{"$f":"NR_to_Cash!E$9","v":-105647},{"$f":"NR_to_Cash!F$9","v":-78023},null,283,-36412.564910573594,9788.6222088226459,133.62533115854117,-12449.844388976926,null,-155327,-283877,-105647,-78023]
[284,{"$error":"#NAME?"},{"$error":"#NAME?"},{"$error":"#NAME?"},{"$error":"#NAME?"},null,{"$f":"NR_to_Cash!C$9","v":-155327},{"$f":"NR_to_Cash!D$9","v":-283877},{"$f":"NR_to_Cash!E$9","v":-105647},{"$f":"NR_to_Cash!F$9","v":-78023},null,284,-21372.810002355756,-13173.247641110804,-15203.712108880187,-3600.3582917231465,null,-155327,-283877,-105647,-78023]
[285,{"$error":"#NAME?"},{"$error":"#NAME?"},{"$error":"#NAME?"},{"$error":"#NAME?"},null,{"$f":"NR_to_Cash!C$9","v":-155327},{"$f":"NR_to_Cash!D$9","v":-283877},{"$f":"NR_to_Cash!E$9","v":-105647},{"$f":"NR_to_Cash!F$9","v":-78023},null,285,-11347.006849846766,-1647.2091472453824,3329.3295284597198,-24971.027306713062,null,-155327,-283877,-105647,-78023]
[286,{"$error":"#NAME?"},{"$error":"#NAME?"},{"$error":"#NAME?"},{"$error":"#NAME?"},null,{"$f":"NR_to_Cash!C$9","v":-155327},{"$f":"NR_to_Cash!D$9","v":-283877},{"$f":"NR_to_Cash!E$9","v":-105647},{"$f":"NR_to_Cash!F$9","v":-78023},null,286,-44279.003265777028,-1585.833897723197,-32965.668155823914,7066.4856926010034,null,-155327,-283877,-105647,-78023]
[287,{"$error":"#NAME?"},{"$error":"#NAME?"},{"$error":"#NAME?"},{"$error":"#NAME?"},null,{"$f":"NR_to_Cash!C$9","v":-155327},{"$f":"NR_to_Cash!D$9","v":-283877},{"$f":"NR_to_Cash!E$9","v":-105647},{"$f":"NR_to_Cash!F$9","v":-78023},null,287,-4211.0363587828597,12754.160667162147,-5488.0690954364836,-38906.808317251496,null,-155327,-283877,-105647,-78023]
[288,{"$error":"#NAME?"},{"$error":"#NAME?"},{"$error":"#NAME?"},{"$error":"#NAME?"},null,{"$f":"NR_to_Cash!C$9","v":-155327},{"$f":"NR_to_Cash!D$9","v":-283877},{"$f":"NR_to_Cash!E$9","v":-105647},{"$f":"NR_to_Cash!F$9","v":-78023},null,288,-17800.00358018624,2310.4925833299035,7449.8340096228912,-26422.266562623048,null,-155327,-283877,-105647,-78023]
[289,{"$error":"#NAME?"},{"$error":"#NAME?"},{"$error":"#NAME?"},{"$error":"#NAME?"},null,{"$f":"NR_to_Cash!C$9","v":-155327},{"$f":"NR_to_Cash!D$9","v":-283877},{"$f":"NR_to_Cash!E$9","v":-105647},{"$f":"NR_to_Cash!F$9","v":-78023},null,289,-9599.7999470666145,-26872.293319358956,-12425.028392510487,-19222.936213546254,null,-155327,-283877,-105647,-78023]
[290,{"$error":"#NAME?"},{"$error":"#NAME?"},{"$error":"#NAME?"},{"$error":"#NAME?"},null,{"$f":"NR_to_Cash!C$9","v":-155327},{"$f":"NR_to_Cash!D$9","v":-283877},{"$f":"NR_to_Cash!E$9","v":-105647},{"$f":"NR_to_Cash!F$9","v":-78023},null,290,-4237.8956009063313,-5177.4283667322698,-5584.7001312127977,-6010.0771957714769,null,-155327,-283877,-105647,-78023]
[291,{"$error":"#NAME?"},{"$error":"#NAME?"},{"$error":"#NAME?"},{"$error":"#NAME?"},null,{"$f":"NR_to_Cash!C$9","v":-155327},{"$f":"NR_to_Cash!D$9","v":-283877},{"$f":"NR_to_Cash!E$9","v":-105647},{"$f":"NR_to_Cash!F$9","v":-78023},null,291,-9121.9413720185948,-7717.2379351207901,-32807.887870427017,10632.603727881298,null,-155327,-283877,-105647,-78023]
[292,{"$error":"#NAME?"},{"$error":"#NAME?"},{"$error":"#NAME?"},{"$error":"#NAME?"},null,{"$f":"NR_to_Cash!C$9","v":-155327},{"$f":"NR_to_Cash!D$9","v":-283877},{"$f":"NR_to_Cash!E$9","v":-105647},{"$f":"NR_to_Cash!F$9","v":-78023},null,292,-28220.946380445916,-12609.362479984533,-1295.276097700633,-19889.093715141593,null,-155327,-283877,-105647,-78023]
[293,{"$error":"#NAME?"},{"$error":"#NAME?"},{"$error":"#NAME?"},{"$error":"#NAME?"},null,{"$f":"NR_to_Cash!C$9","v":-155327},{"$f":"NR_to_Cash!D$9","v":-283877},{"$f":"NR_to_Cash!E$9","v":-105647},{"$f":"NR_to_Cash!F$9","v":-78023},null,293,-2302.6085704036232,-5007.4811130017479,-7128.4497842039736,19526.21562417013,null,-155327,-283877,-105647,-78023]
[294,{"$error":"#NAME?"},{"$error":"#NAME?"},{"$error":"#NAME?"},{"$error":"#NAME?"},null,{"$f":"NR_to_Cash!C$9","v":-155327},{"$f":"NR_to_Cash!D$9","v":-283877},{"$f":"NR_to_Cash!E$9","v":-105647},{"$f":"NR_to_Cash!F$9","v":-78023},null,294,-7113.2320200224513,-11069.095943952629,-20048.015514972318,-5370.8065339207014,null,-155327,-283877,-105647,-78023]
[295,{"$error":"#NAME?"},{"$error":"#NAME?"},{"$error":"#NAME?"},{"$error":"#NAME?"},null,{"$f":"NR_to_Cash!C$9","v":-155327},{"$f":"NR_to_Cash!D$9","v":-283877},{"$f":"NR_to_Cash!E$9","v":-105647},{"$f":"NR_to_Cash!F$9","v":-78023},null,295,8821.3456822330118,1445.5018074187406,20250.037673476334,-8140.574160497149,null,-155327,-283877,-105647,-78023]
[296,{"$error":"#NAME?"},{"$error":"#NAME?"},{"$error":"#NAME?"},{"$error":"#NAME?"},null,{"$f":"NR_to_Cash!C$9","v":-155327},{"$f":"NR_to_Cash!D$9","v":-283877},{"$f":"NR_to_Cash!E$9","v":-105647},{"$f":"NR_to_Cash!F$9","v":-78023},null,296,-20879.437643158988,-30048.218816116787,-12656.874764362206,-8554.8103468255104,null,-155327,-283877,-105647,-78023]
[297,{"$error":"#NAME?"},{"$error":"#NAME?"},{"$error":"#NAME?"},{"$error":"#NAME?"},null,{"$f":"NR_to_Cash!C$9","v":-155327},{"$f":"NR_to_Cash!D$9","v":-283877},{"$f":"NR_to_Cash!E$9","v":-105647},{"$f":"NR_to_Cash!F$9","v":-78023},null,297,-32041.224523751611,-18670.695646313045,-33831.168953878601,-31466.974078875588,null,-155327,-283877,-105647,-78023]
[298,{"$error":"#NAME?"},{"$error":"#NAME?"},{"$error":"#NAME?"},{"$error":"#NAME?"},null,{"$f":"NR_to_Cash!C$9","v":-155327},{"$f":"NR_to_Cash!D$9","v":-283877},{"$f":"NR_to_Cash!E$9","v":-105647},{"$f":"NR_to_Cash!F$9","v":-78023},null,298,-11073.850161005261,-24838.387607418619,-12137.497850679485,-6822.8148702971966,null,-155327,-283877,-105647,-78023]
[299,{"$error":"#NAME?"},{"$error":"#NAME?"},{"$error":"#NAME?"},{"$error":"#NAME?"},null,{"$f":"NR_to_Cash!C$9","v":-155327},{"$f":"NR_to_Cash!D$9","v":-283877},{"$f":"NR_to_Cash!E$9","v":-105647},{"$f":"NR_to_Cash!F$9","v":-78023},null,299,6109.3820723044992,-8714.2660705874077,-11599.538860815937,-23941.255031760847,null,-155327,-283877,-105647,-78023]
[300,{"$error":"#NAME?"},{"$error":"#NAME?"},{"$error":"#NAME?"},{"$error":"#NAME?"},null,{"$f":"NR_to_Cash!C$9","v":-155327},{"$f":"NR_to_Cash!D$9","v":-283877},{"$f":"NR_to_Cash!E$9","v":-105647},{"$f":"NR_to_Cash!F$9","v":-78023},null,300,-6829.6338419778131,-560.9038342552343,-35955.01348334222,-8349.2586822679914,null,-155327,-283877,-105647,-78023]
[301,{"$error":"#NAME?"},{"$error":"#NAME?"},{"$error":"#NAME?"},{"$error":"#NAME?"},null,{"$f":"NR_to_Cash!C$9","v":-155327},{"$f":"NR_to_Cash!D$9","v":-283877},{"$f":"NR_to_Cash!E$9","v":-105647},{"$f":"NR_to_Cash!F$9","v":-78023},null,301,-32199.731197521505,-17945.972743760445,-26488.825136894931,3854.6967990063858,null,-155327,-283877,-105647,-78023]
[302,{"$error":"#NAME?"},{"$error":"#NAME?"},{"$error":"#NAME?"},{"$error":"#NAME?"},null,{"$f":"NR_to_Cash!C$9","v":-155327},{"$f":"NR_to_Cash!D$9","v":-283877},{"$f":"NR_to_Cash!E$9","v":-105647},{"$f":"NR_to_Cash!F$9","v":-78023},null,302,-23099.315875585602,-4297.8275392391679,397.76233486329789,-10237.388973311849,null,-155327,-283877,-105647,-78023]
[303,{"$error":"#NAME?"},{"$error":"#NAME?"},{"$error":"#NAME?"},{"$error":"#NAME?"},null,{"$f":"NR_to_Cash!C$9","v":-155327},{"$f":"NR_to_Cash!D$9","v":-283877},{"$f":"NR_to_Cash!E$9","v":-105647},{"$f":"NR_to_Cash!F$9","v":-78023},null,303,-1615.693411193324,6792.1386945882214,-26039.145294195656,2695.393920122985,null,-155327,-283877,-105647,-78023]
[304,{"$error":"#NAME?"},{"$error":"#NAME?"},{"$error":"#NAME?"},{"$error":"#NAME?"},null,{"$f":"NR_to_Cash!C$9","v":-155327},{"$f":"NR_to_Cash!D$9","v":-283877},{"$f":"NR_to_Cash!E$9","v":-105647},{"$f":"NR_to_Cash!F$9","v":-78023},null,304,-1492.1632984923547,-23924.405249165349,-21917.838378944416,2585.6180187617347,null,-155327,-283877,-105647,-78023]
[305,{"$error":"#NAME?"},{"$error":"#NAME?"},{"$error":"#NAME?"},{"$error":"#NAME?"},null,{"$f":"NR_to_Cash!C$9","v":-155327},{"$f":"NR_to_Cash!D$9","v":-283877},{"$f":"NR_to_Cash!E$9","v":-105647},{"$f":"NR_to_Cash!F$9","v":-78023},null,305,-7928.6619839630321,-22028.436599603363,650.34517082076115,2804.2439742563915,null,-155327,-283877,-105647,-78023]
[306,{"$error":"#NAME?"},{"$error":"#NAME?"},{"$error":"#NAME?"},{"$error":"#NAME?"},null,{"$f":"NR_to_Cash!C$9","v":-155327},{"$f":"NR_to_Cash!D$9","v":-283877},{"$f":"NR_to_Cash!E$9","v":-105647},{"$f":"NR_to_Cash!F$9","v":-78023},null,306,-9645.2016763151514,15568.618926419804,-5508.9431921544483,-9374.8209624621377,null,-155327,-283877,-105647,-78023]
[307,{"$error":"#NAME?"},{"$error":"#NAME?"},{"$error":"#NAME?"},{"$error":"#NAME?"},null,{"$f":"NR_to_Cash!C$9","v":-155327},{"$f":"NR_to_Cash!D$9","v":-283877},{"$f":"NR_to_Cash!E$9","v":-105647},{"$f":"NR_to_Cash!F$9","v":-78023},null,307,-12508.377334389421,-30423.130077964011,-3601.2343504769833,-15406.291210187794,null,-155327,-283877,-105647,-78023]
[308,{"$error":"#NAME?"},{"$error":"#NAME?"},{"$error":"#NAME?"},{"$error":"#NAME?"},null,{"$f":"NR_to_Cash!C$9","v":-155327},{"$f":"NR_to_Cash!D$9","v":-283877},{"$f":"NR_to_Cash!E$9","v":-105647},{"$f":"NR_to_Cash!F$9","v":-78023},null,308,-4042.128488043636,2213.5818041057864,22909.520447149956,-13833.211414425003,null,-155327,-283877,-105647,-78023]
[309,{"$error":"#NAME?"},{"$error":"#NAME?"},{"$error":"#NAME?"},{"$error":"#NAME?"},null,{"$f":"NR_to_Cash!C$9","v":-155327},{"$f":"NR_to_Cash!D$9","v":-283877},{"$f":"NR_to_Cash!E$9","v":-105647},{"$f":"NR_to_Cash!F$9","v":-78023},null,309,-4554.7184622812829,-53915.343930340583,-23090.99441669177,-20147.083123801971,null,-155327,-283877,-105647,-78023]
[310,{"$error":"#NAME?"},{"$error":"#NAME?"},{"$error":"#NAME?"},{"$error":"#NAME?"},null,{"$f":"NR_to_Cash!C$9","v":-155327},{"$f":"NR_to_Cash!D$9","v":-283877},{"$f":"NR_to_Cash!E$9","v":-105647},{"$f":"NR_to_Cash!F$9","v":-78023},null,310,-13510.470375016948,-24446.511083651996,-30269.132387876081,-22423.874223759034,null,-155327,-283877,-105647,-78023]
[311,{"$error":"#NAME?"},{"$error":"#NAME?"},{"$error":"#NAME?"},{"$error":"#NAME?"},null,{"$f":"NR_to_Cash!C$9","v":-155327},{"$f":"NR_to_Cash!D$9","v":-283877},{"$f":"NR_to_Cash!E$9","v":-105647},{"$f":"NR_to_Cash!F$9","v":-78023},null,311,-13175.667375833287,-2569.9335797850804,-17940.553473840548,-21505.594128337998,null,-155327,-283877,-105647,-78023]
[312,{"$error":"#NAME?"},{"$error":"#NAME?"},{"$error":"#NAME?"},{"$error":"#NAME?"},null,{"$f":"NR_to_Cash!C$9","v":-155327},{"$f":"NR_to_Cash!D$9","v":-283877},{"$f":"NR_to_Cash!E$9","v":-105647},{"$f":"NR_to_Cash!F$9","v":-78023},null,312,-4261.8088929673349,-6187.0301048186202,-144.04365748801143,-22096.732308211958,null,-155327,-283877,-105647,-78023]
[313,{"$error":"#NAME?"},{"$error":"#NAME?"},{"$error":"#NAME?"},{"$error":"#NAME?"},null,{"$f":"NR_to_Cash!C$9","v":-155327},{"$f":"NR_to_Cash!D$9","v":-283877},{"$f":"NR_to_Cash!E$9","v":-105647},{"$f":"NR_to_Cash!F$9","v":-78023},null,313,-17663.474410446659,-18134.39385620306,-27036.651414956636,-29114.070788961511,null,-155327,-283877,-105647,-78023]
[314,{"$error":"#NAME?"},{"$error":"#NAME?"},{"$error":"#NAME?"},{"$error":"#NAME?"},null,{"$f":"NR_to_Cash!C$9","v":-155327},{"$f":"NR_to_Cash!D$9","v":-283877},{"$f":"NR_to_Cash!E$9","v":-105647},{"$f":"NR_to_Cash!F$9","v":-78023},null,314,-4919.3696059203548,-28835.530196429168,-3257.0259317629466,6675.3336599462482,null,-155327,-283877,-105647,-78023]
[315,{"$error":"#NAME?"},{"$error":"#NAME?"},{"$error":"#NAME?"},{"$error":"#NAME?"},null,{"$f":"NR_to_Cash!C$9","v":-155327},{"$f":"NR_to_Cash!D$9","v":-283877},{"$f":"NR_to_Cash!E$9","v":-105647},{"$f":"NR_to_Cash!F$9","v":-78023},null,315,-20552.181830647096,9336.2890531310313,-274.55145516266367,2499.6019224590909,null,-155327,-283877,-105647,-78023]
[316,{"$error":"#NAME?"},{"$error":"#NAME?"},{"$error":"#NAME?"},{"$error":"#NAME?"},null,{"$f":"NR_to_Cash!C$9","v":-155327},{"$f":"NR_to_Cash!D$9","v":-283877},{"$f":"NR_to_Cash!E$9","v":-105647},{"$f":"NR_to_Cash!F$9","v":-78023},null,316,-15286.159118554266,-15112.142058295089,-3513.501653294943,-7095.3244638817041,null,-155327,-283877,-105647,-78023]
[317,{"$error":"#NAME?"},{"$error":"#NAME?"},{"$error":"#NAME?"},{"$error":"#NAME?"},null,{"$f":"NR_to_Cash!C$9","v":-155327},{"$f":"NR_to_Cash!D$9","v":-283877},{"$f":"NR_to_Cash!E$9","v":-105647},{"$f":"NR_to_Cash!F$9","v":-78023},null,317,-17406.686639865147,-21188.049569005954,-4515.1848164958155,-40898.129109169182,null,-155327,-283877,-105647,-78023]
[318,{"$error":"#NAME?"},{"$error":"#NAME?"},{"$error":"#NAME?"},{"$error":"#NAME?"},null,{"$f":"NR_to_Cash!C$9","v":-155327},{"$f":"NR_to_Cash!D$9","v":-283877},{"$f":"NR_to_Cash!E$9","v":-105647},{"$f":"NR_to_Cash!F$9","v":-78023},null,318,-16733.153704542608,3766.1420631583705,-8852.1625928333506,-10516.069564902584,null,-155327,-283877,-105647,-78023]
[319,{"$error":"#NAME?"},{"$error":"#NAME?"},{"$error":"#NAME?"},{"$error":"#NAME?"},null,{"$f":"NR_to_Cash!C$9","v":-155327},{"$f":"NR_to_Cash!D$9","v":-283877},{"$f":"NR_to_Cash!E$9","v":-105647},{"$f":"NR_to_Cash!F$9","v":-78023},null,319,1518.1472660317222,5687.4302333219803,-19989.376181352727,-18464.129128582681,null,-155327,-283877,-105647,-78023]
[320,{"$error":"#NAME?"},{"$error":"#NAME?"},{"$error":"#NAME?"},{"$error":"#NAME?"},null,{"$f":"NR_to_Cash!C$9","v":-155327},{"$f":"NR_to_Cash!D$9","v":-283877},{"$f":"NR_to_Cash!E$9","v":-105647},{"$f":"NR_to_Cash!F$9","v":-78023},null,320,-17125.935322218938,-17457.017843483402,-18395.597506805614,-38847.854660662502,null,-155327,-283877,-105647,-78023]
[321,{"$error":"#NAME?"},{"$error":"#NAME?"},{"$error":"#NAME?"},{"$error":"#NAME?"},null,{"$f":"NR_to_Cash!C$9","v":-155327},{"$f":"NR_to_Cash!D$9","v":-283877},{"$f":"NR_to_Cash!E$9","v":-105647},{"$f":"NR_to_Cash!F$9","v":-78023},null,321,-27580.057132065973,994.379979944806,-20600.759744500636,-42791.507104172182,null,-155327,-283877,-105647,-78023]
[322,{"$error":"#NAME?"},{"$error":"#NAME?"},{"$error":"#NAME?"},{"$error":"#NAME?"},null,{"$f":"NR_to_Cash!C$9","v":-155327},{"$f":"NR_to_Cash!D$9","v":-283877},{"$f":"NR_to_Cash!E$9","v":-105647},{"$f":"NR_to_Cash!F$9","v":-78023},null,322,3010.7621582718848,2680.1492345973438,-10229.889065776943,2834.5316776735772,null,-155327,-283877,-105647,-78023]
[323,{"$error":"#NAME?"},{"$error":"#NAME?"},{"$error":"#NAME?"},{"$error":"#NAME?"},null,{"$f":"NR_to_Cash!C$9","v":-155327},{"$f":"NR_to_Cash!D$9","v":-283877},{"$f":"NR_to_Cash!E$9","v":-105647},{"$f":"NR_to_Cash!F$9","v":-78023},null,323,-22705.548452778829,2662.471114649049,7613.5678082505192,-7134.017873841206,null,-155327,-283877,-105647,-78023]
[324,{"$error":"#NAME?"},{"$error":"#NAME?"},{"$error":"#NAME?"},{"$error":"#NAME?"},null,{"$f":"NR_to_Cash!C$9","v":-155327},{"$f":"NR_to_Cash!D$9","v":-283877},{"$f":"NR_to_Cash!E$9","v":-105647},{"$f":"NR_to_Cash!F$9","v":-78023},null,324,-26184.193504753235,5456.0877029458516,-19114.107164819703,-4280.3105715201546,null,-155327,-283877,-105647,-78023]
[325,{"$error":"#NAME?"},{"$error":"#NAME?"},{"$error":"#NAME?"},{"$error":"#NAME?"},null,{"$f":"NR_to_Cash!C$9","v":-155327},{"$f":"NR_to_Cash!D$9","v":-283877},{"$f":"NR_to_Cash!E$9","v":-105647},{"$f":"NR_to_Cash!F$9","v":-78023},null,325,-83.601822393349181,-20156.245041707956,-25413.818428533035,15284.038470939151,null,-155327,-283877,-105647,-78023]
[326,{"$error":"#NAME?"},{"$error":"#NAME?"},{"$error":"#NAME?"},{"$error":"#NAME?"},null,{"$f":"NR_to_Cash!C$9","v":-155327},{"$f":"NR_to_Cash!D$9","v":-283877},{"$f":"NR_to_Cash!E$9","v":-105647},{"$f":"NR_to_Cash!F$9","v":-78023},null,326,-5586.6571794481633,-6904.9345244696733,29075.05993335542,-2026.2169031334931,null,-155327,-283877,-105647,-78023]
[327,{"$error":"#NAME?"},{"$error":"#NAME?"},{"$error":"#NAME?"},{"$error":"#NAME?"},null,{"$f":"NR_to_Cash!C$9","v":-155327},{"$f":"NR_to_Cash!D$9","v":-283877},{"$f":"NR_to_Cash!E$9","v":-105647},{"$f":"NR_to_Cash!F$9","v":-78023},null,327,-42639.78605491115,-38788.770286396648,-5344.2356374808614,2395.6078851849429,null,-155327,-283877,-105647,-78023]
[328,{"$error":"#NAME?"},{"$error":"#NAME?"},{"$error":"#NAME?"},{"$error":"#NAME?"},null,{"$f":"NR_to_Cash!C$9","v":-155327},{"$f":"NR_to_Cash!D$9","v":-283877},{"$f":"NR_to_Cash!E$9","v":-105647},{"$f":"NR_to_Cash!F$9","v":-78023},null,328,-28122.336052933984,-3156.5478053401912,-4641.7031400526785,-33819.255997919892,null,-155327,-283877,-105647,-78023]
[329,{"$error":"#NAME?"},{"$error":"#NAME?"},{"$error":"#NAME?"},{"$error":"#NAME?"},null,{"$f":"NR_to_Cash!C$9","v":-155327},{"$f":"NR_to_Cash!D$9","v":-283877},{"$f":"NR_to_Cash!E$9","v":-105647},{"$f":"NR_to_Cash!F$9","v":-78023},null,329,-31981.598738235982,-673.06251437742003,-10459.501267554926,-11721.047925466097,null,-155327,-283877,-105647,-78023]
[330,{"$error":"#NAME?"},{"$error":"#NAME?"},{"$error":"#NAME?"},{"$error":"#NAME?"},null,{"$f":"NR_to_Cash!C$9","v":-155327},{"$f":"NR_to_Cash!D$9","v":-283877},{"$f":"NR_to_Cash!E$9","v":-105647},{"$f":"NR_to_Cash!F$9","v":-78023},null,330,-10767.122392105519,2120.0691909179682,-4933.1406941846199,3076.6743122149696,null,-155327,-283877,-105647,-78023]
[331,{"$error":"#NAME?"},{"$error":"#NAME?"},{"$error":"#NAME?"},{"$error":"#NAME?"},null,{"$f":"NR_to_Cash!C$9","v":-155327},{"$f":"NR_to_Cash!D$9","v":-283877},{"$f":"NR_to_Cash!E$9","v":-105647},{"$f":"NR_to_Cash!F$9","v":-78023},null,331,-2147.6416667085768,3042.6499204504094,-14641.784470234084,-6645.2990209242198,null,-155327,-283877,-105647,-78023]
[332,{"$error":"#NAME?"},{"$error":"#NAME?"},{"$error":"#NAME?"},{"$error":"#NAME?"},null,{"$f":"NR_to_Cash!C$9","v":-155327},{"$f":"NR_to_Cash!D$9","v":-283877},{"$f":"NR_to_Cash!E$9","v":-105647},{"$f":"NR_to_Cash!F$9","v":-78023},null,332,1115.4977799519847,9447.6792688595597,-17196.495660114975,-40453.884499462009,null,-155327,-283877,-105647,-78023]
[333,{"$error":"#NAME?"},{"$error":"#NAME?"},{"$error":"#NAME?"},{"$error":"#NAME?"},null,{"$f":"NR_to_Cash!C$9","v":-155327},{"$f":"NR_to_Cash!D$9","v":-283877},{"$f":"NR_to_Cash!E$9","v":-105647},{"$f":"NR_to_Cash!F$9","v":-78023},null,333,-35632.305285804337,-17009.419812214881,-22054.478790005945,-6125.4339308880099,null,-155327,-283877,-105647,-78023]
[334,{"$error":"#NAME?"},{"$error":"#NAME?"},{"$error":"#NAME?"},{"$error":"#NAME?"},null,{"$f":"NR_to_Cash!C$9","v":-155327},{"$f":"NR_to_Cash!D$9","v":-283877},{"$f":"NR_to_Cash!E$9","v":-105647},{"$f":"NR_to_Cash!F$9","v":-78023},null,334,-6921.5366901355246,-13239.769947186405,2899.0084023981703,-3457.2562832610633,null,-155327,-283877,-105647,-78023]
[335,{"$error":"#NAME?"},{"$error":"#NAME?"},{"$error":"#NAME?"},{"$error":"#NAME?"},null,{"$f":"NR_to_Cash!C$9","v":-155327},{"$f":"NR_to_Cash!D$9","v":-283877},{"$f":"NR_to_Cash!E$9","v":-105647},{"$f":"NR_to_Cash!F$9","v":-78023},null,335,-23988.755479438383,-24474.072414513746,-1448.172407250175,-79.65190965409046,null,-155327,-283877,-105647,-78023]
[336,{"$error":"#NAME?"},{"$error":"#NAME?"},{"$error":"#NAME?"},{"$error":"#NAME?"},null,{"$f":"NR_to_Cash!C$9","v":-155327},{"$f":"NR_to_Cash!D$9","v":-283877},{"$f":"NR_to_Cash!E$9","v":-105647},{"$f":"NR_to_Cash!F$9","v":-78023},null,336,-468.34583786369012,-28543.214127966497,-26881.298804917453,-20466.986206148951,null,-155327,-283877,-105647,-78023]
[337,{"$error":"#NAME?"},{"$error":"#NAME?"},{"$error":"#NAME?"},{"$error":"#NAME?"},null,{"$f":"NR_to_Cash!C$9","v":-155327},{"$f":"NR_to_Cash!D$9","v":-283877},{"$f":"NR_to_Cash!E$9","v":-105647},{"$f":"NR_to_Cash!F$9","v":-78023},null,337,-15700.551434667406,-26211.223362507986,-4282.6718477455815,-2619.3017621831359,null,-155327,-283877,-105647,-78023]
[338,{"$error":"#NAME?"},{"$error":"#NAME?"},{"$error":"#NAME?"},{"$error":"#NAME?"},null,{"$f":"NR_to_Cash!C$9","v":-155327},{"$f":"NR_to_Cash!D$9","v":-283877},{"$f":"NR_to_Cash!E$9","v":-105647},{"$f":"NR_to_Cash!F$9","v":-78023},null,338,-15527.360513791951,-19693.568398548901,520.00685857315511,-6800.1132349539603,null,-155327,-283877,-105647,-78023]
[339,{"$error":"#NAME?"},{"$error":"#NAME?"},{"$error":"#NAME?"},{"$error":"#NAME?"},null,{"$f":"NR_to_Cash!C$9","v":-155327},{"$f":"NR_to_Cash!D$9","v":-283877},{"$f":"NR_to_Cash!E$9","v":-105647},{"$f":"NR_to_Cash!F$9","v":-78023},null,339,2519.3435507549198,4765.5569762075929,12018.237191767455,-31785.87964869562,null,-155327,-283877,-105647,-78023]
[340,{"$error":"#NAME?"},{"$error":"#NAME?"},{"$error":"#NAME?"},{"$error":"#NAME?"},null,{"$f":"NR_to_Cash!C$9","v":-155327},{"$f":"NR_to_Cash!D$9","v":-283877},{"$f":"NR_to_Cash!E$9","v":-105647},{"$f":"NR_to_Cash!F$9","v":-78023},null,340,-15851.150213074208,-320.65722217529327,9542.7138309940929,-17218.750825627329,null,-155327,-283877,-105647,-78023]
[341,{"$error":"#NAME?"},{"$error":"#NAME?"},{"$error":"#NAME?"},{"$error":"#NAME?"},null,{"$f":"NR_to_Cash!C$9","v":-155327},{"$f":"NR_to_Cash!D$9","v":-283877},{"$f":"NR_to_Cash!E$9","v":-105647},{"$f":"NR_to_Cash!F$9","v":-78023},null,341,-18212.706514699938,-19809.167302103822,841.92507266004964,-9477.0540356674646,null,-155327,-283877,-105647,-78023]
[342,{"$error":"#NAME?"},{"$error":"#NAME?"},{"$error":"#NAME?"},{"$error":"#NAME?"},null,{"$f":"NR_to_Cash!C$9","v":-155327},{"$f":"NR_to_Cash!D$9","v":-283877},{"$f":"NR_to_Cash!E$9","v":-105647},{"$f":"NR_to_Cash!F$9","v":-78023},null,342,-8399.5008416089768,-29289.118612374154,-6928.6030594330314,-24562.550454531094,null,-155327,-283877,-105647,-78023]
[343,{"$error":"#NAME?"},{"$error":"#NAME?"},{"$error":"#NAME?"},{"$error":"#NAME?"},null,{"$f":"NR_to_Cash!C$9","v":-155327},{"$f":"NR_to_Cash!D$9","v":-283877},{"$f":"NR_to_Cash!E$9","v":-105647},{"$f":"NR_to_Cash!F$9","v":-78023},null,343,-19502.351245098012,-10839.72353399681,-3646.4085231840941,-9768.0870979883493,null,-155327,-283877,-105647,-78023]
[344,{"$error":"#NAME?"},{"$error":"#NAME?"},{"$error":"#NAME?"},{"$error":"#NAME?"},null,{"$f":"NR_to_Cash!C$9","v":-155327},{"$f":"NR_to_Cash!D$9","v":-283877},{"$f":"NR_to_Cash!E$9","v":-105647},{"$f":"NR_to_Cash!F$9","v":-78023},null,344,2625.774978829988,-9153.0979249251959,-11926.604579420329,-27465.787758786664,null,-155327,-283877,-105647,-78023]
[345,{"$error":"#NAME?"},{"$error":"#NAME?"},{"$error":"#NAME?"},{"$error":"#NAME?"},null,{"$f":"NR_to_Cash!C$9","v":-155327},{"$f":"NR_to_Cash!D$9","v":-283877},{"$f":"NR_to_Cash!E$9","v":-105647},{"$f":"NR_to_Cash!F$9","v":-78023},null,345,-16018.65374952009,-3018.8739959474319,-34608.598416328517,-35443.343385726657,null,-155327,-283877,-105647,-78023]
[346,{"$error":"#NAME?"},{"$error":"#NAME?"},{"$error":"#NAME?"},{"$error":"#NAME?"},null,{"$f":"NR_to_Cash!C$9","v":-155327},{"$f":"NR_to_Cash!D$9","v":-283877},{"$f":"NR_to_Cash!E$9","v":-105647},{"$f":"NR_to_Cash!F$9","v":-78023},null,346,3407.4054777512574,-5530.8021779830251,-3166.1940712020187,-25578.967388708781,null,-155327,-283877,-105647,-78023]
[347,{"$error":"#NAME?"},{"$error":"#NAME?"},{"$error":"#NAME?"},{"$error":"#NAME?"},null,{"$f":"NR_to_Cash!C$9","v":-155327},{"$f":"NR_to_Cash!D$9","v":-283877},{"$f":"NR_to_Cash!E$9","v":-105647},{"$f":"NR_to_Cash!F$9","v":-78023},null,347,2724.4385222077085,-26516.573349969694,-4616.3952533919228,10073.501344470144,null,-155327,-283877,-105647,-78023]
[348,{"$error":"#NAME?"},{"$error":"#NAME?"},{"$error":"#NAME?"},{"$error":"#NAME?"},null,{"$f":"NR_to_Cash!C$9","v":-155327},{"$f":"NR_to_Cash!D$9","v":-283877},{"$f":"NR_to_Cash!E$9","v":-105647},{"$f":"NR_to_Cash!F$9","v":-78023},null,348,-28225.255776757411,-26258.017025547899,2397.8024361050243,-19920.46845789874,null,-155327,-283877,-105647,-78023]
[349,{"$error":"#NAME?"},{"$error":"#NAME?"},{"$error":"#NAME?"},{"$error":"#NAME?"},null,{"$f":"NR_to_Cash!C$9","v":-155327},{"$f":"NR_to_Cash!D$9","v":-283877},{"$f":"NR_to_Cash!E$9","v":-105647},{"$f":"NR_to_Cash!F$9","v":-78023},null,349,-18868.513553176563,11110.670857921757,-25070.489634271438,12554.650838240344,null,-155327,-283877,-105647,-78023]
[350,{"$error":"#NAME?"},{"$error":"#NAME?"},{"$error":"#NAME?"},{"$error":"#NAME?"},null,{"$f":"NR_to_Cash!C$9","v":-155327},{"$f":"NR_to_Cash!D$9","v":-283877},{"$f":"NR_to_Cash!E$9","v":-105647},{"$f":"NR_to_Cash!F$9","v":-78023},null,350,-13301.90312275955,-13532.847720899192,-3643.6492279539211,-19623.066881067462,null,-155327,-283877,-105647,-78023]
[351,{"$error":"#NAME?"},{"$error":"#NAME?"},{"$error":"#NAME?"},{"$error":"#NAME?"},null,{"$f":"NR_to_Cash!C$9","v":-155327},{"$f":"NR_to_Cash!D$9","v":-283877},{"$f":"NR_to_Cash!E$9","v":-105647},{"$f":"NR_to_Cash!F$9","v":-78023},null,351,-3506.0764618349331,-12084.701584005428,-10569.211576665197,-27533.721716565258,null,-155327,-283877,-105647,-78023]
[352,{"$error":"#NAME?"},{"$error":"#NAME?"},{"$error":"#NAME?"},{"$error":"#NAME?"},null,{"$f":"NR_to_Cash!C$9","v":-155327},{"$f":"NR_to_Cash!D$9","v":-283877},{"$f":"NR_to_Cash!E$9","v":-105647},{"$f":"NR_to_Cash!F$9","v":-78023},null,352,-5284.5134063878886,-3189.8809552289149,-17233.651907408475,-17035.771559181165,null,-155327,-283877,-105647,-78023]
[353,{"$error":"#NAME?"},{"$error":"#NAME?"},{"$error":"#NAME?"},{"$error":"#NAME?"},null,{"$f":"NR_to_Cash!C$9","v":-155327},{"$f":"NR_to_Cash!D$9","v":-283877},{"$f":"NR_to_Cash!E$9","v":-105647},{"$f":"NR_to_Cash!F$9","v":-78023},null,353,-29140.172462023285,-14958.789186196827,-2597.5154334804511,6726.0113394629379,null,-155327,-283877,-105647,-78023]
[354,{"$error":"#NAME?"},{"$error":"#NAME?"},{"$error":"#NAME?"},{"$error":"#NAME?"},null,{"$f":"NR_to_Cash!C$9","v":-155327},{"$f":"NR_to_Cash!D$9","v":-283877},{"$f":"NR_to_Cash!E$9","v":-105647},{"$f":"NR_to_Cash!F$9","v":-78023},null,354,-22444.887581046441,5611.2748712386574,-2257.7619640550688,10198.846676481093,null,-155327,-283877,-105647,-78023]
[355,{"$error":"#NAME?"},{"$error":"#NAME?"},{"$error":"#NAME?"},{"$error":"#NAME?"},null,{"$f":"NR_to_Cash!C$9","v":-155327},{"$f":"NR_to_Cash!D$9","v":-283877},{"$f":"NR_to_Cash!E$9","v":-105647},{"$f":"NR_to_Cash!F$9","v":-78023},null,355,-31003.847588249053,1003.8994856935262,-7944.8610023189158,14147.689551485139,null,-155327,-283877,-105647,-78023]
[356,{"$error":"#NAME?"},{"$error":"#NAME?"},{"$error":"#NAME?"},{"$error":"#NAME?"},null,{"$f":"NR_to_Cash!C$9","v":-155327},{"$f":"NR_to_Cash!D$9","v":-283877},{"$f":"NR_to_Cash!E$9","v":-105647},{"$f":"NR_to_Cash!F$9","v":-78023},null,356,-26802.662987242635,-1360.0648766097554,-6092.5327520998626,-13981.99391079288,null,-155327,-283877,-105647,-78023]
[357,{"$error":"#NAME?"},{"$error":"#NAME?"},{"$error":"#NAME?"},{"$error":"#NAME?"},null,{"$f":"NR_to_Cash!C$9","v":-155327},{"$f":"NR_to_Cash!D$9","v":-283877},{"$f":"NR_to_Cash!E$9","v":-105647},{"$f":"NR_to_Cash!F$9","v":-78023},null,357,-14296.804085356996,-3480.6190503848065,-15490.803515324984,-23943.530460873935,null,-155327,-283877,-105647,-78023]
[358,{"$error":"#NAME?"},{"$error":"#NAME?"},{"$error":"#NAME?"},{"$error":"#NAME?"},null,{"$f":"NR_to_Cash!C$9","v":-155327},{"$f":"NR_to_Cash!D$9","v":-283877},{"$f":"NR_to_Cash!E$9","v":-105647},{"$f":"NR_to_Cash!F$9","v":-78023},null,358,-17466.154157639285,-6142.9073771183303,-41230.98571075184,-20541.806449728356,null,-155327,-283877,-105647,-78023]
[359,{"$error":"#NAME?"},{"$error":"#NAME?"},{"$error":"#NAME?"},{"$error":"#NAME?"},null,{"$f":"NR_to_Cash!C$9","v":-155327},{"$f":"NR_to_Cash!D$9","v":-283877},{"$f":"NR_to_Cash!E$9","v":-105647},{"$f":"NR_to_Cash!F$9","v":-78023},null,359,-7827.9307596607159,-22220.268365200656,-24250.864135122501,-20364.194045768949,null,-155327,-283877,-105647,-78023]
[360,{"$error":"#NAME?"},{"$error":"#NAME?"},{"$error":"#NAME?"},{"$error":"#NAME?"},null,{"$f":"NR_to_Cash!C$9","v":-155327},{"$f":"NR_to_Cash!D$9","v":-283877},{"$f":"NR_to_Cash!E$9","v":-105647},{"$f":"NR_to_Cash!F$9","v":-78023},null,360,-21822.244729475187,6358.0608664338215,-18876.495526900697,-157.71388793801179,null,-155327,-283877,-105647,-78023]
[361,{"$error":"#NAME?"},{"$error":"#NAME?"},{"$error":"#NAME?"},{"$error":"#NAME?"},null,{"$f":"NR_to_Cash!C$9","v":-155327},{"$f":"NR_to_Cash!D$9","v":-283877},{"$f":"NR_to_Cash!E$9","v":-105647},{"$f":"NR_to_Cash!F$9","v":-78023},null,361,-2800.1677301471905,-15705.550757764666,-1511.4082372456,12598.503431778276,null,-155327,-283877,-105647,-78023]
[362,{"$error":"#NAME?"},{"$error":"#NAME?"},{"$error":"#NAME?"},{"$error":"#NAME?"},null,{"$f":"NR_to_Cash!C$9","v":-155327},{"$f":"NR_to_Cash!D$9","v":-283877},{"$f":"NR_to_Cash!E$9","v":-105647},{"$f":"NR_to_Cash!F$9","v":-78023},null,362,716.54007709356847,-28607.985646680667,-40568.892480393486,-29832.181494563261,null,-155327,-283877,-105647,-78023]
[363,{"$error":"#NAME?"},{"$error":"#NAME?"},{"$error":"#NAME?"},{"$error":"#NAME?"},null,{"$f":"NR_to_Cash!C$9","v":-155327},{"$f":"NR_to_Cash!D$9","v":-283877},{"$f":"NR_to_Cash!E$9","v":-105647},{"$f":"NR_to_Cash!F$9","v":-78023},null,363,-19342.450325975937,-254.34231457271238,-10302.282324984746,-29898.659123138907,null,-155327,-283877,-105647,-78023]
[364,{"$error":"#NAME?"},{"$error":"#NAME?"},{"$error":"#NAME?"},{"$error":"#NAME?"},null,{"$f":"NR_to_Cash!C$9","v":-155327},{"$f":"NR_to_Cash!D$9","v":-283877},{"$f":"NR_to_Cash!E$9","v":-105647},{"$f":"NR_to_Cash!F$9","v":-78023},null,364,-1197.7670887059533,-2926.0383374369899,-24421.91263404892,-6502.035345764155,null,-155327,-283877,-105647,-78023]
[365,{"$error":"#NAME?"},{"$error":"#NAME?"},{"$error":"#NAME?"},{"$error":"#NAME?"},null,{"$f":"NR_to_Cash!C$9","v":-155327},{"$f":"NR_to_Cash!D$9","v":-283877},{"$f":"NR_to_Cash!E$9","v":-105647},{"$f":"NR_to_Cash!F$9","v":-78023},null,365,-12810.514841749751,11571.838211224454,-686.62183377690303,-8449.4811933521778,null,-155327,-283877,-105647,-78023]
[366,{"$error":"#NAME?"},{"$error":"#NAME?"},{"$error":"#NAME?"},{"$error":"#NAME?"},null,{"$f":"NR_to_Cash!C$9","v":-155327},{"$f":"NR_to_Cash!D$9","v":-283877},{"$f":"NR_to_Cash!E$9","v":-105647},{"$f":"NR_to_Cash!F$9","v":-78023},null,366,-19185.576344913785,1930.184898120513,2597.2349100064439,6266.3129293533602,null,-155327,-283877,-105647,-78023]
[367,{"$error":"#NAME?"},{"$error":"#NAME?"},{"$error":"#NAME?"},{"$error":"#NAME?"},null,{"$f":"NR_to_Cash!C$9","v":-155327},{"$f":"NR_to_Cash!D$9","v":-283877},{"$f":"NR_to_Cash!E$9","v":-105647},{"$f":"NR_to_Cash!F$9","v":-78023},null,367,-19837.459314234089,-1011.9793081387786,-20517.83340481294,2227.4882133560268,null,-155327,-283877,-105647,-78023]
[368,{"$error":"#NAME?"},{"$error":"#NAME?"},{"$error":"#NAME?"},{"$error":"#NAME?"},null,{"$f":"NR_to_Cash!C$9","v":-155327},{"$f":"NR_to_Cash!D$9","v":-283877},{"$f":"NR_to_Cash!E$9","v":-105647},{"$f":"NR_to_Cash!F$9","v":-78023},null,368,-10035.342482298576,-1600.9093670112798,-15323.264442014432,-6745.9099924280663,null,-155327,-283877,-105647,-78023]
[369,{"$error":"#NAME?"},{"$error":"#NAME?"},{"$error":"#NAME?"},{"$error":"#NAME?"},null,{"$f":"NR_to_Cash!C$9","v":-155327},{"$f":"NR_to_Cash!D$9","v":-283877},{"$f":"NR_to_Cash!E$9","v":-105647},{"$f":"NR_to_Cash!F$9","v":-78023},null,369,-15713.434020770503,-2420.7544460574495,-17093.341093954994,8856.407430869438,null,-155327,-283877,-105647,-78023]
[370,{"$error":"#NAME?"},{"$error":"#NAME?"},{"$error":"#NAME?"},{"$error":"#NAME?"},null,{"$f":"NR_to_Cash!C$9","v":-155327},{"$f":"NR_to_Cash!D$9","v":-283877},{"$f":"NR_to_Cash!E$9","v":-105647},{"$f":"NR_to_Cash!F$9","v":-78023},null,370,-3143.2328287071905,4357.65062900066,2165.8856510872297,-11274.400943191538,null,-155327,-283877,-105647,-78023]
[371,{"$error":"#NAME?"},{"$error":"#NAME?"},{"$error":"#NAME?"},{"$error":"#NAME?"},null,{"$f":"NR_to_Cash!C$9","v":-155327},{"$f":"NR_to_Cash!D$9","v":-283877},{"$f":"NR_to_Cash!E$9","v":-105647},{"$f":"NR_to_Cash!F$9","v":-78023},null,371,-48565.583358133619,-14486.870465222126,-7078.2927919295516,-16663.434795079818,null,-155327,-283877,-105647,-78023]
[372,{"$error":"#NAME?"},{"$error":"#NAME?"},{"$error":"#NAME?"},{"$error":"#NAME?"},null,{"$f":"NR_to_Cash!C$9","v":-155327},{"$f":"NR_to_Cash!D$9","v":-283877},{"$f":"NR_to_Cash!E$9","v":-105647},{"$f":"NR_to_Cash!F$9","v":-78023},null,372,-44215.583348920969,2891.4199709180448,-1526.1200883483302,857.02518343009172,null,-155327,-283877,-105647,-78023]
[373,{"$error":"#NAME?"},{"$error":"#NAME?"},{"$error":"#NAME?"},{"$error":"#NAME?"},null,{"$f":"NR_to_Cash!C$9","v":-155327},{"$f":"NR_to_Cash!D$9","v":-283877},{"$f":"NR_to_Cash!E$9","v":-105647},{"$f":"NR_to_Cash!F$9","v":-78023},null,373,-8112.6185122258103,-15722.722513582798,-26407.729597899997,-17640.460670249391,null,-155327,-283877,-105647,-78023]
[374,{"$error":"#NAME?"},{"$error":"#NAME?"},{"$error":"#NAME?"},{"$error":"#NAME?"},null,{"$f":"NR_to_Cash!C$9","v":-155327},{"$f":"NR_to_Cash!D$9","v":-283877},{"$f":"NR_to_Cash!E$9","v":-105647},{"$f":"NR_to_Cash!F$9","v":-78023},null,374,-27602.504913304503,-15347.119588322295,-28962.785345768272,-361.79374827857714,null,-155327,-283877,-105647,-78023]
[375,{"$error":"#NAME?"},{"$error":"#NAME?"},{"$error":"#NAME?"},{"$error":"#NAME?"},null,{"$f":"NR_to_Cash!C$9","v":-155327},{"$f":"NR_to_Cash!D$9","v":-283877},{"$f":"NR_to_Cash!E$9","v":-105647},{"$f":"NR_to_Cash!F$9","v":-78023},null,375,969.94465903825835,-10831.509794842768,-18192.790685661712,-33646.635994579359,null,-155327,-283877,-105647,-78023]
[376,{"$error":"#NAME?"},{"$error":"#NAME?"},{"$error":"#NAME?"},{"$error":"#NAME?"},null,{"$f":"NR_to_Cash!C$9","v":-155327},{"$f":"NR_to_Cash!D$9","v":-283877},{"$f":"NR_to_Cash!E$9","v":-105647},{"$f":"NR_to_Cash!F$9","v":-78023},null,376,-8478.5792183407029,2872.1837830667414,-9927.8671252833992,-9854.3966129618748,null,-155327,-283877,-105647,-78023]
[377,{"$error":"#NAME?"},{"$error":"#NAME?"},{"$error":"#NAME?"},{"$error":"#NAME?"},null,{"$f":"NR_to_Cash!C$9","v":-155327},{"$f":"NR_to_Cash!D$9","v":-283877},{"$f":"NR_to_Cash!E$9","v":-105647},{"$f":"NR_to_Cash!F$9","v":-78023},null,377,-11289.084390245298,-16737.444065042786,-23915.512178033354,3121.5705192694177,null,-155327,-283877,-105647,-78023]
[378,{"$error":"#NAME?"},{"$error":"#NAME?"},{"$error":"#NAME?"},{"$error":"#NAME?"},null,{"$f":"NR_to_Cash!C$9","v":-155327},{"$f":"NR_to_Cash!D$9","v":-283877},{"$f":"NR_to_Cash!E$9","v":-105647},{"$f":"NR_to_Cash!F$9","v":-78023},null,378,-3329.8205771758694,-11952.08849651114,9665.0058617482955,24087.452938200029,null,-155327,-283877,-105647,-78023]
[379,{"$error":"#NAME?"},{"$error":"#NAME?"},{"$error":"#NAME?"},{"$error":"#NAME?"},null,{"$f":"NR_to_Cash!C$9","v":-155327},{"$f":"NR_to_Cash!D$9","v":-283877},{"$f":"NR_to_Cash!E$9","v":-105647},{"$f":"NR_to_Cash!F$9","v":-78023},null,379,-28277.758426824061,3763.5249525057748,-21408.788657878515,-13377.430438083138,null,-155327,-283877,-105647,-78023]
[380,{"$error":"#NAME?"},{"$error":"#NAME?"},{"$error":"#NAME?"},{"$error":"#NAME?"},null,{"$f":"NR_to_Cash!C$9","v":-155327},{"$f":"NR_to_Cash!D$9","v":-283877},{"$f":"NR_to_Cash!E$9","v":-105647},{"$f":"NR_to_Cash!F$9","v":-78023},null,380,-4654.8198835461353,-21517.404579548165,-13563.402158043758,-21159.995031200415,null,-155327,-283877,-105647,-78023]
[381,{"$error":"#NAME?"},{"$error":"#NAME?"},{"$error":"#NAME?"},{"$error":"#NAME?"},null,{"$f":"NR_to_Cash!C$9","v":-155327},{"$f":"NR_to_Cash!D$9","v":-283877},{"$f":"NR_to_Cash!E$9","v":-105647},{"$f":"NR_to_Cash!F$9","v":-78023},null,381,-32673.893853154164,-13800.475808063209,-12152.876901583131,-2604.8176498279008,null,-155327,-283877,-105647,-78023]
[382,{"$error":"#NAME?"},{"$error":"#NAME?"},{"$error":"#NAME?"},{"$error":"#NAME?"},null,{"$f":"NR_to_Cash!C$9","v":-155327},{"$f":"NR_to_Cash!D$9","v":-283877},{"$f":"NR_to_Cash!E$9","v":-105647},{"$f":"NR_to_Cash!F$9","v":-78023},null,382,-28252.954819710911,-15180.204763611908,-7433.1698062458727,-8272.7567225694474,null,-155327,-283877,-105647,-78023]
[383,{"$error":"#NAME?"},{"$error":"#NAME?"},{"$error":"#NAME?"},{"$error":"#NAME?"},null,{"$f":"NR_to_Cash!C$9","v":-155327},{"$f":"NR_to_Cash!D$9","v":-283877},{"$f":"NR_to_Cash!E$9","v":-105647},{"$f":"NR_to_Cash!F$9","v":-78023},null,383,-5365.5891199268863,-18913.867579919126,-21904.156281592652,12228.956459113258,null,-155327,-283877,-105647,-78023]
[384,{"$error":"#NAME?"},{"$error":"#NAME?"},{"$error":"#NAME?"},{"$error":"#NAME?"},null,{"$f":"NR_to_Cash!C$9","v":-155327},{"$f":"NR_to_Cash!D$9","v":-283877},{"$f":"NR_to_Cash!E$9","v":-105647},{"$f":"NR_to_Cash!F$9","v":-78023},null,384,-32281.563144081352,9511.5505959381389,-15061.480556670378,-4955.3118196653686,null,-155327,-283877,-105647,-78023]
[385,{"$error":"#NAME?"},{"$error":"#NAME?"},{"$error":"#NAME?"},{"$error":"#NAME?"},null,{"$f":"NR_to_Cash!C$9","v":-155327},{"$f":"NR_to_Cash!D$9","v":-283877},{"$f":"NR_to_Cash!E$9","v":-105647},{"$f":"NR_to_Cash!F$9","v":-78023},null,385,-15489.093419535799,-43.144680192156741,-6802.5168532700663,-20743.700539614812,null,-155327,-283877,-105647,-78023]
[386,{"$error":"#NAME?"},{"$error":"#NAME?"},{"$error":"#NAME?"},{"$error":"#NAME?"},null,{"$f":"NR_to_Cash!C$9","v":-155327},{"$f":"NR_to_Cash!D$9","v":-283877},{"$f":"NR_to_Cash!E$9","v":-105647},{"$f":"NR_to_Cash!F$9","v":-78023},null,386,-19253.856566172344,2218.8698213954349,-14115.294389294233,7398.5462326284542,null,-155327,-283877,-105647,-78023]
[387,{"$error":"#NAME?"},{"$error":"#NAME?"},{"$error":"#NAME?"},{"$error":"#NAME?"},null,{"$f":"NR_to_Cash!C$9","v":-155327},{"$f":"NR_to_Cash!D$9","v":-283877},{"$f":"NR_to_Cash!E$9","v":-105647},{"$f":"NR_to_Cash!F$9","v":-78023},null,387,-7724.6042248646409,-23114.945650819023,-21213.041485201298,-14364.073570553721,null,-155327,-283877,-105647,-78023]
[388,{"$error":"#NAME?"},{"$error":"#NAME?"},{"$error":"#NAME?"},{"$error":"#NAME?"},null,{"$f":"NR_to_Cash!C$9","v":-155327},{"$f":"NR_to_Cash!D$9","v":-283877},{"$f":"NR_to_Cash!E$9","v":-105647},{"$f":"NR_to_Cash!F$9","v":-78023},null,388,-14035.987130747206,-19970.935599261516,-7882.0164957798752,-1380.0565422466939,null,-155327,-283877,-105647,-78023]
[389,{"$error":"#NAME?"},{"$error":"#NAME?"},{"$error":"#NAME?"},{"$error":"#NAME?"},null,{"$f":"NR_to_Cash!C$9","v":-155327},{"$f":"NR_to_Cash!D$9","v":-283877},{"$f":"NR_to_Cash!E$9","v":-105647},{"$f":"NR_to_Cash!F$9","v":-78023},null,389,-27443.964224575335,-24917.076672827083,-864.19854181641699,-22486.885727118952,null,-155327,-283877,-105647,-78023]
[390,{"$error":"#NAME?"},{"$error":"#NAME?"},{"$error":"#NAME?"},{"$error":"#NAME?"},null,{"$f":"NR_to_Cash!C$9","v":-155327},{"$f":"NR_to_Cash!D$9","v":-283877},{"$f":"NR_to_Cash!E$9","v":-105647},{"$f":"NR_to_Cash!F$9","v":-78023},null,390,-4531.7893333001011,-10123.197564907967,-14301.020301907905,-42189.084456894125,null,-155327,-283877,-105647,-78023]
[391,{"$error":"#NAME?"},{"$error":"#NAME?"},{"$error":"#NAME?"},{"$error":"#NAME?"},null,{"$f":"NR_to_Cash!C$9","v":-155327},{"$f":"NR_to_Cash!D$9","v":-283877},{"$f":"NR_to_Cash!E$9","v":-105647},{"$f":"NR_to_Cash!F$9","v":-78023},null,391,-8464.1977707534152,-3427.5113170342929,-16145.150050190998,-32563.768244923762,null,-155327,-283877,-105647,-78023]
[392,{"$error":"#NAME?"},{"$error":"#NAME?"},{"$error":"#NAME?"},{"$error":"#NAME?"},null,{"$f":"NR_to_Cash!C$9","v":-155327},{"$f":"NR_to_Cash!D$9","v":-283877},{"$f":"NR_to_Cash!E$9","v":-105647},{"$f":"NR_to_Cash!F$9","v":-78023},null,392,-10378.612484403113,-3337.5905484448199,-41966.089257814237,-23880.141849704927,null,-155327,-283877,-105647,-78023]
[393,{"$error":"#NAME?"},{"$error":"#NAME?"},{"$error":"#NAME?"},{"$error":"#NAME?"},null,{"$f":"NR_to_Cash!C$9","v":-155327},{"$f":"NR_to_Cash!D$9","v":-283877},{"$f":"NR_to_Cash!E$9","v":-105647},{"$f":"NR_to_Cash!F$9","v":-78023},null,393,-14489.198720173261,-6326.5838934135163,-15399.027801539336,-24748.053331778356,null,-155327,-283877,-105647,-78023]
[394,{"$error":"#NAME?"},{"$error":"#NAME?"},{"$error":"#NAME?"},{"$error":"#NAME?"},null,{"$f":"NR_to_Cash!C$9","v":-155327},{"$f":"NR_to_Cash!D$9","v":-283877},{"$f":"NR_to_Cash!E$9","v":-105647},{"$f":"NR_to_Cash!F$9","v":-78023},null,394,6841.6848576397961,-2578.8947102988727,-10459.950716075418,-25598.981692345722,null,-155327,-283877,-105647,-78023]
[395,{"$error":"#NAME?"},{"$error":"#NAME?"},{"$error":"#NAME?"},{"$error":"#NAME?"},null,{"$f":"NR_to_Cash!C$9","v":-155327},{"$f":"NR_to_Cash!D$9","v":-283877},{"$f":"NR_to_Cash!E$9","v":-105647},{"$f":"NR_to_Cash!F$9","v":-78023},null,395,-16645.985276910902,-15092.462507784898,-6077.9982118733369,-31982.273538052101,null,-155327,-283877,-105647,-78023]
[396,{"$error":"#NAME?"},{"$error":"#NAME?"},{"$error":"#NAME?"},{"$error":"#NAME?"},null,{"$f":"NR_to_Cash!C$9","v":-155327},{"$f":"NR_to_Cash!D$9","v":-283877},{"$f":"NR_to_Cash!E$9","v":-105647},{"$f":"NR_to_Cash!F$9","v":-78023},null,396,9.2750901626517539,-12070.340423724281,-24429.265438622588,7345.516902960976,null,-155327,-283877,-105647,-78023]
[397,{"$error":"#NAME?"},{"$error":"#NAME?"},{"$error":"#NAME?"},{"$error":"#NAME?"},null,{"$f":"NR_to_Cash!C$9","v":-155327},{"$f":"NR_to_Cash!D$9","v":-283877},{"$f":"NR_to_Cash!E$9","v":-105647},{"$f":"NR_to_Cash!F$9","v":-78023},null,397,-10638.067217053102,6365.0525460604895,-23927.928571005148,1352.9880582838057,null,-155327,-283877,-105647,-78023]
[398,{"$error":"#NAME?"},{"$error":"#NAME?"},{"$error":"#NAME?"},{"$error":"#NAME?"},null,{"$f":"NR_to_Cash!C$9","v":-155327},{"$f":"NR_to_Cash!D$9","v":-283877},{"$f":"NR_to_Cash!E$9","v":-105647},{"$f":"NR_to_Cash!F$9","v":-78023},null,398,-17694.569588495317,-5000.5052745854337,-14834.672280819033,-13089.703553028165,null,-155327,-283877,-105647,-78023]
[399,{"$error":"#NAME?"},{"$error":"#NAME?"},{"$error":"#NAME?"},{"$error":"#NAME?"},null,{"$f":"NR_to_Cash!C$9","v":-155327},{"$f":"NR_to_Cash!D$9","v":-283877},{"$f":"NR_to_Cash!E$9","v":-105647},{"$f":"NR_to_Cash!F$9","v":-78023},null,399,-12622.250725033562,-23308.165706136158,6201.516700796109,191.19243459158622,null,-155327,-283877,-105647,-78023]
[400,{"$error":"#NAME?"},{"$error":"#NAME?"},{"$error":"#NAME?"},{"$error":"#NAME?"},null,{"$f":"NR_to_Cash!C$9","v":-155327},{"$f":"NR_to_Cash!D$9","v":-283877},{"$f":"NR_to_Cash!E$9","v":-105647},{"$f":"NR_to_Cash!F$9","v":-78023},null,400,-12435.858625229372,-5637.6451477125947,-3083.8520905171999,11361.947449080972,null,-155327,-283877,-105647,-78023]
[401,{"$error":"#NAME?"},{"$error":"#NAME?"},{"$error":"#NAME?"},{"$error":"#NAME?"},null,{"$f":"NR_to_Cash!C$9","v":-155327},{"$f":"NR_to_Cash!D$9","v":-283877},{"$f":"NR_to_Cash!E$9","v":-105647},{"$f":"NR_to_Cash!F$9","v":-78023},null,401,-26276.344265393891,417.97888368645494,2691.4952505172882,-7164.0622672101827,null,-155327,-283877,-105647,-78023]
[402,{"$error":"#NAME?"},{"$error":"#NAME?"},{"$error":"#NAME?"},{"$error":"#NAME?"},null,{"$f":"NR_to_Cash!C$9","v":-155327},{"$f":"NR_to_Cash!D$9","v":-283877},{"$f":"NR_to_Cash!E$9","v":-105647},{"$f":"NR_to_Cash!F$9","v":-78023},null,402,-9688.3325219627623,-1397.4610827741792,15435.255922474444,3631.37409806091,null,-155327,-283877,-105647,-78023]
[403,{"$error":"#NAME?"},{"$error":"#NAME?"},{"$error":"#NAME?"},{"$error":"#NAME?"},null,{"$f":"NR_to_Cash!C$9","v":-155327},{"$f":"NR_to_Cash!D$9","v":-283877},{"$f":"NR_to_Cash!E$9","v":-105647},{"$f":"NR_to_Cash!F$9","v":-78023},null,403,-10855.252980301284,-22363.152461797163,1323.9557131288877,17633.220928455456,null,-155327,-283877,-105647,-78023]
[404,{"$error":"#NAME?"},{"$error":"#NAME?"},{"$error":"#NAME?"},{"$error":"#NAME?"},null,{"$f":"NR_to_Cash!C$9","v":-155327},{"$f":"NR_to_Cash!D$9","v":-283877},{"$f":"NR_to_Cash!E$9","v":-105647},{"$f":"NR_to_Cash!F$9","v":-78023},null,404,-18896.607976691044,-469.40327973489241,-35068.451336925136,-27218.886012553448,null,-155327,-283877,-105647,-78023]
[405,{"$error":"#NAME?"},{"$error":"#NAME?"},{"$error":"#NAME?"},{"$error":"#NAME?"},null,{"$f":"NR_to_Cash!C$9","v":-155327},{"$f":"NR_to_Cash!D$9","v":-283877},{"$f":"NR_to_Cash!E$9","v":-105647},{"$f":"NR_to_Cash!F$9","v":-78023},null,405,-34132.215183470784,-24861.749170576895,-7247.3895562067046,-14623.096722622013,null,-155327,-283877,-105647,-78023]
[406,{"$error":"#NAME?"},{"$error":"#NAME?"},{"$error":"#NAME?"},{"$error":"#NAME?"},null,{"$f":"NR_to_Cash!C$9","v":-155327},{"$f":"NR_to_Cash!D$9","v":-283877},{"$f":"NR_to_Cash!E$9","v":-105647},{"$f":"NR_to_Cash!F$9","v":-78023},null,406,-5440.5209202605856,-1399.074194040561,-9308.7214664104104,-22390.975278870395,null,-155327,-283877,-105647,-78023]
[407,{"$error":"#NAME?"},{"$error":"#NAME?"},{"$error":"#NAME?"},{"$error":"#NAME?"},null,{"$f":"NR_to_Cash!C$9","v":-155327},{"$f":"NR_to_Cash!D$9","v":-283877},{"$f":"NR_to_Cash!E$9","v":-105647},{"$f":"NR_to_Cash!F$9","v":-78023},null,407,-20920.311602826652,-21972.098858641511,14363.457010591237,-50126.548709236689,null,-155327,-283877,-105647,-78023]
[408,{"$error":"#NAME?"},{"$error":"#NAME?"},{"$error":"#NAME?"},{"$error":"#NAME?"},null,{"$f":"NR_to_Cash!C$9","v":-155327},{"$f":"NR_to_Cash!D$9","v":-283877},{"$f":"NR_to_Cash!E$9","v":-105647},{"$f":"NR_to_Cash!F$9","v":-78023},null,408,-26423.867838950078,-19897.201195748206,-18084.524648273578,-9992.9303343789798,null,-155327,-283877,-105647,-78023]
[409,{"$error":"#NAME?"},{"$error":"#NAME?"},{"$error":"#NAME?"},{"$error":"#NAME?"},null,{"$f":"NR_to_Cash!C$9","v":-155327},{"$f":"NR_to_Cash!D$9","v":-283877},{"$f":"NR_to_Cash!E$9","v":-105647},{"$f":"NR_to_Cash!F$9","v":-78023},null,409,-23756.981209170033,-45993.887795878079,-22509.495893980569,3095.1663047194388,null,-155327,-283877,-105647,-78023]
[410,{"$error":"#NAME?"},{"$error":"#NAME?"},{"$error":"#NAME?"},{"$error":"#NAME?"},null,{"$f":"NR_to_Cash!C$9","v":-155327},{"$f":"NR_to_Cash!D$9","v":-283877},{"$f":"NR_to_Cash!E$9","v":-105647},{"$f":"NR_to_Cash!F$9","v":-78023},null,410,-27545.949970592053,1212.2084602672726,5673.4071474070824,8004.7446204268226,null,-155327,-283877,-105647,-78023]
[411,{"$error":"#NAME?"},{"$error":"#NAME?"},{"$error":"#NAME?"},{"$error":"#NAME?"},null,{"$f":"NR_to_Cash!C$9","v":-155327},{"$f":"NR_to_Cash!D$9","v":-283877},{"$f":"NR_to_Cash!E$9","v":-105647},{"$f":"NR_to_Cash!F$9","v":-78023},null,411,-8427.6531709287956,-13384.41870425645,-20053.110440292643,-246.78981762932477,null,-155327,-283877,-105647,-78023]
[412,{"$error":"#NAME?"},{"$error":"#NAME?"},{"$error":"#NAME?"},{"$error":"#NAME?"},null,{"$f":"NR_to_Cash!C$9","v":-155327},{"$f":"NR_to_Cash!D$9","v":-283877},{"$f":"NR_to_Cash!E$9","v":-105647},{"$f":"NR_to_Cash!F$9","v":-78023},null,412,-14358.806636264762,12852.749152428471,-5122.3602203223081,8262.4239490196687,null,-155327,-283877,-105647,-78023]
[413,{"$error":"#NAME?"},{"$error":"#NAME?"},{"$error":"#NAME?"},{"$error":"#NAME?"},null,{"$f":"NR_to_Cash!C$9","v":-155327},{"$f":"NR_to_Cash!D$9","v":-283877},{"$f":"NR_to_Cash!E$9","v":-105647},{"$f":"NR_to_Cash!F$9","v":-78023},null,413,-14412.86504854972,-754.39014503468343,-15995.947278779891,6968.868063110931,null,-155327,-283877,-105647,-78023]
[414,{"$error":"#NAME?"},{"$error":"#NAME?"},{"$error":"#NAME?"},{"$error":"#NAME?"},null,{"$f":"NR_to_Cash!C$9","v":-155327},{"$f":"NR_to_Cash!D$9","v":-283877},{"$f":"NR_to_Cash!E$9","v":-105647},{"$f":"NR_to_Cash!F$9","v":-78023},null,414,-3280.6446129058882,-6817.6508508719289,-8838.2083760676433,-20243.24155704803,null,-155327,-283877,-105647,-78023]
[415,{"$error":"#NAME?"},{"$error":"#NAME?"},{"$error":"#NAME?"},{"$error":"#NAME?"},null,{"$f":"NR_to_Cash!C$9","v":-155327},{"$f":"NR_to_Cash!D$9","v":-283877},{"$f":"NR_to_Cash!E$9","v":-105647},{"$f":"NR_to_Cash!F$9","v":-78023},null,415,-12435.919298477571,-20374.427300243733,-16369.871290046895,-32212.795306229258,null,-155327,-283877,-105647,-78023]
[416,{"$error":"#NAME?"},{"$error":"#NAME?"},{"$error":"#NAME?"},{"$error":"#NAME?"},null,{"$f":"NR_to_Cash!C$9","v":-155327},{"$f":"NR_to_Cash!D$9","v":-283877},{"$f":"NR_to_Cash!E$9","v":-105647},{"$f":"NR_to_Cash!F$9","v":-78023},null,416,-3036.1986847601411,-4601.9196864431469,-3481.315250763013,-12636.261649601201,null,-155327,-283877,-105647,-78023]
[417,{"$error":"#NAME?"},{"$error":"#NAME?"},{"$error":"#NAME?"},{"$error":"#NAME?"},null,{"$f":"NR_to_Cash!C$9","v":-155327},{"$f":"NR_to_Cash!D$9","v":-283877},{"$f":"NR_to_Cash!E$9","v":-105647},{"$f":"NR_to_Cash!F$9","v":-78023},null,417,-20588.951604223701,-19075.557816499298,-338.41087217466492,8931.2090083000421,null,-155327,-283877,-105647,-78023]
[418,{"$error":"#NAME?"},{"$error":"#NAME?"},{"$error":"#NAME?"},{"$error":"#NAME?"},null,{"$f":"NR_to_Cash!C$9","v":-155327},{"$f":"NR_to_Cash!D$9","v":-283877},{"$f":"NR_to_Cash!E$9","v":-105647},{"$f":"NR_to_Cash!F$9","v":-78023},null,418,-4794.3429207366889,-30283.088462311702,3614.2425246259186,8725.709714531491,null,-155327,-283877,-105647,-78023]
[419,{"$error":"#NAME?"},{"$error":"#NAME?"},{"$error":"#NAME?"},{"$error":"#NAME?"},null,{"$f":"NR_to_Cash!C$9","v":-155327},{"$f":"NR_to_Cash!D$9","v":-283877},{"$f":"NR_to_Cash!E$9","v":-105647},{"$f":"NR_to_Cash!F$9","v":-78023},null,419,-22902.140639795922,-5290.293942239743,-16780.420652409626,-12559.90946276881,null,-155327,-283877,-105647,-78023]
[420,{"$error":"#NAME?"},{"$error":"#NAME?"},{"$error":"#NAME?"},{"$error":"#NAME?"},null,{"$f":"NR_to_Cash!C$9","v":-155327},{"$f":"NR_to_Cash!D$9","v":-283877},{"$f":"NR_to_Cash!E$9","v":-105647},{"$f":"NR_to_Cash!F$9","v":-78023},null,420,2400.6825029308743,-20673.954638408879,-12658.336716236343,-15183.490528817372,null,-155327,-283877,-105647,-78023]
[421,{"$error":"#NAME?"},{"$error":"#NAME?"},{"$error":"#NAME?"},{"$error":"#NAME?"},null,{"$f":"NR_to_Cash!C$9","v":-155327},{"$f":"NR_to_Cash!D$9","v":-283877},{"$f":"NR_to_Cash!E$9","v":-105647},{"$f":"NR_to_Cash!F$9","v":-78023},null,421,-20830.772443664519,-2639.1198136673638,-8945.6846080705709,-2853.7154093587324,null,-155327,-283877,-105647,-78023]
[422,{"$error":"#NAME?"},{"$error":"#NAME?"},{"$error":"#NAME?"},{"$error":"#NAME?"},null,{"$f":"NR_to_Cash!C$9","v":-155327},{"$f":"NR_to_Cash!D$9","v":-283877},{"$f":"NR_to_Cash!E$9","v":-105647},{"$f":"NR_to_Cash!F$9","v":-78023},null,422,-17639.957125327637,-12134.750806930575,-26545.914742106797,-15961.759324880975,null,-155327,-283877,-105647,-78023]
[423,{"$error":"#NAME?"},{"$error":"#NAME?"},{"$error":"#NAME?"},{"$error":"#NAME?"},null,{"$f":"NR_to_Cash!C$9","v":-155327},{"$f":"NR_to_Cash!D$9","v":-283877},{"$f":"NR_to_Cash!E$9","v":-105647},{"$f":"NR_to_Cash!F$9","v":-78023},null,423,-26697.4808747848,-12753.841964811592,3787.0514198397304,-8673.1089517579039,null,-155327,-283877,-105647,-78023]
[424,{"$error":"#NAME?"},{"$error":"#NAME?"},{"$error":"#NAME?"},{"$error":"#NAME?"},null,{"$f":"NR_to_Cash!C$9","v":-155327},{"$f":"NR_to_Cash!D$9","v":-283877},{"$f":"NR_to_Cash!E$9","v":-105647},{"$f":"NR_to_Cash!F$9","v":-78023},null,424,-18085.598677084927,-18110.13811520172,-12211.335918489385,6558.6879432078995,null,-155327,-283877,-105647,-78023]
[425,{"$error":"#NAME?"},{"$error":"#NAME?"},{"$error":"#NAME?"},{"$error":"#NAME?"},null,{"$f":"NR_to_Cash!C$9","v":-155327},{"$f":"NR_to_Cash!D$9","v":-283877},{"$f":"NR_to_Cash!E$9","v":-105647},{"$f":"NR_to_Cash!F$9","v":-78023},null,425,-9926.2420893164817,-24063.467662850653,-12021.708884639465,13281.852302234221,null,-155327,-283877,-105647,-78023]
[426,{"$error":"#NAME?"},{"$error":"#NAME?"},{"$error":"#NAME?"},{"$error":"#NAME?"},null,{"$f":"NR_to_Cash!C$9","v":-155327},{"$f":"NR_to_Cash!D$9","v":-283877},{"$f":"NR_to_Cash!E$9","v":-105647},{"$f":"NR_to_Cash!F$9","v":-78023},null,426,-20927.819300914787,-11423.635405691215,20028.566150505001,-27100.95541360377,null,-155327,-283877,-105647,-78023]
[427,{"$error":"#NAME?"},{"$error":"#NAME?"},{"$error":"#NAME?"},{"$error":"#NAME?"},null,{"$f":"NR_to_Cash!C$9","v":-155327},{"$f":"NR_to_Cash!D$9","v":-283877},{"$f":"NR_to_Cash!E$9","v":-105647},{"$f":"NR_to_Cash!F$9","v":-78023},null,427,-14117.675482244354,-9583.5782765666463,-1411.4820148674598,-25537.929161736996,null,-155327,-283877,-105647,-78023]
[428,{"$error":"#NAME?"},{"$error":"#NAME?"},{"$error":"#NAME?"},{"$error":"#NAME?"},null,{"$f":"NR_to_Cash!C$9","v":-155327},{"$f":"NR_to_Cash!D$9","v":-283877},{"$f":"NR_to_Cash!E$9","v":-105647},{"$f":"NR_to_Cash!F$9","v":-78023},null,428,-10484.623164397564,-8514.6099086967806,-18908.781623695151,-24580.557774249508,null,-155327,-283877,-105647,-78023]
[429,{"$error":"#NAME?"},{"$error":"#NAME?"},{"$error":"#NAME?"},{"$error":"#NAME?"},null,{"$f":"NR_to_Cash!C$9","v":-155327},{"$f":"NR_to_Cash!D$9","v":-283877},{"$f":"NR_to_Cash!E$9","v":-105647},{"$f":"NR_to_Cash!F$9","v":-78023},null,429,-4864.9575407119246,-20600.328138077752,7082.711639732257,-6676.4586516858963,null,-155327,-283877,-105647,-78023]
[430,{"$error":"#NAME?"},{"$error":"#NAME?"},{"$error":"#NAME?"},{"$error":"#NAME?"},null,{"$f":"NR_to_Cash!C$9","v":-155327},{"$f":"NR_to_Cash!D$9","v":-283877},{"$f":"NR_to_Cash!E$9","v":-105647},{"$f":"NR_to_Cash!F$9","v":-78023},null,430,-825.12082218478326,882.64587372029951,-15619.226404029088,-30478.17052835341,null,-155327,-283877,-105647,-78023]
[431,{"$error":"#NAME?"},{"$error":"#NAME?"},{"$error":"#NAME?"},{"$error":"#NAME?"},null,{"$f":"NR_to_Cash!C$9","v":-155327},{"$f":"NR_to_Cash!D$9","v":-283877},{"$f":"NR_to_Cash!E$9","v":-105647},{"$f":"NR_to_Cash!F$9","v":-78023},null,431,-13062.810888483978,-633.39666262801688,5408.5471183353129,-21406.07616137197,null,-155327,-283877,-105647,-78023]
[432,{"$error":"#NAME?"},{"$error":"#NAME?"},{"$error":"#NAME?"},{"$error":"#NAME?"},null,{"$f":"NR_to_Cash!C$9","v":-155327},{"$f":"NR_to_Cash!D$9","v":-283877},{"$f":"NR_to_Cash!E$9","v":-105647},{"$f":"NR_to_Cash!F$9","v":-78023},null,432,4530.0965980640667,-27242.062488942393,10967.088015448813,-18941.631203923604,null,-155327,-283877,-105647,-78023]
[433,{"$error":"#NAME?"},{"$error":"#NAME?"},{"$error":"#NAME?"},{"$error":"#NAME?"},null,{"$f":"NR_to_Cash!C$9","v":-155327},{"$f":"NR_to_Cash!D$9","v":-283877},{"$f":"NR_to_Cash!E$9","v":-105647},{"$f":"NR_to_Cash!F$9","v":-78023},null,433,-9731.4540926315822,-25671.157574167064,-5662.8687719516647,-23479.867020539881,null,-155327,-283877,-105647,-78023]
[434,{"$error":"#NAME?"},{"$error":"#NAME?"},{"$error":"#NAME?"},{"$error":"#NAME?"},null,{"$f":"NR_to_Cash!C$9","v":-155327},{"$f":"NR_to_Cash!D$9","v":-283877},{"$f":"NR_to_Cash!E$9","v":-105647},{"$f":"NR_to_Cash!F$9","v":-78023},null,434,-11210.639155364246,-10656.338777357518,-29040.86445164488,-27704.020958721394,null,-155327,-283877,-105647,-78023]
[435,{"$error":"#NAME?"},{"$error":"#NAME?"},{"$error":"#NAME?"},{"$error":"#NAME?"},null,{"$f":"NR_to_Cash!C$9","v":-155327},{"$f":"NR_to_Cash!D$9","v":-283877},{"$f":"NR_to_Cash!E$9","v":-105647},{"$f":"NR_to_Cash!F$9","v":-78023},null,435,-20335.383849223406,-15862.699956719556,1112.5713960817466,-26234.773766185564,null,-155327,-283877,-105647,-78023]
[436,{"$error":"#NAME?"},{"$error":"#NAME?"},{"$error":"#NAME?"},{"$error":"#NAME?"},null,{"$f":"NR_to_Cash!C$9","v":-155327},{"$f":"NR_to_Cash!D$9","v":-283877},{"$f":"NR_to_Cash!E$9","v":-105647},{"$f":"NR_to_Cash!F$9","v":-78023},null,436,6297.923558047316,12031.398994598725,-4529.1073899663916,-5037.8944539233999,null,-155327,-283877,-105647,-78023]
[437,{"$error":"#NAME?"},{"$error":"#NAME?"},{"$error":"#NAME?"},{"$error":"#NAME?"},null,{"$f":"NR_to_Cash!C$9","v":-155327},{"$f":"NR_to_Cash!D$9","v":-283877},{"$f":"NR_to_Cash!E$9","v":-105647},{"$f":"NR_to_Cash!F$9","v":-78023},null,437,-10408.50275216109,-9777.6582556326739,-25618.62801240636,-28078.184256092653,null,-155327,-283877,-105647,-78023]
[438,{"$error":"#NAME?"},{"$error":"#NAME?"},{"$error":"#NAME?"},{"$error":"#NAME?"},null,{"$f":"NR_to_Cash!C$9","v":-155327},{"$f":"NR_to_Cash!D$9","v":-283877},{"$f":"NR_to_Cash!E$9","v":-105647},{"$f":"NR_to_Cash!F$9","v":-78023},null,438,-17212.051802000336,-15199.559994283496,-8160.3983371505683,-20291.388291648629,null,-155327,-283877,-105647,-78023]
[439,{"$error":"#NAME?"},{"$error":"#NAME?"},{"$error":"#NAME?"},{"$error":"#NAME?"},null,{"$f":"NR_to_Cash!C$9","v":-155327},{"$f":"NR_to_Cash!D$9","v":-283877},{"$f":"NR_to_Cash!E$9","v":-105647},{"$f":"NR_to_Cash!F$9","v":-78023},null,439,-18771.160246226809,-14307.006864613262,-24308.451553344752,-15585.416644135203,null,-155327,-283877,-105647,-78023]
[440,{"$error":"#NAME?"},{"$error":"#NAME?"},{"$error":"#NAME?"},{"$error":"#NAME?"},null,{"$f":"NR_to_Cash!C$9","v":-155327},{"$f":"NR_to_Cash!D$9","v":-283877},{"$f":"NR_to_Cash!E$9","v":-105647},{"$f":"NR_to_Cash!F$9","v":-78023},null,440,-15342.569712627059,-25187.550642048518,-14439.044569352211,3313.5073764922045,null,-155327,-283877,-105647,-78023]
[441,{"$error":"#NAME?"},{"$error":"#NAME?"},{"$error":"#NAME?"},{"$error":"#NAME?"},null,{"$f":"NR_to_Cash!C$9","v":-155327},{"$f":"NR_to_Cash!D$9","v":-283877},{"$f":"NR_to_Cash!E$9","v":-105647},{"$f":"NR_to_Cash!F$9","v":-78023},null,441,-15209.552495496988,-19146.86290471836,-26865.326473802816,-31073.392998806259,null,-155327,-283877,-105647,-78023]
[442,{"$error":"#NAME?"},{"$error":"#NAME?"},{"$error":"#NAME?"},{"$error":"#NAME?"},null,{"$f":"NR_to_Cash!C$9","v":-155327},{"$f":"NR_to_Cash!D$9","v":-283877},{"$f":"NR_to_Cash!E$9","v":-105647},{"$f":"NR_to_Cash!F$9","v":-78023},null,442,-8885.8158535279254,-2729.7082261184851,-9084.1055107732245,-12381.905012153167,null,-155327,-283877,-105647,-78023]
[443,{"$error":"#NAME?"},{"$error":"#NAME?"},{"$error":"#NAME?"},{"$error":"#NAME?"},null,{"$f":"NR_to_Cash!C$9","v":-155327},{"$f":"NR_to_Cash!D$9","v":-283877},{"$f":"NR_to_Cash!E$9","v":-105647},{"$f":"NR_to_Cash!F$9","v":-78023},null,443,-1359.3011959978251,-26055.844064408404,-27975.615402442367,-393.54353950520726,null,-155327,-283877,-105647,-78023]
[444,{"$error":"#NAME?"},{"$error":"#NAME?"},{"$error":"#NAME?"},{"$error":"#NAME?"},null,{"$f":"NR_to_Cash!C$9","v":-155327},{"$f":"NR_to_Cash!D$9","v":-283877},{"$f":"NR_to_Cash!E$9","v":-105647},{"$f":"NR_to_Cash!F$9","v":-78023},null,444,-867.5109133252854,-10204.961717173732,-33813.588365468779,17350.894841978192,null,-155327,-283877,-105647,-78023]
[445,{"$error":"#NAME?"},{"$error":"#NAME?"},{"$error":"#NAME?"},{"$error":"#NAME?"},null,{"$f":"NR_to_Cash!C$9","v":-155327},{"$f":"NR_to_Cash!D$9","v":-283877},{"$f":"NR_to_Cash!E$9","v":-105647},{"$f":"NR_to_Cash!F$9","v":-78023},null,445,-21519.775152453549,-6161.1070273767345,-19723.984215893157,8930.4166524850079,null,-155327,-283877,-105647,-78023]
[446,{"$error":"#NAME?"},{"$error":"#NAME?"},{"$error":"#NAME?"},{"$error":"#NAME?"},null,{"$f":"NR_to_Cash!C$9","v":-155327},{"$f":"NR_to_Cash!D$9","v":-283877},{"$f":"NR_to_Cash!E$9","v":-105647},{"$f":"NR_to_Cash!F$9","v":-78023},null,446,-21913.152090228246,-26236.389830960477,14823.311611290595,5302.9020264613428,null,-155327,-283877,-105647,-78023]
[447,{"$error":"#NAME?"},{"$error":"#NAME?"},{"$error":"#NAME?"},{"$error":"#NAME?"},null,{"$f":"NR_to_Cash!C$9","v":-155327},{"$f":"NR_to_Cash!D$9","v":-283877},{"$f":"NR_to_Cash!E$9","v":-105647},{"$f":"NR_to_Cash!F$9","v":-78023},null,447,-10022.929837633772,-30833.130826883724,-22197.038182747026,-10016.707967264458,null,-155327,-283877,-105647,-78023]
[448,{"$error":"#NAME?"},{"$error":"#NAME?"},{"$error":"#NAME?"},{"$error":"#NAME?"},null,{"$f":"NR_to_Cash!C$9","v":-155327},{"$f":"NR_to_Cash!D$9","v":-283877},{"$f":"NR_to_Cash!E$9","v":-105647},{"$f":"NR_to_Cash!F$9","v":-78023},null,448,-4175.6808210730769,-8504.3979055787731,-5397.7990611028727,4516.2010590576328,null,-155327,-283877,-105647,-78023]
[449,{"$error":"#NAME?"},{"$error":"#NAME?"},{"$error":"#NAME?"},{"$error":"#NAME?"},null,{"$f":"NR_to_Cash!C$9","v":-155327},{"$f":"NR_to_Cash!D$9","v":-283877},{"$f":"NR_to_Cash!E$9","v":-105647},{"$f":"NR_to_Cash!F$9","v":-78023},null,449,-13549.502264605198,-5673.781478603908,-22838.528410415256,20462.029021600181,null,-155327,-283877,-105647,-78023]
[450,{"$error":"#NAME?"},{"$error":"#NAME?"},{"$error":"#NAME?"},{"$error":"#NAME?"},null,{"$f":"NR_to_Cash!C$9","v":-155327},{"$f":"NR_to_Cash!D$9","v":-283877},{"$f":"NR_to_Cash!E$9","v":-105647},{"$f":"NR_to_Cash!F$9","v":-78023},null,450,-418.14091917473434,-20146.360878746149,-12312.559684763659,-22162.016781457423,null,-155327,-283877,-105647,-78023]
[451,{"$error":"#NAME?"},{"$error":"#NAME?"},{"$error":"#NAME?"},{"$error":"#NAME?"},null,{"$f":"NR_to_Cash!C$9","v":-155327},{"$f":"NR_to_Cash!D$9","v":-283877},{"$f":"NR_to_Cash!E$9","v":-105647},{"$f":"NR_to_Cash!F$9","v":-78023},null,451,-11386.140010024119,-3429.1966804864937,-2997.1831966830964,-15873.768639987455,null,-155327,-283877,-105647,-78023]
[452,{"$error":"#NAME?"},{"$error":"#NAME?"},{"$error":"#NAME?"},{"$error":"#NAME?"},null,{"$f":"NR_to_Cash!C$9","v":-155327},{"$f":"NR_to_Cash!D$9","v":-283877},{"$f":"NR_to_Cash!E$9","v":-105647},{"$f":"NR_to_Cash!F$9","v":-78023},null,452,-9436.711747369045,-2551.7602259695673,5693.4014231175543,-4628.8793052032152,null,-155327,-283877,-105647,-78023]
[453,{"$error":"#NAME?"},{"$error":"#NAME?"},{"$error":"#NAME?"},{"$error":"#NAME?"},null,{"$f":"NR_to_Cash!C$9","v":-155327},{"$f":"NR_to_Cash!D$9","v":-283877},{"$f":"NR_to_Cash!E$9","v":-105647},{"$f":"NR_to_Cash!F$9","v":-78023},null,453,-27649.571688993085,-4250.3638153650036,-3750.968718673078,-8809.8800619586436,null,-155327,-283877,-105647,-78023]
[454,{"$error":"#NAME?"},{"$error":"#NAME?"},{"$error":"#NAME?"},{"$error":"#NAME?"},null,{"$f":"NR_to_Cash!C$9","v":-155327},{"$f":"NR_to_Cash!D$9","v":-283877},{"$f":"NR_to_Cash!E$9","v":-105647},{"$f":"NR_to_Cash!F$9","v":-78023},null,454,-2154.5894344578192,-17455.421239503954,-6657.6775126213543,-19736.492844308621,null,-155327,-283877,-105647,-78023]
[455,{"$error":"#NAME?"},{"$error":"#NAME?"},{"$error":"#NAME?"},{"$error":"#NAME?"},null,{"$f":"NR_to_Cash!C$9","v":-155327},{"$f":"NR_to_Cash!D$9","v":-283877},{"$f":"NR_to_Cash!E$9","v":-105647},{"$f":"NR_to_Cash!F$9","v":-78023},null,455,-15530.955245808269,2484.9250811967013,-12519.103324559457,-25796.127939336729,null,-155327,-283877,-105647,-78023]
[456,{"$error":"#NAME?"},{"$error":"#NAME?"},{"$error":"#NAME?"},{"$error":"#NAME?"},null,{"$f":"NR_to_Cash!C$9","v":-155327},{"$f":"NR_to_Cash!D$9","v":-283877},{"$f":"NR_to_Cash!E$9","v":-105647},{"$f":"NR_to_Cash!F$9","v":-78023},null,456,-15796.50845644457,-2485.573767641461,-9304.3956539792107,-5823.6543967587186,null,-155327,-283877,-105647,-78023]
[457,{"$error":"#NAME?"},{"$error":"#NAME?"},{"$error":"#NAME?"},{"$error":"#NAME?"},null,{"$f":"NR_to_Cash!C$9","v":-155327},{"$f":"NR_to_Cash!D$9","v":-283877},{"$f":"NR_to_Cash!E$9","v":-105647},{"$f":"NR_to_Cash!F$9","v":-78023},null,457,-12817.979097740068,12383.820541439831,5146.0899157721642,-27399.516759619961,null,-155327,-283877,-105647,-78023]
[458,{"$error":"#NAME?"},{"$error":"#NAME?"},{"$error":"#NAME?"},{"$error":"#NAME?"},null,{"$f":"NR_to_Cash!C$9","v":-155327},{"$f":"NR_to_Cash!D$9","v":-283877},{"$f":"NR_to_Cash!E$9","v":-105647},{"$f":"NR_to_Cash!F$9","v":-78023},null,458,-47747.628145067945,-11984.866497058088,-20686.426376575164,-19679.189986115252,null,-155327,-283877,-105647,-78023]
[459,{"$error":"#NAME?"},{"$error":"#NAME?"},{"$error":"#NAME?"},{"$error":"#NAME?"},null,{"$f":"NR_to_Cash!C$9","v":-155327},{"$f":"NR_to_Cash!D$9","v":-283877},{"$f":"NR_to_Cash!E$9","v":-105647},{"$f":"NR_to_Cash!F$9","v":-78023},null,459,-9769.4619290002756,-17498.708628089658,-24326.103189001708,-9025.4958037746746,null,-155327,-283877,-105647,-78023]
[460,{"$error":"#NAME?"},{"$error":"#NAME?"},{"$error":"#NAME?"},{"$error":"#NAME?"},null,{"$f":"NR_to_Cash!C$9","v":-155327},{"$f":"NR_to_Cash!D$9","v":-283877},{"$f":"NR_to_Cash!E$9","v":-105647},{"$f":"NR_to_Cash!F$9","v":-78023},null,460,-29106.290154317307,-3009.450764162505,-24449.367346618415,-13667.494505927556,null,-155327,-283877,-105647,-78023]
[461,{"$error":"#NAME?"},{"$error":"#NAME?"},{"$error":"#NAME?"},{"$error":"#NAME?"},null,{"$f":"NR_to_Cash!C$9","v":-155327},{"$f":"NR_to_Cash!D$9","v":-283877},{"$f":"NR_to_Cash!E$9","v":-105647},{"$f":"NR_to_Cash!F$9","v":-78023},null,461,-11772.983090224099,-12424.338548826803,5659.5729311523146,-8808.3594054019795,null,-155327,-283877,-105647,-78023]
[462,{"$error":"#NAME?"},{"$error":"#NAME?"},{"$error":"#NAME?"},{"$error":"#NAME?"},null,{"$f":"NR_to_Cash!C$9","v":-155327},{"$f":"NR_to_Cash!D$9","v":-283877},{"$f":"NR_to_Cash!E$9","v":-105647},{"$f":"NR_to_Cash!F$9","v":-78023},null,462,-13801.322616134497,-18330.673149103557,-11041.593962547624,-22865.09051666778,null,-155327,-283877,-105647,-78023]
[463,{"$error":"#NAME?"},{"$error":"#NAME?"},{"$error":"#NAME?"},{"$error":"#NAME?"},null,{"$f":"NR_to_Cash!C$9","v":-155327},{"$f":"NR_to_Cash!D$9","v":-283877},{"$f":"NR_to_Cash!E$9","v":-105647},{"$f":"NR_to_Cash!F$9","v":-78023},null,463,-1833.6169414814481,-11605.040275504,-12840.449605467998,9602.3852872483931,null,-155327,-283877,-105647,-78023]
[464,{"$error":"#NAME?"},{"$error":"#NAME?"},{"$error":"#NAME?"},{"$error":"#NAME?"},null,{"$f":"NR_to_Cash!C$9","v":-155327},{"$f":"NR_to_Cash!D$9","v":-283877},{"$f":"NR_to_Cash!E$9","v":-105647},{"$f":"NR_to_Cash!F$9","v":-78023},null,464,-20531.810338455969,-18541.389360613095,-3393.5344321839557,-26741.146878542211,null,-155327,-283877,-105647,-78023]
[465,{"$error":"#NAME?"},{"$error":"#NAME?"},{"$error":"#NAME?"},{"$error":"#NAME?"},null,{"$f":"NR_to_Cash!C$9","v":-155327},{"$f":"NR_to_Cash!D$9","v":-283877},{"$f":"NR_to_Cash!E$9","v":-105647},{"$f":"NR_to_Cash!F$9","v":-78023},null,465,-25503.504728731416,-9578.7460314957825,-1883.8231280654013,-38499.259375291018,null,-155327,-283877,-105647,-78023]
[466,{"$error":"#NAME?"},{"$error":"#NAME?"},{"$error":"#NAME?"},{"$error":"#NAME?"},null,{"$f":"NR_to_Cash!C$9","v":-155327},{"$f":"NR_to_Cash!D$9","v":-283877},{"$f":"NR_to_Cash!E$9","v":-105647},{"$f":"NR_to_Cash!F$9","v":-78023},null,466,-4208.3854508458699,2792.7606509339057,-8285.8898791168122,-4519.735909097597,null,-155327,-283877,-105647,-78023]
[467,{"$error":"#NAME?"},{"$error":"#NAME?"},{"$error":"#NAME?"},{"$error":"#NAME?"},null,{"$f":"NR_to_Cash!C$9","v":-155327},{"$f":"NR_to_Cash!D$9","v":-283877},{"$f":"NR_to_Cash!E$9","v":-105647},{"$f":"NR_to_Cash!F$9","v":-78023},null,467,-938.3978953115145,-9534.0661175121004,-26219.700327375253,-40306.075910507272,null,-155327,-283877,-105647,-78023]
[468,{"$error":"#NAME?"},{"$error":"#NAME?"},{"$error":"#NAME?"},{"$error":"#NAME?"},null,{"$f":"NR_to_Cash!C$9","v":-155327},{"$f":"NR_to_Cash!D$9","v":-283877},{"$f":"NR_to_Cash!E$9","v":-105647},{"$f":"NR_to_Cash!F$9","v":-78023},null,468,-12062.193645176394,-26955.470672781801,-3479.4371516757201,-11207.057180314363,null,-155327,-283877,-105647,-78023]
[469,{"$error":"#NAME?"},{"$error":"#NAME?"},{"$error":"#NAME?"},{"$error":"#NAME?"},null,{"$f":"NR_to_Cash!C$9","v":-155327},{"$f":"NR_to_Cash!D$9","v":-283877},{"$f":"NR_to_Cash!E$9","v":-105647},{"$f":"NR_to_Cash!F$9","v":-78023},null,469,-5790.0186990664361,2016.4762175938881,-11084.208303307583,6439.6850818052108,null,-155327,-283877,-105647,-78023]
[470,{"$error":"#NAME?"},{"$error":"#NAME?"},{"$error":"#NAME?"},{"$error":"#NAME?"},null,{"$f":"NR_to_Cash!C$9","v":-155327},{"$f":"NR_to_Cash!D$9","v":-283877},{"$f":"NR_to_Cash!E$9","v":-105647},{"$f":"NR_to_Cash!F$9","v":-78023},null,470,-10964.530931118305,-24942.449832421986,-4895.6427846229753,-37737.066157215784,null,-155327,-283877,-105647,-78023]
[471,{"$error":"#NAME?"},{"$error":"#NAME?"},{"$error":"#NAME?"},{"$error":"#NAME?"},null,{"$f":"NR_to_Cash!C$9","v":-155327},{"$f":"NR_to_Cash!D$9","v":-283877},{"$f":"NR_to_Cash!E$9","v":-105647},{"$f":"NR_to_Cash!F$9","v":-78023},null,471,8959.9651577702789,-13044.069330788298,-18451.605567426293,21603.24581875042,null,-155327,-283877,-105647,-78023]
[472,{"$error":"#NAME?"},{"$error":"#NAME?"},{"$error":"#NAME?"},{"$error":"#NAME?"},null,{"$f":"NR_to_Cash!C$9","v":-155327},{"$f":"NR_to_Cash!D$9","v":-283877},{"$f":"NR_to_Cash!E$9","v":-105647},{"$f":"NR_to_Cash!F$9","v":-78023},null,472,-18381.394721191537,-24619.273870493966,5604.1685157422908,6798.1048781774589,null,-155327,-283877,-105647,-78023]
[473,{"$error":"#NAME?"},{"$error":"#NAME?"},{"$error":"#NAME?"},{"$error":"#NAME?"},null,{"$f":"NR_to_Cash!C$9","v":-155327},{"$f":"NR_to_Cash!D$9","v":-283877},{"$f":"NR_to_Cash!E$9","v":-105647},{"$f":"NR_to_Cash!F$9","v":-78023},null,473,-30979.1810598968,-8172.4330792824712,-26450.356065247732,-3140.7022855622763,null,-155327,-283877,-105647,-78023]
[474,{"$error":"#NAME?"},{"$error":"#NAME?"},{"$error":"#NAME?"},{"$error":"#NAME?"},null,{"$f":"NR_to_Cash!C$9","v":-155327},{"$f":"NR_to_Cash!D$9","v":-283877},{"$f":"NR_to_Cash!E$9","v":-105647},{"$f":"NR_to_Cash!F$9","v":-78023},null,474,-10911.583778019922,-1898.808255572282,-1893.1318284372162,-11458.006468696376,null,-155327,-283877,-105647,-78023]
[475,{"$error":"#NAME?"},{"$error":"#NAME?"},{"$error":"#NAME?"},{"$error":"#NAME?"},null,{"$f":"NR_to_Cash!C$9","v":-155327},{"$f":"NR_to_Cash!D$9","v":-283877},{"$f":"NR_to_Cash!E$9","v":-105647},{"$f":"NR_to_Cash!F$9","v":-78023},null,475,-4006.2005896175065,-23075.577190000491,-30011.907643352177,6624.4540898373907,null,-155327,-283877,-105647,-78023]
[476,{"$error":"#NAME?"},{"$error":"#NAME?"},{"$error":"#NAME?"},{"$error":"#NAME?"},null,{"$f":"NR_to_Cash!C$9","v":-155327},{"$f":"NR_to_Cash!D$9","v":-283877},{"$f":"NR_to_Cash!E$9","v":-105647},{"$f":"NR_to_Cash!F$9","v":-78023},null,476,5404.0739633078301,-15300.12187458088,1090.1032361356545,-33095.954021712627,null,-155327,-283877,-105647,-78023]
[477,{"$error":"#NAME?"},{"$error":"#NAME?"},{"$error":"#NAME?"},{"$error":"#NAME?"},null,{"$f":"NR_to_Cash!C$9","v":-155327},{"$f":"NR_to_Cash!D$9","v":-283877},{"$f":"NR_to_Cash!E$9","v":-105647},{"$f":"NR_to_Cash!F$9","v":-78023},null,477,-9294.0459058379547,-9210.2672810903277,-8326.5137850158462,-12228.144576746707,null,-155327,-283877,-105647,-78023]
[478,{"$error":"#NAME?"},{"$error":"#NAME?"},{"$error":"#NAME?"},{"$error":"#NAME?"},null,{"$f":"NR_to_Cash!C$9","v":-155327},{"$f":"NR_to_Cash!D$9","v":-283877},{"$f":"NR_to_Cash!E$9","v":-105647},{"$f":"NR_to_Cash!F$9","v":-78023},null,478,-17789.017394231123,-3846.1299053803805,-20792.789152090008,-29755.437849858521,null,-155327,-283877,-105647,-78023]
[479,{"$error":"#NAME?"},{"$error":"#NAME?"},{"$error":"#NAME?"},{"$error":"#NAME?"},null,{"$f":"NR_to_Cash!C$9","v":-155327},{"$f":"NR_to_Cash!D$9","v":-283877},{"$f":"NR_to_Cash!E$9","v":-105647},{"$f":"NR_to_Cash!F$9","v":-78023},null,479,-7977.3685991709208,-24020.147976263579,-21140.769533849474,614.36697184543664,null,-155327,-283877,-105647,-78023]
[480,{"$error":"#NAME?"},{"$error":"#NAME?"},{"$error":"#NAME?"},{"$error":"#NAME?"},null,{"$f":"NR_to_Cash!C$9","v":-155327},{"$f":"NR_to_Cash!D$9","v":-283877},{"$f":"NR_to_Cash!E$9","v":-105647},{"$f":"NR_to_Cash!F$9","v":-78023},null,480,-10035.226451611716,-6796.2984350033385,-7165.7069342553668,-15687.171673433841,null,-155327,-283877,-105647,-78023]
[481,{"$error":"#NAME?"},{"$error":"#NAME?"},{"$error":"#NAME?"},{"$error":"#NAME?"},null,{"$f":"NR_to_Cash!C$9","v":-155327},{"$f":"NR_to_Cash!D$9","v":-283877},{"$f":"NR_to_Cash!E$9","v":-105647},{"$f":"NR_to_Cash!F$9","v":-78023},null,481,-8024.4712106969891,-10430.048883876985,4109.2728370052146,-25275.126584571935,null,-155327,-283877,-105647,-78023]
[482,{"$error":"#NAME?"},{"$error":"#NAME?"},{"$error":"#NAME?"},{"$error":"#NAME?"},null,{"$f":"NR_to_Cash!C$9","v":-155327},{"$f":"NR_to_Cash!D$9","v":-283877},{"$f":"NR_to_Cash!E$9","v":-105647},{"$f":"NR_to_Cash!F$9","v":-78023},null,482,4919.5801506878634,-7946.632931523156,-33736.01836131313,-436.68252137843064,null,-155327,-283877,-105647,-78023]
[483,{"$error":"#NAME?"},{"$error":"#NAME?"},{"$error":"#NAME?"},{"$error":"#NAME?"},null,{"$f":"NR_to_Cash!C$9","v":-155327},{"$f":"NR_to_Cash!D$9","v":-283877},{"$f":"NR_to_Cash!E$9","v":-105647},{"$f":"NR_to_Cash!F$9","v":-78023},null,483,-14302.041718832268,-7934.9562834027165,-3145.8423614082139,-18000.800645994907,null,-155327,-283877,-105647,-78023]
[484,{"$error":"#NAME?"},{"$error":"#NAME?"},{"$error":"#NAME?"},{"$error":"#NAME?"},null,{"$f":"NR_to_Cash!C$9","v":-155327},{"$f":"NR_to_Cash!D$9","v":-283877},{"$f":"NR_to_Cash!E$9","v":-105647},{"$f":"NR_to_Cash!F$9","v":-78023},null,484,-18833.761431619983,-38673.329357402828,5754.1451298391457,-1807.211378017882,null,-155327,-283877,-105647,-78023]
[485,{"$error":"#NAME?"},{"$error":"#NAME?"},{"$error":"#NAME?"},{"$error":"#NAME?"},null,{"$f":"NR_to_Cash!C$9","v":-155327},{"$f":"NR_to_Cash!D$9","v":-283877},{"$f":"NR_to_Cash!E$9","v":-105647},{"$f":"NR_to_Cash!F$9","v":-78023},null,485,-29073.452182437468,-18436.424939536948,-6434.6410114997216,-1463.7379788436244,null,-155327,-283877,-105647,-78023]
[486,{"$error":"#NAME?"},{"$error":"#NAME?"},{"$error":"#NAME?"},{"$error":"#NAME?"},null,{"$f":"NR_to_Cash!C$9","v":-155327},{"$f":"NR_to_Cash!D$9","v":-283877},{"$f":"NR_to_Cash!E$9","v":-105647},{"$f":"NR_to_Cash!F$9","v":-78023},null,486,-18917.335354540504,-24327.898528334132,-1883.821643931723,-6195.5856470289345,null,-155327,-283877,-105647,-78023]
[487,{"$error":"#NAME?"},{"$error":"#NAME?"},{"$error":"#NAME?"},{"$error":"#NAME?"},null,{"$f":"NR_to_Cash!C$9","v":-155327},{"$f":"NR_to_Cash!D$9","v":-283877},{"$f":"NR_to_Cash!E$9","v":-105647},{"$f":"NR_to_Cash!F$9","v":-78023},null,487,-12879.783081280711,4245.525694993551,-6320.5426333990135,-26651.263796340401,null,-155327,-283877,-105647,-78023]
[488,{"$error":"#NAME?"},{"$error":"#NAME?"},{"$error":"#NAME?"},{"$error":"#NAME?"},null,{"$f":"NR_to_Cash!C$9","v":-155327},{"$f":"NR_to_Cash!D$9","v":-283877},{"$f":"NR_to_Cash!E$9","v":-105647},{"$f":"NR_to_Cash!F$9","v":-78023},null,488,6113.4188412935673,-18211.470394716562,-7051.7092924662156,-10472.312769294524,null,-155327,-283877,-105647,-78023]
[489,{"$error":"#NAME?"},{"$error":"#NAME?"},{"$error":"#NAME?"},{"$error":"#NAME?"},null,{"$f":"NR_to_Cash!C$9","v":-155327},{"$f":"NR_to_Cash!D$9","v":-283877},{"$f":"NR_to_Cash!E$9","v":-105647},{"$f":"NR_to_Cash!F$9","v":-78023},null,489,-2131.8258380482471,-1359.3279942370298,11316.094405143453,-23306.268345190842,null,-155327,-283877,-105647,-78023]
[490,{"$error":"#NAME?"},{"$error":"#NAME?"},{"$error":"#NAME?"},{"$error":"#NAME?"},null,{"$f":"NR_to_Cash!C$9","v":-155327},{"$f":"NR_to_Cash!D$9","v":-283877},{"$f":"NR_to_Cash!E$9","v":-105647},{"$f":"NR_to_Cash!F$9","v":-78023},null,490,760.46202707224109,458.69286508113112,-21205.340679196543,433.40388039308766,null,-155327,-283877,-105647,-78023]
[491,{"$error":"#NAME?"},{"$error":"#NAME?"},{"$error":"#NAME?"},{"$error":"#NAME?"},null,{"$f":"NR_to_Cash!C$9","v":-155327},{"$f":"NR_to_Cash!D$9","v":-283877},{"$f":"NR_to_Cash!E$9","v":-105647},{"$f":"NR_to_Cash!F$9","v":-78023},null,491,-17321.012391507018,5601.0104116966759,24422.215438531119,-12997.651398086364,null,-155327,-283877,-105647,-78023]
[492,{"$error":"#NAME?"},{"$error":"#NAME?"},{"$error":"#NAME?"},{"$error":"#NAME?"},null,{"$f":"NR_to_Cash!C$9","v":-155327},{"$f":"NR_to_Cash!D$9","v":-283877},{"$f":"NR_to_Cash!E$9","v":-105647},{"$f":"NR_to_Cash!F$9","v":-78023},null,492,-19076.093495768353,4010.7673079145088,-9254.8492469377379,-4393.5125217620271,null,-155327,-283877,-105647,-78023]
[493,{"$error":"#NAME?"},{"$error":"#NAME?"},{"$error":"#NAME?"},{"$error":"#NAME?"},null,{"$f":"NR_to_Cash!C$9","v":-155327},{"$f":"NR_to_Cash!D$9","v":-283877},{"$f":"NR_to_Cash!E$9","v":-105647},{"$f":"NR_to_Cash!F$9","v":-78023},null,493,-4881.8164895398877,-14060.354425161775,-1125.8360587746222,2586.2768213559543,null,-155327,-283877,-105647,-78023]
[494,{"$error":"#NAME?"},{"$error":"#NAME?"},{"$error":"#NAME?"},{"$error":"#NAME?"},null,{"$f":"NR_to_Cash!C$9","v":-155327},{"$f":"NR_to_Cash!D$9","v":-283877},{"$f":"NR_to_Cash!E$9","v":-105647},{"$f":"NR_to_Cash!F$9","v":-78023},null,494,-18698.800224106111,-5233.2107822491735,-19714.20968766779,-16075.756081510412,null,-155327,-283877,-105647,-78023]
[495,{"$error":"#NAME?"},{"$error":"#NAME?"},{"$error":"#NAME?"},{"$error":"#NAME?"},null,{"$f":"NR_to_Cash!C$9","v":-155327},{"$f":"NR_to_Cash!D$9","v":-283877},{"$f":"NR_to_Cash!E$9","v":-105647},{"$f":"NR_to_Cash!F$9","v":-78023},null,495,-22397.937625112991,-7677.7753523711071,-21918.661020960979,-14468.766370831827,null,-155327,-283877,-105647,-78023]
[496,{"$error":"#NAME?"},{"$error":"#NAME?"},{"$error":"#NAME?"},{"$error":"#NAME?"},null,{"$f":"NR_to_Cash!C$9","v":-155327},{"$f":"NR_to_Cash!D$9","v":-283877},{"$f":"NR_to_Cash!E$9","v":-105647},{"$f":"NR_to_Cash!F$9","v":-78023},null,496,-9782.7300131818392,-2214.4063224476822,-11400.193470561238,-5250.7623079180339,null,-155327,-283877,-105647,-78023]
[497,{"$error":"#NAME?"},{"$error":"#NAME?"},{"$error":"#NAME?"},{"$error":"#NAME?"},null,{"$f":"NR_to_Cash!C$9","v":-155327},{"$f":"NR_to_Cash!D$9","v":-283877},{"$f":"NR_to_Cash!E$9","v":-105647},{"$f":"NR_to_Cash!F$9","v":-78023},null,497,6786.9385181152447,1010.5203168927242,-31976.534487156448,-8346.3173225970077,null,-155327,-283877,-105647,-78023]
[498,{"$error":"#NAME?"},{"$error":"#NAME?"},{"$error":"#NAME?"},{"$error":"#NAME?"},null,{"$f":"NR_to_Cash!C$9","v":-155327},{"$f":"NR_to_Cash!D$9","v":-283877},{"$f":"NR_to_Cash!E$9","v":-105647},{"$f":"NR_to_Cash!F$9","v":-78023},null,498,-18207.503846533215,6386.0704738743134,-13883.978465362514,6478.6902667774566,null,-155327,-283877,-105647,-78023]
[499,{"$error":"#NAME?"},{"$error":"#NAME?"},{"$error":"#NAME?"},{"$error":"#NAME?"},null,{"$f":"NR_to_Cash!C$9","v":-155327},{"$f":"NR_to_Cash!D$9","v":-283877},{"$f":"NR_to_Cash!E$9","v":-105647},{"$f":"NR_to_Cash!F$9","v":-78023},null,499,-27368.561888351753,5345.1596900017876,-12202.217591435356,-9839.593479603569,null,-155327,-283877,-105647,-78023]
[500,{"$error":"#NAME?"},{"$error":"#NAME?"},{"$error":"#NAME?"},{"$error":"#NAME?"},null,{"$f":"NR_to_Cash!C$9","v":-155327},{"$f":"NR_to_Cash!D$9","v":-283877},{"$f":"NR_to_Cash!E$9","v":-105647},{"$f":"NR_to_Cash!F$9","v":-78023},null,500,-3904.9173589080729,17242.741296049135,-22195.26269052739,-16863.141151050808,null,-155327,-283877,-105647,-78023]
[501,{"$error":"#NAME?"},{"$error":"#NAME?"},{"$error":"#NAME?"},{"$error":"#NAME?"},null,{"$f":"NR_to_Cash!C$9","v":-155327},{"$f":"NR_to_Cash!D$9","v":-283877},{"$f":"NR_to_Cash!E$9","v":-105647},{"$f":"NR_to_Cash!F$9","v":-78023},null,501,-6681.995712576565,-15056.285569986172,-39782.705105250236,6314.0105735165289,null,-155327,-283877,-105647,-78023]
[502,{"$error":"#NAME?"},{"$error":"#NAME?"},{"$error":"#NAME?"},{"$error":"#NAME?"},null,{"$f":"NR_to_Cash!C$9","v":-155327},{"$f":"NR_to_Cash!D$9","v":-283877},{"$f":"NR_to_Cash!E$9","v":-105647},{"$f":"NR_to_Cash!F$9","v":-78023},null,502,-18016.366539670671,4355.6214506699316,-27541.933109656788,-31213.406740357292,null,-155327,-283877,-105647,-78023]
[503,{"$error":"#NAME?"},{"$error":"#NAME?"},{"$error":"#NAME?"},{"$error":"#NAME?"},null,{"$f":"NR_to_Cash!C$9","v":-155327},{"$f":"NR_to_Cash!D$9","v":-283877},{"$f":"NR_to_Cash!E$9","v":-105647},{"$f":"NR_to_Cash!F$9","v":-78023},null,503,-12027.778496275892,-10971.6027455029,-14247.703790665772,-6655.5098750973639,null,-155327,-283877,-105647,-78023]
[504,{"$error":"#NAME?"},{"$error":"#NAME?"},{"$error":"#NAME?"},{"$error":"#NAME?"},null,{"$f":"NR_to_Cash!C$9","v":-155327},{"$f":"NR_to_Cash!D$9","v":-283877},{"$f":"NR_to_Cash!E$9","v":-105647},{"$f":"NR_to_Cash!F$9","v":-78023},null,504,-10656.178643812067,-21981.282966854233,-17007.38683240948,-16865.565696276244,null,-155327,-283877,-105647,-78023]
[505,{"$error":"#NAME?"},{"$error":"#NAME?"},{"$error":"#NAME?"},{"$error":"#NAME?"},null,{"$f":"NR_to_Cash!C$9","v":-155327},{"$f":"NR_to_Cash!D$9","v":-283877},{"$f":"NR_to_Cash!E$9","v":-105647},{"$f":"NR_to_Cash!F$9","v":-78023},null,505,-22776.905906274664,-29018.079197858126,-13084.536448232257,-15627.614748853559,null,-155327,-283877,-105647,-78023]
[506,{"$error":"#NAME?"},{"$error":"#NAME?"},{"$error":"#NAME?"},{"$error":"#NAME?"},null,{"$f":"NR_to_Cash!C$9","v":-155327},{"$f":"NR_to_Cash!D$9","v":-283877},{"$f":"NR_to_Cash!E$9","v":-105647},{"$f":"NR_to_Cash!F$9","v":-78023},null,506,-10896.507819067167,9819.5677401272533,-10886.653930087257,1763.8208385965506,null,-155327,-283877,-105647,-78023]
[507,{"$error":"#NAME?"},{"$error":"#NAME?"},{"$error":"#NAME?"},{"$error":"#NAME?"},null,{"$f":"NR_to_Cash!C$9","v":-155327},{"$f":"NR_to_Cash!D$9","v":-283877},{"$f":"NR_to_Cash!E$9","v":-105647},{"$f":"NR_to_Cash!F$9","v":-78023},null,507,-3755.668920747411,13810.536018006351,-8680.9871268650859,5081.4064854205026,null,-155327,-283877,-105647,-78023]
[508,{"$error":"#NAME?"},{"$error":"#NAME?"},{"$error":"#NAME?"},{"$error":"#NAME?"},null,{"$f":"NR_to_Cash!C$9","v":-155327},{"$f":"NR_to_Cash!D$9","v":-283877},{"$f":"NR_to_Cash!E$9","v":-105647},{"$f":"NR_to_Cash!F$9","v":-78023},null,508,9350.1727752833085,-24459.38682811517,-12038.561828870585,-928.92562560193346,null,-155327,-283877,-105647,-78023]
[509,{"$error":"#NAME?"},{"$error":"#NAME?"},{"$error":"#NAME?"},{"$error":"#NAME?"},null,{"$f":"NR_to_Cash!C$9","v":-155327},{"$f":"NR_to_Cash!D$9","v":-283877},{"$f":"NR_to_Cash!E$9","v":-105647},{"$f":"NR_to_Cash!F$9","v":-78023},null,509,-15021.096442968093,961.34962927999311,-4922.2192264754985,-27351.053855726983,null,-155327,-283877,-105647,-78023]
[510,{"$error":"#NAME?"},{"$error":"#NAME?"},{"$error":"#NAME?"},{"$error":"#NAME?"},null,{"$f":"NR_to_Cash!C$9","v":-155327},{"$f":"NR_to_Cash!D$9","v":-283877},{"$f":"NR_to_Cash!E$9","v":-105647},{"$f":"NR_to_Cash!F$9","v":-78023},null,510,-27875.954107154314,-3659.4085244476664,-13221.653999046803,-4517.1185907699919,null,-155327,-283877,-105647,-78023]
[511,{"$error":"#NAME?"},{"$error":"#NAME?"},{"$error":"#NAME?"},{"$error":"#NAME?"},null,{"$f":"NR_to_Cash!C$9","v":-155327},{"$f":"NR_to_Cash!D$9","v":-283877},{"$f":"NR_to_Cash!E$9","v":-105647},{"$f":"NR_to_Cash!F$9","v":-78023},null,511,-5211.048562488284,-14183.748068287256,-2404.7289115026733,-2932.3150600154959,null,-155327,-283877,-105647,-78023]
[512,{"$error":"#NAME?"},{"$error":"#NAME?"},{"$error":"#NAME?"},{"$error":"#NAME?"},null,{"$f":"NR_to_Cash!C$9","v":-155327},{"$f":"NR_to_Cash!D$9","v":-283877},{"$f":"NR_to_Cash!E$9","v":-105647},{"$f":"NR_to_Cash!F$9","v":-78023},null,512,-20638.030731128074,-23020.12615381962,16629.982093660543,-13512.305909729048,null,-155327,-283877,-105647,-78023]
[513,{"$error":"#NAME?"},{"$error":"#NAME?"},{"$error":"#NAME?"},{"$error":"#NAME?"},null,{"$f":"NR_to_Cash!C$9","v":-155327},{"$f":"NR_to_Cash!D$9","v":-283877},{"$f":"NR_to_Cash!E$9","v":-105647},{"$f":"NR_to_Cash!F$9","v":-78023},null,513,-11465.901521775604,4102.7017532919626,1963.9667502085449,-32640.284781769456,null,-155327,-283877,-105647,-78023]
[514,{"$error":"#NAME?"},{"$error":"#NAME?"},{"$error":"#NAME?"},{"$error":"#NAME?"},null,{"$f":"NR_to_Cash!C$9","v":-155327},{"$f":"NR_to_Cash!D$9","v":-283877},{"$f":"NR_to_Cash!E$9","v":-105647},{"$f":"NR_to_Cash!F$9","v":-78023},null,514,667.60639430119977,-11282.883789710761,-1462.2019847012014,-33490.233502002076,null,-155327,-283877,-105647,-78023]
[515,{"$error":"#NAME?"},{"$error":"#NAME?"},{"$error":"#NAME?"},{"$error":"#NAME?"},null,{"$f":"NR_to_Cash!C$9","v":-155327},{"$f":"NR_to_Cash!D$9","v":-283877},{"$f":"NR_to_Cash!E$9","v":-105647},{"$f":"NR_to_Cash!F$9","v":-78023},null,515,-19996.963588398739,-20838.403201751666,-10705.800010531724,-11428.350024295374,null,-155327,-283877,-105647,-78023]
[516,{"$error":"#NAME?"},{"$error":"#NAME?"},{"$error":"#NAME?"},{"$error":"#NAME?"},null,{"$f":"NR_to_Cash!C$9","v":-155327},{"$f":"NR_to_Cash!D$9","v":-283877},{"$f":"NR_to_Cash!E$9","v":-105647},{"$f":"NR_to_Cash!F$9","v":-78023},null,516,-22955.859072480634,-12528.410545598454,11108.970897804069,-20238.180705375467,null,-155327,-283877,-105647,-78023]
[517,{"$error":"#NAME?"},{"$error":"#NAME?"},{"$error":"#NAME?"},{"$error":"#NAME?"},null,{"$f":"NR_to_Cash!C$9","v":-155327},{"$f":"NR_to_Cash!D$9","v":-283877},{"$f":"NR_to_Cash!E$9","v":-105647},{"$f":"NR_to_Cash!F$9","v":-78023},null,517,-15282.389687726381,14619.367798430319,-179.77974499302007,-29899.235560077708,null,-155327,-283877,-105647,-78023]
[518,{"$error":"#NAME?"},{"$error":"#NAME?"},{"$error":"#NAME?"},{"$error":"#NAME?"},null,{"$f":"NR_to_Cash!C$9","v":-155327},{"$f":"NR_to_Cash!D$9","v":-283877},{"$f":"NR_to_Cash!E$9","v":-105647},{"$f":"NR_to_Cash!F$9","v":-78023},null,518,-26244.212984564416,-12214.038767495165,-1990.1930342957942,-4455.4094435332081,null,-155327,-283877,-105647,-78023]
[519,{"$error":"#NAME?"},{"$error":"#NAME?"},{"$error":"#NAME?"},{"$error":"#NAME?"},null,{"$f":"NR_to_Cash!C$9","v":-155327},{"$f":"NR_to_Cash!D$9","v":-283877},{"$f":"NR_to_Cash!E$9","v":-105647},{"$f":"NR_to_Cash!F$9","v":-78023},null,519,2469.2493379575917,-6874.6333059472354,776.36619492552472,-14847.115640532656,null,-155327,-283877,-105647,-78023]
[520,{"$error":"#NAME?"},{"$error":"#NAME?"},{"$error":"#NAME?"},{"$error":"#NAME?"},null,{"$f":"NR_to_Cash!C$9","v":-155327},{"$f":"NR_to_Cash!D$9","v":-283877},{"$f":"NR_to_Cash!E$9","v":-105647},{"$f":"NR_to_Cash!F$9","v":-78023},null,520,-1383.8156644340434,-14350.556910009729,13619.727238275307,-9236.3997873926965,null,-155327,-283877,-105647,-78023]
[521,{"$error":"#NAME?"},{"$error":"#NAME?"},{"$error":"#NAME?"},{"$error":"#NAME?"},null,{"$f":"NR_to_Cash!C$9","v":-155327},{"$f":"NR_to_Cash!D$9","v":-283877},{"$f":"NR_to_Cash!E$9","v":-105647},{"$f":"NR_to_Cash!F$9","v":-78023},null,521,-9685.2273401537968,7285.4281152659651,-21131.679710969413,-5504.6159013142069,null,-155327,-283877,-105647,-78023]
[522,{"$error":"#NAME?"},{"$error":"#NAME?"},{"$error":"#NAME?"},{"$error":"#NAME?"},null,{"$f":"NR_to_Cash!C$9","v":-155327},{"$f":"NR_to_Cash!D$9","v":-283877},{"$f":"NR_to_Cash!E$9","v":-105647},{"$f":"NR_to_Cash!F$9","v":-78023},null,522,-24114.562182606067,-6918.4625174775392,-24530.397425101917,3183.0273535216929,null,-155327,-283877,-105647,-78023]
[523,{"$error":"#NAME?"},{"$error":"#NAME?"},{"$error":"#NAME?"},{"$error":"#NAME?"},null,{"$f":"NR_to_Cash!C$9","v":-155327},{"$f":"NR_to_Cash!D$9","v":-283877},{"$f":"NR_to_Cash!E$9","v":-105647},{"$f":"NR_to_Cash!F$9","v":-78023},null,523,-26098.967321911419,-20810.744281402145,3095.3974381713347,-32926.35292078802,null,-155327,-283877,-105647,-78023]
[524,{"$error":"#NAME?"},{"$error":"#NAME?"},{"$error":"#NAME?"},{"$error":"#NAME?"},null,{"$f":"NR_to_Cash!C$9","v":-155327},{"$f":"NR_to_Cash!D$9","v":-283877},{"$f":"NR_to_Cash!E$9","v":-105647},{"$f":"NR_to_Cash!F$9","v":-78023},null,524,-19288.432362860414,-9366.2953762617271,-33291.66287402148,-26127.648579023058,null,-155327,-283877,-105647,-78023]
[525,{"$error":"#NAME?"},{"$error":"#NAME?"},{"$error":"#NAME?"},{"$error":"#NAME?"},null,{"$f":"NR_to_Cash!C$9","v":-155327},{"$f":"NR_to_Cash!D$9","v":-283877},{"$f":"NR_to_Cash!E$9","v":-105647},{"$f":"NR_to_Cash!F$9","v":-78023},null,525,-16650.811167523916,-32512.980061733731,-15149.038704805007,-14646.835532164399,null,-155327,-283877,-105647,-78023]
[526,{"$error":"#NAME?"},{"$error":"#NAME?"},{"$error":"#NAME?"},{"$error":"#NAME?"},null,{"$f":"NR_to_Cash!C$9","v":-155327},{"$f":"NR_to_Cash!D$9","v":-283877},{"$f":"NR_to_Cash!E$9","v":-105647},{"$f":"NR_to_Cash!F$9","v":-78023},null,526,-16708.571902305204,-4811.6960574315899,-1282.1413583075605,-3577.3055821836542,null,-155327,-283877,-105647,-78023]
[527,{"$error":"#NAME?"},{"$error":"#NAME?"},{"$error":"#NAME?"},{"$error":"#NAME?"},null,{"$f":"NR_to_Cash!C$9","v":-155327},{"$f":"NR_to_Cash!D$9","v":-283877},{"$f":"NR_to_Cash!E$9","v":-105647},{"$f":"NR_to_Cash!F$9","v":-78023},null,527,-21188.766762506861,-21437.830639973112,-9590.9616338101805,6634.2837987441053,null,-155327,-283877,-105647,-78023]
[528,{"$error":"#NAME?"},{"$error":"#NAME?"},{"$error":"#NAME?"},{"$error":"#NAME?"},null,{"$f":"NR_to_Cash!C$9","v":-155327},{"$f":"NR_to_Cash!D$9","v":-283877},{"$f":"NR_to_Cash!E$9","v":-105647},{"$f":"NR_to_Cash!F$9","v":-78023},null,528,-23151.960188509114,5580.4044138135332,-23174.75007284493,-15706.414761757056,null,-155327,-283877,-105647,-78023]
[529,{"$error":"#NAME?"},{"$error":"#NAME?"},{"$error":"#NAME?"},{"$error":"#NAME?"},null,{"$f":"NR_to_Cash!C$9","v":-155327},{"$f":"NR_to_Cash!D$9","v":-283877},{"$f":"NR_to_Cash!E$9","v":-105647},{"$f":"NR_to_Cash!F$9","v":-78023},null,529,-24910.39528879735,7975.3891699458463,-14059.766339944741,-3827.5401172256688,null,-155327,-283877,-105647,-78023]
[530,{"$error":"#NAME?"},{"$error":"#NAME?"},{"$error":"#NAME?"},{"$error":"#NAME?"},null,{"$f":"NR_to_Cash!C$9","v":-155327},{"$f":"NR_to_Cash!D$9","v":-283877},{"$f":"NR_to_Cash!E$9","v":-105647},{"$f":"NR_to_Cash!F$9","v":-78023},null,530,-6089.2715095062968,19010.021118472669,-11087.792477182318,-2219.1545157345636,null,-155327,-283877,-105647,-78023]
[531,{"$error":"#NAME?"},{"$error":"#NAME?"},{"$error":"#NAME?"},{"$error":"#NAME?"},null,{"$f":"NR_to_Cash!C$9","v":-155327},{"$f":"NR_to_Cash!D$9","v":-283877},{"$f":"NR_to_Cash!E$9","v":-105647},{"$f":"NR_to_Cash!F$9","v":-78023},null,531,-23377.999298974697,-1712.0399991075906,5408.376591044067,7772.9842222474235,null,-155327,-283877,-105647,-78023]
[532,{"$error":"#NAME?"},{"$error":"#NAME?"},{"$error":"#NAME?"},{"$error":"#NAME?"},null,{"$f":"NR_to_Cash!C$9","v":-155327},{"$f":"NR_to_Cash!D$9","v":-283877},{"$f":"NR_to_Cash!E$9","v":-105647},{"$f":"NR_to_Cash!F$9","v":-78023},null,532,-14673.061385518144,-24556.577584460763,-6898.5327953389833,-27386.781615931108,null,-155327,-283877,-105647,-78023]
[533,{"$error":"#NAME?"},{"$error":"#NAME?"},{"$error":"#NAME?"},{"$error":"#NAME?"},null,{"$f":"NR_to_Cash!C$9","v":-155327},{"$f":"NR_to_Cash!D$9","v":-283877},{"$f":"NR_to_Cash!E$9","v":-105647},{"$f":"NR_to_Cash!F$9","v":-78023},null,533,-24123.081181875248,636.51163439653476,-17859.48818887263,-7455.8313010208549,null,-155327,-283877,-105647,-78023]
[534,{"$error":"#NAME?"},{"$error":"#NAME?"},{"$error":"#NAME?"},{"$error":"#NAME?"},null,{"$f":"NR_to_Cash!C$9","v":-155327},{"$f":"NR_to_Cash!D$9","v":-283877},{"$f":"NR_to_Cash!E$9","v":-105647},{"$f":"NR_to_Cash!F$9","v":-78023},null,534,-2586.0840759314715,1297.5762983235625,-5600.1619517282934,-17144.427614257016,null,-155327,-283877,-105647,-78023]
[535,{"$error":"#NAME?"},{"$error":"#NAME?"},{"$error":"#NAME?"},{"$error":"#NAME?"},null,{"$f":"NR_to_Cash!C$9","v":-155327},{"$f":"NR_to_Cash!D$9","v":-283877},{"$f":"NR_to_Cash!E$9","v":-105647},{"$f":"NR_to_Cash!F$9","v":-78023},null,535,-23576.78688306304,14256.215138062864,-6244.704861465535,-6449.9655202463055,null,-155327,-283877,-105647,-78023]
[536,{"$error":"#NAME?"},{"$error":"#NAME?"},{"$error":"#NAME?"},{"$error":"#NAME?"},null,{"$f":"NR_to_Cash!C$9","v":-155327},{"$f":"NR_to_Cash!D$9","v":-283877},{"$f":"NR_to_Cash!E$9","v":-105647},{"$f":"NR_to_Cash!F$9","v":-78023},null,536,-10999.437776524674,-16824.1928791069,-22387.195037216363,3860.6065103470378,null,-155327,-283877,-105647,-78023]
[537,{"$error":"#NAME?"},{"$error":"#NAME?"},{"$error":"#NAME?"},{"$error":"#NAME?"},null,{"$f":"NR_to_Cash!C$9","v":-155327},{"$f":"NR_to_Cash!D$9","v":-283877},{"$f":"NR_to_Cash!E$9","v":-105647},{"$f":"NR_to_Cash!F$9","v":-78023},null,537,1307.7205121080801,4022.0079297189095,-13990.124270783112,-16365.694535331282,null,-155327,-283877,-105647,-78023]
[538,{"$error":"#NAME?"},{"$error":"#NAME?"},{"$error":"#NAME?"},{"$error":"#NAME?"},null,{"$f":"NR_to_Cash!C$9","v":-155327},{"$f":"NR_to_Cash!D$9","v":-283877},{"$f":"NR_to_Cash!E$9","v":-105647},{"$f":"NR_to_Cash!F$9","v":-78023},null,538,-22745.871290430645,-3683.1611099002803,6382.7253723270105,-16761.042431402042,null,-155327,-283877,-105647,-78023]
[539,{"$error":"#NAME?"},{"$error":"#NAME?"},{"$error":"#NAME?"},{"$error":"#NAME?"},null,{"$f":"NR_to_Cash!C$9","v":-155327},{"$f":"NR_to_Cash!D$9","v":-283877},{"$f":"NR_to_Cash!E$9","v":-105647},{"$f":"NR_to_Cash!F$9","v":-78023},null,539,-13739.474729966685,-894.76516697924342,-680.98567245160837,-7780.7974774335453,null,-155327,-283877,-105647,-78023]
[540,{"$error":"#NAME?"},{"$error":"#NAME?"},{"$error":"#NAME?"},{"$error":"#NAME?"},null,{"$f":"NR_to_Cash!C$9","v":-155327},{"$f":"NR_to_Cash!D$9","v":-283877},{"$f":"NR_to_Cash!E$9","v":-105647},{"$f":"NR_to_Cash!F$9","v":-78023},null,540,7666.5614272356943,-19021.915783603981,-11434.726879237533,-6912.214769581894,null,-155327,-283877,-105647,-78023]
[541,{"$error":"#NAME?"},{"$error":"#NAME?"},{"$error":"#NAME?"},{"$error":"#NAME?"},null,{"$f":"NR_to_Cash!C$9","v":-155327},{"$f":"NR_to_Cash!D$9","v":-283877},{"$f":"NR_to_Cash!E$9","v":-105647},{"$f":"NR_to_Cash!F$9","v":-78023},null,541,-23222.329371161937,15106.199667139415,-38716.294601048168,-7231.028654141176,null,-155327,-283877,-105647,-78023]
[542,{"$error":"#NAME?"},{"$error":"#NAME?"},{"$error":"#NAME?"},{"$error":"#NAME?"},null,{"$f":"NR_to_Cash!C$9","v":-155327},{"$f":"NR_to_Cash!D$9","v":-283877},{"$f":"NR_to_Cash!E$9","v":-105647},{"$f":"NR_to_Cash!F$9","v":-78023},null,542,-12942.479071652837,-39966.615832039213,-2324.0892336305756,-32223.425410378353,null,-155327,-283877,-105647,-78023]
[543,{"$error":"#NAME?"},{"$error":"#NAME?"},{"$error":"#NAME?"},{"$error":"#NAME?"},null,{"$f":"NR_to_Cash!C$9","v":-155327},{"$f":"NR_to_Cash!D$9","v":-283877},{"$f":"NR_to_Cash!E$9","v":-105647},{"$f":"NR_to_Cash!F$9","v":-78023},null,543,-19406.906508424086,-19242.167077974875,-5823.6496297223985,-2306.3860530018765,null,-155327,-283877,-105647,-78023]
[544,{"$error":"#NAME?"},{"$error":"#NAME?"},{"$error":"#NAME?"},{"$error":"#NAME?"},null,{"$f":"NR_to_Cash!C$9","v":-155327},{"$f":"NR_to_Cash!D$9","v":-283877},{"$f":"NR_to_Cash!E$9","v":-105647},{"$f":"NR_to_Cash!F$9","v":-78023},null,544,-7381.2994978447969,4548.5822067741183,-23604.586359916819,-4533.2442484590674,null,-155327,-283877,-105647,-78023]
[545,{"$error":"#NAME?"},{"$error":"#NAME?"},{"$error":"#NAME?"},{"$error":"#NAME?"},null,{"$f":"NR_to_Cash!C$9","v":-155327},{"$f":"NR_to_Cash!D$9","v":-283877},{"$f":"NR_to_Cash!E$9","v":-105647},{"$f":"NR_to_Cash!F$9","v":-78023},null,545,-29820.252963605395,-23669.776236384467,-14196.769642716967,-23916.20987910336,null,-155327,-283877,-105647,-78023]
[546,{"$error":"#NAME?"},{"$error":"#NAME?"},{"$error":"#NAME?"},{"$error":"#NAME?"},null,{"$f":"NR_to_Cash!C$9","v":-155327},{"$f":"NR_to_Cash!D$9","v":-283877},{"$f":"NR_to_Cash!E$9","v":-105647},{"$f":"NR_to_Cash!F$9","v":-78023},null,546,-21124.183549224435,-9283.8804933329684,-19873.234555716837,-13777.694265651098,null,-155327,-283877,-105647,-78023]
[547,{"$error":"#NAME?"},{"$error":"#NAME?"},{"$error":"#NAME?"},{"$error":"#NAME?"},null,{"$f":"NR_to_Cash!C$9","v":-155327},{"$f":"NR_to_Cash!D$9","v":-283877},{"$f":"NR_to_Cash!E$9","v":-105647},{"$f":"NR_to_Cash!F$9","v":-78023},null,547,-41597.713283215948,-14797.526123284486,-28884.87909061446,-4378.1781329831183,null,-155327,-283877,-105647,-78023]
[548,{"$error":"#NAME?"},{"$error":"#NAME?"},{"$error":"#NAME?"},{"$error":"#NAME?"},null,{"$f":"NR_to_Cash!C$9","v":-155327},{"$f":"NR_to_Cash!D$9","v":-283877},{"$f":"NR_to_Cash!E$9","v":-105647},{"$f":"NR_to_Cash!F$9","v":-78023},null,548,-13262.291616052004,16714.148435398292,-6726.7566181466855,-40290.249239032593,null,-155327,-283877,-105647,-78023]
[549,{"$error":"#NAME?"},{"$error":"#NAME?"},{"$error":"#NAME?"},{"$error":"#NAME?"},null,{"$f":"NR_to_Cash!C$9","v":-155327},{"$f":"NR_to_Cash!D$9","v":-283877},{"$f":"NR_to_Cash!E$9","v":-105647},{"$f":"NR_to_Cash!F$9","v":-78023},null,549,-12230.832007884605,-2366.9945213766005,-2491.4799056828019,13768.885425071412,null,-155327,-283877,-105647,-78023]
[550,{"$error":"#NAME?"},{"$error":"#NAME?"},{"$error":"#NAME?"},{"$error":"#NAME?"},null,{"$f":"NR_to_Cash!C$9","v":-155327},{"$f":"NR_to_Cash!D$9","v":-283877},{"$f":"NR_to_Cash!E$9","v":-105647},{"$f":"NR_to_Cash!F$9","v":-78023},null,550,-6448.3455009692298,-27612.595632786102,15051.385567152027,-24351.156370514549,null,-155327,-283877,-105647,-78023]
[551,{"$error":"#NAME?"},{"$error":"#NAME?"},{"$error":"#NAME?"},{"$error":"#NAME?"},null,{"$f":"NR_to_Cash!C$9","v":-155327},{"$f":"NR_to_Cash!D$9","v":-283877},{"$f":"NR_to_Cash!E$9","v":-105647},{"$f":"NR_to_Cash!F$9","v":-78023},null,551,-12226.987090339646,10320.572277436993,11092.322890214897,4721.8070722015636,null,-155327,-283877,-105647,-78023]
[552,{"$error":"#NAME?"},{"$error":"#NAME?"},{"$error":"#NAME?"},{"$error":"#NAME?"},null,{"$f":"NR_to_Cash!C$9","v":-155327},{"$f":"NR_to_Cash!D$9","v":-283877},{"$f":"NR_to_Cash!E$9","v":-105647},{"$f":"NR_to_Cash!F$9","v":-78023},null,552,-15553.578241264615,-695.41787802347892,-6985.5384234187486,-15439.802744331322,null,-155327,-283877,-105647,-78023]
[553,{"$error":"#NAME?"},{"$error":"#NAME?"},{"$error":"#NAME?"},{"$error":"#NAME?"},null,{"$f":"NR_to_Cash!C$9","v":-155327},{"$f":"NR_to_Cash!D$9","v":-283877},{"$f":"NR_to_Cash!E$9","v":-105647},{"$f":"NR_to_Cash!F$9","v":-78023},null,553,-14643.359688490225,-2350.8635576033867,-1612.9783393860553,-15175.780179654856,null,-155327,-283877,-105647,-78023]
[554,{"$error":"#NAME?"},{"$error":"#NAME?"},{"$error":"#NAME?"},{"$error":"#NAME?"},null,{"$f":"NR_to_Cash!C$9","v":-155327},{"$f":"NR_to_Cash!D$9","v":-283877},{"$f":"NR_to_Cash!E$9","v":-105647},{"$f":"NR_to_Cash!F$9","v":-78023},null,554,-12992.409911238767,-9337.4818390898399,5182.2878899597499,13438.829616677715,null,-155327,-283877,-105647,-78023]
[555,{"$error":"#NAME?"},{"$error":"#NAME?"},{"$error":"#NAME?"},{"$error":"#NAME?"},null,{"$f":"NR_to_Cash!C$9","v":-155327},{"$f":"NR_to_Cash!D$9","v":-283877},{"$f":"NR_to_Cash!E$9","v":-105647},{"$f":"NR_to_Cash!F$9","v":-78023},null,555,-20369.457411306073,-14466.716214085627,-9133.5660910800398,-19325.059383803535,null,-155327,-283877,-105647,-78023]
[556,{"$error":"#NAME?"},{"$error":"#NAME?"},{"$error":"#NAME?"},{"$error":"#NAME?"},null,{"$f":"NR_to_Cash!C$9","v":-155327},{"$f":"NR_to_Cash!D$9","v":-283877},{"$f":"NR_to_Cash!E$9","v":-105647},{"$f":"NR_to_Cash!F$9","v":-78023},null,556,-15661.33456418123,-2727.5111126708562,8257.335252650606,-11970.15365008114,null,-155327,-283877,-105647,-78023]
[557,{"$error":"#NAME?"},{"$error":"#NAME?"},{"$error":"#NAME?"},{"$error":"#NAME?"},null,{"$f":"NR_to_Cash!C$9","v":-155327},{"$f":"NR_to_Cash!D$9","v":-283877},{"$f":"NR_to_Cash!E$9","v":-105647},{"$f":"NR_to_Cash!F$9","v":-78023},null,557,-15088.404881491928,-38230.712016878439,-14865.202962840262,-29591.072930478873,null,-155327,-283877,-105647,-78023]
[558,{"$error":"#NAME?"},{"$error":"#NAME?"},{"$error":"#NAME?"},{"$error":"#NAME?"},null,{"$f":"NR_to_Cash!C$9","v":-155327},{"$f":"NR_to_Cash!D$9","v":-283877},{"$f":"NR_to_Cash!E$9","v":-105647},{"$f":"NR_to_Cash!F$9","v":-78023},null,558,-20996.937666584698,-26529.322894390945,-18756.259204116901,-3542.7355774119519,null,-155327,-283877,-105647,-78023]
[559,{"$error":"#NAME?"},{"$error":"#NAME?"},{"$error":"#NAME?"},{"$error":"#NAME?"},null,{"$f":"NR_to_Cash!C$9","v":-155327},{"$f":"NR_to_Cash!D$9","v":-283877},{"$f":"NR_to_Cash!E$9","v":-105647},{"$f":"NR_to_Cash!F$9","v":-78023},null,559,-11837.357830064673,-8474.1094220783489,43.071773467944411,-6125.4190163518324,null,-155327,-283877,-105647,-78023]
[560,{"$error":"#NAME?"},{"$error":"#NAME?"},{"$error":"#NAME?"},{"$error":"#NAME?"},null,{"$f":"NR_to_Cash!C$9","v":-155327},{"$f":"NR_to_Cash!D$9","v":-283877},{"$f":"NR_to_Cash!E$9","v":-105647},{"$f":"NR_to_Cash!F$9","v":-78023},null,560,-20093.995195830474,-11211.843154429793,-16437.20271165972,14782.085625009991,null,-155327,-283877,-105647,-78023]
[561,{"$error":"#NAME?"},{"$error":"#NAME?"},{"$error":"#NAME?"},{"$error":"#NAME?"},null,{"$f":"NR_to_Cash!C$9","v":-155327},{"$f":"NR_to_Cash!D$9","v":-283877},{"$f":"NR_to_Cash!E$9","v":-105647},{"$f":"NR_to_Cash!F$9","v":-78023},null,561,-5123.4936262920392,-17828.114461787904,-20976.52728828659,-19330.222195341237,null,-155327,-283877,-105647,-78023]
[562,{"$error":"#NAME?"},{"$error":"#NAME?"},{"$error":"#NAME?"},{"$error":"#NAME?"},null,{"$f":"NR_to_Cash!C$9","v":-155327},{"$f":"NR_to_Cash!D$9","v":-283877},{"$f":"NR_to_Cash!E$9","v":-105647},{"$f":"NR_to_Cash!F$9","v":-78023},null,562,-21675.157867445574,-25576.148073787474,-10617.4867203385,4508.6894039786002,null,-155327,-283877,-105647,-78023]
[563,{"$error":"#NAME?"},{"$error":"#NAME?"},{"$error":"#NAME?"},{"$error":"#NAME?"},null,{"$f":"NR_to_Cash!C$9","v":-155327},{"$f":"NR_to_Cash!D$9","v":-283877},{"$f":"NR_to_Cash!E$9","v":-105647},{"$f":"NR_to_Cash!F$9","v":-78023},null,563,-22130.148707830616,-2917.9698780720469,-25929.781143438842,-17135.361565783944,null,-155327,-283877,-105647,-78023]
[564,{"$error":"#NAME?"},{"$error":"#NAME?"},{"$error":"#NAME?"},{"$error":"#NAME?"},null,{"$f":"NR_to_Cash!C$9","v":-155327},{"$f":"NR_to_Cash!D$9","v":-283877},{"$f":"NR_to_Cash!E$9","v":-105647},{"$f":"NR_to_Cash!F$9","v":-78023},null,564,-3695.0920574437264,17284.649887964682,3191.6690960321639,-19459.522770054493,null,-155327,-283877,-105647,-78023]
[565,{"$error":"#NAME?"},{"$error":"#NAME?"},{"$error":"#NAME?"},{"$error":"#NAME?"},null,{"$f":"NR_to_Cash!C$9","v":-155327},{"$f":"NR_to_Cash!D$9","v":-283877},{"$f":"NR_to_Cash!E$9","v":-105647},{"$f":"NR_to_Cash!F$9","v":-78023},null,565,-5594.0767062085979,-26106.529730584298,-14668.856237713779,-28218.250262627698,null,-155327,-283877,-105647,-78023]
[566,{"$error":"#NAME?"},{"$error":"#NAME?"},{"$error":"#NAME?"},{"$error":"#NAME?"},null,{"$f":"NR_to_Cash!C$9","v":-155327},{"$f":"NR_to_Cash!D$9","v":-283877},{"$f":"NR_to_Cash!E$9","v":-105647},{"$f":"NR_to_Cash!F$9","v":-78023},null,566,-27437.590733068115,-9519.2785896235018,-17220.243392917208,-19041.158015885074,null,-155327,-283877,-105647,-78023]
[567,{"$error":"#NAME?"},{"$error":"#NAME?"},{"$error":"#NAME?"},{"$error":"#NAME?"},null,{"$f":"NR_to_Cash!C$9","v":-155327},{"$f":"NR_to_Cash!D$9","v":-283877},{"$f":"NR_to_Cash!E$9","v":-105647},{"$f":"NR_to_Cash!F$9","v":-78023},null,567,-16301.094429675411,-12573.762838343702,-22566.233145647348,-7354.8884092873241,null,-155327,-283877,-105647,-78023]
[568,{"$error":"#NAME?"},{"$error":"#NAME?"},{"$error":"#NAME?"},{"$error":"#NAME?"},null,{"$f":"NR_to_Cash!C$9","v":-155327},{"$f":"NR_to_Cash!D$9","v":-283877},{"$f":"NR_to_Cash!E$9","v":-105647},{"$f":"NR_to_Cash!F$9","v":-78023},null,568,7171.1276649151614,10740.506625627555,-19811.793659687988,1828.2139955591169,null,-155327,-283877,-105647,-78023]
[569,{"$error":"#NAME?"},{"$error":"#NAME?"},{"$error":"#NAME?"},{"$error":"#NAME?"},null,{"$f":"NR_to_Cash!C$9","v":-155327},{"$f":"NR_to_Cash!D$9","v":-283877},{"$f":"NR_to_Cash!E$9","v":-105647},{"$f":"NR_to_Cash!F$9","v":-78023},null,569,6518.46584498425,7647.4826518348818,-23490.365230331881,14408.514685236305,null,-155327,-283877,-105647,-78023]
[570,{"$error":"#NAME?"},{"$error":"#NAME?"},{"$error":"#NAME?"},{"$error":"#NAME?"},null,{"$f":"NR_to_Cash!C$9","v":-155327},{"$f":"NR_to_Cash!D$9","v":-283877},{"$f":"NR_to_Cash!E$9","v":-105647},{"$f":"NR_to_Cash!F$9","v":-78023},null,570,-7996.7755767113667,-5568.582381519278,-4236.1672296425058,-22686.572972846861,null,-155327,-283877,-105647,-78023]
[571,{"$error":"#NAME?"},{"$error":"#NAME?"},{"$error":"#NAME?"},{"$error":"#NAME?"},null,{"$f":"NR_to_Cash!C$9","v":-155327},{"$f":"NR_to_Cash!D$9","v":-283877},{"$f":"NR_to_Cash!E$9","v":-105647},{"$f":"NR_to_Cash!F$9","v":-78023},null,571,-34492.3382809709,-36735.013635149902,4808.032152825951,-19479.16753568843,null,-155327,-283877,-105647,-78023]
[572,{"$error":"#NAME?"},{"$error":"#NAME?"},{"$error":"#NAME?"},{"$error":"#NAME?"},null,{"$f":"NR_to_Cash!C$9","v":-155327},{"$f":"NR_to_Cash!D$9","v":-283877},{"$f":"NR_to_Cash!E$9","v":-105647},{"$f":"NR_to_Cash!F$9","v":-78023},null,572,-8572.6169553183972,-5735.3566636768428,2286.845298272181,-13047.415901473421,null,-155327,-283877,-105647,-78023]
[573,{"$error":"#NAME?"},{"$error":"#NAME?"},{"$error":"#NAME?"},{"$error":"#NAME?"},null,{"$f":"NR_to_Cash!C$9","v":-155327},{"$f":"NR_to_Cash!D$9","v":-283877},{"$f":"NR_to_Cash!E$9","v":-105647},{"$f":"NR_to_Cash!F$9","v":-78023},null,573,-1704.7500782655979,-15675.07061569426,1091.2739801672592,-16185.442708527808,null,-155327,-283877,-105647,-78023]
[574,{"$error":"#NAME?"},{"$error":"#NAME?"},{"$error":"#NAME?"},{"$error":"#NAME?"},null,{"$f":"NR_to_Cash!C$9","v":-155327},{"$f":"NR_to_Cash!D$9","v":-283877},{"$f":"NR_to_Cash!E$9","v":-105647},{"$f":"NR_to_Cash!F$9","v":-78023},null,574,-9183.2753154425063,-1072.78619440023,10418.640221768628,-14359.989268136964,null,-155327,-283877,-105647,-78023]
[575,{"$error":"#NAME?"},{"$error":"#NAME?"},{"$error":"#NAME?"},{"$error":"#NAME?"},null,{"$f":"NR_to_Cash!C$9","v":-155327},{"$f":"NR_to_Cash!D$9","v":-283877},{"$f":"NR_to_Cash!E$9","v":-105647},{"$f":"NR_to_Cash!F$9","v":-78023},null,575,-10842.669692897092,10083.888017817935,20302.241058008716,788.39936992290109,null,-155327,-283877,-105647,-78023]
[576,{"$error":"#NAME?"},{"$error":"#NAME?"},{"$error":"#NAME?"},{"$error":"#NAME?"},null,{"$f":"NR_to_Cash!C$9","v":-155327},{"$f":"NR_to_Cash!D$9","v":-283877},{"$f":"NR_to_Cash!E$9","v":-105647},{"$f":"NR_to_Cash!F$9","v":-78023},null,576,-21461.624786170396,-10872.476943436393,-23767.698690436519,7869.5130216773223,null,-155327,-283877,-105647,-78023]
[577,{"$error":"#NAME?"},{"$error":"#NAME?"},{"$error":"#NAME?"},{"$error":"#NAME?"},null,{"$f":"NR_to_Cash!C$9","v":-155327},{"$f":"NR_to_Cash!D$9","v":-283877},{"$f":"NR_to_Cash!E$9","v":-105647},{"$f":"NR_to_Cash!F$9","v":-78023},null,577,-18591.227708148759,-3821.5089265912302,-16281.615859916103,-33887.346034689399,null,-155327,-283877,-105647,-78023]
[578,{"$error":"#NAME?"},{"$error":"#NAME?"},{"$error":"#NAME?"},{"$error":"#NAME?"},null,{"$f":"NR_to_Cash!C$9","v":-155327},{"$f":"NR_to_Cash!D$9","v":-283877},{"$f":"NR_to_Cash!E$9","v":-105647},{"$f":"NR_to_Cash!F$9","v":-78023},null,578,-17178.796134351291,-11273.201577122687,-15912.430558173413,-36588.128776763464,null,-155327,-283877,-105647,-78023]
[579,{"$error":"#NAME?"},{"$error":"#NAME?"},{"$error":"#NAME?"},{"$error":"#NAME?"},null,{"$f":"NR_to_Cash!C$9","v":-155327},{"$f":"NR_to_Cash!D$9","v":-283877},{"$f":"NR_to_Cash!E$9","v":-105647},{"$f":"NR_to_Cash!F$9","v":-78023},null,579,-4235.1319290900938,-30623.393021813266,-20751.394469199688,-45761.541575780102,null,-155327,-283877,-105647,-78023]
[580,{"$error":"#NAME?"},{"$error":"#NAME?"},{"$error":"#NAME?"},{"$error":"#NAME?"},null,{"$f":"NR_to_Cash!C$9","v":-155327},{"$f":"NR_to_Cash!D$9","v":-283877},{"$f":"NR_to_Cash!E$9","v":-105647},{"$f":"NR_to_Cash!F$9","v":-78023},null,580,-16615.628048773528,5827.0090249738632,-20220.319821649377,2993.58599418317,null,-155327,-283877,-105647,-78023]
[581,{"$error":"#NAME?"},{"$error":"#NAME?"},{"$error":"#NAME?"},{"$error":"#NAME?"},null,{"$f":"NR_to_Cash!C$9","v":-155327},{"$f":"NR_to_Cash!D$9","v":-283877},{"$f":"NR_to_Cash!E$9","v":-105647},{"$f":"NR_to_Cash!F$9","v":-78023},null,581,-2506.1320384835362,-25214.655543671361,18544.772709321493,7609.8106761116469,null,-155327,-283877,-105647,-78023]
[582,{"$error":"#NAME?"},{"$error":"#NAME?"},{"$error":"#NAME?"},{"$error":"#NAME?"},null,{"$f":"NR_to_Cash!C$9","v":-155327},{"$f":"NR_to_Cash!D$9","v":-283877},{"$f":"NR_to_Cash!E$9","v":-105647},{"$f":"NR_to_Cash!F$9","v":-78023},null,582,-7265.056001042125,-19025.076180041502,-11661.788516305642,6764.0484761236576,null,-155327,-283877,-105647,-78023]
[583,{"$error":"#NAME?"},{"$error":"#NAME?"},{"$error":"#NAME?"},{"$error":"#NAME?"},null,{"$f":"NR_to_Cash!C$9","v":-155327},{"$f":"NR_to_Cash!D$9","v":-283877},{"$f":"NR_to_Cash!E$9","v":-105647},{"$f":"NR_to_Cash!F$9","v":-78023},null,583,11727.892522430659,170.30250560936631,-38450.641459398576,16364.565618519546,null,-155327,-283877,-105647,-78023]
[584,{"$error":"#NAME?"},{"$error":"#NAME?"},{"$error":"#NAME?"},{"$error":"#NAME?"},null,{"$f":"NR_to_Cash!C$9","v":-155327},{"$f":"NR_to_Cash!D$9","v":-283877},{"$f":"NR_to_Cash!E$9","v":-105647},{"$f":"NR_to_Cash!F$9","v":-78023},null,584,-19809.331222332836,-21730.713013346212,-4057.7998710538191,-7699.2309327459498,null,-155327,-283877,-105647,-78023]
[585,{"$error":"#NAME?"},{"$error":"#NAME?"},{"$error":"#NAME?"},{"$error":"#NAME?"},null,{"$f":"NR_to_Cash!C$9","v":-155327},{"$f":"NR_to_Cash!D$9","v":-283877},{"$f":"NR_to_Cash!E$9","v":-105647},{"$f":"NR_to_Cash!F$9","v":-78023},null,585,-13639.638486442429,-8340.5538982913404,-7939.2940052375197,-3415.1671315376798,null,-155327,-283877,-105647,-78023]
[586,{"$error":"#NAME?"},{"$error":"#NAME?"},{"$error":"#NAME?"},{"$error":"#NAME?"},null,{"$f":"NR_to_Cash!C$9","v":-155327},{"$f":"NR_to_Cash!D$9","v":-283877},{"$f":"NR_to_Cash!E$9","v":-105647},{"$f":"NR_to_Cash!F$9","v":-78023},null,586,-23326.208885315144,-18841.14605254422,-2143.2334809163235,-45380.129996796626,null,-155327,-283877,-105647,-78023]
[587,{"$error":"#NAME?"},{"$error":"#NAME?"},{"$error":"#NAME?"},{"$error":"#NAME?"},null,{"$f":"NR_to_Cash!C$9","v":-155327},{"$f":"NR_to_Cash!D$9","v":-283877},{"$f":"NR_to_Cash!E$9","v":-105647},{"$f":"NR_to_Cash!F$9","v":-78023},null,587,316.85739928784795,-23522.88863243255,-2653.0161752958811,-15188.728096994979,null,-155327,-283877,-105647,-78023]
[588,{"$error":"#NAME?"},{"$error":"#NAME?"},{"$error":"#NAME?"},{"$error":"#NAME?"},null,{"$f":"NR_to_Cash!C$9","v":-155327},{"$f":"NR_to_Cash!D$9","v":-283877},{"$f":"NR_to_Cash!E$9","v":-105647},{"$f":"NR_to_Cash!F$9","v":-78023},null,588,3369.4377615359672,-17988.208909091918,-8351.4960009949336,-25951.54370104913,null,-155327,-283877,-105647,-78023]
[589,{"$error":"#NAME?"},{"$error":"#NAME?"},{"$error":"#NAME?"},{"$error":"#NAME?"},null,{"$f":"NR_to_Cash!C$9","v":-155327},{"$f":"NR_to_Cash!D$9","v":-283877},{"$f":"NR_to_Cash!E$9","v":-105647},{"$f":"NR_to_Cash!F$9","v":-78023},null,589,-15245.944716133214,12223.618411915188,-1200.2292092635957,-8382.0439756815158,null,-155327,-283877,-105647,-78023]
[590,{"$error":"#NAME?"},{"$error":"#NAME?"},{"$error":"#NAME?"},{"$error":"#NAME?"},null,{"$f":"NR_to_Cash!C$9","v":-155327},{"$f":"NR_to_Cash!D$9","v":-283877},{"$f":"NR_to_Cash!E$9","v":-105647},{"$f":"NR_to_Cash!F$9","v":-78023},null,590,-24137.853704436111,-3916.8779057169013,-7095.1207929786206,-18843.000466852383,null,-155327,-283877,-105647,-78023]
[591,{"$error":"#NAME?"},{"$error":"#NAME?"},{"$error":"#NAME?"},{"$error":"#NAME?"},null,{"$f":"NR_to_Cash!C$9","v":-155327},{"$f":"NR_to_Cash!D$9","v":-283877},{"$f":"NR_to_Cash!E$9","v":-105647},{"$f":"NR_to_Cash!F$9","v":-78023},null,591,964.48439273011672,8234.0475902873768,-19553.630665485769,-26126.274024621991,null,-155327,-283877,-105647,-78023]
[592,{"$error":"#NAME?"},{"$error":"#NAME?"},{"$error":"#NAME?"},{"$error":"#NAME?"},null,{"$f":"NR_to_Cash!C$9","v":-155327},{"$f":"NR_to_Cash!D$9","v":-283877},{"$f":"NR_to_Cash!E$9","v":-105647},{"$f":"NR_to_Cash!F$9","v":-78023},null,592,-23004.139544996178,-15121.57752917465,-11885.924537985336,-9127.2028386964794,null,-155327,-283877,-105647,-78023]
[593,{"$error":"#NAME?"},{"$error":"#NAME?"},{"$error":"#NAME?"},{"$error":"#NAME?"},null,{"$f":"NR_to_Cash!C$9","v":-155327},{"$f":"NR_to_Cash!D$9","v":-283877},{"$f":"NR_to_Cash!E$9","v":-105647},{"$f":"NR_to_Cash!F$9","v":-78023},null,593,-15579.917482501703,-6377.2691067250416,-12517.812724203595,-11335.430364694497,null,-155327,-283877,-105647,-78023]
[594,{"$error":"#NAME?"},{"$error":"#NAME?"},{"$error":"#NAME?"},{"$error":"#NAME?"},null,{"$f":"NR_to_Cash!C$9","v":-155327},{"$f":"NR_to_Cash!D$9","v":-283877},{"$f":"NR_to_Cash!E$9","v":-105647},{"$f":"NR_to_Cash!F$9","v":-78023},null,594,493.38400297596701,-19003.803074651627,-22640.369662718236,-14194.552875681444,null,-155327,-283877,-105647,-78023]
[595,{"$error":"#NAME?"},{"$error":"#NAME?"},{"$error":"#NAME?"},{"$error":"#NAME?"},null,{"$f":"NR_to_Cash!C$9","v":-155327},{"$f":"NR_to_Cash!D$9","v":-283877},{"$f":"NR_to_Cash!E$9","v":-105647},{"$f":"NR_to_Cash!F$9","v":-78023},null,595,-19672.267940652611,23112.828115250279,6624.6357882730945,1558.0311450885131,null,-155327,-283877,-105647,-78023]
[596,{"$error":"#NAME?"},{"$error":"#NAME?"},{"$error":"#NAME?"},{"$error":"#NAME?"},null,{"$f":"NR_to_Cash!C$9","v":-155327},{"$f":"NR_to_Cash!D$9","v":-283877},{"$f":"NR_to_Cash!E$9","v":-105647},{"$f":"NR_to_Cash!F$9","v":-78023},null,596,-3222.6641484839547,-10671.659075151594,-3679.0048298018414,798.43687091983202,null,-155327,-283877,-105647,-78023]
[597,{"$error":"#NAME?"},{"$error":"#NAME?"},{"$error":"#NAME?"},{"$error":"#NAME?"},null,{"$f":"NR_to_Cash!C$9","v":-155327},{"$f":"NR_to_Cash!D$9","v":-283877},{"$f":"NR_to_Cash!E$9","v":-105647},{"$f":"NR_to_Cash!F$9","v":-78023},null,597,-18689.211328407859,-587.2624763153359,2862.5620937295116,-2532.8409343102257,null,-155327,-283877,-105647,-78023]
[598,{"$error":"#NAME?"},{"$error":"#NAME?"},{"$error":"#NAME?"},{"$error":"#NAME?"},null,{"$f":"NR_to_Cash!C$9","v":-155327},{"$f":"NR_to_Cash!D$9","v":-283877},{"$f":"NR_to_Cash!E$9","v":-105647},{"$f":"NR_to_Cash!F$9","v":-78023},null,598,8957.2789717182422,-5302.7751231186976,7001.538218923477,-16862.534403720336,null,-155327,-283877,-105647,-78023]
[599,{"$error":"#NAME?"},{"$error":"#NAME?"},{"$error":"#NAME?"},{"$error":"#NAME?"},null,{"$f":"NR_to_Cash!C$9","v":-155327},{"$f":"NR_to_Cash!D$9","v":-283877},{"$f":"NR_to_Cash!E$9","v":-105647},{"$f":"NR_to_Cash!F$9","v":-78023},null,599,-19466.468734117705,-26746.094828778412,-10184.063439221327,-22947.836525047831,null,-155327,-283877,-105647,-78023]
[600,{"$error":"#NAME?"},{"$error":"#NAME?"},{"$error":"#NAME?"},{"$error":"#NAME?"},null,{"$f":"NR_to_Cash!C$9","v":-155327},{"$f":"NR_to_Cash!D$9","v":-283877},{"$f":"NR_to_Cash!E$9","v":-105647},{"$f":"NR_to_Cash!F$9","v":-78023},null,600,-1983.1431544491097,-10716.798715461404,-8360.4167058455223,-30233.11616786083,null,-155327,-283877,-105647,-78023]
[601,{"$error":"#NAME?"},{"$error":"#NAME?"},{"$error":"#NAME?"},{"$error":"#NAME?"},null,{"$f":"NR_to_Cash!C$9","v":-155327},{"$f":"NR_to_Cash!D$9","v":-283877},{"$f":"NR_to_Cash!E$9","v":-105647},{"$f":"NR_to_Cash!F$9","v":-78023},null,601,-18346.467546926411,-8869.8760379243413,-21556.814925155762,-25513.91537917791,null,-155327,-283877,-105647,-78023]
[602,{"$error":"#NAME?"},{"$error":"#NAME?"},{"$error":"#NAME?"},{"$error":"#NAME?"},null,{"$f":"NR_to_Cash!C$9","v":-155327},{"$f":"NR_to_Cash!D$9","v":-283877},{"$f":"NR_to_Cash!E$9","v":-105647},{"$f":"NR_to_Cash!F$9","v":-78023},null,602,-9842.1640560092674,-8572.3258488324918,-9406.3167855595693,-12379.001139897086,null,-155327,-283877,-105647,-78023]
[603,{"$error":"#NAME?"},{"$error":"#NAME?"},{"$error":"#NAME?"},{"$error":"#NAME?"},null,{"$f":"NR_to_Cash!C$9","v":-155327},{"$f":"NR_to_Cash!D$9","v":-283877},{"$f":"NR_to_Cash!E$9","v":-105647},{"$f":"NR_to_Cash!F$9","v":-78023},null,603,-17055.325697148142,5094.5863872256205,-2232.3071949901646,-3011.0461056775407,null,-155327,-283877,-105647,-78023]
[604,{"$error":"#NAME?"},{"$error":"#NAME?"},{"$error":"#NAME?"},{"$error":"#NAME?"},null,{"$f":"NR_to_Cash!C$9","v":-155327},{"$f":"NR_to_Cash!D$9","v":-283877},{"$f":"NR_to_Cash!E$9","v":-105647},{"$f":"NR_to_Cash!F$9","v":-78023},null,604,-12321.654736593826,-3535.3926247263812,17458.368124871118,600.61539658640913,null,-155327,-283877,-105647,-78023]
[605,{"$error":"#NAME?"},{"$error":"#NAME?"},{"$error":"#NAME?"},{"$error":"#NAME?"},null,{"$f":"NR_to_Cash!C$9","v":-155327},{"$f":"NR_to_Cash!D$9","v":-283877},{"$f":"NR_to_Cash!E$9","v":-105647},{"$f":"NR_to_Cash!F$9","v":-78023},null,605,-19131.10560012011,-3957.3825362043531,-24458.21091732031,12897.873849040778,null,-155327,-283877,-105647,-78023]
[606,{"$error":"#NAME?"},{"$error":"#NAME?"},{"$error":"#NAME?"},{"$error":"#NAME?"},null,{"$f":"NR_to_Cash!C$9","v":-155327},{"$f":"NR_to_Cash!D$9","v":-283877},{"$f":"NR_to_Cash!E$9","v":-105647},{"$f":"NR_to_Cash!F$9","v":-78023},null,606,-6948.504924580905,15192.131323719541,-14361.50691478682,-48538.604668204862,null,-155327,-283877,-105647,-78023]
[607,{"$error":"#NAME?"},{"$error":"#NAME?"},{"$error":"#NAME?"},{"$error":"#NAME?"},null,{"$f":"NR_to_Cash!C$9","v":-155327},{"$f":"NR_to_Cash!D$9","v":-283877},{"$f":"NR_to_Cash!E$9","v":-105647},{"$f":"NR_to_Cash!F$9","v":-78023},null,607,2540.3127692522057,1235.6051880337604,-15278.569487419882,17769.469722354515,null,-155327,-283877,-105647,-78023]
[608,{"$error":"#NAME?"},{"$error":"#NAME?"},{"$error":"#NAME?"},{"$error":"#NAME?"},null,{"$f":"NR_to_Cash!C$9","v":-155327},{"$f":"NR_to_Cash!D$9","v":-283877},{"$f":"NR_to_Cash!E$9","v":-105647},{"$f":"NR_to_Cash!F$9","v":-78023},null,608,17521.149682096991,-8755.5573169934869,6602.3267369420282,-37749.083333961578,null,-155327,-283877,-105647,-78023]
[609,{"$error":"#NAME?"},{"$error":"#NAME?"},{"$error":"#NAME?"},{"$error":"#NAME?"},null,{"$f":"NR_to_Cash!C$9","v":-155327},{"$f":"NR_to_Cash!D$9","v":-283877},{"$f":"NR_to_Cash!E$9","v":-105647},{"$f":"NR_to_Cash!F$9","v":-78023},null,609,-10765.601571455954,-4769.4283515489606,-9073.9818022179115,8891.8698474125304,null,-155327,-283877,-105647,-78023]
[610,{"$error":"#NAME?"},{"$error":"#NAME?"},{"$error":"#NAME?"},{"$error":"#NAME?"},null,{"$f":"NR_to_Cash!C$9","v":-155327},{"$f":"NR_to_Cash!D$9","v":-283877},{"$f":"NR_to_Cash!E$9","v":-105647},{"$f":"NR_to_Cash!F$9","v":-78023},null,610,-8995.1361918997609,-26601.061013331597,-24009.738788695868,-384.10934959347895,null,-155327,-283877,-105647,-78023]
[611,{"$error":"#NAME?"},{"$error":"#NAME?"},{"$error":"#NAME?"},{"$error":"#NAME?"},null,{"$f":"NR_to_Cash!C$9","v":-155327},{"$f":"NR_to_Cash!D$9","v":-283877},{"$f":"NR_to_Cash!E$9","v":-105647},{"$f":"NR_to_Cash!F$9","v":-78023},null,611,-942.71204234738866,-10446.600504890457,-7147.8209966432278,-1965.2922235526712,null,-155327,-283877,-105647,-78023]
[612,{"$error":"#NAME?"},{"$error":"#NAME?"},{"$error":"#NAME?"},{"$error":"#NAME?"},null,{"$f":"NR_to_Cash!C$9","v":-155327},{"$f":"NR_to_Cash!D$9","v":-283877},{"$f":"NR_to_Cash!E$9","v":-105647},{"$f":"NR_to_Cash!F$9","v":-78023},null,612,-28626.954241481864,-15001.526492864166,3630.908051343481,-12213.04434456691,null,-155327,-283877,-105647,-78023]
[613,{"$error":"#NAME?"},{"$error":"#NAME?"},{"$error":"#NAME?"},{"$error":"#NAME?"},null,{"$f":"NR_to_Cash!C$9","v":-155327},{"$f":"NR_to_Cash!D$9","v":-283877},{"$f":"NR_to_Cash!E$9","v":-105647},{"$f":"NR_to_Cash!F$9","v":-78023},null,613,-2083.4813240438116,-20910.17903248415,-20317.356697869251,-27583.849975936588,null,-155327,-283877,-105647,-78023]
[614,{"$error":"#NAME?"},{"$error":"#NAME?"},{"$error":"#NAME?"},{"$error":"#NAME?"},null,{"$f":"NR_to_Cash!C$9","v":-155327},{"$f":"NR_to_Cash!D$9","v":-283877},{"$f":"NR_to_Cash!E$9","v":-105647},{"$f":"NR_to_Cash!F$9","v":-78023},null,614,-10698.654203730501,-14473.835090360277,-33560.888283871711,-6676.9624013735693,null,-155327,-283877,-105647,-78023]
[615,{"$error":"#NAME?"},{"$error":"#NAME?"},{"$error":"#NAME?"},{"$error":"#NAME?"},null,{"$f":"NR_to_Cash!C$9","v":-155327},{"$f":"NR_to_Cash!D$9","v":-283877},{"$f":"NR_to_Cash!E$9","v":-105647},{"$f":"NR_to_Cash!F$9","v":-78023},null,615,4615.5875938564004,-985.24394282992853,-8824.1817978858362,-29121.809648855957,null,-155327,-283877,-105647,-78023]
[616,{"$error":"#NAME?"},{"$error":"#NAME?"},{"$error":"#NAME?"},{"$error":"#NAME?"},null,{"$f":"NR_to_Cash!C$9","v":-155327},{"$f":"NR_to_Cash!D$9","v":-283877},{"$f":"NR_to_Cash!E$9","v":-105647},{"$f":"NR_to_Cash!F$9","v":-78023},null,616,-21093.388141917985,-6892.2847868235731,-6998.2951610452155,-3000.8357718564348,null,-155327,-283877,-105647,-78023]
[617,{"$error":"#NAME?"},{"$error":"#NAME?"},{"$error":"#NAME?"},{"$error":"#NAME?"},null,{"$f":"NR_to_Cash!C$9","v":-155327},{"$f":"NR_to_Cash!D$9","v":-283877},{"$f":"NR_to_Cash!E$9","v":-105647},{"$f":"NR_to_Cash!F$9","v":-78023},null,617,-25468.954671911757,-9505.6876812865285,-4531.9254310248143,27721.59195278888,null,-155327,-283877,-105647,-78023]
[618,{"$error":"#NAME?"},{"$error":"#NAME?"},{"$error":"#NAME?"},{"$error":"#NAME?"},null,{"$f":"NR_to_Cash!C$9","v":-155327},{"$f":"NR_to_Cash!D$9","v":-283877},{"$f":"NR_to_Cash!E$9","v":-105647},{"$f":"NR_to_Cash!F$9","v":-78023},null,618,-23495.21472136251,-17108.402785943217,-22732.478692558918,-13422.213213419966,null,-155327,-283877,-105647,-78023]
[619,{"$error":"#NAME?"},{"$error":"#NAME?"},{"$error":"#NAME?"},{"$error":"#NAME?"},null,{"$f":"NR_to_Cash!C$9","v":-155327},{"$f":"NR_to_Cash!D$9","v":-283877},{"$f":"NR_to_Cash!E$9","v":-105647},{"$f":"NR_to_Cash!F$9","v":-78023},null,619,-20054.977562132084,-25356.376042303153,-406.70384988795098,9852.9844414330055,null,-155327,-283877,-105647,-78023]
[620,{"$error":"#NAME?"},{"$error":"#NAME?"},{"$error":"#NAME?"},{"$error":"#NAME?"},null,{"$f":"NR_to_Cash!C$9","v":-155327},{"$f":"NR_to_Cash!D$9","v":-283877},{"$f":"NR_to_Cash!E$9","v":-105647},{"$f":"NR_to_Cash!F$9","v":-78023},null,620,-11551.342743134383,-7768.6293655717918,-28819.17782082468,-11071.118245115173,null,-155327,-283877,-105647,-78023]
[621,{"$error":"#NAME?"},{"$error":"#NAME?"},{"$error":"#NAME?"},{"$error":"#NAME?"},null,{"$f":"NR_to_Cash!C$9","v":-155327},{"$f":"NR_to_Cash!D$9","v":-283877},{"$f":"NR_to_Cash!E$9","v":-105647},{"$f":"NR_to_Cash!F$9","v":-78023},null,621,-19888.569229562527,-12242.397754593556,-2189.6616943015242,-22110.658313942215,null,-155327,-283877,-105647,-78023]
[622,{"$error":"#NAME?"},{"$error":"#NAME?"},{"$error":"#NAME?"},{"$error":"#NAME?"},null,{"$f":"NR_to_Cash!C$9","v":-155327},{"$f":"NR_to_Cash!D$9","v":-283877},{"$f":"NR_to_Cash!E$9","v":-105647},{"$f":"NR_to_Cash!F$9","v":-78023},null,622,-93.74696577749404,-22272.582676899456,-26119.630538381349,5283.3141235274961,null,-155327,-283877,-105647,-78023]
[623,{"$error":"#NAME?"},{"$error":"#NAME?"},{"$error":"#NAME?"},{"$error":"#NAME?"},null,{"$f":"NR_to_Cash!C$9","v":-155327},{"$f":"NR_to_Cash!D$9","v":-283877},{"$f":"NR_to_Cash!E$9","v":-105647},{"$f":"NR_to_Cash!F$9","v":-78023},null,623,94.80924273581121,10477.205620156808,-17388.944471029336,-9564.2446686722324,null,-155327,-283877,-105647,-78023]
[624,{"$error":"#NAME?"},{"$error":"#NAME?"},{"$error":"#NAME?"},{"$error":"#NAME?"},null,{"$f":"NR_to_Cash!C$9","v":-155327},{"$f":"NR_to_Cash!D$9","v":-283877},{"$f":"NR_to_Cash!E$9","v":-105647},{"$f":"NR_to_Cash!F$9","v":-78023},null,624,-14117.318144882825,4350.3882183381093,-17810.041607272971,-9699.6588091326612,null,-155327,-283877,-105647,-78023]
[625,{"$error":"#NAME?"},{"$error":"#NAME?"},{"$error":"#NAME?"},{"$error":"#NAME?"},null,{"$f":"NR_to_Cash!C$9","v":-155327},{"$f":"NR_to_Cash!D$9","v":-283877},{"$f":"NR_to_Cash!E$9","v":-105647},{"$f":"NR_to_Cash!F$9","v":-78023},null,625,1614.8093962006583,-4954.8815468483735,-18385.173761979193,-11906.952842330889,null,-155327,-283877,-105647,-78023]
[626,{"$error":"#NAME?"},{"$error":"#NAME?"},{"$error":"#NAME?"},{"$error":"#NAME?"},null,{"$f":"NR_to_Cash!C$9","v":-155327},{"$f":"NR_to_Cash!D$9","v":-283877},{"$f":"NR_to_Cash!E$9","v":-105647},{"$f":"NR_to_Cash!F$9","v":-78023},null,626,11168.924159549799,-20184.950526215285,-18616.932427239568,-12721.429833406506,null,-155327,-283877,-105647,-78023]
[627,{"$error":"#NAME?"},{"$error":"#NAME?"},{"$error":"#NAME?"},{"$error":"#NAME?"},null,{"$f":"NR_to_Cash!C$9","v":-155327},{"$f":"NR_to_Cash!D$9","v":-283877},{"$f":"NR_to_Cash!E$9","v":-105647},{"$f":"NR_to_Cash!F$9","v":-78023},null,627,-9184.4625197965179,2638.6130283621119,-23048.091617082118,-4617.4635218237781,null,-155327,-283877,-105647,-78023]
[628,{"$error":"#NAME?"},{"$error":"#NAME?"},{"$error":"#NAME?"},{"$error":"#NAME?"},null,{"$f":"NR_to_Cash!C$9","v":-155327},{"$f":"NR_to_Cash!D$9","v":-283877},{"$f":"NR_to_Cash!E$9","v":-105647},{"$f":"NR_to_Cash!F$9","v":-78023},null,628,-3497.1043059804256,4155.338762946606,5833.4484689728642,-21088.867191473128,null,-155327,-283877,-105647,-78023]
[629,{"$error":"#NAME?"},{"$error":"#NAME?"},{"$error":"#NAME?"},{"$error":"#NAME?"},null,{"$f":"NR_to_Cash!C$9","v":-155327},{"$f":"NR_to_Cash!D$9","v":-283877},{"$f":"NR_to_Cash!E$9","v":-105647},{"$f":"NR_to_Cash!F$9","v":-78023},null,629,-5672.1583945480315,-2671.6306361658299,-3459.8827838912084,-11421.688202472458,null,-155327,-283877,-105647,-78023]
[630,{"$error":"#NAME?"},{"$error":"#NAME?"},{"$error":"#NAME?"},{"$error":"#NAME?"},null,{"$f":"NR_to_Cash!C$9","v":-155327},{"$f":"NR_to_Cash!D$9","v":-283877},{"$f":"NR_to_Cash!E$9","v":-105647},{"$f":"NR_to_Cash!F$9","v":-78023},null,630,-21837.047675598846,9791.6666179900494,-3958.7842346112907,-26917.803932355349,null,-155327,-283877,-105647,-78023]
[631,{"$error":"#NAME?"},{"$error":"#NAME?"},{"$error":"#NAME?"},{"$error":"#NAME?"},null,{"$f":"NR_to_Cash!C$9","v":-155327},{"$f":"NR_to_Cash!D$9","v":-283877},{"$f":"NR_to_Cash!E$9","v":-105647},{"$f":"NR_to_Cash!F$9","v":-78023},null,631,-20254.121901360148,-24872.3040896518,8777.8587741786832,7530.3734555971432,null,-155327,-283877,-105647,-78023]
[632,{"$error":"#NAME?"},{"$error":"#NAME?"},{"$error":"#NAME?"},{"$error":"#NAME?"},null,{"$f":"NR_to_Cash!C$9","v":-155327},{"$f":"NR_to_Cash!D$9","v":-283877},{"$f":"NR_to_Cash!E$9","v":-105647},{"$f":"NR_to_Cash!F$9","v":-78023},null,632,-24589.15288574178,-362.60972173866156,893.19244196426541,-24840.676424218942,null,-155327,-283877,-105647,-78023]
[633,{"$error":"#NAME?"},{"$error":"#NAME?"},{"$error":"#NAME?"},{"$error":"#NAME?"},null,{"$f":"NR_to_Cash!C$9","v":-155327},{"$f":"NR_to_Cash!D$9","v":-283877},{"$f":"NR_to_Cash!E$9","v":-105647},{"$f":"NR_to_Cash!F$9","v":-78023},null,633,-9885.4255841358972,-7102.2412366939661,6615.7776887328364,-26631.276402078354,null,-155327,-283877,-105647,-78023]
[634,{"$error":"#NAME?"},{"$error":"#NAME?"},{"$error":"#NAME?"},{"$error":"#NAME?"},null,{"$f":"NR_to_Cash!C$9","v":-155327},{"$f":"NR_to_Cash!D$9","v":-283877},{"$f":"NR_to_Cash!E$9","v":-105647},{"$f":"NR_to_Cash!F$9","v":-78023},null,634,695.75580869648115,-15553.889695205255,-35445.664828972549,-6909.399362067039,null,-155327,-283877,-105647,-78023]
[635,{"$error":"#NAME?"},{"$error":"#NAME?"},{"$error":"#NAME?"},{"$error":"#NAME?"},null,{"$f":"NR_to_Cash!C$9","v":-155327},{"$f":"NR_to_Cash!D$9","v":-283877},{"$f":"NR_to_Cash!E$9","v":-105647},{"$f":"NR_to_Cash!F$9","v":-78023},null,635,-17929.048709743663,-7388.6710278302089,-28744.616889179841,1211.5052013556074,null,-155327,-283877,-105647,-78023]
[636,{"$error":"#NAME?"},{"$error":"#NAME?"},{"$error":"#NAME?"},{"$error":"#NAME?"},null,{"$f":"NR_to_Cash!C$9","v":-155327},{"$f":"NR_to_Cash!D$9","v":-283877},{"$f":"NR_to_Cash!E$9","v":-105647},{"$f":"NR_to_Cash!F$9","v":-78023},null,636,-20496.225331105608,8165.558810259462,-3864.7621988782798,7437.9159835595556,null,-155327,-283877,-105647,-78023]
[637,{"$error":"#NAME?"},{"$error":"#NAME?"},{"$error":"#NAME?"},{"$error":"#NAME?"},null,{"$f":"NR_to_Cash!C$9","v":-155327},{"$f":"NR_to_Cash!D$9","v":-283877},{"$f":"NR_to_Cash!E$9","v":-105647},{"$f":"NR_to_Cash!F$9","v":-78023},null,637,-10142.246540914683,11118.430476478909,-33509.009912469628,-1524.9921688045974,null,-155327,-283877,-105647,-78023]
[638,{"$error":"#NAME?"},{"$error":"#NAME?"},{"$error":"#NAME?"},{"$error":"#NAME?"},null,{"$f":"NR_to_Cash!C$9","v":-155327},{"$f":"NR_to_Cash!D$9","v":-283877},{"$f":"NR_to_Cash!E$9","v":-105647},{"$f":"NR_to_Cash!F$9","v":-78023},null,638,-12316.127048130793,7541.0838183217875,-20092.104911975202,4642.6760600191592,null,-155327,-283877,-105647,-78023]
[639,{"$error":"#NAME?"},{"$error":"#NAME?"},{"$error":"#NAME?"},{"$error":"#NAME?"},null,{"$f":"NR_to_Cash!C$9","v":-155327},{"$f":"NR_to_Cash!D$9","v":-283877},{"$f":"NR_to_Cash!E$9","v":-105647},{"$f":"NR_to_Cash!F$9","v":-78023},null,639,-26646.961245554001,-16433.049160409821,477.25906843681219,-19.426839724227612,null,-155327,-283877,-105647,-78023]
[640,{"$error":"#NAME?"},{"$error":"#NAME?"},{"$error":"#NAME?"},{"$error":"#NAME?"},null,{"$f":"NR_to_Cash!C$9","v":-155327},{"$f":"NR_to_Cash!D$9","v":-283877},{"$f":"NR_to_Cash!E$9","v":-105647},{"$f":"NR_to_Cash!F$9","v":-78023},null,640,-18916.62649533707,15269.684470031207,-5325.925223096966,-38048.438976439953,null,-155327,-283877,-105647,-78023]
[641,{"$error":"#NAME?"},{"$error":"#NAME?"},{"$error":"#NAME?"},{"$error":"#NAME?"},null,{"$f":"NR_to_Cash!C$9","v":-155327},{"$f":"NR_to_Cash!D$9","v":-283877},{"$f":"NR_to_Cash!E$9","v":-105647},{"$f":"NR_to_Cash!F$9","v":-78023},null,641,-19039.412977160704,-20629.030414399611,-17749.897119925208,-4834.7487074071705,null,-155327,-283877,-105647,-78023]
[642,{"$error":"#NAME?"},{"$error":"#NAME?"},{"$error":"#NAME?"},{"$error":"#NAME?"},null,{"$f":"NR_to_Cash!C$9","v":-155327},{"$f":"NR_to_Cash!D$9","v":-283877},{"$f":"NR_to_Cash!E$9","v":-105647},{"$f":"NR_to_Cash!F$9","v":-78023},null,642,-19146.952203690715,-18975.495116327744,-21913.760789211985,-2132.6566170086194,null,-155327,-283877,-105647,-78023]
[643,{"$error":"#NAME?"},{"$error":"#NAME?"},{"$error":"#NAME?"},{"$error":"#NAME?"},null,{"$f":"NR_to_Cash!C$9","v":-155327},{"$f":"NR_to_Cash!D$9","v":-283877},{"$f":"NR_to_Cash!E$9","v":-105647},{"$f":"NR_to_Cash!F$9","v":-78023},null,643,-8374.8447831892663,-18487.029529810112,-25416.82045866939,-11174.723917733687,null,-155327,-283877,-105647,-78023]
[644,{"$error":"#NAME?"},{"$error":"#NAME?"},{"$error":"#NAME?"},{"$error":"#NAME?"},null,{"$f":"NR_to_Cash!C$9","v":-155327},{"$f":"NR_to_Cash!D$9","v":-283877},{"$f":"NR_to_Cash!E$9","v":-105647},{"$f":"NR_to_Cash!F$9","v":-78023},null,644,-5370.1289586427147,59.364635846428158,-23815.251107679185,-21731.32510744793,null,-155327,-283877,-105647,-78023]
[645,{"$error":"#NAME?"},{"$error":"#NAME?"},{"$error":"#NAME?"},{"$error":"#NAME?"},null,{"$f":"NR_to_Cash!C$9","v":-155327},{"$f":"NR_to_Cash!D$9","v":-283877},{"$f":"NR_to_Cash!E$9","v":-105647},{"$f":"NR_to_Cash!F$9","v":-78023},null,645,-11624.083511177139,-37708.148968955953,3313.5924477305289,-6042.9813789577656,null,-155327,-283877,-105647,-78023]
[646,{"$error":"#NAME?"},{"$error":"#NAME?"},{"$error":"#NAME?"},{"$error":"#NAME?"},null,{"$f":"NR_to_Cash!C$9","v":-155327},{"$f":"NR_to_Cash!D$9","v":-283877},{"$f":"NR_to_Cash!E$9","v":-105647},{"$f":"NR_to_Cash!F$9","v":-78023},null,646,-6357.0252683342678,-16229.54525532948,1055.0751375178054,-5187.5563170751211,null,-155327,-283877,-105647,-78023]
[647,{"$error":"#NAME?"},{"$error":"#NAME?"},{"$error":"#NAME?"},{"$error":"#NAME?"},null,{"$f":"NR_to_Cash!C$9","v":-155327},{"$f":"NR_to_Cash!D$9","v":-283877},{"$f":"NR_to_Cash!E$9","v":-105647},{"$f":"NR_to_Cash!F$9","v":-78023},null,647,-703.54079646978983,-32747.116205938684,4243.7489093307931,4073.5520868934113,null,-155327,-283877,-105647,-78023]
[648,{"$error":"#NAME?"},{"$error":"#NAME?"},{"$error":"#NAME?"},{"$error":"#NAME?"},null,{"$f":"NR_to_Cash!C$9","v":-155327},{"$f":"NR_to_Cash!D$9","v":-283877},{"$f":"NR_to_Cash!E$9","v":-105647},{"$f":"NR_to_Cash!F$9","v":-78023},null,648,-12613.637107952549,10354.963569599475,-3396.6701796928828,-13029.223351409828,null,-155327,-283877,-105647,-78023]
[649,{"$error":"#NAME?"},{"$error":"#NAME?"},{"$error":"#NAME?"},{"$error":"#NAME?"},null,{"$f":"NR_to_Cash!C$9","v":-155327},{"$f":"NR_to_Cash!D$9","v":-283877},{"$f":"NR_to_Cash!E$9","v":-105647},{"$f":"NR_to_Cash!F$9","v":-78023},null,649,-13368.779653487065,-31162.235130291941,-22979.896776688798,-10641.057646002053,null,-155327,-283877,-105647,-78023]
[650,{"$error":"#NAME?"},{"$error":"#NAME?"},{"$error":"#NAME?"},{"$error":"#NAME?"},null,{"$f":"NR_to_Cash!C$9","v":-155327},{"$f":"NR_to_Cash!D$9","v":-283877},{"$f":"NR_to_Cash!E$9","v":-105647},{"$f":"NR_to_Cash!F$9","v":-78023},null,650,-17098.636771662575,-5879.0616639307882,-27917.693011059011,-12831.274022377338,null,-155327,-283877,-105647,-78023]
[651,{"$error":"#NAME?"},{"$error":"#NAME?"},{"$error":"#NAME?"},{"$error":"#NAME?"},null,{"$f":"NR_to_Cash!C$9","v":-155327},{"$f":"NR_to_Cash!D$9","v":-283877},{"$f":"NR_to_Cash!E$9","v":-105647},{"$f":"NR_to_Cash!F$9","v":-78023},null,651,-7606.4555997748848,-26949.991874435178,-14249.531026426173,-20989.390135191923,null,-155327,-283877,-105647,-78023]
[652,{"$error":"#NAME?"},{"$error":"#NAME?"},{"$error":"#NAME?"},{"$error":"#NAME?"},null,{"$f":"NR_to_Cash!C$9","v":-155327},{"$f":"NR_to_Cash!D$9","v":-283877},{"$f":"NR_to_Cash!E$9","v":-105647},{"$f":"NR_to_Cash!F$9","v":-78023},null,652,-4867.6020853189284,-7670.2777536960066,-14043.958340273051,-12849.287685540905,null,-155327,-283877,-105647,-78023]
[653,{"$error":"#NAME?"},{"$error":"#NAME?"},{"$error":"#NAME?"},{"$error":"#NAME?"},null,{"$f":"NR_to_Cash!C$9","v":-155327},{"$f":"NR_to_Cash!D$9","v":-283877},{"$f":"NR_to_Cash!E$9","v":-105647},{"$f":"NR_to_Cash!F$9","v":-78023},null,653,-14333.496775433548,22990.75493914785,-23190.738901979697,-21120.696633948297,null,-155327,-283877,-105647,-78023]
[654,{"$error":"#NAME?"},{"$error":"#NAME?"},{"$error":"#NAME?"},{"$error":"#NAME?"},null,{"$f":"NR_to_Cash!C$9","v":-155327},{"$f":"NR_to_Cash!D$9","v":-283877},{"$f":"NR_to_Cash!E$9","v":-105647},{"$f":"NR_to_Cash!F$9","v":-78023},null,654,-13816.366050871549,-28803.109165683254,-16236.450511526238,7444.6024491984617,null,-155327,-283877,-105647,-78023]
[655,{"$error":"#NAME?"},{"$error":"#NAME?"},{"$error":"#NAME?"},{"$error":"#NAME?"},null,{"$f":"NR_to_Cash!C$9","v":-155327},{"$f":"NR_to_Cash!D$9","v":-283877},{"$f":"NR_to_Cash!E$9","v":-105647},{"$f":"NR_to_Cash!F$9","v":-78023},null,655,-23345.475095068876,-38242.471479318032,-20872.531385856812,-17654.511897031476,null,-155327,-283877,-105647,-78023]
[656,{"$error":"#NAME?"},{"$error":"#NAME?"},{"$error":"#NAME?"},{"$error":"#NAME?"},null,{"$f":"NR_to_Cash!C$9","v":-155327},{"$f":"NR_to_Cash!D$9","v":-283877},{"$f":"NR_to_Cash!E$9","v":-105647},{"$f":"NR_to_Cash!F$9","v":-78023},null,656,-6495.7130654238417,-799.80772121428743,-20535.394198114951,1031.1817861222564,null,-155327,-283877,-105647,-78023]
[657,{"$error":"#NAME?"},{"$error":"#NAME?"},{"$error":"#NAME?"},{"$error":"#NAME?"},null,{"$f":"NR_to_Cash!C$9","v":-155327},{"$f":"NR_to_Cash!D$9","v":-283877},{"$f":"NR_to_Cash!E$9","v":-105647},{"$f":"NR_to_Cash!F$9","v":-78023},null,657,-8059.597859428326,-4310.7926829525104,-30509.303617152829,-38047.482377797627,null,-155327,-283877,-105647,-78023]
[658,{"$error":"#NAME?"},{"$error":"#NAME?"},{"$error":"#NAME?"},{"$error":"#NAME?"},null,{"$f":"NR_to_Cash!C$9","v":-155327},{"$f":"NR_to_Cash!D$9","v":-283877},{"$f":"NR_to_Cash!E$9","v":-105647},{"$f":"NR_to_Cash!F$9","v":-78023},null,658,-10100.901916800276,-29856.300226994754,-12982.631899660089,-4800.8543140394177,null,-155327,-283877,-105647,-78023]
[659,{"$error":"#NAME?"},{"$error":"#NAME?"},{"$error":"#NAME?"},{"$error":"#NAME?"},null,{"$f":"NR_to_Cash!C$9","v":-155327},{"$f":"NR_to_Cash!D$9","v":-283877},{"$f":"NR_to_Cash!E$9","v":-105647},{"$f":"NR_to_Cash!F$9","v":-78023},null,659,-1295.3969210889252,1790.0002009757829,-11955.309219568253,1778.3889567160322,null,-155327,-283877,-105647,-78023]
[660,{"$error":"#NAME?"},{"$error":"#NAME?"},{"$error":"#NAME?"},{"$error":"#NAME?"},null,{"$f":"NR_to_Cash!C$9","v":-155327},{"$f":"NR_to_Cash!D$9","v":-283877},{"$f":"NR_to_Cash!E$9","v":-105647},{"$f":"NR_to_Cash!F$9","v":-78023},null,660,-19567.00474385541,-38611.195832802754,-327.69561322824734,-19862.124752049789,null,-155327,-283877,-105647,-78023]
[661,{"$error":"#NAME?"},{"$error":"#NAME?"},{"$error":"#NAME?"},{"$error":"#NAME?"},null,{"$f":"NR_to_Cash!C$9","v":-155327},{"$f":"NR_to_Cash!D$9","v":-283877},{"$f":"NR_to_Cash!E$9","v":-105647},{"$f":"NR_to_Cash!F$9","v":-78023},null,661,-7715.6349828935727,5736.1449046937132,-25022.824524849835,-12524.271149488246,null,-155327,-283877,-105647,-78023]
[662,{"$error":"#NAME?"},{"$error":"#NAME?"},{"$error":"#NAME?"},{"$error":"#NAME?"},null,{"$f":"NR_to_Cash!C$9","v":-155327},{"$f":"NR_to_Cash!D$9","v":-283877},{"$f":"NR_to_Cash!E$9","v":-105647},{"$f":"NR_to_Cash!F$9","v":-78023},null,662,-9108.994116412412,-19033.83428778204,-12794.654866522047,-12452.791929781091,null,-155327,-283877,-105647,-78023]
[663,{"$error":"#NAME?"},{"$error":"#NAME?"},{"$error":"#NAME?"},{"$error":"#NAME?"},null,{"$f":"NR_to_Cash!C$9","v":-155327},{"$f":"NR_to_Cash!D$9","v":-283877},{"$f":"NR_to_Cash!E$9","v":-105647},{"$f":"NR_to_Cash!F$9","v":-78023},null,663,-25345.001471024469,-4006.6973326900898,4839.234176821652,-30853.764832949368,null,-155327,-283877,-105647,-78023]
[664,{"$error":"#NAME?"},{"$error":"#NAME?"},{"$error":"#NAME?"},{"$error":"#NAME?"},null,{"$f":"NR_to_Cash!C$9","v":-155327},{"$f":"NR_to_Cash!D$9","v":-283877},{"$f":"NR_to_Cash!E$9","v":-105647},{"$f":"NR_to_Cash!F$9","v":-78023},null,664,-5540.077156843673,-25715.181035808433,1111.7459932024797,-7944.1166769582333,null,-155327,-283877,-105647,-78023]
[665,{"$error":"#NAME?"},{"$error":"#NAME?"},{"$error":"#NAME?"},{"$error":"#NAME?"},null,{"$f":"NR_to_Cash!C$9","v":-155327},{"$f":"NR_to_Cash!D$9","v":-283877},{"$f":"NR_to_Cash!E$9","v":-105647},{"$f":"NR_to_Cash!F$9","v":-78023},null,665,-13915.571222232749,-34070.119491068122,-10159.369568050135,119.68300309308107,null,-155327,-283877,-105647,-78023]
[666,{"$error":"#NAME?"},{"$error":"#NAME?"},{"$error":"#NAME?"},{"$error":"#NAME?"},null,{"$f":"NR_to_Cash!C$9","v":-155327},{"$f":"NR_to_Cash!D$9","v":-283877},{"$f":"NR_to_Cash!E$9","v":-105647},{"$f":"NR_to_Cash!F$9","v":-78023},null,666,-9279.8488064936773,-20767.318631201972,-17380.099053339869,-7812.5626115782197,null,-155327,-283877,-105647,-78023]
[667,{"$error":"#NAME?"},{"$error":"#NAME?"},{"$error":"#NAME?"},{"$error":"#NAME?"},null,{"$f":"NR_to_Cash!C$9","v":-155327},{"$f":"NR_to_Cash!D$9","v":-283877},{"$f":"NR_to_Cash!E$9","v":-105647},{"$f":"NR_to_Cash!F$9","v":-78023},null,667,-16116.486091469415,-28236.171296039018,-16385.713301196789,-9998.9925717309634,null,-155327,-283877,-105647,-78023]
[668,{"$error":"#NAME?"},{"$error":"#NAME?"},{"$error":"#NAME?"},{"$error":"#NAME?"},null,{"$f":"NR_to_Cash!C$9","v":-155327},{"$f":"NR_to_Cash!D$9","v":-283877},{"$f":"NR_to_Cash!E$9","v":-105647},{"$f":"NR_to_Cash!F$9","v":-78023},null,668,-19595.699835144806,-6975.2992839403732,-18825.873713244364,-3480.9162414342195,null,-155327,-283877,-105647,-78023]
[669,{"$error":"#NAME?"},{"$error":"#NAME?"},{"$error":"#NAME?"},{"$error":"#NAME?"},null,{"$f":"NR_to_Cash!C$9","v":-155327},{"$f":"NR_to_Cash!D$9","v":-283877},{"$f":"NR_to_Cash!E$9","v":-105647},{"$f":"NR_to_Cash!F$9","v":-78023},null,669,-15379.155600493366,-3508.9372484797764,-595.01934029146719,13180.775637896277,null,-155327,-283877,-105647,-78023]
[670,{"$error":"#NAME?"},{"$error":"#NAME?"},{"$error":"#NAME?"},{"$error":"#NAME?"},null,{"$f":"NR_to_Cash!C$9","v":-155327},{"$f":"NR_to_Cash!D$9","v":-283877},{"$f":"NR_to_Cash!E$9","v":-105647},{"$f":"NR_to_Cash!F$9","v":-78023},null,670,-11629.316692442506,-29409.43017389622,-11921.226779137793,-5821.5955946737377,null,-155327,-283877,-105647,-78023]
[671,{"$error":"#NAME?"},{"$error":"#NAME?"},{"$error":"#NAME?"},{"$error":"#NAME?"},null,{"$f":"NR_to_Cash!C$9","v":-155327},{"$f":"NR_to_Cash!D$9","v":-283877},{"$f":"NR_to_Cash!E$9","v":-105647},{"$f":"NR_to_Cash!F$9","v":-78023},null,671,-57.951660291347707,-8758.3012626427844,-18420.157587475205,-22427.779347656462,null,-155327,-283877,-105647,-78023]
[672,{"$error":"#NAME?"},{"$error":"#NAME?"},{"$error":"#NAME?"},{"$error":"#NAME?"},null,{"$f":"NR_to_Cash!C$9","v":-155327},{"$f":"NR_to_Cash!D$9","v":-283877},{"$f":"NR_to_Cash!E$9","v":-105647},{"$f":"NR_to_Cash!F$9","v":-78023},null,672,-21204.993176006421,-4332.6250790569229,-21004.724943503483,-18885.159084033654,null,-155327,-283877,-105647,-78023]
[673,{"$error":"#NAME?"},{"$error":"#NAME?"},{"$error":"#NAME?"},{"$error":"#NAME?"},null,{"$f":"NR_to_Cash!C$9","v":-155327},{"$f":"NR_to_Cash!D$9","v":-283877},{"$f":"NR_to_Cash!E$9","v":-105647},{"$f":"NR_to_Cash!F$9","v":-78023},null,673,-19126.723088263952,-7224.5398898816529,-7390.7584618630008,-4437.4087179231856,null,-155327,-283877,-105647,-78023]
[674,{"$error":"#NAME?"},{"$error":"#NAME?"},{"$error":"#NAME?"},{"$error":"#NAME?"},null,{"$f":"NR_to_Cash!C$9","v":-155327},{"$f":"NR_to_Cash!D$9","v":-283877},{"$f":"NR_to_Cash!E$9","v":-105647},{"$f":"NR_to_Cash!F$9","v":-78023},null,674,-20378.303620959152,-10738.120573664477,7055.7750336066356,8837.8248471103889,null,-155327,-283877,-105647,-78023]
[675,{"$error":"#NAME?"},{"$error":"#NAME?"},{"$error":"#NAME?"},{"$error":"#NAME?"},null,{"$f":"NR_to_Cash!C$9","v":-155327},{"$f":"NR_to_Cash!D$9","v":-283877},{"$f":"NR_to_Cash!E$9","v":-105647},{"$f":"NR_to_Cash!F$9","v":-78023},null,675,-3038.440336720259,-15968.43013588979,-22012.947562671841,-15927.783072533066,null,-155327,-283877,-105647,-78023]
[676,{"$error":"#NAME?"},{"$error":"#NAME?"},{"$error":"#NAME?"},{"$error":"#NAME?"},null,{"$f":"NR_to_Cash!C$9","v":-155327},{"$f":"NR_to_Cash!D$9","v":-283877},{"$f":"NR_to_Cash!E$9","v":-105647},{"$f":"NR_to_Cash!F$9","v":-78023},null,676,-20576.480010627958,-4966.4731705193626,-16642.921374971294,-5101.1674689693436,null,-155327,-283877,-105647,-78023]
[677,{"$error":"#NAME?"},{"$error":"#NAME?"},{"$error":"#NAME?"},{"$error":"#NAME?"},null,{"$f":"NR_to_Cash!C$9","v":-155327},{"$f":"NR_to_Cash!D$9","v":-283877},{"$f":"NR_to_Cash!E$9","v":-105647},{"$f":"NR_to_Cash!F$9","v":-78023},null,677,-23824.160520178211,-50436.572417655021,-18161.75048567442,-21818.874879767209,null,-155327,-283877,-105647,-78023]
[678,{"$error":"#NAME?"},{"$error":"#NAME?"},{"$error":"#NAME?"},{"$error":"#NAME?"},null,{"$f":"NR_to_Cash!C$9","v":-155327},{"$f":"NR_to_Cash!D$9","v":-283877},{"$f":"NR_to_Cash!E$9","v":-105647},{"$f":"NR_to_Cash!F$9","v":-78023},null,678,-10070.260296268736,3260.8187660683479,-14399.06479561265,-15163.364161759779,null,-155327,-283877,-105647,-78023]
[679,{"$error":"#NAME?"},{"$error":"#NAME?"},{"$error":"#NAME?"},{"$error":"#NAME?"},null,{"$f":"NR_to_Cash!C$9","v":-155327},{"$f":"NR_to_Cash!D$9","v":-283877},{"$f":"NR_to_Cash!E$9","v":-105647},{"$f":"NR_to_Cash!F$9","v":-78023},null,679,-11539.493373906073,12733.525581025357,-65351.064748845114,-7561.3824287936595,null,-155327,-283877,-105647,-78023]
[680,{"$error":"#NAME?"},{"$error":"#NAME?"},{"$error":"#NAME?"},{"$error":"#NAME?"},null,{"$f":"NR_to_Cash!C$9","v":-155327},{"$f":"NR_to_Cash!D$9","v":-283877},{"$f":"NR_to_Cash!E$9","v":-105647},{"$f":"NR_to_Cash!F$9","v":-78023},null,680,-27928.114758222277,-22527.475005804099,-18671.027859790102,-22189.317749692193,null,-155327,-283877,-105647,-78023]
[681,{"$error":"#NAME?"},{"$error":"#NAME?"},{"$error":"#NAME?"},{"$error":"#NAME?"},null,{"$f":"NR_to_Cash!C$9","v":-155327},{"$f":"NR_to_Cash!D$9","v":-283877},{"$f":"NR_to_Cash!E$9","v":-105647},{"$f":"NR_to_Cash!F$9","v":-78023},null,681,-32071.933840982892,-14557.875437609498,-20870.516481063136,-26986.195771802537,null,-155327,-283877,-105647,-78023]
[682,{"$error":"#NAME?"},{"$error":"#NAME?"},{"$error":"#NAME?"},{"$error":"#NAME?"},null,{"$f":"NR_to_Cash!C$9","v":-155327},{"$f":"NR_to_Cash!D$9","v":-283877},{"$f":"NR_to_Cash!E$9","v":-105647},{"$f":"NR_to_Cash!F$9","v":-78023},null,682,12666.360060893778,3405.40541977058,-18756.028298620549,-28642.809750320244,null,-155327,-283877,-105647,-78023]
[683,{"$error":"#NAME?"},{"$error":"#NAME?"},{"$error":"#NAME?"},{"$error":"#NAME?"},null,{"$f":"NR_to_Cash!C$9","v":-155327},{"$f":"NR_to_Cash!D$9","v":-283877},{"$f":"NR_to_Cash!E$9","v":-105647},{"$f":"NR_to_Cash!F$9","v":-78023},null,683,-4544.0661258497266,-23056.694770159243,-15308.596492270672,-9574.3996142450596,null,-155327,-283877,-105647,-78023]
[684,{"$error":"#NAME?"},{"$error":"#NAME?"},{"$error":"#NAME?"},{"$error":"#NAME?"},null,{"$f":"NR_to_Cash!C$9","v":-155327},{"$f":"NR_to_Cash!D$9","v":-283877},{"$f":"NR_to_Cash!E$9","v":-105647},{"$f":"NR_to_Cash!F$9","v":-78023},null,684,-12910.576041329943,-5010.7384470202951,-5995.9632370451909,-26027.733067659607,null,-155327,-283877,-105647,-78023]
[685,{"$error":"#NAME?"},{"$error":"#NAME?"},{"$error":"#NAME?"},{"$error":"#NAME?"},null,{"$f":"NR_to_Cash!C$9","v":-155327},{"$f":"NR_to_Cash!D$9","v":-283877},{"$f":"NR_to_Cash!E$9","v":-105647},{"$f":"NR_to_Cash!F$9","v":-78023},null,685,-34900.417698348952,-27160.382382322099,-32237.733823447667,-20702.236014614766,null,-155327,-283877,-105647,-78023]
[686,{"$error":"#NAME?"},{"$error":"#NAME?"},{"$error":"#NAME?"},{"$error":"#NAME?"},null,{"$f":"NR_to_Cash!C$9","v":-155327},{"$f":"NR_to_Cash!D$9","v":-283877},{"$f":"NR_to_Cash!E$9","v":-105647},{"$f":"NR_to_Cash!F$9","v":-78023},null,686,-13395.268598939583,-2278.8252488236967,-23417.67993936496,-7672.5874085933046,null,-155327,-283877,-105647,-78023]
[687,{"$error":"#NAME?"},{"$error":"#NAME?"},{"$error":"#NAME?"},{"$error":"#NAME?"},null,{"$f":"NR_to_Cash!C$9","v":-155327},{"$f":"NR_to_Cash!D$9","v":-283877},{"$f":"NR_to_Cash!E$9","v":-105647},{"$f":"NR_to_Cash!F$9","v":-78023},null,687,-2225.7672067213307,-7276.3049361509402,2016.2402361939476,7131.8296269786651,null,-155327,-283877,-105647,-78023]
[688,{"$error":"#NAME?"},{"$error":"#NAME?"},{"$error":"#NAME?"},{"$error":"#NAME?"},null,{"$f":"NR_to_Cash!C$9","v":-155327},{"$f":"NR_to_Cash!D$9","v":-283877},{"$f":"NR_to_Cash!E$9","v":-105647},{"$f":"NR_to_Cash!F$9","v":-78023},null,688,-31805.825773207223,-12670.501988521344,-15919.213775944951,-25301.380403128616,null,-155327,-283877,-105647,-78023]
[689,{"$error":"#NAME?"},{"$error":"#NAME?"},{"$error":"#NAME?"},{"$error":"#NAME?"},null,{"$f":"NR_to_Cash!C$9","v":-155327},{"$f":"NR_to_Cash!D$9","v":-283877},{"$f":"NR_to_Cash!E$9","v":-105647},{"$f":"NR_to_Cash!F$9","v":-78023},null,689,-2351.4814935857466,-30501.803919590893,8864.227281652813,-17929.56083657737,null,-155327,-283877,-105647,-78023]
[690,{"$error":"#NAME?"},{"$error":"#NAME?"},{"$error":"#NAME?"},{"$error":"#NAME?"},null,{"$f":"NR_to_Cash!C$9","v":-155327},{"$f":"NR_to_Cash!D$9","v":-283877},{"$f":"NR_to_Cash!E$9","v":-105647},{"$f":"NR_to_Cash!F$9","v":-78023},null,690,-24487.527772160611,3378.7925265563927,-21325.677387374268,7390.4892619347502,null,-155327,-283877,-105647,-78023]
[691,{"$error":"#NAME?"},{"$error":"#NAME?"},{"$error":"#NAME?"},{"$error":"#NAME?"},null,{"$f":"NR_to_Cash!C$9","v":-155327},{"$f":"NR_to_Cash!D$9","v":-283877},{"$f":"NR_to_Cash!E$9","v":-105647},{"$f":"NR_to_Cash!F$9","v":-78023},null,691,-7151.530202014289,2043.8570985563763,-5445.0604955341896,-4990.3502980834219,null,-155327,-283877,-105647,-78023]
[692,{"$error":"#NAME?"},{"$error":"#NAME?"},{"$error":"#NAME?"},{"$error":"#NAME?"},null,{"$f":"NR_to_Cash!C$9","v":-155327},{"$f":"NR_to_Cash!D$9","v":-283877},{"$f":"NR_to_Cash!E$9","v":-105647},{"$f":"NR_to_Cash!F$9","v":-78023},null,692,-11049.725600659269,-12363.770265469524,-21026.773999994337,-5492.0029101054179,null,-155327,-283877,-105647,-78023]
[693,{"$error":"#NAME?"},{"$error":"#NAME?"},{"$error":"#NAME?"},{"$error":"#NAME?"},null,{"$f":"NR_to_Cash!C$9","v":-155327},{"$f":"NR_to_Cash!D$9","v":-283877},{"$f":"NR_to_Cash!E$9","v":-105647},{"$f":"NR_to_Cash!F$9","v":-78023},null,693,-31777.957602016584,-23113.406865501514,-2076.8910660267443,-5068.6175268186862,null,-155327,-283877,-105647,-78023]
[694,{"$error":"#NAME?"},{"$error":"#NAME?"},{"$error":"#NAME?"},{"$error":"#NAME?"},null,{"$f":"NR_to_Cash!C$9","v":-155327},{"$f":"NR_to_Cash!D$9","v":-283877},{"$f":"NR_to_Cash!E$9","v":-105647},{"$f":"NR_to_Cash!F$9","v":-78023},null,694,-13537.09850390905,1513.8050136059096,-4654.5666681482744,-22996.589029543113,null,-155327,-283877,-105647,-78023]
[695,{"$error":"#NAME?"},{"$error":"#NAME?"},{"$error":"#NAME?"},{"$error":"#NAME?"},null,{"$f":"NR_to_Cash!C$9","v":-155327},{"$f":"NR_to_Cash!D$9","v":-283877},{"$f":"NR_to_Cash!E$9","v":-105647},{"$f":"NR_to_Cash!F$9","v":-78023},null,695,-21996.473881886479,-10345.818605765813,-24310.711649200515,7322.1641816567681,null,-155327,-283877,-105647,-78023]
[696,{"$error":"#NAME?"},{"$error":"#NAME?"},{"$error":"#NAME?"},{"$error":"#NAME?"},null,{"$f":"NR_to_Cash!C$9","v":-155327},{"$f":"NR_to_Cash!D$9","v":-283877},{"$f":"NR_to_Cash!E$9","v":-105647},{"$f":"NR_to_Cash!F$9","v":-78023},null,696,-19899.801250002158,-20931.250781400355,12343.268832454376,11614.198106213044,null,-155327,-283877,-105647,-78023]
[697,{"$error":"#NAME?"},{"$error":"#NAME?"},{"$error":"#NAME?"},{"$error":"#NAME?"},null,{"$f":"NR_to_Cash!C$9","v":-155327},{"$f":"NR_to_Cash!D$9","v":-283877},{"$f":"NR_to_Cash!E$9","v":-105647},{"$f":"NR_to_Cash!F$9","v":-78023},null,697,-3842.2781453593734,-5082.4234751074036,7396.0050008304452,2774.6925192735425,null,-155327,-283877,-105647,-78023]
[698,{"$error":"#NAME?"},{"$error":"#NAME?"},{"$error":"#NAME?"},{"$error":"#NAME?"},null,{"$f":"NR_to_Cash!C$9","v":-155327},{"$f":"NR_to_Cash!D$9","v":-283877},{"$f":"NR_to_Cash!E$9","v":-105647},{"$f":"NR_to_Cash!F$9","v":-78023},null,698,-16361.905960925596,-4518.4201425693809,-3464.4718737808753,-11321.629330600324,null,-155327,-283877,-105647,-78023]
[699,{"$error":"#NAME?"},{"$error":"#NAME?"},{"$error":"#NAME?"},{"$error":"#NAME?"},null,{"$f":"NR_to_Cash!C$9","v":-155327},{"$f":"NR_to_Cash!D$9","v":-283877},{"$f":"NR_to_Cash!E$9","v":-105647},{"$f":"NR_to_Cash!F$9","v":-78023},null,699,6204.3069904196709,-21046.484253132698,17748.849786104802,1249.1669273315824,null,-155327,-283877,-105647,-78023]
[700,{"$error":"#NAME?"},{"$error":"#NAME?"},{"$error":"#NAME?"},{"$error":"#NAME?"},null,{"$f":"NR_to_Cash!C$9","v":-155327},{"$f":"NR_to_Cash!D$9","v":-283877},{"$f":"NR_to_Cash!E$9","v":-105647},{"$f":"NR_to_Cash!F$9","v":-78023},null,700,-3640.5404414411873,-6378.5786734086169,-24818.360440906872,-3164.4866771264997,null,-155327,-283877,-105647,-78023]
[701,{"$error":"#NAME?"},{"$error":"#NAME?"},{"$error":"#NAME?"},{"$error":"#NAME?"},null,{"$f":"NR_to_Cash!C$9","v":-155327},{"$f":"NR_to_Cash!D$9","v":-283877},{"$f":"NR_to_Cash!E$9","v":-105647},{"$f":"NR_to_Cash!F$9","v":-78023},null,701,4748.5320702847184,-5576.6045166189706,-11364.072521813174,7300.8279545025316,null,-155327,-283877,-105647,-78023]
[702,{"$error":"#NAME?"},{"$error":"#NAME?"},{"$error":"#NAME?"},{"$error":"#NAME?"},null,{"$f":"NR_to_Cash!C$9","v":-155327},{"$f":"NR_to_Cash!D$9","v":-283877},{"$f":"NR_to_Cash!E$9","v":-105647},{"$f":"NR_to_Cash!F$9","v":-78023},null,702,-20079.476993941407,-21387.357592139746,-5492.6483380691952,-6912.1750855729642,null,-155327,-283877,-105647,-78023]
[703,{"$error":"#NAME?"},{"$error":"#NAME?"},{"$error":"#NAME?"},{"$error":"#NAME?"},null,{"$f":"NR_to_Cash!C$9","v":-155327},{"$f":"NR_to_Cash!D$9","v":-283877},{"$f":"NR_to_Cash!E$9","v":-105647},{"$f":"NR_to_Cash!F$9","v":-78023},null,703,-17627.388115512549,-12715.597434078518,-43159.38295354291,-22061.645979482288,null,-155327,-283877,-105647,-78023]
[704,{"$error":"#NAME?"},{"$error":"#NAME?"},{"$error":"#NAME?"},{"$error":"#NAME?"},null,{"$f":"NR_to_Cash!C$9","v":-155327},{"$f":"NR_to_Cash!D$9","v":-283877},{"$f":"NR_to_Cash!E$9","v":-105647},{"$f":"NR_to_Cash!F$9","v":-78023},null,704,23.820172603238344,2098.4185122399031,-16756.815724758402,-26653.876636553294,null,-155327,-283877,-105647,-78023]
[705,{"$error":"#NAME?"},{"$error":"#NAME?"},{"$error":"#NAME?"},{"$error":"#NAME?"},null,{"$f":"NR_to_Cash!C$9","v":-155327},{"$f":"NR_to_Cash!D$9","v":-283877},{"$f":"NR_to_Cash!E$9","v":-105647},{"$f":"NR_to_Cash!F$9","v":-78023},null,705,-5974.2089734482342,13879.913591437893,-25924.75083871145,-19533.470064465168,null,-155327,-283877,-105647,-78023]
[706,{"$error":"#NAME?"},{"$error":"#NAME?"},{"$error":"#NAME?"},{"$error":"#NAME?"},null,{"$f":"NR_to_Cash!C$9","v":-155327},{"$f":"NR_to_Cash!D$9","v":-283877},{"$f":"NR_to_Cash!E$9","v":-105647},{"$f":"NR_to_Cash!F$9","v":-78023},null,706,-26484.188097142483,-20535.299761148675,4227.6994544278568,-36520.519592206751,null,-155327,-283877,-105647,-78023]
[707,{"$error":"#NAME?"},{"$error":"#NAME?"},{"$error":"#NAME?"},{"$error":"#NAME?"},null,{"$f":"NR_to_Cash!C$9","v":-155327},{"$f":"NR_to_Cash!D$9","v":-283877},{"$f":"NR_to_Cash!E$9","v":-105647},{"$f":"NR_to_Cash!F$9","v":-78023},null,707,-21526.665261199596,-27084.739551104583,-25824.846096717723,-11528.201394487538,null,-155327,-283877,-105647,-78023]
[708,{"$error":"#NAME?"},{"$error":"#NAME?"},{"$error":"#NAME?"},{"$error":"#NAME?"},null,{"$f":"NR_to_Cash!C$9","v":-155327},{"$f":"NR_to_Cash!D$9","v":-283877},{"$f":"NR_to_Cash!E$9","v":-105647},{"$f":"NR_to_Cash!F$9","v":-78023},null,708,-20789.922095350765,-19539.373363544837,2999.8829275913731,-17795.320799672725,null,-155327,-283877,-105647,-78023]
[709,{"$error":"#NAME?"},{"$error":"#NAME?"},{"$error":"#NAME?"},{"$error":"#NAME?"},null,{"$f":"NR_to_Cash!C$9","v":-155327},{"$f":"NR_to_Cash!D$9","v":-283877},{"$f":"NR_to_Cash!E$9","v":-105647},{"$f":"NR_to_Cash!F$9","v":-78023},null,709,6257.6949312526776,-1715.3951496424379,2969.2516239432052,-8902.1982819822642,null,-155327,-283877,-105647,-78023]
[710,{"$error":"#NAME?"},{"$error":"#NAME?"},{"$error":"#NAME?"},{"$error":"#NAME?"},null,{"$f":"NR_to_Cash!C$9","v":-155327},{"$f":"NR_to_Cash!D$9","v":-283877},{"$f":"NR_to_Cash!E$9","v":-105647},{"$f":"NR_to_Cash!F$9","v":-78023},null,710,12036.225625745015,-28.502965027216586,-8957.8743272942411,3343.1172420963499,null,-155327,-283877,-105647,-78023]
[711,{"$error":"#NAME?"},{"$error":"#NAME?"},{"$error":"#NAME?"},{"$error":"#NAME?"},null,{"$f":"NR_to_Cash!C$9","v":-155327},{"$f":"NR_to_Cash!D$9","v":-283877},{"$f":"NR_to_Cash!E$9","v":-105647},{"$f":"NR_to_Cash!F$9","v":-78023},null,711,-26643.881346652088,-29521.038427285519,-12568.264746798468,16013.201527592186,null,-155327,-283877,-105647,-78023]
[712,{"$error":"#NAME?"},{"$error":"#NAME?"},{"$error":"#NAME?"},{"$error":"#NAME?"},null,{"$f":"NR_to_Cash!C$9","v":-155327},{"$f":"NR_to_Cash!D$9","v":-283877},{"$f":"NR_to_Cash!E$9","v":-105647},{"$f":"NR_to_Cash!F$9","v":-78023},null,712,-4279.5148394798898,-29323.092441578196,-9882.0355649987905,-18064.754725183207,null,-155327,-283877,-105647,-78023]
[713,{"$error":"#NAME?"},{"$error":"#NAME?"},{"$error":"#NAME?"},{"$error":"#NAME?"},null,{"$f":"NR_to_Cash!C$9","v":-155327},{"$f":"NR_to_Cash!D$9","v":-283877},{"$f":"NR_to_Cash!E$9","v":-105647},{"$f":"NR_to_Cash!F$9","v":-78023},null,713,-13111.118556318746,-9705.6835797280437,-769.62847840077052,-22448.15743936364,null,-155327,-283877,-105647,-78023]
[714,{"$error":"#NAME?"},{"$error":"#NAME?"},{"$error":"#NAME?"},{"$error":"#NAME?"},null,{"$f":"NR_to_Cash!C$9","v":-155327},{"$f":"NR_to_Cash!D$9","v":-283877},{"$f":"NR_to_Cash!E$9","v":-105647},{"$f":"NR_to_Cash!F$9","v":-78023},null,714,-14766.379565939529,10319.465594193744,-11166.043403989361,2099.7567408997643,null,-155327,-283877,-105647,-78023]
[715,{"$error":"#NAME?"},{"$error":"#NAME?"},{"$error":"#NAME?"},{"$error":"#NAME?"},null,{"$f":"NR_to_Cash!C$9","v":-155327},{"$f":"NR_to_Cash!D$9","v":-283877},{"$f":"NR_to_Cash!E$9","v":-105647},{"$f":"NR_to_Cash!F$9","v":-78023},null,715,-23437.908721042608,-26456.761088104555,-262.05023058044372,4692.4400414104703,null,-155327,-283877,-105647,-78023]
[716,{"$error":"#NAME?"},{"$error":"#NAME?"},{"$error":"#NAME?"},{"$error":"#NAME?"},null,{"$f":"NR_to_Cash!C$9","v":-155327},{"$f":"NR_to_Cash!D$9","v":-283877},{"$f":"NR_to_Cash!E$9","v":-105647},{"$f":"NR_to_Cash!F$9","v":-78023},null,716,-17261.372006594826,-9618.1846058813262,6525.4240516119889,-22124.547564827542,null,-155327,-283877,-105647,-78023]
[717,{"$error":"#NAME?"},{"$error":"#NAME?"},{"$error":"#NAME?"},{"$error":"#NAME?"},null,{"$f":"NR_to_Cash!C$9","v":-155327},{"$f":"NR_to_Cash!D$9","v":-283877},{"$f":"NR_to_Cash!E$9","v":-105647},{"$f":"NR_to_Cash!F$9","v":-78023},null,717,-22380.605349085228,-33413.756497742652,-19262.386586996188,-16018.628142012767,null,-155327,-283877,-105647,-78023]
[718,{"$error":"#NAME?"},{"$error":"#NAME?"},{"$error":"#NAME?"},{"$error":"#NAME?"},null,{"$f":"NR_to_Cash!C$9","v":-155327},{"$f":"NR_to_Cash!D$9","v":-283877},{"$f":"NR_to_Cash!E$9","v":-105647},{"$f":"NR_to_Cash!F$9","v":-78023},null,718,-8422.2193841167264,-13038.685411388395,-33844.316840145984,-28362.311210723259,null,-155327,-283877,-105647,-78023]
[719,{"$error":"#NAME?"},{"$error":"#NAME?"},{"$error":"#NAME?"},{"$error":"#NAME?"},null,{"$f":"NR_to_Cash!C$9","v":-155327},{"$f":"NR_to_Cash!D$9","v":-283877},{"$f":"NR_to_Cash!E$9","v":-105647},{"$f":"NR_to_Cash!F$9","v":-78023},null,719,-15998.702903440579,-32482.096938272338,-7392.8265950084369,23486.521726439136,null,-155327,-283877,-105647,-78023]
[720,{"$error":"#NAME?"},{"$error":"#NAME?"},{"$error":"#NAME?"},{"$error":"#NAME?"},null,{"$f":"NR_to_Cash!C$9","v":-155327},{"$f":"NR_to_Cash!D$9","v":-283877},{"$f":"NR_to_Cash!E$9","v":-105647},{"$f":"NR_to_Cash!F$9","v":-78023},null,720,4131.1952553959673,-11960.735082112873,476.21059338536213,-2872.1383005470047,null,-155327,-283877,-105647,-78023]
[721,{"$error":"#NAME?"},{"$error":"#NAME?"},{"$error":"#NAME?"},{"$error":"#NAME?"},null,{"$f":"NR_to_Cash!C$9","v":-155327},{"$f":"NR_to_Cash!D$9","v":-283877},{"$f":"NR_to_Cash!E$9","v":-105647},{"$f":"NR_to_Cash!F$9","v":-78023},null,721,-9573.4640923387597,-8280.7999630731065,-8181.7469662767189,-12941.346850391521,null,-155327,-283877,-105647,-78023]
[722,{"$error":"#NAME?"},{"$error":"#NAME?"},{"$error":"#NAME?"},{"$error":"#NAME?"},null,{"$f":"NR_to_Cash!C$9","v":-155327},{"$f":"NR_to_Cash!D$9","v":-283877},{"$f":"NR_to_Cash!E$9","v":-105647},{"$f":"NR_to_Cash!F$9","v":-78023},null,722,5386.0582437319408,1291.6628095642145,-13771.08469376776,-24173.038491678912,null,-155327,-283877,-105647,-78023]
[723,{"$error":"#NAME?"},{"$error":"#NAME?"},{"$error":"#NAME?"},{"$error":"#NAME?"},null,{"$f":"NR_to_Cash!C$9","v":-155327},{"$f":"NR_to_Cash!D$9","v":-283877},{"$f":"NR_to_Cash!E$9","v":-105647},{"$f":"NR_to_Cash!F$9","v":-78023},null,723,-5636.7159422555142,-13024.641815608706,-16302.041153438209,-13959.295146587274,null,-155327,-283877,-105647,-78023]
[724,{"$error":"#NAME?"},{"$error":"#NAME?"},{"$error":"#NAME?"},{"$error":"#NAME?"},null,{"$f":"NR_to_Cash!C$9","v":-155327},{"$f":"NR_to_Cash!D$9","v":-283877},{"$f":"NR_to_Cash!E$9","v":-105647},{"$f":"NR_to_Cash!F$9","v":-78023},null,724,-10531.000720790327,-24337.103305768327,-16889.90361750716,-5226.9685104537866,null,-155327,-283877,-105647,-78023]
[725,{"$error":"#NAME?"},{"$error":"#NAME?"},{"$error":"#NAME?"},{"$error":"#NAME?"},null,{"$f":"NR_to_Cash!C$9","v":-155327},{"$f":"NR_to_Cash!D$9","v":-283877},{"$f":"NR_to_Cash!E$9","v":-105647},{"$f":"NR_to_Cash!F$9","v":-78023},null,725,-1720.4276346635306,-16786.951748587453,2096.2432304489789,-13789.849028831846,null,-155327,-283877,-105647,-78023]
[726,{"$error":"#NAME?"},{"$error":"#NAME?"},{"$error":"#NAME?"},{"$error":"#NAME?"},null,{"$f":"NR_to_Cash!C$9","v":-155327},{"$f":"NR_to_Cash!D$9","v":-283877},{"$f":"NR_to_Cash!E$9","v":-105647},{"$f":"NR_to_Cash!F$9","v":-78023},null,726,-19827.658272783716,-4811.2073710065652,6044.3491400736657,-12875.892505340142,null,-155327,-283877,-105647,-78023]
[727,{"$error":"#NAME?"},{"$error":"#NAME?"},{"$error":"#NAME?"},{"$error":"#NAME?"},null,{"$f":"NR_to_Cash!C$9","v":-155327},{"$f":"NR_to_Cash!D$9","v":-283877},{"$f":"NR_to_Cash!E$9","v":-105647},{"$f":"NR_to_Cash!F$9","v":-78023},null,727,-9537.9047104875099,-30784.868408587194,955.59081719334063,-17218.739751719237,null,-155327,-283877,-105647,-78023]
[728,{"$error":"#NAME?"},{"$error":"#NAME?"},{"$error":"#NAME?"},{"$error":"#NAME?"},null,{"$f":"NR_to_Cash!C$9","v":-155327},{"$f":"NR_to_Cash!D$9","v":-283877},{"$f":"NR_to_Cash!E$9","v":-105647},{"$f":"NR_to_Cash!F$9","v":-78023},null,728,-1446.0335660981223,-22594.020794757351,-6310.3290717266773,-14460.738132931139,null,-155327,-283877,-105647,-78023]
[729,{"$error":"#NAME?"},{"$error":"#NAME?"},{"$error":"#NAME?"},{"$error":"#NAME?"},null,{"$f":"NR_to_Cash!C$9","v":-155327},{"$f":"NR_to_Cash!D$9","v":-283877},{"$f":"NR_to_Cash!E$9","v":-105647},{"$f":"NR_to_Cash!F$9","v":-78023},null,729,-13737.287083125382,-19962.652524060471,-14140.661674319814,-9067.960494614832,null,-155327,-283877,-105647,-78023]
[730,{"$error":"#NAME?"},{"$error":"#NAME?"},{"$error":"#NAME?"},{"$error":"#NAME?"},null,{"$f":"NR_to_Cash!C$9","v":-155327},{"$f":"NR_to_Cash!D$9","v":-283877},{"$f":"NR_to_Cash!E$9","v":-105647},{"$f":"NR_to_Cash!F$9","v":-78023},null,730,-24167.815749465626,-14038.302399146445,-887.2201408134971,-3108.7320250287803,null,-155327,-283877,-105647,-78023]
[731,{"$error":"#NAME?"},{"$error":"#NAME?"},{"$error":"#NAME?"},{"$error":"#NAME?"},null,{"$f":"NR_to_Cash!C$9","v":-155327},{"$f":"NR_to_Cash!D$9","v":-283877},{"$f":"NR_to_Cash!E$9","v":-105647},{"$f":"NR_to_Cash!F$9","v":-78023},null,731,-34687.39745107013,-271.95504886326859,-13812.981831135918,-12868.022297972237,null,-155327,-283877,-105647,-78023]
[732,{"$error":"#NAME?"},{"$error":"#NAME?"},{"$error":"#NAME?"},{"$error":"#NAME?"},null,{"$f":"NR_to_Cash!C$9","v":-155327},{"$f":"NR_to_Cash!D$9","v":-283877},{"$f":"NR_to_Cash!E$9","v":-105647},{"$f":"NR_to_Cash!F$9","v":-78023},null,732,-12627.718668742484,-18947.595063500223,-10921.8000535561,-28167.159923273757,null,-155327,-283877,-105647,-78023]
[733,{"$error":"#NAME?"},{"$error":"#NAME?"},{"$error":"#NAME?"},{"$error":"#NAME?"},null,{"$f":"NR_to_Cash!C$9","v":-155327},{"$f":"NR_to_Cash!D$9","v":-283877},{"$f":"NR_to_Cash!E$9","v":-105647},{"$f":"NR_to_Cash!F$9","v":-78023},null,733,-23670.676867547976,779.63596459610949,-34030.545051872039,-24211.144145012455,null,-155327,-283877,-105647,-78023]
[734,{"$error":"#NAME?"},{"$error":"#NAME?"},{"$error":"#NAME?"},{"$error":"#NAME?"},null,{"$f":"NR_to_Cash!C$9","v":-155327},{"$f":"NR_to_Cash!D$9","v":-283877},{"$f":"NR_to_Cash!E$9","v":-105647},{"$f":"NR_to_Cash!F$9","v":-78023},null,734,-9408.1937955197682,2510.5269465260967,4246.8296069717007,12150.709344628005,null,-155327,-283877,-105647,-78023]
[735,{"$error":"#NAME?"},{"$error":"#NAME?"},{"$error":"#NAME?"},{"$error":"#NAME?"},null,{"$f":"NR_to_Cash!C$9","v":-155327},{"$f":"NR_to_Cash!D$9","v":-283877},{"$f":"NR_to_Cash!E$9","v":-105647},{"$f":"NR_to_Cash!F$9","v":-78023},null,735,-12668.794974063368,-13155.384278854737,-5212.4898182715142,19129.964425179445,null,-155327,-283877,-105647,-78023]
[736,{"$error":"#NAME?"},{"$error":"#NAME?"},{"$error":"#NAME?"},{"$error":"#NAME?"},null,{"$f":"NR_to_Cash!C$9","v":-155327},{"$f":"NR_to_Cash!D$9","v":-283877},{"$f":"NR_to_Cash!E$9","v":-105647},{"$f":"NR_to_Cash!F$9","v":-78023},null,736,-9302.783198988318,-30206.129982212151,-6276.0474041527787,-15670.011087191619,null,-155327,-283877,-105647,-78023]
[737,{"$error":"#NAME?"},{"$error":"#NAME?"},{"$error":"#NAME?"},{"$error":"#NAME?"},null,{"$f":"NR_to_Cash!C$9","v":-155327},{"$f":"NR_to_Cash!D$9","v":-283877},{"$f":"NR_to_Cash!E$9","v":-105647},{"$f":"NR_to_Cash!F$9","v":-78023},null,737,-9329.84444187396,3584.7767093053076,-22358.001804342352,-39818.876558546828,null,-155327,-283877,-105647,-78023]
[738,{"$error":"#NAME?"},{"$error":"#NAME?"},{"$error":"#NAME?"},{"$error":"#NAME?"},null,{"$f":"NR_to_Cash!C$9","v":-155327},{"$f":"NR_to_Cash!D$9","v":-283877},{"$f":"NR_to_Cash!E$9","v":-105647},{"$f":"NR_to_Cash!F$9","v":-78023},null,738,-16436.866062755496,-35652.577041410317,-7411.023683328719,5873.1117718923342,null,-155327,-283877,-105647,-78023]
[739,{"$error":"#NAME?"},{"$error":"#NAME?"},{"$error":"#NAME?"},{"$error":"#NAME?"},null,{"$f":"NR_to_Cash!C$9","v":-155327},{"$f":"NR_to_Cash!D$9","v":-283877},{"$f":"NR_to_Cash!E$9","v":-105647},{"$f":"NR_to_Cash!F$9","v":-78023},null,739,-11786.58286817296,-19669.492677525835,-11587.558012883328,-23482.084111076168,null,-155327,-283877,-105647,-78023]
[740,{"$error":"#NAME?"},{"$error":"#NAME?"},{"$error":"#NAME?"},{"$error":"#NAME?"},null,{"$f":"NR_to_Cash!C$9","v":-155327},{"$f":"NR_to_Cash!D$9","v":-283877},{"$f":"NR_to_Cash!E$9","v":-105647},{"$f":"NR_to_Cash!F$9","v":-78023},null,740,-12147.567173816169,-8149.5400613315051,-20969.930326947877,-6789.6004251509921,null,-155327,-283877,-105647,-78023]
[741,{"$error":"#NAME?"},{"$error":"#NAME?"},{"$error":"#NAME?"},{"$error":"#NAME?"},null,{"$f":"NR_to_Cash!C$9","v":-155327},{"$f":"NR_to_Cash!D$9","v":-283877},{"$f":"NR_to_Cash!E$9","v":-105647},{"$f":"NR_to_Cash!F$9","v":-78023},null,741,-19760.710102860168,-4608.6500756945497,-25948.349238605882,3939.3157215941824,null,-155327,-283877,-105647,-78023]
[742,{"$error":"#NAME?"},{"$error":"#NAME?"},{"$error":"#NAME?"},{"$error":"#NAME?"},null,{"$f":"NR_to_Cash!C$9","v":-155327},{"$f":"NR_to_Cash!D$9","v":-283877},{"$f":"NR_to_Cash!E$9","v":-105647},{"$f":"NR_to_Cash!F$9","v":-78023},null,742,-14541.595601776186,-22238.280775964195,-10310.544909776892,-27792.447606217465,null,-155327,-283877,-105647,-78023]
[743,{"$error":"#NAME?"},{"$error":"#NAME?"},{"$error":"#NAME?"},{"$error":"#NAME?"},null,{"$f":"NR_to_Cash!C$9","v":-155327},{"$f":"NR_to_Cash!D$9","v":-283877},{"$f":"NR_to_Cash!E$9","v":-105647},{"$f":"NR_to_Cash!F$9","v":-78023},null,743,-42901.989946857415,7032.898104177084,-17361.341919085447,1086.030285025558,null,-155327,-283877,-105647,-78023]
[744,{"$error":"#NAME?"},{"$error":"#NAME?"},{"$error":"#NAME?"},{"$error":"#NAME?"},null,{"$f":"NR_to_Cash!C$9","v":-155327},{"$f":"NR_to_Cash!D$9","v":-283877},{"$f":"NR_to_Cash!E$9","v":-105647},{"$f":"NR_to_Cash!F$9","v":-78023},null,744,-950.98280037880363,-9509.6601211305242,-16211.533132972552,-3109.6236541982007,null,-155327,-283877,-105647,-78023]
[745,{"$error":"#NAME?"},{"$error":"#NAME?"},{"$error":"#NAME?"},{"$error":"#NAME?"},null,{"$f":"NR_to_Cash!C$9","v":-155327},{"$f":"NR_to_Cash!D$9","v":-283877},{"$f":"NR_to_Cash!E$9","v":-105647},{"$f":"NR_to_Cash!F$9","v":-78023},null,745,-3303.1499681886476,3408.5610267893462,17889.738049866381,-18325.048147712128,null,-155327,-283877,-105647,-78023]
[746,{"$error":"#NAME?"},{"$error":"#NAME?"},{"$error":"#NAME?"},{"$error":"#NAME?"},null,{"$f":"NR_to_Cash!C$9","v":-155327},{"$f":"NR_to_Cash!D$9","v":-283877},{"$f":"NR_to_Cash!E$9","v":-105647},{"$f":"NR_to_Cash!F$9","v":-78023},null,746,-11156.648964465208,-20895.978321640869,-17342.820045585057,7826.1967792423957,null,-155327,-283877,-105647,-78023]
[747,{"$error":"#NAME?"},{"$error":"#NAME?"},{"$error":"#NAME?"},{"$error":"#NAME?"},null,{"$f":"NR_to_Cash!C$9","v":-155327},{"$f":"NR_to_Cash!D$9","v":-283877},{"$f":"NR_to_Cash!E$9","v":-105647},{"$f":"NR_to_Cash!F$9","v":-78023},null,747,-1545.1440632681092,-3731.8589264708899,14453.064417815001,-3908.3288993792767,null,-155327,-283877,-105647,-78023]
[748,{"$error":"#NAME?"},{"$error":"#NAME?"},{"$error":"#NAME?"},{"$error":"#NAME?"},null,{"$f":"NR_to_Cash!C$9","v":-155327},{"$f":"NR_to_Cash!D$9","v":-283877},{"$f":"NR_to_Cash!E$9","v":-105647},{"$f":"NR_to_Cash!F$9","v":-78023},null,748,-27777.622644688388,-13109.205218263514,-1712.9205870870642,-18577.621914539035,null,-155327,-283877,-105647,-78023]
[749,{"$error":"#NAME?"},{"$error":"#NAME?"},{"$error":"#NAME?"},{"$error":"#NAME?"},null,{"$f":"NR_to_Cash!C$9","v":-155327},{"$f":"NR_to_Cash!D$9","v":-283877},{"$f":"NR_to_Cash!E$9","v":-105647},{"$f":"NR_to_Cash!F$9","v":-78023},null,749,-5699.9705029097204,-20665.148736130173,-14646.998420854858,-4583.9899510688465,null,-155327,-283877,-105647,-78023]
[750,{"$error":"#NAME?"},{"$error":"#NAME?"},{"$error":"#NAME?"},{"$error":"#NAME?"},null,{"$f":"NR_to_Cash!C$9","v":-155327},{"$f":"NR_to_Cash!D$9","v":-283877},{"$f":"NR_to_Cash!E$9","v":-105647},{"$f":"NR_to_Cash!F$9","v":-78023},null,750,-30448.030022771487,-4138.5993199658051,9619.4684746552648,-23099.903522592147,null,-155327,-283877,-105647,-78023]
[751,{"$error":"#NAME?"},{"$error":"#NAME?"},{"$error":"#NAME?"},{"$error":"#NAME?"},null,{"$f":"NR_to_Cash!C$9","v":-155327},{"$f":"NR_to_Cash!D$9","v":-283877},{"$f":"NR_to_Cash!E$9","v":-105647},{"$f":"NR_to_Cash!F$9","v":-78023},null,751,-21948.217949636884,-11442.96592382742,-8239.5606699863893,17535.144419172517,null,-155327,-283877,-105647,-78023]
[752,{"$error":"#NAME?"},{"$error":"#NAME?"},{"$error":"#NAME?"},{"$error":"#NAME?"},null,{"$f":"NR_to_Cash!C$9","v":-155327},{"$f":"NR_to_Cash!D$9","v":-283877},{"$f":"NR_to_Cash!E$9","v":-105647},{"$f":"NR_to_Cash!F$9","v":-78023},null,752,-5079.1791576892801,-18147.795660820306,4755.1603302134499,-18255.65165829684,null,-155327,-283877,-105647,-78023]
[753,{"$error":"#NAME?"},{"$error":"#NAME?"},{"$error":"#NAME?"},{"$error":"#NAME?"},null,{"$f":"NR_to_Cash!C$9","v":-155327},{"$f":"NR_to_Cash!D$9","v":-283877},{"$f":"NR_to_Cash!E$9","v":-105647},{"$f":"NR_to_Cash!F$9","v":-78023},null,753,-11611.717664046218,-7339.3034965842289,15998.314327021286,-14903.311323861979,null,-155327,-283877,-105647,-78023]
[754,{"$error":"#NAME?"},{"$error":"#NAME?"},{"$error":"#NAME?"},{"$error":"#NAME?"},null,{"$f":"NR_to_Cash!C$9","v":-155327},{"$f":"NR_to_Cash!D$9","v":-283877},{"$f":"NR_to_Cash!E$9","v":-105647},{"$f":"NR_to_Cash!F$9","v":-78023},null,754,-3863.8289675949645,-4712.3499235497502,8661.349953934925,-14570.966053096603,null,-155327,-283877,-105647,-78023]
[755,{"$error":"#NAME?"},{"$error":"#NAME?"},{"$error":"#NAME?"},{"$error":"#NAME?"},null,{"$f":"NR_to_Cash!C$9","v":-155327},{"$f":"NR_to_Cash!D$9","v":-283877},{"$f":"NR_to_Cash!E$9","v":-105647},{"$f":"NR_to_Cash!F$9","v":-78023},null,755,-21235.549011573152,-12349.351430951157,12337.279331406262,-30970.032072897982,null,-155327,-283877,-105647,-78023]
[756,{"$error":"#NAME?"},{"$error":"#NAME?"},{"$error":"#NAME?"},{"$error":"#NAME?"},null,{"$f":"NR_to_Cash!C$9","v":-155327},{"$f":"NR_to_Cash!D$9","v":-283877},{"$f":"NR_to_Cash!E$9","v":-105647},{"$f":"NR_to_Cash!F$9","v":-78023},null,756,3611.5361981970855,-8840.5970758554067,1333.2764285342248,-9825.1036119607925,null,-155327,-283877,-105647,-78023]
[757,{"$error":"#NAME?"},{"$error":"#NAME?"},{"$error":"#NAME?"},{"$error":"#NAME?"},null,{"$f":"NR_to_Cash!C$9","v":-155327},{"$f":"NR_to_Cash!D$9","v":-283877},{"$f":"NR_to_Cash!E$9","v":-105647},{"$f":"NR_to_Cash!F$9","v":-78023},null,757,-15569.831967025944,-168.642326899594,-25453.998628333218,-26125.151325450573,null,-155327,-283877,-105647,-78023]
[758,{"$error":"#NAME?"},{"$error":"#NAME?"},{"$error":"#NAME?"},{"$error":"#NAME?"},null,{"$f":"NR_to_Cash!C$9","v":-155327},{"$f":"NR_to_Cash!D$9","v":-283877},{"$f":"NR_to_Cash!E$9","v":-105647},{"$f":"NR_to_Cash!F$9","v":-78023},null,758,-28755.736058055714,-8786.3319306319227,-12977.634987752093,-32015.741515041205,null,-155327,-283877,-105647,-78023]
[759,{"$error":"#NAME?"},{"$error":"#NAME?"},{"$error":"#NAME?"},{"$error":"#NAME?"},null,{"$f":"NR_to_Cash!C$9","v":-155327},{"$f":"NR_to_Cash!D$9","v":-283877},{"$f":"NR_to_Cash!E$9","v":-105647},{"$f":"NR_to_Cash!F$9","v":-78023},null,759,1109.7979330577164,-28221.379729872591,-28619.060877573706,8262.6789652594798,null,-155327,-283877,-105647,-78023]
[760,{"$error":"#NAME?"},{"$error":"#NAME?"},{"$error":"#NAME?"},{"$error":"#NAME?"},null,{"$f":"NR_to_Cash!C$9","v":-155327},{"$f":"NR_to_Cash!D$9","v":-283877},{"$f":"NR_to_Cash!E$9","v":-105647},{"$f":"NR_to_Cash!F$9","v":-78023},null,760,-365.82564981990879,-24847.16826404781,-13411.826737622454,7364.5433065525613,null,-155327,-283877,-105647,-78023]
[761,{"$error":"#NAME?"},{"$error":"#NAME?"},{"$error":"#NAME?"},{"$error":"#NAME?"},null,{"$f":"NR_to_Cash!C$9","v":-155327},{"$f":"NR_to_Cash!D$9","v":-283877},{"$f":"NR_to_Cash!E$9","v":-105647},{"$f":"NR_to_Cash!F$9","v":-78023},null,761,-7271.2563043297796,2189.8014606358765,15774.765869777995,-10745.452207667668,null,-155327,-283877,-105647,-78023]
[762,{"$error":"#NAME?"},{"$error":"#NAME?"},{"$error":"#NAME?"},{"$error":"#NAME?"},null,{"$f":"NR_to_Cash!C$9","v":-155327},{"$f":"NR_to_Cash!D$9","v":-283877},{"$f":"NR_to_Cash!E$9","v":-105647},{"$f":"NR_to_Cash!F$9","v":-78023},null,762,-1740.9257902909658,-29419.568063481725,-17871.827400248651,-17683.112973539588,null,-155327,-283877,-105647,-78023]
[763,{"$error":"#NAME?"},{"$error":"#NAME?"},{"$error":"#NAME?"},{"$error":"#NAME?"},null,{"$f":"NR_to_Cash!C$9","v":-155327},{"$f":"NR_to_Cash!D$9","v":-283877},{"$f":"NR_to_Cash!E$9","v":-105647},{"$f":"NR_to_Cash!F$9","v":-78023},null,763,-14936.291110532573,-5913.0237050991045,-13993.274932043969,-20285.618032123919,null,-155327,-283877,-105647,-78023]
[764,{"$error":"#NAME?"},{"$error":"#NAME?"},{"$error":"#NAME?"},{"$error":"#NAME?"},null,{"$f":"NR_to_Cash!C$9","v":-155327},{"$f":"NR_to_Cash!D$9","v":-283877},{"$f":"NR_to_Cash!E$9","v":-105647},{"$f":"NR_to_Cash!F$9","v":-78023},null,764,-10082.576755509732,-14118.807290328908,10047.408271016668,10154.4045485489,null,-155327,-283877,-105647,-78023]
[765,{"$error":"#NAME?"},{"$error":"#NAME?"},{"$error":"#NAME?"},{"$error":"#NAME?"},null,{"$f":"NR_to_Cash!C$9","v":-155327},{"$f":"NR_to_Cash!D$9","v":-283877},{"$f":"NR_to_Cash!E$9","v":-105647},{"$f":"NR_to_Cash!F$9","v":-78023},null,765,-4338.4569223564322,-16560.268855368016,-28592.962639155827,-15294.219366901129,null,-155327,-283877,-105647,-78023]
[766,{"$error":"#NAME?"},{"$error":"#NAME?"},{"$error":"#NAME?"},{"$error":"#NAME?"},null,{"$f":"NR_to_Cash!C$9","v":-155327},{"$f":"NR_to_Cash!D$9","v":-283877},{"$f":"NR_to_Cash!E$9","v":-105647},{"$f":"NR_to_Cash!F$9","v":-78023},null,766,-23606.472402153609,-38121.159412657056,-5940.5109110660342,-11255.079500445308,null,-155327,-283877,-105647,-78023]
[767,{"$error":"#NAME?"},{"$error":"#NAME?"},{"$error":"#NAME?"},{"$error":"#NAME?"},null,{"$f":"NR_to_Cash!C$9","v":-155327},{"$f":"NR_to_Cash!D$9","v":-283877},{"$f":"NR_to_Cash!E$9","v":-105647},{"$f":"NR_to_Cash!F$9","v":-78023},null,767,-9795.7057002928577,-10555.661231074522,601.10951314207387,-27016.571441919132,null,-155327,-283877,-105647,-78023]
[768,{"$error":"#NAME?"},{"$error":"#NAME?"},{"$error":"#NAME?"},{"$error":"#NAME?"},null,{"$f":"NR_to_Cash!C$9","v":-155327},{"$f":"NR_to_Cash!D$9","v":-283877},{"$f":"NR_to_Cash!E$9","v":-105647},{"$f":"NR_to_Cash!F$9","v":-78023},null,768,-3809.474144794789,-758.96990049729629,5346.5610471136533,-4319.8579094705419,null,-155327,-283877,-105647,-78023]
[769,{"$error":"#NAME?"},{"$error":"#NAME?"},{"$error":"#NAME?"},{"$error":"#NAME?"},null,{"$f":"NR_to_Cash!C$9","v":-155327},{"$f":"NR_to_Cash!D$9","v":-283877},{"$f":"NR_to_Cash!E$9","v":-105647},{"$f":"NR_to_Cash!F$9","v":-78023},null,769,-21014.510385926264,-8785.5486690049638,-5488.6598354379785,-10095.549094652823,null,-155327,-283877,-105647,-78023]
[770,{"$error":"#NAME?"},{"$error":"#NAME?"},{"$error":"#NAME?"},{"$error":"#NAME?"},null,{"$f":"NR_to_Cash!C$9","v":-155327},{"$f":"NR_to_Cash!D$9","v":-283877},{"$f":"NR_to_Cash!E$9","v":-105647},{"$f":"NR_to_Cash!F$9","v":-78023},null,770,-18042.614839796566,1361.3934892483985,7082.7433803236727,-10670.372317053512,null,-155327,-283877,-105647,-78023]
[771,{"$error":"#NAME?"},{"$error":"#NAME?"},{"$error":"#NAME?"},{"$error":"#NAME?"},null,{"$f":"NR_to_Cash!C$9","v":-155327},{"$f":"NR_to_Cash!D$9","v":-283877},{"$f":"NR_to_Cash!E$9","v":-105647},{"$f":"NR_to_Cash!F$9","v":-78023},null,771,-26156.339386703083,-18344.65227464971,19026.373402508107,-28549.017336083965,null,-155327,-283877,-105647,-78023]
[772,{"$error":"#NAME?"},{"$error":"#NAME?"},{"$error":"#NAME?"},{"$error":"#NAME?"},null,{"$f":"NR_to_Cash!C$9","v":-155327},{"$f":"NR_to_Cash!D$9","v":-283877},{"$f":"NR_to_Cash!E$9","v":-105647},{"$f":"NR_to_Cash!F$9","v":-78023},null,772,-13458.141300891974,-1769.5282313115715,21147.868521581779,-12569.080108569746,null,-155327,-283877,-105647,-78023]
[773,{"$error":"#NAME?"},{"$error":"#NAME?"},{"$error":"#NAME?"},{"$error":"#NAME?"},null,{"$f":"NR_to_Cash!C$9","v":-155327},{"$f":"NR_to_Cash!D$9","v":-283877},{"$f":"NR_to_Cash!E$9","v":-105647},{"$f":"NR_to_Cash!F$9","v":-78023},null,773,-11834.4502482972,-17229.360098092144,6472.9130592112906,-28822.500340393024,null,-155327,-283877,-105647,-78023]
[774,{"$error":"#NAME?"},{"$error":"#NAME?"},{"$error":"#NAME?"},{"$error":"#NAME?"},null,{"$f":"NR_to_Cash!C$9","v":-155327},{"$f":"NR_to_Cash!D$9","v":-283877},{"$f":"NR_to_Cash!E$9","v":-105647},{"$f":"NR_to_Cash!F$9","v":-78023},null,774,-6024.6658713895013,6525.5331663072666,-1978.0670189065941,6947.90414653882,null,-155327,-283877,-105647,-78023]
[775,{"$error":"#NAME?"},{"$error":"#NAME?"},{"$error":"#NAME?"},{"$error":"#NAME?"},null,{"$f":"NR_to_Cash!C$9","v":-155327},{"$f":"NR_to_Cash!D$9","v":-283877},{"$f":"NR_to_Cash!E$9","v":-105647},{"$f":"NR_to_Cash!F$9","v":-78023},null,775,-996.57152893783109,3569.7527944396275,-23304.521166493101,3978.2524472173491,null,-155327,-283877,-105647,-78023]
[776,{"$error":"#NAME?"},{"$error":"#NAME?"},{"$error":"#NAME?"},{"$error":"#NAME?"},null,{"$f":"NR_to_Cash!C$9","v":-155327},{"$f":"NR_to_Cash!D$9","v":-283877},{"$f":"NR_to_Cash!E$9","v":-105647},{"$f":"NR_to_Cash!F$9","v":-78023},null,776,-11018.637721615984,-14516.627815534934,-12110.650189084507,11255.077004487013,null,-155327,-283877,-105647,-78023]
[777,{"$error":"#NAME?"},{"$error":"#NAME?"},{"$error":"#NAME?"},{"$error":"#NAME?"},null,{"$f":"NR_to_Cash!C$9","v":-155327},{"$f":"NR_to_Cash!D$9","v":-283877},{"$f":"NR_to_Cash!E$9","v":-105647},{"$f":"NR_to_Cash!F$9","v":-78023},null,777,-20257.399499187326,-20519.566106479382,-14552.182338746217,5535.7684811638273,null,-155327,-283877,-105647,-78023]
[778,{"$error":"#NAME?"},{"$error":"#NAME?"},{"$error":"#NAME?"},{"$error":"#NAME?"},null,{"$f":"NR_to_Cash!C$9","v":-155327},{"$f":"NR_to_Cash!D$9","v":-283877},{"$f":"NR_to_Cash!E$9","v":-105647},{"$f":"NR_to_Cash!F$9","v":-78023},null,778,-3480.8413667827799,-2800.4555391335284,9423.3591872602428,-15627.720076285281,null,-155327,-283877,-105647,-78023]
[779,{"$error":"#NAME?"},{"$error":"#NAME?"},{"$error":"#NAME?"},{"$error":"#NAME?"},null,{"$f":"NR_to_Cash!C$9","v":-155327},{"$f":"NR_to_Cash!D$9","v":-283877},{"$f":"NR_to_Cash!E$9","v":-105647},{"$f":"NR_to_Cash!F$9","v":-78023},null,779,-12825.790399956375,-22018.083637426676,-2377.1770476542206,5624.3999087523662,null,-155327,-283877,-105647,-78023]
[780,{"$error":"#NAME?"},{"$error":"#NAME?"},{"$error":"#NAME?"},{"$error":"#NAME?"},null,{"$f":"NR_to_Cash!C$9","v":-155327},{"$f":"NR_to_Cash!D$9","v":-283877},{"$f":"NR_to_Cash!E$9","v":-105647},{"$f":"NR_to_Cash!F$9","v":-78023},null,780,-14435.702346948661,-36484.29224398567,9007.1940832716027,-8470.1349540768533,null,-155327,-283877,-105647,-78023]
[781,{"$error":"#NAME?"},{"$error":"#NAME?"},{"$error":"#NAME?"},{"$error":"#NAME?"},null,{"$f":"NR_to_Cash!C$9","v":-155327},{"$f":"NR_to_Cash!D$9","v":-283877},{"$f":"NR_to_Cash!E$9","v":-105647},{"$f":"NR_to_Cash!F$9","v":-78023},null,781,-20304.488421059617,-18879.488950174808,-8131.143806098913,-7907.525128440222,null,-155327,-283877,-105647,-78023]
[782,{"$error":"#NAME?"},{"$error":"#NAME?"},{"$error":"#NAME?"},{"$error":"#NAME?"},null,{"$f":"NR_to_Cash!C$9","v":-155327},{"$f":"NR_to_Cash!D$9","v":-283877},{"$f":"NR_to_Cash!E$9","v":-105647},{"$f":"NR_to_Cash!F$9","v":-78023},null,782,-18254.229893565091,-24897.02388085569,-1508.7926954220379,-6112.0988749592589,null,-155327,-283877,-105647,-78023]
[783,{"$error":"#NAME?"},{"$error":"#NAME?"},{"$error":"#NAME?"},{"$error":"#NAME?"},null,{"$f":"NR_to_Cash!C$9","v":-155327},{"$f":"NR_to_Cash!D$9","v":-283877},{"$f":"NR_to_Cash!E$9","v":-105647},{"$f":"NR_to_Cash!F$9","v":-78023},null,783,-47741.751032589644,-9359.5236037318882,-14522.817745881024,148.1830411879514,null,-155327,-283877,-105647,-78023]
[784,{"$error":"#NAME?"},{"$error":"#NAME?"},{"$error":"#NAME?"},{"$error":"#NAME?"},null,{"$f":"NR_to_Cash!C$9","v":-155327},{"$f":"NR_to_Cash!D$9","v":-283877},{"$f":"NR_to_Cash!E$9","v":-105647},{"$f":"NR_to_Cash!F$9","v":-78023},null,784,-2117.6249330390701,-7337.8777662801112,2077.5420826193285,3073.4747118333171,null,-155327,-283877,-105647,-78023]
[785,{"$error":"#NAME?"},{"$error":"#NAME?"},{"$error":"#NAME?"},{"$error":"#NAME?"},null,{"$f":"NR_to_Cash!C$9","v":-155327},{"$f":"NR_to_Cash!D$9","v":-283877},{"$f":"NR_to_Cash!E$9","v":-105647},{"$f":"NR_to_Cash!F$9","v":-78023},null,785,-21258.744053463655,-10353.96305140428,-28484.855621941017,-19868.143555773026,null,-155327,-283877,-105647,-78023]
[786,{"$error":"#NAME?"},{"$error":"#NAME?"},{"$error":"#NAME?"},{"$error":"#NAME?"},null,{"$f":"NR_to_Cash!C$9","v":-155327},{"$f":"NR_to_Cash!D$9","v":-283877},{"$f":"NR_to_Cash!E$9","v":-105647},{"$f":"NR_to_Cash!F$9","v":-78023},null,786,-8471.1950479247753,-2612.6040822501427,4115.4899241456842,-21326.536954575866,null,-155327,-283877,-105647,-78023]
[787,{"$error":"#NAME?"},{"$error":"#NAME?"},{"$error":"#NAME?"},{"$error":"#NAME?"},null,{"$f":"NR_to_Cash!C$9","v":-155327},{"$f":"NR_to_Cash!D$9","v":-283877},{"$f":"NR_to_Cash!E$9","v":-105647},{"$f":"NR_to_Cash!F$9","v":-78023},null,787,6227.6578717810735,-22902.902042298407,-8140.9390832262852,430.01398315525518,null,-155327,-283877,-105647,-78023]
[788,{"$error":"#NAME?"},{"$error":"#NAME?"},{"$error":"#NAME?"},{"$error":"#NAME?"},null,{"$f":"NR_to_Cash!C$9","v":-155327},{"$f":"NR_to_Cash!D$9","v":-283877},{"$f":"NR_to_Cash!E$9","v":-105647},{"$f":"NR_to_Cash!F$9","v":-78023},null,788,-24575.022058612463,2194.4625118521826,-11630.53331559081,-19766.221235864672,null,-155327,-283877,-105647,-78023]
[789,{"$error":"#NAME?"},{"$error":"#NAME?"},{"$error":"#NAME?"},{"$error":"#NAME?"},null,{"$f":"NR_to_Cash!C$9","v":-155327},{"$f":"NR_to_Cash!D$9","v":-283877},{"$f":"NR_to_Cash!E$9","v":-105647},{"$f":"NR_to_Cash!F$9","v":-78023},null,789,-7367.5691963194513,5335.3281731181414,-19382.981466237783,-21524.947014068661,null,-155327,-283877,-105647,-78023]
[790,{"$error":"#NAME?"},{"$error":"#NAME?"},{"$error":"#NAME?"},{"$error":"#NAME?"},null,{"$f":"NR_to_Cash!C$9","v":-155327},{"$f":"NR_to_Cash!D$9","v":-283877},{"$f":"NR_to_Cash!E$9","v":-105647},{"$f":"NR_to_Cash!F$9","v":-78023},null,790,-3221.396062706759,-23396.586096477393,-20403.777318618369,4277.4863202032466,null,-155327,-283877,-105647,-78023]
[791,{"$error":"#NAME?"},{"$error":"#NAME?"},{"$error":"#NAME?"},{"$error":"#NAME?"},null,{"$f":"NR_to_Cash!C$9","v":-155327},{"$f":"NR_to_Cash!D$9","v":-283877},{"$f":"NR_to_Cash!E$9","v":-105647},{"$f":"NR_to_Cash!F$9","v":-78023},null,791,-17285.141747591824,-5544.6268182266049,-13966.339073336912,-2162.2593789752204,null,-155327,-283877,-105647,-78023]
[792,{"$error":"#NAME?"},{"$error":"#NAME?"},{"$error":"#NAME?"},{"$error":"#NAME?"},null,{"$f":"NR_to_Cash!C$9","v":-155327},{"$f":"NR_to_Cash!D$9","v":-283877},{"$f":"NR_to_Cash!E$9","v":-105647},{"$f":"NR_to_Cash!F$9","v":-78023},null,792,-36029.962447914091,-3089.5845068334484,-28115.581801855318,-5006.1588024087778,null,-155327,-283877,-105647,-78023]
[793,{"$error":"#NAME?"},{"$error":"#NAME?"},{"$error":"#NAME?"},{"$error":"#NAME?"},null,{"$f":"NR_to_Cash!C$9","v":-155327},{"$f":"NR_to_Cash!D$9","v":-283877},{"$f":"NR_to_Cash!E$9","v":-105647},{"$f":"NR_to_Cash!F$9","v":-78023},null,793,-27465.873069274516,9771.199573670141,24243.995173923457,4303.6066301274677,null,-155327,-283877,-105647,-78023]
[794,{"$error":"#NAME?"},{"$error":"#NAME?"},{"$error":"#NAME?"},{"$error":"#NAME?"},null,{"$f":"NR_to_Cash!C$9","v":-155327},{"$f":"NR_to_Cash!D$9","v":-283877},{"$f":"NR_to_Cash!E$9","v":-105647},{"$f":"NR_to_Cash!F$9","v":-78023},null,794,-18828.748669044853,1125.1064094019023,-23255.041408289409,-19968.149293413939,null,-155327,-283877,-105647,-78023]
[795,{"$error":"#NAME?"},{"$error":"#NAME?"},{"$error":"#NAME?"},{"$error":"#NAME?"},null,{"$f":"NR_to_Cash!C$9","v":-155327},{"$f":"NR_to_Cash!D$9","v":-283877},{"$f":"NR_to_Cash!E$9","v":-105647},{"$f":"NR_to_Cash!F$9","v":-78023},null,795,-21087.813124968401,-8345.3590164193301,-18246.18838237931,-25303.995552816781,null,-155327,-283877,-105647,-78023]
[796,{"$error":"#NAME?"},{"$error":"#NAME?"},{"$error":"#NAME?"},{"$error":"#NAME?"},null,{"$f":"NR_to_Cash!C$9","v":-155327},{"$f":"NR_to_Cash!D$9","v":-283877},{"$f":"NR_to_Cash!E$9","v":-105647},{"$f":"NR_to_Cash!F$9","v":-78023},null,796,-12779.788835406078,-36875.585440883136,-12118.382293763334,120.55993993956699,null,-155327,-283877,-105647,-78023]
[797,{"$error":"#NAME?"},{"$error":"#NAME?"},{"$error":"#NAME?"},{"$error":"#NAME?"},null,{"$f":"NR_to_Cash!C$9","v":-155327},{"$f":"NR_to_Cash!D$9","v":-283877},{"$f":"NR_to_Cash!E$9","v":-105647},{"$f":"NR_to_Cash!F$9","v":-78023},null,797,-6219.729124401264,-15042.453369979916,5729.9944133143772,-4574.4909879337392,null,-155327,-283877,-105647,-78023]
[798,{"$error":"#NAME?"},{"$error":"#NAME?"},{"$error":"#NAME?"},{"$error":"#NAME?"},null,{"$f":"NR_to_Cash!C$9","v":-155327},{"$f":"NR_to_Cash!D$9","v":-283877},{"$f":"NR_to_Cash!E$9","v":-105647},{"$f":"NR_to_Cash!F$9","v":-78023},null,798,-15340.2856514374,-2576.6377843355781,1594.0152038404685,-20495.203729001871,null,-155327,-283877,-105647,-78023]
[799,{"$error":"#NAME?"},{"$error":"#NAME?"},{"$error":"#NAME?"},{"$error":"#NAME?"},null,{"$f":"NR_to_Cash!C$9","v":-155327},{"$f":"NR_to_Cash!D$9","v":-283877},{"$f":"NR_to_Cash!E$9","v":-105647},{"$f":"NR_to_Cash!F$9","v":-78023},null,799,-10723.920939658032,6411.9187502809955,-15464.787717069705,-18719.679628721002,null,-155327,-283877,-105647,-78023]
[800,{"$error":"#NAME?"},{"$error":"#NAME?"},{"$error":"#NAME?"},{"$error":"#NAME?"},null,{"$f":"NR_to_Cash!C$9","v":-155327},{"$f":"NR_to_Cash!D$9","v":-283877},{"$f":"NR_to_Cash!E$9","v":-105647},{"$f":"NR_to_Cash!F$9","v":-78023},null,800,-4113.7942477548513,-10091.720009148288,-9910.4856735632911,-14035.108660788184,null,-155327,-283877,-105647,-78023]
[801,{"$error":"#NAME?"},{"$error":"#NAME?"},{"$error":"#NAME?"},{"$error":"#NAME?"},null,{"$f":"NR_to_Cash!C$9","v":-155327},{"$f":"NR_to_Cash!D$9","v":-283877},{"$f":"NR_to_Cash!E$9","v":-105647},{"$f":"NR_to_Cash!F$9","v":-78023},null,801,-20877.310384617802,-6811.0785889028193,-18740.858654951029,5168.5199133962624,null,-155327,-283877,-105647,-78023]
[802,{"$error":"#NAME?"},{"$error":"#NAME?"},{"$error":"#NAME?"},{"$error":"#NAME?"},null,{"$f":"NR_to_Cash!C$9","v":-155327},{"$f":"NR_to_Cash!D$9","v":-283877},{"$f":"NR_to_Cash!E$9","v":-105647},{"$f":"NR_to_Cash!F$9","v":-78023},null,802,-15348.724848568301,-6184.854929824467,-3356.7157576813952,14375.507819543163,null,-155327,-283877,-105647,-78023]
[803,{"$error":"#NAME?"},{"$error":"#NAME?"},{"$error":"#NAME?"},{"$error":"#NAME?"},null,{"$f":"NR_to_Cash!C$9","v":-155327},{"$f":"NR_to_Cash!D$9","v":-283877},{"$f":"NR_to_Cash!E$9","v":-105647},{"$f":"NR_to_Cash!F$9","v":-78023},null,803,-15074.275319640004,-17433.94909382753,-19119.550957541789,-33259.223108489117,null,-155327,-283877,-105647,-78023]
[804,{"$error":"#NAME?"},{"$error":"#NAME?"},{"$error":"#NAME?"},{"$error":"#NAME?"},null,{"$f":"NR_to_Cash!C$9","v":-155327},{"$f":"NR_to_Cash!D$9","v":-283877},{"$f":"NR_to_Cash!E$9","v":-105647},{"$f":"NR_to_Cash!F$9","v":-78023},null,804,-8726.2040454706603,-8641.4326949537826,-23747.25693104829,-14112.195498366546,null,-155327,-283877,-105647,-78023]
[805,{"$error":"#NAME?"},{"$error":"#NAME?"},{"$error":"#NAME?"},{"$error":"#NAME?"},null,{"$f":"NR_to_Cash!C$9","v":-155327},{"$f":"NR_to_Cash!D$9","v":-283877},{"$f":"NR_to_Cash!E$9","v":-105647},{"$f":"NR_to_Cash!F$9","v":-78023},null,805,12882.339317763355,-28751.647765583475,-3987.6097554321668,7785.6990543213387,null,-155327,-283877,-105647,-78023]
[806,{"$error":"#NAME?"},{"$error":"#NAME?"},{"$error":"#NAME?"},{"$error":"#NAME?"},null,{"$f":"NR_to_Cash!C$9","v":-155327},{"$f":"NR_to_Cash!D$9","v":-283877},{"$f":"NR_to_Cash!E$9","v":-105647},{"$f":"NR_to_Cash!F$9","v":-78023},null,806,-19489.969006775667,3870.0471309254972,-24892.520104423464,-23822.773283677478,null,-155327,-283877,-105647,-78023]
[807,{"$error":"#NAME?"},{"$error":"#NAME?"},{"$error":"#NAME?"},{"$error":"#NAME?"},null,{"$f":"NR_to_Cash!C$9","v":-155327},{"$f":"NR_to_Cash!D$9","v":-283877},{"$f":"NR_to_Cash!E$9","v":-105647},{"$f":"NR_to_Cash!F$9","v":-78023},null,807,-24685.311729839224,-18705.516780875379,13877.938142409568,-18698.809862694903,null,-155327,-283877,-105647,-78023]
[808,{"$error":"#NAME?"},{"$error":"#NAME?"},{"$error":"#NAME?"},{"$error":"#NAME?"},null,{"$f":"NR_to_Cash!C$9","v":-155327},{"$f":"NR_to_Cash!D$9","v":-283877},{"$f":"NR_to_Cash!E$9","v":-105647},{"$f":"NR_to_Cash!F$9","v":-78023},null,808,-15355.949015718761,11544.406213217035,-2390.8313999553516,8716.8901061647903,null,-155327,-283877,-105647,-78023]
[809,{"$error":"#NAME?"},{"$error":"#NAME?"},{"$error":"#NAME?"},{"$error":"#NAME?"},null,{"$f":"NR_to_Cash!C$9","v":-155327},{"$f":"NR_to_Cash!D$9","v":-283877},{"$f":"NR_to_Cash!E$9","v":-105647},{"$f":"NR_to_Cash!F$9","v":-78023},null,809,-19350.654264295183,-17160.288967109384,-11191.04631796717,-3571.852907194314,null,-155327,-283877,-105647,-78023]
[810,{"$error":"#NAME?"},{"$error":"#NAME?"},{"$error":"#NAME?"},{"$error":"#NAME?"},null,{"$f":"NR_to_Cash!C$9","v":-155327},{"$f":"NR_to_Cash!D$9","v":-283877},{"$f":"NR_to_Cash!E$9","v":-105647},{"$f":"NR_to_Cash!F$9","v":-78023},null,810,-18733.405164943921,-30609.51531574002,6421.7445043601592,-9856.8568685567352,null,-155327,-283877,-105647,-78023]
[811,{"$error":"#NAME?"},{"$error":"#NAME?"},{"$error":"#NAME?"},{"$error":"#NAME?"},null,{"$f":"NR_to_Cash!C$9","v":-155327},{"$f":"NR_to_Cash!D$9","v":-283877},{"$f":"NR_to_Cash!E$9","v":-105647},{"$f":"NR_to_Cash!F$9","v":-78023},null,811,-12224.985994271803,-6667.2252390045196,-10766.971858851386,677.74490324786507,null,-155327,-283877,-105647,-78023]
[812,{"$error":"#NAME?"},{"$error":"#NAME?"},{"$error":"#NAME?"},{"$error":"#NAME?"},null,{"$f":"NR_to_Cash!C$9","v":-155327},{"$f":"NR_to_Cash!D$9","v":-283877},{"$f":"NR_to_Cash!E$9","v":-105647},{"$f":"NR_to_Cash!F$9","v":-78023},null,812,-2465.7738715676942,9043.3024819636248,3551.9681640303525,-29122.291049638723,null,-155327,-283877,-105647,-78023]
[813,{"$error":"#NAME?"},{"$error":"#NAME?"},{"$error":"#NAME?"},{"$error":"#NAME?"},null,{"$f":"NR_to_Cash!C$9","v":-155327},{"$f":"NR_to_Cash!D$9","v":-283877},{"$f":"NR_to_Cash!E$9","v":-105647},{"$f":"NR_to_Cash!F$9","v":-78023},null,813,-4645.7878793065929,-2673.2429685504858,-3724.9725658678462,-24175.551668904081,null,-155327,-283877,-105647,-78023]
[814,{"$error":"#NAME?"},{"$error":"#NAME?"},{"$error":"#NAME?"},{"$error":"#NAME?"},null,{"$f":"NR_to_Cash!C$9","v":-155327},{"$f":"NR_to_Cash!D$9","v":-283877},{"$f":"NR_to_Cash!E$9","v":-105647},{"$f":"NR_to_Cash!F$9","v":-78023},null,814,-14701.871275090543,-22758.39810571686,-10371.910571976852,-6076.143335166932,null,-155327,-283877,-105647,-78023]
[815,{"$error":"#NAME?"},{"$error":"#NAME?"},{"$error":"#NAME?"},{"$error":"#NAME?"},null,{"$f":"NR_to_Cash!C$9","v":-155327},{"$f":"NR_to_Cash!D$9","v":-283877},{"$f":"NR_to_Cash!E$9","v":-105647},{"$f":"NR_to_Cash!F$9","v":-78023},null,815,-20875.027176309304,-15259.019471073956,-4385.2719346974309,-17166.635415074299,null,-155327,-283877,-105647,-78023]
[816,{"$error":"#NAME?"},{"$error":"#NAME?"},{"$error":"#NAME?"},{"$error":"#NAME?"},null,{"$f":"NR_to_Cash!C$9","v":-155327},{"$f":"NR_to_Cash!D$9","v":-283877},{"$f":"NR_to_Cash!E$9","v":-105647},{"$f":"NR_to_Cash!F$9","v":-78023},null,816,-4332.5365998050829,228.62690093868341,-14343.269643516407,-5955.0125435743284,null,-155327,-283877,-105647,-78023]
[817,{"$error":"#NAME?"},{"$error":"#NAME?"},{"$error":"#NAME?"},{"$error":"#NAME?"},null,{"$f":"NR_to_Cash!C$9","v":-155327},{"$f":"NR_to_Cash!D$9","v":-283877},{"$f":"NR_to_Cash!E$9","v":-105647},{"$f":"NR_to_Cash!F$9","v":-78023},null,817,-44423.52989031178,-8728.5673729217815,-38105.649009631037,-91.078160120769624,null,-155327,-283877,-105647,-78023]
[818,{"$error":"#NAME?"},{"$error":"#NAME?"},{"$error":"#NAME?"},{"$error":"#NAME?"},null,{"$f":"NR_to_Cash!C$9","v":-155327},{"$f":"NR_to_Cash!D$9","v":-283877},{"$f":"NR_to_Cash!E$9","v":-105647},{"$f":"NR_to_Cash!F$9","v":-78023},null,818,-12072.108632294112,7806.8668539818682,-23707.597201018543,-3586.8350483549834,null,-155327,-283877,-105647,-78023]
[819,{"$error":"#NAME?"},{"$error":"#NAME?"},{"$error":"#NAME?"},{"$error":"#NAME?"},null,{"$f":"NR_to_Cash!C$9","v":-155327},{"$f":"NR_to_Cash!D$9","v":-283877},{"$f":"NR_to_Cash!E$9","v":-105647},{"$f":"NR_to_Cash!F$9","v":-78023},null,819,4769.8795219958083,2495.3614099913984,-32357.269497530884,1617.9831188537462,null,-155327,-283877,-105647,-78023]
[820,{"$error":"#NAME?"},{"$error":"#NAME?"},{"$error":"#NAME?"},{"$error":"#NAME?"},null,{"$f":"NR_to_Cash!C$9","v":-155327},{"$f":"NR_to_Cash!D$9","v":-283877},{"$f":"NR_to_Cash!E$9","v":-105647},{"$f":"NR_to_Cash!F$9","v":-78023},null,820,-23113.772475665111,9088.8519618541504,-15837.487077727761,-28620.146166568575,null,-155327,-283877,-105647,-78023]
[821,{"$error":"#NAME?"},{"$error":"#NAME?"},{"$error":"#NAME?"},{"$error":"#NAME?"},null,{"$f":"NR_to_Cash!C$9","v":-155327},{"$f":"NR_to_Cash!D$9","v":-283877},{"$f":"NR_to_Cash!E$9","v":-105647},{"$f":"NR_to_Cash!F$9","v":-78023},null,821,-16607.55158289487,-7823.8419835495224,-31983.007171120247,-10031.74767812756,null,-155327,-283877,-105647,-78023]
[822,{"$error":"#NAME?"},{"$error":"#NAME?"},{"$error":"#NAME?"},{"$error":"#NAME?"},null,{"$f":"NR_to_Cash!C$9","v":-155327},{"$f":"NR_to_Cash!D$9","v":-283877},{"$f":"NR_to_Cash!E$9","v":-105647},{"$f":"NR_to_Cash!F$9","v":-78023},null,822,-9086.5284919631122,-9109.6993267204143,-16422.444374420458,-29842.307127160271,null,-155327,-283877,-105647,-78023]
[823,{"$error":"#NAME?"},{"$error":"#NAME?"},{"$error":"#NAME?"},{"$error":"#NAME?"},null,{"$f":"NR_to_Cash!C$9","v":-155327},{"$f":"NR_to_Cash!D$9","v":-283877},{"$f":"NR_to_Cash!E$9","v":-105647},{"$f":"NR_to_Cash!F$9","v":-78023},null,823,-21444.49003041441,-1255.0114563053185,-9849.3087347141318,1386.0999988863293,null,-155327,-283877,-105647,-78023]
[824,{"$error":"#NAME?"},{"$error":"#NAME?"},{"$error":"#NAME?"},{"$error":"#NAME?"},null,{"$f":"NR_to_Cash!C$9","v":-155327},{"$f":"NR_to_Cash!D$9","v":-283877},{"$f":"NR_to_Cash!E$9","v":-105647},{"$f":"NR_to_Cash!F$9","v":-78023},null,824,-14764.263071589656,-20055.852871127514,-15922.662298041088,14912.924232177164,null,-155327,-283877,-105647,-78023]
[825,{"$error":"#NAME?"},{"$error":"#NAME?"},{"$error":"#NAME?"},{"$error":"#NAME?"},null,{"$f":"NR_to_Cash!C$9","v":-155327},{"$f":"NR_to_Cash!D$9","v":-283877},{"$f":"NR_to_Cash!E$9","v":-105647},{"$f":"NR_to_Cash!F$9","v":-78023},null,825,-14078.928373678089,-13176.911202452142,-10630.383288375848,-25350.540046789472,null,-155327,-283877,-105647,-78023]
[826,{"$error":"#NAME?"},{"$error":"#NAME?"},{"$error":"#NAME?"},{"$error":"#NAME?"},null,{"$f":"NR_to_Cash!C$9","v":-155327},{"$f":"NR_to_Cash!D$9","v":-283877},{"$f":"NR_to_Cash!E$9","v":-105647},{"$f":"NR_to_Cash!F$9","v":-78023},null,826,-11786.991706389192,-18179.017172805161,-12604.703552357205,233.34363876480035,null,-155327,-283877,-105647,-78023]
[827,{"$error":"#NAME?"},{"$error":"#NAME?"},{"$error":"#NAME?"},{"$error":"#NAME?"},null,{"$f":"NR_to_Cash!C$9","v":-155327},{"$f":"NR_to_Cash!D$9","v":-283877},{"$f":"NR_to_Cash!E$9","v":-105647},{"$f":"NR_to_Cash!F$9","v":-78023},null,827,-7988.5506720721332,10579.482742683998,-20535.106020702329,-29578.879808175014,null,-155327,-283877,-105647,-78023]
[828,{"$error":"#NAME?"},{"$error":"#NAME?"},{"$error":"#NAME?"},{"$error":"#NAME?"},null,{"$f":"NR_to_Cash!C$9","v":-155327},{"$f":"NR_to_Cash!D$9","v":-283877},{"$f":"NR_to_Cash!E$9","v":-105647},{"$f":"NR_to_Cash!F$9","v":-78023},null,828,-23988.554230525082,-12776.514434120894,-20451.916656687648,-10217.906676922528,null,-155327,-283877,-105647,-78023]
[829,{"$error":"#NAME?"},{"$error":"#NAME?"},{"$error":"#NAME?"},{"$error":"#NAME?"},null,{"$f":"NR_to_Cash!C$9","v":-155327},{"$f":"NR_to_Cash!D$9","v":-283877},{"$f":"NR_to_Cash!E$9","v":-105647},{"$f":"NR_to_Cash!F$9","v":-78023},null,829,-5639.9167989901025,2667.950550584937,-4570.7883166633346,-22595.003250414054,null,-155327,-283877,-105647,-78023]
[830,{"$error":"#NAME?"},{"$error":"#NAME?"},{"$error":"#NAME?"},{"$error":"#NAME?"},null,{"$f":"NR_to_Cash!C$9","v":-155327},{"$f":"NR_to_Cash!D$9","v":-283877},{"$f":"NR_to_Cash!E$9","v":-105647},{"$f":"NR_to_Cash!F$9","v":-78023},null,830,-25530.800863721011,4598.2535433744351,-31011.42279239709,-7399.1417308437749,null,-155327,-283877,-105647,-78023]
[831,{"$error":"#NAME?"},{"$error":"#NAME?"},{"$error":"#NAME?"},{"$error":"#NAME?"},null,{"$f":"NR_to_Cash!C$9","v":-155327},{"$f":"NR_to_Cash!D$9","v":-283877},{"$f":"NR_to_Cash!E$9","v":-105647},{"$f":"NR_to_Cash!F$9","v":-78023},null,831,-18473.599974549674,-9617.9615891276899,-25625.406254562124,10555.388386538018,null,-155327,-283877,-105647,-78023]
[832,{"$error":"#NAME?"},{"$error":"#NAME?"},{"$error":"#NAME?"},{"$error":"#NAME?"},null,{"$f":"NR_to_Cash!C$9","v":-155327},{"$f":"NR_to_Cash!D$9","v":-283877},{"$f":"NR_to_Cash!E$9","v":-105647},{"$f":"NR_to_Cash!F$9","v":-78023},null,832,566.98656852287468,-3729.7435998420574,-15282.17591822851,7173.7236455056836,null,-155327,-283877,-105647,-78023]
[833,{"$error":"#NAME?"},{"$error":"#NAME?"},{"$error":"#NAME?"},{"$error":"#NAME?"},null,{"$f":"NR_to_Cash!C$9","v":-155327},{"$f":"NR_to_Cash!D$9","v":-283877},{"$f":"NR_to_Cash!E$9","v":-105647},{"$f":"NR_to_Cash!F$9","v":-78023},null,833,-4969.5113891771971,-17286.273144154577,3999.1877367539264,2954.9261288665612,null,-155327,-283877,-105647,-78023]
[834,{"$error":"#NAME?"},{"$error":"#NAME?"},{"$error":"#NAME?"},{"$error":"#NAME?"},null,{"$f":"NR_to_Cash!C$9","v":-155327},{"$f":"NR_to_Cash!D$9","v":-283877},{"$f":"NR_to_Cash!E$9","v":-105647},{"$f":"NR_to_Cash!F$9","v":-78023},null,834,-22282.433292190839,-10434.694906396244,-33343.69491878961,853.625912511916,null,-155327,-283877,-105647,-78023]
[835,{"$error":"#NAME?"},{"$error":"#NAME?"},{"$error":"#NAME?"},{"$error":"#NAME?"},null,{"$f":"NR_to_Cash!C$9","v":-155327},{"$f":"NR_to_Cash!D$9","v":-283877},{"$f":"NR_to_Cash!E$9","v":-105647},{"$f":"NR_to_Cash!F$9","v":-78023},null,835,-13729.760830745799,14181.327079903051,-4753.5699632420283,-28618.265094007918,null,-155327,-283877,-105647,-78023]
[836,{"$error":"#NAME?"},{"$error":"#NAME?"},{"$error":"#NAME?"},{"$error":"#NAME?"},null,{"$f":"NR_to_Cash!C$9","v":-155327},{"$f":"NR_to_Cash!D$9","v":-283877},{"$f":"NR_to_Cash!E$9","v":-105647},{"$f":"NR_to_Cash!F$9","v":-78023},null,836,-22188.746066257525,-3048.1775867221786,-5253.7790751887114,-23207.744569891034,null,-155327,-283877,-105647,-78023]
[837,{"$error":"#NAME?"},{"$error":"#NAME?"},{"$error":"#NAME?"},{"$error":"#NAME?"},null,{"$f":"NR_to_Cash!C$9","v":-155327},{"$f":"NR_to_Cash!D$9","v":-283877},{"$f":"NR_to_Cash!E$9","v":-105647},{"$f":"NR_to_Cash!F$9","v":-78023},null,837,-8218.4818930396486,-16377.704164688636,13979.109554530636,-3453.8464402504019,null,-155327,-283877,-105647,-78023]
[838,{"$error":"#NAME?"},{"$error":"#NAME?"},{"$error":"#NAME?"},{"$error":"#NAME?"},null,{"$f":"NR_to_Cash!C$9","v":-155327},{"$f":"NR_to_Cash!D$9","v":-283877},{"$f":"NR_to_Cash!E$9","v":-105647},{"$f":"NR_to_Cash!F$9","v":-78023},null,838,-15809.614945814112,2685.032320303631,-21946.523029558164,-14621.856201110957,null,-155327,-283877,-105647,-78023]
[839,{"$error":"#NAME?"},{"$error":"#NAME?"},{"$error":"#NAME?"},{"$error":"#NAME?"},null,{"$f":"NR_to_Cash!C$9","v":-155327},{"$f":"NR_to_Cash!D$9","v":-283877},{"$f":"NR_to_Cash!E$9","v":-105647},{"$f":"NR_to_Cash!F$9","v":-78023},null,839,-11116.493158730036,-19459.775269586051,-12190.513238833511,-14560.207581692863,null,-155327,-283877,-105647,-78023]
[840,{"$error":"#NAME?"},{"$error":"#NAME?"},{"$error":"#NAME?"},{"$error":"#NAME?"},null,{"$f":"NR_to_Cash!C$9","v":-155327},{"$f":"NR_to_Cash!D$9","v":-283877},{"$f":"NR_to_Cash!E$9","v":-105647},{"$f":"NR_to_Cash!F$9","v":-78023},null,840,9097.3067406991122,-18649.89318202054,-7781.7736336589987,-22623.816616823187,null,-155327,-283877,-105647,-78023]
[841,{"$error":"#NAME?"},{"$error":"#NAME?"},{"$error":"#NAME?"},{"$error":"#NAME?"},null,{"$f":"NR_to_Cash!C$9","v":-155327},{"$f":"NR_to_Cash!D$9","v":-283877},{"$f":"NR_to_Cash!E$9","v":-105647},{"$f":"NR_to_Cash!F$9","v":-78023},null,841,9128.966461751359,13344.108915063705,11599.607032248967,-34874.292283777722,null,-155327,-283877,-105647,-78023]
[842,{"$error":"#NAME?"},{"$error":"#NAME?"},{"$error":"#NAME?"},{"$error":"#NAME?"},null,{"$f":"NR_to_Cash!C$9","v":-155327},{"$f":"NR_to_Cash!D$9","v":-283877},{"$f":"NR_to_Cash!E$9","v":-105647},{"$f":"NR_to_Cash!F$9","v":-78023},null,842,-22268.377851879981,-11909.118757861053,-11691.533918971914,-27389.945190573169,null,-155327,-283877,-105647,-78023]
[843,{"$error":"#NAME?"},{"$error":"#NAME?"},{"$error":"#NAME?"},{"$error":"#NAME?"},null,{"$f":"NR_to_Cash!C$9","v":-155327},{"$f":"NR_to_Cash!D$9","v":-283877},{"$f":"NR_to_Cash!E$9","v":-105647},{"$f":"NR_to_Cash!F$9","v":-78023},null,843,-20074.250486893165,-410.28202697941447,-8726.3491168201563,-15438.240143646139,null,-155327,-283877,-105647,-78023]
[844,{"$error":"#NAME?"},{"$error":"#NAME?"},{"$error":"#NAME?"},{"$error":"#NAME?"},null,{"$f":"NR_to_Cash!C$9","v":-155327},{"$f":"NR_to_Cash!D$9","v":-283877},{"$f":"NR_to_Cash!E$9","v":-105647},{"$f":"NR_to_Cash!F$9","v":-78023},null,844,-24385.767186488483,-29788.458075514583,-23294.733616672569,-31320.53169172167,null,-155327,-283877,-105647,-78023]
[845,{"$error":"#NAME?"},{"$error":"#NAME?"},{"$error":"#NAME?"},{"$error":"#NAME?"},null,{"$f":"NR_to_Cash!C$9","v":-155327},{"$f":"NR_to_Cash!D$9","v":-283877},{"$f":"NR_to_Cash!E$9","v":-105647},{"$f":"NR_to_Cash!F$9","v":-78023},null,845,-22789.246654075687,8207.5075861627665,7678.2909133036892,-4029.9351938202344,null,-155327,-283877,-105647,-78023]
[846,{"$error":"#NAME?"},{"$error":"#NAME?"},{"$error":"#NAME?"},{"$error":"#NAME?"},null,{"$f":"NR_to_Cash!C$9","v":-155327},{"$f":"NR_to_Cash!D$9","v":-283877},{"$f":"NR_to_Cash!E$9","v":-105647},{"$f":"NR_to_Cash!F$9","v":-78023},null,846,-19687.72281089098,-15604.744348320222,14744.077926472788,-15386.088783440258,null,-155327,-283877,-105647,-78023]
[847,{"$error":"#NAME?"},{"$error":"#NAME?"},{"$error":"#NAME?"},{"$error":"#NAME?"},null,{"$f":"NR_to_Cash!C$9","v":-155327},{"$f":"NR_to_Cash!D$9","v":-283877},{"$f":"NR_to_Cash!E$9","v":-105647},{"$f":"NR_to_Cash!F$9","v":-78023},null,847,6485.1913630660547,-16396.203262390751,-37621.285739030529,-24307.016239830886,null,-155327,-283877,-105647,-78023]
[848,{"$error":"#NAME?"},{"$error":"#NAME?"},{"$error":"#NAME?"},{"$error":"#NAME?"},null,{"$f":"NR_to_Cash!C$9","v":-155327},{"$f":"NR_to_Cash!D$9","v":-283877},{"$f":"NR_to_Cash!E$9","v":-105647},{"$f":"NR_to_Cash!F$9","v":-78023},null,848,-26749.144516194567,-6915.0621123270685,5451.9191327847993,-19873.453977190406,null,-155327,-283877,-105647,-78023]
[849,{"$error":"#NAME?"},{"$error":"#NAME?"},{"$error":"#NAME?"},{"$error":"#NAME?"},null,{"$f":"NR_to_Cash!C$9","v":-155327},{"$f":"NR_to_Cash!D$9","v":-283877},{"$f":"NR_to_Cash!E$9","v":-105647},{"$f":"NR_to_Cash!F$9","v":-78023},null,849,-3846.8846534759004,-33040.877288243209,-26385.89932819915,9719.6921964437206,null,-155327,-283877,-105647,-78023]
[850,{"$error":"#NAME?"},{"$error":"#NAME?"},{"$error":"#NAME?"},{"$error":"#NAME?"},null,{"$f":"NR_to_Cash!C$9","v":-155327},{"$f":"NR_to_Cash!D$9","v":-283877},{"$f":"NR_to_Cash!E$9","v":-105647},{"$f":"NR_to_Cash!F$9","v":-78023},null,850,-24290.78762607096,-16976.926749150869,3709.5796086127689,-2048.1565492461596,null,-155327,-283877,-105647,-78023]
[851,{"$error":"#NAME?"},{"$error":"#NAME?"},{"$error":"#NAME?"},{"$error":"#NAME?"},null,{"$f":"NR_to_Cash!C$9","v":-155327},{"$f":"NR_to_Cash!D$9","v":-283877},{"$f":"NR_to_Cash!E$9","v":-105647},{"$f":"NR_to_Cash!F$9","v":-78023},null,851,-22503.828709651978,-12133.171590780708,-30097.974018397501,1508.0112208324415,null,-155327,-283877,-105647,-78023]
[852,{"$error":"#NAME?"},{"$error":"#NAME?"},{"$error":"#NAME?"},{"$error":"#NAME?"},null,{"$f":"NR_to_Cash!C$9","v":-155327},{"$f":"NR_to_Cash!D$9","v":-283877},{"$f":"NR_to_Cash!E$9","v":-105647},{"$f":"NR_to_Cash!F$9","v":-78023},null,852,-14051.473803778048,10936.942240822251,-25202.211210481848,-2870.025998115314,null,-155327,-283877,-105647,-78023]
[853,{"$error":"#NAME?"},{"$error":"#NAME?"},{"$error":"#NAME?"},{"$error":"#NAME?"},null,{"$f":"NR_to_Cash!C$9","v":-155327},{"$f":"NR_to_Cash!D$9","v":-283877},{"$f":"NR_to_Cash!E$9","v":-105647},{"$f":"NR_to_Cash!F$9","v":-78023},null,853,-2517.9264808454918,-12973.277101221913,-4921.7647384688398,193.34176817749506,null,-155327,-283877,-105647,-78023]
[854,{"$error":"#NAME?"},{"$error":"#NAME?"},{"$error":"#NAME?"},{"$error":"#NAME?"},null,{"$f":"NR_to_Cash!C$9","v":-155327},{"$f":"NR_to_Cash!D$9","v":-283877},{"$f":"NR_to_Cash!E$9","v":-105647},{"$f":"NR_to_Cash!F$9","v":-78023},null,854,-6073.0437384390698,-14259.246593081034,1176.6354903062247,-3112.6546024069971,null,-155327,-283877,-105647,-78023]
[855,{"$error":"#NAME?"},{"$error":"#NAME?"},{"$error":"#NAME?"},{"$error":"#NAME?"},null,{"$f":"NR_to_Cash!C$9","v":-155327},{"$f":"NR_to_Cash!D$9","v":-283877},{"$f":"NR_to_Cash!E$9","v":-105647},{"$f":"NR_to_Cash!F$9","v":-78023},null,855,-8590.6035563442238,109.21219940501395,-18463.477465816512,-5365.4445660727706,null,-155327,-283877,-105647,-78023]
[856,{"$error":"#NAME?"},{"$error":"#NAME?"},{"$error":"#NAME?"},{"$error":"#NAME?"},null,{"$f":"NR_to_Cash!C$9","v":-155327},{"$f":"NR_to_Cash!D$9","v":-283877},{"$f":"NR_to_Cash!E$9","v":-105647},{"$f":"NR_to_Cash!F$9","v":-78023},null,856,-5119.448137576961,12415.585028758076,-39913.925974836064,17903.353050489171,null,-155327,-283877,-105647,-78023]
[857,{"$error":"#NAME?"},{"$error":"#NAME?"},{"$error":"#NAME?"},{"$error":"#NAME?"},null,{"$f":"NR_to_Cash!C$9","v":-155327},{"$f":"NR_to_Cash!D$9","v":-283877},{"$f":"NR_to_Cash!E$9","v":-105647},{"$f":"NR_to_Cash!F$9","v":-78023},null,857,-19541.898313487698,6908.838202147881,-6842.3092570226545,-8913.1819614229207,null,-155327,-283877,-105647,-78023]
[858,{"$error":"#NAME?"},{"$error":"#NAME?"},{"$error":"#NAME?"},{"$error":"#NAME?"},null,{"$f":"NR_to_Cash!C$9","v":-155327},{"$f":"NR_to_Cash!D$9","v":-283877},{"$f":"NR_to_Cash!E$9","v":-105647},{"$f":"NR_to_Cash!F$9","v":-78023},null,858,-4251.6897891517547,-5553.6523350923617,9641.7866975879715,-32809.000936095108,null,-155327,-283877,-105647,-78023]
[859,{"$error":"#NAME?"},{"$error":"#NAME?"},{"$error":"#NAME?"},{"$error":"#NAME?"},null,{"$f":"NR_to_Cash!C$9","v":-155327},{"$f":"NR_to_Cash!D$9","v":-283877},{"$f":"NR_to_Cash!E$9","v":-105647},{"$f":"NR_to_Cash!F$9","v":-78023},null,859,3465.6902332537002,-10765.108501134473,9870.6439468552253,-19233.875052216928,null,-155327,-283877,-105647,-78023]
[860,{"$error":"#NAME?"},{"$error":"#NAME?"},{"$error":"#NAME?"},{"$error":"#NAME?"},null,{"$f":"NR_to_Cash!C$9","v":-155327},{"$f":"NR_to_Cash!D$9","v":-283877},{"$f":"NR_to_Cash!E$9","v":-105647},{"$f":"NR_to_Cash!F$9","v":-78023},null,860,-17093.309070701303,-23885.684504269499,-9075.704951820011,17116.876540906054,null,-155327,-283877,-105647,-78023]
[861,{"$error":"#NAME?"},{"$error":"#NAME?"},{"$error":"#NAME?"},{"$error":"#NAME?"},null,{"$f":"NR_to_Cash!C$9","v":-155327},{"$f":"NR_to_Cash!D$9","v":-283877},{"$f":"NR_to_Cash!E$9","v":-105647},{"$f":"NR_to_Cash!F$9","v":-78023},null,861,-26650.206560272345,-26095.173918552118,-2448.0080735552428,-35709.694634632477,null,-155327,-283877,-105647,-78023]
[862,{"$error":"#NAME?"},{"$error":"#NAME?"},{"$error":"#NAME?"},{"$error":"#NAME?"},null,{"$f":"NR_to_Cash!C$9","v":-155327},{"$f":"NR_to_Cash!D$9","v":-283877},{"$f":"NR_to_Cash!E$9","v":-105647},{"$f":"NR_to_Cash!F$9","v":-78023},null,862,2039.3369628350656,-32228.193938421602,-4541.3512687590028,14286.457945465134,null,-155327,-283877,-105647,-78023]
[863,{"$error":"#NAME?"},{"$error":"#NAME?"},{"$error":"#NAME?"},{"$error":"#NAME?"},null,{"$f":"NR_to_Cash!C$9","v":-155327},{"$f":"NR_to_Cash!D$9","v":-283877},{"$f":"NR_to_Cash!E$9","v":-105647},{"$f":"NR_to_Cash!F$9","v":-78023},null,863,-23173.709803372483,-29119.966403791121,-5058.7558766112297,-24094.632500600837,null,-155327,-283877,-105647,-78023]
[864,{"$error":"#NAME?"},{"$error":"#NAME?"},{"$error":"#NAME?"},{"$error":"#NAME?"},null,{"$f":"NR_to_Cash!C$9","v":-155327},{"$f":"NR_to_Cash!D$9","v":-283877},{"$f":"NR_to_Cash!E$9","v":-105647},{"$f":"NR_to_Cash!F$9","v":-78023},null,864,-29632.556163161862,2216.217744744115,8262.992850738774,-6912.3507641306214,null,-155327,-283877,-105647,-78023]
[865,{"$error":"#NAME?"},{"$error":"#NAME?"},{"$error":"#NAME?"},{"$error":"#NAME?"},null,{"$f":"NR_to_Cash!C$9","v":-155327},{"$f":"NR_to_Cash!D$9","v":-283877},{"$f":"NR_to_Cash!E$9","v":-105647},{"$f":"NR_to_Cash!F$9","v":-78023},null,865,-6584.3323413529688,-32244.834368361731,-14246.422695188783,-1832.7257685952688,null,-155327,-283877,-105647,-78023]
[866,{"$error":"#NAME?"},{"$error":"#NAME?"},{"$error":"#NAME?"},{"$error":"#NAME?"},null,{"$f":"NR_to_Cash!C$9","v":-155327},{"$f":"NR_to_Cash!D$9","v":-283877},{"$f":"NR_to_Cash!E$9","v":-105647},{"$f":"NR_to_Cash!F$9","v":-78023},null,866,2135.4090641434223,15525.571518153753,-5434.1749446153626,-13776.57456550238,null,-155327,-283877,-105647,-78023]
[867,{"$error":"#NAME?"},{"$error":"#NAME?"},{"$error":"#NAME?"},{"$error":"#NAME?"},null,{"$f":"NR_to_Cash!C$9","v":-155327},{"$f":"NR_to_Cash!D$9","v":-283877},{"$f":"NR_to_Cash!E$9","v":-105647},{"$f":"NR_to_Cash!F$9","v":-78023},null,867,-6955.6884555415645,-13108.758478428083,-12853.343734103766,-22024.349669676452,null,-155327,-283877,-105647,-78023]
[868,{"$error":"#NAME?"},{"$error":"#NAME?"},{"$error":"#NAME?"},{"$error":"#NAME?"},null,{"$f":"NR_to_Cash!C$9","v":-155327},{"$f":"NR_to_Cash!D$9","v":-283877},{"$f":"NR_to_Cash!E$9","v":-105647},{"$f":"NR_to_Cash!F$9","v":-78023},null,868,-12004.914626921156,8668.2862163478603,11960.024727417946,-71.763875793364392,null,-155327,-283877,-105647,-78023]
[869,{"$error":"#NAME?"},{"$error":"#NAME?"},{"$error":"#NAME?"},{"$error":"#NAME?"},null,{"$f":"NR_to_Cash!C$9","v":-155327},{"$f":"NR_to_Cash!D$9","v":-283877},{"$f":"NR_to_Cash!E$9","v":-105647},{"$f":"NR_to_Cash!F$9","v":-78023},null,869,-23348.59225577399,-13171.772518851667,-18854.872986147675,-10663.316029480924,null,-155327,-283877,-105647,-78023]
[870,{"$error":"#NAME?"},{"$error":"#NAME?"},{"$error":"#NAME?"},{"$error":"#NAME?"},null,{"$f":"NR_to_Cash!C$9","v":-155327},{"$f":"NR_to_Cash!D$9","v":-283877},{"$f":"NR_to_Cash!E$9","v":-105647},{"$f":"NR_to_Cash!F$9","v":-78023},null,870,-29881.539972573428,-24557.379194689514,-24461.673951936427,3478.000971643005,null,-155327,-283877,-105647,-78023]
[871,{"$error":"#NAME?"},{"$error":"#NAME?"},{"$error":"#NAME?"},{"$error":"#NAME?"},null,{"$f":"NR_to_Cash!C$9","v":-155327},{"$f":"NR_to_Cash!D$9","v":-283877},{"$f":"NR_to_Cash!E$9","v":-105647},{"$f":"NR_to_Cash!F$9","v":-78023},null,871,-4480.9786257493442,-5171.3131093858492,-24893.507080710169,-22413.624566884129,null,-155327,-283877,-105647,-78023]
[872,{"$error":"#NAME?"},{"$error":"#NAME?"},{"$error":"#NAME?"},{"$error":"#NAME?"},null,{"$f":"NR_to_Cash!C$9","v":-155327},{"$f":"NR_to_Cash!D$9","v":-283877},{"$f":"NR_to_Cash!E$9","v":-105647},{"$f":"NR_to_Cash!F$9","v":-78023},null,872,-8371.1870756611788,-1115.7027089221413,6600.133943416773,-35315.426951750254,null,-155327,-283877,-105647,-78023]
[873,{"$error":"#NAME?"},{"$error":"#NAME?"},{"$error":"#NAME?"},{"$error":"#NAME?"},null,{"$f":"NR_to_Cash!C$9","v":-155327},{"$f":"NR_to_Cash!D$9","v":-283877},{"$f":"NR_to_Cash!E$9","v":-105647},{"$f":"NR_to_Cash!F$9","v":-78023},null,873,1495.0412938646218,-2529.7594047638618,-18670.708796947834,-6878.1084476392125,null,-155327,-283877,-105647,-78023]
[874,{"$error":"#NAME?"},{"$error":"#NAME?"},{"$error":"#NAME?"},{"$error":"#NAME?"},null,{"$f":"NR_to_Cash!C$9","v":-155327},{"$f":"NR_to_Cash!D$9","v":-283877},{"$f":"NR_to_Cash!E$9","v":-105647},{"$f":"NR_to_Cash!F$9","v":-78023},null,874,-237.29299420580486,-4557.0372142902652,-37804.016622766874,8690.7490829932576,null,-155327,-283877,-105647,-78023]
[875,{"$error":"#NAME?"},{"$error":"#NAME?"},{"$error":"#NAME?"},{"$error":"#NAME?"},null,{"$f":"NR_to_Cash!C$9","v":-155327},{"$f":"NR_to_Cash!D$9","v":-283877},{"$f":"NR_to_Cash!E$9","v":-105647},{"$f":"NR_to_Cash!F$9","v":-78023},null,875,-27188.068657280499,-20617.679219369656,-12153.914035545502,-310.25264455084732,null,-155327,-283877,-105647,-78023]
[876,{"$error":"#NAME?"},{"$error":"#NAME?"},{"$error":"#NAME?"},{"$error":"#NAME?"},null,{"$f":"NR_to_Cash!C$9","v":-155327},{"$f":"NR_to_Cash!D$9","v":-283877},{"$f":"NR_to_Cash!E$9","v":-105647},{"$f":"NR_to_Cash!F$9","v":-78023},null,876,-10703.660539589575,-13334.323748390378,-20405.479611887789,-25037.088383345705,null,-155327,-283877,-105647,-78023]
[877,{"$error":"#NAME?"},{"$error":"#NAME?"},{"$error":"#NAME?"},{"$error":"#NAME?"},null,{"$f":"NR_to_Cash!C$9","v":-155327},{"$f":"NR_to_Cash!D$9","v":-283877},{"$f":"NR_to_Cash!E$9","v":-105647},{"$f":"NR_to_Cash!F$9","v":-78023},null,877,-1818.0320788488405,-16727.588301575583,-20913.659868237359,-2255.2662615141421,null,-155327,-283877,-105647,-78023]
[878,{"$error":"#NAME?"},{"$error":"#NAME?"},{"$error":"#NAME?"},{"$error":"#NAME?"},null,{"$f":"NR_to_Cash!C$9","v":-155327},{"$f":"NR_to_Cash!D$9","v":-283877},{"$f":"NR_to_Cash!E$9","v":-105647},{"$f":"NR_to_Cash!F$9","v":-78023},null,878,-2765.3178431588549,-585.23707125490193,-17360.427136815651,-9941.4706814475503,null,-155327,-283877,-105647,-78023]
[879,{"$error":"#NAME?"},{"$error":"#NAME?"},{"$error":"#NAME?"},{"$error":"#NAME?"},null,{"$f":"NR_to_Cash!C$9","v":-155327},{"$f":"NR_to_Cash!D$9","v":-283877},{"$f":"NR_to_Cash!E$9","v":-105647},{"$f":"NR_to_Cash!F$9","v":-78023},null,879,-27809.672255699978,-19945.774282867274,14050.986713548062,1632.7213286615538,null,-155327,-283877,-105647,-78023]
[880,{"$error":"#NAME?"},{"$error":"#NAME?"},{"$error":"#NAME?"},{"$error":"#NAME?"},null,{"$f":"NR_to_Cash!C$9","v":-155327},{"$f":"NR_to_Cash!D$9","v":-283877},{"$f":"NR_to_Cash!E$9","v":-105647},{"$f":"NR_to_Cash!F$9","v":-78023},null,880,-27506.01590103341,-13028.885491652951,-11854.644800564041,-30595.586844702615,null,-155327,-283877,-105647,-78023]
[881,{"$error":"#NAME?"},{"$error":"#NAME?"},{"$error":"#NAME?"},{"$error":"#NAME?"},null,{"$f":"NR_to_Cash!C$9","v":-155327},{"$f":"NR_to_Cash!D$9","v":-283877},{"$f":"NR_to_Cash!E$9","v":-105647},{"$f":"NR_to_Cash!F$9","v":-78023},null,881,-24914.907513353213,-7761.216332111886,1415.7515633685539,-3802.9932237679568,null,-155327,-283877,-105647,-78023]
[882,{"$error":"#NAME?"},{"$error":"#NAME?"},{"$error":"#NAME?"},{"$error":"#NAME?"},null,{"$f":"NR_to_Cash!C$9","v":-155327},{"$f":"NR_to_Cash!D$9","v":-283877},{"$f":"NR_to_Cash!E$9","v":-105647},{"$f":"NR_to_Cash!F$9","v":-78023},null,882,-9908.0430863805122,-33450.132725663636,-6418.9554888138864,-20530.416124959989,null,-155327,-283877,-105647,-78023]
[883,{"$error":"#NAME?"},{"$error":"#NAME?"},{"$error":"#NAME?"},{"$error":"#NAME?"},null,{"$f":"NR_to_Cash!C$9","v":-155327},{"$f":"NR_to_Cash!D$9","v":-283877},{"$f":"NR_to_Cash!E$9","v":-105647},{"$f":"NR_to_Cash!F$9","v":-78023},null,883,-7617.972355735521,-207.88110939207792,-15450.098918795307,3889.4219759384337,null,-155327,-283877,-105647,-78023]
[884,{"$error":"#NAME?"},{"$error":"#NAME?"},{"$error":"#NAME?"},{"$error":"#NAME?"},null,{"$f":"NR_to_Cash!C$9","v":-155327},{"$f":"NR_to_Cash!D$9","v":-283877},{"$f":"NR_to_Cash!E$9","v":-105647},{"$f":"NR_to_Cash!F$9","v":-78023},null,884,-3059.3457016835978,-4910.7802034006982,-15991.376659076159,-15499.514936221538,null,-155327,-283877,-105647,-78023]
[885,{"$error":"#NAME?"},{"$error":"#NAME?"},{"$error":"#NAME?"},{"$error":"#NAME?"},null,{"$f":"NR_to_Cash!C$9","v":-155327},{"$f":"NR_to_Cash!D$9","v":-283877},{"$f":"NR_to_Cash!E$9","v":-105647},{"$f":"NR_to_Cash!F$9","v":-78023},null,885,-33315.594436609972,-24128.129307354786,-21776.587446610309,3525.9122002479835,null,-155327,-283877,-105647,-78023]
[886,{"$error":"#NAME?"},{"$error":"#NAME?"},{"$error":"#NAME?"},{"$error":"#NAME?"},null,{"$f":"NR_to_Cash!C$9","v":-155327},{"$f":"NR_to_Cash!D$9","v":-283877},{"$f":"NR_to_Cash!E$9","v":-105647},{"$f":"NR_to_Cash!F$9","v":-78023},null,886,-4126.6620735689694,-11465.589773361593,-22587.955985352841,73.712697185774559,null,-155327,-283877,-105647,-78023]
[887,{"$error":"#NAME?"},{"$error":"#NAME?"},{"$error":"#NAME?"},{"$error":"#NAME?"},null,{"$f":"NR_to_Cash!C$9","v":-155327},{"$f":"NR_to_Cash!D$9","v":-283877},{"$f":"NR_to_Cash!E$9","v":-105647},{"$f":"NR_to_Cash!F$9","v":-78023},null,887,-17222.155770444384,-8227.2481253472597,-40192.996062309088,-16545.09780640596,null,-155327,-283877,-105647,-78023]
[888,{"$error":"#NAME?"},{"$error":"#NAME?"},{"$error":"#NAME?"},{"$error":"#NAME?"},null,{"$f":"NR_to_Cash!C$9","v":-155327},{"$f":"NR_to_Cash!D$9","v":-283877},{"$f":"NR_to_Cash!E$9","v":-105647},{"$f":"NR_to_Cash!F$9","v":-78023},null,888,-14681.002461022021,13022.677643526928,-2270.2001669987985,16201.230533762151,null,-155327,-283877,-105647,-78023]
[889,{"$error":"#NAME?"},{"$error":"#NAME?"},{"$error":"#NAME?"},{"$error":"#NAME?"},null,{"$f":"NR_to_Cash!C$9","v":-155327},{"$f":"NR_to_Cash!D$9","v":-283877},{"$f":"NR_to_Cash!E$9","v":-105647},{"$f":"NR_to_Cash!F$9","v":-78023},null,889,-15048.179921515275,-15966.364377828389,-3719.8839050503557,27.249391692229661,null,-155327,-283877,-105647,-78023]
[890,{"$error":"#NAME?"},{"$error":"#NAME?"},{"$error":"#NAME?"},{"$error":"#NAME?"},null,{"$f":"NR_to_Cash!C$9","v":-155327},{"$f":"NR_to_Cash!D$9","v":-283877},{"$f":"NR_to_Cash!E$9","v":-105647},{"$f":"NR_to_Cash!F$9","v":-78023},null,890,4963.6613821928158,4350.3851730432589,-19652.435751143137,-18895.041674992888,null,-155327,-283877,-105647,-78023]
[891,{"$error":"#NAME?"},{"$error":"#NAME?"},{"$error":"#NAME?"},{"$error":"#NAME?"},null,{"$f":"NR_to_Cash!C$9","v":-155327},{"$f":"NR_to_Cash!D$9","v":-283877},{"$f":"NR_to_Cash!E$9","v":-105647},{"$f":"NR_to_Cash!F$9","v":-78023},null,891,-17721.043891410096,-23571.849223536406,-9473.0666894652622,-7666.974525187069,null,-155327,-283877,-105647,-78023]
[892,{"$error":"#NAME?"},{"$error":"#NAME?"},{"$error":"#NAME?"},{"$error":"#NAME?"},null,{"$f":"NR_to_Cash!C$9","v":-155327},{"$f":"NR_to_Cash!D$9","v":-283877},{"$f":"NR_to_Cash!E$9","v":-105647},{"$f":"NR_to_Cash!F$9","v":-78023},null,892,-7423.0630373507547,-5680.0868695011213,-23530.800716617287,-2026.8478316834739,null,-155327,-283877,-105647,-78023]
[893,{"$error":"#NAME?"},{"$error":"#NAME?"},{"$error":"#NAME?"},{"$error":"#NAME?"},null,{"$f":"NR_to_Cash!C$9","v":-155327},{"$f":"NR_to_Cash!D$9","v":-283877},{"$f":"NR_to_Cash!E$9","v":-105647},{"$f":"NR_to_Cash!F$9","v":-78023},null,893,-30253.706571310366,-25298.14729026378,-51171.067775160984,-21495.239234260604,null,-155327,-283877,-105647,-78023]
[894,{"$error":"#NAME?"},{"$error":"#NAME?"},{"$error":"#NAME?"},{"$error":"#NAME?"},null,{"$f":"NR_to_Cash!C$9","v":-155327},{"$f":"NR_to_Cash!D$9","v":-283877},{"$f":"NR_to_Cash!E$9","v":-105647},{"$f":"NR_to_Cash!F$9","v":-78023},null,894,-11353.857523122137,429.64172451439572,-2787.8455108044272,-5845.483977083717,null,-155327,-283877,-105647,-78023]
[895,{"$error":"#NAME?"},{"$error":"#NAME?"},{"$error":"#NAME?"},{"$error":"#NAME?"},null,{"$f":"NR_to_Cash!C$9","v":-155327},{"$f":"NR_to_Cash!D$9","v":-283877},{"$f":"NR_to_Cash!E$9","v":-105647},{"$f":"NR_to_Cash!F$9","v":-78023},null,895,-15506.561920487726,-11709.081079529091,3219.6664184965375,10382.192201181184,null,-155327,-283877,-105647,-78023]
[896,{"$error":"#NAME?"},{"$error":"#NAME?"},{"$error":"#NAME?"},{"$error":"#NAME?"},null,{"$f":"NR_to_Cash!C$9","v":-155327},{"$f":"NR_to_Cash!D$9","v":-283877},{"$f":"NR_to_Cash!E$9","v":-105647},{"$f":"NR_to_Cash!F$9","v":-78023},null,896,-1853.2253732835929,-6023.3832257138256,-26623.094427507498,-10693.52907334305,null,-155327,-283877,-105647,-78023]
[897,{"$error":"#NAME?"},{"$error":"#NAME?"},{"$error":"#NAME?"},{"$error":"#NAME?"},null,{"$f":"NR_to_Cash!C$9","v":-155327},{"$f":"NR_to_Cash!D$9","v":-283877},{"$f":"NR_to_Cash!E$9","v":-105647},{"$f":"NR_to_Cash!F$9","v":-78023},null,897,-14516.966796533525,-24542.448679804704,-12919.598411269802,-30735.078304327799,null,-155327,-283877,-105647,-78023]
[898,{"$error":"#NAME?"},{"$error":"#NAME?"},{"$error":"#NAME?"},{"$error":"#NAME?"},null,{"$f":"NR_to_Cash!C$9","v":-155327},{"$f":"NR_to_Cash!D$9","v":-283877},{"$f":"NR_to_Cash!E$9","v":-105647},{"$f":"NR_to_Cash!F$9","v":-78023},null,898,-32296.519290103886,-19658.070989720483,-18478.680770411011,-30188.412271985893,null,-155327,-283877,-105647,-78023]
[899,{"$error":"#NAME?"},{"$error":"#NAME?"},{"$error":"#NAME?"},{"$error":"#NAME?"},null,{"$f":"NR_to_Cash!C$9","v":-155327},{"$f":"NR_to_Cash!D$9","v":-283877},{"$f":"NR_to_Cash!E$9","v":-105647},{"$f":"NR_to_Cash!F$9","v":-78023},null,899,8432.5033199342979,-28515.244460589656,-11970.049348137882,-182.00820512702089,null,-155327,-283877,-105647,-78023]
[900,{"$error":"#NAME?"},{"$error":"#NAME?"},{"$error":"#NAME?"},{"$error":"#NAME?"},null,{"$f":"NR_to_Cash!C$9","v":-155327},{"$f":"NR_to_Cash!D$9","v":-283877},{"$f":"NR_to_Cash!E$9","v":-105647},{"$f":"NR_to_Cash!F$9","v":-78023},null,900,-1845.9866716972986,-8218.8722586833665,22144.445452187825,7801.692020301889,null,-155327,-283877,-105647,-78023]
[901,{"$error":"#NAME?"},{"$error":"#NAME?"},{"$error":"#NAME?"},{"$error":"#NAME?"},null,{"$f":"NR_to_Cash!C$9","v":-155327},{"$f":"NR_to_Cash!D$9","v":-283877},{"$f":"NR_to_Cash!E$9","v":-105647},{"$f":"NR_to_Cash!F$9","v":-78023},null,901,-23521.308172265992,-13676.217320324316,3244.2761516310952,-12699.066817899875,null,-155327,-283877,-105647,-78023]
[902,{"$error":"#NAME?"},{"$error":"#NAME?"},{"$error":"#NAME?"},{"$error":"#NAME?"},null,{"$f":"NR_to_Cash!C$9","v":-155327},{"$f":"NR_to_Cash!D$9","v":-283877},{"$f":"NR_to_Cash!E$9","v":-105647},{"$f":"NR_to_Cash!F$9","v":-78023},null,902,-15803.935899407261,-992.20626573524135,-10804.310677827825,2506.5835235374457,null,-155327,-283877,-105647,-78023]
[903,{"$error":"#NAME?"},{"$error":"#NAME?"},{"$error":"#NAME?"},{"$error":"#NAME?"},null,{"$f":"NR_to_Cash!C$9","v":-155327},{"$f":"NR_to_Cash!D$9","v":-283877},{"$f":"NR_to_Cash!E$9","v":-105647},{"$f":"NR_to_Cash!F$9","v":-78023},null,903,-14197.650564772131,-7701.0269987801748,-655.68021215815861,-6328.3696935780408,null,-155327,-283877,-105647,-78023]
[904,{"$error":"#NAME?"},{"$error":"#NAME?"},{"$error":"#NAME?"},{"$error":"#NAME?"},null,{"$f":"NR_to_Cash!C$9","v":-155327},{"$f":"NR_to_Cash!D$9","v":-283877},{"$f":"NR_to_Cash!E$9","v":-105647},{"$f":"NR_to_Cash!F$9","v":-78023},null,904,-8850.8172727234305,-28868.422316659951,-9458.5955598118362,-48546.253195115845,null,-155327,-283877,-105647,-78023]
[905,{"$error":"#NAME?"},{"$error":"#NAME?"},{"$error":"#NAME?"},{"$error":"#NAME?"},null,{"$f":"NR_to_Cash!C$9","v":-155327},{"$f":"NR_to_Cash!D$9","v":-283877},{"$f":"NR_to_Cash!E$9","v":-105647},{"$f":"NR_to_Cash!F$9","v":-78023},null,905,-5639.4476788123957,-16583.111393003797,6096.1210578518094,10621.398561363654,null,-155327,-283877,-105647,-78023]
[906,{"$error":"#NAME?"},{"$error":"#NAME?"},{"$error":"#NAME?"},{"$error":"#NAME?"},null,{"$f":"NR_to_Cash!C$9","v":-155327},{"$f":"NR_to_Cash!D$9","v":-283877},{"$f":"NR_to_Cash!E$9","v":-105647},{"$f":"NR_to_Cash!F$9","v":-78023},null,906,-3099.8469056831564,-27567.757000963466,-11795.484772316997,876.27352766379738,null,-155327,-283877,-105647,-78023]
[907,{"$error":"#NAME?"},{"$error":"#NAME?"},{"$error":"#NAME?"},{"$error":"#NAME?"},null,{"$f":"NR_to_Cash!C$9","v":-155327},{"$f":"NR_to_Cash!D$9","v":-283877},{"$f":"NR_to_Cash!E$9","v":-105647},{"$f":"NR_to_Cash!F$9","v":-78023},null,907,-16381.502615822214,-9850.2453905780512,-19847.669431178227,-20892.278264992787,null,-155327,-283877,-105647,-78023]
[908,{"$error":"#NAME?"},{"$error":"#NAME?"},{"$error":"#NAME?"},{"$error":"#NAME?"},null,{"$f":"NR_to_Cash!C$9","v":-155327},{"$f":"NR_to_Cash!D$9","v":-283877},{"$f":"NR_to_Cash!E$9","v":-105647},{"$f":"NR_to_Cash!F$9","v":-78023},null,908,-13696.406493666431,-4045.9740263002159,-25970.449146620806,-9437.1593429770473,null,-155327,-283877,-105647,-78023]
[909,{"$error":"#NAME?"},{"$error":"#NAME?"},{"$error":"#NAME?"},{"$error":"#NAME?"},null,{"$f":"NR_to_Cash!C$9","v":-155327},{"$f":"NR_to_Cash!D$9","v":-283877},{"$f":"NR_to_Cash!E$9","v":-105647},{"$f":"NR_to_Cash!F$9","v":-78023},null,909,-6044.5777356589915,-3357.9188018604591,-13.293340659706328,-8747.5275804443954,null,-155327,-283877,-105647,-78023]
[910,{"$error":"#NAME?"},{"$error":"#NAME?"},{"$error":"#NAME?"},{"$error":"#NAME?"},null,{"$f":"NR_to_Cash!C$9","v":-155327},{"$f":"NR_to_Cash!D$9","v":-283877},{"$f":"NR_to_Cash!E$9","v":-105647},{"$f":"NR_to_Cash!F$9","v":-78023},null,910,-5858.9957702129868,10996.228969712247,-17001.658070740996,-4002.5628842022679,null,-155327,-283877,-105647,-78023]
[911,{"$error":"#NAME?"},{"$error":"#NAME?"},{"$error":"#NAME?"},{"$error":"#NAME?"},null,{"$f":"NR_to_Cash!C$9","v":-155327},{"$f":"NR_to_Cash!D$9","v":-283877},{"$f":"NR_to_Cash!E$9","v":-105647},{"$f":"NR_to_Cash!F$9","v":-78023},null,911,-4671.3236266516269,22894.124486663684,-27506.958917535965,323.42348999881165,null,-155327,-283877,-105647,-78023]
[912,{"$error":"#NAME?"},{"$error":"#NAME?"},{"$error":"#NAME?"},{"$error":"#NAME?"},null,{"$f":"NR_to_Cash!C$9","v":-155327},{"$f":"NR_to_Cash!D$9","v":-283877},{"$f":"NR_to_Cash!E$9","v":-105647},{"$f":"NR_to_Cash!F$9","v":-78023},null,912,-6793.8644807598193,-11224.563875455671,-29710.085187301815,-24909.581092366498,null,-155327,-283877,-105647,-78023]
[913,{"$error":"#NAME?"},{"$error":"#NAME?"},{"$error":"#NAME?"},{"$error":"#NAME?"},null,{"$f":"NR_to_Cash!C$9","v":-155327},{"$f":"NR_to_Cash!D$9","v":-283877},{"$f":"NR_to_Cash!E$9","v":-105647},{"$f":"NR_to_Cash!F$9","v":-78023},null,913,-11677.904156254808,-18717.203738883523,-15405.760217720182,-6148.1735575216953,null,-155327,-283877,-105647,-78023]
[914,{"$error":"#NAME?"},{"$error":"#NAME?"},{"$error":"#NAME?"},{"$error":"#NAME?"},null,{"$f":"NR_to_Cash!C$9","v":-155327},{"$f":"NR_to_Cash!D$9","v":-283877},{"$f":"NR_to_Cash!E$9","v":-105647},{"$f":"NR_to_Cash!F$9","v":-78023},null,914,-6121.2119573597856,-14345.181908970682,-14105.136338446922,-1774.1506939244646,null,-155327,-283877,-105647,-78023]
[915,{"$error":"#NAME?"},{"$error":"#NAME?"},{"$error":"#NAME?"},{"$error":"#NAME?"},null,{"$f":"NR_to_Cash!C$9","v":-155327},{"$f":"NR_to_Cash!D$9","v":-283877},{"$f":"NR_to_Cash!E$9","v":-105647},{"$f":"NR_to_Cash!F$9","v":-78023},null,915,-15678.219845692651,-30664.267486560992,4593.7450775721973,-18786.863978111847,null,-155327,-283877,-105647,-78023]
[916,{"$error":"#NAME?"},{"$error":"#NAME?"},{"$error":"#NAME?"},{"$error":"#NAME?"},null,{"$f":"NR_to_Cash!C$9","v":-155327},{"$f":"NR_to_Cash!D$9","v":-283877},{"$f":"NR_to_Cash!E$9","v":-105647},{"$f":"NR_to_Cash!F$9","v":-78023},null,916,-1686.8907115694174,-2385.3152266173092,11768.425603830521,5211.9531000316974,null,-155327,-283877,-105647,-78023]
[917,{"$error":"#NAME?"},{"$error":"#NAME?"},{"$error":"#NAME?"},{"$error":"#NAME?"},null,{"$f":"NR_to_Cash!C$9","v":-155327},{"$f":"NR_to_Cash!D$9","v":-283877},{"$f":"NR_to_Cash!E$9","v":-105647},{"$f":"NR_to_Cash!F$9","v":-78023},null,917,-4158.7734290638491,-28580.81688755452,-17090.731241890673,-2038.2109132678893,null,-155327,-283877,-105647,-78023]
[918,{"$error":"#NAME?"},{"$error":"#NAME?"},{"$error":"#NAME?"},{"$error":"#NAME?"},null,{"$f":"NR_to_Cash!C$9","v":-155327},{"$f":"NR_to_Cash!D$9","v":-283877},{"$f":"NR_to_Cash!E$9","v":-105647},{"$f":"NR_to_Cash!F$9","v":-78023},null,918,-13602.528474552451,8709.308259790645,-41064.705327817494,-23068.065074225357,null,-155327,-283877,-105647,-78023]
[919,{"$error":"#NAME?"},{"$error":"#NAME?"},{"$error":"#NAME?"},{"$error":"#NAME?"},null,{"$f":"NR_to_Cash!C$9","v":-155327},{"$f":"NR_to_Cash!D$9","v":-283877},{"$f":"NR_to_Cash!E$9","v":-105647},{"$f":"NR_to_Cash!F$9","v":-78023},null,919,-16348.748681578683,-8323.7001647391826,-19914.860596315335,-18112.746208465305,null,-155327,-283877,-105647,-78023]
[920,{"$error":"#NAME?"},{"$error":"#NAME?"},{"$error":"#NAME?"},{"$error":"#NAME?"},null,{"$f":"NR_to_Cash!C$9","v":-155327},{"$f":"NR_to_Cash!D$9","v":-283877},{"$f":"NR_to_Cash!E$9","v":-105647},{"$f":"NR_to_Cash!F$9","v":-78023},null,920,-18788.654747796416,-24182.634798691859,10738.332433879941,-7683.6151751105435,null,-155327,-283877,-105647,-78023]
[921,{"$error":"#NAME?"},{"$error":"#NAME?"},{"$error":"#NAME?"},{"$error":"#NAME?"},null,{"$f":"NR_to_Cash!C$9","v":-155327},{"$f":"NR_to_Cash!D$9","v":-283877},{"$f":"NR_to_Cash!E$9","v":-105647},{"$f":"NR_to_Cash!F$9","v":-78023},null,921,-12526.589800834889,-18747.298738609199,-17184.26576658052,6582.0541407737246,null,-155327,-283877,-105647,-78023]
[922,{"$error":"#NAME?"},{"$error":"#NAME?"},{"$error":"#NAME?"},{"$error":"#NAME?"},null,{"$f":"NR_to_Cash!C$9","v":-155327},{"$f":"NR_to_Cash!D$9","v":-283877},{"$f":"NR_to_Cash!E$9","v":-105647},{"$f":"NR_to_Cash!F$9","v":-78023},null,922,6874.6337775595166,7954.9673443192805,3596.0218040342697,5972.3415177185698,null,-155327,-283877,-105647,-78023]
[923,{"$error":"#NAME?"},{"$error":"#NAME?"},{"$error":"#NAME?"},{"$error":"#NAME?"},null,{"$f":"NR_to_Cash!C$9","v":-155327},{"$f":"NR_to_Cash!D$9","v":-283877},{"$f":"NR_to_Cash!E$9","v":-105647},{"$f":"NR_to_Cash!F$9","v":-78023},null,923,-6306.3047716871515,-20354.320145698341,-8890.0925392025965,-27153.358300723918,null,-155327,-283877,-105647,-78023]
[924,{"$error":"#NAME?"},{"$error":"#NAME?"},{"$error":"#NAME?"},{"$error":"#NAME?"},null,{"$f":"NR_to_Cash!C$9","v":-155327},{"$f":"NR_to_Cash!D$9","v":-283877},{"$f":"NR_to_Cash!E$9","v":-105647},{"$f":"NR_to_Cash!F$9","v":-78023},null,924,-15047.053900821382,-8008.0731573328103,-19536.422856073641,5118.8039069062033,null,-155327,-283877,-105647,-78023]
[925,{"$error":"#NAME?"},{"$error":"#NAME?"},{"$error":"#NAME?"},{"$error":"#NAME?"},null,{"$f":"NR_to_Cash!C$9","v":-155327},{"$f":"NR_to_Cash!D$9","v":-283877},{"$f":"NR_to_Cash!E$9","v":-105647},{"$f":"NR_to_Cash!F$9","v":-78023},null,925,-413.74638509798763,-26257.766084811981,-16916.713600411498,2364.7211054373347,null,-155327,-283877,-105647,-78023]
[926,{"$error":"#NAME?"},{"$error":"#NAME?"},{"$error":"#NAME?"},{"$error":"#NAME?"},null,{"$f":"NR_to_Cash!C$9","v":-155327},{"$f":"NR_to_Cash!D$9","v":-283877},{"$f":"NR_to_Cash!E$9","v":-105647},{"$f":"NR_to_Cash!F$9","v":-78023},null,926,5081.4966053385797,-28046.915776896407,-13378.841097102606,-13848.143422212896,null,-155327,-283877,-105647,-78023]
[927,{"$error":"#NAME?"},{"$error":"#NAME?"},{"$error":"#NAME?"},{"$error":"#NAME?"},null,{"$f":"NR_to_Cash!C$9","v":-155327},{"$f":"NR_to_Cash!D$9","v":-283877},{"$f":"NR_to_Cash!E$9","v":-105647},{"$f":"NR_to_Cash!F$9","v":-78023},null,927,-7258.4364809426124,510.46068627434261,14962.262637907748,13521.541098637354,null,-155327,-283877,-105647,-78023]
[928,{"$error":"#NAME?"},{"$error":"#NAME?"},{"$error":"#NAME?"},{"$error":"#NAME?"},null,{"$f":"NR_to_Cash!C$9","v":-155327},{"$f":"NR_to_Cash!D$9","v":-283877},{"$f":"NR_to_Cash!E$9","v":-105647},{"$f":"NR_to_Cash!F$9","v":-78023},null,928,-16350.084636751715,4160.6360720335933,-9022.6139152970773,-13799.43507421502,null,-155327,-283877,-105647,-78023]
[929,{"$error":"#NAME?"},{"$error":"#NAME?"},{"$error":"#NAME?"},{"$error":"#NAME?"},null,{"$f":"NR_to_Cash!C$9","v":-155327},{"$f":"NR_to_Cash!D$9","v":-283877},{"$f":"NR_to_Cash!E$9","v":-105647},{"$f":"NR_to_Cash!F$9","v":-78023},null,929,-12671.787840488087,-22094.805954688596,-38462.152338979315,-11379.751176944537,null,-155327,-283877,-105647,-78023]
[930,{"$error":"#NAME?"},{"$error":"#NAME?"},{"$error":"#NAME?"},{"$error":"#NAME?"},null,{"$f":"NR_to_Cash!C$9","v":-155327},{"$f":"NR_to_Cash!D$9","v":-283877},{"$f":"NR_to_Cash!E$9","v":-105647},{"$f":"NR_to_Cash!F$9","v":-78023},null,930,-26610.850126192294,2498.2851138925616,-7912.115013182738,-42917.374307400583,null,-155327,-283877,-105647,-78023]
[931,{"$error":"#NAME?"},{"$error":"#NAME?"},{"$error":"#NAME?"},{"$error":"#NAME?"},null,{"$f":"NR_to_Cash!C$9","v":-155327},{"$f":"NR_to_Cash!D$9","v":-283877},{"$f":"NR_to_Cash!E$9","v":-105647},{"$f":"NR_to_Cash!F$9","v":-78023},null,931,-6825.3638692035756,17300.115845595748,-18845.198992517737,-19550.695339470491,null,-155327,-283877,-105647,-78023]
[932,{"$error":"#NAME?"},{"$error":"#NAME?"},{"$error":"#NAME?"},{"$error":"#NAME?"},null,{"$f":"NR_to_Cash!C$9","v":-155327},{"$f":"NR_to_Cash!D$9","v":-283877},{"$f":"NR_to_Cash!E$9","v":-105647},{"$f":"NR_to_Cash!F$9","v":-78023},null,932,-8557.7307627389582,-10173.270493036,-5858.0919808470198,4992.6110066285119,null,-155327,-283877,-105647,-78023]
[933,{"$error":"#NAME?"},{"$error":"#NAME?"},{"$error":"#NAME?"},{"$error":"#NAME?"},null,{"$f":"NR_to_Cash!C$9","v":-155327},{"$f":"NR_to_Cash!D$9","v":-283877},{"$f":"NR_to_Cash!E$9","v":-105647},{"$f":"NR_to_Cash!F$9","v":-78023},null,933,-4009.0987842068607,-25857.822019588108,-11733.450312570654,-38339.877763423545,null,-155327,-283877,-105647,-78023]
[934,{"$error":"#NAME?"},{"$error":"#NAME?"},{"$error":"#NAME?"},{"$error":"#NAME?"},null,{"$f":"NR_to_Cash!C$9","v":-155327},{"$f":"NR_to_Cash!D$9","v":-283877},{"$f":"NR_to_Cash!E$9","v":-105647},{"$f":"NR_to_Cash!F$9","v":-78023},null,934,-8940.9779073757418,-9468.598842539639,-3068.6208808324145,-19738.857005509199,null,-155327,-283877,-105647,-78023]
[935,{"$error":"#NAME?"},{"$error":"#NAME?"},{"$error":"#NAME?"},{"$error":"#NAME?"},null,{"$f":"NR_to_Cash!C$9","v":-155327},{"$f":"NR_to_Cash!D$9","v":-283877},{"$f":"NR_to_Cash!E$9","v":-105647},{"$f":"NR_to_Cash!F$9","v":-78023},null,935,-16627.43192042207,15411.059317729043,-24520.290560070229,12115.531765660951,null,-155327,-283877,-105647,-78023]
[936,{"$error":"#NAME?"},{"$error":"#NAME?"},{"$error":"#NAME?"},{"$error":"#NAME?"},null,{"$f":"NR_to_Cash!C$9","v":-155327},{"$f":"NR_to_Cash!D$9","v":-283877},{"$f":"NR_to_Cash!E$9","v":-105647},{"$f":"NR_to_Cash!F$9","v":-78023},null,936,-18207.714836040304,-12784.62100830389,-22086.871296079255,-3544.1174157219357,null,-155327,-283877,-105647,-78023]
[937,{"$error":"#NAME?"},{"$error":"#NAME?"},{"$error":"#NAME?"},{"$error":"#NAME?"},null,{"$f":"NR_to_Cash!C$9","v":-155327},{"$f":"NR_to_Cash!D$9","v":-283877},{"$f":"NR_to_Cash!E$9","v":-105647},{"$f":"NR_to_Cash!F$9","v":-78023},null,937,-18387.384548031892,-19022.234125901847,-8045.056386825343,-19845.148815346405,null,-155327,-283877,-105647,-78023]
[938,{"$error":"#NAME?"},{"$error":"#NAME?"},{"$error":"#NAME?"},{"$error":"#NAME?"},null,{"$f":"NR_to_Cash!C$9","v":-155327},{"$f":"NR_to_Cash!D$9","v":-283877},{"$f":"NR_to_Cash!E$9","v":-105647},{"$f":"NR_to_Cash!F$9","v":-78023},null,938,2701.0217625057671,-13773.591249586101,-3406.2601518992478,-8389.7687992531755,null,-155327,-283877,-105647,-78023]
[939,{"$error":"#NAME?"},{"$error":"#NAME?"},{"$error":"#NAME?"},{"$error":"#NAME?"},null,{"$f":"NR_to_Cash!C$9","v":-155327},{"$f":"NR_to_Cash!D$9","v":-283877},{"$f":"NR_to_Cash!E$9","v":-105647},{"$f":"NR_to_Cash!F$9","v":-78023},null,939,-24352.077667371344,-11146.162156484759,-1547.2454038372121,-10879.3104969161,null,-155327,-283877,-105647,-78023]
[940,{"$error":"#NAME?"},{"$error":"#NAME?"},{"$error":"#NAME?"},{"$error":"#NAME?"},null,{"$f":"NR_to_Cash!C$9","v":-155327},{"$f":"NR_to_Cash!D$9","v":-283877},{"$f":"NR_to_Cash!E$9","v":-105647},{"$f":"NR_to_Cash!F$9","v":-78023},null,940,-7360.9379915467152,-20460.037340382158,-17364.198540288435,9807.1306291600922,null,-155327,-283877,-105647,-78023]
[941,{"$error":"#NAME?"},{"$error":"#NAME?"},{"$error":"#NAME?"},{"$error":"#NAME?"},null,{"$f":"NR_to_Cash!C$9","v":-155327},{"$f":"NR_to_Cash!D$9","v":-283877},{"$f":"NR_to_Cash!E$9","v":-105647},{"$f":"NR_to_Cash!F$9","v":-78023},null,941,-13799.387325925996,-24432.429646129847,-18967.982582598554,-20960.718955615092,null,-155327,-283877,-105647,-78023]
[942,{"$error":"#NAME?"},{"$error":"#NAME?"},{"$error":"#NAME?"},{"$error":"#NAME?"},null,{"$f":"NR_to_Cash!C$9","v":-155327},{"$f":"NR_to_Cash!D$9","v":-283877},{"$f":"NR_to_Cash!E$9","v":-105647},{"$f":"NR_to_Cash!F$9","v":-78023},null,942,-18042.072249866127,9241.0049948612013,8689.627904337518,6698.8792303954606,null,-155327,-283877,-105647,-78023]
[943,{"$error":"#NAME?"},{"$error":"#NAME?"},{"$error":"#NAME?"},{"$error":"#NAME?"},null,{"$f":"NR_to_Cash!C$9","v":-155327},{"$f":"NR_to_Cash!D$9","v":-283877},{"$f":"NR_to_Cash!E$9","v":-105647},{"$f":"NR_to_Cash!F$9","v":-78023},null,943,3130.8035010338472,-17194.340627491725,-26959.596758288702,-18273.661666418644,null,-155327,-283877,-105647,-78023]
[944,{"$error":"#NAME?"},{"$error":"#NAME?"},{"$error":"#NAME?"},{"$error":"#NAME?"},null,{"$f":"NR_to_Cash!C$9","v":-155327},{"$f":"NR_to_Cash!D$9","v":-283877},{"$f":"NR_to_Cash!E$9","v":-105647},{"$f":"NR_to_Cash!F$9","v":-78023},null,944,-45215.913088655536,-6048.9805183843037,-7760.3781437158777,-20828.254542563132,null,-155327,-283877,-105647,-78023]
[945,{"$error":"#NAME?"},{"$error":"#NAME?"},{"$error":"#NAME?"},{"$error":"#NAME?"},null,{"$f":"NR_to_Cash!C$9","v":-155327},{"$f":"NR_to_Cash!D$9","v":-283877},{"$f":"NR_to_Cash!E$9","v":-105647},{"$f":"NR_to_Cash!F$9","v":-78023},null,945,-21028.582601298414,-33534.594915049223,-11371.728347977603,-24152.51474228107,null,-155327,-283877,-105647,-78023]
[946,{"$error":"#NAME?"},{"$error":"#NAME?"},{"$error":"#NAME?"},{"$error":"#NAME?"},null,{"$f":"NR_to_Cash!C$9","v":-155327},{"$f":"NR_to_Cash!D$9","v":-283877},{"$f":"NR_to_Cash!E$9","v":-105647},{"$f":"NR_to_Cash!F$9","v":-78023},null,946,-12990.881146939642,-22830.610128457716,-9915.3158731889707,-33795.812390256666,null,-155327,-283877,-105647,-78023]
[947,{"$error":"#NAME?"},{"$error":"#NAME?"},{"$error":"#NAME?"},{"$error":"#NAME?"},null,{"$f":"NR_to_Cash!C$9","v":-155327},{"$f":"NR_to_Cash!D$9","v":-283877},{"$f":"NR_to_Cash!E$9","v":-105647},{"$f":"NR_to_Cash!F$9","v":-78023},null,947,-23068.706786861705,-30003.980984055215,-14011.405431014491,-8048.8126215828424,null,-155327,-283877,-105647,-78023]
[948,{"$error":"#NAME?"},{"$error":"#NAME?"},{"$error":"#NAME?"},{"$error":"#NAME?"},null,{"$f":"NR_to_Cash!C$9","v":-155327},{"$f":"NR_to_Cash!D$9","v":-283877},{"$f":"NR_to_Cash!E$9","v":-105647},{"$f":"NR_to_Cash!F$9","v":-78023},null,948,-14567.66321141988,-10612.089252842483,-21910.059915135193,-24748.294612255595,null,-155327,-283877,-105647,-78023]
[949,{"$error":"#NAME?"},{"$error":"#NAME?"},{"$error":"#NAME?"},{"$error":"#NAME?"},null,{"$f":"NR_to_Cash!C$9","v":-155327},{"$f":"NR_to_Cash!D$9","v":-283877},{"$f":"NR_to_Cash!E$9","v":-105647},{"$f":"NR_to_Cash!F$9","v":-78023},null,949,-8855.1314463591953,20045.406145684126,-9564.5270783883443,-5345.4942018076663,null,-155327,-283877,-105647,-78023]
[950,{"$error":"#NAME?"},{"$error":"#NAME?"},{"$error":"#NAME?"},{"$error":"#NAME?"},null,{"$f":"NR_to_Cash!C$9","v":-155327},{"$f":"NR_to_Cash!D$9","v":-283877},{"$f":"NR_to_Cash!E$9","v":-105647},{"$f":"NR_to_Cash!F$9","v":-78023},null,950,-15855.815225645749,-22847.063177548796,3947.7467891270094,-17303.188050066066,null,-155327,-283877,-105647,-78023]
[951,{"$error":"#NAME?"},{"$error":"#NAME?"},{"$error":"#NAME?"},{"$error":"#NAME?"},null,{"$f":"NR_to_Cash!C$9","v":-155327},{"$f":"NR_to_Cash!D$9","v":-283877},{"$f":"NR_to_Cash!E$9","v":-105647},{"$f":"NR_to_Cash!F$9","v":-78023},null,951,-32665.101766915614,-13011.375500300474,-13942.176125654507,-11638.956600955549,null,-155327,-283877,-105647,-78023]
[952,{"$error":"#NAME?"},{"$error":"#NAME?"},{"$error":"#NAME?"},{"$error":"#NAME?"},null,{"$f":"NR_to_Cash!C$9","v":-155327},{"$f":"NR_to_Cash!D$9","v":-283877},{"$f":"NR_to_Cash!E$9","v":-105647},{"$f":"NR_to_Cash!F$9","v":-78023},null,952,-4985.9599278415963,5327.6328017358219,-17257.780186520613,-18963.607217113309,null,-155327,-283877,-105647,-78023]
[953,{"$error":"#NAME?"},{"$error":"#NAME?"},{"$error":"#NAME?"},{"$error":"#NAME?"},null,{"$f":"NR_to_Cash!C$9","v":-155327},{"$f":"NR_to_Cash!D$9","v":-283877},{"$f":"NR_to_Cash!E$9","v":-105647},{"$f":"NR_to_Cash!F$9","v":-78023},null,953,-16221.163573970767,-21324.262165597265,-7026.520744196604,4931.5207782332172,null,-155327,-283877,-105647,-78023]
[954,{"$error":"#NAME?"},{"$error":"#NAME?"},{"$error":"#NAME?"},{"$error":"#NAME?"},null,{"$f":"NR_to_Cash!C$9","v":-155327},{"$f":"NR_to_Cash!D$9","v":-283877},{"$f":"NR_to_Cash!E$9","v":-105647},{"$f":"NR_to_Cash!F$9","v":-78023},null,954,-24472.955922022989,-5745.2755063821915,-13438.349539742399,-25043.90984668766,null,-155327,-283877,-105647,-78023]
[955,{"$error":"#NAME?"},{"$error":"#NAME?"},{"$error":"#NAME?"},{"$error":"#NAME?"},null,{"$f":"NR_to_Cash!C$9","v":-155327},{"$f":"NR_to_Cash!D$9","v":-283877},{"$f":"NR_to_Cash!E$9","v":-105647},{"$f":"NR_to_Cash!F$9","v":-78023},null,955,-10660.498312700933,-5561.8703433286573,-9780.7723121053077,-4506.5285656660935,null,-155327,-283877,-105647,-78023]
[956,{"$error":"#NAME?"},{"$error":"#NAME?"},{"$error":"#NAME?"},{"$error":"#NAME?"},null,{"$f":"NR_to_Cash!C$9","v":-155327},{"$f":"NR_to_Cash!D$9","v":-283877},{"$f":"NR_to_Cash!E$9","v":-105647},{"$f":"NR_to_Cash!F$9","v":-78023},null,956,-6560.484708829501,-5099.3040683438476,4783.7777495700047,-5350.9293309972927,null,-155327,-283877,-105647,-78023]
[957,{"$error":"#NAME?"},{"$error":"#NAME?"},{"$error":"#NAME?"},{"$error":"#NAME?"},null,{"$f":"NR_to_Cash!C$9","v":-155327},{"$f":"NR_to_Cash!D$9","v":-283877},{"$f":"NR_to_Cash!E$9","v":-105647},{"$f":"NR_to_Cash!F$9","v":-78023},null,957,-24556.979759398739,-18630.044621946043,2897.7209730431946,-7438.643629616794,null,-155327,-283877,-105647,-78023]
[958,{"$error":"#NAME?"},{"$error":"#NAME?"},{"$error":"#NAME?"},{"$error":"#NAME?"},null,{"$f":"NR_to_Cash!C$9","v":-155327},{"$f":"NR_to_Cash!D$9","v":-283877},{"$f":"NR_to_Cash!E$9","v":-105647},{"$f":"NR_to_Cash!F$9","v":-78023},null,958,-9902.9421157358665,-10637.060890894492,852.31701396093172,-11859.281876206327,null,-155327,-283877,-105647,-78023]
[959,{"$error":"#NAME?"},{"$error":"#NAME?"},{"$error":"#NAME?"},{"$error":"#NAME?"},null,{"$f":"NR_to_Cash!C$9","v":-155327},{"$f":"NR_to_Cash!D$9","v":-283877},{"$f":"NR_to_Cash!E$9","v":-105647},{"$f":"NR_to_Cash!F$9","v":-78023},null,959,-1665.6988619809752,-11912.540959670738,-4370.6027961045929,-14697.325765034586,null,-155327,-283877,-105647,-78023]
[960,{"$error":"#NAME?"},{"$error":"#NAME?"},{"$error":"#NAME?"},{"$error":"#NAME?"},null,{"$f":"NR_to_Cash!C$9","v":-155327},{"$f":"NR_to_Cash!D$9","v":-283877},{"$f":"NR_to_Cash!E$9","v":-105647},{"$f":"NR_to_Cash!F$9","v":-78023},null,960,-14945.626164872345,-28344.218440637254,-18785.578803497046,-15143.684504469829,null,-155327,-283877,-105647,-78023]
[961,{"$error":"#NAME?"},{"$error":"#NAME?"},{"$error":"#NAME?"},{"$error":"#NAME?"},null,{"$f":"NR_to_Cash!C$9","v":-155327},{"$f":"NR_to_Cash!D$9","v":-283877},{"$f":"NR_to_Cash!E$9","v":-105647},{"$f":"NR_to_Cash!F$9","v":-78023},null,961,4954.4199227288846,1136.6110097622056,-17835.682037233448,9215.5594509023922,null,-155327,-283877,-105647,-78023]
[962,{"$error":"#NAME?"},{"$error":"#NAME?"},{"$error":"#NAME?"},{"$error":"#NAME?"},null,{"$f":"NR_to_Cash!C$9","v":-155327},{"$f":"NR_to_Cash!D$9","v":-283877},{"$f":"NR_to_Cash!E$9","v":-105647},{"$f":"NR_to_Cash!F$9","v":-78023},null,962,-14107.976106438215,1904.9994124335931,-15006.211635095497,-35946.16579817226,null,-155327,-283877,-105647,-78023]
[963,{"$error":"#NAME?"},{"$error":"#NAME?"},{"$error":"#NAME?"},{"$error":"#NAME?"},null,{"$f":"NR_to_Cash!C$9","v":-155327},{"$f":"NR_to_Cash!D$9","v":-283877},{"$f":"NR_to_Cash!E$9","v":-105647},{"$f":"NR_to_Cash!F$9","v":-78023},null,963,-5819.6673233683141,-27032.350500958757,5258.3990929457659,431.86525368109142,null,-155327,-283877,-105647,-78023]
[964,{"$error":"#NAME?"},{"$error":"#NAME?"},{"$error":"#NAME?"},{"$error":"#NAME?"},null,{"$f":"NR_to_Cash!C$9","v":-155327},{"$f":"NR_to_Cash!D$9","v":-283877},{"$f":"NR_to_Cash!E$9","v":-105647},{"$f":"NR_to_Cash!F$9","v":-78023},null,964,-16299.414597705454,-16689.529306106469,-23393.663080593084,-27827.849109729399,null,-155327,-283877,-105647,-78023]
[965,{"$error":"#NAME?"},{"$error":"#NAME?"},{"$error":"#NAME?"},{"$error":"#NAME?"},null,{"$f":"NR_to_Cash!C$9","v":-155327},{"$f":"NR_to_Cash!D$9","v":-283877},{"$f":"NR_to_Cash!E$9","v":-105647},{"$f":"NR_to_Cash!F$9","v":-78023},null,965,-6027.9742295729975,-26124.222820298543,-11312.491705608521,-28058.770685482625,null,-155327,-283877,-105647,-78023]
[966,{"$error":"#NAME?"},{"$error":"#NAME?"},{"$error":"#NAME?"},{"$error":"#NAME?"},null,{"$f":"NR_to_Cash!C$9","v":-155327},{"$f":"NR_to_Cash!D$9","v":-283877},{"$f":"NR_to_Cash!E$9","v":-105647},{"$f":"NR_to_Cash!F$9","v":-78023},null,966,-13569.920207574545,-954.07658514969921,-8723.031444586466,18092.448730781514,null,-155327,-283877,-105647,-78023]
[967,{"$error":"#NAME?"},{"$error":"#NAME?"},{"$error":"#NAME?"},{"$error":"#NAME?"},null,{"$f":"NR_to_Cash!C$9","v":-155327},{"$f":"NR_to_Cash!D$9","v":-283877},{"$f":"NR_to_Cash!E$9","v":-105647},{"$f":"NR_to_Cash!F$9","v":-78023},null,967,-2223.2732434396294,-11571.608227819444,-22776.635373640416,-10060.573377472996,null,-155327,-283877,-105647,-78023]
[968,{"$error":"#NAME?"},{"$error":"#NAME?"},{"$error":"#NAME?"},{"$error":"#NAME?"},null,{"$f":"NR_to_Cash!C$9","v":-155327},{"$f":"NR_to_Cash!D$9","v":-283877},{"$f":"NR_to_Cash!E$9","v":-105647},{"$f":"NR_to_Cash!F$9","v":-78023},null,968,3175.1446764949837,-7653.5341188769389,-17376.886643829595,-6481.8521275176317,null,-155327,-283877,-105647,-78023]
[969,{"$error":"#NAME?"},{"$error":"#NAME?"},{"$error":"#NAME?"},{"$error":"#NAME?"},null,{"$f":"NR_to_Cash!C$9","v":-155327},{"$f":"NR_to_Cash!D$9","v":-283877},{"$f":"NR_to_Cash!E$9","v":-105647},{"$f":"NR_to_Cash!F$9","v":-78023},null,969,-11575.006987894643,-26535.019780805378,5589.6571210414804,-24179.201318816969,null,-155327,-283877,-105647,-78023]
[970,{"$error":"#NAME?"},{"$error":"#NAME?"},{"$error":"#NAME?"},{"$error":"#NAME?"},null,{"$f":"NR_to_Cash!C$9","v":-155327},{"$f":"NR_to_Cash!D$9","v":-283877},{"$f":"NR_to_Cash!E$9","v":-105647},{"$f":"NR_to_Cash!F$9","v":-78023},null,970,-16431.071490180308,-20812.687031525176,4618.7508209307853,-13424.918655244088,null,-155327,-283877,-105647,-78023]
[971,{"$error":"#NAME?"},{"$error":"#NAME?"},{"$error":"#NAME?"},{"$error":"#NAME?"},null,{"$f":"NR_to_Cash!C$9","v":-155327},{"$f":"NR_to_Cash!D$9","v":-283877},{"$f":"NR_to_Cash!E$9","v":-105647},{"$f":"NR_to_Cash!F$9","v":-78023},null,971,-27989.391318433078,-33334.436882452064,-21897.783864409645,-9562.2108555238228,null,-155327,-283877,-105647,-78023]
[972,{"$error":"#NAME?"},{"$error":"#NAME?"},{"$error":"#NAME?"},{"$error":"#NAME?"},null,{"$f":"NR_to_Cash!C$9","v":-155327},{"$f":"NR_to_Cash!D$9","v":-283877},{"$f":"NR_to_Cash!E$9","v":-105647},{"$f":"NR_to_Cash!F$9","v":-78023},null,972,-3047.2860087320787,-10929.106779628652,-18122.523425481832,-4386.3947950904976,null,-155327,-283877,-105647,-78023]
[973,{"$error":"#NAME?"},{"$error":"#NAME?"},{"$error":"#NAME?"},{"$error":"#NAME?"},null,{"$f":"NR_to_Cash!C$9","v":-155327},{"$f":"NR_to_Cash!D$9","v":-283877},{"$f":"NR_to_Cash!E$9","v":-105647},{"$f":"NR_to_Cash!F$9","v":-78023},null,973,-25664.00394029935,-17680.625324505621,-1241.1900619837543,-9609.606005219277,null,-155327,-283877,-105647,-78023]
[974,{"$error":"#NAME?"},{"$error":"#NAME?"},{"$error":"#NAME?"},{"$error":"#NAME?"},null,{"$f":"NR_to_Cash!C$9","v":-155327},{"$f":"NR_to_Cash!D$9","v":-283877},{"$f":"NR_to_Cash!E$9","v":-105647},{"$f":"NR_to_Cash!F$9","v":-78023},null,974,-11262.846616456016,-23037.832969352148,-22261.092432115689,-16363.098726753007,null,-155327,-283877,-105647,-78023]
[975,{"$error":"#NAME?"},{"$error":"#NAME?"},{"$error":"#NAME?"},{"$error":"#NAME?"},null,{"$f":"NR_to_Cash!C$9","v":-155327},{"$f":"NR_to_Cash!D$9","v":-283877},{"$f":"NR_to_Cash!E$9","v":-105647},{"$f":"NR_to_Cash!F$9","v":-78023},null,975,-10971.332947025043,-28171.388770832797,-25517.345607228068,-5198.9534389865885,null,-155327,-283877,-105647,-78023]
[976,{"$error":"#NAME?"},{"$error":"#NAME?"},{"$error":"#NAME?"},{"$error":"#NAME?"},null,{"$f":"NR_to_Cash!C$9","v":-155327},{"$f":"NR_to_Cash!D$9","v":-283877},{"$f":"NR_to_Cash!E$9","v":-105647},{"$f":"NR_to_Cash!F$9","v":-78023},null,976,-28492.225695494057,-20350.723250135175,-11120.912155328029,-29165.413911143227,null,-155327,-283877,-105647,-78023]
[977,{"$error":"#NAME?"},{"$error":"#NAME?"},{"$error":"#NAME?"},{"$error":"#NAME?"},null,{"$f":"NR_to_Cash!C$9","v":-155327},{"$f":"NR_to_Cash!D$9","v":-283877},{"$f":"NR_to_Cash!E$9","v":-105647},{"$f":"NR_to_Cash!F$9","v":-78023},null,977,6918.123413701861,-4276.7028252081564,-15278.367159603738,-22257.191112198627,null,-155327,-283877,-105647,-78023]
[978,{"$error":"#NAME?"},{"$error":"#NAME?"},{"$error":"#NAME?"},{"$error":"#NAME?"},null,{"$f":"NR_to_Cash!C$9","v":-155327},{"$f":"NR_to_Cash!D$9","v":-283877},{"$f":"NR_to_Cash!E$9","v":-105647},{"$f":"NR_to_Cash!F$9","v":-78023},null,978,-15963.141468214035,-23606.595431245987,-1185.4263059223454,9722.4925220862679,null,-155327,-283877,-105647,-78023]
[979,{"$error":"#NAME?"},{"$error":"#NAME?"},{"$error":"#NAME?"},{"$error":"#NAME?"},null,{"$f":"NR_to_Cash!C$9","v":-155327},{"$f":"NR_to_Cash!D$9","v":-283877},{"$f":"NR_to_Cash!E$9","v":-105647},{"$f":"NR_to_Cash!F$9","v":-78023},null,979,-11821.243152885414,-34384.831585771492,-12516.611967483115,-10155.87474719766,null,-155327,-283877,-105647,-78023]
[980,{"$error":"#NAME?"},{"$error":"#NAME?"},{"$error":"#NAME?"},{"$error":"#NAME?"},null,{"$f":"NR_to_Cash!C$9","v":-155327},{"$f":"NR_to_Cash!D$9","v":-283877},{"$f":"NR_to_Cash!E$9","v":-105647},{"$f":"NR_to_Cash!F$9","v":-78023},null,980,-14845.719748748932,7497.6210641086036,-26159.271013803529,-1146.6717868117507,null,-155327,-283877,-105647,-78023]
[981,{"$error":"#NAME?"},{"$error":"#NAME?"},{"$error":"#NAME?"},{"$error":"#NAME?"},null,{"$f":"NR_to_Cash!C$9","v":-155327},{"$f":"NR_to_Cash!D$9","v":-283877},{"$f":"NR_to_Cash!E$9","v":-105647},{"$f":"NR_to_Cash!F$9","v":-78023},null,981,-24182.043534260087,-1548.9341586227151,-24161.947874777048,5406.7380334893023,null,-155327,-283877,-105647,-78023]
[982,{"$error":"#NAME?"},{"$error":"#NAME?"},{"$error":"#NAME?"},{"$error":"#NAME?"},null,{"$f":"NR_to_Cash!C$9","v":-155327},{"$f":"NR_to_Cash!D$9","v":-283877},{"$f":"NR_to_Cash!E$9","v":-105647},{"$f":"NR_to_Cash!F$9","v":-78023},null,982,-19613.581880279497,1187.9414267338566,2074.4227972602498,8216.1022514219912,null,-155327,-283877,-105647,-78023]
[983,{"$error":"#NAME?"},{"$error":"#NAME?"},{"$error":"#NAME?"},{"$error":"#NAME?"},null,{"$f":"NR_to_Cash!C$9","v":-155327},{"$f":"NR_to_Cash!D$9","v":-283877},{"$f":"NR_to_Cash!E$9","v":-105647},{"$f":"NR_to_Cash!F$9","v":-78023},null,983,-2015.1165974029946,-7001.8375925664313,-10186.111715508963,-27649.058484334295,null,-155327,-283877,-105647,-78023]
[984,{"$error":"#NAME?"},{"$error":"#NAME?"},{"$error":"#NAME?"},{"$error":"#NAME?"},null,{"$f":"NR_to_Cash!C$9","v":-155327},{"$f":"NR_to_Cash!D$9","v":-283877},{"$f":"NR_to_Cash!E$9","v":-105647},{"$f":"NR_to_Cash!F$9","v":-78023},null,984,-14277.009026218777,-14616.994856676407,-19457.661797971894,-29277.26664264108,null,-155327,-283877,-105647,-78023]
[985,{"$error":"#NAME?"},{"$error":"#NAME?"},{"$error":"#NAME?"},{"$error":"#NAME?"},null,{"$f":"NR_to_Cash!C$9","v":-155327},{"$f":"NR_to_Cash!D$9","v":-283877},{"$f":"NR_to_Cash!E$9","v":-105647},{"$f":"NR_to_Cash!F$9","v":-78023},null,985,-13153.545436527525,-18153.580909274628,-1630.5750666319414,-7300.8924370679342,null,-155327,-283877,-105647,-78023]
[986,{"$error":"#NAME?"},{"$error":"#NAME?"},{"$error":"#NAME?"},{"$error":"#NAME?"},null,{"$f":"NR_to_Cash!C$9","v":-155327},{"$f":"NR_to_Cash!D$9","v":-283877},{"$f":"NR_to_Cash!E$9","v":-105647},{"$f":"NR_to_Cash!F$9","v":-78023},null,986,-31106.63952362513,-22075.792459680935,7439.534427195329,-37036.718543803348,null,-155327,-283877,-105647,-78023]
[987,{"$error":"#NAME?"},{"$error":"#NAME?"},{"$error":"#NAME?"},{"$error":"#NAME?"},null,{"$f":"NR_to_Cash!C$9","v":-155327},{"$f":"NR_to_Cash!D$9","v":-283877},{"$f":"NR_to_Cash!E$9","v":-105647},{"$f":"NR_to_Cash!F$9","v":-78023},null,987,842.00553806743051,3565.1740840335483,-12062.691204645695,-34999.006255184511,null,-155327,-283877,-105647,-78023]
[988,{"$error":"#NAME?"},{"$error":"#NAME?"},{"$error":"#NAME?"},{"$error":"#NAME?"},null,{"$f":"NR_to_Cash!C$9","v":-155327},{"$f":"NR_to_Cash!D$9","v":-283877},{"$f":"NR_to_Cash!E$9","v":-105647},{"$f":"NR_to_Cash!F$9","v":-78023},null,988,-15356.507663362183,-13495.039221721019,-3793.8433642491946,-8563.7785746876361,null,-155327,-283877,-105647,-78023]
[989,{"$error":"#NAME?"},{"$error":"#NAME?"},{"$error":"#NAME?"},{"$error":"#NAME?"},null,{"$f":"NR_to_Cash!C$9","v":-155327},{"$f":"NR_to_Cash!D$9","v":-283877},{"$f":"NR_to_Cash!E$9","v":-105647},{"$f":"NR_to_Cash!F$9","v":-78023},null,989,-31246.798582509786,-18118.802687588664,7340.7780162138451,-20940.109997111274,null,-155327,-283877,-105647,-78023]
[990,{"$error":"#NAME?"},{"$error":"#NAME?"},{"$error":"#NAME?"},{"$error":"#NAME?"},null,{"$f":"NR_to_Cash!C$9","v":-155327},{"$f":"NR_to_Cash!D$9","v":-283877},{"$f":"NR_to_Cash!E$9","v":-105647},{"$f":"NR_to_Cash!F$9","v":-78023},null,990,-8084.6683712116956,-15277.015948419456,-13889.962102021833,-11666.183141149475,null,-155327,-283877,-105647,-78023]
[991,{"$error":"#NAME?"},{"$error":"#NAME?"},{"$error":"#NAME?"},{"$error":"#NAME?"},null,{"$f":"NR_to_Cash!C$9","v":-155327},{"$f":"NR_to_Cash!D$9","v":-283877},{"$f":"NR_to_Cash!E$9","v":-105647},{"$f":"NR_to_Cash!F$9","v":-78023},null,991,-16375.791121542781,6093.2229901982982,-5798.2570943940682,-31928.865929583942,null,-155327,-283877,-105647,-78023]
[992,{"$error":"#NAME?"},{"$error":"#NAME?"},{"$error":"#NAME?"},{"$error":"#NAME?"},null,{"$f":"NR_to_Cash!C$9","v":-155327},{"$f":"NR_to_Cash!D$9","v":-283877},{"$f":"NR_to_Cash!E$9","v":-105647},{"$f":"NR_to_Cash!F$9","v":-78023},null,992,-6060.6845193487343,-6144.0296965743255,-7147.5907212721659,-18934.505687699697,null,-155327,-283877,-105647,-78023]
[993,{"$error":"#NAME?"},{"$error":"#NAME?"},{"$error":"#NAME?"},{"$error":"#NAME?"},null,{"$f":"NR_to_Cash!C$9","v":-155327},{"$f":"NR_to_Cash!D$9","v":-283877},{"$f":"NR_to_Cash!E$9","v":-105647},{"$f":"NR_to_Cash!F$9","v":-78023},null,993,-7204.8508589463545,-3965.9631911598858,-17287.036724790523,-19508.719565231549,null,-155327,-283877,-105647,-78023]
[994,{"$error":"#NAME?"},{"$error":"#NAME?"},{"$error":"#NAME?"},{"$error":"#NAME?"},null,{"$f":"NR_to_Cash!C$9","v":-155327},{"$f":"NR_to_Cash!D$9","v":-283877},{"$f":"NR_to_Cash!E$9","v":-105647},{"$f":"NR_to_Cash!F$9","v":-78023},null,994,-14790.325614069923,-24986.570759727427,-21285.916248531797,-32179.666751025397,null,-155327,-283877,-105647,-78023]
[995,{"$error":"#NAME?"},{"$error":"#NAME?"},{"$error":"#NAME?"},{"$error":"#NAME?"},null,{"$f":"NR_to_Cash!C$9","v":-155327},{"$f":"NR_to_Cash!D$9","v":-283877},{"$f":"NR_to_Cash!E$9","v":-105647},{"$f":"NR_to_Cash!F$9","v":-78023},null,995,-17995.79971043855,409.43015235543714,-1507.9645075370026,-3919.0450305674904,null,-155327,-283877,-105647,-78023]
[996,{"$error":"#NAME?"},{"$error":"#NAME?"},{"$error":"#NAME?"},{"$error":"#NAME?"},null,{"$f":"NR_to_Cash!C$9","v":-155327},{"$f":"NR_to_Cash!D$9","v":-283877},{"$f":"NR_to_Cash!E$9","v":-105647},{"$f":"NR_to_Cash!F$9","v":-78023},null,996,-30738.721346755228,-10260.361387261297,-9509.610742700399,227.55332597660802,null,-155327,-283877,-105647,-78023]
[997,{"$error":"#NAME?"},{"$error":"#NAME?"},{"$error":"#NAME?"},{"$error":"#NAME?"},null,{"$f":"NR_to_Cash!C$9","v":-155327},{"$f":"NR_to_Cash!D$9","v":-283877},{"$f":"NR_to_Cash!E$9","v":-105647},{"$f":"NR_to_Cash!F$9","v":-78023},null,997,-24221.803582001041,-6668.2664333265011,-10690.180247228256,-21435.510260652096,null,-155327,-283877,-105647,-78023]
[998,{"$error":"#NAME?"},{"$error":"#NAME?"},{"$error":"#NAME?"},{"$error":"#NAME?"},null,{"$f":"NR_to_Cash!C$9","v":-155327},{"$f":"NR_to_Cash!D$9","v":-283877},{"$f":"NR_to_Cash!E$9","v":-105647},{"$f":"NR_to_Cash!F$9","v":-78023},null,998,-20299.360782658088,-7889.3811572957702,-17399.29223350565,-10031.808192251779,null,-155327,-283877,-105647,-78023]
[999,{"$error":"#NAME?"},{"$error":"#NAME?"},{"$error":"#NAME?"},{"$error":"#NAME?"},null,{"$f":"NR_to_Cash!C$9","v":-155327},{"$f":"NR_to_Cash!D$9","v":-283877},{"$f":"NR_to_Cash!E$9","v":-105647},{"$f":"NR_to_Cash!F$9","v":-78023},null,999,-14365.16616199993,-12471.863384585738,2401.1679263432416,16609.41790341536,null,-155327,-283877,-105647,-78023]
[1000,{"$error":"#NAME?"},{"$error":"#NAME?"},{"$error":"#NAME?"},{"$error":"#NAME?"},null,{"$f":"NR_to_Cash!C$9","v":-155327},{"$f":"NR_to_Cash!D$9","v":-283877},{"$f":"NR_to_Cash!E$9","v":-105647},{"$f":"NR_to_Cash!F$9","v":-78023},null,1000,-24432.605565968151,381.6277200192136,-2195.0077148779023,13244.92864590842,null,-155327,-283877,-105647,-78023]
[1001,{"$error":"#NAME?"},{"$error":"#NAME?"},{"$error":"#NAME?"},{"$error":"#NAME?"},null,{"$f":"NR_to_Cash!C$9","v":-155327},{"$f":"NR_to_Cash!D$9","v":-283877},{"$f":"NR_to_Cash!E$9","v":-105647},{"$f":"NR_to_Cash!F$9","v":-78023},null,1001,-28491.281786031537,-1795.0469268696402,23499.902898860357,-9165.3901025911582,null,-155327,-283877,-105647,-78023]
[1002,{"$error":"#NAME?"},{"$error":"#NAME?"},{"$error":"#NAME?"},{"$error":"#NAME?"},null,{"$f":"NR_to_Cash!C$9","v":-155327},{"$f":"NR_to_Cash!D$9","v":-283877},{"$f":"NR_to_Cash!E$9","v":-105647},{"$f":"NR_to_Cash!F$9","v":-78023},null,1002,-2079.2409902778381,-29935.291923244888,-25756.979469492722,-41735.548144810571,null,-155327,-283877,-105647,-78023]
[1003,{"$error":"#NAME?"},{"$error":"#NAME?"},{"$error":"#NAME?"},{"$error":"#NAME?"},null,{"$f":"NR_to_Cash!C$9","v":-155327},{"$f":"NR_to_Cash!D$9","v":-283877},{"$f":"NR_to_Cash!E$9","v":-105647},{"$f":"NR_to_Cash!F$9","v":-78023},null,1003,-18865.495858769602,8398.9005399113466,-13514.508544600903,8408.7227602168205,null,-155327,-283877,-105647,-78023]
[1004,{"$error":"#NAME?"},{"$error":"#NAME?"},{"$error":"#NAME?"},{"$error":"#NAME?"},null,{"$f":"NR_to_Cash!C$9","v":-155327},{"$f":"NR_to_Cash!D$9","v":-283877},{"$f":"NR_to_Cash!E$9","v":-105647},{"$f":"NR_to_Cash!F$9","v":-78023},null,1004,-5846.4560192843683,-13892.45844237283,-222.52535135846423,-12020.996142376824,null,-155327,-283877,-105647,-78023]
[1005,{"$error":"#NAME?"},{"$error":"#NAME?"},{"$error":"#NAME?"},{"$error":"#NAME?"},null,{"$f":"NR_to_Cash!C$9","v":-155327},{"$f":"NR_to_Cash!D$9","v":-283877},{"$f":"NR_to_Cash!E$9","v":-105647},{"$f":"NR_to_Cash!F$9","v":-78023},null,1005,-9470.0883358412993,-19594.706498765121,-13950.120257153883,-4393.4591996840982,null,-155327,-283877,-105647,-78023]
[1006,{"$error":"#NAME?"},{"$error":"#NAME?"},{"$error":"#NAME?"},{"$error":"#NAME?"},null,{"$f":"NR_to_Cash!C$9","v":-155327},{"$f":"NR_to_Cash!D$9","v":-283877},{"$f":"NR_to_Cash!E$9","v":-105647},{"$f":"NR_to_Cash!F$9","v":-78023},null,1006,-26257.890721562108,-11503.388791839561,-11347.557573584207,-11122.484675212945,null,-155327,-283877,-105647,-78023]
[1007,{"$error":"#NAME?"},{"$error":"#NAME?"},{"$error":"#NAME?"},{"$error":"#NAME?"},null,{"$f":"NR_to_Cash!C$9","v":-155327},{"$f":"NR_to_Cash!D$9","v":-283877},{"$f":"NR_to_Cash!E$9","v":-105647},{"$f":"NR_to_Cash!F$9","v":-78023},null,1007,-8080.5857352906296,4133.9403306213071,4923.9398399386009,-10103.476022865667,null,-155327,-283877,-105647,-78023]
[1008,{"$error":"#NAME?"},{"$error":"#NAME?"},{"$error":"#NAME?"},{"$error":"#NAME?"},null,{"$f":"NR_to_Cash!C$9","v":-155327},{"$f":"NR_to_Cash!D$9","v":-283877},{"$f":"NR_to_Cash!E$9","v":-105647},{"$f":"NR_to_Cash!F$9","v":-78023},null,1008,-29051.519043490513,-20789.280026768593,30411.338042199648,4362.3039044304369,null,-155327,-283877,-105647,-78023]
[1009,{"$error":"#NAME?"},{"$error":"#NAME?"},{"$error":"#NAME?"},{"$error":"#NAME?"},null,{"$f":"NR_to_Cash!C$9","v":-155327},{"$f":"NR_to_Cash!D$9","v":-283877},{"$f":"NR_to_Cash!E$9","v":-105647},{"$f":"NR_to_Cash!F$9","v":-78023},null,1009,-9527.9076720195881,5955.9110465740523,-11099.789615503292,15711.89122497342,null,-155327,-283877,-105647,-78023]
[1010,{"$error":"#NAME?"},{"$error":"#NAME?"},{"$error":"#NAME?"},{"$error":"#NAME?"},null,{"$f":"NR_to_Cash!C$9","v":-155327},{"$f":"NR_to_Cash!D$9","v":-283877},{"$f":"NR_to_Cash!E$9","v":-105647},{"$f":"NR_to_Cash!F$9","v":-78023},null,1010,-6022.8607178167531,-22777.939339199365,6448.3568993443359,10859.57979996532,null,-155327,-283877,-105647,-78023]
[1011,{"$error":"#NAME?"},{"$error":"#NAME?"},{"$error":"#NAME?"},{"$error":"#NAME?"},null,{"$f":"NR_to_Cash!C$9","v":-155327},{"$f":"NR_to_Cash!D$9","v":-283877},{"$f":"NR_to_Cash!E$9","v":-105647},{"$f":"NR_to_Cash!F$9","v":-78023},null,1011,4385.1201029656804,-11628.678052464071,7409.5454836137997,-26264.702242458265,null,-155327,-283877,-105647,-78023]
[1012,{"$error":"#NAME?"},{"$error":"#NAME?"},{"$error":"#NAME?"},{"$error":"#NAME?"},null,{"$f":"NR_to_Cash!C$9","v":-155327},{"$f":"NR_to_Cash!D$9","v":-283877},{"$f":"NR_to_Cash!E$9","v":-105647},{"$f":"NR_to_Cash!F$9","v":-78023},null,1012,-10596.343553586312,-16648.863883281232,-266.14367006964926,-20476.990663924335,null,-155327,-283877,-105647,-78023]
[1013,{"$error":"#NAME?"},{"$error":"#NAME?"},{"$error":"#NAME?"},{"$error":"#NAME?"},null,{"$f":"NR_to_Cash!C$9","v":-155327},{"$f":"NR_to_Cash!D$9","v":-283877},{"$f":"NR_to_Cash!E$9","v":-105647},{"$f":"NR_to_Cash!F$9","v":-78023},null,1013,-5109.6976018181913,-35223.879047063841,813.280961608197,-8231.2791100372833,null,-155327,-283877,-105647,-78023]
[1014,{"$error":"#NAME?"},{"$error":"#NAME?"},{"$error":"#NAME?"},{"$error":"#NAME?"},null,{"$f":"NR_to_Cash!C$9","v":-155327},{"$f":"NR_to_Cash!D$9","v":-283877},{"$f":"NR_to_Cash!E$9","v":-105647},{"$f":"NR_to_Cash!F$9","v":-78023},null,1014,-3814.8920338452663,-4003.7470496174406,4305.5803119996799,-13811.814155752418,null,-155327,-283877,-105647,-78023]
[1015,{"$error":"#NAME?"},{"$error":"#NAME?"},{"$error":"#NAME?"},{"$error":"#NAME?"},null,{"$f":"NR_to_Cash!C$9","v":-155327},{"$f":"NR_to_Cash!D$9","v":-283877},{"$f":"NR_to_Cash!E$9","v":-105647},{"$f":"NR_to_Cash!F$9","v":-78023},null,1015,-23629.148704976411,-20977.575664594675,-6938.0898172285843,-2491.0826390261891,null,-155327,-283877,-105647,-78023]
[1016,{"$error":"#NAME?"},{"$error":"#NAME?"},{"$error":"#NAME?"},{"$error":"#NAME?"},null,{"$f":"NR_to_Cash!C$9","v":-155327},{"$f":"NR_to_Cash!D$9","v":-283877},{"$f":"NR_to_Cash!E$9","v":-105647},{"$f":"NR_to_Cash!F$9","v":-78023},null,1016,-4485.6361889385662,-4585.8785136090264,8496.122160582825,5005.7097031948861,null,-155327,-283877,-105647,-78023]
[1017,{"$error":"#NAME?"},{"$error":"#NAME?"},{"$error":"#NAME?"},{"$error":"#NAME?"},null,{"$f":"NR_to_Cash!C$9","v":-155327},{"$f":"NR_to_Cash!D$9","v":-283877},{"$f":"NR_to_Cash!E$9","v":-105647},{"$f":"NR_to_Cash!F$9","v":-78023},null,1017,-47316.267804201168,-53039.871023206084,3043.3336904250746,2121.6244250281529,null,-155327,-283877,-105647,-78023]
[1018,{"$error":"#NAME?"},{"$error":"#NAME?"},{"$error":"#NAME?"},{"$error":"#NAME?"},null,{"$f":"NR_to_Cash!C$9","v":-155327},{"$f":"NR_to_Cash!D$9","v":-283877},{"$f":"NR_to_Cash!E$9","v":-105647},{"$f":"NR_to_Cash!F$9","v":-78023},null,1018,-1927.9390873838743,3343.6316787576188,6813.8069432567245,-4996.6739272145714,null,-155327,-283877,-105647,-78023]
[1019,{"$error":"#NAME?"},{"$error":"#NAME?"},{"$error":"#NAME?"},{"$error":"#NAME?"},null,{"$f":"NR_to_Cash!C$9","v":-155327},{"$f":"NR_to_Cash!D$9","v":-283877},{"$f":"NR_to_Cash!E$9","v":-105647},{"$f":"NR_to_Cash!F$9","v":-78023},null,1019,-16493.497343843184,6289.4625573518979,1096.8794474552017,9223.2632777953622,null,-155327,-283877,-105647,-78023]
[1020,{"$error":"#NAME?"},{"$error":"#NAME?"},{"$error":"#NAME?"},{"$error":"#NAME?"},null,{"$f":"NR_to_Cash!C$9","v":-155327},{"$f":"NR_to_Cash!D$9","v":-283877},{"$f":"NR_to_Cash!E$9","v":-105647},{"$f":"NR_to_Cash!F$9","v":-78023},null,1020,-25136.46716311491,-27328.32351531212,-13213.206803319339,-5638.510226512748,null,-155327,-283877,-105647,-78023]
[1021,{"$error":"#NAME?"},{"$error":"#NAME?"},{"$error":"#NAME?"},{"$error":"#NAME?"},null,{"$f":"NR_to_Cash!C$9","v":-155327},{"$f":"NR_to_Cash!D$9","v":-283877},{"$f":"NR_to_Cash!E$9","v":-105647},{"$f":"NR_to_Cash!F$9","v":-78023},null,1021,-3686.8052048196487,-5648.6755856591817,-5813.7270436005001,-26269.446253766127,null,-155327,-283877,-105647,-78023]
[1022,{"$error":"#NAME?"},{"$error":"#NAME?"},{"$error":"#NAME?"},{"$error":"#NAME?"},null,{"$f":"NR_to_Cash!C$9","v":-155327},{"$f":"NR_to_Cash!D$9","v":-283877},{"$f":"NR_to_Cash!E$9","v":-105647},{"$f":"NR_to_Cash!F$9","v":-78023},null,1022,-31609.06847435805,-24347.266135948565,-26355.61431693894,-12278.089633116038,null,-155327,-283877,-105647,-78023]
[1023,{"$error":"#NAME?"},{"$error":"#NAME?"},{"$error":"#NAME?"},{"$error":"#NAME?"},null,{"$f":"NR_to_Cash!C$9","v":-155327},{"$f":"NR_to_Cash!D$9","v":-283877},{"$f":"NR_to_Cash!E$9","v":-105647},{"$f":"NR_to_Cash!F$9","v":-78023},null,1023,-27008.509387287566,3884.4931860600282,5478.4011965106638,8021.3753617552757,null,-155327,-283877,-105647,-78023]
[1024,{"$error":"#NAME?"},{"$error":"#NAME?"},{"$error":"#NAME?"},{"$error":"#NAME?"},null,{"$f":"NR_to_Cash!C$9","v":-155327},{"$f":"NR_to_Cash!D$9","v":-283877},{"$f":"NR_to_Cash!E$9","v":-105647},{"$f":"NR_to_Cash!F$9","v":-78023},null,1024,-19574.864596305175,118.01666418231373,-35420.765119803145,-24843.632725244082,null,-155327,-283877,-105647,-78023]
[1025,{"$error":"#NAME?"},{"$error":"#NAME?"},{"$error":"#NAME?"},{"$error":"#NAME?"},null,{"$f":"NR_to_Cash!C$9","v":-155327},{"$f":"NR_to_Cash!D$9","v":-283877},{"$f":"NR_to_Cash!E$9","v":-105647},{"$f":"NR_to_Cash!F$9","v":-78023},null,1025,-7719.1431664094625,1227.0453104613923,-3540.3689149468023,18900.623178828067,null,-155327,-283877,-105647,-78023]
[1026,{"$error":"#NAME?"},{"$error":"#NAME?"},{"$error":"#NAME?"},{"$error":"#NAME?"},null,{"$f":"NR_to_Cash!C$9","v":-155327},{"$f":"NR_to_Cash!D$9","v":-283877},{"$f":"NR_to_Cash!E$9","v":-105647},{"$f":"NR_to_Cash!F$9","v":-78023},null,1026,-13544.904288751486,-2416.7065505903452,-19604.263519607506,-30050.073901358614,null,-155327,-283877,-105647,-78023]
[1027,{"$error":"#NAME?"},{"$error":"#NAME?"},{"$error":"#NAME?"},{"$error":"#NAME?"},null,{"$f":"NR_to_Cash!C$9","v":-155327},{"$f":"NR_to_Cash!D$9","v":-283877},{"$f":"NR_to_Cash!E$9","v":-105647},{"$f":"NR_to_Cash!F$9","v":-78023},null,1027,-12672.666403268326,343.2645687664068,-5545.5908264609161,-18574.42321733039,null,-155327,-283877,-105647,-78023]
[1028,{"$error":"#NAME?"},{"$error":"#NAME?"},{"$error":"#NAME?"},{"$error":"#NAME?"},null,{"$f":"NR_to_Cash!C$9","v":-155327},{"$f":"NR_to_Cash!D$9","v":-283877},{"$f":"NR_to_Cash!E$9","v":-105647},{"$f":"NR_to_Cash!F$9","v":-78023},null,1028,-8270.9058200250292,-3536.0652998008331,8205.4359474380908,-35293.75069029427,null,-155327,-283877,-105647,-78023]
[1029,{"$error":"#NAME?"},{"$error":"#NAME?"},{"$error":"#NAME?"},{"$error":"#NAME?"},null,{"$f":"NR_to_Cash!C$9","v":-155327},{"$f":"NR_to_Cash!D$9","v":-283877},{"$f":"NR_to_Cash!E$9","v":-105647},{"$f":"NR_to_Cash!F$9","v":-78023},null,1029,-25276.562072826724,-13388.420433792111,-6882.437294756066,10814.222476510598,null,-155327,-283877,-105647,-78023]
[1030,{"$error":"#NAME?"},{"$error":"#NAME?"},{"$error":"#NAME?"},{"$error":"#NAME?"},null,{"$f":"NR_to_Cash!C$9","v":-155327},{"$f":"NR_to_Cash!D$9","v":-283877},{"$f":"NR_to_Cash!E$9","v":-105647},{"$f":"NR_to_Cash!F$9","v":-78023},null,1030,-29276.623245569914,-14134.733176756601,-23143.187862830237,-11919.134821263855,null,-155327,-283877,-105647,-78023]
[1031,{"$error":"#NAME?"},{"$error":"#NAME?"},{"$error":"#NAME?"},{"$error":"#NAME?"},null,{"$f":"NR_to_Cash!C$9","v":-155327},{"$f":"NR_to_Cash!D$9","v":-283877},{"$f":"NR_to_Cash!E$9","v":-105647},{"$f":"NR_to_Cash!F$9","v":-78023},null,1031,-6219.5157829692416,-27464.399738281285,-37330.582444335574,-29757.054366239878,null,-155327,-283877,-105647,-78023]
[1032,{"$error":"#NAME?"},{"$error":"#NAME?"},{"$error":"#NAME?"},{"$error":"#NAME?"},null,{"$f":"NR_to_Cash!C$9","v":-155327},{"$f":"NR_to_Cash!D$9","v":-283877},{"$f":"NR_to_Cash!E$9","v":-105647},{"$f":"NR_to_Cash!F$9","v":-78023},null,1032,-17711.375480523373,-14004.639557623803,-33319.559841778173,6722.2475856618867,null,-155327,-283877,-105647,-78023]
[1033,{"$error":"#NAME?"},{"$error":"#NAME?"},{"$error":"#NAME?"},{"$error":"#NAME?"},null,{"$f":"NR_to_Cash!C$9","v":-155327},{"$f":"NR_to_Cash!D$9","v":-283877},{"$f":"NR_to_Cash!E$9","v":-105647},{"$f":"NR_to_Cash!F$9","v":-78023},null,1033,-4552.5475212701313,4182.2907621793611,-1866.3032338800226,2777.0454720418761,null,-155327,-283877,-105647,-78023]
[1034,{"$error":"#NAME?"},{"$error":"#NAME?"},{"$error":"#NAME?"},{"$error":"#NAME?"},null,{"$f":"NR_to_Cash!C$9","v":-155327},{"$f":"NR_to_Cash!D$9","v":-283877},{"$f":"NR_to_Cash!E$9","v":-105647},{"$f":"NR_to_Cash!F$9","v":-78023},null,1034,-18368.668298521832,-21962.675673949885,-19939.854225230036,12198.553580863569,null,-155327,-283877,-105647,-78023]
[1035,{"$error":"#NAME?"},{"$error":"#NAME?"},{"$error":"#NAME?"},{"$error":"#NAME?"},null,{"$f":"NR_to_Cash!C$9","v":-155327},{"$f":"NR_to_Cash!D$9","v":-283877},{"$f":"NR_to_Cash!E$9","v":-105647},{"$f":"NR_to_Cash!F$9","v":-78023},null,1035,-24968.694861938751,-3778.2228493946786,-13504.19002633305,-4213.0453352488657,null,-155327,-283877,-105647,-78023]
[1036,{"$error":"#NAME?"},{"$error":"#NAME?"},{"$error":"#NAME?"},{"$error":"#NAME?"},null,{"$f":"NR_to_Cash!C$9","v":-155327},{"$f":"NR_to_Cash!D$9","v":-283877},{"$f":"NR_to_Cash!E$9","v":-105647},{"$f":"NR_to_Cash!F$9","v":-78023},null,1036,-13498.845961309335,-16432.618807672614,-8933.4017786424156,-16772.653161197701,null,-155327,-283877,-105647,-78023]
[1037,{"$error":"#NAME?"},{"$error":"#NAME?"},{"$error":"#NAME?"},{"$error":"#NAME?"},null,{"$f":"NR_to_Cash!C$9","v":-155327},{"$f":"NR_to_Cash!D$9","v":-283877},{"$f":"NR_to_Cash!E$9","v":-105647},{"$f":"NR_to_Cash!F$9","v":-78023},null,1037,-8029.8347001330076,-6327.8120005759174,2684.6529384639316,-5034.6340657049877,null,-155327,-283877,-105647,-78023]
[1038,{"$error":"#NAME?"},{"$error":"#NAME?"},{"$error":"#NAME?"},{"$error":"#NAME?"},null,{"$f":"NR_to_Cash!C$9","v":-155327},{"$f":"NR_to_Cash!D$9","v":-283877},{"$f":"NR_to_Cash!E$9","v":-105647},{"$f":"NR_to_Cash!F$9","v":-78023},null,1038,-9225.9206678824848,-17171.726866550722,-33231.084114114376,1699.3074354694891,null,-155327,-283877,-105647,-78023]
[1039,{"$error":"#NAME?"},{"$error":"#NAME?"},{"$error":"#NAME?"},{"$error":"#NAME?"},null,{"$f":"NR_to_Cash!C$9","v":-155327},{"$f":"NR_to_Cash!D$9","v":-283877},{"$f":"NR_to_Cash!E$9","v":-105647},{"$f":"NR_to_Cash!F$9","v":-78023},null,1039,-13297.016123255335,4396.563665663055,5225.839929659558,-7540.094913126135,null,-155327,-283877,-105647,-78023]
[1040,{"$error":"#NAME?"},{"$error":"#NAME?"},{"$error":"#NAME?"},{"$error":"#NAME?"},null,{"$f":"NR_to_Cash!C$9","v":-155327},{"$f":"NR_to_Cash!D$9","v":-283877},{"$f":"NR_to_Cash!E$9","v":-105647},{"$f":"NR_to_Cash!F$9","v":-78023},null,1040,-12840.714252184334,-26964.256543685537,9923.064360722019,-6428.7761815450458,null,-155327,-283877,-105647,-78023]
[1041,{"$error":"#NAME?"},{"$error":"#NAME?"},{"$error":"#NAME?"},{"$error":"#NAME?"},null,{"$f":"NR_to_Cash!C$9","v":-155327},{"$f":"NR_to_Cash!D$9","v":-283877},{"$f":"NR_to_Cash!E$9","v":-105647},{"$f":"NR_to_Cash!F$9","v":-78023},null,1041,-2626.7043927289296,2143.6394916448194,2427.2259377986661,-41491.882265026477,null,-155327,-283877,-105647,-78023]
[1042,{"$error":"#NAME?"},{"$error":"#NAME?"},{"$error":"#NAME?"},{"$error":"#NAME?"},null,{"$f":"NR_to_Cash!C$9","v":-155327},{"$f":"NR_to_Cash!D$9","v":-283877},{"$f":"NR_to_Cash!E$9","v":-105647},{"$f":"NR_to_Cash!F$9","v":-78023},null,1042,3288.1758401040934,-19703.594583424216,-11424.947476562553,-38872.382257548561,null,-155327,-283877,-105647,-78023]
[1043,{"$error":"#NAME?"},{"$error":"#NAME?"},{"$error":"#NAME?"},{"$error":"#NAME?"},null,{"$f":"NR_to_Cash!C$9","v":-155327},{"$f":"NR_to_Cash!D$9","v":-283877},{"$f":"NR_to_Cash!E$9","v":-105647},{"$f":"NR_to_Cash!F$9","v":-78023},null,1043,-11225.719231623483,-4614.3081591230384,-8356.1868278247894,-17832.871580785133,null,-155327,-283877,-105647,-78023]
[1044,{"$error":"#NAME?"},{"$error":"#NAME?"},{"$error":"#NAME?"},{"$error":"#NAME?"},null,{"$f":"NR_to_Cash!C$9","v":-155327},{"$f":"NR_to_Cash!D$9","v":-283877},{"$f":"NR_to_Cash!E$9","v":-105647},{"$f":"NR_to_Cash!F$9","v":-78023},null,1044,-12325.465549789727,-15407.806106620777,-15288.632774516154,-6274.0916189751279,null,-155327,-283877,-105647,-78023]
[1045,{"$error":"#NAME?"},{"$error":"#NAME?"},{"$error":"#NAME?"},{"$error":"#NAME?"},null,{"$f":"NR_to_Cash!C$9","v":-155327},{"$f":"NR_to_Cash!D$9","v":-283877},{"$f":"NR_to_Cash!E$9","v":-105647},{"$f":"NR_to_Cash!F$9","v":-78023},null,1045,-17885.06504238394,-35333.867863339627,-31232.114374934936,10307.245967954759,null,-155327,-283877,-105647,-78023]
[1046,{"$error":"#NAME?"},{"$error":"#NAME?"},{"$error":"#NAME?"},{"$error":"#NAME?"},null,{"$f":"NR_to_Cash!C$9","v":-155327},{"$f":"NR_to_Cash!D$9","v":-283877},{"$f":"NR_to_Cash!E$9","v":-105647},{"$f":"NR_to_Cash!F$9","v":-78023},null,1046,-9990.0009573225834,18642.054908180504,-29996.644597121714,12967.639453985303,null,-155327,-283877,-105647,-78023]
[1047,{"$error":"#NAME?"},{"$error":"#NAME?"},{"$error":"#NAME?"},{"$error":"#NAME?"},null,{"$f":"NR_to_Cash!C$9","v":-155327},{"$f":"NR_to_Cash!D$9","v":-283877},{"$f":"NR_to_Cash!E$9","v":-105647},{"$f":"NR_to_Cash!F$9","v":-78023},null,1047,-16237.229229204571,-18414.382529047645,-10609.392091347503,-35555.963708086994,null,-155327,-283877,-105647,-78023]
[1048,{"$error":"#NAME?"},{"$error":"#NAME?"},{"$error":"#NAME?"},{"$error":"#NAME?"},null,{"$f":"NR_to_Cash!C$9","v":-155327},{"$f":"NR_to_Cash!D$9","v":-283877},{"$f":"NR_to_Cash!E$9","v":-105647},{"$f":"NR_to_Cash!F$9","v":-78023},null,1048,-8236.8955450672402,-8372.2586035403456,-8730.950417015174,-1116.0952612271594,null,-155327,-283877,-105647,-78023]
[1049,{"$error":"#NAME?"},{"$error":"#NAME?"},{"$error":"#NAME?"},{"$error":"#NAME?"},null,{"$f":"NR_to_Cash!C$9","v":-155327},{"$f":"NR_to_Cash!D$9","v":-283877},{"$f":"NR_to_Cash!E$9","v":-105647},{"$f":"NR_to_Cash!F$9","v":-78023},null,1049,-11811.958694404228,-15722.646948626079,-36450.417061287975,-10277.313463389824,null,-155327,-283877,-105647,-78023]
[1050,{"$error":"#NAME?"},{"$error":"#NAME?"},{"$error":"#NAME?"},{"$error":"#NAME?"},null,{"$f":"NR_to_Cash!C$9","v":-155327},{"$f":"NR_to_Cash!D$9","v":-283877},{"$f":"NR_to_Cash!E$9","v":-105647},{"$f":"NR_to_Cash!F$9","v":-78023},null,1050,-23319.555345327397,17630.475906672917,5390.9562590536716,-7266.5904082061688,null,-155327,-283877,-105647,-78023]
[1051,{"$error":"#NAME?"},{"$error":"#NAME?"},{"$error":"#NAME?"},{"$error":"#NAME?"},null,{"$f":"NR_to_Cash!C$9","v":-155327},{"$f":"NR_to_Cash!D$9","v":-283877},{"$f":"NR_to_Cash!E$9","v":-105647},{"$f":"NR_to_Cash!F$9","v":-78023},null,1051,-30288.062013938692,-23120.799798549568,-14576.956835430075,-24842.392270693206,null,-155327,-283877,-105647,-78023]
[1052,{"$error":"#NAME?"},{"$error":"#NAME?"},{"$error":"#NAME?"},{"$error":"#NAME?"},null,{"$f":"NR_to_Cash!C$9","v":-155327},{"$f":"NR_to_Cash!D$9","v":-283877},{"$f":"NR_to_Cash!E$9","v":-105647},{"$f":"NR_to_Cash!F$9","v":-78023},null,1052,4183.2694467617457,1075.760835631399,-3646.4807887950947,6634.977380005741,null,-155327,-283877,-105647,-78023]
[1053,{"$error":"#NAME?"},{"$error":"#NAME?"},{"$error":"#NAME?"},{"$error":"#NAME?"},null,{"$f":"NR_to_Cash!C$9","v":-155327},{"$f":"NR_to_Cash!D$9","v":-283877},{"$f":"NR_to_Cash!E$9","v":-105647},{"$f":"NR_to_Cash!F$9","v":-78023},null,1053,-11050.48001841762,-28711.142570687527,5217.7210734500632,461.61166085860543,null,-155327,-283877,-105647,-78023]
[1054,{"$error":"#NAME?"},{"$error":"#NAME?"},{"$error":"#NAME?"},{"$error":"#NAME?"},null,{"$f":"NR_to_Cash!C$9","v":-155327},{"$f":"NR_to_Cash!D$9","v":-283877},{"$f":"NR_to_Cash!E$9","v":-105647},{"$f":"NR_to_Cash!F$9","v":-78023},null,1054,-20873.894184132259,2022.7634654342596,-26990.807241187365,9187.7322717296138,null,-155327,-283877,-105647,-78023]
[1055,{"$error":"#NAME?"},{"$error":"#NAME?"},{"$error":"#NAME?"},{"$error":"#NAME?"},null,{"$f":"NR_to_Cash!C$9","v":-155327},{"$f":"NR_to_Cash!D$9","v":-283877},{"$f":"NR_to_Cash!E$9","v":-105647},{"$f":"NR_to_Cash!F$9","v":-78023},null,1055,-6534.6870294528435,-20128.900525425939,163.67993430361241,-23807.965537731492,null,-155327,-283877,-105647,-78023]
[1056,{"$error":"#NAME?"},{"$error":"#NAME?"},{"$error":"#NAME?"},{"$error":"#NAME?"},null,{"$f":"NR_to_Cash!C$9","v":-155327},{"$f":"NR_to_Cash!D$9","v":-283877},{"$f":"NR_to_Cash!E$9","v":-105647},{"$f":"NR_to_Cash!F$9","v":-78023},null,1056,-24093.020434076192,-118.59246174248098,-28887.293464930779,-8422.0153557109006,null,-155327,-283877,-105647,-78023]
[1057,{"$error":"#NAME?"},{"$error":"#NAME?"},{"$error":"#NAME?"},{"$error":"#NAME?"},null,{"$f":"NR_to_Cash!C$9","v":-155327},{"$f":"NR_to_Cash!D$9","v":-283877},{"$f":"NR_to_Cash!E$9","v":-105647},{"$f":"NR_to_Cash!F$9","v":-78023},null,1057,-27389.286644536922,-37353.022332780922,-2457.6433737791504,-10998.727502196465,null,-155327,-283877,-105647,-78023]
[1058,{"$error":"#NAME?"},{"$error":"#NAME?"},{"$error":"#NAME?"},{"$error":"#NAME?"},null,{"$f":"NR_to_Cash!C$9","v":-155327},{"$f":"NR_to_Cash!D$9","v":-283877},{"$f":"NR_to_Cash!E$9","v":-105647},{"$f":"NR_to_Cash!F$9","v":-78023},null,1058,-6802.2578770508408,-16464.490294029671,-28278.764504558359,-28215.805815459637,null,-155327,-283877,-105647,-78023]
[1059,{"$error":"#NAME?"},{"$error":"#NAME?"},{"$error":"#NAME?"},{"$error":"#NAME?"},null,{"$f":"NR_to_Cash!C$9","v":-155327},{"$f":"NR_to_Cash!D$9","v":-283877},{"$f":"NR_to_Cash!E$9","v":-105647},{"$f":"NR_to_Cash!F$9","v":-78023},null,1059,-22041.168896452447,-27323.873464589917,-6269.7435606890213,-10071.942358983189,null,-155327,-283877,-105647,-78023]
[1060,{"$error":"#NAME?"},{"$error":"#NAME?"},{"$error":"#NAME?"},{"$error":"#NAME?"},null,{"$f":"NR_to_Cash!C$9","v":-155327},{"$f":"NR_to_Cash!D$9","v":-283877},{"$f":"NR_to_Cash!E$9","v":-105647},{"$f":"NR_to_Cash!F$9","v":-78023},null,1060,-15582.236378231242,-14116.882447229134,-22758.766376704672,14656.92970013052,null,-155327,-283877,-105647,-78023]
[1061,{"$error":"#NAME?"},{"$error":"#NAME?"},{"$error":"#NAME?"},{"$error":"#NAME?"},null,{"$f":"NR_to_Cash!C$9","v":-155327},{"$f":"NR_to_Cash!D$9","v":-283877},{"$f":"NR_to_Cash!E$9","v":-105647},{"$f":"NR_to_Cash!F$9","v":-78023},null,1061,5533.7396572836933,1916.2277200631124,-31358.202849845133,-25551.82384959796,null,-155327,-283877,-105647,-78023]
[1062,{"$error":"#NAME?"},{"$error":"#NAME?"},{"$error":"#NAME?"},{"$error":"#NAME?"},null,{"$f":"NR_to_Cash!C$9","v":-155327},{"$f":"NR_to_Cash!D$9","v":-283877},{"$f":"NR_to_Cash!E$9","v":-105647},{"$f":"NR_to_Cash!F$9","v":-78023},null,1062,-8661.4824433272734,13651.683721728874,-18793.841899999414,-15900.51486056252,null,-155327,-283877,-105647,-78023]
[1063,{"$error":"#NAME?"},{"$error":"#NAME?"},{"$error":"#NAME?"},{"$error":"#NAME?"},null,{"$f":"NR_to_Cash!C$9","v":-155327},{"$f":"NR_to_Cash!D$9","v":-283877},{"$f":"NR_to_Cash!E$9","v":-105647},{"$f":"NR_to_Cash!F$9","v":-78023},null,1063,-13042.418642577819,-14563.721940534833,-14464.827710709958,-31710.988072705459,null,-155327,-283877,-105647,-78023]
[1064,{"$error":"#NAME?"},{"$error":"#NAME?"},{"$error":"#NAME?"},{"$error":"#NAME?"},null,{"$f":"NR_to_Cash!C$9","v":-155327},{"$f":"NR_to_Cash!D$9","v":-283877},{"$f":"NR_to_Cash!E$9","v":-105647},{"$f":"NR_to_Cash!F$9","v":-78023},null,1064,-361.32165519683656,-25996.86374063207,-20343.133328356016,10454.298331447244,null,-155327,-283877,-105647,-78023]
[1065,{"$error":"#NAME?"},{"$error":"#NAME?"},{"$error":"#NAME?"},{"$error":"#NAME?"},null,{"$f":"NR_to_Cash!C$9","v":-155327},{"$f":"NR_to_Cash!D$9","v":-283877},{"$f":"NR_to_Cash!E$9","v":-105647},{"$f":"NR_to_Cash!F$9","v":-78023},null,1065,-31764.093867355772,-12116.425338263252,-9121.6734308781361,-20307.68458667515,null,-155327,-283877,-105647,-78023]
[1066,{"$error":"#NAME?"},{"$error":"#NAME?"},{"$error":"#NAME?"},{"$error":"#NAME?"},null,{"$f":"NR_to_Cash!C$9","v":-155327},{"$f":"NR_to_Cash!D$9","v":-283877},{"$f":"NR_to_Cash!E$9","v":-105647},{"$f":"NR_to_Cash!F$9","v":-78023},null,1066,-23722.005178356107,-1469.4304876004023,-21283.572482558076,-18585.30035993228,null,-155327,-283877,-105647,-78023]
[1067,{"$error":"#NAME?"},{"$error":"#NAME?"},{"$error":"#NAME?"},{"$error":"#NAME?"},null,{"$f":"NR_to_Cash!C$9","v":-155327},{"$f":"NR_to_Cash!D$9","v":-283877},{"$f":"NR_to_Cash!E$9","v":-105647},{"$f":"NR_to_Cash!F$9","v":-78023},null,1067,-12143.062780507596,6342.2142257037558,-10476.967603963612,-9227.6150005650015,null,-155327,-283877,-105647,-78023]
[1068,{"$error":"#NAME?"},{"$error":"#NAME?"},{"$error":"#NAME?"},{"$error":"#NAME?"},null,{"$f":"NR_to_Cash!C$9","v":-155327},{"$f":"NR_to_Cash!D$9","v":-283877},{"$f":"NR_to_Cash!E$9","v":-105647},{"$f":"NR_to_Cash!F$9","v":-78023},null,1068,-4478.0971425089729,-19633.410198255009,-908.46854938473268,-1238.0049584926423,null,-155327,-283877,-105647,-78023]
[1069,{"$error":"#NAME?"},{"$error":"#NAME?"},{"$error":"#NAME?"},{"$error":"#NAME?"},null,{"$f":"NR_to_Cash!C$9","v":-155327},{"$f":"NR_to_Cash!D$9","v":-283877},{"$f":"NR_to_Cash!E$9","v":-105647},{"$f":"NR_to_Cash!F$9","v":-78023},null,1069,4435.346339110537,-17816.931619453633,15740.83236084612,-36364.837638224482,null,-155327,-283877,-105647,-78023]
[1070,{"$error":"#NAME?"},{"$error":"#NAME?"},{"$error":"#NAME?"},{"$error":"#NAME?"},null,{"$f":"NR_to_Cash!C$9","v":-155327},{"$f":"NR_to_Cash!D$9","v":-283877},{"$f":"NR_to_Cash!E$9","v":-105647},{"$f":"NR_to_Cash!F$9","v":-78023},null,1070,-13823.108992124427,-27427.327042181387,-9871.7717166397633,3754.7177207716859,null,-155327,-283877,-105647,-78023]
[1071,{"$error":"#NAME?"},{"$error":"#NAME?"},{"$error":"#NAME?"},{"$error":"#NAME?"},null,{"$f":"NR_to_Cash!C$9","v":-155327},{"$f":"NR_to_Cash!D$9","v":-283877},{"$f":"NR_to_Cash!E$9","v":-105647},{"$f":"NR_to_Cash!F$9","v":-78023},null,1071,-17193.012543623845,-17088.282999870891,-10087.379431288327,8620.835759766047,null,-155327,-283877,-105647,-78023]
[1072,{"$error":"#NAME?"},{"$error":"#NAME?"},{"$error":"#NAME?"},{"$error":"#NAME?"},null,{"$f":"NR_to_Cash!C$9","v":-155327},{"$f":"NR_to_Cash!D$9","v":-283877},{"$f":"NR_to_Cash!E$9","v":-105647},{"$f":"NR_to_Cash!F$9","v":-78023},null,1072,-16846.428945168369,-10434.090949895404,-14811.749022087602,-12254.07316399207,null,-155327,-283877,-105647,-78023]
[1073,{"$error":"#NAME?"},{"$error":"#NAME?"},{"$error":"#NAME?"},{"$error":"#NAME?"},null,{"$f":"NR_to_Cash!C$9","v":-155327},{"$f":"NR_to_Cash!D$9","v":-283877},{"$f":"NR_to_Cash!E$9","v":-105647},{"$f":"NR_to_Cash!F$9","v":-78023},null,1073,-21643.165896436476,11443.500168583529,-17556.150076485461,-13513.28600990554,null,-155327,-283877,-105647,-78023]
[1074,{"$error":"#NAME?"},{"$error":"#NAME?"},{"$error":"#NAME?"},{"$error":"#NAME?"},null,{"$f":"NR_to_Cash!C$9","v":-155327},{"$f":"NR_to_Cash!D$9","v":-283877},{"$f":"NR_to_Cash!E$9","v":-105647},{"$f":"NR_to_Cash!F$9","v":-78023},null,1074,-12076.226861228961,3668.1357464840826,-35375.111223613283,7100.212279105489,null,-155327,-283877,-105647,-78023]
[1075,{"$error":"#NAME?"},{"$error":"#NAME?"},{"$error":"#NAME?"},{"$error":"#NAME?"},null,{"$f":"NR_to_Cash!C$9","v":-155327},{"$f":"NR_to_Cash!D$9","v":-283877},{"$f":"NR_to_Cash!E$9","v":-105647},{"$f":"NR_to_Cash!F$9","v":-78023},null,1075,-20141.359597679984,-11734.666294029419,12289.357917310917,-4005.1127722338047,null,-155327,-283877,-105647,-78023]
[1076,{"$error":"#NAME?"},{"$error":"#NAME?"},{"$error":"#NAME?"},{"$error":"#NAME?"},null,{"$f":"NR_to_Cash!C$9","v":-155327},{"$f":"NR_to_Cash!D$9","v":-283877},{"$f":"NR_to_Cash!E$9","v":-105647},{"$f":"NR_to_Cash!F$9","v":-78023},null,1076,-4096.1833267440616,-14624.675783055169,-16370.502461148168,-7152.7076629477242,null,-155327,-283877,-105647,-78023]
[1077,{"$error":"#NAME?"},{"$error":"#NAME?"},{"$error":"#NAME?"},{"$error":"#NAME?"},null,{"$f":"NR_to_Cash!C$9","v":-155327},{"$f":"NR_to_Cash!D$9","v":-283877},{"$f":"NR_to_Cash!E$9","v":-105647},{"$f":"NR_to_Cash!F$9","v":-78023},null,1077,-21655.58686846515,11429.059999486448,-8209.8114803831068,11350.239277116343,null,-155327,-283877,-105647,-78023]
[1078,{"$error":"#NAME?"},{"$error":"#NAME?"},{"$error":"#NAME?"},{"$error":"#NAME?"},null,{"$f":"NR_to_Cash!C$9","v":-155327},{"$f":"NR_to_Cash!D$9","v":-283877},{"$f":"NR_to_Cash!E$9","v":-105647},{"$f":"NR_to_Cash!F$9","v":-78023},null,1078,-11856.290279782384,-9355.9234620173629,-29741.763983018594,-18115.009780620094,null,-155327,-283877,-105647,-78023]
[1079,{"$error":"#NAME?"},{"$error":"#NAME?"},{"$error":"#NAME?"},{"$error":"#NAME?"},null,{"$f":"NR_to_Cash!C$9","v":-155327},{"$f":"NR_to_Cash!D$9","v":-283877},{"$f":"NR_to_Cash!E$9","v":-105647},{"$f":"NR_to_Cash!F$9","v":-78023},null,1079,-15924.531220744895,6189.5670218494324,-837.15277834121036,-13878.248436607641,null,-155327,-283877,-105647,-78023]
[1080,{"$error":"#NAME?"},{"$error":"#NAME?"},{"$error":"#NAME?"},{"$error":"#NAME?"},null,{"$f":"NR_to_Cash!C$9","v":-155327},{"$f":"NR_to_Cash!D$9","v":-283877},{"$f":"NR_to_Cash!E$9","v":-105647},{"$f":"NR_to_Cash!F$9","v":-78023},null,1080,4302.669987853179,-12582.312888994162,5171.3202058066854,-9256.9336369744269,null,-155327,-283877,-105647,-78023]
[1081,{"$error":"#NAME?"},{"$error":"#NAME?"},{"$error":"#NAME?"},{"$error":"#NAME?"},null,{"$f":"NR_to_Cash!C$9","v":-155327},{"$f":"NR_to_Cash!D$9","v":-283877},{"$f":"NR_to_Cash!E$9","v":-105647},{"$f":"NR_to_Cash!F$9","v":-78023},null,1081,-12814.230855489775,11638.62419893068,-14301.04366772812,-21837.854824063583,null,-155327,-283877,-105647,-78023]
[1082,{"$error":"#NAME?"},{"$error":"#NAME?"},{"$error":"#NAME?"},{"$error":"#NAME?"},null,{"$f":"NR_to_Cash!C$9","v":-155327},{"$f":"NR_to_Cash!D$9","v":-283877},{"$f":"NR_to_Cash!E$9","v":-105647},{"$f":"NR_to_Cash!F$9","v":-78023},null,1082,-17439.976635735035,-9663.7718943153086,-20648.721382427262,-7623.0067174285259,null,-155327,-283877,-105647,-78023]
[1083,{"$error":"#NAME?"},{"$error":"#NAME?"},{"$error":"#NAME?"},{"$error":"#NAME?"},null,{"$f":"NR_to_Cash!C$9","v":-155327},{"$f":"NR_to_Cash!D$9","v":-283877},{"$f":"NR_to_Cash!E$9","v":-105647},{"$f":"NR_to_Cash!F$9","v":-78023},null,1083,-25783.357036754816,-7171.8574142615262,-14851.588000462247,6798.2114871028261,null,-155327,-283877,-105647,-78023]
[1084,{"$error":"#NAME?"},{"$error":"#NAME?"},{"$error":"#NAME?"},{"$error":"#NAME?"},null,{"$f":"NR_to_Cash!C$9","v":-155327},{"$f":"NR_to_Cash!D$9","v":-283877},{"$f":"NR_to_Cash!E$9","v":-105647},{"$f":"NR_to_Cash!F$9","v":-78023},null,1084,158.34687751722629,-17982.420092000597,2062.5143065073798,-23220.046983330714,null,-155327,-283877,-105647,-78023]
[1085,{"$error":"#NAME?"},{"$error":"#NAME?"},{"$error":"#NAME?"},{"$error":"#NAME?"},null,{"$f":"NR_to_Cash!C$9","v":-155327},{"$f":"NR_to_Cash!D$9","v":-283877},{"$f":"NR_to_Cash!E$9","v":-105647},{"$f":"NR_to_Cash!F$9","v":-78023},null,1085,-15605.815652044454,16190.025643788424,-40777.831419466063,16276.282184600499,null,-155327,-283877,-105647,-78023]
[1086,{"$error":"#NAME?"},{"$error":"#NAME?"},{"$error":"#NAME?"},{"$error":"#NAME?"},null,{"$f":"NR_to_Cash!C$9","v":-155327},{"$f":"NR_to_Cash!D$9","v":-283877},{"$f":"NR_to_Cash!E$9","v":-105647},{"$f":"NR_to_Cash!F$9","v":-78023},null,1086,-24976.936827694662,10968.480017497972,-12705.408534988168,-722.91936243227406,null,-155327,-283877,-105647,-78023]
[1087,{"$error":"#NAME?"},{"$error":"#NAME?"},{"$error":"#NAME?"},{"$error":"#NAME?"},null,{"$f":"NR_to_Cash!C$9","v":-155327},{"$f":"NR_to_Cash!D$9","v":-283877},{"$f":"NR_to_Cash!E$9","v":-105647},{"$f":"NR_to_Cash!F$9","v":-78023},null,1087,-18365.779196165393,-6286.8982063533513,-15194.137633767697,-19831.379527063793,null,-155327,-283877,-105647,-78023]
[1088,{"$error":"#NAME?"},{"$error":"#NAME?"},{"$error":"#NAME?"},{"$error":"#NAME?"},null,{"$f":"NR_to_Cash!C$9","v":-155327},{"$f":"NR_to_Cash!D$9","v":-283877},{"$f":"NR_to_Cash!E$9","v":-105647},{"$f":"NR_to_Cash!F$9","v":-78023},null,1088,-14500.456751331954,6212.275816568309,-12346.574493400847,-9263.1448613876273,null,-155327,-283877,-105647,-78023]
[1089,{"$error":"#NAME?"},{"$error":"#NAME?"},{"$error":"#NAME?"},{"$error":"#NAME?"},null,{"$f":"NR_to_Cash!C$9","v":-155327},{"$f":"NR_to_Cash!D$9","v":-283877},{"$f":"NR_to_Cash!E$9","v":-105647},{"$f":"NR_to_Cash!F$9","v":-78023},null,1089,-20064.271244352902,583.86794583572077,-13529.917828797201,3866.9199179027682,null,-155327,-283877,-105647,-78023]
[1090,{"$error":"#NAME?"},{"$error":"#NAME?"},{"$error":"#NAME?"},{"$error":"#NAME?"},null,{"$f":"NR_to_Cash!C$9","v":-155327},{"$f":"NR_to_Cash!D$9","v":-283877},{"$f":"NR_to_Cash!E$9","v":-105647},{"$f":"NR_to_Cash!F$9","v":-78023},null,1090,-23130.379075108278,4540.7099414674076,-14297.777870765729,3702.0056082558167,null,-155327,-283877,-105647,-78023]
[1091,{"$error":"#NAME?"},{"$error":"#NAME?"},{"$error":"#NAME?"},{"$error":"#NAME?"},null,{"$f":"NR_to_Cash!C$9","v":-155327},{"$f":"NR_to_Cash!D$9","v":-283877},{"$f":"NR_to_Cash!E$9","v":-105647},{"$f":"NR_to_Cash!F$9","v":-78023},null,1091,-9135.0281318417219,-8404.9789107373854,4184.2810622806455,2250.1636172439344,null,-155327,-283877,-105647,-78023]
[1092,{"$error":"#NAME?"},{"$error":"#NAME?"},{"$error":"#NAME?"},{"$error":"#NAME?"},null,{"$f":"NR_to_Cash!C$9","v":-155327},{"$f":"NR_to_Cash!D$9","v":-283877},{"$f":"NR_to_Cash!E$9","v":-105647},{"$f":"NR_to_Cash!F$9","v":-78023},null,1092,-14074.257356321865,-5553.7034266728688,-27749.853537056166,-12050.876070792776,null,-155327,-283877,-105647,-78023]
[1093,{"$error":"#NAME?"},{"$error":"#NAME?"},{"$error":"#NAME?"},{"$error":"#NAME?"},null,{"$f":"NR_to_Cash!C$9","v":-155327},{"$f":"NR_to_Cash!D$9","v":-283877},{"$f":"NR_to_Cash!E$9","v":-105647},{"$f":"NR_to_Cash!F$9","v":-78023},null,1093,-11423.627570109642,-9033.3028911521324,-4861.7652636971079,3950.8799201202032,null,-155327,-283877,-105647,-78023]
[1094,{"$error":"#NAME?"},{"$error":"#NAME?"},{"$error":"#NAME?"},{"$error":"#NAME?"},null,{"$f":"NR_to_Cash!C$9","v":-155327},{"$f":"NR_to_Cash!D$9","v":-283877},{"$f":"NR_to_Cash!E$9","v":-105647},{"$f":"NR_to_Cash!F$9","v":-78023},null,1094,-5271.0161229697915,-19344.87485870142,-6959.5852641887977,-6338.518804835483,null,-155327,-283877,-105647,-78023]
[1095,{"$error":"#NAME?"},{"$error":"#NAME?"},{"$error":"#NAME?"},{"$error":"#NAME?"},null,{"$f":"NR_to_Cash!C$9","v":-155327},{"$f":"NR_to_Cash!D$9","v":-283877},{"$f":"NR_to_Cash!E$9","v":-105647},{"$f":"NR_to_Cash!F$9","v":-78023},null,1095,-19429.483731340435,10765.770974539886,13904.357693337024,167.73773298555315,null,-155327,-283877,-105647,-78023]
[1096,{"$error":"#NAME?"},{"$error":"#NAME?"},{"$error":"#NAME?"},{"$error":"#NAME?"},null,{"$f":"NR_to_Cash!C$9","v":-155327},{"$f":"NR_to_Cash!D$9","v":-283877},{"$f":"NR_to_Cash!E$9","v":-105647},{"$f":"NR_to_Cash!F$9","v":-78023},null,1096,-33536.054857702962,-4919.6444837948538,-14150.319771867684,-27256.14865748139,null,-155327,-283877,-105647,-78023]
[1097,{"$error":"#NAME?"},{"$error":"#NAME?"},{"$error":"#NAME?"},{"$error":"#NAME?"},null,{"$f":"NR_to_Cash!C$9","v":-155327},{"$f":"NR_to_Cash!D$9","v":-283877},{"$f":"NR_to_Cash!E$9","v":-105647},{"$f":"NR_to_Cash!F$9","v":-78023},null,1097,-4454.5278305227403,-6898.8648155415503,-10740.373495573094,-16768.433136654763,null,-155327,-283877,-105647,-78023]
[1098,{"$error":"#NAME?"},{"$error":"#NAME?"},{"$error":"#NAME?"},{"$error":"#NAME?"},null,{"$f":"NR_to_Cash!C$9","v":-155327},{"$f":"NR_to_Cash!D$9","v":-283877},{"$f":"NR_to_Cash!E$9","v":-105647},{"$f":"NR_to_Cash!F$9","v":-78023},null,1098,-10840.712950779071,-12471.669429435724,-22335.195512668153,-30272.207210124383,null,-155327,-283877,-105647,-78023]
[1099,{"$error":"#NAME?"},{"$error":"#NAME?"},{"$error":"#NAME?"},{"$error":"#NAME?"},null,{"$f":"NR_to_Cash!C$9","v":-155327},{"$f":"NR_to_Cash!D$9","v":-283877},{"$f":"NR_to_Cash!E$9","v":-105647},{"$f":"NR_to_Cash!F$9","v":-78023},null,1099,-8382.8100302904313,-20047.118236551676,-3586.1056678829873,4657.5567841369193,null,-155327,-283877,-105647,-78023]
[1100,{"$error":"#NAME?"},{"$error":"#NAME?"},{"$error":"#NAME?"},{"$error":"#NAME?"},null,{"$f":"NR_to_Cash!C$9","v":-155327},{"$f":"NR_to_Cash!D$9","v":-283877},{"$f":"NR_to_Cash!E$9","v":-105647},{"$f":"NR_to_Cash!F$9","v":-78023},null,1100,-15884.334337387892,-18915.639208150107,-12873.61734007296,1198.3812643771225,null,-155327,-283877,-105647,-78023]
[1101,{"$error":"#NAME?"},{"$error":"#NAME?"},{"$error":"#NAME?"},{"$error":"#NAME?"},null,{"$f":"NR_to_Cash!C$9","v":-155327},{"$f":"NR_to_Cash!D$9","v":-283877},{"$f":"NR_to_Cash!E$9","v":-105647},{"$f":"NR_to_Cash!F$9","v":-78023},null,1101,-10089.854995285466,17164.427814575283,-13193.491949557529,91.071228092124372,null,-155327,-283877,-105647,-78023]
[1102,{"$error":"#NAME?"},{"$error":"#NAME?"},{"$error":"#NAME?"},{"$error":"#NAME?"},null,{"$f":"NR_to_Cash!C$9","v":-155327},{"$f":"NR_to_Cash!D$9","v":-283877},{"$f":"NR_to_Cash!E$9","v":-105647},{"$f":"NR_to_Cash!F$9","v":-78023},null,1102,-12760.967035982707,-12990.725892042383,-8906.6797699578219,-8256.610764427116,null,-155327,-283877,-105647,-78023]
[1103,{"$error":"#NAME?"},{"$error":"#NAME?"},{"$error":"#NAME?"},{"$error":"#NAME?"},null,{"$f":"NR_to_Cash!C$9","v":-155327},{"$f":"NR_to_Cash!D$9","v":-283877},{"$f":"NR_to_Cash!E$9","v":-105647},{"$f":"NR_to_Cash!F$9","v":-78023},null,1103,-11285.455573192672,-25916.601025758446,-1265.517614970579,-19782.097386165671,null,-155327,-283877,-105647,-78023]
[1104,{"$error":"#NAME?"},{"$error":"#NAME?"},{"$error":"#NAME?"},{"$error":"#NAME?"},null,{"$f":"NR_to_Cash!C$9","v":-155327},{"$f":"NR_to_Cash!D$9","v":-283877},{"$f":"NR_to_Cash!E$9","v":-105647},{"$f":"NR_to_Cash!F$9","v":-78023},null,1104,-19750.019685988409,-30897.083027206376,-8361.5148976289656,-27390.503062935732,null,-155327,-283877,-105647,-78023]
[1105,{"$error":"#NAME?"},{"$error":"#NAME?"},{"$error":"#NAME?"},{"$error":"#NAME?"},null,{"$f":"NR_to_Cash!C$9","v":-155327},{"$f":"NR_to_Cash!D$9","v":-283877},{"$f":"NR_to_Cash!E$9","v":-105647},{"$f":"NR_to_Cash!F$9","v":-78023},null,1105,-15379.139080294863,-11806.922014266125,-16764.777498653326,-24422.524340131975,null,-155327,-283877,-105647,-78023]
[1106,{"$error":"#NAME?"},{"$error":"#NAME?"},{"$error":"#NAME?"},{"$error":"#NAME?"},null,{"$f":"NR_to_Cash!C$9","v":-155327},{"$f":"NR_to_Cash!D$9","v":-283877},{"$f":"NR_to_Cash!E$9","v":-105647},{"$f":"NR_to_Cash!F$9","v":-78023},null,1106,2079.1837015075007,2660.2458113288217,-3572.603243984363,1787.7928993007326,null,-155327,-283877,-105647,-78023]
[1107,{"$error":"#NAME?"},{"$error":"#NAME?"},{"$error":"#NAME?"},{"$error":"#NAME?"},null,{"$f":"NR_to_Cash!C$9","v":-155327},{"$f":"NR_to_Cash!D$9","v":-283877},{"$f":"NR_to_Cash!E$9","v":-105647},{"$f":"NR_to_Cash!F$9","v":-78023},null,1107,-5666.6379897630222,6467.2427326185098,-6924.7425149063256,1450.9366273511844,null,-155327,-283877,-105647,-78023]
[1108,{"$error":"#NAME?"},{"$error":"#NAME?"},{"$error":"#NAME?"},{"$error":"#NAME?"},null,{"$f":"NR_to_Cash!C$9","v":-155327},{"$f":"NR_to_Cash!D$9","v":-283877},{"$f":"NR_to_Cash!E$9","v":-105647},{"$f":"NR_to_Cash!F$9","v":-78023},null,1108,-7275.9797674232905,-27873.437871663806,-6605.1832281418101,-5267.3539728274591,null,-155327,-283877,-105647,-78023]
[1109,{"$error":"#NAME?"},{"$error":"#NAME?"},{"$error":"#NAME?"},{"$error":"#NAME?"},null,{"$f":"NR_to_Cash!C$9","v":-155327},{"$f":"NR_to_Cash!D$9","v":-283877},{"$f":"NR_to_Cash!E$9","v":-105647},{"$f":"NR_to_Cash!F$9","v":-78023},null,1109,908.87473722453205,-6641.4746432476295,-24786.92049783429,5286.0375230428508,null,-155327,-283877,-105647,-78023]
[1110,{"$error":"#NAME?"},{"$error":"#NAME?"},{"$error":"#NAME?"},{"$error":"#NAME?"},null,{"$f":"NR_to_Cash!C$9","v":-155327},{"$f":"NR_to_Cash!D$9","v":-283877},{"$f":"NR_to_Cash!E$9","v":-105647},{"$f":"NR_to_Cash!F$9","v":-78023},null,1110,-9197.7566902179824,-7650.3407106992236,-5583.276785293926,-34624.560493783676,null,-155327,-283877,-105647,-78023]
[1111,{"$error":"#NAME?"},{"$error":"#NAME?"},{"$error":"#NAME?"},{"$error":"#NAME?"},null,{"$f":"NR_to_Cash!C$9","v":-155327},{"$f":"NR_to_Cash!D$9","v":-283877},{"$f":"NR_to_Cash!E$9","v":-105647},{"$f":"NR_to_Cash!F$9","v":-78023},null,1111,3550.63699782291,-12681.786567547082,19999.72750054584,-433.08796198663453,null,-155327,-283877,-105647,-78023]
[1112,{"$error":"#NAME?"},{"$error":"#NAME?"},{"$error":"#NAME?"},{"$error":"#NAME?"},null,{"$f":"NR_to_Cash!C$9","v":-155327},{"$f":"NR_to_Cash!D$9","v":-283877},{"$f":"NR_to_Cash!E$9","v":-105647},{"$f":"NR_to_Cash!F$9","v":-78023},null,1112,2815.7561598946777,-32532.685653099245,-14408.525952955888,-31989.75090914921,null,-155327,-283877,-105647,-78023]
[1113,{"$error":"#NAME?"},{"$error":"#NAME?"},{"$error":"#NAME?"},{"$error":"#NAME?"},null,{"$f":"NR_to_Cash!C$9","v":-155327},{"$f":"NR_to_Cash!D$9","v":-283877},{"$f":"NR_to_Cash!E$9","v":-105647},{"$f":"NR_to_Cash!F$9","v":-78023},null,1113,-21013.372606635006,-6270.9639995485732,-20145.615335424012,-39701.340510268165,null,-155327,-283877,-105647,-78023]
[1114,{"$error":"#NAME?"},{"$error":"#NAME?"},{"$error":"#NAME?"},{"$error":"#NAME?"},null,{"$f":"NR_to_Cash!C$9","v":-155327},{"$f":"NR_to_Cash!D$9","v":-283877},{"$f":"NR_to_Cash!E$9","v":-105647},{"$f":"NR_to_Cash!F$9","v":-78023},null,1114,-14195.106545110932,-16980.514703833738,-19079.027189551958,-18052.497253110512,null,-155327,-283877,-105647,-78023]
[1115,{"$error":"#NAME?"},{"$error":"#NAME?"},{"$error":"#NAME?"},{"$error":"#NAME?"},null,{"$f":"NR_to_Cash!C$9","v":-155327},{"$f":"NR_to_Cash!D$9","v":-283877},{"$f":"NR_to_Cash!E$9","v":-105647},{"$f":"NR_to_Cash!F$9","v":-78023},null,1115,-22677.775853157375,-14817.748820954961,-24077.187204941962,6840.9793298625718,null,-155327,-283877,-105647,-78023]
[1116,{"$error":"#NAME?"},{"$error":"#NAME?"},{"$error":"#NAME?"},{"$error":"#NAME?"},null,{"$f":"NR_to_Cash!C$9","v":-155327},{"$f":"NR_to_Cash!D$9","v":-283877},{"$f":"NR_to_Cash!E$9","v":-105647},{"$f":"NR_to_Cash!F$9","v":-78023},null,1116,-21145.589009981639,-19636.146438953336,7024.0068191424016,-5787.2510704733495,null,-155327,-283877,-105647,-78023]
[1117,{"$error":"#NAME?"},{"$error":"#NAME?"},{"$error":"#NAME?"},{"$error":"#NAME?"},null,{"$f":"NR_to_Cash!C$9","v":-155327},{"$f":"NR_to_Cash!D$9","v":-283877},{"$f":"NR_to_Cash!E$9","v":-105647},{"$f":"NR_to_Cash!F$9","v":-78023},null,1117,-31446.672510075263,-21147.019118547021,-20394.086200427424,-1091.9745943209552,null,-155327,-283877,-105647,-78023]
[1118,{"$error":"#NAME?"},{"$error":"#NAME?"},{"$error":"#NAME?"},{"$error":"#NAME?"},null,{"$f":"NR_to_Cash!C$9","v":-155327},{"$f":"NR_to_Cash!D$9","v":-283877},{"$f":"NR_to_Cash!E$9","v":-105647},{"$f":"NR_to_Cash!F$9","v":-78023},null,1118,-11682.340794605287,-14253.68570793529,12014.898756454044,-3476.7105426545331,null,-155327,-283877,-105647,-78023]
[1119,{"$error":"#NAME?"},{"$error":"#NAME?"},{"$error":"#NAME?"},{"$error":"#NAME?"},null,{"$f":"NR_to_Cash!C$9","v":-155327},{"$f":"NR_to_Cash!D$9","v":-283877},{"$f":"NR_to_Cash!E$9","v":-105647},{"$f":"NR_to_Cash!F$9","v":-78023},null,1119,-32300.724148695426,-28221.75196055842,-373.63452830026228,-15688.863268653648,null,-155327,-283877,-105647,-78023]
[1120,{"$error":"#NAME?"},{"$error":"#NAME?"},{"$error":"#NAME?"},{"$error":"#NAME?"},null,{"$f":"NR_to_Cash!C$9","v":-155327},{"$f":"NR_to_Cash!D$9","v":-283877},{"$f":"NR_to_Cash!E$9","v":-105647},{"$f":"NR_to_Cash!F$9","v":-78023},null,1120,-3342.3625578420269,-20493.458056557702,3771.3986331295396,-22817.632661384112,null,-155327,-283877,-105647,-78023]
[1121,{"$error":"#NAME?"},{"$error":"#NAME?"},{"$error":"#NAME?"},{"$error":"#NAME?"},null,{"$f":"NR_to_Cash!C$9","v":-155327},{"$f":"NR_to_Cash!D$9","v":-283877},{"$f":"NR_to_Cash!E$9","v":-105647},{"$f":"NR_to_Cash!F$9","v":-78023},null,1121,-4883.6611866093526,-9945.5284978797717,-14537.386779638091,-22497.735874300117,null,-155327,-283877,-105647,-78023]
[1122,{"$error":"#NAME?"},{"$error":"#NAME?"},{"$error":"#NAME?"},{"$error":"#NAME?"},null,{"$f":"NR_to_Cash!C$9","v":-155327},{"$f":"NR_to_Cash!D$9","v":-283877},{"$f":"NR_to_Cash!E$9","v":-105647},{"$f":"NR_to_Cash!F$9","v":-78023},null,1122,-4363.7855869394207,-21260.053947135155,-23983.355509153898,-8620.1185283129598,null,-155327,-283877,-105647,-78023]
[1123,{"$error":"#NAME?"},{"$error":"#NAME?"},{"$error":"#NAME?"},{"$error":"#NAME?"},null,{"$f":"NR_to_Cash!C$9","v":-155327},{"$f":"NR_to_Cash!D$9","v":-283877},{"$f":"NR_to_Cash!E$9","v":-105647},{"$f":"NR_to_Cash!F$9","v":-78023},null,1123,-23472.663534697946,-19011.098456587028,-20889.789556456417,-18552.162080904811,null,-155327,-283877,-105647,-78023]
[1124,{"$error":"#NAME?"},{"$error":"#NAME?"},{"$error":"#NAME?"},{"$error":"#NAME?"},null,{"$f":"NR_to_Cash!C$9","v":-155327},{"$f":"NR_to_Cash!D$9","v":-283877},{"$f":"NR_to_Cash!E$9","v":-105647},{"$f":"NR_to_Cash!F$9","v":-78023},null,1124,-8823.4473118307105,-27791.289179169649,-20229.464107050833,-14674.715831944928,null,-155327,-283877,-105647,-78023]
[1125,{"$error":"#NAME?"},{"$error":"#NAME?"},{"$error":"#NAME?"},{"$error":"#NAME?"},null,{"$f":"NR_to_Cash!C$9","v":-155327},{"$f":"NR_to_Cash!D$9","v":-283877},{"$f":"NR_to_Cash!E$9","v":-105647},{"$f":"NR_to_Cash!F$9","v":-78023},null,1125,-21953.414196971215,-12737.425994021833,1188.9404745688255,-2203.2762813648797,null,-155327,-283877,-105647,-78023]
[1126,{"$error":"#NAME?"},{"$error":"#NAME?"},{"$error":"#NAME?"},{"$error":"#NAME?"},null,{"$f":"NR_to_Cash!C$9","v":-155327},{"$f":"NR_to_Cash!D$9","v":-283877},{"$f":"NR_to_Cash!E$9","v":-105647},{"$f":"NR_to_Cash!F$9","v":-78023},null,1126,422.93603155441986,-11150.479079882891,-3066.9380281877329,9590.315760943362,null,-155327,-283877,-105647,-78023]
[1127,{"$error":"#NAME?"},{"$error":"#NAME?"},{"$error":"#NAME?"},{"$error":"#NAME?"},null,{"$f":"NR_to_Cash!C$9","v":-155327},{"$f":"NR_to_Cash!D$9","v":-283877},{"$f":"NR_to_Cash!E$9","v":-105647},{"$f":"NR_to_Cash!F$9","v":-78023},null,1127,-10616.398771573138,16163.689284745698,-16919.948482528205,-2751.4364622289149,null,-155327,-283877,-105647,-78023]
[1128,{"$error":"#NAME?"},{"$error":"#NAME?"},{"$error":"#NAME?"},{"$error":"#NAME?"},null,{"$f":"NR_to_Cash!C$9","v":-155327},{"$f":"NR_to_Cash!D$9","v":-283877},{"$f":"NR_to_Cash!E$9","v":-105647},{"$f":"NR_to_Cash!F$9","v":-78023},null,1128,-16836.223595398464,3114.3531336687452,-28622.043630741435,-38014.546365771595,null,-155327,-283877,-105647,-78023]
[1129,{"$error":"#NAME?"},{"$error":"#NAME?"},{"$error":"#NAME?"},{"$error":"#NAME?"},null,{"$f":"NR_to_Cash!C$9","v":-155327},{"$f":"NR_to_Cash!D$9","v":-283877},{"$f":"NR_to_Cash!E$9","v":-105647},{"$f":"NR_to_Cash!F$9","v":-78023},null,1129,-18646.365447089353,-37410.949071896452,-21343.687767212992,-12104.277472426784,null,-155327,-283877,-105647,-78023]
[1130,{"$error":"#NAME?"},{"$error":"#NAME?"},{"$error":"#NAME?"},{"$error":"#NAME?"},null,{"$f":"NR_to_Cash!C$9","v":-155327},{"$f":"NR_to_Cash!D$9","v":-283877},{"$f":"NR_to_Cash!E$9","v":-105647},{"$f":"NR_to_Cash!F$9","v":-78023},null,1130,-5385.5687139389383,-21227.008032314807,-21019.359696131713,-30448.895927511468,null,-155327,-283877,-105647,-78023]
[1131,{"$error":"#NAME?"},{"$error":"#NAME?"},{"$error":"#NAME?"},{"$error":"#NAME?"},null,{"$f":"NR_to_Cash!C$9","v":-155327},{"$f":"NR_to_Cash!D$9","v":-283877},{"$f":"NR_to_Cash!E$9","v":-105647},{"$f":"NR_to_Cash!F$9","v":-78023},null,1131,-28708.238716216089,1329.0563498287511,-34702.540936302641,-2478.1613258768634,null,-155327,-283877,-105647,-78023]
[1132,{"$error":"#NAME?"},{"$error":"#NAME?"},{"$error":"#NAME?"},{"$error":"#NAME?"},null,{"$f":"NR_to_Cash!C$9","v":-155327},{"$f":"NR_to_Cash!D$9","v":-283877},{"$f":"NR_to_Cash!E$9","v":-105647},{"$f":"NR_to_Cash!F$9","v":-78023},null,1132,-12501.026876171243,-13632.350589769138,-28530.290838967332,8815.9723248354603,null,-155327,-283877,-105647,-78023]
[1133,{"$error":"#NAME?"},{"$error":"#NAME?"},{"$error":"#NAME?"},{"$error":"#NAME?"},null,{"$f":"NR_to_Cash!C$9","v":-155327},{"$f":"NR_to_Cash!D$9","v":-283877},{"$f":"NR_to_Cash!E$9","v":-105647},{"$f":"NR_to_Cash!F$9","v":-78023},null,1133,-22675.023899589112,5953.8672487077247,9888.1493313418887,-10391.357270931076,null,-155327,-283877,-105647,-78023]
[1134,{"$error":"#NAME?"},{"$error":"#NAME?"},{"$error":"#NAME?"},{"$error":"#NAME?"},null,{"$f":"NR_to_Cash!C$9","v":-155327},{"$f":"NR_to_Cash!D$9","v":-283877},{"$f":"NR_to_Cash!E$9","v":-105647},{"$f":"NR_to_Cash!F$9","v":-78023},null,1134,-12676.102849042694,-9741.5786837017149,-10115.352830100523,-34861.277918581785,null,-155327,-283877,-105647,-78023]
[1135,{"$error":"#NAME?"},{"$error":"#NAME?"},{"$error":"#NAME?"},{"$error":"#NAME?"},null,{"$f":"NR_to_Cash!C$9","v":-155327},{"$f":"NR_to_Cash!D$9","v":-283877},{"$f":"NR_to_Cash!E$9","v":-105647},{"$f":"NR_to_Cash!F$9","v":-78023},null,1135,-12353.943640637017,-3867.8267915122051,10706.613397737132,-31697.370003260563,null,-155327,-283877,-105647,-78023]
[1136,{"$error":"#NAME?"},{"$error":"#NAME?"},{"$error":"#NAME?"},{"$error":"#NAME?"},null,{"$f":"NR_to_Cash!C$9","v":-155327},{"$f":"NR_to_Cash!D$9","v":-283877},{"$f":"NR_to_Cash!E$9","v":-105647},{"$f":"NR_to_Cash!F$9","v":-78023},null,1136,-13551.033157989161,-37583.641198691737,-5249.4702680235278,-6277.6488430375621,null,-155327,-283877,-105647,-78023]
[1137,{"$error":"#NAME?"},{"$error":"#NAME?"},{"$error":"#NAME?"},{"$error":"#NAME?"},null,{"$f":"NR_to_Cash!C$9","v":-155327},{"$f":"NR_to_Cash!D$9","v":-283877},{"$f":"NR_to_Cash!E$9","v":-105647},{"$f":"NR_to_Cash!F$9","v":-78023},null,1137,-17200.144919015504,-8092.7268975944189,-17356.990839566108,-21644.070321234904,null,-155327,-283877,-105647,-78023]
[1138,{"$error":"#NAME?"},{"$error":"#NAME?"},{"$error":"#NAME?"},{"$error":"#NAME?"},null,{"$f":"NR_to_Cash!C$9","v":-155327},{"$f":"NR_to_Cash!D$9","v":-283877},{"$f":"NR_to_Cash!E$9","v":-105647},{"$f":"NR_to_Cash!F$9","v":-78023},null,1138,-4682.9695117177889,-17736.079565346216,-20708.654878975296,4222.0156100056383,null,-155327,-283877,-105647,-78023]
[1139,{"$error":"#NAME?"},{"$error":"#NAME?"},{"$error":"#NAME?"},{"$error":"#NAME?"},null,{"$f":"NR_to_Cash!C$9","v":-155327},{"$f":"NR_to_Cash!D$9","v":-283877},{"$f":"NR_to_Cash!E$9","v":-105647},{"$f":"NR_to_Cash!F$9","v":-78023},null,1139,-20023.967614564004,-23732.287422486563,-9840.2377878169882,-1171.2107323102136,null,-155327,-283877,-105647,-78023]
[1140,{"$error":"#NAME?"},{"$error":"#NAME?"},{"$error":"#NAME?"},{"$error":"#NAME?"},null,{"$f":"NR_to_Cash!C$9","v":-155327},{"$f":"NR_to_Cash!D$9","v":-283877},{"$f":"NR_to_Cash!E$9","v":-105647},{"$f":"NR_to_Cash!F$9","v":-78023},null,1140,-19546.372280604122,-9181.2284422472312,8096.0467648508147,-11172.626427258863,null,-155327,-283877,-105647,-78023]
[1141,{"$error":"#NAME?"},{"$error":"#NAME?"},{"$error":"#NAME?"},{"$error":"#NAME?"},null,{"$f":"NR_to_Cash!C$9","v":-155327},{"$f":"NR_to_Cash!D$9","v":-283877},{"$f":"NR_to_Cash!E$9","v":-105647},{"$f":"NR_to_Cash!F$9","v":-78023},null,1141,-8812.4890750889717,-5689.6454081556967,-19020.364997392368,-6359.3803479868948,null,-155327,-283877,-105647,-78023]
[1142,{"$error":"#NAME?"},{"$error":"#NAME?"},{"$error":"#NAME?"},{"$error":"#NAME?"},null,{"$f":"NR_to_Cash!C$9","v":-155327},{"$f":"NR_to_Cash!D$9","v":-283877},{"$f":"NR_to_Cash!E$9","v":-105647},{"$f":"NR_to_Cash!F$9","v":-78023},null,1142,-32054.367221875964,-21561.251953403927,245.83173849225028,7201.1105317092652,null,-155327,-283877,-105647,-78023]
[1143,{"$error":"#NAME?"},{"$error":"#NAME?"},{"$error":"#NAME?"},{"$error":"#NAME?"},null,{"$f":"NR_to_Cash!C$9","v":-155327},{"$f":"NR_to_Cash!D$9","v":-283877},{"$f":"NR_to_Cash!E$9","v":-105647},{"$f":"NR_to_Cash!F$9","v":-78023},null,1143,-31280.418465327239,-22312.052638057638,-1893.5165572184742,-21222.474533803696,null,-155327,-283877,-105647,-78023]
[1144,{"$error":"#NAME?"},{"$error":"#NAME?"},{"$error":"#NAME?"},{"$error":"#NAME?"},null,{"$f":"NR_to_Cash!C$9","v":-155327},{"$f":"NR_to_Cash!D$9","v":-283877},{"$f":"NR_to_Cash!E$9","v":-105647},{"$f":"NR_to_Cash!F$9","v":-78023},null,1144,-15437.15745347747,945.90082378066325,-33046.643796368044,-8612.2093235059892,null,-155327,-283877,-105647,-78023]
[1145,{"$error":"#NAME?"},{"$error":"#NAME?"},{"$error":"#NAME?"},{"$error":"#NAME?"},null,{"$f":"NR_to_Cash!C$9","v":-155327},{"$f":"NR_to_Cash!D$9","v":-283877},{"$f":"NR_to_Cash!E$9","v":-105647},{"$f":"NR_to_Cash!F$9","v":-78023},null,1145,-19364.423711022388,-14859.706940875236,-12209.481782683382,-9324.358866175291,null,-155327,-283877,-105647,-78023]
[1146,{"$error":"#NAME?"},{"$error":"#NAME?"},{"$error":"#NAME?"},{"$error":"#NAME?"},null,{"$f":"NR_to_Cash!C$9","v":-155327},{"$f":"NR_to_Cash!D$9","v":-283877},{"$f":"NR_to_Cash!E$9","v":-105647},{"$f":"NR_to_Cash!F$9","v":-78023},null,1146,-20900.12859195282,-54231.043761597146,-13608.091665036702,-13126.906575247196,null,-155327,-283877,-105647,-78023]
[1147,{"$error":"#NAME?"},{"$error":"#NAME?"},{"$error":"#NAME?"},{"$error":"#NAME?"},null,{"$f":"NR_to_Cash!C$9","v":-155327},{"$f":"NR_to_Cash!D$9","v":-283877},{"$f":"NR_to_Cash!E$9","v":-105647},{"$f":"NR_to_Cash!F$9","v":-78023},null,1147,10095.819539178034,-11392.973493744305,-10529.002509223905,-8917.411054577231,null,-155327,-283877,-105647,-78023]
[1148,{"$error":"#NAME?"},{"$error":"#NAME?"},{"$error":"#NAME?"},{"$error":"#NAME?"},null,{"$f":"NR_to_Cash!C$9","v":-155327},{"$f":"NR_to_Cash!D$9","v":-283877},{"$f":"NR_to_Cash!E$9","v":-105647},{"$f":"NR_to_Cash!F$9","v":-78023},null,1148,-26505.137172036077,2788.316519075333,7380.7029052542675,-17127.03810254941,null,-155327,-283877,-105647,-78023]
[1149,{"$error":"#NAME?"},{"$error":"#NAME?"},{"$error":"#NAME?"},{"$error":"#NAME?"},null,{"$f":"NR_to_Cash!C$9","v":-155327},{"$f":"NR_to_Cash!D$9","v":-283877},{"$f":"NR_to_Cash!E$9","v":-105647},{"$f":"NR_to_Cash!F$9","v":-78023},null,1149,-10728.809010357403,-10421.260133995431,-25641.434224445456,-3794.7813308214172,null,-155327,-283877,-105647,-78023]
[1150,{"$error":"#NAME?"},{"$error":"#NAME?"},{"$error":"#NAME?"},{"$error":"#NAME?"},null,{"$f":"NR_to_Cash!C$9","v":-155327},{"$f":"NR_to_Cash!D$9","v":-283877},{"$f":"NR_to_Cash!E$9","v":-105647},{"$f":"NR_to_Cash!F$9","v":-78023},null,1150,-34502.915752907989,-8030.1678589800304,-3279.5470902112556,1651.280321227684,null,-155327,-283877,-105647,-78023]
[1151,{"$error":"#NAME?"},{"$error":"#NAME?"},{"$error":"#NAME?"},{"$error":"#NAME?"},null,{"$f":"NR_to_Cash!C$9","v":-155327},{"$f":"NR_to_Cash!D$9","v":-283877},{"$f":"NR_to_Cash!E$9","v":-105647},{"$f":"NR_to_Cash!F$9","v":-78023},null,1151,-19269.368010851205,2855.2710892201158,5146.542814954586,-746.19276579364873,null,-155327,-283877,-105647,-78023]
[1152,{"$error":"#NAME?"},{"$error":"#NAME?"},{"$error":"#NAME?"},{"$error":"#NAME?"},null,{"$f":"NR_to_Cash!C$9","v":-155327},{"$f":"NR_to_Cash!D$9","v":-283877},{"$f":"NR_to_Cash!E$9","v":-105647},{"$f":"NR_to_Cash!F$9","v":-78023},null,1152,-10896.657824012385,-18427.444860107924,-26216.858764872384,-25860.842825985696,null,-155327,-283877,-105647,-78023]
[1153,{"$error":"#NAME?"},{"$error":"#NAME?"},{"$error":"#NAME?"},{"$error":"#NAME?"},null,{"$f":"NR_to_Cash!C$9","v":-155327},{"$f":"NR_to_Cash!D$9","v":-283877},{"$f":"NR_to_Cash!E$9","v":-105647},{"$f":"NR_to_Cash!F$9","v":-78023},null,1153,-17696.936221974425,-18500.511380702545,-6917.8943958860664,-19660.286489261518,null,-155327,-283877,-105647,-78023]
[1154,{"$error":"#NAME?"},{"$error":"#NAME?"},{"$error":"#NAME?"},{"$error":"#NAME?"},null,{"$f":"NR_to_Cash!C$9","v":-155327},{"$f":"NR_to_Cash!D$9","v":-283877},{"$f":"NR_to_Cash!E$9","v":-105647},{"$f":"NR_to_Cash!F$9","v":-78023},null,1154,-12133.384218608193,9387.2790794324483,8645.8233298147679,8437.5883851776816,null,-155327,-283877,-105647,-78023]
[1155,{"$error":"#NAME?"},{"$error":"#NAME?"},{"$error":"#NAME?"},{"$error":"#NAME?"},null,{"$f":"NR_to_Cash!C$9","v":-155327},{"$f":"NR_to_Cash!D$9","v":-283877},{"$f":"NR_to_Cash!E$9","v":-105647},{"$f":"NR_to_Cash!F$9","v":-78023},null,1155,-6596.4584958366559,-13097.650479260446,-24298.951945846948,1551.010398000275,null,-155327,-283877,-105647,-78023]
[1156,{"$error":"#NAME?"},{"$error":"#NAME?"},{"$error":"#NAME?"},{"$error":"#NAME?"},null,{"$f":"NR_to_Cash!C$9","v":-155327},{"$f":"NR_to_Cash!D$9","v":-283877},{"$f":"NR_to_Cash!E$9","v":-105647},{"$f":"NR_to_Cash!F$9","v":-78023},null,1156,-30989.128824505005,758.97059068075339,-19369.176844993017,977.87748297437872,null,-155327,-283877,-105647,-78023]
[1157,{"$error":"#NAME?"},{"$error":"#NAME?"},{"$error":"#NAME?"},{"$error":"#NAME?"},null,{"$f":"NR_to_Cash!C$9","v":-155327},{"$f":"NR_to_Cash!D$9","v":-283877},{"$f":"NR_to_Cash!E$9","v":-105647},{"$f":"NR_to_Cash!F$9","v":-78023},null,1157,-19346.994576900743,-16505.585197361408,1266.0817050530904,-13728.582288952683,null,-155327,-283877,-105647,-78023]
[1158,{"$error":"#NAME?"},{"$error":"#NAME?"},{"$error":"#NAME?"},{"$error":"#NAME?"},null,{"$f":"NR_to_Cash!C$9","v":-155327},{"$f":"NR_to_Cash!D$9","v":-283877},{"$f":"NR_to_Cash!E$9","v":-105647},{"$f":"NR_to_Cash!F$9","v":-78023},null,1158,-13859.193237512665,-13739.54759465128,-30254.217828952103,-7132.8016269929612,null,-155327,-283877,-105647,-78023]
[1159,{"$error":"#NAME?"},{"$error":"#NAME?"},{"$error":"#NAME?"},{"$error":"#NAME?"},null,{"$f":"NR_to_Cash!C$9","v":-155327},{"$f":"NR_to_Cash!D$9","v":-283877},{"$f":"NR_to_Cash!E$9","v":-105647},{"$f":"NR_to_Cash!F$9","v":-78023},null,1159,-15640.071336682635,-29166.633052889028,-34678.500296603386,-18075.019735019407,null,-155327,-283877,-105647,-78023]
[1160,{"$error":"#NAME?"},{"$error":"#NAME?"},{"$error":"#NAME?"},{"$error":"#NAME?"},null,{"$f":"NR_to_Cash!C$9","v":-155327},{"$f":"NR_to_Cash!D$9","v":-283877},{"$f":"NR_to_Cash!E$9","v":-105647},{"$f":"NR_to_Cash!F$9","v":-78023},null,1160,-612.39918713268412,4041.1560739881688,8533.723620296938,-8423.4316223308233,null,-155327,-283877,-105647,-78023]
[1161,{"$error":"#NAME?"},{"$error":"#NAME?"},{"$error":"#NAME?"},{"$error":"#NAME?"},null,{"$f":"NR_to_Cash!C$9","v":-155327},{"$f":"NR_to_Cash!D$9","v":-283877},{"$f":"NR_to_Cash!E$9","v":-105647},{"$f":"NR_to_Cash!F$9","v":-78023},null,1161,-23133.412896408787,-11503.86758797127,-4465.2226243786563,-9262.5748225975221,null,-155327,-283877,-105647,-78023]
[1162,{"$error":"#NAME?"},{"$error":"#NAME?"},{"$error":"#NAME?"},{"$error":"#NAME?"},null,{"$f":"NR_to_Cash!C$9","v":-155327},{"$f":"NR_to_Cash!D$9","v":-283877},{"$f":"NR_to_Cash!E$9","v":-105647},{"$f":"NR_to_Cash!F$9","v":-78023},null,1162,1623.6639832829173,-14826.006441048388,-2840.8663924001826,-6933.3902865505715,null,-155327,-283877,-105647,-78023]
[1163,{"$error":"#NAME?"},{"$error":"#NAME?"},{"$error":"#NAME?"},{"$error":"#NAME?"},null,{"$f":"NR_to_Cash!C$9","v":-155327},{"$f":"NR_to_Cash!D$9","v":-283877},{"$f":"NR_to_Cash!E$9","v":-105647},{"$f":"NR_to_Cash!F$9","v":-78023},null,1163,-4772.0395926860001,-22947.715065888216,-16494.446123408357,-22490.35205517077,null,-155327,-283877,-105647,-78023]
[1164,{"$error":"#NAME?"},{"$error":"#NAME?"},{"$error":"#NAME?"},{"$error":"#NAME?"},null,{"$f":"NR_to_Cash!C$9","v":-155327},{"$f":"NR_to_Cash!D$9","v":-283877},{"$f":"NR_to_Cash!E$9","v":-105647},{"$f":"NR_to_Cash!F$9","v":-78023},null,1164,-24135.152475215888,-4663.8962156146499,-5443.0383125958597,-35504.360392736737,null,-155327,-283877,-105647,-78023]
[1165,{"$error":"#NAME?"},{"$error":"#NAME?"},{"$error":"#NAME?"},{"$error":"#NAME?"},null,{"$f":"NR_to_Cash!C$9","v":-155327},{"$f":"NR_to_Cash!D$9","v":-283877},{"$f":"NR_to_Cash!E$9","v":-105647},{"$f":"NR_to_Cash!F$9","v":-78023},null,1165,-47595.536941615952,-16077.942850320855,-18446.815397726354,11413.634239405917,null,-155327,-283877,-105647,-78023]
[1166,{"$error":"#NAME?"},{"$error":"#NAME?"},{"$error":"#NAME?"},{"$error":"#NAME?"},null,{"$f":"NR_to_Cash!C$9","v":-155327},{"$f":"NR_to_Cash!D$9","v":-283877},{"$f":"NR_to_Cash!E$9","v":-105647},{"$f":"NR_to_Cash!F$9","v":-78023},null,1166,-28647.589006715054,1564.3440188156796,-10266.909218116618,-28950.447686453459,null,-155327,-283877,-105647,-78023]
[1167,{"$error":"#NAME?"},{"$error":"#NAME?"},{"$error":"#NAME?"},{"$error":"#NAME?"},null,{"$f":"NR_to_Cash!C$9","v":-155327},{"$f":"NR_to_Cash!D$9","v":-283877},{"$f":"NR_to_Cash!E$9","v":-105647},{"$f":"NR_to_Cash!F$9","v":-78023},null,1167,-16421.570607287336,-12386.935816014384,6852.298775224679,13644.594235271532,null,-155327,-283877,-105647,-78023]
[1168,{"$error":"#NAME?"},{"$error":"#NAME?"},{"$error":"#NAME?"},{"$error":"#NAME?"},null,{"$f":"NR_to_Cash!C$9","v":-155327},{"$f":"NR_to_Cash!D$9","v":-283877},{"$f":"NR_to_Cash!E$9","v":-105647},{"$f":"NR_to_Cash!F$9","v":-78023},null,1168,-17627.601652911395,7668.9378970155194,-14062.147353662367,-20070.300277511229,null,-155327,-283877,-105647,-78023]
[1169,{"$error":"#NAME?"},{"$error":"#NAME?"},{"$error":"#NAME?"},{"$error":"#NAME?"},null,{"$f":"NR_to_Cash!C$9","v":-155327},{"$f":"NR_to_Cash!D$9","v":-283877},{"$f":"NR_to_Cash!E$9","v":-105647},{"$f":"NR_to_Cash!F$9","v":-78023},null,1169,-17444.510693684988,-4776.2916193139154,-7684.5964608395016,-18990.951786931822,null,-155327,-283877,-105647,-78023]
[1170,{"$error":"#NAME?"},{"$error":"#NAME?"},{"$error":"#NAME?"},{"$error":"#NAME?"},null,{"$f":"NR_to_Cash!C$9","v":-155327},{"$f":"NR_to_Cash!D$9","v":-283877},{"$f":"NR_to_Cash!E$9","v":-105647},{"$f":"NR_to_Cash!F$9","v":-78023},null,1170,-11255.198367806741,-7626.5335271297035,-9251.9531329197307,-14464.740445044154,null,-155327,-283877,-105647,-78023]
[1171,{"$error":"#NAME?"},{"$error":"#NAME?"},{"$error":"#NAME?"},{"$error":"#NAME?"},null,{"$f":"NR_to_Cash!C$9","v":-155327},{"$f":"NR_to_Cash!D$9","v":-283877},{"$f":"NR_to_Cash!E$9","v":-105647},{"$f":"NR_to_Cash!F$9","v":-78023},null,1171,-8810.323737253635,-6282.4203137038448,-10942.449631436361,-21454.161494271382,null,-155327,-283877,-105647,-78023]
[1172,{"$error":"#NAME?"},{"$error":"#NAME?"},{"$error":"#NAME?"},{"$error":"#NAME?"},null,{"$f":"NR_to_Cash!C$9","v":-155327},{"$f":"NR_to_Cash!D$9","v":-283877},{"$f":"NR_to_Cash!E$9","v":-105647},{"$f":"NR_to_Cash!F$9","v":-78023},null,1172,-12787.306071006016,-11088.499497461231,-5532.6586060306417,-6175.4778046401661,null,-155327,-283877,-105647,-78023]
[1173,{"$error":"#NAME?"},{"$error":"#NAME?"},{"$error":"#NAME?"},{"$error":"#NAME?"},null,{"$f":"NR_to_Cash!C$9","v":-155327},{"$f":"NR_to_Cash!D$9","v":-283877},{"$f":"NR_to_Cash!E$9","v":-105647},{"$f":"NR_to_Cash!F$9","v":-78023},null,1173,-34680.30585970114,-23135.3310188016,12399.375092937626,-40452.833315140757,null,-155327,-283877,-105647,-78023]
[1174,{"$error":"#NAME?"},{"$error":"#NAME?"},{"$error":"#NAME?"},{"$error":"#NAME?"},null,{"$f":"NR_to_Cash!C$9","v":-155327},{"$f":"NR_to_Cash!D$9","v":-283877},{"$f":"NR_to_Cash!E$9","v":-105647},{"$f":"NR_to_Cash!F$9","v":-78023},null,1174,-16167.818087648069,6861.1140753923964,-12412.791957669804,-26175.303658749006,null,-155327,-283877,-105647,-78023]
[1175,{"$error":"#NAME?"},{"$error":"#NAME?"},{"$error":"#NAME?"},{"$error":"#NAME?"},null,{"$f":"NR_to_Cash!C$9","v":-155327},{"$f":"NR_to_Cash!D$9","v":-283877},{"$f":"NR_to_Cash!E$9","v":-105647},{"$f":"NR_to_Cash!F$9","v":-78023},null,1175,-22423.381826307712,-16748.297437553305,-29433.231759199654,-1336.6596741733742,null,-155327,-283877,-105647,-78023]
[1176,{"$error":"#NAME?"},{"$error":"#NAME?"},{"$error":"#NAME?"},{"$error":"#NAME?"},null,{"$f":"NR_to_Cash!C$9","v":-155327},{"$f":"NR_to_Cash!D$9","v":-283877},{"$f":"NR_to_Cash!E$9","v":-105647},{"$f":"NR_to_Cash!F$9","v":-78023},null,1176,-14426.533230153858,-5097.8782273047746,-7789.7085977741872,-15691.400843785888,null,-155327,-283877,-105647,-78023]
[1177,{"$error":"#NAME?"},{"$error":"#NAME?"},{"$error":"#NAME?"},{"$error":"#NAME?"},null,{"$f":"NR_to_Cash!C$9","v":-155327},{"$f":"NR_to_Cash!D$9","v":-283877},{"$f":"NR_to_Cash!E$9","v":-105647},{"$f":"NR_to_Cash!F$9","v":-78023},null,1177,-4198.7898831127304,5453.3190561710553,-1726.4917109790313,-24203.245410281339,null,-155327,-283877,-105647,-78023]
[1178,{"$error":"#NAME?"},{"$error":"#NAME?"},{"$error":"#NAME?"},{"$error":"#NAME?"},null,{"$f":"NR_to_Cash!C$9","v":-155327},{"$f":"NR_to_Cash!D$9","v":-283877},{"$f":"NR_to_Cash!E$9","v":-105647},{"$f":"NR_to_Cash!F$9","v":-78023},null,1178,-13770.66382772928,-18344.865390666637,-35346.789687826626,-16538.318300853782,null,-155327,-283877,-105647,-78023]
[1179,{"$error":"#NAME?"},{"$error":"#NAME?"},{"$error":"#NAME?"},{"$error":"#NAME?"},null,{"$f":"NR_to_Cash!C$9","v":-155327},{"$f":"NR_to_Cash!D$9","v":-283877},{"$f":"NR_to_Cash!E$9","v":-105647},{"$f":"NR_to_Cash!F$9","v":-78023},null,1179,-16209.776694882847,-17386.847903840844,-5165.8810644004207,-16598.590307508803,null,-155327,-283877,-105647,-78023]
[1180,{"$error":"#NAME?"},{"$error":"#NAME?"},{"$error":"#NAME?"},{"$error":"#NAME?"},null,{"$f":"NR_to_Cash!C$9","v":-155327},{"$f":"NR_to_Cash!D$9","v":-283877},{"$f":"NR_to_Cash!E$9","v":-105647},{"$f":"NR_to_Cash!F$9","v":-78023},null,1180,-12312.056221524974,-10296.23864005239,-6011.2062107740749,-5615.811197910255,null,-155327,-283877,-105647,-78023]
[1181,{"$error":"#NAME?"},{"$error":"#NAME?"},{"$error":"#NAME?"},{"$error":"#NAME?"},null,{"$f":"NR_to_Cash!C$9","v":-155327},{"$f":"NR_to_Cash!D$9","v":-283877},{"$f":"NR_to_Cash!E$9","v":-105647},{"$f":"NR_to_Cash!F$9","v":-78023},null,1181,5329.3737683016152,5745.5359877215833,5601.655590067121,-6571.438239025425,null,-155327,-283877,-105647,-78023]
[1182,{"$error":"#NAME?"},{"$error":"#NAME?"},{"$error":"#NAME?"},{"$error":"#NAME?"},null,{"$f":"NR_to_Cash!C$9","v":-155327},{"$f":"NR_to_Cash!D$9","v":-283877},{"$f":"NR_to_Cash!E$9","v":-105647},{"$f":"NR_to_Cash!F$9","v":-78023},null,1182,-16289.543376705311,-5595.9896998569066,-4762.3280830741669,-11113.311761224495,null,-155327,-283877,-105647,-78023]
[1183,{"$error":"#NAME?"},{"$error":"#NAME?"},{"$error":"#NAME?"},{"$error":"#NAME?"},null,{"$f":"NR_to_Cash!C$9","v":-155327},{"$f":"NR_to_Cash!D$9","v":-283877},{"$f":"NR_to_Cash!E$9","v":-105647},{"$f":"NR_to_Cash!F$9","v":-78023},null,1183,-7265.4018463814518,-17383.584310239785,-52564.676025404959,1877.8921642669679,null,-155327,-283877,-105647,-78023]
[1184,{"$error":"#NAME?"},{"$error":"#NAME?"},{"$error":"#NAME?"},{"$error":"#NAME?"},null,{"$f":"NR_to_Cash!C$9","v":-155327},{"$f":"NR_to_Cash!D$9","v":-283877},{"$f":"NR_to_Cash!E$9","v":-105647},{"$f":"NR_to_Cash!F$9","v":-78023},null,1184,-23094.36100816042,-5128.0721667288208,-11042.550643323215,4992.630166148856,null,-155327,-283877,-105647,-78023]
[1185,{"$error":"#NAME?"},{"$error":"#NAME?"},{"$error":"#NAME?"},{"$error":"#NAME?"},null,{"$f":"NR_to_Cash!C$9","v":-155327},{"$f":"NR_to_Cash!D$9","v":-283877},{"$f":"NR_to_Cash!E$9","v":-105647},{"$f":"NR_to_Cash!F$9","v":-78023},null,1185,-7567.7406044706768,-446.36664827096405,-29205.47811338372,15900.572619774386,null,-155327,-283877,-105647,-78023]
[1186,{"$error":"#NAME?"},{"$error":"#NAME?"},{"$error":"#NAME?"},{"$error":"#NAME?"},null,{"$f":"NR_to_Cash!C$9","v":-155327},{"$f":"NR_to_Cash!D$9","v":-283877},{"$f":"NR_to_Cash!E$9","v":-105647},{"$f":"NR_to_Cash!F$9","v":-78023},null,1186,-25217.829704726282,-22789.821692894398,5876.7216843065416,-29884.584244917809,null,-155327,-283877,-105647,-78023]
[1187,{"$error":"#NAME?"},{"$error":"#NAME?"},{"$error":"#NAME?"},{"$error":"#NAME?"},null,{"$f":"NR_to_Cash!C$9","v":-155327},{"$f":"NR_to_Cash!D$9","v":-283877},{"$f":"NR_to_Cash!E$9","v":-105647},{"$f":"NR_to_Cash!F$9","v":-78023},null,1187,-28350.921013537718,-6022.2765666667874,15415.883711896629,-15786.952896787094,null,-155327,-283877,-105647,-78023]
[1188,{"$error":"#NAME?"},{"$error":"#NAME?"},{"$error":"#NAME?"},{"$error":"#NAME?"},null,{"$f":"NR_to_Cash!C$9","v":-155327},{"$f":"NR_to_Cash!D$9","v":-283877},{"$f":"NR_to_Cash!E$9","v":-105647},{"$f":"NR_to_Cash!F$9","v":-78023},null,1188,-10785.497029516042,2089.8355847921648,-20511.337148727413,-18168.423481126774,null,-155327,-283877,-105647,-78023]
[1189,{"$error":"#NAME?"},{"$error":"#NAME?"},{"$error":"#NAME?"},{"$error":"#NAME?"},null,{"$f":"NR_to_Cash!C$9","v":-155327},{"$f":"NR_to_Cash!D$9","v":-283877},{"$f":"NR_to_Cash!E$9","v":-105647},{"$f":"NR_to_Cash!F$9","v":-78023},null,1189,-23775.128739385633,-19369.255270582544,12997.637894839714,-13777.245265377958,null,-155327,-283877,-105647,-78023]
[1190,{"$error":"#NAME?"},{"$error":"#NAME?"},{"$error":"#NAME?"},{"$error":"#NAME?"},null,{"$f":"NR_to_Cash!C$9","v":-155327},{"$f":"NR_to_Cash!D$9","v":-283877},{"$f":"NR_to_Cash!E$9","v":-105647},{"$f":"NR_to_Cash!F$9","v":-78023},null,1190,-11223.549060341806,2244.2763450567891,-18090.333607163186,2097.2887452660848,null,-155327,-283877,-105647,-78023]
[1191,{"$error":"#NAME?"},{"$error":"#NAME?"},{"$error":"#NAME?"},{"$error":"#NAME?"},null,{"$f":"NR_to_Cash!C$9","v":-155327},{"$f":"NR_to_Cash!D$9","v":-283877},{"$f":"NR_to_Cash!E$9","v":-105647},{"$f":"NR_to_Cash!F$9","v":-78023},null,1191,-15781.494000187889,-4491.6144670381955,-17808.963289577932,-14205.888372119649,null,-155327,-283877,-105647,-78023]
[1192,{"$error":"#NAME?"},{"$error":"#NAME?"},{"$error":"#NAME?"},{"$error":"#NAME?"},null,{"$f":"NR_to_Cash!C$9","v":-155327},{"$f":"NR_to_Cash!D$9","v":-283877},{"$f":"NR_to_Cash!E$9","v":-105647},{"$f":"NR_to_Cash!F$9","v":-78023},null,1192,-24624.657110005122,-15872.893657925088,-25870.275180887096,-35549.831970029751,null,-155327,-283877,-105647,-78023]
[1193,{"$error":"#NAME?"},{"$error":"#NAME?"},{"$error":"#NAME?"},{"$error":"#NAME?"},null,{"$f":"NR_to_Cash!C$9","v":-155327},{"$f":"NR_to_Cash!D$9","v":-283877},{"$f":"NR_to_Cash!E$9","v":-105647},{"$f":"NR_to_Cash!F$9","v":-78023},null,1193,-11345.642344851765,1734.7899690550576,-35803.017536075233,-25686.315746972508,null,-155327,-283877,-105647,-78023]
[1194,{"$error":"#NAME?"},{"$error":"#NAME?"},{"$error":"#NAME?"},{"$error":"#NAME?"},null,{"$f":"NR_to_Cash!C$9","v":-155327},{"$f":"NR_to_Cash!D$9","v":-283877},{"$f":"NR_to_Cash!E$9","v":-105647},{"$f":"NR_to_Cash!F$9","v":-78023},null,1194,-28794.945685163551,-22670.136442913823,-1873.5426209662153,-21367.70191110509,null,-155327,-283877,-105647,-78023]
[1195,{"$error":"#NAME?"},{"$error":"#NAME?"},{"$error":"#NAME?"},{"$error":"#NAME?"},null,{"$f":"NR_to_Cash!C$9","v":-155327},{"$f":"NR_to_Cash!D$9","v":-283877},{"$f":"NR_to_Cash!E$9","v":-105647},{"$f":"NR_to_Cash!F$9","v":-78023},null,1195,-20242.708525567803,-16976.64233961661,-5698.1532522728421,-13134.842338020044,null,-155327,-283877,-105647,-78023]
[1196,{"$error":"#NAME?"},{"$error":"#NAME?"},{"$error":"#NAME?"},{"$error":"#NAME?"},null,{"$f":"NR_to_Cash!C$9","v":-155327},{"$f":"NR_to_Cash!D$9","v":-283877},{"$f":"NR_to_Cash!E$9","v":-105647},{"$f":"NR_to_Cash!F$9","v":-78023},null,1196,-461.19803998791815,-9725.3536364231786,-24947.0272838153,-994.920639942702,null,-155327,-283877,-105647,-78023]
[1197,{"$error":"#NAME?"},{"$error":"#NAME?"},{"$error":"#NAME?"},{"$error":"#NAME?"},null,{"$f":"NR_to_Cash!C$9","v":-155327},{"$f":"NR_to_Cash!D$9","v":-283877},{"$f":"NR_to_Cash!E$9","v":-105647},{"$f":"NR_to_Cash!F$9","v":-78023},null,1197,-13146.775798520874,-5282.7519032436167,-1891.1470995371722,-19362.967933788997,null,-155327,-283877,-105647,-78023]
[1198,{"$error":"#NAME?"},{"$error":"#NAME?"},{"$error":"#NAME?"},{"$error":"#NAME?"},null,{"$f":"NR_to_Cash!C$9","v":-155327},{"$f":"NR_to_Cash!D$9","v":-283877},{"$f":"NR_to_Cash!E$9","v":-105647},{"$f":"NR_to_Cash!F$9","v":-78023},null,1198,-471.40415771193375,3008.8330119681873,-15953.268198108412,-7773.4348615419676,null,-155327,-283877,-105647,-78023]
[1199,{"$error":"#NAME?"},{"$error":"#NAME?"},{"$error":"#NAME?"},{"$error":"#NAME?"},null,{"$f":"NR_to_Cash!C$9","v":-155327},{"$f":"NR_to_Cash!D$9","v":-283877},{"$f":"NR_to_Cash!E$9","v":-105647},{"$f":"NR_to_Cash!F$9","v":-78023},null,1199,-24356.235955318305,-477.75231856786326,16578.956784752849,-1220.3535563000155,null,-155327,-283877,-105647,-78023]
[1200,{"$error":"#NAME?"},{"$error":"#NAME?"},{"$error":"#NAME?"},{"$error":"#NAME?"},null,{"$f":"NR_to_Cash!C$9","v":-155327},{"$f":"NR_to_Cash!D$9","v":-283877},{"$f":"NR_to_Cash!E$9","v":-105647},{"$f":"NR_to_Cash!F$9","v":-78023},null,1200,-17486.707985599165,14673.594964608035,-26569.770258745317,-15555.659608867401,null,-155327,-283877,-105647,-78023]
[1201,{"$error":"#NAME?"},{"$error":"#NAME?"},{"$error":"#NAME?"},{"$error":"#NAME?"},null,{"$f":"NR_to_Cash!C$9","v":-155327},{"$f":"NR_to_Cash!D$9","v":-283877},{"$f":"NR_to_Cash!E$9","v":-105647},{"$f":"NR_to_Cash!F$9","v":-78023},null,1201,8011.9880413338506,-22836.494853873195,-18005.793677010966,-31750.985735818125,null,-155327,-283877,-105647,-78023]
[1202,{"$error":"#NAME?"},{"$error":"#NAME?"},{"$error":"#NAME?"},{"$error":"#NAME?"},null,{"$f":"NR_to_Cash!C$9","v":-155327},{"$f":"NR_to_Cash!D$9","v":-283877},{"$f":"NR_to_Cash!E$9","v":-105647},{"$f":"NR_to_Cash!F$9","v":-78023},null,1202,-8515.6495949770015,-3807.7857250840407,-21303.050050922582,-16417.770849378216,null,-155327,-283877,-105647,-78023]
[1203,{"$error":"#NAME?"},{"$error":"#NAME?"},{"$error":"#NAME?"},{"$error":"#NAME?"},null,{"$f":"NR_to_Cash!C$9","v":-155327},{"$f":"NR_to_Cash!D$9","v":-283877},{"$f":"NR_to_Cash!E$9","v":-105647},{"$f":"NR_to_Cash!F$9","v":-78023},null,1203,-19384.640418411051,2349.6130663815088,-11035.76755665595,-3739.4966840257625,null,-155327,-283877,-105647,-78023]
[1204,{"$error":"#NAME?"},{"$error":"#NAME?"},{"$error":"#NAME?"},{"$error":"#NAME?"},null,{"$f":"NR_to_Cash!C$9","v":-155327},{"$f":"NR_to_Cash!D$9","v":-283877},{"$f":"NR_to_Cash!E$9","v":-105647},{"$f":"NR_to_Cash!F$9","v":-78023},null,1204,7323.4061312963904,-3462.8635226661854,-15887.009454945939,-28932.592778422637,null,-155327,-283877,-105647,-78023]
[1205,{"$error":"#NAME?"},{"$error":"#NAME?"},{"$error":"#NAME?"},{"$error":"#NAME?"},null,{"$f":"NR_to_Cash!C$9","v":-155327},{"$f":"NR_to_Cash!D$9","v":-283877},{"$f":"NR_to_Cash!E$9","v":-105647},{"$f":"NR_to_Cash!F$9","v":-78023},null,1205,-4992.1083120742851,-2795.6348079266304,1746.1284086129917,-16052.296629425315,null,-155327,-283877,-105647,-78023]
[1206,{"$error":"#NAME?"},{"$error":"#NAME?"},{"$error":"#NAME?"},{"$error":"#NAME?"},null,{"$f":"NR_to_Cash!C$9","v":-155327},{"$f":"NR_to_Cash!D$9","v":-283877},{"$f":"NR_to_Cash!E$9","v":-105647},{"$f":"NR_to_Cash!F$9","v":-78023},null,1206,-17474.366189494405,-14446.912934846234,-1694.9086014084241,-20085.261200476496,null,-155327,-283877,-105647,-78023]
[1207,{"$error":"#NAME?"},{"$error":"#NAME?"},{"$error":"#NAME?"},{"$error":"#NAME?"},null,{"$f":"NR_to_Cash!C$9","v":-155327},{"$f":"NR_to_Cash!D$9","v":-283877},{"$f":"NR_to_Cash!E$9","v":-105647},{"$f":"NR_to_Cash!F$9","v":-78023},null,1207,-29279.615469045748,3512.0072509341608,-17679.678349386202,-6668.2852119054287,null,-155327,-283877,-105647,-78023]
[1208,{"$error":"#NAME?"},{"$error":"#NAME?"},{"$error":"#NAME?"},{"$error":"#NAME?"},null,{"$f":"NR_to_Cash!C$9","v":-155327},{"$f":"NR_to_Cash!D$9","v":-283877},{"$f":"NR_to_Cash!E$9","v":-105647},{"$f":"NR_to_Cash!F$9","v":-78023},null,1208,-22799.086620026534,-31875.022729580684,-31997.592295510829,-22597.785282532226,null,-155327,-283877,-105647,-78023]
[1209,{"$error":"#NAME?"},{"$error":"#NAME?"},{"$error":"#NAME?"},{"$error":"#NAME?"},null,{"$f":"NR_to_Cash!C$9","v":-155327},{"$f":"NR_to_Cash!D$9","v":-283877},{"$f":"NR_to_Cash!E$9","v":-105647},{"$f":"NR_to_Cash!F$9","v":-78023},null,1209,-17405.453708441815,3273.7594020897991,-10127.929016373835,-5830.6150429909494,null,-155327,-283877,-105647,-78023]
[1210,{"$error":"#NAME?"},{"$error":"#NAME?"},{"$error":"#NAME?"},{"$error":"#NAME?"},null,{"$f":"NR_to_Cash!C$9","v":-155327},{"$f":"NR_to_Cash!D$9","v":-283877},{"$f":"NR_to_Cash!E$9","v":-105647},{"$f":"NR_to_Cash!F$9","v":-78023},null,1210,-20677.633252756805,-24082.899675858196,-14567.074157475772,-57765.266312353655,null,-155327,-283877,-105647,-78023]
[1211,{"$error":"#NAME?"},{"$error":"#NAME?"},{"$error":"#NAME?"},{"$error":"#NAME?"},null,{"$f":"NR_to_Cash!C$9","v":-155327},{"$f":"NR_to_Cash!D$9","v":-283877},{"$f":"NR_to_Cash!E$9","v":-105647},{"$f":"NR_to_Cash!F$9","v":-78023},null,1211,-1775.4576791993463,-8104.669403418874,-11641.754192570048,-13667.326947030746,null,-155327,-283877,-105647,-78023]
[1212,{"$error":"#NAME?"},{"$error":"#NAME?"},{"$error":"#NAME?"},{"$error":"#NAME?"},null,{"$f":"NR_to_Cash!C$9","v":-155327},{"$f":"NR_to_Cash!D$9","v":-283877},{"$f":"NR_to_Cash!E$9","v":-105647},{"$f":"NR_to_Cash!F$9","v":-78023},null,1212,-2791.4845840091948,17729.626544207113,-31009.869945250895,-12296.686331920713,null,-155327,-283877,-105647,-78023]
[1213,{"$error":"#NAME?"},{"$error":"#NAME?"},{"$error":"#NAME?"},{"$error":"#NAME?"},null,{"$f":"NR_to_Cash!C$9","v":-155327},{"$f":"NR_to_Cash!D$9","v":-283877},{"$f":"NR_to_Cash!E$9","v":-105647},{"$f":"NR_to_Cash!F$9","v":-78023},null,1213,-6935.5972677928294,-34085.500767865051,-3778.6117349441474,-18622.413907419032,null,-155327,-283877,-105647,-78023]
[1214,{"$error":"#NAME?"},{"$error":"#NAME?"},{"$error":"#NAME?"},{"$error":"#NAME?"},null,{"$f":"NR_to_Cash!C$9","v":-155327},{"$f":"NR_to_Cash!D$9","v":-283877},{"$f":"NR_to_Cash!E$9","v":-105647},{"$f":"NR_to_Cash!F$9","v":-78023},null,1214,-17974.185101819348,-22133.221176363917,-26780.612931350981,2096.4050758076228,null,-155327,-283877,-105647,-78023]
[1215,{"$error":"#NAME?"},{"$error":"#NAME?"},{"$error":"#NAME?"},{"$error":"#NAME?"},null,{"$f":"NR_to_Cash!C$9","v":-155327},{"$f":"NR_to_Cash!D$9","v":-283877},{"$f":"NR_to_Cash!E$9","v":-105647},{"$f":"NR_to_Cash!F$9","v":-78023},null,1215,-12008.266346355191,-25128.698597089489,-19775.841574456506,-25270.009059931235,null,-155327,-283877,-105647,-78023]
[1216,{"$error":"#NAME?"},{"$error":"#NAME?"},{"$error":"#NAME?"},{"$error":"#NAME?"},null,{"$f":"NR_to_Cash!C$9","v":-155327},{"$f":"NR_to_Cash!D$9","v":-283877},{"$f":"NR_to_Cash!E$9","v":-105647},{"$f":"NR_to_Cash!F$9","v":-78023},null,1216,616.68018880068155,9073.5293345842165,-6736.7184495992815,-23698.895088240039,null,-155327,-283877,-105647,-78023]
[1217,{"$error":"#NAME?"},{"$error":"#NAME?"},{"$error":"#NAME?"},{"$error":"#NAME?"},null,{"$f":"NR_to_Cash!C$9","v":-155327},{"$f":"NR_to_Cash!D$9","v":-283877},{"$f":"NR_to_Cash!E$9","v":-105647},{"$f":"NR_to_Cash!F$9","v":-78023},null,1217,-6335.5221504587771,-273.6737251800094,-10314.645714808854,-32717.336203428033,null,-155327,-283877,-105647,-78023]
[1218,{"$error":"#NAME?"},{"$error":"#NAME?"},{"$error":"#NAME?"},{"$error":"#NAME?"},null,{"$f":"NR_to_Cash!C$9","v":-155327},{"$f":"NR_to_Cash!D$9","v":-283877},{"$f":"NR_to_Cash!E$9","v":-105647},{"$f":"NR_to_Cash!F$9","v":-78023},null,1218,-19492.481843950594,-15621.083486095076,-13999.948133551619,-7743.0049981462444,null,-155327,-283877,-105647,-78023]
[1219,{"$error":"#NAME?"},{"$error":"#NAME?"},{"$error":"#NAME?"},{"$error":"#NAME?"},null,{"$f":"NR_to_Cash!C$9","v":-155327},{"$f":"NR_to_Cash!D$9","v":-283877},{"$f":"NR_to_Cash!E$9","v":-105647},{"$f":"NR_to_Cash!F$9","v":-78023},null,1219,-19112.60562118801,6954.3409431883047,-21287.197427251333,-17129.36251620674,null,-155327,-283877,-105647,-78023]
[1220,{"$error":"#NAME?"},{"$error":"#NAME?"},{"$error":"#NAME?"},{"$error":"#NAME?"},null,{"$f":"NR_to_Cash!C$9","v":-155327},{"$f":"NR_to_Cash!D$9","v":-283877},{"$f":"NR_to_Cash!E$9","v":-105647},{"$f":"NR_to_Cash!F$9","v":-78023},null,1220,-6056.5134722485909,2939.0928519142849,-8691.123934334395,5565.4146525720835,null,-155327,-283877,-105647,-78023]
[1221,{"$error":"#NAME?"},{"$error":"#NAME?"},{"$error":"#NAME?"},{"$error":"#NAME?"},null,{"$f":"NR_to_Cash!C$9","v":-155327},{"$f":"NR_to_Cash!D$9","v":-283877},{"$f":"NR_to_Cash!E$9","v":-105647},{"$f":"NR_to_Cash!F$9","v":-78023},null,1221,-18399.787094579951,-12073.782846833063,3641.303001224157,-7843.4596685909164,null,-155327,-283877,-105647,-78023]
[1222,{"$error":"#NAME?"},{"$error":"#NAME?"},{"$error":"#NAME?"},{"$error":"#NAME?"},null,{"$f":"NR_to_Cash!C$9","v":-155327},{"$f":"NR_to_Cash!D$9","v":-283877},{"$f":"NR_to_Cash!E$9","v":-105647},{"$f":"NR_to_Cash!F$9","v":-78023},null,1222,-5077.8898560395228,-33529.283807618289,-1196.3560913278498,-20998.838531893423,null,-155327,-283877,-105647,-78023]
[1223,{"$error":"#NAME?"},{"$error":"#NAME?"},{"$error":"#NAME?"},{"$error":"#NAME?"},null,{"$f":"NR_to_Cash!C$9","v":-155327},{"$f":"NR_to_Cash!D$9","v":-283877},{"$f":"NR_to_Cash!E$9","v":-105647},{"$f":"NR_to_Cash!F$9","v":-78023},null,1223,-11665.017404874648,-11581.11669138564,-27578.050121858825,940.46568562327752,null,-155327,-283877,-105647,-78023]
[1224,{"$error":"#NAME?"},{"$error":"#NAME?"},{"$error":"#NAME?"},{"$error":"#NAME?"},null,{"$f":"NR_to_Cash!C$9","v":-155327},{"$f":"NR_to_Cash!D$9","v":-283877},{"$f":"NR_to_Cash!E$9","v":-105647},{"$f":"NR_to_Cash!F$9","v":-78023},null,1224,-10735.374686911136,-5299.2864448563905,-8365.0635451684593,-13151.630425439958,null,-155327,-283877,-105647,-78023]
[1225,{"$error":"#NAME?"},{"$error":"#NAME?"},{"$error":"#NAME?"},{"$error":"#NAME?"},null,{"$f":"NR_to_Cash!C$9","v":-155327},{"$f":"NR_to_Cash!D$9","v":-283877},{"$f":"NR_to_Cash!E$9","v":-105647},{"$f":"NR_to_Cash!F$9","v":-78023},null,1225,-7531.0062543518216,-5591.2493339991524,-22301.565599206795,-12073.98958530502,null,-155327,-283877,-105647,-78023]
[1226,{"$error":"#NAME?"},{"$error":"#NAME?"},{"$error":"#NAME?"},{"$error":"#NAME?"},null,{"$f":"NR_to_Cash!C$9","v":-155327},{"$f":"NR_to_Cash!D$9","v":-283877},{"$f":"NR_to_Cash!E$9","v":-105647},{"$f":"NR_to_Cash!F$9","v":-78023},null,1226,-12991.215322719008,-23827.232728233979,-11177.866012012571,8656.8798783852435,null,-155327,-283877,-105647,-78023]
[1227,{"$error":"#NAME?"},{"$error":"#NAME?"},{"$error":"#NAME?"},{"$error":"#NAME?"},null,{"$f":"NR_to_Cash!C$9","v":-155327},{"$f":"NR_to_Cash!D$9","v":-283877},{"$f":"NR_to_Cash!E$9","v":-105647},{"$f":"NR_to_Cash!F$9","v":-78023},null,1227,-17902.791687757057,-21934.343854440529,13173.37208227683,-25859.727331728795,null,-155327,-283877,-105647,-78023]
[1228,{"$error":"#NAME?"},{"$error":"#NAME?"},{"$error":"#NAME?"},{"$error":"#NAME?"},null,{"$f":"NR_to_Cash!C$9","v":-155327},{"$f":"NR_to_Cash!D$9","v":-283877},{"$f":"NR_to_Cash!E$9","v":-105647},{"$f":"NR_to_Cash!F$9","v":-78023},null,1228,-6200.9009016899145,133.58035935303616,-25184.669312750542,-25607.310375215427,null,-155327,-283877,-105647,-78023]
[1229,{"$error":"#NAME?"},{"$error":"#NAME?"},{"$error":"#NAME?"},{"$error":"#NAME?"},null,{"$f":"NR_to_Cash!C$9","v":-155327},{"$f":"NR_to_Cash!D$9","v":-283877},{"$f":"NR_to_Cash!E$9","v":-105647},{"$f":"NR_to_Cash!F$9","v":-78023},null,1229,-8785.2911553078193,-12989.614784919759,-3563.8435427354416,-9349.4880813164818,null,-155327,-283877,-105647,-78023]
[1230,{"$error":"#NAME?"},{"$error":"#NAME?"},{"$error":"#NAME?"},{"$error":"#NAME?"},null,{"$f":"NR_to_Cash!C$9","v":-155327},{"$f":"NR_to_Cash!D$9","v":-283877},{"$f":"NR_to_Cash!E$9","v":-105647},{"$f":"NR_to_Cash!F$9","v":-78023},null,1230,-20212.34701201701,12481.505520391285,-33866.869102780845,-11988.13789928862,null,-155327,-283877,-105647,-78023]
[1231,{"$error":"#NAME?"},{"$error":"#NAME?"},{"$error":"#NAME?"},{"$error":"#NAME?"},null,{"$f":"NR_to_Cash!C$9","v":-155327},{"$f":"NR_to_Cash!D$9","v":-283877},{"$f":"NR_to_Cash!E$9","v":-105647},{"$f":"NR_to_Cash!F$9","v":-78023},null,1231,-16960.447038876304,-2218.3245733850363,-11859.891955311266,-6909.7180145358589,null,-155327,-283877,-105647,-78023]
[1232,{"$error":"#NAME?"},{"$error":"#NAME?"},{"$error":"#NAME?"},{"$error":"#NAME?"},null,{"$f":"NR_to_Cash!C$9","v":-155327},{"$f":"NR_to_Cash!D$9","v":-283877},{"$f":"NR_to_Cash!E$9","v":-105647},{"$f":"NR_to_Cash!F$9","v":-78023},null,1232,1747.02143180589,-29191.406891890852,-2360.13517460194,-28387.99561179103,null,-155327,-283877,-105647,-78023]
[1233,{"$error":"#NAME?"},{"$error":"#NAME?"},{"$error":"#NAME?"},{"$error":"#NAME?"},null,{"$f":"NR_to_Cash!C$9","v":-155327},{"$f":"NR_to_Cash!D$9","v":-283877},{"$f":"NR_to_Cash!E$9","v":-105647},{"$f":"NR_to_Cash!F$9","v":-78023},null,1233,-7731.3060408046404,-22725.438568637819,-448.16819702429967,-39343.309091750831,null,-155327,-283877,-105647,-78023]
[1234,{"$error":"#NAME?"},{"$error":"#NAME?"},{"$error":"#NAME?"},{"$error":"#NAME?"},null,{"$f":"NR_to_Cash!C$9","v":-155327},{"$f":"NR_to_Cash!D$9","v":-283877},{"$f":"NR_to_Cash!E$9","v":-105647},{"$f":"NR_to_Cash!F$9","v":-78023},null,1234,-7399.2027169529747,-14542.215739230225,-24654.803110068773,-9483.8449445024253,null,-155327,-283877,-105647,-78023]
[1235,{"$error":"#NAME?"},{"$error":"#NAME?"},{"$error":"#NAME?"},{"$error":"#NAME?"},null,{"$f":"NR_to_Cash!C$9","v":-155327},{"$f":"NR_to_Cash!D$9","v":-283877},{"$f":"NR_to_Cash!E$9","v":-105647},{"$f":"NR_to_Cash!F$9","v":-78023},null,1235,-22575.793277110977,-21999.637896405362,-10764.356736847623,-4673.9467539792568,null,-155327,-283877,-105647,-78023]
[1236,{"$error":"#NAME?"},{"$error":"#NAME?"},{"$error":"#NAME?"},{"$error":"#NAME?"},null,{"$f":"NR_to_Cash!C$9","v":-155327},{"$f":"NR_to_Cash!D$9","v":-283877},{"$f":"NR_to_Cash!E$9","v":-105647},{"$f":"NR_to_Cash!F$9","v":-78023},null,1236,-11844.370440751383,5898.4520562812286,-12230.200428595117,-15920.683259676056,null,-155327,-283877,-105647,-78023]
[1237,{"$error":"#NAME?"},{"$error":"#NAME?"},{"$error":"#NAME?"},{"$error":"#NAME?"},null,{"$f":"NR_to_Cash!C$9","v":-155327},{"$f":"NR_to_Cash!D$9","v":-283877},{"$f":"NR_to_Cash!E$9","v":-105647},{"$f":"NR_to_Cash!F$9","v":-78023},null,1237,-21948.277784455433,441.32395943530423,4724.4625654594684,-5249.2378765970761,null,-155327,-283877,-105647,-78023]
[1238,{"$error":"#NAME?"},{"$error":"#NAME?"},{"$error":"#NAME?"},{"$error":"#NAME?"},null,{"$f":"NR_to_Cash!C$9","v":-155327},{"$f":"NR_to_Cash!D$9","v":-283877},{"$f":"NR_to_Cash!E$9","v":-105647},{"$f":"NR_to_Cash!F$9","v":-78023},null,1238,-23528.645426465482,-18166.102152790489,-17397.699420637313,-9137.8969470397697,null,-155327,-283877,-105647,-78023]
[1239,{"$error":"#NAME?"},{"$error":"#NAME?"},{"$error":"#NAME?"},{"$error":"#NAME?"},null,{"$f":"NR_to_Cash!C$9","v":-155327},{"$f":"NR_to_Cash!D$9","v":-283877},{"$f":"NR_to_Cash!E$9","v":-105647},{"$f":"NR_to_Cash!F$9","v":-78023},null,1239,-22204.939550971209,-8170.4684020651011,-23546.804807969114,-988.32599903652942,null,-155327,-283877,-105647,-78023]
[1240,{"$error":"#NAME?"},{"$error":"#NAME?"},{"$error":"#NAME?"},{"$error":"#NAME?"},null,{"$f":"NR_to_Cash!C$9","v":-155327},{"$f":"NR_to_Cash!D$9","v":-283877},{"$f":"NR_to_Cash!E$9","v":-105647},{"$f":"NR_to_Cash!F$9","v":-78023},null,1240,-26103.851925018491,-28574.53872871257,-15020.275984724885,11736.914359571025,null,-155327,-283877,-105647,-78023]
[1241,{"$error":"#NAME?"},{"$error":"#NAME?"},{"$error":"#NAME?"},{"$error":"#NAME?"},null,{"$f":"NR_to_Cash!C$9","v":-155327},{"$f":"NR_to_Cash!D$9","v":-283877},{"$f":"NR_to_Cash!E$9","v":-105647},{"$f":"NR_to_Cash!F$9","v":-78023},null,1241,-19412.438507828345,-14964.729028390966,-816.05479628445175,-10138.222930824548,null,-155327,-283877,-105647,-78023]
[1242,{"$error":"#NAME?"},{"$error":"#NAME?"},{"$error":"#NAME?"},{"$error":"#NAME?"},null,{"$f":"NR_to_Cash!C$9","v":-155327},{"$f":"NR_to_Cash!D$9","v":-283877},{"$f":"NR_to_Cash!E$9","v":-105647},{"$f":"NR_to_Cash!F$9","v":-78023},null,1242,-12910.226698087099,-13816.141908787866,-21180.168467081716,-5359.3542835647368,null,-155327,-283877,-105647,-78023]
[1243,{"$error":"#NAME?"},{"$error":"#NAME?"},{"$error":"#NAME?"},{"$error":"#NAME?"},null,{"$f":"NR_to_Cash!C$9","v":-155327},{"$f":"NR_to_Cash!D$9","v":-283877},{"$f":"NR_to_Cash!E$9","v":-105647},{"$f":"NR_to_Cash!F$9","v":-78023},null,1243,-11309.177807068949,17482.351841946984,-5463.1644115727586,4989.2839589681153,null,-155327,-283877,-105647,-78023]
[1244,{"$error":"#NAME?"},{"$error":"#NAME?"},{"$error":"#NAME?"},{"$error":"#NAME?"},null,{"$f":"NR_to_Cash!C$9","v":-155327},{"$f":"NR_to_Cash!D$9","v":-283877},{"$f":"NR_to_Cash!E$9","v":-105647},{"$f":"NR_to_Cash!F$9","v":-78023},null,1244,913.42218804543336,-13837.59636487768,-14541.79065915114,5982.2505647523922,null,-155327,-283877,-105647,-78023]
[1245,{"$error":"#NAME?"},{"$error":"#NAME?"},{"$error":"#NAME?"},{"$error":"#NAME?"},null,{"$f":"NR_to_Cash!C$9","v":-155327},{"$f":"NR_to_Cash!D$9","v":-283877},{"$f":"NR_to_Cash!E$9","v":-105647},{"$f":"NR_to_Cash!F$9","v":-78023},null,1245,-14923.626284422829,-5035.862159662036,-2015.4923805321018,-10322.836502478096,null,-155327,-283877,-105647,-78023]
[1246,{"$error":"#NAME?"},{"$error":"#NAME?"},{"$error":"#NAME?"},{"$error":"#NAME?"},null,{"$f":"NR_to_Cash!C$9","v":-155327},{"$f":"NR_to_Cash!D$9","v":-283877},{"$f":"NR_to_Cash!E$9","v":-105647},{"$f":"NR_to_Cash!F$9","v":-78023},null,1246,-19600.562670608349,-15761.501041503154,-11938.109048950329,-30806.814544945682,null,-155327,-283877,-105647,-78023]
[1247,{"$error":"#NAME?"},{"$error":"#NAME?"},{"$error":"#NAME?"},{"$error":"#NAME?"},null,{"$f":"NR_to_Cash!C$9","v":-155327},{"$f":"NR_to_Cash!D$9","v":-283877},{"$f":"NR_to_Cash!E$9","v":-105647},{"$f":"NR_to_Cash!F$9","v":-78023},null,1247,-9008.8141547653777,-2283.1027849369871,-20039.563434917702,-11249.924262314544,null,-155327,-283877,-105647,-78023]
[1248,{"$error":"#NAME?"},{"$error":"#NAME?"},{"$error":"#NAME?"},{"$error":"#NAME?"},null,{"$f":"NR_to_Cash!C$9","v":-155327},{"$f":"NR_to_Cash!D$9","v":-283877},{"$f":"NR_to_Cash!E$9","v":-105647},{"$f":"NR_to_Cash!F$9","v":-78023},null,1248,-10918.009567657471,2980.3290082976259,3975.2528647404624,-40974.007923124162,null,-155327,-283877,-105647,-78023]
[1249,{"$error":"#NAME?"},{"$error":"#NAME?"},{"$error":"#NAME?"},{"$error":"#NAME?"},null,{"$f":"NR_to_Cash!C$9","v":-155327},{"$f":"NR_to_Cash!D$9","v":-283877},{"$f":"NR_to_Cash!E$9","v":-105647},{"$f":"NR_to_Cash!F$9","v":-78023},null,1249,-11676.060880423389,-3674.4397066520273,7082.6282022718324,4558.7199557276281,null,-155327,-283877,-105647,-78023]
[1250,{"$error":"#NAME?"},{"$error":"#NAME?"},{"$error":"#NAME?"},{"$error":"#NAME?"},null,{"$f":"NR_to_Cash!C$9","v":-155327},{"$f":"NR_to_Cash!D$9","v":-283877},{"$f":"NR_to_Cash!E$9","v":-105647},{"$f":"NR_to_Cash!F$9","v":-78023},null,1250,-7150.7317906508042,-5203.9257609938795,-12516.41219505088,-793.30176662621011,null,-155327,-283877,-105647,-78023]
[1251,{"$error":"#NAME?"},{"$error":"#NAME?"},{"$error":"#NAME?"},{"$error":"#NAME?"},null,{"$f":"NR_to_Cash!C$9","v":-155327},{"$f":"NR_to_Cash!D$9","v":-283877},{"$f":"NR_to_Cash!E$9","v":-105647},{"$f":"NR_to_Cash!F$9","v":-78023},null,1251,-6322.7747637908124,-1227.9667543803057,-12704.809183701096,-23876.446018718216,null,-155327,-283877,-105647,-78023]
[1252,{"$error":"#NAME?"},{"$error":"#NAME?"},{"$error":"#NAME?"},{"$error":"#NAME?"},null,{"$f":"NR_to_Cash!C$9","v":-155327},{"$f":"NR_to_Cash!D$9","v":-283877},{"$f":"NR_to_Cash!E$9","v":-105647},{"$f":"NR_to_Cash!F$9","v":-78023},null,1252,918.4337059877746,-14786.451737530593,-18206.538400317288,8130.9758387000575,null,-155327,-283877,-105647,-78023]
[1253,{"$error":"#NAME?"},{"$error":"#NAME?"},{"$error":"#NAME?"},{"$error":"#NAME?"},null,{"$f":"NR_to_Cash!C$9","v":-155327},{"$f":"NR_to_Cash!D$9","v":-283877},{"$f":"NR_to_Cash!E$9","v":-105647},{"$f":"NR_to_Cash!F$9","v":-78023},null,1253,-11197.464138887441,3070.020562083665,-19925.021816281023,-34038.809463271362,null,-155327,-283877,-105647,-78023]
[1254,{"$error":"#NAME?"},{"$error":"#NAME?"},{"$error":"#NAME?"},{"$error":"#NAME?"},null,{"$f":"NR_to_Cash!C$9","v":-155327},{"$f":"NR_to_Cash!D$9","v":-283877},{"$f":"NR_to_Cash!E$9","v":-105647},{"$f":"NR_to_Cash!F$9","v":-78023},null,1254,-9176.1087545407718,-25576.322916015793,2499.1352050967084,15625.706462687043,null,-155327,-283877,-105647,-78023]
[1255,{"$error":"#NAME?"},{"$error":"#NAME?"},{"$error":"#NAME?"},{"$error":"#NAME?"},null,{"$f":"NR_to_Cash!C$9","v":-155327},{"$f":"NR_to_Cash!D$9","v":-283877},{"$f":"NR_to_Cash!E$9","v":-105647},{"$f":"NR_to_Cash!F$9","v":-78023},null,1255,-20226.222724451007,-24620.999939562142,-206.04073260729618,-7975.8698258385957,null,-155327,-283877,-105647,-78023]
[1256,{"$error":"#NAME?"},{"$error":"#NAME?"},{"$error":"#NAME?"},{"$error":"#NAME?"},null,{"$f":"NR_to_Cash!C$9","v":-155327},{"$f":"NR_to_Cash!D$9","v":-283877},{"$f":"NR_to_Cash!E$9","v":-105647},{"$f":"NR_to_Cash!F$9","v":-78023},null,1256,-27969.573559764274,-26629.64467160268,2047.158924096188,-32320.475166488395,null,-155327,-283877,-105647,-78023]
[1257,{"$error":"#NAME?"},{"$error":"#NAME?"},{"$error":"#NAME?"},{"$error":"#NAME?"},null,{"$f":"NR_to_Cash!C$9","v":-155327},{"$f":"NR_to_Cash!D$9","v":-283877},{"$f":"NR_to_Cash!E$9","v":-105647},{"$f":"NR_to_Cash!F$9","v":-78023},null,1257,-30341.044369111958,9507.4361739390497,1429.8846656724907,-18241.787311061657,null,-155327,-283877,-105647,-78023]
[1258,{"$error":"#NAME?"},{"$error":"#NAME?"},{"$error":"#NAME?"},{"$error":"#NAME?"},null,{"$f":"NR_to_Cash!C$9","v":-155327},{"$f":"NR_to_Cash!D$9","v":-283877},{"$f":"NR_to_Cash!E$9","v":-105647},{"$f":"NR_to_Cash!F$9","v":-78023},null,1258,-29967.169001546979,-24498.978519907483,2253.6204962588299,-12809.479923804685,null,-155327,-283877,-105647,-78023]
[1259,{"$error":"#NAME?"},{"$error":"#NAME?"},{"$error":"#NAME?"},{"$error":"#NAME?"},null,{"$f":"NR_to_Cash!C$9","v":-155327},{"$f":"NR_to_Cash!D$9","v":-283877},{"$f":"NR_to_Cash!E$9","v":-105647},{"$f":"NR_to_Cash!F$9","v":-78023},null,1259,-18137.649804541827,7573.8235317210938,-41980.404824224373,-21672.923287536218,null,-155327,-283877,-105647,-78023]
[1260,{"$error":"#NAME?"},{"$error":"#NAME?"},{"$error":"#NAME?"},{"$error":"#NAME?"},null,{"$f":"NR_to_Cash!C$9","v":-155327},{"$f":"NR_to_Cash!D$9","v":-283877},{"$f":"NR_to_Cash!E$9","v":-105647},{"$f":"NR_to_Cash!F$9","v":-78023},null,1260,-28252.879874672617,3489.8187099837128,-14837.80283947928,-22001.5336820097,null,-155327,-283877,-105647,-78023]
[1261,{"$error":"#NAME?"},{"$error":"#NAME?"},{"$error":"#NAME?"},{"$error":"#NAME?"},null,{"$f":"NR_to_Cash!C$9","v":-155327},{"$f":"NR_to_Cash!D$9","v":-283877},{"$f":"NR_to_Cash!E$9","v":-105647},{"$f":"NR_to_Cash!F$9","v":-78023},null,1261,-17327.017490733979,916.62754200050335,-5579.7105474849768,-41038.37458617003,null,-155327,-283877,-105647,-78023]
[1262,{"$error":"#NAME?"},{"$error":"#NAME?"},{"$error":"#NAME?"},{"$error":"#NAME?"},null,{"$f":"NR_to_Cash!C$9","v":-155327},{"$f":"NR_to_Cash!D$9","v":-283877},{"$f":"NR_to_Cash!E$9","v":-105647},{"$f":"NR_to_Cash!F$9","v":-78023},null,1262,724.72648366559133,-19329.649802781645,-6363.5828734586394,-16511.022112103637,null,-155327,-283877,-105647,-78023]
[1263,{"$error":"#NAME?"},{"$error":"#NAME?"},{"$error":"#NAME?"},{"$error":"#NAME?"},null,{"$f":"NR_to_Cash!C$9","v":-155327},{"$f":"NR_to_Cash!D$9","v":-283877},{"$f":"NR_to_Cash!E$9","v":-105647},{"$f":"NR_to_Cash!F$9","v":-78023},null,1263,-17640.559088094666,-3036.7428202447181,-8581.0015058894423,-5368.5760408988444,null,-155327,-283877,-105647,-78023]
[1264,{"$error":"#NAME?"},{"$error":"#NAME?"},{"$error":"#NAME?"},{"$error":"#NAME?"},null,{"$f":"NR_to_Cash!C$9","v":-155327},{"$f":"NR_to_Cash!D$9","v":-283877},{"$f":"NR_to_Cash!E$9","v":-105647},{"$f":"NR_to_Cash!F$9","v":-78023},null,1264,-19611.171634867191,-13891.830637487103,-18887.004381635728,-22897.197456697686,null,-155327,-283877,-105647,-78023]
[1265,{"$error":"#NAME?"},{"$error":"#NAME?"},{"$error":"#NAME?"},{"$error":"#NAME?"},null,{"$f":"NR_to_Cash!C$9","v":-155327},{"$f":"NR_to_Cash!D$9","v":-283877},{"$f":"NR_to_Cash!E$9","v":-105647},{"$f":"NR_to_Cash!F$9","v":-78023},null,1265,-950.06881922134949,2687.7860586010984,-13701.209663418422,-16986.393375571537,null,-155327,-283877,-105647,-78023]
[1266,{"$error":"#NAME?"},{"$error":"#NAME?"},{"$error":"#NAME?"},{"$error":"#NAME?"},null,{"$f":"NR_to_Cash!C$9","v":-155327},{"$f":"NR_to_Cash!D$9","v":-283877},{"$f":"NR_to_Cash!E$9","v":-105647},{"$f":"NR_to_Cash!F$9","v":-78023},null,1266,-15763.093062910173,-29281.80171148563,-26956.719043527301,-13876.575800294484,null,-155327,-283877,-105647,-78023]
[1267,{"$error":"#NAME?"},{"$error":"#NAME?"},{"$error":"#NAME?"},{"$error":"#NAME?"},null,{"$f":"NR_to_Cash!C$9","v":-155327},{"$f":"NR_to_Cash!D$9","v":-283877},{"$f":"NR_to_Cash!E$9","v":-105647},{"$f":"NR_to_Cash!F$9","v":-78023},null,1267,-30025.768652561641,-7277.0176197212832,-8457.7876937381152,4956.1061927632682,null,-155327,-283877,-105647,-78023]
[1268,{"$error":"#NAME?"},{"$error":"#NAME?"},{"$error":"#NAME?"},{"$error":"#NAME?"},null,{"$f":"NR_to_Cash!C$9","v":-155327},{"$f":"NR_to_Cash!D$9","v":-283877},{"$f":"NR_to_Cash!E$9","v":-105647},{"$f":"NR_to_Cash!F$9","v":-78023},null,1268,-6160.2252193351142,-14659.854102779615,13416.391836638903,-22437.636013977848,null,-155327,-283877,-105647,-78023]
[1269,{"$error":"#NAME?"},{"$error":"#NAME?"},{"$error":"#NAME?"},{"$error":"#NAME?"},null,{"$f":"NR_to_Cash!C$9","v":-155327},{"$f":"NR_to_Cash!D$9","v":-283877},{"$f":"NR_to_Cash!E$9","v":-105647},{"$f":"NR_to_Cash!F$9","v":-78023},null,1269,-1381.2446512886729,3455.9994104952525,14372.157695704549,-3888.5968072456053,null,-155327,-283877,-105647,-78023]
[1270,{"$error":"#NAME?"},{"$error":"#NAME?"},{"$error":"#NAME?"},{"$error":"#NAME?"},null,{"$f":"NR_to_Cash!C$9","v":-155327},{"$f":"NR_to_Cash!D$9","v":-283877},{"$f":"NR_to_Cash!E$9","v":-105647},{"$f":"NR_to_Cash!F$9","v":-78023},null,1270,-26624.431232728013,14756.213930985308,-24571.323039205679,-958.73696564029456,null,-155327,-283877,-105647,-78023]
[1271,{"$error":"#NAME?"},{"$error":"#NAME?"},{"$error":"#NAME?"},{"$error":"#NAME?"},null,{"$f":"NR_to_Cash!C$9","v":-155327},{"$f":"NR_to_Cash!D$9","v":-283877},{"$f":"NR_to_Cash!E$9","v":-105647},{"$f":"NR_to_Cash!F$9","v":-78023},null,1271,5901.4280078686415,-2028.0310579835391,801.53549133084732,-6737.6443259863145,null,-155327,-283877,-105647,-78023]
[1272,{"$error":"#NAME?"},{"$error":"#NAME?"},{"$error":"#NAME?"},{"$error":"#NAME?"},null,{"$f":"NR_to_Cash!C$9","v":-155327},{"$f":"NR_to_Cash!D$9","v":-283877},{"$f":"NR_to_Cash!E$9","v":-105647},{"$f":"NR_to_Cash!F$9","v":-78023},null,1272,-16711.440770789268,-60.620986216859905,-3828.9562256971481,-9009.2841833563616,null,-155327,-283877,-105647,-78023]
[1273,{"$error":"#NAME?"},{"$error":"#NAME?"},{"$error":"#NAME?"},{"$error":"#NAME?"},null,{"$f":"NR_to_Cash!C$9","v":-155327},{"$f":"NR_to_Cash!D$9","v":-283877},{"$f":"NR_to_Cash!E$9","v":-105647},{"$f":"NR_to_Cash!F$9","v":-78023},null,1273,-2009.0399572114461,-149.87081021353691,1743.8858129964144,-4711.9848444674999,null,-155327,-283877,-105647,-78023]
[1274,{"$error":"#NAME?"},{"$error":"#NAME?"},{"$error":"#NAME?"},{"$error":"#NAME?"},null,{"$f":"NR_to_Cash!C$9","v":-155327},{"$f":"NR_to_Cash!D$9","v":-283877},{"$f":"NR_to_Cash!E$9","v":-105647},{"$f":"NR_to_Cash!F$9","v":-78023},null,1274,7073.7133507676772,4613.004481463764,-21540.167118162273,-27816.877401160607,null,-155327,-283877,-105647,-78023]
[1275,{"$error":"#NAME?"},{"$error":"#NAME?"},{"$error":"#NAME?"},{"$error":"#NAME?"},null,{"$f":"NR_to_Cash!C$9","v":-155327},{"$f":"NR_to_Cash!D$9","v":-283877},{"$f":"NR_to_Cash!E$9","v":-105647},{"$f":"NR_to_Cash!F$9","v":-78023},null,1275,-15575.398170740806,-14526.315252675362,-14047.594357722926,-31291.812608599968,null,-155327,-283877,-105647,-78023]
[1276,{"$error":"#NAME?"},{"$error":"#NAME?"},{"$error":"#NAME?"},{"$error":"#NAME?"},null,{"$f":"NR_to_Cash!C$9","v":-155327},{"$f":"NR_to_Cash!D$9","v":-283877},{"$f":"NR_to_Cash!E$9","v":-105647},{"$f":"NR_to_Cash!F$9","v":-78023},null,1276,-7428.4687550099097,6805.3341759197328,-15745.765589263126,8873.2391182452102,null,-155327,-283877,-105647,-78023]
[1277,{"$error":"#NAME?"},{"$error":"#NAME?"},{"$error":"#NAME?"},{"$error":"#NAME?"},null,{"$f":"NR_to_Cash!C$9","v":-155327},{"$f":"NR_to_Cash!D$9","v":-283877},{"$f":"NR_to_Cash!E$9","v":-105647},{"$f":"NR_to_Cash!F$9","v":-78023},null,1277,6364.2001582736993,-24073.682604566107,-44907.99399827631,-1510.4415720041795,null,-155327,-283877,-105647,-78023]
[1278,{"$error":"#NAME?"},{"$error":"#NAME?"},{"$error":"#NAME?"},{"$error":"#NAME?"},null,{"$f":"NR_to_Cash!C$9","v":-155327},{"$f":"NR_to_Cash!D$9","v":-283877},{"$f":"NR_to_Cash!E$9","v":-105647},{"$f":"NR_to_Cash!F$9","v":-78023},null,1278,-12901.46330926377,4385.2302145229696,-22494.97647458404,-14261.986533869331,null,-155327,-283877,-105647,-78023]
[1279,{"$error":"#NAME?"},{"$error":"#NAME?"},{"$error":"#NAME?"},{"$error":"#NAME?"},null,{"$f":"NR_to_Cash!C$9","v":-155327},{"$f":"NR_to_Cash!D$9","v":-283877},{"$f":"NR_to_Cash!E$9","v":-105647},{"$f":"NR_to_Cash!F$9","v":-78023},null,1279,-3455.1352556086513,-13519.385255804142,2796.9318179594434,-31712.56634803721,null,-155327,-283877,-105647,-78023]
[1280,{"$error":"#NAME?"},{"$error":"#NAME?"},{"$error":"#NAME?"},{"$error":"#NAME?"},null,{"$f":"NR_to_Cash!C$9","v":-155327},{"$f":"NR_to_Cash!D$9","v":-283877},{"$f":"NR_to_Cash!E$9","v":-105647},{"$f":"NR_to_Cash!F$9","v":-78023},null,1280,-9400.5802882985117,4974.9773584826744,-1747.5428781297305,-4651.4826032050678,null,-155327,-283877,-105647,-78023]
[1281,{"$error":"#NAME?"},{"$error":"#NAME?"},{"$error":"#NAME?"},{"$error":"#NAME?"},null,{"$f":"NR_to_Cash!C$9","v":-155327},{"$f":"NR_to_Cash!D$9","v":-283877},{"$f":"NR_to_Cash!E$9","v":-105647},{"$f":"NR_to_Cash!F$9","v":-78023},null,1281,-7247.0381552185336,-8501.3085880176277,-40010.656922417453,-12573.310029966315,null,-155327,-283877,-105647,-78023]
[1282,{"$error":"#NAME?"},{"$error":"#NAME?"},{"$error":"#NAME?"},{"$error":"#NAME?"},null,{"$f":"NR_to_Cash!C$9","v":-155327},{"$f":"NR_to_Cash!D$9","v":-283877},{"$f":"NR_to_Cash!E$9","v":-105647},{"$f":"NR_to_Cash!F$9","v":-78023},null,1282,-35140.722297939661,-10912.589162341837,-23920.71202057982,8116.859125192711,null,-155327,-283877,-105647,-78023]
[1283,{"$error":"#NAME?"},{"$error":"#NAME?"},{"$error":"#NAME?"},{"$error":"#NAME?"},null,{"$f":"NR_to_Cash!C$9","v":-155327},{"$f":"NR_to_Cash!D$9","v":-283877},{"$f":"NR_to_Cash!E$9","v":-105647},{"$f":"NR_to_Cash!F$9","v":-78023},null,1283,-22380.994132710519,-8540.10029772497,-42245.678406224441,-8676.8191719729912,null,-155327,-283877,-105647,-78023]
[1284,{"$error":"#NAME?"},{"$error":"#NAME?"},{"$error":"#NAME?"},{"$error":"#NAME?"},null,{"$f":"NR_to_Cash!C$9","v":-155327},{"$f":"NR_to_Cash!D$9","v":-283877},{"$f":"NR_to_Cash!E$9","v":-105647},{"$f":"NR_to_Cash!F$9","v":-78023},null,1284,-528.54521741003475,-16420.785515699459,-8681.254453491787,-23923.081662495595,null,-155327,-283877,-105647,-78023]
[1285,{"$error":"#NAME?"},{"$error":"#NAME?"},{"$error":"#NAME?"},{"$error":"#NAME?"},null,{"$f":"NR_to_Cash!C$9","v":-155327},{"$f":"NR_to_Cash!D$9","v":-283877},{"$f":"NR_to_Cash!E$9","v":-105647},{"$f":"NR_to_Cash!F$9","v":-78023},null,1285,2309.17056426726,12692.136810858568,-24252.539050939446,11886.174132826311,null,-155327,-283877,-105647,-78023]
[1286,{"$error":"#NAME?"},{"$error":"#NAME?"},{"$error":"#NAME?"},{"$error":"#NAME?"},null,{"$f":"NR_to_Cash!C$9","v":-155327},{"$f":"NR_to_Cash!D$9","v":-283877},{"$f":"NR_to_Cash!E$9","v":-105647},{"$f":"NR_to_Cash!F$9","v":-78023},null,1286,-21053.5752493736,-34675.822170268948,-10537.715194379152,-20686.215733991685,null,-155327,-283877,-105647,-78023]
[1287,{"$error":"#NAME?"},{"$error":"#NAME?"},{"$error":"#NAME?"},{"$error":"#NAME?"},null,{"$f":"NR_to_Cash!C$9","v":-155327},{"$f":"NR_to_Cash!D$9","v":-283877},{"$f":"NR_to_Cash!E$9","v":-105647},{"$f":"NR_to_Cash!F$9","v":-78023},null,1287,-28792.806358368623,-27600.236235941244,-9436.7927181076393,-2437.6726265291977,null,-155327,-283877,-105647,-78023]
[1288,{"$error":"#NAME?"},{"$error":"#NAME?"},{"$error":"#NAME?"},{"$error":"#NAME?"},null,{"$f":"NR_to_Cash!C$9","v":-155327},{"$f":"NR_to_Cash!D$9","v":-283877},{"$f":"NR_to_Cash!E$9","v":-105647},{"$f":"NR_to_Cash!F$9","v":-78023},null,1288,6224.6087746145313,-20498.687548020927,8488.553404135404,-11019.404255196334,null,-155327,-283877,-105647,-78023]
[1289,{"$error":"#NAME?"},{"$error":"#NAME?"},{"$error":"#NAME?"},{"$error":"#NAME?"},null,{"$f":"NR_to_Cash!C$9","v":-155327},{"$f":"NR_to_Cash!D$9","v":-283877},{"$f":"NR_to_Cash!E$9","v":-105647},{"$f":"NR_to_Cash!F$9","v":-78023},null,1289,-17486.604588735205,2722.5435903064363,-12152.875770957657,-28903.292269089885,null,-155327,-283877,-105647,-78023]
[1290,{"$error":"#NAME?"},{"$error":"#NAME?"},{"$error":"#NAME?"},{"$error":"#NAME?"},null,{"$f":"NR_to_Cash!C$9","v":-155327},{"$f":"NR_to_Cash!D$9","v":-283877},{"$f":"NR_to_Cash!E$9","v":-105647},{"$f":"NR_to_Cash!F$9","v":-78023},null,1290,-31919.280037265882,-27083.1019489545,13937.050192560369,1607.7605069493748,null,-155327,-283877,-105647,-78023]
[1291,{"$error":"#NAME?"},{"$error":"#NAME?"},{"$error":"#NAME?"},{"$error":"#NAME?"},null,{"$f":"NR_to_Cash!C$9","v":-155327},{"$f":"NR_to_Cash!D$9","v":-283877},{"$f":"NR_to_Cash!E$9","v":-105647},{"$f":"NR_to_Cash!F$9","v":-78023},null,1291,-8254.5066831348522,-16412.823657723085,-18686.10662783957,-21677.015791435511,null,-155327,-283877,-105647,-78023]
[1292,{"$error":"#NAME?"},{"$error":"#NAME?"},{"$error":"#NAME?"},{"$error":"#NAME?"},null,{"$f":"NR_to_Cash!C$9","v":-155327},{"$f":"NR_to_Cash!D$9","v":-283877},{"$f":"NR_to_Cash!E$9","v":-105647},{"$f":"NR_to_Cash!F$9","v":-78023},null,1292,-2437.690561194272,7542.065101076003,5608.1069988129793,418.00431807615507,null,-155327,-283877,-105647,-78023]
[1293,{"$error":"#NAME?"},{"$error":"#NAME?"},{"$error":"#NAME?"},{"$error":"#NAME?"},null,{"$f":"NR_to_Cash!C$9","v":-155327},{"$f":"NR_to_Cash!D$9","v":-283877},{"$f":"NR_to_Cash!E$9","v":-105647},{"$f":"NR_to_Cash!F$9","v":-78023},null,1293,8026.8813021847345,6708.9615977566464,-103.62272705089319,17114.608088678171,null,-155327,-283877,-105647,-78023]
[1294,{"$error":"#NAME?"},{"$error":"#NAME?"},{"$error":"#NAME?"},{"$error":"#NAME?"},null,{"$f":"NR_to_Cash!C$9","v":-155327},{"$f":"NR_to_Cash!D$9","v":-283877},{"$f":"NR_to_Cash!E$9","v":-105647},{"$f":"NR_to_Cash!F$9","v":-78023},null,1294,-21822.361036601549,1452.8335599286056,-10685.088004213587,-9694.1482901108575,null,-155327,-283877,-105647,-78023]
[1295,{"$error":"#NAME?"},{"$error":"#NAME?"},{"$error":"#NAME?"},{"$error":"#NAME?"},null,{"$f":"NR_to_Cash!C$9","v":-155327},{"$f":"NR_to_Cash!D$9","v":-283877},{"$f":"NR_to_Cash!E$9","v":-105647},{"$f":"NR_to_Cash!F$9","v":-78023},null,1295,-16677.936382995595,-12761.704480762257,-19338.460721334501,626.90582758725702,null,-155327,-283877,-105647,-78023]
[1296,{"$error":"#NAME?"},{"$error":"#NAME?"},{"$error":"#NAME?"},{"$error":"#NAME?"},null,{"$f":"NR_to_Cash!C$9","v":-155327},{"$f":"NR_to_Cash!D$9","v":-283877},{"$f":"NR_to_Cash!E$9","v":-105647},{"$f":"NR_to_Cash!F$9","v":-78023},null,1296,-23440.908381747897,-12000.989357694803,10926.033002237673,-25124.63892064496,null,-155327,-283877,-105647,-78023]
[1297,{"$error":"#NAME?"},{"$error":"#NAME?"},{"$error":"#NAME?"},{"$error":"#NAME?"},null,{"$f":"NR_to_Cash!C$9","v":-155327},{"$f":"NR_to_Cash!D$9","v":-283877},{"$f":"NR_to_Cash!E$9","v":-105647},{"$f":"NR_to_Cash!F$9","v":-78023},null,1297,-20111.242676284692,-15217.555763921426,379.38892026005465,-16830.396885322269,null,-155327,-283877,-105647,-78023]
[1298,{"$error":"#NAME?"},{"$error":"#NAME?"},{"$error":"#NAME?"},{"$error":"#NAME?"},null,{"$f":"NR_to_Cash!C$9","v":-155327},{"$f":"NR_to_Cash!D$9","v":-283877},{"$f":"NR_to_Cash!E$9","v":-105647},{"$f":"NR_to_Cash!F$9","v":-78023},null,1298,-16513.764665355237,-3465.8318489220342,-970.00442515112036,-33620.657423308206,null,-155327,-283877,-105647,-78023]
[1299,{"$error":"#NAME?"},{"$error":"#NAME?"},{"$error":"#NAME?"},{"$error":"#NAME?"},null,{"$f":"NR_to_Cash!C$9","v":-155327},{"$f":"NR_to_Cash!D$9","v":-283877},{"$f":"NR_to_Cash!E$9","v":-105647},{"$f":"NR_to_Cash!F$9","v":-78023},null,1299,-16661.25369246933,2099.553490999795,13780.146768000513,-12832.091398057764,null,-155327,-283877,-105647,-78023]
[1300,{"$error":"#NAME?"},{"$error":"#NAME?"},{"$error":"#NAME?"},{"$error":"#NAME?"},null,{"$f":"NR_to_Cash!C$9","v":-155327},{"$f":"NR_to_Cash!D$9","v":-283877},{"$f":"NR_to_Cash!E$9","v":-105647},{"$f":"NR_to_Cash!F$9","v":-78023},null,1300,-6369.4039449287657,-8601.255752830677,-9037.4757138670684,-11298.357586906293,null,-155327,-283877,-105647,-78023]
[1301,{"$error":"#NAME?"},{"$error":"#NAME?"},{"$error":"#NAME?"},{"$error":"#NAME?"},null,{"$f":"NR_to_Cash!C$9","v":-155327},{"$f":"NR_to_Cash!D$9","v":-283877},{"$f":"NR_to_Cash!E$9","v":-105647},{"$f":"NR_to_Cash!F$9","v":-78023},null,1301,-16555.035128526237,-3099.6084498822597,-51420.909145847516,-2867.9012671045703,null,-155327,-283877,-105647,-78023]
[1302,{"$error":"#NAME?"},{"$error":"#NAME?"},{"$error":"#NAME?"},{"$error":"#NAME?"},null,{"$f":"NR_to_Cash!C$9","v":-155327},{"$f":"NR_to_Cash!D$9","v":-283877},{"$f":"NR_to_Cash!E$9","v":-105647},{"$f":"NR_to_Cash!F$9","v":-78023},null,1302,-13720.87761455904,-4061.2581844021602,4531.1083820301001,-28601.529547634917,null,-155327,-283877,-105647,-78023]
[1303,{"$error":"#NAME?"},{"$error":"#NAME?"},{"$error":"#NAME?"},{"$error":"#NAME?"},null,{"$f":"NR_to_Cash!C$9","v":-155327},{"$f":"NR_to_Cash!D$9","v":-283877},{"$f":"NR_to_Cash!E$9","v":-105647},{"$f":"NR_to_Cash!F$9","v":-78023},null,1303,-16880.321544238472,-10271.540054086598,9409.7783729576204,-10689.845435905278,null,-155327,-283877,-105647,-78023]
[1304,{"$error":"#NAME?"},{"$error":"#NAME?"},{"$error":"#NAME?"},{"$error":"#NAME?"},null,{"$f":"NR_to_Cash!C$9","v":-155327},{"$f":"NR_to_Cash!D$9","v":-283877},{"$f":"NR_to_Cash!E$9","v":-105647},{"$f":"NR_to_Cash!F$9","v":-78023},null,1304,-10575.18030524901,-25111.352914242467,-2459.8357336915924,15635.385347731946,null,-155327,-283877,-105647,-78023]
[1305,{"$error":"#NAME?"},{"$error":"#NAME?"},{"$error":"#NAME?"},{"$error":"#NAME?"},null,{"$f":"NR_to_Cash!C$9","v":-155327},{"$f":"NR_to_Cash!D$9","v":-283877},{"$f":"NR_to_Cash!E$9","v":-105647},{"$f":"NR_to_Cash!F$9","v":-78023},null,1305,-2237.4482996210718,-257.45029776001621,2253.5236579442098,-17443.394963229515,null,-155327,-283877,-105647,-78023]
[1306,{"$error":"#NAME?"},{"$error":"#NAME?"},{"$error":"#NAME?"},{"$error":"#NAME?"},null,{"$f":"NR_to_Cash!C$9","v":-155327},{"$f":"NR_to_Cash!D$9","v":-283877},{"$f":"NR_to_Cash!E$9","v":-105647},{"$f":"NR_to_Cash!F$9","v":-78023},null,1306,-11459.905457714602,-993.57499697237404,1079.5894400807156,-25716.348829960225,null,-155327,-283877,-105647,-78023]
[1307,{"$error":"#NAME?"},{"$error":"#NAME?"},{"$error":"#NAME?"},{"$error":"#NAME?"},null,{"$f":"NR_to_Cash!C$9","v":-155327},{"$f":"NR_to_Cash!D$9","v":-283877},{"$f":"NR_to_Cash!E$9","v":-105647},{"$f":"NR_to_Cash!F$9","v":-78023},null,1307,-12927.811095449379,-12324.522022850919,-33760.823295545357,4158.7070833343651,null,-155327,-283877,-105647,-78023]
[1308,{"$error":"#NAME?"},{"$error":"#NAME?"},{"$error":"#NAME?"},{"$error":"#NAME?"},null,{"$f":"NR_to_Cash!C$9","v":-155327},{"$f":"NR_to_Cash!D$9","v":-283877},{"$f":"NR_to_Cash!E$9","v":-105647},{"$f":"NR_to_Cash!F$9","v":-78023},null,1308,-20747.720911734355,-11107.905695865358,-19534.464830507655,-26995.769223848853,null,-155327,-283877,-105647,-78023]
[1309,{"$error":"#NAME?"},{"$error":"#NAME?"},{"$error":"#NAME?"},{"$error":"#NAME?"},null,{"$f":"NR_to_Cash!C$9","v":-155327},{"$f":"NR_to_Cash!D$9","v":-283877},{"$f":"NR_to_Cash!E$9","v":-105647},{"$f":"NR_to_Cash!F$9","v":-78023},null,1309,1068.6864852937156,-18874.116483816877,-14921.516752114621,-14808.750388359816,null,-155327,-283877,-105647,-78023]
[1310,{"$error":"#NAME?"},{"$error":"#NAME?"},{"$error":"#NAME?"},{"$error":"#NAME?"},null,{"$f":"NR_to_Cash!C$9","v":-155327},{"$f":"NR_to_Cash!D$9","v":-283877},{"$f":"NR_to_Cash!E$9","v":-105647},{"$f":"NR_to_Cash!F$9","v":-78023},null,1310,-21301.006587211214,-126.88508514974093,-2907.9386139574449,-8999.1170263001532,null,-155327,-283877,-105647,-78023]
[1311,{"$error":"#NAME?"},{"$error":"#NAME?"},{"$error":"#NAME?"},{"$error":"#NAME?"},null,{"$f":"NR_to_Cash!C$9","v":-155327},{"$f":"NR_to_Cash!D$9","v":-283877},{"$f":"NR_to_Cash!E$9","v":-105647},{"$f":"NR_to_Cash!F$9","v":-78023},null,1311,-272.41575705132209,-35738.074650409377,-11380.86661005711,9987.4228477243269,null,-155327,-283877,-105647,-78023]
[1312,{"$error":"#NAME?"},{"$error":"#NAME?"},{"$error":"#NAME?"},{"$error":"#NAME?"},null,{"$f":"NR_to_Cash!C$9","v":-155327},{"$f":"NR_to_Cash!D$9","v":-283877},{"$f":"NR_to_Cash!E$9","v":-105647},{"$f":"NR_to_Cash!F$9","v":-78023},null,1312,-30578.212585212787,-12859.133733935969,12405.430414369626,-6192.4795806465982,null,-155327,-283877,-105647,-78023]
[1313,{"$error":"#NAME?"},{"$error":"#NAME?"},{"$error":"#NAME?"},{"$error":"#NAME?"},null,{"$f":"NR_to_Cash!C$9","v":-155327},{"$f":"NR_to_Cash!D$9","v":-283877},{"$f":"NR_to_Cash!E$9","v":-105647},{"$f":"NR_to_Cash!F$9","v":-78023},null,1313,-11235.379237745723,-29665.321353886007,9867.1459999070539,-29648.511789945467,null,-155327,-283877,-105647,-78023]
[1314,{"$error":"#NAME?"},{"$error":"#NAME?"},{"$error":"#NAME?"},{"$error":"#NAME?"},null,{"$f":"NR_to_Cash!C$9","v":-155327},{"$f":"NR_to_Cash!D$9","v":-283877},{"$f":"NR_to_Cash!E$9","v":-105647},{"$f":"NR_to_Cash!F$9","v":-78023},null,1314,-12560.313841060015,-15596.91067861418,-8139.2467287707968,756.99652813945772,null,-155327,-283877,-105647,-78023]
[1315,{"$error":"#NAME?"},{"$error":"#NAME?"},{"$error":"#NAME?"},{"$error":"#NAME?"},null,{"$f":"NR_to_Cash!C$9","v":-155327},{"$f":"NR_to_Cash!D$9","v":-283877},{"$f":"NR_to_Cash!E$9","v":-105647},{"$f":"NR_to_Cash!F$9","v":-78023},null,1315,-13600.287007403131,-12550.767412781182,-6156.8462825053648,-20498.72607421381,null,-155327,-283877,-105647,-78023]
[1316,{"$error":"#NAME?"},{"$error":"#NAME?"},{"$error":"#NAME?"},{"$error":"#NAME?"},null,{"$f":"NR_to_Cash!C$9","v":-155327},{"$f":"NR_to_Cash!D$9","v":-283877},{"$f":"NR_to_Cash!E$9","v":-105647},{"$f":"NR_to_Cash!F$9","v":-78023},null,1316,-15893.079404806587,-1076.1759072986667,-8693.495948582231,-6528.3364160637766,null,-155327,-283877,-105647,-78023]
[1317,{"$error":"#NAME?"},{"$error":"#NAME?"},{"$error":"#NAME?"},{"$error":"#NAME?"},null,{"$f":"NR_to_Cash!C$9","v":-155327},{"$f":"NR_to_Cash!D$9","v":-283877},{"$f":"NR_to_Cash!E$9","v":-105647},{"$f":"NR_to_Cash!F$9","v":-78023},null,1317,-38028.404434227356,-26205.956431271774,-13117.397187016657,-30005.548217999265,null,-155327,-283877,-105647,-78023]
[1318,{"$error":"#NAME?"},{"$error":"#NAME?"},{"$error":"#NAME?"},{"$error":"#NAME?"},null,{"$f":"NR_to_Cash!C$9","v":-155327},{"$f":"NR_to_Cash!D$9","v":-283877},{"$f":"NR_to_Cash!E$9","v":-105647},{"$f":"NR_to_Cash!F$9","v":-78023},null,1318,-19689.73809273728,-3926.3694494643287,-6478.5025441264006,-15436.125535208539,null,-155327,-283877,-105647,-78023]
[1319,{"$error":"#NAME?"},{"$error":"#NAME?"},{"$error":"#NAME?"},{"$error":"#NAME?"},null,{"$f":"NR_to_Cash!C$9","v":-155327},{"$f":"NR_to_Cash!D$9","v":-283877},{"$f":"NR_to_Cash!E$9","v":-105647},{"$f":"NR_to_Cash!F$9","v":-78023},null,1319,-16215.968514580316,-10051.334805649889,-26301.404346228239,-10147.259062911466,null,-155327,-283877,-105647,-78023]
[1320,{"$error":"#NAME?"},{"$error":"#NAME?"},{"$error":"#NAME?"},{"$error":"#NAME?"},null,{"$f":"NR_to_Cash!C$9","v":-155327},{"$f":"NR_to_Cash!D$9","v":-283877},{"$f":"NR_to_Cash!E$9","v":-105647},{"$f":"NR_to_Cash!F$9","v":-78023},null,1320,-19787.684018307493,-29244.056069681617,-17225.431915115885,9142.5458761809277,null,-155327,-283877,-105647,-78023]
[1321,{"$error":"#NAME?"},{"$error":"#NAME?"},{"$error":"#NAME?"},{"$error":"#NAME?"},null,{"$f":"NR_to_Cash!C$9","v":-155327},{"$f":"NR_to_Cash!D$9","v":-283877},{"$f":"NR_to_Cash!E$9","v":-105647},{"$f":"NR_to_Cash!F$9","v":-78023},null,1321,6670.7778323858602,-21952.641744338274,-18320.406192476523,-2901.9508510813298,null,-155327,-283877,-105647,-78023]
[1322,{"$error":"#NAME?"},{"$error":"#NAME?"},{"$error":"#NAME?"},{"$error":"#NAME?"},null,{"$f":"NR_to_Cash!C$9","v":-155327},{"$f":"NR_to_Cash!D$9","v":-283877},{"$f":"NR_to_Cash!E$9","v":-105647},{"$f":"NR_to_Cash!F$9","v":-78023},null,1322,-4554.7486294036771,-24494.946447335198,-29936.669349549898,-39213.910974738028,null,-155327,-283877,-105647,-78023]
[1323,{"$error":"#NAME?"},{"$error":"#NAME?"},{"$error":"#NAME?"},{"$error":"#NAME?"},null,{"$f":"NR_to_Cash!C$9","v":-155327},{"$f":"NR_to_Cash!D$9","v":-283877},{"$f":"NR_to_Cash!E$9","v":-105647},{"$f":"NR_to_Cash!F$9","v":-78023},null,1323,-23888.967691815946,5999.5972804683097,1673.0657402578668,-27998.267212183669,null,-155327,-283877,-105647,-78023]
[1324,{"$error":"#NAME?"},{"$error":"#NAME?"},{"$error":"#NAME?"},{"$error":"#NAME?"},null,{"$f":"NR_to_Cash!C$9","v":-155327},{"$f":"NR_to_Cash!D$9","v":-283877},{"$f":"NR_to_Cash!E$9","v":-105647},{"$f":"NR_to_Cash!F$9","v":-78023},null,1324,-16609.979932187453,-6969.5809765234681,-3723.97813129423,13838.605969652694,null,-155327,-283877,-105647,-78023]
[1325,{"$error":"#NAME?"},{"$error":"#NAME?"},{"$error":"#NAME?"},{"$error":"#NAME?"},null,{"$f":"NR_to_Cash!C$9","v":-155327},{"$f":"NR_to_Cash!D$9","v":-283877},{"$f":"NR_to_Cash!E$9","v":-105647},{"$f":"NR_to_Cash!F$9","v":-78023},null,1325,-27481.006017911524,4519.7678708485373,-19350.373012500524,-7401.8379419147459,null,-155327,-283877,-105647,-78023]
[1326,{"$error":"#NAME?"},{"$error":"#NAME?"},{"$error":"#NAME?"},{"$error":"#NAME?"},null,{"$f":"NR_to_Cash!C$9","v":-155327},{"$f":"NR_to_Cash!D$9","v":-283877},{"$f":"NR_to_Cash!E$9","v":-105647},{"$f":"NR_to_Cash!F$9","v":-78023},null,1326,-1239.6509524855051,-15263.139438861659,-32776.885377892097,-25579.590721577235,null,-155327,-283877,-105647,-78023]
[1327,{"$error":"#NAME?"},{"$error":"#NAME?"},{"$error":"#NAME?"},{"$error":"#NAME?"},null,{"$f":"NR_to_Cash!C$9","v":-155327},{"$f":"NR_to_Cash!D$9","v":-283877},{"$f":"NR_to_Cash!E$9","v":-105647},{"$f":"NR_to_Cash!F$9","v":-78023},null,1327,-31841.849207350817,-12252.888785193776,-20661.399622014153,17198.416771590815,null,-155327,-283877,-105647,-78023]
[1328,{"$error":"#NAME?"},{"$error":"#NAME?"},{"$error":"#NAME?"},{"$error":"#NAME?"},null,{"$f":"NR_to_Cash!C$9","v":-155327},{"$f":"NR_to_Cash!D$9","v":-283877},{"$f":"NR_to_Cash!E$9","v":-105647},{"$f":"NR_to_Cash!F$9","v":-78023},null,1328,-8718.6736800972467,-15672.373990812484,-10657.66304161458,-23840.167922483717,null,-155327,-283877,-105647,-78023]
[1329,{"$error":"#NAME?"},{"$error":"#NAME?"},{"$error":"#NAME?"},{"$error":"#NAME?"},null,{"$f":"NR_to_Cash!C$9","v":-155327},{"$f":"NR_to_Cash!D$9","v":-283877},{"$f":"NR_to_Cash!E$9","v":-105647},{"$f":"NR_to_Cash!F$9","v":-78023},null,1329,-14895.833236558829,-29442.871697692906,-20921.140812433623,-7715.4014052589664,null,-155327,-283877,-105647,-78023]
[1330,{"$error":"#NAME?"},{"$error":"#NAME?"},{"$error":"#NAME?"},{"$error":"#NAME?"},null,{"$f":"NR_to_Cash!C$9","v":-155327},{"$f":"NR_to_Cash!D$9","v":-283877},{"$f":"NR_to_Cash!E$9","v":-105647},{"$f":"NR_to_Cash!F$9","v":-78023},null,1330,-12212.517680648411,-26891.706017356439,4447.3230144337995,-952.16588152747647,null,-155327,-283877,-105647,-78023]
[1331,{"$error":"#NAME?"},{"$error":"#NAME?"},{"$error":"#NAME?"},{"$error":"#NAME?"},null,{"$f":"NR_to_Cash!C$9","v":-155327},{"$f":"NR_to_Cash!D$9","v":-283877},{"$f":"NR_to_Cash!E$9","v":-105647},{"$f":"NR_to_Cash!F$9","v":-78023},null,1331,-8036.0047512527908,-16955.998984755715,-24720.685464856255,3277.7659407110527,null,-155327,-283877,-105647,-78023]
[1332,{"$error":"#NAME?"},{"$error":"#NAME?"},{"$error":"#NAME?"},{"$error":"#NAME?"},null,{"$f":"NR_to_Cash!C$9","v":-155327},{"$f":"NR_to_Cash!D$9","v":-283877},{"$f":"NR_to_Cash!E$9","v":-105647},{"$f":"NR_to_Cash!F$9","v":-78023},null,1332,2408.0026225758356,2113.8159733449816,-4131.1267613358514,-7113.7787534787285,null,-155327,-283877,-105647,-78023]
[1333,{"$error":"#NAME?"},{"$error":"#NAME?"},{"$error":"#NAME?"},{"$error":"#NAME?"},null,{"$f":"NR_to_Cash!C$9","v":-155327},{"$f":"NR_to_Cash!D$9","v":-283877},{"$f":"NR_to_Cash!E$9","v":-105647},{"$f":"NR_to_Cash!F$9","v":-78023},null,1333,-11380.337181624902,-16137.666714056762,-39434.468841194917,-6308.169556409719,null,-155327,-283877,-105647,-78023]
[1334,{"$error":"#NAME?"},{"$error":"#NAME?"},{"$error":"#NAME?"},{"$error":"#NAME?"},null,{"$f":"NR_to_Cash!C$9","v":-155327},{"$f":"NR_to_Cash!D$9","v":-283877},{"$f":"NR_to_Cash!E$9","v":-105647},{"$f":"NR_to_Cash!F$9","v":-78023},null,1334,-10089.051977010809,-15982.138859852872,2006.9960801208647,5069.2549035226875,null,-155327,-283877,-105647,-78023]
[1335,{"$error":"#NAME?"},{"$error":"#NAME?"},{"$error":"#NAME?"},{"$error":"#NAME?"},null,{"$f":"NR_to_Cash!C$9","v":-155327},{"$f":"NR_to_Cash!D$9","v":-283877},{"$f":"NR_to_Cash!E$9","v":-105647},{"$f":"NR_to_Cash!F$9","v":-78023},null,1335,-10113.146961219776,-24633.25501220017,-15125.082667325409,-6161.2995853645843,null,-155327,-283877,-105647,-78023]
[1336,{"$error":"#NAME?"},{"$error":"#NAME?"},{"$error":"#NAME?"},{"$error":"#NAME?"},null,{"$f":"NR_to_Cash!C$9","v":-155327},{"$f":"NR_to_Cash!D$9","v":-283877},{"$f":"NR_to_Cash!E$9","v":-105647},{"$f":"NR_to_Cash!F$9","v":-78023},null,1336,-1075.2334121559484,-17516.44008581301,-15041.020106486065,5340.659607098426,null,-155327,-283877,-105647,-78023]
[1337,{"$error":"#NAME?"},{"$error":"#NAME?"},{"$error":"#NAME?"},{"$error":"#NAME?"},null,{"$f":"NR_to_Cash!C$9","v":-155327},{"$f":"NR_to_Cash!D$9","v":-283877},{"$f":"NR_to_Cash!E$9","v":-105647},{"$f":"NR_to_Cash!F$9","v":-78023},null,1337,-18170.655016367888,-18480.635315948886,-5118.8544662486538,-18647.03971344007,null,-155327,-283877,-105647,-78023]
[1338,{"$error":"#NAME?"},{"$error":"#NAME?"},{"$error":"#NAME?"},{"$error":"#NAME?"},null,{"$f":"NR_to_Cash!C$9","v":-155327},{"$f":"NR_to_Cash!D$9","v":-283877},{"$f":"NR_to_Cash!E$9","v":-105647},{"$f":"NR_to_Cash!F$9","v":-78023},null,1338,-16.075154844384077,4692.8670049681268,10774.694299845396,1479.1910668351122,null,-155327,-283877,-105647,-78023]
[1339,{"$error":"#NAME?"},{"$error":"#NAME?"},{"$error":"#NAME?"},{"$error":"#NAME?"},null,{"$f":"NR_to_Cash!C$9","v":-155327},{"$f":"NR_to_Cash!D$9","v":-283877},{"$f":"NR_to_Cash!E$9","v":-105647},{"$f":"NR_to_Cash!F$9","v":-78023},null,1339,-21730.879605261925,-12821.427274572328,-28187.347941481334,-25139.838805995321,null,-155327,-283877,-105647,-78023]
[1340,{"$error":"#NAME?"},{"$error":"#NAME?"},{"$error":"#NAME?"},{"$error":"#NAME?"},null,{"$f":"NR_to_Cash!C$9","v":-155327},{"$f":"NR_to_Cash!D$9","v":-283877},{"$f":"NR_to_Cash!E$9","v":-105647},{"$f":"NR_to_Cash!F$9","v":-78023},null,1340,-4680.9244242854693,16435.469423291259,16110.683705631887,-18640.648671165181,null,-155327,-283877,-105647,-78023]
[1341,{"$error":"#NAME?"},{"$error":"#NAME?"},{"$error":"#NAME?"},{"$error":"#NAME?"},null,{"$f":"NR_to_Cash!C$9","v":-155327},{"$f":"NR_to_Cash!D$9","v":-283877},{"$f":"NR_to_Cash!E$9","v":-105647},{"$f":"NR_to_Cash!F$9","v":-78023},null,1341,-8305.3396059453225,-12371.915920579288,11504.376485676627,-1704.1005540590029,null,-155327,-283877,-105647,-78023]
[1342,{"$error":"#NAME?"},{"$error":"#NAME?"},{"$error":"#NAME?"},{"$error":"#NAME?"},null,{"$f":"NR_to_Cash!C$9","v":-155327},{"$f":"NR_to_Cash!D$9","v":-283877},{"$f":"NR_to_Cash!E$9","v":-105647},{"$f":"NR_to_Cash!F$9","v":-78023},null,1342,-10632.62910305171,-23208.792997036573,12502.889443237562,196.18575814955841,null,-155327,-283877,-105647,-78023]
[1343,{"$error":"#NAME?"},{"$error":"#NAME?"},{"$error":"#NAME?"},{"$error":"#NAME?"},null,{"$f":"NR_to_Cash!C$9","v":-155327},{"$f":"NR_to_Cash!D$9","v":-283877},{"$f":"NR_to_Cash!E$9","v":-105647},{"$f":"NR_to_Cash!F$9","v":-78023},null,1343,-5071.9468622480772,908.75889827461344,-28156.645754023262,-1080.0840115169067,null,-155327,-283877,-105647,-78023]
[1344,{"$error":"#NAME?"},{"$error":"#NAME?"},{"$error":"#NAME?"},{"$error":"#NAME?"},null,{"$f":"NR_to_Cash!C$9","v":-155327},{"$f":"NR_to_Cash!D$9","v":-283877},{"$f":"NR_to_Cash!E$9","v":-105647},{"$f":"NR_to_Cash!F$9","v":-78023},null,1344,-6180.0871158315913,-27360.980059001249,20540.327676342531,-36890.255149799574,null,-155327,-283877,-105647,-78023]
[1345,{"$error":"#NAME?"},{"$error":"#NAME?"},{"$error":"#NAME?"},{"$error":"#NAME?"},null,{"$f":"NR_to_Cash!C$9","v":-155327},{"$f":"NR_to_Cash!D$9","v":-283877},{"$f":"NR_to_Cash!E$9","v":-105647},{"$f":"NR_to_Cash!F$9","v":-78023},null,1345,-14631.6791262897,-17755.149561832179,8637.8536022136395,14956.383502010114,null,-155327,-283877,-105647,-78023]
[1346,{"$error":"#NAME?"},{"$error":"#NAME?"},{"$error":"#NAME?"},{"$error":"#NAME?"},null,{"$f":"NR_to_Cash!C$9","v":-155327},{"$f":"NR_to_Cash!D$9","v":-283877},{"$f":"NR_to_Cash!E$9","v":-105647},{"$f":"NR_to_Cash!F$9","v":-78023},null,1346,-21022.102596457866,-13315.513606846886,-15905.791293445998,-3120.6418946291683,null,-155327,-283877,-105647,-78023]
[1347,{"$error":"#NAME?"},{"$error":"#NAME?"},{"$error":"#NAME?"},{"$error":"#NAME?"},null,{"$f":"NR_to_Cash!C$9","v":-155327},{"$f":"NR_to_Cash!D$9","v":-283877},{"$f":"NR_to_Cash!E$9","v":-105647},{"$f":"NR_to_Cash!F$9","v":-78023},null,1347,-4976.818174317219,-28137.877004476777,13436.157716124468,-5939.6308723382426,null,-155327,-283877,-105647,-78023]
[1348,{"$error":"#NAME?"},{"$error":"#NAME?"},{"$error":"#NAME?"},{"$error":"#NAME?"},null,{"$f":"NR_to_Cash!C$9","v":-155327},{"$f":"NR_to_Cash!D$9","v":-283877},{"$f":"NR_to_Cash!E$9","v":-105647},{"$f":"NR_to_Cash!F$9","v":-78023},null,1348,-26357.494479107732,-24518.428423647383,7827.1353071504154,-28031.664432459238,null,-155327,-283877,-105647,-78023]
[1349,{"$error":"#NAME?"},{"$error":"#NAME?"},{"$error":"#NAME?"},{"$error":"#NAME?"},null,{"$f":"NR_to_Cash!C$9","v":-155327},{"$f":"NR_to_Cash!D$9","v":-283877},{"$f":"NR_to_Cash!E$9","v":-105647},{"$f":"NR_to_Cash!F$9","v":-78023},null,1349,-7978.4590634774686,-11630.077321832907,122.88041155596713,-14651.686019287972,null,-155327,-283877,-105647,-78023]
[1350,{"$error":"#NAME?"},{"$error":"#NAME?"},{"$error":"#NAME?"},{"$error":"#NAME?"},null,{"$f":"NR_to_Cash!C$9","v":-155327},{"$f":"NR_to_Cash!D$9","v":-283877},{"$f":"NR_to_Cash!E$9","v":-105647},{"$f":"NR_to_Cash!F$9","v":-78023},null,1350,-2754.3322716473781,8960.5234977983946,9729.0218080154409,-5942.6983563596168,null,-155327,-283877,-105647,-78023]
[1351,{"$error":"#NAME?"},{"$error":"#NAME?"},{"$error":"#NAME?"},{"$error":"#NAME?"},null,{"$f":"NR_to_Cash!C$9","v":-155327},{"$f":"NR_to_Cash!D$9","v":-283877},{"$f":"NR_to_Cash!E$9","v":-105647},{"$f":"NR_to_Cash!F$9","v":-78023},null,1351,-21459.639753897463,102.2402486233446,13271.98264283764,4970.4352287715055,null,-155327,-283877,-105647,-78023]
[1352,{"$error":"#NAME?"},{"$error":"#NAME?"},{"$error":"#NAME?"},{"$error":"#NAME?"},null,{"$f":"NR_to_Cash!C$9","v":-155327},{"$f":"NR_to_Cash!D$9","v":-283877},{"$f":"NR_to_Cash!E$9","v":-105647},{"$f":"NR_to_Cash!F$9","v":-78023},null,1352,-10184.99911621759,2854.2262314657837,-30140.18104752716,-8211.1758288743222,null,-155327,-283877,-105647,-78023]
[1353,{"$error":"#NAME?"},{"$error":"#NAME?"},{"$error":"#NAME?"},{"$error":"#NAME?"},null,{"$f":"NR_to_Cash!C$9","v":-155327},{"$f":"NR_to_Cash!D$9","v":-283877},{"$f":"NR_to_Cash!E$9","v":-105647},{"$f":"NR_to_Cash!F$9","v":-78023},null,1353,-12552.767667475662,-5008.7288496512037,-17826.697458153256,-20492.157853433975,null,-155327,-283877,-105647,-78023]
[1354,{"$error":"#NAME?"},{"$error":"#NAME?"},{"$error":"#NAME?"},{"$error":"#NAME?"},null,{"$f":"NR_to_Cash!C$9","v":-155327},{"$f":"NR_to_Cash!D$9","v":-283877},{"$f":"NR_to_Cash!E$9","v":-105647},{"$f":"NR_to_Cash!F$9","v":-78023},null,1354,2842.5699403089902,-22217.229629059981,-11186.865814442601,-10357.650618831782,null,-155327,-283877,-105647,-78023]
[1355,{"$error":"#NAME?"},{"$error":"#NAME?"},{"$error":"#NAME?"},{"$error":"#NAME?"},null,{"$f":"NR_to_Cash!C$9","v":-155327},{"$f":"NR_to_Cash!D$9","v":-283877},{"$f":"NR_to_Cash!E$9","v":-105647},{"$f":"NR_to_Cash!F$9","v":-78023},null,1355,-13943.786912098141,-1512.9150887863452,-16660.071808975415,-23597.180403350547,null,-155327,-283877,-105647,-78023]
[1356,{"$error":"#NAME?"},{"$error":"#NAME?"},{"$error":"#NAME?"},{"$error":"#NAME?"},null,{"$f":"NR_to_Cash!C$9","v":-155327},{"$f":"NR_to_Cash!D$9","v":-283877},{"$f":"NR_to_Cash!E$9","v":-105647},{"$f":"NR_to_Cash!F$9","v":-78023},null,1356,-3172.3991673295159,-19636.609680714082,-8573.6285765859684,-22252.199029129377,null,-155327,-283877,-105647,-78023]
[1357,{"$error":"#NAME?"},{"$error":"#NAME?"},{"$error":"#NAME?"},{"$error":"#NAME?"},null,{"$f":"NR_to_Cash!C$9","v":-155327},{"$f":"NR_to_Cash!D$9","v":-283877},{"$f":"NR_to_Cash!E$9","v":-105647},{"$f":"NR_to_Cash!F$9","v":-78023},null,1357,-16239.547820139665,-12240.34957828135,-7545.8795657424398,3864.2884222737002,null,-155327,-283877,-105647,-78023]
[1358,{"$error":"#NAME?"},{"$error":"#NAME?"},{"$error":"#NAME?"},{"$error":"#NAME?"},null,{"$f":"NR_to_Cash!C$9","v":-155327},{"$f":"NR_to_Cash!D$9","v":-283877},{"$f":"NR_to_Cash!E$9","v":-105647},{"$f":"NR_to_Cash!F$9","v":-78023},null,1358,-2537.6337650127116,-6909.11581083084,1100.9235973122304,-35493.646394943135,null,-155327,-283877,-105647,-78023]
[1359,{"$error":"#NAME?"},{"$error":"#NAME?"},{"$error":"#NAME?"},{"$error":"#NAME?"},null,{"$f":"NR_to_Cash!C$9","v":-155327},{"$f":"NR_to_Cash!D$9","v":-283877},{"$f":"NR_to_Cash!E$9","v":-105647},{"$f":"NR_to_Cash!F$9","v":-78023},null,1359,-25383.362823483705,-7337.6352691583215,-5316.9621525960893,-29547.876324894027,null,-155327,-283877,-105647,-78023]
[1360,{"$error":"#NAME?"},{"$error":"#NAME?"},{"$error":"#NAME?"},{"$error":"#NAME?"},null,{"$f":"NR_to_Cash!C$9","v":-155327},{"$f":"NR_to_Cash!D$9","v":-283877},{"$f":"NR_to_Cash!E$9","v":-105647},{"$f":"NR_to_Cash!F$9","v":-78023},null,1360,-15044.602241642933,-11149.753721427509,-25670.423036192711,-23112.847778371935,null,-155327,-283877,-105647,-78023]
[1361,{"$error":"#NAME?"},{"$error":"#NAME?"},{"$error":"#NAME?"},{"$error":"#NAME?"},null,{"$f":"NR_to_Cash!C$9","v":-155327},{"$f":"NR_to_Cash!D$9","v":-283877},{"$f":"NR_to_Cash!E$9","v":-105647},{"$f":"NR_to_Cash!F$9","v":-78023},null,1361,-13108.630278563833,-9762.6053206428278,-3103.6862136449663,-3780.8645758637213,null,-155327,-283877,-105647,-78023]
[1362,{"$error":"#NAME?"},{"$error":"#NAME?"},{"$error":"#NAME?"},{"$error":"#NAME?"},null,{"$f":"NR_to_Cash!C$9","v":-155327},{"$f":"NR_to_Cash!D$9","v":-283877},{"$f":"NR_to_Cash!E$9","v":-105647},{"$f":"NR_to_Cash!F$9","v":-78023},null,1362,8145.0410362895564,-8061.2945607675656,-12038.577101538471,-1639.4096506675573,null,-155327,-283877,-105647,-78023]
[1363,{"$error":"#NAME?"},{"$error":"#NAME?"},{"$error":"#NAME?"},{"$error":"#NAME?"},null,{"$f":"NR_to_Cash!C$9","v":-155327},{"$f":"NR_to_Cash!D$9","v":-283877},{"$f":"NR_to_Cash!E$9","v":-105647},{"$f":"NR_to_Cash!F$9","v":-78023},null,1363,-14049.661267846472,-20161.517751709795,-14657.005802103718,-11174.936664929957,null,-155327,-283877,-105647,-78023]
[1364,{"$error":"#NAME?"},{"$error":"#NAME?"},{"$error":"#NAME?"},{"$error":"#NAME?"},null,{"$f":"NR_to_Cash!C$9","v":-155327},{"$f":"NR_to_Cash!D$9","v":-283877},{"$f":"NR_to_Cash!E$9","v":-105647},{"$f":"NR_to_Cash!F$9","v":-78023},null,1364,-9377.4139838356969,-23156.424735126759,-33523.189686988357,-35356.430519602422,null,-155327,-283877,-105647,-78023]
[1365,{"$error":"#NAME?"},{"$error":"#NAME?"},{"$error":"#NAME?"},{"$error":"#NAME?"},null,{"$f":"NR_to_Cash!C$9","v":-155327},{"$f":"NR_to_Cash!D$9","v":-283877},{"$f":"NR_to_Cash!E$9","v":-105647},{"$f":"NR_to_Cash!F$9","v":-78023},null,1365,-8598.2623479279137,-14409.2685157464,-23695.979888417114,-16496.824231178547,null,-155327,-283877,-105647,-78023]
[1366,{"$error":"#NAME?"},{"$error":"#NAME?"},{"$error":"#NAME?"},{"$error":"#NAME?"},null,{"$f":"NR_to_Cash!C$9","v":-155327},{"$f":"NR_to_Cash!D$9","v":-283877},{"$f":"NR_to_Cash!E$9","v":-105647},{"$f":"NR_to_Cash!F$9","v":-78023},null,1366,-17235.481075131866,-11636.155922016036,1604.3185447939986,-11152.842194540348,null,-155327,-283877,-105647,-78023]
[1367,{"$error":"#NAME?"},{"$error":"#NAME?"},{"$error":"#NAME?"},{"$error":"#NAME?"},null,{"$f":"NR_to_Cash!C$9","v":-155327},{"$f":"NR_to_Cash!D$9","v":-283877},{"$f":"NR_to_Cash!E$9","v":-105647},{"$f":"NR_to_Cash!F$9","v":-78023},null,1367,-14924.560669464194,-13962.494046927801,-10154.66421798183,-8432.9502311233009,null,-155327,-283877,-105647,-78023]
[1368,{"$error":"#NAME?"},{"$error":"#NAME?"},{"$error":"#NAME?"},{"$error":"#NAME?"},null,{"$f":"NR_to_Cash!C$9","v":-155327},{"$f":"NR_to_Cash!D$9","v":-283877},{"$f":"NR_to_Cash!E$9","v":-105647},{"$f":"NR_to_Cash!F$9","v":-78023},null,1368,-4052.6778415713206,-15999.42388584205,-5331.284594024085,-25846.592706825755,null,-155327,-283877,-105647,-78023]
[1369,{"$error":"#NAME?"},{"$error":"#NAME?"},{"$error":"#NAME?"},{"$error":"#NAME?"},null,{"$f":"NR_to_Cash!C$9","v":-155327},{"$f":"NR_to_Cash!D$9","v":-283877},{"$f":"NR_to_Cash!E$9","v":-105647},{"$f":"NR_to_Cash!F$9","v":-78023},null,1369,-13083.133897755863,9616.9399704433636,-5780.8863996090695,-8196.484556111056,null,-155327,-283877,-105647,-78023]
[1370,{"$error":"#NAME?"},{"$error":"#NAME?"},{"$error":"#NAME?"},{"$error":"#NAME?"},null,{"$f":"NR_to_Cash!C$9","v":-155327},{"$f":"NR_to_Cash!D$9","v":-283877},{"$f":"NR_to_Cash!E$9","v":-105647},{"$f":"NR_to_Cash!F$9","v":-78023},null,1370,-5059.7288300794899,-14766.781547263727,12880.724249841693,-29859.367232400837,null,-155327,-283877,-105647,-78023]
[1371,{"$error":"#NAME?"},{"$error":"#NAME?"},{"$error":"#NAME?"},{"$error":"#NAME?"},null,{"$f":"NR_to_Cash!C$9","v":-155327},{"$f":"NR_to_Cash!D$9","v":-283877},{"$f":"NR_to_Cash!E$9","v":-105647},{"$f":"NR_to_Cash!F$9","v":-78023},null,1371,-27274.303815971696,-4454.1847168515433,-13653.112451838135,-13242.569731461599,null,-155327,-283877,-105647,-78023]
[1372,{"$error":"#NAME?"},{"$error":"#NAME?"},{"$error":"#NAME?"},{"$error":"#NAME?"},null,{"$f":"NR_to_Cash!C$9","v":-155327},{"$f":"NR_to_Cash!D$9","v":-283877},{"$f":"NR_to_Cash!E$9","v":-105647},{"$f":"NR_to_Cash!F$9","v":-78023},null,1372,-12442.243899178149,-16350.179671634123,-20473.207280984137,-13278.399493515857,null,-155327,-283877,-105647,-78023]
[1373,{"$error":"#NAME?"},{"$error":"#NAME?"},{"$error":"#NAME?"},{"$error":"#NAME?"},null,{"$f":"NR_to_Cash!C$9","v":-155327},{"$f":"NR_to_Cash!D$9","v":-283877},{"$f":"NR_to_Cash!E$9","v":-105647},{"$f":"NR_to_Cash!F$9","v":-78023},null,1373,-16500.313803570923,-3779.6102532753412,-4623.5049701452081,-21168.861285097148,null,-155327,-283877,-105647,-78023]
[1374,{"$error":"#NAME?"},{"$error":"#NAME?"},{"$error":"#NAME?"},{"$error":"#NAME?"},null,{"$f":"NR_to_Cash!C$9","v":-155327},{"$f":"NR_to_Cash!D$9","v":-283877},{"$f":"NR_to_Cash!E$9","v":-105647},{"$f":"NR_to_Cash!F$9","v":-78023},null,1374,-18896.305205939443,-10523.420267563522,-40174.335237392108,-7034.5131235657391,null,-155327,-283877,-105647,-78023]
[1375,{"$error":"#NAME?"},{"$error":"#NAME?"},{"$error":"#NAME?"},{"$error":"#NAME?"},null,{"$f":"NR_to_Cash!C$9","v":-155327},{"$f":"NR_to_Cash!D$9","v":-283877},{"$f":"NR_to_Cash!E$9","v":-105647},{"$f":"NR_to_Cash!F$9","v":-78023},null,1375,-9359.1615802318192,-5271.7750326707737,-12675.839379828505,13604.824369889695,null,-155327,-283877,-105647,-78023]
[1376,{"$error":"#NAME?"},{"$error":"#NAME?"},{"$error":"#NAME?"},{"$error":"#NAME?"},null,{"$f":"NR_to_Cash!C$9","v":-155327},{"$f":"NR_to_Cash!D$9","v":-283877},{"$f":"NR_to_Cash!E$9","v":-105647},{"$f":"NR_to_Cash!F$9","v":-78023},null,1376,-17562.28889042107,464.91832709061117,-10538.050185016846,-15938.660477815149,null,-155327,-283877,-105647,-78023]
[1377,{"$error":"#NAME?"},{"$error":"#NAME?"},{"$error":"#NAME?"},{"$error":"#NAME?"},null,{"$f":"NR_to_Cash!C$9","v":-155327},{"$f":"NR_to_Cash!D$9","v":-283877},{"$f":"NR_to_Cash!E$9","v":-105647},{"$f":"NR_to_Cash!F$9","v":-78023},null,1377,-17970.068826145889,-25672.551018755446,-38449.658604718803,-3828.8492877780291,null,-155327,-283877,-105647,-78023]
[1378,{"$error":"#NAME?"},{"$error":"#NAME?"},{"$error":"#NAME?"},{"$error":"#NAME?"},null,{"$f":"NR_to_Cash!C$9","v":-155327},{"$f":"NR_to_Cash!D$9","v":-283877},{"$f":"NR_to_Cash!E$9","v":-105647},{"$f":"NR_to_Cash!F$9","v":-78023},null,1378,-367.9377547493325,-25341.264412640732,4733.8527572638041,-20239.703744621977,null,-155327,-283877,-105647,-78023]
[1379,{"$error":"#NAME?"},{"$error":"#NAME?"},{"$error":"#NAME?"},{"$error":"#NAME?"},null,{"$f":"NR_to_Cash!C$9","v":-155327},{"$f":"NR_to_Cash!D$9","v":-283877},{"$f":"NR_to_Cash!E$9","v":-105647},{"$f":"NR_to_Cash!F$9","v":-78023},null,1379,-17657.843134618553,9413.2384648769021,-32938.353390238561,-24190.874012216424,null,-155327,-283877,-105647,-78023]
[1380,{"$error":"#NAME?"},{"$error":"#NAME?"},{"$error":"#NAME?"},{"$error":"#NAME?"},null,{"$f":"NR_to_Cash!C$9","v":-155327},{"$f":"NR_to_Cash!D$9","v":-283877},{"$f":"NR_to_Cash!E$9","v":-105647},{"$f":"NR_to_Cash!F$9","v":-78023},null,1380,-4671.1565338901137,-5662.2244817236133,11632.857415407432,1405.4679395448265,null,-155327,-283877,-105647,-78023]
[1381,{"$error":"#NAME?"},{"$error":"#NAME?"},{"$error":"#NAME?"},{"$error":"#NAME?"},null,{"$f":"NR_to_Cash!C$9","v":-155327},{"$f":"NR_to_Cash!D$9","v":-283877},{"$f":"NR_to_Cash!E$9","v":-105647},{"$f":"NR_to_Cash!F$9","v":-78023},null,1381,-4727.55590985253,-7704.8186428669351,-13402.666214821742,-13127.724868046898,null,-155327,-283877,-105647,-78023]
[1382,{"$error":"#NAME?"},{"$error":"#NAME?"},{"$error":"#NAME?"},{"$error":"#NAME?"},null,{"$f":"NR_to_Cash!C$9","v":-155327},{"$f":"NR_to_Cash!D$9","v":-283877},{"$f":"NR_to_Cash!E$9","v":-105647},{"$f":"NR_to_Cash!F$9","v":-78023},null,1382,-12983.115261937506,-3466.1070657057062,-13922.718509374323,7582.6220783286299,null,-155327,-283877,-105647,-78023]
[1383,{"$error":"#NAME?"},{"$error":"#NAME?"},{"$error":"#NAME?"},{"$error":"#NAME?"},null,{"$f":"NR_to_Cash!C$9","v":-155327},{"$f":"NR_to_Cash!D$9","v":-283877},{"$f":"NR_to_Cash!E$9","v":-105647},{"$f":"NR_to_Cash!F$9","v":-78023},null,1383,-13853.674515001218,-577.20862789073487,-25098.743774184444,1725.7396270446072,null,-155327,-283877,-105647,-78023]
[1384,{"$error":"#NAME?"},{"$error":"#NAME?"},{"$error":"#NAME?"},{"$error":"#NAME?"},null,{"$f":"NR_to_Cash!C$9","v":-155327},{"$f":"NR_to_Cash!D$9","v":-283877},{"$f":"NR_to_Cash!E$9","v":-105647},{"$f":"NR_to_Cash!F$9","v":-78023},null,1384,-11397.178890200557,8224.5304704869723,14004.854565996091,-22080.138392421908,null,-155327,-283877,-105647,-78023]
[1385,{"$error":"#NAME?"},{"$error":"#NAME?"},{"$error":"#NAME?"},{"$error":"#NAME?"},null,{"$f":"NR_to_Cash!C$9","v":-155327},{"$f":"NR_to_Cash!D$9","v":-283877},{"$f":"NR_to_Cash!E$9","v":-105647},{"$f":"NR_to_Cash!F$9","v":-78023},null,1385,-14360.304131485289,-23028.281626182619,-5246.8652710360011,-20429.248305102319,null,-155327,-283877,-105647,-78023]
[1386,{"$error":"#NAME?"},{"$error":"#NAME?"},{"$error":"#NAME?"},{"$error":"#NAME?"},null,{"$f":"NR_to_Cash!C$9","v":-155327},{"$f":"NR_to_Cash!D$9","v":-283877},{"$f":"NR_to_Cash!E$9","v":-105647},{"$f":"NR_to_Cash!F$9","v":-78023},null,1386,-3486.9320072944047,10681.519101247168,21179.964064218442,-6235.426112609568,null,-155327,-283877,-105647,-78023]
[1387,{"$error":"#NAME?"},{"$error":"#NAME?"},{"$error":"#NAME?"},{"$error":"#NAME?"},null,{"$f":"NR_to_Cash!C$9","v":-155327},{"$f":"NR_to_Cash!D$9","v":-283877},{"$f":"NR_to_Cash!E$9","v":-105647},{"$f":"NR_to_Cash!F$9","v":-78023},null,1387,-6863.7026642156834,-13968.867182666043,-17605.671557912214,-2454.3853506837545,null,-155327,-283877,-105647,-78023]
[1388,{"$error":"#NAME?"},{"$error":"#NAME?"},{"$error":"#NAME?"},{"$error":"#NAME?"},null,{"$f":"NR_to_Cash!C$9","v":-155327},{"$f":"NR_to_Cash!D$9","v":-283877},{"$f":"NR_to_Cash!E$9","v":-105647},{"$f":"NR_to_Cash!F$9","v":-78023},null,1388,-4322.973007560262,-21471.825446150073,-4437.7974204275297,-19579.240846135835,null,-155327,-283877,-105647,-78023]
[1389,{"$error":"#NAME?"},{"$error":"#NAME?"},{"$error":"#NAME?"},{"$error":"#NAME?"},null,{"$f":"NR_to_Cash!C$9","v":-155327},{"$f":"NR_to_Cash!D$9","v":-283877},{"$f":"NR_to_Cash!E$9","v":-105647},{"$f":"NR_to_Cash!F$9","v":-78023},null,1389,-36922.106027996182,-18446.199797276186,-12912.975900738871,-21954.14486200875,null,-155327,-283877,-105647,-78023]
[1390,{"$error":"#NAME?"},{"$error":"#NAME?"},{"$error":"#NAME?"},{"$error":"#NAME?"},null,{"$f":"NR_to_Cash!C$9","v":-155327},{"$f":"NR_to_Cash!D$9","v":-283877},{"$f":"NR_to_Cash!E$9","v":-105647},{"$f":"NR_to_Cash!F$9","v":-78023},null,1390,-13367.78319771263,-22442.848652782173,6683.3099061588036,-5965.4782116820434,null,-155327,-283877,-105647,-78023]
[1391,{"$error":"#NAME?"},{"$error":"#NAME?"},{"$error":"#NAME?"},{"$error":"#NAME?"},null,{"$f":"NR_to_Cash!C$9","v":-155327},{"$f":"NR_to_Cash!D$9","v":-283877},{"$f":"NR_to_Cash!E$9","v":-105647},{"$f":"NR_to_Cash!F$9","v":-78023},null,1391,5843.7383719174131,-17244.536662931714,-46497.114016623156,-11763.178761496225,null,-155327,-283877,-105647,-78023]
[1392,{"$error":"#NAME?"},{"$error":"#NAME?"},{"$error":"#NAME?"},{"$error":"#NAME?"},null,{"$f":"NR_to_Cash!C$9","v":-155327},{"$f":"NR_to_Cash!D$9","v":-283877},{"$f":"NR_to_Cash!E$9","v":-105647},{"$f":"NR_to_Cash!F$9","v":-78023},null,1392,-3348.349625690093,2705.517418077286,-16885.579602280792,17467.401320337103,null,-155327,-283877,-105647,-78023]
[1393,{"$error":"#NAME?"},{"$error":"#NAME?"},{"$error":"#NAME?"},{"$error":"#NAME?"},null,{"$f":"NR_to_Cash!C$9","v":-155327},{"$f":"NR_to_Cash!D$9","v":-283877},{"$f":"NR_to_Cash!E$9","v":-105647},{"$f":"NR_to_Cash!F$9","v":-78023},null,1393,-9479.1229852498254,-12546.05169710806,2639.065639007717,605.08071577028625,null,-155327,-283877,-105647,-78023]
[1394,{"$error":"#NAME?"},{"$error":"#NAME?"},{"$error":"#NAME?"},{"$error":"#NAME?"},null,{"$f":"NR_to_Cash!C$9","v":-155327},{"$f":"NR_to_Cash!D$9","v":-283877},{"$f":"NR_to_Cash!E$9","v":-105647},{"$f":"NR_to_Cash!F$9","v":-78023},null,1394,8528.0074387401255,-3897.1869146822601,-9890.4259070437474,-14805.527722003382,null,-155327,-283877,-105647,-78023]
[1395,{"$error":"#NAME?"},{"$error":"#NAME?"},{"$error":"#NAME?"},{"$error":"#NAME?"},null,{"$f":"NR_to_Cash!C$9","v":-155327},{"$f":"NR_to_Cash!D$9","v":-283877},{"$f":"NR_to_Cash!E$9","v":-105647},{"$f":"NR_to_Cash!F$9","v":-78023},null,1395,-15023.131872904894,-27538.081669902891,-12385.187901376663,-16393.214152570399,null,-155327,-283877,-105647,-78023]
[1396,{"$error":"#NAME?"},{"$error":"#NAME?"},{"$error":"#NAME?"},{"$error":"#NAME?"},null,{"$f":"NR_to_Cash!C$9","v":-155327},{"$f":"NR_to_Cash!D$9","v":-283877},{"$f":"NR_to_Cash!E$9","v":-105647},{"$f":"NR_to_Cash!F$9","v":-78023},null,1396,3408.8492218946603,-26080.046619618159,-42490.51851968054,9133.8997589125138,null,-155327,-283877,-105647,-78023]
[1397,{"$error":"#NAME?"},{"$error":"#NAME?"},{"$error":"#NAME?"},{"$error":"#NAME?"},null,{"$f":"NR_to_Cash!C$9","v":-155327},{"$f":"NR_to_Cash!D$9","v":-283877},{"$f":"NR_to_Cash!E$9","v":-105647},{"$f":"NR_to_Cash!F$9","v":-78023},null,1397,-14727.488212550317,753.69060309486929,-18681.563850392053,12573.871688634175,null,-155327,-283877,-105647,-78023]
[1398,{"$error":"#NAME?"},{"$error":"#NAME?"},{"$error":"#NAME?"},{"$error":"#NAME?"},null,{"$f":"NR_to_Cash!C$9","v":-155327},{"$f":"NR_to_Cash!D$9","v":-283877},{"$f":"NR_to_Cash!E$9","v":-105647},{"$f":"NR_to_Cash!F$9","v":-78023},null,1398,-7280.262634378988,-8052.374057925379,-14425.698677290198,-23591.882238959883,null,-155327,-283877,-105647,-78023]
[1399,{"$error":"#NAME?"},{"$error":"#NAME?"},{"$error":"#NAME?"},{"$error":"#NAME?"},null,{"$f":"NR_to_Cash!C$9","v":-155327},{"$f":"NR_to_Cash!D$9","v":-283877},{"$f":"NR_to_Cash!E$9","v":-105647},{"$f":"NR_to_Cash!F$9","v":-78023},null,1399,-21530.604345665321,-19410.680814429659,-25364.001730355842,-1147.4332320779895,null,-155327,-283877,-105647,-78023]
[1400,{"$error":"#NAME?"},{"$error":"#NAME?"},{"$error":"#NAME?"},{"$error":"#NAME?"},null,{"$f":"NR_to_Cash!C$9","v":-155327},{"$f":"NR_to_Cash!D$9","v":-283877},{"$f":"NR_to_Cash!E$9","v":-105647},{"$f":"NR_to_Cash!F$9","v":-78023},null,1400,4641.7798286638572,-14625.64713720789,-10511.89412765363,900.89373748486366,null,-155327,-283877,-105647,-78023]
[1401,{"$error":"#NAME?"},{"$error":"#NAME?"},{"$error":"#NAME?"},{"$error":"#NAME?"},null,{"$f":"NR_to_Cash!C$9","v":-155327},{"$f":"NR_to_Cash!D$9","v":-283877},{"$f":"NR_to_Cash!E$9","v":-105647},{"$f":"NR_to_Cash!F$9","v":-78023},null,1401,-16204.970228318087,-8919.4327812452975,-3774.2402892127402,-16332.211012550208,null,-155327,-283877,-105647,-78023]
[1402,{"$error":"#NAME?"},{"$error":"#NAME?"},{"$error":"#NAME?"},{"$error":"#NAME?"},null,{"$f":"NR_to_Cash!C$9","v":-155327},{"$f":"NR_to_Cash!D$9","v":-283877},{"$f":"NR_to_Cash!E$9","v":-105647},{"$f":"NR_to_Cash!F$9","v":-78023},null,1402,-5121.2050350317004,-14029.776321883453,-25785.736753806734,-3017.874472641523,null,-155327,-283877,-105647,-78023]
[1403,{"$error":"#NAME?"},{"$error":"#NAME?"},{"$error":"#NAME?"},{"$error":"#NAME?"},null,{"$f":"NR_to_Cash!C$9","v":-155327},{"$f":"NR_to_Cash!D$9","v":-283877},{"$f":"NR_to_Cash!E$9","v":-105647},{"$f":"NR_to_Cash!F$9","v":-78023},null,1403,-10062.367738932655,-5736.7475846659163,-33594.806073065105,-7972.5055855873661,null,-155327,-283877,-105647,-78023]
[1404,{"$error":"#NAME?"},{"$error":"#NAME?"},{"$error":"#NAME?"},{"$error":"#NAME?"},null,{"$f":"NR_to_Cash!C$9","v":-155327},{"$f":"NR_to_Cash!D$9","v":-283877},{"$f":"NR_to_Cash!E$9","v":-105647},{"$f":"NR_to_Cash!F$9","v":-78023},null,1404,-1823.1837152683579,-1353.6582452299681,-1374.404668904448,2558.4249898076127,null,-155327,-283877,-105647,-78023]
[1405,{"$error":"#NAME?"},{"$error":"#NAME?"},{"$error":"#NAME?"},{"$error":"#NAME?"},null,{"$f":"NR_to_Cash!C$9","v":-155327},{"$f":"NR_to_Cash!D$9","v":-283877},{"$f":"NR_to_Cash!E$9","v":-105647},{"$f":"NR_to_Cash!F$9","v":-78023},null,1405,1265.2941983146336,-13033.274503883791,-36467.733322140826,-1133.8792731670815,null,-155327,-283877,-105647,-78023]
[1406,{"$error":"#NAME?"},{"$error":"#NAME?"},{"$error":"#NAME?"},{"$error":"#NAME?"},null,{"$f":"NR_to_Cash!C$9","v":-155327},{"$f":"NR_to_Cash!D$9","v":-283877},{"$f":"NR_to_Cash!E$9","v":-105647},{"$f":"NR_to_Cash!F$9","v":-78023},null,1406,-18179.783210851427,-21576.438640910896,1549.250432573182,6641.7278253274153,null,-155327,-283877,-105647,-78023]
[1407,{"$error":"#NAME?"},{"$error":"#NAME?"},{"$error":"#NAME?"},{"$error":"#NAME?"},null,{"$f":"NR_to_Cash!C$9","v":-155327},{"$f":"NR_to_Cash!D$9","v":-283877},{"$f":"NR_to_Cash!E$9","v":-105647},{"$f":"NR_to_Cash!F$9","v":-78023},null,1407,1293.6469088797869,-9883.7420471454225,-5184.8678425937123,-6459.7300865236857,null,-155327,-283877,-105647,-78023]
[1408,{"$error":"#NAME?"},{"$error":"#NAME?"},{"$error":"#NAME?"},{"$error":"#NAME?"},null,{"$f":"NR_to_Cash!C$9","v":-155327},{"$f":"NR_to_Cash!D$9","v":-283877},{"$f":"NR_to_Cash!E$9","v":-105647},{"$f":"NR_to_Cash!F$9","v":-78023},null,1408,-1234.8386159680617,-6990.6508489512744,-7425.3235871425686,-18259.013541035936,null,-155327,-283877,-105647,-78023]
[1409,{"$error":"#NAME?"},{"$error":"#NAME?"},{"$error":"#NAME?"},{"$error":"#NAME?"},null,{"$f":"NR_to_Cash!C$9","v":-155327},{"$f":"NR_to_Cash!D$9","v":-283877},{"$f":"NR_to_Cash!E$9","v":-105647},{"$f":"NR_to_Cash!F$9","v":-78023},null,1409,-9714.5917122038845,-14339.380414680601,-2239.9146086945948,53.512860550264975,null,-155327,-283877,-105647,-78023]
[1410,{"$error":"#NAME?"},{"$error":"#NAME?"},{"$error":"#NAME?"},{"$error":"#NAME?"},null,{"$f":"NR_to_Cash!C$9","v":-155327},{"$f":"NR_to_Cash!D$9","v":-283877},{"$f":"NR_to_Cash!E$9","v":-105647},{"$f":"NR_to_Cash!F$9","v":-78023},null,1410,-23732.507116502427,-28738.852703002758,-8456.1871195610001,-41402.580209793043,null,-155327,-283877,-105647,-78023]
[1411,{"$error":"#NAME?"},{"$error":"#NAME?"},{"$error":"#NAME?"},{"$error":"#NAME?"},null,{"$f":"NR_to_Cash!C$9","v":-155327},{"$f":"NR_to_Cash!D$9","v":-283877},{"$f":"NR_to_Cash!E$9","v":-105647},{"$f":"NR_to_Cash!F$9","v":-78023},null,1411,-12015.149245014702,-8212.0515018154765,-7856.6053259866858,-40467.13021530323,null,-155327,-283877,-105647,-78023]
[1412,{"$error":"#NAME?"},{"$error":"#NAME?"},{"$error":"#NAME?"},{"$error":"#NAME?"},null,{"$f":"NR_to_Cash!C$9","v":-155327},{"$f":"NR_to_Cash!D$9","v":-283877},{"$f":"NR_to_Cash!E$9","v":-105647},{"$f":"NR_to_Cash!F$9","v":-78023},null,1412,8811.8160045801596,-2246.6895350134569,-17043.295033816656,-4071.5953777373502,null,-155327,-283877,-105647,-78023]
[1413,{"$error":"#NAME?"},{"$error":"#NAME?"},{"$error":"#NAME?"},{"$error":"#NAME?"},null,{"$f":"NR_to_Cash!C$9","v":-155327},{"$f":"NR_to_Cash!D$9","v":-283877},{"$f":"NR_to_Cash!E$9","v":-105647},{"$f":"NR_to_Cash!F$9","v":-78023},null,1413,-19338.357900829244,-16735.541596267751,-177.86497017863616,14153.433558702416,null,-155327,-283877,-105647,-78023]
[1414,{"$error":"#NAME?"},{"$error":"#NAME?"},{"$error":"#NAME?"},{"$error":"#NAME?"},null,{"$f":"NR_to_Cash!C$9","v":-155327},{"$f":"NR_to_Cash!D$9","v":-283877},{"$f":"NR_to_Cash!E$9","v":-105647},{"$f":"NR_to_Cash!F$9","v":-78023},null,1414,1814.8307614221665,-10021.422994498289,2370.1839953211929,5933.5189905106363,null,-155327,-283877,-105647,-78023]
[1415,{"$error":"#NAME?"},{"$error":"#NAME?"},{"$error":"#NAME?"},{"$error":"#NAME?"},null,{"$f":"NR_to_Cash!C$9","v":-155327},{"$f":"NR_to_Cash!D$9","v":-283877},{"$f":"NR_to_Cash!E$9","v":-105647},{"$f":"NR_to_Cash!F$9","v":-78023},null,1415,-3285.1025728863497,-2968.7441139535185,11703.384822966533,-19645.208438495985,null,-155327,-283877,-105647,-78023]
[1416,{"$error":"#NAME?"},{"$error":"#NAME?"},{"$error":"#NAME?"},{"$error":"#NAME?"},null,{"$f":"NR_to_Cash!C$9","v":-155327},{"$f":"NR_to_Cash!D$9","v":-283877},{"$f":"NR_to_Cash!E$9","v":-105647},{"$f":"NR_to_Cash!F$9","v":-78023},null,1416,10150.744542407338,7410.1993171859922,-17846.1420537226,8094.1257318410489,null,-155327,-283877,-105647,-78023]
[1417,{"$error":"#NAME?"},{"$error":"#NAME?"},{"$error":"#NAME?"},{"$error":"#NAME?"},null,{"$f":"NR_to_Cash!C$9","v":-155327},{"$f":"NR_to_Cash!D$9","v":-283877},{"$f":"NR_to_Cash!E$9","v":-105647},{"$f":"NR_to_Cash!F$9","v":-78023},null,1417,-20540.601048557983,-2575.868751361189,-31974.777547303958,-11576.143149676509,null,-155327,-283877,-105647,-78023]
[1418,{"$error":"#NAME?"},{"$error":"#NAME?"},{"$error":"#NAME?"},{"$error":"#NAME?"},null,{"$f":"NR_to_Cash!C$9","v":-155327},{"$f":"NR_to_Cash!D$9","v":-283877},{"$f":"NR_to_Cash!E$9","v":-105647},{"$f":"NR_to_Cash!F$9","v":-78023},null,1418,-29316.193722059783,-4867.2941765545174,14593.291583191985,-13570.210234226541,null,-155327,-283877,-105647,-78023]
[1419,{"$error":"#NAME?"},{"$error":"#NAME?"},{"$error":"#NAME?"},{"$error":"#NAME?"},null,{"$f":"NR_to_Cash!C$9","v":-155327},{"$f":"NR_to_Cash!D$9","v":-283877},{"$f":"NR_to_Cash!E$9","v":-105647},{"$f":"NR_to_Cash!F$9","v":-78023},null,1419,-2430.8587574940634,-321.14772988783079,13749.950300454755,-347.6523947765221,null,-155327,-283877,-105647,-78023]
[1420,{"$error":"#NAME?"},{"$error":"#NAME?"},{"$error":"#NAME?"},{"$error":"#NAME?"},null,{"$f":"NR_to_Cash!C$9","v":-155327},{"$f":"NR_to_Cash!D$9","v":-283877},{"$f":"NR_to_Cash!E$9","v":-105647},{"$f":"NR_to_Cash!F$9","v":-78023},null,1420,-12638.902781732828,-20868.038453336045,-7547.7589173935166,-8598.3669088384395,null,-155327,-283877,-105647,-78023]
[1421,{"$error":"#NAME?"},{"$error":"#NAME?"},{"$error":"#NAME?"},{"$error":"#NAME?"},null,{"$f":"NR_to_Cash!C$9","v":-155327},{"$f":"NR_to_Cash!D$9","v":-283877},{"$f":"NR_to_Cash!E$9","v":-105647},{"$f":"NR_to_Cash!F$9","v":-78023},null,1421,-29021.737313610261,-5391.6346186127776,-9703.8872108251126,-10786.15108158666,null,-155327,-283877,-105647,-78023]
[1422,{"$error":"#NAME?"},{"$error":"#NAME?"},{"$error":"#NAME?"},{"$error":"#NAME?"},null,{"$f":"NR_to_Cash!C$9","v":-155327},{"$f":"NR_to_Cash!D$9","v":-283877},{"$f":"NR_to_Cash!E$9","v":-105647},{"$f":"NR_to_Cash!F$9","v":-78023},null,1422,-15788.554707244213,-4648.3578423666222,-15392.147937548471,-28197.913790893974,null,-155327,-283877,-105647,-78023]
[1423,{"$error":"#NAME?"},{"$error":"#NAME?"},{"$error":"#NAME?"},{"$error":"#NAME?"},null,{"$f":"NR_to_Cash!C$9","v":-155327},{"$f":"NR_to_Cash!D$9","v":-283877},{"$f":"NR_to_Cash!E$9","v":-105647},{"$f":"NR_to_Cash!F$9","v":-78023},null,1423,-11964.054795486878,13061.290783621576,-17064.134386167134,-37583.935683199663,null,-155327,-283877,-105647,-78023]
[1424,{"$error":"#NAME?"},{"$error":"#NAME?"},{"$error":"#NAME?"},{"$error":"#NAME?"},null,{"$f":"NR_to_Cash!C$9","v":-155327},{"$f":"NR_to_Cash!D$9","v":-283877},{"$f":"NR_to_Cash!E$9","v":-105647},{"$f":"NR_to_Cash!F$9","v":-78023},null,1424,-2966.3871677810339,-12037.613460220053,-21809.315718016129,-16696.819815535611,null,-155327,-283877,-105647,-78023]
[1425,{"$error":"#NAME?"},{"$error":"#NAME?"},{"$error":"#NAME?"},{"$error":"#NAME?"},null,{"$f":"NR_to_Cash!C$9","v":-155327},{"$f":"NR_to_Cash!D$9","v":-283877},{"$f":"NR_to_Cash!E$9","v":-105647},{"$f":"NR_to_Cash!F$9","v":-78023},null,1425,-365.51456348402417,7191.8284772454981,-2677.3861648384918,-9149.7335311886018,null,-155327,-283877,-105647,-78023]
[1426,{"$error":"#NAME?"},{"$error":"#NAME?"},{"$error":"#NAME?"},{"$error":"#NAME?"},null,{"$f":"NR_to_Cash!C$9","v":-155327},{"$f":"NR_to_Cash!D$9","v":-283877},{"$f":"NR_to_Cash!E$9","v":-105647},{"$f":"NR_to_Cash!F$9","v":-78023},null,1426,-21607.132331803397,6349.528328271861,-5883.9676703886425,10001.861726178291,null,-155327,-283877,-105647,-78023]
[1427,{"$error":"#NAME?"},{"$error":"#NAME?"},{"$error":"#NAME?"},{"$error":"#NAME?"},null,{"$f":"NR_to_Cash!C$9","v":-155327},{"$f":"NR_to_Cash!D$9","v":-283877},{"$f":"NR_to_Cash!E$9","v":-105647},{"$f":"NR_to_Cash!F$9","v":-78023},null,1427,-13327.49134509459,16437.995062614176,-15056.352218606966,-21114.177034835528,null,-155327,-283877,-105647,-78023]
[1428,{"$error":"#NAME?"},{"$error":"#NAME?"},{"$error":"#NAME?"},{"$error":"#NAME?"},null,{"$f":"NR_to_Cash!C$9","v":-155327},{"$f":"NR_to_Cash!D$9","v":-283877},{"$f":"NR_to_Cash!E$9","v":-105647},{"$f":"NR_to_Cash!F$9","v":-78023},null,1428,-1018.8222397668003,-16570.009145610911,-14715.863560001355,-13909.13174788865,null,-155327,-283877,-105647,-78023]
[1429,{"$error":"#NAME?"},{"$error":"#NAME?"},{"$error":"#NAME?"},{"$error":"#NAME?"},null,{"$f":"NR_to_Cash!C$9","v":-155327},{"$f":"NR_to_Cash!D$9","v":-283877},{"$f":"NR_to_Cash!E$9","v":-105647},{"$f":"NR_to_Cash!F$9","v":-78023},null,1429,-24868.237772866698,2459.9274680974859,-8725.4791786345941,-14633.400978491081,null,-155327,-283877,-105647,-78023]
[1430,{"$error":"#NAME?"},{"$error":"#NAME?"},{"$error":"#NAME?"},{"$error":"#NAME?"},null,{"$f":"NR_to_Cash!C$9","v":-155327},{"$f":"NR_to_Cash!D$9","v":-283877},{"$f":"NR_to_Cash!E$9","v":-105647},{"$f":"NR_to_Cash!F$9","v":-78023},null,1430,-20380.131854147399,12030.348717443056,-29422.033453702799,-12634.685474085119,null,-155327,-283877,-105647,-78023]
[1431,{"$error":"#NAME?"},{"$error":"#NAME?"},{"$error":"#NAME?"},{"$error":"#NAME?"},null,{"$f":"NR_to_Cash!C$9","v":-155327},{"$f":"NR_to_Cash!D$9","v":-283877},{"$f":"NR_to_Cash!E$9","v":-105647},{"$f":"NR_to_Cash!F$9","v":-78023},null,1431,-1957.3805047172227,4301.1589807567134,7164.1975579225209,-27445.733834736915,null,-155327,-283877,-105647,-78023]
[1432,{"$error":"#NAME?"},{"$error":"#NAME?"},{"$error":"#NAME?"},{"$error":"#NAME?"},null,{"$f":"NR_to_Cash!C$9","v":-155327},{"$f":"NR_to_Cash!D$9","v":-283877},{"$f":"NR_to_Cash!E$9","v":-105647},{"$f":"NR_to_Cash!F$9","v":-78023},null,1432,-26468.397213296856,-18650.483638073954,-15196.280277941441,2069.8273210458592,null,-155327,-283877,-105647,-78023]
[1433,{"$error":"#NAME?"},{"$error":"#NAME?"},{"$error":"#NAME?"},{"$error":"#NAME?"},null,{"$f":"NR_to_Cash!C$9","v":-155327},{"$f":"NR_to_Cash!D$9","v":-283877},{"$f":"NR_to_Cash!E$9","v":-105647},{"$f":"NR_to_Cash!F$9","v":-78023},null,1433,-1978.9099016601615,5019.1928104336257,-15764.429917211732,1253.6124228670847,null,-155327,-283877,-105647,-78023]
[1434,{"$error":"#NAME?"},{"$error":"#NAME?"},{"$error":"#NAME?"},{"$error":"#NAME?"},null,{"$f":"NR_to_Cash!C$9","v":-155327},{"$f":"NR_to_Cash!D$9","v":-283877},{"$f":"NR_to_Cash!E$9","v":-105647},{"$f":"NR_to_Cash!F$9","v":-78023},null,1434,-8041.0004814443291,-3185.9671353759977,4346.1871930062216,-4581.7615970239585,null,-155327,-283877,-105647,-78023]
[1435,{"$error":"#NAME?"},{"$error":"#NAME?"},{"$error":"#NAME?"},{"$error":"#NAME?"},null,{"$f":"NR_to_Cash!C$9","v":-155327},{"$f":"NR_to_Cash!D$9","v":-283877},{"$f":"NR_to_Cash!E$9","v":-105647},{"$f":"NR_to_Cash!F$9","v":-78023},null,1435,-5037.8622427447799,-4559.6976065073795,403.14905830610701,-34993.302163811255,null,-155327,-283877,-105647,-78023]
[1436,{"$error":"#NAME?"},{"$error":"#NAME?"},{"$error":"#NAME?"},{"$error":"#NAME?"},null,{"$f":"NR_to_Cash!C$9","v":-155327},{"$f":"NR_to_Cash!D$9","v":-283877},{"$f":"NR_to_Cash!E$9","v":-105647},{"$f":"NR_to_Cash!F$9","v":-78023},null,1436,-3348.313199852475,10301.444533587181,-6711.1126294671694,-35113.34035996801,null,-155327,-283877,-105647,-78023]
[1437,{"$error":"#NAME?"},{"$error":"#NAME?"},{"$error":"#NAME?"},{"$error":"#NAME?"},null,{"$f":"NR_to_Cash!C$9","v":-155327},{"$f":"NR_to_Cash!D$9","v":-283877},{"$f":"NR_to_Cash!E$9","v":-105647},{"$f":"NR_to_Cash!F$9","v":-78023},null,1437,-19442.960481429935,11823.789544247247,-37710.606955295923,7596.7940064967061,null,-155327,-283877,-105647,-78023]
[1438,{"$error":"#NAME?"},{"$error":"#NAME?"},{"$error":"#NAME?"},{"$error":"#NAME?"},null,{"$f":"NR_to_Cash!C$9","v":-155327},{"$f":"NR_to_Cash!D$9","v":-283877},{"$f":"NR_to_Cash!E$9","v":-105647},{"$f":"NR_to_Cash!F$9","v":-78023},null,1438,-12097.211469249636,-4918.6786514016421,-21982.340947589924,-21687.672423691998,null,-155327,-283877,-105647,-78023]
[1439,{"$error":"#NAME?"},{"$error":"#NAME?"},{"$error":"#NAME?"},{"$error":"#NAME?"},null,{"$f":"NR_to_Cash!C$9","v":-155327},{"$f":"NR_to_Cash!D$9","v":-283877},{"$f":"NR_to_Cash!E$9","v":-105647},{"$f":"NR_to_Cash!F$9","v":-78023},null,1439,-23386.585173170472,-3132.1039257110369,-37569.154097436134,-4782.8585493219853,null,-155327,-283877,-105647,-78023]
[1440,{"$error":"#NAME?"},{"$error":"#NAME?"},{"$error":"#NAME?"},{"$error":"#NAME?"},null,{"$f":"NR_to_Cash!C$9","v":-155327},{"$f":"NR_to_Cash!D$9","v":-283877},{"$f":"NR_to_Cash!E$9","v":-105647},{"$f":"NR_to_Cash!F$9","v":-78023},null,1440,-27590.181980921796,-18679.395377495264,2573.3030722892081,12210.0073625363,null,-155327,-283877,-105647,-78023]
[1441,{"$error":"#NAME?"},{"$error":"#NAME?"},{"$error":"#NAME?"},{"$error":"#NAME?"},null,{"$f":"NR_to_Cash!C$9","v":-155327},{"$f":"NR_to_Cash!D$9","v":-283877},{"$f":"NR_to_Cash!E$9","v":-105647},{"$f":"NR_to_Cash!F$9","v":-78023},null,1441,-17808.533243951853,-24575.533664961582,3689.5710422716329,-15986.077287639191,null,-155327,-283877,-105647,-78023]
[1442,{"$error":"#NAME?"},{"$error":"#NAME?"},{"$error":"#NAME?"},{"$error":"#NAME?"},null,{"$f":"NR_to_Cash!C$9","v":-155327},{"$f":"NR_to_Cash!D$9","v":-283877},{"$f":"NR_to_Cash!E$9","v":-105647},{"$f":"NR_to_Cash!F$9","v":-78023},null,1442,-9045.7705077596729,-6894.7704047115731,17363.531355298892,2173.2686023233996,null,-155327,-283877,-105647,-78023]
[1443,{"$error":"#NAME?"},{"$error":"#NAME?"},{"$error":"#NAME?"},{"$error":"#NAME?"},null,{"$f":"NR_to_Cash!C$9","v":-155327},{"$f":"NR_to_Cash!D$9","v":-283877},{"$f":"NR_to_Cash!E$9","v":-105647},{"$f":"NR_to_Cash!F$9","v":-78023},null,1443,-2840.9600382760864,-18685.237235045963,7071.0465487002684,-10248.966240570668,null,-155327,-283877,-105647,-78023]
[1444,{"$error":"#NAME?"},{"$error":"#NAME?"},{"$error":"#NAME?"},{"$error":"#NAME?"},null,{"$f":"NR_to_Cash!C$9","v":-155327},{"$f":"NR_to_Cash!D$9","v":-283877},{"$f":"NR_to_Cash!E$9","v":-105647},{"$f":"NR_to_Cash!F$9","v":-78023},null,1444,-697.27954636418144,-3577.9311149374512,-8703.0994102883451,-15333.998185811019,null,-155327,-283877,-105647,-78023]
[1445,{"$error":"#NAME?"},{"$error":"#NAME?"},{"$error":"#NAME?"},{"$error":"#NAME?"},null,{"$f":"NR_to_Cash!C$9","v":-155327},{"$f":"NR_to_Cash!D$9","v":-283877},{"$f":"NR_to_Cash!E$9","v":-105647},{"$f":"NR_to_Cash!F$9","v":-78023},null,1445,6662.9766953604831,2273.3657283623606,-19464.603413328903,1770.4283148949864,null,-155327,-283877,-105647,-78023]
[1446,{"$error":"#NAME?"},{"$error":"#NAME?"},{"$error":"#NAME?"},{"$error":"#NAME?"},null,{"$f":"NR_to_Cash!C$9","v":-155327},{"$f":"NR_to_Cash!D$9","v":-283877},{"$f":"NR_to_Cash!E$9","v":-105647},{"$f":"NR_to_Cash!F$9","v":-78023},null,1446,-13064.50942203402,-17353.380436260213,-38424.291665072204,10276.843587914482,null,-155327,-283877,-105647,-78023]
[1447,{"$error":"#NAME?"},{"$error":"#NAME?"},{"$error":"#NAME?"},{"$error":"#NAME?"},null,{"$f":"NR_to_Cash!C$9","v":-155327},{"$f":"NR_to_Cash!D$9","v":-283877},{"$f":"NR_to_Cash!E$9","v":-105647},{"$f":"NR_to_Cash!F$9","v":-78023},null,1447,-17235.275995087388,4501.7288742272076,-31959.832553344258,-16968.266148998075,null,-155327,-283877,-105647,-78023]
[1448,{"$error":"#NAME?"},{"$error":"#NAME?"},{"$error":"#NAME?"},{"$error":"#NAME?"},null,{"$f":"NR_to_Cash!C$9","v":-155327},{"$f":"NR_to_Cash!D$9","v":-283877},{"$f":"NR_to_Cash!E$9","v":-105647},{"$f":"NR_to_Cash!F$9","v":-78023},null,1448,-14041.367373040011,-17999.948528367619,6112.6567083472046,-20271.760372130964,null,-155327,-283877,-105647,-78023]
[1449,{"$error":"#NAME?"},{"$error":"#NAME?"},{"$error":"#NAME?"},{"$error":"#NAME?"},null,{"$f":"NR_to_Cash!C$9","v":-155327},{"$f":"NR_to_Cash!D$9","v":-283877},{"$f":"NR_to_Cash!E$9","v":-105647},{"$f":"NR_to_Cash!F$9","v":-78023},null,1449,-27200.337530076922,-18545.405781713263,5391.0006974193593,-10563.620762056416,null,-155327,-283877,-105647,-78023]
[1450,{"$error":"#NAME?"},{"$error":"#NAME?"},{"$error":"#NAME?"},{"$error":"#NAME?"},null,{"$f":"NR_to_Cash!C$9","v":-155327},{"$f":"NR_to_Cash!D$9","v":-283877},{"$f":"NR_to_Cash!E$9","v":-105647},{"$f":"NR_to_Cash!F$9","v":-78023},null,1450,-21459.258461173566,-14734.6399721991,-7094.7521703293605,13259.857177893969,null,-155327,-283877,-105647,-78023]
[1451,{"$error":"#NAME?"},{"$error":"#NAME?"},{"$error":"#NAME?"},{"$error":"#NAME?"},null,{"$f":"NR_to_Cash!C$9","v":-155327},{"$f":"NR_to_Cash!D$9","v":-283877},{"$f":"NR_to_Cash!E$9","v":-105647},{"$f":"NR_to_Cash!F$9","v":-78023},null,1451,-24147.831820371746,9119.0855017761314,-8661.6037431477162,4650.1243829327932,null,-155327,-283877,-105647,-78023]
[1452,{"$error":"#NAME?"},{"$error":"#NAME?"},{"$error":"#NAME?"},{"$error":"#NAME?"},null,{"$f":"NR_to_Cash!C$9","v":-155327},{"$f":"NR_to_Cash!D$9","v":-283877},{"$f":"NR_to_Cash!E$9","v":-105647},{"$f":"NR_to_Cash!F$9","v":-78023},null,1452,1729.4620464804591,-14004.306726232924,176.81630305810407,-323.12116710152827,null,-155327,-283877,-105647,-78023]
[1453,{"$error":"#NAME?"},{"$error":"#NAME?"},{"$error":"#NAME?"},{"$error":"#NAME?"},null,{"$f":"NR_to_Cash!C$9","v":-155327},{"$f":"NR_to_Cash!D$9","v":-283877},{"$f":"NR_to_Cash!E$9","v":-105647},{"$f":"NR_to_Cash!F$9","v":-78023},null,1453,-27472.369401753251,-21075.382588850593,-703.14683897368548,-14309.147800908073,null,-155327,-283877,-105647,-78023]
[1454,{"$error":"#NAME?"},{"$error":"#NAME?"},{"$error":"#NAME?"},{"$error":"#NAME?"},null,{"$f":"NR_to_Cash!C$9","v":-155327},{"$f":"NR_to_Cash!D$9","v":-283877},{"$f":"NR_to_Cash!E$9","v":-105647},{"$f":"NR_to_Cash!F$9","v":-78023},null,1454,3248.4397088131964,895.92109320177633,-23896.098709188795,-6206.5393124548364,null,-155327,-283877,-105647,-78023]
[1455,{"$error":"#NAME?"},{"$error":"#NAME?"},{"$error":"#NAME?"},{"$error":"#NAME?"},null,{"$f":"NR_to_Cash!C$9","v":-155327},{"$f":"NR_to_Cash!D$9","v":-283877},{"$f":"NR_to_Cash!E$9","v":-105647},{"$f":"NR_to_Cash!F$9","v":-78023},null,1455,-2896.7843308170814,-13166.287976315463,-5167.2825120422713,-7957.8271031892937,null,-155327,-283877,-105647,-78023]
[1456,{"$error":"#NAME?"},{"$error":"#NAME?"},{"$error":"#NAME?"},{"$error":"#NAME?"},null,{"$f":"NR_to_Cash!C$9","v":-155327},{"$f":"NR_to_Cash!D$9","v":-283877},{"$f":"NR_to_Cash!E$9","v":-105647},{"$f":"NR_to_Cash!F$9","v":-78023},null,1456,-11125.416983469433,761.63095233285458,-30799.159439341282,-29529.104220257665,null,-155327,-283877,-105647,-78023]
[1457,{"$error":"#NAME?"},{"$error":"#NAME?"},{"$error":"#NAME?"},{"$error":"#NAME?"},null,{"$f":"NR_to_Cash!C$9","v":-155327},{"$f":"NR_to_Cash!D$9","v":-283877},{"$f":"NR_to_Cash!E$9","v":-105647},{"$f":"NR_to_Cash!F$9","v":-78023},null,1457,-3202.4954793498737,-13823.980068043977,-30987.563020501719,-40523.898313962854,null,-155327,-283877,-105647,-78023]
[1458,{"$error":"#NAME?"},{"$error":"#NAME?"},{"$error":"#NAME?"},{"$error":"#NAME?"},null,{"$f":"NR_to_Cash!C$9","v":-155327},{"$f":"NR_to_Cash!D$9","v":-283877},{"$f":"NR_to_Cash!E$9","v":-105647},{"$f":"NR_to_Cash!F$9","v":-78023},null,1458,-11888.865049953314,-10637.661437166153,11148.340390920157,-17140.57545687323,null,-155327,-283877,-105647,-78023]
[1459,{"$error":"#NAME?"},{"$error":"#NAME?"},{"$error":"#NAME?"},{"$error":"#NAME?"},null,{"$f":"NR_to_Cash!C$9","v":-155327},{"$f":"NR_to_Cash!D$9","v":-283877},{"$f":"NR_to_Cash!E$9","v":-105647},{"$f":"NR_to_Cash!F$9","v":-78023},null,1459,2237.8926058259763,-7564.3591188544433,-3821.8151021678455,-5478.2859348752991,null,-155327,-283877,-105647,-78023]
[1460,{"$error":"#NAME?"},{"$error":"#NAME?"},{"$error":"#NAME?"},{"$error":"#NAME?"},null,{"$f":"NR_to_Cash!C$9","v":-155327},{"$f":"NR_to_Cash!D$9","v":-283877},{"$f":"NR_to_Cash!E$9","v":-105647},{"$f":"NR_to_Cash!F$9","v":-78023},null,1460,-10466.792883300406,-10274.282161629295,-38076.558744659058,-7072.2352637419081,null,-155327,-283877,-105647,-78023]
[1461,{"$error":"#NAME?"},{"$error":"#NAME?"},{"$error":"#NAME?"},{"$error":"#NAME?"},null,{"$f":"NR_to_Cash!C$9","v":-155327},{"$f":"NR_to_Cash!D$9","v":-283877},{"$f":"NR_to_Cash!E$9","v":-105647},{"$f":"NR_to_Cash!F$9","v":-78023},null,1461,-1037.9479736099031,-16895.339752017695,26856.055823349772,-8728.1592603595109,null,-155327,-283877,-105647,-78023]
[1462,{"$error":"#NAME?"},{"$error":"#NAME?"},{"$error":"#NAME?"},{"$error":"#NAME?"},null,{"$f":"NR_to_Cash!C$9","v":-155327},{"$f":"NR_to_Cash!D$9","v":-283877},{"$f":"NR_to_Cash!E$9","v":-105647},{"$f":"NR_to_Cash!F$9","v":-78023},null,1462,-13977.899990999384,-6346.4181980138364,-1316.9684486635056,-9964.8711417058839,null,-155327,-283877,-105647,-78023]
[1463,{"$error":"#NAME?"},{"$error":"#NAME?"},{"$error":"#NAME?"},{"$error":"#NAME?"},null,{"$f":"NR_to_Cash!C$9","v":-155327},{"$f":"NR_to_Cash!D$9","v":-283877},{"$f":"NR_to_Cash!E$9","v":-105647},{"$f":"NR_to_Cash!F$9","v":-78023},null,1463,-9660.166437922675,-30978.050496295989,5508.990100932835,2092.4430484786399,null,-155327,-283877,-105647,-78023]
[1464,{"$error":"#NAME?"},{"$error":"#NAME?"},{"$error":"#NAME?"},{"$error":"#NAME?"},null,{"$f":"NR_to_Cash!C$9","v":-155327},{"$f":"NR_to_Cash!D$9","v":-283877},{"$f":"NR_to_Cash!E$9","v":-105647},{"$f":"NR_to_Cash!F$9","v":-78023},null,1464,-16016.35976550671,-10579.939404303945,-30843.60442520697,-2032.0968782235013,null,-155327,-283877,-105647,-78023]
[1465,{"$error":"#NAME?"},{"$error":"#NAME?"},{"$error":"#NAME?"},{"$error":"#NAME?"},null,{"$f":"NR_to_Cash!C$9","v":-155327},{"$f":"NR_to_Cash!D$9","v":-283877},{"$f":"NR_to_Cash!E$9","v":-105647},{"$f":"NR_to_Cash!F$9","v":-78023},null,1465,-7889.9905381550398,-16050.951018081711,-10949.028175208065,-26543.006017061674,null,-155327,-283877,-105647,-78023]
[1466,{"$error":"#NAME?"},{"$error":"#NAME?"},{"$error":"#NAME?"},{"$error":"#NAME?"},null,{"$f":"NR_to_Cash!C$9","v":-155327},{"$f":"NR_to_Cash!D$9","v":-283877},{"$f":"NR_to_Cash!E$9","v":-105647},{"$f":"NR_to_Cash!F$9","v":-78023},null,1466,-10067.937257366528,-33877.095026409479,-16423.494433857006,-20637.796481041722,null,-155327,-283877,-105647,-78023]
[1467,{"$error":"#NAME?"},{"$error":"#NAME?"},{"$error":"#NAME?"},{"$error":"#NAME?"},null,{"$f":"NR_to_Cash!C$9","v":-155327},{"$f":"NR_to_Cash!D$9","v":-283877},{"$f":"NR_to_Cash!E$9","v":-105647},{"$f":"NR_to_Cash!F$9","v":-78023},null,1467,-15803.908823795013,-6023.5672663851665,-14822.603807509251,-27547.620140755691,null,-155327,-283877,-105647,-78023]
[1468,{"$error":"#NAME?"},{"$error":"#NAME?"},{"$error":"#NAME?"},{"$error":"#NAME?"},null,{"$f":"NR_to_Cash!C$9","v":-155327},{"$f":"NR_to_Cash!D$9","v":-283877},{"$f":"NR_to_Cash!E$9","v":-105647},{"$f":"NR_to_Cash!F$9","v":-78023},null,1468,-27402.626383253584,-35094.323448418421,14062.453115213555,21333.107439678955,null,-155327,-283877,-105647,-78023]
[1469,{"$error":"#NAME?"},{"$error":"#NAME?"},{"$error":"#NAME?"},{"$error":"#NAME?"},null,{"$f":"NR_to_Cash!C$9","v":-155327},{"$f":"NR_to_Cash!D$9","v":-283877},{"$f":"NR_to_Cash!E$9","v":-105647},{"$f":"NR_to_Cash!F$9","v":-78023},null,1469,4126.1716833538721,1985.7690702857606,-9471.4790050433548,-13565.655420755837,null,-155327,-283877,-105647,-78023]
[1470,{"$error":"#NAME?"},{"$error":"#NAME?"},{"$error":"#NAME?"},{"$error":"#NAME?"},null,{"$f":"NR_to_Cash!C$9","v":-155327},{"$f":"NR_to_Cash!D$9","v":-283877},{"$f":"NR_to_Cash!E$9","v":-105647},{"$f":"NR_to_Cash!F$9","v":-78023},null,1470,-18541.84556303002,-25436.159603660235,-20834.855882289397,-8882.179030391997,null,-155327,-283877,-105647,-78023]
[1471,{"$error":"#NAME?"},{"$error":"#NAME?"},{"$error":"#NAME?"},{"$error":"#NAME?"},null,{"$f":"NR_to_Cash!C$9","v":-155327},{"$f":"NR_to_Cash!D$9","v":-283877},{"$f":"NR_to_Cash!E$9","v":-105647},{"$f":"NR_to_Cash!F$9","v":-78023},null,1471,-18557.850061962537,2392.584839659391,-22099.405583283235,-31340.28400091195,null,-155327,-283877,-105647,-78023]
[1472,{"$error":"#NAME?"},{"$error":"#NAME?"},{"$error":"#NAME?"},{"$error":"#NAME?"},null,{"$f":"NR_to_Cash!C$9","v":-155327},{"$f":"NR_to_Cash!D$9","v":-283877},{"$f":"NR_to_Cash!E$9","v":-105647},{"$f":"NR_to_Cash!F$9","v":-78023},null,1472,-5910.3066033632949,-33491.981810769634,-17783.810658886843,-7656.1268097443453,null,-155327,-283877,-105647,-78023]
[1473,{"$error":"#NAME?"},{"$error":"#NAME?"},{"$error":"#NAME?"},{"$error":"#NAME?"},null,{"$f":"NR_to_Cash!C$9","v":-155327},{"$f":"NR_to_Cash!D$9","v":-283877},{"$f":"NR_to_Cash!E$9","v":-105647},{"$f":"NR_to_Cash!F$9","v":-78023},null,1473,-9091.721248197191,-28063.430843522532,-27529.775135560911,-6082.5770015328899,null,-155327,-283877,-105647,-78023]
[1474,{"$error":"#NAME?"},{"$error":"#NAME?"},{"$error":"#NAME?"},{"$error":"#NAME?"},null,{"$f":"NR_to_Cash!C$9","v":-155327},{"$f":"NR_to_Cash!D$9","v":-283877},{"$f":"NR_to_Cash!E$9","v":-105647},{"$f":"NR_to_Cash!F$9","v":-78023},null,1474,-26235.071936862645,-10420.384657896764,-17160.702086693713,-8369.9649452467183,null,-155327,-283877,-105647,-78023]
[1475,{"$error":"#NAME?"},{"$error":"#NAME?"},{"$error":"#NAME?"},{"$error":"#NAME?"},null,{"$f":"NR_to_Cash!C$9","v":-155327},{"$f":"NR_to_Cash!D$9","v":-283877},{"$f":"NR_to_Cash!E$9","v":-105647},{"$f":"NR_to_Cash!F$9","v":-78023},null,1475,-6794.6645576319979,-9855.6897322502973,6543.4862252142038,-48938.747062121081,null,-155327,-283877,-105647,-78023]
[1476,{"$error":"#NAME?"},{"$error":"#NAME?"},{"$error":"#NAME?"},{"$error":"#NAME?"},null,{"$f":"NR_to_Cash!C$9","v":-155327},{"$f":"NR_to_Cash!D$9","v":-283877},{"$f":"NR_to_Cash!E$9","v":-105647},{"$f":"NR_to_Cash!F$9","v":-78023},null,1476,-4602.7324336087368,659.6749261756537,-24825.263366847012,-15471.987830921273,null,-155327,-283877,-105647,-78023]
[1477,{"$error":"#NAME?"},{"$error":"#NAME?"},{"$error":"#NAME?"},{"$error":"#NAME?"},null,{"$f":"NR_to_Cash!C$9","v":-155327},{"$f":"NR_to_Cash!D$9","v":-283877},{"$f":"NR_to_Cash!E$9","v":-105647},{"$f":"NR_to_Cash!F$9","v":-78023},null,1477,-9302.4925665501687,-5531.5717679279805,-20977.288916199366,1181.7306696890369,null,-155327,-283877,-105647,-78023]
[1478,{"$error":"#NAME?"},{"$error":"#NAME?"},{"$error":"#NAME?"},{"$error":"#NAME?"},null,{"$f":"NR_to_Cash!C$9","v":-155327},{"$f":"NR_to_Cash!D$9","v":-283877},{"$f":"NR_to_Cash!E$9","v":-105647},{"$f":"NR_to_Cash!F$9","v":-78023},null,1478,-14828.675843310302,-34895.993016132568,14610.007292318656,-6346.1980109809392,null,-155327,-283877,-105647,-78023]
[1479,{"$error":"#NAME?"},{"$error":"#NAME?"},{"$error":"#NAME?"},{"$error":"#NAME?"},null,{"$f":"NR_to_Cash!C$9","v":-155327},{"$f":"NR_to_Cash!D$9","v":-283877},{"$f":"NR_to_Cash!E$9","v":-105647},{"$f":"NR_to_Cash!F$9","v":-78023},null,1479,-26533.694656323882,-18357.506307815522,-15931.762386014703,-20863.576074111934,null,-155327,-283877,-105647,-78023]
[1480,{"$error":"#NAME?"},{"$error":"#NAME?"},{"$error":"#NAME?"},{"$error":"#NAME?"},null,{"$f":"NR_to_Cash!C$9","v":-155327},{"$f":"NR_to_Cash!D$9","v":-283877},{"$f":"NR_to_Cash!E$9","v":-105647},{"$f":"NR_to_Cash!F$9","v":-78023},null,1480,406.79002274250774,6584.9816771479736,1195.7219631614782,-1151.7183357527886,null,-155327,-283877,-105647,-78023]
[1481,{"$error":"#NAME?"},{"$error":"#NAME?"},{"$error":"#NAME?"},{"$error":"#NAME?"},null,{"$f":"NR_to_Cash!C$9","v":-155327},{"$f":"NR_to_Cash!D$9","v":-283877},{"$f":"NR_to_Cash!E$9","v":-105647},{"$f":"NR_to_Cash!F$9","v":-78023},null,1481,-20392.634254064888,-21701.896402135975,7005.3562178606844,-6706.6048569908562,null,-155327,-283877,-105647,-78023]
[1482,{"$error":"#NAME?"},{"$error":"#NAME?"},{"$error":"#NAME?"},{"$error":"#NAME?"},null,{"$f":"NR_to_Cash!C$9","v":-155327},{"$f":"NR_to_Cash!D$9","v":-283877},{"$f":"NR_to_Cash!E$9","v":-105647},{"$f":"NR_to_Cash!F$9","v":-78023},null,1482,-19335.262185118918,6272.9720764518779,-16373.968764541805,2823.6093163524074,null,-155327,-283877,-105647,-78023]
[1483,{"$error":"#NAME?"},{"$error":"#NAME?"},{"$error":"#NAME?"},{"$error":"#NAME?"},null,{"$f":"NR_to_Cash!C$9","v":-155327},{"$f":"NR_to_Cash!D$9","v":-283877},{"$f":"NR_to_Cash!E$9","v":-105647},{"$f":"NR_to_Cash!F$9","v":-78023},null,1483,-9030.5317584717195,-6009.0819509108915,-7103.787192954047,-9790.6384329181965,null,-155327,-283877,-105647,-78023]
[1484,{"$error":"#NAME?"},{"$error":"#NAME?"},{"$error":"#NAME?"},{"$error":"#NAME?"},null,{"$f":"NR_to_Cash!C$9","v":-155327},{"$f":"NR_to_Cash!D$9","v":-283877},{"$f":"NR_to_Cash!E$9","v":-105647},{"$f":"NR_to_Cash!F$9","v":-78023},null,1484,-7478.8144550284687,-10719.593704418574,-19562.289204493783,11236.231913658981,null,-155327,-283877,-105647,-78023]
[1485,{"$error":"#NAME?"},{"$error":"#NAME?"},{"$error":"#NAME?"},{"$error":"#NAME?"},null,{"$f":"NR_to_Cash!C$9","v":-155327},{"$f":"NR_to_Cash!D$9","v":-283877},{"$f":"NR_to_Cash!E$9","v":-105647},{"$f":"NR_to_Cash!F$9","v":-78023},null,1485,-13853.728415747806,-11200.13686862256,-10184.560799098557,5639.1160365680198,null,-155327,-283877,-105647,-78023]
[1486,{"$error":"#NAME?"},{"$error":"#NAME?"},{"$error":"#NAME?"},{"$error":"#NAME?"},null,{"$f":"NR_to_Cash!C$9","v":-155327},{"$f":"NR_to_Cash!D$9","v":-283877},{"$f":"NR_to_Cash!E$9","v":-105647},{"$f":"NR_to_Cash!F$9","v":-78023},null,1486,-22199.964858120784,-9553.7369967661289,-13950.791694681977,-27053.66537810611,null,-155327,-283877,-105647,-78023]
[1487,{"$error":"#NAME?"},{"$error":"#NAME?"},{"$error":"#NAME?"},{"$error":"#NAME?"},null,{"$f":"NR_to_Cash!C$9","v":-155327},{"$f":"NR_to_Cash!D$9","v":-283877},{"$f":"NR_to_Cash!E$9","v":-105647},{"$f":"NR_to_Cash!F$9","v":-78023},null,1487,-2055.5167306330854,-23994.228913903982,-7547.9431376355133,-21811.743667489663,null,-155327,-283877,-105647,-78023]
[1488,{"$error":"#NAME?"},{"$error":"#NAME?"},{"$error":"#NAME?"},{"$error":"#NAME?"},null,{"$f":"NR_to_Cash!C$9","v":-155327},{"$f":"NR_to_Cash!D$9","v":-283877},{"$f":"NR_to_Cash!E$9","v":-105647},{"$f":"NR_to_Cash!F$9","v":-78023},null,1488,-8188.1932591875066,-37507.649336399161,-3593.1498791198251,-12103.304190110599,null,-155327,-283877,-105647,-78023]
[1489,{"$error":"#NAME?"},{"$error":"#NAME?"},{"$error":"#NAME?"},{"$error":"#NAME?"},null,{"$f":"NR_to_Cash!C$9","v":-155327},{"$f":"NR_to_Cash!D$9","v":-283877},{"$f":"NR_to_Cash!E$9","v":-105647},{"$f":"NR_to_Cash!F$9","v":-78023},null,1489,-32009.208998804766,-30655.795278600865,-15152.901129538217,-10818.578584399653,null,-155327,-283877,-105647,-78023]
[1490,{"$error":"#NAME?"},{"$error":"#NAME?"},{"$error":"#NAME?"},{"$error":"#NAME?"},null,{"$f":"NR_to_Cash!C$9","v":-155327},{"$f":"NR_to_Cash!D$9","v":-283877},{"$f":"NR_to_Cash!E$9","v":-105647},{"$f":"NR_to_Cash!F$9","v":-78023},null,1490,-15893.45473163253,-15223.180037859798,-10553.377852693164,8732.010365380449,null,-155327,-283877,-105647,-78023]
[1491,{"$error":"#NAME?"},{"$error":"#NAME?"},{"$error":"#NAME?"},{"$error":"#NAME?"},null,{"$f":"NR_to_Cash!C$9","v":-155327},{"$f":"NR_to_Cash!D$9","v":-283877},{"$f":"NR_to_Cash!E$9","v":-105647},{"$f":"NR_to_Cash!F$9","v":-78023},null,1491,-13835.800158143928,-6003.4492064844771,-978.05172125812362,-10422.917177639771,null,-155327,-283877,-105647,-78023]
[1492,{"$error":"#NAME?"},{"$error":"#NAME?"},{"$error":"#NAME?"},{"$error":"#NAME?"},null,{"$f":"NR_to_Cash!C$9","v":-155327},{"$f":"NR_to_Cash!D$9","v":-283877},{"$f":"NR_to_Cash!E$9","v":-105647},{"$f":"NR_to_Cash!F$9","v":-78023},null,1492,3763.6366061908234,-14049.328563277897,-8299.9894362312225,-19873.264422676228,null,-155327,-283877,-105647,-78023]
[1493,{"$error":"#NAME?"},{"$error":"#NAME?"},{"$error":"#NAME?"},{"$error":"#NAME?"},null,{"$f":"NR_to_Cash!C$9","v":-155327},{"$f":"NR_to_Cash!D$9","v":-283877},{"$f":"NR_to_Cash!E$9","v":-105647},{"$f":"NR_to_Cash!F$9","v":-78023},null,1493,-21120.93662979878,23909.540492727134,5365.6285793875631,-3595.4116746108671,null,-155327,-283877,-105647,-78023]
[1494,{"$error":"#NAME?"},{"$error":"#NAME?"},{"$error":"#NAME?"},{"$error":"#NAME?"},null,{"$f":"NR_to_Cash!C$9","v":-155327},{"$f":"NR_to_Cash!D$9","v":-283877},{"$f":"NR_to_Cash!E$9","v":-105647},{"$f":"NR_to_Cash!F$9","v":-78023},null,1494,-14736.882885972795,-14769.905733655289,2047.2056128965287,-11545.120266814698,null,-155327,-283877,-105647,-78023]
[1495,{"$error":"#NAME?"},{"$error":"#NAME?"},{"$error":"#NAME?"},{"$error":"#NAME?"},null,{"$f":"NR_to_Cash!C$9","v":-155327},{"$f":"NR_to_Cash!D$9","v":-283877},{"$f":"NR_to_Cash!E$9","v":-105647},{"$f":"NR_to_Cash!F$9","v":-78023},null,1495,-14174.479019116698,4852.0282749278394,-12701.500507121595,-14176.159471725172,null,-155327,-283877,-105647,-78023]
[1496,{"$error":"#NAME?"},{"$error":"#NAME?"},{"$error":"#NAME?"},{"$error":"#NAME?"},null,{"$f":"NR_to_Cash!C$9","v":-155327},{"$f":"NR_to_Cash!D$9","v":-283877},{"$f":"NR_to_Cash!E$9","v":-105647},{"$f":"NR_to_Cash!F$9","v":-78023},null,1496,-2429.4540898066757,-6711.4665374533788,19782.359026091301,5915.3685329368964,null,-155327,-283877,-105647,-78023]
[1497,{"$error":"#NAME?"},{"$error":"#NAME?"},{"$error":"#NAME?"},{"$error":"#NAME?"},null,{"$f":"NR_to_Cash!C$9","v":-155327},{"$f":"NR_to_Cash!D$9","v":-283877},{"$f":"NR_to_Cash!E$9","v":-105647},{"$f":"NR_to_Cash!F$9","v":-78023},null,1497,-2283.6629569477527,-17439.799858714861,-7778.8244850243218,-17794.731501828483,null,-155327,-283877,-105647,-78023]
[1498,{"$error":"#NAME?"},{"$error":"#NAME?"},{"$error":"#NAME?"},{"$error":"#NAME?"},null,{"$f":"NR_to_Cash!C$9","v":-155327},{"$f":"NR_to_Cash!D$9","v":-283877},{"$f":"NR_to_Cash!E$9","v":-105647},{"$f":"NR_to_Cash!F$9","v":-78023},null,1498,-17605.711784792773,-7995.0382283027075,-5367.1180900353502,-15016.806656689412,null,-155327,-283877,-105647,-78023]
[1499,{"$error":"#NAME?"},{"$error":"#NAME?"},{"$error":"#NAME?"},{"$error":"#NAME?"},null,{"$f":"NR_to_Cash!C$9","v":-155327},{"$f":"NR_to_Cash!D$9","v":-283877},{"$f":"NR_to_Cash!E$9","v":-105647},{"$f":"NR_to_Cash!F$9","v":-78023},null,1499,-15923.811524572226,-30126.083036060103,22877.644385168955,-10246.19103030218,null,-155327,-283877,-105647,-78023]
[1500,{"$error":"#NAME?"},{"$error":"#NAME?"},{"$error":"#NAME?"},{"$error":"#NAME?"},null,{"$f":"NR_to_Cash!C$9","v":-155327},{"$f":"NR_to_Cash!D$9","v":-283877},{"$f":"NR_to_Cash!E$9","v":-105647},{"$f":"NR_to_Cash!F$9","v":-78023},null,1500,-12612.460901541996,-20130.344915915,-19458.248661337366,4772.795667098032,null,-155327,-283877,-105647,-78023]
[1501,{"$error":"#NAME?"},{"$error":"#NAME?"},{"$error":"#NAME?"},{"$error":"#NAME?"},null,{"$f":"NR_to_Cash!C$9","v":-155327},{"$f":"NR_to_Cash!D$9","v":-283877},{"$f":"NR_to_Cash!E$9","v":-105647},{"$f":"NR_to_Cash!F$9","v":-78023},null,1501,-19817.975432749819,-21740.441366359319,-12222.647266491029,-19329.516601472351,null,-155327,-283877,-105647,-78023]
[1502,{"$error":"#NAME?"},{"$error":"#NAME?"},{"$error":"#NAME?"},{"$error":"#NAME?"},null,{"$f":"NR_to_Cash!C$9","v":-155327},{"$f":"NR_to_Cash!D$9","v":-283877},{"$f":"NR_to_Cash!E$9","v":-105647},{"$f":"NR_to_Cash!F$9","v":-78023},null,1502,-21972.851777687345,-2972.7466216514508,-37538.731621318271,-20810.375171081032,null,-155327,-283877,-105647,-78023]
[1503,{"$error":"#NAME?"},{"$error":"#NAME?"},{"$error":"#NAME?"},{"$error":"#NAME?"},null,{"$f":"NR_to_Cash!C$9","v":-155327},{"$f":"NR_to_Cash!D$9","v":-283877},{"$f":"NR_to_Cash!E$9","v":-105647},{"$f":"NR_to_Cash!F$9","v":-78023},null,1503,-21600.019773070464,-5385.2248454387409,-10230.037061861467,-18523.632972757325,null,-155327,-283877,-105647,-78023]
[1504,{"$error":"#NAME?"},{"$error":"#NAME?"},{"$error":"#NAME?"},{"$error":"#NAME?"},null,{"$f":"NR_to_Cash!C$9","v":-155327},{"$f":"NR_to_Cash!D$9","v":-283877},{"$f":"NR_to_Cash!E$9","v":-105647},{"$f":"NR_to_Cash!F$9","v":-78023},null,1504,-6321.3068680827964,-25787.888525595004,-14290.034703069023,-14414.938061737896,null,-155327,-283877,-105647,-78023]
[1505,{"$error":"#NAME?"},{"$error":"#NAME?"},{"$error":"#NAME?"},{"$error":"#NAME?"},null,{"$f":"NR_to_Cash!C$9","v":-155327},{"$f":"NR_to_Cash!D$9","v":-283877},{"$f":"NR_to_Cash!E$9","v":-105647},{"$f":"NR_to_Cash!F$9","v":-78023},null,1505,-24014.65118627988,-11413.122163666665,5292.1610544041423,-9727.2735638731592,null,-155327,-283877,-105647,-78023]
[1506,{"$error":"#NAME?"},{"$error":"#NAME?"},{"$error":"#NAME?"},{"$error":"#NAME?"},null,{"$f":"NR_to_Cash!C$9","v":-155327},{"$f":"NR_to_Cash!D$9","v":-283877},{"$f":"NR_to_Cash!E$9","v":-105647},{"$f":"NR_to_Cash!F$9","v":-78023},null,1506,-36931.996643245242,-11188.551423141616,-10812.383584374798,-11590.890555162001,null,-155327,-283877,-105647,-78023]
[1507,{"$error":"#NAME?"},{"$error":"#NAME?"},{"$error":"#NAME?"},{"$error":"#NAME?"},null,{"$f":"NR_to_Cash!C$9","v":-155327},{"$f":"NR_to_Cash!D$9","v":-283877},{"$f":"NR_to_Cash!E$9","v":-105647},{"$f":"NR_to_Cash!F$9","v":-78023},null,1507,7111.2511573678003,-34967.014511694455,-1839.0882216129357,-3177.6893862908746,null,-155327,-283877,-105647,-78023]
[1508,{"$error":"#NAME?"},{"$error":"#NAME?"},{"$error":"#NAME?"},{"$error":"#NAME?"},null,{"$f":"NR_to_Cash!C$9","v":-155327},{"$f":"NR_to_Cash!D$9","v":-283877},{"$f":"NR_to_Cash!E$9","v":-105647},{"$f":"NR_to_Cash!F$9","v":-78023},null,1508,-3292.8722951759396,-35212.951466796381,-16525.931727223215,6511.7895079223017,null,-155327,-283877,-105647,-78023]
[1509,{"$error":"#NAME?"},{"$error":"#NAME?"},{"$error":"#NAME?"},{"$error":"#NAME?"},null,{"$f":"NR_to_Cash!C$9","v":-155327},{"$f":"NR_to_Cash!D$9","v":-283877},{"$f":"NR_to_Cash!E$9","v":-105647},{"$f":"NR_to_Cash!F$9","v":-78023},null,1509,-7891.1593772829729,9412.8507663175023,-19069.150560551763,-2348.3963819020005,null,-155327,-283877,-105647,-78023]
[1510,{"$error":"#NAME?"},{"$error":"#NAME?"},{"$error":"#NAME?"},{"$error":"#NAME?"},null,{"$f":"NR_to_Cash!C$9","v":-155327},{"$f":"NR_to_Cash!D$9","v":-283877},{"$f":"NR_to_Cash!E$9","v":-105647},{"$f":"NR_to_Cash!F$9","v":-78023},null,1510,-7395.8408946773543,-7202.8205414288359,-7239.700416888807,-17054.537958792025,null,-155327,-283877,-105647,-78023]
[1511,{"$error":"#NAME?"},{"$error":"#NAME?"},{"$error":"#NAME?"},{"$error":"#NAME?"},null,{"$f":"NR_to_Cash!C$9","v":-155327},{"$f":"NR_to_Cash!D$9","v":-283877},{"$f":"NR_to_Cash!E$9","v":-105647},{"$f":"NR_to_Cash!F$9","v":-78023},null,1511,-26751.296093513742,4759.0077635362031,10881.972551497836,-1968.430897647223,null,-155327,-283877,-105647,-78023]
[1512,{"$error":"#NAME?"},{"$error":"#NAME?"},{"$error":"#NAME?"},{"$error":"#NAME?"},null,{"$f":"NR_to_Cash!C$9","v":-155327},{"$f":"NR_to_Cash!D$9","v":-283877},{"$f":"NR_to_Cash!E$9","v":-105647},{"$f":"NR_to_Cash!F$9","v":-78023},null,1512,-15851.926905423265,-28680.118913336766,-2758.1785414404194,-23039.885847561167,null,-155327,-283877,-105647,-78023]
[1513,{"$error":"#NAME?"},{"$error":"#NAME?"},{"$error":"#NAME?"},{"$error":"#NAME?"},null,{"$f":"NR_to_Cash!C$9","v":-155327},{"$f":"NR_to_Cash!D$9","v":-283877},{"$f":"NR_to_Cash!E$9","v":-105647},{"$f":"NR_to_Cash!F$9","v":-78023},null,1513,-17416.354262609977,-6681.6406895433011,5130.064344205839,-27469.089494488362,null,-155327,-283877,-105647,-78023]
[1514,{"$error":"#NAME?"},{"$error":"#NAME?"},{"$error":"#NAME?"},{"$error":"#NAME?"},null,{"$f":"NR_to_Cash!C$9","v":-155327},{"$f":"NR_to_Cash!D$9","v":-283877},{"$f":"NR_to_Cash!E$9","v":-105647},{"$f":"NR_to_Cash!F$9","v":-78023},null,1514,-3567.7982688186735,-7759.0302721465014,-30782.87376316583,-5287.2754296601088,null,-155327,-283877,-105647,-78023]
[1515,{"$error":"#NAME?"},{"$error":"#NAME?"},{"$error":"#NAME?"},{"$error":"#NAME?"},null,{"$f":"NR_to_Cash!C$9","v":-155327},{"$f":"NR_to_Cash!D$9","v":-283877},{"$f":"NR_to_Cash!E$9","v":-105647},{"$f":"NR_to_Cash!F$9","v":-78023},null,1515,-15571.083789662534,-17551.091768552767,-17270.177846277038,-7312.2231505252357,null,-155327,-283877,-105647,-78023]
[1516,{"$error":"#NAME?"},{"$error":"#NAME?"},{"$error":"#NAME?"},{"$error":"#NAME?"},null,{"$f":"NR_to_Cash!C$9","v":-155327},{"$f":"NR_to_Cash!D$9","v":-283877},{"$f":"NR_to_Cash!E$9","v":-105647},{"$f":"NR_to_Cash!F$9","v":-78023},null,1516,-20661.755091379804,-6090.8406598224992,-5826.6862360453051,-15402.416154586597,null,-155327,-283877,-105647,-78023]
[1517,{"$error":"#NAME?"},{"$error":"#NAME?"},{"$error":"#NAME?"},{"$error":"#NAME?"},null,{"$f":"NR_to_Cash!C$9","v":-155327},{"$f":"NR_to_Cash!D$9","v":-283877},{"$f":"NR_to_Cash!E$9","v":-105647},{"$f":"NR_to_Cash!F$9","v":-78023},null,1517,-11908.755544908954,11208.945008844848,-13290.879689981281,-37027.194463260137,null,-155327,-283877,-105647,-78023]
[1518,{"$error":"#NAME?"},{"$error":"#NAME?"},{"$error":"#NAME?"},{"$error":"#NAME?"},null,{"$f":"NR_to_Cash!C$9","v":-155327},{"$f":"NR_to_Cash!D$9","v":-283877},{"$f":"NR_to_Cash!E$9","v":-105647},{"$f":"NR_to_Cash!F$9","v":-78023},null,1518,-20295.19837940354,-9126.8108790593269,-22505.64125052662,-10045.463512763557,null,-155327,-283877,-105647,-78023]
[1519,{"$error":"#NAME?"},{"$error":"#NAME?"},{"$error":"#NAME?"},{"$error":"#NAME?"},null,{"$f":"NR_to_Cash!C$9","v":-155327},{"$f":"NR_to_Cash!D$9","v":-283877},{"$f":"NR_to_Cash!E$9","v":-105647},{"$f":"NR_to_Cash!F$9","v":-78023},null,1519,-15314.054068756353,-19466.736635709614,3626.9005645560319,18315.263198832356,null,-155327,-283877,-105647,-78023]
[1520,{"$error":"#NAME?"},{"$error":"#NAME?"},{"$error":"#NAME?"},{"$error":"#NAME?"},null,{"$f":"NR_to_Cash!C$9","v":-155327},{"$f":"NR_to_Cash!D$9","v":-283877},{"$f":"NR_to_Cash!E$9","v":-105647},{"$f":"NR_to_Cash!F$9","v":-78023},null,1520,4008.3717862481421,-14574.510751380096,-30965.995342852359,-1964.6195808327093,null,-155327,-283877,-105647,-78023]
[1521,{"$error":"#NAME?"},{"$error":"#NAME?"},{"$error":"#NAME?"},{"$error":"#NAME?"},null,{"$f":"NR_to_Cash!C$9","v":-155327},{"$f":"NR_to_Cash!D$9","v":-283877},{"$f":"NR_to_Cash!E$9","v":-105647},{"$f":"NR_to_Cash!F$9","v":-78023},null,1521,-28315.336412029901,17975.33399672954,-2706.8963310518584,6729.9031094817792,null,-155327,-283877,-105647,-78023]
[1522,{"$error":"#NAME?"},{"$error":"#NAME?"},{"$error":"#NAME?"},{"$error":"#NAME?"},null,{"$f":"NR_to_Cash!C$9","v":-155327},{"$f":"NR_to_Cash!D$9","v":-283877},{"$f":"NR_to_Cash!E$9","v":-105647},{"$f":"NR_to_Cash!F$9","v":-78023},null,1522,8538.1010454544339,-12161.064928412394,-7241.8540533200903,-1212.8158510541436,null,-155327,-283877,-105647,-78023]
[1523,{"$error":"#NAME?"},{"$error":"#NAME?"},{"$error":"#NAME?"},{"$error":"#NAME?"},null,{"$f":"NR_to_Cash!C$9","v":-155327},{"$f":"NR_to_Cash!D$9","v":-283877},{"$f":"NR_to_Cash!E$9","v":-105647},{"$f":"NR_to_Cash!F$9","v":-78023},null,1523,-26580.444921841492,-11496.536369010426,-19895.679368723489,-10819.542205245445,null,-155327,-283877,-105647,-78023]
[1524,{"$error":"#NAME?"},{"$error":"#NAME?"},{"$error":"#NAME?"},{"$error":"#NAME?"},null,{"$f":"NR_to_Cash!C$9","v":-155327},{"$f":"NR_to_Cash!D$9","v":-283877},{"$f":"NR_to_Cash!E$9","v":-105647},{"$f":"NR_to_Cash!F$9","v":-78023},null,1524,3300.3240064829088,-14697.819606140303,-20674.893822204169,6400.1082142559026,null,-155327,-283877,-105647,-78023]
[1525,{"$error":"#NAME?"},{"$error":"#NAME?"},{"$error":"#NAME?"},{"$error":"#NAME?"},null,{"$f":"NR_to_Cash!C$9","v":-155327},{"$f":"NR_to_Cash!D$9","v":-283877},{"$f":"NR_to_Cash!E$9","v":-105647},{"$f":"NR_to_Cash!F$9","v":-78023},null,1525,-21559.391325087396,7297.4316789422119,9108.6349603981889,-24131.16110325967,null,-155327,-283877,-105647,-78023]
[1526,{"$error":"#NAME?"},{"$error":"#NAME?"},{"$error":"#NAME?"},{"$error":"#NAME?"},null,{"$f":"NR_to_Cash!C$9","v":-155327},{"$f":"NR_to_Cash!D$9","v":-283877},{"$f":"NR_to_Cash!E$9","v":-105647},{"$f":"NR_to_Cash!F$9","v":-78023},null,1526,-23371.008808392202,-13012.226515749606,-4167.3932124794947,16767.406878293328,null,-155327,-283877,-105647,-78023]
[1527,{"$error":"#NAME?"},{"$error":"#NAME?"},{"$error":"#NAME?"},{"$error":"#NAME?"},null,{"$f":"NR_to_Cash!C$9","v":-155327},{"$f":"NR_to_Cash!D$9","v":-283877},{"$f":"NR_to_Cash!E$9","v":-105647},{"$f":"NR_to_Cash!F$9","v":-78023},null,1527,-9990.8446110558216,-20340.943653927843,7026.6470865384208,18373.041343293386,null,-155327,-283877,-105647,-78023]
[1528,{"$error":"#NAME?"},{"$error":"#NAME?"},{"$error":"#NAME?"},{"$error":"#NAME?"},null,{"$f":"NR_to_Cash!C$9","v":-155327},{"$f":"NR_to_Cash!D$9","v":-283877},{"$f":"NR_to_Cash!E$9","v":-105647},{"$f":"NR_to_Cash!F$9","v":-78023},null,1528,1175.1608753872579,-9576.697237625569,-29192.589896846872,7390.8937444836465,null,-155327,-283877,-105647,-78023]
[1529,{"$error":"#NAME?"},{"$error":"#NAME?"},{"$error":"#NAME?"},{"$error":"#NAME?"},null,{"$f":"NR_to_Cash!C$9","v":-155327},{"$f":"NR_to_Cash!D$9","v":-283877},{"$f":"NR_to_Cash!E$9","v":-105647},{"$f":"NR_to_Cash!F$9","v":-78023},null,1529,-17234.997859292227,-22467.085457134242,2408.9364323636455,-8101.8189154971333,null,-155327,-283877,-105647,-78023]
[1530,{"$error":"#NAME?"},{"$error":"#NAME?"},{"$error":"#NAME?"},{"$error":"#NAME?"},null,{"$f":"NR_to_Cash!C$9","v":-155327},{"$f":"NR_to_Cash!D$9","v":-283877},{"$f":"NR_to_Cash!E$9","v":-105647},{"$f":"NR_to_Cash!F$9","v":-78023},null,1530,3738.3417707503395,-31676.392098152373,11344.506322034722,-16459.029029809011,null,-155327,-283877,-105647,-78023]
[1531,{"$error":"#NAME?"},{"$error":"#NAME?"},{"$error":"#NAME?"},{"$error":"#NAME?"},null,{"$f":"NR_to_Cash!C$9","v":-155327},{"$f":"NR_to_Cash!D$9","v":-283877},{"$f":"NR_to_Cash!E$9","v":-105647},{"$f":"NR_to_Cash!F$9","v":-78023},null,1531,-9898.7419457412689,-16175.938541291809,-3689.6885072857885,811.66164590676999,null,-155327,-283877,-105647,-78023]
[1532,{"$error":"#NAME?"},{"$error":"#NAME?"},{"$error":"#NAME?"},{"$error":"#NAME?"},null,{"$f":"NR_to_Cash!C$9","v":-155327},{"$f":"NR_to_Cash!D$9","v":-283877},{"$f":"NR_to_Cash!E$9","v":-105647},{"$f":"NR_to_Cash!F$9","v":-78023},null,1532,-7664.6360108619792,-26772.771879251879,404.18989360663289,-20096.398397723184,null,-155327,-283877,-105647,-78023]
[1533,{"$error":"#NAME?"},{"$error":"#NAME?"},{"$error":"#NAME?"},{"$error":"#NAME?"},null,{"$f":"NR_to_Cash!C$9","v":-155327},{"$f":"NR_to_Cash!D$9","v":-283877},{"$f":"NR_to_Cash!E$9","v":-105647},{"$f":"NR_to_Cash!F$9","v":-78023},null,1533,-26662.62044116071,-8859.3014584250323,-16634.410388731521,-35742.300879267226,null,-155327,-283877,-105647,-78023]
[1534,{"$error":"#NAME?"},{"$error":"#NAME?"},{"$error":"#NAME?"},{"$error":"#NAME?"},null,{"$f":"NR_to_Cash!C$9","v":-155327},{"$f":"NR_to_Cash!D$9","v":-283877},{"$f":"NR_to_Cash!E$9","v":-105647},{"$f":"NR_to_Cash!F$9","v":-78023},null,1534,-12797.255982114071,-13869.246001786014,4061.0149581297774,-29757.649606439576,null,-155327,-283877,-105647,-78023]
[1535,{"$error":"#NAME?"},{"$error":"#NAME?"},{"$error":"#NAME?"},{"$error":"#NAME?"},null,{"$f":"NR_to_Cash!C$9","v":-155327},{"$f":"NR_to_Cash!D$9","v":-283877},{"$f":"NR_to_Cash!E$9","v":-105647},{"$f":"NR_to_Cash!F$9","v":-78023},null,1535,6232.2797817304936,-12936.12042965127,-11943.721305342588,-28778.131441489557,null,-155327,-283877,-105647,-78023]
[1536,{"$error":"#NAME?"},{"$error":"#NAME?"},{"$error":"#NAME?"},{"$error":"#NAME?"},null,{"$f":"NR_to_Cash!C$9","v":-155327},{"$f":"NR_to_Cash!D$9","v":-283877},{"$f":"NR_to_Cash!E$9","v":-105647},{"$f":"NR_to_Cash!F$9","v":-78023},null,1536,12429.732801067821,-11977.83627866879,-4206.0852724741617,-21881.751179626688,null,-155327,-283877,-105647,-78023]
[1537,{"$error":"#NAME?"},{"$error":"#NAME?"},{"$error":"#NAME?"},{"$error":"#NAME?"},null,{"$f":"NR_to_Cash!C$9","v":-155327},{"$f":"NR_to_Cash!D$9","v":-283877},{"$f":"NR_to_Cash!E$9","v":-105647},{"$f":"NR_to_Cash!F$9","v":-78023},null,1537,-24305.124317438505,-21370.729792033057,-14996.00597484116,-10431.495274304061,null,-155327,-283877,-105647,-78023]
[1538,{"$error":"#NAME?"},{"$error":"#NAME?"},{"$error":"#NAME?"},{"$error":"#NAME?"},null,{"$f":"NR_to_Cash!C$9","v":-155327},{"$f":"NR_to_Cash!D$9","v":-283877},{"$f":"NR_to_Cash!E$9","v":-105647},{"$f":"NR_to_Cash!F$9","v":-78023},null,1538,-12506.577083491255,4180.9170497223658,6577.9366435142347,9914.7151819379033,null,-155327,-283877,-105647,-78023]
[1539,{"$error":"#NAME?"},{"$error":"#NAME?"},{"$error":"#NAME?"},{"$error":"#NAME?"},null,{"$f":"NR_to_Cash!C$9","v":-155327},{"$f":"NR_to_Cash!D$9","v":-283877},{"$f":"NR_to_Cash!E$9","v":-105647},{"$f":"NR_to_Cash!F$9","v":-78023},null,1539,-6413.7535322177209,-20341.740885120395,-24676.694827059731,-17981.184313956801,null,-155327,-283877,-105647,-78023]
[1540,{"$error":"#NAME?"},{"$error":"#NAME?"},{"$error":"#NAME?"},{"$error":"#NAME?"},null,{"$f":"NR_to_Cash!C$9","v":-155327},{"$f":"NR_to_Cash!D$9","v":-283877},{"$f":"NR_to_Cash!E$9","v":-105647},{"$f":"NR_to_Cash!F$9","v":-78023},null,1540,-4031.9885334879918,-9283.5713662719681,-13545.070191477371,7186.0693651046267,null,-155327,-283877,-105647,-78023]
[1541,{"$error":"#NAME?"},{"$error":"#NAME?"},{"$error":"#NAME?"},{"$error":"#NAME?"},null,{"$f":"NR_to_Cash!C$9","v":-155327},{"$f":"NR_to_Cash!D$9","v":-283877},{"$f":"NR_to_Cash!E$9","v":-105647},{"$f":"NR_to_Cash!F$9","v":-78023},null,1541,353.25423473298383,-20917.570771069204,-20146.45051905416,-21118.805085510721,null,-155327,-283877,-105647,-78023]
[1542,{"$error":"#NAME?"},{"$error":"#NAME?"},{"$error":"#NAME?"},{"$error":"#NAME?"},null,{"$f":"NR_to_Cash!C$9","v":-155327},{"$f":"NR_to_Cash!D$9","v":-283877},{"$f":"NR_to_Cash!E$9","v":-105647},{"$f":"NR_to_Cash!F$9","v":-78023},null,1542,16339.828540715855,-13320.336398641442,-19936.840900967858,12285.858262253099,null,-155327,-283877,-105647,-78023]
[1543,{"$error":"#NAME?"},{"$error":"#NAME?"},{"$error":"#NAME?"},{"$error":"#NAME?"},null,{"$f":"NR_to_Cash!C$9","v":-155327},{"$f":"NR_to_Cash!D$9","v":-283877},{"$f":"NR_to_Cash!E$9","v":-105647},{"$f":"NR_to_Cash!F$9","v":-78023},null,1543,-9563.7723404471417,14192.584898679073,29163.528001737352,-11930.51905262416,null,-155327,-283877,-105647,-78023]
[1544,{"$error":"#NAME?"},{"$error":"#NAME?"},{"$error":"#NAME?"},{"$error":"#NAME?"},null,{"$f":"NR_to_Cash!C$9","v":-155327},{"$f":"NR_to_Cash!D$9","v":-283877},{"$f":"NR_to_Cash!E$9","v":-105647},{"$f":"NR_to_Cash!F$9","v":-78023},null,1544,-16372.785004595964,-23391.710800804296,-22533.4101680979,-21267.922460444897,null,-155327,-283877,-105647,-78023]
[1545,{"$error":"#NAME?"},{"$error":"#NAME?"},{"$error":"#NAME?"},{"$error":"#NAME?"},null,{"$f":"NR_to_Cash!C$9","v":-155327},{"$f":"NR_to_Cash!D$9","v":-283877},{"$f":"NR_to_Cash!E$9","v":-105647},{"$f":"NR_to_Cash!F$9","v":-78023},null,1545,-2635.2807677271526,3615.8999206920003,-135.20267823167381,-675.89069382493517,null,-155327,-283877,-105647,-78023]
[1546,{"$error":"#NAME?"},{"$error":"#NAME?"},{"$error":"#NAME?"},{"$error":"#NAME?"},null,{"$f":"NR_to_Cash!C$9","v":-155327},{"$f":"NR_to_Cash!D$9","v":-283877},{"$f":"NR_to_Cash!E$9","v":-105647},{"$f":"NR_to_Cash!F$9","v":-78023},null,1546,-4658.9712435425963,-7865.9312691435107,-1808.5688943992943,-23750.289108199977,null,-155327,-283877,-105647,-78023]
[1547,{"$error":"#NAME?"},{"$error":"#NAME?"},{"$error":"#NAME?"},{"$error":"#NAME?"},null,{"$f":"NR_to_Cash!C$9","v":-155327},{"$f":"NR_to_Cash!D$9","v":-283877},{"$f":"NR_to_Cash!E$9","v":-105647},{"$f":"NR_to_Cash!F$9","v":-78023},null,1547,-26191.42795412544,-1844.7513057446317,-1081.6449149417961,-5455.9383502007186,null,-155327,-283877,-105647,-78023]
[1548,{"$error":"#NAME?"},{"$error":"#NAME?"},{"$error":"#NAME?"},{"$error":"#NAME?"},null,{"$f":"NR_to_Cash!C$9","v":-155327},{"$f":"NR_to_Cash!D$9","v":-283877},{"$f":"NR_to_Cash!E$9","v":-105647},{"$f":"NR_to_Cash!F$9","v":-78023},null,1548,-8452.7207477940683,-2938.552541914517,11705.51911700951,7335.287314551605,null,-155327,-283877,-105647,-78023]
[1549,{"$error":"#NAME?"},{"$error":"#NAME?"},{"$error":"#NAME?"},{"$error":"#NAME?"},null,{"$f":"NR_to_Cash!C$9","v":-155327},{"$f":"NR_to_Cash!D$9","v":-283877},{"$f":"NR_to_Cash!E$9","v":-105647},{"$f":"NR_to_Cash!F$9","v":-78023},null,1549,-22715.07149694721,-19326.698329113682,2597.8852552375342,-13930.727346454918,null,-155327,-283877,-105647,-78023]
[1550,{"$error":"#NAME?"},{"$error":"#NAME?"},{"$error":"#NAME?"},{"$error":"#NAME?"},null,{"$f":"NR_to_Cash!C$9","v":-155327},{"$f":"NR_to_Cash!D$9","v":-283877},{"$f":"NR_to_Cash!E$9","v":-105647},{"$f":"NR_to_Cash!F$9","v":-78023},null,1550,-9157.6615428899622,-25912.456697107882,7127.6765075382391,-25611.346626844268,null,-155327,-283877,-105647,-78023]
[1551,{"$error":"#NAME?"},{"$error":"#NAME?"},{"$error":"#NAME?"},{"$error":"#NAME?"},null,{"$f":"NR_to_Cash!C$9","v":-155327},{"$f":"NR_to_Cash!D$9","v":-283877},{"$f":"NR_to_Cash!E$9","v":-105647},{"$f":"NR_to_Cash!F$9","v":-78023},null,1551,-34636.208645476654,-26925.018420235159,-14319.322703329113,-12335.309892236035,null,-155327,-283877,-105647,-78023]
[1552,{"$error":"#NAME?"},{"$error":"#NAME?"},{"$error":"#NAME?"},{"$error":"#NAME?"},null,{"$f":"NR_to_Cash!C$9","v":-155327},{"$f":"NR_to_Cash!D$9","v":-283877},{"$f":"NR_to_Cash!E$9","v":-105647},{"$f":"NR_to_Cash!F$9","v":-78023},null,1552,-12685.572057033542,-7836.8225243504403,-28065.117525985705,-7475.694096634762,null,-155327,-283877,-105647,-78023]
[1553,{"$error":"#NAME?"},{"$error":"#NAME?"},{"$error":"#NAME?"},{"$error":"#NAME?"},null,{"$f":"NR_to_Cash!C$9","v":-155327},{"$f":"NR_to_Cash!D$9","v":-283877},{"$f":"NR_to_Cash!E$9","v":-105647},{"$f":"NR_to_Cash!F$9","v":-78023},null,1553,-18278.390190608014,-7031.504478005606,-40421.602523364585,-14434.426687583435,null,-155327,-283877,-105647,-78023]
[1554,{"$error":"#NAME?"},{"$error":"#NAME?"},{"$error":"#NAME?"},{"$error":"#NAME?"},null,{"$f":"NR_to_Cash!C$9","v":-155327},{"$f":"NR_to_Cash!D$9","v":-283877},{"$f":"NR_to_Cash!E$9","v":-105647},{"$f":"NR_to_Cash!F$9","v":-78023},null,1554,-15060.805758995881,-21463.214016233345,-35327.439572297859,-11849.482109067047,null,-155327,-283877,-105647,-78023]
[1555,{"$error":"#NAME?"},{"$error":"#NAME?"},{"$error":"#NAME?"},{"$error":"#NAME?"},null,{"$f":"NR_to_Cash!C$9","v":-155327},{"$f":"NR_to_Cash!D$9","v":-283877},{"$f":"NR_to_Cash!E$9","v":-105647},{"$f":"NR_to_Cash!F$9","v":-78023},null,1555,-868.2806761153247,-23721.490671578365,-18614.84456815217,-19401.974706988924,null,-155327,-283877,-105647,-78023]
[1556,{"$error":"#NAME?"},{"$error":"#NAME?"},{"$error":"#NAME?"},{"$error":"#NAME?"},null,{"$f":"NR_to_Cash!C$9","v":-155327},{"$f":"NR_to_Cash!D$9","v":-283877},{"$f":"NR_to_Cash!E$9","v":-105647},{"$f":"NR_to_Cash!F$9","v":-78023},null,1556,3132.447985573207,-10495.692840508384,-10506.454436427568,-13823.80361366591,null,-155327,-283877,-105647,-78023]
[1557,{"$error":"#NAME?"},{"$error":"#NAME?"},{"$error":"#NAME?"},{"$error":"#NAME?"},null,{"$f":"NR_to_Cash!C$9","v":-155327},{"$f":"NR_to_Cash!D$9","v":-283877},{"$f":"NR_to_Cash!E$9","v":-105647},{"$f":"NR_to_Cash!F$9","v":-78023},null,1557,-13606.524767278559,13875.355022263864,-10598.248713236104,-15695.81907241913,null,-155327,-283877,-105647,-78023]
[1558,{"$error":"#NAME?"},{"$error":"#NAME?"},{"$error":"#NAME?"},{"$error":"#NAME?"},null,{"$f":"NR_to_Cash!C$9","v":-155327},{"$f":"NR_to_Cash!D$9","v":-283877},{"$f":"NR_to_Cash!E$9","v":-105647},{"$f":"NR_to_Cash!F$9","v":-78023},null,1558,-7833.4999883415549,-13199.103597422147,-24460.496502276608,-27689.382556531757,null,-155327,-283877,-105647,-78023]
[1559,{"$error":"#NAME?"},{"$error":"#NAME?"},{"$error":"#NAME?"},{"$error":"#NAME?"},null,{"$f":"NR_to_Cash!C$9","v":-155327},{"$f":"NR_to_Cash!D$9","v":-283877},{"$f":"NR_to_Cash!E$9","v":-105647},{"$f":"NR_to_Cash!F$9","v":-78023},null,1559,-11172.480760981183,7051.7218022168463,-21038.943606143741,-41325.334275977628,null,-155327,-283877,-105647,-78023]
[1560,{"$error":"#NAME?"},{"$error":"#NAME?"},{"$error":"#NAME?"},{"$error":"#NAME?"},null,{"$f":"NR_to_Cash!C$9","v":-155327},{"$f":"NR_to_Cash!D$9","v":-283877},{"$f":"NR_to_Cash!E$9","v":-105647},{"$f":"NR_to_Cash!F$9","v":-78023},null,1560,-759.53050036154525,3992.6524654049954,-18726.555611459356,-24825.40497658055,null,-155327,-283877,-105647,-78023]
[1561,{"$error":"#NAME?"},{"$error":"#NAME?"},{"$error":"#NAME?"},{"$error":"#NAME?"},null,{"$f":"NR_to_Cash!C$9","v":-155327},{"$f":"NR_to_Cash!D$9","v":-283877},{"$f":"NR_to_Cash!E$9","v":-105647},{"$f":"NR_to_Cash!F$9","v":-78023},null,1561,526.68688724508786,-20939.902808977055,-10904.786262385571,-11007.457430501105,null,-155327,-283877,-105647,-78023]
[1562,{"$error":"#NAME?"},{"$error":"#NAME?"},{"$error":"#NAME?"},{"$error":"#NAME?"},null,{"$f":"NR_to_Cash!C$9","v":-155327},{"$f":"NR_to_Cash!D$9","v":-283877},{"$f":"NR_to_Cash!E$9","v":-105647},{"$f":"NR_to_Cash!F$9","v":-78023},null,1562,-22681.337774534055,-8782.5354480534115,-9301.9119054436051,10222.543358471969,null,-155327,-283877,-105647,-78023]
[1563,{"$error":"#NAME?"},{"$error":"#NAME?"},{"$error":"#NAME?"},{"$error":"#NAME?"},null,{"$f":"NR_to_Cash!C$9","v":-155327},{"$f":"NR_to_Cash!D$9","v":-283877},{"$f":"NR_to_Cash!E$9","v":-105647},{"$f":"NR_to_Cash!F$9","v":-78023},null,1563,-22419.196190136354,-3203.1862049209103,-31837.062293152791,-3547.3899855061904,null,-155327,-283877,-105647,-78023]
[1564,{"$error":"#NAME?"},{"$error":"#NAME?"},{"$error":"#NAME?"},{"$error":"#NAME?"},null,{"$f":"NR_to_Cash!C$9","v":-155327},{"$f":"NR_to_Cash!D$9","v":-283877},{"$f":"NR_to_Cash!E$9","v":-105647},{"$f":"NR_to_Cash!F$9","v":-78023},null,1564,-19817.914499155144,99.133888930551223,-2031.5022724085081,-22668.145121848189,null,-155327,-283877,-105647,-78023]
[1565,{"$error":"#NAME?"},{"$error":"#NAME?"},{"$error":"#NAME?"},{"$error":"#NAME?"},null,{"$f":"NR_to_Cash!C$9","v":-155327},{"$f":"NR_to_Cash!D$9","v":-283877},{"$f":"NR_to_Cash!E$9","v":-105647},{"$f":"NR_to_Cash!F$9","v":-78023},null,1565,-24582.597287662633,-11719.247284044528,-25424.7794180731,-23600.231670349571,null,-155327,-283877,-105647,-78023]
[1566,{"$error":"#NAME?"},{"$error":"#NAME?"},{"$error":"#NAME?"},{"$error":"#NAME?"},null,{"$f":"NR_to_Cash!C$9","v":-155327},{"$f":"NR_to_Cash!D$9","v":-283877},{"$f":"NR_to_Cash!E$9","v":-105647},{"$f":"NR_to_Cash!F$9","v":-78023},null,1566,-461.73770535247922,-19413.033679511056,7475.1280536194572,-7354.4713830418423,null,-155327,-283877,-105647,-78023]
[1567,{"$error":"#NAME?"},{"$error":"#NAME?"},{"$error":"#NAME?"},{"$error":"#NAME?"},null,{"$f":"NR_to_Cash!C$9","v":-155327},{"$f":"NR_to_Cash!D$9","v":-283877},{"$f":"NR_to_Cash!E$9","v":-105647},{"$f":"NR_to_Cash!F$9","v":-78023},null,1567,-15242.547382452034,-18224.832791613298,-387.48745956998937,-24756.629108925757,null,-155327,-283877,-105647,-78023]
[1568,{"$error":"#NAME?"},{"$error":"#NAME?"},{"$error":"#NAME?"},{"$error":"#NAME?"},null,{"$f":"NR_to_Cash!C$9","v":-155327},{"$f":"NR_to_Cash!D$9","v":-283877},{"$f":"NR_to_Cash!E$9","v":-105647},{"$f":"NR_to_Cash!F$9","v":-78023},null,1568,-8760.1612793879722,-21401.231909113878,-23659.361938235284,-16661.137246360759,null,-155327,-283877,-105647,-78023]
[1569,{"$error":"#NAME?"},{"$error":"#NAME?"},{"$error":"#NAME?"},{"$error":"#NAME?"},null,{"$f":"NR_to_Cash!C$9","v":-155327},{"$f":"NR_to_Cash!D$9","v":-283877},{"$f":"NR_to_Cash!E$9","v":-105647},{"$f":"NR_to_Cash!F$9","v":-78023},null,1569,-31713.427414202532,-16671.069156074656,-32560.894408903343,-13084.293509783216,null,-155327,-283877,-105647,-78023]
[1570,{"$error":"#NAME?"},{"$error":"#NAME?"},{"$error":"#NAME?"},{"$error":"#NAME?"},null,{"$f":"NR_to_Cash!C$9","v":-155327},{"$f":"NR_to_Cash!D$9","v":-283877},{"$f":"NR_to_Cash!E$9","v":-105647},{"$f":"NR_to_Cash!F$9","v":-78023},null,1570,11541.671950499041,-28844.994492335387,-16924.854203820083,11158.008212180928,null,-155327,-283877,-105647,-78023]
[1571,{"$error":"#NAME?"},{"$error":"#NAME?"},{"$error":"#NAME?"},{"$error":"#NAME?"},null,{"$f":"NR_to_Cash!C$9","v":-155327},{"$f":"NR_to_Cash!D$9","v":-283877},{"$f":"NR_to_Cash!E$9","v":-105647},{"$f":"NR_to_Cash!F$9","v":-78023},null,1571,-6496.2693282833316,1368.5793995807023,16489.529015179203,-7195.4512133382914,null,-155327,-283877,-105647,-78023]
[1572,{"$error":"#NAME?"},{"$error":"#NAME?"},{"$error":"#NAME?"},{"$error":"#NAME?"},null,{"$f":"NR_to_Cash!C$9","v":-155327},{"$f":"NR_to_Cash!D$9","v":-283877},{"$f":"NR_to_Cash!E$9","v":-105647},{"$f":"NR_to_Cash!F$9","v":-78023},null,1572,6677.9417546739451,1884.7878146132152,-20476.057214239958,-27604.017480039613,null,-155327,-283877,-105647,-78023]
[1573,{"$error":"#NAME?"},{"$error":"#NAME?"},{"$error":"#NAME?"},{"$error":"#NAME?"},null,{"$f":"NR_to_Cash!C$9","v":-155327},{"$f":"NR_to_Cash!D$9","v":-283877},{"$f":"NR_to_Cash!E$9","v":-105647},{"$f":"NR_to_Cash!F$9","v":-78023},null,1573,-5103.9302713913294,-11956.364675926663,-6046.0621279295719,-5854.1626622268832,null,-155327,-283877,-105647,-78023]
[1574,{"$error":"#NAME?"},{"$error":"#NAME?"},{"$error":"#NAME?"},{"$error":"#NAME?"},null,{"$f":"NR_to_Cash!C$9","v":-155327},{"$f":"NR_to_Cash!D$9","v":-283877},{"$f":"NR_to_Cash!E$9","v":-105647},{"$f":"NR_to_Cash!F$9","v":-78023},null,1574,-11600.14125486647,-18134.265582843924,-5412.976284160568,-3269.8773170808872,null,-155327,-283877,-105647,-78023]
[1575,{"$error":"#NAME?"},{"$error":"#NAME?"},{"$error":"#NAME?"},{"$error":"#NAME?"},null,{"$f":"NR_to_Cash!C$9","v":-155327},{"$f":"NR_to_Cash!D$9","v":-283877},{"$f":"NR_to_Cash!E$9","v":-105647},{"$f":"NR_to_Cash!F$9","v":-78023},null,1575,5662.6022431203,-5017.8163423284841,-19251.024950620496,-29167.012313472766,null,-155327,-283877,-105647,-78023]
[1576,{"$error":"#NAME?"},{"$error":"#NAME?"},{"$error":"#NAME?"},{"$error":"#NAME?"},null,{"$f":"NR_to_Cash!C$9","v":-155327},{"$f":"NR_to_Cash!D$9","v":-283877},{"$f":"NR_to_Cash!E$9","v":-105647},{"$f":"NR_to_Cash!F$9","v":-78023},null,1576,-4788.5598353658797,5927.9958095250195,-26854.521301279714,-25862.452334726808,null,-155327,-283877,-105647,-78023]
[1577,{"$error":"#NAME?"},{"$error":"#NAME?"},{"$error":"#NAME?"},{"$error":"#NAME?"},null,{"$f":"NR_to_Cash!C$9","v":-155327},{"$f":"NR_to_Cash!D$9","v":-283877},{"$f":"NR_to_Cash!E$9","v":-105647},{"$f":"NR_to_Cash!F$9","v":-78023},null,1577,-1320.9935951781474,-33366.681873513306,-25654.610078573325,8787.5551432409866,null,-155327,-283877,-105647,-78023]
[1578,{"$error":"#NAME?"},{"$error":"#NAME?"},{"$error":"#NAME?"},{"$error":"#NAME?"},null,{"$f":"NR_to_Cash!C$9","v":-155327},{"$f":"NR_to_Cash!D$9","v":-283877},{"$f":"NR_to_Cash!E$9","v":-105647},{"$f":"NR_to_Cash!F$9","v":-78023},null,1578,-20051.392404240414,-15908.336226231429,-20365.712042636387,-16191.762490324762,null,-155327,-283877,-105647,-78023]
[1579,{"$error":"#NAME?"},{"$error":"#NAME?"},{"$error":"#NAME?"},{"$error":"#NAME?"},null,{"$f":"NR_to_Cash!C$9","v":-155327},{"$f":"NR_to_Cash!D$9","v":-283877},{"$f":"NR_to_Cash!E$9","v":-105647},{"$f":"NR_to_Cash!F$9","v":-78023},null,1579,2283.5862640672653,16595.935635210466,-17507.570234052735,-27516.856502267077,null,-155327,-283877,-105647,-78023]
[1580,{"$error":"#NAME?"},{"$error":"#NAME?"},{"$error":"#NAME?"},{"$error":"#NAME?"},null,{"$f":"NR_to_Cash!C$9","v":-155327},{"$f":"NR_to_Cash!D$9","v":-283877},{"$f":"NR_to_Cash!E$9","v":-105647},{"$f":"NR_to_Cash!F$9","v":-78023},null,1580,-12784.49694360343,6656.5788659758446,-21022.462966244941,-25137.537443165471,null,-155327,-283877,-105647,-78023]
[1581,{"$error":"#NAME?"},{"$error":"#NAME?"},{"$error":"#NAME?"},{"$error":"#NAME?"},null,{"$f":"NR_to_Cash!C$9","v":-155327},{"$f":"NR_to_Cash!D$9","v":-283877},{"$f":"NR_to_Cash!E$9","v":-105647},{"$f":"NR_to_Cash!F$9","v":-78023},null,1581,-1505.2054409267143,-10975.488967458094,19666.27767953002,10461.513989458157,null,-155327,-283877,-105647,-78023]
[1582,{"$error":"#NAME?"},{"$error":"#NAME?"},{"$error":"#NAME?"},{"$error":"#NAME?"},null,{"$f":"NR_to_Cash!C$9","v":-155327},{"$f":"NR_to_Cash!D$9","v":-283877},{"$f":"NR_to_Cash!E$9","v":-105647},{"$f":"NR_to_Cash!F$9","v":-78023},null,1582,-8513.4266910324204,-24781.590598290994,-17128.753366955305,-10895.238120755585,null,-155327,-283877,-105647,-78023]
[1583,{"$error":"#NAME?"},{"$error":"#NAME?"},{"$error":"#NAME?"},{"$error":"#NAME?"},null,{"$f":"NR_to_Cash!C$9","v":-155327},{"$f":"NR_to_Cash!D$9","v":-283877},{"$f":"NR_to_Cash!E$9","v":-105647},{"$f":"NR_to_Cash!F$9","v":-78023},null,1583,-9836.309647235641,-16407.195397736621,5868.3048176887005,-10960.142515045407,null,-155327,-283877,-105647,-78023]
[1584,{"$error":"#NAME?"},{"$error":"#NAME?"},{"$error":"#NAME?"},{"$error":"#NAME?"},null,{"$f":"NR_to_Cash!C$9","v":-155327},{"$f":"NR_to_Cash!D$9","v":-283877},{"$f":"NR_to_Cash!E$9","v":-105647},{"$f":"NR_to_Cash!F$9","v":-78023},null,1584,-15692.122571166648,-20567.485192243843,-16842.00984171723,-28648.028956062888,null,-155327,-283877,-105647,-78023]
[1585,{"$error":"#NAME?"},{"$error":"#NAME?"},{"$error":"#NAME?"},{"$error":"#NAME?"},null,{"$f":"NR_to_Cash!C$9","v":-155327},{"$f":"NR_to_Cash!D$9","v":-283877},{"$f":"NR_to_Cash!E$9","v":-105647},{"$f":"NR_to_Cash!F$9","v":-78023},null,1585,-12159.144114380788,-30009.087182715768,-5512.8858792932788,-2807.9948791919824,null,-155327,-283877,-105647,-78023]
[1586,{"$error":"#NAME?"},{"$error":"#NAME?"},{"$error":"#NAME?"},{"$error":"#NAME?"},null,{"$f":"NR_to_Cash!C$9","v":-155327},{"$f":"NR_to_Cash!D$9","v":-283877},{"$f":"NR_to_Cash!E$9","v":-105647},{"$f":"NR_to_Cash!F$9","v":-78023},null,1586,-11740.095941805903,-11971.821539683118,-23240.256343222718,-12668.388501776859,null,-155327,-283877,-105647,-78023]
[1587,{"$error":"#NAME?"},{"$error":"#NAME?"},{"$error":"#NAME?"},{"$error":"#NAME?"},null,{"$f":"NR_to_Cash!C$9","v":-155327},{"$f":"NR_to_Cash!D$9","v":-283877},{"$f":"NR_to_Cash!E$9","v":-105647},{"$f":"NR_to_Cash!F$9","v":-78023},null,1587,-25815.897770934265,-17602.006499454499,16385.742288931691,-26250.379541211478,null,-155327,-283877,-105647,-78023]
[1588,{"$error":"#NAME?"},{"$error":"#NAME?"},{"$error":"#NAME?"},{"$error":"#NAME?"},null,{"$f":"NR_to_Cash!C$9","v":-155327},{"$f":"NR_to_Cash!D$9","v":-283877},{"$f":"NR_to_Cash!E$9","v":-105647},{"$f":"NR_to_Cash!F$9","v":-78023},null,1588,-14231.082935946364,-408.02304060004519,-14103.309579439549,-20272.994412866712,null,-155327,-283877,-105647,-78023]
[1589,{"$error":"#NAME?"},{"$error":"#NAME?"},{"$error":"#NAME?"},{"$error":"#NAME?"},null,{"$f":"NR_to_Cash!C$9","v":-155327},{"$f":"NR_to_Cash!D$9","v":-283877},{"$f":"NR_to_Cash!E$9","v":-105647},{"$f":"NR_to_Cash!F$9","v":-78023},null,1589,-10251.951688097521,-21158.413882656867,-14855.510629679657,-20663.707342635069,null,-155327,-283877,-105647,-78023]
[1590,{"$error":"#NAME?"},{"$error":"#NAME?"},{"$error":"#NAME?"},{"$error":"#NAME?"},null,{"$f":"NR_to_Cash!C$9","v":-155327},{"$f":"NR_to_Cash!D$9","v":-283877},{"$f":"NR_to_Cash!E$9","v":-105647},{"$f":"NR_to_Cash!F$9","v":-78023},null,1590,-7989.4141888992481,-35627.965767306989,-6947.9300539097967,-6624.0133618453165,null,-155327,-283877,-105647,-78023]
[1591,{"$error":"#NAME?"},{"$error":"#NAME?"},{"$error":"#NAME?"},{"$error":"#NAME?"},null,{"$f":"NR_to_Cash!C$9","v":-155327},{"$f":"NR_to_Cash!D$9","v":-283877},{"$f":"NR_to_Cash!E$9","v":-105647},{"$f":"NR_to_Cash!F$9","v":-78023},null,1591,-6563.6144972702259,-22081.74188203174,-25757.181092913852,-38513.534080390571,null,-155327,-283877,-105647,-78023]
[1592,{"$error":"#NAME?"},{"$error":"#NAME?"},{"$error":"#NAME?"},{"$error":"#NAME?"},null,{"$f":"NR_to_Cash!C$9","v":-155327},{"$f":"NR_to_Cash!D$9","v":-283877},{"$f":"NR_to_Cash!E$9","v":-105647},{"$f":"NR_to_Cash!F$9","v":-78023},null,1592,474.8895012114923,-21793.968376686011,-3215.9696570558522,-12384.203974539469,null,-155327,-283877,-105647,-78023]
[1593,{"$error":"#NAME?"},{"$error":"#NAME?"},{"$error":"#NAME?"},{"$error":"#NAME?"},null,{"$f":"NR_to_Cash!C$9","v":-155327},{"$f":"NR_to_Cash!D$9","v":-283877},{"$f":"NR_to_Cash!E$9","v":-105647},{"$f":"NR_to_Cash!F$9","v":-78023},null,1593,-14377.533964062102,-8946.1650698995381,-24303.976004659584,-29316.181009136471,null,-155327,-283877,-105647,-78023]
[1594,{"$error":"#NAME?"},{"$error":"#NAME?"},{"$error":"#NAME?"},{"$error":"#NAME?"},null,{"$f":"NR_to_Cash!C$9","v":-155327},{"$f":"NR_to_Cash!D$9","v":-283877},{"$f":"NR_to_Cash!E$9","v":-105647},{"$f":"NR_to_Cash!F$9","v":-78023},null,1594,-31520.445931329079,-6205.6831640962537,15107.419257702481,-22706.155906493252,null,-155327,-283877,-105647,-78023]
[1595,{"$error":"#NAME?"},{"$error":"#NAME?"},{"$error":"#NAME?"},{"$error":"#NAME?"},null,{"$f":"NR_to_Cash!C$9","v":-155327},{"$f":"NR_to_Cash!D$9","v":-283877},{"$f":"NR_to_Cash!E$9","v":-105647},{"$f":"NR_to_Cash!F$9","v":-78023},null,1595,-20037.113619502961,-6582.749589164755,-9596.4249636979293,-2134.2312510630968,null,-155327,-283877,-105647,-78023]
[1596,{"$error":"#NAME?"},{"$error":"#NAME?"},{"$error":"#NAME?"},{"$error":"#NAME?"},null,{"$f":"NR_to_Cash!C$9","v":-155327},{"$f":"NR_to_Cash!D$9","v":-283877},{"$f":"NR_to_Cash!E$9","v":-105647},{"$f":"NR_to_Cash!F$9","v":-78023},null,1596,161.09662540346454,-7950.0410991747403,7444.6966662605637,-26322.056388802517,null,-155327,-283877,-105647,-78023]
[1597,{"$error":"#NAME?"},{"$error":"#NAME?"},{"$error":"#NAME?"},{"$error":"#NAME?"},null,{"$f":"NR_to_Cash!C$9","v":-155327},{"$f":"NR_to_Cash!D$9","v":-283877},{"$f":"NR_to_Cash!E$9","v":-105647},{"$f":"NR_to_Cash!F$9","v":-78023},null,1597,-9133.5764996167218,8182.8329663077093,-7321.6339831915257,7251.2972233486817,null,-155327,-283877,-105647,-78023]
[1598,{"$error":"#NAME?"},{"$error":"#NAME?"},{"$error":"#NAME?"},{"$error":"#NAME?"},null,{"$f":"NR_to_Cash!C$9","v":-155327},{"$f":"NR_to_Cash!D$9","v":-283877},{"$f":"NR_to_Cash!E$9","v":-105647},{"$f":"NR_to_Cash!F$9","v":-78023},null,1598,-32823.849675062338,-8343.3617267259706,-2109.4025973104408,-25292.275606678602,null,-155327,-283877,-105647,-78023]
[1599,{"$error":"#NAME?"},{"$error":"#NAME?"},{"$error":"#NAME?"},{"$error":"#NAME?"},null,{"$f":"NR_to_Cash!C$9","v":-155327},{"$f":"NR_to_Cash!D$9","v":-283877},{"$f":"NR_to_Cash!E$9","v":-105647},{"$f":"NR_to_Cash!F$9","v":-78023},null,1599,-23705.202607074694,-14561.552636087412,-2746.2149165960254,-8445.7203939483952,null,-155327,-283877,-105647,-78023]
[1600,{"$error":"#NAME?"},{"$error":"#NAME?"},{"$error":"#NAME?"},{"$error":"#NAME?"},null,{"$f":"NR_to_Cash!C$9","v":-155327},{"$f":"NR_to_Cash!D$9","v":-283877},{"$f":"NR_to_Cash!E$9","v":-105647},{"$f":"NR_to_Cash!F$9","v":-78023},null,1600,-4368.1448527768107,17157.860553186078,-13642.912305592925,-29747.578999425863,null,-155327,-283877,-105647,-78023]
[1601,{"$error":"#NAME?"},{"$error":"#NAME?"},{"$error":"#NAME?"},{"$error":"#NAME?"},null,{"$f":"NR_to_Cash!C$9","v":-155327},{"$f":"NR_to_Cash!D$9","v":-283877},{"$f":"NR_to_Cash!E$9","v":-105647},{"$f":"NR_to_Cash!F$9","v":-78023},null,1601,-2113.0828966275476,-3720.705822264269,-21009.904577536108,-33208.341516430883,null,-155327,-283877,-105647,-78023]
[1602,{"$error":"#NAME?"},{"$error":"#NAME?"},{"$error":"#NAME?"},{"$error":"#NAME?"},null,{"$f":"NR_to_Cash!C$9","v":-155327},{"$f":"NR_to_Cash!D$9","v":-283877},{"$f":"NR_to_Cash!E$9","v":-105647},{"$f":"NR_to_Cash!F$9","v":-78023},null,1602,-219.39094477832231,-5573.0073523239244,-30201.565617120505,-785.01096084996186,null,-155327,-283877,-105647,-78023]
[1603,{"$error":"#NAME?"},{"$error":"#NAME?"},{"$error":"#NAME?"},{"$error":"#NAME?"},null,{"$f":"NR_to_Cash!C$9","v":-155327},{"$f":"NR_to_Cash!D$9","v":-283877},{"$f":"NR_to_Cash!E$9","v":-105647},{"$f":"NR_to_Cash!F$9","v":-78023},null,1603,-658.72518701860599,4728.154281095799,-31490.795404150856,-28781.518216524884,null,-155327,-283877,-105647,-78023]
[1604,{"$error":"#NAME?"},{"$error":"#NAME?"},{"$error":"#NAME?"},{"$error":"#NAME?"},null,{"$f":"NR_to_Cash!C$9","v":-155327},{"$f":"NR_to_Cash!D$9","v":-283877},{"$f":"NR_to_Cash!E$9","v":-105647},{"$f":"NR_to_Cash!F$9","v":-78023},null,1604,-3023.5551375376417,989.0977641108442,-4436.1081167389329,-16083.782270289463,null,-155327,-283877,-105647,-78023]
[1605,{"$error":"#NAME?"},{"$error":"#NAME?"},{"$error":"#NAME?"},{"$error":"#NAME?"},null,{"$f":"NR_to_Cash!C$9","v":-155327},{"$f":"NR_to_Cash!D$9","v":-283877},{"$f":"NR_to_Cash!E$9","v":-105647},{"$f":"NR_to_Cash!F$9","v":-78023},null,1605,-28646.035526533924,-32925.258813593515,-13810.357511443368,-11234.260460162148,null,-155327,-283877,-105647,-78023]
[1606,{"$error":"#NAME?"},{"$error":"#NAME?"},{"$error":"#NAME?"},{"$error":"#NAME?"},null,{"$f":"NR_to_Cash!C$9","v":-155327},{"$f":"NR_to_Cash!D$9","v":-283877},{"$f":"NR_to_Cash!E$9","v":-105647},{"$f":"NR_to_Cash!F$9","v":-78023},null,1606,-11080.905831767395,-12184.411869175094,-35360.24404700454,-20130.215061255396,null,-155327,-283877,-105647,-78023]
[1607,{"$error":"#NAME?"},{"$error":"#NAME?"},{"$error":"#NAME?"},{"$error":"#NAME?"},null,{"$f":"NR_to_Cash!C$9","v":-155327},{"$f":"NR_to_Cash!D$9","v":-283877},{"$f":"NR_to_Cash!E$9","v":-105647},{"$f":"NR_to_Cash!F$9","v":-78023},null,1607,2520.8088536832274,-27817.55462458112,-22142.978622805509,-4192.558450817618,null,-155327,-283877,-105647,-78023]
[1608,{"$error":"#NAME?"},{"$error":"#NAME?"},{"$error":"#NAME?"},{"$error":"#NAME?"},null,{"$f":"NR_to_Cash!C$9","v":-155327},{"$f":"NR_to_Cash!D$9","v":-283877},{"$f":"NR_to_Cash!E$9","v":-105647},{"$f":"NR_to_Cash!F$9","v":-78023},null,1608,-9388.5605189711296,-22687.955144063493,-19928.23917217147,-30858.322794897569,null,-155327,-283877,-105647,-78023]
[1609,{"$error":"#NAME?"},{"$error":"#NAME?"},{"$error":"#NAME?"},{"$error":"#NAME?"},null,{"$f":"NR_to_Cash!C$9","v":-155327},{"$f":"NR_to_Cash!D$9","v":-283877},{"$f":"NR_to_Cash!E$9","v":-105647},{"$f":"NR_to_Cash!F$9","v":-78023},null,1609,-32.472523261483381,-20493.389496725955,1777.2309620418152,444.14555205872097,null,-155327,-283877,-105647,-78023]
[1610,{"$error":"#NAME?"},{"$error":"#NAME?"},{"$error":"#NAME?"},{"$error":"#NAME?"},null,{"$f":"NR_to_Cash!C$9","v":-155327},{"$f":"NR_to_Cash!D$9","v":-283877},{"$f":"NR_to_Cash!E$9","v":-105647},{"$f":"NR_to_Cash!F$9","v":-78023},null,1610,-15271.778137933525,-36476.276864600397,-2996.1333806860257,596.64002924395265,null,-155327,-283877,-105647,-78023]
[1611,{"$error":"#NAME?"},{"$error":"#NAME?"},{"$error":"#NAME?"},{"$error":"#NAME?"},null,{"$f":"NR_to_Cash!C$9","v":-155327},{"$f":"NR_to_Cash!D$9","v":-283877},{"$f":"NR_to_Cash!E$9","v":-105647},{"$f":"NR_to_Cash!F$9","v":-78023},null,1611,-22033.799322625891,-3297.0817337361568,-17062.439570805847,-18716.747063773095,null,-155327,-283877,-105647,-78023]
[1612,{"$error":"#NAME?"},{"$error":"#NAME?"},{"$error":"#NAME?"},{"$error":"#NAME?"},null,{"$f":"NR_to_Cash!C$9","v":-155327},{"$f":"NR_to_Cash!D$9","v":-283877},{"$f":"NR_to_Cash!E$9","v":-105647},{"$f":"NR_to_Cash!F$9","v":-78023},null,1612,-20335.844822090607,4459.933016197162,-778.29669302032914,-15262.022667454681,null,-155327,-283877,-105647,-78023]
[1613,{"$error":"#NAME?"},{"$error":"#NAME?"},{"$error":"#NAME?"},{"$error":"#NAME?"},null,{"$f":"NR_to_Cash!C$9","v":-155327},{"$f":"NR_to_Cash!D$9","v":-283877},{"$f":"NR_to_Cash!E$9","v":-105647},{"$f":"NR_to_Cash!F$9","v":-78023},null,1613,-16642.801425889767,3571.8346690373596,-33962.085009004244,-1329.3497236765515,null,-155327,-283877,-105647,-78023]
[1614,{"$error":"#NAME?"},{"$error":"#NAME?"},{"$error":"#NAME?"},{"$error":"#NAME?"},null,{"$f":"NR_to_Cash!C$9","v":-155327},{"$f":"NR_to_Cash!D$9","v":-283877},{"$f":"NR_to_Cash!E$9","v":-105647},{"$f":"NR_to_Cash!F$9","v":-78023},null,1614,-16839.17277739985,-18111.105310565239,-13145.106433567789,7437.4152766488342,null,-155327,-283877,-105647,-78023]
[1615,{"$error":"#NAME?"},{"$error":"#NAME?"},{"$error":"#NAME?"},{"$error":"#NAME?"},null,{"$f":"NR_to_Cash!C$9","v":-155327},{"$f":"NR_to_Cash!D$9","v":-283877},{"$f":"NR_to_Cash!E$9","v":-105647},{"$f":"NR_to_Cash!F$9","v":-78023},null,1615,-7083.1205492808658,-33466.453597200685,2074.3389006962602,-30440.522732363097,null,-155327,-283877,-105647,-78023]
[1616,{"$error":"#NAME?"},{"$error":"#NAME?"},{"$error":"#NAME?"},{"$error":"#NAME?"},null,{"$f":"NR_to_Cash!C$9","v":-155327},{"$f":"NR_to_Cash!D$9","v":-283877},{"$f":"NR_to_Cash!E$9","v":-105647},{"$f":"NR_to_Cash!F$9","v":-78023},null,1616,-14924.846517742157,-17240.306955403757,-19239.471680507919,-28538.750607763395,null,-155327,-283877,-105647,-78023]
[1617,{"$error":"#NAME?"},{"$error":"#NAME?"},{"$error":"#NAME?"},{"$error":"#NAME?"},null,{"$f":"NR_to_Cash!C$9","v":-155327},{"$f":"NR_to_Cash!D$9","v":-283877},{"$f":"NR_to_Cash!E$9","v":-105647},{"$f":"NR_to_Cash!F$9","v":-78023},null,1617,1937.6387150146638,3812.9028632119321,2935.4606143728324,15914.127466525648,null,-155327,-283877,-105647,-78023]
[1618,{"$error":"#NAME?"},{"$error":"#NAME?"},{"$error":"#NAME?"},{"$error":"#NAME?"},null,{"$f":"NR_to_Cash!C$9","v":-155327},{"$f":"NR_to_Cash!D$9","v":-283877},{"$f":"NR_to_Cash!E$9","v":-105647},{"$f":"NR_to_Cash!F$9","v":-78023},null,1618,-8187.9610570779987,-27949.861860987239,-17303.506489598454,-11110.461554762825,null,-155327,-283877,-105647,-78023]
[1619,{"$error":"#NAME?"},{"$error":"#NAME?"},{"$error":"#NAME?"},{"$error":"#NAME?"},null,{"$f":"NR_to_Cash!C$9","v":-155327},{"$f":"NR_to_Cash!D$9","v":-283877},{"$f":"NR_to_Cash!E$9","v":-105647},{"$f":"NR_to_Cash!F$9","v":-78023},null,1619,-20112.44811212338,-24029.705227851566,-5427.750962186632,-14131.977576700801,null,-155327,-283877,-105647,-78023]
[1620,{"$error":"#NAME?"},{"$error":"#NAME?"},{"$error":"#NAME?"},{"$error":"#NAME?"},null,{"$f":"NR_to_Cash!C$9","v":-155327},{"$f":"NR_to_Cash!D$9","v":-283877},{"$f":"NR_to_Cash!E$9","v":-105647},{"$f":"NR_to_Cash!F$9","v":-78023},null,1620,-6212.0243079965057,-11670.016989381469,-13513.8971359723,10718.876031644209,null,-155327,-283877,-105647,-78023]
[1621,{"$error":"#NAME?"},{"$error":"#NAME?"},{"$error":"#NAME?"},{"$error":"#NAME?"},null,{"$f":"NR_to_Cash!C$9","v":-155327},{"$f":"NR_to_Cash!D$9","v":-283877},{"$f":"NR_to_Cash!E$9","v":-105647},{"$f":"NR_to_Cash!F$9","v":-78023},null,1621,-17801.299165840064,10342.192741414676,-988.72595777638821,-12988.050971763396,null,-155327,-283877,-105647,-78023]
[1622,{"$error":"#NAME?"},{"$error":"#NAME?"},{"$error":"#NAME?"},{"$error":"#NAME?"},null,{"$f":"NR_to_Cash!C$9","v":-155327},{"$f":"NR_to_Cash!D$9","v":-283877},{"$f":"NR_to_Cash!E$9","v":-105647},{"$f":"NR_to_Cash!F$9","v":-78023},null,1622,-21402.303418312818,4965.8546088590574,-16430.156869549115,-26119.303849982258,null,-155327,-283877,-105647,-78023]
[1623,{"$error":"#NAME?"},{"$error":"#NAME?"},{"$error":"#NAME?"},{"$error":"#NAME?"},null,{"$f":"NR_to_Cash!C$9","v":-155327},{"$f":"NR_to_Cash!D$9","v":-283877},{"$f":"NR_to_Cash!E$9","v":-105647},{"$f":"NR_to_Cash!F$9","v":-78023},null,1623,-496.06761854921245,-21681.232965558396,-24041.569215298608,-11245.970602904697,null,-155327,-283877,-105647,-78023]
[1624,{"$error":"#NAME?"},{"$error":"#NAME?"},{"$error":"#NAME?"},{"$error":"#NAME?"},null,{"$f":"NR_to_Cash!C$9","v":-155327},{"$f":"NR_to_Cash!D$9","v":-283877},{"$f":"NR_to_Cash!E$9","v":-105647},{"$f":"NR_to_Cash!F$9","v":-78023},null,1624,-18084.04134339928,-5053.9215293013804,-32144.868299756155,2208.9780675490465,null,-155327,-283877,-105647,-78023]
[1625,{"$error":"#NAME?"},{"$error":"#NAME?"},{"$error":"#NAME?"},{"$error":"#NAME?"},null,{"$f":"NR_to_Cash!C$9","v":-155327},{"$f":"NR_to_Cash!D$9","v":-283877},{"$f":"NR_to_Cash!E$9","v":-105647},{"$f":"NR_to_Cash!F$9","v":-78023},null,1625,-4408.0478178316116,-16179.996908700798,-8516.8581852068619,-3901.0891899670073,null,-155327,-283877,-105647,-78023]
[1626,{"$error":"#NAME?"},{"$error":"#NAME?"},{"$error":"#NAME?"},{"$error":"#NAME?"},null,{"$f":"NR_to_Cash!C$9","v":-155327},{"$f":"NR_to_Cash!D$9","v":-283877},{"$f":"NR_to_Cash!E$9","v":-105647},{"$f":"NR_to_Cash!F$9","v":-78023},null,1626,-8231.5642201064911,127.26028435751168,-27488.066872051455,-25262.354625243897,null,-155327,-283877,-105647,-78023]
[1627,{"$error":"#NAME?"},{"$error":"#NAME?"},{"$error":"#NAME?"},{"$error":"#NAME?"},null,{"$f":"NR_to_Cash!C$9","v":-155327},{"$f":"NR_to_Cash!D$9","v":-283877},{"$f":"NR_to_Cash!E$9","v":-105647},{"$f":"NR_to_Cash!F$9","v":-78023},null,1627,-5765.6301702342553,-14205.037068574135,20662.356507248762,11047.494544110612,null,-155327,-283877,-105647,-78023]
[1628,{"$error":"#NAME?"},{"$error":"#NAME?"},{"$error":"#NAME?"},{"$error":"#NAME?"},null,{"$f":"NR_to_Cash!C$9","v":-155327},{"$f":"NR_to_Cash!D$9","v":-283877},{"$f":"NR_to_Cash!E$9","v":-105647},{"$f":"NR_to_Cash!F$9","v":-78023},null,1628,-19575.164265118648,-5015.0716976145495,-9065.7394055355271,12738.526027280508,null,-155327,-283877,-105647,-78023]
[1629,{"$error":"#NAME?"},{"$error":"#NAME?"},{"$error":"#NAME?"},{"$error":"#NAME?"},null,{"$f":"NR_to_Cash!C$9","v":-155327},{"$f":"NR_to_Cash!D$9","v":-283877},{"$f":"NR_to_Cash!E$9","v":-105647},{"$f":"NR_to_Cash!F$9","v":-78023},null,1629,-6367.0480220214404,-15373.884379716708,345.11460868624084,-1894.9824126372764,null,-155327,-283877,-105647,-78023]
[1630,{"$error":"#NAME?"},{"$error":"#NAME?"},{"$error":"#NAME?"},{"$error":"#NAME?"},null,{"$f":"NR_to_Cash!C$9","v":-155327},{"$f":"NR_to_Cash!D$9","v":-283877},{"$f":"NR_to_Cash!E$9","v":-105647},{"$f":"NR_to_Cash!F$9","v":-78023},null,1630,-15937.747919841308,5802.7980666704416,-26153.454097197216,-9569.6956164168769,null,-155327,-283877,-105647,-78023]
[1631,{"$error":"#NAME?"},{"$error":"#NAME?"},{"$error":"#NAME?"},{"$error":"#NAME?"},null,{"$f":"NR_to_Cash!C$9","v":-155327},{"$f":"NR_to_Cash!D$9","v":-283877},{"$f":"NR_to_Cash!E$9","v":-105647},{"$f":"NR_to_Cash!F$9","v":-78023},null,1631,-4563.1870030519085,-1576.1297655562294,3341.9053792376344,-3750.4326583439051,null,-155327,-283877,-105647,-78023]
[1632,{"$error":"#NAME?"},{"$error":"#NAME?"},{"$error":"#NAME?"},{"$error":"#NAME?"},null,{"$f":"NR_to_Cash!C$9","v":-155327},{"$f":"NR_to_Cash!D$9","v":-283877},{"$f":"NR_to_Cash!E$9","v":-105647},{"$f":"NR_to_Cash!F$9","v":-78023},null,1632,9707.3247009026272,-15276.409843281241,6637.9225464852916,-1673.2128535539193,null,-155327,-283877,-105647,-78023]
[1633,{"$error":"#NAME?"},{"$error":"#NAME?"},{"$error":"#NAME?"},{"$error":"#NAME?"},null,{"$f":"NR_to_Cash!C$9","v":-155327},{"$f":"NR_to_Cash!D$9","v":-283877},{"$f":"NR_to_Cash!E$9","v":-105647},{"$f":"NR_to_Cash!F$9","v":-78023},null,1633,-17667.284736898226,-12944.310528675351,2502.7758399246245,150.99307890048493,null,-155327,-283877,-105647,-78023]
[1634,{"$error":"#NAME?"},{"$error":"#NAME?"},{"$error":"#NAME?"},{"$error":"#NAME?"},null,{"$f":"NR_to_Cash!C$9","v":-155327},{"$f":"NR_to_Cash!D$9","v":-283877},{"$f":"NR_to_Cash!E$9","v":-105647},{"$f":"NR_to_Cash!F$9","v":-78023},null,1634,-28308.172710175961,-24310.894947717839,-25232.065356829993,14633.689471988459,null,-155327,-283877,-105647,-78023]
[1635,{"$error":"#NAME?"},{"$error":"#NAME?"},{"$error":"#NAME?"},{"$error":"#NAME?"},null,{"$f":"NR_to_Cash!C$9","v":-155327},{"$f":"NR_to_Cash!D$9","v":-283877},{"$f":"NR_to_Cash!E$9","v":-105647},{"$f":"NR_to_Cash!F$9","v":-78023},null,1635,-31162.990151995844,-8126.6335594113943,-14258.654046761567,-2822.9850838294228,null,-155327,-283877,-105647,-78023]
[1636,{"$error":"#NAME?"},{"$error":"#NAME?"},{"$error":"#NAME?"},{"$error":"#NAME?"},null,{"$f":"NR_to_Cash!C$9","v":-155327},{"$f":"NR_to_Cash!D$9","v":-283877},{"$f":"NR_to_Cash!E$9","v":-105647},{"$f":"NR_to_Cash!F$9","v":-78023},null,1636,3641.929968069493,-8240.4978831524786,-27100.603787160824,-17200.870457488862,null,-155327,-283877,-105647,-78023]
[1637,{"$error":"#NAME?"},{"$error":"#NAME?"},{"$error":"#NAME?"},{"$error":"#NAME?"},null,{"$f":"NR_to_Cash!C$9","v":-155327},{"$f":"NR_to_Cash!D$9","v":-283877},{"$f":"NR_to_Cash!E$9","v":-105647},{"$f":"NR_to_Cash!F$9","v":-78023},null,1637,-15887.162715417036,-25980.414296752409,5214.2350724691523,-3110.3404828928169,null,-155327,-283877,-105647,-78023]
[1638,{"$error":"#NAME?"},{"$error":"#NAME?"},{"$error":"#NAME?"},{"$error":"#NAME?"},null,{"$f":"NR_to_Cash!C$9","v":-155327},{"$f":"NR_to_Cash!D$9","v":-283877},{"$f":"NR_to_Cash!E$9","v":-105647},{"$f":"NR_to_Cash!F$9","v":-78023},null,1638,-11442.844354195644,-7977.8541801780257,-13666.120856033647,-21227.593656610396,null,-155327,-283877,-105647,-78023]
[1639,{"$error":"#NAME?"},{"$error":"#NAME?"},{"$error":"#NAME?"},{"$error":"#NAME?"},null,{"$f":"NR_to_Cash!C$9","v":-155327},{"$f":"NR_to_Cash!D$9","v":-283877},{"$f":"NR_to_Cash!E$9","v":-105647},{"$f":"NR_to_Cash!F$9","v":-78023},null,1639,-24505.37002153958,-23991.400924449183,-28513.257167646734,4261.31028175559,null,-155327,-283877,-105647,-78023]
[1640,{"$error":"#NAME?"},{"$error":"#NAME?"},{"$error":"#NAME?"},{"$error":"#NAME?"},null,{"$f":"NR_to_Cash!C$9","v":-155327},{"$f":"NR_to_Cash!D$9","v":-283877},{"$f":"NR_to_Cash!E$9","v":-105647},{"$f":"NR_to_Cash!F$9","v":-78023},null,1640,-7777.7150836132578,6990.2144381854141,-23980.642718991254,-10412.236891495026,null,-155327,-283877,-105647,-78023]
[1641,{"$error":"#NAME?"},{"$error":"#NAME?"},{"$error":"#NAME?"},{"$error":"#NAME?"},null,{"$f":"NR_to_Cash!C$9","v":-155327},{"$f":"NR_to_Cash!D$9","v":-283877},{"$f":"NR_to_Cash!E$9","v":-105647},{"$f":"NR_to_Cash!F$9","v":-78023},null,1641,-1248.734263194925,-28219.577399854712,-8484.7185846221801,-16419.531769076053,null,-155327,-283877,-105647,-78023]
[1642,{"$error":"#NAME?"},{"$error":"#NAME?"},{"$error":"#NAME?"},{"$error":"#NAME?"},null,{"$f":"NR_to_Cash!C$9","v":-155327},{"$f":"NR_to_Cash!D$9","v":-283877},{"$f":"NR_to_Cash!E$9","v":-105647},{"$f":"NR_to_Cash!F$9","v":-78023},null,1642,-52307.936965821529,-10474.480845808846,2791.9543098587251,-11205.431311322493,null,-155327,-283877,-105647,-78023]
[1643,{"$error":"#NAME?"},{"$error":"#NAME?"},{"$error":"#NAME?"},{"$error":"#NAME?"},null,{"$f":"NR_to_Cash!C$9","v":-155327},{"$f":"NR_to_Cash!D$9","v":-283877},{"$f":"NR_to_Cash!E$9","v":-105647},{"$f":"NR_to_Cash!F$9","v":-78023},null,1643,-18235.296741505772,339.20954777451908,-23731.442728966547,-7503.1722539639759,null,-155327,-283877,-105647,-78023]
[1644,{"$error":"#NAME?"},{"$error":"#NAME?"},{"$error":"#NAME?"},{"$error":"#NAME?"},null,{"$f":"NR_to_Cash!C$9","v":-155327},{"$f":"NR_to_Cash!D$9","v":-283877},{"$f":"NR_to_Cash!E$9","v":-105647},{"$f":"NR_to_Cash!F$9","v":-78023},null,1644,-37992.424374876078,673.31319598666505,-8224.2738898894549,-10939.847445166717,null,-155327,-283877,-105647,-78023]
[1645,{"$error":"#NAME?"},{"$error":"#NAME?"},{"$error":"#NAME?"},{"$error":"#NAME?"},null,{"$f":"NR_to_Cash!C$9","v":-155327},{"$f":"NR_to_Cash!D$9","v":-283877},{"$f":"NR_to_Cash!E$9","v":-105647},{"$f":"NR_to_Cash!F$9","v":-78023},null,1645,-1985.9934962766629,4170.014290478106,6364.324347911408,-4863.4667456065845,null,-155327,-283877,-105647,-78023]
[1646,{"$error":"#NAME?"},{"$error":"#NAME?"},{"$error":"#NAME?"},{"$error":"#NAME?"},null,{"$f":"NR_to_Cash!C$9","v":-155327},{"$f":"NR_to_Cash!D$9","v":-283877},{"$f":"NR_to_Cash!E$9","v":-105647},{"$f":"NR_to_Cash!F$9","v":-78023},null,1646,-10278.56955861258,-2838.7367372584531,-5464.1128478032342,-13705.928254655084,null,-155327,-283877,-105647,-78023]
[1647,{"$error":"#NAME?"},{"$error":"#NAME?"},{"$error":"#NAME?"},{"$error":"#NAME?"},null,{"$f":"NR_to_Cash!C$9","v":-155327},{"$f":"NR_to_Cash!D$9","v":-283877},{"$f":"NR_to_Cash!E$9","v":-105647},{"$f":"NR_to_Cash!F$9","v":-78023},null,1647,-3751.6918910020722,-22011.199882912973,-13298.190829835634,-10214.495968744897,null,-155327,-283877,-105647,-78023]
[1648,{"$error":"#NAME?"},{"$error":"#NAME?"},{"$error":"#NAME?"},{"$error":"#NAME?"},null,{"$f":"NR_to_Cash!C$9","v":-155327},{"$f":"NR_to_Cash!D$9","v":-283877},{"$f":"NR_to_Cash!E$9","v":-105647},{"$f":"NR_to_Cash!F$9","v":-78023},null,1648,-11583.899147574299,-4250.019737073163,-9173.0736721499215,282.17870800001822,null,-155327,-283877,-105647,-78023]
[1649,{"$error":"#NAME?"},{"$error":"#NAME?"},{"$error":"#NAME?"},{"$error":"#NAME?"},null,{"$f":"NR_to_Cash!C$9","v":-155327},{"$f":"NR_to_Cash!D$9","v":-283877},{"$f":"NR_to_Cash!E$9","v":-105647},{"$f":"NR_to_Cash!F$9","v":-78023},null,1649,-7035.2969710052785,-24403.232356228633,9934.6763696877169,-9951.6094135055973,null,-155327,-283877,-105647,-78023]
[1650,{"$error":"#NAME?"},{"$error":"#NAME?"},{"$error":"#NAME?"},{"$error":"#NAME?"},null,{"$f":"NR_to_Cash!C$9","v":-155327},{"$f":"NR_to_Cash!D$9","v":-283877},{"$f":"NR_to_Cash!E$9","v":-105647},{"$f":"NR_to_Cash!F$9","v":-78023},null,1650,2126.6669787895221,7315.2431839751462,-18633.059763468475,3299.2451791984781,null,-155327,-283877,-105647,-78023]
[1651,{"$error":"#NAME?"},{"$error":"#NAME?"},{"$error":"#NAME?"},{"$error":"#NAME?"},null,{"$f":"NR_to_Cash!C$9","v":-155327},{"$f":"NR_to_Cash!D$9","v":-283877},{"$f":"NR_to_Cash!E$9","v":-105647},{"$f":"NR_to_Cash!F$9","v":-78023},null,1651,6060.6334630141446,-40946.063104431203,-14528.856153862906,-3911.881988290651,null,-155327,-283877,-105647,-78023]
[1652,{"$error":"#NAME?"},{"$error":"#NAME?"},{"$error":"#NAME?"},{"$error":"#NAME?"},null,{"$f":"NR_to_Cash!C$9","v":-155327},{"$f":"NR_to_Cash!D$9","v":-283877},{"$f":"NR_to_Cash!E$9","v":-105647},{"$f":"NR_to_Cash!F$9","v":-78023},null,1652,-7500.8389568174334,-24931.543243922675,-8663.0388785322139,-28775.782437366885,null,-155327,-283877,-105647,-78023]
[1653,{"$error":"#NAME?"},{"$error":"#NAME?"},{"$error":"#NAME?"},{"$error":"#NAME?"},null,{"$f":"NR_to_Cash!C$9","v":-155327},{"$f":"NR_to_Cash!D$9","v":-283877},{"$f":"NR_to_Cash!E$9","v":-105647},{"$f":"NR_to_Cash!F$9","v":-78023},null,1653,-19129.036672437218,-26454.244503171481,-29893.91403465535,-10214.628237757135,null,-155327,-283877,-105647,-78023]
[1654,{"$error":"#NAME?"},{"$error":"#NAME?"},{"$error":"#NAME?"},{"$error":"#NAME?"},null,{"$f":"NR_to_Cash!C$9","v":-155327},{"$f":"NR_to_Cash!D$9","v":-283877},{"$f":"NR_to_Cash!E$9","v":-105647},{"$f":"NR_to_Cash!F$9","v":-78023},null,1654,-18986.548381283083,-22376.083752873128,-26531.563042269056,-46164.775117339894,null,-155327,-283877,-105647,-78023]
[1655,{"$error":"#NAME?"},{"$error":"#NAME?"},{"$error":"#NAME?"},{"$error":"#NAME?"},null,{"$f":"NR_to_Cash!C$9","v":-155327},{"$f":"NR_to_Cash!D$9","v":-283877},{"$f":"NR_to_Cash!E$9","v":-105647},{"$f":"NR_to_Cash!F$9","v":-78023},null,1655,-12667.98976901702,3623.3863026111021,4735.3065689152972,-41203.04532200122,null,-155327,-283877,-105647,-78023]
[1656,{"$error":"#NAME?"},{"$error":"#NAME?"},{"$error":"#NAME?"},{"$error":"#NAME?"},null,{"$f":"NR_to_Cash!C$9","v":-155327},{"$f":"NR_to_Cash!D$9","v":-283877},{"$f":"NR_to_Cash!E$9","v":-105647},{"$f":"NR_to_Cash!F$9","v":-78023},null,1656,-1213.2430811737447,-5738.7511209676459,-2579.6690278070796,1202.468198503951,null,-155327,-283877,-105647,-78023]
[1657,{"$error":"#NAME?"},{"$error":"#NAME?"},{"$error":"#NAME?"},{"$error":"#NAME?"},null,{"$f":"NR_to_Cash!C$9","v":-155327},{"$f":"NR_to_Cash!D$9","v":-283877},{"$f":"NR_to_Cash!E$9","v":-105647},{"$f":"NR_to_Cash!F$9","v":-78023},null,1657,-25450.590526375563,-1812.5469700912768,-14463.186853920948,-9857.269473109618,null,-155327,-283877,-105647,-78023]
[1658,{"$error":"#NAME?"},{"$error":"#NAME?"},{"$error":"#NAME?"},{"$error":"#NAME?"},null,{"$f":"NR_to_Cash!C$9","v":-155327},{"$f":"NR_to_Cash!D$9","v":-283877},{"$f":"NR_to_Cash!E$9","v":-105647},{"$f":"NR_to_Cash!F$9","v":-78023},null,1658,-21001.39477962532,-15720.973588359297,-24193.923084819562,-5887.7187053045127,null,-155327,-283877,-105647,-78023]
[1659,{"$error":"#NAME?"},{"$error":"#NAME?"},{"$error":"#NAME?"},{"$error":"#NAME?"},null,{"$f":"NR_to_Cash!C$9","v":-155327},{"$f":"NR_to_Cash!D$9","v":-283877},{"$f":"NR_to_Cash!E$9","v":-105647},{"$f":"NR_to_Cash!F$9","v":-78023},null,1659,-27083.161546843778,-80.181212988240404,-19265.083883607276,-30623.116721810718,null,-155327,-283877,-105647,-78023]
[1660,{"$error":"#NAME?"},{"$error":"#NAME?"},{"$error":"#NAME?"},{"$error":"#NAME?"},null,{"$f":"NR_to_Cash!C$9","v":-155327},{"$f":"NR_to_Cash!D$9","v":-283877},{"$f":"NR_to_Cash!E$9","v":-105647},{"$f":"NR_to_Cash!F$9","v":-78023},null,1660,-5104.0087372018388,-22734.815220205517,-23795.613191551914,-7862.9795420775372,null,-155327,-283877,-105647,-78023]
[1661,{"$error":"#NAME?"},{"$error":"#NAME?"},{"$error":"#NAME?"},{"$error":"#NAME?"},null,{"$f":"NR_to_Cash!C$9","v":-155327},{"$f":"NR_to_Cash!D$9","v":-283877},{"$f":"NR_to_Cash!E$9","v":-105647},{"$f":"NR_to_Cash!F$9","v":-78023},null,1661,-31071.419229850104,5473.920750237121,-8362.7366998324178,-17391.245471721955,null,-155327,-283877,-105647,-78023]
[1662,{"$error":"#NAME?"},{"$error":"#NAME?"},{"$error":"#NAME?"},{"$error":"#NAME?"},null,{"$f":"NR_to_Cash!C$9","v":-155327},{"$f":"NR_to_Cash!D$9","v":-283877},{"$f":"NR_to_Cash!E$9","v":-105647},{"$f":"NR_to_Cash!F$9","v":-78023},null,1662,-25228.015092967897,-4848.0259667415776,-9875.659483007601,14489.525896568188,null,-155327,-283877,-105647,-78023]
[1663,{"$error":"#NAME?"},{"$error":"#NAME?"},{"$error":"#NAME?"},{"$error":"#NAME?"},null,{"$f":"NR_to_Cash!C$9","v":-155327},{"$f":"NR_to_Cash!D$9","v":-283877},{"$f":"NR_to_Cash!E$9","v":-105647},{"$f":"NR_to_Cash!F$9","v":-78023},null,1663,-7951.7035061145671,-9630.269947649489,-8385.5329325719449,-5401.4474445233009,null,-155327,-283877,-105647,-78023]
[1664,{"$error":"#NAME?"},{"$error":"#NAME?"},{"$error":"#NAME?"},{"$error":"#NAME?"},null,{"$f":"NR_to_Cash!C$9","v":-155327},{"$f":"NR_to_Cash!D$9","v":-283877},{"$f":"NR_to_Cash!E$9","v":-105647},{"$f":"NR_to_Cash!F$9","v":-78023},null,1664,-18772.823027879069,-7227.0325556667813,-25384.902144764172,-26975.296760375535,null,-155327,-283877,-105647,-78023]
[1665,{"$error":"#NAME?"},{"$error":"#NAME?"},{"$error":"#NAME?"},{"$error":"#NAME?"},null,{"$f":"NR_to_Cash!C$9","v":-155327},{"$f":"NR_to_Cash!D$9","v":-283877},{"$f":"NR_to_Cash!E$9","v":-105647},{"$f":"NR_to_Cash!F$9","v":-78023},null,1665,-20819.731370545654,-29659.032743001531,-6090.5932833277602,-21265.714702011908,null,-155327,-283877,-105647,-78023]
[1666,{"$error":"#NAME?"},{"$error":"#NAME?"},{"$error":"#NAME?"},{"$error":"#NAME?"},null,{"$f":"NR_to_Cash!C$9","v":-155327},{"$f":"NR_to_Cash!D$9","v":-283877},{"$f":"NR_to_Cash!E$9","v":-105647},{"$f":"NR_to_Cash!F$9","v":-78023},null,1666,-12241.608646422868,9040.7664708352841,-15920.769829290668,-3042.6293339026115,null,-155327,-283877,-105647,-78023]
[1667,{"$error":"#NAME?"},{"$error":"#NAME?"},{"$error":"#NAME?"},{"$error":"#NAME?"},null,{"$f":"NR_to_Cash!C$9","v":-155327},{"$f":"NR_to_Cash!D$9","v":-283877},{"$f":"NR_to_Cash!E$9","v":-105647},{"$f":"NR_to_Cash!F$9","v":-78023},null,1667,-10215.399972017392,2776.1128432290188,14065.355418115903,-43239.946613487002,null,-155327,-283877,-105647,-78023]
[1668,{"$error":"#NAME?"},{"$error":"#NAME?"},{"$error":"#NAME?"},{"$error":"#NAME?"},null,{"$f":"NR_to_Cash!C$9","v":-155327},{"$f":"NR_to_Cash!D$9","v":-283877},{"$f":"NR_to_Cash!E$9","v":-105647},{"$f":"NR_to_Cash!F$9","v":-78023},null,1668,-11749.721274166652,8309.2445146040172,6110.4616140233938,19481.731798262714,null,-155327,-283877,-105647,-78023]
[1669,{"$error":"#NAME?"},{"$error":"#NAME?"},{"$error":"#NAME?"},{"$error":"#NAME?"},null,{"$f":"NR_to_Cash!C$9","v":-155327},{"$f":"NR_to_Cash!D$9","v":-283877},{"$f":"NR_to_Cash!E$9","v":-105647},{"$f":"NR_to_Cash!F$9","v":-78023},null,1669,-2429.5854173180032,-7527.5644145593833,-17475.178667892149,-21868.096789818675,null,-155327,-283877,-105647,-78023]
[1670,{"$error":"#NAME?"},{"$error":"#NAME?"},{"$error":"#NAME?"},{"$error":"#NAME?"},null,{"$f":"NR_to_Cash!C$9","v":-155327},{"$f":"NR_to_Cash!D$9","v":-283877},{"$f":"NR_to_Cash!E$9","v":-105647},{"$f":"NR_to_Cash!F$9","v":-78023},null,1670,-5165.3455764411237,11463.892748665361,-3374.5493416491581,5624.6473132642623,null,-155327,-283877,-105647,-78023]
[1671,{"$error":"#NAME?"},{"$error":"#NAME?"},{"$error":"#NAME?"},{"$error":"#NAME?"},null,{"$f":"NR_to_Cash!C$9","v":-155327},{"$f":"NR_to_Cash!D$9","v":-283877},{"$f":"NR_to_Cash!E$9","v":-105647},{"$f":"NR_to_Cash!F$9","v":-78023},null,1671,-8200.3912737198334,17671.359798621292,-18816.40950882373,-6731.4523085021247,null,-155327,-283877,-105647,-78023]
[1672,{"$error":"#NAME?"},{"$error":"#NAME?"},{"$error":"#NAME?"},{"$error":"#NAME?"},null,{"$f":"NR_to_Cash!C$9","v":-155327},{"$f":"NR_to_Cash!D$9","v":-283877},{"$f":"NR_to_Cash!E$9","v":-105647},{"$f":"NR_to_Cash!F$9","v":-78023},null,1672,-15682.475860840617,-20518.455067098617,-6441.8872943688384,-12380.418673011474,null,-155327,-283877,-105647,-78023]
[1673,{"$error":"#NAME?"},{"$error":"#NAME?"},{"$error":"#NAME?"},{"$error":"#NAME?"},null,{"$f":"NR_to_Cash!C$9","v":-155327},{"$f":"NR_to_Cash!D$9","v":-283877},{"$f":"NR_to_Cash!E$9","v":-105647},{"$f":"NR_to_Cash!F$9","v":-78023},null,1673,-15964.34129912969,7587.3953106257031,-23556.580187284224,-15128.01596882087,null,-155327,-283877,-105647,-78023]
[1674,{"$error":"#NAME?"},{"$error":"#NAME?"},{"$error":"#NAME?"},{"$error":"#NAME?"},null,{"$f":"NR_to_Cash!C$9","v":-155327},{"$f":"NR_to_Cash!D$9","v":-283877},{"$f":"NR_to_Cash!E$9","v":-105647},{"$f":"NR_to_Cash!F$9","v":-78023},null,1674,-11406.033240896906,-9183.1604180620925,-6593.0028954709705,-10555.792936917393,null,-155327,-283877,-105647,-78023]
[1675,{"$error":"#NAME?"},{"$error":"#NAME?"},{"$error":"#NAME?"},{"$error":"#NAME?"},null,{"$f":"NR_to_Cash!C$9","v":-155327},{"$f":"NR_to_Cash!D$9","v":-283877},{"$f":"NR_to_Cash!E$9","v":-105647},{"$f":"NR_to_Cash!F$9","v":-78023},null,1675,-8885.9178078217119,-3746.3016542509258,-9103.9044614385257,-25405.57991344103,null,-155327,-283877,-105647,-78023]
[1676,{"$error":"#NAME?"},{"$error":"#NAME?"},{"$error":"#NAME?"},{"$error":"#NAME?"},null,{"$f":"NR_to_Cash!C$9","v":-155327},{"$f":"NR_to_Cash!D$9","v":-283877},{"$f":"NR_to_Cash!E$9","v":-105647},{"$f":"NR_to_Cash!F$9","v":-78023},null,1676,-7838.9112816011238,-4794.8427404350523,2902.552904228517,3901.7724607086438,null,-155327,-283877,-105647,-78023]
[1677,{"$error":"#NAME?"},{"$error":"#NAME?"},{"$error":"#NAME?"},{"$error":"#NAME?"},null,{"$f":"NR_to_Cash!C$9","v":-155327},{"$f":"NR_to_Cash!D$9","v":-283877},{"$f":"NR_to_Cash!E$9","v":-105647},{"$f":"NR_to_Cash!F$9","v":-78023},null,1677,-4244.612324984143,-26702.13298882428,-13892.661398365613,-30188.583958433948,null,-155327,-283877,-105647,-78023]
[1678,{"$error":"#NAME?"},{"$error":"#NAME?"},{"$error":"#NAME?"},{"$error":"#NAME?"},null,{"$f":"NR_to_Cash!C$9","v":-155327},{"$f":"NR_to_Cash!D$9","v":-283877},{"$f":"NR_to_Cash!E$9","v":-105647},{"$f":"NR_to_Cash!F$9","v":-78023},null,1678,-5246.1399773925186,10915.264532300838,5843.6986248856711,1224.4679927944276,null,-155327,-283877,-105647,-78023]
[1679,{"$error":"#NAME?"},{"$error":"#NAME?"},{"$error":"#NAME?"},{"$error":"#NAME?"},null,{"$f":"NR_to_Cash!C$9","v":-155327},{"$f":"NR_to_Cash!D$9","v":-283877},{"$f":"NR_to_Cash!E$9","v":-105647},{"$f":"NR_to_Cash!F$9","v":-78023},null,1679,-13227.549863546776,-26163.208450916674,96.285931248858233,-4190.4546973666747,null,-155327,-283877,-105647,-78023]
[1680,{"$error":"#NAME?"},{"$error":"#NAME?"},{"$error":"#NAME?"},{"$error":"#NAME?"},null,{"$f":"NR_to_Cash!C$9","v":-155327},{"$f":"NR_to_Cash!D$9","v":-283877},{"$f":"NR_to_Cash!E$9","v":-105647},{"$f":"NR_to_Cash!F$9","v":-78023},null,1680,-4140.0526103252414,-9720.4624269326796,-32983.765782564624,-23807.582776407264,null,-155327,-283877,-105647,-78023]
[1681,{"$error":"#NAME?"},{"$error":"#NAME?"},{"$error":"#NAME?"},{"$error":"#NAME?"},null,{"$f":"NR_to_Cash!C$9","v":-155327},{"$f":"NR_to_Cash!D$9","v":-283877},{"$f":"NR_to_Cash!E$9","v":-105647},{"$f":"NR_to_Cash!F$9","v":-78023},null,1681,-14136.368420389335,-24427.659350524813,7282.8809562303741,4030.6901780623789,null,-155327,-283877,-105647,-78023]
[1682,{"$error":"#NAME?"},{"$error":"#NAME?"},{"$error":"#NAME?"},{"$error":"#NAME?"},null,{"$f":"NR_to_Cash!C$9","v":-155327},{"$f":"NR_to_Cash!D$9","v":-283877},{"$f":"NR_to_Cash!E$9","v":-105647},{"$f":"NR_to_Cash!F$9","v":-78023},null,1682,-8957.0030316192442,-2080.1911130675003,2151.6768090002456,-23063.951563833609,null,-155327,-283877,-105647,-78023]
[1683,{"$error":"#NAME?"},{"$error":"#NAME?"},{"$error":"#NAME?"},{"$error":"#NAME?"},null,{"$f":"NR_to_Cash!C$9","v":-155327},{"$f":"NR_to_Cash!D$9","v":-283877},{"$f":"NR_to_Cash!E$9","v":-105647},{"$f":"NR_to_Cash!F$9","v":-78023},null,1683,-3240.830618087703,-2541.3592778638363,-22404.10200080815,3491.1327530252574,null,-155327,-283877,-105647,-78023]
[1684,{"$error":"#NAME?"},{"$error":"#NAME?"},{"$error":"#NAME?"},{"$error":"#NAME?"},null,{"$f":"NR_to_Cash!C$9","v":-155327},{"$f":"NR_to_Cash!D$9","v":-283877},{"$f":"NR_to_Cash!E$9","v":-105647},{"$f":"NR_to_Cash!F$9","v":-78023},null,1684,-20379.220343944453,-3348.5578881549145,1239.39074596353,-19445.293586026441,null,-155327,-283877,-105647,-78023]
[1685,{"$error":"#NAME?"},{"$error":"#NAME?"},{"$error":"#NAME?"},{"$error":"#NAME?"},null,{"$f":"NR_to_Cash!C$9","v":-155327},{"$f":"NR_to_Cash!D$9","v":-283877},{"$f":"NR_to_Cash!E$9","v":-105647},{"$f":"NR_to_Cash!F$9","v":-78023},null,1685,-16259.769724197109,1465.6542226786507,-14588.909565860402,-7354.592230340997,null,-155327,-283877,-105647,-78023]
[1686,{"$error":"#NAME?"},{"$error":"#NAME?"},{"$error":"#NAME?"},{"$error":"#NAME?"},null,{"$f":"NR_to_Cash!C$9","v":-155327},{"$f":"NR_to_Cash!D$9","v":-283877},{"$f":"NR_to_Cash!E$9","v":-105647},{"$f":"NR_to_Cash!F$9","v":-78023},null,1686,-17611.673206203774,-22505.834348069202,4609.9192882840616,-11051.493639571163,null,-155327,-283877,-105647,-78023]
[1687,{"$error":"#NAME?"},{"$error":"#NAME?"},{"$error":"#NAME?"},{"$error":"#NAME?"},null,{"$f":"NR_to_Cash!C$9","v":-155327},{"$f":"NR_to_Cash!D$9","v":-283877},{"$f":"NR_to_Cash!E$9","v":-105647},{"$f":"NR_to_Cash!F$9","v":-78023},null,1687,-8836.3129242060095,-22220.088784357165,14509.078016032596,5443.8239210810461,null,-155327,-283877,-105647,-78023]
[1688,{"$error":"#NAME?"},{"$error":"#NAME?"},{"$error":"#NAME?"},{"$error":"#NAME?"},null,{"$f":"NR_to_Cash!C$9","v":-155327},{"$f":"NR_to_Cash!D$9","v":-283877},{"$f":"NR_to_Cash!E$9","v":-105647},{"$f":"NR_to_Cash!F$9","v":-78023},null,1688,-31148.98750632305,-2120.2519459359414,-7131.6884189779821,-4221.6378050992898,null,-155327,-283877,-105647,-78023]
[1689,{"$error":"#NAME?"},{"$error":"#NAME?"},{"$error":"#NAME?"},{"$error":"#NAME?"},null,{"$f":"NR_to_Cash!C$9","v":-155327},{"$f":"NR_to_Cash!D$9","v":-283877},{"$f":"NR_to_Cash!E$9","v":-105647},{"$f":"NR_to_Cash!F$9","v":-78023},null,1689,-21835.851923578371,-13853.265412509807,-3755.575654793211,4364.0239655440328,null,-155327,-283877,-105647,-78023]
[1690,{"$error":"#NAME?"},{"$error":"#NAME?"},{"$error":"#NAME?"},{"$error":"#NAME?"},null,{"$f":"NR_to_Cash!C$9","v":-155327},{"$f":"NR_to_Cash!D$9","v":-283877},{"$f":"NR_to_Cash!E$9","v":-105647},{"$f":"NR_to_Cash!F$9","v":-78023},null,1690,-10643.505843843437,1528.477023075752,11339.6413672209,-16819.664330432093,null,-155327,-283877,-105647,-78023]
[1691,{"$error":"#NAME?"},{"$error":"#NAME?"},{"$error":"#NAME?"},{"$error":"#NAME?"},null,{"$f":"NR_to_Cash!C$9","v":-155327},{"$f":"NR_to_Cash!D$9","v":-283877},{"$f":"NR_to_Cash!E$9","v":-105647},{"$f":"NR_to_Cash!F$9","v":-78023},null,1691,-16274.947931807374,10900.107806619613,-29037.614549717662,18882.206407215985,null,-155327,-283877,-105647,-78023]
[1692,{"$error":"#NAME?"},{"$error":"#NAME?"},{"$error":"#NAME?"},{"$error":"#NAME?"},null,{"$f":"NR_to_Cash!C$9","v":-155327},{"$f":"NR_to_Cash!D$9","v":-283877},{"$f":"NR_to_Cash!E$9","v":-105647},{"$f":"NR_to_Cash!F$9","v":-78023},null,1692,-27519.683551258273,-18341.513174581676,12615.918312724098,4020.785306105061,null,-155327,-283877,-105647,-78023]
[1693,{"$error":"#NAME?"},{"$error":"#NAME?"},{"$error":"#NAME?"},{"$error":"#NAME?"},null,{"$f":"NR_to_Cash!C$9","v":-155327},{"$f":"NR_to_Cash!D$9","v":-283877},{"$f":"NR_to_Cash!E$9","v":-105647},{"$f":"NR_to_Cash!F$9","v":-78023},null,1693,-21093.736417150863,563.27522910248308,3897.4588452864787,8989.6809669411596,null,-155327,-283877,-105647,-78023]
[1694,{"$error":"#NAME?"},{"$error":"#NAME?"},{"$error":"#NAME?"},{"$error":"#NAME?"},null,{"$f":"NR_to_Cash!C$9","v":-155327},{"$f":"NR_to_Cash!D$9","v":-283877},{"$f":"NR_to_Cash!E$9","v":-105647},{"$f":"NR_to_Cash!F$9","v":-78023},null,1694,-15764.605331959403,-2671.9661645753658,-14350.675616536728,-17144.33433962888,null,-155327,-283877,-105647,-78023]
[1695,{"$error":"#NAME?"},{"$error":"#NAME?"},{"$error":"#NAME?"},{"$error":"#NAME?"},null,{"$f":"NR_to_Cash!C$9","v":-155327},{"$f":"NR_to_Cash!D$9","v":-283877},{"$f":"NR_to_Cash!E$9","v":-105647},{"$f":"NR_to_Cash!F$9","v":-78023},null,1695,6582.9537602379078,-19568.374729513711,-14285.04488463473,6453.4883588945168,null,-155327,-283877,-105647,-78023]
[1696,{"$error":"#NAME?"},{"$error":"#NAME?"},{"$error":"#NAME?"},{"$error":"#NAME?"},null,{"$f":"NR_to_Cash!C$9","v":-155327},{"$f":"NR_to_Cash!D$9","v":-283877},{"$f":"NR_to_Cash!E$9","v":-105647},{"$f":"NR_to_Cash!F$9","v":-78023},null,1696,-20220.292508756931,-16260.857125338094,-18491.025574438067,-13872.600987590889,null,-155327,-283877,-105647,-78023]
[1697,{"$error":"#NAME?"},{"$error":"#NAME?"},{"$error":"#NAME?"},{"$error":"#NAME?"},null,{"$f":"NR_to_Cash!C$9","v":-155327},{"$f":"NR_to_Cash!D$9","v":-283877},{"$f":"NR_to_Cash!E$9","v":-105647},{"$f":"NR_to_Cash!F$9","v":-78023},null,1697,-5171.5256941783746,-29155.469162332945,-22624.63968882578,-17520.562964021949,null,-155327,-283877,-105647,-78023]
[1698,{"$error":"#NAME?"},{"$error":"#NAME?"},{"$error":"#NAME?"},{"$error":"#NAME?"},null,{"$f":"NR_to_Cash!C$9","v":-155327},{"$f":"NR_to_Cash!D$9","v":-283877},{"$f":"NR_to_Cash!E$9","v":-105647},{"$f":"NR_to_Cash!F$9","v":-78023},null,1698,-9060.8964037169317,365.77509787255843,-4182.5945643512987,-20648.455610765377,null,-155327,-283877,-105647,-78023]
[1699,{"$error":"#NAME?"},{"$error":"#NAME?"},{"$error":"#NAME?"},{"$error":"#NAME?"},null,{"$f":"NR_to_Cash!C$9","v":-155327},{"$f":"NR_to_Cash!D$9","v":-283877},{"$f":"NR_to_Cash!E$9","v":-105647},{"$f":"NR_to_Cash!F$9","v":-78023},null,1699,-22316.787831104575,-12966.459326603917,3241.9138108102502,11088.730770410892,null,-155327,-283877,-105647,-78023]
[1700,{"$error":"#NAME?"},{"$error":"#NAME?"},{"$error":"#NAME?"},{"$error":"#NAME?"},null,{"$f":"NR_to_Cash!C$9","v":-155327},{"$f":"NR_to_Cash!D$9","v":-283877},{"$f":"NR_to_Cash!E$9","v":-105647},{"$f":"NR_to_Cash!F$9","v":-78023},null,1700,-35949.394574277772,-21390.644678766141,-23204.557473748671,-26828.278849514973,null,-155327,-283877,-105647,-78023]
[1701,{"$error":"#NAME?"},{"$error":"#NAME?"},{"$error":"#NAME?"},{"$error":"#NAME?"},null,{"$f":"NR_to_Cash!C$9","v":-155327},{"$f":"NR_to_Cash!D$9","v":-283877},{"$f":"NR_to_Cash!E$9","v":-105647},{"$f":"NR_to_Cash!F$9","v":-78023},null,1701,-12469.83526783568,-5174.12169077417,-5520.7149097705114,1550.0324775303534,null,-155327,-283877,-105647,-78023]
[1702,{"$error":"#NAME?"},{"$error":"#NAME?"},{"$error":"#NAME?"},{"$error":"#NAME?"},null,{"$f":"NR_to_Cash!C$9","v":-155327},{"$f":"NR_to_Cash!D$9","v":-283877},{"$f":"NR_to_Cash!E$9","v":-105647},{"$f":"NR_to_Cash!F$9","v":-78023},null,1702,-10574.240595149207,5918.4779484289647,3889.7952912920928,-21134.290262427035,null,-155327,-283877,-105647,-78023]
[1703,{"$error":"#NAME?"},{"$error":"#NAME?"},{"$error":"#NAME?"},{"$error":"#NAME?"},null,{"$f":"NR_to_Cash!C$9","v":-155327},{"$f":"NR_to_Cash!D$9","v":-283877},{"$f":"NR_to_Cash!E$9","v":-105647},{"$f":"NR_to_Cash!F$9","v":-78023},null,1703,-16703.967899484316,3652.5563122546509,-12777.435884905535,-16173.862022815832,null,-155327,-283877,-105647,-78023]
[1704,{"$error":"#NAME?"},{"$error":"#NAME?"},{"$error":"#NAME?"},{"$error":"#NAME?"},null,{"$f":"NR_to_Cash!C$9","v":-155327},{"$f":"NR_to_Cash!D$9","v":-283877},{"$f":"NR_to_Cash!E$9","v":-105647},{"$f":"NR_to_Cash!F$9","v":-78023},null,1704,-5082.3302814158897,-6013.3904253508836,-29587.803197335208,-17237.715265683095,null,-155327,-283877,-105647,-78023]
[1705,{"$error":"#NAME?"},{"$error":"#NAME?"},{"$error":"#NAME?"},{"$error":"#NAME?"},null,{"$f":"NR_to_Cash!C$9","v":-155327},{"$f":"NR_to_Cash!D$9","v":-283877},{"$f":"NR_to_Cash!E$9","v":-105647},{"$f":"NR_to_Cash!F$9","v":-78023},null,1705,-9378.9313242382668,-27931.21208091221,-2048.2785598471132,805.2937121748048,null,-155327,-283877,-105647,-78023]
[1706,{"$error":"#NAME?"},{"$error":"#NAME?"},{"$error":"#NAME?"},{"$error":"#NAME?"},null,{"$f":"NR_to_Cash!C$9","v":-155327},{"$f":"NR_to_Cash!D$9","v":-283877},{"$f":"NR_to_Cash!E$9","v":-105647},{"$f":"NR_to_Cash!F$9","v":-78023},null,1706,6021.4321985276547,-4300.7703690515655,1552.0369994894193,-18540.926997249819,null,-155327,-283877,-105647,-78023]
[1707,{"$error":"#NAME?"},{"$error":"#NAME?"},{"$error":"#NAME?"},{"$error":"#NAME?"},null,{"$f":"NR_to_Cash!C$9","v":-155327},{"$f":"NR_to_Cash!D$9","v":-283877},{"$f":"NR_to_Cash!E$9","v":-105647},{"$f":"NR_to_Cash!F$9","v":-78023},null,1707,-13138.855434364064,1689.3369345340989,-17886.261923933467,4620.6522621713357,null,-155327,-283877,-105647,-78023]
[1708,{"$error":"#NAME?"},{"$error":"#NAME?"},{"$error":"#NAME?"},{"$error":"#NAME?"},null,{"$f":"NR_to_Cash!C$9","v":-155327},{"$f":"NR_to_Cash!D$9","v":-283877},{"$f":"NR_to_Cash!E$9","v":-105647},{"$f":"NR_to_Cash!F$9","v":-78023},null,1708,-13250.241703009237,15581.012480929374,-20827.700317919596,-30176.72592762249,null,-155327,-283877,-105647,-78023]
[1709,{"$error":"#NAME?"},{"$error":"#NAME?"},{"$error":"#NAME?"},{"$error":"#NAME?"},null,{"$f":"NR_to_Cash!C$9","v":-155327},{"$f":"NR_to_Cash!D$9","v":-283877},{"$f":"NR_to_Cash!E$9","v":-105647},{"$f":"NR_to_Cash!F$9","v":-78023},null,1709,-10425.753271889851,-7748.5983077083483,-4094.4106699749827,-30561.180552118942,null,-155327,-283877,-105647,-78023]
[1710,{"$error":"#NAME?"},{"$error":"#NAME?"},{"$error":"#NAME?"},{"$error":"#NAME?"},null,{"$f":"NR_to_Cash!C$9","v":-155327},{"$f":"NR_to_Cash!D$9","v":-283877},{"$f":"NR_to_Cash!E$9","v":-105647},{"$f":"NR_to_Cash!F$9","v":-78023},null,1710,2050.2814893571117,-5807.1854886538431,7313.8371275298505,2314.8665899662383,null,-155327,-283877,-105647,-78023]
[1711,{"$error":"#NAME?"},{"$error":"#NAME?"},{"$error":"#NAME?"},{"$error":"#NAME?"},null,{"$f":"NR_to_Cash!C$9","v":-155327},{"$f":"NR_to_Cash!D$9","v":-283877},{"$f":"NR_to_Cash!E$9","v":-105647},{"$f":"NR_to_Cash!F$9","v":-78023},null,1711,-19699.466857766554,-20969.297262812084,-13804.070792416003,-8991.9357572638601,null,-155327,-283877,-105647,-78023]
[1712,{"$error":"#NAME?"},{"$error":"#NAME?"},{"$error":"#NAME?"},{"$error":"#NAME?"},null,{"$f":"NR_to_Cash!C$9","v":-155327},{"$f":"NR_to_Cash!D$9","v":-283877},{"$f":"NR_to_Cash!E$9","v":-105647},{"$f":"NR_to_Cash!F$9","v":-78023},null,1712,-21594.692030439262,4888.2828183595311,47.411654559631579,-28816.318104757214,null,-155327,-283877,-105647,-78023]
[1713,{"$error":"#NAME?"},{"$error":"#NAME?"},{"$error":"#NAME?"},{"$error":"#NAME?"},null,{"$f":"NR_to_Cash!C$9","v":-155327},{"$f":"NR_to_Cash!D$9","v":-283877},{"$f":"NR_to_Cash!E$9","v":-105647},{"$f":"NR_to_Cash!F$9","v":-78023},null,1713,-15570.521905448782,4837.0333730406301,-19484.499985481343,-8915.3326661505216,null,-155327,-283877,-105647,-78023]
[1714,{"$error":"#NAME?"},{"$error":"#NAME?"},{"$error":"#NAME?"},{"$error":"#NAME?"},null,{"$f":"NR_to_Cash!C$9","v":-155327},{"$f":"NR_to_Cash!D$9","v":-283877},{"$f":"NR_to_Cash!E$9","v":-105647},{"$f":"NR_to_Cash!F$9","v":-78023},null,1714,-9262.4311896950512,1561.4287700410227,-13952.428717249562,21155.467180470801,null,-155327,-283877,-105647,-78023]
[1715,{"$error":"#NAME?"},{"$error":"#NAME?"},{"$error":"#NAME?"},{"$error":"#NAME?"},null,{"$f":"NR_to_Cash!C$9","v":-155327},{"$f":"NR_to_Cash!D$9","v":-283877},{"$f":"NR_to_Cash!E$9","v":-105647},{"$f":"NR_to_Cash!F$9","v":-78023},null,1715,-7742.8170950771901,-6072.6179652540923,-15616.731803856343,-41266.655207602395,null,-155327,-283877,-105647,-78023]
[1716,{"$error":"#NAME?"},{"$error":"#NAME?"},{"$error":"#NAME?"},{"$error":"#NAME?"},null,{"$f":"NR_to_Cash!C$9","v":-155327},{"$f":"NR_to_Cash!D$9","v":-283877},{"$f":"NR_to_Cash!E$9","v":-105647},{"$f":"NR_to_Cash!F$9","v":-78023},null,1716,1464.1176389532307,-22162.28526150186,19929.472557613888,-26356.351573900291,null,-155327,-283877,-105647,-78023]
[1717,{"$error":"#NAME?"},{"$error":"#NAME?"},{"$error":"#NAME?"},{"$error":"#NAME?"},null,{"$f":"NR_to_Cash!C$9","v":-155327},{"$f":"NR_to_Cash!D$9","v":-283877},{"$f":"NR_to_Cash!E$9","v":-105647},{"$f":"NR_to_Cash!F$9","v":-78023},null,1717,-4567.2781676311151,-1153.5211767402566,-3591.3457574740805,-28310.326754865077,null,-155327,-283877,-105647,-78023]
[1718,{"$error":"#NAME?"},{"$error":"#NAME?"},{"$error":"#NAME?"},{"$error":"#NAME?"},null,{"$f":"NR_to_Cash!C$9","v":-155327},{"$f":"NR_to_Cash!D$9","v":-283877},{"$f":"NR_to_Cash!E$9","v":-105647},{"$f":"NR_to_Cash!F$9","v":-78023},null,1718,-9590.9886073351045,-6891.2109536508378,10925.558288029462,-21268.370961398916,null,-155327,-283877,-105647,-78023]
[1719,{"$error":"#NAME?"},{"$error":"#NAME?"},{"$error":"#NAME?"},{"$error":"#NAME?"},null,{"$f":"NR_to_Cash!C$9","v":-155327},{"$f":"NR_to_Cash!D$9","v":-283877},{"$f":"NR_to_Cash!E$9","v":-105647},{"$f":"NR_to_Cash!F$9","v":-78023},null,1719,-13785.93240574343,-21674.89848368293,-9723.0939199532004,-4881.2218144915842,null,-155327,-283877,-105647,-78023]
[1720,{"$error":"#NAME?"},{"$error":"#NAME?"},{"$error":"#NAME?"},{"$error":"#NAME?"},null,{"$f":"NR_to_Cash!C$9","v":-155327},{"$f":"NR_to_Cash!D$9","v":-283877},{"$f":"NR_to_Cash!E$9","v":-105647},{"$f":"NR_to_Cash!F$9","v":-78023},null,1720,-13981.447005710968,-381.40461454347087,-16193.743264667773,-22306.099873664083,null,-155327,-283877,-105647,-78023]
[1721,{"$error":"#NAME?"},{"$error":"#NAME?"},{"$error":"#NAME?"},{"$error":"#NAME?"},null,{"$f":"NR_to_Cash!C$9","v":-155327},{"$f":"NR_to_Cash!D$9","v":-283877},{"$f":"NR_to_Cash!E$9","v":-105647},{"$f":"NR_to_Cash!F$9","v":-78023},null,1721,-11259.756885210199,-510.5410147422939,-2277.5893621258119,-8730.0790391088503,null,-155327,-283877,-105647,-78023]
[1722,{"$error":"#NAME?"},{"$error":"#NAME?"},{"$error":"#NAME?"},{"$error":"#NAME?"},null,{"$f":"NR_to_Cash!C$9","v":-155327},{"$f":"NR_to_Cash!D$9","v":-283877},{"$f":"NR_to_Cash!E$9","v":-105647},{"$f":"NR_to_Cash!F$9","v":-78023},null,1722,-29849.751439362273,-14152.194403438914,-13003.887394814768,-15388.310761665834,null,-155327,-283877,-105647,-78023]
[1723,{"$error":"#NAME?"},{"$error":"#NAME?"},{"$error":"#NAME?"},{"$error":"#NAME?"},null,{"$f":"NR_to_Cash!C$9","v":-155327},{"$f":"NR_to_Cash!D$9","v":-283877},{"$f":"NR_to_Cash!E$9","v":-105647},{"$f":"NR_to_Cash!F$9","v":-78023},null,1723,-24608.61423627683,-30871.832716844368,-27273.94233858728,-19276.15041607833,null,-155327,-283877,-105647,-78023]
[1724,{"$error":"#NAME?"},{"$error":"#NAME?"},{"$error":"#NAME?"},{"$error":"#NAME?"},null,{"$f":"NR_to_Cash!C$9","v":-155327},{"$f":"NR_to_Cash!D$9","v":-283877},{"$f":"NR_to_Cash!E$9","v":-105647},{"$f":"NR_to_Cash!F$9","v":-78023},null,1724,-26071.344730299068,-13681.671073367004,-21382.53293965436,2634.4490772587988,null,-155327,-283877,-105647,-78023]
[1725,{"$error":"#NAME?"},{"$error":"#NAME?"},{"$error":"#NAME?"},{"$error":"#NAME?"},null,{"$f":"NR_to_Cash!C$9","v":-155327},{"$f":"NR_to_Cash!D$9","v":-283877},{"$f":"NR_to_Cash!E$9","v":-105647},{"$f":"NR_to_Cash!F$9","v":-78023},null,1725,-14461.138961764369,-5613.622781501901,-13189.874812040744,-7388.9485515900678,null,-155327,-283877,-105647,-78023]
[1726,{"$error":"#NAME?"},{"$error":"#NAME?"},{"$error":"#NAME?"},{"$error":"#NAME?"},null,{"$f":"NR_to_Cash!C$9","v":-155327},{"$f":"NR_to_Cash!D$9","v":-283877},{"$f":"NR_to_Cash!E$9","v":-105647},{"$f":"NR_to_Cash!F$9","v":-78023},null,1726,-29259.72779569765,-17707.270787076304,-3969.6410428695608,-12310.286026825725,null,-155327,-283877,-105647,-78023]
[1727,{"$error":"#NAME?"},{"$error":"#NAME?"},{"$error":"#NAME?"},{"$error":"#NAME?"},null,{"$f":"NR_to_Cash!C$9","v":-155327},{"$f":"NR_to_Cash!D$9","v":-283877},{"$f":"NR_to_Cash!E$9","v":-105647},{"$f":"NR_to_Cash!F$9","v":-78023},null,1727,-12618.826022008776,8157.6201826789047,-7881.9497505121726,3708.1725857867646,null,-155327,-283877,-105647,-78023]
[1728,{"$error":"#NAME?"},{"$error":"#NAME?"},{"$error":"#NAME?"},{"$error":"#NAME?"},null,{"$f":"NR_to_Cash!C$9","v":-155327},{"$f":"NR_to_Cash!D$9","v":-283877},{"$f":"NR_to_Cash!E$9","v":-105647},{"$f":"NR_to_Cash!F$9","v":-78023},null,1728,-4139.527566222574,-37192.755194921403,-1669.4202358129828,-18112.006230204453,null,-155327,-283877,-105647,-78023]
[1729,{"$error":"#NAME?"},{"$error":"#NAME?"},{"$error":"#NAME?"},{"$error":"#NAME?"},null,{"$f":"NR_to_Cash!C$9","v":-155327},{"$f":"NR_to_Cash!D$9","v":-283877},{"$f":"NR_to_Cash!E$9","v":-105647},{"$f":"NR_to_Cash!F$9","v":-78023},null,1729,-13389.521032928546,-7961.6630863430764,-16950.122105336726,-12150.536838335453,null,-155327,-283877,-105647,-78023]
[1730,{"$error":"#NAME?"},{"$error":"#NAME?"},{"$error":"#NAME?"},{"$error":"#NAME?"},null,{"$f":"NR_to_Cash!C$9","v":-155327},{"$f":"NR_to_Cash!D$9","v":-283877},{"$f":"NR_to_Cash!E$9","v":-105647},{"$f":"NR_to_Cash!F$9","v":-78023},null,1730,-22278.248938016459,-19034.407867354697,-7137.3690922170426,-24188.507378844057,null,-155327,-283877,-105647,-78023]
[1731,{"$error":"#NAME?"},{"$error":"#NAME?"},{"$error":"#NAME?"},{"$error":"#NAME?"},null,{"$f":"NR_to_Cash!C$9","v":-155327},{"$f":"NR_to_Cash!D$9","v":-283877},{"$f":"NR_to_Cash!E$9","v":-105647},{"$f":"NR_to_Cash!F$9","v":-78023},null,1731,-16862.117500547702,-4977.7474517177388,-4643.850715047105,8267.2652656942282,null,-155327,-283877,-105647,-78023]
[1732,{"$error":"#NAME?"},{"$error":"#NAME?"},{"$error":"#NAME?"},{"$error":"#NAME?"},null,{"$f":"NR_to_Cash!C$9","v":-155327},{"$f":"NR_to_Cash!D$9","v":-283877},{"$f":"NR_to_Cash!E$9","v":-105647},{"$f":"NR_to_Cash!F$9","v":-78023},null,1732,-6918.4675882746778,-16590.362542901134,-1526.123765356971,-33790.170912242487,null,-155327,-283877,-105647,-78023]
[1733,{"$error":"#NAME?"},{"$error":"#NAME?"},{"$error":"#NAME?"},{"$error":"#NAME?"},null,{"$f":"NR_to_Cash!C$9","v":-155327},{"$f":"NR_to_Cash!D$9","v":-283877},{"$f":"NR_to_Cash!E$9","v":-105647},{"$f":"NR_to_Cash!F$9","v":-78023},null,1733,-26420.237168311025,13148.401593973358,-26764.08190469227,-7052.6069838530293,null,-155327,-283877,-105647,-78023]
[1734,{"$error":"#NAME?"},{"$error":"#NAME?"},{"$error":"#NAME?"},{"$error":"#NAME?"},null,{"$f":"NR_to_Cash!C$9","v":-155327},{"$f":"NR_to_Cash!D$9","v":-283877},{"$f":"NR_to_Cash!E$9","v":-105647},{"$f":"NR_to_Cash!F$9","v":-78023},null,1734,-4116.2995329793057,-31532.668339014363,-6759.4452320169776,7632.3877566559459,null,-155327,-283877,-105647,-78023]
[1735,{"$error":"#NAME?"},{"$error":"#NAME?"},{"$error":"#NAME?"},{"$error":"#NAME?"},null,{"$f":"NR_to_Cash!C$9","v":-155327},{"$f":"NR_to_Cash!D$9","v":-283877},{"$f":"NR_to_Cash!E$9","v":-105647},{"$f":"NR_to_Cash!F$9","v":-78023},null,1735,4536.3680825498977,-3902.9782166584291,-22262.863166249434,-20665.234395517011,null,-155327,-283877,-105647,-78023]
[1736,{"$error":"#NAME?"},{"$error":"#NAME?"},{"$error":"#NAME?"},{"$error":"#NAME?"},null,{"$f":"NR_to_Cash!C$9","v":-155327},{"$f":"NR_to_Cash!D$9","v":-283877},{"$f":"NR_to_Cash!E$9","v":-105647},{"$f":"NR_to_Cash!F$9","v":-78023},null,1736,-4696.1961043068322,-23388.672624682535,-21334.813349178148,-24311.417231315267,null,-155327,-283877,-105647,-78023]
[1737,{"$error":"#NAME?"},{"$error":"#NAME?"},{"$error":"#NAME?"},{"$error":"#NAME?"},null,{"$f":"NR_to_Cash!C$9","v":-155327},{"$f":"NR_to_Cash!D$9","v":-283877},{"$f":"NR_to_Cash!E$9","v":-105647},{"$f":"NR_to_Cash!F$9","v":-78023},null,1737,-5897.9586975103293,-3784.8621637161241,-2843.267503960401,-17903.793735809988,null,-155327,-283877,-105647,-78023]
[1738,{"$error":"#NAME?"},{"$error":"#NAME?"},{"$error":"#NAME?"},{"$error":"#NAME?"},null,{"$f":"NR_to_Cash!C$9","v":-155327},{"$f":"NR_to_Cash!D$9","v":-283877},{"$f":"NR_to_Cash!E$9","v":-105647},{"$f":"NR_to_Cash!F$9","v":-78023},null,1738,-30035.471111096274,-7494.5077682142992,-5868.5700198254517,9913.5145458245315,null,-155327,-283877,-105647,-78023]
[1739,{"$error":"#NAME?"},{"$error":"#NAME?"},{"$error":"#NAME?"},{"$error":"#NAME?"},null,{"$f":"NR_to_Cash!C$9","v":-155327},{"$f":"NR_to_Cash!D$9","v":-283877},{"$f":"NR_to_Cash!E$9","v":-105647},{"$f":"NR_to_Cash!F$9","v":-78023},null,1739,-4103.8351960746741,-3614.7668524771393,-270.71033490080612,-1214.4162522943959,null,-155327,-283877,-105647,-78023]
[1740,{"$error":"#NAME?"},{"$error":"#NAME?"},{"$error":"#NAME?"},{"$error":"#NAME?"},null,{"$f":"NR_to_Cash!C$9","v":-155327},{"$f":"NR_to_Cash!D$9","v":-283877},{"$f":"NR_to_Cash!E$9","v":-105647},{"$f":"NR_to_Cash!F$9","v":-78023},null,1740,-12701.117145293849,-4761.7203788480265,-42707.2592270686,-15359.820588327657,null,-155327,-283877,-105647,-78023]
[1741,{"$error":"#NAME?"},{"$error":"#NAME?"},{"$error":"#NAME?"},{"$error":"#NAME?"},null,{"$f":"NR_to_Cash!C$9","v":-155327},{"$f":"NR_to_Cash!D$9","v":-283877},{"$f":"NR_to_Cash!E$9","v":-105647},{"$f":"NR_to_Cash!F$9","v":-78023},null,1741,-12369.257869950052,3060.3371551928904,12028.884511992768,-19962.763951400484,null,-155327,-283877,-105647,-78023]
[1742,{"$error":"#NAME?"},{"$error":"#NAME?"},{"$error":"#NAME?"},{"$error":"#NAME?"},null,{"$f":"NR_to_Cash!C$9","v":-155327},{"$f":"NR_to_Cash!D$9","v":-283877},{"$f":"NR_to_Cash!E$9","v":-105647},{"$f":"NR_to_Cash!F$9","v":-78023},null,1742,-2452.7733789764152,6933.4651230028085,-21574.348215349441,-11685.252374337637,null,-155327,-283877,-105647,-78023]
[1743,{"$error":"#NAME?"},{"$error":"#NAME?"},{"$error":"#NAME?"},{"$error":"#NAME?"},null,{"$f":"NR_to_Cash!C$9","v":-155327},{"$f":"NR_to_Cash!D$9","v":-283877},{"$f":"NR_to_Cash!E$9","v":-105647},{"$f":"NR_to_Cash!F$9","v":-78023},null,1743,12972.288634091816,8425.7973137792051,-14519.986684798876,-7834.2137473507664,null,-155327,-283877,-105647,-78023]
[1744,{"$error":"#NAME?"},{"$error":"#NAME?"},{"$error":"#NAME?"},{"$error":"#NAME?"},null,{"$f":"NR_to_Cash!C$9","v":-155327},{"$f":"NR_to_Cash!D$9","v":-283877},{"$f":"NR_to_Cash!E$9","v":-105647},{"$f":"NR_to_Cash!F$9","v":-78023},null,1744,-3330.6030847614934,-15341.246266289809,-4953.8814014484096,-20829.203991533563,null,-155327,-283877,-105647,-78023]
[1745,{"$error":"#NAME?"},{"$error":"#NAME?"},{"$error":"#NAME?"},{"$error":"#NAME?"},null,{"$f":"NR_to_Cash!C$9","v":-155327},{"$f":"NR_to_Cash!D$9","v":-283877},{"$f":"NR_to_Cash!E$9","v":-105647},{"$f":"NR_to_Cash!F$9","v":-78023},null,1745,1029.8407893793258,-3953.9049737914224,-17468.287099310259,-24216.338437480594,null,-155327,-283877,-105647,-78023]
[1746,{"$error":"#NAME?"},{"$error":"#NAME?"},{"$error":"#NAME?"},{"$error":"#NAME?"},null,{"$f":"NR_to_Cash!C$9","v":-155327},{"$f":"NR_to_Cash!D$9","v":-283877},{"$f":"NR_to_Cash!E$9","v":-105647},{"$f":"NR_to_Cash!F$9","v":-78023},null,1746,-18810.623188008889,-10668.155719319919,-29842.708100250758,-27907.233096104799,null,-155327,-283877,-105647,-78023]
[1747,{"$error":"#NAME?"},{"$error":"#NAME?"},{"$error":"#NAME?"},{"$error":"#NAME?"},null,{"$f":"NR_to_Cash!C$9","v":-155327},{"$f":"NR_to_Cash!D$9","v":-283877},{"$f":"NR_to_Cash!E$9","v":-105647},{"$f":"NR_to_Cash!F$9","v":-78023},null,1747,-14613.251934563948,-31057.296550343144,-20558.465696617957,-3019.6974338900109,null,-155327,-283877,-105647,-78023]
[1748,{"$error":"#NAME?"},{"$error":"#NAME?"},{"$error":"#NAME?"},{"$error":"#NAME?"},null,{"$f":"NR_to_Cash!C$9","v":-155327},{"$f":"NR_to_Cash!D$9","v":-283877},{"$f":"NR_to_Cash!E$9","v":-105647},{"$f":"NR_to_Cash!F$9","v":-78023},null,1748,-22295.020709504766,8671.4842639000017,-16364.890020532879,-12787.388212108133,null,-155327,-283877,-105647,-78023]
[1749,{"$error":"#NAME?"},{"$error":"#NAME?"},{"$error":"#NAME?"},{"$error":"#NAME?"},null,{"$f":"NR_to_Cash!C$9","v":-155327},{"$f":"NR_to_Cash!D$9","v":-283877},{"$f":"NR_to_Cash!E$9","v":-105647},{"$f":"NR_to_Cash!F$9","v":-78023},null,1749,-11051.134162238846,-33381.298558869807,-21012.876114143037,-49644.209581818577,null,-155327,-283877,-105647,-78023]
[1750,{"$error":"#NAME?"},{"$error":"#NAME?"},{"$error":"#NAME?"},{"$error":"#NAME?"},null,{"$f":"NR_to_Cash!C$9","v":-155327},{"$f":"NR_to_Cash!D$9","v":-283877},{"$f":"NR_to_Cash!E$9","v":-105647},{"$f":"NR_to_Cash!F$9","v":-78023},null,1750,-8369.9280357245079,-8181.9332107629862,5024.322584220341,5952.0756208409921,null,-155327,-283877,-105647,-78023]
[1751,{"$error":"#NAME?"},{"$error":"#NAME?"},{"$error":"#NAME?"},{"$error":"#NAME?"},null,{"$f":"NR_to_Cash!C$9","v":-155327},{"$f":"NR_to_Cash!D$9","v":-283877},{"$f":"NR_to_Cash!E$9","v":-105647},{"$f":"NR_to_Cash!F$9","v":-78023},null,1751,-28041.876398524204,12169.912605762465,-10438.936722038425,-25277.477260215699,null,-155327,-283877,-105647,-78023]
[1752,{"$error":"#NAME?"},{"$error":"#NAME?"},{"$error":"#NAME?"},{"$error":"#NAME?"},null,{"$f":"NR_to_Cash!C$9","v":-155327},{"$f":"NR_to_Cash!D$9","v":-283877},{"$f":"NR_to_Cash!E$9","v":-105647},{"$f":"NR_to_Cash!F$9","v":-78023},null,1752,-31014.823056951471,-8769.2746887038593,-26328.460565954432,-13678.776646166036,null,-155327,-283877,-105647,-78023]
[1753,{"$error":"#NAME?"},{"$error":"#NAME?"},{"$error":"#NAME?"},{"$error":"#NAME?"},null,{"$f":"NR_to_Cash!C$9","v":-155327},{"$f":"NR_to_Cash!D$9","v":-283877},{"$f":"NR_to_Cash!E$9","v":-105647},{"$f":"NR_to_Cash!F$9","v":-78023},null,1753,-15756.305270028653,4453.7351745628057,-11517.003412883605,3887.389627487305,null,-155327,-283877,-105647,-78023]
[1754,{"$error":"#NAME?"},{"$error":"#NAME?"},{"$error":"#NAME?"},{"$error":"#NAME?"},null,{"$f":"NR_to_Cash!C$9","v":-155327},{"$f":"NR_to_Cash!D$9","v":-283877},{"$f":"NR_to_Cash!E$9","v":-105647},{"$f":"NR_to_Cash!F$9","v":-78023},null,1754,-3119.5442047800138,-29960.676887167476,-6505.2087552729454,29382.716242596471,null,-155327,-283877,-105647,-78023]
[1755,{"$error":"#NAME?"},{"$error":"#NAME?"},{"$error":"#NAME?"},{"$error":"#NAME?"},null,{"$f":"NR_to_Cash!C$9","v":-155327},{"$f":"NR_to_Cash!D$9","v":-283877},{"$f":"NR_to_Cash!E$9","v":-105647},{"$f":"NR_to_Cash!F$9","v":-78023},null,1755,-2468.971166939391,-2969.4535161246149,513.47520711724678,-20027.005625752885,null,-155327,-283877,-105647,-78023]
[1756,{"$error":"#NAME?"},{"$error":"#NAME?"},{"$error":"#NAME?"},{"$error":"#NAME?"},null,{"$f":"NR_to_Cash!C$9","v":-155327},{"$f":"NR_to_Cash!D$9","v":-283877},{"$f":"NR_to_Cash!E$9","v":-105647},{"$f":"NR_to_Cash!F$9","v":-78023},null,1756,-19770.934171853205,-28597.117116604459,-12583.149022870652,-24110.732110709978,null,-155327,-283877,-105647,-78023]
[1757,{"$error":"#NAME?"},{"$error":"#NAME?"},{"$error":"#NAME?"},{"$error":"#NAME?"},null,{"$f":"NR_to_Cash!C$9","v":-155327},{"$f":"NR_to_Cash!D$9","v":-283877},{"$f":"NR_to_Cash!E$9","v":-105647},{"$f":"NR_to_Cash!F$9","v":-78023},null,1757,-13041.006368622348,-19076.652457001284,-22067.918540519848,-4540.2416568525387,null,-155327,-283877,-105647,-78023]
[1758,{"$error":"#NAME?"},{"$error":"#NAME?"},{"$error":"#NAME?"},{"$error":"#NAME?"},null,{"$f":"NR_to_Cash!C$9","v":-155327},{"$f":"NR_to_Cash!D$9","v":-283877},{"$f":"NR_to_Cash!E$9","v":-105647},{"$f":"NR_to_Cash!F$9","v":-78023},null,1758,-31454.52156168404,-14881.106406339739,-7856.3244177671168,-2029.1961393942661,null,-155327,-283877,-105647,-78023]
[1759,{"$error":"#NAME?"},{"$error":"#NAME?"},{"$error":"#NAME?"},{"$error":"#NAME?"},null,{"$f":"NR_to_Cash!C$9","v":-155327},{"$f":"NR_to_Cash!D$9","v":-283877},{"$f":"NR_to_Cash!E$9","v":-105647},{"$f":"NR_to_Cash!F$9","v":-78023},null,1759,-18659.745689110474,-33736.834624223862,6783.6455823608767,-32281.11441718135,null,-155327,-283877,-105647,-78023]
[1760,{"$error":"#NAME?"},{"$error":"#NAME?"},{"$error":"#NAME?"},{"$error":"#NAME?"},null,{"$f":"NR_to_Cash!C$9","v":-155327},{"$f":"NR_to_Cash!D$9","v":-283877},{"$f":"NR_to_Cash!E$9","v":-105647},{"$f":"NR_to_Cash!F$9","v":-78023},null,1760,-206.67212002773573,-11100.049438190434,-17988.070697083778,-18298.361526971883,null,-155327,-283877,-105647,-78023]
[1761,{"$error":"#NAME?"},{"$error":"#NAME?"},{"$error":"#NAME?"},{"$error":"#NAME?"},null,{"$f":"NR_to_Cash!C$9","v":-155327},{"$f":"NR_to_Cash!D$9","v":-283877},{"$f":"NR_to_Cash!E$9","v":-105647},{"$f":"NR_to_Cash!F$9","v":-78023},null,1761,-28918.827720091715,-16197.780316041779,-28400.575883385402,-13473.187915754103,null,-155327,-283877,-105647,-78023]
[1762,{"$error":"#NAME?"},{"$error":"#NAME?"},{"$error":"#NAME?"},{"$error":"#NAME?"},null,{"$f":"NR_to_Cash!C$9","v":-155327},{"$f":"NR_to_Cash!D$9","v":-283877},{"$f":"NR_to_Cash!E$9","v":-105647},{"$f":"NR_to_Cash!F$9","v":-78023},null,1762,-1647.6752936035446,-9919.9804532243852,-20446.320896586203,-14635.931623066126,null,-155327,-283877,-105647,-78023]
[1763,{"$error":"#NAME?"},{"$error":"#NAME?"},{"$error":"#NAME?"},{"$error":"#NAME?"},null,{"$f":"NR_to_Cash!C$9","v":-155327},{"$f":"NR_to_Cash!D$9","v":-283877},{"$f":"NR_to_Cash!E$9","v":-105647},{"$f":"NR_to_Cash!F$9","v":-78023},null,1763,-4726.7228524463262,-20858.301311162279,1336.3542278274931,-15253.182519424199,null,-155327,-283877,-105647,-78023]
[1764,{"$error":"#NAME?"},{"$error":"#NAME?"},{"$error":"#NAME?"},{"$error":"#NAME?"},null,{"$f":"NR_to_Cash!C$9","v":-155327},{"$f":"NR_to_Cash!D$9","v":-283877},{"$f":"NR_to_Cash!E$9","v":-105647},{"$f":"NR_to_Cash!F$9","v":-78023},null,1764,-14922.388667133189,-13271.725640933471,11129.711492262031,-695.87287082838179,null,-155327,-283877,-105647,-78023]
[1765,{"$error":"#NAME?"},{"$error":"#NAME?"},{"$error":"#NAME?"},{"$error":"#NAME?"},null,{"$f":"NR_to_Cash!C$9","v":-155327},{"$f":"NR_to_Cash!D$9","v":-283877},{"$f":"NR_to_Cash!E$9","v":-105647},{"$f":"NR_to_Cash!F$9","v":-78023},null,1765,-7353.4684084351557,-16329.080136655095,-17251.21934832538,3610.1123167512192,null,-155327,-283877,-105647,-78023]
[1766,{"$error":"#NAME?"},{"$error":"#NAME?"},{"$error":"#NAME?"},{"$error":"#NAME?"},null,{"$f":"NR_to_Cash!C$9","v":-155327},{"$f":"NR_to_Cash!D$9","v":-283877},{"$f":"NR_to_Cash!E$9","v":-105647},{"$f":"NR_to_Cash!F$9","v":-78023},null,1766,-20535.577665652207,-9473.0423279683946,9807.6138659401568,-38345.205826245838,null,-155327,-283877,-105647,-78023]
[1767,{"$error":"#NAME?"},{"$error":"#NAME?"},{"$error":"#NAME?"},{"$error":"#NAME?"},null,{"$f":"NR_to_Cash!C$9","v":-155327},{"$f":"NR_to_Cash!D$9","v":-283877},{"$f":"NR_to_Cash!E$9","v":-105647},{"$f":"NR_to_Cash!F$9","v":-78023},null,1767,-19988.924703933561,-3988.4879741604891,-4490.3218455931928,-29407.19550359773,null,-155327,-283877,-105647,-78023]
[1768,{"$error":"#NAME?"},{"$error":"#NAME?"},{"$error":"#NAME?"},{"$error":"#NAME?"},null,{"$f":"NR_to_Cash!C$9","v":-155327},{"$f":"NR_to_Cash!D$9","v":-283877},{"$f":"NR_to_Cash!E$9","v":-105647},{"$f":"NR_to_Cash!F$9","v":-78023},null,1768,-25843.937904125669,11952.48434246336,-5681.9513075495543,-21856.348027389598,null,-155327,-283877,-105647,-78023]
[1769,{"$error":"#NAME?"},{"$error":"#NAME?"},{"$error":"#NAME?"},{"$error":"#NAME?"},null,{"$f":"NR_to_Cash!C$9","v":-155327},{"$f":"NR_to_Cash!D$9","v":-283877},{"$f":"NR_to_Cash!E$9","v":-105647},{"$f":"NR_to_Cash!F$9","v":-78023},null,1769,-11172.113776424329,7902.8208720670973,4668.0790744846354,-9240.8798763230043,null,-155327,-283877,-105647,-78023]
[1770,{"$error":"#NAME?"},{"$error":"#NAME?"},{"$error":"#NAME?"},{"$error":"#NAME?"},null,{"$f":"NR_to_Cash!C$9","v":-155327},{"$f":"NR_to_Cash!D$9","v":-283877},{"$f":"NR_to_Cash!E$9","v":-105647},{"$f":"NR_to_Cash!F$9","v":-78023},null,1770,-17770.361704536033,7551.8974009703115,12080.787177419743,3991.347252792601,null,-155327,-283877,-105647,-78023]
[1771,{"$error":"#NAME?"},{"$error":"#NAME?"},{"$error":"#NAME?"},{"$error":"#NAME?"},null,{"$f":"NR_to_Cash!C$9","v":-155327},{"$f":"NR_to_Cash!D$9","v":-283877},{"$f":"NR_to_Cash!E$9","v":-105647},{"$f":"NR_to_Cash!F$9","v":-78023},null,1771,11243.004895754744,-9316.779015975022,-26107.145262476766,-24126.6264092456,null,-155327,-283877,-105647,-78023]
[1772,{"$error":"#NAME?"},{"$error":"#NAME?"},{"$error":"#NAME?"},{"$error":"#NAME?"},null,{"$f":"NR_to_Cash!C$9","v":-155327},{"$f":"NR_to_Cash!D$9","v":-283877},{"$f":"NR_to_Cash!E$9","v":-105647},{"$f":"NR_to_Cash!F$9","v":-78023},null,1772,-14636.993983457631,-22463.899072333516,4940.5993801910145,3803.8793627150935,null,-155327,-283877,-105647,-78023]
[1773,{"$error":"#NAME?"},{"$error":"#NAME?"},{"$error":"#NAME?"},{"$error":"#NAME?"},null,{"$f":"NR_to_Cash!C$9","v":-155327},{"$f":"NR_to_Cash!D$9","v":-283877},{"$f":"NR_to_Cash!E$9","v":-105647},{"$f":"NR_to_Cash!F$9","v":-78023},null,1773,-15694.568728145219,-16658.257373007404,-15520.32019286267,-1056.4134425816942,null,-155327,-283877,-105647,-78023]
[1774,{"$error":"#NAME?"},{"$error":"#NAME?"},{"$error":"#NAME?"},{"$error":"#NAME?"},null,{"$f":"NR_to_Cash!C$9","v":-155327},{"$f":"NR_to_Cash!D$9","v":-283877},{"$f":"NR_to_Cash!E$9","v":-105647},{"$f":"NR_to_Cash!F$9","v":-78023},null,1774,-18150.893028995019,-5159.7273569730432,-10121.218731353716,-18583.013751625684,null,-155327,-283877,-105647,-78023]
[1775,{"$error":"#NAME?"},{"$error":"#NAME?"},{"$error":"#NAME?"},{"$error":"#NAME?"},null,{"$f":"NR_to_Cash!C$9","v":-155327},{"$f":"NR_to_Cash!D$9","v":-283877},{"$f":"NR_to_Cash!E$9","v":-105647},{"$f":"NR_to_Cash!F$9","v":-78023},null,1775,-20238.414538903446,-17905.917369259652,8730.3414376521814,-45230.673159113307,null,-155327,-283877,-105647,-78023]
[1776,{"$error":"#NAME?"},{"$error":"#NAME?"},{"$error":"#NAME?"},{"$error":"#NAME?"},null,{"$f":"NR_to_Cash!C$9","v":-155327},{"$f":"NR_to_Cash!D$9","v":-283877},{"$f":"NR_to_Cash!E$9","v":-105647},{"$f":"NR_to_Cash!F$9","v":-78023},null,1776,-25254.853644602248,-15829.982909864535,-16689.317308530684,-2517.6873232936259,null,-155327,-283877,-105647,-78023]
[1777,{"$error":"#NAME?"},{"$error":"#NAME?"},{"$error":"#NAME?"},{"$error":"#NAME?"},null,{"$f":"NR_to_Cash!C$9","v":-155327},{"$f":"NR_to_Cash!D$9","v":-283877},{"$f":"NR_to_Cash!E$9","v":-105647},{"$f":"NR_to_Cash!F$9","v":-78023},null,1777,524.29630543646704,-23323.711112458997,-32176.455439884856,-11375.53189048584,null,-155327,-283877,-105647,-78023]
[1778,{"$error":"#NAME?"},{"$error":"#NAME?"},{"$error":"#NAME?"},{"$error":"#NAME?"},null,{"$f":"NR_to_Cash!C$9","v":-155327},{"$f":"NR_to_Cash!D$9","v":-283877},{"$f":"NR_to_Cash!E$9","v":-105647},{"$f":"NR_to_Cash!F$9","v":-78023},null,1778,-22612.525045725954,2704.474382779948,-14429.365519444871,-17149.229042791143,null,-155327,-283877,-105647,-78023]
[1779,{"$error":"#NAME?"},{"$error":"#NAME?"},{"$error":"#NAME?"},{"$error":"#NAME?"},null,{"$f":"NR_to_Cash!C$9","v":-155327},{"$f":"NR_to_Cash!D$9","v":-283877},{"$f":"NR_to_Cash!E$9","v":-105647},{"$f":"NR_to_Cash!F$9","v":-78023},null,1779,-5335.8658462853164,-24072.217872351903,-16100.612582136928,-4364.6360430378936,null,-155327,-283877,-105647,-78023]
[1780,{"$error":"#NAME?"},{"$error":"#NAME?"},{"$error":"#NAME?"},{"$error":"#NAME?"},null,{"$f":"NR_to_Cash!C$9","v":-155327},{"$f":"NR_to_Cash!D$9","v":-283877},{"$f":"NR_to_Cash!E$9","v":-105647},{"$f":"NR_to_Cash!F$9","v":-78023},null,1780,-15858.884117319987,5692.5333516604005,-15283.863442626956,12749.032053514538,null,-155327,-283877,-105647,-78023]
[1781,{"$error":"#NAME?"},{"$error":"#NAME?"},{"$error":"#NAME?"},{"$error":"#NAME?"},null,{"$f":"NR_to_Cash!C$9","v":-155327},{"$f":"NR_to_Cash!D$9","v":-283877},{"$f":"NR_to_Cash!E$9","v":-105647},{"$f":"NR_to_Cash!F$9","v":-78023},null,1781,-16641.34746626384,-4234.8229132855458,-9688.2564323072311,-1823.6873324920418,null,-155327,-283877,-105647,-78023]
[1782,{"$error":"#NAME?"},{"$error":"#NAME?"},{"$error":"#NAME?"},{"$error":"#NAME?"},null,{"$f":"NR_to_Cash!C$9","v":-155327},{"$f":"NR_to_Cash!D$9","v":-283877},{"$f":"NR_to_Cash!E$9","v":-105647},{"$f":"NR_to_Cash!F$9","v":-78023},null,1782,-14651.623944211384,-699.83124636625166,-34700.623439978117,6943.1460579614586,null,-155327,-283877,-105647,-78023]
[1783,{"$error":"#NAME?"},{"$error":"#NAME?"},{"$error":"#NAME?"},{"$error":"#NAME?"},null,{"$f":"NR_to_Cash!C$9","v":-155327},{"$f":"NR_to_Cash!D$9","v":-283877},{"$f":"NR_to_Cash!E$9","v":-105647},{"$f":"NR_to_Cash!F$9","v":-78023},null,1783,8261.3594094395685,-1100.0190271082083,17898.705642996232,-12088.361797374322,null,-155327,-283877,-105647,-78023]
[1784,{"$error":"#NAME?"},{"$error":"#NAME?"},{"$error":"#NAME?"},{"$error":"#NAME?"},null,{"$f":"NR_to_Cash!C$9","v":-155327},{"$f":"NR_to_Cash!D$9","v":-283877},{"$f":"NR_to_Cash!E$9","v":-105647},{"$f":"NR_to_Cash!F$9","v":-78023},null,1784,-8128.5824725523053,-33791.238730743004,791.8013757794148,-10220.671070463393,null,-155327,-283877,-105647,-78023]
[1785,{"$error":"#NAME?"},{"$error":"#NAME?"},{"$error":"#NAME?"},{"$error":"#NAME?"},null,{"$f":"NR_to_Cash!C$9","v":-155327},{"$f":"NR_to_Cash!D$9","v":-283877},{"$f":"NR_to_Cash!E$9","v":-105647},{"$f":"NR_to_Cash!F$9","v":-78023},null,1785,-6137.3421517759916,-2491.6477329877466,-17167.796491362042,1742.9899110610452,null,-155327,-283877,-105647,-78023]
[1786,{"$error":"#NAME?"},{"$error":"#NAME?"},{"$error":"#NAME?"},{"$error":"#NAME?"},null,{"$f":"NR_to_Cash!C$9","v":-155327},{"$f":"NR_to_Cash!D$9","v":-283877},{"$f":"NR_to_Cash!E$9","v":-105647},{"$f":"NR_to_Cash!F$9","v":-78023},null,1786,-896.82276206113943,-47272.506014784987,-10508.445132647301,-10077.920112593152,null,-155327,-283877,-105647,-78023]
[1787,{"$error":"#NAME?"},{"$error":"#NAME?"},{"$error":"#NAME?"},{"$error":"#NAME?"},null,{"$f":"NR_to_Cash!C$9","v":-155327},{"$f":"NR_to_Cash!D$9","v":-283877},{"$f":"NR_to_Cash!E$9","v":-105647},{"$f":"NR_to_Cash!F$9","v":-78023},null,1787,-10158.250136338542,-1935.8244535816596,4380.6054470900581,-5555.1084640384961,null,-155327,-283877,-105647,-78023]
[1788,{"$error":"#NAME?"},{"$error":"#NAME?"},{"$error":"#NAME?"},{"$error":"#NAME?"},null,{"$f":"NR_to_Cash!C$9","v":-155327},{"$f":"NR_to_Cash!D$9","v":-283877},{"$f":"NR_to_Cash!E$9","v":-105647},{"$f":"NR_to_Cash!F$9","v":-78023},null,1788,-10913.760196334133,-31559.320384593451,-21844.950722593905,-6087.8855862617193,null,-155327,-283877,-105647,-78023]
[1789,{"$error":"#NAME?"},{"$error":"#NAME?"},{"$error":"#NAME?"},{"$error":"#NAME?"},null,{"$f":"NR_to_Cash!C$9","v":-155327},{"$f":"NR_to_Cash!D$9","v":-283877},{"$f":"NR_to_Cash!E$9","v":-105647},{"$f":"NR_to_Cash!F$9","v":-78023},null,1789,-24929.714361595135,5637.5008902774007,-18746.26611046317,-5912.0540242001134,null,-155327,-283877,-105647,-78023]
[1790,{"$error":"#NAME?"},{"$error":"#NAME?"},{"$error":"#NAME?"},{"$error":"#NAME?"},null,{"$f":"NR_to_Cash!C$9","v":-155327},{"$f":"NR_to_Cash!D$9","v":-283877},{"$f":"NR_to_Cash!E$9","v":-105647},{"$f":"NR_to_Cash!F$9","v":-78023},null,1790,-14650.622931568478,-28713.293840885352,3875.3905857423388,-32695.169839522961,null,-155327,-283877,-105647,-78023]
[1791,{"$error":"#NAME?"},{"$error":"#NAME?"},{"$error":"#NAME?"},{"$error":"#NAME?"},null,{"$f":"NR_to_Cash!C$9","v":-155327},{"$f":"NR_to_Cash!D$9","v":-283877},{"$f":"NR_to_Cash!E$9","v":-105647},{"$f":"NR_to_Cash!F$9","v":-78023},null,1791,-9477.8042192720113,-8983.7296539340587,683.67356964249655,-36032.809378372229,null,-155327,-283877,-105647,-78023]
[1792,{"$error":"#NAME?"},{"$error":"#NAME?"},{"$error":"#NAME?"},{"$error":"#NAME?"},null,{"$f":"NR_to_Cash!C$9","v":-155327},{"$f":"NR_to_Cash!D$9","v":-283877},{"$f":"NR_to_Cash!E$9","v":-105647},{"$f":"NR_to_Cash!F$9","v":-78023},null,1792,-15959.421400661879,2549.7861350255625,-19336.947668417659,-2296.712155786021,null,-155327,-283877,-105647,-78023]
[1793,{"$error":"#NAME?"},{"$error":"#NAME?"},{"$error":"#NAME?"},{"$error":"#NAME?"},null,{"$f":"NR_to_Cash!C$9","v":-155327},{"$f":"NR_to_Cash!D$9","v":-283877},{"$f":"NR_to_Cash!E$9","v":-105647},{"$f":"NR_to_Cash!F$9","v":-78023},null,1793,-23729.024688666588,-19464.408793875034,4262.9268415577735,-22709.255233163014,null,-155327,-283877,-105647,-78023]
[1794,{"$error":"#NAME?"},{"$error":"#NAME?"},{"$error":"#NAME?"},{"$error":"#NAME?"},null,{"$f":"NR_to_Cash!C$9","v":-155327},{"$f":"NR_to_Cash!D$9","v":-283877},{"$f":"NR_to_Cash!E$9","v":-105647},{"$f":"NR_to_Cash!F$9","v":-78023},null,1794,-16776.755575770141,-2068.8288687230552,-31490.381799146271,-18473.338678770509,null,-155327,-283877,-105647,-78023]
[1795,{"$error":"#NAME?"},{"$error":"#NAME?"},{"$error":"#NAME?"},{"$error":"#NAME?"},null,{"$f":"NR_to_Cash!C$9","v":-155327},{"$f":"NR_to_Cash!D$9","v":-283877},{"$f":"NR_to_Cash!E$9","v":-105647},{"$f":"NR_to_Cash!F$9","v":-78023},null,1795,-2077.396938604722,-12492.327016221912,2238.0835964393596,-15065.016524901544,null,-155327,-283877,-105647,-78023]
[1796,{"$error":"#NAME?"},{"$error":"#NAME?"},{"$error":"#NAME?"},{"$error":"#NAME?"},null,{"$f":"NR_to_Cash!C$9","v":-155327},{"$f":"NR_to_Cash!D$9","v":-283877},{"$f":"NR_to_Cash!E$9","v":-105647},{"$f":"NR_to_Cash!F$9","v":-78023},null,1796,-9386.0161354125466,-3872.6374854055503,9929.0774879204437,-7708.9937141951523,null,-155327,-283877,-105647,-78023]
[1797,{"$error":"#NAME?"},{"$error":"#NAME?"},{"$error":"#NAME?"},{"$error":"#NAME?"},null,{"$f":"NR_to_Cash!C$9","v":-155327},{"$f":"NR_to_Cash!D$9","v":-283877},{"$f":"NR_to_Cash!E$9","v":-105647},{"$f":"NR_to_Cash!F$9","v":-78023},null,1797,-5589.685489808352,-7019.8045741948581,-13326.378179938727,-9194.5354773706222,null,-155327,-283877,-105647,-78023]
[1798,{"$error":"#NAME?"},{"$error":"#NAME?"},{"$error":"#NAME?"},{"$error":"#NAME?"},null,{"$f":"NR_to_Cash!C$9","v":-155327},{"$f":"NR_to_Cash!D$9","v":-283877},{"$f":"NR_to_Cash!E$9","v":-105647},{"$f":"NR_to_Cash!F$9","v":-78023},null,1798,-8864.4810840281425,-15481.817117973151,-8087.9322854748589,-21567.805472024123,null,-155327,-283877,-105647,-78023]
[1799,{"$error":"#NAME?"},{"$error":"#NAME?"},{"$error":"#NAME?"},{"$error":"#NAME?"},null,{"$f":"NR_to_Cash!C$9","v":-155327},{"$f":"NR_to_Cash!D$9","v":-283877},{"$f":"NR_to_Cash!E$9","v":-105647},{"$f":"NR_to_Cash!F$9","v":-78023},null,1799,-4842.6792980810551,3228.9963111302327,11912.033969824926,-8885.8651713037107,null,-155327,-283877,-105647,-78023]
[1800,{"$error":"#NAME?"},{"$error":"#NAME?"},{"$error":"#NAME?"},{"$error":"#NAME?"},null,{"$f":"NR_to_Cash!C$9","v":-155327},{"$f":"NR_to_Cash!D$9","v":-283877},{"$f":"NR_to_Cash!E$9","v":-105647},{"$f":"NR_to_Cash!F$9","v":-78023},null,1800,-25365.366660054839,-26298.334386844344,6513.4304551290488,-28945.351836546091,null,-155327,-283877,-105647,-78023]
[1801,{"$error":"#NAME?"},{"$error":"#NAME?"},{"$error":"#NAME?"},{"$error":"#NAME?"},null,{"$f":"NR_to_Cash!C$9","v":-155327},{"$f":"NR_to_Cash!D$9","v":-283877},{"$f":"NR_to_Cash!E$9","v":-105647},{"$f":"NR_to_Cash!F$9","v":-78023},null,1801,-9209.0511129705919,-14531.206738200939,-6326.0850662695957,-20081.545483680165,null,-155327,-283877,-105647,-78023]
[1802,{"$error":"#NAME?"},{"$error":"#NAME?"},{"$error":"#NAME?"},{"$error":"#NAME?"},null,{"$f":"NR_to_Cash!C$9","v":-155327},{"$f":"NR_to_Cash!D$9","v":-283877},{"$f":"NR_to_Cash!E$9","v":-105647},{"$f":"NR_to_Cash!F$9","v":-78023},null,1802,-9220.1722122788706,-14773.309679164726,-26341.696927408972,-19374.06597442838,null,-155327,-283877,-105647,-78023]
[1803,{"$error":"#NAME?"},{"$error":"#NAME?"},{"$error":"#NAME?"},{"$error":"#NAME?"},null,{"$f":"NR_to_Cash!C$9","v":-155327},{"$f":"NR_to_Cash!D$9","v":-283877},{"$f":"NR_to_Cash!E$9","v":-105647},{"$f":"NR_to_Cash!F$9","v":-78023},null,1803,-10740.560847123756,-12016.975773463999,-17111.205812203109,-7134.9048239091208,null,-155327,-283877,-105647,-78023]
[1804,{"$error":"#NAME?"},{"$error":"#NAME?"},{"$error":"#NAME?"},{"$error":"#NAME?"},null,{"$f":"NR_to_Cash!C$9","v":-155327},{"$f":"NR_to_Cash!D$9","v":-283877},{"$f":"NR_to_Cash!E$9","v":-105647},{"$f":"NR_to_Cash!F$9","v":-78023},null,1804,-7952.2624810084744,-3176.1164804542477,-11137.964347394369,-19408.545926235285,null,-155327,-283877,-105647,-78023]
[1805,{"$error":"#NAME?"},{"$error":"#NAME?"},{"$error":"#NAME?"},{"$error":"#NAME?"},null,{"$f":"NR_to_Cash!C$9","v":-155327},{"$f":"NR_to_Cash!D$9","v":-283877},{"$f":"NR_to_Cash!E$9","v":-105647},{"$f":"NR_to_Cash!F$9","v":-78023},null,1805,-24081.569313148895,-29952.45507458859,-20630.263102145833,-35352.205069155665,null,-155327,-283877,-105647,-78023]
[1806,{"$error":"#NAME?"},{"$error":"#NAME?"},{"$error":"#NAME?"},{"$error":"#NAME?"},null,{"$f":"NR_to_Cash!C$9","v":-155327},{"$f":"NR_to_Cash!D$9","v":-283877},{"$f":"NR_to_Cash!E$9","v":-105647},{"$f":"NR_to_Cash!F$9","v":-78023},null,1806,-10519.402138843121,-3449.2864449229078,-14424.377123964445,-20122.795440821152,null,-155327,-283877,-105647,-78023]
[1807,{"$error":"#NAME?"},{"$error":"#NAME?"},{"$error":"#NAME?"},{"$error":"#NAME?"},null,{"$f":"NR_to_Cash!C$9","v":-155327},{"$f":"NR_to_Cash!D$9","v":-283877},{"$f":"NR_to_Cash!E$9","v":-105647},{"$f":"NR_to_Cash!F$9","v":-78023},null,1807,-22535.898886966061,-23357.180638507958,-19491.148515500317,15354.819278559899,null,-155327,-283877,-105647,-78023]
[1808,{"$error":"#NAME?"},{"$error":"#NAME?"},{"$error":"#NAME?"},{"$error":"#NAME?"},null,{"$f":"NR_to_Cash!C$9","v":-155327},{"$f":"NR_to_Cash!D$9","v":-283877},{"$f":"NR_to_Cash!E$9","v":-105647},{"$f":"NR_to_Cash!F$9","v":-78023},null,1808,2780.9766383155347,-22935.285752287346,-5609.3561244819357,-10357.9543806204,null,-155327,-283877,-105647,-78023]
[1809,{"$error":"#NAME?"},{"$error":"#NAME?"},{"$error":"#NAME?"},{"$error":"#NAME?"},null,{"$f":"NR_to_Cash!C$9","v":-155327},{"$f":"NR_to_Cash!D$9","v":-283877},{"$f":"NR_to_Cash!E$9","v":-105647},{"$f":"NR_to_Cash!F$9","v":-78023},null,1809,5704.0138731559855,7416.2037893819661,1609.5685938793119,-28722.369969805586,null,-155327,-283877,-105647,-78023]
[1810,{"$error":"#NAME?"},{"$error":"#NAME?"},{"$error":"#NAME?"},{"$error":"#NAME?"},null,{"$f":"NR_to_Cash!C$9","v":-155327},{"$f":"NR_to_Cash!D$9","v":-283877},{"$f":"NR_to_Cash!E$9","v":-105647},{"$f":"NR_to_Cash!F$9","v":-78023},null,1810,-50850.787346190627,-6058.5169767761745,-1111.9624194780245,-5818.8330026222984,null,-155327,-283877,-105647,-78023]
[1811,{"$error":"#NAME?"},{"$error":"#NAME?"},{"$error":"#NAME?"},{"$error":"#NAME?"},null,{"$f":"NR_to_Cash!C$9","v":-155327},{"$f":"NR_to_Cash!D$9","v":-283877},{"$f":"NR_to_Cash!E$9","v":-105647},{"$f":"NR_to_Cash!F$9","v":-78023},null,1811,-15323.942252027398,-12370.789728818239,-1395.4970467669559,-20125.926562676374,null,-155327,-283877,-105647,-78023]
[1812,{"$error":"#NAME?"},{"$error":"#NAME?"},{"$error":"#NAME?"},{"$error":"#NAME?"},null,{"$f":"NR_to_Cash!C$9","v":-155327},{"$f":"NR_to_Cash!D$9","v":-283877},{"$f":"NR_to_Cash!E$9","v":-105647},{"$f":"NR_to_Cash!F$9","v":-78023},null,1812,-15587.606139026801,13139.485705745745,-12766.333643795424,-32189.383152808932,null,-155327,-283877,-105647,-78023]
[1813,{"$error":"#NAME?"},{"$error":"#NAME?"},{"$error":"#NAME?"},{"$error":"#NAME?"},null,{"$f":"NR_to_Cash!C$9","v":-155327},{"$f":"NR_to_Cash!D$9","v":-283877},{"$f":"NR_to_Cash!E$9","v":-105647},{"$f":"NR_to_Cash!F$9","v":-78023},null,1813,-21165.728832344641,-30824.863675783286,-7064.0785863902283,8871.1356028443352,null,-155327,-283877,-105647,-78023]
[1814,{"$error":"#NAME?"},{"$error":"#NAME?"},{"$error":"#NAME?"},{"$error":"#NAME?"},null,{"$f":"NR_to_Cash!C$9","v":-155327},{"$f":"NR_to_Cash!D$9","v":-283877},{"$f":"NR_to_Cash!E$9","v":-105647},{"$f":"NR_to_Cash!F$9","v":-78023},null,1814,-17186.650293673581,-8864.7435225809513,-334.49751490201533,-16606.11398759584,null,-155327,-283877,-105647,-78023]
[1815,{"$error":"#NAME?"},{"$error":"#NAME?"},{"$error":"#NAME?"},{"$error":"#NAME?"},null,{"$f":"NR_to_Cash!C$9","v":-155327},{"$f":"NR_to_Cash!D$9","v":-283877},{"$f":"NR_to_Cash!E$9","v":-105647},{"$f":"NR_to_Cash!F$9","v":-78023},null,1815,-2753.7874464219103,-17242.560132228795,-2680.1820985003569,-9407.9414485122634,null,-155327,-283877,-105647,-78023]
[1816,{"$error":"#NAME?"},{"$error":"#NAME?"},{"$error":"#NAME?"},{"$error":"#NAME?"},null,{"$f":"NR_to_Cash!C$9","v":-155327},{"$f":"NR_to_Cash!D$9","v":-283877},{"$f":"NR_to_Cash!E$9","v":-105647},{"$f":"NR_to_Cash!F$9","v":-78023},null,1816,-10383.421231995455,11785.077245925726,-1907.2011783337259,-10050.698696792062,null,-155327,-283877,-105647,-78023]
[1817,{"$error":"#NAME?"},{"$error":"#NAME?"},{"$error":"#NAME?"},{"$error":"#NAME?"},null,{"$f":"NR_to_Cash!C$9","v":-155327},{"$f":"NR_to_Cash!D$9","v":-283877},{"$f":"NR_to_Cash!E$9","v":-105647},{"$f":"NR_to_Cash!F$9","v":-78023},null,1817,-17702.121348323977,-20106.476909300887,-6065.8189745049012,-378.81857138824029,null,-155327,-283877,-105647,-78023]
[1818,{"$error":"#NAME?"},{"$error":"#NAME?"},{"$error":"#NAME?"},{"$error":"#NAME?"},null,{"$f":"NR_to_Cash!C$9","v":-155327},{"$f":"NR_to_Cash!D$9","v":-283877},{"$f":"NR_to_Cash!E$9","v":-105647},{"$f":"NR_to_Cash!F$9","v":-78023},null,1818,-14790.143620176375,-4811.130348707894,-10675.312649076481,-14704.893263099635,null,-155327,-283877,-105647,-78023]
[1819,{"$error":"#NAME?"},{"$error":"#NAME?"},{"$error":"#NAME?"},{"$error":"#NAME?"},null,{"$f":"NR_to_Cash!C$9","v":-155327},{"$f":"NR_to_Cash!D$9","v":-283877},{"$f":"NR_to_Cash!E$9","v":-105647},{"$f":"NR_to_Cash!F$9","v":-78023},null,1819,-15595.145638185177,-26213.737989981892,-25876.90837023974,-22414.075816511475,null,-155327,-283877,-105647,-78023]
[1820,{"$error":"#NAME?"},{"$error":"#NAME?"},{"$error":"#NAME?"},{"$error":"#NAME?"},null,{"$f":"NR_to_Cash!C$9","v":-155327},{"$f":"NR_to_Cash!D$9","v":-283877},{"$f":"NR_to_Cash!E$9","v":-105647},{"$f":"NR_to_Cash!F$9","v":-78023},null,1820,-19855.563889296925,-20098.575241158513,-37882.540146889536,-23344.76691004293,null,-155327,-283877,-105647,-78023]
[1821,{"$error":"#NAME?"},{"$error":"#NAME?"},{"$error":"#NAME?"},{"$error":"#NAME?"},null,{"$f":"NR_to_Cash!C$9","v":-155327},{"$f":"NR_to_Cash!D$9","v":-283877},{"$f":"NR_to_Cash!E$9","v":-105647},{"$f":"NR_to_Cash!F$9","v":-78023},null,1821,-29772.232693129936,-8508.1518570550925,-20342.577135645341,-19415.83097983582,null,-155327,-283877,-105647,-78023]
[1822,{"$error":"#NAME?"},{"$error":"#NAME?"},{"$error":"#NAME?"},{"$error":"#NAME?"},null,{"$f":"NR_to_Cash!C$9","v":-155327},{"$f":"NR_to_Cash!D$9","v":-283877},{"$f":"NR_to_Cash!E$9","v":-105647},{"$f":"NR_to_Cash!F$9","v":-78023},null,1822,-28495.005618176117,-2435.2209506794657,-33541.53722322773,-23563.031263287885,null,-155327,-283877,-105647,-78023]
[1823,{"$error":"#NAME?"},{"$error":"#NAME?"},{"$error":"#NAME?"},{"$error":"#NAME?"},null,{"$f":"NR_to_Cash!C$9","v":-155327},{"$f":"NR_to_Cash!D$9","v":-283877},{"$f":"NR_to_Cash!E$9","v":-105647},{"$f":"NR_to_Cash!F$9","v":-78023},null,1823,-4937.7935315512741,-5949.5220142682192,21214.339036309189,-17648.227032069706,null,-155327,-283877,-105647,-78023]
[1824,{"$error":"#NAME?"},{"$error":"#NAME?"},{"$error":"#NAME?"},{"$error":"#NAME?"},null,{"$f":"NR_to_Cash!C$9","v":-155327},{"$f":"NR_to_Cash!D$9","v":-283877},{"$f":"NR_to_Cash!E$9","v":-105647},{"$f":"NR_to_Cash!F$9","v":-78023},null,1824,-13626.067510325072,12987.636597609453,-12116.280187820543,11327.356106011383,null,-155327,-283877,-105647,-78023]
[1825,{"$error":"#NAME?"},{"$error":"#NAME?"},{"$error":"#NAME?"},{"$error":"#NAME?"},null,{"$f":"NR_to_Cash!C$9","v":-155327},{"$f":"NR_to_Cash!D$9","v":-283877},{"$f":"NR_to_Cash!E$9","v":-105647},{"$f":"NR_to_Cash!F$9","v":-78023},null,1825,1504.8150481937951,-14415.839442342471,-7550.1563938862437,8768.0864455901774,null,-155327,-283877,-105647,-78023]
[1826,{"$error":"#NAME?"},{"$error":"#NAME?"},{"$error":"#NAME?"},{"$error":"#NAME?"},null,{"$f":"NR_to_Cash!C$9","v":-155327},{"$f":"NR_to_Cash!D$9","v":-283877},{"$f":"NR_to_Cash!E$9","v":-105647},{"$f":"NR_to_Cash!F$9","v":-78023},null,1826,-28895.083170675774,-12471.885601672042,-17060.180199747378,-14899.813763311919,null,-155327,-283877,-105647,-78023]
[1827,{"$error":"#NAME?"},{"$error":"#NAME?"},{"$error":"#NAME?"},{"$error":"#NAME?"},null,{"$f":"NR_to_Cash!C$9","v":-155327},{"$f":"NR_to_Cash!D$9","v":-283877},{"$f":"NR_to_Cash!E$9","v":-105647},{"$f":"NR_to_Cash!F$9","v":-78023},null,1827,-21125.586705568436,-12358.101417928625,-27887.713801859481,-31391.954696093238,null,-155327,-283877,-105647,-78023]
[1828,{"$error":"#NAME?"},{"$error":"#NAME?"},{"$error":"#NAME?"},{"$error":"#NAME?"},null,{"$f":"NR_to_Cash!C$9","v":-155327},{"$f":"NR_to_Cash!D$9","v":-283877},{"$f":"NR_to_Cash!E$9","v":-105647},{"$f":"NR_to_Cash!F$9","v":-78023},null,1828,-16722.915573344591,-28389.296979532977,9098.1501052350886,-14858.400087759406,null,-155327,-283877,-105647,-78023]
[1829,{"$error":"#NAME?"},{"$error":"#NAME?"},{"$error":"#NAME?"},{"$error":"#NAME?"},null,{"$f":"NR_to_Cash!C$9","v":-155327},{"$f":"NR_to_Cash!D$9","v":-283877},{"$f":"NR_to_Cash!E$9","v":-105647},{"$f":"NR_to_Cash!F$9","v":-78023},null,1829,2060.9477767919916,-9085.4701807718629,4596.184469342983,-17167.675400779721,null,-155327,-283877,-105647,-78023]
[1830,{"$error":"#NAME?"},{"$error":"#NAME?"},{"$error":"#NAME?"},{"$error":"#NAME?"},null,{"$f":"NR_to_Cash!C$9","v":-155327},{"$f":"NR_to_Cash!D$9","v":-283877},{"$f":"NR_to_Cash!E$9","v":-105647},{"$f":"NR_to_Cash!F$9","v":-78023},null,1830,-4766.4630133065293,-27886.770560198285,1535.6993128244405,12373.441789207431,null,-155327,-283877,-105647,-78023]
[1831,{"$error":"#NAME?"},{"$error":"#NAME?"},{"$error":"#NAME?"},{"$error":"#NAME?"},null,{"$f":"NR_to_Cash!C$9","v":-155327},{"$f":"NR_to_Cash!D$9","v":-283877},{"$f":"NR_to_Cash!E$9","v":-105647},{"$f":"NR_to_Cash!F$9","v":-78023},null,1831,-27783.9448815094,-7301.8842718465967,-5572.0512465071124,-5963.0917939497276,null,-155327,-283877,-105647,-78023]
[1832,{"$error":"#NAME?"},{"$error":"#NAME?"},{"$error":"#NAME?"},{"$error":"#NAME?"},null,{"$f":"NR_to_Cash!C$9","v":-155327},{"$f":"NR_to_Cash!D$9","v":-283877},{"$f":"NR_to_Cash!E$9","v":-105647},{"$f":"NR_to_Cash!F$9","v":-78023},null,1832,-19611.762579812839,8379.5942166731147,-5043.2700065615954,15934.692318730569,null,-155327,-283877,-105647,-78023]
[1833,{"$error":"#NAME?"},{"$error":"#NAME?"},{"$error":"#NAME?"},{"$error":"#NAME?"},null,{"$f":"NR_to_Cash!C$9","v":-155327},{"$f":"NR_to_Cash!D$9","v":-283877},{"$f":"NR_to_Cash!E$9","v":-105647},{"$f":"NR_to_Cash!F$9","v":-78023},null,1833,-7273.6273807710586,-7700.1431646710735,1049.31039749827,705.00315408174617,null,-155327,-283877,-105647,-78023]
[1834,{"$error":"#NAME?"},{"$error":"#NAME?"},{"$error":"#NAME?"},{"$error":"#NAME?"},null,{"$f":"NR_to_Cash!C$9","v":-155327},{"$f":"NR_to_Cash!D$9","v":-283877},{"$f":"NR_to_Cash!E$9","v":-105647},{"$f":"NR_to_Cash!F$9","v":-78023},null,1834,-7847.3451261884147,-13425.742394900113,5521.8580306412887,-5745.8273200955146,null,-155327,-283877,-105647,-78023]
[1835,{"$error":"#NAME?"},{"$error":"#NAME?"},{"$error":"#NAME?"},{"$error":"#NAME?"},null,{"$f":"NR_to_Cash!C$9","v":-155327},{"$f":"NR_to_Cash!D$9","v":-283877},{"$f":"NR_to_Cash!E$9","v":-105647},{"$f":"NR_to_Cash!F$9","v":-78023},null,1835,-9237.1712330832452,11508.591945404147,-50229.718717274831,-12154.893230087144,null,-155327,-283877,-105647,-78023]
[1836,{"$error":"#NAME?"},{"$error":"#NAME?"},{"$error":"#NAME?"},{"$error":"#NAME?"},null,{"$f":"NR_to_Cash!C$9","v":-155327},{"$f":"NR_to_Cash!D$9","v":-283877},{"$f":"NR_to_Cash!E$9","v":-105647},{"$f":"NR_to_Cash!F$9","v":-78023},null,1836,-8287.0488510598625,-14830.834078908338,-12234.738015700537,4692.9358377186891,null,-155327,-283877,-105647,-78023]
[1837,{"$error":"#NAME?"},{"$error":"#NAME?"},{"$error":"#NAME?"},{"$error":"#NAME?"},null,{"$f":"NR_to_Cash!C$9","v":-155327},{"$f":"NR_to_Cash!D$9","v":-283877},{"$f":"NR_to_Cash!E$9","v":-105647},{"$f":"NR_to_Cash!F$9","v":-78023},null,1837,-18056.299479671325,-7456.1864136532367,9936.2836926641485,-3999.4700550097941,null,-155327,-283877,-105647,-78023]
[1838,{"$error":"#NAME?"},{"$error":"#NAME?"},{"$error":"#NAME?"},{"$error":"#NAME?"},null,{"$f":"NR_to_Cash!C$9","v":-155327},{"$f":"NR_to_Cash!D$9","v":-283877},{"$f":"NR_to_Cash!E$9","v":-105647},{"$f":"NR_to_Cash!F$9","v":-78023},null,1838,-1093.7618138485666,-27564.930281491575,-16885.538012722478,7499.4667694942054,null,-155327,-283877,-105647,-78023]
[1839,{"$error":"#NAME?"},{"$error":"#NAME?"},{"$error":"#NAME?"},{"$error":"#NAME?"},null,{"$f":"NR_to_Cash!C$9","v":-155327},{"$f":"NR_to_Cash!D$9","v":-283877},{"$f":"NR_to_Cash!E$9","v":-105647},{"$f":"NR_to_Cash!F$9","v":-78023},null,1839,-18210.824734079866,-32886.231859665459,-12695.182272577857,-36552.53257910227,null,-155327,-283877,-105647,-78023]
[1840,{"$error":"#NAME?"},{"$error":"#NAME?"},{"$error":"#NAME?"},{"$error":"#NAME?"},null,{"$f":"NR_to_Cash!C$9","v":-155327},{"$f":"NR_to_Cash!D$9","v":-283877},{"$f":"NR_to_Cash!E$9","v":-105647},{"$f":"NR_to_Cash!F$9","v":-78023},null,1840,-23557.503785754248,-19508.79374739897,-40906.886654904214,-18080.764082111644,null,-155327,-283877,-105647,-78023]
[1841,{"$error":"#NAME?"},{"$error":"#NAME?"},{"$error":"#NAME?"},{"$error":"#NAME?"},null,{"$f":"NR_to_Cash!C$9","v":-155327},{"$f":"NR_to_Cash!D$9","v":-283877},{"$f":"NR_to_Cash!E$9","v":-105647},{"$f":"NR_to_Cash!F$9","v":-78023},null,1841,-2316.8389936019835,8727.904486839805,-1444.5477855350289,-32567.988419648937,null,-155327,-283877,-105647,-78023]
[1842,{"$error":"#NAME?"},{"$error":"#NAME?"},{"$error":"#NAME?"},{"$error":"#NAME?"},null,{"$f":"NR_to_Cash!C$9","v":-155327},{"$f":"NR_to_Cash!D$9","v":-283877},{"$f":"NR_to_Cash!E$9","v":-105647},{"$f":"NR_to_Cash!F$9","v":-78023},null,1842,-4815.1963364142102,-12726.176513432383,-10261.893245216563,10043.237682999208,null,-155327,-283877,-105647,-78023]
[1843,{"$error":"#NAME?"},{"$error":"#NAME?"},{"$error":"#NAME?"},{"$error":"#NAME?"},null,{"$f":"NR_to_Cash!C$9","v":-155327},{"$f":"NR_to_Cash!D$9","v":-283877},{"$f":"NR_to_Cash!E$9","v":-105647},{"$f":"NR_to_Cash!F$9","v":-78023},null,1843,-23668.009427191701,-9486.0012117871447,-36691.060907746643,-35136.302605986057,null,-155327,-283877,-105647,-78023]
[1844,{"$error":"#NAME?"},{"$error":"#NAME?"},{"$error":"#NAME?"},{"$error":"#NAME?"},null,{"$f":"NR_to_Cash!C$9","v":-155327},{"$f":"NR_to_Cash!D$9","v":-283877},{"$f":"NR_to_Cash!E$9","v":-105647},{"$f":"NR_to_Cash!F$9","v":-78023},null,1844,-14418.926429655894,-21140.404713735476,-14329.320573521669,-9133.1114065291258,null,-155327,-283877,-105647,-78023]
[1845,{"$error":"#NAME?"},{"$error":"#NAME?"},{"$error":"#NAME?"},{"$error":"#NAME?"},null,{"$f":"NR_to_Cash!C$9","v":-155327},{"$f":"NR_to_Cash!D$9","v":-283877},{"$f":"NR_to_Cash!E$9","v":-105647},{"$f":"NR_to_Cash!F$9","v":-78023},null,1845,-4665.4130875344545,9818.8272430843208,-18379.518620006198,-6505.4472520699937,null,-155327,-283877,-105647,-78023]
[1846,{"$error":"#NAME?"},{"$error":"#NAME?"},{"$error":"#NAME?"},{"$error":"#NAME?"},null,{"$f":"NR_to_Cash!C$9","v":-155327},{"$f":"NR_to_Cash!D$9","v":-283877},{"$f":"NR_to_Cash!E$9","v":-105647},{"$f":"NR_to_Cash!F$9","v":-78023},null,1846,-19140.114922384622,4275.8275673911139,-24188.335412000088,-8419.7503669187172,null,-155327,-283877,-105647,-78023]
[1847,{"$error":"#NAME?"},{"$error":"#NAME?"},{"$error":"#NAME?"},{"$error":"#NAME?"},null,{"$f":"NR_to_Cash!C$9","v":-155327},{"$f":"NR_to_Cash!D$9","v":-283877},{"$f":"NR_to_Cash!E$9","v":-105647},{"$f":"NR_to_Cash!F$9","v":-78023},null,1847,-7165.1541005481622,855.34050189461993,-25894.454263781117,-5678.0310535159169,null,-155327,-283877,-105647,-78023]
[1848,{"$error":"#NAME?"},{"$error":"#NAME?"},{"$error":"#NAME?"},{"$error":"#NAME?"},null,{"$f":"NR_to_Cash!C$9","v":-155327},{"$f":"NR_to_Cash!D$9","v":-283877},{"$f":"NR_to_Cash!E$9","v":-105647},{"$f":"NR_to_Cash!F$9","v":-78023},null,1848,-1714.5748059744747,-3027.2407994265182,8755.3273644391229,-6029.9100171423652,null,-155327,-283877,-105647,-78023]
[1849,{"$error":"#NAME?"},{"$error":"#NAME?"},{"$error":"#NAME?"},{"$error":"#NAME?"},null,{"$f":"NR_to_Cash!C$9","v":-155327},{"$f":"NR_to_Cash!D$9","v":-283877},{"$f":"NR_to_Cash!E$9","v":-105647},{"$f":"NR_to_Cash!F$9","v":-78023},null,1849,-18144.793314475268,-14297.348902195194,-13364.356605263272,6661.1337809066936,null,-155327,-283877,-105647,-78023]
[1850,{"$error":"#NAME?"},{"$error":"#NAME?"},{"$error":"#NAME?"},{"$error":"#NAME?"},null,{"$f":"NR_to_Cash!C$9","v":-155327},{"$f":"NR_to_Cash!D$9","v":-283877},{"$f":"NR_to_Cash!E$9","v":-105647},{"$f":"NR_to_Cash!F$9","v":-78023},null,1850,-9088.4257530682025,523.99285702587201,-27903.413532130759,10844.248731533238,null,-155327,-283877,-105647,-78023]
[1851,{"$error":"#NAME?"},{"$error":"#NAME?"},{"$error":"#NAME?"},{"$error":"#NAME?"},null,{"$f":"NR_to_Cash!C$9","v":-155327},{"$f":"NR_to_Cash!D$9","v":-283877},{"$f":"NR_to_Cash!E$9","v":-105647},{"$f":"NR_to_Cash!F$9","v":-78023},null,1851,-8562.8127444130587,-24122.613759513413,-26336.8803428393,-13274.617387802553,null,-155327,-283877,-105647,-78023]
[1852,{"$error":"#NAME?"},{"$error":"#NAME?"},{"$error":"#NAME?"},{"$error":"#NAME?"},null,{"$f":"NR_to_Cash!C$9","v":-155327},{"$f":"NR_to_Cash!D$9","v":-283877},{"$f":"NR_to_Cash!E$9","v":-105647},{"$f":"NR_to_Cash!F$9","v":-78023},null,1852,-30155.633990527065,3945.0761108511233,21020.672765611067,-17559.040861724068,null,-155327,-283877,-105647,-78023]
[1853,{"$error":"#NAME?"},{"$error":"#NAME?"},{"$error":"#NAME?"},{"$error":"#NAME?"},null,{"$f":"NR_to_Cash!C$9","v":-155327},{"$f":"NR_to_Cash!D$9","v":-283877},{"$f":"NR_to_Cash!E$9","v":-105647},{"$f":"NR_to_Cash!F$9","v":-78023},null,1853,-16613.64463830923,-23328.779392116357,-1095.7218146365476,-26800.90744143886,null,-155327,-283877,-105647,-78023]
[1854,{"$error":"#NAME?"},{"$error":"#NAME?"},{"$error":"#NAME?"},{"$error":"#NAME?"},null,{"$f":"NR_to_Cash!C$9","v":-155327},{"$f":"NR_to_Cash!D$9","v":-283877},{"$f":"NR_to_Cash!E$9","v":-105647},{"$f":"NR_to_Cash!F$9","v":-78023},null,1854,-21217.894914556855,-12984.159261233473,-18596.537288729047,-21243.313382361837,null,-155327,-283877,-105647,-78023]
[1855,{"$error":"#NAME?"},{"$error":"#NAME?"},{"$error":"#NAME?"},{"$error":"#NAME?"},null,{"$f":"NR_to_Cash!C$9","v":-155327},{"$f":"NR_to_Cash!D$9","v":-283877},{"$f":"NR_to_Cash!E$9","v":-105647},{"$f":"NR_to_Cash!F$9","v":-78023},null,1855,-3883.1840122678223,-16244.172260150761,-13454.439223224656,-16611.681565879968,null,-155327,-283877,-105647,-78023]
[1856,{"$error":"#NAME?"},{"$error":"#NAME?"},{"$error":"#NAME?"},{"$error":"#NAME?"},null,{"$f":"NR_to_Cash!C$9","v":-155327},{"$f":"NR_to_Cash!D$9","v":-283877},{"$f":"NR_to_Cash!E$9","v":-105647},{"$f":"NR_to_Cash!F$9","v":-78023},null,1856,-22640.790254183354,9421.7363820519822,-16575.997682231464,-3156.2463853553772,null,-155327,-283877,-105647,-78023]
[1857,{"$error":"#NAME?"},{"$error":"#NAME?"},{"$error":"#NAME?"},{"$error":"#NAME?"},null,{"$f":"NR_to_Cash!C$9","v":-155327},{"$f":"NR_to_Cash!D$9","v":-283877},{"$f":"NR_to_Cash!E$9","v":-105647},{"$f":"NR_to_Cash!F$9","v":-78023},null,1857,-19046.769605898568,-27168.166949675593,-26687.311163853385,-28842.995864461151,null,-155327,-283877,-105647,-78023]
[1858,{"$error":"#NAME?"},{"$error":"#NAME?"},{"$error":"#NAME?"},{"$error":"#NAME?"},null,{"$f":"NR_to_Cash!C$9","v":-155327},{"$f":"NR_to_Cash!D$9","v":-283877},{"$f":"NR_to_Cash!E$9","v":-105647},{"$f":"NR_to_Cash!F$9","v":-78023},null,1858,-10926.503392334573,-38244.360637726968,-3799.2070113007721,-24229.406163119471,null,-155327,-283877,-105647,-78023]
[1859,{"$error":"#NAME?"},{"$error":"#NAME?"},{"$error":"#NAME?"},{"$error":"#NAME?"},null,{"$f":"NR_to_Cash!C$9","v":-155327},{"$f":"NR_to_Cash!D$9","v":-283877},{"$f":"NR_to_Cash!E$9","v":-105647},{"$f":"NR_to_Cash!F$9","v":-78023},null,1859,-553.14616344185913,-13370.024778779876,-11133.33529333441,5924.8463093706951,null,-155327,-283877,-105647,-78023]
[1860,{"$error":"#NAME?"},{"$error":"#NAME?"},{"$error":"#NAME?"},{"$error":"#NAME?"},null,{"$f":"NR_to_Cash!C$9","v":-155327},{"$f":"NR_to_Cash!D$9","v":-283877},{"$f":"NR_to_Cash!E$9","v":-105647},{"$f":"NR_to_Cash!F$9","v":-78023},null,1860,-19722.359981739202,-12488.574536651337,17813.326141374208,-11275.081964928695,null,-155327,-283877,-105647,-78023]
[1861,{"$error":"#NAME?"},{"$error":"#NAME?"},{"$error":"#NAME?"},{"$error":"#NAME?"},null,{"$f":"NR_to_Cash!C$9","v":-155327},{"$f":"NR_to_Cash!D$9","v":-283877},{"$f":"NR_to_Cash!E$9","v":-105647},{"$f":"NR_to_Cash!F$9","v":-78023},null,1861,-22527.097863190233,-17285.246770402413,4469.8136336603602,-5056.0307966090249,null,-155327,-283877,-105647,-78023]
[1862,{"$error":"#NAME?"},{"$error":"#NAME?"},{"$error":"#NAME?"},{"$error":"#NAME?"},null,{"$f":"NR_to_Cash!C$9","v":-155327},{"$f":"NR_to_Cash!D$9","v":-283877},{"$f":"NR_to_Cash!E$9","v":-105647},{"$f":"NR_to_Cash!F$9","v":-78023},null,1862,3021.7072012223621,-22385.64427354743,-18779.845382901767,-16976.322531148933,null,-155327,-283877,-105647,-78023]
[1863,{"$error":"#NAME?"},{"$error":"#NAME?"},{"$error":"#NAME?"},{"$error":"#NAME?"},null,{"$f":"NR_to_Cash!C$9","v":-155327},{"$f":"NR_to_Cash!D$9","v":-283877},{"$f":"NR_to_Cash!E$9","v":-105647},{"$f":"NR_to_Cash!F$9","v":-78023},null,1863,-1009.9192251779145,-14631.195598963055,-8292.2993047690816,-43663.170053079506,null,-155327,-283877,-105647,-78023]
[1864,{"$error":"#NAME?"},{"$error":"#NAME?"},{"$error":"#NAME?"},{"$error":"#NAME?"},null,{"$f":"NR_to_Cash!C$9","v":-155327},{"$f":"NR_to_Cash!D$9","v":-283877},{"$f":"NR_to_Cash!E$9","v":-105647},{"$f":"NR_to_Cash!F$9","v":-78023},null,1864,-11319.306431806905,-16296.416205457119,-11181.583812004967,-12229.343003254628,null,-155327,-283877,-105647,-78023]
[1865,{"$error":"#NAME?"},{"$error":"#NAME?"},{"$error":"#NAME?"},{"$error":"#NAME?"},null,{"$f":"NR_to_Cash!C$9","v":-155327},{"$f":"NR_to_Cash!D$9","v":-283877},{"$f":"NR_to_Cash!E$9","v":-105647},{"$f":"NR_to_Cash!F$9","v":-78023},null,1865,-23028.622517383785,-10904.154255157164,-13060.051441096202,-34257.55375305254,null,-155327,-283877,-105647,-78023]
[1866,{"$error":"#NAME?"},{"$error":"#NAME?"},{"$error":"#NAME?"},{"$error":"#NAME?"},null,{"$f":"NR_to_Cash!C$9","v":-155327},{"$f":"NR_to_Cash!D$9","v":-283877},{"$f":"NR_to_Cash!E$9","v":-105647},{"$f":"NR_to_Cash!F$9","v":-78023},null,1866,-33624.264195937823,-4252.8462949792702,-3105.7896218646642,9075.5965434493864,null,-155327,-283877,-105647,-78023]
[1867,{"$error":"#NAME?"},{"$error":"#NAME?"},{"$error":"#NAME?"},{"$error":"#NAME?"},null,{"$f":"NR_to_Cash!C$9","v":-155327},{"$f":"NR_to_Cash!D$9","v":-283877},{"$f":"NR_to_Cash!E$9","v":-105647},{"$f":"NR_to_Cash!F$9","v":-78023},null,1867,-6795.5063800233165,-15451.583936854018,1412.7296978899651,-32989.416444036746,null,-155327,-283877,-105647,-78023]
[1868,{"$error":"#NAME?"},{"$error":"#NAME?"},{"$error":"#NAME?"},{"$error":"#NAME?"},null,{"$f":"NR_to_Cash!C$9","v":-155327},{"$f":"NR_to_Cash!D$9","v":-283877},{"$f":"NR_to_Cash!E$9","v":-105647},{"$f":"NR_to_Cash!F$9","v":-78023},null,1868,-10130.136690488209,-8820.0007281684211,-26577.37430660204,8838.3735726942996,null,-155327,-283877,-105647,-78023]
[1869,{"$error":"#NAME?"},{"$error":"#NAME?"},{"$error":"#NAME?"},{"$error":"#NAME?"},null,{"$f":"NR_to_Cash!C$9","v":-155327},{"$f":"NR_to_Cash!D$9","v":-283877},{"$f":"NR_to_Cash!E$9","v":-105647},{"$f":"NR_to_Cash!F$9","v":-78023},null,1869,-3657.7646823814439,-5326.4144112185786,5808.5873393017919,-29616.677188986065,null,-155327,-283877,-105647,-78023]
[1870,{"$error":"#NAME?"},{"$error":"#NAME?"},{"$error":"#NAME?"},{"$error":"#NAME?"},null,{"$f":"NR_to_Cash!C$9","v":-155327},{"$f":"NR_to_Cash!D$9","v":-283877},{"$f":"NR_to_Cash!E$9","v":-105647},{"$f":"NR_to_Cash!F$9","v":-78023},null,1870,-8299.2138203220184,-6840.20287914453,-600.49253047826937,-22973.566718812592,null,-155327,-283877,-105647,-78023]
[1871,{"$error":"#NAME?"},{"$error":"#NAME?"},{"$error":"#NAME?"},{"$error":"#NAME?"},null,{"$f":"NR_to_Cash!C$9","v":-155327},{"$f":"NR_to_Cash!D$9","v":-283877},{"$f":"NR_to_Cash!E$9","v":-105647},{"$f":"NR_to_Cash!F$9","v":-78023},null,1871,-18095.990821682346,-24552.55654743953,12301.431739825191,-13823.665369796632,null,-155327,-283877,-105647,-78023]
[1872,{"$error":"#NAME?"},{"$error":"#NAME?"},{"$error":"#NAME?"},{"$error":"#NAME?"},null,{"$f":"NR_to_Cash!C$9","v":-155327},{"$f":"NR_to_Cash!D$9","v":-283877},{"$f":"NR_to_Cash!E$9","v":-105647},{"$f":"NR_to_Cash!F$9","v":-78023},null,1872,-281.11209060817163,-16561.168380921168,10964.445622021271,-12075.703400032044,null,-155327,-283877,-105647,-78023]
[1873,{"$error":"#NAME?"},{"$error":"#NAME?"},{"$error":"#NAME?"},{"$error":"#NAME?"},null,{"$f":"NR_to_Cash!C$9","v":-155327},{"$f":"NR_to_Cash!D$9","v":-283877},{"$f":"NR_to_Cash!E$9","v":-105647},{"$f":"NR_to_Cash!F$9","v":-78023},null,1873,-5233.8812935075839,-41935.313851709609,-2642.8288201434566,-20091.342335007466,null,-155327,-283877,-105647,-78023]
[1874,{"$error":"#NAME?"},{"$error":"#NAME?"},{"$error":"#NAME?"},{"$error":"#NAME?"},null,{"$f":"NR_to_Cash!C$9","v":-155327},{"$f":"NR_to_Cash!D$9","v":-283877},{"$f":"NR_to_Cash!E$9","v":-105647},{"$f":"NR_to_Cash!F$9","v":-78023},null,1874,-21690.549671612131,-20665.591199323007,-9458.7417081896565,-17337.541647145928,null,-155327,-283877,-105647,-78023]
[1875,{"$error":"#NAME?"},{"$error":"#NAME?"},{"$error":"#NAME?"},{"$error":"#NAME?"},null,{"$f":"NR_to_Cash!C$9","v":-155327},{"$f":"NR_to_Cash!D$9","v":-283877},{"$f":"NR_to_Cash!E$9","v":-105647},{"$f":"NR_to_Cash!F$9","v":-78023},null,1875,-3044.0545794618956,1121.8953371072291,14825.746373367445,-18001.489853675645,null,-155327,-283877,-105647,-78023]
[1876,{"$error":"#NAME?"},{"$error":"#NAME?"},{"$error":"#NAME?"},{"$error":"#NAME?"},null,{"$f":"NR_to_Cash!C$9","v":-155327},{"$f":"NR_to_Cash!D$9","v":-283877},{"$f":"NR_to_Cash!E$9","v":-105647},{"$f":"NR_to_Cash!F$9","v":-78023},null,1876,-14800.25031331167,-28695.713348500445,-14089.159010935584,-7747.9952983967196,null,-155327,-283877,-105647,-78023]
[1877,{"$error":"#NAME?"},{"$error":"#NAME?"},{"$error":"#NAME?"},{"$error":"#NAME?"},null,{"$f":"NR_to_Cash!C$9","v":-155327},{"$f":"NR_to_Cash!D$9","v":-283877},{"$f":"NR_to_Cash!E$9","v":-105647},{"$f":"NR_to_Cash!F$9","v":-78023},null,1877,-5835.0984429631953,2191.3927596086342,-21465.369133589902,-9876.5558629308416,null,-155327,-283877,-105647,-78023]
[1878,{"$error":"#NAME?"},{"$error":"#NAME?"},{"$error":"#NAME?"},{"$error":"#NAME?"},null,{"$f":"NR_to_Cash!C$9","v":-155327},{"$f":"NR_to_Cash!D$9","v":-283877},{"$f":"NR_to_Cash!E$9","v":-105647},{"$f":"NR_to_Cash!F$9","v":-78023},null,1878,-24985.201534054329,-16772.735716664785,-11498.182333666446,14331.194308499451,null,-155327,-283877,-105647,-78023]
[1879,{"$error":"#NAME?"},{"$error":"#NAME?"},{"$error":"#NAME?"},{"$error":"#NAME?"},null,{"$f":"NR_to_Cash!C$9","v":-155327},{"$f":"NR_to_Cash!D$9","v":-283877},{"$f":"NR_to_Cash!E$9","v":-105647},{"$f":"NR_to_Cash!F$9","v":-78023},null,1879,-3749.3067791111794,-31990.23527090831,-15964.71071001245,16618.447837444106,null,-155327,-283877,-105647,-78023]
[1880,{"$error":"#NAME?"},{"$error":"#NAME?"},{"$error":"#NAME?"},{"$error":"#NAME?"},null,{"$f":"NR_to_Cash!C$9","v":-155327},{"$f":"NR_to_Cash!D$9","v":-283877},{"$f":"NR_to_Cash!E$9","v":-105647},{"$f":"NR_to_Cash!F$9","v":-78023},null,1880,-667.06243517096095,2458.1228800308618,-23099.481207339319,-4462.6669905424988,null,-155327,-283877,-105647,-78023]
[1881,{"$error":"#NAME?"},{"$error":"#NAME?"},{"$error":"#NAME?"},{"$error":"#NAME?"},null,{"$f":"NR_to_Cash!C$9","v":-155327},{"$f":"NR_to_Cash!D$9","v":-283877},{"$f":"NR_to_Cash!E$9","v":-105647},{"$f":"NR_to_Cash!F$9","v":-78023},null,1881,-25712.523003557857,7664.6634851003892,-3613.7525366917453,-3457.1912909611874,null,-155327,-283877,-105647,-78023]
[1882,{"$error":"#NAME?"},{"$error":"#NAME?"},{"$error":"#NAME?"},{"$error":"#NAME?"},null,{"$f":"NR_to_Cash!C$9","v":-155327},{"$f":"NR_to_Cash!D$9","v":-283877},{"$f":"NR_to_Cash!E$9","v":-105647},{"$f":"NR_to_Cash!F$9","v":-78023},null,1882,-1319.0856419797219,4119.8352213657408,-10680.374264137901,-15647.009466690804,null,-155327,-283877,-105647,-78023]
[1883,{"$error":"#NAME?"},{"$error":"#NAME?"},{"$error":"#NAME?"},{"$error":"#NAME?"},null,{"$f":"NR_to_Cash!C$9","v":-155327},{"$f":"NR_to_Cash!D$9","v":-283877},{"$f":"NR_to_Cash!E$9","v":-105647},{"$f":"NR_to_Cash!F$9","v":-78023},null,1883,-26021.185708742942,7272.4237575591142,-18446.752931791685,-10556.695595013789,null,-155327,-283877,-105647,-78023]
[1884,{"$error":"#NAME?"},{"$error":"#NAME?"},{"$error":"#NAME?"},{"$error":"#NAME?"},null,{"$f":"NR_to_Cash!C$9","v":-155327},{"$f":"NR_to_Cash!D$9","v":-283877},{"$f":"NR_to_Cash!E$9","v":-105647},{"$f":"NR_to_Cash!F$9","v":-78023},null,1884,-14150.507223992267,7757.2687521221924,12194.545655924407,-8797.1571518697165,null,-155327,-283877,-105647,-78023]
[1885,{"$error":"#NAME?"},{"$error":"#NAME?"},{"$error":"#NAME?"},{"$error":"#NAME?"},null,{"$f":"NR_to_Cash!C$9","v":-155327},{"$f":"NR_to_Cash!D$9","v":-283877},{"$f":"NR_to_Cash!E$9","v":-105647},{"$f":"NR_to_Cash!F$9","v":-78023},null,1885,4519.1106098634027,-15657.378346458623,-564.16427142147757,1643.7027685305061,null,-155327,-283877,-105647,-78023]
[1886,{"$error":"#NAME?"},{"$error":"#NAME?"},{"$error":"#NAME?"},{"$error":"#NAME?"},null,{"$f":"NR_to_Cash!C$9","v":-155327},{"$f":"NR_to_Cash!D$9","v":-283877},{"$f":"NR_to_Cash!E$9","v":-105647},{"$f":"NR_to_Cash!F$9","v":-78023},null,1886,-14497.978366791685,6926.370895582696,-771.12504147815571,-7360.2876549797411,null,-155327,-283877,-105647,-78023]
[1887,{"$error":"#NAME?"},{"$error":"#NAME?"},{"$error":"#NAME?"},{"$error":"#NAME?"},null,{"$f":"NR_to_Cash!C$9","v":-155327},{"$f":"NR_to_Cash!D$9","v":-283877},{"$f":"NR_to_Cash!E$9","v":-105647},{"$f":"NR_to_Cash!F$9","v":-78023},null,1887,1292.1053507449949,-8934.566841615173,-23987.561787833045,-12689.466617870461,null,-155327,-283877,-105647,-78023]
[1888,{"$error":"#NAME?"},{"$error":"#NAME?"},{"$error":"#NAME?"},{"$error":"#NAME?"},null,{"$f":"NR_to_Cash!C$9","v":-155327},{"$f":"NR_to_Cash!D$9","v":-283877},{"$f":"NR_to_Cash!E$9","v":-105647},{"$f":"NR_to_Cash!F$9","v":-78023},null,1888,-5911.2708123198308,-4688.4148170461094,-3162.5700479788702,-3561.1303339246861,null,-155327,-283877,-105647,-78023]
[1889,{"$error":"#NAME?"},{"$error":"#NAME?"},{"$error":"#NAME?"},{"$error":"#NAME?"},null,{"$f":"NR_to_Cash!C$9","v":-155327},{"$f":"NR_to_Cash!D$9","v":-283877},{"$f":"NR_to_Cash!E$9","v":-105647},{"$f":"NR_to_Cash!F$9","v":-78023},null,1889,1109.109905855993,-37916.891901837771,-7654.0763258907082,-30897.373511851802,null,-155327,-283877,-105647,-78023]
[1890,{"$error":"#NAME?"},{"$error":"#NAME?"},{"$error":"#NAME?"},{"$error":"#NAME?"},null,{"$f":"NR_to_Cash!C$9","v":-155327},{"$f":"NR_to_Cash!D$9","v":-283877},{"$f":"NR_to_Cash!E$9","v":-105647},{"$f":"NR_to_Cash!F$9","v":-78023},null,1890,-11054.085179596792,-20249.690701062162,4981.5300345996557,-22249.263448496597,null,-155327,-283877,-105647,-78023]
[1891,{"$error":"#NAME?"},{"$error":"#NAME?"},{"$error":"#NAME?"},{"$error":"#NAME?"},null,{"$f":"NR_to_Cash!C$9","v":-155327},{"$f":"NR_to_Cash!D$9","v":-283877},{"$f":"NR_to_Cash!E$9","v":-105647},{"$f":"NR_to_Cash!F$9","v":-78023},null,1891,-5461.3647357463833,9275.5117670036143,13793.872070056075,2293.9591308689569,null,-155327,-283877,-105647,-78023]
[1892,{"$error":"#NAME?"},{"$error":"#NAME?"},{"$error":"#NAME?"},{"$error":"#NAME?"},null,{"$f":"NR_to_Cash!C$9","v":-155327},{"$f":"NR_to_Cash!D$9","v":-283877},{"$f":"NR_to_Cash!E$9","v":-105647},{"$f":"NR_to_Cash!F$9","v":-78023},null,1892,-19172.26856051114,-11459.27403779292,-15285.507338010808,-7181.4030173126639,null,-155327,-283877,-105647,-78023]
[1893,{"$error":"#NAME?"},{"$error":"#NAME?"},{"$error":"#NAME?"},{"$error":"#NAME?"},null,{"$f":"NR_to_Cash!C$9","v":-155327},{"$f":"NR_to_Cash!D$9","v":-283877},{"$f":"NR_to_Cash!E$9","v":-105647},{"$f":"NR_to_Cash!F$9","v":-78023},null,1893,-39568.379904289264,-4239.281886340289,-14321.978431756757,-5177.0688877624943,null,-155327,-283877,-105647,-78023]
[1894,{"$error":"#NAME?"},{"$error":"#NAME?"},{"$error":"#NAME?"},{"$error":"#NAME?"},null,{"$f":"NR_to_Cash!C$9","v":-155327},{"$f":"NR_to_Cash!D$9","v":-283877},{"$f":"NR_to_Cash!E$9","v":-105647},{"$f":"NR_to_Cash!F$9","v":-78023},null,1894,-17910.913488397233,-13159.245915741227,-21972.840895657973,-14052.990667201902,null,-155327,-283877,-105647,-78023]
[1895,{"$error":"#NAME?"},{"$error":"#NAME?"},{"$error":"#NAME?"},{"$error":"#NAME?"},null,{"$f":"NR_to_Cash!C$9","v":-155327},{"$f":"NR_to_Cash!D$9","v":-283877},{"$f":"NR_to_Cash!E$9","v":-105647},{"$f":"NR_to_Cash!F$9","v":-78023},null,1895,-21624.915484753408,3492.9977553286758,-22955.72395246019,-11341.273464282061,null,-155327,-283877,-105647,-78023]
[1896,{"$error":"#NAME?"},{"$error":"#NAME?"},{"$error":"#NAME?"},{"$error":"#NAME?"},null,{"$f":"NR_to_Cash!C$9","v":-155327},{"$f":"NR_to_Cash!D$9","v":-283877},{"$f":"NR_to_Cash!E$9","v":-105647},{"$f":"NR_to_Cash!F$9","v":-78023},null,1896,-18415.72316301836,-239.9345174189132,288.96996544547733,-25058.900785410806,null,-155327,-283877,-105647,-78023]
[1897,{"$error":"#NAME?"},{"$error":"#NAME?"},{"$error":"#NAME?"},{"$error":"#NAME?"},null,{"$f":"NR_to_Cash!C$9","v":-155327},{"$f":"NR_to_Cash!D$9","v":-283877},{"$f":"NR_to_Cash!E$9","v":-105647},{"$f":"NR_to_Cash!F$9","v":-78023},null,1897,-24495.033425511581,11215.013825574086,-10187.680265667248,-8151.2716586846873,null,-155327,-283877,-105647,-78023]
[1898,{"$error":"#NAME?"},{"$error":"#NAME?"},{"$error":"#NAME?"},{"$error":"#NAME?"},null,{"$f":"NR_to_Cash!C$9","v":-155327},{"$f":"NR_to_Cash!D$9","v":-283877},{"$f":"NR_to_Cash!E$9","v":-105647},{"$f":"NR_to_Cash!F$9","v":-78023},null,1898,-16639.63453759285,-16667.481297047139,-4104.4486515654644,-18939.991208336683,null,-155327,-283877,-105647,-78023]
[1899,{"$error":"#NAME?"},{"$error":"#NAME?"},{"$error":"#NAME?"},{"$error":"#NAME?"},null,{"$f":"NR_to_Cash!C$9","v":-155327},{"$f":"NR_to_Cash!D$9","v":-283877},{"$f":"NR_to_Cash!E$9","v":-105647},{"$f":"NR_to_Cash!F$9","v":-78023},null,1899,-10668.794750984609,-9038.0430852831087,-33841.474667393551,-9626.8168973028623,null,-155327,-283877,-105647,-78023]
[1900,{"$error":"#NAME?"},{"$error":"#NAME?"},{"$error":"#NAME?"},{"$error":"#NAME?"},null,{"$f":"NR_to_Cash!C$9","v":-155327},{"$f":"NR_to_Cash!D$9","v":-283877},{"$f":"NR_to_Cash!E$9","v":-105647},{"$f":"NR_to_Cash!F$9","v":-78023},null,1900,2766.8624266904067,-29.371804105804745,2828.6558753032468,-3648.7398549362356,null,-155327,-283877,-105647,-78023]
[1901,{"$error":"#NAME?"},{"$error":"#NAME?"},{"$error":"#NAME?"},{"$error":"#NAME?"},null,{"$f":"NR_to_Cash!C$9","v":-155327},{"$f":"NR_to_Cash!D$9","v":-283877},{"$f":"NR_to_Cash!E$9","v":-105647},{"$f":"NR_to_Cash!F$9","v":-78023},null,1901,6793.1423437409703,16372.020446495622,-7623.8341383256347,-18863.297857542038,null,-155327,-283877,-105647,-78023]
[1902,{"$error":"#NAME?"},{"$error":"#NAME?"},{"$error":"#NAME?"},{"$error":"#NAME?"},null,{"$f":"NR_to_Cash!C$9","v":-155327},{"$f":"NR_to_Cash!D$9","v":-283877},{"$f":"NR_to_Cash!E$9","v":-105647},{"$f":"NR_to_Cash!F$9","v":-78023},null,1902,-19903.442037608642,-13202.8495557735,-13123.355025953648,-24232.578981620914,null,-155327,-283877,-105647,-78023]
[1903,{"$error":"#NAME?"},{"$error":"#NAME?"},{"$error":"#NAME?"},{"$error":"#NAME?"},null,{"$f":"NR_to_Cash!C$9","v":-155327},{"$f":"NR_to_Cash!D$9","v":-283877},{"$f":"NR_to_Cash!E$9","v":-105647},{"$f":"NR_to_Cash!F$9","v":-78023},null,1903,1455.6560720100124,-22075.156061964328,-3679.8312624409791,11792.420417380417,null,-155327,-283877,-105647,-78023]
[1904,{"$error":"#NAME?"},{"$error":"#NAME?"},{"$error":"#NAME?"},{"$error":"#NAME?"},null,{"$f":"NR_to_Cash!C$9","v":-155327},{"$f":"NR_to_Cash!D$9","v":-283877},{"$f":"NR_to_Cash!E$9","v":-105647},{"$f":"NR_to_Cash!F$9","v":-78023},null,1904,-15172.108634880495,-8698.1407502770053,-12963.621576132196,3482.266172093513,null,-155327,-283877,-105647,-78023]
[1905,{"$error":"#NAME?"},{"$error":"#NAME?"},{"$error":"#NAME?"},{"$error":"#NAME?"},null,{"$f":"NR_to_Cash!C$9","v":-155327},{"$f":"NR_to_Cash!D$9","v":-283877},{"$f":"NR_to_Cash!E$9","v":-105647},{"$f":"NR_to_Cash!F$9","v":-78023},null,1905,-30097.931995004859,-13337.056608809973,-11257.158746667556,-14333.064789247539,null,-155327,-283877,-105647,-78023]
[1906,{"$error":"#NAME?"},{"$error":"#NAME?"},{"$error":"#NAME?"},{"$error":"#NAME?"},null,{"$f":"NR_to_Cash!C$9","v":-155327},{"$f":"NR_to_Cash!D$9","v":-283877},{"$f":"NR_to_Cash!E$9","v":-105647},{"$f":"NR_to_Cash!F$9","v":-78023},null,1906,-18621.600825261361,-12629.305577966905,-8165.0863464831564,-7040.485351741675,null,-155327,-283877,-105647,-78023]
[1907,{"$error":"#NAME?"},{"$error":"#NAME?"},{"$error":"#NAME?"},{"$error":"#NAME?"},null,{"$f":"NR_to_Cash!C$9","v":-155327},{"$f":"NR_to_Cash!D$9","v":-283877},{"$f":"NR_to_Cash!E$9","v":-105647},{"$f":"NR_to_Cash!F$9","v":-78023},null,1907,88.077071759116464,-15888.640054035017,-11002.704874461531,-15622.26732809145,null,-155327,-283877,-105647,-78023]
[1908,{"$error":"#NAME?"},{"$error":"#NAME?"},{"$error":"#NAME?"},{"$error":"#NAME?"},null,{"$f":"NR_to_Cash!C$9","v":-155327},{"$f":"NR_to_Cash!D$9","v":-283877},{"$f":"NR_to_Cash!E$9","v":-105647},{"$f":"NR_to_Cash!F$9","v":-78023},null,1908,-13335.703449474449,-2443.988522723495,-21649.193459132799,-6910.8587664489878,null,-155327,-283877,-105647,-78023]
[1909,{"$error":"#NAME?"},{"$error":"#NAME?"},{"$error":"#NAME?"},{"$error":"#NAME?"},null,{"$f":"NR_to_Cash!C$9","v":-155327},{"$f":"NR_to_Cash!D$9","v":-283877},{"$f":"NR_to_Cash!E$9","v":-105647},{"$f":"NR_to_Cash!F$9","v":-78023},null,1909,-23011.397422013051,-1161.0265393444965,-179.02467717022347,-15877.280363916962,null,-155327,-283877,-105647,-78023]
[1910,{"$error":"#NAME?"},{"$error":"#NAME?"},{"$error":"#NAME?"},{"$error":"#NAME?"},null,{"$f":"NR_to_Cash!C$9","v":-155327},{"$f":"NR_to_Cash!D$9","v":-283877},{"$f":"NR_to_Cash!E$9","v":-105647},{"$f":"NR_to_Cash!F$9","v":-78023},null,1910,-10351.329034649707,-49.593991877493984,-10934.871576967744,-8310.9671715799432,null,-155327,-283877,-105647,-78023]
[1911,{"$error":"#NAME?"},{"$error":"#NAME?"},{"$error":"#NAME?"},{"$error":"#NAME?"},null,{"$f":"NR_to_Cash!C$9","v":-155327},{"$f":"NR_to_Cash!D$9","v":-283877},{"$f":"NR_to_Cash!E$9","v":-105647},{"$f":"NR_to_Cash!F$9","v":-78023},null,1911,-9640.9816788156786,-14729.951486985219,12078.480305175413,-32107.195535101084,null,-155327,-283877,-105647,-78023]
[1912,{"$error":"#NAME?"},{"$error":"#NAME?"},{"$error":"#NAME?"},{"$error":"#NAME?"},null,{"$f":"NR_to_Cash!C$9","v":-155327},{"$f":"NR_to_Cash!D$9","v":-283877},{"$f":"NR_to_Cash!E$9","v":-105647},{"$f":"NR_to_Cash!F$9","v":-78023},null,1912,3082.2394159650175,-6944.7649027475563,-20209.691001565327,6635.807455827101,null,-155327,-283877,-105647,-78023]
[1913,{"$error":"#NAME?"},{"$error":"#NAME?"},{"$error":"#NAME?"},{"$error":"#NAME?"},null,{"$f":"NR_to_Cash!C$9","v":-155327},{"$f":"NR_to_Cash!D$9","v":-283877},{"$f":"NR_to_Cash!E$9","v":-105647},{"$f":"NR_to_Cash!F$9","v":-78023},null,1913,2500.8223250724113,-26278.432139192766,-41821.504567351032,4208.003577509643,null,-155327,-283877,-105647,-78023]
[1914,{"$error":"#NAME?"},{"$error":"#NAME?"},{"$error":"#NAME?"},{"$error":"#NAME?"},null,{"$f":"NR_to_Cash!C$9","v":-155327},{"$f":"NR_to_Cash!D$9","v":-283877},{"$f":"NR_to_Cash!E$9","v":-105647},{"$f":"NR_to_Cash!F$9","v":-78023},null,1914,-9088.7224472940943,-13786.827492228833,7388.3330249871797,17216.86408099137,null,-155327,-283877,-105647,-78023]
[1915,{"$error":"#NAME?"},{"$error":"#NAME?"},{"$error":"#NAME?"},{"$error":"#NAME?"},null,{"$f":"NR_to_Cash!C$9","v":-155327},{"$f":"NR_to_Cash!D$9","v":-283877},{"$f":"NR_to_Cash!E$9","v":-105647},{"$f":"NR_to_Cash!F$9","v":-78023},null,1915,-14280.661094922076,-2224.5593502566103,-2813.8462494382079,2017.7296594162244,null,-155327,-283877,-105647,-78023]
[1916,{"$error":"#NAME?"},{"$error":"#NAME?"},{"$error":"#NAME?"},{"$error":"#NAME?"},null,{"$f":"NR_to_Cash!C$9","v":-155327},{"$f":"NR_to_Cash!D$9","v":-283877},{"$f":"NR_to_Cash!E$9","v":-105647},{"$f":"NR_to_Cash!F$9","v":-78023},null,1916,-15458.716926762238,-2667.2632026722094,-56298.802468194197,7959.5990635501548,null,-155327,-283877,-105647,-78023]
[1917,{"$error":"#NAME?"},{"$error":"#NAME?"},{"$error":"#NAME?"},{"$error":"#NAME?"},null,{"$f":"NR_to_Cash!C$9","v":-155327},{"$f":"NR_to_Cash!D$9","v":-283877},{"$f":"NR_to_Cash!E$9","v":-105647},{"$f":"NR_to_Cash!F$9","v":-78023},null,1917,-3100.5872741284579,-2163.4534051060746,-8116.9932944089423,4059.4527998677886,null,-155327,-283877,-105647,-78023]
[1918,{"$error":"#NAME?"},{"$error":"#NAME?"},{"$error":"#NAME?"},{"$error":"#NAME?"},null,{"$f":"NR_to_Cash!C$9","v":-155327},{"$f":"NR_to_Cash!D$9","v":-283877},{"$f":"NR_to_Cash!E$9","v":-105647},{"$f":"NR_to_Cash!F$9","v":-78023},null,1918,-22532.790135266529,3423.2994538087046,-6855.9352911581846,863.59245534011575,null,-155327,-283877,-105647,-78023]
[1919,{"$error":"#NAME?"},{"$error":"#NAME?"},{"$error":"#NAME?"},{"$error":"#NAME?"},null,{"$f":"NR_to_Cash!C$9","v":-155327},{"$f":"NR_to_Cash!D$9","v":-283877},{"$f":"NR_to_Cash!E$9","v":-105647},{"$f":"NR_to_Cash!F$9","v":-78023},null,1919,-9376.2843341778953,-1624.6670254264222,-1876.0767081344873,-18173.559756224025,null,-155327,-283877,-105647,-78023]
[1920,{"$error":"#NAME?"},{"$error":"#NAME?"},{"$error":"#NAME?"},{"$error":"#NAME?"},null,{"$f":"NR_to_Cash!C$9","v":-155327},{"$f":"NR_to_Cash!D$9","v":-283877},{"$f":"NR_to_Cash!E$9","v":-105647},{"$f":"NR_to_Cash!F$9","v":-78023},null,1920,-1749.3596817249249,-971.66621923646619,23.761287916539914,-22989.180575396855,null,-155327,-283877,-105647,-78023]
[1921,{"$error":"#NAME?"},{"$error":"#NAME?"},{"$error":"#NAME?"},{"$error":"#NAME?"},null,{"$f":"NR_to_Cash!C$9","v":-155327},{"$f":"NR_to_Cash!D$9","v":-283877},{"$f":"NR_to_Cash!E$9","v":-105647},{"$f":"NR_to_Cash!F$9","v":-78023},null,1921,872.11918790122104,-12836.567048555224,2414.1636971451626,-201.88653316544267,null,-155327,-283877,-105647,-78023]
[1922,{"$error":"#NAME?"},{"$error":"#NAME?"},{"$error":"#NAME?"},{"$error":"#NAME?"},null,{"$f":"NR_to_Cash!C$9","v":-155327},{"$f":"NR_to_Cash!D$9","v":-283877},{"$f":"NR_to_Cash!E$9","v":-105647},{"$f":"NR_to_Cash!F$9","v":-78023},null,1922,-8487.0444085162653,-12177.46655148189,-20139.312588256689,-859.87406537287575,null,-155327,-283877,-105647,-78023]
[1923,{"$error":"#NAME?"},{"$error":"#NAME?"},{"$error":"#NAME?"},{"$error":"#NAME?"},null,{"$f":"NR_to_Cash!C$9","v":-155327},{"$f":"NR_to_Cash!D$9","v":-283877},{"$f":"NR_to_Cash!E$9","v":-105647},{"$f":"NR_to_Cash!F$9","v":-78023},null,1923,-20304.840443631219,-10579.019940583739,-10092.16553104617,-18470.017468066428,null,-155327,-283877,-105647,-78023]
[1924,{"$error":"#NAME?"},{"$error":"#NAME?"},{"$error":"#NAME?"},{"$error":"#NAME?"},null,{"$f":"NR_to_Cash!C$9","v":-155327},{"$f":"NR_to_Cash!D$9","v":-283877},{"$f":"NR_to_Cash!E$9","v":-105647},{"$f":"NR_to_Cash!F$9","v":-78023},null,1924,-7775.1404267430371,5708.1169226081156,2598.2965828623469,7038.5211983055942,null,-155327,-283877,-105647,-78023]
[1925,{"$error":"#NAME?"},{"$error":"#NAME?"},{"$error":"#NAME?"},{"$error":"#NAME?"},null,{"$f":"NR_to_Cash!C$9","v":-155327},{"$f":"NR_to_Cash!D$9","v":-283877},{"$f":"NR_to_Cash!E$9","v":-105647},{"$f":"NR_to_Cash!F$9","v":-78023},null,1925,-7093.7732993404943,-25050.647633007873,4506.8775638082225,-23573.180167115494,null,-155327,-283877,-105647,-78023]
[1926,{"$error":"#NAME?"},{"$error":"#NAME?"},{"$error":"#NAME?"},{"$error":"#NAME?"},null,{"$f":"NR_to_Cash!C$9","v":-155327},{"$f":"NR_to_Cash!D$9","v":-283877},{"$f":"NR_to_Cash!E$9","v":-105647},{"$f":"NR_to_Cash!F$9","v":-78023},null,1926,-3127.8602353385731,-16365.141859365645,-14076.608443060406,-3115.0432002688481,null,-155327,-283877,-105647,-78023]
[1927,{"$error":"#NAME?"},{"$error":"#NAME?"},{"$error":"#NAME?"},{"$error":"#NAME?"},null,{"$f":"NR_to_Cash!C$9","v":-155327},{"$f":"NR_to_Cash!D$9","v":-283877},{"$f":"NR_to_Cash!E$9","v":-105647},{"$f":"NR_to_Cash!F$9","v":-78023},null,1927,-11615.82886497479,-34294.502079619291,-7581.417067964443,-3668.5746342771563,null,-155327,-283877,-105647,-78023]
[1928,{"$error":"#NAME?"},{"$error":"#NAME?"},{"$error":"#NAME?"},{"$error":"#NAME?"},null,{"$f":"NR_to_Cash!C$9","v":-155327},{"$f":"NR_to_Cash!D$9","v":-283877},{"$f":"NR_to_Cash!E$9","v":-105647},{"$f":"NR_to_Cash!F$9","v":-78023},null,1928,-16329.28768894438,10416.115623784293,480.75357001716912,-20692.6121440846,null,-155327,-283877,-105647,-78023]
[1929,{"$error":"#NAME?"},{"$error":"#NAME?"},{"$error":"#NAME?"},{"$error":"#NAME?"},null,{"$f":"NR_to_Cash!C$9","v":-155327},{"$f":"NR_to_Cash!D$9","v":-283877},{"$f":"NR_to_Cash!E$9","v":-105647},{"$f":"NR_to_Cash!F$9","v":-78023},null,1929,-29778.978877994989,2354.3610114107787,2699.7470863492686,-14722.140779519821,null,-155327,-283877,-105647,-78023]
[1930,{"$error":"#NAME?"},{"$error":"#NAME?"},{"$error":"#NAME?"},{"$error":"#NAME?"},null,{"$f":"NR_to_Cash!C$9","v":-155327},{"$f":"NR_to_Cash!D$9","v":-283877},{"$f":"NR_to_Cash!E$9","v":-105647},{"$f":"NR_to_Cash!F$9","v":-78023},null,1930,-25416.102229986558,-4756.5680811833408,1017.2595452512112,4904.9691181196176,null,-155327,-283877,-105647,-78023]
[1931,{"$error":"#NAME?"},{"$error":"#NAME?"},{"$error":"#NAME?"},{"$error":"#NAME?"},null,{"$f":"NR_to_Cash!C$9","v":-155327},{"$f":"NR_to_Cash!D$9","v":-283877},{"$f":"NR_to_Cash!E$9","v":-105647},{"$f":"NR_to_Cash!F$9","v":-78023},null,1931,4545.7883901315854,-20517.002990555415,-307.71161319938403,6726.5526689888693,null,-155327,-283877,-105647,-78023]
[1932,{"$error":"#NAME?"},{"$error":"#NAME?"},{"$error":"#NAME?"},{"$error":"#NAME?"},null,{"$f":"NR_to_Cash!C$9","v":-155327},{"$f":"NR_to_Cash!D$9","v":-283877},{"$f":"NR_to_Cash!E$9","v":-105647},{"$f":"NR_to_Cash!F$9","v":-78023},null,1932,2103.8711570062733,-4176.6340044203989,-28147.208233775076,-50081.510696960293,null,-155327,-283877,-105647,-78023]
[1933,{"$error":"#NAME?"},{"$error":"#NAME?"},{"$error":"#NAME?"},{"$error":"#NAME?"},null,{"$f":"NR_to_Cash!C$9","v":-155327},{"$f":"NR_to_Cash!D$9","v":-283877},{"$f":"NR_to_Cash!E$9","v":-105647},{"$f":"NR_to_Cash!F$9","v":-78023},null,1933,-8118.325449356953,-10624.892412959167,-25732.141633323485,-7159.662524445248,null,-155327,-283877,-105647,-78023]
[1934,{"$error":"#NAME?"},{"$error":"#NAME?"},{"$error":"#NAME?"},{"$error":"#NAME?"},null,{"$f":"NR_to_Cash!C$9","v":-155327},{"$f":"NR_to_Cash!D$9","v":-283877},{"$f":"NR_to_Cash!E$9","v":-105647},{"$f":"NR_to_Cash!F$9","v":-78023},null,1934,-24512.68283931123,-13055.950879184436,-5478.6389911678225,-18288.579253310316,null,-155327,-283877,-105647,-78023]
[1935,{"$error":"#NAME?"},{"$error":"#NAME?"},{"$error":"#NAME?"},{"$error":"#NAME?"},null,{"$f":"NR_to_Cash!C$9","v":-155327},{"$f":"NR_to_Cash!D$9","v":-283877},{"$f":"NR_to_Cash!E$9","v":-105647},{"$f":"NR_to_Cash!F$9","v":-78023},null,1935,-4025.4255018660592,-21673.587190188529,-18945.245829448377,-12010.918961702328,null,-155327,-283877,-105647,-78023]
[1936,{"$error":"#NAME?"},{"$error":"#NAME?"},{"$error":"#NAME?"},{"$error":"#NAME?"},null,{"$f":"NR_to_Cash!C$9","v":-155327},{"$f":"NR_to_Cash!D$9","v":-283877},{"$f":"NR_to_Cash!E$9","v":-105647},{"$f":"NR_to_Cash!F$9","v":-78023},null,1936,-1811.3572564930209,-27613.340927511766,-45576.336333996347,-22302.597916828236,null,-155327,-283877,-105647,-78023]
[1937,{"$error":"#NAME?"},{"$error":"#NAME?"},{"$error":"#NAME?"},{"$error":"#NAME?"},null,{"$f":"NR_to_Cash!C$9","v":-155327},{"$f":"NR_to_Cash!D$9","v":-283877},{"$f":"NR_to_Cash!E$9","v":-105647},{"$f":"NR_to_Cash!F$9","v":-78023},null,1937,-9049.7292464467282,-5828.7265182894462,-24178.551873806169,-28054.203135942225,null,-155327,-283877,-105647,-78023]
[1938,{"$error":"#NAME?"},{"$error":"#NAME?"},{"$error":"#NAME?"},{"$error":"#NAME?"},null,{"$f":"NR_to_Cash!C$9","v":-155327},{"$f":"NR_to_Cash!D$9","v":-283877},{"$f":"NR_to_Cash!E$9","v":-105647},{"$f":"NR_to_Cash!F$9","v":-78023},null,1938,-5122.0595697083454,-23734.242361334345,-32475.43650024023,-14264.50191974715,null,-155327,-283877,-105647,-78023]
[1939,{"$error":"#NAME?"},{"$error":"#NAME?"},{"$error":"#NAME?"},{"$error":"#NAME?"},null,{"$f":"NR_to_Cash!C$9","v":-155327},{"$f":"NR_to_Cash!D$9","v":-283877},{"$f":"NR_to_Cash!E$9","v":-105647},{"$f":"NR_to_Cash!F$9","v":-78023},null,1939,-24235.272704515832,-3842.5815012363096,-12240.976237488008,2247.5733372266122,null,-155327,-283877,-105647,-78023]
[1940,{"$error":"#NAME?"},{"$error":"#NAME?"},{"$error":"#NAME?"},{"$error":"#NAME?"},null,{"$f":"NR_to_Cash!C$9","v":-155327},{"$f":"NR_to_Cash!D$9","v":-283877},{"$f":"NR_to_Cash!E$9","v":-105647},{"$f":"NR_to_Cash!F$9","v":-78023},null,1940,-29546.538380626218,-15271.783152060731,-35237.067983710738,3325.9926239974047,null,-155327,-283877,-105647,-78023]
[1941,{"$error":"#NAME?"},{"$error":"#NAME?"},{"$error":"#NAME?"},{"$error":"#NAME?"},null,{"$f":"NR_to_Cash!C$9","v":-155327},{"$f":"NR_to_Cash!D$9","v":-283877},{"$f":"NR_to_Cash!E$9","v":-105647},{"$f":"NR_to_Cash!F$9","v":-78023},null,1941,-5106.2557800011164,6834.2660495469927,-8404.2538065496828,-9275.9860537085369,null,-155327,-283877,-105647,-78023]
[1942,{"$error":"#NAME?"},{"$error":"#NAME?"},{"$error":"#NAME?"},{"$error":"#NAME?"},null,{"$f":"NR_to_Cash!C$9","v":-155327},{"$f":"NR_to_Cash!D$9","v":-283877},{"$f":"NR_to_Cash!E$9","v":-105647},{"$f":"NR_to_Cash!F$9","v":-78023},null,1942,-17918.328633339806,-10318.323195362924,1680.7822492005632,-14367.008588128285,null,-155327,-283877,-105647,-78023]
[1943,{"$error":"#NAME?"},{"$error":"#NAME?"},{"$error":"#NAME?"},{"$error":"#NAME?"},null,{"$f":"NR_to_Cash!C$9","v":-155327},{"$f":"NR_to_Cash!D$9","v":-283877},{"$f":"NR_to_Cash!E$9","v":-105647},{"$f":"NR_to_Cash!F$9","v":-78023},null,1943,-8942.7528736001659,3225.9563946539811,3329.1088937105842,11274.422107093291,null,-155327,-283877,-105647,-78023]
[1944,{"$error":"#NAME?"},{"$error":"#NAME?"},{"$error":"#NAME?"},{"$error":"#NAME?"},null,{"$f":"NR_to_Cash!C$9","v":-155327},{"$f":"NR_to_Cash!D$9","v":-283877},{"$f":"NR_to_Cash!E$9","v":-105647},{"$f":"NR_to_Cash!F$9","v":-78023},null,1944,-12962.259723145526,-14707.322604922027,-10026.582486574345,212.15918149545155,null,-155327,-283877,-105647,-78023]
[1945,{"$error":"#NAME?"},{"$error":"#NAME?"},{"$error":"#NAME?"},{"$error":"#NAME?"},null,{"$f":"NR_to_Cash!C$9","v":-155327},{"$f":"NR_to_Cash!D$9","v":-283877},{"$f":"NR_to_Cash!E$9","v":-105647},{"$f":"NR_to_Cash!F$9","v":-78023},null,1945,-25809.363113897281,2931.5372976005074,891.01119718491998,-39859.460412591732,null,-155327,-283877,-105647,-78023]
[1946,{"$error":"#NAME?"},{"$error":"#NAME?"},{"$error":"#NAME?"},{"$error":"#NAME?"},null,{"$f":"NR_to_Cash!C$9","v":-155327},{"$f":"NR_to_Cash!D$9","v":-283877},{"$f":"NR_to_Cash!E$9","v":-105647},{"$f":"NR_to_Cash!F$9","v":-78023},null,1946,-20797.625700536977,-7089.811858459153,-18858.04370118619,13307.182867258065,null,-155327,-283877,-105647,-78023]
[1947,{"$error":"#NAME?"},{"$error":"#NAME?"},{"$error":"#NAME?"},{"$error":"#NAME?"},null,{"$f":"NR_to_Cash!C$9","v":-155327},{"$f":"NR_to_Cash!D$9","v":-283877},{"$f":"NR_to_Cash!E$9","v":-105647},{"$f":"NR_to_Cash!F$9","v":-78023},null,1947,-2181.4852511569816,-14261.00660591292,8734.3427226264193,-24580.857320139927,null,-155327,-283877,-105647,-78023]
[1948,{"$error":"#NAME?"},{"$error":"#NAME?"},{"$error":"#NAME?"},{"$error":"#NAME?"},null,{"$f":"NR_to_Cash!C$9","v":-155327},{"$f":"NR_to_Cash!D$9","v":-283877},{"$f":"NR_to_Cash!E$9","v":-105647},{"$f":"NR_to_Cash!F$9","v":-78023},null,1948,-5885.3673604822598,-18894.621062449849,-8309.3592556883341,6628.9127311532475,null,-155327,-283877,-105647,-78023]
[1949,{"$error":"#NAME?"},{"$error":"#NAME?"},{"$error":"#NAME?"},{"$error":"#NAME?"},null,{"$f":"NR_to_Cash!C$9","v":-155327},{"$f":"NR_to_Cash!D$9","v":-283877},{"$f":"NR_to_Cash!E$9","v":-105647},{"$f":"NR_to_Cash!F$9","v":-78023},null,1949,-7836.3342942410118,-27429.288356886664,-15584.504950156095,-8322.2640116106031,null,-155327,-283877,-105647,-78023]
[1950,{"$error":"#NAME?"},{"$error":"#NAME?"},{"$error":"#NAME?"},{"$error":"#NAME?"},null,{"$f":"NR_to_Cash!C$9","v":-155327},{"$f":"NR_to_Cash!D$9","v":-283877},{"$f":"NR_to_Cash!E$9","v":-105647},{"$f":"NR_to_Cash!F$9","v":-78023},null,1950,-23504.679987379001,1794.2123891630263,-24717.232834099992,-22981.767198041027,null,-155327,-283877,-105647,-78023]
[1951,{"$error":"#NAME?"},{"$error":"#NAME?"},{"$error":"#NAME?"},{"$error":"#NAME?"},null,{"$f":"NR_to_Cash!C$9","v":-155327},{"$f":"NR_to_Cash!D$9","v":-283877},{"$f":"NR_to_Cash!E$9","v":-105647},{"$f":"NR_to_Cash!F$9","v":-78023},null,1951,-15742.800851996002,7526.0136687403829,-31577.46928598149,-10061.540227896261,null,-155327,-283877,-105647,-78023]
[1952,{"$error":"#NAME?"},{"$error":"#NAME?"},{"$error":"#NAME?"},{"$error":"#NAME?"},null,{"$f":"NR_to_Cash!C$9","v":-155327},{"$f":"NR_to_Cash!D$9","v":-283877},{"$f":"NR_to_Cash!E$9","v":-105647},{"$f":"NR_to_Cash!F$9","v":-78023},null,1952,-12988.923858243455,-6635.9212969494956,-21927.804912973985,-466.96069283800432,null,-155327,-283877,-105647,-78023]
[1953,{"$error":"#NAME?"},{"$error":"#NAME?"},{"$error":"#NAME?"},{"$error":"#NAME?"},null,{"$f":"NR_to_Cash!C$9","v":-155327},{"$f":"NR_to_Cash!D$9","v":-283877},{"$f":"NR_to_Cash!E$9","v":-105647},{"$f":"NR_to_Cash!F$9","v":-78023},null,1953,-7942.5678623430649,-3266.0426465758569,-24944.795846827681,-10704.151799603338,null,-155327,-283877,-105647,-78023]
[1954,{"$error":"#NAME?"},{"$error":"#NAME?"},{"$error":"#NAME?"},{"$error":"#NAME?"},null,{"$f":"NR_to_Cash!C$9","v":-155327},{"$f":"NR_to_Cash!D$9","v":-283877},{"$f":"NR_to_Cash!E$9","v":-105647},{"$f":"NR_to_Cash!F$9","v":-78023},null,1954,-20676.632289427162,-7372.4471130191559,4237.9044910555112,-15835.509270828992,null,-155327,-283877,-105647,-78023]
[1955,{"$error":"#NAME?"},{"$error":"#NAME?"},{"$error":"#NAME?"},{"$error":"#NAME?"},null,{"$f":"NR_to_Cash!C$9","v":-155327},{"$f":"NR_to_Cash!D$9","v":-283877},{"$f":"NR_to_Cash!E$9","v":-105647},{"$f":"NR_to_Cash!F$9","v":-78023},null,1955,-27109.506688774956,8984.5562255637342,-21299.758014540555,-18779.721726492258,null,-155327,-283877,-105647,-78023]
[1956,{"$error":"#NAME?"},{"$error":"#NAME?"},{"$error":"#NAME?"},{"$error":"#NAME?"},null,{"$f":"NR_to_Cash!C$9","v":-155327},{"$f":"NR_to_Cash!D$9","v":-283877},{"$f":"NR_to_Cash!E$9","v":-105647},{"$f":"NR_to_Cash!F$9","v":-78023},null,1956,-16969.445651372818,3758.4460677995435,-14808.286064611433,-9549.6495517101612,null,-155327,-283877,-105647,-78023]
[1957,{"$error":"#NAME?"},{"$error":"#NAME?"},{"$error":"#NAME?"},{"$error":"#NAME?"},null,{"$f":"NR_to_Cash!C$9","v":-155327},{"$f":"NR_to_Cash!D$9","v":-283877},{"$f":"NR_to_Cash!E$9","v":-105647},{"$f":"NR_to_Cash!F$9","v":-78023},null,1957,-16299.257875715459,-2125.5955863238155,-29913.037022716351,-18322.940590926031,null,-155327,-283877,-105647,-78023]
[1958,{"$error":"#NAME?"},{"$error":"#NAME?"},{"$error":"#NAME?"},{"$error":"#NAME?"},null,{"$f":"NR_to_Cash!C$9","v":-155327},{"$f":"NR_to_Cash!D$9","v":-283877},{"$f":"NR_to_Cash!E$9","v":-105647},{"$f":"NR_to_Cash!F$9","v":-78023},null,1958,-21874.295717908539,-15513.848429252452,-29393.40032030928,-10345.022757843992,null,-155327,-283877,-105647,-78023]
[1959,{"$error":"#NAME?"},{"$error":"#NAME?"},{"$error":"#NAME?"},{"$error":"#NAME?"},null,{"$f":"NR_to_Cash!C$9","v":-155327},{"$f":"NR_to_Cash!D$9","v":-283877},{"$f":"NR_to_Cash!E$9","v":-105647},{"$f":"NR_to_Cash!F$9","v":-78023},null,1959,-6985.3368636115647,-4505.6049984391902,-6267.6882666197207,774.71949958021094,null,-155327,-283877,-105647,-78023]
[1960,{"$error":"#NAME?"},{"$error":"#NAME?"},{"$error":"#NAME?"},{"$error":"#NAME?"},null,{"$f":"NR_to_Cash!C$9","v":-155327},{"$f":"NR_to_Cash!D$9","v":-283877},{"$f":"NR_to_Cash!E$9","v":-105647},{"$f":"NR_to_Cash!F$9","v":-78023},null,1960,-11263.992788134816,-11795.550940757328,5522.7901674614604,3764.8913432304166,null,-155327,-283877,-105647,-78023]
[1961,{"$error":"#NAME?"},{"$error":"#NAME?"},{"$error":"#NAME?"},{"$error":"#NAME?"},null,{"$f":"NR_to_Cash!C$9","v":-155327},{"$f":"NR_to_Cash!D$9","v":-283877},{"$f":"NR_to_Cash!E$9","v":-105647},{"$f":"NR_to_Cash!F$9","v":-78023},null,1961,-2673.6745216975637,6292.1148817492449,-34004.443827440824,-8825.1827347314465,null,-155327,-283877,-105647,-78023]
[1962,{"$error":"#NAME?"},{"$error":"#NAME?"},{"$error":"#NAME?"},{"$error":"#NAME?"},null,{"$f":"NR_to_Cash!C$9","v":-155327},{"$f":"NR_to_Cash!D$9","v":-283877},{"$f":"NR_to_Cash!E$9","v":-105647},{"$f":"NR_to_Cash!F$9","v":-78023},null,1962,-15834.42985158356,-9955.2348554286928,-37696.493270118386,-10549.328185670038,null,-155327,-283877,-105647,-78023]
[1963,{"$error":"#NAME?"},{"$error":"#NAME?"},{"$error":"#NAME?"},{"$error":"#NAME?"},null,{"$f":"NR_to_Cash!C$9","v":-155327},{"$f":"NR_to_Cash!D$9","v":-283877},{"$f":"NR_to_Cash!E$9","v":-105647},{"$f":"NR_to_Cash!F$9","v":-78023},null,1963,-24731.908495592197,-8521.0982367067318,-18488.743273815213,13624.084434578252,null,-155327,-283877,-105647,-78023]
[1964,{"$error":"#NAME?"},{"$error":"#NAME?"},{"$error":"#NAME?"},{"$error":"#NAME?"},null,{"$f":"NR_to_Cash!C$9","v":-155327},{"$f":"NR_to_Cash!D$9","v":-283877},{"$f":"NR_to_Cash!E$9","v":-105647},{"$f":"NR_to_Cash!F$9","v":-78023},null,1964,-5886.1045146178913,-24029.790187092367,-1325.4864223918821,-13980.467223791271,null,-155327,-283877,-105647,-78023]
[1965,{"$error":"#NAME?"},{"$error":"#NAME?"},{"$error":"#NAME?"},{"$error":"#NAME?"},null,{"$f":"NR_to_Cash!C$9","v":-155327},{"$f":"NR_to_Cash!D$9","v":-283877},{"$f":"NR_to_Cash!E$9","v":-105647},{"$f":"NR_to_Cash!F$9","v":-78023},null,1965,-29941.675881458217,-17738.026565388522,-28837.511508581574,-17325.477299559818,null,-155327,-283877,-105647,-78023]
[1966,{"$error":"#NAME?"},{"$error":"#NAME?"},{"$error":"#NAME?"},{"$error":"#NAME?"},null,{"$f":"NR_to_Cash!C$9","v":-155327},{"$f":"NR_to_Cash!D$9","v":-283877},{"$f":"NR_to_Cash!E$9","v":-105647},{"$f":"NR_to_Cash!F$9","v":-78023},null,1966,7992.0364706062028,12770.418672808168,-20816.334850175535,14201.404811242146,null,-155327,-283877,-105647,-78023]
[1967,{"$error":"#NAME?"},{"$error":"#NAME?"},{"$error":"#NAME?"},{"$error":"#NAME?"},null,{"$f":"NR_to_Cash!C$9","v":-155327},{"$f":"NR_to_Cash!D$9","v":-283877},{"$f":"NR_to_Cash!E$9","v":-105647},{"$f":"NR_to_Cash!F$9","v":-78023},null,1967,-4770.9978375338924,-9858.9180019114792,-21163.872813603917,21266.81523536452,null,-155327,-283877,-105647,-78023]
[1968,{"$error":"#NAME?"},{"$error":"#NAME?"},{"$error":"#NAME?"},{"$error":"#NAME?"},null,{"$f":"NR_to_Cash!C$9","v":-155327},{"$f":"NR_to_Cash!D$9","v":-283877},{"$f":"NR_to_Cash!E$9","v":-105647},{"$f":"NR_to_Cash!F$9","v":-78023},null,1968,-37203.900082360131,-4054.9721953553212,-16645.863294749226,-10407.856124498901,null,-155327,-283877,-105647,-78023]
[1969,{"$error":"#NAME?"},{"$error":"#NAME?"},{"$error":"#NAME?"},{"$error":"#NAME?"},null,{"$f":"NR_to_Cash!C$9","v":-155327},{"$f":"NR_to_Cash!D$9","v":-283877},{"$f":"NR_to_Cash!E$9","v":-105647},{"$f":"NR_to_Cash!F$9","v":-78023},null,1969,-10544.599746503278,-7266.2932478864686,12132.456950941296,-27507.990340660454,null,-155327,-283877,-105647,-78023]
[1970,{"$error":"#NAME?"},{"$error":"#NAME?"},{"$error":"#NAME?"},{"$error":"#NAME?"},null,{"$f":"NR_to_Cash!C$9","v":-155327},{"$f":"NR_to_Cash!D$9","v":-283877},{"$f":"NR_to_Cash!E$9","v":-105647},{"$f":"NR_to_Cash!F$9","v":-78023},null,1970,-10387.742549637884,-1098.7081342900156,7373.1282676683068,-10861.826057301294,null,-155327,-283877,-105647,-78023]
[1971,{"$error":"#NAME?"},{"$error":"#NAME?"},{"$error":"#NAME?"},{"$error":"#NAME?"},null,{"$f":"NR_to_Cash!C$9","v":-155327},{"$f":"NR_to_Cash!D$9","v":-283877},{"$f":"NR_to_Cash!E$9","v":-105647},{"$f":"NR_to_Cash!F$9","v":-78023},null,1971,-25433.779604027892,-1127.3478520815122,3133.0334905136297,-26238.508528379123,null,-155327,-283877,-105647,-78023]
[1972,{"$error":"#NAME?"},{"$error":"#NAME?"},{"$error":"#NAME?"},{"$error":"#NAME?"},null,{"$f":"NR_to_Cash!C$9","v":-155327},{"$f":"NR_to_Cash!D$9","v":-283877},{"$f":"NR_to_Cash!E$9","v":-105647},{"$f":"NR_to_Cash!F$9","v":-78023},null,1972,-28418.409613295898,-11389.874796374432,-17064.8089797352,-17958.393713642028,null,-155327,-283877,-105647,-78023]
[1973,{"$error":"#NAME?"},{"$error":"#NAME?"},{"$error":"#NAME?"},{"$error":"#NAME?"},null,{"$f":"NR_to_Cash!C$9","v":-155327},{"$f":"NR_to_Cash!D$9","v":-283877},{"$f":"NR_to_Cash!E$9","v":-105647},{"$f":"NR_to_Cash!F$9","v":-78023},null,1973,-18730.163993256981,-12694.889851088981,-4691.6396341289856,-12527.67086771679,null,-155327,-283877,-105647,-78023]
[1974,{"$error":"#NAME?"},{"$error":"#NAME?"},{"$error":"#NAME?"},{"$error":"#NAME?"},null,{"$f":"NR_to_Cash!C$9","v":-155327},{"$f":"NR_to_Cash!D$9","v":-283877},{"$f":"NR_to_Cash!E$9","v":-105647},{"$f":"NR_to_Cash!F$9","v":-78023},null,1974,-17572.290389250593,-27552.325717502899,-10679.210128358181,-23911.266971094396,null,-155327,-283877,-105647,-78023]
[1975,{"$error":"#NAME?"},{"$error":"#NAME?"},{"$error":"#NAME?"},{"$error":"#NAME?"},null,{"$f":"NR_to_Cash!C$9","v":-155327},{"$f":"NR_to_Cash!D$9","v":-283877},{"$f":"NR_to_Cash!E$9","v":-105647},{"$f":"NR_to_Cash!F$9","v":-78023},null,1975,-5514.63772917799,-3818.8454222406899,7792.2915002607951,-18451.084485489504,null,-155327,-283877,-105647,-78023]
[1976,{"$error":"#NAME?"},{"$error":"#NAME?"},{"$error":"#NAME?"},{"$error":"#NAME?"},null,{"$f":"NR_to_Cash!C$9","v":-155327},{"$f":"NR_to_Cash!D$9","v":-283877},{"$f":"NR_to_Cash!E$9","v":-105647},{"$f":"NR_to_Cash!F$9","v":-78023},null,1976,-10431.704082375923,-14904.529312727427,-30879.826531267674,-32095.938373735215,null,-155327,-283877,-105647,-78023]
[1977,{"$error":"#NAME?"},{"$error":"#NAME?"},{"$error":"#NAME?"},{"$error":"#NAME?"},null,{"$f":"NR_to_Cash!C$9","v":-155327},{"$f":"NR_to_Cash!D$9","v":-283877},{"$f":"NR_to_Cash!E$9","v":-105647},{"$f":"NR_to_Cash!F$9","v":-78023},null,1977,1273.3708684680196,-27069.45497233063,6754.7367625914949,-19186.363887391308,null,-155327,-283877,-105647,-78023]
[1978,{"$error":"#NAME?"},{"$error":"#NAME?"},{"$error":"#NAME?"},{"$error":"#NAME?"},null,{"$f":"NR_to_Cash!C$9","v":-155327},{"$f":"NR_to_Cash!D$9","v":-283877},{"$f":"NR_to_Cash!E$9","v":-105647},{"$f":"NR_to_Cash!F$9","v":-78023},null,1978,-863.94532539019804,-17054.399955241555,-2921.0146315584893,-14774.536702555406,null,-155327,-283877,-105647,-78023]
[1979,{"$error":"#NAME?"},{"$error":"#NAME?"},{"$error":"#NAME?"},{"$error":"#NAME?"},null,{"$f":"NR_to_Cash!C$9","v":-155327},{"$f":"NR_to_Cash!D$9","v":-283877},{"$f":"NR_to_Cash!E$9","v":-105647},{"$f":"NR_to_Cash!F$9","v":-78023},null,1979,-10268.702997930412,9736.2597274892414,-12583.568212615299,-11441.872060528565,null,-155327,-283877,-105647,-78023]
[1980,{"$error":"#NAME?"},{"$error":"#NAME?"},{"$error":"#NAME?"},{"$error":"#NAME?"},null,{"$f":"NR_to_Cash!C$9","v":-155327},{"$f":"NR_to_Cash!D$9","v":-283877},{"$f":"NR_to_Cash!E$9","v":-105647},{"$f":"NR_to_Cash!F$9","v":-78023},null,1980,-7186.0849862599207,-22847.51883921085,-20604.177283956178,-4758.5415798753775,null,-155327,-283877,-105647,-78023]
[1981,{"$error":"#NAME?"},{"$error":"#NAME?"},{"$error":"#NAME?"},{"$error":"#NAME?"},null,{"$f":"NR_to_Cash!C$9","v":-155327},{"$f":"NR_to_Cash!D$9","v":-283877},{"$f":"NR_to_Cash!E$9","v":-105647},{"$f":"NR_to_Cash!F$9","v":-78023},null,1981,-5951.0053837412297,867.22365551874316,-3414.4305272178658,-6966.3307689844587,null,-155327,-283877,-105647,-78023]
[1982,{"$error":"#NAME?"},{"$error":"#NAME?"},{"$error":"#NAME?"},{"$error":"#NAME?"},null,{"$f":"NR_to_Cash!C$9","v":-155327},{"$f":"NR_to_Cash!D$9","v":-283877},{"$f":"NR_to_Cash!E$9","v":-105647},{"$f":"NR_to_Cash!F$9","v":-78023},null,1982,-16503.733000662298,-25422.077942523334,-10336.806043608771,11723.940118227671,null,-155327,-283877,-105647,-78023]
[1983,{"$error":"#NAME?"},{"$error":"#NAME?"},{"$error":"#NAME?"},{"$error":"#NAME?"},null,{"$f":"NR_to_Cash!C$9","v":-155327},{"$f":"NR_to_Cash!D$9","v":-283877},{"$f":"NR_to_Cash!E$9","v":-105647},{"$f":"NR_to_Cash!F$9","v":-78023},null,1983,-777.71066688338658,1383.2429518371598,-15018.971654599374,-14014.594817587986,null,-155327,-283877,-105647,-78023]
[1984,{"$error":"#NAME?"},{"$error":"#NAME?"},{"$error":"#NAME?"},{"$error":"#NAME?"},null,{"$f":"NR_to_Cash!C$9","v":-155327},{"$f":"NR_to_Cash!D$9","v":-283877},{"$f":"NR_to_Cash!E$9","v":-105647},{"$f":"NR_to_Cash!F$9","v":-78023},null,1984,-26306.167758658547,-3032.7427910315755,22645.818329273516,-3058.4497046456022,null,-155327,-283877,-105647,-78023]
[1985,{"$error":"#NAME?"},{"$error":"#NAME?"},{"$error":"#NAME?"},{"$error":"#NAME?"},null,{"$f":"NR_to_Cash!C$9","v":-155327},{"$f":"NR_to_Cash!D$9","v":-283877},{"$f":"NR_to_Cash!E$9","v":-105647},{"$f":"NR_to_Cash!F$9","v":-78023},null,1985,-26796.24255761204,-10460.793469198647,-51062.216500579016,-23550.877051714022,null,-155327,-283877,-105647,-78023]
[1986,{"$error":"#NAME?"},{"$error":"#NAME?"},{"$error":"#NAME?"},{"$error":"#NAME?"},null,{"$f":"NR_to_Cash!C$9","v":-155327},{"$f":"NR_to_Cash!D$9","v":-283877},{"$f":"NR_to_Cash!E$9","v":-105647},{"$f":"NR_to_Cash!F$9","v":-78023},null,1986,-26225.306366716457,2552.6379387952402,-15710.836785389349,-15829.911803774894,null,-155327,-283877,-105647,-78023]
[1987,{"$error":"#NAME?"},{"$error":"#NAME?"},{"$error":"#NAME?"},{"$error":"#NAME?"},null,{"$f":"NR_to_Cash!C$9","v":-155327},{"$f":"NR_to_Cash!D$9","v":-283877},{"$f":"NR_to_Cash!E$9","v":-105647},{"$f":"NR_to_Cash!F$9","v":-78023},null,1987,3604.3491394034581,2060.1046336758827,-1904.2853765729612,-6859.4446632195786,null,-155327,-283877,-105647,-78023]
[1988,{"$error":"#NAME?"},{"$error":"#NAME?"},{"$error":"#NAME?"},{"$error":"#NAME?"},null,{"$f":"NR_to_Cash!C$9","v":-155327},{"$f":"NR_to_Cash!D$9","v":-283877},{"$f":"NR_to_Cash!E$9","v":-105647},{"$f":"NR_to_Cash!F$9","v":-78023},null,1988,-17371.236948421229,-28152.340065728196,-13224.42400041391,-5238.333925213883,null,-155327,-283877,-105647,-78023]
[1989,{"$error":"#NAME?"},{"$error":"#NAME?"},{"$error":"#NAME?"},{"$error":"#NAME?"},null,{"$f":"NR_to_Cash!C$9","v":-155327},{"$f":"NR_to_Cash!D$9","v":-283877},{"$f":"NR_to_Cash!E$9","v":-105647},{"$f":"NR_to_Cash!F$9","v":-78023},null,1989,-27796.014249512387,-12527.586901153565,-4951.558219272375,3873.3403544321354,null,-155327,-283877,-105647,-78023]
[1990,{"$error":"#NAME?"},{"$error":"#NAME?"},{"$error":"#NAME?"},{"$error":"#NAME?"},null,{"$f":"NR_to_Cash!C$9","v":-155327},{"$f":"NR_to_Cash!D$9","v":-283877},{"$f":"NR_to_Cash!E$9","v":-105647},{"$f":"NR_to_Cash!F$9","v":-78023},null,1990,-2462.3298910703143,-8336.5836791810361,-11339.208353584974,13030.891360350728,null,-155327,-283877,-105647,-78023]
[1991,{"$error":"#NAME?"},{"$error":"#NAME?"},{"$error":"#NAME?"},{"$error":"#NAME?"},null,{"$f":"NR_to_Cash!C$9","v":-155327},{"$f":"NR_to_Cash!D$9","v":-283877},{"$f":"NR_to_Cash!E$9","v":-105647},{"$f":"NR_to_Cash!F$9","v":-78023},null,1991,-1400.3433287715225,-6496.9117365448792,-6494.5661906491559,4755.7448463360679,null,-155327,-283877,-105647,-78023]
[1992,{"$error":"#NAME?"},{"$error":"#NAME?"},{"$error":"#NAME?"},{"$error":"#NAME?"},null,{"$f":"NR_to_Cash!C$9","v":-155327},{"$f":"NR_to_Cash!D$9","v":-283877},{"$f":"NR_to_Cash!E$9","v":-105647},{"$f":"NR_to_Cash!F$9","v":-78023},null,1992,-10291.899157152851,-23953.728043359857,16182.698286136321,-20188.746715507543,null,-155327,-283877,-105647,-78023]
[1993,{"$error":"#NAME?"},{"$error":"#NAME?"},{"$error":"#NAME?"},{"$error":"#NAME?"},null,{"$f":"NR_to_Cash!C$9","v":-155327},{"$f":"NR_to_Cash!D$9","v":-283877},{"$f":"NR_to_Cash!E$9","v":-105647},{"$f":"NR_to_Cash!F$9","v":-78023},null,1993,4062.2607937680086,6317.980221370276,-27634.441685682017,-12622.31438263286,null,-155327,-283877,-105647,-78023]
[1994,{"$error":"#NAME?"},{"$error":"#NAME?"},{"$error":"#NAME?"},{"$error":"#NAME?"},null,{"$f":"NR_to_Cash!C$9","v":-155327},{"$f":"NR_to_Cash!D$9","v":-283877},{"$f":"NR_to_Cash!E$9","v":-105647},{"$f":"NR_to_Cash!F$9","v":-78023},null,1994,-7235.2888322909457,2232.1337196269747,-4517.3643460920975,-25288.732123171081,null,-155327,-283877,-105647,-78023]
[1995,{"$error":"#NAME?"},{"$error":"#NAME?"},{"$error":"#NAME?"},{"$error":"#NAME?"},null,{"$f":"NR_to_Cash!C$9","v":-155327},{"$f":"NR_to_Cash!D$9","v":-283877},{"$f":"NR_to_Cash!E$9","v":-105647},{"$f":"NR_to_Cash!F$9","v":-78023},null,1995,-24868.242355791466,-7898.3239184171434,-12548.573785741712,-2547.1262030760354,null,-155327,-283877,-105647,-78023]
[1996,{"$error":"#NAME?"},{"$error":"#NAME?"},{"$error":"#NAME?"},{"$error":"#NAME?"},null,{"$f":"NR_to_Cash!C$9","v":-155327},{"$f":"NR_to_Cash!D$9","v":-283877},{"$f":"NR_to_Cash!E$9","v":-105647},{"$f":"NR_to_Cash!F$9","v":-78023},null,1996,-19255.036180902702,-3468.1942322835926,4138.4264746927647,3743.3964077642822,null,-155327,-283877,-105647,-78023]
[1997,{"$error":"#NAME?"},{"$error":"#NAME?"},{"$error":"#NAME?"},{"$error":"#NAME?"},null,{"$f":"NR_to_Cash!C$9","v":-155327},{"$f":"NR_to_Cash!D$9","v":-283877},{"$f":"NR_to_Cash!E$9","v":-105647},{"$f":"NR_to_Cash!F$9","v":-78023},null,1997,-8468.9433348934435,-12499.183961030587,-13206.393753547871,-20152.509339194232,null,-155327,-283877,-105647,-78023]
[1998,{"$error":"#NAME?"},{"$error":"#NAME?"},{"$error":"#NAME?"},{"$error":"#NAME?"},null,{"$f":"NR_to_Cash!C$9","v":-155327},{"$f":"NR_to_Cash!D$9","v":-283877},{"$f":"NR_to_Cash!E$9","v":-105647},{"$f":"NR_to_Cash!F$9","v":-78023},null,1998,-17813.997009345556,-12508.340033763508,-6999.8069902126917,7519.8188708092712,null,-155327,-283877,-105647,-78023]
[1999,{"$error":"#NAME?"},{"$error":"#NAME?"},{"$error":"#NAME?"},{"$error":"#NAME?"},null,{"$f":"NR_to_Cash!C$9","v":-155327},{"$f":"NR_to_Cash!D$9","v":-283877},{"$f":"NR_to_Cash!E$9","v":-105647},{"$f":"NR_to_Cash!F$9","v":-78023},null,1999,-23771.931928048103,3489.7704051688174,4085.3068538309544,-21304.568624101692,null,-155327,-283877,-105647,-78023]
[2000,{"$error":"#NAME?"},{"$error":"#NAME?"},{"$error":"#NAME?"},{"$error":"#NAME?"},null,{"$f":"NR_to_Cash!C$9","v":-155327},{"$f":"NR_to_Cash!D$9","v":-283877},{"$f":"NR_to_Cash!E$9","v":-105647},{"$f":"NR_to_Cash!F$9","v":-78023},null,2000,-27397.615541972056,2995.7737097086151,17243.781332332466,17294.295272178933,null,-155327,-283877,-105647,-78023]
[2001,{"$error":"#NAME?"},{"$error":"#NAME?"},{"$error":"#NAME?"},{"$error":"#NAME?"},null,{"$f":"NR_to_Cash!C$9","v":-155327},{"$f":"NR_to_Cash!D$9","v":-283877},{"$f":"NR_to_Cash!E$9","v":-105647},{"$f":"NR_to_Cash!F$9","v":-78023},null,2001,-26566.663875623013,-14864.595441214791,-8345.3397985243537,4343.0420707652474,null,-155327,-283877,-105647,-78023]
[2002,{"$error":"#NAME?"},{"$error":"#NAME?"},{"$error":"#NAME?"},{"$error":"#NAME?"},null,{"$f":"NR_to_Cash!C$9","v":-155327},{"$f":"NR_to_Cash!D$9","v":-283877},{"$f":"NR_to_Cash!E$9","v":-105647},{"$f":"NR_to_Cash!F$9","v":-78023},null,2002,-6556.3808896662867,-6440.0961515756317,-36563.728711367869,12367.899108382784,null,-155327,-283877,-105647,-78023]
[2003,{"$error":"#NAME?"},{"$error":"#NAME?"},{"$error":"#NAME?"},{"$error":"#NAME?"},null,{"$f":"NR_to_Cash!C$9","v":-155327},{"$f":"NR_to_Cash!D$9","v":-283877},{"$f":"NR_to_Cash!E$9","v":-105647},{"$f":"NR_to_Cash!F$9","v":-78023},null,2003,-8476.9880542354076,-22478.406676389419,9688.362538703348,-19094.523701364935,null,-155327,-283877,-105647,-78023]
[2004,{"$error":"#NAME?"},{"$error":"#NAME?"},{"$error":"#NAME?"},{"$error":"#NAME?"},null,{"$f":"NR_to_Cash!C$9","v":-155327},{"$f":"NR_to_Cash!D$9","v":-283877},{"$f":"NR_to_Cash!E$9","v":-105647},{"$f":"NR_to_Cash!F$9","v":-78023},null,2004,-30378.580653241217,-10676.792539704589,6438.4612852741939,-17664.690609377594,null,-155327,-283877,-105647,-78023]
[2005,{"$error":"#NAME?"},{"$error":"#NAME?"},{"$error":"#NAME?"},{"$error":"#NAME?"},null,{"$f":"NR_to_Cash!C$9","v":-155327},{"$f":"NR_to_Cash!D$9","v":-283877},{"$f":"NR_to_Cash!E$9","v":-105647},{"$f":"NR_to_Cash!F$9","v":-78023},null,2005,-16775.784489892118,-15405.751196658133,1517.0118021718076,-13938.83457041472,null,-155327,-283877,-105647,-78023]
[2006,{"$error":"#NAME?"},{"$error":"#NAME?"},{"$error":"#NAME?"},{"$error":"#NAME?"},null,{"$f":"NR_to_Cash!C$9","v":-155327},{"$f":"NR_to_Cash!D$9","v":-283877},{"$f":"NR_to_Cash!E$9","v":-105647},{"$f":"NR_to_Cash!F$9","v":-78023},null,2006,-19083.173704183122,-24294.504390215101,-14039.640689949209,-851.12893830872326,null,-155327,-283877,-105647,-78023]
[2007,{"$error":"#NAME?"},{"$error":"#NAME?"},{"$error":"#NAME?"},{"$error":"#NAME?"},null,{"$f":"NR_to_Cash!C$9","v":-155327},{"$f":"NR_to_Cash!D$9","v":-283877},{"$f":"NR_to_Cash!E$9","v":-105647},{"$f":"NR_to_Cash!F$9","v":-78023},null,2007,-12297.38553551973,-29027.080659038853,-7332.6482208587022,-23767.393176149133,null,-155327,-283877,-105647,-78023]
[2008,{"$error":"#NAME?"},{"$error":"#NAME?"},{"$error":"#NAME?"},{"$error":"#NAME?"},null,{"$f":"NR_to_Cash!C$9","v":-155327},{"$f":"NR_to_Cash!D$9","v":-283877},{"$f":"NR_to_Cash!E$9","v":-105647},{"$f":"NR_to_Cash!F$9","v":-78023},null,2008,-1837.6741628656214,3139.4603621835154,-23735.406323370553,-2482.9495913668006,null,-155327,-283877,-105647,-78023]
[2009,{"$error":"#NAME?"},{"$error":"#NAME?"},{"$error":"#NAME?"},{"$error":"#NAME?"},null,{"$f":"NR_to_Cash!C$9","v":-155327},{"$f":"NR_to_Cash!D$9","v":-283877},{"$f":"NR_to_Cash!E$9","v":-105647},{"$f":"NR_to_Cash!F$9","v":-78023},null,2009,-19116.194365800853,-15905.487466248722,-27200.807381556879,-11013.199451490675,null,-155327,-283877,-105647,-78023]
[2010,{"$error":"#NAME?"},{"$error":"#NAME?"},{"$error":"#NAME?"},{"$error":"#NAME?"},null,{"$f":"NR_to_Cash!C$9","v":-155327},{"$f":"NR_to_Cash!D$9","v":-283877},{"$f":"NR_to_Cash!E$9","v":-105647},{"$f":"NR_to_Cash!F$9","v":-78023},null,2010,-21900.637744688276,-15226.274137067561,-24073.833732526378,-30170.942531921366,null,-155327,-283877,-105647,-78023]
[2011,{"$error":"#NAME?"},{"$error":"#NAME?"},{"$error":"#NAME?"},{"$error":"#NAME?"},null,{"$f":"NR_to_Cash!C$9","v":-155327},{"$f":"NR_to_Cash!D$9","v":-283877},{"$f":"NR_to_Cash!E$9","v":-105647},{"$f":"NR_to_Cash!F$9","v":-78023},null,2011,-955.55705386238174,-18825.267403519232,-6588.4003005004834,-25903.76625966969,null,-155327,-283877,-105647,-78023]
[2012,{"$error":"#NAME?"},{"$error":"#NAME?"},{"$error":"#NAME?"},{"$error":"#NAME?"},null,{"$f":"NR_to_Cash!C$9","v":-155327},{"$f":"NR_to_Cash!D$9","v":-283877},{"$f":"NR_to_Cash!E$9","v":-105647},{"$f":"NR_to_Cash!F$9","v":-78023},null,2012,-36191.32031587774,-32101.588396712068,-26130.392275245627,-6242.963996723799,null,-155327,-283877,-105647,-78023]
[2013,{"$error":"#NAME?"},{"$error":"#NAME?"},{"$error":"#NAME?"},{"$error":"#NAME?"},null,{"$f":"NR_to_Cash!C$9","v":-155327},{"$f":"NR_to_Cash!D$9","v":-283877},{"$f":"NR_to_Cash!E$9","v":-105647},{"$f":"NR_to_Cash!F$9","v":-78023},null,2013,-6066.9826544632087,5741.2753650171535,-21211.254708131914,-15441.927208986564,null,-155327,-283877,-105647,-78023]
[2014,{"$error":"#NAME?"},{"$error":"#NAME?"},{"$error":"#NAME?"},{"$error":"#NAME?"},null,{"$f":"NR_to_Cash!C$9","v":-155327},{"$f":"NR_to_Cash!D$9","v":-283877},{"$f":"NR_to_Cash!E$9","v":-105647},{"$f":"NR_to_Cash!F$9","v":-78023},null,2014,-19604.591226478806,-16593.791112436062,-33907.097114723976,4372.091905729656,null,-155327,-283877,-105647,-78023]
[2015,{"$error":"#NAME?"},{"$error":"#NAME?"},{"$error":"#NAME?"},{"$error":"#NAME?"},null,{"$f":"NR_to_Cash!C$9","v":-155327},{"$f":"NR_to_Cash!D$9","v":-283877},{"$f":"NR_to_Cash!E$9","v":-105647},{"$f":"NR_to_Cash!F$9","v":-78023},null,2015,-19939.671198659264,13887.604338415169,-36507.370246243285,-5215.8925668455422,null,-155327,-283877,-105647,-78023]
[2016,{"$error":"#NAME?"},{"$error":"#NAME?"},{"$error":"#NAME?"},{"$error":"#NAME?"},null,{"$f":"NR_to_Cash!C$9","v":-155327},{"$f":"NR_to_Cash!D$9","v":-283877},{"$f":"NR_to_Cash!E$9","v":-105647},{"$f":"NR_to_Cash!F$9","v":-78023},null,2016,506.43350443506915,-20020.300926876433,4014.1025551267512,-14238.893401780126,null,-155327,-283877,-105647,-78023]
[2017,{"$error":"#NAME?"},{"$error":"#NAME?"},{"$error":"#NAME?"},{"$error":"#NAME?"},null,{"$f":"NR_to_Cash!C$9","v":-155327},{"$f":"NR_to_Cash!D$9","v":-283877},{"$f":"NR_to_Cash!E$9","v":-105647},{"$f":"NR_to_Cash!F$9","v":-78023},null,2017,-2562.1909284135254,-27073.144224022468,-2877.0523224518092,-9080.4504150992998,null,-155327,-283877,-105647,-78023]
[2018,{"$error":"#NAME?"},{"$error":"#NAME?"},{"$error":"#NAME?"},{"$error":"#NAME?"},null,{"$f":"NR_to_Cash!C$9","v":-155327},{"$f":"NR_to_Cash!D$9","v":-283877},{"$f":"NR_to_Cash!E$9","v":-105647},{"$f":"NR_to_Cash!F$9","v":-78023},null,2018,-13724.257779408616,-2902.9287238558295,4047.2211250799578,-30523.420415890505,null,-155327,-283877,-105647,-78023]
[2019,{"$error":"#NAME?"},{"$error":"#NAME?"},{"$error":"#NAME?"},{"$error":"#NAME?"},null,{"$f":"NR_to_Cash!C$9","v":-155327},{"$f":"NR_to_Cash!D$9","v":-283877},{"$f":"NR_to_Cash!E$9","v":-105647},{"$f":"NR_to_Cash!F$9","v":-78023},null,2019,-10514.669503151617,-32173.395886899449,-41990.648974512442,-4330.96952922116,null,-155327,-283877,-105647,-78023]
[2020,{"$error":"#NAME?"},{"$error":"#NAME?"},{"$error":"#NAME?"},{"$error":"#NAME?"},null,{"$f":"NR_to_Cash!C$9","v":-155327},{"$f":"NR_to_Cash!D$9","v":-283877},{"$f":"NR_to_Cash!E$9","v":-105647},{"$f":"NR_to_Cash!F$9","v":-78023},null,2020,-21157.1849241036,-13987.587602093932,13626.546900870733,-12369.022767928096,null,-155327,-283877,-105647,-78023]
[2021,{"$error":"#NAME?"},{"$error":"#NAME?"},{"$error":"#NAME?"},{"$error":"#NAME?"},null,{"$f":"NR_to_Cash!C$9","v":-155327},{"$f":"NR_to_Cash!D$9","v":-283877},{"$f":"NR_to_Cash!E$9","v":-105647},{"$f":"NR_to_Cash!F$9","v":-78023},null,2021,-5246.5545538767565,-6282.6826854363044,-2364.5516182330457,-1834.4526130010884,null,-155327,-283877,-105647,-78023]
[2022,{"$error":"#NAME?"},{"$error":"#NAME?"},{"$error":"#NAME?"},{"$error":"#NAME?"},null,{"$f":"NR_to_Cash!C$9","v":-155327},{"$f":"NR_to_Cash!D$9","v":-283877},{"$f":"NR_to_Cash!E$9","v":-105647},{"$f":"NR_to_Cash!F$9","v":-78023},null,2022,-11392.292171539199,13411.213292742756,-6478.0364177292849,-2407.4719053433569,null,-155327,-283877,-105647,-78023]
[2023,{"$error":"#NAME?"},{"$error":"#NAME?"},{"$error":"#NAME?"},{"$error":"#NAME?"},null,{"$f":"NR_to_Cash!C$9","v":-155327},{"$f":"NR_to_Cash!D$9","v":-283877},{"$f":"NR_to_Cash!E$9","v":-105647},{"$f":"NR_to_Cash!F$9","v":-78023},null,2023,3416.1606579732997,-9620.0803528363977,-10313.107990206958,2073.6794080715053,null,-155327,-283877,-105647,-78023]
[2024,{"$error":"#NAME?"},{"$error":"#NAME?"},{"$error":"#NAME?"},{"$error":"#NAME?"},null,{"$f":"NR_to_Cash!C$9","v":-155327},{"$f":"NR_to_Cash!D$9","v":-283877},{"$f":"NR_to_Cash!E$9","v":-105647},{"$f":"NR_to_Cash!F$9","v":-78023},null,2024,-1273.4317885610569,-29777.068147793627,-9988.3006508114522,1451.0885950233398,null,-155327,-283877,-105647,-78023]
[2025,{"$error":"#NAME?"},{"$error":"#NAME?"},{"$error":"#NAME?"},{"$error":"#NAME?"},null,{"$f":"NR_to_Cash!C$9","v":-155327},{"$f":"NR_to_Cash!D$9","v":-283877},{"$f":"NR_to_Cash!E$9","v":-105647},{"$f":"NR_to_Cash!F$9","v":-78023},null,2025,-17453.989880497411,5137.8319254375128,-110.61469065772394,5873.7485800976419,null,-155327,-283877,-105647,-78023]
[2026,{"$error":"#NAME?"},{"$error":"#NAME?"},{"$error":"#NAME?"},{"$error":"#NAME?"},null,{"$f":"NR_to_Cash!C$9","v":-155327},{"$f":"NR_to_Cash!D$9","v":-283877},{"$f":"NR_to_Cash!E$9","v":-105647},{"$f":"NR_to_Cash!F$9","v":-78023},null,2026,7800.7797578213494,-12513.207794489499,-9458.1251601539243,12448.534145499812,null,-155327,-283877,-105647,-78023]
[2027,{"$error":"#NAME?"},{"$error":"#NAME?"},{"$error":"#NAME?"},{"$error":"#NAME?"},null,{"$f":"NR_to_Cash!C$9","v":-155327},{"$f":"NR_to_Cash!D$9","v":-283877},{"$f":"NR_to_Cash!E$9","v":-105647},{"$f":"NR_to_Cash!F$9","v":-78023},null,2027,-5714.8339979030807,-25613.589710599208,6805.5416005189254,-29309.868027334574,null,-155327,-283877,-105647,-78023]
[2028,{"$error":"#NAME?"},{"$error":"#NAME?"},{"$error":"#NAME?"},{"$error":"#NAME?"},null,{"$f":"NR_to_Cash!C$9","v":-155327},{"$f":"NR_to_Cash!D$9","v":-283877},{"$f":"NR_to_Cash!E$9","v":-105647},{"$f":"NR_to_Cash!F$9","v":-78023},null,2028,-2222.7362724853515,-21345.08147921252,-21476.536602188313,-11195.590394114433,null,-155327,-283877,-105647,-78023]
[2029,{"$error":"#NAME?"},{"$error":"#NAME?"},{"$error":"#NAME?"},{"$error":"#NAME?"},null,{"$f":"NR_to_Cash!C$9","v":-155327},{"$f":"NR_to_Cash!D$9","v":-283877},{"$f":"NR_to_Cash!E$9","v":-105647},{"$f":"NR_to_Cash!F$9","v":-78023},null,2029,-1517.2368026740819,2742.8357966955382,-11357.833678302017,-23683.326357028411,null,-155327,-283877,-105647,-78023]
[2030,{"$error":"#NAME?"},{"$error":"#NAME?"},{"$error":"#NAME?"},{"$error":"#NAME?"},null,{"$f":"NR_to_Cash!C$9","v":-155327},{"$f":"NR_to_Cash!D$9","v":-283877},{"$f":"NR_to_Cash!E$9","v":-105647},{"$f":"NR_to_Cash!F$9","v":-78023},null,2030,-27919.615496306884,7473.8991634390641,-15503.190832769336,-27832.756692503299,null,-155327,-283877,-105647,-78023]
[2031,{"$error":"#NAME?"},{"$error":"#NAME?"},{"$error":"#NAME?"},{"$error":"#NAME?"},null,{"$f":"NR_to_Cash!C$9","v":-155327},{"$f":"NR_to_Cash!D$9","v":-283877},{"$f":"NR_to_Cash!E$9","v":-105647},{"$f":"NR_to_Cash!F$9","v":-78023},null,2031,-23722.3257931357,-27978.586954437375,-35466.781490496644,-17065.618570865543,null,-155327,-283877,-105647,-78023]
[2032,{"$error":"#NAME?"},{"$error":"#NAME?"},{"$error":"#NAME?"},{"$error":"#NAME?"},null,{"$f":"NR_to_Cash!C$9","v":-155327},{"$f":"NR_to_Cash!D$9","v":-283877},{"$f":"NR_to_Cash!E$9","v":-105647},{"$f":"NR_to_Cash!F$9","v":-78023},null,2032,-16725.454132960123,-5080.2743684688721,8651.8951390213915,4131.4958489637456,null,-155327,-283877,-105647,-78023]
[2033,{"$error":"#NAME?"},{"$error":"#NAME?"},{"$error":"#NAME?"},{"$error":"#NAME?"},null,{"$f":"NR_to_Cash!C$9","v":-155327},{"$f":"NR_to_Cash!D$9","v":-283877},{"$f":"NR_to_Cash!E$9","v":-105647},{"$f":"NR_to_Cash!F$9","v":-78023},null,2033,-20372.661361215491,-22358.628252470931,8997.4151391541418,1162.6929919843774,null,-155327,-283877,-105647,-78023]
[2034,{"$error":"#NAME?"},{"$error":"#NAME?"},{"$error":"#NAME?"},{"$error":"#NAME?"},null,{"$f":"NR_to_Cash!C$9","v":-155327},{"$f":"NR_to_Cash!D$9","v":-283877},{"$f":"NR_to_Cash!E$9","v":-105647},{"$f":"NR_to_Cash!F$9","v":-78023},null,2034,-8366.0183314987316,740.36871315122551,2955.0175901086041,-32468.076502873097,null,-155327,-283877,-105647,-78023]
[2035,{"$error":"#NAME?"},{"$error":"#NAME?"},{"$error":"#NAME?"},{"$error":"#NAME?"},null,{"$f":"NR_to_Cash!C$9","v":-155327},{"$f":"NR_to_Cash!D$9","v":-283877},{"$f":"NR_to_Cash!E$9","v":-105647},{"$f":"NR_to_Cash!F$9","v":-78023},null,2035,-14684.669569418766,-17665.317077425727,24153.935425801261,-10257.042698152598,null,-155327,-283877,-105647,-78023]
[2036,{"$error":"#NAME?"},{"$error":"#NAME?"},{"$error":"#NAME?"},{"$error":"#NAME?"},null,{"$f":"NR_to_Cash!C$9","v":-155327},{"$f":"NR_to_Cash!D$9","v":-283877},{"$f":"NR_to_Cash!E$9","v":-105647},{"$f":"NR_to_Cash!F$9","v":-78023},null,2036,2544.1157060022761,-21448.33862610822,-12794.13819106803,-41847.924655097115,null,-155327,-283877,-105647,-78023]
[2037,{"$error":"#NAME?"},{"$error":"#NAME?"},{"$error":"#NAME?"},{"$error":"#NAME?"},null,{"$f":"NR_to_Cash!C$9","v":-155327},{"$f":"NR_to_Cash!D$9","v":-283877},{"$f":"NR_to_Cash!E$9","v":-105647},{"$f":"NR_to_Cash!F$9","v":-78023},null,2037,-23126.86871770343,15478.384824272327,-10086.801388952554,-561.36789780289018,null,-155327,-283877,-105647,-78023]
[2038,{"$error":"#NAME?"},{"$error":"#NAME?"},{"$error":"#NAME?"},{"$error":"#NAME?"},null,{"$f":"NR_to_Cash!C$9","v":-155327},{"$f":"NR_to_Cash!D$9","v":-283877},{"$f":"NR_to_Cash!E$9","v":-105647},{"$f":"NR_to_Cash!F$9","v":-78023},null,2038,-1717.3338516377701,-1698.5198116455465,-16856.479391503915,2108.4774796799193,null,-155327,-283877,-105647,-78023]
[2039,{"$error":"#NAME?"},{"$error":"#NAME?"},{"$error":"#NAME?"},{"$error":"#NAME?"},null,{"$f":"NR_to_Cash!C$9","v":-155327},{"$f":"NR_to_Cash!D$9","v":-283877},{"$f":"NR_to_Cash!E$9","v":-105647},{"$f":"NR_to_Cash!F$9","v":-78023},null,2039,-28818.59732331783,-8964.2540268418143,-3343.2947833480985,-30084.936624467664,null,-155327,-283877,-105647,-78023]
[2040,{"$error":"#NAME?"},{"$error":"#NAME?"},{"$error":"#NAME?"},{"$error":"#NAME?"},null,{"$f":"NR_to_Cash!C$9","v":-155327},{"$f":"NR_to_Cash!D$9","v":-283877},{"$f":"NR_to_Cash!E$9","v":-105647},{"$f":"NR_to_Cash!F$9","v":-78023},null,2040,-10190.142707713276,7234.2025976618906,-29091.078353108525,1652.2813192812282,null,-155327,-283877,-105647,-78023]
[2041,{"$error":"#NAME?"},{"$error":"#NAME?"},{"$error":"#NAME?"},{"$error":"#NAME?"},null,{"$f":"NR_to_Cash!C$9","v":-155327},{"$f":"NR_to_Cash!D$9","v":-283877},{"$f":"NR_to_Cash!E$9","v":-105647},{"$f":"NR_to_Cash!F$9","v":-78023},null,2041,-34279.934936249803,-21358.640229786328,-25750.534841107074,2939.7462299338026,null,-155327,-283877,-105647,-78023]
[2042,{"$error":"#NAME?"},{"$error":"#NAME?"},{"$error":"#NAME?"},{"$error":"#NAME?"},null,{"$f":"NR_to_Cash!C$9","v":-155327},{"$f":"NR_to_Cash!D$9","v":-283877},{"$f":"NR_to_Cash!E$9","v":-105647},{"$f":"NR_to_Cash!F$9","v":-78023},null,2042,-30937.180616366109,-7217.6843981651637,-4022.7471749108108,-31959.868416464742,null,-155327,-283877,-105647,-78023]
[2043,{"$error":"#NAME?"},{"$error":"#NAME?"},{"$error":"#NAME?"},{"$error":"#NAME?"},null,{"$f":"NR_to_Cash!C$9","v":-155327},{"$f":"NR_to_Cash!D$9","v":-283877},{"$f":"NR_to_Cash!E$9","v":-105647},{"$f":"NR_to_Cash!F$9","v":-78023},null,2043,-20635.332504156519,14768.34879862585,6078.426756672513,-26613.954876477437,null,-155327,-283877,-105647,-78023]
[2044,{"$error":"#NAME?"},{"$error":"#NAME?"},{"$error":"#NAME?"},{"$error":"#NAME?"},null,{"$f":"NR_to_Cash!C$9","v":-155327},{"$f":"NR_to_Cash!D$9","v":-283877},{"$f":"NR_to_Cash!E$9","v":-105647},{"$f":"NR_to_Cash!F$9","v":-78023},null,2044,-3324.5558222948475,-23357.359174963294,-19690.057894914316,-23288.966685454372,null,-155327,-283877,-105647,-78023]
[2045,{"$error":"#NAME?"},{"$error":"#NAME?"},{"$error":"#NAME?"},{"$error":"#NAME?"},null,{"$f":"NR_to_Cash!C$9","v":-155327},{"$f":"NR_to_Cash!D$9","v":-283877},{"$f":"NR_to_Cash!E$9","v":-105647},{"$f":"NR_to_Cash!F$9","v":-78023},null,2045,-3484.8796858541436,-24192.938558095626,-14074.894154476713,-27514.716373459727,null,-155327,-283877,-105647,-78023]
[2046,{"$error":"#NAME?"},{"$error":"#NAME?"},{"$error":"#NAME?"},{"$error":"#NAME?"},null,{"$f":"NR_to_Cash!C$9","v":-155327},{"$f":"NR_to_Cash!D$9","v":-283877},{"$f":"NR_to_Cash!E$9","v":-105647},{"$f":"NR_to_Cash!F$9","v":-78023},null,2046,-17495.840490266397,10490.119714824225,-223.58821326618971,5329.0060698841717,null,-155327,-283877,-105647,-78023]
[2047,{"$error":"#NAME?"},{"$error":"#NAME?"},{"$error":"#NAME?"},{"$error":"#NAME?"},null,{"$f":"NR_to_Cash!C$9","v":-155327},{"$f":"NR_to_Cash!D$9","v":-283877},{"$f":"NR_to_Cash!E$9","v":-105647},{"$f":"NR_to_Cash!F$9","v":-78023},null,2047,-15856.595584370321,-16448.28863503856,1343.7722008374753,-15961.630122583023,null,-155327,-283877,-105647,-78023]
[2048,{"$error":"#NAME?"},{"$error":"#NAME?"},{"$error":"#NAME?"},{"$error":"#NAME?"},null,{"$f":"NR_to_Cash!C$9","v":-155327},{"$f":"NR_to_Cash!D$9","v":-283877},{"$f":"NR_to_Cash!E$9","v":-105647},{"$f":"NR_to_Cash!F$9","v":-78023},null,2048,-6616.0116248059994,-15923.271269272502,-7473.4405788383901,-13771.423945112792,null,-155327,-283877,-105647,-78023]
[2049,{"$error":"#NAME?"},{"$error":"#NAME?"},{"$error":"#NAME?"},{"$error":"#NAME?"},null,{"$f":"NR_to_Cash!C$9","v":-155327},{"$f":"NR_to_Cash!D$9","v":-283877},{"$f":"NR_to_Cash!E$9","v":-105647},{"$f":"NR_to_Cash!F$9","v":-78023},null,2049,-8302.8060939512834,4222.3977107622813,-14149.789317872455,-22671.636405722238,null,-155327,-283877,-105647,-78023]
[2050,{"$error":"#NAME?"},{"$error":"#NAME?"},{"$error":"#NAME?"},{"$error":"#NAME?"},null,{"$f":"NR_to_Cash!C$9","v":-155327},{"$f":"NR_to_Cash!D$9","v":-283877},{"$f":"NR_to_Cash!E$9","v":-105647},{"$f":"NR_to_Cash!F$9","v":-78023},null,2050,6578.960810269411,-1279.6692360300165,-5478.2463943547937,-3126.2065644030522,null,-155327,-283877,-105647,-78023]
[2051,{"$error":"#NAME?"},{"$error":"#NAME?"},{"$error":"#NAME?"},{"$error":"#NAME?"},null,{"$f":"NR_to_Cash!C$9","v":-155327},{"$f":"NR_to_Cash!D$9","v":-283877},{"$f":"NR_to_Cash!E$9","v":-105647},{"$f":"NR_to_Cash!F$9","v":-78023},null,2051,-1525.4219057146529,-28652.143264204882,-10561.346787896622,-15981.718500055362,null,-155327,-283877,-105647,-78023]
[2052,{"$error":"#NAME?"},{"$error":"#NAME?"},{"$error":"#NAME?"},{"$error":"#NAME?"},null,{"$f":"NR_to_Cash!C$9","v":-155327},{"$f":"NR_to_Cash!D$9","v":-283877},{"$f":"NR_to_Cash!E$9","v":-105647},{"$f":"NR_to_Cash!F$9","v":-78023},null,2052,-24969.821235201842,-16490.074806380395,-19851.385284326469,-40982.777364398622,null,-155327,-283877,-105647,-78023]
[2053,{"$error":"#NAME?"},{"$error":"#NAME?"},{"$error":"#NAME?"},{"$error":"#NAME?"},null,{"$f":"NR_to_Cash!C$9","v":-155327},{"$f":"NR_to_Cash!D$9","v":-283877},{"$f":"NR_to_Cash!E$9","v":-105647},{"$f":"NR_to_Cash!F$9","v":-78023},null,2053,-13310.235848640037,-33580.574195046967,1583.0251249067164,4678.8097412463612,null,-155327,-283877,-105647,-78023]
[2054,{"$error":"#NAME?"},{"$error":"#NAME?"},{"$error":"#NAME?"},{"$error":"#NAME?"},null,{"$f":"NR_to_Cash!C$9","v":-155327},{"$f":"NR_to_Cash!D$9","v":-283877},{"$f":"NR_to_Cash!E$9","v":-105647},{"$f":"NR_to_Cash!F$9","v":-78023},null,2054,-8008.6052205078395,-10530.048142021356,-30293.81781408182,501.09809685112219,null,-155327,-283877,-105647,-78023]
[2055,{"$error":"#NAME?"},{"$error":"#NAME?"},{"$error":"#NAME?"},{"$error":"#NAME?"},null,{"$f":"NR_to_Cash!C$9","v":-155327},{"$f":"NR_to_Cash!D$9","v":-283877},{"$f":"NR_to_Cash!E$9","v":-105647},{"$f":"NR_to_Cash!F$9","v":-78023},null,2055,-9869.3650119792546,3395.1419914426524,2644.6590920809103,14927.707987680031,null,-155327,-283877,-105647,-78023]
[2056,{"$error":"#NAME?"},{"$error":"#NAME?"},{"$error":"#NAME?"},{"$error":"#NAME?"},null,{"$f":"NR_to_Cash!C$9","v":-155327},{"$f":"NR_to_Cash!D$9","v":-283877},{"$f":"NR_to_Cash!E$9","v":-105647},{"$f":"NR_to_Cash!F$9","v":-78023},null,2056,-25284.525130476934,-32404.694869626997,-7298.1092434028524,18131.218126756117,null,-155327,-283877,-105647,-78023]
[2057,{"$error":"#NAME?"},{"$error":"#NAME?"},{"$error":"#NAME?"},{"$error":"#NAME?"},null,{"$f":"NR_to_Cash!C$9","v":-155327},{"$f":"NR_to_Cash!D$9","v":-283877},{"$f":"NR_to_Cash!E$9","v":-105647},{"$f":"NR_to_Cash!F$9","v":-78023},null,2057,9368.0771188915587,18529.385931799588,-28457.926391344379,-8201.0635961320113,null,-155327,-283877,-105647,-78023]
[2058,{"$error":"#NAME?"},{"$error":"#NAME?"},{"$error":"#NAME?"},{"$error":"#NAME?"},null,{"$f":"NR_to_Cash!C$9","v":-155327},{"$f":"NR_to_Cash!D$9","v":-283877},{"$f":"NR_to_Cash!E$9","v":-105647},{"$f":"NR_to_Cash!F$9","v":-78023},null,2058,-17225.624949487978,-846.1713841188614,-12332.126028242117,-19109.846873530816,null,-155327,-283877,-105647,-78023]
[2059,{"$error":"#NAME?"},{"$error":"#NAME?"},{"$error":"#NAME?"},{"$error":"#NAME?"},null,{"$f":"NR_to_Cash!C$9","v":-155327},{"$f":"NR_to_Cash!D$9","v":-283877},{"$f":"NR_to_Cash!E$9","v":-105647},{"$f":"NR_to_Cash!F$9","v":-78023},null,2059,-17821.546893426399,-22291.026600488647,-28532.161646632983,-9115.0648350337524,null,-155327,-283877,-105647,-78023]
[2060,{"$error":"#NAME?"},{"$error":"#NAME?"},{"$error":"#NAME?"},{"$error":"#NAME?"},null,{"$f":"NR_to_Cash!C$9","v":-155327},{"$f":"NR_to_Cash!D$9","v":-283877},{"$f":"NR_to_Cash!E$9","v":-105647},{"$f":"NR_to_Cash!F$9","v":-78023},null,2060,-1173.003735476037,-13915.921017252398,-28984.502162294895,-3134.0643286462773,null,-155327,-283877,-105647,-78023]
[2061,{"$error":"#NAME?"},{"$error":"#NAME?"},{"$error":"#NAME?"},{"$error":"#NAME?"},null,{"$f":"NR_to_Cash!C$9","v":-155327},{"$f":"NR_to_Cash!D$9","v":-283877},{"$f":"NR_to_Cash!E$9","v":-105647},{"$f":"NR_to_Cash!F$9","v":-78023},null,2061,-16236.487886411816,-16139.807305395956,10875.752148005009,-9728.4138388943411,null,-155327,-283877,-105647,-78023]
[2062,{"$error":"#NAME?"},{"$error":"#NAME?"},{"$error":"#NAME?"},{"$error":"#NAME?"},null,{"$f":"NR_to_Cash!C$9","v":-155327},{"$f":"NR_to_Cash!D$9","v":-283877},{"$f":"NR_to_Cash!E$9","v":-105647},{"$f":"NR_to_Cash!F$9","v":-78023},null,2062,-5266.0885431476254,-24200.877490433246,-9534.4610870789729,-34780.450436765495,null,-155327,-283877,-105647,-78023]
[2063,{"$error":"#NAME?"},{"$error":"#NAME?"},{"$error":"#NAME?"},{"$error":"#NAME?"},null,{"$f":"NR_to_Cash!C$9","v":-155327},{"$f":"NR_to_Cash!D$9","v":-283877},{"$f":"NR_to_Cash!E$9","v":-105647},{"$f":"NR_to_Cash!F$9","v":-78023},null,2063,-27359.785679025819,-1142.2435922719847,14362.358319484209,-53635.489988039662,null,-155327,-283877,-105647,-78023]
[2064,{"$error":"#NAME?"},{"$error":"#NAME?"},{"$error":"#NAME?"},{"$error":"#NAME?"},null,{"$f":"NR_to_Cash!C$9","v":-155327},{"$f":"NR_to_Cash!D$9","v":-283877},{"$f":"NR_to_Cash!E$9","v":-105647},{"$f":"NR_to_Cash!F$9","v":-78023},null,2064,-1956.8333774701882,-24673.868895289739,2206.9384556657537,-32290.003070184641,null,-155327,-283877,-105647,-78023]
[2065,{"$error":"#NAME?"},{"$error":"#NAME?"},{"$error":"#NAME?"},{"$error":"#NAME?"},null,{"$f":"NR_to_Cash!C$9","v":-155327},{"$f":"NR_to_Cash!D$9","v":-283877},{"$f":"NR_to_Cash!E$9","v":-105647},{"$f":"NR_to_Cash!F$9","v":-78023},null,2065,-23115.92416111374,-387.89442163706946,-5060.7406853155571,-4924.557832049084,null,-155327,-283877,-105647,-78023]
[2066,{"$error":"#NAME?"},{"$error":"#NAME?"},{"$error":"#NAME?"},{"$error":"#NAME?"},null,{"$f":"NR_to_Cash!C$9","v":-155327},{"$f":"NR_to_Cash!D$9","v":-283877},{"$f":"NR_to_Cash!E$9","v":-105647},{"$f":"NR_to_Cash!F$9","v":-78023},null,2066,-5344.7754755867109,-9866.3133542056348,-20186.976623340073,-1187.4267863337034,null,-155327,-283877,-105647,-78023]
[2067,{"$error":"#NAME?"},{"$error":"#NAME?"},{"$error":"#NAME?"},{"$error":"#NAME?"},null,{"$f":"NR_to_Cash!C$9","v":-155327},{"$f":"NR_to_Cash!D$9","v":-283877},{"$f":"NR_to_Cash!E$9","v":-105647},{"$f":"NR_to_Cash!F$9","v":-78023},null,2067,-14995.506153714741,-17609.391278300231,-8501.4712124530342,-30523.323599746211,null,-155327,-283877,-105647,-78023]
[2068,{"$error":"#NAME?"},{"$error":"#NAME?"},{"$error":"#NAME?"},{"$error":"#NAME?"},null,{"$f":"NR_to_Cash!C$9","v":-155327},{"$f":"NR_to_Cash!D$9","v":-283877},{"$f":"NR_to_Cash!E$9","v":-105647},{"$f":"NR_to_Cash!F$9","v":-78023},null,2068,-8214.808157375981,-10617.578963027325,-729.49059894784159,-33029.3008997426,null,-155327,-283877,-105647,-78023]
[2069,{"$error":"#NAME?"},{"$error":"#NAME?"},{"$error":"#NAME?"},{"$error":"#NAME?"},null,{"$f":"NR_to_Cash!C$9","v":-155327},{"$f":"NR_to_Cash!D$9","v":-283877},{"$f":"NR_to_Cash!E$9","v":-105647},{"$f":"NR_to_Cash!F$9","v":-78023},null,2069,6984.1778066689867,2495.2996544557564,5284.8082505724369,7821.4544912882138,null,-155327,-283877,-105647,-78023]
[2070,{"$error":"#NAME?"},{"$error":"#NAME?"},{"$error":"#NAME?"},{"$error":"#NAME?"},null,{"$f":"NR_to_Cash!C$9","v":-155327},{"$f":"NR_to_Cash!D$9","v":-283877},{"$f":"NR_to_Cash!E$9","v":-105647},{"$f":"NR_to_Cash!F$9","v":-78023},null,2070,-11481.395023821104,-15038.626631064162,-13623.664599144098,-52426.518556657626,null,-155327,-283877,-105647,-78023]
[2071,{"$error":"#NAME?"},{"$error":"#NAME?"},{"$error":"#NAME?"},{"$error":"#NAME?"},null,{"$f":"NR_to_Cash!C$9","v":-155327},{"$f":"NR_to_Cash!D$9","v":-283877},{"$f":"NR_to_Cash!E$9","v":-105647},{"$f":"NR_to_Cash!F$9","v":-78023},null,2071,-7975.0942684887887,-13955.378662027142,-27312.661591984426,-11767.283666301053,null,-155327,-283877,-105647,-78023]
[2072,{"$error":"#NAME?"},{"$error":"#NAME?"},{"$error":"#NAME?"},{"$error":"#NAME?"},null,{"$f":"NR_to_Cash!C$9","v":-155327},{"$f":"NR_to_Cash!D$9","v":-283877},{"$f":"NR_to_Cash!E$9","v":-105647},{"$f":"NR_to_Cash!F$9","v":-78023},null,2072,-920.6077699590719,4860.9109939675827,-11989.006186201603,-11577.674174088299,null,-155327,-283877,-105647,-78023]
[2073,{"$error":"#NAME?"},{"$error":"#NAME?"},{"$error":"#NAME?"},{"$error":"#NAME?"},null,{"$f":"NR_to_Cash!C$9","v":-155327},{"$f":"NR_to_Cash!D$9","v":-283877},{"$f":"NR_to_Cash!E$9","v":-105647},{"$f":"NR_to_Cash!F$9","v":-78023},null,2073,-26378.514565890273,6646.9068202663466,-6089.995728284649,-23838.109963782081,null,-155327,-283877,-105647,-78023]
[2074,{"$error":"#NAME?"},{"$error":"#NAME?"},{"$error":"#NAME?"},{"$error":"#NAME?"},null,{"$f":"NR_to_Cash!C$9","v":-155327},{"$f":"NR_to_Cash!D$9","v":-283877},{"$f":"NR_to_Cash!E$9","v":-105647},{"$f":"NR_to_Cash!F$9","v":-78023},null,2074,-21833.989271109684,4322.3508651329157,9813.3719781274067,-14925.945768231353,null,-155327,-283877,-105647,-78023]
[2075,{"$error":"#NAME?"},{"$error":"#NAME?"},{"$error":"#NAME?"},{"$error":"#NAME?"},null,{"$f":"NR_to_Cash!C$9","v":-155327},{"$f":"NR_to_Cash!D$9","v":-283877},{"$f":"NR_to_Cash!E$9","v":-105647},{"$f":"NR_to_Cash!F$9","v":-78023},null,2075,-10608.725719661939,-19270.360368192505,-23350.724430824761,-7087.3691685233789,null,-155327,-283877,-105647,-78023]
[2076,{"$error":"#NAME?"},{"$error":"#NAME?"},{"$error":"#NAME?"},{"$error":"#NAME?"},null,{"$f":"NR_to_Cash!C$9","v":-155327},{"$f":"NR_to_Cash!D$9","v":-283877},{"$f":"NR_to_Cash!E$9","v":-105647},{"$f":"NR_to_Cash!F$9","v":-78023},null,2076,-17203.477066729756,-5564.2475472428287,-3670.1779136248892,-22231.882528597638,null,-155327,-283877,-105647,-78023]
[2077,{"$error":"#NAME?"},{"$error":"#NAME?"},{"$error":"#NAME?"},{"$error":"#NAME?"},null,{"$f":"NR_to_Cash!C$9","v":-155327},{"$f":"NR_to_Cash!D$9","v":-283877},{"$f":"NR_to_Cash!E$9","v":-105647},{"$f":"NR_to_Cash!F$9","v":-78023},null,2077,-18533.826759862492,-2684.3144572546867,-14953.186084524523,-12264.535743662702,null,-155327,-283877,-105647,-78023]
[2078,{"$error":"#NAME?"},{"$error":"#NAME?"},{"$error":"#NAME?"},{"$error":"#NAME?"},null,{"$f":"NR_to_Cash!C$9","v":-155327},{"$f":"NR_to_Cash!D$9","v":-283877},{"$f":"NR_to_Cash!E$9","v":-105647},{"$f":"NR_to_Cash!F$9","v":-78023},null,2078,-25050.258865095195,-12394.209595129214,-31818.367154752825,-36432.365132905776,null,-155327,-283877,-105647,-78023]
[2079,{"$error":"#NAME?"},{"$error":"#NAME?"},{"$error":"#NAME?"},{"$error":"#NAME?"},null,{"$f":"NR_to_Cash!C$9","v":-155327},{"$f":"NR_to_Cash!D$9","v":-283877},{"$f":"NR_to_Cash!E$9","v":-105647},{"$f":"NR_to_Cash!F$9","v":-78023},null,2079,-21739.458498581567,8591.7629846226355,-19653.122382671223,-9885.0818577585396,null,-155327,-283877,-105647,-78023]
[2080,{"$error":"#NAME?"},{"$error":"#NAME?"},{"$error":"#NAME?"},{"$error":"#NAME?"},null,{"$f":"NR_to_Cash!C$9","v":-155327},{"$f":"NR_to_Cash!D$9","v":-283877},{"$f":"NR_to_Cash!E$9","v":-105647},{"$f":"NR_to_Cash!F$9","v":-78023},null,2080,-7635.8950846452281,-6342.7913298123904,-9845.0854891748404,-17759.359902647037,null,-155327,-283877,-105647,-78023]
[2081,{"$error":"#NAME?"},{"$error":"#NAME?"},{"$error":"#NAME?"},{"$error":"#NAME?"},null,{"$f":"NR_to_Cash!C$9","v":-155327},{"$f":"NR_to_Cash!D$9","v":-283877},{"$f":"NR_to_Cash!E$9","v":-105647},{"$f":"NR_to_Cash!F$9","v":-78023},null,2081,-1829.3656353591127,-31001.091047580918,-18380.256981028677,-19135.660160217609,null,-155327,-283877,-105647,-78023]
[2082,{"$error":"#NAME?"},{"$error":"#NAME?"},{"$error":"#NAME?"},{"$error":"#NAME?"},null,{"$f":"NR_to_Cash!C$9","v":-155327},{"$f":"NR_to_Cash!D$9","v":-283877},{"$f":"NR_to_Cash!E$9","v":-105647},{"$f":"NR_to_Cash!F$9","v":-78023},null,2082,-2360.7254416929518,-5200.3006581960917,-2819.5773581298117,-11084.809086943827,null,-155327,-283877,-105647,-78023]
[2083,{"$error":"#NAME?"},{"$error":"#NAME?"},{"$error":"#NAME?"},{"$error":"#NAME?"},null,{"$f":"NR_to_Cash!C$9","v":-155327},{"$f":"NR_to_Cash!D$9","v":-283877},{"$f":"NR_to_Cash!E$9","v":-105647},{"$f":"NR_to_Cash!F$9","v":-78023},null,2083,4413.1437491834758,-21978.670731613722,-11857.595306890162,-38561.385890002966,null,-155327,-283877,-105647,-78023]
[2084,{"$error":"#NAME?"},{"$error":"#NAME?"},{"$error":"#NAME?"},{"$error":"#NAME?"},null,{"$f":"NR_to_Cash!C$9","v":-155327},{"$f":"NR_to_Cash!D$9","v":-283877},{"$f":"NR_to_Cash!E$9","v":-105647},{"$f":"NR_to_Cash!F$9","v":-78023},null,2084,-7633.0850699413768,-1048.8786418260111,-4776.3810513045401,2623.8922046729808,null,-155327,-283877,-105647,-78023]
[2085,{"$error":"#NAME?"},{"$error":"#NAME?"},{"$error":"#NAME?"},{"$error":"#NAME?"},null,{"$f":"NR_to_Cash!C$9","v":-155327},{"$f":"NR_to_Cash!D$9","v":-283877},{"$f":"NR_to_Cash!E$9","v":-105647},{"$f":"NR_to_Cash!F$9","v":-78023},null,2085,-11309.864319454708,-11891.083827827726,-8649.2655454213236,-11477.996508699993,null,-155327,-283877,-105647,-78023]
[2086,{"$error":"#NAME?"},{"$error":"#NAME?"},{"$error":"#NAME?"},{"$error":"#NAME?"},null,{"$f":"NR_to_Cash!C$9","v":-155327},{"$f":"NR_to_Cash!D$9","v":-283877},{"$f":"NR_to_Cash!E$9","v":-105647},{"$f":"NR_to_Cash!F$9","v":-78023},null,2086,-15346.423038213154,-6480.1130290229094,458.90830565831669,-5155.5999182357418,null,-155327,-283877,-105647,-78023]
[2087,{"$error":"#NAME?"},{"$error":"#NAME?"},{"$error":"#NAME?"},{"$error":"#NAME?"},null,{"$f":"NR_to_Cash!C$9","v":-155327},{"$f":"NR_to_Cash!D$9","v":-283877},{"$f":"NR_to_Cash!E$9","v":-105647},{"$f":"NR_to_Cash!F$9","v":-78023},null,2087,6297.6711253150388,-14715.329332197147,-13426.069073097982,828.91699563996269,null,-155327,-283877,-105647,-78023]
[2088,{"$error":"#NAME?"},{"$error":"#NAME?"},{"$error":"#NAME?"},{"$error":"#NAME?"},null,{"$f":"NR_to_Cash!C$9","v":-155327},{"$f":"NR_to_Cash!D$9","v":-283877},{"$f":"NR_to_Cash!E$9","v":-105647},{"$f":"NR_to_Cash!F$9","v":-78023},null,2088,-9447.0940554369809,-1895.1707584924197,-5880.9015123899826,-21726.127651058967,null,-155327,-283877,-105647,-78023]
[2089,{"$error":"#NAME?"},{"$error":"#NAME?"},{"$error":"#NAME?"},{"$error":"#NAME?"},null,{"$f":"NR_to_Cash!C$9","v":-155327},{"$f":"NR_to_Cash!D$9","v":-283877},{"$f":"NR_to_Cash!E$9","v":-105647},{"$f":"NR_to_Cash!F$9","v":-78023},null,2089,-5375.1284135956666,-42080.394975219948,-10431.380162987569,-19927.446518523222,null,-155327,-283877,-105647,-78023]
[2090,{"$error":"#NAME?"},{"$error":"#NAME?"},{"$error":"#NAME?"},{"$error":"#NAME?"},null,{"$f":"NR_to_Cash!C$9","v":-155327},{"$f":"NR_to_Cash!D$9","v":-283877},{"$f":"NR_to_Cash!E$9","v":-105647},{"$f":"NR_to_Cash!F$9","v":-78023},null,2090,-26642.461919083471,-6475.7042264270021,-2386.8032036815316,24291.478164800552,null,-155327,-283877,-105647,-78023]
[2091,{"$error":"#NAME?"},{"$error":"#NAME?"},{"$error":"#NAME?"},{"$error":"#NAME?"},null,{"$f":"NR_to_Cash!C$9","v":-155327},{"$f":"NR_to_Cash!D$9","v":-283877},{"$f":"NR_to_Cash!E$9","v":-105647},{"$f":"NR_to_Cash!F$9","v":-78023},null,2091,-10563.339872264143,-5787.5415393226185,-5671.0730078955212,-30577.82324226023,null,-155327,-283877,-105647,-78023]
[2092,{"$error":"#NAME?"},{"$error":"#NAME?"},{"$error":"#NAME?"},{"$error":"#NAME?"},null,{"$f":"NR_to_Cash!C$9","v":-155327},{"$f":"NR_to_Cash!D$9","v":-283877},{"$f":"NR_to_Cash!E$9","v":-105647},{"$f":"NR_to_Cash!F$9","v":-78023},null,2092,-16247.829351936729,-490.09093615764999,4269.0062317347983,5346.6985829315545,null,-155327,-283877,-105647,-78023]
[2093,{"$error":"#NAME?"},{"$error":"#NAME?"},{"$error":"#NAME?"},{"$error":"#NAME?"},null,{"$f":"NR_to_Cash!C$9","v":-155327},{"$f":"NR_to_Cash!D$9","v":-283877},{"$f":"NR_to_Cash!E$9","v":-105647},{"$f":"NR_to_Cash!F$9","v":-78023},null,2093,-26327.515375492996,-13900.942068059358,-24217.751463256336,-29388.646284426606,null,-155327,-283877,-105647,-78023]
[2094,{"$error":"#NAME?"},{"$error":"#NAME?"},{"$error":"#NAME?"},{"$error":"#NAME?"},null,{"$f":"NR_to_Cash!C$9","v":-155327},{"$f":"NR_to_Cash!D$9","v":-283877},{"$f":"NR_to_Cash!E$9","v":-105647},{"$f":"NR_to_Cash!F$9","v":-78023},null,2094,2074.9420477502526,-28200.538399914116,7364.3571954672943,-12760.531062712751,null,-155327,-283877,-105647,-78023]
[2095,{"$error":"#NAME?"},{"$error":"#NAME?"},{"$error":"#NAME?"},{"$error":"#NAME?"},null,{"$f":"NR_to_Cash!C$9","v":-155327},{"$f":"NR_to_Cash!D$9","v":-283877},{"$f":"NR_to_Cash!E$9","v":-105647},{"$f":"NR_to_Cash!F$9","v":-78023},null,2095,-14268.716777612008,-11753.316184259213,-30748.409670535413,-4370.3708785834551,null,-155327,-283877,-105647,-78023]
[2096,{"$error":"#NAME?"},{"$error":"#NAME?"},{"$error":"#NAME?"},{"$error":"#NAME?"},null,{"$f":"NR_to_Cash!C$9","v":-155327},{"$f":"NR_to_Cash!D$9","v":-283877},{"$f":"NR_to_Cash!E$9","v":-105647},{"$f":"NR_to_Cash!F$9","v":-78023},null,2096,-14430.138055337971,-5482.4645901481208,-3169.0164441043817,-5084.2371844641566,null,-155327,-283877,-105647,-78023]
[2097,{"$error":"#NAME?"},{"$error":"#NAME?"},{"$error":"#NAME?"},{"$error":"#NAME?"},null,{"$f":"NR_to_Cash!C$9","v":-155327},{"$f":"NR_to_Cash!D$9","v":-283877},{"$f":"NR_to_Cash!E$9","v":-105647},{"$f":"NR_to_Cash!F$9","v":-78023},null,2097,-23789.790190849584,-13725.08636238076,-1704.6524387443783,-38846.638432773274,null,-155327,-283877,-105647,-78023]
[2098,{"$error":"#NAME?"},{"$error":"#NAME?"},{"$error":"#NAME?"},{"$error":"#NAME?"},null,{"$f":"NR_to_Cash!C$9","v":-155327},{"$f":"NR_to_Cash!D$9","v":-283877},{"$f":"NR_to_Cash!E$9","v":-105647},{"$f":"NR_to_Cash!F$9","v":-78023},null,2098,-6992.408727264441,235.62796843553323,-6408.119616958581,-18811.711784081646,null,-155327,-283877,-105647,-78023]
[2099,{"$error":"#NAME?"},{"$error":"#NAME?"},{"$error":"#NAME?"},{"$error":"#NAME?"},null,{"$f":"NR_to_Cash!C$9","v":-155327},{"$f":"NR_to_Cash!D$9","v":-283877},{"$f":"NR_to_Cash!E$9","v":-105647},{"$f":"NR_to_Cash!F$9","v":-78023},null,2099,-31293.192899306661,5725.2310519239045,-2696.5741588683136,-986.56713130656681,null,-155327,-283877,-105647,-78023]
[2100,{"$error":"#NAME?"},{"$error":"#NAME?"},{"$error":"#NAME?"},{"$error":"#NAME?"},null,{"$f":"NR_to_Cash!C$9","v":-155327},{"$f":"NR_to_Cash!D$9","v":-283877},{"$f":"NR_to_Cash!E$9","v":-105647},{"$f":"NR_to_Cash!F$9","v":-78023},null,2100,-15663.610577783409,-17183.074927932121,-7463.4624988667074,-11587.60337964294,null,-155327,-283877,-105647,-78023]
[2101,{"$error":"#NAME?"},{"$error":"#NAME?"},{"$error":"#NAME?"},{"$error":"#NAME?"},null,{"$f":"NR_to_Cash!C$9","v":-155327},{"$f":"NR_to_Cash!D$9","v":-283877},{"$f":"NR_to_Cash!E$9","v":-105647},{"$f":"NR_to_Cash!F$9","v":-78023},null,2101,2403.9347856244867,-10515.934145490526,-798.1934413307431,-31176.351052208724,null,-155327,-283877,-105647,-78023]
[2102,{"$error":"#NAME?"},{"$error":"#NAME?"},{"$error":"#NAME?"},{"$error":"#NAME?"},null,{"$f":"NR_to_Cash!C$9","v":-155327},{"$f":"NR_to_Cash!D$9","v":-283877},{"$f":"NR_to_Cash!E$9","v":-105647},{"$f":"NR_to_Cash!F$9","v":-78023},null,2102,713.99125360763514,-11203.549306416444,16252.385880584685,-10702.215183998072,null,-155327,-283877,-105647,-78023]
[2103,{"$error":"#NAME?"},{"$error":"#NAME?"},{"$error":"#NAME?"},{"$error":"#NAME?"},null,{"$f":"NR_to_Cash!C$9","v":-155327},{"$f":"NR_to_Cash!D$9","v":-283877},{"$f":"NR_to_Cash!E$9","v":-105647},{"$f":"NR_to_Cash!F$9","v":-78023},null,2103,-6185.4423466819599,-26440.310731113153,-7710.1444256356863,-2633.3344340762542,null,-155327,-283877,-105647,-78023]
[2104,{"$error":"#NAME?"},{"$error":"#NAME?"},{"$error":"#NAME?"},{"$error":"#NAME?"},null,{"$f":"NR_to_Cash!C$9","v":-155327},{"$f":"NR_to_Cash!D$9","v":-283877},{"$f":"NR_to_Cash!E$9","v":-105647},{"$f":"NR_to_Cash!F$9","v":-78023},null,2104,3059.4340556514953,4062.2487642896472,-10913.118146362176,-10079.83828420628,null,-155327,-283877,-105647,-78023]
[2105,{"$error":"#NAME?"},{"$error":"#NAME?"},{"$error":"#NAME?"},{"$error":"#NAME?"},null,{"$f":"NR_to_Cash!C$9","v":-155327},{"$f":"NR_to_Cash!D$9","v":-283877},{"$f":"NR_to_Cash!E$9","v":-105647},{"$f":"NR_to_Cash!F$9","v":-78023},null,2105,-12447.607546216812,1681.4958438002584,-20315.401680946008,-25179.744206687668,null,-155327,-283877,-105647,-78023]
[2106,{"$error":"#NAME?"},{"$error":"#NAME?"},{"$error":"#NAME?"},{"$error":"#NAME?"},null,{"$f":"NR_to_Cash!C$9","v":-155327},{"$f":"NR_to_Cash!D$9","v":-283877},{"$f":"NR_to_Cash!E$9","v":-105647},{"$f":"NR_to_Cash!F$9","v":-78023},null,2106,-34685.635788402025,-7480.5049320401649,-17702.604987470462,8530.7105500065154,null,-155327,-283877,-105647,-78023]
[2107,{"$error":"#NAME?"},{"$error":"#NAME?"},{"$error":"#NAME?"},{"$error":"#NAME?"},null,{"$f":"NR_to_Cash!C$9","v":-155327},{"$f":"NR_to_Cash!D$9","v":-283877},{"$f":"NR_to_Cash!E$9","v":-105647},{"$f":"NR_to_Cash!F$9","v":-78023},null,2107,-6403.0059003092283,-5338.8698867236126,6613.4632547291358,6605.7747540278133,null,-155327,-283877,-105647,-78023]
[2108,{"$error":"#NAME?"},{"$error":"#NAME?"},{"$error":"#NAME?"},{"$error":"#NAME?"},null,{"$f":"NR_to_Cash!C$9","v":-155327},{"$f":"NR_to_Cash!D$9","v":-283877},{"$f":"NR_to_Cash!E$9","v":-105647},{"$f":"NR_to_Cash!F$9","v":-78023},null,2108,-8507.4246381031044,-1735.7787188636019,-27770.166149101678,-13053.880672599638,null,-155327,-283877,-105647,-78023]
[2109,{"$error":"#NAME?"},{"$error":"#NAME?"},{"$error":"#NAME?"},{"$error":"#NAME?"},null,{"$f":"NR_to_Cash!C$9","v":-155327},{"$f":"NR_to_Cash!D$9","v":-283877},{"$f":"NR_to_Cash!E$9","v":-105647},{"$f":"NR_to_Cash!F$9","v":-78023},null,2109,-1833.4511710966708,-13787.655282410589,-26704.700739275449,7334.9672097802932,null,-155327,-283877,-105647,-78023]
[2110,{"$error":"#NAME?"},{"$error":"#NAME?"},{"$error":"#NAME?"},{"$error":"#NAME?"},null,{"$f":"NR_to_Cash!C$9","v":-155327},{"$f":"NR_to_Cash!D$9","v":-283877},{"$f":"NR_to_Cash!E$9","v":-105647},{"$f":"NR_to_Cash!F$9","v":-78023},null,2110,-7218.3954492573803,6143.6931572527646,6204.071299252515,6117.9200357054433,null,-155327,-283877,-105647,-78023]
[2111,{"$error":"#NAME?"},{"$error":"#NAME?"},{"$error":"#NAME?"},{"$error":"#NAME?"},null,{"$f":"NR_to_Cash!C$9","v":-155327},{"$f":"NR_to_Cash!D$9","v":-283877},{"$f":"NR_to_Cash!E$9","v":-105647},{"$f":"NR_to_Cash!F$9","v":-78023},null,2111,-10639.347341844998,-20541.359285654467,-1385.0262654874177,12115.31353425387,null,-155327,-283877,-105647,-78023]
[2112,{"$error":"#NAME?"},{"$error":"#NAME?"},{"$error":"#NAME?"},{"$error":"#NAME?"},null,{"$f":"NR_to_Cash!C$9","v":-155327},{"$f":"NR_to_Cash!D$9","v":-283877},{"$f":"NR_to_Cash!E$9","v":-105647},{"$f":"NR_to_Cash!F$9","v":-78023},null,2112,-11633.88533921722,-27877.005644106805,2811.7628847072324,-28476.282182119612,null,-155327,-283877,-105647,-78023]
[2113,{"$error":"#NAME?"},{"$error":"#NAME?"},{"$error":"#NAME?"},{"$error":"#NAME?"},null,{"$f":"NR_to_Cash!C$9","v":-155327},{"$f":"NR_to_Cash!D$9","v":-283877},{"$f":"NR_to_Cash!E$9","v":-105647},{"$f":"NR_to_Cash!F$9","v":-78023},null,2113,0.86072891851165334,-9304.0282091194185,-20161.421537178208,11052.911550424158,null,-155327,-283877,-105647,-78023]
[2114,{"$error":"#NAME?"},{"$error":"#NAME?"},{"$error":"#NAME?"},{"$error":"#NAME?"},null,{"$f":"NR_to_Cash!C$9","v":-155327},{"$f":"NR_to_Cash!D$9","v":-283877},{"$f":"NR_to_Cash!E$9","v":-105647},{"$f":"NR_to_Cash!F$9","v":-78023},null,2114,2981.3993697851938,-13077.325188254608,-17203.530717977861,2252.3796425896844,null,-155327,-283877,-105647,-78023]
[2115,{"$error":"#NAME?"},{"$error":"#NAME?"},{"$error":"#NAME?"},{"$error":"#NAME?"},null,{"$f":"NR_to_Cash!C$9","v":-155327},{"$f":"NR_to_Cash!D$9","v":-283877},{"$f":"NR_to_Cash!E$9","v":-105647},{"$f":"NR_to_Cash!F$9","v":-78023},null,2115,-8429.3630044668917,-12513.904033156066,-41185.951129965004,-19674.872733158416,null,-155327,-283877,-105647,-78023]
[2116,{"$error":"#NAME?"},{"$error":"#NAME?"},{"$error":"#NAME?"},{"$error":"#NAME?"},null,{"$f":"NR_to_Cash!C$9","v":-155327},{"$f":"NR_to_Cash!D$9","v":-283877},{"$f":"NR_to_Cash!E$9","v":-105647},{"$f":"NR_to_Cash!F$9","v":-78023},null,2116,-25280.503854326256,-18183.914794789147,-39696.457119418686,24192.890370100187,null,-155327,-283877,-105647,-78023]
[2117,{"$error":"#NAME?"},{"$error":"#NAME?"},{"$error":"#NAME?"},{"$error":"#NAME?"},null,{"$f":"NR_to_Cash!C$9","v":-155327},{"$f":"NR_to_Cash!D$9","v":-283877},{"$f":"NR_to_Cash!E$9","v":-105647},{"$f":"NR_to_Cash!F$9","v":-78023},null,2117,4415.6766287073788,-28147.986500546045,-22804.40696891844,-11397.420745325002,null,-155327,-283877,-105647,-78023]
[2118,{"$error":"#NAME?"},{"$error":"#NAME?"},{"$error":"#NAME?"},{"$error":"#NAME?"},null,{"$f":"NR_to_Cash!C$9","v":-155327},{"$f":"NR_to_Cash!D$9","v":-283877},{"$f":"NR_to_Cash!E$9","v":-105647},{"$f":"NR_to_Cash!F$9","v":-78023},null,2118,-2456.4334764771402,-6062.6690172020826,-27349.774403787549,-11810.688585510463,null,-155327,-283877,-105647,-78023]
[2119,{"$error":"#NAME?"},{"$error":"#NAME?"},{"$error":"#NAME?"},{"$error":"#NAME?"},null,{"$f":"NR_to_Cash!C$9","v":-155327},{"$f":"NR_to_Cash!D$9","v":-283877},{"$f":"NR_to_Cash!E$9","v":-105647},{"$f":"NR_to_Cash!F$9","v":-78023},null,2119,-14474.454195678571,-25682.214014794248,3269.6190149694194,-6935.2101320011761,null,-155327,-283877,-105647,-78023]
[2120,{"$error":"#NAME?"},{"$error":"#NAME?"},{"$error":"#NAME?"},{"$error":"#NAME?"},null,{"$f":"NR_to_Cash!C$9","v":-155327},{"$f":"NR_to_Cash!D$9","v":-283877},{"$f":"NR_to_Cash!E$9","v":-105647},{"$f":"NR_to_Cash!F$9","v":-78023},null,2120,-10607.726005585168,16374.463434709287,-1736.6910598100328,-17536.592899547926,null,-155327,-283877,-105647,-78023]
[2121,{"$error":"#NAME?"},{"$error":"#NAME?"},{"$error":"#NAME?"},{"$error":"#NAME?"},null,{"$f":"NR_to_Cash!C$9","v":-155327},{"$f":"NR_to_Cash!D$9","v":-283877},{"$f":"NR_to_Cash!E$9","v":-105647},{"$f":"NR_to_Cash!F$9","v":-78023},null,2121,-6538.0714534838198,-21790.53759362876,-40604.314806707014,-6711.5145741554261,null,-155327,-283877,-105647,-78023]
[2122,{"$error":"#NAME?"},{"$error":"#NAME?"},{"$error":"#NAME?"},{"$error":"#NAME?"},null,{"$f":"NR_to_Cash!C$9","v":-155327},{"$f":"NR_to_Cash!D$9","v":-283877},{"$f":"NR_to_Cash!E$9","v":-105647},{"$f":"NR_to_Cash!F$9","v":-78023},null,2122,-11261.412770691184,-22499.5653157833,-8281.7210411648011,10700.403801693326,null,-155327,-283877,-105647,-78023]
[2123,{"$error":"#NAME?"},{"$error":"#NAME?"},{"$error":"#NAME?"},{"$error":"#NAME?"},null,{"$f":"NR_to_Cash!C$9","v":-155327},{"$f":"NR_to_Cash!D$9","v":-283877},{"$f":"NR_to_Cash!E$9","v":-105647},{"$f":"NR_to_Cash!F$9","v":-78023},null,2123,-15627.371057987733,3833.2389622769679,-6165.8215394604049,4858.6303789445028,null,-155327,-283877,-105647,-78023]
[2124,{"$error":"#NAME?"},{"$error":"#NAME?"},{"$error":"#NAME?"},{"$error":"#NAME?"},null,{"$f":"NR_to_Cash!C$9","v":-155327},{"$f":"NR_to_Cash!D$9","v":-283877},{"$f":"NR_to_Cash!E$9","v":-105647},{"$f":"NR_to_Cash!F$9","v":-78023},null,2124,-21570.958948416868,7168.1861864479697,-1894.5710378851763,-171.23623613784159,null,-155327,-283877,-105647,-78023]
[2125,{"$error":"#NAME?"},{"$error":"#NAME?"},{"$error":"#NAME?"},{"$error":"#NAME?"},null,{"$f":"NR_to_Cash!C$9","v":-155327},{"$f":"NR_to_Cash!D$9","v":-283877},{"$f":"NR_to_Cash!E$9","v":-105647},{"$f":"NR_to_Cash!F$9","v":-78023},null,2125,-13325.258444656363,-24813.648457382267,-2955.8796897730372,-4631.4111772389533,null,-155327,-283877,-105647,-78023]
[2126,{"$error":"#NAME?"},{"$error":"#NAME?"},{"$error":"#NAME?"},{"$error":"#NAME?"},null,{"$f":"NR_to_Cash!C$9","v":-155327},{"$f":"NR_to_Cash!D$9","v":-283877},{"$f":"NR_to_Cash!E$9","v":-105647},{"$f":"NR_to_Cash!F$9","v":-78023},null,2126,-23223.201411467962,-16400.150395999743,-4464.6224137459467,-18373.092257270284,null,-155327,-283877,-105647,-78023]
[2127,{"$error":"#NAME?"},{"$error":"#NAME?"},{"$error":"#NAME?"},{"$error":"#NAME?"},null,{"$f":"NR_to_Cash!C$9","v":-155327},{"$f":"NR_to_Cash!D$9","v":-283877},{"$f":"NR_to_Cash!E$9","v":-105647},{"$f":"NR_to_Cash!F$9","v":-78023},null,2127,-10312.344963571481,2102.2023166546442,-1335.8958563573544,-3522.917597984645,null,-155327,-283877,-105647,-78023]
[2128,{"$error":"#NAME?"},{"$error":"#NAME?"},{"$error":"#NAME?"},{"$error":"#NAME?"},null,{"$f":"NR_to_Cash!C$9","v":-155327},{"$f":"NR_to_Cash!D$9","v":-283877},{"$f":"NR_to_Cash!E$9","v":-105647},{"$f":"NR_to_Cash!F$9","v":-78023},null,2128,6369.3869664546664,-5869.9523570145402,-2455.7668229631367,-7713.4329712806775,null,-155327,-283877,-105647,-78023]
[2129,{"$error":"#NAME?"},{"$error":"#NAME?"},{"$error":"#NAME?"},{"$error":"#NAME?"},null,{"$f":"NR_to_Cash!C$9","v":-155327},{"$f":"NR_to_Cash!D$9","v":-283877},{"$f":"NR_to_Cash!E$9","v":-105647},{"$f":"NR_to_Cash!F$9","v":-78023},null,2129,-10618.444249176646,-4296.6429082946797,-5541.6511458300456,-15518.226773191802,null,-155327,-283877,-105647,-78023]
[2130,{"$error":"#NAME?"},{"$error":"#NAME?"},{"$error":"#NAME?"},{"$error":"#NAME?"},null,{"$f":"NR_to_Cash!C$9","v":-155327},{"$f":"NR_to_Cash!D$9","v":-283877},{"$f":"NR_to_Cash!E$9","v":-105647},{"$f":"NR_to_Cash!F$9","v":-78023},null,2130,-6574.326009304471,-11627.695893590584,-16250.741556915387,-5720.4919497529045,null,-155327,-283877,-105647,-78023]
[2131,{"$error":"#NAME?"},{"$error":"#NAME?"},{"$error":"#NAME?"},{"$error":"#NAME?"},null,{"$f":"NR_to_Cash!C$9","v":-155327},{"$f":"NR_to_Cash!D$9","v":-283877},{"$f":"NR_to_Cash!E$9","v":-105647},{"$f":"NR_to_Cash!F$9","v":-78023},null,2131,-26052.337701371529,-4741.8121079029506,3603.2650146260121,-14927.702493148969,null,-155327,-283877,-105647,-78023]
[2132,{"$error":"#NAME?"},{"$error":"#NAME?"},{"$error":"#NAME?"},{"$error":"#NAME?"},null,{"$f":"NR_to_Cash!C$9","v":-155327},{"$f":"NR_to_Cash!D$9","v":-283877},{"$f":"NR_to_Cash!E$9","v":-105647},{"$f":"NR_to_Cash!F$9","v":-78023},null,2132,-8551.1856710235079,15773.513767358629,-3173.4709761999716,-4747.0738787401424,null,-155327,-283877,-105647,-78023]
[2133,{"$error":"#NAME?"},{"$error":"#NAME?"},{"$error":"#NAME?"},{"$error":"#NAME?"},null,{"$f":"NR_to_Cash!C$9","v":-155327},{"$f":"NR_to_Cash!D$9","v":-283877},{"$f":"NR_to_Cash!E$9","v":-105647},{"$f":"NR_to_Cash!F$9","v":-78023},null,2133,-13274.4821438366,6772.8300188266303,-13946.146878351685,-27644.140360014255,null,-155327,-283877,-105647,-78023]
[2134,{"$error":"#NAME?"},{"$error":"#NAME?"},{"$error":"#NAME?"},{"$error":"#NAME?"},null,{"$f":"NR_to_Cash!C$9","v":-155327},{"$f":"NR_to_Cash!D$9","v":-283877},{"$f":"NR_to_Cash!E$9","v":-105647},{"$f":"NR_to_Cash!F$9","v":-78023},null,2134,-20340.354810065419,-6933.1709980851829,-5161.1179285490798,-17900.353743454172,null,-155327,-283877,-105647,-78023]
[2135,{"$error":"#NAME?"},{"$error":"#NAME?"},{"$error":"#NAME?"},{"$error":"#NAME?"},null,{"$f":"NR_to_Cash!C$9","v":-155327},{"$f":"NR_to_Cash!D$9","v":-283877},{"$f":"NR_to_Cash!E$9","v":-105647},{"$f":"NR_to_Cash!F$9","v":-78023},null,2135,-908.68588913886015,15671.637666710458,3392.5966960090691,8793.0959160015027,null,-155327,-283877,-105647,-78023]
[2136,{"$error":"#NAME?"},{"$error":"#NAME?"},{"$error":"#NAME?"},{"$error":"#NAME?"},null,{"$f":"NR_to_Cash!C$9","v":-155327},{"$f":"NR_to_Cash!D$9","v":-283877},{"$f":"NR_to_Cash!E$9","v":-105647},{"$f":"NR_to_Cash!F$9","v":-78023},null,2136,-10292.828267674897,-3059.8720593200433,-9966.5671420677718,-36088.518471105461,null,-155327,-283877,-105647,-78023]
[2137,{"$error":"#NAME?"},{"$error":"#NAME?"},{"$error":"#NAME?"},{"$error":"#NAME?"},null,{"$f":"NR_to_Cash!C$9","v":-155327},{"$f":"NR_to_Cash!D$9","v":-283877},{"$f":"NR_to_Cash!E$9","v":-105647},{"$f":"NR_to_Cash!F$9","v":-78023},null,2137,-1449.6264563114441,10558.264258776868,-20353.617071554228,378.18377030691306,null,-155327,-283877,-105647,-78023]
[2138,{"$error":"#NAME?"},{"$error":"#NAME?"},{"$error":"#NAME?"},{"$error":"#NAME?"},null,{"$f":"NR_to_Cash!C$9","v":-155327},{"$f":"NR_to_Cash!D$9","v":-283877},{"$f":"NR_to_Cash!E$9","v":-105647},{"$f":"NR_to_Cash!F$9","v":-78023},null,2138,-8412.6444962737041,-1942.5645713098907,-19052.459080797118,-124.29476396239832,null,-155327,-283877,-105647,-78023]
[2139,{"$error":"#NAME?"},{"$error":"#NAME?"},{"$error":"#NAME?"},{"$error":"#NAME?"},null,{"$f":"NR_to_Cash!C$9","v":-155327},{"$f":"NR_to_Cash!D$9","v":-283877},{"$f":"NR_to_Cash!E$9","v":-105647},{"$f":"NR_to_Cash!F$9","v":-78023},null,2139,-20798.81566456892,-34755.312811261567,-14599.681903025144,-3801.1436079223458,null,-155327,-283877,-105647,-78023]
[2140,{"$error":"#NAME?"},{"$error":"#NAME?"},{"$error":"#NAME?"},{"$error":"#NAME?"},null,{"$f":"NR_to_Cash!C$9","v":-155327},{"$f":"NR_to_Cash!D$9","v":-283877},{"$f":"NR_to_Cash!E$9","v":-105647},{"$f":"NR_to_Cash!F$9","v":-78023},null,2140,-10744.777863299783,-4402.9589225280679,426.64771391431873,-18031.619351293317,null,-155327,-283877,-105647,-78023]
[2141,{"$error":"#NAME?"},{"$error":"#NAME?"},{"$error":"#NAME?"},{"$error":"#NAME?"},null,{"$f":"NR_to_Cash!C$9","v":-155327},{"$f":"NR_to_Cash!D$9","v":-283877},{"$f":"NR_to_Cash!E$9","v":-105647},{"$f":"NR_to_Cash!F$9","v":-78023},null,2141,-13875.668088276341,-28217.296555375578,-12870.835486092881,-25155.667219991559,null,-155327,-283877,-105647,-78023]
[2142,{"$error":"#NAME?"},{"$error":"#NAME?"},{"$error":"#NAME?"},{"$error":"#NAME?"},null,{"$f":"NR_to_Cash!C$9","v":-155327},{"$f":"NR_to_Cash!D$9","v":-283877},{"$f":"NR_to_Cash!E$9","v":-105647},{"$f":"NR_to_Cash!F$9","v":-78023},null,2142,-18261.417971752755,-14890.828243095339,-794.49730529050805,-24746.066021292092,null,-155327,-283877,-105647,-78023]
[2143,{"$error":"#NAME?"},{"$error":"#NAME?"},{"$error":"#NAME?"},{"$error":"#NAME?"},null,{"$f":"NR_to_Cash!C$9","v":-155327},{"$f":"NR_to_Cash!D$9","v":-283877},{"$f":"NR_to_Cash!E$9","v":-105647},{"$f":"NR_to_Cash!F$9","v":-78023},null,2143,-26240.105528767526,5952.1367266728957,5318.5050505265017,3991.8693639802386,null,-155327,-283877,-105647,-78023]
[2144,{"$error":"#NAME?"},{"$error":"#NAME?"},{"$error":"#NAME?"},{"$error":"#NAME?"},null,{"$f":"NR_to_Cash!C$9","v":-155327},{"$f":"NR_to_Cash!D$9","v":-283877},{"$f":"NR_to_Cash!E$9","v":-105647},{"$f":"NR_to_Cash!F$9","v":-78023},null,2144,-10822.138224421449,601.98551223333402,-17753.147383490799,-22812.661594168763,null,-155327,-283877,-105647,-78023]
[2145,{"$error":"#NAME?"},{"$error":"#NAME?"},{"$error":"#NAME?"},{"$error":"#NAME?"},null,{"$f":"NR_to_Cash!C$9","v":-155327},{"$f":"NR_to_Cash!D$9","v":-283877},{"$f":"NR_to_Cash!E$9","v":-105647},{"$f":"NR_to_Cash!F$9","v":-78023},null,2145,-18098.470166112562,-15664.08069055721,-7604.3116446062868,-25178.534917355748,null,-155327,-283877,-105647,-78023]
[2146,{"$error":"#NAME?"},{"$error":"#NAME?"},{"$error":"#NAME?"},{"$error":"#NAME?"},null,{"$f":"NR_to_Cash!C$9","v":-155327},{"$f":"NR_to_Cash!D$9","v":-283877},{"$f":"NR_to_Cash!E$9","v":-105647},{"$f":"NR_to_Cash!F$9","v":-78023},null,2146,-7515.1941810928029,-11214.446657703769,-1552.7880989344071,14566.219768888734,null,-155327,-283877,-105647,-78023]
[2147,{"$error":"#NAME?"},{"$error":"#NAME?"},{"$error":"#NAME?"},{"$error":"#NAME?"},null,{"$f":"NR_to_Cash!C$9","v":-155327},{"$f":"NR_to_Cash!D$9","v":-283877},{"$f":"NR_to_Cash!E$9","v":-105647},{"$f":"NR_to_Cash!F$9","v":-78023},null,2147,-23195.053057340359,-1243.9005508988087,-9592.1044403257201,-8643.7830243916942,null,-155327,-283877,-105647,-78023]
[2148,{"$error":"#NAME?"},{"$error":"#NAME?"},{"$error":"#NAME?"},{"$error":"#NAME?"},null,{"$f":"NR_to_Cash!C$9","v":-155327},{"$f":"NR_to_Cash!D$9","v":-283877},{"$f":"NR_to_Cash!E$9","v":-105647},{"$f":"NR_to_Cash!F$9","v":-78023},null,2148,-11227.988691989063,-10923.155032219465,9459.4660357187531,2196.1244261195138,null,-155327,-283877,-105647,-78023]
[2149,{"$error":"#NAME?"},{"$error":"#NAME?"},{"$error":"#NAME?"},{"$error":"#NAME?"},null,{"$f":"NR_to_Cash!C$9","v":-155327},{"$f":"NR_to_Cash!D$9","v":-283877},{"$f":"NR_to_Cash!E$9","v":-105647},{"$f":"NR_to_Cash!F$9","v":-78023},null,2149,-16013.488894773096,-8646.6788650973504,14571.242062066573,-232.47213905962892,null,-155327,-283877,-105647,-78023]
[2150,{"$error":"#NAME?"},{"$error":"#NAME?"},{"$error":"#NAME?"},{"$error":"#NAME?"},null,{"$f":"NR_to_Cash!C$9","v":-155327},{"$f":"NR_to_Cash!D$9","v":-283877},{"$f":"NR_to_Cash!E$9","v":-105647},{"$f":"NR_to_Cash!F$9","v":-78023},null,2150,-8906.2268862716592,-2725.2079111763001,-3982.529145900382,10815.031815618604,null,-155327,-283877,-105647,-78023]
[2151,{"$error":"#NAME?"},{"$error":"#NAME?"},{"$error":"#NAME?"},{"$error":"#NAME?"},null,{"$f":"NR_to_Cash!C$9","v":-155327},{"$f":"NR_to_Cash!D$9","v":-283877},{"$f":"NR_to_Cash!E$9","v":-105647},{"$f":"NR_to_Cash!F$9","v":-78023},null,2151,-19536.315577211477,-7690.4811556961722,-17067.53489358841,-15724.410610084957,null,-155327,-283877,-105647,-78023]
[2152,{"$error":"#NAME?"},{"$error":"#NAME?"},{"$error":"#NAME?"},{"$error":"#NAME?"},null,{"$f":"NR_to_Cash!C$9","v":-155327},{"$f":"NR_to_Cash!D$9","v":-283877},{"$f":"NR_to_Cash!E$9","v":-105647},{"$f":"NR_to_Cash!F$9","v":-78023},null,2152,-7224.0743169569323,-36911.446608372142,2539.8446589503978,-25097.438050163219,null,-155327,-283877,-105647,-78023]
[2153,{"$error":"#NAME?"},{"$error":"#NAME?"},{"$error":"#NAME?"},{"$error":"#NAME?"},null,{"$f":"NR_to_Cash!C$9","v":-155327},{"$f":"NR_to_Cash!D$9","v":-283877},{"$f":"NR_to_Cash!E$9","v":-105647},{"$f":"NR_to_Cash!F$9","v":-78023},null,2153,-6671.822658769428,984.20816042330864,-25346.138317148641,-6668.0829297029177,null,-155327,-283877,-105647,-78023]
[2154,{"$error":"#NAME?"},{"$error":"#NAME?"},{"$error":"#NAME?"},{"$error":"#NAME?"},null,{"$f":"NR_to_Cash!C$9","v":-155327},{"$f":"NR_to_Cash!D$9","v":-283877},{"$f":"NR_to_Cash!E$9","v":-105647},{"$f":"NR_to_Cash!F$9","v":-78023},null,2154,-11557.843846074429,-21261.970525084613,-4887.8523291119964,-8967.5024871850492,null,-155327,-283877,-105647,-78023]
[2155,{"$error":"#NAME?"},{"$error":"#NAME?"},{"$error":"#NAME?"},{"$error":"#NAME?"},null,{"$f":"NR_to_Cash!C$9","v":-155327},{"$f":"NR_to_Cash!D$9","v":-283877},{"$f":"NR_to_Cash!E$9","v":-105647},{"$f":"NR_to_Cash!F$9","v":-78023},null,2155,-1968.0413801689415,-13090.940086031953,-9535.7284192808002,5202.5819981562054,null,-155327,-283877,-105647,-78023]
[2156,{"$error":"#NAME?"},{"$error":"#NAME?"},{"$error":"#NAME?"},{"$error":"#NAME?"},null,{"$f":"NR_to_Cash!C$9","v":-155327},{"$f":"NR_to_Cash!D$9","v":-283877},{"$f":"NR_to_Cash!E$9","v":-105647},{"$f":"NR_to_Cash!F$9","v":-78023},null,2156,-6079.8648953353313,-21754.132105428591,-10117.722262878346,-2894.8491921288492,null,-155327,-283877,-105647,-78023]
[2157,{"$error":"#NAME?"},{"$error":"#NAME?"},{"$error":"#NAME?"},{"$error":"#NAME?"},null,{"$f":"NR_to_Cash!C$9","v":-155327},{"$f":"NR_to_Cash!D$9","v":-283877},{"$f":"NR_to_Cash!E$9","v":-105647},{"$f":"NR_to_Cash!F$9","v":-78023},null,2157,-11876.515147335886,2567.5296619576097,-1700.9888789464162,-25050.369303906467,null,-155327,-283877,-105647,-78023]
[2158,{"$error":"#NAME?"},{"$error":"#NAME?"},{"$error":"#NAME?"},{"$error":"#NAME?"},null,{"$f":"NR_to_Cash!C$9","v":-155327},{"$f":"NR_to_Cash!D$9","v":-283877},{"$f":"NR_to_Cash!E$9","v":-105647},{"$f":"NR_to_Cash!F$9","v":-78023},null,2158,-12696.36397147858,-19428.244735695062,6271.6957959526353,1281.4706220505666,null,-155327,-283877,-105647,-78023]
[2159,{"$error":"#NAME?"},{"$error":"#NAME?"},{"$error":"#NAME?"},{"$error":"#NAME?"},null,{"$f":"NR_to_Cash!C$9","v":-155327},{"$f":"NR_to_Cash!D$9","v":-283877},{"$f":"NR_to_Cash!E$9","v":-105647},{"$f":"NR_to_Cash!F$9","v":-78023},null,2159,-11154.887179651054,-15904.555464119543,-30158.972322880356,-34499.968920089006,null,-155327,-283877,-105647,-78023]
[2160,{"$error":"#NAME?"},{"$error":"#NAME?"},{"$error":"#NAME?"},{"$error":"#NAME?"},null,{"$f":"NR_to_Cash!C$9","v":-155327},{"$f":"NR_to_Cash!D$9","v":-283877},{"$f":"NR_to_Cash!E$9","v":-105647},{"$f":"NR_to_Cash!F$9","v":-78023},null,2160,-10173.843214241258,-4672.3310410672375,-8271.5996674166836,-24023.131570953097,null,-155327,-283877,-105647,-78023]
[2161,{"$error":"#NAME?"},{"$error":"#NAME?"},{"$error":"#NAME?"},{"$error":"#NAME?"},null,{"$f":"NR_to_Cash!C$9","v":-155327},{"$f":"NR_to_Cash!D$9","v":-283877},{"$f":"NR_to_Cash!E$9","v":-105647},{"$f":"NR_to_Cash!F$9","v":-78023},null,2161,-4575.9752756594735,-10415.566605800417,-5685.762922867003,-10230.6889712224,null,-155327,-283877,-105647,-78023]
[2162,{"$error":"#NAME?"},{"$error":"#NAME?"},{"$error":"#NAME?"},{"$error":"#NAME?"},null,{"$f":"NR_to_Cash!C$9","v":-155327},{"$f":"NR_to_Cash!D$9","v":-283877},{"$f":"NR_to_Cash!E$9","v":-105647},{"$f":"NR_to_Cash!F$9","v":-78023},null,2162,-5034.759081689127,-18642.868043692273,-20.133315800269685,6916.9297491710549,null,-155327,-283877,-105647,-78023]
[2163,{"$error":"#NAME?"},{"$error":"#NAME?"},{"$error":"#NAME?"},{"$error":"#NAME?"},null,{"$f":"NR_to_Cash!C$9","v":-155327},{"$f":"NR_to_Cash!D$9","v":-283877},{"$f":"NR_to_Cash!E$9","v":-105647},{"$f":"NR_to_Cash!F$9","v":-78023},null,2163,-11553.432777296617,-25394.817726180263,-13147.151793741079,-25699.312717386081,null,-155327,-283877,-105647,-78023]
[2164,{"$error":"#NAME?"},{"$error":"#NAME?"},{"$error":"#NAME?"},{"$error":"#NAME?"},null,{"$f":"NR_to_Cash!C$9","v":-155327},{"$f":"NR_to_Cash!D$9","v":-283877},{"$f":"NR_to_Cash!E$9","v":-105647},{"$f":"NR_to_Cash!F$9","v":-78023},null,2164,-20627.130239232582,-14581.959478724422,-5080.3833894756517,-3372.5212482434808,null,-155327,-283877,-105647,-78023]
[2165,{"$error":"#NAME?"},{"$error":"#NAME?"},{"$error":"#NAME?"},{"$error":"#NAME?"},null,{"$f":"NR_to_Cash!C$9","v":-155327},{"$f":"NR_to_Cash!D$9","v":-283877},{"$f":"NR_to_Cash!E$9","v":-105647},{"$f":"NR_to_Cash!F$9","v":-78023},null,2165,-14059.460393801284,6095.3844384481799,-7047.4230178885136,4291.1697012263621,null,-155327,-283877,-105647,-78023]
[2166,{"$error":"#NAME?"},{"$error":"#NAME?"},{"$error":"#NAME?"},{"$error":"#NAME?"},null,{"$f":"NR_to_Cash!C$9","v":-155327},{"$f":"NR_to_Cash!D$9","v":-283877},{"$f":"NR_to_Cash!E$9","v":-105647},{"$f":"NR_to_Cash!F$9","v":-78023},null,2166,-15279.246691683371,2677.2434100005771,-6983.8600920331592,-4281.8800788990229,null,-155327,-283877,-105647,-78023]
[2167,{"$error":"#NAME?"},{"$error":"#NAME?"},{"$error":"#NAME?"},{"$error":"#NAME?"},null,{"$f":"NR_to_Cash!C$9","v":-155327},{"$f":"NR_to_Cash!D$9","v":-283877},{"$f":"NR_to_Cash!E$9","v":-105647},{"$f":"NR_to_Cash!F$9","v":-78023},null,2167,-10031.949394712752,-27097.578907963689,8850.342777585045,-24587.247676848507,null,-155327,-283877,-105647,-78023]
[2168,{"$error":"#NAME?"},{"$error":"#NAME?"},{"$error":"#NAME?"},{"$error":"#NAME?"},null,{"$f":"NR_to_Cash!C$9","v":-155327},{"$f":"NR_to_Cash!D$9","v":-283877},{"$f":"NR_to_Cash!E$9","v":-105647},{"$f":"NR_to_Cash!F$9","v":-78023},null,2168,-5518.8209680243017,3078.9983454113976,-15715.798424717339,-1550.9130879986235,null,-155327,-283877,-105647,-78023]
[2169,{"$error":"#NAME?"},{"$error":"#NAME?"},{"$error":"#NAME?"},{"$error":"#NAME?"},null,{"$f":"NR_to_Cash!C$9","v":-155327},{"$f":"NR_to_Cash!D$9","v":-283877},{"$f":"NR_to_Cash!E$9","v":-105647},{"$f":"NR_to_Cash!F$9","v":-78023},null,2169,4415.4640257109822,-28467.640006075959,-3121.1045417291389,-25951.671423308326,null,-155327,-283877,-105647,-78023]
[2170,{"$error":"#NAME?"},{"$error":"#NAME?"},{"$error":"#NAME?"},{"$error":"#NAME?"},null,{"$f":"NR_to_Cash!C$9","v":-155327},{"$f":"NR_to_Cash!D$9","v":-283877},{"$f":"NR_to_Cash!E$9","v":-105647},{"$f":"NR_to_Cash!F$9","v":-78023},null,2170,-18017.78168230443,-355.93019117136714,-8281.7411384929746,4198.7106497523382,null,-155327,-283877,-105647,-78023]
[2171,{"$error":"#NAME?"},{"$error":"#NAME?"},{"$error":"#NAME?"},{"$error":"#NAME?"},null,{"$f":"NR_to_Cash!C$9","v":-155327},{"$f":"NR_to_Cash!D$9","v":-283877},{"$f":"NR_to_Cash!E$9","v":-105647},{"$f":"NR_to_Cash!F$9","v":-78023},null,2171,-25736.207122653999,-1633.8189653383265,-301.7948105082092,-21679.500281880861,null,-155327,-283877,-105647,-78023]
[2172,{"$error":"#NAME?"},{"$error":"#NAME?"},{"$error":"#NAME?"},{"$error":"#NAME?"},null,{"$f":"NR_to_Cash!C$9","v":-155327},{"$f":"NR_to_Cash!D$9","v":-283877},{"$f":"NR_to_Cash!E$9","v":-105647},{"$f":"NR_to_Cash!F$9","v":-78023},null,2172,6036.2728514513838,-190.17730896947981,12858.505873863509,4714.3560087609976,null,-155327,-283877,-105647,-78023]
[2173,{"$error":"#NAME?"},{"$error":"#NAME?"},{"$error":"#NAME?"},{"$error":"#NAME?"},null,{"$f":"NR_to_Cash!C$9","v":-155327},{"$f":"NR_to_Cash!D$9","v":-283877},{"$f":"NR_to_Cash!E$9","v":-105647},{"$f":"NR_to_Cash!F$9","v":-78023},null,2173,-11068.517627780475,-9535.2741405105644,7828.0599475575818,-15448.502948574047,null,-155327,-283877,-105647,-78023]
[2174,{"$error":"#NAME?"},{"$error":"#NAME?"},{"$error":"#NAME?"},{"$error":"#NAME?"},null,{"$f":"NR_to_Cash!C$9","v":-155327},{"$f":"NR_to_Cash!D$9","v":-283877},{"$f":"NR_to_Cash!E$9","v":-105647},{"$f":"NR_to_Cash!F$9","v":-78023},null,2174,-14270.125635757515,-17520.41348402798,-22902.597649634135,-27605.290141367259,null,-155327,-283877,-105647,-78023]
[2175,{"$error":"#NAME?"},{"$error":"#NAME?"},{"$error":"#NAME?"},{"$error":"#NAME?"},null,{"$f":"NR_to_Cash!C$9","v":-155327},{"$f":"NR_to_Cash!D$9","v":-283877},{"$f":"NR_to_Cash!E$9","v":-105647},{"$f":"NR_to_Cash!F$9","v":-78023},null,2175,-31725.769880350133,13029.202970028853,-11472.942446986532,-3197.6715844409946,null,-155327,-283877,-105647,-78023]
[2176,{"$error":"#NAME?"},{"$error":"#NAME?"},{"$error":"#NAME?"},{"$error":"#NAME?"},null,{"$f":"NR_to_Cash!C$9","v":-155327},{"$f":"NR_to_Cash!D$9","v":-283877},{"$f":"NR_to_Cash!E$9","v":-105647},{"$f":"NR_to_Cash!F$9","v":-78023},null,2176,-42477.307157941403,-15899.024396403107,-15923.5575946716,-7410.8873893896834,null,-155327,-283877,-105647,-78023]
[2177,{"$error":"#NAME?"},{"$error":"#NAME?"},{"$error":"#NAME?"},{"$error":"#NAME?"},null,{"$f":"NR_to_Cash!C$9","v":-155327},{"$f":"NR_to_Cash!D$9","v":-283877},{"$f":"NR_to_Cash!E$9","v":-105647},{"$f":"NR_to_Cash!F$9","v":-78023},null,2177,-24025.113738738444,-8964.1001722043547,-5636.6134797059294,-829.90598443837382,null,-155327,-283877,-105647,-78023]
[2178,{"$error":"#NAME?"},{"$error":"#NAME?"},{"$error":"#NAME?"},{"$error":"#NAME?"},null,{"$f":"NR_to_Cash!C$9","v":-155327},{"$f":"NR_to_Cash!D$9","v":-283877},{"$f":"NR_to_Cash!E$9","v":-105647},{"$f":"NR_to_Cash!F$9","v":-78023},null,2178,-11649.646167697576,-17682.769665517262,-29676.937039182631,16686.418556915803,null,-155327,-283877,-105647,-78023]
[2179,{"$error":"#NAME?"},{"$error":"#NAME?"},{"$error":"#NAME?"},{"$error":"#NAME?"},null,{"$f":"NR_to_Cash!C$9","v":-155327},{"$f":"NR_to_Cash!D$9","v":-283877},{"$f":"NR_to_Cash!E$9","v":-105647},{"$f":"NR_to_Cash!F$9","v":-78023},null,2179,100.12354071729416,-27294.026422209608,-12080.187576634158,-38660.028477846856,null,-155327,-283877,-105647,-78023]
[2180,{"$error":"#NAME?"},{"$error":"#NAME?"},{"$error":"#NAME?"},{"$error":"#NAME?"},null,{"$f":"NR_to_Cash!C$9","v":-155327},{"$f":"NR_to_Cash!D$9","v":-283877},{"$f":"NR_to_Cash!E$9","v":-105647},{"$f":"NR_to_Cash!F$9","v":-78023},null,2180,2845.1795671047898,-28593.495797943819,-325.50888186400636,-2811.7173836459488,null,-155327,-283877,-105647,-78023]
[2181,{"$error":"#NAME?"},{"$error":"#NAME?"},{"$error":"#NAME?"},{"$error":"#NAME?"},null,{"$f":"NR_to_Cash!C$9","v":-155327},{"$f":"NR_to_Cash!D$9","v":-283877},{"$f":"NR_to_Cash!E$9","v":-105647},{"$f":"NR_to_Cash!F$9","v":-78023},null,2181,-5123.9986478150013,1221.6747884748133,-42129.858147570711,-5325.7915480314859,null,-155327,-283877,-105647,-78023]
[2182,{"$error":"#NAME?"},{"$error":"#NAME?"},{"$error":"#NAME?"},{"$error":"#NAME?"},null,{"$f":"NR_to_Cash!C$9","v":-155327},{"$f":"NR_to_Cash!D$9","v":-283877},{"$f":"NR_to_Cash!E$9","v":-105647},{"$f":"NR_to_Cash!F$9","v":-78023},null,2182,-4407.9535399226224,-25547.205912371639,-22057.534586319416,-372.98299220854909,null,-155327,-283877,-105647,-78023]
[2183,{"$error":"#NAME?"},{"$error":"#NAME?"},{"$error":"#NAME?"},{"$error":"#NAME?"},null,{"$f":"NR_to_Cash!C$9","v":-155327},{"$f":"NR_to_Cash!D$9","v":-283877},{"$f":"NR_to_Cash!E$9","v":-105647},{"$f":"NR_to_Cash!F$9","v":-78023},null,2183,-2164.2420296482824,-13445.25158211222,7198.2223602530285,-46068.832421594248,null,-155327,-283877,-105647,-78023]
[2184,{"$error":"#NAME?"},{"$error":"#NAME?"},{"$error":"#NAME?"},{"$error":"#NAME?"},null,{"$f":"NR_to_Cash!C$9","v":-155327},{"$f":"NR_to_Cash!D$9","v":-283877},{"$f":"NR_to_Cash!E$9","v":-105647},{"$f":"NR_to_Cash!F$9","v":-78023},null,2184,-10016.873742105448,-14539.567186593642,-5580.4540607663594,4027.8635965872509,null,-155327,-283877,-105647,-78023]
[2185,{"$error":"#NAME?"},{"$error":"#NAME?"},{"$error":"#NAME?"},{"$error":"#NAME?"},null,{"$f":"NR_to_Cash!C$9","v":-155327},{"$f":"NR_to_Cash!D$9","v":-283877},{"$f":"NR_to_Cash!E$9","v":-105647},{"$f":"NR_to_Cash!F$9","v":-78023},null,2185,-13526.759094714122,-918.59430336342132,16721.830957953684,14757.168759731403,null,-155327,-283877,-105647,-78023]
[2186,{"$error":"#NAME?"},{"$error":"#NAME?"},{"$error":"#NAME?"},{"$error":"#NAME?"},null,{"$f":"NR_to_Cash!C$9","v":-155327},{"$f":"NR_to_Cash!D$9","v":-283877},{"$f":"NR_to_Cash!E$9","v":-105647},{"$f":"NR_to_Cash!F$9","v":-78023},null,2186,-5568.4930988804581,14642.674479907604,4936.1077657126816,-21433.847548484951,null,-155327,-283877,-105647,-78023]
[2187,{"$error":"#NAME?"},{"$error":"#NAME?"},{"$error":"#NAME?"},{"$error":"#NAME?"},null,{"$f":"NR_to_Cash!C$9","v":-155327},{"$f":"NR_to_Cash!D$9","v":-283877},{"$f":"NR_to_Cash!E$9","v":-105647},{"$f":"NR_to_Cash!F$9","v":-78023},null,2187,-7131.5380608478354,-18061.528405309582,-20878.43092803569,-19713.954421348484,null,-155327,-283877,-105647,-78023]
[2188,{"$error":"#NAME?"},{"$error":"#NAME?"},{"$error":"#NAME?"},{"$error":"#NAME?"},null,{"$f":"NR_to_Cash!C$9","v":-155327},{"$f":"NR_to_Cash!D$9","v":-283877},{"$f":"NR_to_Cash!E$9","v":-105647},{"$f":"NR_to_Cash!F$9","v":-78023},null,2188,4990.388507951202,-34787.492849907161,-11484.072787364881,-2088.9791360877739,null,-155327,-283877,-105647,-78023]
[2189,{"$error":"#NAME?"},{"$error":"#NAME?"},{"$error":"#NAME?"},{"$error":"#NAME?"},null,{"$f":"NR_to_Cash!C$9","v":-155327},{"$f":"NR_to_Cash!D$9","v":-283877},{"$f":"NR_to_Cash!E$9","v":-105647},{"$f":"NR_to_Cash!F$9","v":-78023},null,2189,-16219.326853598119,-19095.237394244337,-11257.951637961774,-17677.917628242816,null,-155327,-283877,-105647,-78023]
[2190,{"$error":"#NAME?"},{"$error":"#NAME?"},{"$error":"#NAME?"},{"$error":"#NAME?"},null,{"$f":"NR_to_Cash!C$9","v":-155327},{"$f":"NR_to_Cash!D$9","v":-283877},{"$f":"NR_to_Cash!E$9","v":-105647},{"$f":"NR_to_Cash!F$9","v":-78023},null,2190,-3793.1751547776948,-33835.494474606341,7732.5481778806661,-10217.158441977397,null,-155327,-283877,-105647,-78023]
[2191,{"$error":"#NAME?"},{"$error":"#NAME?"},{"$error":"#NAME?"},{"$error":"#NAME?"},null,{"$f":"NR_to_Cash!C$9","v":-155327},{"$f":"NR_to_Cash!D$9","v":-283877},{"$f":"NR_to_Cash!E$9","v":-105647},{"$f":"NR_to_Cash!F$9","v":-78023},null,2191,-28747.091740970129,11219.697238805464,108.43602067658503,-14006.349866285207,null,-155327,-283877,-105647,-78023]
[2192,{"$error":"#NAME?"},{"$error":"#NAME?"},{"$error":"#NAME?"},{"$error":"#NAME?"},null,{"$f":"NR_to_Cash!C$9","v":-155327},{"$f":"NR_to_Cash!D$9","v":-283877},{"$f":"NR_to_Cash!E$9","v":-105647},{"$f":"NR_to_Cash!F$9","v":-78023},null,2192,-3770.1113727466009,-6027.7636465837204,-19727.2176446925,3620.6323105484757,null,-155327,-283877,-105647,-78023]
[2193,{"$error":"#NAME?"},{"$error":"#NAME?"},{"$error":"#NAME?"},{"$error":"#NAME?"},null,{"$f":"NR_to_Cash!C$9","v":-155327},{"$f":"NR_to_Cash!D$9","v":-283877},{"$f":"NR_to_Cash!E$9","v":-105647},{"$f":"NR_to_Cash!F$9","v":-78023},null,2193,-16678.933119481011,-2669.6895547666986,-20297.575313987334,-39773.869104817881,null,-155327,-283877,-105647,-78023]
[2194,{"$error":"#NAME?"},{"$error":"#NAME?"},{"$error":"#NAME?"},{"$error":"#NAME?"},null,{"$f":"NR_to_Cash!C$9","v":-155327},{"$f":"NR_to_Cash!D$9","v":-283877},{"$f":"NR_to_Cash!E$9","v":-105647},{"$f":"NR_to_Cash!F$9","v":-78023},null,2194,12170.675540578237,810.25084680293821,-7912.7404665310614,-19792.11614584607,null,-155327,-283877,-105647,-78023]
[2195,{"$error":"#NAME?"},{"$error":"#NAME?"},{"$error":"#NAME?"},{"$error":"#NAME?"},null,{"$f":"NR_to_Cash!C$9","v":-155327},{"$f":"NR_to_Cash!D$9","v":-283877},{"$f":"NR_to_Cash!E$9","v":-105647},{"$f":"NR_to_Cash!F$9","v":-78023},null,2195,-11365.99968699825,-10511.878653481921,-28357.83509581062,-18035.434213315108,null,-155327,-283877,-105647,-78023]
[2196,{"$error":"#NAME?"},{"$error":"#NAME?"},{"$error":"#NAME?"},{"$error":"#NAME?"},null,{"$f":"NR_to_Cash!C$9","v":-155327},{"$f":"NR_to_Cash!D$9","v":-283877},{"$f":"NR_to_Cash!E$9","v":-105647},{"$f":"NR_to_Cash!F$9","v":-78023},null,2196,-9306.0110896878032,-39032.554253973882,-54375.005394630534,-3681.001847288127,null,-155327,-283877,-105647,-78023]
[2197,{"$error":"#NAME?"},{"$error":"#NAME?"},{"$error":"#NAME?"},{"$error":"#NAME?"},null,{"$f":"NR_to_Cash!C$9","v":-155327},{"$f":"NR_to_Cash!D$9","v":-283877},{"$f":"NR_to_Cash!E$9","v":-105647},{"$f":"NR_to_Cash!F$9","v":-78023},null,2197,-9732.494984687919,-12078.096677724126,-4118.0086855310883,-13460.301655964193,null,-155327,-283877,-105647,-78023]
[2198,{"$error":"#NAME?"},{"$error":"#NAME?"},{"$error":"#NAME?"},{"$error":"#NAME?"},null,{"$f":"NR_to_Cash!C$9","v":-155327},{"$f":"NR_to_Cash!D$9","v":-283877},{"$f":"NR_to_Cash!E$9","v":-105647},{"$f":"NR_to_Cash!F$9","v":-78023},null,2198,-19313.911666892378,13529.777375207237,-8639.1246700500415,-18024.114484754184,null,-155327,-283877,-105647,-78023]
[2199,{"$error":"#NAME?"},{"$error":"#NAME?"},{"$error":"#NAME?"},{"$error":"#NAME?"},null,{"$f":"NR_to_Cash!C$9","v":-155327},{"$f":"NR_to_Cash!D$9","v":-283877},{"$f":"NR_to_Cash!E$9","v":-105647},{"$f":"NR_to_Cash!F$9","v":-78023},null,2199,-22172.444341200731,3656.4726559235664,-11449.82374637025,-25963.665395681055,null,-155327,-283877,-105647,-78023]
[2200,{"$error":"#NAME?"},{"$error":"#NAME?"},{"$error":"#NAME?"},{"$error":"#NAME?"},null,{"$f":"NR_to_Cash!C$9","v":-155327},{"$f":"NR_to_Cash!D$9","v":-283877},{"$f":"NR_to_Cash!E$9","v":-105647},{"$f":"NR_to_Cash!F$9","v":-78023},null,2200,-6950.3974658517873,-9201.3097552738927,16744.877721215929,-3147.0525413283381,null,-155327,-283877,-105647,-78023]
[2201,{"$error":"#NAME?"},{"$error":"#NAME?"},{"$error":"#NAME?"},{"$error":"#NAME?"},null,{"$f":"NR_to_Cash!C$9","v":-155327},{"$f":"NR_to_Cash!D$9","v":-283877},{"$f":"NR_to_Cash!E$9","v":-105647},{"$f":"NR_to_Cash!F$9","v":-78023},null,2201,-8068.8282182650528,-26985.966845965693,18431.828059481333,-26889.402309807181,null,-155327,-283877,-105647,-78023]
[2202,{"$error":"#NAME?"},{"$error":"#NAME?"},{"$error":"#NAME?"},{"$error":"#NAME?"},null,{"$f":"NR_to_Cash!C$9","v":-155327},{"$f":"NR_to_Cash!D$9","v":-283877},{"$f":"NR_to_Cash!E$9","v":-105647},{"$f":"NR_to_Cash!F$9","v":-78023},null,2202,-780.1541212073522,3387.9998635252769,16719.026658124891,668.62813042681853,null,-155327,-283877,-105647,-78023]
[2203,{"$error":"#NAME?"},{"$error":"#NAME?"},{"$error":"#NAME?"},{"$error":"#NAME?"},null,{"$f":"NR_to_Cash!C$9","v":-155327},{"$f":"NR_to_Cash!D$9","v":-283877},{"$f":"NR_to_Cash!E$9","v":-105647},{"$f":"NR_to_Cash!F$9","v":-78023},null,2203,-15352.167554753734,-8013.5805733647248,10321.26169862047,2561.2537356691887,null,-155327,-283877,-105647,-78023]
[2204,{"$error":"#NAME?"},{"$error":"#NAME?"},{"$error":"#NAME?"},{"$error":"#NAME?"},null,{"$f":"NR_to_Cash!C$9","v":-155327},{"$f":"NR_to_Cash!D$9","v":-283877},{"$f":"NR_to_Cash!E$9","v":-105647},{"$f":"NR_to_Cash!F$9","v":-78023},null,2204,-6397.4769420901939,-1956.2417631849387,-2257.2256360570764,-26619.270367273122,null,-155327,-283877,-105647,-78023]
[2205,{"$error":"#NAME?"},{"$error":"#NAME?"},{"$error":"#NAME?"},{"$error":"#NAME?"},null,{"$f":"NR_to_Cash!C$9","v":-155327},{"$f":"NR_to_Cash!D$9","v":-283877},{"$f":"NR_to_Cash!E$9","v":-105647},{"$f":"NR_to_Cash!F$9","v":-78023},null,2205,-12704.272502902299,7398.2342800868637,-53046.098305076266,-23345.938466197946,null,-155327,-283877,-105647,-78023]
[2206,{"$error":"#NAME?"},{"$error":"#NAME?"},{"$error":"#NAME?"},{"$error":"#NAME?"},null,{"$f":"NR_to_Cash!C$9","v":-155327},{"$f":"NR_to_Cash!D$9","v":-283877},{"$f":"NR_to_Cash!E$9","v":-105647},{"$f":"NR_to_Cash!F$9","v":-78023},null,2206,-6900.5929824054529,9399.0290209459108,-15961.649492075667,5899.0949228746667,null,-155327,-283877,-105647,-78023]
[2207,{"$error":"#NAME?"},{"$error":"#NAME?"},{"$error":"#NAME?"},{"$error":"#NAME?"},null,{"$f":"NR_to_Cash!C$9","v":-155327},{"$f":"NR_to_Cash!D$9","v":-283877},{"$f":"NR_to_Cash!E$9","v":-105647},{"$f":"NR_to_Cash!F$9","v":-78023},null,2207,-6005.0213311726029,-33890.773930155301,-34143.931574433816,-27935.160385323539,null,-155327,-283877,-105647,-78023]
[2208,{"$error":"#NAME?"},{"$error":"#NAME?"},{"$error":"#NAME?"},{"$error":"#NAME?"},null,{"$f":"NR_to_Cash!C$9","v":-155327},{"$f":"NR_to_Cash!D$9","v":-283877},{"$f":"NR_to_Cash!E$9","v":-105647},{"$f":"NR_to_Cash!F$9","v":-78023},null,2208,-482.83124035915608,-10774.487356129248,-8174.5114824671018,-21494.507194202433,null,-155327,-283877,-105647,-78023]
[2209,{"$error":"#NAME?"},{"$error":"#NAME?"},{"$error":"#NAME?"},{"$error":"#NAME?"},null,{"$f":"NR_to_Cash!C$9","v":-155327},{"$f":"NR_to_Cash!D$9","v":-283877},{"$f":"NR_to_Cash!E$9","v":-105647},{"$f":"NR_to_Cash!F$9","v":-78023},null,2209,-31279.456136644396,-13894.455022420441,-10538.780500662018,-25775.121596429955,null,-155327,-283877,-105647,-78023]
[2210,{"$error":"#NAME?"},{"$error":"#NAME?"},{"$error":"#NAME?"},{"$error":"#NAME?"},null,{"$f":"NR_to_Cash!C$9","v":-155327},{"$f":"NR_to_Cash!D$9","v":-283877},{"$f":"NR_to_Cash!E$9","v":-105647},{"$f":"NR_to_Cash!F$9","v":-78023},null,2210,-11357.366780277876,914.65933299216465,-26139.625060911294,14510.818250142411,null,-155327,-283877,-105647,-78023]
[2211,{"$error":"#NAME?"},{"$error":"#NAME?"},{"$error":"#NAME?"},{"$error":"#NAME?"},null,{"$f":"NR_to_Cash!C$9","v":-155327},{"$f":"NR_to_Cash!D$9","v":-283877},{"$f":"NR_to_Cash!E$9","v":-105647},{"$f":"NR_to_Cash!F$9","v":-78023},null,2211,-14988.4771440562,-24410.784327035544,-19754.944048269674,-857.85759493065223,null,-155327,-283877,-105647,-78023]
[2212,{"$error":"#NAME?"},{"$error":"#NAME?"},{"$error":"#NAME?"},{"$error":"#NAME?"},null,{"$f":"NR_to_Cash!C$9","v":-155327},{"$f":"NR_to_Cash!D$9","v":-283877},{"$f":"NR_to_Cash!E$9","v":-105647},{"$f":"NR_to_Cash!F$9","v":-78023},null,2212,-11848.361750286809,-19447.263871540781,-9946.2923326085493,-9857.4805165200178,null,-155327,-283877,-105647,-78023]
[2213,{"$error":"#NAME?"},{"$error":"#NAME?"},{"$error":"#NAME?"},{"$error":"#NAME?"},null,{"$f":"NR_to_Cash!C$9","v":-155327},{"$f":"NR_to_Cash!D$9","v":-283877},{"$f":"NR_to_Cash!E$9","v":-105647},{"$f":"NR_to_Cash!F$9","v":-78023},null,2213,-15774.291062972476,-13087.419935063184,-2214.7635835300384,13652.636843885351,null,-155327,-283877,-105647,-78023]
[2214,{"$error":"#NAME?"},{"$error":"#NAME?"},{"$error":"#NAME?"},{"$error":"#NAME?"},null,{"$f":"NR_to_Cash!C$9","v":-155327},{"$f":"NR_to_Cash!D$9","v":-283877},{"$f":"NR_to_Cash!E$9","v":-105647},{"$f":"NR_to_Cash!F$9","v":-78023},null,2214,-19010.704805943129,-2080.7942796259549,7210.2130762267861,-32222.395488553979,null,-155327,-283877,-105647,-78023]
[2215,{"$error":"#NAME?"},{"$error":"#NAME?"},{"$error":"#NAME?"},{"$error":"#NAME?"},null,{"$f":"NR_to_Cash!C$9","v":-155327},{"$f":"NR_to_Cash!D$9","v":-283877},{"$f":"NR_to_Cash!E$9","v":-105647},{"$f":"NR_to_Cash!F$9","v":-78023},null,2215,-4870.7220898562646,8253.0337171652027,-11501.0404835998,-1067.6463813754003,null,-155327,-283877,-105647,-78023]
[2216,{"$error":"#NAME?"},{"$error":"#NAME?"},{"$error":"#NAME?"},{"$error":"#NAME?"},null,{"$f":"NR_to_Cash!C$9","v":-155327},{"$f":"NR_to_Cash!D$9","v":-283877},{"$f":"NR_to_Cash!E$9","v":-105647},{"$f":"NR_to_Cash!F$9","v":-78023},null,2216,-31943.084924176819,-3100.1276409451798,-16652.561867170618,-19081.271830653248,null,-155327,-283877,-105647,-78023]
[2217,{"$error":"#NAME?"},{"$error":"#NAME?"},{"$error":"#NAME?"},{"$error":"#NAME?"},null,{"$f":"NR_to_Cash!C$9","v":-155327},{"$f":"NR_to_Cash!D$9","v":-283877},{"$f":"NR_to_Cash!E$9","v":-105647},{"$f":"NR_to_Cash!F$9","v":-78023},null,2217,-15462.620253511792,-26946.993573861018,2381.1435111367823,-28929.178827272004,null,-155327,-283877,-105647,-78023]
[2218,{"$error":"#NAME?"},{"$error":"#NAME?"},{"$error":"#NAME?"},{"$error":"#NAME?"},null,{"$f":"NR_to_Cash!C$9","v":-155327},{"$f":"NR_to_Cash!D$9","v":-283877},{"$f":"NR_to_Cash!E$9","v":-105647},{"$f":"NR_to_Cash!F$9","v":-78023},null,2218,-17055.097092078671,-20010.993342574868,-19752.449231306233,-14720.406484056559,null,-155327,-283877,-105647,-78023]
[2219,{"$error":"#NAME?"},{"$error":"#NAME?"},{"$error":"#NAME?"},{"$error":"#NAME?"},null,{"$f":"NR_to_Cash!C$9","v":-155327},{"$f":"NR_to_Cash!D$9","v":-283877},{"$f":"NR_to_Cash!E$9","v":-105647},{"$f":"NR_to_Cash!F$9","v":-78023},null,2219,-26928.114887446784,-4452.6021364374092,-9143.3121166878191,-23274.818283244455,null,-155327,-283877,-105647,-78023]
[2220,{"$error":"#NAME?"},{"$error":"#NAME?"},{"$error":"#NAME?"},{"$error":"#NAME?"},null,{"$f":"NR_to_Cash!C$9","v":-155327},{"$f":"NR_to_Cash!D$9","v":-283877},{"$f":"NR_to_Cash!E$9","v":-105647},{"$f":"NR_to_Cash!F$9","v":-78023},null,2220,-3178.7488605731724,-15333.908103441321,-39144.322708850683,-23332.996060720365,null,-155327,-283877,-105647,-78023]
[2221,{"$error":"#NAME?"},{"$error":"#NAME?"},{"$error":"#NAME?"},{"$error":"#NAME?"},null,{"$f":"NR_to_Cash!C$9","v":-155327},{"$f":"NR_to_Cash!D$9","v":-283877},{"$f":"NR_to_Cash!E$9","v":-105647},{"$f":"NR_to_Cash!F$9","v":-78023},null,2221,-22657.652503625526,-5266.6906414449059,-14508.986947676611,-32525.6043523277,null,-155327,-283877,-105647,-78023]
[2222,{"$error":"#NAME?"},{"$error":"#NAME?"},{"$error":"#NAME?"},{"$error":"#NAME?"},null,{"$f":"NR_to_Cash!C$9","v":-155327},{"$f":"NR_to_Cash!D$9","v":-283877},{"$f":"NR_to_Cash!E$9","v":-105647},{"$f":"NR_to_Cash!F$9","v":-78023},null,2222,-4112.5871126089251,-33371.000881745349,-8869.2845227363887,-16706.411766654724,null,-155327,-283877,-105647,-78023]
[2223,{"$error":"#NAME?"},{"$error":"#NAME?"},{"$error":"#NAME?"},{"$error":"#NAME?"},null,{"$f":"NR_to_Cash!C$9","v":-155327},{"$f":"NR_to_Cash!D$9","v":-283877},{"$f":"NR_to_Cash!E$9","v":-105647},{"$f":"NR_to_Cash!F$9","v":-78023},null,2223,-3923.7746685762245,-1824.2249804357618,-5303.4894145588642,-7542.1464330298932,null,-155327,-283877,-105647,-78023]
[2224,{"$error":"#NAME?"},{"$error":"#NAME?"},{"$error":"#NAME?"},{"$error":"#NAME?"},null,{"$f":"NR_to_Cash!C$9","v":-155327},{"$f":"NR_to_Cash!D$9","v":-283877},{"$f":"NR_to_Cash!E$9","v":-105647},{"$f":"NR_to_Cash!F$9","v":-78023},null,2224,-7434.8008361276716,5153.5332438406676,-2075.1370454033881,-7091.4338981793035,null,-155327,-283877,-105647,-78023]
[2225,{"$error":"#NAME?"},{"$error":"#NAME?"},{"$error":"#NAME?"},{"$error":"#NAME?"},null,{"$f":"NR_to_Cash!C$9","v":-155327},{"$f":"NR_to_Cash!D$9","v":-283877},{"$f":"NR_to_Cash!E$9","v":-105647},{"$f":"NR_to_Cash!F$9","v":-78023},null,2225,-6632.6220436900239,-6999.4934005079867,-42317.159963802835,-35453.977187327444,null,-155327,-283877,-105647,-78023]
[2226,{"$error":"#NAME?"},{"$error":"#NAME?"},{"$error":"#NAME?"},{"$error":"#NAME?"},null,{"$f":"NR_to_Cash!C$9","v":-155327},{"$f":"NR_to_Cash!D$9","v":-283877},{"$f":"NR_to_Cash!E$9","v":-105647},{"$f":"NR_to_Cash!F$9","v":-78023},null,2226,-20276.82272924361,-4173.2408562999408,13885.356166025485,4253.6912733828085,null,-155327,-283877,-105647,-78023]
[2227,{"$error":"#NAME?"},{"$error":"#NAME?"},{"$error":"#NAME?"},{"$error":"#NAME?"},null,{"$f":"NR_to_Cash!C$9","v":-155327},{"$f":"NR_to_Cash!D$9","v":-283877},{"$f":"NR_to_Cash!E$9","v":-105647},{"$f":"NR_to_Cash!F$9","v":-78023},null,2227,-15894.102967372186,-14659.270507539686,-1013.8096397586914,-16489.863102505129,null,-155327,-283877,-105647,-78023]
[2228,{"$error":"#NAME?"},{"$error":"#NAME?"},{"$error":"#NAME?"},{"$error":"#NAME?"},null,{"$f":"NR_to_Cash!C$9","v":-155327},{"$f":"NR_to_Cash!D$9","v":-283877},{"$f":"NR_to_Cash!E$9","v":-105647},{"$f":"NR_to_Cash!F$9","v":-78023},null,2228,-23633.6636059825,-15405.053726894348,19715.079968624985,-25598.068667301886,null,-155327,-283877,-105647,-78023]
[2229,{"$error":"#NAME?"},{"$error":"#NAME?"},{"$error":"#NAME?"},{"$error":"#NAME?"},null,{"$f":"NR_to_Cash!C$9","v":-155327},{"$f":"NR_to_Cash!D$9","v":-283877},{"$f":"NR_to_Cash!E$9","v":-105647},{"$f":"NR_to_Cash!F$9","v":-78023},null,2229,-10624.733723269688,1477.9060160421632,-19419.172329213503,-38012.406404586291,null,-155327,-283877,-105647,-78023]
[2230,{"$error":"#NAME?"},{"$error":"#NAME?"},{"$error":"#NAME?"},{"$error":"#NAME?"},null,{"$f":"NR_to_Cash!C$9","v":-155327},{"$f":"NR_to_Cash!D$9","v":-283877},{"$f":"NR_to_Cash!E$9","v":-105647},{"$f":"NR_to_Cash!F$9","v":-78023},null,2230,-14792.87215771412,3716.0390950498759,-30538.695382509864,5874.7927760320581,null,-155327,-283877,-105647,-78023]
[2231,{"$error":"#NAME?"},{"$error":"#NAME?"},{"$error":"#NAME?"},{"$error":"#NAME?"},null,{"$f":"NR_to_Cash!C$9","v":-155327},{"$f":"NR_to_Cash!D$9","v":-283877},{"$f":"NR_to_Cash!E$9","v":-105647},{"$f":"NR_to_Cash!F$9","v":-78023},null,2231,-27869.902492267502,2292.2244365265583,5913.6831715957533,17421.72246878688,null,-155327,-283877,-105647,-78023]
[2232,{"$error":"#NAME?"},{"$error":"#NAME?"},{"$error":"#NAME?"},{"$error":"#NAME?"},null,{"$f":"NR_to_Cash!C$9","v":-155327},{"$f":"NR_to_Cash!D$9","v":-283877},{"$f":"NR_to_Cash!E$9","v":-105647},{"$f":"NR_to_Cash!F$9","v":-78023},null,2232,-25688.985981013364,19804.669381805594,-10876.102164279597,-16121.010240627089,null,-155327,-283877,-105647,-78023]
[2233,{"$error":"#NAME?"},{"$error":"#NAME?"},{"$error":"#NAME?"},{"$error":"#NAME?"},null,{"$f":"NR_to_Cash!C$9","v":-155327},{"$f":"NR_to_Cash!D$9","v":-283877},{"$f":"NR_to_Cash!E$9","v":-105647},{"$f":"NR_to_Cash!F$9","v":-78023},null,2233,-11687.994575614233,11100.994872067426,6671.2786993561467,742.48445890331107,null,-155327,-283877,-105647,-78023]
[2234,{"$error":"#NAME?"},{"$error":"#NAME?"},{"$error":"#NAME?"},{"$error":"#NAME?"},null,{"$f":"NR_to_Cash!C$9","v":-155327},{"$f":"NR_to_Cash!D$9","v":-283877},{"$f":"NR_to_Cash!E$9","v":-105647},{"$f":"NR_to_Cash!F$9","v":-78023},null,2234,-11378.426530798517,-26422.416253443662,-9097.4840967222699,-11248.701041267652,null,-155327,-283877,-105647,-78023]
[2235,{"$error":"#NAME?"},{"$error":"#NAME?"},{"$error":"#NAME?"},{"$error":"#NAME?"},null,{"$f":"NR_to_Cash!C$9","v":-155327},{"$f":"NR_to_Cash!D$9","v":-283877},{"$f":"NR_to_Cash!E$9","v":-105647},{"$f":"NR_to_Cash!F$9","v":-78023},null,2235,-10180.638370904029,-24024.28418557666,-35834.893762487358,4016.2507731964174,null,-155327,-283877,-105647,-78023]
[2236,{"$error":"#NAME?"},{"$error":"#NAME?"},{"$error":"#NAME?"},{"$error":"#NAME?"},null,{"$f":"NR_to_Cash!C$9","v":-155327},{"$f":"NR_to_Cash!D$9","v":-283877},{"$f":"NR_to_Cash!E$9","v":-105647},{"$f":"NR_to_Cash!F$9","v":-78023},null,2236,-26301.89959322954,-23814.530859836868,6999.2634580379845,1811.9759350313307,null,-155327,-283877,-105647,-78023]
[2237,{"$error":"#NAME?"},{"$error":"#NAME?"},{"$error":"#NAME?"},{"$error":"#NAME?"},null,{"$f":"NR_to_Cash!C$9","v":-155327},{"$f":"NR_to_Cash!D$9","v":-283877},{"$f":"NR_to_Cash!E$9","v":-105647},{"$f":"NR_to_Cash!F$9","v":-78023},null,2237,-9230.7402014177969,-33844.915732970236,-11243.189516136476,-4070.4095255274824,null,-155327,-283877,-105647,-78023]
[2238,{"$error":"#NAME?"},{"$error":"#NAME?"},{"$error":"#NAME?"},{"$error":"#NAME?"},null,{"$f":"NR_to_Cash!C$9","v":-155327},{"$f":"NR_to_Cash!D$9","v":-283877},{"$f":"NR_to_Cash!E$9","v":-105647},{"$f":"NR_to_Cash!F$9","v":-78023},null,2238,-28211.660798789198,-11199.202093573162,-9128.6266842423192,2053.2743999701006,null,-155327,-283877,-105647,-78023]
[2239,{"$error":"#NAME?"},{"$error":"#NAME?"},{"$error":"#NAME?"},{"$error":"#NAME?"},null,{"$f":"NR_to_Cash!C$9","v":-155327},{"$f":"NR_to_Cash!D$9","v":-283877},{"$f":"NR_to_Cash!E$9","v":-105647},{"$f":"NR_to_Cash!F$9","v":-78023},null,2239,4287.4812945023205,-20176.080598307519,5188.6854824084821,-1597.9019316528236,null,-155327,-283877,-105647,-78023]
[2240,{"$error":"#NAME?"},{"$error":"#NAME?"},{"$error":"#NAME?"},{"$error":"#NAME?"},null,{"$f":"NR_to_Cash!C$9","v":-155327},{"$f":"NR_to_Cash!D$9","v":-283877},{"$f":"NR_to_Cash!E$9","v":-105647},{"$f":"NR_to_Cash!F$9","v":-78023},null,2240,920.85709878618536,-9048.3875908123009,1126.19807581447,-298.888586122199,null,-155327,-283877,-105647,-78023]
[2241,{"$error":"#NAME?"},{"$error":"#NAME?"},{"$error":"#NAME?"},{"$error":"#NAME?"},null,{"$f":"NR_to_Cash!C$9","v":-155327},{"$f":"NR_to_Cash!D$9","v":-283877},{"$f":"NR_to_Cash!E$9","v":-105647},{"$f":"NR_to_Cash!F$9","v":-78023},null,2241,-19452.98923969924,-21609.82097461693,-2903.2594973001997,-34512.863088136051,null,-155327,-283877,-105647,-78023]
[2242,{"$error":"#NAME?"},{"$error":"#NAME?"},{"$error":"#NAME?"},{"$error":"#NAME?"},null,{"$f":"NR_to_Cash!C$9","v":-155327},{"$f":"NR_to_Cash!D$9","v":-283877},{"$f":"NR_to_Cash!E$9","v":-105647},{"$f":"NR_to_Cash!F$9","v":-78023},null,2242,-15579.57701603806,-1274.6944080522183,-12722.016916689972,-12387.036748246246,null,-155327,-283877,-105647,-78023]
[2243,{"$error":"#NAME?"},{"$error":"#NAME?"},{"$error":"#NAME?"},{"$error":"#NAME?"},null,{"$f":"NR_to_Cash!C$9","v":-155327},{"$f":"NR_to_Cash!D$9","v":-283877},{"$f":"NR_to_Cash!E$9","v":-105647},{"$f":"NR_to_Cash!F$9","v":-78023},null,2243,-24420.306977954075,9556.7620810518329,5772.6155480601756,2491.1768993004375,null,-155327,-283877,-105647,-78023]
[2244,{"$error":"#NAME?"},{"$error":"#NAME?"},{"$error":"#NAME?"},{"$error":"#NAME?"},null,{"$f":"NR_to_Cash!C$9","v":-155327},{"$f":"NR_to_Cash!D$9","v":-283877},{"$f":"NR_to_Cash!E$9","v":-105647},{"$f":"NR_to_Cash!F$9","v":-78023},null,2244,-17150.265447001268,1019.7627050773727,-11954.184133139379,26092.043126574998,null,-155327,-283877,-105647,-78023]
[2245,{"$error":"#NAME?"},{"$error":"#NAME?"},{"$error":"#NAME?"},{"$error":"#NAME?"},null,{"$f":"NR_to_Cash!C$9","v":-155327},{"$f":"NR_to_Cash!D$9","v":-283877},{"$f":"NR_to_Cash!E$9","v":-105647},{"$f":"NR_to_Cash!F$9","v":-78023},null,2245,-3408.4765477637457,-2543.8720073946515,-15552.796980231486,-13258.434932784165,null,-155327,-283877,-105647,-78023]
[2246,{"$error":"#NAME?"},{"$error":"#NAME?"},{"$error":"#NAME?"},{"$error":"#NAME?"},null,{"$f":"NR_to_Cash!C$9","v":-155327},{"$f":"NR_to_Cash!D$9","v":-283877},{"$f":"NR_to_Cash!E$9","v":-105647},{"$f":"NR_to_Cash!F$9","v":-78023},null,2246,-33544.482947092249,-21349.06558129493,-33437.350051119145,-20342.774309996585,null,-155327,-283877,-105647,-78023]
[2247,{"$error":"#NAME?"},{"$error":"#NAME?"},{"$error":"#NAME?"},{"$error":"#NAME?"},null,{"$f":"NR_to_Cash!C$9","v":-155327},{"$f":"NR_to_Cash!D$9","v":-283877},{"$f":"NR_to_Cash!E$9","v":-105647},{"$f":"NR_to_Cash!F$9","v":-78023},null,2247,-22265.46659880114,3782.7962754912883,-11040.663966617711,-43156.228435726982,null,-155327,-283877,-105647,-78023]
[2248,{"$error":"#NAME?"},{"$error":"#NAME?"},{"$error":"#NAME?"},{"$error":"#NAME?"},null,{"$f":"NR_to_Cash!C$9","v":-155327},{"$f":"NR_to_Cash!D$9","v":-283877},{"$f":"NR_to_Cash!E$9","v":-105647},{"$f":"NR_to_Cash!F$9","v":-78023},null,2248,-9633.0306539980884,-11047.861791956024,3857.1240614367453,-4337.6608138451975,null,-155327,-283877,-105647,-78023]
[2249,{"$error":"#NAME?"},{"$error":"#NAME?"},{"$error":"#NAME?"},{"$error":"#NAME?"},null,{"$f":"NR_to_Cash!C$9","v":-155327},{"$f":"NR_to_Cash!D$9","v":-283877},{"$f":"NR_to_Cash!E$9","v":-105647},{"$f":"NR_to_Cash!F$9","v":-78023},null,2249,-12190.144269629518,6395.3162634617711,3373.405752433302,-19893.926072039056,null,-155327,-283877,-105647,-78023]
[2250,{"$error":"#NAME?"},{"$error":"#NAME?"},{"$error":"#NAME?"},{"$error":"#NAME?"},null,{"$f":"NR_to_Cash!C$9","v":-155327},{"$f":"NR_to_Cash!D$9","v":-283877},{"$f":"NR_to_Cash!E$9","v":-105647},{"$f":"NR_to_Cash!F$9","v":-78023},null,2250,-10944.108213755128,-20618.446485746932,1503.8843655538551,-15971.525029002551,null,-155327,-283877,-105647,-78023]
[2251,{"$error":"#NAME?"},{"$error":"#NAME?"},{"$error":"#NAME?"},{"$error":"#NAME?"},null,{"$f":"NR_to_Cash!C$9","v":-155327},{"$f":"NR_to_Cash!D$9","v":-283877},{"$f":"NR_to_Cash!E$9","v":-105647},{"$f":"NR_to_Cash!F$9","v":-78023},null,2251,-21067.727778560526,-16999.888975790862,-9112.3873848972526,1631.7167056645342,null,-155327,-283877,-105647,-78023]
[2252,{"$error":"#NAME?"},{"$error":"#NAME?"},{"$error":"#NAME?"},{"$error":"#NAME?"},null,{"$f":"NR_to_Cash!C$9","v":-155327},{"$f":"NR_to_Cash!D$9","v":-283877},{"$f":"NR_to_Cash!E$9","v":-105647},{"$f":"NR_to_Cash!F$9","v":-78023},null,2252,-29142.349242499819,-5243.3407449831548,-13350.605307221176,3249.883619992353,null,-155327,-283877,-105647,-78023]
[2253,{"$error":"#NAME?"},{"$error":"#NAME?"},{"$error":"#NAME?"},{"$error":"#NAME?"},null,{"$f":"NR_to_Cash!C$9","v":-155327},{"$f":"NR_to_Cash!D$9","v":-283877},{"$f":"NR_to_Cash!E$9","v":-105647},{"$f":"NR_to_Cash!F$9","v":-78023},null,2253,-10437.47187315404,-2445.2435678191828,-37246.463358260386,7876.0144963955991,null,-155327,-283877,-105647,-78023]
[2254,{"$error":"#NAME?"},{"$error":"#NAME?"},{"$error":"#NAME?"},{"$error":"#NAME?"},null,{"$f":"NR_to_Cash!C$9","v":-155327},{"$f":"NR_to_Cash!D$9","v":-283877},{"$f":"NR_to_Cash!E$9","v":-105647},{"$f":"NR_to_Cash!F$9","v":-78023},null,2254,-22113.36426486016,-16856.143791254101,-20044.289936069817,3425.099703361434,null,-155327,-283877,-105647,-78023]
[2255,{"$error":"#NAME?"},{"$error":"#NAME?"},{"$error":"#NAME?"},{"$error":"#NAME?"},null,{"$f":"NR_to_Cash!C$9","v":-155327},{"$f":"NR_to_Cash!D$9","v":-283877},{"$f":"NR_to_Cash!E$9","v":-105647},{"$f":"NR_to_Cash!F$9","v":-78023},null,2255,1079.4306560671657,-8015.9499047070185,13174.063579832917,-40813.930189408951,null,-155327,-283877,-105647,-78023]
[2256,{"$error":"#NAME?"},{"$error":"#NAME?"},{"$error":"#NAME?"},{"$error":"#NAME?"},null,{"$f":"NR_to_Cash!C$9","v":-155327},{"$f":"NR_to_Cash!D$9","v":-283877},{"$f":"NR_to_Cash!E$9","v":-105647},{"$f":"NR_to_Cash!F$9","v":-78023},null,2256,4145.994429362494,-7943.0153603419312,-7420.1667028314178,14622.933076299196,null,-155327,-283877,-105647,-78023]
[2257,{"$error":"#NAME?"},{"$error":"#NAME?"},{"$error":"#NAME?"},{"$error":"#NAME?"},null,{"$f":"NR_to_Cash!C$9","v":-155327},{"$f":"NR_to_Cash!D$9","v":-283877},{"$f":"NR_to_Cash!E$9","v":-105647},{"$f":"NR_to_Cash!F$9","v":-78023},null,2257,-17081.674907833123,5501.1459026433613,-10838.054281017517,20068.005631048043,null,-155327,-283877,-105647,-78023]
[2258,{"$error":"#NAME?"},{"$error":"#NAME?"},{"$error":"#NAME?"},{"$error":"#NAME?"},null,{"$f":"NR_to_Cash!C$9","v":-155327},{"$f":"NR_to_Cash!D$9","v":-283877},{"$f":"NR_to_Cash!E$9","v":-105647},{"$f":"NR_to_Cash!F$9","v":-78023},null,2258,-17254.737741684214,6678.9148993389763,7149.3524402653766,-32710.900547628,null,-155327,-283877,-105647,-78023]
[2259,{"$error":"#NAME?"},{"$error":"#NAME?"},{"$error":"#NAME?"},{"$error":"#NAME?"},null,{"$f":"NR_to_Cash!C$9","v":-155327},{"$f":"NR_to_Cash!D$9","v":-283877},{"$f":"NR_to_Cash!E$9","v":-105647},{"$f":"NR_to_Cash!F$9","v":-78023},null,2259,-7796.8354979600181,-15069.186265620472,-24758.465593694633,-3906.4212995242383,null,-155327,-283877,-105647,-78023]
[2260,{"$error":"#NAME?"},{"$error":"#NAME?"},{"$error":"#NAME?"},{"$error":"#NAME?"},null,{"$f":"NR_to_Cash!C$9","v":-155327},{"$f":"NR_to_Cash!D$9","v":-283877},{"$f":"NR_to_Cash!E$9","v":-105647},{"$f":"NR_to_Cash!F$9","v":-78023},null,2260,-4580.3677873435799,-10917.734818093097,-12456.013546227736,-23822.718388540048,null,-155327,-283877,-105647,-78023]
[2261,{"$error":"#NAME?"},{"$error":"#NAME?"},{"$error":"#NAME?"},{"$error":"#NAME?"},null,{"$f":"NR_to_Cash!C$9","v":-155327},{"$f":"NR_to_Cash!D$9","v":-283877},{"$f":"NR_to_Cash!E$9","v":-105647},{"$f":"NR_to_Cash!F$9","v":-78023},null,2261,-8389.7986783386423,-9829.457096764605,-26264.385905657058,-6393.3559175399123,null,-155327,-283877,-105647,-78023]
[2262,{"$error":"#NAME?"},{"$error":"#NAME?"},{"$error":"#NAME?"},{"$error":"#NAME?"},null,{"$f":"NR_to_Cash!C$9","v":-155327},{"$f":"NR_to_Cash!D$9","v":-283877},{"$f":"NR_to_Cash!E$9","v":-105647},{"$f":"NR_to_Cash!F$9","v":-78023},null,2262,1562.4813537864427,-25613.651552825268,9218.4586835351511,-41307.772260241247,null,-155327,-283877,-105647,-78023]
[2263,{"$error":"#NAME?"},{"$error":"#NAME?"},{"$error":"#NAME?"},{"$error":"#NAME?"},null,{"$f":"NR_to_Cash!C$9","v":-155327},{"$f":"NR_to_Cash!D$9","v":-283877},{"$f":"NR_to_Cash!E$9","v":-105647},{"$f":"NR_to_Cash!F$9","v":-78023},null,2263,-11354.81679020587,-26495.395633704415,-20173.352801235764,-7618.2702705980828,null,-155327,-283877,-105647,-78023]
[2264,{"$error":"#NAME?"},{"$error":"#NAME?"},{"$error":"#NAME?"},{"$error":"#NAME?"},null,{"$f":"NR_to_Cash!C$9","v":-155327},{"$f":"NR_to_Cash!D$9","v":-283877},{"$f":"NR_to_Cash!E$9","v":-105647},{"$f":"NR_to_Cash!F$9","v":-78023},null,2264,2526.8146445131433,-17219.385239100811,-23503.183991699458,-487.52192419270978,null,-155327,-283877,-105647,-78023]
[2265,{"$error":"#NAME?"},{"$error":"#NAME?"},{"$error":"#NAME?"},{"$error":"#NAME?"},null,{"$f":"NR_to_Cash!C$9","v":-155327},{"$f":"NR_to_Cash!D$9","v":-283877},{"$f":"NR_to_Cash!E$9","v":-105647},{"$f":"NR_to_Cash!F$9","v":-78023},null,2265,-19993.651136364831,11158.185659402212,-5813.4818997242364,-6401.8286100381238,null,-155327,-283877,-105647,-78023]
[2266,{"$error":"#NAME?"},{"$error":"#NAME?"},{"$error":"#NAME?"},{"$error":"#NAME?"},null,{"$f":"NR_to_Cash!C$9","v":-155327},{"$f":"NR_to_Cash!D$9","v":-283877},{"$f":"NR_to_Cash!E$9","v":-105647},{"$f":"NR_to_Cash!F$9","v":-78023},null,2266,-11567.514634756306,-38559.023800786839,3345.9435454463824,5380.185171960864,null,-155327,-283877,-105647,-78023]
[2267,{"$error":"#NAME?"},{"$error":"#NAME?"},{"$error":"#NAME?"},{"$error":"#NAME?"},null,{"$f":"NR_to_Cash!C$9","v":-155327},{"$f":"NR_to_Cash!D$9","v":-283877},{"$f":"NR_to_Cash!E$9","v":-105647},{"$f":"NR_to_Cash!F$9","v":-78023},null,2267,-6765.8514097556308,-7997.5041561762555,-19100.572077251611,10389.048356709756,null,-155327,-283877,-105647,-78023]
[2268,{"$error":"#NAME?"},{"$error":"#NAME?"},{"$error":"#NAME?"},{"$error":"#NAME?"},null,{"$f":"NR_to_Cash!C$9","v":-155327},{"$f":"NR_to_Cash!D$9","v":-283877},{"$f":"NR_to_Cash!E$9","v":-105647},{"$f":"NR_to_Cash!F$9","v":-78023},null,2268,-10598.526603136037,-450.28472998626791,-13873.423398184288,-15042.924373660533,null,-155327,-283877,-105647,-78023]
[2269,{"$error":"#NAME?"},{"$error":"#NAME?"},{"$error":"#NAME?"},{"$error":"#NAME?"},null,{"$f":"NR_to_Cash!C$9","v":-155327},{"$f":"NR_to_Cash!D$9","v":-283877},{"$f":"NR_to_Cash!E$9","v":-105647},{"$f":"NR_to_Cash!F$9","v":-78023},null,2269,-11151.884735265128,3489.7871208235047,-8129.3348290135691,-6849.587028552045,null,-155327,-283877,-105647,-78023]
[2270,{"$error":"#NAME?"},{"$error":"#NAME?"},{"$error":"#NAME?"},{"$error":"#NAME?"},null,{"$f":"NR_to_Cash!C$9","v":-155327},{"$f":"NR_to_Cash!D$9","v":-283877},{"$f":"NR_to_Cash!E$9","v":-105647},{"$f":"NR_to_Cash!F$9","v":-78023},null,2270,-10083.652051082203,-2584.1214019907543,-2396.3833455913209,4253.9492737433666,null,-155327,-283877,-105647,-78023]
[2271,{"$error":"#NAME?"},{"$error":"#NAME?"},{"$error":"#NAME?"},{"$error":"#NAME?"},null,{"$f":"NR_to_Cash!C$9","v":-155327},{"$f":"NR_to_Cash!D$9","v":-283877},{"$f":"NR_to_Cash!E$9","v":-105647},{"$f":"NR_to_Cash!F$9","v":-78023},null,2271,-14340.725910839246,-11090.363478158351,-17795.376396276515,-7726.7997342108501,null,-155327,-283877,-105647,-78023]
[2272,{"$error":"#NAME?"},{"$error":"#NAME?"},{"$error":"#NAME?"},{"$error":"#NAME?"},null,{"$f":"NR_to_Cash!C$9","v":-155327},{"$f":"NR_to_Cash!D$9","v":-283877},{"$f":"NR_to_Cash!E$9","v":-105647},{"$f":"NR_to_Cash!F$9","v":-78023},null,2272,-5351.3773013170585,-15289.442951904997,-8141.8639275452624,-7828.2223336582501,null,-155327,-283877,-105647,-78023]
[2273,{"$error":"#NAME?"},{"$error":"#NAME?"},{"$error":"#NAME?"},{"$error":"#NAME?"},null,{"$f":"NR_to_Cash!C$9","v":-155327},{"$f":"NR_to_Cash!D$9","v":-283877},{"$f":"NR_to_Cash!E$9","v":-105647},{"$f":"NR_to_Cash!F$9","v":-78023},null,2273,-11007.959636974625,-10710.340206344841,-26606.159645103162,5750.724375581859,null,-155327,-283877,-105647,-78023]
[2274,{"$error":"#NAME?"},{"$error":"#NAME?"},{"$error":"#NAME?"},{"$error":"#NAME?"},null,{"$f":"NR_to_Cash!C$9","v":-155327},{"$f":"NR_to_Cash!D$9","v":-283877},{"$f":"NR_to_Cash!E$9","v":-105647},{"$f":"NR_to_Cash!F$9","v":-78023},null,2274,-19781.734359585877,-5478.0147670538299,6698.7639731469453,-25334.297799003834,null,-155327,-283877,-105647,-78023]
[2275,{"$error":"#NAME?"},{"$error":"#NAME?"},{"$error":"#NAME?"},{"$error":"#NAME?"},null,{"$f":"NR_to_Cash!C$9","v":-155327},{"$f":"NR_to_Cash!D$9","v":-283877},{"$f":"NR_to_Cash!E$9","v":-105647},{"$f":"NR_to_Cash!F$9","v":-78023},null,2275,-5903.37625923818,-30296.733266805379,-11411.239297915907,9508.1689464173978,null,-155327,-283877,-105647,-78023]
[2276,{"$error":"#NAME?"},{"$error":"#NAME?"},{"$error":"#NAME?"},{"$error":"#NAME?"},null,{"$f":"NR_to_Cash!C$9","v":-155327},{"$f":"NR_to_Cash!D$9","v":-283877},{"$f":"NR_to_Cash!E$9","v":-105647},{"$f":"NR_to_Cash!F$9","v":-78023},null,2276,-56.171497084016067,11681.487495137279,-2476.2929388672528,-11651.60646932328,null,-155327,-283877,-105647,-78023]
[2277,{"$error":"#NAME?"},{"$error":"#NAME?"},{"$error":"#NAME?"},{"$error":"#NAME?"},null,{"$f":"NR_to_Cash!C$9","v":-155327},{"$f":"NR_to_Cash!D$9","v":-283877},{"$f":"NR_to_Cash!E$9","v":-105647},{"$f":"NR_to_Cash!F$9","v":-78023},null,2277,-6122.9477188920355,-5067.3811143179655,2583.4141268008925,-19278.094594939583,null,-155327,-283877,-105647,-78023]
[2278,{"$error":"#NAME?"},{"$error":"#NAME?"},{"$error":"#NAME?"},{"$error":"#NAME?"},null,{"$f":"NR_to_Cash!C$9","v":-155327},{"$f":"NR_to_Cash!D$9","v":-283877},{"$f":"NR_to_Cash!E$9","v":-105647},{"$f":"NR_to_Cash!F$9","v":-78023},null,2278,-14170.860880173028,-11384.732640958477,2379.4801048944519,-9141.5895459153817,null,-155327,-283877,-105647,-78023]
[2279,{"$error":"#NAME?"},{"$error":"#NAME?"},{"$error":"#NAME?"},{"$error":"#NAME?"},null,{"$f":"NR_to_Cash!C$9","v":-155327},{"$f":"NR_to_Cash!D$9","v":-283877},{"$f":"NR_to_Cash!E$9","v":-105647},{"$f":"NR_to_Cash!F$9","v":-78023},null,2279,4876.9205595251924,9608.9827043992191,-2471.6862609024365,-35146.213690780489,null,-155327,-283877,-105647,-78023]
[2280,{"$error":"#NAME?"},{"$error":"#NAME?"},{"$error":"#NAME?"},{"$error":"#NAME?"},null,{"$f":"NR_to_Cash!C$9","v":-155327},{"$f":"NR_to_Cash!D$9","v":-283877},{"$f":"NR_to_Cash!E$9","v":-105647},{"$f":"NR_to_Cash!F$9","v":-78023},null,2280,-1795.4560902305275,-17860.213597300601,-27159.243025769436,-6349.5981661191981,null,-155327,-283877,-105647,-78023]
[2281,{"$error":"#NAME?"},{"$error":"#NAME?"},{"$error":"#NAME?"},{"$error":"#NAME?"},null,{"$f":"NR_to_Cash!C$9","v":-155327},{"$f":"NR_to_Cash!D$9","v":-283877},{"$f":"NR_to_Cash!E$9","v":-105647},{"$f":"NR_to_Cash!F$9","v":-78023},null,2281,-15020.733618471513,3217.7537855746787,-15024.786088213672,9339.7767392752448,null,-155327,-283877,-105647,-78023]
[2282,{"$error":"#NAME?"},{"$error":"#NAME?"},{"$error":"#NAME?"},{"$error":"#NAME?"},null,{"$f":"NR_to_Cash!C$9","v":-155327},{"$f":"NR_to_Cash!D$9","v":-283877},{"$f":"NR_to_Cash!E$9","v":-105647},{"$f":"NR_to_Cash!F$9","v":-78023},null,2282,1595.4422037469262,-18775.086341460898,-3946.3263492068672,-3439.9992397537535,null,-155327,-283877,-105647,-78023]
[2283,{"$error":"#NAME?"},{"$error":"#NAME?"},{"$error":"#NAME?"},{"$error":"#NAME?"},null,{"$f":"NR_to_Cash!C$9","v":-155327},{"$f":"NR_to_Cash!D$9","v":-283877},{"$f":"NR_to_Cash!E$9","v":-105647},{"$f":"NR_to_Cash!F$9","v":-78023},null,2283,-3339.8086657664189,-15296.790967346278,-23682.594976721248,14719.327795021616,null,-155327,-283877,-105647,-78023]
[2284,{"$error":"#NAME?"},{"$error":"#NAME?"},{"$error":"#NAME?"},{"$error":"#NAME?"},null,{"$f":"NR_to_Cash!C$9","v":-155327},{"$f":"NR_to_Cash!D$9","v":-283877},{"$f":"NR_to_Cash!E$9","v":-105647},{"$f":"NR_to_Cash!F$9","v":-78023},null,2284,-9295.7585234930539,13681.25189835062,-19627.616970832707,6817.436602774319,null,-155327,-283877,-105647,-78023]
[2285,{"$error":"#NAME?"},{"$error":"#NAME?"},{"$error":"#NAME?"},{"$error":"#NAME?"},null,{"$f":"NR_to_Cash!C$9","v":-155327},{"$f":"NR_to_Cash!D$9","v":-283877},{"$f":"NR_to_Cash!E$9","v":-105647},{"$f":"NR_to_Cash!F$9","v":-78023},null,2285,-11115.275144317249,-3284.9660169040822,4280.6524490665788,-28064.364726388027,null,-155327,-283877,-105647,-78023]
[2286,{"$error":"#NAME?"},{"$error":"#NAME?"},{"$error":"#NAME?"},{"$error":"#NAME?"},null,{"$f":"NR_to_Cash!C$9","v":-155327},{"$f":"NR_to_Cash!D$9","v":-283877},{"$f":"NR_to_Cash!E$9","v":-105647},{"$f":"NR_to_Cash!F$9","v":-78023},null,2286,-11242.004964926418,-1329.9089422198153,-28945.166512856158,-17392.630349214269,null,-155327,-283877,-105647,-78023]
[2287,{"$error":"#NAME?"},{"$error":"#NAME?"},{"$error":"#NAME?"},{"$error":"#NAME?"},null,{"$f":"NR_to_Cash!C$9","v":-155327},{"$f":"NR_to_Cash!D$9","v":-283877},{"$f":"NR_to_Cash!E$9","v":-105647},{"$f":"NR_to_Cash!F$9","v":-78023},null,2287,-20305.273443217513,7375.66091061312,-25977.743535220565,17461.445224604657,null,-155327,-283877,-105647,-78023]
[2288,{"$error":"#NAME?"},{"$error":"#NAME?"},{"$error":"#NAME?"},{"$error":"#NAME?"},null,{"$f":"NR_to_Cash!C$9","v":-155327},{"$f":"NR_to_Cash!D$9","v":-283877},{"$f":"NR_to_Cash!E$9","v":-105647},{"$f":"NR_to_Cash!F$9","v":-78023},null,2288,-27264.279002510972,333.44524060996997,-25466.120751360246,-3424.244783408355,null,-155327,-283877,-105647,-78023]
[2289,{"$error":"#NAME?"},{"$error":"#NAME?"},{"$error":"#NAME?"},{"$error":"#NAME?"},null,{"$f":"NR_to_Cash!C$9","v":-155327},{"$f":"NR_to_Cash!D$9","v":-283877},{"$f":"NR_to_Cash!E$9","v":-105647},{"$f":"NR_to_Cash!F$9","v":-78023},null,2289,2224.1498790615196,3995.534703931371,-2498.9793461139488,-11973.538616916261,null,-155327,-283877,-105647,-78023]
[2290,{"$error":"#NAME?"},{"$error":"#NAME?"},{"$error":"#NAME?"},{"$error":"#NAME?"},null,{"$f":"NR_to_Cash!C$9","v":-155327},{"$f":"NR_to_Cash!D$9","v":-283877},{"$f":"NR_to_Cash!E$9","v":-105647},{"$f":"NR_to_Cash!F$9","v":-78023},null,2290,-9467.9730192105926,-11371.121817881947,-15085.846427071039,-27329.671927326275,null,-155327,-283877,-105647,-78023]
[2291,{"$error":"#NAME?"},{"$error":"#NAME?"},{"$error":"#NAME?"},{"$error":"#NAME?"},null,{"$f":"NR_to_Cash!C$9","v":-155327},{"$f":"NR_to_Cash!D$9","v":-283877},{"$f":"NR_to_Cash!E$9","v":-105647},{"$f":"NR_to_Cash!F$9","v":-78023},null,2291,-17765.630181566183,-28755.246545763763,-8582.3195568384726,214.25643461249808,null,-155327,-283877,-105647,-78023]
[2292,{"$error":"#NAME?"},{"$error":"#NAME?"},{"$error":"#NAME?"},{"$error":"#NAME?"},null,{"$f":"NR_to_Cash!C$9","v":-155327},{"$f":"NR_to_Cash!D$9","v":-283877},{"$f":"NR_to_Cash!E$9","v":-105647},{"$f":"NR_to_Cash!F$9","v":-78023},null,2292,-11038.524884085378,-4664.7309846336611,-8524.3017561487577,-34243.36058845339,null,-155327,-283877,-105647,-78023]
[2293,{"$error":"#NAME?"},{"$error":"#NAME?"},{"$error":"#NAME?"},{"$error":"#NAME?"},null,{"$f":"NR_to_Cash!C$9","v":-155327},{"$f":"NR_to_Cash!D$9","v":-283877},{"$f":"NR_to_Cash!E$9","v":-105647},{"$f":"NR_to_Cash!F$9","v":-78023},null,2293,-26179.84200065476,-5456.6215273001308,-13203.778947001407,-22846.320786463766,null,-155327,-283877,-105647,-78023]
[2294,{"$error":"#NAME?"},{"$error":"#NAME?"},{"$error":"#NAME?"},{"$error":"#NAME?"},null,{"$f":"NR_to_Cash!C$9","v":-155327},{"$f":"NR_to_Cash!D$9","v":-283877},{"$f":"NR_to_Cash!E$9","v":-105647},{"$f":"NR_to_Cash!F$9","v":-78023},null,2294,-2442.8091290090561,-27015.612266448054,2303.2690389207542,9551.3283175416655,null,-155327,-283877,-105647,-78023]
[2295,{"$error":"#NAME?"},{"$error":"#NAME?"},{"$error":"#NAME?"},{"$error":"#NAME?"},null,{"$f":"NR_to_Cash!C$9","v":-155327},{"$f":"NR_to_Cash!D$9","v":-283877},{"$f":"NR_to_Cash!E$9","v":-105647},{"$f":"NR_to_Cash!F$9","v":-78023},null,2295,4279.616917372533,11747.366962506256,-24728.391375967913,-7035.2161497211328,null,-155327,-283877,-105647,-78023]
[2296,{"$error":"#NAME?"},{"$error":"#NAME?"},{"$error":"#NAME?"},{"$error":"#NAME?"},null,{"$f":"NR_to_Cash!C$9","v":-155327},{"$f":"NR_to_Cash!D$9","v":-283877},{"$f":"NR_to_Cash!E$9","v":-105647},{"$f":"NR_to_Cash!F$9","v":-78023},null,2296,-9575.1519487491678,-6272.6808802949436,13572.356295554118,14648.687557311972,null,-155327,-283877,-105647,-78023]
[2297,{"$error":"#NAME?"},{"$error":"#NAME?"},{"$error":"#NAME?"},{"$error":"#NAME?"},null,{"$f":"NR_to_Cash!C$9","v":-155327},{"$f":"NR_to_Cash!D$9","v":-283877},{"$f":"NR_to_Cash!E$9","v":-105647},{"$f":"NR_to_Cash!F$9","v":-78023},null,2297,-7845.1436407162473,-4040.5265285742421,-21547.551489128204,-12545.9767148391,null,-155327,-283877,-105647,-78023]
[2298,{"$error":"#NAME?"},{"$error":"#NAME?"},{"$error":"#NAME?"},{"$error":"#NAME?"},null,{"$f":"NR_to_Cash!C$9","v":-155327},{"$f":"NR_to_Cash!D$9","v":-283877},{"$f":"NR_to_Cash!E$9","v":-105647},{"$f":"NR_to_Cash!F$9","v":-78023},null,2298,5534.4419349753052,-24046.263155594053,-15242.897525938417,-6026.7507308664344,null,-155327,-283877,-105647,-78023]
[2299,{"$error":"#NAME?"},{"$error":"#NAME?"},{"$error":"#NAME?"},{"$error":"#NAME?"},null,{"$f":"NR_to_Cash!C$9","v":-155327},{"$f":"NR_to_Cash!D$9","v":-283877},{"$f":"NR_to_Cash!E$9","v":-105647},{"$f":"NR_to_Cash!F$9","v":-78023},null,2299,-8056.6966304757034,-30016.970533352709,-14460.073975641692,-16984.399647001774,null,-155327,-283877,-105647,-78023]
[2300,{"$error":"#NAME?"},{"$error":"#NAME?"},{"$error":"#NAME?"},{"$error":"#NAME?"},null,{"$f":"NR_to_Cash!C$9","v":-155327},{"$f":"NR_to_Cash!D$9","v":-283877},{"$f":"NR_to_Cash!E$9","v":-105647},{"$f":"NR_to_Cash!F$9","v":-78023},null,2300,4805.8794080536654,-11490.426926716285,-23621.983715058035,-12461.701215480905,null,-155327,-283877,-105647,-78023]
[2301,{"$error":"#NAME?"},{"$error":"#NAME?"},{"$error":"#NAME?"},{"$error":"#NAME?"},null,{"$f":"NR_to_Cash!C$9","v":-155327},{"$f":"NR_to_Cash!D$9","v":-283877},{"$f":"NR_to_Cash!E$9","v":-105647},{"$f":"NR_to_Cash!F$9","v":-78023},null,2301,6278.0700564266517,3116.2777053216091,22411.212616373683,-28003.984567862957,null,-155327,-283877,-105647,-78023]
[2302,{"$error":"#NAME?"},{"$error":"#NAME?"},{"$error":"#NAME?"},{"$error":"#NAME?"},null,{"$f":"NR_to_Cash!C$9","v":-155327},{"$f":"NR_to_Cash!D$9","v":-283877},{"$f":"NR_to_Cash!E$9","v":-105647},{"$f":"NR_to_Cash!F$9","v":-78023},null,2302,-19096.421856826317,-22006.76509796712,-309.78030337952293,-27357.371144928424,null,-155327,-283877,-105647,-78023]
[2303,{"$error":"#NAME?"},{"$error":"#NAME?"},{"$error":"#NAME?"},{"$error":"#NAME?"},null,{"$f":"NR_to_Cash!C$9","v":-155327},{"$f":"NR_to_Cash!D$9","v":-283877},{"$f":"NR_to_Cash!E$9","v":-105647},{"$f":"NR_to_Cash!F$9","v":-78023},null,2303,-18377.866250019099,4615.7769768547059,-31781.203079166793,-6851.1556904811732,null,-155327,-283877,-105647,-78023]
[2304,{"$error":"#NAME?"},{"$error":"#NAME?"},{"$error":"#NAME?"},{"$error":"#NAME?"},null,{"$f":"NR_to_Cash!C$9","v":-155327},{"$f":"NR_to_Cash!D$9","v":-283877},{"$f":"NR_to_Cash!E$9","v":-105647},{"$f":"NR_to_Cash!F$9","v":-78023},null,2304,-4619.2330423946669,-6420.0170844837876,-20962.491267016176,-22237.452038750213,null,-155327,-283877,-105647,-78023]
[2305,{"$error":"#NAME?"},{"$error":"#NAME?"},{"$error":"#NAME?"},{"$error":"#NAME?"},null,{"$f":"NR_to_Cash!C$9","v":-155327},{"$f":"NR_to_Cash!D$9","v":-283877},{"$f":"NR_to_Cash!E$9","v":-105647},{"$f":"NR_to_Cash!F$9","v":-78023},null,2305,-7817.7209926876076,-35605.557717051161,-2659.0121165079563,-23964.299136339843,null,-155327,-283877,-105647,-78023]
[2306,{"$error":"#NAME?"},{"$error":"#NAME?"},{"$error":"#NAME?"},{"$error":"#NAME?"},null,{"$f":"NR_to_Cash!C$9","v":-155327},{"$f":"NR_to_Cash!D$9","v":-283877},{"$f":"NR_to_Cash!E$9","v":-105647},{"$f":"NR_to_Cash!F$9","v":-78023},null,2306,-3230.4931956644923,9369.0976876099503,-23235.089181069081,-10864.75388830448,null,-155327,-283877,-105647,-78023]
[2307,{"$error":"#NAME?"},{"$error":"#NAME?"},{"$error":"#NAME?"},{"$error":"#NAME?"},null,{"$f":"NR_to_Cash!C$9","v":-155327},{"$f":"NR_to_Cash!D$9","v":-283877},{"$f":"NR_to_Cash!E$9","v":-105647},{"$f":"NR_to_Cash!F$9","v":-78023},null,2307,-18706.405331464237,-12107.069549877333,434.94972956632381,-1324.5762453927055,null,-155327,-283877,-105647,-78023]
[2308,{"$error":"#NAME?"},{"$error":"#NAME?"},{"$error":"#NAME?"},{"$error":"#NAME?"},null,{"$f":"NR_to_Cash!C$9","v":-155327},{"$f":"NR_to_Cash!D$9","v":-283877},{"$f":"NR_to_Cash!E$9","v":-105647},{"$f":"NR_to_Cash!F$9","v":-78023},null,2308,-6310.4462678043692,3649.3345617138707,-1866.6482046493886,-19642.855818850589,null,-155327,-283877,-105647,-78023]
[2309,{"$error":"#NAME?"},{"$error":"#NAME?"},{"$error":"#NAME?"},{"$error":"#NAME?"},null,{"$f":"NR_to_Cash!C$9","v":-155327},{"$f":"NR_to_Cash!D$9","v":-283877},{"$f":"NR_to_Cash!E$9","v":-105647},{"$f":"NR_to_Cash!F$9","v":-78023},null,2309,-3564.3111153076115,1694.8570883935513,-9365.0212650209687,-10882.401258804877,null,-155327,-283877,-105647,-78023]
[2310,{"$error":"#NAME?"},{"$error":"#NAME?"},{"$error":"#NAME?"},{"$error":"#NAME?"},null,{"$f":"NR_to_Cash!C$9","v":-155327},{"$f":"NR_to_Cash!D$9","v":-283877},{"$f":"NR_to_Cash!E$9","v":-105647},{"$f":"NR_to_Cash!F$9","v":-78023},null,2310,-12464.421353538246,7317.8781552065784,-10763.961768673216,-1397.4495099684175,null,-155327,-283877,-105647,-78023]
[2311,{"$error":"#NAME?"},{"$error":"#NAME?"},{"$error":"#NAME?"},{"$error":"#NAME?"},null,{"$f":"NR_to_Cash!C$9","v":-155327},{"$f":"NR_to_Cash!D$9","v":-283877},{"$f":"NR_to_Cash!E$9","v":-105647},{"$f":"NR_to_Cash!F$9","v":-78023},null,2311,-11732.70460563543,-7719.2845539223663,-12522.456815101459,-14759.978802063164,null,-155327,-283877,-105647,-78023]
[2312,{"$error":"#NAME?"},{"$error":"#NAME?"},{"$error":"#NAME?"},{"$error":"#NAME?"},null,{"$f":"NR_to_Cash!C$9","v":-155327},{"$f":"NR_to_Cash!D$9","v":-283877},{"$f":"NR_to_Cash!E$9","v":-105647},{"$f":"NR_to_Cash!F$9","v":-78023},null,2312,16080.565759314119,-25884.16638358753,6569.1985366347171,-5968.3452767518456,null,-155327,-283877,-105647,-78023]
[2313,{"$error":"#NAME?"},{"$error":"#NAME?"},{"$error":"#NAME?"},{"$error":"#NAME?"},null,{"$f":"NR_to_Cash!C$9","v":-155327},{"$f":"NR_to_Cash!D$9","v":-283877},{"$f":"NR_to_Cash!E$9","v":-105647},{"$f":"NR_to_Cash!F$9","v":-78023},null,2313,-16161.698956262961,-10089.325585778573,-6001.1669570248068,-3323.2283679055331,null,-155327,-283877,-105647,-78023]
[2314,{"$error":"#NAME?"},{"$error":"#NAME?"},{"$error":"#NAME?"},{"$error":"#NAME?"},null,{"$f":"NR_to_Cash!C$9","v":-155327},{"$f":"NR_to_Cash!D$9","v":-283877},{"$f":"NR_to_Cash!E$9","v":-105647},{"$f":"NR_to_Cash!F$9","v":-78023},null,2314,-8652.8912881628348,-201.58135888881603,-14276.156028265013,7890.3382435167487,null,-155327,-283877,-105647,-78023]
[2315,{"$error":"#NAME?"},{"$error":"#NAME?"},{"$error":"#NAME?"},{"$error":"#NAME?"},null,{"$f":"NR_to_Cash!C$9","v":-155327},{"$f":"NR_to_Cash!D$9","v":-283877},{"$f":"NR_to_Cash!E$9","v":-105647},{"$f":"NR_to_Cash!F$9","v":-78023},null,2315,-1442.4530859845661,-18642.396551862908,-27531.299544193702,-20037.152499923515,null,-155327,-283877,-105647,-78023]
[2316,{"$error":"#NAME?"},{"$error":"#NAME?"},{"$error":"#NAME?"},{"$error":"#NAME?"},null,{"$f":"NR_to_Cash!C$9","v":-155327},{"$f":"NR_to_Cash!D$9","v":-283877},{"$f":"NR_to_Cash!E$9","v":-105647},{"$f":"NR_to_Cash!F$9","v":-78023},null,2316,-13294.446450140294,-16456.702237253743,-18298.569131827131,-11765.429852974883,null,-155327,-283877,-105647,-78023]
[2317,{"$error":"#NAME?"},{"$error":"#NAME?"},{"$error":"#NAME?"},{"$error":"#NAME?"},null,{"$f":"NR_to_Cash!C$9","v":-155327},{"$f":"NR_to_Cash!D$9","v":-283877},{"$f":"NR_to_Cash!E$9","v":-105647},{"$f":"NR_to_Cash!F$9","v":-78023},null,2317,-32807.413615402271,15260.797501676932,9885.0663598817246,-19178.841447750885,null,-155327,-283877,-105647,-78023]
[2318,{"$error":"#NAME?"},{"$error":"#NAME?"},{"$error":"#NAME?"},{"$error":"#NAME?"},null,{"$f":"NR_to_Cash!C$9","v":-155327},{"$f":"NR_to_Cash!D$9","v":-283877},{"$f":"NR_to_Cash!E$9","v":-105647},{"$f":"NR_to_Cash!F$9","v":-78023},null,2318,-5420.1113250926783,-2059.5397846925398,-17142.576513787957,-20232.713393744707,null,-155327,-283877,-105647,-78023]
[2319,{"$error":"#NAME?"},{"$error":"#NAME?"},{"$error":"#NAME?"},{"$error":"#NAME?"},null,{"$f":"NR_to_Cash!C$9","v":-155327},{"$f":"NR_to_Cash!D$9","v":-283877},{"$f":"NR_to_Cash!E$9","v":-105647},{"$f":"NR_to_Cash!F$9","v":-78023},null,2319,-8249.1142530791494,-25636.852122180411,-12892.043735955087,-17120.867202106474,null,-155327,-283877,-105647,-78023]
[2320,{"$error":"#NAME?"},{"$error":"#NAME?"},{"$error":"#NAME?"},{"$error":"#NAME?"},null,{"$f":"NR_to_Cash!C$9","v":-155327},{"$f":"NR_to_Cash!D$9","v":-283877},{"$f":"NR_to_Cash!E$9","v":-105647},{"$f":"NR_to_Cash!F$9","v":-78023},null,2320,-23486.205104924247,-42744.358585096328,8789.9083756765467,-13988.12815271617,null,-155327,-283877,-105647,-78023]
[2321,{"$error":"#NAME?"},{"$error":"#NAME?"},{"$error":"#NAME?"},{"$error":"#NAME?"},null,{"$f":"NR_to_Cash!C$9","v":-155327},{"$f":"NR_to_Cash!D$9","v":-283877},{"$f":"NR_to_Cash!E$9","v":-105647},{"$f":"NR_to_Cash!F$9","v":-78023},null,2321,-9047.74035781575,-6169.6583550175801,-33096.683084281227,-6549.1112995030753,null,-155327,-283877,-105647,-78023]
[2322,{"$error":"#NAME?"},{"$error":"#NAME?"},{"$error":"#NAME?"},{"$error":"#NAME?"},null,{"$f":"NR_to_Cash!C$9","v":-155327},{"$f":"NR_to_Cash!D$9","v":-283877},{"$f":"NR_to_Cash!E$9","v":-105647},{"$f":"NR_to_Cash!F$9","v":-78023},null,2322,-9893.4199695105308,-13876.706960986656,-6456.8364294283583,-11093.545894099909,null,-155327,-283877,-105647,-78023]
[2323,{"$error":"#NAME?"},{"$error":"#NAME?"},{"$error":"#NAME?"},{"$error":"#NAME?"},null,{"$f":"NR_to_Cash!C$9","v":-155327},{"$f":"NR_to_Cash!D$9","v":-283877},{"$f":"NR_to_Cash!E$9","v":-105647},{"$f":"NR_to_Cash!F$9","v":-78023},null,2323,-1922.3705365598871,4334.5337737427335,-17286.108559857112,1039.9304075429045,null,-155327,-283877,-105647,-78023]
[2324,{"$error":"#NAME?"},{"$error":"#NAME?"},{"$error":"#NAME?"},{"$error":"#NAME?"},null,{"$f":"NR_to_Cash!C$9","v":-155327},{"$f":"NR_to_Cash!D$9","v":-283877},{"$f":"NR_to_Cash!E$9","v":-105647},{"$f":"NR_to_Cash!F$9","v":-78023},null,2324,-30384.65723869612,-1614.1561571743,-6029.3586799367058,102.44244145830626,null,-155327,-283877,-105647,-78023]
[2325,{"$error":"#NAME?"},{"$error":"#NAME?"},{"$error":"#NAME?"},{"$error":"#NAME?"},null,{"$f":"NR_to_Cash!C$9","v":-155327},{"$f":"NR_to_Cash!D$9","v":-283877},{"$f":"NR_to_Cash!E$9","v":-105647},{"$f":"NR_to_Cash!F$9","v":-78023},null,2325,-18721.189774821421,-5507.6440143043419,-14434.44442921369,-506.605379731911,null,-155327,-283877,-105647,-78023]
[2326,{"$error":"#NAME?"},{"$error":"#NAME?"},{"$error":"#NAME?"},{"$error":"#NAME?"},null,{"$f":"NR_to_Cash!C$9","v":-155327},{"$f":"NR_to_Cash!D$9","v":-283877},{"$f":"NR_to_Cash!E$9","v":-105647},{"$f":"NR_to_Cash!F$9","v":-78023},null,2326,-9739.646437662439,-3284.6969317597368,-156.01399258001356,3032.9237446589568,null,-155327,-283877,-105647,-78023]
[2327,{"$error":"#NAME?"},{"$error":"#NAME?"},{"$error":"#NAME?"},{"$error":"#NAME?"},null,{"$f":"NR_to_Cash!C$9","v":-155327},{"$f":"NR_to_Cash!D$9","v":-283877},{"$f":"NR_to_Cash!E$9","v":-105647},{"$f":"NR_to_Cash!F$9","v":-78023},null,2327,-16078.627923902424,-26577.149593203259,-31059.979957640182,-6548.5569057995344,null,-155327,-283877,-105647,-78023]
[2328,{"$error":"#NAME?"},{"$error":"#NAME?"},{"$error":"#NAME?"},{"$error":"#NAME?"},null,{"$f":"NR_to_Cash!C$9","v":-155327},{"$f":"NR_to_Cash!D$9","v":-283877},{"$f":"NR_to_Cash!E$9","v":-105647},{"$f":"NR_to_Cash!F$9","v":-78023},null,2328,-14354.008898063057,-27308.623514616847,-7080.6366498045927,11710.889697013627,null,-155327,-283877,-105647,-78023]
[2329,{"$error":"#NAME?"},{"$error":"#NAME?"},{"$error":"#NAME?"},{"$error":"#NAME?"},null,{"$f":"NR_to_Cash!C$9","v":-155327},{"$f":"NR_to_Cash!D$9","v":-283877},{"$f":"NR_to_Cash!E$9","v":-105647},{"$f":"NR_to_Cash!F$9","v":-78023},null,2329,-16713.737750787772,9608.9700089730668,1894.0403185586631,-3.5327557488902448,null,-155327,-283877,-105647,-78023]
[2330,{"$error":"#NAME?"},{"$error":"#NAME?"},{"$error":"#NAME?"},{"$error":"#NAME?"},null,{"$f":"NR_to_Cash!C$9","v":-155327},{"$f":"NR_to_Cash!D$9","v":-283877},{"$f":"NR_to_Cash!E$9","v":-105647},{"$f":"NR_to_Cash!F$9","v":-78023},null,2330,-28163.374219442718,-24707.708883995921,-5393.4340611295956,-17794.358004143494,null,-155327,-283877,-105647,-78023]
[2331,{"$error":"#NAME?"},{"$error":"#NAME?"},{"$error":"#NAME?"},{"$error":"#NAME?"},null,{"$f":"NR_to_Cash!C$9","v":-155327},{"$f":"NR_to_Cash!D$9","v":-283877},{"$f":"NR_to_Cash!E$9","v":-105647},{"$f":"NR_to_Cash!F$9","v":-78023},null,2331,-26996.979817980311,1364.5468495403229,-4381.2418039701006,-3977.532553408781,null,-155327,-283877,-105647,-78023]
[2332,{"$error":"#NAME?"},{"$error":"#NAME?"},{"$error":"#NAME?"},{"$error":"#NAME?"},null,{"$f":"NR_to_Cash!C$9","v":-155327},{"$f":"NR_to_Cash!D$9","v":-283877},{"$f":"NR_to_Cash!E$9","v":-105647},{"$f":"NR_to_Cash!F$9","v":-78023},null,2332,-23455.291235987417,-19388.189126200883,10412.692509658915,-24281.257099564653,null,-155327,-283877,-105647,-78023]
[2333,{"$error":"#NAME?"},{"$error":"#NAME?"},{"$error":"#NAME?"},{"$error":"#NAME?"},null,{"$f":"NR_to_Cash!C$9","v":-155327},{"$f":"NR_to_Cash!D$9","v":-283877},{"$f":"NR_to_Cash!E$9","v":-105647},{"$f":"NR_to_Cash!F$9","v":-78023},null,2333,-22387.250654732557,-4686.8624897072505,7074.3208221445793,10059.215304001311,null,-155327,-283877,-105647,-78023]
[2334,{"$error":"#NAME?"},{"$error":"#NAME?"},{"$error":"#NAME?"},{"$error":"#NAME?"},null,{"$f":"NR_to_Cash!C$9","v":-155327},{"$f":"NR_to_Cash!D$9","v":-283877},{"$f":"NR_to_Cash!E$9","v":-105647},{"$f":"NR_to_Cash!F$9","v":-78023},null,2334,-9172.5103933103655,-7235.1653434598084,-8353.5264830479391,-18837.435835671793,null,-155327,-283877,-105647,-78023]
[2335,{"$error":"#NAME?"},{"$error":"#NAME?"},{"$error":"#NAME?"},{"$error":"#NAME?"},null,{"$f":"NR_to_Cash!C$9","v":-155327},{"$f":"NR_to_Cash!D$9","v":-283877},{"$f":"NR_to_Cash!E$9","v":-105647},{"$f":"NR_to_Cash!F$9","v":-78023},null,2335,-18138.788404481744,-9603.9991823507189,-27600.533180359445,-23059.900911185516,null,-155327,-283877,-105647,-78023]
[2336,{"$error":"#NAME?"},{"$error":"#NAME?"},{"$error":"#NAME?"},{"$error":"#NAME?"},null,{"$f":"NR_to_Cash!C$9","v":-155327},{"$f":"NR_to_Cash!D$9","v":-283877},{"$f":"NR_to_Cash!E$9","v":-105647},{"$f":"NR_to_Cash!F$9","v":-78023},null,2336,-13692.785156058068,-24277.213493113995,-19877.224848465077,-10215.562906861005,null,-155327,-283877,-105647,-78023]
[2337,{"$error":"#NAME?"},{"$error":"#NAME?"},{"$error":"#NAME?"},{"$error":"#NAME?"},null,{"$f":"NR_to_Cash!C$9","v":-155327},{"$f":"NR_to_Cash!D$9","v":-283877},{"$f":"NR_to_Cash!E$9","v":-105647},{"$f":"NR_to_Cash!F$9","v":-78023},null,2337,-11172.838313513505,-15100.708155820515,-28196.447206017048,8847.9974451809067,null,-155327,-283877,-105647,-78023]
[2338,{"$error":"#NAME?"},{"$error":"#NAME?"},{"$error":"#NAME?"},{"$error":"#NAME?"},null,{"$f":"NR_to_Cash!C$9","v":-155327},{"$f":"NR_to_Cash!D$9","v":-283877},{"$f":"NR_to_Cash!E$9","v":-105647},{"$f":"NR_to_Cash!F$9","v":-78023},null,2338,5551.8978930642697,-10722.471808801203,7948.8416878484641,-16538.959241585311,null,-155327,-283877,-105647,-78023]
[2339,{"$error":"#NAME?"},{"$error":"#NAME?"},{"$error":"#NAME?"},{"$error":"#NAME?"},null,{"$f":"NR_to_Cash!C$9","v":-155327},{"$f":"NR_to_Cash!D$9","v":-283877},{"$f":"NR_to_Cash!E$9","v":-105647},{"$f":"NR_to_Cash!F$9","v":-78023},null,2339,-5383.7752440560826,-11426.195498905694,-15872.940986549016,-4817.6069233661983,null,-155327,-283877,-105647,-78023]
[2340,{"$error":"#NAME?"},{"$error":"#NAME?"},{"$error":"#NAME?"},{"$error":"#NAME?"},null,{"$f":"NR_to_Cash!C$9","v":-155327},{"$f":"NR_to_Cash!D$9","v":-283877},{"$f":"NR_to_Cash!E$9","v":-105647},{"$f":"NR_to_Cash!F$9","v":-78023},null,2340,-17280.98741247935,-25708.498750860406,-12132.090769987277,-12179.82181010778,null,-155327,-283877,-105647,-78023]
[2341,{"$error":"#NAME?"},{"$error":"#NAME?"},{"$error":"#NAME?"},{"$error":"#NAME?"},null,{"$f":"NR_to_Cash!C$9","v":-155327},{"$f":"NR_to_Cash!D$9","v":-283877},{"$f":"NR_to_Cash!E$9","v":-105647},{"$f":"NR_to_Cash!F$9","v":-78023},null,2341,-10291.897139439547,-2160.2610024374508,-20112.056431012294,-13800.280092137193,null,-155327,-283877,-105647,-78023]
[2342,{"$error":"#NAME?"},{"$error":"#NAME?"},{"$error":"#NAME?"},{"$error":"#NAME?"},null,{"$f":"NR_to_Cash!C$9","v":-155327},{"$f":"NR_to_Cash!D$9","v":-283877},{"$f":"NR_to_Cash!E$9","v":-105647},{"$f":"NR_to_Cash!F$9","v":-78023},null,2342,-2638.6863987887109,-4743.5938345920458,-21631.211397895797,-31271.668800235158,null,-155327,-283877,-105647,-78023]
[2343,{"$error":"#NAME?"},{"$error":"#NAME?"},{"$error":"#NAME?"},{"$error":"#NAME?"},null,{"$f":"NR_to_Cash!C$9","v":-155327},{"$f":"NR_to_Cash!D$9","v":-283877},{"$f":"NR_to_Cash!E$9","v":-105647},{"$f":"NR_to_Cash!F$9","v":-78023},null,2343,-25707.745035260363,-5284.9676981496059,12258.188363376479,-26456.777193710623,null,-155327,-283877,-105647,-78023]
[2344,{"$error":"#NAME?"},{"$error":"#NAME?"},{"$error":"#NAME?"},{"$error":"#NAME?"},null,{"$f":"NR_to_Cash!C$9","v":-155327},{"$f":"NR_to_Cash!D$9","v":-283877},{"$f":"NR_to_Cash!E$9","v":-105647},{"$f":"NR_to_Cash!F$9","v":-78023},null,2344,2651.0246542645018,-3307.102862609423,18224.091298605264,-607.0342382417798,null,-155327,-283877,-105647,-78023]
[2345,{"$error":"#NAME?"},{"$error":"#NAME?"},{"$error":"#NAME?"},{"$error":"#NAME?"},null,{"$f":"NR_to_Cash!C$9","v":-155327},{"$f":"NR_to_Cash!D$9","v":-283877},{"$f":"NR_to_Cash!E$9","v":-105647},{"$f":"NR_to_Cash!F$9","v":-78023},null,2345,-21215.619477754197,-4396.4800370233106,-18366.048499983568,-2665.0542601755355,null,-155327,-283877,-105647,-78023]
[2346,{"$error":"#NAME?"},{"$error":"#NAME?"},{"$error":"#NAME?"},{"$error":"#NAME?"},null,{"$f":"NR_to_Cash!C$9","v":-155327},{"$f":"NR_to_Cash!D$9","v":-283877},{"$f":"NR_to_Cash!E$9","v":-105647},{"$f":"NR_to_Cash!F$9","v":-78023},null,2346,-19589.028760329296,-8446.6391937882381,-13611.006271105267,-15847.999423724757,null,-155327,-283877,-105647,-78023]
[2347,{"$error":"#NAME?"},{"$error":"#NAME?"},{"$error":"#NAME?"},{"$error":"#NAME?"},null,{"$f":"NR_to_Cash!C$9","v":-155327},{"$f":"NR_to_Cash!D$9","v":-283877},{"$f":"NR_to_Cash!E$9","v":-105647},{"$f":"NR_to_Cash!F$9","v":-78023},null,2347,7190.9713699317881,779.38961215197378,-27688.845685705619,-24342.668017048843,null,-155327,-283877,-105647,-78023]
[2348,{"$error":"#NAME?"},{"$error":"#NAME?"},{"$error":"#NAME?"},{"$error":"#NAME?"},null,{"$f":"NR_to_Cash!C$9","v":-155327},{"$f":"NR_to_Cash!D$9","v":-283877},{"$f":"NR_to_Cash!E$9","v":-105647},{"$f":"NR_to_Cash!F$9","v":-78023},null,2348,-1924.8698928710896,-29362.891565318696,-10427.976546908836,-4334.3268114531093,null,-155327,-283877,-105647,-78023]
[2349,{"$error":"#NAME?"},{"$error":"#NAME?"},{"$error":"#NAME?"},{"$error":"#NAME?"},null,{"$f":"NR_to_Cash!C$9","v":-155327},{"$f":"NR_to_Cash!D$9","v":-283877},{"$f":"NR_to_Cash!E$9","v":-105647},{"$f":"NR_to_Cash!F$9","v":-78023},null,2349,-4517.4760879018322,-11415.536494421634,-22380.853115136732,9083.0866138137408,null,-155327,-283877,-105647,-78023]
[2350,{"$error":"#NAME?"},{"$error":"#NAME?"},{"$error":"#NAME?"},{"$error":"#NAME?"},null,{"$f":"NR_to_Cash!C$9","v":-155327},{"$f":"NR_to_Cash!D$9","v":-283877},{"$f":"NR_to_Cash!E$9","v":-105647},{"$f":"NR_to_Cash!F$9","v":-78023},null,2350,-15555.602984230871,-27508.196950348582,-14383.166870922236,-839.26353970750552,null,-155327,-283877,-105647,-78023]
[2351,{"$error":"#NAME?"},{"$error":"#NAME?"},{"$error":"#NAME?"},{"$error":"#NAME?"},null,{"$f":"NR_to_Cash!C$9","v":-155327},{"$f":"NR_to_Cash!D$9","v":-283877},{"$f":"NR_to_Cash!E$9","v":-105647},{"$f":"NR_to_Cash!F$9","v":-78023},null,2351,7964.5061382979256,5649.4785924294738,3287.9237977795278,-10009.801890516537,null,-155327,-283877,-105647,-78023]
[2352,{"$error":"#NAME?"},{"$error":"#NAME?"},{"$error":"#NAME?"},{"$error":"#NAME?"},null,{"$f":"NR_to_Cash!C$9","v":-155327},{"$f":"NR_to_Cash!D$9","v":-283877},{"$f":"NR_to_Cash!E$9","v":-105647},{"$f":"NR_to_Cash!F$9","v":-78023},null,2352,-23691.725835927224,-3316.0109998541916,-11060.743862473624,-11292.25934389023,null,-155327,-283877,-105647,-78023]
[2353,{"$error":"#NAME?"},{"$error":"#NAME?"},{"$error":"#NAME?"},{"$error":"#NAME?"},null,{"$f":"NR_to_Cash!C$9","v":-155327},{"$f":"NR_to_Cash!D$9","v":-283877},{"$f":"NR_to_Cash!E$9","v":-105647},{"$f":"NR_to_Cash!F$9","v":-78023},null,2353,-13745.112913762941,6842.4836071687268,5204.7824266337175,1390.3041093028107,null,-155327,-283877,-105647,-78023]
[2354,{"$error":"#NAME?"},{"$error":"#NAME?"},{"$error":"#NAME?"},{"$error":"#NAME?"},null,{"$f":"NR_to_Cash!C$9","v":-155327},{"$f":"NR_to_Cash!D$9","v":-283877},{"$f":"NR_to_Cash!E$9","v":-105647},{"$f":"NR_to_Cash!F$9","v":-78023},null,2354,-5987.701139791101,-13575.888765051401,8369.1441243819063,17978.117918458436,null,-155327,-283877,-105647,-78023]
[2355,{"$error":"#NAME?"},{"$error":"#NAME?"},{"$error":"#NAME?"},{"$error":"#NAME?"},null,{"$f":"NR_to_Cash!C$9","v":-155327},{"$f":"NR_to_Cash!D$9","v":-283877},{"$f":"NR_to_Cash!E$9","v":-105647},{"$f":"NR_to_Cash!F$9","v":-78023},null,2355,-2167.1296354356946,-24193.837012876425,-12880.952152057354,-6561.5750269436012,null,-155327,-283877,-105647,-78023]
[2356,{"$error":"#NAME?"},{"$error":"#NAME?"},{"$error":"#NAME?"},{"$error":"#NAME?"},null,{"$f":"NR_to_Cash!C$9","v":-155327},{"$f":"NR_to_Cash!D$9","v":-283877},{"$f":"NR_to_Cash!E$9","v":-105647},{"$f":"NR_to_Cash!F$9","v":-78023},null,2356,-35994.103678070067,519.08983650869823,-15856.405219089283,-18281.848215955692,null,-155327,-283877,-105647,-78023]
[2357,{"$error":"#NAME?"},{"$error":"#NAME?"},{"$error":"#NAME?"},{"$error":"#NAME?"},null,{"$f":"NR_to_Cash!C$9","v":-155327},{"$f":"NR_to_Cash!D$9","v":-283877},{"$f":"NR_to_Cash!E$9","v":-105647},{"$f":"NR_to_Cash!F$9","v":-78023},null,2357,-8988.7203263039446,8771.1194994086381,-10768.137505134786,-5617.7676614324191,null,-155327,-283877,-105647,-78023]
[2358,{"$error":"#NAME?"},{"$error":"#NAME?"},{"$error":"#NAME?"},{"$error":"#NAME?"},null,{"$f":"NR_to_Cash!C$9","v":-155327},{"$f":"NR_to_Cash!D$9","v":-283877},{"$f":"NR_to_Cash!E$9","v":-105647},{"$f":"NR_to_Cash!F$9","v":-78023},null,2358,-23602.165381915729,-14267.684401908853,-22081.678147555511,-24166.829438972811,null,-155327,-283877,-105647,-78023]
[2359,{"$error":"#NAME?"},{"$error":"#NAME?"},{"$error":"#NAME?"},{"$error":"#NAME?"},null,{"$f":"NR_to_Cash!C$9","v":-155327},{"$f":"NR_to_Cash!D$9","v":-283877},{"$f":"NR_to_Cash!E$9","v":-105647},{"$f":"NR_to_Cash!F$9","v":-78023},null,2359,-12898.963859959156,-9350.181839571922,-8452.8759541282852,-11265.803564295664,null,-155327,-283877,-105647,-78023]
[2360,{"$error":"#NAME?"},{"$error":"#NAME?"},{"$error":"#NAME?"},{"$error":"#NAME?"},null,{"$f":"NR_to_Cash!C$9","v":-155327},{"$f":"NR_to_Cash!D$9","v":-283877},{"$f":"NR_to_Cash!E$9","v":-105647},{"$f":"NR_to_Cash!F$9","v":-78023},null,2360,-19748.320424467234,1515.7977652164416,-24546.007899865323,-16933.271884594109,null,-155327,-283877,-105647,-78023]
[2361,{"$error":"#NAME?"},{"$error":"#NAME?"},{"$error":"#NAME?"},{"$error":"#NAME?"},null,{"$f":"NR_to_Cash!C$9","v":-155327},{"$f":"NR_to_Cash!D$9","v":-283877},{"$f":"NR_to_Cash!E$9","v":-105647},{"$f":"NR_to_Cash!F$9","v":-78023},null,2361,-11425.983636986908,-31885.371075194169,14413.255827785955,-16321.047888691619,null,-155327,-283877,-105647,-78023]
[2362,{"$error":"#NAME?"},{"$error":"#NAME?"},{"$error":"#NAME?"},{"$error":"#NAME?"},null,{"$f":"NR_to_Cash!C$9","v":-155327},{"$f":"NR_to_Cash!D$9","v":-283877},{"$f":"NR_to_Cash!E$9","v":-105647},{"$f":"NR_to_Cash!F$9","v":-78023},null,2362,-11006.213912249754,-11756.566151473453,-5569.7480329990103,-2499.8116077302766,null,-155327,-283877,-105647,-78023]
[2363,{"$error":"#NAME?"},{"$error":"#NAME?"},{"$error":"#NAME?"},{"$error":"#NAME?"},null,{"$f":"NR_to_Cash!C$9","v":-155327},{"$f":"NR_to_Cash!D$9","v":-283877},{"$f":"NR_to_Cash!E$9","v":-105647},{"$f":"NR_to_Cash!F$9","v":-78023},null,2363,-11255.957761272215,-11113.586775576829,24280.122641433161,-30877.117189489116,null,-155327,-283877,-105647,-78023]
[2364,{"$error":"#NAME?"},{"$error":"#NAME?"},{"$error":"#NAME?"},{"$error":"#NAME?"},null,{"$f":"NR_to_Cash!C$9","v":-155327},{"$f":"NR_to_Cash!D$9","v":-283877},{"$f":"NR_to_Cash!E$9","v":-105647},{"$f":"NR_to_Cash!F$9","v":-78023},null,2364,-5540.3847553758987,-14041.395901867918,-14399.770049764693,-5772.4893528878529,null,-155327,-283877,-105647,-78023]
[2365,{"$error":"#NAME?"},{"$error":"#NAME?"},{"$error":"#NAME?"},{"$error":"#NAME?"},null,{"$f":"NR_to_Cash!C$9","v":-155327},{"$f":"NR_to_Cash!D$9","v":-283877},{"$f":"NR_to_Cash!E$9","v":-105647},{"$f":"NR_to_Cash!F$9","v":-78023},null,2365,-20534.492705059678,-18239.684731968871,-9091.7447010922169,-13593.892396768037,null,-155327,-283877,-105647,-78023]
[2366,{"$error":"#NAME?"},{"$error":"#NAME?"},{"$error":"#NAME?"},{"$error":"#NAME?"},null,{"$f":"NR_to_Cash!C$9","v":-155327},{"$f":"NR_to_Cash!D$9","v":-283877},{"$f":"NR_to_Cash!E$9","v":-105647},{"$f":"NR_to_Cash!F$9","v":-78023},null,2366,-23085.698918035036,2738.2807237886127,-25486.521756440252,3953.0118773048835,null,-155327,-283877,-105647,-78023]
[2367,{"$error":"#NAME?"},{"$error":"#NAME?"},{"$error":"#NAME?"},{"$error":"#NAME?"},null,{"$f":"NR_to_Cash!C$9","v":-155327},{"$f":"NR_to_Cash!D$9","v":-283877},{"$f":"NR_to_Cash!E$9","v":-105647},{"$f":"NR_to_Cash!F$9","v":-78023},null,2367,-13909.661288999721,5094.9884506321323,-16446.676965590897,9681.6527665275771,null,-155327,-283877,-105647,-78023]
[2368,{"$error":"#NAME?"},{"$error":"#NAME?"},{"$error":"#NAME?"},{"$error":"#NAME?"},null,{"$f":"NR_to_Cash!C$9","v":-155327},{"$f":"NR_to_Cash!D$9","v":-283877},{"$f":"NR_to_Cash!E$9","v":-105647},{"$f":"NR_to_Cash!F$9","v":-78023},null,2368,-6489.9872912088595,-694.23636302193074,10293.083487182437,-40534.921748959598,null,-155327,-283877,-105647,-78023]
[2369,{"$error":"#NAME?"},{"$error":"#NAME?"},{"$error":"#NAME?"},{"$error":"#NAME?"},null,{"$f":"NR_to_Cash!C$9","v":-155327},{"$f":"NR_to_Cash!D$9","v":-283877},{"$f":"NR_to_Cash!E$9","v":-105647},{"$f":"NR_to_Cash!F$9","v":-78023},null,2369,-13646.847258698881,-9708.0173552334491,-24415.072230858415,-29691.164537029152,null,-155327,-283877,-105647,-78023]
[2370,{"$error":"#NAME?"},{"$error":"#NAME?"},{"$error":"#NAME?"},{"$error":"#NAME?"},null,{"$f":"NR_to_Cash!C$9","v":-155327},{"$f":"NR_to_Cash!D$9","v":-283877},{"$f":"NR_to_Cash!E$9","v":-105647},{"$f":"NR_to_Cash!F$9","v":-78023},null,2370,-7301.2285996745741,-19748.090508883404,-16647.273011284822,-736.93804312235397,null,-155327,-283877,-105647,-78023]
[2371,{"$error":"#NAME?"},{"$error":"#NAME?"},{"$error":"#NAME?"},{"$error":"#NAME?"},null,{"$f":"NR_to_Cash!C$9","v":-155327},{"$f":"NR_to_Cash!D$9","v":-283877},{"$f":"NR_to_Cash!E$9","v":-105647},{"$f":"NR_to_Cash!F$9","v":-78023},null,2371,-11703.524059084521,-11186.040934904355,-24734.89984527402,445.59977863835223,null,-155327,-283877,-105647,-78023]
[2372,{"$error":"#NAME?"},{"$error":"#NAME?"},{"$error":"#NAME?"},{"$error":"#NAME?"},null,{"$f":"NR_to_Cash!C$9","v":-155327},{"$f":"NR_to_Cash!D$9","v":-283877},{"$f":"NR_to_Cash!E$9","v":-105647},{"$f":"NR_to_Cash!F$9","v":-78023},null,2372,-27675.614584005471,111.91768555895767,-6302.7453322432266,4036.6215519978778,null,-155327,-283877,-105647,-78023]
[2373,{"$error":"#NAME?"},{"$error":"#NAME?"},{"$error":"#NAME?"},{"$error":"#NAME?"},null,{"$f":"NR_to_Cash!C$9","v":-155327},{"$f":"NR_to_Cash!D$9","v":-283877},{"$f":"NR_to_Cash!E$9","v":-105647},{"$f":"NR_to_Cash!F$9","v":-78023},null,2373,-17344.74874198524,-21585.409363735605,-14787.833967948827,-14131.617176630003,null,-155327,-283877,-105647,-78023]
[2374,{"$error":"#NAME?"},{"$error":"#NAME?"},{"$error":"#NAME?"},{"$error":"#NAME?"},null,{"$f":"NR_to_Cash!C$9","v":-155327},{"$f":"NR_to_Cash!D$9","v":-283877},{"$f":"NR_to_Cash!E$9","v":-105647},{"$f":"NR_to_Cash!F$9","v":-78023},null,2374,-18175.471690108796,-3643.9239288556482,-31116.917334776972,10321.911381519378,null,-155327,-283877,-105647,-78023]
[2375,{"$error":"#NAME?"},{"$error":"#NAME?"},{"$error":"#NAME?"},{"$error":"#NAME?"},null,{"$f":"NR_to_Cash!C$9","v":-155327},{"$f":"NR_to_Cash!D$9","v":-283877},{"$f":"NR_to_Cash!E$9","v":-105647},{"$f":"NR_to_Cash!F$9","v":-78023},null,2375,-7106.2848742704991,-26369.31728771186,-22879.873001700773,-4221.6889547823803,null,-155327,-283877,-105647,-78023]
[2376,{"$error":"#NAME?"},{"$error":"#NAME?"},{"$error":"#NAME?"},{"$error":"#NAME?"},null,{"$f":"NR_to_Cash!C$9","v":-155327},{"$f":"NR_to_Cash!D$9","v":-283877},{"$f":"NR_to_Cash!E$9","v":-105647},{"$f":"NR_to_Cash!F$9","v":-78023},null,2376,-13777.61477078202,-10007.918136968747,-15499.834790316267,-25113.373769048329,null,-155327,-283877,-105647,-78023]
[2377,{"$error":"#NAME?"},{"$error":"#NAME?"},{"$error":"#NAME?"},{"$error":"#NAME?"},null,{"$f":"NR_to_Cash!C$9","v":-155327},{"$f":"NR_to_Cash!D$9","v":-283877},{"$f":"NR_to_Cash!E$9","v":-105647},{"$f":"NR_to_Cash!F$9","v":-78023},null,2377,-21776.410812805439,-2871.800356526302,-11297.914304369751,-12379.712057509678,null,-155327,-283877,-105647,-78023]
[2378,{"$error":"#NAME?"},{"$error":"#NAME?"},{"$error":"#NAME?"},{"$error":"#NAME?"},null,{"$f":"NR_to_Cash!C$9","v":-155327},{"$f":"NR_to_Cash!D$9","v":-283877},{"$f":"NR_to_Cash!E$9","v":-105647},{"$f":"NR_to_Cash!F$9","v":-78023},null,2378,-13520.853449996262,-13628.958707541065,-8346.9432155771647,-14021.500881581949,null,-155327,-283877,-105647,-78023]
[2379,{"$error":"#NAME?"},{"$error":"#NAME?"},{"$error":"#NAME?"},{"$error":"#NAME?"},null,{"$f":"NR_to_Cash!C$9","v":-155327},{"$f":"NR_to_Cash!D$9","v":-283877},{"$f":"NR_to_Cash!E$9","v":-105647},{"$f":"NR_to_Cash!F$9","v":-78023},null,2379,-2249.4647761187662,12627.054427004328,879.21846041503761,-18776.315531720538,null,-155327,-283877,-105647,-78023]
[2380,{"$error":"#NAME?"},{"$error":"#NAME?"},{"$error":"#NAME?"},{"$error":"#NAME?"},null,{"$f":"NR_to_Cash!C$9","v":-155327},{"$f":"NR_to_Cash!D$9","v":-283877},{"$f":"NR_to_Cash!E$9","v":-105647},{"$f":"NR_to_Cash!F$9","v":-78023},null,2380,-16945.842314361347,-27671.694430694908,4500.5221618116047,-18638.956584805899,null,-155327,-283877,-105647,-78023]
[2381,{"$error":"#NAME?"},{"$error":"#NAME?"},{"$error":"#NAME?"},{"$error":"#NAME?"},null,{"$f":"NR_to_Cash!C$9","v":-155327},{"$f":"NR_to_Cash!D$9","v":-283877},{"$f":"NR_to_Cash!E$9","v":-105647},{"$f":"NR_to_Cash!F$9","v":-78023},null,2381,-19243.071957019336,-2615.5920865045659,-6625.2174956724175,8618.69768936537,null,-155327,-283877,-105647,-78023]
[2382,{"$error":"#NAME?"},{"$error":"#NAME?"},{"$error":"#NAME?"},{"$error":"#NAME?"},null,{"$f":"NR_to_Cash!C$9","v":-155327},{"$f":"NR_to_Cash!D$9","v":-283877},{"$f":"NR_to_Cash!E$9","v":-105647},{"$f":"NR_to_Cash!F$9","v":-78023},null,2382,-2699.6605045164897,-12575.579778036506,951.25446072790646,-16135.442066044085,null,-155327,-283877,-105647,-78023]
[2383,{"$error":"#NAME?"},{"$error":"#NAME?"},{"$error":"#NAME?"},{"$error":"#NAME?"},null,{"$f":"NR_to_Cash!C$9","v":-155327},{"$f":"NR_to_Cash!D$9","v":-283877},{"$f":"NR_to_Cash!E$9","v":-105647},{"$f":"NR_to_Cash!F$9","v":-78023},null,2383,3947.9248072946739,-8429.2559782205917,-25639.387173766965,5864.2890048909949,null,-155327,-283877,-105647,-78023]
[2384,{"$error":"#NAME?"},{"$error":"#NAME?"},{"$error":"#NAME?"},{"$error":"#NAME?"},null,{"$f":"NR_to_Cash!C$9","v":-155327},{"$f":"NR_to_Cash!D$9","v":-283877},{"$f":"NR_to_Cash!E$9","v":-105647},{"$f":"NR_to_Cash!F$9","v":-78023},null,2384,-5557.6663388326251,-23118.792854488504,-3246.0115133717914,1422.8266508751244,null,-155327,-283877,-105647,-78023]
[2385,{"$error":"#NAME?"},{"$error":"#NAME?"},{"$error":"#NAME?"},{"$error":"#NAME?"},null,{"$f":"NR_to_Cash!C$9","v":-155327},{"$f":"NR_to_Cash!D$9","v":-283877},{"$f":"NR_to_Cash!E$9","v":-105647},{"$f":"NR_to_Cash!F$9","v":-78023},null,2385,-10244.852457438334,-5558.3046000910945,4342.8347645503927,-4308.5311882965343,null,-155327,-283877,-105647,-78023]
[2386,{"$error":"#NAME?"},{"$error":"#NAME?"},{"$error":"#NAME?"},{"$error":"#NAME?"},null,{"$f":"NR_to_Cash!C$9","v":-155327},{"$f":"NR_to_Cash!D$9","v":-283877},{"$f":"NR_to_Cash!E$9","v":-105647},{"$f":"NR_to_Cash!F$9","v":-78023},null,2386,-16250.232721923563,-34294.073712112026,13634.493929716449,-1472.5203397436692,null,-155327,-283877,-105647,-78023]
[2387,{"$error":"#NAME?"},{"$error":"#NAME?"},{"$error":"#NAME?"},{"$error":"#NAME?"},null,{"$f":"NR_to_Cash!C$9","v":-155327},{"$f":"NR_to_Cash!D$9","v":-283877},{"$f":"NR_to_Cash!E$9","v":-105647},{"$f":"NR_to_Cash!F$9","v":-78023},null,2387,-14266.857178333266,-34971.388600446575,8939.6166754449787,-19965.853876775676,null,-155327,-283877,-105647,-78023]
[2388,{"$error":"#NAME?"},{"$error":"#NAME?"},{"$error":"#NAME?"},{"$error":"#NAME?"},null,{"$f":"NR_to_Cash!C$9","v":-155327},{"$f":"NR_to_Cash!D$9","v":-283877},{"$f":"NR_to_Cash!E$9","v":-105647},{"$f":"NR_to_Cash!F$9","v":-78023},null,2388,-17460.148324692389,-6667.4863058801275,11110.027134859258,-18331.834665811439,null,-155327,-283877,-105647,-78023]
[2389,{"$error":"#NAME?"},{"$error":"#NAME?"},{"$error":"#NAME?"},{"$error":"#NAME?"},null,{"$f":"NR_to_Cash!C$9","v":-155327},{"$f":"NR_to_Cash!D$9","v":-283877},{"$f":"NR_to_Cash!E$9","v":-105647},{"$f":"NR_to_Cash!F$9","v":-78023},null,2389,-8428.2647734257589,-23451.532911964947,-17187.196933126339,-12192.516172331405,null,-155327,-283877,-105647,-78023]
[2390,{"$error":"#NAME?"},{"$error":"#NAME?"},{"$error":"#NAME?"},{"$error":"#NAME?"},null,{"$f":"NR_to_Cash!C$9","v":-155327},{"$f":"NR_to_Cash!D$9","v":-283877},{"$f":"NR_to_Cash!E$9","v":-105647},{"$f":"NR_to_Cash!F$9","v":-78023},null,2390,-21120.015329298396,-7211.5320156599,3608.4927134630689,2685.1052185811882,null,-155327,-283877,-105647,-78023]
[2391,{"$error":"#NAME?"},{"$error":"#NAME?"},{"$error":"#NAME?"},{"$error":"#NAME?"},null,{"$f":"NR_to_Cash!C$9","v":-155327},{"$f":"NR_to_Cash!D$9","v":-283877},{"$f":"NR_to_Cash!E$9","v":-105647},{"$f":"NR_to_Cash!F$9","v":-78023},null,2391,-10611.266734898316,-10213.868171433209,-2817.7451133584118,1994.1282194134776,null,-155327,-283877,-105647,-78023]
[2392,{"$error":"#NAME?"},{"$error":"#NAME?"},{"$error":"#NAME?"},{"$error":"#NAME?"},null,{"$f":"NR_to_Cash!C$9","v":-155327},{"$f":"NR_to_Cash!D$9","v":-283877},{"$f":"NR_to_Cash!E$9","v":-105647},{"$f":"NR_to_Cash!F$9","v":-78023},null,2392,-10032.415145233717,-4059.4577169859635,-20321.10820137339,5730.011205109844,null,-155327,-283877,-105647,-78023]
[2393,{"$error":"#NAME?"},{"$error":"#NAME?"},{"$error":"#NAME?"},{"$error":"#NAME?"},null,{"$f":"NR_to_Cash!C$9","v":-155327},{"$f":"NR_to_Cash!D$9","v":-283877},{"$f":"NR_to_Cash!E$9","v":-105647},{"$f":"NR_to_Cash!F$9","v":-78023},null,2393,-26498.677909230631,-18827.398142730621,-10934.916163481876,-26311.163081407431,null,-155327,-283877,-105647,-78023]
[2394,{"$error":"#NAME?"},{"$error":"#NAME?"},{"$error":"#NAME?"},{"$error":"#NAME?"},null,{"$f":"NR_to_Cash!C$9","v":-155327},{"$f":"NR_to_Cash!D$9","v":-283877},{"$f":"NR_to_Cash!E$9","v":-105647},{"$f":"NR_to_Cash!F$9","v":-78023},null,2394,-16863.050187094443,-3882.5984260975692,6155.0232383720986,-28274.969661963158,null,-155327,-283877,-105647,-78023]
[2395,{"$error":"#NAME?"},{"$error":"#NAME?"},{"$error":"#NAME?"},{"$error":"#NAME?"},null,{"$f":"NR_to_Cash!C$9","v":-155327},{"$f":"NR_to_Cash!D$9","v":-283877},{"$f":"NR_to_Cash!E$9","v":-105647},{"$f":"NR_to_Cash!F$9","v":-78023},null,2395,-29149.314520272215,-8951.8565658430525,-36260.241614312727,-8432.0283892800544,null,-155327,-283877,-105647,-78023]
[2396,{"$error":"#NAME?"},{"$error":"#NAME?"},{"$error":"#NAME?"},{"$error":"#NAME?"},null,{"$f":"NR_to_Cash!C$9","v":-155327},{"$f":"NR_to_Cash!D$9","v":-283877},{"$f":"NR_to_Cash!E$9","v":-105647},{"$f":"NR_to_Cash!F$9","v":-78023},null,2396,-33167.082448352754,334.55844588212346,-29930.113294295967,-3044.1754804513685,null,-155327,-283877,-105647,-78023]
[2397,{"$error":"#NAME?"},{"$error":"#NAME?"},{"$error":"#NAME?"},{"$error":"#NAME?"},null,{"$f":"NR_to_Cash!C$9","v":-155327},{"$f":"NR_to_Cash!D$9","v":-283877},{"$f":"NR_to_Cash!E$9","v":-105647},{"$f":"NR_to_Cash!F$9","v":-78023},null,2397,-15840.436792354965,-32422.890163088028,116.54668213203716,-10248.854700716131,null,-155327,-283877,-105647,-78023]
[2398,{"$error":"#NAME?"},{"$error":"#NAME?"},{"$error":"#NAME?"},{"$error":"#NAME?"},null,{"$f":"NR_to_Cash!C$9","v":-155327},{"$f":"NR_to_Cash!D$9","v":-283877},{"$f":"NR_to_Cash!E$9","v":-105647},{"$f":"NR_to_Cash!F$9","v":-78023},null,2398,-3625.2423247105062,10466.910397469135,8760.010247200642,-5278.9185003852308,null,-155327,-283877,-105647,-78023]
[2399,{"$error":"#NAME?"},{"$error":"#NAME?"},{"$error":"#NAME?"},{"$error":"#NAME?"},null,{"$f":"NR_to_Cash!C$9","v":-155327},{"$f":"NR_to_Cash!D$9","v":-283877},{"$f":"NR_to_Cash!E$9","v":-105647},{"$f":"NR_to_Cash!F$9","v":-78023},null,2399,-11581.779368223008,-7899.7516135224141,6463.030003069156,1672.6062020252239,null,-155327,-283877,-105647,-78023]
[2400,{"$error":"#NAME?"},{"$error":"#NAME?"},{"$error":"#NAME?"},{"$error":"#NAME?"},null,{"$f":"NR_to_Cash!C$9","v":-155327},{"$f":"NR_to_Cash!D$9","v":-283877},{"$f":"NR_to_Cash!E$9","v":-105647},{"$f":"NR_to_Cash!F$9","v":-78023},null,2400,-9066.9064930254099,-18562.19910504355,-17220.443312269512,-3400.2907597983772,null,-155327,-283877,-105647,-78023]
[2401,{"$error":"#NAME?"},{"$error":"#NAME?"},{"$error":"#NAME?"},{"$error":"#NAME?"},null,{"$f":"NR_to_Cash!C$9","v":-155327},{"$f":"NR_to_Cash!D$9","v":-283877},{"$f":"NR_to_Cash!E$9","v":-105647},{"$f":"NR_to_Cash!F$9","v":-78023},null,2401,-7863.83015678825,-29346.963365512529,-30997.229639815876,13356.742324685456,null,-155327,-283877,-105647,-78023]
[2402,{"$error":"#NAME?"},{"$error":"#NAME?"},{"$error":"#NAME?"},{"$error":"#NAME?"},null,{"$f":"NR_to_Cash!C$9","v":-155327},{"$f":"NR_to_Cash!D$9","v":-283877},{"$f":"NR_to_Cash!E$9","v":-105647},{"$f":"NR_to_Cash!F$9","v":-78023},null,2402,-20712.062822685548,1238.5625556536224,14035.891612855437,-17631.155581095689,null,-155327,-283877,-105647,-78023]
[2403,{"$error":"#NAME?"},{"$error":"#NAME?"},{"$error":"#NAME?"},{"$error":"#NAME?"},null,{"$f":"NR_to_Cash!C$9","v":-155327},{"$f":"NR_to_Cash!D$9","v":-283877},{"$f":"NR_to_Cash!E$9","v":-105647},{"$f":"NR_to_Cash!F$9","v":-78023},null,2403,-9226.909789717376,5920.1467378668804,-12893.792733323302,4551.0786822139362,null,-155327,-283877,-105647,-78023]
[2404,{"$error":"#NAME?"},{"$error":"#NAME?"},{"$error":"#NAME?"},{"$error":"#NAME?"},null,{"$f":"NR_to_Cash!C$9","v":-155327},{"$f":"NR_to_Cash!D$9","v":-283877},{"$f":"NR_to_Cash!E$9","v":-105647},{"$f":"NR_to_Cash!F$9","v":-78023},null,2404,-12962.82805510218,-20403.834321601062,-3052.5939857154422,-14569.61621374367,null,-155327,-283877,-105647,-78023]
[2405,{"$error":"#NAME?"},{"$error":"#NAME?"},{"$error":"#NAME?"},{"$error":"#NAME?"},null,{"$f":"NR_to_Cash!C$9","v":-155327},{"$f":"NR_to_Cash!D$9","v":-283877},{"$f":"NR_to_Cash!E$9","v":-105647},{"$f":"NR_to_Cash!F$9","v":-78023},null,2405,-14369.931134594666,-22000.251392239526,-3732.9905075596598,-4223.9388941237503,null,-155327,-283877,-105647,-78023]
[2406,{"$error":"#NAME?"},{"$error":"#NAME?"},{"$error":"#NAME?"},{"$error":"#NAME?"},null,{"$f":"NR_to_Cash!C$9","v":-155327},{"$f":"NR_to_Cash!D$9","v":-283877},{"$f":"NR_to_Cash!E$9","v":-105647},{"$f":"NR_to_Cash!F$9","v":-78023},null,2406,-17272.356099401361,-24891.310301308265,-9352.352483329938,-16889.923895740518,null,-155327,-283877,-105647,-78023]
[2407,{"$error":"#NAME?"},{"$error":"#NAME?"},{"$error":"#NAME?"},{"$error":"#NAME?"},null,{"$f":"NR_to_Cash!C$9","v":-155327},{"$f":"NR_to_Cash!D$9","v":-283877},{"$f":"NR_to_Cash!E$9","v":-105647},{"$f":"NR_to_Cash!F$9","v":-78023},null,2407,-4634.226766949625,-20094.102636359483,-11770.976890821879,6042.6304158069061,null,-155327,-283877,-105647,-78023]
[2408,{"$error":"#NAME?"},{"$error":"#NAME?"},{"$error":"#NAME?"},{"$error":"#NAME?"},null,{"$f":"NR_to_Cash!C$9","v":-155327},{"$f":"NR_to_Cash!D$9","v":-283877},{"$f":"NR_to_Cash!E$9","v":-105647},{"$f":"NR_to_Cash!F$9","v":-78023},null,2408,-25044.71142004765,10435.394047717857,-4318.1205630662116,-25697.79892955986,null,-155327,-283877,-105647,-78023]
[2409,{"$error":"#NAME?"},{"$error":"#NAME?"},{"$error":"#NAME?"},{"$error":"#NAME?"},null,{"$f":"NR_to_Cash!C$9","v":-155327},{"$f":"NR_to_Cash!D$9","v":-283877},{"$f":"NR_to_Cash!E$9","v":-105647},{"$f":"NR_to_Cash!F$9","v":-78023},null,2409,-11610.739387314447,6832.9943543245445,-1361.1733838083828,10988.102410560199,null,-155327,-283877,-105647,-78023]
[2410,{"$error":"#NAME?"},{"$error":"#NAME?"},{"$error":"#NAME?"},{"$error":"#NAME?"},null,{"$f":"NR_to_Cash!C$9","v":-155327},{"$f":"NR_to_Cash!D$9","v":-283877},{"$f":"NR_to_Cash!E$9","v":-105647},{"$f":"NR_to_Cash!F$9","v":-78023},null,2410,-12350.520129305136,3980.6163629797907,-28768.213640675207,-6312.946730693996,null,-155327,-283877,-105647,-78023]
[2411,{"$error":"#NAME?"},{"$error":"#NAME?"},{"$error":"#NAME?"},{"$error":"#NAME?"},null,{"$f":"NR_to_Cash!C$9","v":-155327},{"$f":"NR_to_Cash!D$9","v":-283877},{"$f":"NR_to_Cash!E$9","v":-105647},{"$f":"NR_to_Cash!F$9","v":-78023},null,2411,-13815.776722081293,-14492.604558711617,-373.15858030372453,3180.0904689216304,null,-155327,-283877,-105647,-78023]
[2412,{"$error":"#NAME?"},{"$error":"#NAME?"},{"$error":"#NAME?"},{"$error":"#NAME?"},null,{"$f":"NR_to_Cash!C$9","v":-155327},{"$f":"NR_to_Cash!D$9","v":-283877},{"$f":"NR_to_Cash!E$9","v":-105647},{"$f":"NR_to_Cash!F$9","v":-78023},null,2412,-7533.7590695327553,-29500.610187864251,-7347.6482518501225,-13857.437384544428,null,-155327,-283877,-105647,-78023]
[2413,{"$error":"#NAME?"},{"$error":"#NAME?"},{"$error":"#NAME?"},{"$error":"#NAME?"},null,{"$f":"NR_to_Cash!C$9","v":-155327},{"$f":"NR_to_Cash!D$9","v":-283877},{"$f":"NR_to_Cash!E$9","v":-105647},{"$f":"NR_to_Cash!F$9","v":-78023},null,2413,-35073.35391526758,-34273.685545391629,-4123.2046241699572,10564.50056590975,null,-155327,-283877,-105647,-78023]
[2414,{"$error":"#NAME?"},{"$error":"#NAME?"},{"$error":"#NAME?"},{"$error":"#NAME?"},null,{"$f":"NR_to_Cash!C$9","v":-155327},{"$f":"NR_to_Cash!D$9","v":-283877},{"$f":"NR_to_Cash!E$9","v":-105647},{"$f":"NR_to_Cash!F$9","v":-78023},null,2414,-16454.981858712268,-24519.266118105403,-11868.57879986124,-17101.588555196617,null,-155327,-283877,-105647,-78023]
[2415,{"$error":"#NAME?"},{"$error":"#NAME?"},{"$error":"#NAME?"},{"$error":"#NAME?"},null,{"$f":"NR_to_Cash!C$9","v":-155327},{"$f":"NR_to_Cash!D$9","v":-283877},{"$f":"NR_to_Cash!E$9","v":-105647},{"$f":"NR_to_Cash!F$9","v":-78023},null,2415,-15289.705150431611,-13608.778450121094,-27768.187221748591,1169.9643446478417,null,-155327,-283877,-105647,-78023]
[2416,{"$error":"#NAME?"},{"$error":"#NAME?"},{"$error":"#NAME?"},{"$error":"#NAME?"},null,{"$f":"NR_to_Cash!C$9","v":-155327},{"$f":"NR_to_Cash!D$9","v":-283877},{"$f":"NR_to_Cash!E$9","v":-105647},{"$f":"NR_to_Cash!F$9","v":-78023},null,2416,-18686.539214656779,5568.798945917355,-16396.380477894523,-6134.9259947047722,null,-155327,-283877,-105647,-78023]
[2417,{"$error":"#NAME?"},{"$error":"#NAME?"},{"$error":"#NAME?"},{"$error":"#NAME?"},null,{"$f":"NR_to_Cash!C$9","v":-155327},{"$f":"NR_to_Cash!D$9","v":-283877},{"$f":"NR_to_Cash!E$9","v":-105647},{"$f":"NR_to_Cash!F$9","v":-78023},null,2417,2580.5272397853778,-9728.2246774579562,-14574.991196847608,-10774.872376456462,null,-155327,-283877,-105647,-78023]
[2418,{"$error":"#NAME?"},{"$error":"#NAME?"},{"$error":"#NAME?"},{"$error":"#NAME?"},null,{"$f":"NR_to_Cash!C$9","v":-155327},{"$f":"NR_to_Cash!D$9","v":-283877},{"$f":"NR_to_Cash!E$9","v":-105647},{"$f":"NR_to_Cash!F$9","v":-78023},null,2418,-9224.0851704455163,5535.3232817176922,-22021.188157688946,-90.361471437020981,null,-155327,-283877,-105647,-78023]
[2419,{"$error":"#NAME?"},{"$error":"#NAME?"},{"$error":"#NAME?"},{"$error":"#NAME?"},null,{"$f":"NR_to_Cash!C$9","v":-155327},{"$f":"NR_to_Cash!D$9","v":-283877},{"$f":"NR_to_Cash!E$9","v":-105647},{"$f":"NR_to_Cash!F$9","v":-78023},null,2419,4765.5426707355409,-16860.348541957199,-11099.863762151495,5921.0154490261484,null,-155327,-283877,-105647,-78023]
[2420,{"$error":"#NAME?"},{"$error":"#NAME?"},{"$error":"#NAME?"},{"$error":"#NAME?"},null,{"$f":"NR_to_Cash!C$9","v":-155327},{"$f":"NR_to_Cash!D$9","v":-283877},{"$f":"NR_to_Cash!E$9","v":-105647},{"$f":"NR_to_Cash!F$9","v":-78023},null,2420,-17589.937410831,-4786.4534678103173,-16136.717073017082,3193.8725319528317,null,-155327,-283877,-105647,-78023]
[2421,{"$error":"#NAME?"},{"$error":"#NAME?"},{"$error":"#NAME?"},{"$error":"#NAME?"},null,{"$f":"NR_to_Cash!C$9","v":-155327},{"$f":"NR_to_Cash!D$9","v":-283877},{"$f":"NR_to_Cash!E$9","v":-105647},{"$f":"NR_to_Cash!F$9","v":-78023},null,2421,-20312.344721364512,-4067.1547752287515,3043.1686693904671,4019.9464432847744,null,-155327,-283877,-105647,-78023]
[2422,{"$error":"#NAME?"},{"$error":"#NAME?"},{"$error":"#NAME?"},{"$error":"#NAME?"},null,{"$f":"NR_to_Cash!C$9","v":-155327},{"$f":"NR_to_Cash!D$9","v":-283877},{"$f":"NR_to_Cash!E$9","v":-105647},{"$f":"NR_to_Cash!F$9","v":-78023},null,2422,-8237.1353485767395,-30199.94004722578,-13011.277499993404,-36191.537339507333,null,-155327,-283877,-105647,-78023]
[2423,{"$error":"#NAME?"},{"$error":"#NAME?"},{"$error":"#NAME?"},{"$error":"#NAME?"},null,{"$f":"NR_to_Cash!C$9","v":-155327},{"$f":"NR_to_Cash!D$9","v":-283877},{"$f":"NR_to_Cash!E$9","v":-105647},{"$f":"NR_to_Cash!F$9","v":-78023},null,2423,-22672.507360785374,-2889.4414819404137,-9730.6878389808226,2971.7100171494812,null,-155327,-283877,-105647,-78023]
[2424,{"$error":"#NAME?"},{"$error":"#NAME?"},{"$error":"#NAME?"},{"$error":"#NAME?"},null,{"$f":"NR_to_Cash!C$9","v":-155327},{"$f":"NR_to_Cash!D$9","v":-283877},{"$f":"NR_to_Cash!E$9","v":-105647},{"$f":"NR_to_Cash!F$9","v":-78023},null,2424,-36536.354730727282,-10442.626090677597,25738.92446870268,-5740.1711825473885,null,-155327,-283877,-105647,-78023]
[2425,{"$error":"#NAME?"},{"$error":"#NAME?"},{"$error":"#NAME?"},{"$error":"#NAME?"},null,{"$f":"NR_to_Cash!C$9","v":-155327},{"$f":"NR_to_Cash!D$9","v":-283877},{"$f":"NR_to_Cash!E$9","v":-105647},{"$f":"NR_to_Cash!F$9","v":-78023},null,2425,10331.577494953865,7727.2495383864352,-9458.8612296583797,13235.672790929271,null,-155327,-283877,-105647,-78023]
[2426,{"$error":"#NAME?"},{"$error":"#NAME?"},{"$error":"#NAME?"},{"$error":"#NAME?"},null,{"$f":"NR_to_Cash!C$9","v":-155327},{"$f":"NR_to_Cash!D$9","v":-283877},{"$f":"NR_to_Cash!E$9","v":-105647},{"$f":"NR_to_Cash!F$9","v":-78023},null,2426,1346.2131521732008,-19771.012059770761,-6109.1957883828345,-18038.318259458978,null,-155327,-283877,-105647,-78023]
[2427,{"$error":"#NAME?"},{"$error":"#NAME?"},{"$error":"#NAME?"},{"$error":"#NAME?"},null,{"$f":"NR_to_Cash!C$9","v":-155327},{"$f":"NR_to_Cash!D$9","v":-283877},{"$f":"NR_to_Cash!E$9","v":-105647},{"$f":"NR_to_Cash!F$9","v":-78023},null,2427,919.71386383137224,11100.954502536275,-23581.286273893114,-31481.888666975192,null,-155327,-283877,-105647,-78023]
[2428,{"$error":"#NAME?"},{"$error":"#NAME?"},{"$error":"#NAME?"},{"$error":"#NAME?"},null,{"$f":"NR_to_Cash!C$9","v":-155327},{"$f":"NR_to_Cash!D$9","v":-283877},{"$f":"NR_to_Cash!E$9","v":-105647},{"$f":"NR_to_Cash!F$9","v":-78023},null,2428,-26260.183752194127,-4236.9308313041802,-21178.050462893269,-17382.127759215578,null,-155327,-283877,-105647,-78023]
[2429,{"$error":"#NAME?"},{"$error":"#NAME?"},{"$error":"#NAME?"},{"$error":"#NAME?"},null,{"$f":"NR_to_Cash!C$9","v":-155327},{"$f":"NR_to_Cash!D$9","v":-283877},{"$f":"NR_to_Cash!E$9","v":-105647},{"$f":"NR_to_Cash!F$9","v":-78023},null,2429,-21558.215392170845,-14393.004284781478,11057.511916097705,-28088.830199981501,null,-155327,-283877,-105647,-78023]
[2430,{"$error":"#NAME?"},{"$error":"#NAME?"},{"$error":"#NAME?"},{"$error":"#NAME?"},null,{"$f":"NR_to_Cash!C$9","v":-155327},{"$f":"NR_to_Cash!D$9","v":-283877},{"$f":"NR_to_Cash!E$9","v":-105647},{"$f":"NR_to_Cash!F$9","v":-78023},null,2430,-22186.764556216833,-4270.2122407267216,-17046.355849772983,-14780.022092755158,null,-155327,-283877,-105647,-78023]
[2431,{"$error":"#NAME?"},{"$error":"#NAME?"},{"$error":"#NAME?"},{"$error":"#NAME?"},null,{"$f":"NR_to_Cash!C$9","v":-155327},{"$f":"NR_to_Cash!D$9","v":-283877},{"$f":"NR_to_Cash!E$9","v":-105647},{"$f":"NR_to_Cash!F$9","v":-78023},null,2431,-34817.887170111397,-16885.046138843762,-12926.414886149931,-22605.978439537397,null,-155327,-283877,-105647,-78023]
[2432,{"$error":"#NAME?"},{"$error":"#NAME?"},{"$error":"#NAME?"},{"$error":"#NAME?"},null,{"$f":"NR_to_Cash!C$9","v":-155327},{"$f":"NR_to_Cash!D$9","v":-283877},{"$f":"NR_to_Cash!E$9","v":-105647},{"$f":"NR_to_Cash!F$9","v":-78023},null,2432,-16259.003342705084,3641.8596897104185,-36364.485969247384,14803.377471228867,null,-155327,-283877,-105647,-78023]
[2433,{"$error":"#NAME?"},{"$error":"#NAME?"},{"$error":"#NAME?"},{"$error":"#NAME?"},null,{"$f":"NR_to_Cash!C$9","v":-155327},{"$f":"NR_to_Cash!D$9","v":-283877},{"$f":"NR_to_Cash!E$9","v":-105647},{"$f":"NR_to_Cash!F$9","v":-78023},null,2433,-5318.9923783883396,-2125.6153146930387,9757.8644772344105,13532.218301160075,null,-155327,-283877,-105647,-78023]
[2434,{"$error":"#NAME?"},{"$error":"#NAME?"},{"$error":"#NAME?"},{"$error":"#NAME?"},null,{"$f":"NR_to_Cash!C$9","v":-155327},{"$f":"NR_to_Cash!D$9","v":-283877},{"$f":"NR_to_Cash!E$9","v":-105647},{"$f":"NR_to_Cash!F$9","v":-78023},null,2434,-9917.113420641992,-7127.7024562620709,-6100.7516874859475,-9560.3800793657319,null,-155327,-283877,-105647,-78023]
[2435,{"$error":"#NAME?"},{"$error":"#NAME?"},{"$error":"#NAME?"},{"$error":"#NAME?"},null,{"$f":"NR_to_Cash!C$9","v":-155327},{"$f":"NR_to_Cash!D$9","v":-283877},{"$f":"NR_to_Cash!E$9","v":-105647},{"$f":"NR_to_Cash!F$9","v":-78023},null,2435,-20060.327421887752,-3821.429680300761,-10502.594048630195,-26827.280851620264,null,-155327,-283877,-105647,-78023]
[2436,{"$error":"#NAME?"},{"$error":"#NAME?"},{"$error":"#NAME?"},{"$error":"#NAME?"},null,{"$f":"NR_to_Cash!C$9","v":-155327},{"$f":"NR_to_Cash!D$9","v":-283877},{"$f":"NR_to_Cash!E$9","v":-105647},{"$f":"NR_to_Cash!F$9","v":-78023},null,2436,-14741.703491911216,12423.654303890669,5949.68021230043,-9854.9411144162987,null,-155327,-283877,-105647,-78023]
[2437,{"$error":"#NAME?"},{"$error":"#NAME?"},{"$error":"#NAME?"},{"$error":"#NAME?"},null,{"$f":"NR_to_Cash!C$9","v":-155327},{"$f":"NR_to_Cash!D$9","v":-283877},{"$f":"NR_to_Cash!E$9","v":-105647},{"$f":"NR_to_Cash!F$9","v":-78023},null,2437,-4529.496048219512,-10221.585347609904,-29153.830828208218,-16645.293970720555,null,-155327,-283877,-105647,-78023]
[2438,{"$error":"#NAME?"},{"$error":"#NAME?"},{"$error":"#NAME?"},{"$error":"#NAME?"},null,{"$f":"NR_to_Cash!C$9","v":-155327},{"$f":"NR_to_Cash!D$9","v":-283877},{"$f":"NR_to_Cash!E$9","v":-105647},{"$f":"NR_to_Cash!F$9","v":-78023},null,2438,-19263.255479884814,15884.239600148539,-25558.289190775336,-23685.760863873234,null,-155327,-283877,-105647,-78023]
[2439,{"$error":"#NAME?"},{"$error":"#NAME?"},{"$error":"#NAME?"},{"$error":"#NAME?"},null,{"$f":"NR_to_Cash!C$9","v":-155327},{"$f":"NR_to_Cash!D$9","v":-283877},{"$f":"NR_to_Cash!E$9","v":-105647},{"$f":"NR_to_Cash!F$9","v":-78023},null,2439,-27185.638264905632,-21963.597462686164,7234.3823205248727,-7841.3576343616514,null,-155327,-283877,-105647,-78023]
[2440,{"$error":"#NAME?"},{"$error":"#NAME?"},{"$error":"#NAME?"},{"$error":"#NAME?"},null,{"$f":"NR_to_Cash!C$9","v":-155327},{"$f":"NR_to_Cash!D$9","v":-283877},{"$f":"NR_to_Cash!E$9","v":-105647},{"$f":"NR_to_Cash!F$9","v":-78023},null,2440,-25515.380993716928,-11674.8325579131,-43282.068515705469,1545.6785591312221,null,-155327,-283877,-105647,-78023]
[2441,{"$error":"#NAME?"},{"$error":"#NAME?"},{"$error":"#NAME?"},{"$error":"#NAME?"},null,{"$f":"NR_to_Cash!C$9","v":-155327},{"$f":"NR_to_Cash!D$9","v":-283877},{"$f":"NR_to_Cash!E$9","v":-105647},{"$f":"NR_to_Cash!F$9","v":-78023},null,2441,-9608.4343048386218,-4209.0989765729446,-22197.400032319048,-38339.252916589619,null,-155327,-283877,-105647,-78023]
[2442,{"$error":"#NAME?"},{"$error":"#NAME?"},{"$error":"#NAME?"},{"$error":"#NAME?"},null,{"$f":"NR_to_Cash!C$9","v":-155327},{"$f":"NR_to_Cash!D$9","v":-283877},{"$f":"NR_to_Cash!E$9","v":-105647},{"$f":"NR_to_Cash!F$9","v":-78023},null,2442,-16209.808406688888,-11506.19594453798,-27098.089569352949,-5985.6032285269584,null,-155327,-283877,-105647,-78023]
[2443,{"$error":"#NAME?"},{"$error":"#NAME?"},{"$error":"#NAME?"},{"$error":"#NAME?"},null,{"$f":"NR_to_Cash!C$9","v":-155327},{"$f":"NR_to_Cash!D$9","v":-283877},{"$f":"NR_to_Cash!E$9","v":-105647},{"$f":"NR_to_Cash!F$9","v":-78023},null,2443,-10285.742522497472,-21457.333282811982,-3028.9673963161708,-4701.1400156550144,null,-155327,-283877,-105647,-78023]
[2444,{"$error":"#NAME?"},{"$error":"#NAME?"},{"$error":"#NAME?"},{"$error":"#NAME?"},null,{"$f":"NR_to_Cash!C$9","v":-155327},{"$f":"NR_to_Cash!D$9","v":-283877},{"$f":"NR_to_Cash!E$9","v":-105647},{"$f":"NR_to_Cash!F$9","v":-78023},null,2444,-4487.2253078948233,8049.1906642859012,15768.252544022103,-17075.529413772485,null,-155327,-283877,-105647,-78023]
[2445,{"$error":"#NAME?"},{"$error":"#NAME?"},{"$error":"#NAME?"},{"$error":"#NAME?"},null,{"$f":"NR_to_Cash!C$9","v":-155327},{"$f":"NR_to_Cash!D$9","v":-283877},{"$f":"NR_to_Cash!E$9","v":-105647},{"$f":"NR_to_Cash!F$9","v":-78023},null,2445,-11373.381709519937,11386.355032231471,8412.0424953733655,3403.7886185138568,null,-155327,-283877,-105647,-78023]
[2446,{"$error":"#NAME?"},{"$error":"#NAME?"},{"$error":"#NAME?"},{"$error":"#NAME?"},null,{"$f":"NR_to_Cash!C$9","v":-155327},{"$f":"NR_to_Cash!D$9","v":-283877},{"$f":"NR_to_Cash!E$9","v":-105647},{"$f":"NR_to_Cash!F$9","v":-78023},null,2446,-5344.9277689907058,4668.3190529842996,-20512.643576807321,-14908.11306250374,null,-155327,-283877,-105647,-78023]
[2447,{"$error":"#NAME?"},{"$error":"#NAME?"},{"$error":"#NAME?"},{"$error":"#NAME?"},null,{"$f":"NR_to_Cash!C$9","v":-155327},{"$f":"NR_to_Cash!D$9","v":-283877},{"$f":"NR_to_Cash!E$9","v":-105647},{"$f":"NR_to_Cash!F$9","v":-78023},null,2447,-26256.853681482309,-12284.740603145585,-9068.7436561760205,5323.4048169214348,null,-155327,-283877,-105647,-78023]
[2448,{"$error":"#NAME?"},{"$error":"#NAME?"},{"$error":"#NAME?"},{"$error":"#NAME?"},null,{"$f":"NR_to_Cash!C$9","v":-155327},{"$f":"NR_to_Cash!D$9","v":-283877},{"$f":"NR_to_Cash!E$9","v":-105647},{"$f":"NR_to_Cash!F$9","v":-78023},null,2448,-17228.366855736414,12864.348784371177,-25219.827985873679,-16997.263820362499,null,-155327,-283877,-105647,-78023]
[2449,{"$error":"#NAME?"},{"$error":"#NAME?"},{"$error":"#NAME?"},{"$error":"#NAME?"},null,{"$f":"NR_to_Cash!C$9","v":-155327},{"$f":"NR_to_Cash!D$9","v":-283877},{"$f":"NR_to_Cash!E$9","v":-105647},{"$f":"NR_to_Cash!F$9","v":-78023},null,2449,-7675.8483736287062,-36365.230894400986,-32789.184565847783,12919.341812916875,null,-155327,-283877,-105647,-78023]
[2450,{"$error":"#NAME?"},{"$error":"#NAME?"},{"$error":"#NAME?"},{"$error":"#NAME?"},null,{"$f":"NR_to_Cash!C$9","v":-155327},{"$f":"NR_to_Cash!D$9","v":-283877},{"$f":"NR_to_Cash!E$9","v":-105647},{"$f":"NR_to_Cash!F$9","v":-78023},null,2450,-15242.300040679369,5718.0741835779163,-8147.1472946715812,-8796.5199293304959,null,-155327,-283877,-105647,-78023]
[2451,{"$error":"#NAME?"},{"$error":"#NAME?"},{"$error":"#NAME?"},{"$error":"#NAME?"},null,{"$f":"NR_to_Cash!C$9","v":-155327},{"$f":"NR_to_Cash!D$9","v":-283877},{"$f":"NR_to_Cash!E$9","v":-105647},{"$f":"NR_to_Cash!F$9","v":-78023},null,2451,-15863.654132934587,-7875.4281782989347,-10412.850708501446,18957.44760978765,null,-155327,-283877,-105647,-78023]
[2452,{"$error":"#NAME?"},{"$error":"#NAME?"},{"$error":"#NAME?"},{"$error":"#NAME?"},null,{"$f":"NR_to_Cash!C$9","v":-155327},{"$f":"NR_to_Cash!D$9","v":-283877},{"$f":"NR_to_Cash!E$9","v":-105647},{"$f":"NR_to_Cash!F$9","v":-78023},null,2452,-11615.644038776682,-35543.212330828108,-354.41210478687634,10021.941357822876,null,-155327,-283877,-105647,-78023]
[2453,{"$error":"#NAME?"},{"$error":"#NAME?"},{"$error":"#NAME?"},{"$error":"#NAME?"},null,{"$f":"NR_to_Cash!C$9","v":-155327},{"$f":"NR_to_Cash!D$9","v":-283877},{"$f":"NR_to_Cash!E$9","v":-105647},{"$f":"NR_to_Cash!F$9","v":-78023},null,2453,-3545.2861293951573,-8628.6594301928653,-56203.599357454274,-5521.9660806633929,null,-155327,-283877,-105647,-78023]
[2454,{"$error":"#NAME?"},{"$error":"#NAME?"},{"$error":"#NAME?"},{"$error":"#NAME?"},null,{"$f":"NR_to_Cash!C$9","v":-155327},{"$f":"NR_to_Cash!D$9","v":-283877},{"$f":"NR_to_Cash!E$9","v":-105647},{"$f":"NR_to_Cash!F$9","v":-78023},null,2454,-10078.227528820737,-19654.591419681543,-20503.392776305802,-5494.9701764521405,null,-155327,-283877,-105647,-78023]
[2455,{"$error":"#NAME?"},{"$error":"#NAME?"},{"$error":"#NAME?"},{"$error":"#NAME?"},null,{"$f":"NR_to_Cash!C$9","v":-155327},{"$f":"NR_to_Cash!D$9","v":-283877},{"$f":"NR_to_Cash!E$9","v":-105647},{"$f":"NR_to_Cash!F$9","v":-78023},null,2455,-13273.39333649605,-25390.822200472918,-8159.6757899614804,8276.4355432855518,null,-155327,-283877,-105647,-78023]
[2456,{"$error":"#NAME?"},{"$error":"#NAME?"},{"$error":"#NAME?"},{"$error":"#NAME?"},null,{"$f":"NR_to_Cash!C$9","v":-155327},{"$f":"NR_to_Cash!D$9","v":-283877},{"$f":"NR_to_Cash!E$9","v":-105647},{"$f":"NR_to_Cash!F$9","v":-78023},null,2456,-8631.2939640991135,6046.1124551855082,-12271.68771152059,-10131.718487716744,null,-155327,-283877,-105647,-78023]
[2457,{"$error":"#NAME?"},{"$error":"#NAME?"},{"$error":"#NAME?"},{"$error":"#NAME?"},null,{"$f":"NR_to_Cash!C$9","v":-155327},{"$f":"NR_to_Cash!D$9","v":-283877},{"$f":"NR_to_Cash!E$9","v":-105647},{"$f":"NR_to_Cash!F$9","v":-78023},null,2457,-13305.956987921854,1981.0614084188885,10599.547862436839,-2434.1825905054079,null,-155327,-283877,-105647,-78023]
[2458,{"$error":"#NAME?"},{"$error":"#NAME?"},{"$error":"#NAME?"},{"$error":"#NAME?"},null,{"$f":"NR_to_Cash!C$9","v":-155327},{"$f":"NR_to_Cash!D$9","v":-283877},{"$f":"NR_to_Cash!E$9","v":-105647},{"$f":"NR_to_Cash!F$9","v":-78023},null,2458,-28618.067997380771,-8885.533362957518,-20557.97564005807,13777.357632334797,null,-155327,-283877,-105647,-78023]
[2459,{"$error":"#NAME?"},{"$error":"#NAME?"},{"$error":"#NAME?"},{"$error":"#NAME?"},null,{"$f":"NR_to_Cash!C$9","v":-155327},{"$f":"NR_to_Cash!D$9","v":-283877},{"$f":"NR_to_Cash!E$9","v":-105647},{"$f":"NR_to_Cash!F$9","v":-78023},null,2459,-11571.359102225666,-11640.4914691431,-22681.728168162183,13538.735988977623,null,-155327,-283877,-105647,-78023]
[2460,{"$error":"#NAME?"},{"$error":"#NAME?"},{"$error":"#NAME?"},{"$error":"#NAME?"},null,{"$f":"NR_to_Cash!C$9","v":-155327},{"$f":"NR_to_Cash!D$9","v":-283877},{"$f":"NR_to_Cash!E$9","v":-105647},{"$f":"NR_to_Cash!F$9","v":-78023},null,2460,-11613.347325633147,942.25922987011074,-24765.161372143364,-1238.0264479458174,null,-155327,-283877,-105647,-78023]
[2461,{"$error":"#NAME?"},{"$error":"#NAME?"},{"$error":"#NAME?"},{"$error":"#NAME?"},null,{"$f":"NR_to_Cash!C$9","v":-155327},{"$f":"NR_to_Cash!D$9","v":-283877},{"$f":"NR_to_Cash!E$9","v":-105647},{"$f":"NR_to_Cash!F$9","v":-78023},null,2461,-20738.498046402339,-16619.391301023341,23411.405932212561,-16173.288205635308,null,-155327,-283877,-105647,-78023]
[2462,{"$error":"#NAME?"},{"$error":"#NAME?"},{"$error":"#NAME?"},{"$error":"#NAME?"},null,{"$f":"NR_to_Cash!C$9","v":-155327},{"$f":"NR_to_Cash!D$9","v":-283877},{"$f":"NR_to_Cash!E$9","v":-105647},{"$f":"NR_to_Cash!F$9","v":-78023},null,2462,-4604.9976753833171,1416.8529945746427,-16501.688485351064,-109.28175516662857,null,-155327,-283877,-105647,-78023]
[2463,{"$error":"#NAME?"},{"$error":"#NAME?"},{"$error":"#NAME?"},{"$error":"#NAME?"},null,{"$f":"NR_to_Cash!C$9","v":-155327},{"$f":"NR_to_Cash!D$9","v":-283877},{"$f":"NR_to_Cash!E$9","v":-105647},{"$f":"NR_to_Cash!F$9","v":-78023},null,2463,-33488.589380957805,-13877.114177948861,4704.0896267550706,-7122.9519310677115,null,-155327,-283877,-105647,-78023]
[2464,{"$error":"#NAME?"},{"$error":"#NAME?"},{"$error":"#NAME?"},{"$error":"#NAME?"},null,{"$f":"NR_to_Cash!C$9","v":-155327},{"$f":"NR_to_Cash!D$9","v":-283877},{"$f":"NR_to_Cash!E$9","v":-105647},{"$f":"NR_to_Cash!F$9","v":-78023},null,2464,-2775.1067631324941,-19056.633511073378,-25701.407353777442,-6986.9624562440495,null,-155327,-283877,-105647,-78023]
[2465,{"$error":"#NAME?"},{"$error":"#NAME?"},{"$error":"#NAME?"},{"$error":"#NAME?"},null,{"$f":"NR_to_Cash!C$9","v":-155327},{"$f":"NR_to_Cash!D$9","v":-283877},{"$f":"NR_to_Cash!E$9","v":-105647},{"$f":"NR_to_Cash!F$9","v":-78023},null,2465,-7025.6969327151937,-1808.9248119711056,-9645.4070611300231,10666.425711422948,null,-155327,-283877,-105647,-78023]
[2466,{"$error":"#NAME?"},{"$error":"#NAME?"},{"$error":"#NAME?"},{"$error":"#NAME?"},null,{"$f":"NR_to_Cash!C$9","v":-155327},{"$f":"NR_to_Cash!D$9","v":-283877},{"$f":"NR_to_Cash!E$9","v":-105647},{"$f":"NR_to_Cash!F$9","v":-78023},null,2466,-33136.96340052197,-2817.3427380706735,-10906.944522041791,-3669.8218120217216,null,-155327,-283877,-105647,-78023]
[2467,{"$error":"#NAME?"},{"$error":"#NAME?"},{"$error":"#NAME?"},{"$error":"#NAME?"},null,{"$f":"NR_to_Cash!C$9","v":-155327},{"$f":"NR_to_Cash!D$9","v":-283877},{"$f":"NR_to_Cash!E$9","v":-105647},{"$f":"NR_to_Cash!F$9","v":-78023},null,2467,-23607.516858803909,2433.1159380529862,-14968.038402802129,-15047.927755292792,null,-155327,-283877,-105647,-78023]
[2468,{"$error":"#NAME?"},{"$error":"#NAME?"},{"$error":"#NAME?"},{"$error":"#NAME?"},null,{"$f":"NR_to_Cash!C$9","v":-155327},{"$f":"NR_to_Cash!D$9","v":-283877},{"$f":"NR_to_Cash!E$9","v":-105647},{"$f":"NR_to_Cash!F$9","v":-78023},null,2468,-22765.19645997911,-11203.685326521185,7874.9988574351628,-18957.428728603962,null,-155327,-283877,-105647,-78023]
[2469,{"$error":"#NAME?"},{"$error":"#NAME?"},{"$error":"#NAME?"},{"$error":"#NAME?"},null,{"$f":"NR_to_Cash!C$9","v":-155327},{"$f":"NR_to_Cash!D$9","v":-283877},{"$f":"NR_to_Cash!E$9","v":-105647},{"$f":"NR_to_Cash!F$9","v":-78023},null,2469,-16995.064067266361,13635.009350625405,-37016.195065338354,2677.474823853313,null,-155327,-283877,-105647,-78023]
[2470,{"$error":"#NAME?"},{"$error":"#NAME?"},{"$error":"#NAME?"},{"$error":"#NAME?"},null,{"$f":"NR_to_Cash!C$9","v":-155327},{"$f":"NR_to_Cash!D$9","v":-283877},{"$f":"NR_to_Cash!E$9","v":-105647},{"$f":"NR_to_Cash!F$9","v":-78023},null,2470,-115.04262259015394,-14927.600659998574,-33597.094372800668,-36336.260151140901,null,-155327,-283877,-105647,-78023]
[2471,{"$error":"#NAME?"},{"$error":"#NAME?"},{"$error":"#NAME?"},{"$error":"#NAME?"},null,{"$f":"NR_to_Cash!C$9","v":-155327},{"$f":"NR_to_Cash!D$9","v":-283877},{"$f":"NR_to_Cash!E$9","v":-105647},{"$f":"NR_to_Cash!F$9","v":-78023},null,2471,-10771.927213178533,-31316.672581152256,-2752.4539208114315,-692.04950049259548,null,-155327,-283877,-105647,-78023]
[2472,{"$error":"#NAME?"},{"$error":"#NAME?"},{"$error":"#NAME?"},{"$error":"#NAME?"},null,{"$f":"NR_to_Cash!C$9","v":-155327},{"$f":"NR_to_Cash!D$9","v":-283877},{"$f":"NR_to_Cash!E$9","v":-105647},{"$f":"NR_to_Cash!F$9","v":-78023},null,2472,5411.2035910690247,-34810.42450683505,-11129.699365188771,142.92744036051414,null,-155327,-283877,-105647,-78023]
[2473,{"$error":"#NAME?"},{"$error":"#NAME?"},{"$error":"#NAME?"},{"$error":"#NAME?"},null,{"$f":"NR_to_Cash!C$9","v":-155327},{"$f":"NR_to_Cash!D$9","v":-283877},{"$f":"NR_to_Cash!E$9","v":-105647},{"$f":"NR_to_Cash!F$9","v":-78023},null,2473,-33043.197787812423,8053.2784470761308,-3419.7285752644675,-32718.342982312144,null,-155327,-283877,-105647,-78023]
[2474,{"$error":"#NAME?"},{"$error":"#NAME?"},{"$error":"#NAME?"},{"$error":"#NAME?"},null,{"$f":"NR_to_Cash!C$9","v":-155327},{"$f":"NR_to_Cash!D$9","v":-283877},{"$f":"NR_to_Cash!E$9","v":-105647},{"$f":"NR_to_Cash!F$9","v":-78023},null,2474,-36305.33673844712,-7408.0168012871791,-11805.162142311652,-16299.35900500075,null,-155327,-283877,-105647,-78023]
[2475,{"$error":"#NAME?"},{"$error":"#NAME?"},{"$error":"#NAME?"},{"$error":"#NAME?"},null,{"$f":"NR_to_Cash!C$9","v":-155327},{"$f":"NR_to_Cash!D$9","v":-283877},{"$f":"NR_to_Cash!E$9","v":-105647},{"$f":"NR_to_Cash!F$9","v":-78023},null,2475,-3694.2119799888715,-9693.5506118564226,5800.1841887223163,-13567.408206986935,null,-155327,-283877,-105647,-78023]
[2476,{"$error":"#NAME?"},{"$error":"#NAME?"},{"$error":"#NAME?"},{"$error":"#NAME?"},null,{"$f":"NR_to_Cash!C$9","v":-155327},{"$f":"NR_to_Cash!D$9","v":-283877},{"$f":"NR_to_Cash!E$9","v":-105647},{"$f":"NR_to_Cash!F$9","v":-78023},null,2476,-29106.359473759825,-28360.046097894687,-32805.768287784842,-16667.993501158002,null,-155327,-283877,-105647,-78023]
[2477,{"$error":"#NAME?"},{"$error":"#NAME?"},{"$error":"#NAME?"},{"$error":"#NAME?"},null,{"$f":"NR_to_Cash!C$9","v":-155327},{"$f":"NR_to_Cash!D$9","v":-283877},{"$f":"NR_to_Cash!E$9","v":-105647},{"$f":"NR_to_Cash!F$9","v":-78023},null,2477,-20529.639884675991,-14147.223985644694,-12207.17958147629,-19380.875506466647,null,-155327,-283877,-105647,-78023]
[2478,{"$error":"#NAME?"},{"$error":"#NAME?"},{"$error":"#NAME?"},{"$error":"#NAME?"},null,{"$f":"NR_to_Cash!C$9","v":-155327},{"$f":"NR_to_Cash!D$9","v":-283877},{"$f":"NR_to_Cash!E$9","v":-105647},{"$f":"NR_to_Cash!F$9","v":-78023},null,2478,-24001.063167131677,7349.1048720082454,-7532.7377137480489,711.57235383724128,null,-155327,-283877,-105647,-78023]
[2479,{"$error":"#NAME?"},{"$error":"#NAME?"},{"$error":"#NAME?"},{"$error":"#NAME?"},null,{"$f":"NR_to_Cash!C$9","v":-155327},{"$f":"NR_to_Cash!D$9","v":-283877},{"$f":"NR_to_Cash!E$9","v":-105647},{"$f":"NR_to_Cash!F$9","v":-78023},null,2479,-20599.644432315916,-9401.8551699553009,17439.591058231636,-13497.554895638636,null,-155327,-283877,-105647,-78023]
[2480,{"$error":"#NAME?"},{"$error":"#NAME?"},{"$error":"#NAME?"},{"$error":"#NAME?"},null,{"$f":"NR_to_Cash!C$9","v":-155327},{"$f":"NR_to_Cash!D$9","v":-283877},{"$f":"NR_to_Cash!E$9","v":-105647},{"$f":"NR_to_Cash!F$9","v":-78023},null,2480,-11175.702542754312,126.12528263320783,-1786.9206625341581,-7385.2959499455947,null,-155327,-283877,-105647,-78023]
[2481,{"$error":"#NAME?"},{"$error":"#NAME?"},{"$error":"#NAME?"},{"$error":"#NAME?"},null,{"$f":"NR_to_Cash!C$9","v":-155327},{"$f":"NR_to_Cash!D$9","v":-283877},{"$f":"NR_to_Cash!E$9","v":-105647},{"$f":"NR_to_Cash!F$9","v":-78023},null,2481,-13528.624836304623,-16413.641615291257,-422.43464709330897,5934.8011838681105,null,-155327,-283877,-105647,-78023]
[2482,{"$error":"#NAME?"},{"$error":"#NAME?"},{"$error":"#NAME?"},{"$error":"#NAME?"},null,{"$f":"NR_to_Cash!C$9","v":-155327},{"$f":"NR_to_Cash!D$9","v":-283877},{"$f":"NR_to_Cash!E$9","v":-105647},{"$f":"NR_to_Cash!F$9","v":-78023},null,2482,-28915.967840684978,-4722.8977192033053,-13408.814818445393,8153.12704973577,null,-155327,-283877,-105647,-78023]
[2483,{"$error":"#NAME?"},{"$error":"#NAME?"},{"$error":"#NAME?"},{"$error":"#NAME?"},null,{"$f":"NR_to_Cash!C$9","v":-155327},{"$f":"NR_to_Cash!D$9","v":-283877},{"$f":"NR_to_Cash!E$9","v":-105647},{"$f":"NR_to_Cash!F$9","v":-78023},null,2483,-11629.504227151949,5707.9838457165906,7.5727030901426264,-19377.262798813063,null,-155327,-283877,-105647,-78023]
[2484,{"$error":"#NAME?"},{"$error":"#NAME?"},{"$error":"#NAME?"},{"$error":"#NAME?"},null,{"$f":"NR_to_Cash!C$9","v":-155327},{"$f":"NR_to_Cash!D$9","v":-283877},{"$f":"NR_to_Cash!E$9","v":-105647},{"$f":"NR_to_Cash!F$9","v":-78023},null,2484,-26815.946489216702,-16480.690915386458,-27285.481694557795,-16340.009648411286,null,-155327,-283877,-105647,-78023]
[2485,{"$error":"#NAME?"},{"$error":"#NAME?"},{"$error":"#NAME?"},{"$error":"#NAME?"},null,{"$f":"NR_to_Cash!C$9","v":-155327},{"$f":"NR_to_Cash!D$9","v":-283877},{"$f":"NR_to_Cash!E$9","v":-105647},{"$f":"NR_to_Cash!F$9","v":-78023},null,2485,-20999.323836666612,-26884.929865941886,-18258.794836925976,14060.310605538265,null,-155327,-283877,-105647,-78023]
[2486,{"$error":"#NAME?"},{"$error":"#NAME?"},{"$error":"#NAME?"},{"$error":"#NAME?"},null,{"$f":"NR_to_Cash!C$9","v":-155327},{"$f":"NR_to_Cash!D$9","v":-283877},{"$f":"NR_to_Cash!E$9","v":-105647},{"$f":"NR_to_Cash!F$9","v":-78023},null,2486,-8688.3374332503881,-5398.2449967544526,-13107.966166903776,-33740.517712963352,null,-155327,-283877,-105647,-78023]
[2487,{"$error":"#NAME?"},{"$error":"#NAME?"},{"$error":"#NAME?"},{"$error":"#NAME?"},null,{"$f":"NR_to_Cash!C$9","v":-155327},{"$f":"NR_to_Cash!D$9","v":-283877},{"$f":"NR_to_Cash!E$9","v":-105647},{"$f":"NR_to_Cash!F$9","v":-78023},null,2487,-15516.563155037169,1880.9193451810045,10521.567706888405,-11382.27848533259,null,-155327,-283877,-105647,-78023]
[2488,{"$error":"#NAME?"},{"$error":"#NAME?"},{"$error":"#NAME?"},{"$error":"#NAME?"},null,{"$f":"NR_to_Cash!C$9","v":-155327},{"$f":"NR_to_Cash!D$9","v":-283877},{"$f":"NR_to_Cash!E$9","v":-105647},{"$f":"NR_to_Cash!F$9","v":-78023},null,2488,-6671.9744362277379,-15050.248781892215,-19653.698355191867,735.155713436376,null,-155327,-283877,-105647,-78023]
[2489,{"$error":"#NAME?"},{"$error":"#NAME?"},{"$error":"#NAME?"},{"$error":"#NAME?"},null,{"$f":"NR_to_Cash!C$9","v":-155327},{"$f":"NR_to_Cash!D$9","v":-283877},{"$f":"NR_to_Cash!E$9","v":-105647},{"$f":"NR_to_Cash!F$9","v":-78023},null,2489,-791.83296199576557,-12708.207865506058,-8294.6353867158286,-12657.165202661596,null,-155327,-283877,-105647,-78023]
[2490,{"$error":"#NAME?"},{"$error":"#NAME?"},{"$error":"#NAME?"},{"$error":"#NAME?"},null,{"$f":"NR_to_Cash!C$9","v":-155327},{"$f":"NR_to_Cash!D$9","v":-283877},{"$f":"NR_to_Cash!E$9","v":-105647},{"$f":"NR_to_Cash!F$9","v":-78023},null,2490,-10047.946290028738,-6337.4948601292535,-14083.054920007402,-17502.090007403218,null,-155327,-283877,-105647,-78023]
[2491,{"$error":"#NAME?"},{"$error":"#NAME?"},{"$error":"#NAME?"},{"$error":"#NAME?"},null,{"$f":"NR_to_Cash!C$9","v":-155327},{"$f":"NR_to_Cash!D$9","v":-283877},{"$f":"NR_to_Cash!E$9","v":-105647},{"$f":"NR_to_Cash!F$9","v":-78023},null,2491,-32325.642627457106,-8093.3073611100554,-17588.362688439604,-4213.2650612901416,null,-155327,-283877,-105647,-78023]
[2492,{"$error":"#NAME?"},{"$error":"#NAME?"},{"$error":"#NAME?"},{"$error":"#NAME?"},null,{"$f":"NR_to_Cash!C$9","v":-155327},{"$f":"NR_to_Cash!D$9","v":-283877},{"$f":"NR_to_Cash!E$9","v":-105647},{"$f":"NR_to_Cash!F$9","v":-78023},null,2492,-2792.272187219558,3836.11879791098,-13712.264333771836,8142.4482431558681,null,-155327,-283877,-105647,-78023]
[2493,{"$error":"#NAME?"},{"$error":"#NAME?"},{"$error":"#NAME?"},{"$error":"#NAME?"},null,{"$f":"NR_to_Cash!C$9","v":-155327},{"$f":"NR_to_Cash!D$9","v":-283877},{"$f":"NR_to_Cash!E$9","v":-105647},{"$f":"NR_to_Cash!F$9","v":-78023},null,2493,-23770.240746498399,-30260.684227054375,-9125.377812520228,-25386.72727876767,null,-155327,-283877,-105647,-78023]
[2494,{"$error":"#NAME?"},{"$error":"#NAME?"},{"$error":"#NAME?"},{"$error":"#NAME?"},null,{"$f":"NR_to_Cash!C$9","v":-155327},{"$f":"NR_to_Cash!D$9","v":-283877},{"$f":"NR_to_Cash!E$9","v":-105647},{"$f":"NR_to_Cash!F$9","v":-78023},null,2494,2493.0836247429784,-4928.6225124585626,9663.346593766064,1114.6231000599878,null,-155327,-283877,-105647,-78023]
[2495,{"$error":"#NAME?"},{"$error":"#NAME?"},{"$error":"#NAME?"},{"$error":"#NAME?"},null,{"$f":"NR_to_Cash!C$9","v":-155327},{"$f":"NR_to_Cash!D$9","v":-283877},{"$f":"NR_to_Cash!E$9","v":-105647},{"$f":"NR_to_Cash!F$9","v":-78023},null,2495,-10303.126629534809,11948.63639032874,-3159.5761885320676,12938.517617644124,null,-155327,-283877,-105647,-78023]
[2496,{"$error":"#NAME?"},{"$error":"#NAME?"},{"$error":"#NAME?"},{"$error":"#NAME?"},null,{"$f":"NR_to_Cash!C$9","v":-155327},{"$f":"NR_to_Cash!D$9","v":-283877},{"$f":"NR_to_Cash!E$9","v":-105647},{"$f":"NR_to_Cash!F$9","v":-78023},null,2496,-1500.2523898207533,-20455.950547728266,5949.3414131590444,-6413.5436626380861,null,-155327,-283877,-105647,-78023]
[2497,{"$error":"#NAME?"},{"$error":"#NAME?"},{"$error":"#NAME?"},{"$error":"#NAME?"},null,{"$f":"NR_to_Cash!C$9","v":-155327},{"$f":"NR_to_Cash!D$9","v":-283877},{"$f":"NR_to_Cash!E$9","v":-105647},{"$f":"NR_to_Cash!F$9","v":-78023},null,2497,-22398.185844071173,-3985.393609746875,-16972.341372909785,-4871.543201557869,null,-155327,-283877,-105647,-78023]
[2498,{"$error":"#NAME?"},{"$error":"#NAME?"},{"$error":"#NAME?"},{"$error":"#NAME?"},null,{"$f":"NR_to_Cash!C$9","v":-155327},{"$f":"NR_to_Cash!D$9","v":-283877},{"$f":"NR_to_Cash!E$9","v":-105647},{"$f":"NR_to_Cash!F$9","v":-78023},null,2498,-29826.846534304648,-22589.907134113393,-17543.187933780213,-15827.646532109044,null,-155327,-283877,-105647,-78023]
[2499,{"$error":"#NAME?"},{"$error":"#NAME?"},{"$error":"#NAME?"},{"$error":"#NAME?"},null,{"$f":"NR_to_Cash!C$9","v":-155327},{"$f":"NR_to_Cash!D$9","v":-283877},{"$f":"NR_to_Cash!E$9","v":-105647},{"$f":"NR_to_Cash!F$9","v":-78023},null,2499,-6287.4503614376354,-12233.979096232884,-1639.9108186231492,13114.397547748849,null,-155327,-283877,-105647,-78023]
[2500,{"$error":"#NAME?"},{"$error":"#NAME?"},{"$error":"#NAME?"},{"$error":"#NAME?"},null,{"$f":"NR_to_Cash!C$9","v":-155327},{"$f":"NR_to_Cash!D$9","v":-283877},{"$f":"NR_to_Cash!E$9","v":-105647},{"$f":"NR_to_Cash!F$9","v":-78023},null,2500,-27107.361893921145,4264.056590647273,-4275.0877071571394,-10639.279669683061,null,-155327,-283877,-105647,-78023]
[2501,{"$error":"#NAME?"},{"$error":"#NAME?"},{"$error":"#NAME?"},{"$error":"#NAME?"},null,{"$f":"NR_to_Cash!C$9","v":-155327},{"$f":"NR_to_Cash!D$9","v":-283877},{"$f":"NR_to_Cash!E$9","v":-105647},{"$f":"NR_to_Cash!F$9","v":-78023},null,2501,9165.7150400095088,916.15228679325514,9949.7238558049467,-20041.008607505923,null,-155327,-283877,-105647,-78023]
[2502,{"$error":"#NAME?"},{"$error":"#NAME?"},{"$error":"#NAME?"},{"$error":"#NAME?"},null,{"$f":"NR_to_Cash!C$9","v":-155327},{"$f":"NR_to_Cash!D$9","v":-283877},{"$f":"NR_to_Cash!E$9","v":-105647},{"$f":"NR_to_Cash!F$9","v":-78023},null,2502,6632.2087474557766,-2446.2605849004831,-12182.086634954583,-9721.0820825849096,null,-155327,-283877,-105647,-78023]
[2503,{"$error":"#NAME?"},{"$error":"#NAME?"},{"$error":"#NAME?"},{"$error":"#NAME?"},null,{"$f":"NR_to_Cash!C$9","v":-155327},{"$f":"NR_to_Cash!D$9","v":-283877},{"$f":"NR_to_Cash!E$9","v":-105647},{"$f":"NR_to_Cash!F$9","v":-78023},null,2503,-20054.214970523673,7370.6667692259252,-4456.7044456057038,2808.2850527304217,null,-155327,-283877,-105647,-78023]
[2504,{"$error":"#NAME?"},{"$error":"#NAME?"},{"$error":"#NAME?"},{"$error":"#NAME?"},null,{"$f":"NR_to_Cash!C$9","v":-155327},{"$f":"NR_to_Cash!D$9","v":-283877},{"$f":"NR_to_Cash!E$9","v":-105647},{"$f":"NR_to_Cash!F$9","v":-78023},null,2504,-22246.531923527335,-4569.6777114105298,-2901.2437224308273,-15784.987549699785,null,-155327,-283877,-105647,-78023]
[2505,{"$error":"#NAME?"},{"$error":"#NAME?"},{"$error":"#NAME?"},{"$error":"#NAME?"},null,{"$f":"NR_to_Cash!C$9","v":-155327},{"$f":"NR_to_Cash!D$9","v":-283877},{"$f":"NR_to_Cash!E$9","v":-105647},{"$f":"NR_to_Cash!F$9","v":-78023},null,2505,-10500.644602423034,-32006.490669631112,-7887.9346628706508,5700.2303245070989,null,-155327,-283877,-105647,-78023]
[2506,{"$error":"#NAME?"},{"$error":"#NAME?"},{"$error":"#NAME?"},{"$error":"#NAME?"},null,{"$f":"NR_to_Cash!C$9","v":-155327},{"$f":"NR_to_Cash!D$9","v":-283877},{"$f":"NR_to_Cash!E$9","v":-105647},{"$f":"NR_to_Cash!F$9","v":-78023},null,2506,-26369.122797927295,-3334.9923296412385,-22839.729211063783,-1193.6382861287041,null,-155327,-283877,-105647,-78023]
[2507,{"$error":"#NAME?"},{"$error":"#NAME?"},{"$error":"#NAME?"},{"$error":"#NAME?"},null,{"$f":"NR_to_Cash!C$9","v":-155327},{"$f":"NR_to_Cash!D$9","v":-283877},{"$f":"NR_to_Cash!E$9","v":-105647},{"$f":"NR_to_Cash!F$9","v":-78023},null,2507,-21753.680634513606,-10094.260561547693,-4016.8707668721327,-8688.6241808331615,null,-155327,-283877,-105647,-78023]
[2508,{"$error":"#NAME?"},{"$error":"#NAME?"},{"$error":"#NAME?"},{"$error":"#NAME?"},null,{"$f":"NR_to_Cash!C$9","v":-155327},{"$f":"NR_to_Cash!D$9","v":-283877},{"$f":"NR_to_Cash!E$9","v":-105647},{"$f":"NR_to_Cash!F$9","v":-78023},null,2508,-24164.122570688982,-13616.952886078414,-3795.8769357125425,-35005.223286146771,null,-155327,-283877,-105647,-78023]
[2509,{"$error":"#NAME?"},{"$error":"#NAME?"},{"$error":"#NAME?"},{"$error":"#NAME?"},null,{"$f":"NR_to_Cash!C$9","v":-155327},{"$f":"NR_to_Cash!D$9","v":-283877},{"$f":"NR_to_Cash!E$9","v":-105647},{"$f":"NR_to_Cash!F$9","v":-78023},null,2509,-3961.884096971572,1212.649158236268,-928.85339690508954,-11159.514461998086,null,-155327,-283877,-105647,-78023]
[2510,{"$error":"#NAME?"},{"$error":"#NAME?"},{"$error":"#NAME?"},{"$error":"#NAME?"},null,{"$f":"NR_to_Cash!C$9","v":-155327},{"$f":"NR_to_Cash!D$9","v":-283877},{"$f":"NR_to_Cash!E$9","v":-105647},{"$f":"NR_to_Cash!F$9","v":-78023},null,2510,-12148.390604133314,-9169.7596378503367,7461.2482071086051,172.45580760819328,null,-155327,-283877,-105647,-78023]
[2511,{"$error":"#NAME?"},{"$error":"#NAME?"},{"$error":"#NAME?"},{"$error":"#NAME?"},null,{"$f":"NR_to_Cash!C$9","v":-155327},{"$f":"NR_to_Cash!D$9","v":-283877},{"$f":"NR_to_Cash!E$9","v":-105647},{"$f":"NR_to_Cash!F$9","v":-78023},null,2511,-17243.519700463352,-13340.278758324064,-12960.304014096409,6940.2410015979831,null,-155327,-283877,-105647,-78023]
[2512,{"$error":"#NAME?"},{"$error":"#NAME?"},{"$error":"#NAME?"},{"$error":"#NAME?"},null,{"$f":"NR_to_Cash!C$9","v":-155327},{"$f":"NR_to_Cash!D$9","v":-283877},{"$f":"NR_to_Cash!E$9","v":-105647},{"$f":"NR_to_Cash!F$9","v":-78023},null,2512,-4127.0061969740045,3653.7169067541622,526.28142750467464,9589.4354829505282,null,-155327,-283877,-105647,-78023]
[2513,{"$error":"#NAME?"},{"$error":"#NAME?"},{"$error":"#NAME?"},{"$error":"#NAME?"},null,{"$f":"NR_to_Cash!C$9","v":-155327},{"$f":"NR_to_Cash!D$9","v":-283877},{"$f":"NR_to_Cash!E$9","v":-105647},{"$f":"NR_to_Cash!F$9","v":-78023},null,2513,-12803.276732746617,-5187.8719053385748,-304.55062620717763,-5464.7845108034844,null,-155327,-283877,-105647,-78023]
[2514,{"$error":"#NAME?"},{"$error":"#NAME?"},{"$error":"#NAME?"},{"$error":"#NAME?"},null,{"$f":"NR_to_Cash!C$9","v":-155327},{"$f":"NR_to_Cash!D$9","v":-283877},{"$f":"NR_to_Cash!E$9","v":-105647},{"$f":"NR_to_Cash!F$9","v":-78023},null,2514,-3181.742442515465,-20495.213956602434,6355.4508239847064,-14913.381908934709,null,-155327,-283877,-105647,-78023]
[2515,{"$error":"#NAME?"},{"$error":"#NAME?"},{"$error":"#NAME?"},{"$error":"#NAME?"},null,{"$f":"NR_to_Cash!C$9","v":-155327},{"$f":"NR_to_Cash!D$9","v":-283877},{"$f":"NR_to_Cash!E$9","v":-105647},{"$f":"NR_to_Cash!F$9","v":-78023},null,2515,-10795.087009196319,-18570.941971333741,-5420.4490548260383,-11130.94417541162,null,-155327,-283877,-105647,-78023]
[2516,{"$error":"#NAME?"},{"$error":"#NAME?"},{"$error":"#NAME?"},{"$error":"#NAME?"},null,{"$f":"NR_to_Cash!C$9","v":-155327},{"$f":"NR_to_Cash!D$9","v":-283877},{"$f":"NR_to_Cash!E$9","v":-105647},{"$f":"NR_to_Cash!F$9","v":-78023},null,2516,-20878.115055135066,-13409.309428460952,-27684.626179873521,-17750.595825050888,null,-155327,-283877,-105647,-78023]
[2517,{"$error":"#NAME?"},{"$error":"#NAME?"},{"$error":"#NAME?"},{"$error":"#NAME?"},null,{"$f":"NR_to_Cash!C$9","v":-155327},{"$f":"NR_to_Cash!D$9","v":-283877},{"$f":"NR_to_Cash!E$9","v":-105647},{"$f":"NR_to_Cash!F$9","v":-78023},null,2517,-19919.33441076348,-20375.018551909572,20887.391650039335,-30632.483647427405,null,-155327,-283877,-105647,-78023]
[2518,{"$error":"#NAME?"},{"$error":"#NAME?"},{"$error":"#NAME?"},{"$error":"#NAME?"},null,{"$f":"NR_to_Cash!C$9","v":-155327},{"$f":"NR_to_Cash!D$9","v":-283877},{"$f":"NR_to_Cash!E$9","v":-105647},{"$f":"NR_to_Cash!F$9","v":-78023},null,2518,-22301.704410226448,-10683.007446407843,-17570.523541127372,-8800.1260209475422,null,-155327,-283877,-105647,-78023]
[2519,{"$error":"#NAME?"},{"$error":"#NAME?"},{"$error":"#NAME?"},{"$error":"#NAME?"},null,{"$f":"NR_to_Cash!C$9","v":-155327},{"$f":"NR_to_Cash!D$9","v":-283877},{"$f":"NR_to_Cash!E$9","v":-105647},{"$f":"NR_to_Cash!F$9","v":-78023},null,2519,-5543.9365812047608,-25733.896439366519,-35967.577787776783,-3438.774591783118,null,-155327,-283877,-105647,-78023]
[2520,{"$error":"#NAME?"},{"$error":"#NAME?"},{"$error":"#NAME?"},{"$error":"#NAME?"},null,{"$f":"NR_to_Cash!C$9","v":-155327},{"$f":"NR_to_Cash!D$9","v":-283877},{"$f":"NR_to_Cash!E$9","v":-105647},{"$f":"NR_to_Cash!F$9","v":-78023},null,2520,-13234.510893736438,-5047.4136984968127,-13047.385751220118,-1862.9986315960514,null,-155327,-283877,-105647,-78023]
[2521,{"$error":"#NAME?"},{"$error":"#NAME?"},{"$error":"#NAME?"},{"$error":"#NAME?"},null,{"$f":"NR_to_Cash!C$9","v":-155327},{"$f":"NR_to_Cash!D$9","v":-283877},{"$f":"NR_to_Cash!E$9","v":-105647},{"$f":"NR_to_Cash!F$9","v":-78023},null,2521,1992.2232077719309,14586.656532148203,-17481.623080509267,-10473.890890670426,null,-155327,-283877,-105647,-78023]
[2522,{"$error":"#NAME?"},{"$error":"#NAME?"},{"$error":"#NAME?"},{"$error":"#NAME?"},null,{"$f":"NR_to_Cash!C$9","v":-155327},{"$f":"NR_to_Cash!D$9","v":-283877},{"$f":"NR_to_Cash!E$9","v":-105647},{"$f":"NR_to_Cash!F$9","v":-78023},null,2522,-10005.750910632205,9742.6983743521541,-15741.086333408284,1535.340352556761,null,-155327,-283877,-105647,-78023]
[2523,{"$error":"#NAME?"},{"$error":"#NAME?"},{"$error":"#NAME?"},{"$error":"#NAME?"},null,{"$f":"NR_to_Cash!C$9","v":-155327},{"$f":"NR_to_Cash!D$9","v":-283877},{"$f":"NR_to_Cash!E$9","v":-105647},{"$f":"NR_to_Cash!F$9","v":-78023},null,2523,6527.647686950485,-25319.615733999501,5523.0733982609772,-26606.51877896121,null,-155327,-283877,-105647,-78023]
[2524,{"$error":"#NAME?"},{"$error":"#NAME?"},{"$error":"#NAME?"},{"$error":"#NAME?"},null,{"$f":"NR_to_Cash!C$9","v":-155327},{"$f":"NR_to_Cash!D$9","v":-283877},{"$f":"NR_to_Cash!E$9","v":-105647},{"$f":"NR_to_Cash!F$9","v":-78023},null,2524,-30476.644046333357,-4677.3216478644372,-33396.532703579389,-26886.786334739285,null,-155327,-283877,-105647,-78023]
[2525,{"$error":"#NAME?"},{"$error":"#NAME?"},{"$error":"#NAME?"},{"$error":"#NAME?"},null,{"$f":"NR_to_Cash!C$9","v":-155327},{"$f":"NR_to_Cash!D$9","v":-283877},{"$f":"NR_to_Cash!E$9","v":-105647},{"$f":"NR_to_Cash!F$9","v":-78023},null,2525,-26133.629568126649,-2207.6793181657604,-23184.147085777557,-28545.446901573501,null,-155327,-283877,-105647,-78023]
[2526,{"$error":"#NAME?"},{"$error":"#NAME?"},{"$error":"#NAME?"},{"$error":"#NAME?"},null,{"$f":"NR_to_Cash!C$9","v":-155327},{"$f":"NR_to_Cash!D$9","v":-283877},{"$f":"NR_to_Cash!E$9","v":-105647},{"$f":"NR_to_Cash!F$9","v":-78023},null,2526,-9109.5161246972893,-9862.724767953121,-15319.773026918963,-29921.728017600028,null,-155327,-283877,-105647,-78023]
[2527,{"$error":"#NAME?"},{"$error":"#NAME?"},{"$error":"#NAME?"},{"$error":"#NAME?"},null,{"$f":"NR_to_Cash!C$9","v":-155327},{"$f":"NR_to_Cash!D$9","v":-283877},{"$f":"NR_to_Cash!E$9","v":-105647},{"$f":"NR_to_Cash!F$9","v":-78023},null,2527,-8236.1209705791389,5260.1992862373518,-33744.185690700666,-201.91025568224202,null,-155327,-283877,-105647,-78023]
[2528,{"$error":"#NAME?"},{"$error":"#NAME?"},{"$error":"#NAME?"},{"$error":"#NAME?"},null,{"$f":"NR_to_Cash!C$9","v":-155327},{"$f":"NR_to_Cash!D$9","v":-283877},{"$f":"NR_to_Cash!E$9","v":-105647},{"$f":"NR_to_Cash!F$9","v":-78023},null,2528,-16929.775213529709,-36116.294193683141,3713.0430089565052,-5660.1769459436173,null,-155327,-283877,-105647,-78023]
[2529,{"$error":"#NAME?"},{"$error":"#NAME?"},{"$error":"#NAME?"},{"$error":"#NAME?"},null,{"$f":"NR_to_Cash!C$9","v":-155327},{"$f":"NR_to_Cash!D$9","v":-283877},{"$f":"NR_to_Cash!E$9","v":-105647},{"$f":"NR_to_Cash!F$9","v":-78023},null,2529,-14610.225089731119,17367.120325200005,4663.8738247268748,-7973.7117029605015,null,-155327,-283877,-105647,-78023]
[2530,{"$error":"#NAME?"},{"$error":"#NAME?"},{"$error":"#NAME?"},{"$error":"#NAME?"},null,{"$f":"NR_to_Cash!C$9","v":-155327},{"$f":"NR_to_Cash!D$9","v":-283877},{"$f":"NR_to_Cash!E$9","v":-105647},{"$f":"NR_to_Cash!F$9","v":-78023},null,2530,-8103.8233933207484,-24139.009619205728,-5674.2984536506601,16665.529634678638,null,-155327,-283877,-105647,-78023]
[2531,{"$error":"#NAME?"},{"$error":"#NAME?"},{"$error":"#NAME?"},{"$error":"#NAME?"},null,{"$f":"NR_to_Cash!C$9","v":-155327},{"$f":"NR_to_Cash!D$9","v":-283877},{"$f":"NR_to_Cash!E$9","v":-105647},{"$f":"NR_to_Cash!F$9","v":-78023},null,2531,-24961.728653229457,5253.5717965792483,-28301.154526467639,5232.600034499018,null,-155327,-283877,-105647,-78023]
[2532,{"$error":"#NAME?"},{"$error":"#NAME?"},{"$error":"#NAME?"},{"$error":"#NAME?"},null,{"$f":"NR_to_Cash!C$9","v":-155327},{"$f":"NR_to_Cash!D$9","v":-283877},{"$f":"NR_to_Cash!E$9","v":-105647},{"$f":"NR_to_Cash!F$9","v":-78023},null,2532,1173.1600428227271,9509.8840640258277,6724.682247246089,6509.1889522707525,null,-155327,-283877,-105647,-78023]
[2533,{"$error":"#NAME?"},{"$error":"#NAME?"},{"$error":"#NAME?"},{"$error":"#NAME?"},null,{"$f":"NR_to_Cash!C$9","v":-155327},{"$f":"NR_to_Cash!D$9","v":-283877},{"$f":"NR_to_Cash!E$9","v":-105647},{"$f":"NR_to_Cash!F$9","v":-78023},null,2533,-11501.976752536222,3289.0173320254098,-12567.777657438122,-5028.2635339611352,null,-155327,-283877,-105647,-78023]
[2534,{"$error":"#NAME?"},{"$error":"#NAME?"},{"$error":"#NAME?"},{"$error":"#NAME?"},null,{"$f":"NR_to_Cash!C$9","v":-155327},{"$f":"NR_to_Cash!D$9","v":-283877},{"$f":"NR_to_Cash!E$9","v":-105647},{"$f":"NR_to_Cash!F$9","v":-78023},null,2534,-17097.591121376918,-4689.1963771428418,-6904.6616192846168,-20036.342390288995,null,-155327,-283877,-105647,-78023]
[2535,{"$error":"#NAME?"},{"$error":"#NAME?"},{"$error":"#NAME?"},{"$error":"#NAME?"},null,{"$f":"NR_to_Cash!C$9","v":-155327},{"$f":"NR_to_Cash!D$9","v":-283877},{"$f":"NR_to_Cash!E$9","v":-105647},{"$f":"NR_to_Cash!F$9","v":-78023},null,2535,-16349.359334389981,-7600.1255215108213,15617.082626679541,-16919.903252621498,null,-155327,-283877,-105647,-78023]
[2536,{"$error":"#NAME?"},{"$error":"#NAME?"},{"$error":"#NAME?"},{"$error":"#NAME?"},null,{"$f":"NR_to_Cash!C$9","v":-155327},{"$f":"NR_to_Cash!D$9","v":-283877},{"$f":"NR_to_Cash!E$9","v":-105647},{"$f":"NR_to_Cash!F$9","v":-78023},null,2536,-28303.846528015762,-12512.590135560669,-25860.844789175888,-8329.4535872095566,null,-155327,-283877,-105647,-78023]
[2537,{"$error":"#NAME?"},{"$error":"#NAME?"},{"$error":"#NAME?"},{"$error":"#NAME?"},null,{"$f":"NR_to_Cash!C$9","v":-155327},{"$f":"NR_to_Cash!D$9","v":-283877},{"$f":"NR_to_Cash!E$9","v":-105647},{"$f":"NR_to_Cash!F$9","v":-78023},null,2537,-16664.473332331283,-2582.3257431154807,-15614.938689022289,8686.4528009442492,null,-155327,-283877,-105647,-78023]
[2538,{"$error":"#NAME?"},{"$error":"#NAME?"},{"$error":"#NAME?"},{"$error":"#NAME?"},null,{"$f":"NR_to_Cash!C$9","v":-155327},{"$f":"NR_to_Cash!D$9","v":-283877},{"$f":"NR_to_Cash!E$9","v":-105647},{"$f":"NR_to_Cash!F$9","v":-78023},null,2538,-14509.257480665841,-10575.981174658205,-21320.188450601636,3605.4668575395999,null,-155327,-283877,-105647,-78023]
[2539,{"$error":"#NAME?"},{"$error":"#NAME?"},{"$error":"#NAME?"},{"$error":"#NAME?"},null,{"$f":"NR_to_Cash!C$9","v":-155327},{"$f":"NR_to_Cash!D$9","v":-283877},{"$f":"NR_to_Cash!E$9","v":-105647},{"$f":"NR_to_Cash!F$9","v":-78023},null,2539,-2266.6477424945815,-22625.836154789573,-6386.5873918347515,-33784.339942208375,null,-155327,-283877,-105647,-78023]
[2540,{"$error":"#NAME?"},{"$error":"#NAME?"},{"$error":"#NAME?"},{"$error":"#NAME?"},null,{"$f":"NR_to_Cash!C$9","v":-155327},{"$f":"NR_to_Cash!D$9","v":-283877},{"$f":"NR_to_Cash!E$9","v":-105647},{"$f":"NR_to_Cash!F$9","v":-78023},null,2540,-6417.3744320386322,-10158.984720413049,8320.2000398696164,-25088.302492202165,null,-155327,-283877,-105647,-78023]
[2541,{"$error":"#NAME?"},{"$error":"#NAME?"},{"$error":"#NAME?"},{"$error":"#NAME?"},null,{"$f":"NR_to_Cash!C$9","v":-155327},{"$f":"NR_to_Cash!D$9","v":-283877},{"$f":"NR_to_Cash!E$9","v":-105647},{"$f":"NR_to_Cash!F$9","v":-78023},null,2541,-12005.974899523155,-14674.829355602278,-11026.325330098914,-18981.369548178685,null,-155327,-283877,-105647,-78023]
[2542,{"$error":"#NAME?"},{"$error":"#NAME?"},{"$error":"#NAME?"},{"$error":"#NAME?"},null,{"$f":"NR_to_Cash!C$9","v":-155327},{"$f":"NR_to_Cash!D$9","v":-283877},{"$f":"NR_to_Cash!E$9","v":-105647},{"$f":"NR_to_Cash!F$9","v":-78023},null,2542,13453.466249009507,-21995.772666602952,-16316.366085907248,-13885.869990985326,null,-155327,-283877,-105647,-78023]
[2543,{"$error":"#NAME?"},{"$error":"#NAME?"},{"$error":"#NAME?"},{"$error":"#NAME?"},null,{"$f":"NR_to_Cash!C$9","v":-155327},{"$f":"NR_to_Cash!D$9","v":-283877},{"$f":"NR_to_Cash!E$9","v":-105647},{"$f":"NR_to_Cash!F$9","v":-78023},null,2543,-18378.313038184151,125.82706626510841,-16251.953110966318,-4976.444115525187,null,-155327,-283877,-105647,-78023]
[2544,{"$error":"#NAME?"},{"$error":"#NAME?"},{"$error":"#NAME?"},{"$error":"#NAME?"},null,{"$f":"NR_to_Cash!C$9","v":-155327},{"$f":"NR_to_Cash!D$9","v":-283877},{"$f":"NR_to_Cash!E$9","v":-105647},{"$f":"NR_to_Cash!F$9","v":-78023},null,2544,-7269.8519744932064,-19.443531580961182,-34629.209623969247,-15492.530198335702,null,-155327,-283877,-105647,-78023]
[2545,{"$error":"#NAME?"},{"$error":"#NAME?"},{"$error":"#NAME?"},{"$error":"#NAME?"},null,{"$f":"NR_to_Cash!C$9","v":-155327},{"$f":"NR_to_Cash!D$9","v":-283877},{"$f":"NR_to_Cash!E$9","v":-105647},{"$f":"NR_to_Cash!F$9","v":-78023},null,2545,-26139.807303540023,-17040.119611096226,4584.2876335721658,-25367.595950187158,null,-155327,-283877,-105647,-78023]
[2546,{"$error":"#NAME?"},{"$error":"#NAME?"},{"$error":"#NAME?"},{"$error":"#NAME?"},null,{"$f":"NR_to_Cash!C$9","v":-155327},{"$f":"NR_to_Cash!D$9","v":-283877},{"$f":"NR_to_Cash!E$9","v":-105647},{"$f":"NR_to_Cash!F$9","v":-78023},null,2546,-4567.0144166538967,1141.7398731149842,-15666.34756101968,-35690.559853983243,null,-155327,-283877,-105647,-78023]
[2547,{"$error":"#NAME?"},{"$error":"#NAME?"},{"$error":"#NAME?"},{"$error":"#NAME?"},null,{"$f":"NR_to_Cash!C$9","v":-155327},{"$f":"NR_to_Cash!D$9","v":-283877},{"$f":"NR_to_Cash!E$9","v":-105647},{"$f":"NR_to_Cash!F$9","v":-78023},null,2547,-23516.028097397844,-22477.49829669559,-37081.482815605079,-2521.7652719266839,null,-155327,-283877,-105647,-78023]
[2548,{"$error":"#NAME?"},{"$error":"#NAME?"},{"$error":"#NAME?"},{"$error":"#NAME?"},null,{"$f":"NR_to_Cash!C$9","v":-155327},{"$f":"NR_to_Cash!D$9","v":-283877},{"$f":"NR_to_Cash!E$9","v":-105647},{"$f":"NR_to_Cash!F$9","v":-78023},null,2548,-28017.005179261825,6580.8593869454362,1589.0848555419552,-4567.5885987534466,null,-155327,-283877,-105647,-78023]
[2549,{"$error":"#NAME?"},{"$error":"#NAME?"},{"$error":"#NAME?"},{"$error":"#NAME?"},null,{"$f":"NR_to_Cash!C$9","v":-155327},{"$f":"NR_to_Cash!D$9","v":-283877},{"$f":"NR_to_Cash!E$9","v":-105647},{"$f":"NR_to_Cash!F$9","v":-78023},null,2549,-21873.434551428451,-7913.1807067736936,-13368.662572953015,334.92171429652734,null,-155327,-283877,-105647,-78023]
[2550,{"$error":"#NAME?"},{"$error":"#NAME?"},{"$error":"#NAME?"},{"$error":"#NAME?"},null,{"$f":"NR_to_Cash!C$9","v":-155327},{"$f":"NR_to_Cash!D$9","v":-283877},{"$f":"NR_to_Cash!E$9","v":-105647},{"$f":"NR_to_Cash!F$9","v":-78023},null,2550,-14443.144714239555,-14847.29634451422,-27335.827762762219,-47403.249043031596,null,-155327,-283877,-105647,-78023]
[2551,{"$error":"#NAME?"},{"$error":"#NAME?"},{"$error":"#NAME?"},{"$error":"#NAME?"},null,{"$f":"NR_to_Cash!C$9","v":-155327},{"$f":"NR_to_Cash!D$9","v":-283877},{"$f":"NR_to_Cash!E$9","v":-105647},{"$f":"NR_to_Cash!F$9","v":-78023},null,2551,3665.2060159929379,-22893.704167987566,-3.3173148851003043,-4998.0510659248021,null,-155327,-283877,-105647,-78023]
[2552,{"$error":"#NAME?"},{"$error":"#NAME?"},{"$error":"#NAME?"},{"$error":"#NAME?"},null,{"$f":"NR_to_Cash!C$9","v":-155327},{"$f":"NR_to_Cash!D$9","v":-283877},{"$f":"NR_to_Cash!E$9","v":-105647},{"$f":"NR_to_Cash!F$9","v":-78023},null,2552,-29596.319428264233,-20825.550543626203,9676.1518402537131,-16072.382122924051,null,-155327,-283877,-105647,-78023]
[2553,{"$error":"#NAME?"},{"$error":"#NAME?"},{"$error":"#NAME?"},{"$error":"#NAME?"},null,{"$f":"NR_to_Cash!C$9","v":-155327},{"$f":"NR_to_Cash!D$9","v":-283877},{"$f":"NR_to_Cash!E$9","v":-105647},{"$f":"NR_to_Cash!F$9","v":-78023},null,2553,-7161.1178045680808,-10285.518791076642,-27744.268075327953,-18981.650242003445,null,-155327,-283877,-105647,-78023]
[2554,{"$error":"#NAME?"},{"$error":"#NAME?"},{"$error":"#NAME?"},{"$error":"#NAME?"},null,{"$f":"NR_to_Cash!C$9","v":-155327},{"$f":"NR_to_Cash!D$9","v":-283877},{"$f":"NR_to_Cash!E$9","v":-105647},{"$f":"NR_to_Cash!F$9","v":-78023},null,2554,-14955.170907233512,9383.5149465928043,-16493.715014588124,-1003.3203746847067,null,-155327,-283877,-105647,-78023]
[2555,{"$error":"#NAME?"},{"$error":"#NAME?"},{"$error":"#NAME?"},{"$error":"#NAME?"},null,{"$f":"NR_to_Cash!C$9","v":-155327},{"$f":"NR_to_Cash!D$9","v":-283877},{"$f":"NR_to_Cash!E$9","v":-105647},{"$f":"NR_to_Cash!F$9","v":-78023},null,2555,-23415.489483162375,-2263.527239168593,-24475.191136674337,8196.6148362059193,null,-155327,-283877,-105647,-78023]
[2556,{"$error":"#NAME?"},{"$error":"#NAME?"},{"$error":"#NAME?"},{"$error":"#NAME?"},null,{"$f":"NR_to_Cash!C$9","v":-155327},{"$f":"NR_to_Cash!D$9","v":-283877},{"$f":"NR_to_Cash!E$9","v":-105647},{"$f":"NR_to_Cash!F$9","v":-78023},null,2556,-29742.674543918714,-10078.446308882547,-9637.1404156426488,7379.3232079011404,null,-155327,-283877,-105647,-78023]
[2557,{"$error":"#NAME?"},{"$error":"#NAME?"},{"$error":"#NAME?"},{"$error":"#NAME?"},null,{"$f":"NR_to_Cash!C$9","v":-155327},{"$f":"NR_to_Cash!D$9","v":-283877},{"$f":"NR_to_Cash!E$9","v":-105647},{"$f":"NR_to_Cash!F$9","v":-78023},null,2557,-28761.405483265247,606.14918302403271,5883.709084907442,-7355.158972148085,null,-155327,-283877,-105647,-78023]
[2558,{"$error":"#NAME?"},{"$error":"#NAME?"},{"$error":"#NAME?"},{"$error":"#NAME?"},null,{"$f":"NR_to_Cash!C$9","v":-155327},{"$f":"NR_to_Cash!D$9","v":-283877},{"$f":"NR_to_Cash!E$9","v":-105647},{"$f":"NR_to_Cash!F$9","v":-78023},null,2558,-14665.074885903265,-1943.156019244868,-29801.638996111356,-2108.6361755080152,null,-155327,-283877,-105647,-78023]
[2559,{"$error":"#NAME?"},{"$error":"#NAME?"},{"$error":"#NAME?"},{"$error":"#NAME?"},null,{"$f":"NR_to_Cash!C$9","v":-155327},{"$f":"NR_to_Cash!D$9","v":-283877},{"$f":"NR_to_Cash!E$9","v":-105647},{"$f":"NR_to_Cash!F$9","v":-78023},null,2559,-11761.668759220256,5193.7024704722744,-10669.03464711595,9031.7581641234556,null,-155327,-283877,-105647,-78023]
[2560,{"$error":"#NAME?"},{"$error":"#NAME?"},{"$error":"#NAME?"},{"$error":"#NAME?"},null,{"$f":"NR_to_Cash!C$9","v":-155327},{"$f":"NR_to_Cash!D$9","v":-283877},{"$f":"NR_to_Cash!E$9","v":-105647},{"$f":"NR_to_Cash!F$9","v":-78023},null,2560,-23329.335818961648,-149.38068102937785,2930.9083627954956,-12300.877564881352,null,-155327,-283877,-105647,-78023]
[2561,{"$error":"#NAME?"},{"$error":"#NAME?"},{"$error":"#NAME?"},{"$error":"#NAME?"},null,{"$f":"NR_to_Cash!C$9","v":-155327},{"$f":"NR_to_Cash!D$9","v":-283877},{"$f":"NR_to_Cash!E$9","v":-105647},{"$f":"NR_to_Cash!F$9","v":-78023},null,2561,-9658.3533964632952,-11481.83892625457,-18177.056891346645,-5083.6902475908992,null,-155327,-283877,-105647,-78023]
[2562,{"$error":"#NAME?"},{"$error":"#NAME?"},{"$error":"#NAME?"},{"$error":"#NAME?"},null,{"$f":"NR_to_Cash!C$9","v":-155327},{"$f":"NR_to_Cash!D$9","v":-283877},{"$f":"NR_to_Cash!E$9","v":-105647},{"$f":"NR_to_Cash!F$9","v":-78023},null,2562,-14.973390026978493,7483.7322031833783,-10573.244105487751,-6459.4549486939322,null,-155327,-283877,-105647,-78023]
[2563,{"$error":"#NAME?"},{"$error":"#NAME?"},{"$error":"#NAME?"},{"$error":"#NAME?"},null,{"$f":"NR_to_Cash!C$9","v":-155327},{"$f":"NR_to_Cash!D$9","v":-283877},{"$f":"NR_to_Cash!E$9","v":-105647},{"$f":"NR_to_Cash!F$9","v":-78023},null,2563,-9861.7978641108184,9550.3454194202059,-13996.907129896386,-20832.254749524855,null,-155327,-283877,-105647,-78023]
[2564,{"$error":"#NAME?"},{"$error":"#NAME?"},{"$error":"#NAME?"},{"$error":"#NAME?"},null,{"$f":"NR_to_Cash!C$9","v":-155327},{"$f":"NR_to_Cash!D$9","v":-283877},{"$f":"NR_to_Cash!E$9","v":-105647},{"$f":"NR_to_Cash!F$9","v":-78023},null,2564,-4880.3350217044599,3848.4355169152186,-9329.117077795443,-30954.430124556598,null,-155327,-283877,-105647,-78023]
[2565,{"$error":"#NAME?"},{"$error":"#NAME?"},{"$error":"#NAME?"},{"$error":"#NAME?"},null,{"$f":"NR_to_Cash!C$9","v":-155327},{"$f":"NR_to_Cash!D$9","v":-283877},{"$f":"NR_to_Cash!E$9","v":-105647},{"$f":"NR_to_Cash!F$9","v":-78023},null,2565,-2751.0970601114632,-15859.519420132612,1312.8682072701019,-20055.134126843201,null,-155327,-283877,-105647,-78023]
[2566,{"$error":"#NAME?"},{"$error":"#NAME?"},{"$error":"#NAME?"},{"$error":"#NAME?"},null,{"$f":"NR_to_Cash!C$9","v":-155327},{"$f":"NR_to_Cash!D$9","v":-283877},{"$f":"NR_to_Cash!E$9","v":-105647},{"$f":"NR_to_Cash!F$9","v":-78023},null,2566,-10456.20127537943,-12468.077954711551,-8771.8503340105453,-18420.071688707849,null,-155327,-283877,-105647,-78023]
[2567,{"$error":"#NAME?"},{"$error":"#NAME?"},{"$error":"#NAME?"},{"$error":"#NAME?"},null,{"$f":"NR_to_Cash!C$9","v":-155327},{"$f":"NR_to_Cash!D$9","v":-283877},{"$f":"NR_to_Cash!E$9","v":-105647},{"$f":"NR_to_Cash!F$9","v":-78023},null,2567,-19443.934769589257,-21177.801339435984,-1400.6513601493966,-13724.486497182259,null,-155327,-283877,-105647,-78023]
[2568,{"$error":"#NAME?"},{"$error":"#NAME?"},{"$error":"#NAME?"},{"$error":"#NAME?"},null,{"$f":"NR_to_Cash!C$9","v":-155327},{"$f":"NR_to_Cash!D$9","v":-283877},{"$f":"NR_to_Cash!E$9","v":-105647},{"$f":"NR_to_Cash!F$9","v":-78023},null,2568,-31340.351521263692,-6964.6555504478483,-2015.395218057562,-30192.981853198991,null,-155327,-283877,-105647,-78023]
[2569,{"$error":"#NAME?"},{"$error":"#NAME?"},{"$error":"#NAME?"},{"$error":"#NAME?"},null,{"$f":"NR_to_Cash!C$9","v":-155327},{"$f":"NR_to_Cash!D$9","v":-283877},{"$f":"NR_to_Cash!E$9","v":-105647},{"$f":"NR_to_Cash!F$9","v":-78023},null,2569,-26629.995971328892,-7943.2234118517372,2425.6608905107441,-25336.869587741006,null,-155327,-283877,-105647,-78023]
[2570,{"$error":"#NAME?"},{"$error":"#NAME?"},{"$error":"#NAME?"},{"$error":"#NAME?"},null,{"$f":"NR_to_Cash!C$9","v":-155327},{"$f":"NR_to_Cash!D$9","v":-283877},{"$f":"NR_to_Cash!E$9","v":-105647},{"$f":"NR_to_Cash!F$9","v":-78023},null,2570,-11279.062898522427,-16976.353806139829,-12608.122121054994,237.26329086291352,null,-155327,-283877,-105647,-78023]
[2571,{"$error":"#NAME?"},{"$error":"#NAME?"},{"$error":"#NAME?"},{"$error":"#NAME?"},null,{"$f":"NR_to_Cash!C$9","v":-155327},{"$f":"NR_to_Cash!D$9","v":-283877},{"$f":"NR_to_Cash!E$9","v":-105647},{"$f":"NR_to_Cash!F$9","v":-78023},null,2571,-9090.5453451113317,16510.244083988706,-11129.707415943916,-9422.8804164903304,null,-155327,-283877,-105647,-78023]
[2572,{"$error":"#NAME?"},{"$error":"#NAME?"},{"$error":"#NAME?"},{"$error":"#NAME?"},null,{"$f":"NR_to_Cash!C$9","v":-155327},{"$f":"NR_to_Cash!D$9","v":-283877},{"$f":"NR_to_Cash!E$9","v":-105647},{"$f":"NR_to_Cash!F$9","v":-78023},null,2572,-18951.747149216611,-22236.99995768175,-201.0374817994437,9417.9023040770298,null,-155327,-283877,-105647,-78023]
[2573,{"$error":"#NAME?"},{"$error":"#NAME?"},{"$error":"#NAME?"},{"$error":"#NAME?"},null,{"$f":"NR_to_Cash!C$9","v":-155327},{"$f":"NR_to_Cash!D$9","v":-283877},{"$f":"NR_to_Cash!E$9","v":-105647},{"$f":"NR_to_Cash!F$9","v":-78023},null,2573,-13349.559113287531,10084.337358947867,-20428.114348644973,-41385.043002952414,null,-155327,-283877,-105647,-78023]
[2574,{"$error":"#NAME?"},{"$error":"#NAME?"},{"$error":"#NAME?"},{"$error":"#NAME?"},null,{"$f":"NR_to_Cash!C$9","v":-155327},{"$f":"NR_to_Cash!D$9","v":-283877},{"$f":"NR_to_Cash!E$9","v":-105647},{"$f":"NR_to_Cash!F$9","v":-78023},null,2574,-1701.7745392344959,-23054.870813352805,5155.4363192247338,3700.2888782597456,null,-155327,-283877,-105647,-78023]
[2575,{"$error":"#NAME?"},{"$error":"#NAME?"},{"$error":"#NAME?"},{"$error":"#NAME?"},null,{"$f":"NR_to_Cash!C$9","v":-155327},{"$f":"NR_to_Cash!D$9","v":-283877},{"$f":"NR_to_Cash!E$9","v":-105647},{"$f":"NR_to_Cash!F$9","v":-78023},null,2575,-10117.776137179386,-29463.72674796659,-13031.90213368739,-16239.733343790747,null,-155327,-283877,-105647,-78023]
[2576,{"$error":"#NAME?"},{"$error":"#NAME?"},{"$error":"#NAME?"},{"$error":"#NAME?"},null,{"$f":"NR_to_Cash!C$9","v":-155327},{"$f":"NR_to_Cash!D$9","v":-283877},{"$f":"NR_to_Cash!E$9","v":-105647},{"$f":"NR_to_Cash!F$9","v":-78023},null,2576,-3564.8048908808714,-18177.934026716142,2146.4266559953626,-15238.409506946853,null,-155327,-283877,-105647,-78023]
[2577,{"$error":"#NAME?"},{"$error":"#NAME?"},{"$error":"#NAME?"},{"$error":"#NAME?"},null,{"$f":"NR_to_Cash!C$9","v":-155327},{"$f":"NR_to_Cash!D$9","v":-283877},{"$f":"NR_to_Cash!E$9","v":-105647},{"$f":"NR_to_Cash!F$9","v":-78023},null,2577,-12723.468789424922,-5778.3797627826862,453.1631559527566,-17419.730254756705,null,-155327,-283877,-105647,-78023]
[2578,{"$error":"#NAME?"},{"$error":"#NAME?"},{"$error":"#NAME?"},{"$error":"#NAME?"},null,{"$f":"NR_to_Cash!C$9","v":-155327},{"$f":"NR_to_Cash!D$9","v":-283877},{"$f":"NR_to_Cash!E$9","v":-105647},{"$f":"NR_to_Cash!F$9","v":-78023},null,2578,-32900.376040551302,2106.8865302465665,-20655.858406894869,-11837.273827391393,null,-155327,-283877,-105647,-78023]
[2579,{"$error":"#NAME?"},{"$error":"#NAME?"},{"$error":"#NAME?"},{"$error":"#NAME?"},null,{"$f":"NR_to_Cash!C$9","v":-155327},{"$f":"NR_to_Cash!D$9","v":-283877},{"$f":"NR_to_Cash!E$9","v":-105647},{"$f":"NR_to_Cash!F$9","v":-78023},null,2579,-20683.005306578394,-12057.728494288815,-37536.981182536983,-7128.6014593393847,null,-155327,-283877,-105647,-78023]
[2580,{"$error":"#NAME?"},{"$error":"#NAME?"},{"$error":"#NAME?"},{"$error":"#NAME?"},null,{"$f":"NR_to_Cash!C$9","v":-155327},{"$f":"NR_to_Cash!D$9","v":-283877},{"$f":"NR_to_Cash!E$9","v":-105647},{"$f":"NR_to_Cash!F$9","v":-78023},null,2580,-10527.149740335775,-18919.598477329746,7661.2662908501579,-25499.235168631123,null,-155327,-283877,-105647,-78023]
[2581,{"$error":"#NAME?"},{"$error":"#NAME?"},{"$error":"#NAME?"},{"$error":"#NAME?"},null,{"$f":"NR_to_Cash!C$9","v":-155327},{"$f":"NR_to_Cash!D$9","v":-283877},{"$f":"NR_to_Cash!E$9","v":-105647},{"$f":"NR_to_Cash!F$9","v":-78023},null,2581,-10475.636741138853,-21109.157865181973,-8858.9183934536813,-6609.4930016779263,null,-155327,-283877,-105647,-78023]
[2582,{"$error":"#NAME?"},{"$error":"#NAME?"},{"$error":"#NAME?"},{"$error":"#NAME?"},null,{"$f":"NR_to_Cash!C$9","v":-155327},{"$f":"NR_to_Cash!D$9","v":-283877},{"$f":"NR_to_Cash!E$9","v":-105647},{"$f":"NR_to_Cash!F$9","v":-78023},null,2582,-33198.248826465147,-25394.661336694942,-21400.327227193295,232.49165933237717,null,-155327,-283877,-105647,-78023]
[2583,{"$error":"#NAME?"},{"$error":"#NAME?"},{"$error":"#NAME?"},{"$error":"#NAME?"},null,{"$f":"NR_to_Cash!C$9","v":-155327},{"$f":"NR_to_Cash!D$9","v":-283877},{"$f":"NR_to_Cash!E$9","v":-105647},{"$f":"NR_to_Cash!F$9","v":-78023},null,2583,-9954.0061110672068,-12223.454405020802,1722.8765396466267,-26962.266283547626,null,-155327,-283877,-105647,-78023]
[2584,{"$error":"#NAME?"},{"$error":"#NAME?"},{"$error":"#NAME?"},{"$error":"#NAME?"},null,{"$f":"NR_to_Cash!C$9","v":-155327},{"$f":"NR_to_Cash!D$9","v":-283877},{"$f":"NR_to_Cash!E$9","v":-105647},{"$f":"NR_to_Cash!F$9","v":-78023},null,2584,-6021.475424194532,-22557.135470020068,-20423.825419072193,-19763.403818586085,null,-155327,-283877,-105647,-78023]
[2585,{"$error":"#NAME?"},{"$error":"#NAME?"},{"$error":"#NAME?"},{"$error":"#NAME?"},null,{"$f":"NR_to_Cash!C$9","v":-155327},{"$f":"NR_to_Cash!D$9","v":-283877},{"$f":"NR_to_Cash!E$9","v":-105647},{"$f":"NR_to_Cash!F$9","v":-78023},null,2585,-8721.3532617024212,-17868.190634397379,-22412.387857468289,1804.0576487249687,null,-155327,-283877,-105647,-78023]
[2586,{"$error":"#NAME?"},{"$error":"#NAME?"},{"$error":"#NAME?"},{"$error":"#NAME?"},null,{"$f":"NR_to_Cash!C$9","v":-155327},{"$f":"NR_to_Cash!D$9","v":-283877},{"$f":"NR_to_Cash!E$9","v":-105647},{"$f":"NR_to_Cash!F$9","v":-78023},null,2586,-2934.994039078435,-2203.0832471515459,-29848.236022164958,-2188.0275469165317,null,-155327,-283877,-105647,-78023]
[2587,{"$error":"#NAME?"},{"$error":"#NAME?"},{"$error":"#NAME?"},{"$error":"#NAME?"},null,{"$f":"NR_to_Cash!C$9","v":-155327},{"$f":"NR_to_Cash!D$9","v":-283877},{"$f":"NR_to_Cash!E$9","v":-105647},{"$f":"NR_to_Cash!F$9","v":-78023},null,2587,-20525.525087699967,-18760.661282072149,-6710.2368360741875,15958.821398838742,null,-155327,-283877,-105647,-78023]
[2588,{"$error":"#NAME?"},{"$error":"#NAME?"},{"$error":"#NAME?"},{"$error":"#NAME?"},null,{"$f":"NR_to_Cash!C$9","v":-155327},{"$f":"NR_to_Cash!D$9","v":-283877},{"$f":"NR_to_Cash!E$9","v":-105647},{"$f":"NR_to_Cash!F$9","v":-78023},null,2588,-7652.0143604143068,161.82126222076843,-20337.889474527339,-4137.3492282944126,null,-155327,-283877,-105647,-78023]
[2589,{"$error":"#NAME?"},{"$error":"#NAME?"},{"$error":"#NAME?"},{"$error":"#NAME?"},null,{"$f":"NR_to_Cash!C$9","v":-155327},{"$f":"NR_to_Cash!D$9","v":-283877},{"$f":"NR_to_Cash!E$9","v":-105647},{"$f":"NR_to_Cash!F$9","v":-78023},null,2589,-1298.9826175815103,-10863.713416815121,-25953.24835485539,-21424.198269602421,null,-155327,-283877,-105647,-78023]
[2590,{"$error":"#NAME?"},{"$error":"#NAME?"},{"$error":"#NAME?"},{"$error":"#NAME?"},null,{"$f":"NR_to_Cash!C$9","v":-155327},{"$f":"NR_to_Cash!D$9","v":-283877},{"$f":"NR_to_Cash!E$9","v":-105647},{"$f":"NR_to_Cash!F$9","v":-78023},null,2590,-24956.193867782953,-22920.55839885911,-18963.845961290997,-14166.38390109485,null,-155327,-283877,-105647,-78023]
[2591,{"$error":"#NAME?"},{"$error":"#NAME?"},{"$error":"#NAME?"},{"$error":"#NAME?"},null,{"$f":"NR_to_Cash!C$9","v":-155327},{"$f":"NR_to_Cash!D$9","v":-283877},{"$f":"NR_to_Cash!E$9","v":-105647},{"$f":"NR_to_Cash!F$9","v":-78023},null,2591,-38388.108159056501,-19064.944420252683,-1393.0219545673087,-20199.336233635026,null,-155327,-283877,-105647,-78023]
[2592,{"$error":"#NAME?"},{"$error":"#NAME?"},{"$error":"#NAME?"},{"$error":"#NAME?"},null,{"$f":"NR_to_Cash!C$9","v":-155327},{"$f":"NR_to_Cash!D$9","v":-283877},{"$f":"NR_to_Cash!E$9","v":-105647},{"$f":"NR_to_Cash!F$9","v":-78023},null,2592,5294.7910097146978,-31257.035371749618,-9149.8682020895176,-17067.757380653831,null,-155327,-283877,-105647,-78023]
[2593,{"$error":"#NAME?"},{"$error":"#NAME?"},{"$error":"#NAME?"},{"$error":"#NAME?"},null,{"$f":"NR_to_Cash!C$9","v":-155327},{"$f":"NR_to_Cash!D$9","v":-283877},{"$f":"NR_to_Cash!E$9","v":-105647},{"$f":"NR_to_Cash!F$9","v":-78023},null,2593,-13418.208942125559,-21491.941781286474,-5867.7837606054736,-24790.214036222445,null,-155327,-283877,-105647,-78023]
[2594,{"$error":"#NAME?"},{"$error":"#NAME?"},{"$error":"#NAME?"},{"$error":"#NAME?"},null,{"$f":"NR_to_Cash!C$9","v":-155327},{"$f":"NR_to_Cash!D$9","v":-283877},{"$f":"NR_to_Cash!E$9","v":-105647},{"$f":"NR_to_Cash!F$9","v":-78023},null,2594,-15797.740827036863,-30611.247290275413,-6443.5918770778135,121.42948245331523,null,-155327,-283877,-105647,-78023]
[2595,{"$error":"#NAME?"},{"$error":"#NAME?"},{"$error":"#NAME?"},{"$error":"#NAME?"},null,{"$f":"NR_to_Cash!C$9","v":-155327},{"$f":"NR_to_Cash!D$9","v":-283877},{"$f":"NR_to_Cash!E$9","v":-105647},{"$f":"NR_to_Cash!F$9","v":-78023},null,2595,322.33039097873649,-3172.5129997945533,10064.904809371692,-8635.3732771876385,null,-155327,-283877,-105647,-78023]
[2596,{"$error":"#NAME?"},{"$error":"#NAME?"},{"$error":"#NAME?"},{"$error":"#NAME?"},null,{"$f":"NR_to_Cash!C$9","v":-155327},{"$f":"NR_to_Cash!D$9","v":-283877},{"$f":"NR_to_Cash!E$9","v":-105647},{"$f":"NR_to_Cash!F$9","v":-78023},null,2596,-19111.091889584022,-10159.952269154466,6679.7736338347313,12424.408482190182,null,-155327,-283877,-105647,-78023]
[2597,{"$error":"#NAME?"},{"$error":"#NAME?"},{"$error":"#NAME?"},{"$error":"#NAME?"},null,{"$f":"NR_to_Cash!C$9","v":-155327},{"$f":"NR_to_Cash!D$9","v":-283877},{"$f":"NR_to_Cash!E$9","v":-105647},{"$f":"NR_to_Cash!F$9","v":-78023},null,2597,-5088.0931807734123,15251.305606751877,-9391.0651016148186,-6422.3637221178706,null,-155327,-283877,-105647,-78023]
[2598,{"$error":"#NAME?"},{"$error":"#NAME?"},{"$error":"#NAME?"},{"$error":"#NAME?"},null,{"$f":"NR_to_Cash!C$9","v":-155327},{"$f":"NR_to_Cash!D$9","v":-283877},{"$f":"NR_to_Cash!E$9","v":-105647},{"$f":"NR_to_Cash!F$9","v":-78023},null,2598,-6799.2934844227366,-17759.764337774057,4294.130253000938,-41355.11183618386,null,-155327,-283877,-105647,-78023]
[2599,{"$error":"#NAME?"},{"$error":"#NAME?"},{"$error":"#NAME?"},{"$error":"#NAME?"},null,{"$f":"NR_to_Cash!C$9","v":-155327},{"$f":"NR_to_Cash!D$9","v":-283877},{"$f":"NR_to_Cash!E$9","v":-105647},{"$f":"NR_to_Cash!F$9","v":-78023},null,2599,-26792.255411558399,-11496.350623126336,-5305.7105685631004,9116.4020464736313,null,-155327,-283877,-105647,-78023]
[2600,{"$error":"#NAME?"},{"$error":"#NAME?"},{"$error":"#NAME?"},{"$error":"#NAME?"},null,{"$f":"NR_to_Cash!C$9","v":-155327},{"$f":"NR_to_Cash!D$9","v":-283877},{"$f":"NR_to_Cash!E$9","v":-105647},{"$f":"NR_to_Cash!F$9","v":-78023},null,2600,-8877.3609670020123,-2815.0512261036183,-28435.289014488641,-9073.2633524382545,null,-155327,-283877,-105647,-78023]
[2601,{"$error":"#NAME?"},{"$error":"#NAME?"},{"$error":"#NAME?"},{"$error":"#NAME?"},null,{"$f":"NR_to_Cash!C$9","v":-155327},{"$f":"NR_to_Cash!D$9","v":-283877},{"$f":"NR_to_Cash!E$9","v":-105647},{"$f":"NR_to_Cash!F$9","v":-78023},null,2601,-14470.306885814147,3669.566535170396,-1734.5518248758863,-9656.6404284585442,null,-155327,-283877,-105647,-78023]
[2602,{"$error":"#NAME?"},{"$error":"#NAME?"},{"$error":"#NAME?"},{"$error":"#NAME?"},null,{"$f":"NR_to_Cash!C$9","v":-155327},{"$f":"NR_to_Cash!D$9","v":-283877},{"$f":"NR_to_Cash!E$9","v":-105647},{"$f":"NR_to_Cash!F$9","v":-78023},null,2602,-12455.714521948714,-17217.531392539622,-14003.373732418255,-13919.202930721493,null,-155327,-283877,-105647,-78023]
[2603,{"$error":"#NAME?"},{"$error":"#NAME?"},{"$error":"#NAME?"},{"$error":"#NAME?"},null,{"$f":"NR_to_Cash!C$9","v":-155327},{"$f":"NR_to_Cash!D$9","v":-283877},{"$f":"NR_to_Cash!E$9","v":-105647},{"$f":"NR_to_Cash!F$9","v":-78023},null,2603,1114.4502179287645,17270.28167788569,-7.2048390694452884,-6402.1645609553852,null,-155327,-283877,-105647,-78023]
[2604,{"$error":"#NAME?"},{"$error":"#NAME?"},{"$error":"#NAME?"},{"$error":"#NAME?"},null,{"$f":"NR_to_Cash!C$9","v":-155327},{"$f":"NR_to_Cash!D$9","v":-283877},{"$f":"NR_to_Cash!E$9","v":-105647},{"$f":"NR_to_Cash!F$9","v":-78023},null,2604,-13128.835502588132,-4041.0343612554898,-23834.038631801759,-17639.556701776601,null,-155327,-283877,-105647,-78023]
[2605,{"$error":"#NAME?"},{"$error":"#NAME?"},{"$error":"#NAME?"},{"$error":"#NAME?"},null,{"$f":"NR_to_Cash!C$9","v":-155327},{"$f":"NR_to_Cash!D$9","v":-283877},{"$f":"NR_to_Cash!E$9","v":-105647},{"$f":"NR_to_Cash!F$9","v":-78023},null,2605,-25495.29281228282,468.11039273750191,-4756.966257238465,-15159.627318448358,null,-155327,-283877,-105647,-78023]
[2606,{"$error":"#NAME?"},{"$error":"#NAME?"},{"$error":"#NAME?"},{"$error":"#NAME?"},null,{"$f":"NR_to_Cash!C$9","v":-155327},{"$f":"NR_to_Cash!D$9","v":-283877},{"$f":"NR_to_Cash!E$9","v":-105647},{"$f":"NR_to_Cash!F$9","v":-78023},null,2606,-14425.123744551685,-32022.049144905064,-18250.815547049071,-4303.215135518818,null,-155327,-283877,-105647,-78023]
[2607,{"$error":"#NAME?"},{"$error":"#NAME?"},{"$error":"#NAME?"},{"$error":"#NAME?"},null,{"$f":"NR_to_Cash!C$9","v":-155327},{"$f":"NR_to_Cash!D$9","v":-283877},{"$f":"NR_to_Cash!E$9","v":-105647},{"$f":"NR_to_Cash!F$9","v":-78023},null,2607,-14861.665495282032,3469.9799899428181,2388.6646474132222,-17304.888783199083,null,-155327,-283877,-105647,-78023]
[2608,{"$error":"#NAME?"},{"$error":"#NAME?"},{"$error":"#NAME?"},{"$error":"#NAME?"},null,{"$f":"NR_to_Cash!C$9","v":-155327},{"$f":"NR_to_Cash!D$9","v":-283877},{"$f":"NR_to_Cash!E$9","v":-105647},{"$f":"NR_to_Cash!F$9","v":-78023},null,2608,-21550.1656861718,2298.1937808640514,-5445.2320434711182,-11854.050920325042,null,-155327,-283877,-105647,-78023]
[2609,{"$error":"#NAME?"},{"$error":"#NAME?"},{"$error":"#NAME?"},{"$error":"#NAME?"},null,{"$f":"NR_to_Cash!C$9","v":-155327},{"$f":"NR_to_Cash!D$9","v":-283877},{"$f":"NR_to_Cash!E$9","v":-105647},{"$f":"NR_to_Cash!F$9","v":-78023},null,2609,-16362.357232124054,-21997.112735930128,2316.8164466616131,1088.6423876526014,null,-155327,-283877,-105647,-78023]
[2610,{"$error":"#NAME?"},{"$error":"#NAME?"},{"$error":"#NAME?"},{"$error":"#NAME?"},null,{"$f":"NR_to_Cash!C$9","v":-155327},{"$f":"NR_to_Cash!D$9","v":-283877},{"$f":"NR_to_Cash!E$9","v":-105647},{"$f":"NR_to_Cash!F$9","v":-78023},null,2610,-12857.622796649666,14317.544653560712,-23820.602270858893,-14092.551578692606,null,-155327,-283877,-105647,-78023]
[2611,{"$error":"#NAME?"},{"$error":"#NAME?"},{"$error":"#NAME?"},{"$error":"#NAME?"},null,{"$f":"NR_to_Cash!C$9","v":-155327},{"$f":"NR_to_Cash!D$9","v":-283877},{"$f":"NR_to_Cash!E$9","v":-105647},{"$f":"NR_to_Cash!F$9","v":-78023},null,2611,-21941.843349201525,-15839.239431327673,-5513.4728561340216,-10727.277581593631,null,-155327,-283877,-105647,-78023]
[2612,{"$error":"#NAME?"},{"$error":"#NAME?"},{"$error":"#NAME?"},{"$error":"#NAME?"},null,{"$f":"NR_to_Cash!C$9","v":-155327},{"$f":"NR_to_Cash!D$9","v":-283877},{"$f":"NR_to_Cash!E$9","v":-105647},{"$f":"NR_to_Cash!F$9","v":-78023},null,2612,-20057.420436372897,-8594.734965753998,-34663.218778595525,-22756.585130583484,null,-155327,-283877,-105647,-78023]
[2613,{"$error":"#NAME?"},{"$error":"#NAME?"},{"$error":"#NAME?"},{"$error":"#NAME?"},null,{"$f":"NR_to_Cash!C$9","v":-155327},{"$f":"NR_to_Cash!D$9","v":-283877},{"$f":"NR_to_Cash!E$9","v":-105647},{"$f":"NR_to_Cash!F$9","v":-78023},null,2613,-6225.5726521540219,-23299.851144901917,-24346.951495283374,-13580.378265517384,null,-155327,-283877,-105647,-78023]
[2614,{"$error":"#NAME?"},{"$error":"#NAME?"},{"$error":"#NAME?"},{"$error":"#NAME?"},null,{"$f":"NR_to_Cash!C$9","v":-155327},{"$f":"NR_to_Cash!D$9","v":-283877},{"$f":"NR_to_Cash!E$9","v":-105647},{"$f":"NR_to_Cash!F$9","v":-78023},null,2614,-2307.3341515573638,-4739.8010448328259,9144.088205296066,-2663.3188605039409,null,-155327,-283877,-105647,-78023]
[2615,{"$error":"#NAME?"},{"$error":"#NAME?"},{"$error":"#NAME?"},{"$error":"#NAME?"},null,{"$f":"NR_to_Cash!C$9","v":-155327},{"$f":"NR_to_Cash!D$9","v":-283877},{"$f":"NR_to_Cash!E$9","v":-105647},{"$f":"NR_to_Cash!F$9","v":-78023},null,2615,-514.93576138125286,-7490.9598901696299,9308.2561431785489,12104.715505295686,null,-155327,-283877,-105647,-78023]
[2616,{"$error":"#NAME?"},{"$error":"#NAME?"},{"$error":"#NAME?"},{"$error":"#NAME?"},null,{"$f":"NR_to_Cash!C$9","v":-155327},{"$f":"NR_to_Cash!D$9","v":-283877},{"$f":"NR_to_Cash!E$9","v":-105647},{"$f":"NR_to_Cash!F$9","v":-78023},null,2616,-3773.8493727052255,564.42478963303006,1744.9780263064292,-12731.352124506415,null,-155327,-283877,-105647,-78023]
[2617,{"$error":"#NAME?"},{"$error":"#NAME?"},{"$error":"#NAME?"},{"$error":"#NAME?"},null,{"$f":"NR_to_Cash!C$9","v":-155327},{"$f":"NR_to_Cash!D$9","v":-283877},{"$f":"NR_to_Cash!E$9","v":-105647},{"$f":"NR_to_Cash!F$9","v":-78023},null,2617,-23403.918056820006,-452.69717569461045,-703.86986290581171,-11172.764302595684,null,-155327,-283877,-105647,-78023]
[2618,{"$error":"#NAME?"},{"$error":"#NAME?"},{"$error":"#NAME?"},{"$error":"#NAME?"},null,{"$f":"NR_to_Cash!C$9","v":-155327},{"$f":"NR_to_Cash!D$9","v":-283877},{"$f":"NR_to_Cash!E$9","v":-105647},{"$f":"NR_to_Cash!F$9","v":-78023},null,2618,-12589.383783614459,20249.725943888083,-17003.93827743443,373.11507671691351,null,-155327,-283877,-105647,-78023]
[2619,{"$error":"#NAME?"},{"$error":"#NAME?"},{"$error":"#NAME?"},{"$error":"#NAME?"},null,{"$f":"NR_to_Cash!C$9","v":-155327},{"$f":"NR_to_Cash!D$9","v":-283877},{"$f":"NR_to_Cash!E$9","v":-105647},{"$f":"NR_to_Cash!F$9","v":-78023},null,2619,-20956.370984933124,8287.4007240604878,6554.8705527828115,7587.6686427359864,null,-155327,-283877,-105647,-78023]
[2620,{"$error":"#NAME?"},{"$error":"#NAME?"},{"$error":"#NAME?"},{"$error":"#NAME?"},null,{"$f":"NR_to_Cash!C$9","v":-155327},{"$f":"NR_to_Cash!D$9","v":-283877},{"$f":"NR_to_Cash!E$9","v":-105647},{"$f":"NR_to_Cash!F$9","v":-78023},null,2620,-12476.396252992028,-37530.402874708256,-4030.9092924288689,-1873.7868668343781,null,-155327,-283877,-105647,-78023]
[2621,{"$error":"#NAME?"},{"$error":"#NAME?"},{"$error":"#NAME?"},{"$error":"#NAME?"},null,{"$f":"NR_to_Cash!C$9","v":-155327},{"$f":"NR_to_Cash!D$9","v":-283877},{"$f":"NR_to_Cash!E$9","v":-105647},{"$f":"NR_to_Cash!F$9","v":-78023},null,2621,1030.3653183860035,5223.0766734510007,19082.25466798406,-11693.163259950832,null,-155327,-283877,-105647,-78023]
[2622,{"$error":"#NAME?"},{"$error":"#NAME?"},{"$error":"#NAME?"},{"$error":"#NAME?"},null,{"$f":"NR_to_Cash!C$9","v":-155327},{"$f":"NR_to_Cash!D$9","v":-283877},{"$f":"NR_to_Cash!E$9","v":-105647},{"$f":"NR_to_Cash!F$9","v":-78023},null,2622,-24862.033375356397,-707.82761933492088,-15140.818913816933,3888.4457055990915,null,-155327,-283877,-105647,-78023]
[2623,{"$error":"#NAME?"},{"$error":"#NAME?"},{"$error":"#NAME?"},{"$error":"#NAME?"},null,{"$f":"NR_to_Cash!C$9","v":-155327},{"$f":"NR_to_Cash!D$9","v":-283877},{"$f":"NR_to_Cash!E$9","v":-105647},{"$f":"NR_to_Cash!F$9","v":-78023},null,2623,-24145.443806951036,-17241.275847008754,5355.1662550645924,-22459.025525621695,null,-155327,-283877,-105647,-78023]
[2624,{"$error":"#NAME?"},{"$error":"#NAME?"},{"$error":"#NAME?"},{"$error":"#NAME?"},null,{"$f":"NR_to_Cash!C$9","v":-155327},{"$f":"NR_to_Cash!D$9","v":-283877},{"$f":"NR_to_Cash!E$9","v":-105647},{"$f":"NR_to_Cash!F$9","v":-78023},null,2624,-9536.7819578871804,-3477.4934949034996,-12313.221614219909,-25081.98105079557,null,-155327,-283877,-105647,-78023]
[2625,{"$error":"#NAME?"},{"$error":"#NAME?"},{"$error":"#NAME?"},{"$error":"#NAME?"},null,{"$f":"NR_to_Cash!C$9","v":-155327},{"$f":"NR_to_Cash!D$9","v":-283877},{"$f":"NR_to_Cash!E$9","v":-105647},{"$f":"NR_to_Cash!F$9","v":-78023},null,2625,-15474.135077085974,-6401.3079092120706,-6983.3822019328927,3450.8243485022285,null,-155327,-283877,-105647,-78023]
[2626,{"$error":"#NAME?"},{"$error":"#NAME?"},{"$error":"#NAME?"},{"$error":"#NAME?"},null,{"$f":"NR_to_Cash!C$9","v":-155327},{"$f":"NR_to_Cash!D$9","v":-283877},{"$f":"NR_to_Cash!E$9","v":-105647},{"$f":"NR_to_Cash!F$9","v":-78023},null,2626,-9824.2811072412569,-12914.632038059453,13111.481983483378,9851.1460717723712,null,-155327,-283877,-105647,-78023]
[2627,{"$error":"#NAME?"},{"$error":"#NAME?"},{"$error":"#NAME?"},{"$error":"#NAME?"},null,{"$f":"NR_to_Cash!C$9","v":-155327},{"$f":"NR_to_Cash!D$9","v":-283877},{"$f":"NR_to_Cash!E$9","v":-105647},{"$f":"NR_to_Cash!F$9","v":-78023},null,2627,-14915.432130456429,-9492.4591307519677,-25081.437925012942,-11569.574461328813,null,-155327,-283877,-105647,-78023]
[2628,{"$error":"#NAME?"},{"$error":"#NAME?"},{"$error":"#NAME?"},{"$error":"#NAME?"},null,{"$f":"NR_to_Cash!C$9","v":-155327},{"$f":"NR_to_Cash!D$9","v":-283877},{"$f":"NR_to_Cash!E$9","v":-105647},{"$f":"NR_to_Cash!F$9","v":-78023},null,2628,4634.8701253038453,1363.0386479762947,-17947.973226080503,-36231.392555415958,null,-155327,-283877,-105647,-78023]
[2629,{"$error":"#NAME?"},{"$error":"#NAME?"},{"$error":"#NAME?"},{"$error":"#NAME?"},null,{"$f":"NR_to_Cash!C$9","v":-155327},{"$f":"NR_to_Cash!D$9","v":-283877},{"$f":"NR_to_Cash!E$9","v":-105647},{"$f":"NR_to_Cash!F$9","v":-78023},null,2629,-17052.74836182328,-17421.755215736259,-10948.375366179194,1367.2925594100843,null,-155327,-283877,-105647,-78023]
[2630,{"$error":"#NAME?"},{"$error":"#NAME?"},{"$error":"#NAME?"},{"$error":"#NAME?"},null,{"$f":"NR_to_Cash!C$9","v":-155327},{"$f":"NR_to_Cash!D$9","v":-283877},{"$f":"NR_to_Cash!E$9","v":-105647},{"$f":"NR_to_Cash!F$9","v":-78023},null,2630,-14816.688751019847,-7002.6393262335723,1514.6606329289143,7206.0331178866572,null,-155327,-283877,-105647,-78023]
[2631,{"$error":"#NAME?"},{"$error":"#NAME?"},{"$error":"#NAME?"},{"$error":"#NAME?"},null,{"$f":"NR_to_Cash!C$9","v":-155327},{"$f":"NR_to_Cash!D$9","v":-283877},{"$f":"NR_to_Cash!E$9","v":-105647},{"$f":"NR_to_Cash!F$9","v":-78023},null,2631,-16099.431519572083,10283.140190741335,10449.370589881057,-3563.2095825730312,null,-155327,-283877,-105647,-78023]
[2632,{"$error":"#NAME?"},{"$error":"#NAME?"},{"$error":"#NAME?"},{"$error":"#NAME?"},null,{"$f":"NR_to_Cash!C$9","v":-155327},{"$f":"NR_to_Cash!D$9","v":-283877},{"$f":"NR_to_Cash!E$9","v":-105647},{"$f":"NR_to_Cash!F$9","v":-78023},null,2632,-21336.711969436052,-12980.679464091061,-9109.0581578588371,-9147.6355999166917,null,-155327,-283877,-105647,-78023]
[2633,{"$error":"#NAME?"},{"$error":"#NAME?"},{"$error":"#NAME?"},{"$error":"#NAME?"},null,{"$f":"NR_to_Cash!C$9","v":-155327},{"$f":"NR_to_Cash!D$9","v":-283877},{"$f":"NR_to_Cash!E$9","v":-105647},{"$f":"NR_to_Cash!F$9","v":-78023},null,2633,-24800.400596075771,-8171.9729701726983,-9527.8610954518426,-1644.1963026681335,null,-155327,-283877,-105647,-78023]
[2634,{"$error":"#NAME?"},{"$error":"#NAME?"},{"$error":"#NAME?"},{"$error":"#NAME?"},null,{"$f":"NR_to_Cash!C$9","v":-155327},{"$f":"NR_to_Cash!D$9","v":-283877},{"$f":"NR_to_Cash!E$9","v":-105647},{"$f":"NR_to_Cash!F$9","v":-78023},null,2634,-20931.548158597383,-22645.996647787826,-11845.119069232776,11652.096236819494,null,-155327,-283877,-105647,-78023]
[2635,{"$error":"#NAME?"},{"$error":"#NAME?"},{"$error":"#NAME?"},{"$error":"#NAME?"},null,{"$f":"NR_to_Cash!C$9","v":-155327},{"$f":"NR_to_Cash!D$9","v":-283877},{"$f":"NR_to_Cash!E$9","v":-105647},{"$f":"NR_to_Cash!F$9","v":-78023},null,2635,-8607.7278676616825,-12333.742409967414,-29930.823810015543,7222.7634494768108,null,-155327,-283877,-105647,-78023]
[2636,{"$error":"#NAME?"},{"$error":"#NAME?"},{"$error":"#NAME?"},{"$error":"#NAME?"},null,{"$f":"NR_to_Cash!C$9","v":-155327},{"$f":"NR_to_Cash!D$9","v":-283877},{"$f":"NR_to_Cash!E$9","v":-105647},{"$f":"NR_to_Cash!F$9","v":-78023},null,2636,-21105.554425759387,-28011.234982746118,-3423.3200917988561,-17661.769343279506,null,-155327,-283877,-105647,-78023]
[2637,{"$error":"#NAME?"},{"$error":"#NAME?"},{"$error":"#NAME?"},{"$error":"#NAME?"},null,{"$f":"NR_to_Cash!C$9","v":-155327},{"$f":"NR_to_Cash!D$9","v":-283877},{"$f":"NR_to_Cash!E$9","v":-105647},{"$f":"NR_to_Cash!F$9","v":-78023},null,2637,-18812.042983717536,-13029.562947568444,-17245.799218186414,-15069.274380354982,null,-155327,-283877,-105647,-78023]
[2638,{"$error":"#NAME?"},{"$error":"#NAME?"},{"$error":"#NAME?"},{"$error":"#NAME?"},null,{"$f":"NR_to_Cash!C$9","v":-155327},{"$f":"NR_to_Cash!D$9","v":-283877},{"$f":"NR_to_Cash!E$9","v":-105647},{"$f":"NR_to_Cash!F$9","v":-78023},null,2638,-13593.915979574938,11752.529802584861,-12423.499782305871,10166.409672715201,null,-155327,-283877,-105647,-78023]
[2639,{"$error":"#NAME?"},{"$error":"#NAME?"},{"$error":"#NAME?"},{"$error":"#NAME?"},null,{"$f":"NR_to_Cash!C$9","v":-155327},{"$f":"NR_to_Cash!D$9","v":-283877},{"$f":"NR_to_Cash!E$9","v":-105647},{"$f":"NR_to_Cash!F$9","v":-78023},null,2639,-27540.205614179649,-3252.561288912385,-29180.222062799745,-24032.193371257224,null,-155327,-283877,-105647,-78023]
[2640,{"$error":"#NAME?"},{"$error":"#NAME?"},{"$error":"#NAME?"},{"$error":"#NAME?"},null,{"$f":"NR_to_Cash!C$9","v":-155327},{"$f":"NR_to_Cash!D$9","v":-283877},{"$f":"NR_to_Cash!E$9","v":-105647},{"$f":"NR_to_Cash!F$9","v":-78023},null,2640,-17283.517586227681,-3788.9937979609581,-22432.594248927013,-7759.8871708373081,null,-155327,-283877,-105647,-78023]
[2641,{"$error":"#NAME?"},{"$error":"#NAME?"},{"$error":"#NAME?"},{"$error":"#NAME?"},null,{"$f":"NR_to_Cash!C$9","v":-155327},{"$f":"NR_to_Cash!D$9","v":-283877},{"$f":"NR_to_Cash!E$9","v":-105647},{"$f":"NR_to_Cash!F$9","v":-78023},null,2641,-5378.970291038665,-8774.5464715573562,-20804.2537282794,15843.882243162305,null,-155327,-283877,-105647,-78023]
[2642,{"$error":"#NAME?"},{"$error":"#NAME?"},{"$error":"#NAME?"},{"$error":"#NAME?"},null,{"$f":"NR_to_Cash!C$9","v":-155327},{"$f":"NR_to_Cash!D$9","v":-283877},{"$f":"NR_to_Cash!E$9","v":-105647},{"$f":"NR_to_Cash!F$9","v":-78023},null,2642,-14545.441125550584,-29594.832005127311,-1564.484968518153,-17849.943109579453,null,-155327,-283877,-105647,-78023]
[2643,{"$error":"#NAME?"},{"$error":"#NAME?"},{"$error":"#NAME?"},{"$error":"#NAME?"},null,{"$f":"NR_to_Cash!C$9","v":-155327},{"$f":"NR_to_Cash!D$9","v":-283877},{"$f":"NR_to_Cash!E$9","v":-105647},{"$f":"NR_to_Cash!F$9","v":-78023},null,2643,-18773.371649256038,-17934.957191766145,-1320.947844905894,-6118.8231905110479,null,-155327,-283877,-105647,-78023]
[2644,{"$error":"#NAME?"},{"$error":"#NAME?"},{"$error":"#NAME?"},{"$error":"#NAME?"},null,{"$f":"NR_to_Cash!C$9","v":-155327},{"$f":"NR_to_Cash!D$9","v":-283877},{"$f":"NR_to_Cash!E$9","v":-105647},{"$f":"NR_to_Cash!F$9","v":-78023},null,2644,-23911.258028369157,-6027.8438559792939,-7459.4509244096898,-28013.560730110188,null,-155327,-283877,-105647,-78023]
[2645,{"$error":"#NAME?"},{"$error":"#NAME?"},{"$error":"#NAME?"},{"$error":"#NAME?"},null,{"$f":"NR_to_Cash!C$9","v":-155327},{"$f":"NR_to_Cash!D$9","v":-283877},{"$f":"NR_to_Cash!E$9","v":-105647},{"$f":"NR_to_Cash!F$9","v":-78023},null,2645,-17077.024718119952,-10513.256357139211,-9816.6554185495024,-701.41468384785753,null,-155327,-283877,-105647,-78023]
[2646,{"$error":"#NAME?"},{"$error":"#NAME?"},{"$error":"#NAME?"},{"$error":"#NAME?"},null,{"$f":"NR_to_Cash!C$9","v":-155327},{"$f":"NR_to_Cash!D$9","v":-283877},{"$f":"NR_to_Cash!E$9","v":-105647},{"$f":"NR_to_Cash!F$9","v":-78023},null,2646,-22328.376317105911,-18840.543631170029,-13551.867258973072,590.96545391549148,null,-155327,-283877,-105647,-78023]
[2647,{"$error":"#NAME?"},{"$error":"#NAME?"},{"$error":"#NAME?"},{"$error":"#NAME?"},null,{"$f":"NR_to_Cash!C$9","v":-155327},{"$f":"NR_to_Cash!D$9","v":-283877},{"$f":"NR_to_Cash!E$9","v":-105647},{"$f":"NR_to_Cash!F$9","v":-78023},null,2647,-4917.8438879003224,-17322.417969713264,-29655.988966363726,-9267.5785574017591,null,-155327,-283877,-105647,-78023]
[2648,{"$error":"#NAME?"},{"$error":"#NAME?"},{"$error":"#NAME?"},{"$error":"#NAME?"},null,{"$f":"NR_to_Cash!C$9","v":-155327},{"$f":"NR_to_Cash!D$9","v":-283877},{"$f":"NR_to_Cash!E$9","v":-105647},{"$f":"NR_to_Cash!F$9","v":-78023},null,2648,-7968.8733389566478,-23409.294575555145,-861.66648610540597,-14011.565234546211,null,-155327,-283877,-105647,-78023]
[2649,{"$error":"#NAME?"},{"$error":"#NAME?"},{"$error":"#NAME?"},{"$error":"#NAME?"},null,{"$f":"NR_to_Cash!C$9","v":-155327},{"$f":"NR_to_Cash!D$9","v":-283877},{"$f":"NR_to_Cash!E$9","v":-105647},{"$f":"NR_to_Cash!F$9","v":-78023},null,2649,-11173.632045879309,2495.1008949444367,-27145.817777353575,-9523.7861479650946,null,-155327,-283877,-105647,-78023]
[2650,{"$error":"#NAME?"},{"$error":"#NAME?"},{"$error":"#NAME?"},{"$error":"#NAME?"},null,{"$f":"NR_to_Cash!C$9","v":-155327},{"$f":"NR_to_Cash!D$9","v":-283877},{"$f":"NR_to_Cash!E$9","v":-105647},{"$f":"NR_to_Cash!F$9","v":-78023},null,2650,-27017.479507951706,-14119.499260711458,-14936.236773360686,2601.4432645052898,null,-155327,-283877,-105647,-78023]
[2651,{"$error":"#NAME?"},{"$error":"#NAME?"},{"$error":"#NAME?"},{"$error":"#NAME?"},null,{"$f":"NR_to_Cash!C$9","v":-155327},{"$f":"NR_to_Cash!D$9","v":-283877},{"$f":"NR_to_Cash!E$9","v":-105647},{"$f":"NR_to_Cash!F$9","v":-78023},null,2651,-11285.116830923826,6053.3005333552292,-3730.1368728538014,-11264.726867654572,null,-155327,-283877,-105647,-78023]
[2652,{"$error":"#NAME?"},{"$error":"#NAME?"},{"$error":"#NAME?"},{"$error":"#NAME?"},null,{"$f":"NR_to_Cash!C$9","v":-155327},{"$f":"NR_to_Cash!D$9","v":-283877},{"$f":"NR_to_Cash!E$9","v":-105647},{"$f":"NR_to_Cash!F$9","v":-78023},null,2652,-8455.1492321351325,-6159.3251618254653,-7933.3171162544795,-16924.032589090264,null,-155327,-283877,-105647,-78023]
[2653,{"$error":"#NAME?"},{"$error":"#NAME?"},{"$error":"#NAME?"},{"$error":"#NAME?"},null,{"$f":"NR_to_Cash!C$9","v":-155327},{"$f":"NR_to_Cash!D$9","v":-283877},{"$f":"NR_to_Cash!E$9","v":-105647},{"$f":"NR_to_Cash!F$9","v":-78023},null,2653,-6865.9738471231085,-17796.99868518623,-2116.2610869330451,-17586.464796209028,null,-155327,-283877,-105647,-78023]
[2654,{"$error":"#NAME?"},{"$error":"#NAME?"},{"$error":"#NAME?"},{"$error":"#NAME?"},null,{"$f":"NR_to_Cash!C$9","v":-155327},{"$f":"NR_to_Cash!D$9","v":-283877},{"$f":"NR_to_Cash!E$9","v":-105647},{"$f":"NR_to_Cash!F$9","v":-78023},null,2654,6893.0358321615313,-19101.377895672362,-8183.7017747314658,-16108.344683058483,null,-155327,-283877,-105647,-78023]
[2655,{"$error":"#NAME?"},{"$error":"#NAME?"},{"$error":"#NAME?"},{"$error":"#NAME?"},null,{"$f":"NR_to_Cash!C$9","v":-155327},{"$f":"NR_to_Cash!D$9","v":-283877},{"$f":"NR_to_Cash!E$9","v":-105647},{"$f":"NR_to_Cash!F$9","v":-78023},null,2655,-20635.835067139415,-22810.162475050318,-3639.6375448936519,-21846.253199221708,null,-155327,-283877,-105647,-78023]
[2656,{"$error":"#NAME?"},{"$error":"#NAME?"},{"$error":"#NAME?"},{"$error":"#NAME?"},null,{"$f":"NR_to_Cash!C$9","v":-155327},{"$f":"NR_to_Cash!D$9","v":-283877},{"$f":"NR_to_Cash!E$9","v":-105647},{"$f":"NR_to_Cash!F$9","v":-78023},null,2656,-42558.753501669198,-4361.9755567290204,11315.020774944671,-17716.090403457172,null,-155327,-283877,-105647,-78023]
[2657,{"$error":"#NAME?"},{"$error":"#NAME?"},{"$error":"#NAME?"},{"$error":"#NAME?"},null,{"$f":"NR_to_Cash!C$9","v":-155327},{"$f":"NR_to_Cash!D$9","v":-283877},{"$f":"NR_to_Cash!E$9","v":-105647},{"$f":"NR_to_Cash!F$9","v":-78023},null,2657,-12074.872967617543,-16697.496261346081,-15650.258368559616,18149.084663683603,null,-155327,-283877,-105647,-78023]
[2658,{"$error":"#NAME?"},{"$error":"#NAME?"},{"$error":"#NAME?"},{"$error":"#NAME?"},null,{"$f":"NR_to_Cash!C$9","v":-155327},{"$f":"NR_to_Cash!D$9","v":-283877},{"$f":"NR_to_Cash!E$9","v":-105647},{"$f":"NR_to_Cash!F$9","v":-78023},null,2658,-10796.975940764165,-8370.5107739052419,2282.4046098062399,-15973.210538890735,null,-155327,-283877,-105647,-78023]
[2659,{"$error":"#NAME?"},{"$error":"#NAME?"},{"$error":"#NAME?"},{"$error":"#NAME?"},null,{"$f":"NR_to_Cash!C$9","v":-155327},{"$f":"NR_to_Cash!D$9","v":-283877},{"$f":"NR_to_Cash!E$9","v":-105647},{"$f":"NR_to_Cash!F$9","v":-78023},null,2659,-17408.409380712172,-6178.7760814945141,-4830.3944546383855,-3047.2920939747055,null,-155327,-283877,-105647,-78023]
[2660,{"$error":"#NAME?"},{"$error":"#NAME?"},{"$error":"#NAME?"},{"$error":"#NAME?"},null,{"$f":"NR_to_Cash!C$9","v":-155327},{"$f":"NR_to_Cash!D$9","v":-283877},{"$f":"NR_to_Cash!E$9","v":-105647},{"$f":"NR_to_Cash!F$9","v":-78023},null,2660,-8751.3054043027478,-9646.7799472662973,-3250.9035513445533,-33170.827761840766,null,-155327,-283877,-105647,-78023]
[2661,{"$error":"#NAME?"},{"$error":"#NAME?"},{"$error":"#NAME?"},{"$error":"#NAME?"},null,{"$f":"NR_to_Cash!C$9","v":-155327},{"$f":"NR_to_Cash!D$9","v":-283877},{"$f":"NR_to_Cash!E$9","v":-105647},{"$f":"NR_to_Cash!F$9","v":-78023},null,2661,-26165.018151015942,-8777.0178247612712,-6365.5305907314969,10710.605020323372,null,-155327,-283877,-105647,-78023]
[2662,{"$error":"#NAME?"},{"$error":"#NAME?"},{"$error":"#NAME?"},{"$error":"#NAME?"},null,{"$f":"NR_to_Cash!C$9","v":-155327},{"$f":"NR_to_Cash!D$9","v":-283877},{"$f":"NR_to_Cash!E$9","v":-105647},{"$f":"NR_to_Cash!F$9","v":-78023},null,2662,-3004.3947448316626,-24508.166862726815,11764.942606405355,-5556.5470005026073,null,-155327,-283877,-105647,-78023]
[2663,{"$error":"#NAME?"},{"$error":"#NAME?"},{"$error":"#NAME?"},{"$error":"#NAME?"},null,{"$f":"NR_to_Cash!C$9","v":-155327},{"$f":"NR_to_Cash!D$9","v":-283877},{"$f":"NR_to_Cash!E$9","v":-105647},{"$f":"NR_to_Cash!F$9","v":-78023},null,2663,-1234.07452209402,-34982.457163594474,-36241.247062655559,12194.482853031126,null,-155327,-283877,-105647,-78023]
[2664,{"$error":"#NAME?"},{"$error":"#NAME?"},{"$error":"#NAME?"},{"$error":"#NAME?"},null,{"$f":"NR_to_Cash!C$9","v":-155327},{"$f":"NR_to_Cash!D$9","v":-283877},{"$f":"NR_to_Cash!E$9","v":-105647},{"$f":"NR_to_Cash!F$9","v":-78023},null,2664,-17175.022148821547,5259.6807154622647,-27368.517033010878,-988.39315890730904,null,-155327,-283877,-105647,-78023]
[2665,{"$error":"#NAME?"},{"$error":"#NAME?"},{"$error":"#NAME?"},{"$error":"#NAME?"},null,{"$f":"NR_to_Cash!C$9","v":-155327},{"$f":"NR_to_Cash!D$9","v":-283877},{"$f":"NR_to_Cash!E$9","v":-105647},{"$f":"NR_to_Cash!F$9","v":-78023},null,2665,1566.7567890613495,-3230.2805367625597,-35599.612336914186,-755.95737934264025,null,-155327,-283877,-105647,-78023]
[2666,{"$error":"#NAME?"},{"$error":"#NAME?"},{"$error":"#NAME?"},{"$error":"#NAME?"},null,{"$f":"NR_to_Cash!C$9","v":-155327},{"$f":"NR_to_Cash!D$9","v":-283877},{"$f":"NR_to_Cash!E$9","v":-105647},{"$f":"NR_to_Cash!F$9","v":-78023},null,2666,-20914.96196535015,10078.875691208666,5167.086629519411,-22219.580936631297,null,-155327,-283877,-105647,-78023]
[2667,{"$error":"#NAME?"},{"$error":"#NAME?"},{"$error":"#NAME?"},{"$error":"#NAME?"},null,{"$f":"NR_to_Cash!C$9","v":-155327},{"$f":"NR_to_Cash!D$9","v":-283877},{"$f":"NR_to_Cash!E$9","v":-105647},{"$f":"NR_to_Cash!F$9","v":-78023},null,2667,-9962.5369020498074,-25668.667286415715,-23662.116274353652,14106.298598816013,null,-155327,-283877,-105647,-78023]
[2668,{"$error":"#NAME?"},{"$error":"#NAME?"},{"$error":"#NAME?"},{"$error":"#NAME?"},null,{"$f":"NR_to_Cash!C$9","v":-155327},{"$f":"NR_to_Cash!D$9","v":-283877},{"$f":"NR_to_Cash!E$9","v":-105647},{"$f":"NR_to_Cash!F$9","v":-78023},null,2668,-6445.6661637783254,8457.0665586175946,-11592.532896146718,-27478.252530653972,null,-155327,-283877,-105647,-78023]
[2669,{"$error":"#NAME?"},{"$error":"#NAME?"},{"$error":"#NAME?"},{"$error":"#NAME?"},null,{"$f":"NR_to_Cash!C$9","v":-155327},{"$f":"NR_to_Cash!D$9","v":-283877},{"$f":"NR_to_Cash!E$9","v":-105647},{"$f":"NR_to_Cash!F$9","v":-78023},null,2669,2462.2128250961391,-4645.9047788641619,-10096.746922503422,-5793.037847257614,null,-155327,-283877,-105647,-78023]
[2670,{"$error":"#NAME?"},{"$error":"#NAME?"},{"$error":"#NAME?"},{"$error":"#NAME?"},null,{"$f":"NR_to_Cash!C$9","v":-155327},{"$f":"NR_to_Cash!D$9","v":-283877},{"$f":"NR_to_Cash!E$9","v":-105647},{"$f":"NR_to_Cash!F$9","v":-78023},null,2670,-23627.340904417542,-28018.776056290219,1100.2665453244192,-7238.3435605401673,null,-155327,-283877,-105647,-78023]
[2671,{"$error":"#NAME?"},{"$error":"#NAME?"},{"$error":"#NAME?"},{"$error":"#NAME?"},null,{"$f":"NR_to_Cash!C$9","v":-155327},{"$f":"NR_to_Cash!D$9","v":-283877},{"$f":"NR_to_Cash!E$9","v":-105647},{"$f":"NR_to_Cash!F$9","v":-78023},null,2671,-9660.5624402361354,2968.0242751417154,-27196.143644138316,17243.596847169159,null,-155327,-283877,-105647,-78023]
[2672,{"$error":"#NAME?"},{"$error":"#NAME?"},{"$error":"#NAME?"},{"$error":"#NAME?"},null,{"$f":"NR_to_Cash!C$9","v":-155327},{"$f":"NR_to_Cash!D$9","v":-283877},{"$f":"NR_to_Cash!E$9","v":-105647},{"$f":"NR_to_Cash!F$9","v":-78023},null,2672,-13805.816539108426,10643.679606455893,10480.135888868466,-9563.1586556837992,null,-155327,-283877,-105647,-78023]
[2673,{"$error":"#NAME?"},{"$error":"#NAME?"},{"$error":"#NAME?"},{"$error":"#NAME?"},null,{"$f":"NR_to_Cash!C$9","v":-155327},{"$f":"NR_to_Cash!D$9","v":-283877},{"$f":"NR_to_Cash!E$9","v":-105647},{"$f":"NR_to_Cash!F$9","v":-78023},null,2673,-2638.5081314874706,-20511.980137064176,-16007.299832682709,-13114.194961055204,null,-155327,-283877,-105647,-78023]
[2674,{"$error":"#NAME?"},{"$error":"#NAME?"},{"$error":"#NAME?"},{"$error":"#NAME?"},null,{"$f":"NR_to_Cash!C$9","v":-155327},{"$f":"NR_to_Cash!D$9","v":-283877},{"$f":"NR_to_Cash!E$9","v":-105647},{"$f":"NR_to_Cash!F$9","v":-78023},null,2674,-16427.130351410029,-19435.079307131695,-20197.501313693458,-18838.509719545847,null,-155327,-283877,-105647,-78023]
[2675,{"$error":"#NAME?"},{"$error":"#NAME?"},{"$error":"#NAME?"},{"$error":"#NAME?"},null,{"$f":"NR_to_Cash!C$9","v":-155327},{"$f":"NR_to_Cash!D$9","v":-283877},{"$f":"NR_to_Cash!E$9","v":-105647},{"$f":"NR_to_Cash!F$9","v":-78023},null,2675,-20418.005543813695,-11538.318710214242,-24551.836376613097,4788.3119106848953,null,-155327,-283877,-105647,-78023]
[2676,{"$error":"#NAME?"},{"$error":"#NAME?"},{"$error":"#NAME?"},{"$error":"#NAME?"},null,{"$f":"NR_to_Cash!C$9","v":-155327},{"$f":"NR_to_Cash!D$9","v":-283877},{"$f":"NR_to_Cash!E$9","v":-105647},{"$f":"NR_to_Cash!F$9","v":-78023},null,2676,-8694.4248174154854,-18360.629214022418,7366.3671683835437,-15587.193934896457,null,-155327,-283877,-105647,-78023]
[2677,{"$error":"#NAME?"},{"$error":"#NAME?"},{"$error":"#NAME?"},{"$error":"#NAME?"},null,{"$f":"NR_to_Cash!C$9","v":-155327},{"$f":"NR_to_Cash!D$9","v":-283877},{"$f":"NR_to_Cash!E$9","v":-105647},{"$f":"NR_to_Cash!F$9","v":-78023},null,2677,2445.9746996885306,2496.6113198280268,-19717.403130240695,-985.0235850751784,null,-155327,-283877,-105647,-78023]
[2678,{"$error":"#NAME?"},{"$error":"#NAME?"},{"$error":"#NAME?"},{"$error":"#NAME?"},null,{"$f":"NR_to_Cash!C$9","v":-155327},{"$f":"NR_to_Cash!D$9","v":-283877},{"$f":"NR_to_Cash!E$9","v":-105647},{"$f":"NR_to_Cash!F$9","v":-78023},null,2678,-27481.247702150558,-3950.6425716943777,-5083.4359511883895,-18583.083495880415,null,-155327,-283877,-105647,-78023]
[2679,{"$error":"#NAME?"},{"$error":"#NAME?"},{"$error":"#NAME?"},{"$error":"#NAME?"},null,{"$f":"NR_to_Cash!C$9","v":-155327},{"$f":"NR_to_Cash!D$9","v":-283877},{"$f":"NR_to_Cash!E$9","v":-105647},{"$f":"NR_to_Cash!F$9","v":-78023},null,2679,-3930.9240495547633,-23308.632515685331,-21932.250027911581,-9637.1222882882084,null,-155327,-283877,-105647,-78023]
[2680,{"$error":"#NAME?"},{"$error":"#NAME?"},{"$error":"#NAME?"},{"$error":"#NAME?"},null,{"$f":"NR_to_Cash!C$9","v":-155327},{"$f":"NR_to_Cash!D$9","v":-283877},{"$f":"NR_to_Cash!E$9","v":-105647},{"$f":"NR_to_Cash!F$9","v":-78023},null,2680,-6812.9159842377921,-21428.609560071331,-33604.071234367191,730.58888420984522,null,-155327,-283877,-105647,-78023]
[2681,{"$error":"#NAME?"},{"$error":"#NAME?"},{"$error":"#NAME?"},{"$error":"#NAME?"},null,{"$f":"NR_to_Cash!C$9","v":-155327},{"$f":"NR_to_Cash!D$9","v":-283877},{"$f":"NR_to_Cash!E$9","v":-105647},{"$f":"NR_to_Cash!F$9","v":-78023},null,2681,-5982.5573193104265,-18297.712320372109,-12114.131285376856,-11342.494440447928,null,-155327,-283877,-105647,-78023]
[2682,{"$error":"#NAME?"},{"$error":"#NAME?"},{"$error":"#NAME?"},{"$error":"#NAME?"},null,{"$f":"NR_to_Cash!C$9","v":-155327},{"$f":"NR_to_Cash!D$9","v":-283877},{"$f":"NR_to_Cash!E$9","v":-105647},{"$f":"NR_to_Cash!F$9","v":-78023},null,2682,-9923.9715634704153,-19803.053408852731,-6810.1639266348848,-5862.4479379546792,null,-155327,-283877,-105647,-78023]
[2683,{"$error":"#NAME?"},{"$error":"#NAME?"},{"$error":"#NAME?"},{"$error":"#NAME?"},null,{"$f":"NR_to_Cash!C$9","v":-155327},{"$f":"NR_to_Cash!D$9","v":-283877},{"$f":"NR_to_Cash!E$9","v":-105647},{"$f":"NR_to_Cash!F$9","v":-78023},null,2683,-23683.769257887288,-8085.3935930774514,-7925.3999259781649,-17188.20385469135,null,-155327,-283877,-105647,-78023]
[2684,{"$error":"#NAME?"},{"$error":"#NAME?"},{"$error":"#NAME?"},{"$error":"#NAME?"},null,{"$f":"NR_to_Cash!C$9","v":-155327},{"$f":"NR_to_Cash!D$9","v":-283877},{"$f":"NR_to_Cash!E$9","v":-105647},{"$f":"NR_to_Cash!F$9","v":-78023},null,2684,-13393.178777062054,-511.9514500825432,-23433.968638625294,-27709.412726936855,null,-155327,-283877,-105647,-78023]
[2685,{"$error":"#NAME?"},{"$error":"#NAME?"},{"$error":"#NAME?"},{"$error":"#NAME?"},null,{"$f":"NR_to_Cash!C$9","v":-155327},{"$f":"NR_to_Cash!D$9","v":-283877},{"$f":"NR_to_Cash!E$9","v":-105647},{"$f":"NR_to_Cash!F$9","v":-78023},null,2685,-9648.4948702187176,-15505.198089656498,-13055.109904917066,-18375.291782434466,null,-155327,-283877,-105647,-78023]
[2686,{"$error":"#NAME?"},{"$error":"#NAME?"},{"$error":"#NAME?"},{"$error":"#NAME?"},null,{"$f":"NR_to_Cash!C$9","v":-155327},{"$f":"NR_to_Cash!D$9","v":-283877},{"$f":"NR_to_Cash!E$9","v":-105647},{"$f":"NR_to_Cash!F$9","v":-78023},null,2686,-24332.098952273125,-7959.5151023042799,-11411.182880569533,4345.6935700383383,null,-155327,-283877,-105647,-78023]
[2687,{"$error":"#NAME?"},{"$error":"#NAME?"},{"$error":"#NAME?"},{"$error":"#NAME?"},null,{"$f":"NR_to_Cash!C$9","v":-155327},{"$f":"NR_to_Cash!D$9","v":-283877},{"$f":"NR_to_Cash!E$9","v":-105647},{"$f":"NR_to_Cash!F$9","v":-78023},null,2687,-10939.042989066696,-7975.1681589717264,-8240.8387026618511,7054.5221738355467,null,-155327,-283877,-105647,-78023]
[2688,{"$error":"#NAME?"},{"$error":"#NAME?"},{"$error":"#NAME?"},{"$error":"#NAME?"},null,{"$f":"NR_to_Cash!C$9","v":-155327},{"$f":"NR_to_Cash!D$9","v":-283877},{"$f":"NR_to_Cash!E$9","v":-105647},{"$f":"NR_to_Cash!F$9","v":-78023},null,2688,-7808.2770809052363,-17010.558013221606,-6766.9994439264292,-36867.909506028431,null,-155327,-283877,-105647,-78023]
[2689,{"$error":"#NAME?"},{"$error":"#NAME?"},{"$error":"#NAME?"},{"$error":"#NAME?"},null,{"$f":"NR_to_Cash!C$9","v":-155327},{"$f":"NR_to_Cash!D$9","v":-283877},{"$f":"NR_to_Cash!E$9","v":-105647},{"$f":"NR_to_Cash!F$9","v":-78023},null,2689,-16163.574137380545,-204.66973008489578,4093.5768806368392,2439.1268520356384,null,-155327,-283877,-105647,-78023]
[2690,{"$error":"#NAME?"},{"$error":"#NAME?"},{"$error":"#NAME?"},{"$error":"#NAME?"},null,{"$f":"NR_to_Cash!C$9","v":-155327},{"$f":"NR_to_Cash!D$9","v":-283877},{"$f":"NR_to_Cash!E$9","v":-105647},{"$f":"NR_to_Cash!F$9","v":-78023},null,2690,-16259.06132386615,-20279.729735958135,5174.98690410169,-6359.2128403340612,null,-155327,-283877,-105647,-78023]
[2691,{"$error":"#NAME?"},{"$error":"#NAME?"},{"$error":"#NAME?"},{"$error":"#NAME?"},null,{"$f":"NR_to_Cash!C$9","v":-155327},{"$f":"NR_to_Cash!D$9","v":-283877},{"$f":"NR_to_Cash!E$9","v":-105647},{"$f":"NR_to_Cash!F$9","v":-78023},null,2691,-10264.082991936133,-19239.562166806656,13615.72670960132,7505.6208001302521,null,-155327,-283877,-105647,-78023]
[2692,{"$error":"#NAME?"},{"$error":"#NAME?"},{"$error":"#NAME?"},{"$error":"#NAME?"},null,{"$f":"NR_to_Cash!C$9","v":-155327},{"$f":"NR_to_Cash!D$9","v":-283877},{"$f":"NR_to_Cash!E$9","v":-105647},{"$f":"NR_to_Cash!F$9","v":-78023},null,2692,-17816.269939406582,-6244.1210852481991,-18654.40298847355,-32556.784873785942,null,-155327,-283877,-105647,-78023]
[2693,{"$error":"#NAME?"},{"$error":"#NAME?"},{"$error":"#NAME?"},{"$error":"#NAME?"},null,{"$f":"NR_to_Cash!C$9","v":-155327},{"$f":"NR_to_Cash!D$9","v":-283877},{"$f":"NR_to_Cash!E$9","v":-105647},{"$f":"NR_to_Cash!F$9","v":-78023},null,2693,897.77684121943491,-21498.063224220328,-6899.5762997090951,-7404.6415919523215,null,-155327,-283877,-105647,-78023]
[2694,{"$error":"#NAME?"},{"$error":"#NAME?"},{"$error":"#NAME?"},{"$error":"#NAME?"},null,{"$f":"NR_to_Cash!C$9","v":-155327},{"$f":"NR_to_Cash!D$9","v":-283877},{"$f":"NR_to_Cash!E$9","v":-105647},{"$f":"NR_to_Cash!F$9","v":-78023},null,2694,-1423.5844171053236,-20671.451412952352,3017.6763381467854,-17473.379641630563,null,-155327,-283877,-105647,-78023]
[2695,{"$error":"#NAME?"},{"$error":"#NAME?"},{"$error":"#NAME?"},{"$error":"#NAME?"},null,{"$f":"NR_to_Cash!C$9","v":-155327},{"$f":"NR_to_Cash!D$9","v":-283877},{"$f":"NR_to_Cash!E$9","v":-105647},{"$f":"NR_to_Cash!F$9","v":-78023},null,2695,1025.3147672675605,-7253.5992132765059,-16756.141109512759,-45.352558291017907,null,-155327,-283877,-105647,-78023]
[2696,{"$error":"#NAME?"},{"$error":"#NAME?"},{"$error":"#NAME?"},{"$error":"#NAME?"},null,{"$f":"NR_to_Cash!C$9","v":-155327},{"$f":"NR_to_Cash!D$9","v":-283877},{"$f":"NR_to_Cash!E$9","v":-105647},{"$f":"NR_to_Cash!F$9","v":-78023},null,2696,6045.0205178085234,14446.768628771979,13366.096733475384,-42845.735984161984,null,-155327,-283877,-105647,-78023]
[2697,{"$error":"#NAME?"},{"$error":"#NAME?"},{"$error":"#NAME?"},{"$error":"#NAME?"},null,{"$f":"NR_to_Cash!C$9","v":-155327},{"$f":"NR_to_Cash!D$9","v":-283877},{"$f":"NR_to_Cash!E$9","v":-105647},{"$f":"NR_to_Cash!F$9","v":-78023},null,2697,-28500.033676379026,-19923.199110272486,24170.222018240558,-5440.2945372664781,null,-155327,-283877,-105647,-78023]
[2698,{"$error":"#NAME?"},{"$error":"#NAME?"},{"$error":"#NAME?"},{"$error":"#NAME?"},null,{"$f":"NR_to_Cash!C$9","v":-155327},{"$f":"NR_to_Cash!D$9","v":-283877},{"$f":"NR_to_Cash!E$9","v":-105647},{"$f":"NR_to_Cash!F$9","v":-78023},null,2698,-23160.100441576182,-19461.443691985642,-3779.9473039005688,-11729.028027030428,null,-155327,-283877,-105647,-78023]
[2699,{"$error":"#NAME?"},{"$error":"#NAME?"},{"$error":"#NAME?"},{"$error":"#NAME?"},null,{"$f":"NR_to_Cash!C$9","v":-155327},{"$f":"NR_to_Cash!D$9","v":-283877},{"$f":"NR_to_Cash!E$9","v":-105647},{"$f":"NR_to_Cash!F$9","v":-78023},null,2699,-18273.794292400024,-21725.022227065983,-36775.58735860591,-12777.004832801887,null,-155327,-283877,-105647,-78023]
[2700,{"$error":"#NAME?"},{"$error":"#NAME?"},{"$error":"#NAME?"},{"$error":"#NAME?"},null,{"$f":"NR_to_Cash!C$9","v":-155327},{"$f":"NR_to_Cash!D$9","v":-283877},{"$f":"NR_to_Cash!E$9","v":-105647},{"$f":"NR_to_Cash!F$9","v":-78023},null,2700,-23123.782368768989,-12461.055108167704,-17174.612762233919,-9227.7748028495353,null,-155327,-283877,-105647,-78023]
[]
[null,{"$f":"MAX(B8:B2707)","v":{"$error":"#NAME?"}},{"$f":"MAX(C8:C2707)","v":{"$error":"#NAME?"}},{"$f":"MAX(D8:D2707)","v":{"$error":"#NAME?"}},{"$f":"MAX(E8:E2707)","v":{"$error":"#NAME?"}},null,{"$f":"MAX(G8:G2707)","v":-155327},{"$f":"MAX(H8:H2707)","v":-283877},{"$f":"MAX(I8:I2707)","v":-105647},{"$f":"MAX(J8:J2707)","v":-78023},null,null,{"$f":"MAX(M8:M2707)","v":17521.149682096991},{"$f":"MAX(N8:N2707)","v":23942.46273128115},{"$f":"MAX(O8:O2707)","v":30411.338042199648},{"$f":"MAX(P8:P2707)","v":29668.19172389511},null,{"$f":"MAX(R8:R2707)","v":-155327},{"$f":"MAX(S8:S2707)","v":-283877},{"$f":"MAX(T8:T2707)","v":-105647},{"$f":"MAX(U8:U2707)","v":-78023}]
[null,{"$f":"AVERAGE(B8:B2707)","v":{"$error":"#NAME?"}},{"$f":"AVERAGE(C8:C2707)","v":{"$error":"#NAME?"}},{"$f":"AVERAGE(D8:D2707)","v":{"$error":"#NAME?"}},{"$f":"AVERAGE(E8:E2707)","v":{"$error":"#NAME?"}},null,{"$f":"AVERAGE(G8:G2707)","v":-155327},{"$f":"AVERAGE(H8:H2707)","v":-283877},{"$f":"AVERAGE(I8:I2707)","v":-105647},{"$f":"AVERAGE(J8:J2707)","v":-78023},null,null,{"$f":"AVERAGE(M8:M2707)","v":-12744.396696817064},{"$f":"AVERAGE(N8:N2707)","v":-9771.8617283256426},{"$f":"AVERAGE(O8:O2707)","v":-10027.391347188281},{"$f":"AVERAGE(P8:P2707)","v":-10287.718226361274},null,{"$f":"AVERAGE(R8:R2707)","v":-155327},{"$f":"AVERAGE(S8:S2707)","v":-283877},{"$f":"AVERAGE(T8:T2707)","v":-105647},{"$f":"AVERAGE(U8:U2707)","v":-78023}]
[null,{"$f":"MEDIAN(B8:B2707)","v":{"$error":"#NAME?"}},{"$f":"MEDIAN(C8:C2707)","v":{"$error":"#NAME?"}},{"$f":"MEDIAN(D8:D2707)","v":{"$error":"#NAME?"}},{"$f":"MEDIAN(E8:E2707)","v":{"$error":"#NAME?"}},null,{"$f":"MEDIAN(G8:G2707)","v":-155327},{"$f":"MEDIAN(H8:H2707)","v":-283877},{"$f":"MEDIAN(I8:I2707)","v":-105647},{"$f":"MEDIAN(J8:J2707)","v":-78023},null,null,{"$f":"MEDIAN(M8:M2707)","v":-12352.231884971075},{"$f":"MEDIAN(N8:N2707)","v":-9678.6612530858656},{"$f":"MEDIAN(O8:O2707)","v":-10124.573873863776},{"$f":"MEDIAN(P8:P2707)","v":-10048.08110477781},null,{"$f":"MEDIAN(R8:R2707)","v":-155327},{"$f":"MEDIAN(S8:S2707)","v":-283877},{"$f":"MEDIAN(T8:T2707)","v":-105647},{"$f":"MEDIAN(U8:U2707)","v":-78023}]
[null,{"$f":"MIN(B8:B2707)","v":{"$error":"#NAME?"}},{"$f":"MIN(C8:C2707)","v":{"$error":"#NAME?"}},{"$f":"MIN(D8:D2707)","v":{"$error":"#NAME?"}},{"$f":"MIN(E8:E2707)","v":{"$error":"#NAME?"}},null,{"$f":"MIN(G8:G2707)","v":-155327},{"$f":"MIN(H8:H2707)","v":-283877},{"$f":"MIN(I8:I2707)","v":-105647},{"$f":"MIN(J8:J2707)","v":-78023},null,null,{"$f":"MIN(M8:M2707)","v":-52307.936965821529},{"$f":"MIN(N8:N2707)","v":-54231.043761597146},{"$f":"MIN(O8:O2707)","v":-65351.064748845114},{"$f":"MIN(P8:P2707)","v":-57765.266312353655},null,{"$f":"MIN(R8:R2707)","v":-155327},{"$f":"MIN(S8:S2707)","v":-283877},{"$f":"MIN(T8:T2707)","v":-105647},{"$f":"MIN(U8:U2707)","v":-78023}]
[null,{"$f":"B2709-B2712","v":{"$error":"#NAME?"}},{"$f":"C2709-C2712","v":{"$error":"#NAME?"}},{"$f":"D2709-D2712","v":{"$error":"#NAME?"}},{"$f":"E2709-E2712","v":{"$error":"#NAME?"}},null,{"$f":"G2709-G2712","v":0},{"$f":"H2709-H2712","v":0},{"$f":"I2709-I2712","v":0},{"$f":"J2709-J2712","v":0},null,null,{"$f":"M2709-M2712","v":69829.086647918521},{"$f":"N2709-N2712","v":78173.506492878296},{"$f":"O2709-O2712","v":95762.402791044762},{"$f":"P2709-P2712","v":87433.458036248761},null,{"$f":"R2709-R2712","v":0},{"$f":"S2709-S2712","v":0},{"$f":"T2709-T2712","v":0},{"$f":"U2709-U2712","v":0}]
[null,{"$f":"STDEV(B8:B2707)","v":{"$error":"#NAME?"}},{"$f":"STDEV(C8:C2707)","v":{"$error":"#NAME?"}},{"$f":"STDEV(D8:D2707)","v":{"$error":"#NAME?"}},{"$f":"STDEV(E8:E2707)","v":{"$error":"#NAME?"}},null,{"$f":"STDEV(G8:G2707)","v":0},{"$f":"STDEV(H8:H2707)","v":0},{"$f":"STDEV(I8:I2707)","v":0},{"$f":"STDEV(J8:J2707)","v":0},null,null,{"$f":"STDEV(M8:M2707)","v":10193.880211553693},{"$f":"STDEV(N8:N2707)","v":12570.755409790616},{"$f":"STDEV(O8:O2707)","v":13435.193653982893},{"$f":"STDEV(P8:P2707)","v":13863.950165648153},null,{"$f":"STDEV(R8:R2707)","v":0},{"$f":"STDEV(S8:S2707)","v":0},{"$f":"STDEV(T8:T2707)","v":0},{"$f":"STDEV(U8:U2707)","v":0}]

{"sheet":"rsklibSimData","index":8,"n_rows":1,"n_cols":124,"rows_kept":1,"cut":false,"hidden":true,"merged":[]}
["03a1cfec73fb56292f05a1996056ca510|1|3961937|f0c49078ef63647e571b826fcfb2fc70",{"$cut":{"chars":56994,"head":"f76e8a173b3e26a8d1f7678b964d0505_x0016__x0017_ÐÏ_x0011_à¡±_x001A_á_x0016__x0016__x0016__x0016__x0016__x0016__x0016__x0016__x0016__x0016__x0016__x0016__x0016__x0016__x0016__x0016_>_x0016__x0003__x0016_þÿ\t_x0016__x0006__x0016__x0016__x0016__x0016__x0016__x0016__x0016__x0016__x0016__x0016__x0016_=_x0016__x0016__x0016__x0001__x0016__x0016__x0016__x0016__x0016__x0016__x0016__x0016__x0010__x0016__x0016__x0002__x0016__x0016__x0016__x0001__x0016__x0016__x0016_þÿÿÿ_x0016__x0016__x0016__x0016__x0016__x0016__x0016__x0016_X_x0016__x0016__x0016_Ø_x0016__x0016__x0016_W_x0001__x0016__x0016_×_x0001__x0016__x0016_\u0080_x0002__x0016__x0016__x0016__x0003__x0016__x0016_\u0080_x0003__x0016__x0016_ÿ_x0003__x0016__x0016_\u007f_x0004__x0016__x0016_þ_x0004__x0016__x0016_~_x0005__x0016__x0016_ý_x0005__x0016__x0016_}_x0006__x0016__x0016_ý_x0006__x0016__x0016_|_x0007__x0016__x0016_ü_x0007__x0016__x0016_{_x0008__x0016__x0016_û_x0008__x0016__x0016_z\t_x0016__x0016_ú\t_x0016__x0016_y_x0017__x0016__x0016_ù_x0017__x0016__x0016_y_x000B__x0016__x0016_ø_x000B__x0016__x0016_x_x000C__x0016__x0016_÷_x000C__x0016__x0016_w_x000D__x0016__x0016_ö_x000D__x0016__x0016_v_x000E__x0016__x0016_ö_x000E__x0016__x0016_u_x000F__x0016__x0016_õ_x000F__x0016__x0016_t_x0010__x0016__x0016_ô_x0010__x0016__x0016_s_x0011__x0016__x0016_ó_x0011__x0016__x0016_r_x0012__x0016__x0016_ò_x0012__x0016__x0016_r_x0013__x0016__x0016_ñ_x0013__x0016__x0016_q_x0014__x0016__x0016_ð_x0014__x0016__x0016_p_x0015__x0016__x0016__x0001__x0002_ï_x0015__x0001__x0001_o_x0016__x0001__x0001_ï_x0016__x0001__x0001_n_x0017__x0001__x0001_î_x0017__x0001__x0001_m_x0018__x0001__x0001_í_x0018__x0001__x0001_l_x0019__x0001__x0001_ì_x0019__x0001__x0001_k_x001A__x0001__x0001_ë_x001A__x0001__x0001_k_x001B__x0001__x0001_ê_x001B__x0001__x0001_j_x001C__x0001__x0001_é_x001C__x0001__x0001_i_x001D__x0001__x0001__x0001__x001E__x0001__x0001_ÿÿÿÿÿÿÿÿÿÿÿÿÿÿÿÿÿÿÿÿÿÿÿÿÿÿÿÿÿÿÿÿÿÿÿÿÿÿÿÿÿÿÿÿÿÿÿÿÿÿÿÿÿÿÿÿÿÿÿÿÿÿÿÿÿÿÿÿÿÿÿÿÿÿÿÿÿÿÿÿÿÿÿÿÿÿÿÿÿÿÿÿÿÿÿÿÿÿÿÿÿÿÿÿÿÿÿÿÿÿÿÿÿÿÿÿÿÿÿÿÿÿÿÿÿÿÿÿÿÿÿÿÿÿÿÿÿÿÿÿÿÿÿÿÿÿÿÿÿÿÿÿÿÿÿÿÿÿÿÿÿÿÿÿÿÿÿÿÿÿÿÿÿÿÿÿÿÿÿÿÿÿÿÿ_x0001__x0002_ÿÿÿÿÿÿÿÿýÿÿÿþÿÿÿþÿÿÿ/_x0001__x0001__x0001__x0005__x0001__x0001__x0001__x0006__x0001__x0001__x0001__x0007__x0001__x0001__x0001__x0008__x0001__x0001__x0001_\t_x0001__x0001__x0001__x0002__x0001__x0001__x0001__x000B__x0001__x0001__x0001__x000C__x0001__x0001__x0001__x000D__x0001__x0001__x0001__x000E__x0001__x0001__x0001__x000F__x0001__x0001__x0001__x0010__x0001__x0001__x0001__x0011__x0001__x0001__x0001__x0012__x0001__x0001__x0001__x0013__x0001__x0001__x0001__x0014__x0001__x0001__x0001__x0015__x0001__x0001__x0001__x0016__x0001__x0001__x0001__x0017__x0001__x0001__x0001__x0018__x0001__x0001__x0001__x0019__x0001__x0001__x0001__x001A__x0001__x0001__x0001__x001B__x0001__x0001__x0001__x001C__x0001__x0001__x0001__x001D__x0001__x0001__x0001__x001E__x0001__x0001__x0001__x001F__x0001__x0001__x0001_ _x0001__x0001__x0001_!_x0001__x0001__x0001_\"_x0001__x0001__x0001_#_x0001__x0001__x0001_$_x0001__x0001__x0001_%_x0001__x0001__x0001_&_x0001__x0001__x0001_'_x0001__x0001__x0001_(_x0001__x0001__x0001_)_x0001__x0001__x0001_*_x0001__x0001__x0001_+_x0001__x0001__x0001_,_x0001__x0001__x0001_-_x0001__x0001__x0001_._x0001__x0001__x0001__x0003__x0001__x0001__x0001_0_x0001__x0001__x0001_1_x0001__x0001__x0001_2_x0001__x0001__x0001_3_x0001__x0001__x0001_4_x0001__x0001__x0001_5_x0001__x0001__x0001_6_x0001__x0001__x0001_7_x0001__x0001__x0001_8_x0001__x0001__x0001_9_x0001__x0001__x0001_:_x0001__x0001__x0001_;_x0001__x0001__x0001_<_x0001__x0001__x0001_=_x0001__x0001__x0001__x0001__x0002_>_x0001__x0001__x0001_?_x0001__x0001__x0001_@_x0001__x0001__x0001_A_x0001__x0001__x0001_B_x0001__x0001__x0001_C_x0001__x0001__x0001_D_x0001__x0001__x0001_E_x0001__x0001__x0001_F_x0001__x0001__x0001_G_x0001__x0001__x0001_H_x0001__x0001__x0001_I_x0001__x0001__x0001_J_x0001__x0001__x0001_K_x0001__x0001__x0001_L_x0001__x0001__x0001_M_x0001__x0001__x0001_N_x0001__x0001__x0001_O_x0001__x0001__x0001_P_x0001__x0001__x0001_Q_x0001__x0001__x0001_R_x0001__x0001__x0001_S_x0001__x0001__x0001_T_x0001__x0001__x0001_U_x0001__x0001__x0001_V_x0001__x0001__x0001_W_x0001__x0001__x0001_Y_x0"}},{"$cut":{"chars":54186,"head":"2674f86837f08dddc7fb479e80c36093_x0001__x0006_{òÎ_x001C_lõï@\u0093\u0088:8'ñï@\u0080\u008a\u009d\u009e8Bð@\u009c_x0014_i_x001E_Î]ð@¬*_x001A_NÚ_x001D_ï@ÑØ_x0011__x0001_Ý5ð@\u0091[_x001D__x000F_Fñî@ÚÚ_x0003_ö>.î@\u0094ùcìäMï@ø\u009aíhfRð@Õ$q\u009eù_x0019_ð@*É\u0093(\u009c:ð@³qÉª\u007f\u008fï@&÷Ø¢6\"î@½ûû¶þèï@x_x0019_À_x0004_Z$ð@$p\u0081s*!ð@`ùl`\u008a·î@4ï_x0001_j1_x001E_ð@·\tòú©Pï@_x0005_f±/\u0096ÿí@dMÙ0_x0002_iî@\u0091üä_x001A_A\u0084ï@CcµÓ²þï@j`+Ì_x0018__x001A_í@ÉÑ§MüÅî@\u0098y¾;`Vï@t\u0094ë\u0097_x0005_8ð@gÉ`[å(ï@ :êÑÕÜï@7D\u008d\u008bë=ï@kðÑù_x0006__x000E_Ï_x001F_ð@§z\u0084õ97ð@i\u0090\u0098³_x0002_\u009aî@_x000C__x000D_­{òPð@¢ÃÊ£Ê^ï@ÚFÙ'\u0096<î@_x0016__x0001_Ë_x0008_Nïï@¾_xÈ#xï@p\u0087t\u009bH\u0095ï@4ÀSbQ´ï@ûgr\u0099N@ï@¹ÏÄ®«;ð@­\u0085ÁtÀ_x0005_ð@._x0010_2ç@\u0086ï@\u008eò+à®±ï@\u0097+ù_x0007_|_x000B_ð@{ÑTQI#ï@¥IÈ|4Tð@»æ_x000F_ï³\tð@_x0010_\u007f'\u008e7/ð@æá¸M¡'ð@_x000E_õD_x0014_£0ð@_x0017_Ù+Ò`Ùï@_x0015__x000D__x0003_\tH\u0097ð@¦û&¥N_x0002_ð@ªz_x0013_²\u009bIð@µ_x0004_4dmÚî@Üåè½\u0082Vî@W_Ý^R\u008aî@Ë\u0087ÿ\\õlð@\"0\u0083Óx_x0018_ð@¨r_x001D_zÄÕí@_x0002__x0007_^?­½5\u0098ð@_x001C_Å´Ü®uî@\u0084_x0001_:@_x0012_$ð@ä\u0094t\u009c\u008fËí@ãýÄPóåî@y_x0010_©Ø:*ð@_x0012_\u0086_x0013_ýn\u009bî@ÑpÙÖ*xî@ÏV[\u008cÚlð@5b9Jb'ð@^!Á_x0001_÷\u008dï@_x0005_Û_x001A_P}aï@tðÃñ\u0085mð@(-ãÊ³-ð@væï_x0010_ÿpï@ÂZ_x0019__x0006_\u0081\u0085î@_x0018_\u0086\u0084_x0004_?xð@\u0088\u009eåÞ\u0096\u0091ð@\u009a³_x0016_Ð\u009cjï@\u009amqPå¨ð@\u008c0_x0003_^-~ï@/<²³_x0005_ëî@_x0004_J¸Î\u008e_x001C_ð@/\u008b?ù_x0004_#ð@/s³ª%_x0001_ð@pÝüÓÓRï@ÀÆ¤3_x000B_½ï@_x0012_\u009e;\u0094ª ð@\u0092òÀ\u00847åî@_x0002_år_x001F_\u0090@ð@_x001A_iT\u0099Ufð@¸x_x0016_õ_x0003__x0004_àXï@àv_x0014_\u0081£\u008dî@_x000C_Q\u0096C\u009e!ï@Ë$ð_x0013__x0010_Ïî@\u009cM\u0098´%\u008dï@Rd{à}¶î@y\u0081®_x001D_Nyï@\u0081Ude2Îï@\u009dÓ_x0014_ó}_ð@À_x0013__x0003_\u0094\u0086Dð@x\u009b\u008cèÊ\\ð@zp_x0004_ÆR*ð@_x0013_\u0094_x0018_à\u00992ð@INq_x0006_¡&ð@|æ\u009b_x0001_ß¤ï@y_x001C_*,Î\u0093ï@8o»»q_x000D_ï@.ÿ\u0082sÂ¼í@Íµl{\u0087wî@\u0097Ï»'¸_x001C_ð@Kùº\u00863_x0007_ð@ûÆ_x000B__x000F__x0007_@ð@\u0088é§/¿\u0097î@.°ÙÊ%×ï@ï[È\u008b\u0099/ð@\u0092\u0080#0 &ï@_x0016__x0002_A:èóí@_x0019_1e¹´vð@$7\u008c6)$ð@FÅI_x0018_\u0095Ûï@Ãåô÷è_x0002_ð@\u009d'ù¶«9ï@_x0002__x0003__x001D_®§·å*ï@c\u008cbï1{î@Â§®_x000F_RÉï@%mV³\u008f\u0088î@_x0003_Ý\\ÀÜ=ð@ð_x0018_pá_x001F_Þï@_x000E__x0001_1Ó}wð@å·§__x001C_\u0090ï@A\u0085Dkl_x0019_ð@O7Í§@\u0088ð@\u009e7!Ë]_ï@z¿o%Ùãï@\u009cÒ\u008eUc\u009dï@>Y_x0018_©Ä/ð@8wãØ¿lî@:¯´y£/ð@>8[\u0096¦èï@2ì3FjÀï@Ë_x0012_åX²\u008eî@üw\u0086>~\\ð@ù£²\u008aíIï@Ç8`$\u008f¡î@,_x000F_¤Q}_x0015_ð@\u008d7äñ\u0081\u0090ï@T_x0010_7?\u0084_x0017_ï@vìÎ$Áóï@_x000F__x0005_}G1?ð@iß\u008f·_x001D_Lð@ºRFk@§ï@X\u009e_x0011_¤_x0004_~ð@û}7_x001F_\u008e\u0087ð@¹\u0091ä3_x0002__x0006_´Jï@qa\u0086O(uï@\u008d¢&\u008b{Gð@¢:g\u008dÆ-ð@®\u009dk_x000D_¥{ð@_x0014__x000E_P ï_x0011_ð@ã%ÿå æí@-ë]_x0004_¤Hð@l _x000B_\u008e¸*ð@«Ë\"M,\u0092ð@Æó¥WòOð@_x0017_M¨ð8Cî@R\\â[ÖÊï@º\u0089b\u0087ÝÎï@öG_x0019__x0003_ÃYï@>Z_x0005_\u007f|\u0092î@/ ¿Ñ|-ï@µ_x0014_O+ªÍî@Ñ_x0004_{ä\u00898ð@\u007fy\u0091\u0089¿aï@²ò·¯<Ið@­_x0001_¶Êq_x0012_î@²±Xã\u008cçï@¦¢×Ù\u008d_ï@r©¨ËèMð@B³ð\u0081Ú_x000F_ð@â¢\u0089ò±\u0081ï@\u0091\u0094_x0014_â\u0082Êî@Á_x0018_èµ\u008bmî@>\u0088+Í5$ï@&\u0089Âä\u0080ñî@î\"a_x000E_®qð@_x0002__x0004_\u0086_x000E_²¢_x0017_Çï@\u0092­%ítPð@ìÍÞI¹íî@Jdc_x0010__x0005_%ð@C_x0006__x0004_Ñr_x0005_ð@\u0093§¸\u0088Ç*î@3rYKJ_x0005_ð@7ÁZ!£Zð@8ß_x001E_\u008d4Hð@­\u0092è×»_x0001_ð@â¹$S_x000D_ ð@D{\"YtÔí@÷Ù #È\u008aï@bE Ð­)ð@{_x001E_[¦Ô¢ï@éïÇÆÁ\\ï@·2_x001D_\u0092¬kï@_x001A_LÊúJºï@Ä_x0011_áA_x0003__x0001_ð@Ô_x0019_æzràî@_x000E_k_x000E_IÒ_x0012_ï@.-\u0087ðòWï@§¶±WT!ð@¿&1n_x0014_@î@&_x001C_Jv\u008aBï@\u0093ê£MÌWð@Du\u0081mÌOð@J\u0087N\u0096W>ð@ \\«w\u0084?í@\u0083\u008dÁT_x0003_¥î@éZ_x0008_·._x0018_ð@zL\u008e_x0014__x0006__x0008_Ö\u0096î@_x0016__x001C_øt_x001E_oð@\u008b_x0016_\u0095Þø¸ï@_x000E_Q\u009aÇóUð@_x0014_f\u009e\u009b_x0002_ûî@_x000F_¤2¿2ðï@ø×_x0013_,Ërï@gß²\u0089þñí@­]È\u0082<gï@~\u007f¨C+\u0092î@®_x001B_7_x0006_LNð@N_x0008_0ËX½ï@õ\u009a\u0088Ï_x0016_¥ï@¬}Ã_x001D_\\Ìï@uÂ,_x001C_×Cí@dz:_x001F_8\u0096ï@<Jt\u009e\u0091|ð@ä8É\u007f\u008b#ð@8:_x0017__x0019__x001E_Rð@ñf3\u009d_x000C_`ï@_x0005_y_x000C_\u0090ÿGï@û Áâ­~ð@}\u0098/q\u008b®ï@rF_x0001_rF%ï@_x001E_ýâøÚ~ð@&_x0008_\u008bE_x0002_-î@V]_x0002__êOî@_x0007_«×?_x0004_jî@\u0094\u0082Ókã×ï@õ®$Fo_x0007_ð@_x0017__l_x0003_v_x0018_î@\u0080ºº¤¹eð@_x0005__x0007_Ù½³Ñ_x0002_+ð@\u008d='Ó_x000C_nð@_x0014_%ãÎ}eð@_x0008_\u0083&\u0095ªSï@­_x001C_0\u0083\u0095Iî@2©¶DE_x000E_ï@_x0003__x0017_zcöuð@7Å\u008e`Ë\u0096ï@2í¤s ´ï@¢l:jåôî@¢ç_x0006_'QXî@¹è°ÄÑ;î@§.8_x0008_x$ï@d_x0014_µÞv}î@Âvø\u008eHÈí@`Ç}&b¢ï@µ\u0082rì\\_x0015_ð@¥|^_x001B_|_x000D_ð@kE__x000F_Ï_x0012_ð@+_x0018_\u0081_x000F_ÐÒï@µ\u008dkk\u0086\u0089ð@+úZF nî@<À_x0004_¡êCð@ó¦©Fÿ_x0008_ð@¶Ü^¨-ôï@´×h{b2ð@\u0082Q¢\u0093_x0001_\u0085ï@3\u0097 \u0087²9ð@á\u0098\u0080¤\u009beï@\\ßë¢¦ºï@á~_x0014__x0005_ fð@æd_x001A_!_x0006__x000D_úuî@è«î·\u009a¹ï@Êt_x001B_åZÒî@q@%¼·Zð@O_x0002_É_x0012_¯pï@\u0089\u009eöÉb>ï@£#s\t\u0097Lð@õ}¢ªÚ ï@Ó_x0018_¬_x001C_Ñ\u0094î@_x0012_iÏ³_x0013_Xï@òÑL_x0001_å\u0097ð@q>Ö\u0080m]ï@ºG!\\¦Ùí@4C_x001D_­ö8î@ûe(û'Mð@Û_x0003_Twa6ð@®_x0007__x0015_³_x0004_Fð@Ez¨_x001E_\u0081µï@_x0001_®3¦LÛï@.µß\u008fyMð@='\u009b ìaï@ ×[ÏÆEð@¶?\u0080_x0018_µòî@_x0013_eKuq¹ï@_x000B_\u0093ª_\u0090~ð@¶+ëx×Lð@\u009d~_x0018_E×ýï@_x001A_tÎý"}},{"$cut":{"chars":51570,"head":"a492c8b6500c007fcdba50ed53a0397d_x0002__x0003_ úÎ°Àgï@xÕÞ\u0089E\u0088ï@\u0084Þ8êÁiî@'_x0019_4\u0096uAï@®\u008fÕßÈ³ï@\u0080¶½_x0002_à\u007fï@_x0003_=\"8:¡ï@\u008eª_x0001__x0010_°_ï@êº\u0093·m®ï@j$h&\u008cáî@M3½\u008e_x000E_Gð@O\u008c_x001A_ÅÁDð@\u0083Õ\u008b9³Cð@m=A_x000B_A«ï@g\u009c¹ñï_x0019_ð@\u008f¥F«_x001A_Bð@\u009d\u008c`¶Ã_x000B_ð@=`L0<@ï@_x001B_Jë!,kî@ª_x0006_tì\u0081'ï@g;0\u0089ü|ð@ÈÖª_x001E_õfð@\u008e\u0087S£¾\u0082ð@\u009cáa[½Wð@r\u0085¼b_x001A__x001C_ð@Þ¤Ù\u0089\u007fÊï@AHÖW\u0096(ð@æ_x0017_¨Î£Vð@ÁbPC\u009f\u0093î@þÌÝ}êÉï@pòW_x0014_Å\u0097î@]`Nï_x0002__x0006_ÇËî@þ.q_x000E_ùÎï@-¥\u008b¦ Fð@éÊ_x0017_D65ï@26-@\u008b*î@pÏ_x0002_á_x0014__x000D_ï@ä_x000C__x001F_o!rï@ ÿè_x001B_¿_x001B_ð@Yn¡Ïæ\u0099î@\u009e\u0080Þ¤_x0001_ñî@_x001A_î\t~\u0085Ãí@&¡+]¯pð@TLFt_x0010_Òî@K$_x0014__x0013_\u007f§ð@¨tPA_x0004_ í@Ça=Þ¾Gð@Ú*ÁOUöî@\u008a}¢Éá\u0091ï@=ÇàÜÂLð@N£O_x000B__x0003_hï@\"P\u009cQ_x0008_Wð@_x001A_µFIU~ð@>\u008e\u0092=V_x0006_ð@¯\u009a\u0095Õ_x0017_fð@R@_x0019_\u008e>Mï@fÐ¤h`$ï@_x001C_\t_\u0098×Bð@ÓÙ_x0006_ß1_x000F_ï@m\u0090)_x001F_XYï@\u009bïÿ_x0005_äqð@¨Ý_x0012_Ïäyð@»\\ñ}\u0082\u0085î@_x0001__x0002_w<_x000F_s_x001A_\u008eî@dm­ýÝ_x0003_ï@>`åÚÁpï@òîä\u0095W7ï@°Z¤|*_x001A_ð@!ªn_x0006_B5ð@z\u0090é½rdï@_x0011_ÚÎ­\u0085½ï@âDKðØhð@Bíj\u009c[Øï@Úûk©\u0087_x001F_ð@A_x001C_½ð\t×ï@_x0017_cO\u008a¡7ï@¡¼qÖFÌï@ÝÆD\u0094ßHð@y>)ã_x000D_Èî@f\u008ayÞ­\u0088ï@h½U]]¹ï@[AM*¬\u009dî@*ç\u008cM_x0004_èï@ÚF)¥$\u0088ð@_x0019_\u0082_x0002__x001D_¸Éï@_x0019_¯½£ß)ð@F´÷Hð+ð@ñ`¸j_x001C_¢ï@\u0082_x0006_\u0088û¹@ï@càaF¹¸ï@QC¨a£_x001E_ð@gÂìÕØ!ð@\u0093_x001A_J_x001E_t\u0096ï@j_x0018__x0008_§ôeð@\u0090ñxÇ_x0001_\t_x001C_Òï@¶\u008afsRJí@Ý7ê¡_x0006_0î@ í_x001B_>´vï@*\u009eh_x0010_Ú|ï@_x001C_(­\u0091Ý\u008bî@½Þk¹t¯ð@_x0015_àCíiPð@¾¯ú_x0004__x001E_­ï@xüï\u008aÚÂî@Fò´!ÿ_x001A_ï@_x0019_SâéÜ»ï@oÈQ\u00870Yð@\u008cÃ\u0085b\u0083-ï@!ã«\u008d]\u0092ð@_x001A_¿Çò\\yï@y¶É1o?ð@L¬ÑQ+°ï@\u009f¯>dz_x0018_ð@_x001C_û@|_x0011_Äï@\u009c_x0010_ÿ\u00865¼î@5D@_x001E_z\u0099ï@ÌP_x0007__x0016_\u0090Öï@¶£«y~`ð@\u0099_x0010_­\u009a_x0014_Nð@º_x0003_Ä\u0087Û_x0016_ð@_x0005__x0002_?õÊ_x0008_ð@©Âa¨ïBï@0@*á_x001C_wð@I\u0089þ±y\\ð@\u0096×\t½ø«ï@_x000E_OìGÅ_ð@_x0001__x0002_¯n9ñ_x001E_wï@D_x0017_ççÿ1ð@\u009b_x0012__Ü¹\u0086ð@âÁÃ®ÂYð@æ\u0085P\u0082¹Qð@fÞ9:¼ôî@¼\u008fÃxOBð@pF\u008fªQµï@kÍè_x001E_§\\ð@b´ú\u009aLBï@)²w_x0019_G*î@¾ùFHr£î@1â._x000B_ß+ï@&|v\u0088|\u0088ï@iSÛ¹Lìî@_x0006_\u009c\u0084_x0015_nÛî@êçñÀ©\u008cï@HÅG(\u0092-ð@ÆóV_x001C__x000C_5ï@£_x0003__x0007_<âáî@÷'æ,c¢î@§\u0087¿¥5Õí@(¿ïÖäÝî@_x0018_=mº¼&ð@F«Ë®áàï@(ËqPÊ^í@ö SeÔfï@8è`\u009f=Oð@&,\u007f@QZð@^O¨-\u0086oð@¶m\u0090oß$ð@\u007f³çW_x0001__x0004_á_x000D_ð@\u00904x_x0001_m_x000D_ð@P¼Ø\u0091\u0083\u0099ï@]9Å_x001D_*Áî@;_x000C_ð_x000B_¨ðï@\u009a^¿n\u0080\u009cï@ uä\u0082\u0093Äï@æäB_x0004_ \u0089î@$Éù_x000F_*\"ð@\u009e\u0091ï¶\u0095\u0080ð@ùZ_x000C_ ïïî@Çú\u008a_x000D_\u0086_x0016_ð@º_x0015_\u0094E ûî@òC;2F_x001A_ð@]_¨ÆGöï@BÍ_x0003_!Opï@_x0014_u_\u008d\u008d;î@b¼¾_x001F_(Ýï@ý¹\u0088|!\u0093ï@Õu_x0003_ï\u0091¹î@_x0007_~~_x0017_\u0086cî@½¯ÿóÒ­ð@ð\"w@\u0089;ð@È_x0007_Tá\u007f!ð@_L4su¸í@¡(TÛØ~ï@F¥_x0006__x0004_sDï@,_x001B_Z2_x001B_\u0099ð@@_x0002__x0010_³XÕï@_x001F_íU£+=î@Ë\u008d'ìÎ>ï@\\°EÂØùï@_x0005__x0006_«P_x0013_¥8_x0007_ð@AW¨_x001A_÷¢í@{-Ìæ¬_x0018_ð@_x0003_g3\u008eu4ð@._x001C_ÙÐ[éï@dµ~¨SÞï@>\u009fµLì¬î@_\u0094Ã_î¼í@HY\u008c½í¡ï@F[¤à\u008fZð@Ð@ÚéÐ¡ð@ðw?\u008a_x001F_`ð@[§2p_x0012_Mð@G!_x0019_r_x0001_¹ï@e\u0098\u007fÍ´_x001F_ð@í¶pÙ¡[ð@_x001C__x0017_ µ±\u0080ð@þzãX±Dð@¹*²ß¬_x000D_î@\u008a\u0089\u009e_x001C__x0004_\\ð@(Pjës:ð@q\u0081øBÈ\u008að@`Ég\u008axyî@V_x0016__x0010_\u0091:!ï@\u00819TÊà\u0086ï@z_x0002__x0001__x0010_¿Ðï@0\u00847µß_x0013_ï@ÖrÇ_x000B_/}î@Î{³çÙÌï@ØÄÙ2©Fð@S&!)á¾ð@¬ê_x000C_Û_x0004__x0005__x000E_þï@\u008fåQÅqÎî@_x0010_n'_x001C_\u0088_x0008_ð@\u0093\u008b¼üzcð@\u009bâ\u0097¹¸$ð@¾Ã_x0008_ù_x0013__x000D_ð@7xS¡_x0005_&ð@\u009cß¼\u0085e;ð@_x001F_Sö!Ì¤ï@|\u0095_x0002__x0008_rWï@Ë\u0082\u009c­\u0080Uð@üG¡_x0015_q\u008eï@_x001F_þì'm_x001B_ð@èâ\u0094µpÙî@x1\u008f6_x001F__x0011_ð@_x0008_Ú__x0001_\u0081_x0011_ð@ñ_x0017_©\u009d¢÷î@_x000F_¿QÞÐgð@ë_x001E_ùË-øï@_x0003_{\u009eÌ:$ð@­_x001E_ÞD¶\u0089î@¼JÖ²AÅï@_x0014_#\u007fö_x0010__x0012_ï@f\u008eËé\u009d:î@©J-è\u0089ëí@\u008aì_x000E__x0019_{bð@{¢_x001A_ù»%ð@m³$tu_x0005_ð@B\u009eÎk\u009bcð@AÒ+ Z1ð@_x001A_È_x000B_R\u008a\u0095î@¶eö_x0002_¨éï@_x0004__x0005_\"§aeÑ\u009eï@ÃeYO_x0018_Hï@B¦yî_x0001_÷ï@_x001C_\u0094D0ç7ï@Ö\u009bó_x000F_\"#ð@\u008a¥Á1~að@XËjÙ_x001D_áï@¡_x0015_EÆgHð@\u009a(7_x0017_Ï1ï@\u0094\"_x000E__x0018_ásï@gèUÚ:,ð@\u0094õ$hLrí@¸<¶_x001D_*bð@$\u0089¸â_x0002_-ð@«É\u0090b\u009fbð@_x000C_ÖÞØ*Èî@Ò_x0018__x0012_ªKEï@2çH@Ã¥ð@\u0087Ç_x0019_*Jsî@§fÕ²©\u0097ð@_x000E_~v\u009fhÇî@¦çH_x001A_éÝï@c=_x0006_ù:õï@MµÖÁ×_x0003_ð@\u009d\u0082\u00885Û_x000D_ï@ï\u009d;¦Âví@_x0012_ótßL\u0085ï@_x001A_\u0081\\³Æ_x001A_ð@~\u0090\u009b\ti\u0097ï@ÂXvÈ¹Ñï@ÄT_x0004_O@ãï@|Úr°_x0002__x0005_{_x000E_ð@Þõ^ë_+î@\u008d-ßO4_x0017_ð@G)u-n¸ï@®AcpC[ð@_x0010_ô²ð6<ð@F;_x0003_Éñ_x000C_í@\u008fq\u008bÑÑTð@ë¡é\u0098¿¡î@á_x001D_5\u008f_x000F_ ï@Ü³Ç­\u00806ð@ÃÜû¾7_x000C_ð@ÇõÔ°ÉEï@\u009c×âm\u0081ùî@\u0080[®È\u0096tð@\u0082VS°M}ï@pw±'ÁÒï@\u00842-'\"\"ð@´\u008b\u007f5}_x0004_ð@A{9\u0098_x000F_qï@^a_x001A_îKÓî@l_x001F_b=_x0004__x0019_ð@ñn+#Ö,ï@ZÆB³ô2ð@gGÅº\u0097_x0017_ð@\u0080,dOL:î@ëÖü¯Ò[ð@¢\u008fó\\ï}ð@?oÐRìKð@d\u0093b5Í_x0001_ð@V-ít»?ï@n_x0018_Ë\u009e\u0087øî@_x0002"}},{"$cut":{"chars":54324,"head":"febca7e3efdaae62fd26d5b37255aafc_x0001__x0003_¸´ï_x000C__x000C_Ö¶@^f'_x0011_ä\u0098·@ÍÀìFtã·@\u008a\u0095>k2÷·@\"Ó\u0084M-$¸@'Ù\u0092ÉMë·@ÞQ)è_x001D__x0015_¸@u]&Ü­ê·@_x000E_kæà_x0018_ ·@\u008d¿\u008e&3¾·@o\u0081Ñ]A«·@_x0018_E»Vøt·@_x0018_\u0080Þí_x0007_\u0082·@ÈlÚËñÎ¶@_x0018_ÅxXà\\·@K\u0090^W_x000C_S·@._x0016_òñ\u0095~¸@©È_x001F_ì]Õ¶@TH5\u0092HD·@i®£65:·@bq_x0007__x0006__x001D_\u0098·@Â;x\u0094Ã;¸@ÄÆü6J²¶@þ|_x0001_}Q°·@_x001A_dúRþa·@´vÔ$¼¿·@7Þ_x0002_)`ù·@ìý¡ò\u0080[·@¿[¼Ã7\"·@ä_x0012_ïDX\u0091·@>?D_æX·@8WzÖ_x0001__x0007_\u0090¤·@_x0016_ÿ_x001B_\u008e/\u0094·@¢«Å) _x0019_·@òTÂ#\u0095B·@\u008a.¶»¥Ñ·@5E_x0006_äîz·@Áê\u0080)ÂÄ·@þ_x001A__x0005_[kÐ·@?#å/í.·@\u0094\tîÑËý¶@_x0003_\u0085_x0002_ÎcÌ¶@?_x001E_íPüé·@EÕ\u0082\u0083ª_x0013_·@\u0089^_x0010_êùÅ·@\\.©M¼/·@F¯4_x0004_@¿·@\u008eê_x0017_äc\u007f·@A_x0008_4¤ë×·@À&dÑ\u0082ñ·@º<Ev%z¸@>_x000F_È_x0015_S²·@'\u0086e'ë_x0015_·@\u0098'äNrÖ¶@\u008e\u0099_x001B_5â'¸@ÀXÆ_x0005_ðØ·@Â©§8Ê\u0085·@ÛéWË3Õ·@RKE°5\t¸@Û\u0089ëªz´·@ß@J;_x001A_í¶@a_x0019_9ØÜý¶@B!¤[`_x000E_·@_x0002__x0005_ý¶e1SÂ·@ýÄw.\u0099ò¶@Áne\u0084æ_x000C_¸@_x0003_£ NûC¸@ÃÙ\u009bâ»@¸@h¾\u008e_x000C_6`¶@a_x0006_Ç_x0018_\u008a\u009b·@éÎºD\u0089ì·@\u009b:¢ó/¯·@É\u0094lpèp·@´w£ø_x000C_þ¶@ñÀG²\u0095\u0090¶@0_x000F_¤¾;à·@_x0010_ø\u0091ØtM·@/öá\u007fåe·@Öãÿ_x0001_ \u008e·@l`«¬\u0087\u0089·@¬³(uý_x0002_·@ß_x0010_%íó_x001C_·@¬®~2§à¶@\u0083Ëûø*_x0010_·@_x0015_Î\u0084\u0098_x0004_X·@\u008fi42_x000D_\u0086·@²¡+f_x0004__x000F_¸@Ù;_x0006_¼j|·@lÍG\tz¤·@ßîR1\u009c.·@êsÏk\u009dQ·@_x0007__x000D_÷¶\u008c+¸@ä\u008fV£ÒÙ¶@û¡Îü_x0008__x0013_·@c\u0093HU_x0002__x0003_¤¶¶@¢­q_x0007_Í\t·@pS¿wèg·@Zýé\u009e°w·@ýøêòCë¶@µV5_x0001_ûå·@Heþç!y·@^å\u009fZÓ_x0011_¸@_x0005_:_x0015_ p¸¶@÷O_x000B_[]_x0017_·@«<\u009dwÝ_x0010_·@y\u009eC©½\u009d·@è\u008aÉG\u0086H·@\u00953mÿo¹·@)Ç}_x001A_ÔÞ·@Fòûa\u0091Ó¶@m\u0099ã!)_·@(4f\u0091ró¶@_x000C_f~Â;Y·@è\u008bf_x0005_ìf·@4~û_x0002_ç··@£ ~8¬_x0004_·@r_x000C_ä\u0088\u0091x·@ëåqÓÛ1·@EëNÌÃ»·@_x0014_%nO@û¶@Î\u008aùï[\u0094·@¨uhÝÍ_x0012_¸@\u009a_x0002_\u0086_x0003_\u00981·@ÏÛ\u009f_x000E_ôy·@o_x0010_0\u009c\u0093³·@£øJöN@·@_x0001__x0002_\u00816ªÚýü·@ó>;P^ß¶@óøð|êÊ·@\u0084ù\u0099Yl¼¶@Æûý¿H\u0097·@[_x0004_\u0084×ñ½·@}Ø/¦:=¸@µËÞòÓÝ·@Ub¤7_x0019_E·@î_x0015__x001C_º¼_x0005_·@\u009a*Òàe ·@Ê±\u008bëÞ\u0080¶@þ_x000B_$§íB·@6$À\u008eð°·@Ü¹Q¶èå·@¡KÞ_x000C_O_x001D_·@n_x0015_v\u009c;«¶@b\u0095Þ\u0093Ad¸@úÍ_x0019_¥b+·@\u009di¬ _,¸@Z\u0097_x001B_\u0082þ_x0008_¸@\u008eBë_x0015_¯´¶@)_x0003__x000E_¶­D·@_x0005_\u0091>\u0099mã¶@\u009dß\u0094(\u0098Å¶@¯\u008fÅ_x0003_Üx·@f\u009b%£XÜ·@\u007fäÍ_x001F_ê¨·@À#Hv¤ú¶@øõ½©O_x0018_·@:âòøµ_x0006_·@î:_x000E_|_x0001__x0003_*{·@ýKÌ\u0098ìÈ·@\u0082IRºàë·@4ëó_x0017_þM¸@yF¹ ÑÅ¶@!$²kl_x0013_¸@UJ_x001A_3\u0080L·@_x0007_üuD£_x0006_¸@_x001E_\u0092­ÄÖÄ¶@dV\u008csÒn·@¶¿]*k\u009f·@N_x0018_\u0091_x001C_fÍ¶@\u009f_x000E__x0003__x0019_;ê¶@ð\u0092¥\u0091_x0014_´·@áj¤ÓÜn·@¢_x0014_hÂbÑ·@\u009cÆq\u008dwV·@Ê_x0019_·Ò%_x001C_¸@¿6_x0008_:mE·@D@øjÃc·@\u0098'_x0015_¡ù8¸@ u_x0015_\u008f¼_x000E_·@æ·_x0017__x0019_Ï_x0002_¸@_x0016_Ý{+_x0015_¤·@$è2>_x0005_q¸@Û¨¯\u0084²Ì·@\u009cH,ÖÐ ·@\u0083\u008b\u0086¬_x0004_W·@_x000C_tÍ\u0081WÛ¶@_x0006_\u008cá'¸¶·@\u009f³_x001C__x0010_\u008a\u0096·@7\u0085\u0093_x000C_\u007f\u009e¶@_x0001__x0004_ßÿ_x000D_U_x0001_¬·@\"¢__x001C_Y_x0006_¸@_x0017_k­¸½_x001B_¸@_x0018_ã*\u008cW_·@¢_x0007_¥)µ#·@rP\u0081ÕÃ\u0092¶@\u0089_x001F_a_x001B_î^·@X_x0015_Á²Év·@mY\u0096â\u008c_x0010_·@\u0093_x000B_%Ü\u0082_x001E_·@>_x0010_;¡\u0098g·@-n\u007fÝ@V·@_x0006__x0010_¤\u0084_x0004_R·@r°ôñ6\u0090·@Ó/¦x_x0002_(·@\"\u0099\u0085G ë·@!\tÑâÍ_x0019_·@ü²_x0016_Ýz_x0012_¸@U_x0005_\u009d__x0012_^¸@ÁzA\u009c,Û·@i¢±ý£_x001B_·@þvÈ\u0082æ\u0086·@9\t*w'&¸@Å_x0003_IÑ¾Y·@+ftÀ6X·@\u009fZ7~+\u009e·@Gr_x0017__x0006_$-·@\u0089G]P*\u009a¶@Å!\u008b_x0010_¨Ø·@¥¸Ä×Ãû¶@b?/Äç=·@_x001C_\u0090:é_x0001__x0002_aö¶@'UY_x0015__x0006_Â·@Ä=R](F¸@ñ÷ä$sÊ·@¸·q:{Ý·@ïQ/ÿî4¸@\u008cH\u008fÕ9_x0002_¸@DíÎ\u009b:j·@U³áÚ*_x0003_¸@­ÞÍ\u0094S\u008f·@5H´ü¾d·@\\Je/°_x001D_·@;\u0094\u0084_x0013_7;·@wü\u007f:¯F·@Tëc£f\u0088·@Ä\u0097KI[7·@\t×·úI7¸@Ö£\".#£·@\u0092¯ÔÐ°%¸@#\"}r\u0085$¸@Þ¼¦¤\u009cB·@\u0090»òu¡ ·@ÒÿÅyÌÛ·@o\u0097ge<´·@­\u0084Úú¥_x001F_·@_x001C_®\u008bXøÖ·@Ä\u0090_x0019_\u0090@O·@¥\u0085_x0005_Ëm_x0016_·@\u009a_x0013_\u0086\u0091n~·@kR.²\tö·@YïO\u009aã\u009d¶@_x0015_Ï£âÖ?·@_x0001__x0002__x0012_\u008d÷´¶ì¶@dpóc_x001A__x0002_¸@Ê2$O3]¸@rø¸_x0013_ï1¸@\u0095îÊ_x000E_:½·@D¬C\u009aú$¸@÷_x0014_É\u009f\\_x001B_¸@ÊjA\u0087\u0087®¶@jGÜ^Û¯·@ë1a_x000F_\u009eë¶@ïÞ.\u008c½N¸@_x000D_\u0087W©L\u009c·@}¶o6_x000B_é¶@\u0086S+\u008e@}·@©ç_x001D_qõâ·@cV\"\u0089_x0008_Û¶@\u0082{¢\u0085\u00980·@¤³<æ\u008dþ¶@\u0091¨(B¦\u008e·@çd\u0081Ëÿ¨¶@M/\u0093\u0093»²·@\u008cûÝ)Ñ_x0017_¸@*7t;H_x0013_·@$í\u0086ÞLò·@z_x001F__x0002_ _x0001__x001A_·@#ÿ\u0080[~«·@[zf_x0003_âZ·@é§ï\u009a-Y¸@Ï;ù3dx¶@\u008b_x0016_K_x0014_ò_x0001_¸@µ¶R¶\u009cÐ·@$+¬û_x0005__x0007_sï·@<â\u009bd_x000B_õ¶@_x001C__x0018_\u008dÐ/\u0091·@_x000D_lÈD\u008aj·@Yµ\u0095_x0006_Ð\u009f·@¤²\u009d_x0010_ü_x000D_·@_x0013__x000B_g×#à¶@Ø­l0¸£·@ö×ùdC±¶@_x000E_¯m@ä_x0003_¸@c\u0092\thò\u009d·@Û¢U¯\u008b\u0084·@v?\\PíL·@@N_x0001_2k\t¸@ßÅ:#fº·@\u0087§_x0001_ï;µ¶@èÆ¦¡\u0099û·@BÑ}í¥´·@b\u008f_x0019_O!m·@öª¹~\u0082ù·@_x0018_í\u0085YË_x001B_·@öR_x0004_Úüä¶@_x000E_k_®Æ\u0088·@ëÖ¡Ê_x0006__x0007_·@m\u009eç¤i_x0003_·@áÊ_x001B_Rg\u0084·@¸\u009a²KY_x0002_¸@+¹>®Àg·@YjßO\u009cÇ·@_x0008_o_x0018_!Oæ¶@¸\u0083_x0013_~SÌ·@g«#¦ê¯¶@_x0001__x0002_Ê½ÐÏ2?¸@¸@=9Q_x0"}},{"$cut":{"chars":51648,"head":"f40e54a8ed071073dcd84675a7b63f4b_x0001__x0005_ºn ¥\u0092á·@_x0005_\u0091¼kú\u0080·@(\u009dc\u0094I_x000C_¸@;×5Ø´µ·@¨\u0081\u0089_x001C_Ìd¸@Õ\u008dZ_x0003_¢<·@÷Y¹ç_x0004_}¶@¢<\u0089:ÂS·@\u0083_x0015_\u009c_x0010_@X·@æÍ@mi\u0095¶@_x001D_q_x0010_CÒ_x0006_·@7OáSS_x001E_¸@lk¸,~h·@\u0082åô\u0088{Æ·@úmé$Ú³·@È¥P[­D¸@Ç¸ÞÎ¹_x001E_·@¼P½¨ÙA·@©_x0005_ÀÓ_x0008_V·@!¹cZùQ·@ç_x000D_êÓ:9·@5í_x0004_ÇOÓ·@_x0001_k_x0002__x0006__x001D_Ñ·@¢½{¶\u0095\u008f·@\u008c0Ä_x001E_¾q·@î+â\u008aèR·@ý°¦_x0005_hê¶@ÕÓo\\\u0081k·@Kla¾ç_x001E_¸@ÖÕz|$æ·@p\u0095OèHß¶@£ÅT\u007f_x0002__x0003_Âr·@ö_x000D_<_x0016_¤î·@à._x0005_×¢r·@\u0090_x0010_0r×K·@\u0087Ê&­K¼¶@ á¢4Êî¶@SÅ¬ü_x0019_\u009a·@_x001D_[4_x0008_Ó0·@ë«$hQ\u0083·@%~v^DÑ·@TMæ_x0014_ùd·@y_x0003_¤\u008e\u0087è¶@#m=Ã~c·@RP2\u008dLp·@Ode$¬,·@àÝò\u0080B_x001B_·@\u0081\u0080zZ_x0008__x0001_·@_x0013_\u0088_x0008__x0001_\u0080Ò·@ï¿ÿ_x0008_.Ê·@Òêz]¢ï·@_x0016_Èriàë·@_x001A__x0015_ÔóÓ¥·@Ö¼F¶\u0084\u008a·@Ôí¦q^Y·@&\u0085kÈX¡·@\u0094_x001B_,#Û`¸@DDÊì´ö¶@!\u0095V¹Z··@='8 _x0014_ã·@\u0086C[_x001B_Òð·@\u0083s_x0018_\u0080\u0094ý¶@ç(\u008cßi_x0006_¸@_x0001__x0002_N\u0083\u0085^7_x001A_¸@P¡ÁKßF·@_ªÃL\u008aÖ¶@D£~HË~·@\u0094fY_x0018_ë=¸@ùO»\u0083ï\u0090¶@g§Ü\u009eÂ_x001B_¸@¬\u0092Dâ÷\\·@(\u0088<\u0096a_x0006_·@Iñ_x001E_\u008b_x000F_\u008b·@0@Y,/õ·@_x0018_a\u0094Á¬æ¶@E¤g\u0098º_x001C_·@E_x0019_\u007f}Uw¸@³¬\u0081ï«C·@_x0004_n¬_x0015__x0001_õ·@êU\u008cF\">·@ZPê_x0016_ñZ·@¨*TEÂ\u0097¶@#«oÔ±É·@Ôb_x0015_\u0091T{¶@è\u008càaõÛ·@f\u0098\u008b³¬k·@nÜÁ(\u0094!·@ós¶EJT·@_x0015__x001C_ìB@_x001F_¸@GµC1_x0019_e·@_x001B_°_x000C_äWè·@I\u0089_x0002__x0001_i;¸@H&pf_x0003_\u0081·@\u008c÷ôb»\u0090·@Ùûw_x0019__x0002__x0005_!\u0082·@?7\u0085|_x0007_i·@\u0085!_x001F_\u00914Å·@S&\"\u0080^ç·@>·Á\u0088ÐG¸@\u008fë+[!Ã·@_x001A_ËW_x0010_îý¶@ \u0096zPÛ4·@Aç³\u0097¡_x001C_·@B\u0090_x001F__x0007_©½¶@Ûý \u0090ä\u009b¶@G_x001D_úEô7¸@è¸ûVÍk¸@þµÂµ\\ÿ¶@\u007f,_x0013_L2_x0014_¸@!*\u0094rc9·@\u0093\u0087Ù_x0007_Ü¶·@÷\u009a\u00812³Ü·@\u0094ë¦´\u0099 ·@É5Óda\u0080·@n_x0004__x0018_Î¼\u0084·@Ô@ûn\u0098ù·@_x000B_¼ø\u0092_x001E_8·@¦\u0096N\u0093²_x0018_¸@dq\u008c\"@ù¶@(Åå_x0001_ç\u0093·@í\u0099Öæ§Ø¶@\t\u008e³äñâ·@[Á|pYµ¶@_x0003_Ø\u008f\u0090rµ·@\"Ý¬_x0011_èê·@_x0014__x001D_Ð\u009eù_x001A_·@_x0001__x0002_,u\u0099>\u0090\u0081·@YVè~¹ç·@3_x0019__x001B_Wk_x0007_·@ìË¢fåe·@ÇÍ\u00973êÃ¶@¨\u009a±«÷î·@_x0018_d_x001E_ãÁ÷·@\u0083°_x001E_,_x0008_X·@E]|_x0007_\u00893·@é#_x000F_±\u0081¤·@8º\u0097_x001E_ü ¸@e\u0090L_x0005__x0010__x000C_·@\u0089:èë*p·@Õ_x001A__x000E_,Õò·@Ñº\u009cîäÌ·@\u0080+à'_x0001_m·@Û\u0081í·»9·@\u0097±m_x001B_zú·@93_x001C_Ùßù¶@_x0014_Pü´Ø_x001D_¸@_x0017_´¢í3_x0002_·@*<ó_x0017_õ\u008a·@|_x000D__x000D_þ_x001A_Z·@_x001D_N\"j|K·@\u008aZÜTÅÔ·@çÂ\u0095nwJ·@¤Z®S]*·@@óp\u0097+W¸@%ÑÓ\u008aØ¯¶@FÌtÞ·§·@1\u0081\\¸+ÿ¶@ùë[k_x0003__x0008_\u0086_x0014_¸@435f5\u009f·@ë5_x0001_Ù$­¶@øo%\u0082FÕ¶@+T\tÄ_x0006_j·@Æ#©ËTÊ·@}ÅSJ_x0007_^·@µ_x001D_q_x0004_ó_x0010_¸@·­/_x0012_5*¸@\u008b\u008e\u009b_x0005_ÛQ·@&_x0012_£bGz·@_ô¹f4z·@ð\u008a\u0098D³Ê·@·_x0004_¤kÁ­¶@\u008bñ1T\u0083{·@rÐÎUöÝ¶@S³=;\u00917·@öX)3ß¼·@%_x0008_£¬%¬·@úþû\\0X·@\u009d_x0007_­æ\u0080D·@÷|²¨\u009aê¶@?_x0002_ÉÖ¨Î·@,Öó_x0008_ß;¸@lµå_x001F_xî¶@\u0088!G\u0098'è·@_x0005_\u009fÎI\u008e\u007f·@\u0090ð_x0012__x0013_Èº·@_x0005__x001D_ÖÓ_x0002__·@ÇÍ°_x0004_r÷¶@Fr|\u0096Ê°·@î¶ý½_x0005_··@_x0003__x0006_ð¸KêÇ½·@3íê« Õ·@ý\",vU{¸@-ÎÝ_x001D_TV·@å¤ÈOk5¸@ikg_x0013_\u008f\u0099¶@_x0011_\\Í\u0081Ø³¶@v~\u0080æþ\u0094·@î\u0098émd«·@¡UÌÞ]_x0017_·@¿\"î8¦\u0083·@_x000F_'ôÆµ\u0093·@¶_x0011_#Í_x0003_«·@\u0089ù_Ó3ú·@Í:¨S^_x001F_·@x*4~ñ'¸@­è«_x0004_y[·@g\u0095\u0099_O\u0087·@)Ý\u0087­_x0002_°·@ 0V¼\u0091¸·@_x0005_\u0092ÿ\u008dÆ\u0091¶@¾ÐxSó\u007f·@Ð\u008dÄZ_x0012_&·@#Ô¢Æ\u008f_x0001_·@×ù\u0094*]_x001A_·@\u0095\u0088_x0012_¸_x000D_å·@¢ß\u0094bÝü¶@Æ_ó_x0019_Mñ·@M_x0014_Ö_x001B_§Ç·@O04_x0003_\u0096\u0091·@q_x000D_>\u0086Ø«·@_x0016_b\u008e>_x0004__x0005_UI·@S/\u0098ÝB_x0004_·@Í_x0006__x0014__x0003_+_x0003_·@yÌÔ=ä|·@¼'ñj_x0008_\u0081¶@¤³;µ«_x0013_·@þ\u0089½_x0002_ÊM·@!Oâ\u0083ús·@ä_x001C__x0010_\u00805\u009b·@T\u008cÒØ ¥·@B\tÎ`¾{·@O1O§×_x0003_¸@ÑÞM·?¾¶@_x0006_99¤_x0007_s·@\u007fb-I\\£·@µÎ_x000E__x000F_¶¾·@_x001C_Ïô:ú;¸@_x0010_»Ó!Á5¸@\u0090¾C\u0086cú¶@ciø½Q±·@_x000C_÷ _ÁØ·@mb\u009f-)Ú·@\u0085MÏ,è ·@^e\u0082iÙ_x000C_·@³G_x0008__x0019_¨\u0092¶@ßðk\u0091{Â·@¡g_¸\u0092X·@5\u0085\u0095C·_x0001_·@[³è¾NJ·@ú¬\u009bïò_x0014_¸@\u0098\u0092ö ³ÿ¶@ã_x000D_ã\u007f<2·@_x0002__x0006_@_x0012_êãk\u0085·@õñW\u0083\u009dQ¸@Sï_x0002_¦µ_x0005_·@äüëk6ÿ¶@\u009as¼yò¸·@J_x0017_1åîË·@\u0086üï ù\u0088·@á4ÒEn¯·@\u0091_x0003_Ò¢«u·@â`Ñ:g_x0019_·@_x0018_å:l_s·@½i`&Á^¸@sÐ+\t]$¸@¬\u009c_x001E__x0016_t\u0080·@_x001B_\u0097áðç\u0082·@vÖÀ#ïE·@ÿb_x000F_7\u0094x·@_x0011_RÝüXÃ·@§\u009e_x0016_\u008b_x000C_u·@þæ_x000C_Fûå·@\\A_x0014__x0006_ú]·@Ñ_x0011_ín\u009c³·@\u0096_x000D_w_x001C_\u0088¹·@_x001A_³Z_x0001_ny·@\u0081À&çb\u009d¶@Ùà[§QÝ·@_x0016_Oc\u0087\u0083¨·@iAýô9¦·@H§pZ_x0004_3·@³Wß¨èp·@4ÆÕ:_x000F__x001E_·@ä_x0008_Ô²_x0001__x0003_\u0089\u0085·@\u008dm+êßè·@°@KÅ½#¸@.Æ­_x0005_Y\u0096·@oa\u0088Þs\u0087·@Â0pÛ¬±¶@¢Þ·Ä¤P¶@BZ_x0001_Y_x0001_¼¶@e»dyÆQ·@¿¥uÅ7±·@\\_x0002_OÀR\\·@\u0093qzÉ%f·@Ø¡-¨B>·@!±Ôz\u008dh·@UK§Ôûë·@\u0091d]T_x000C__x001F_·@a©Ðu_x000C_h¸@\u0098R\u008d_x0014_4_x0018_·@\u0081XÙöÎ®·@Cì59{¹·@_\u0084~m &·@½KÊ=\u0086å¶@f_x0019_\u0097nºc·@É\u0099²**\u0091¶@`³#<_x000B_ì¶@þÜÂ2e&·@,\u00846\u0099j\u0082·@8J¸Ä¶ï¶@Ð°m_x0012_ô_x001C_·@ÍØ¼Lx_x0004_·@¯¹ÆNÅé¶@Þ,h&µÜ¶@_x0002__x0004_ª2©_"}},{"$cut":{"chars":53196,"head":"8d2e211beefb7911009ba8037d2c9c05_x0002__x0003_å_x001D_Î ¡\u0080·@LI_x0013_\u0080cS¸@Rÿ'`0V·@\u0089{|\u009aò¬·@±DÇ_x001E__x000E_r·@ròd%)_x0015_·@öK_x001D_Ü¡S·@T\u00990À¹t·@&R>w1#¸@¶J\u008d\u0096WO·@È\u0089_x001B_e\u0099_x0007_·@D\u0084â\u0091eD·@\u009bÐ½_x001B_\u0093_x0012_·@(Ûõ\u009a]T·@0QWßéÈ·@£_x000E_ríÖå·@ø<yê$v·@^5\u009fèä\u008c·@X_x0005_[Z·=·@s²\u009féj³¶@ÆWy$_x000C_¯¶@È~_x000B_b¦¾·@_x0001_e«\u0081óT·@¹_x0004_k\u0090T¥·@íÛâÇ\u0085A¸@øw¦~þ]·@g<T 4(·@ka¢\u008c8Ê·@Q\u0097\u0081°_x001D_$·@\u0093e3\u008eô_x0019_·@42\u0086Ü_x001E_L·@_x0002_V¸¶_x0001__x0003_ñç·@\u009dÈÙ[wm¸@\u0087LJ_x0018_Ü\u0088·@®ì\u0088\u0096Oý¶@J]!_x0004_:\u008d·@\u008f_x000C__c×ã·@\u0098ûoVÄn·@ºA«\"\u008fÌ·@_x0014_[¸ Y÷¶@%:Â2_x000E_D·@é\u0093{Åí\u0087¶@Ä _x0017_1/5¸@\u008câz_x0010_^2¸@Úàg\\\u0084v·@W_x001D_d\u009dÚÚ¶@\u0085|@x_x000F__x001D_¸@B\u007f\u0099\u009f¼ü¶@Ðµ\u0095_H¬·@*«\u009eíl1·@¦\u009eG_Ó+·@í¢Y¬a¼¶@ýq_x0014_Ü_x0010_ô¶@ÜqßÂ\tv·@\u009bÃ|_x001C_Ñh·@òiGÍî_x0011_·@2`d<k:·@y!ÿ­\"_x0001_·@3á\u008f©,M·@L_Â@ï\u0098·@Ú\u0099£}_x0002_\u007f·@¤¼_x0008_áh\u0086·@'_x0011__x0016_Ð\u0098È¶@_x0001__x0003_\u008b@fV_x0017__x0002_¸@_x0001_¹Æôo­¶@·bC\u009e×V·@_x0001__x0010_âíÕë·@X~ö\u0094\u009c±·@®ù\u0091}_x000B_Ï·@\u0081_x000B_ûR¼\u009d·@bs\u0096ã=>·@ÀzÜÙiõ¶@OÛ~&s\u0088·@#_x0011__x0004_«\u008eµ·@µD^Ò\\¤·@ÞýØjÎñ¶@aæue³Í·@Y\u0084EæO_x000D_¸@Fè­4Ù!¸@²Pk6Êw·@_x0015_eþ\u009e¤?¸@Ê}, 7\u0097·@_x0008_·J#pÍ·@¦}_x001D_À_x0014_O¸@_x001C_t{ é6¸@!èª_x000B_\u0083ô·@\u0096Z_x0004_Ù_x000F_ ·@Q&¯BÇK·@\tÕ_x0001_^ _x000E_¸@ö_x0008_÷BB_x0006_¸@³¢\u0090_x001C_¬å·@\u009c;%Qó_x0010_·@º_x0011_þG\u0089±¶@ç\u0089u(¶á¶@Q\u0095ØO_x0001__x0002_\")·@!\u0097µ_x001F_u=·@zk^íWJ·@Égv\u0084þ_¸@ó,×e)Ö·@hgGæ¶\u0094·@_x001A_I\u0094\u00838$·@ \u009012Úî¶@\u0080Ñ\u0084\u0098äL·@Å8Ô+õ_x0003_¸@þ\u0098ÈÆ_x0005_¦·@Ç\u009f,$j_x000D_·@õÃ\u009bsL_x0002_·@é\u0080_x000C_)7_x0004_¸@_x001C_æ.²XP¸@\u0092R\u0088,jG·@Ü_x0012_æ_x000B_Ñ%¸@_x000C_þ#fM«·@\u0092\u008c\u0083Òß×·@\u0090¬UÆå&¸@4¾uôÝÙ¶@®¤µ_x001A_;~·@UØ´Þ3,·@HÎ=½_x001F_ä¶@µ¸kf\u008d,·@Ì¾C+$\u0086¶@ãæ­tøÏ·@ûkÈB¤È·@tü¸¿_x0013_!·@_x001F__HÇ&Y·@IË-é\u0099'¸@_x0015_l\u0091Ú\u00824¸@_x0004__x0005_`M?\u008coQ·@1«NpTi¶@Ø_x0007_âE¬\u009b·@­`_x0013__x0016__x000F_Ø·@PhØ5»ç·@_x000C_:_x000C_\u009dðl·@P\u008f×7~\u008d·@\u0091_x0002_½_x000D__x001B_º·@ÇÏð>_x0017_ó·@\u0093HM.Xg·@S\u0099Ô_x0017_µõ·@\u0085!uæ%ÿ¶@þS?mþø·@@Ô¼ªw_x0008_¸@;_x0013_\u0080ÿ«Q·@n£îpõ)·@id_x0006_÷O_x000F_·@s_x000C_¦_x0006_}à·@\u0095¿_x0006_¢_x0008_9·@X_x0014_×_x000C__x0004_ä·@&\u0098±Z®-¸@ oà»\u009ck·@\u0083â\u007f_x000B_lA·@®)æ÷Ø:·@B¼u¬\u0086d·@m_x0011_Ï\u009e½É¶@\u0085î>£k%¸@_x0003__x001C_EôSÜ¶@_x0016_M\t(l¹·@_x0011_\u009d_x0010_G:Ë¶@\u009d_x000E_T._x0001_\u0090·@] G<_x0001__x0002_\u008aD¸@ÇMóXy\u0082·@pnÇä4h·@OßlÀ\u0093\"·@_x0008_\u008e7´,ý¶@\u0086 L\u0097: ·@.\t¡rû_x000F_·@è=·_x000C_£°¶@Ü}\u009dóï*·@µüþÔ\u0087;¸@½³Â_x0008_/_x0011_¸@\u008egFê\u0098p·@Ë)\u0086ÈÍ4·@]³z{l_x001B_·@©âìR_x0014_Ó¶@ã¾_x0002_f_x000E_¾·@t\u0086ÓÃ\u0080°·@\tÓzlÍl¶@_x000B_Ûg4_x0016_À·@©G©ay_x0007_·@\u0092_x001D_cìÐð·@w)æ_x0003_õÿ¶@òm_x000D_ Áë¶@ý_x001C_ü\u0089_x001F_Z·@ÑH\\\u008aSH·@2XWwò\u0081·@ãßKØým·@Ð_x0017_¯\u0099=Ý·@0vªÙ|_x001C_¸@z®c}(Ã·@0\u0092ö®\u0097\u009a·@RîA_x000D_¬U·@_x0002__x0003_uî_x0010_½)e·@Ø×RÃ¯_x0001_·@ºZ)_x000C__x0006__x000F_·@_x000F_\u009e©²l6·@»_x000F_\u0081_x001E_\"s·@_x001E__x0014_Ù_x0003__x0003__x0014_·@_x0007_ðcºó:·@û¼ií/\u0087·@\u0080S\u009c§¡j¸@íÁRö*8·@È½_x0004_\u008a%Õ¶@U\u0098\u0093\u008eCB·@ø_x000D_G_x0004_þ¢·@ìd\u0085-î¹·@±êô[m`¶@\u0093±NX &·@,GÒ¾*\u008e·@1_x000E_ÐÙ]0·@`_x0015_xØ 0¸@Êk{\u008b½÷·@L\u0083ÎD,î¶@\"øgÙ?{¶@\u008e_x001A__x0004_Ù(_x000B_¸@ê_x0004_5tuÍ¶@\u009ez_x0001_d4I¸@Ô\u0083çe_x001D_`·@õ_x0017_\u009cË,Ê¶@x\u0091ÔàRl¸@×È3Zu^·@á½^%dÊ·@TÎk\u0098\u0099\u008b·@@p_x0017_]_x0001__x0003__x0015_^·@ë£ÜlÏ_x001F_·@}WÌ£_x0006_N·@SöîÆ_x0010_8·@Ô[(C_x000E_|·@§\u0097x¡\u008fa·@úß~·PË·@86\u0093\u0087Gà¶@»\u0086¦:_À·@Ô¦Ê_x000F_êä¶@\u009d¡µ\u009a\\Ü·@¶\u0092¡bòú¶@Õ¼_x0017_­%«·@!Ëh\u0088¨¼¶@¤Ñ-?'ù·@\tL_x0010_rÓÇ¶@ì_x0016_ªîã¥·@_x0013_0+_x0006_õ_x0011_¸@#sº_x000F_»À·@cxÂÆ(Ø·@/\u0082\u008c´kF·@ö·\u0096\u0091»Ú·@_x000C_êqäéË¶@¬\u008f_x0007_Ä.W·@ø£\u009c6¢Z·@Ö\u0097_x0011_ÿ¨\u0094·@G_x0003_··ÙO·@¥o®hF\u009f·@ê\u008bíÕ=0·@Ú4öâ5_x0007_¸@¼_x0002_Y\\ç®·@\u0083?Ì\u0092¹¤·@_x0001__x0002_ü_x000B_ÀE\u009e¦¶@ý¶VÙ_x0015_E·@³pÀø_x0003_9¸@Âk]\u00816ã·@BY³Í>â·@fî@vB9·@_x0014_\u008f.I_x001D_j·@_x0007__x0013__x000C_>òI·@$;Â_x001E_5»¶@Ó\u0094Ð\u0083x_x001E_·@_x000D_Ú¶_x0011__x0007__x0017_·@iaXù>;·@põLÂ\u0080'¸@£%Än&\u0090·@}¼_x0018_Ëå_x001B_·@²@®³_x0012_¢¶@\u007fì@íéD¸@I÷Öìúg·@,èK¾6ð¶@ú§ÚbSe·@6_x000C_e4\u009f´·@¡Zñq_x000E_F¸@_x0007_^_x0003__x001D_è±·@×%Z¨dê·@oÇ)`\u0095&·@Ç*ÈRk½·@_x001A_vZýäg·@¹Ï\u0080Ô~H·@xÂ\u009d|_x0011_o·@\u008fTgD_x0002_¼¶@,Ñè6½\u008b·@¢ &_x000F__x0001__x0002_^f·@vÕÎr>\u009b·@ºU_x001C__x0013_m\u009e·@è;_x0011_~sÒ·@\u0090tÂ\u0090K_x0012_·@Î0\u0090ôÉ ·@è\u0084\u0083Ût1¸@n¯=º_x001E_F·@å\u008f<t\u0087ê¶@Â\u008fVXdÿ·@K;\u0090\u008cº7·@ãP/Gâ_x0013_·@óÚ\u008com\u0094·@f_x0012__x0005_PÈa·@`ñJ\u009e¬£·@4ËÖ\u009c#+·@¿Ó]êxý¶@ Wa'\u0094ò¶@\u008a2\u0080ÓEÄ·@X_>ìÙÅ·@_x0008_ô}µñ´·@\u008b0\u009c\u0098RØ·@\u0084$ìÀ\u009e\u0091·@_x000B_Ø\u007fóÂM·@\u008d¯é=Á_x0007_·@æ\u0083\u009c¬ÏE·@_x000E_>hùæ\u0080·@Ãf\u009c\u0091_x0018_Ë·@\u009c_x000C_(6÷\u0094·@í%±!(¡·@úýJ_x001C_û ·@3S\u0080Ãi@·@_x0001__x0004_âjÖÚmø¶@_x0003_@Ë:\u009eh·@¬Ç\u008a¤\u008aÉ·@Y_x0006_»wØ¿·@_x000E_¬Ô½Åÿ¶@Rò5\u0083èO·@Öú\u009c£¿F¸@¾Ø"}},{"$cut":{"chars":50262,"head":"34c7775ad99510eeccc12d8cc94f551f_x0003__x0005__x0008_(@¼a×ö@_x0001_\u0092þ|®ýö@_x0017_\u0081\u009eCØÁö@\u009cBu_x0004_ý_x0018_ö@J)·FjÊö@_x0011_n\u0087>¤®ö@v_x0012_Ö?àÓö@Ë_x0003_P^í\u009bö@`ã\u0092 üGö@D\u00884õkúõ@¶^º_x0010_h:ö@÷aÂ_x0001_k_x001B_ö@_x0015_áYÃÛ¬ö@=Ó)Ü)Vö@ëC_x001D__x0001_óHö@?ÛW\u008dlBö@$[lÃ_x0006_@ö@_x0010_¦Q»^¥ö@\u0091ßJ\u009e£¥ö@öÂÛ\u009aG=ö@ªP 4[·ö@\u008c¶ÿA\u009e/ö@¤³Í-ì¤ö@\u0081­\u0094ù!Áö@Z_x001A_Ýðí_x0003_ö@w_x0012_Cda\u0090ö@\u0081!\tº\u007f)ö@\u0087! =Ò_x0008_ö@²\u0082\u009c\u009fù)ö@©Õq¯­ªö@J\u0086õÁT´ö@_x001B__x0002_ì_x0007__x0001__x0002__x0019_àö@Ú\u00894o\u0095?ö@çÚVnë7ö@x÷Y]p\u0093ö@TîHÌ\u008a\u0083ö@Ñ5\u008cpâ0ö@{éù\t\u009féö@ÚK_x001B__x000D_\u009f\u0095ö@9_x001A_û_x0013_\"_x0008_÷@^÷Ep;Áö@¤\u008d;I!Úõ@1Eò_x0008_ykö@\u0095å_x001A_jZÔõ@nl{&Ë»ö@_x000E_ft_x000E_flö@_x0005_¡H´1\u008aö@5ìDlTÍö@\u008aÑÛª_x001A_»ö@\u008a_x0011_\u0084ïl\u008bö@_x0017_v9_x001F_¡Öö@C\u009eÆÿñSö@â©u«Ù_x0012_ö@\"_x0014_!\u0088_x0003_,ö@/ÄËÔ\u007f\u008dö@_x0002_|>_x0016_õ\u0086ö@ËC.G=_x0017_ö@u_x0005__x0007__x001F_¿_x0013_ö@\u0084\\re\u0091\u0082ö@_x0014_±÷.©Äö@ë¤\u0085W;.ö@\u0091v \u0081Nâö@c_x0004_Òû7,ö@_x0003__x0004_NÏJ_x000E_(Æö@dß\u008fîKyö@\"_x0016_\u0099¢_x0007_Pö@Ù»µ_x001D__x0010_ÿõ@\u0095¬0Xw\u0086ö@\u009eÏµ×\u009dãö@iÍí \u008e_x0007_ö@_x0019_Ãw¶­ïö@_x0015_F_x0012_nµ\u008cö@Cv\u0085¿ªèö@jôÔXFÏö@_x0004_2÷ST_x0006_÷@+½_x0008_Z\u0097âö@ íâ·_x0019__x000E_ö@Ä½_x001D_\u0082Á\u008cö@o\u0080¸L³\u008dö@¦a_x0018__x000E_Ptö@\u0096$2ÒNÈö@ÛU\u008a-¡mö@ðq;ËÈÙö@ËÞ»ëî[ö@_x0001_\u0098\u0089\u0093S£ö@\u00882¹\u0085E_x0002_ö@\u0081ªZ_x001D_pHö@çø\\z\u008fÑö@/èà8&õö@\u0096_x0017_G\u009e8Ãö@X³Eî³¥ö@Oø\u0083Zæ³ö@\u0096_x0019_M(¦´ö@g_x0010_\u0096>÷­ö@z%Öé_x0001__x0003__x0015_½ö@lMnVcSö@í¦Õr_x0011_6ö@P^C2?¨ö@_x0011_Ã\u0092ûRÆö@\u009aÌ¢9\u009alö@¤Yè|)_x0014_ö@û±\u009e_x0002_÷¦ö@É\tnfW\u0090ö@/_x0006_mÃ_x001E__x001B_ö@\u00937O¬ë>ö@¼\u0090\u0096._x001F_tö@ÉDUÙ_x0001_·ö@_x000C_ú_x0004_\u0089_x0016_Ãö@$òÅ\u008b²Mö@qzéN¶Ñö@¸\u0082P\u0099_x0004_oö@Ì~$\u0089!'ö@{)_x0018_`sæö@4.\u008bèxÌö@»ÞØGÂaö@À)Í\u0098ùëö@¾_x0010_\u0080%ÓÐö@H;OõØ¸ö@é\u0087ã\u0084kÕö@\u008c\u0087èì_x0008_-ö@ªîL¸r¶ö@_x0014__x001A_`*&\u0091ö@0¬ÿ[P^ö@Þ\u0090\u0095´_x0004_§ö@y\u0097 xØcö@\u0093[LÎÊ¤ö@_x0005__x0007_«\u0091á_x0008_;Mö@_x0018_Q_x0013_\u008d_x0015_ôö@_x001D_(Õ_x000F_e4ö@_x0001_­vãÌ¡ö@;v_x0007_*d\u008eö@£Gä_x001D_}\u0095ö@Ë¥Küþ\u009fö@Ì\u0093_x0013_ß5\u009cö@Åî_x001D_[?¹ö@_x0003__x001D_ò8#Õö@_x001C_\u0090P}}®ö@Ç_x0003_µ_x000E_<\\ö@¢Çh\u0090Ô}ö@`}&_x0012_û\u008eö@âãàY£ºö@â\u008ct\u009cs_x0014_ö@W]\u00992\u008d\u0081ö@\u0093G±í_x0002__x0006_ö@\u008cXxg\u0082´ö@²\u0088k{ê{ö@Â\u009dZ\u008eÏ\\ö@eÃ\u008eØ³\u0082ö@mÂ_x000C_àlTö@ø ëâ'\u0093ö@½\u0081¡_x000B_<ºö@ÈNþM_x0004_Iö@|_x0004_·h_x001C_Øö@ï\u0088H{\u009eÉö@«~\u008aga7ö@8³¯E¥óö@î _x000D_\u009cS½ö@\u0083_x001B_\u0083\u0099_x0001__x0004__x0003_\u0086ö@h_x001C_ÂA?rö@0÷ \u009fà\u009dö@ºÃ<\u0088hMö@_`êý_x0019_¥ö@VÈð_x0014_£qö@_x0014_WT+\u0094\u008aö@_x0017_Z\u009aúyôö@£³dHh\u0084ö@_x0007_7\"_x000D_=\u0096ö@sÃ95r\u008dö@Fdï_SZö@\u008a\u0083'Ï\u008b_x000B_ö@»É_x0011_b\u0087ûö@_x000C_<\u0084Ü_x0013_Þö@<_x001F_\\ÝWHö@\u0082ëºySvö@æ_x000D_¹ó«\u008fö@^\u008eF7ñ\u008aö@Z^\u009d¢¬©ö@`$Ù\u009eVÅö@Gcí{îqö@ò_x0013_yû$©ö@Ô\u0095\u0092|±:ö@\u00945)OÕcö@t±\u008eó³´ö@Èò7Õ_x001E_®ö@fÙÞú\u0085Íö@\u008aöø/x|ö@_x0002__x0010_æÑ\t_x0015_ö@\\ä_x0011_¾\u0081Dö@oåK¶2Ïö@_x0002__x0005_äÙNý¹Sö@\u0084A3Ö\u0094§ö@;\u009c\u009aØW½ö@æ_x001B_]à_x0003_\u0090ö@úê\u008bËÊ¬ö@!páPódö@$/ôk_x0018_¢ö@\u009fc¨\u0082_x000C_îö@!_x0017_\u008eÖ÷íõ@3~ÞYá\u008dö@·\u0085_x0016_\u008eåaö@K#'qJÄö@kå6®Vnö@_x001E_úÕ\u008eÚ¾ö@´_x0003_K%Ó_ö@øç]Ó\\sö@\u0085Ó>k_x001B_=ö@\u009fÐÝ{ë?ö@Þ\u0081w_x0001_¬ëõ@j\u0099_x0018_N\u007fÈö@_x0003_¬¦_x0011_-\u0098ö@\u0090\u008eHÎØÀö@¢z\u0088Ø-\u008cö@#«r\u0094ÿ~ö@_x0004_k`?gÊö@×y¡3ÅÄö@¸%%\u009b\u0099Õö@?\u00827£°óö@_x0005_¸ÁAi\u0082ö@NC/VN_x0018_ö@\u009baåÚì*ö@Æ¢£a_x0002__x0004_\u0095êö@\u008f_x0019_;!\u008eNö@_x0017_\u0095z\u0089}«ö@÷\u0092TÚÒOö@Âë[¥âNö@DÃtzÓLö@X/&¾\u0096[ö@À_x0006_\u0099_x000B_Ë5ö@bp_x0016_\u008a.»ö@\u0082¸3\u0094×|ö@?!y£VÀö@L¼÷¨Skö@_x000C_\u009bà\u009a\u0098yö@UNA¥ÊXö@·_x0002_Ê¾bDö@çË>´v×ö@\u0085AÉ´!­ö@ÞX\u008dx_x0018_\u0087ö@_x001C_\u0084Yõ \u009bö@Ç|_x0019_¦Àjö@\u0092|Ç*_x0017_Ûö@~ÒPQ_x0008_Íö@_x000F_MÕ_x000D_ØÏö@A\tR_x0001_?!ö@áb-_x000D__x0001_Âö@A¿\u0080_x0006_$Tö@@CÐ\"á\u0080ö@w³wËñµö@p_x0002_O³:Üö@B¶Ìín`ö@\u0096n_x0006__x000C_í\u0087ö@_x001F_¤_x0003_`D2ö@_x0004__x0007_³[Yü\u0085Xö@7_x0014_PÙ \u009dö@/_x0013__x0008_àÔºö@½ù_x0002_}_x0019_pö@»{K_x0014_«>ö@ÙêW\u0099Î\\ö@\u0088\u0095ÛI_x0006_\u0082ö@²\\úLÇÌö@Ì_x0005_j¹¨\u0083ö@Ø-I_x0011_\u0093_x000C_ö@Ü¸ôëaYö@acñ_x0012_£­ö@_x0015_Á÷¡Ïvö@<\u0099Üõ.uö@oÙ»ÛDjö@~c'B5°ö@Î\u0090\u009d7_x0018_.ö@´\u008aÿì·¸ö@J\u0097=ëÅ«ö@:#MQî¹ö@½â3ã9$ö@-­-Uàáö@_x0008__x0019_:fb\u0093ö@?ãgôÏ£ö@ýÚ_x0001__x0002_n1ö@\u0081&Æô_x0017_\u0093ö@>HSS¯Çö@x_x001F_g\u009eOoö@ý_x0005_.Õc«ö@ëëd0t\u0087ö@¶_x0019_§1Êqö@_x0003__x000B_:È_x0003__x0004_Ðmö@--_x0017_®_x000D_Íõ@zN_x0003__x000C_\u007f\u0082ö@ Õòó­°ö@e_x001F_Zº\u008dyö@² \u009e@5¿ö@\u009e\u0095\u0090ªq­ö@_x001D_h\u0092÷\u0093)ö@Étÿ_x0001__x000C__x000F_ö@ç`\u009a¢ìFö@Ó«Á1\u009cEö@_x0002_â_x0004_o5Ìö@¿g&fã¥ö@JÞ´è¶6ö@Ö©±\u0094$]ö@Î.iÁ+Eö@Éøkcx_x0011_ö@áÅ\u00813{±ö@gµ.FB_x0001_ö@©)_x000F_ó+ýõ@.W¼=Ásö@«>Ý¹º\u0081ö@ÿ\u0085\u009fD_x001A_Dö@þº\u007fë´\u0097ö@\u0097ìMP_x0005_%ö@ò>\u009d>¯Uö@§uiu¨¡ö@z_x0001_\u0091_x0001_Æ\u0094ö@ã8ªÓö(ö@$q_x0019_JWBö@Ö@õ_x000D_íkö@\u0096©$\"Ü¿ö@_x0004__x000B_f©_x0001_ä¯qö@\u0082¯b_x0006_ \u0084ö@aà)ÌT\u007fö@_x001A_/,ºâ5ö@³­YÍ¬_x0"}},{"$cut":{"chars":53796,"head":"ed929fc481e5241068d4a9fe3ef945fe_x0001__x0003_ØvQ¿Ôûö@æ\u008eZP-&÷@Û\u009eÑl¤_x0007_÷@´lÓ_x001A_âËö@ßß¤Å_x0002_7÷@!_x0016_%PÎIö@à\u0094æb\"&÷@>_x000B__x0012__x0019_³Ìö@_x0002_\u009d_x000B_ Çµö@-_x0013_èê\u007fûö@Ò_x001F_Ø&¯o÷@¦tÄÙNêö@o~â¶1Êö@Ü;õ|Ub÷@¥\u0095D'wZ÷@\u0092\u008d*='Êö@é=Ú=\u008bÿö@Î!«\u008b¹%÷@Ãôëx_x0012_Ôö@ó_x0008_Û»=\u008e÷@ëI_x0002_Ô·1÷@a\t}]_x001F_ªö@?ú_x0002_ª¢c÷@áW»4Ô\"÷@:MÏ¸@_x000F_÷@Ø¤ä_x0011_\u0083(÷@5®_x0002_v\u0082E÷@Cê,«çtö@aË¥~Ñûö@¹Yí&óêö@kY\u0084_x0015_Sª÷@oT)8_x0004__x0005_Ç_x0002_÷@_x0004_üÙ¤<¸ö@*e,kS×ö@\u009aìF·zK÷@_x0007_?Q_x000B_9D÷@ëQ1\u0089D\u0084÷@Âuÿî\u0097E÷@:<å_x0004_7?÷@Ç_x0011_odÈÎö@a\u009aX\u0085_x001D_%÷@!mÞp%_x0013_÷@4QhK\u009cy÷@´_x000E_\u008dÌoo÷@í5«\u0098É_x0010_÷@/_x001C_p¾Ôùö@v¸8s×\u0096ö@a_x000C__x0003_càO÷@Ä÷ó\u008d\u0096±ö@\u0097{·\u0091pÛö@T®Òi\u0091¤ö@\u009fñ<n÷P÷@¾x±Ã:\u0083ö@ÜmËïD&÷@Tï\u0096(ô*÷@ÝAß_x0003_\u0088õö@`_x0008_(\u0086\u0096\u008f÷@\u0080eKÒ_x0018_\"÷@s³Ë_x000D_ý_x001D_÷@põT}\u008eñö@H8\t\u0094Ø]÷@¶¨_x0001__x0011_ÕÐö@\u0096\u0081å'¢F÷@_x0004__x0006_\u007f\u008dVñz:÷@cÈ\u0091úB¾ö@_x0010_K¤_x0005__x0001_Þö@èÞðÕ_x001A_°÷@ß>;®ÄÛö@Ð¶_x001C_ö8¤ö@:\u008cÙõ§]÷@N_x0015__x000D_Ï²\"÷@_x0008_b\t¡ï\u008d÷@é~\u008cïRf÷@0÷_x0017_\u0087Ý_x001D_÷@%ÞEµ 1÷@,ü\u0091¬wwö@\tZl_x0015_ø§ö@_x0004_áY¤ÁÇö@_x000D_:W\u007f»&÷@2I_x0003_Ìÿ±ö@\u0089®m\u009apðö@j\u008cÕ©+V÷@°\u008c\u0081Éu_x001E_÷@M\u0098°_x0007_îÔö@){pú\u008e\u008b÷@»_x000E_¤?¬½ö@2>ÌÓãÄö@\u008eN¶JWíö@_x0017_¾ð\u0093k¾ö@±îi_x0005_8âö@Êð``Í_x0005_÷@Û2)° Éö@ê6ÈgáÀö@\u008bH¸©o§ö@_x001B__x0002_Ù¢_x0001__x0004_\u0087ªö@³\u0081|ø3'÷@¡\u0097¹{\u009d_x0001_÷@\u0088z\u007f\u0094\u0093Y÷@¨K_x000D_µAëö@$¥g\u008cÍÈö@ÚJoÊP_x0011_÷@\u0082_x0010_GhS]÷@_x0002_/O³ºL÷@\u008e`3®¥H÷@\u008däXS_x0012_)÷@\u007f\u0081Êöþ=÷@!¦·\u0093W_x0004_÷@_x0018__x001A_É|°_x000F_÷@\u0085áw¤\\x÷@ùÀ*¦ôj÷@½)]`ÿc÷@\"Ø!v4Áö@3ÁØ¾ÇXö@½t¹e_x0003_~ö@?_x001B_ éM\u0082÷@Ê^_x001F_G\u0097_x001B_÷@æØ\u0095P_x0013_!÷@Õz_x0004_\u009e>îö@£íYô_x001B_÷ö@¸oÑÔcÙö@Éf$ÏWÍö@¼b&ªß÷ö@ÀúyôÆy÷@_x0006_aW\u0089j ÷@&4Ê¿!ðö@í\u009aëÞ§o÷@_x0002__x0007_&_x0018_ ÛK¥÷@ùª_x0005_¾\u0080?÷@\u0094u)Jùe÷@]\u0081\u0096Ýái÷@Ø\u009b`¿T#÷@«ædQ·_x0005_÷@YC]dO\t÷@\\_x0007_Õ_x000B_\u008ek÷@%wB_x0004_y\u0086÷@z_x0001_\u0081H.w÷@\"@tàØ\u0087÷@CP\u0093E&Y÷@ìOº¿ô#÷@+3!Ç\u00850÷@~_x0013_Üâ¡ëö@LoïqGK÷@¤,©üw_x000D_÷@.5#N_x001C__x001C_÷@°mú¤Ó~÷@âUóÿK_x0014_÷@N_x0008_3x\u009eZ÷@ç\u009d}¨¯@÷@á±Û_x0006_r\u0084÷@½ñ\u008b\u0096Nøö@2<s{P-÷@ü_x0003_y_x0018_ S÷@·¥¨\u0099à[÷@Àò_x0005_¬ÆDö@\u009fE\u0081¾Õ)÷@á_x0001_\u0083æ_x0002_íö@Â\u009a2Lj­ö@_x0017_2µ\u0091_x0006__x0008_Ý»÷@Aõ,À\u008aN÷@\u008dKDþêD÷@ý\u0097}üH°ö@µqºô¿7÷@_x0003_~1WF_x0007_÷@_x001B_P/¨;8÷@­_x001C_\u0086\u0083$\u008cö@\u009d_x0015_f\u0087¤_x0002_÷@ª£WÍÿ¸ö@N\u0083>+­ ÷@¦\u009c\u009evÕ=÷@èµ\u008fzE­ö@ì\u009eÙ\\·_x001D_÷@¡eH»·Òö@ì\u009fD\u0098_x0016__x000E_÷@)\u0086oß9¶ö@<íñVéu÷@&XÃ¬\u0087Ùö@_x0001_À|Ë@U÷@¶\u009f÷ãà_x0015_÷@ø¡|\u008d_x0013__x0007_÷@ ²_x0003_k_x0018_8÷@­r\u0091ÞîÞö@ô'(áé_x0018_÷@._x0004_`Û\u0084\u0088ö@<ã>\u008a7_x0005_÷@_x0015__x001B_ãÿ1_x0013_÷@l_x0016_äq\u0082{÷@/\u009fÒ4¹_x0006_÷@_x0018_îÕ¶æ\u0080÷@ìuÄL>_x001E_÷@_x0001__x0002_Ús_x000D_D.Ùö@Z_x0008_W[à3÷@¨ûG\u00955_x0006_÷@Ð_x000E_ÕgF ÷@þ\u0088_x0008_w\u0091Ìö@\u008e6_x0011_E\u0099%÷@ÍÂ&n_x0010_'÷@Ì_x0003_$8_x000F_Úö@_x000B_8fûn*÷@pÅlÓ_x001C_\u009dö@zV.\u0087ÿôö@RH¦_x0013_\u0091_x0014_÷@¼_x001E_4_x0003_k!÷@<_x0012_^9vØö@m6Ó2zÓö@Ó_x0019_Õ¤ë_x0013_÷@x\u008ae\u008eúêö@¿b\u00816\u0092Ä÷@_x0004_cÊ\u0096Pg÷@Ý­)ÐÒ_x0004_÷@³ê\u008a Æ#÷@_x0002_Â¨fJòö@VÎ\tøTy÷@»z­[>\u0081÷@L\u0086¦\u009c_x0019__x001D_÷@\u0083£¯=À\u008e÷@A.|\u0091-\"÷@¶_x0002__x0017_Å>_x001B_÷@$RïXóq÷@}J\u009e\u0094O_x0015_÷@ÈZ½à_x0017_-÷@j_x0008_Åµ_x0005__x0006_P@÷@B\u008c\u008cx\u0080²ö@*­{/@_x001D_÷@vèa6r¢ö@ñlH\u0097 r÷@/\u0089\\×§ûö@ö,¬_x000E_ü\u0081÷@<\u008f\u0095\u0084fÝö@â\u009c(»þ?÷@Ô_x0004_Ð\u0098_Âö@w¿;*'2÷@¸_x001F_è®,/÷@ëÙÀOðíö@aAÐ\u0094_x0004__x0002_÷@dÑQ¿]_x000C_÷@ïz!_x0003_\u008f·ö@8!\u009eØ_x001B_W÷@Ø0ïù\u0093_x0004_÷@%\u009fê\u0098~_x0006_÷@ãÿ,Ý_x0001_\u0093÷@ÚÑ\u0086e?T÷@Äd_x0010_n6\u0085ö@ES8 y.÷@2&­Uç_x000E_÷@_x0005_;/8ûÄö@\u009aæ\u0097E6_x0011_÷@_x001A_\u009f|\u0088Ó¡ö@·Tf_x000C_d3÷@E¸;Åmâö@\u0092?Ø×Àîö@¶Å_x0016_¡¤°÷@öJ.{ëìö@_x0002__x0003_\u0087qR×aE÷@\u008fõ_x001F_Ê+7÷@§ºO$$Äö@ÓÏ\u0088^ç_x0017_÷@Ý£_x0004_¤ÍTö@\u0090\u0091b2Ø,÷@_x001E_²U\u0086Ëc÷@DÛ¬_x0018_ý_x0006_÷@_x001A_^\u009e!Âàö@ <=Ð%6÷@´}_x0005_L;[÷@\u0094ZËþ_x000C_X÷@2\u0098áô]r÷@\u009757§_x0011_\u007f÷@ðQèw¬Z÷@©\u0097M\u009eà_x0001_÷@ûÚ®,¡\u008bö@zÝ=\u0091Ê§ö@8m_x0007_Ö\u009cçö@¢\u009b_x000D_2_x0015_úö@Ã¹]GÆ_÷@ñ_x0012_ _x0010_1r÷@JT4¨_x001E_=÷@cu\u009ayíýö@[Î_x0014_\u0097ãP÷@Q!óý\u0094_x0008_÷@_x000F_Uº\u0081\u009bjö@\u0087\u009d\\>\u009eîö@Ùe\u0090$Ó_x001E_÷@Æ_x0007_9ª±¬ö@`_x0016_¬d_x0011_2÷@_x0003_Á`Ô_x0002__x0003_´¡÷@\u0092éßZ6_x001D_÷@£ ü/@P÷@_x001E_ÐÊUNÌö@³\u0092OÅ_ðö@_x0019_E\u00842Ít÷@Ú_\u0092|ì}÷@Ûñ_x001A_Ð\u008aîö@Ä_x000F_ãG_x001D_Ùö@d\u00982\u0085'_x0019_÷@r_x0001_G*:1÷@A\u0087½cn[ö@\u0081_x0002_ô¢¤m÷@ßâð_x0013_7éö@\u0099\u0093\u0087µo_x001B_÷@eò\u0098e\u009eßö@£ìèJò\u0085ö@D¸«_x0003_ò[÷@bÝ\u009a¿Ç}÷@Hdæ\u008aZZ÷@ë½Ú\"¹ôö@Þô_x0015_bq\u0095ö@Z?»Ü¬M÷@_x0014_Ð_x0005_\u0082_x001F_æö@c?5'5\u0096÷@JÈ_x0013_'ãa÷@\tº»Ò×·ö@­ºâ@-üö@,·M\u009f¬Úö@uR\t:_x0013_Ñö@yIc_x001A_ÇÂö@1\u00813êé9÷@_x0001__x0002_I¥'_x0017_\u0095_x0003_÷@Ø¸µ\u0096_x0013_²ö@uí°A+ñö@'ZµÝ_x001B_]÷@_x0003_§Â´ño÷@û_x0008_\u0089¶]_x0019_"}},{"$cut":{"chars":53034,"head":"09a723ff4a33d90fa95f4df64a3c9ecc_x0001__x0002_yË_¨À\u0087÷@@_x0013_\"ü<F÷@\u0080_x0017_}]¯\u009c÷@_x0005_»Ø·}¦÷@_x0003_kBî1Ö÷@B8ÿ_x001C_ßþ÷@ÄÂJVOU÷@Ê_x001A_mÍó¨÷@ÐOr½\u0098y÷@_x001D_@¯³íJ÷@_x0013_ÐÐ¶_x001B_%ø@_x0008_c­Ì_x000C_m÷@_x001E__x0004_/k_x0012_T÷@¥F+y\u0081k÷@_x0004_RGWÇj÷@H_x0007_ó¦¥I÷@\u0091¦e¿_x001E__x0006_÷@^_x0004_\u008b*sÖ÷@ê_x000C_ò6U¢÷@¸i\u0081$\u0098P÷@_x001B_m¸\u0089_x001C_g÷@Y0\u008c_x0006_yç÷@´Á_x0011__x0011_\u0092~÷@»C¼:Ï\u0095÷@[aÁ\u009a£Ñ÷@\u0096$e>D_x0004_ø@rà\u0096Fz\u009b÷@tÌ_x000B_Í3\u009e÷@s\u009b®_x0019_4Á÷@\u008fþ\u008c5_x000D_}÷@ P_x000C_zd¼÷@\\ØÚy_x0001__x0003_Ü_x0007_ø@ã¯Ü}µX÷@¤ßå'CI÷@_x0014__x0011_BÈ3üö@Âì\u0089iÛ©÷@\u008eÑCbãç÷@1\u009fx]Ç_x000F_÷@¶ÛJ\\_x0005_ ÷@.Þa\"Ja÷@µ_x001D_\u009cé_x0005_Ô÷@'Yj$ðÛ÷@6ö£i6í÷@Q\u009d_x0010_n_x0001_±÷@©_x0002_\tf°Ø÷@_x0003_A°2xv÷@Ý\u0097È¿¹ô÷@µjQ¹\\w÷@'û>?µC÷@È\u0085Ñ¶\u008bd÷@_x0008__x0003_J¡\\Ñ÷@jù__x0017_ÝÁ÷@_x0018_Öø-nµ÷@ÀùT²Ð_x0015_ø@éâhmµ\u007f÷@_x0011_\u00977á¹}÷@£Áqu,_x0004_ø@_x001E_ÏÎýg±÷@úá]´Ð_x001A_÷@[:9\u008fµ:÷@_x001E_¥`m_x000C_á÷@\u009d%_x0006_SãD÷@K|d\t\u00941÷@_x0002__x0003__x0019_\u008b©_x0002_T¼÷@¥Ð¬³úÈ÷@(Î¡tÓöö@fO\t\u0091\u0096ûö@ö³/c¤\u0084÷@à`Ot_x0006_f÷@¥\u0091Ø]_x001C_øö@@Ãcê\u009f­÷@®-¹Ð£³÷@=9*_x0005_mâ÷@S^ggÂÇ÷@_x000B__x001B__x0019_°þñ÷@_x0011_ôø\u009c\u007f]÷@ïÕ³S¼¬÷@\u0080-_x0010_À\u0090½÷@Ét_x0011_Q3Ë÷@_x0015_AI0r²÷@ÉC±åwÕ÷@FÒI\u0080('÷@«ÿ£F>_x001A_÷@\\G_x0001_`@p÷@¿éaÉ\u008e\u0087÷@\u0085_x0002_\u0096£´\u0095÷@¹¦eAüH÷@3 <Ì,\u0091÷@ÐøÏ_x0005_T\u0092÷@_x000B_ð_x001C__x000B_Ïéö@Åf_x0007_¦@_x0011_÷@_x001F_pÊ|É$÷@\u00801ó_x001D_÷$÷@¾öØ¹ý<÷@w_x0003_\u009dÀ_x0002__x0004_´;÷@CÜ_x0013_Ø.\u009d÷@Gµ\u0092Wÿv÷@Ì\u008e\u008frÆW÷@º_x0012_å_x000B_5_x0013_ø@_x0008_ý_x0016_vç_x001A_ø@\u0088#á±¼4÷@_x0019__x000C_¸KÌ^÷@EPüÒ¤¥÷@\u0097_x001E_Ï,ñù÷@¤²Äp_x0003__x0012_÷@X_x001E_¦\u009a\u008f\u0090÷@Ï4jÈ__x0007_÷@4>_x0015_/9\u008a÷@Ç_x001F_a\u009bEÖ÷@\"_x0002_¬_x0005_èf÷@$¬9_x000D_Êt÷@\"¥Â_x0004_Þ\u0082÷@>FAÊì+÷@_x0014_XgN\u0090=÷@C\u009c'þ.È÷@IëÝ_x0014_ì¢÷@\u009cT5áÝÝ÷@ü»½7½?÷@r²Uuñ\u0087÷@ÉS»\u0081\u008cèö@)\u008cFA_x0001_\u009d÷@¶PÖ8Ì´÷@2_x0014_üÒæh÷@üÚ¨Gî\u008b÷@!\u0090ç_x0002_ r÷@µ/´6x\u0095÷@_x0001__x0003_±ÈÈÀ^º÷@\u008c\u009f»®_x0005_S÷@'\u008fÍ¢\u0091m÷@\u0093\u009eÓ!(_x0012_ø@Z$Ñ¡\u0087\u0085÷@[®ó³BË÷@_x0007_ÔSù~·÷@ \u0085<²ý_x0016_÷@_Ç¸´\u0090v÷@ë%Êñãq÷@(_x001A__x0003_±Ûö÷@T_x001B__x0010_\u0094Á_x0002_÷@\u009cÿ÷{ý¾÷@\u0096B_x0002_²¾_x0017_÷@9¹gO,f÷@6¼UÄA¼÷@±\u0083ýìH½÷@í8ïy_x0002_2÷@({$¯\u0085a÷@þ Æö6\u009f÷@_x001E__x000F__ú.!÷@\u0090_x0018_å'$\u0087÷@ÅðàK®Ã÷@ÂN\u0099·\u007f\u0093÷@Ëò)f<_x0006_ø@VVå}ùìö@s?3)[«÷@4¼ÙôA¶÷@7<>Ç_x0016_a÷@\u0095°-ÃÈç÷@K{ÐÈP_x000E_÷@sLlª_x0003__x0006_C¯÷@ëéÂ\u008eÖ:÷@I_x0002__x0018__x0019_3v÷@Ë­O__x0008_d÷@Ï,\u0098Kb/÷@ö\u009fµ\\Ô\u008a÷@ _x0006_Ðð×_x0001_ø@MY9ú«\u0087÷@\u009cB%÷ð_x0004_÷@¥=¿_x001C_5×÷@\u00846_x0007_Â_x0014_±÷@ß\u0086Ç¬ J÷@\u0085#ë\"ê8÷@ËY_x001F_\u0098Kß÷@\u0098\u0095\u0088\u0098fÏ÷@_x0012_&5a¥ß÷@\u009aµ\u00841\u0097%ø@\u0093_x0005_2_x0004_§¨÷@Y©êL_x0008_½÷@éêvG»&ø@¸D\u008c`î±÷@³_x0008_6«Y±÷@ _x001A_scéå÷@3tö_x001D_,\"ø@\u0095ûÕÛ_x0018_°÷@_x0018_$~fsU÷@_x0002__x0015_ÿá\u0082M÷@\u0085sg!_x000B_$÷@ñ\u0098>LÔ\u0094÷@_x0018_@nSÂ{÷@õ\u009b\u0085O_x0005_\u009a÷@v\u0088u\u0099JÂ÷@_x0001__x0003_\u008f\u0087\u0094U÷ä÷@R°B\u0094md÷@-/³_x0016_S5÷@\u009eÆù\u008e>¬÷@\u009d§\u0094h¤\u008c÷@\u0092Ñ{ß6_x0008_ø@\u0092ãÏ®\u0092\u008b÷@P_x001B_\u0098!_x0006_P÷@_x0019_O©Á4U÷@_x001C_?ú6\u0086í÷@³ «àêE÷@\u0093\u0083_x0013_ï_x001F_í÷@_x000F_c\u0084B\u008b\u0095÷@_x001D_ªÈ6{_x0002_÷@<p±z_\u008c÷@_x001D_LUxèÜö@_x0005_ì3\u0096\u007f§÷@_x0005_ÉÂHó\u0088÷@\u0087_x0007_·\u009aÓð÷@}Å\u0090ìR¶÷@ÄD\t<åÒ÷@LE`®\u0097D÷@fSÔóà_x000C_ø@èðUs°Iø@U¸Ãz\u0093z÷@hÖLµÖÌ÷@k\u0091@y_x000D_j÷@s(Ð¥®_x0004_ø@pz\u0084ï,^÷@\u0094_x0006_ÓøK?÷@_x000B_æ4»yr÷@_x0014_\u009c\u0091\u009a_x0002__x0004__x0012_ã÷@_x0013_ÔGòË\u0083÷@\u0087(×´dÖ÷@; ÍméÐ÷@N\\_x0001_\u008e5è÷@â\u008díg_x001F_\u0093÷@:lQX¢\u0081÷@ú\u00956ø\u008ec÷@ÖÝbU`+÷@êf`\u009fè\u0094÷@+Æ²G²Â÷@m3_x0019_ûQ\u0091÷@\u008bac#ï@÷@.:­\u0092fr÷@û`;&_x0007_b÷@\u008bë¹h_x001C_â÷@íÃë Ê°÷@%ù¥_x0004_ÎÃ÷@\u0086°vm@Ì÷@\u008dþ½Ä_x0019_Ê÷@_x0007_fkX\u009b\u008e÷@6\u008eò{_x0014_\u0092÷@g\u0093^4¿¾÷@àf\u009eý._x0007_÷@¤·Ó_x001C_Ö±÷@iº7t\u0098Ï÷@q£H8£Å÷@hbß\u0082ËÒ÷@\u0090_x0014_iájú÷@¼`ô\\½Ú÷@\u0087_x0015_qJ¢\u008e÷@x\u0082D'_x0003_¥÷@_x0002__x0003_wW¸X\\9÷@D§p_x000E_³_x001F_÷@ ×\u0084ÓE\u0081÷@{£Sà\u009fµ÷@\u0093H®-\u0083Á÷@_x000D_0¸ºÆR÷@Éy\u0097ð¦¦÷@À¢óË\u008bº÷@³cB_x0011_Àðö@_x0018_ú^ ÃÌ÷@_x0015__x000F_5ÏG³÷@])Ì_x0008__x0011_þ÷@\u0094{ø_x000E__x0010_¸÷@[D_x0002_|_x0013_¾÷@\u0091í_x0013_\u0088[n÷@'[_x000B_-¡T÷@\u009c>8Á¾_÷@S\u009bfµµ°÷@K¦\u0094==Ñ÷@Þ¡b{_x0002_\u008c÷@âÁÞ~z&÷@\u0094GäÜÊ~÷@_x0018_\u0086Mèò*÷@&v_x001E_h_x000D_¢÷@®Î\u0093âÕ²÷@ÉÚ[{_x0019_'ø@¤_x001A_r,_x0006_x÷@5åÛÎ¡_x0001_ø@®¦_x000E__x0016_\u0084=÷@¾2_x0005_z|x÷@\u0088 \u0081ä8÷÷@_x001E_W8_x0004__x0004__x0005__x001A__x0007_ø@_x0003_\u0096^Tn¬÷@fb\u0096øË\u0084÷@ºªÒîpF÷@f_x0018_²_x0017_Çu÷@!¾ÕÎ\u0086:÷@_x001F_)<#B\u0095÷@_x000C_÷p\u0096fu÷@Ôøe_x001D_\u009e¡÷@\u0090_x0005_/úÁÙ÷@Gî\u008b£_x001A_\u0085÷@Þ%_x0006_ô_x001C_k÷@_x001E_ü.©\u0094[÷@_x001C_Ñ4_x000F__x000D_]÷@\u0080£`O\u0096r÷@)S*\u0085tc÷@§ÙKB\u008f'÷@\u007f*vðcæö@QVB½¯²÷@îrè_x0015_lt÷@b$j¯àÌ÷@!äÐB\u008a\u0082÷@WôZT_x000B_\u0092÷@_x001D__x000B__x0002_äµ\u008a÷@\u0092}@_x0004_¬ñö@ÝÐÕMv£÷@âqJý\u0083µ÷@ÏüqÂ¬¥÷@è\u0089a8_x001F_y÷@L\u0082QÌ\u0085Ìö@Ïü\u008d_x0001_Á£÷@D\u009fí©\u0095öö@"}},{"$cut":{"chars":52728,"head":"69f41e37ab7b16c22a7870af47606037_x0001__x0002_Ø\u0091õôyÉ©@È9{AMíª@«§ô\u008cßÿ©@úO\u008eþB_x0017_ª@´\u008d\"Ù\u009dý©@)'_x0005_h¸Ì©@-\u008f½)J_x001B_ª@m\u0080\"ÿ\u0080ã©@\u009c*²Ã¿\u0081ª@k­zvF_x0008_«@YÓ>_x001A_+#ª@Q\u009a\u009c/C\\ª@_x000C_±aJó_x000E_ª@ÅÄGhÜrª@*fA\u0085\u0096?ª@¡XÕ_Õ_x0006_ª@z\u009c°®<ÿ©@Ë_x000D_E}¢÷©@\u0085Ô\u0092Ëèæ©@Ð\u0089_x000D_ï{ø©@_x0016_y_x0011__§Ý©@_x0006_·_x000E_Þ\u008eð©@åAtwYQª@OÍ\u009e_x0004_Ù_x0014_ª@ã}àpû_x0002_ª@càPñíò©@O¾\u009a@v_x000B_«@5=8ùNá©@UPÈ\u0096u¤ª@ê7tì9Ï©@(Ü_?\u009f;ª@×*¡b_x0003__x0004_kgª@Ò)ê¸D_x0010_ª@:óÁ_x0013_9_x0001_ª@æ®¾_x001F__x001C_ã©@ÌZ©v+ú©@ÝMÈ¸Ldª@ó\u008a\u008cï¿_x0019_ª@_x000C_Úxþ\u009cñ©@vö\u0086ÅA÷©@ëU/\u0088[Ô©@lÚµX_x0018_%ª@ÍbyÃÒè©@_x001C_È_x001D_å¢_x000C_ª@\u009e\tü/_x0015_=ª@Ð_x0007_s¡fö©@D£}\u008f_Qª@¥7÷b¤¢ª@_x0002_ÔÞ¾©_x0001_«@Bm´n_x0019_ðª@_x0011_\u0083\u009bq_ð©@_x000D_Ï;rMfª@¼\u0089/\u0088»%ª@a¯G£·_x001D_ª@_x0005_\u008c\u008a\u0086_x001C_/«@ºRÔm\u0089ú©@WÊ+¸\u009c\u0087ª@_x0003_®\u0086\u009c\u009biª@1ã+®_x0003_\u009aª@Ê\u008eë>¼^ª@C_x000C_ªï î©@ù\u008cÛ1_x0017_Aª@ú\u0097GüÞÛ©@_x0001__x0002_ú«_x0011_k6Ýª@Efè4c_x0011_ª@À_x0015__x0003_~8ë©@zh_x000F_'NÞ©@l_x0014_Dó_x0018__x000E_ª@à_x000E_ûÖ\u0089Íª@CVË(<ó©@6M«7ú_x0014_ª@_x000F__x0003_c,_x001D__x001C_ª@#±P9]?ª@äôÜ·d(ª@(\u008dÁ<\u0095nª@\u008b\u0093$\u0082ö*«@9^\u007fOÝà©@BÏ_x001E_o_x0005__x0006_ª@_x0013_¥©¨§È©@à%\u009c²Þ{ª@E!<\u009cö×©@\u009bo_x000F_7ñ.ª@r_x0017_æð_x000B__x0014_ª@\u008fd{Ø/bª@\u0080Aq ._x001F_ª@Ø®_x000D_:_x001A__x001E_ª@HdR\u008d\u0099ÿ©@¿iEÞ_x0005_Ð©@_x0007_\u0081b\u009e·ºª@*USofí©@gc_x0014_\u0099!_x0019_ª@_x0010_Óÿê¾Ì©@rL\u0085\u0080=_x0019_ª@±÷\u009d_x000C_µÈ©@_x0012_Û\u0099Ð_x0002__x0003_à\u008dª@åi÷°\u0097_x0006_ª@ævQÀ\u009f\u0094ª@í\u008dÉ#h_x000B_ª@ X_x0012_Ór\u008eª@á_x001C_o¯=6ª@Ô_x000D_K¢ëÄª@\u0084»¹¢Q+ª@'_x000C_×½mÊ©@_x0012_å\"_x0001__x0014_5ª@Üú\u008c]Dï©@_x0019_ÄüN¾æ©@>¶½N¬vª@ÃP}\u009adAª@\u0091_x0008_yF&Ë©@¹å\u008d\u009fùü©@\u0086~å_x001D_d\u0083ª@ÿ_x001C_ùT_x0008__x000E_ª@dá_x0001_Ø^\tª@_x0005_G_x0013_f3Ê©@_x0005_VµÂßè©@'É_x0018__x001E_YÛ©@îê_x001E_\u008f¡õ©@\u009dùpË\u0099_x0004_ª@ÿb\u009a\u0081dþ©@\tñn\u009cj»ª@mPùcÞ¥ª@ Á_x0003_6Ü\u0088ª@¡2»ï\u0082Ò©@¡\u0098_x0015_E_x0008_>ª@Zm¥\u00849.ª@;Íbÿ¯ ª@_x0001__x0002_8«-´j\u0085ª@ÒGå_x000F_/ì©@±&À\u0088 ü©@ÀÁM_x001D_\u0094Ô©@7_x0004_<Ä\u0085gª@_x000E_ä|P[\u0093ª@\u0080©«M\u0082_x000C_ª@ï_x0016__x0008_\"-Î©@_x0015_Eà÷ÂÉ©@ ½­*_x001F_*ª@_x0017_#úoU\u0084ª@\u007f\u0086õ\u008bäã©@¹­\u0096å\u008dê©@$Y-JÉ0ª@ãËRTpÒ©@dQ~v}ô©@_x001C__x0015_\u0081ÖKBª@\u0084_x000D_\u0092ì^à©@3\"\u0090ö/_x0001_ª@\u009aJ½RÄ_x001E_ª@ê\u009d¦Þßöª@_x001F_»Çá(ó©@¾Ï\u0086JÜò©@´\u009cÝ_x0013_p\u008aª@,¹\u008d\t\u0089Ê©@_x0003_&_x000D_ï\u0097Ò©@¥#ã_x001C_\u009b\u0098ª@\u0088_x0012_\u0092_x001D_Që©@æ;»ÐXÐ©@TÀ\u0094¤Iý©@]yÑÀk©ª@_x001F_:\u008f@_x0004__x0008_c_x0014_ª@»d\u0086\u0088\u009dDª@\u0088\u0096_x0017_\u0098ßï©@)4¥·Ðê©@ª5_x0014_\u0096ðí©@sæà\u0094]%ª@_x0003_9¹é_x000E__x0003_ª@¡¢2.ä^ª@®*Ù»\u0090_x001E_ª@S\u0083å¨9_x0005_«@\u008c\u00937PÏú©@%S_x0006_XÊà©@ñB_x0010_³\u0098Ø©@]©_x000B_\u0084íÕª@_x001D__x0010_$_x001B_îþ©@.¥,LÑÞ©@à$º&_x0004__x0013_ª@k¾ù¿mÊ«@G§ ´n9ª@7gÍÃHMª@_x0007_kÓ*.Mª@C\u0093U>TÒ©@NünÅ2×©@(Ù3{_x0004__x0001_ª@µÊ_x000D_0D\u008fª@_x0013__x0011_¾_x0011__x000C_Õ©@²4_x001F__x0012_½\u009cª@æ_x0017__x0002_ Qyª@?\u008dé#9Ô©@J_x0013_ãü7jª@\u008fe_x001F_ò/Ë©@%_x0003_ö<\"3ª@_x0003__x0004_)iZäÂ}ª@D_x0019_Ai¨)ª@>e¤T¾Ð©@s\u0085Óhï(ª@\u0086sm_x0005_<Iª@È_x0016_\u008aÆ±É©@\u009b|öBÏrª@_x0013_\u009d_x0014_Ù\u0084àª@æZü_x0001_¶ì©@äFÚÄÅ$«@_x0005_`º[ì[ª@ÑÒ G'ý©@,\u0085P¿_x0010_#ª@7UwÉ_x0019_wª@E_x0006_sü\u008e_x0016_ª@ã¶­b\u0096ê©@x­/«_x0006__x0002_ª@½À¤ÏS9ª@-\u0091ÛÁËÖ©@_x001F__x0019_'ïôF«@êO>÷_x0003_Ü©@\u009bj¬Ó_x0005_?ª@\u0085Ç\u008cø0Ú©@ZÕ@o_x0018__x0007_ª@YqW¿_x001A_zª@>QãWZ_x0012_ª@o¢ßñ\u009e_x000E_«@\u009fg\t\u00981é©@í_x0002_¦1_x0005_Ãª@ãý\u009ebÎä©@::÷_x000B_ÀÒª@¥\\_x0015_Z_x0002__x0003_\"Áª@[E9_x001C_\u008f\u0087ª@Èx_x001E__x0006_?\u0093ª@Oàtþå_x0006_ª@'b©o/Ñ©@7?ÇDe&ª@ýI`xÓ¨ª@_x001A_·dÜùHª@\u0092v_x001D_.\u0086iª@ÿ\u0094_x0017_JMø©@ßL#,\u009dû©@_x000C_·}iT®ª@gHÂ¨êê©@¹¾WÏTÚ©@å4_x0008_kgôª@Çl_x001B_\u0093#Ò©@[=¨nyá©@\u008ca´¾i_x0001_«@BnBI_ü©@Ö\u009dëôÍ_x0002_ª@_x0017_ºõ\u0083È5ª@Ùþ\u0082+½Þ©@@Þñª[Ï©@Æ}ífDË©@.ÿ¸Qù]ª@÷¹\u0080ô§_x001E_ª@g_x0012_\u0085D_x0003_yª@\"¢\u009cE_x000D_)ª@Aç³\u0095[fª@ÂL¾_x001A_%¾ª@Ë¯ÇR¡.ª@?\u0089\u0092,fìª@_x0004__x0006_¡Ñã,¢^ª@=3\u007fÙÃ_x000D_ª@N.'kqwª@g¸\u0091\u009dÆË©@SF_x0005_À´\u008cª@mÄó*©_x0008_ª@_x0007_±mê÷}«@_x0019_Û-\u0094_x000F_\u0095ª@3¥_x000C_Þ_x0006_â©@\u009fm_x001E_i¨{ª@_x0002_\u0097öüXù©@öî\u0094>oNª@@ ³PCã©@_x0008_zRb(^ª@¦\u0084_x001D_YÜö©@%¦½PAÙª@_x0013_Î \u0089TÌ©@\u008e_x0006_æ×_x0004__x001D_ª@ÞÅmC8(ª@Yúåõó¨ª@®\"r¾_x0017_d«@l%Ñ_x000B_­sª@\u0098R©Ó\u0093_x001D_ª@Îü×5Í?«@¼\u0098×¼w-ª@ Q~\u0096_x001E_cª@\u0086(zË\u0086vª@C_x0016_?¢mÐ©@§_x0003__x0015_l=eª@´V¹/ß_x0001_ª@ð?6xì¦ª@>)Ô%_x0001__x0003__x0012_­ª@r\u0095æ;øuª@ô;9\u008b_x000B_\u0099ª@\u009f2_x0013_ëI#ª@ A°¦E]ª@LÉ:óíî©@^xÐ\u0083\u0086Iª@µi\u009eù\u0096_x0002_ª@_x0002_¡æ_x0003_Éfª@Ü_x0001_¡BVá©@xÞLHSOª@_x001B_áÌ_x0012_`ý©@_x0012__x000D_\u00907\u0082ä©@G@½ðæÛ©@5\u0091\u0091BEéª@}a\u0097\u0093\u008d\u0088ª@w\u0096L&_x000D_ÿ©@µ_x001F_puOÏ©@RózP=|ª@_x0019_&Óµ\u009e_x001A_ª@_x001E_®_x0004_J>5ª@F_x001B_\"(Y_x0013_ª@×Y!\\xtª@¦9\u0090ãÑ_x0013_"}},{"$cut":{"chars":56916,"head":"950101a683159143e86c822951150439_x0003__x0007_Ä_x0018_në¦òª@?\u0080FÊ~?ª@@mýU9\"ª@L¨#\u008bÉ~«@ðü_x0004_v\u007fô©@Äª_x000C_@_x001F_°ª@Úÿ§ëòBª@Åª_x0002__x0004_ÇDª@o>_x0019_¯aö©@_x001A_mà_x000E__x0002_V«@\u0093ÆE9_x001B__x0013_«@_x0008_{&õùâª@N\u0089V´\u008adª@_x0017_M=ÉØ\u009bª@Xh×®«Gª@ÄD»ã\u0096Îª@\u0098´@úò¸ª@/ù\u0095\u008a\u0086\tª@_x0006_0_x0008_ad_x0001_ª@*ðÙÍf~ª@M/w,¥Ûª@\u008d\u009c\u008e\u0090\u0089ýª@ÆG\u0092\u0097î<ª@ÙZqÑ{½ª@z9^fñß©@\u008f`>\u0088|Ùª@3_x001B_ÐvÛ_x0007_ª@#\u0080Å\u0087\u0080_x0010_ª@_x0006_¼¬R\u0094\t«@_x0003_½p\u009b«5«@¢¤w¯Bð©@_x0005_2w0_x0001__x0005_'Ó©@\u008c\u0080Cß_x001B_?ª@_x000F_ÃÖ^Éó©@_x0016_É)v_x0016__x0012_«@÷\u008e*Å_x0003__x0003_ª@`_x0002_¾_x000C_þ_x000C_ª@||F\u0083+Ý©@Q£\u0091Äviª@u%ÿÌ_x0014_}ª@\\¥®_x0013__x0016_\u0087ª@_x001A_»L\u0093ÿEª@SK\u0084©[Fª@\u008c~ ó[Û©@$ÐR_x0018_céª@_x0016_\u0096\"ÚÐVª@.cî\u008e\u0087_x0006_«@áo\u0086ì;\u008d«@ äiJ\u0095Vª@×l¿ò_x001D_-ª@ëgèX\tê©@á_x000C_t¾y0ª@@ËE\u0088iÔ©@ÑFú_x000F_\u007f]ª@\u0080\u0085_x0019_UI_x001C_ª@9váVlú©@_x000D_t]\u008dCN¬@_x0015_ÑJ&\u0083ó«@_x0004_ºj4»O«@ÜÔ\u0094V_x0019_å©@ë£_x0019_oÞãª@\u009eÅ_x0004_¼Nð©@¸\u0080öhK_x0016_ª@_x0002__x0003__x0006_9ò»ÛÑ©@©S\u0086K\u0081o«@[Ç¥\u0082/¶ª@_x0014_êMæì «@ü1úÇ\u0088ìª@\u008bSl}\u0096Ð©@C_x001A_î!\u0094jª@]î_x0016_ý¹ö©@æ%|óÅ_x0015_«@\u0090î\u0097_x0008_I©ª@\u0088_x0005_\u0099\u0088\u009dkª@»Õ__x0007_¯Pª@\u0095Ímý\tý©@ê©\u009b\u009c(Ô©@²\tSÉúK«@9ú\u0080x\u0092ï©@¼_x001C_ð°Ô.ª@°\u008c?Ü/_x0014_ª@ñ Mí_x001B__x0004_«@\u008b\u0098\u009fþ\u0087øª@\u009cõÌÃÓÕ©@aþ_x0011_rZH«@\u008aO_x0017_DÍ_x000E_ª@\u009ad\u009fäªlª@\u009bh7Ä+ã©@l\u0082R}L/¬@_x0004_\u0081l?]:¬@u_x000E_\u009f\u009f_x0010_­ª@\u0092\u008c©¾õ_x0001_ª@_x0018_È_x0019__x0016_e\u008eª@þG;:K#«@*$_x0018_2_x0001__x0003_ékª@§|áÂ³Òª@ù4tÔû_x0004_ª@_x000D_'?dù_x0007_ª@\u009cý´'ñÛ«@\u0087Ä»0[_x001A_ª@¯\u0083\u0085Q=Cª@EÕ§\u0098Lü©@°k\u0094«Ä\\ª@\u009eR4_x0002_\u008aØ©@_x0018_E÷_x0014_ñó©@Þz)å\u008dv«@¤0x·n_x0007_ª@Ø_x0001_·ÚVù©@\u0088\u009ek\u0098\u009e¡ª@_x0005_¦.«'ê«@.NªAí_x001C_ª@þ\\ZÄCàª@_x0015_®¡öÓÁª@Ì\u0091ÿÈ_x000D__x0013_ª@Î<t]I0ª@©\u008a_x0016_]Ê_x0016_ª@Èû½àU_x000B_ª@_x000D_æSlGÿ©@\u0095à7=[Nª@zÿÉ\u0080\u0091ß©@Tz\"³ÿ_x001B_ª@J¹Q_x0015_àX«@)æà6\u0095éª@l»\u009dæ_x0014_6ª@ÿÃní_x0012_ñ©@·íM¾Æù©@_x0002__x0003_Z_x000F_/Ó\u0090á©@°_x0007_\u0091zp\u0082«@\u0089%B\u0095³Ò©@%w_x001F_\u008a\u008bú©@Ð»°_x0008__x0015_Hª@?\u0089F±ÕKª@_x000B_J÷3×_x000F_ª@\u008eó¥\u0087\u009d®ª@ê¦àÈó:ª@¸¸bItÐ©@DDõSê2ª@.ûk%lá©@\t_x0002_oìÜ_x000E_ª@\u009cïÓ²¡yª@Y©',~\u0090ª@ÑÝÒ0õ&ª@\"þï\u0096qSª@mp}z¢Ý©@KYÍÌ´ß©@\u008d~JCþÚª@4»\tgÑfª@¢¬¬Ã\u0080Úª@,_x0001_\u0089#\u0094)ª@_x000B__x0013_çÌDè©@¯»\t»c>ª@)«O*Qiª@ÐyÊó_x000F_µª@:\u008cöÂ{K«@õ(þ§Q ª@ºn\u0083y\u0085ôª@þ\u0091}Ñ\u0099\u0084ª@õ)Ï½_x0002__x0006_Îð©@®|\"÷é««@\u0082h\u008e\tÀÈª@æ Y\u0087Á_x0006_ª@T_x001E_'\u009eA\u0094ª@\u0098_x0017_Æ_x001F__x0003_Àª@\"ÒÈÏÀ?ª@k_x001B_]\u0085_x0003__x0005_ª@Óý\u009agÿ-ª@'\u009e\u009fLÜ¬«@7fS\u0089\u008e4ª@\u0097Ü¾\u009dµ0ª@¼f6Xq_x0005_«@Ó*_x0005_'%$ª@!_x001E_¤\u00862à©@_x000E_b+lKTª@_x0016_\u009bºâEÔ©@ 9_x0007_Xöý©@\u0091HÝS_x000C_[ª@öóØë_x0004_á©@QµÅ<Td«@_x001F_v$â\u0091G¬@©<ò\u0092AKª@\u009b\u0095¥gÌ%ª@\\ü_x0013__x0019_¢)ª@åÔ÷öÓ¢«@ ¬~æ!Lª@HOÒSß_x0014_ª@ÖïAÙ_x0011_\u0086ª@Õøü\u009f_x001D_Áª@uC+&¥¿ª@âí_x0007_@_x0001_·ª@_x0001__x0002_\u0088ù]\u0093êë«@óÐ_x0005_\u008dû\u008dª@ML¯Lò\u008d«@3Á¾\u008aKV«@_x0017__x001A_ë_x0018_\u0083û©@ÀÕü\u009b\u0099Kª@Þ_x0016_½_x000E_\u009c_x0016_ª@fÜ\u0088_\u008c_x0011_ª@GÅè½Øñ©@Th\u0092CVj¬@èÏ_x001F_^¿æ«@_x001B_å_x0014_¼Ô\u0080ª@&¦pñþKª@\u008e_x000E_Ly_x000C_q¬@¹ñö_x0011_<Ð©@\u009a\u0080CVO_x0012_ª@ØÝR\u0087ÿ_x0014_ª@_x0003_þþ\u008dbgª@\\¾e\u008e]~ª@fGÓ\u009càÏ©@®\u008b*Ã_x000C_ü©@LæG)Ê¨¬@ôI£»¼Õª@y¥ÚZ6\u0098ª@_x001F_\u008fbxì§ª@ú_x0015_háÚ4ª@_x001B_ííÛ}ß©@êÜ°\u009eÄúª@ñü_x0008_2æ\"ª@×=5øp_x0002_ª@|\u0081'[_x0002_\u0080ª@Í\t6F_x0002__x0005_Õ^ª@úr_x0001__\tÒ©@®_x0002_ _x000D__x001A_yª@1QM*uÞ©@Èÿ¸ãG_x0001_ª@ðzZ\u0089 î©@d{'t_x0012__x000F_ª@r\u009f|\u00905ýª@XwÎ­\u0095Çª@å_x0014__x000E__x0013_9ê©@_x0017_É}_x000F_ñä«@_x0013_;Ã~¤Eª@t1\u0089\u009dÆÏ©@É»@\u008d+_x000C_ª@Ì_x0003_\u0091ùÅË©@qCa\u0085¼bª@òÜ_x0010_\u0081ØC«@²_x0004_È>_x0017_Ê©@t_x001F_\u0082k_ó©@¥2Ê¿\u008bN«@\tÜ¥T8Gª@JÝú|_x0007_è©@ÑµBÜ©º«@_x000B_úl¿|Ò©@_x001C_Î²r\u00821ª@Ðíà¥ãÍ©@,âD\u0094©Ò©@UÃ\\£ ©ª@CHâw±1ª@Í_x0003_Á1\u008ffª@_x0004_5_x000B_âMwª@_x001A_Å\u009bä<Ó©@_x0001__x0002_]ªáÉóS«@.J\u0096__x0018_Pª@_x001C_0Ú¾Gþª@\u0091\u0081\u0084ßÃ<ª@\"Þ_x000E_Áývª@¯R¹;Ýî©@9Á_x000E_Î$&«@8Sh®_x0005_rª@¹Y²¾ÈNª@\u0090\u008f8Rwåª@0B¨%oYª@xzÓ\u009e\u0085_x001D_ª@_x0004_M\u0090U²]ª@î+_x0012_wUÈ©@Lä\u0094Ê_x0019_^«@<HsY_x0019_kª@_x0001__x000D_/\u008eáÐ©@áM\u008f_x000C_wWª@\u0091tYòsý©@\u0086Ñ_x0005_Q\u0092_x0007_ª@'ÓT_x0014__x001C_Ø©@\u0080+B_x0017_ë\u008a«@·âusÜ_x001A_ª@\u007fG_x0010_C_x000D_Aª@{\u0095Áå_x001D_è©@°«_x0019_;±5ª@\u009e_x000F_<½äÃª@_\u0089À\u008fF£ª@_x000F_[Á\u009fh2ª@\u0093c6_x0019__x0015_\u0095«@-Z·3§Tª@,óaí_x0004__x0006_¡Ú©@×ê\u0082zß\u008cª@\u0082\u0083_x001E_ÑGö©@¡®\u008aH \u008bª@©Ï\u0086qZzª@h'¯V_x0003_¾ª@\u0090S,×Ó¤ª@ô\u008bÚ·%M«@YôÒ*_x0005_ß©@_x0002_T_x0016_\u0086ãè©@J_x0012_¦&Q/ª@5tWÅq_x000C_«@/\u0089Ï\u0095Ê_x0008_ª@Ö_x000B_?\u0099âÌª@_x0008_^N1Ó_x0007_ª@ÉÎ¾!&/ª@\\8øµ\u0090ÿª@Ç_x001A__x0019_\u0088Éø«@m ¸>$â©@/\u0094,Ü)í©@_x0011_I_x001D_¥ý_x0013_ª@>D,j\u008eê©@Èì;;E\u008bª@în\u008aÞ_x0008__x0019_ª@l<_x0001_Î _x0001_«@eâñ_x0002_É@ª@)\u009f\u008b¿;ñ«@$-D\u0096\"þ©@\u009bÑ$÷aç©@Îª\u008bpMB«@\u0090áâ¢îÔ©@Z8\u0081\u0085\u0096î©@_x0001__x000"}},{"$cut":{"chars":75282,"head":"76c4265e0a451182a841ee80e6771259_x0001__x0002_fãn¡æ\u0098_x0002_A¯|ë2k`_x0002_AxÑ¹B_x0011_:_x0002_A\u008a¸$\u0081ÿp_x0002_A,_x0003_w6|h_x0002_AÖÉÿ.ÿ_x0004__x0002_A_x0002__x001E__x0005_Ó\u0094\u009b_x0002_A\\÷eEj2_x0002_ApÚé\u008do|_x0002_A_x001D_\u008bÛSg_x0002__x0002_A\u008dlÓ)Áx_x0002_A_x0013_;æ\u009fMn_x0002_AL\u008c_}²1_x0002_AkÏmzB\u0080_x0002_AÿSÀñPT_x0002_A7\u0091_x0017_5\u0085Ù_x0002_A9Ylë\u0093¾_x0002_A*yUá­«_x0002_A\u007fë_x0012_¼8\u0082_x0002_A`]*Ó$R_x0002_A_x0008__x000B__x0018_\u007f\u0082E_x0002_AÅv\u0094aÂß_x0002_Aaî}^2h_x0002_A@_x0016__x0011_[-_x0011__x0002_A\u0089Ý%\u009b_x001C_\u009e_x0002_AxöëÓ²^_x0002_A[¾ë\"H\u007f_x0002_AÆÓx¥\u0090-_x0002_A\u0088vÞì\u00975_x0002_AóØ\u008bhy°_x0002_AoèT8Ü\u0093_x0002_AÜ\u008a_x0003_'_x0001__x0002_Z\u0080_x0002_A\u0097§em t_x0002_A9Qô³\u0089ª_x0002_A_x000B_ÿV2_x0006_ü\tA_x000B_\u0094Bú\u008bu_x0002_A_x0019_t¨n?h_x0002_A4\u007f:_x0004_Á\u008b_x0002_A¨\u009dIÊI\u0096_x0002_Aô_x001C_ªH'î\tAàäÉÄ\u0083½_x0002_AÇñYÒ\u0093\u008e_x0002_A´Aþ\u007f\u0087_x0018__x0002_A\u009b\u009aX{_x000B_o_x0002_AoX1ÕÇÒ_x0002_AôÑ0_x0003_MW_x0002_A\u007f_x0017_e_x0017_vX_x0002_A¸'á_x0008__x0013_º_x0002_AÎûØ_x0012_ã·\tA©T Ã6v_x0002_A&Ô;\u0085Id_x0002_A(\u0085#E¢²_x0002_A_x0008_,Te`\u0096_x0002_A_x0016_\u007füó_x000E_^_x0002_AË\u009ff¿\u0093i_x0002_A\u0080§4Ì\u0093Q_x0002_AgLbîGl_x0002_A\u0088LAÝ0E_x0002_A_x0012_\u007fM¢ý_x000E__x0002_A_x0015_ÃG\u0097g\u0099_x0002_A²&\u009a5(Â_x0002_A_x0003_\u008b§Ù-m_x0002_AÌ=U¶+\u009b_x0002_A_x0001__x0006_r¡¤5´b_x0006_AD_x0019_`\u008d¢\u0081_x0006_Aù_x0003_C\u0097S³_x0006_A_x000F_\u0088->á\u0088_x0006_A¤·Åky\u0096_x0006_AJTÙû\u009e_x0014__x000B_A\u009a_x0005_¬_x0002_J\u0083_x0006_A¤¾\u009diµ\u0087_x0006_A@\\\u0098\u008cVo_x0006_AÚ\u0084%f~Z_x0006_A\u0094_x0004__x0019_\u0098CE_x0006_AG;7D7¨_x0006_AS\u008d)ðÄK_x0006_Al ¶h_x0018_a_x0006_AbI_x001E_nnd_x0006_A_x001B_Ú\u009f¨À«_x0006_AÒ_x001E_T)6c_x0006_A$½VÆÓ\u0092_x0006_A«Òµ,Ó\u008f_x0006_Aw_x0012_Â¥ü\u0088_x0006_A7UÉ_(B_x0006_AÌ _x0001_\\¥\u009c_x0006_AÁ_á~B}_x0006_AEmLäZ^_x0006_A#L¤ÿ)t_x0006_ABøS\u007f_x001B_`_x0006_A\u009c³æh_·_x0006_ADµ_x0015_Vk\"_x0006_A]öS~'`_x0006_A?0\u0087+ÿÇ_x0006_A½\u009bÒJ»\u009f_x0006_A_x0016_¬\u008bê_x0002__x0003_d\u008e_x0003_A\u0099îzÌj¢_x0003_A\u0088B\u0098æcÔ_x0003_AÉNJôdU_x0003_A}îå\u008a+w_x0003_A^9¾)\u009dh_x0003_AOù«E2_x001D__x0003_A9{ÿä\u0081\u009c_x0003_AâÚCº_x000E_\u0080_x0003_A9C±ß_x0015_-_x0003_A5¾ÛY÷¦_x0003_Aú\u009dÛôó\u0089_x0003_A)\u008b\u0086É9V_x0003_A\u0084ß\u0086\"G½_x0003_AEð\u00822_x000B_\u009c_x0003_A_x0006_.»H_x001A_e_x0003_A\u00820F4_x001B_\u008a_x0003_A[Ik@'[_x0003_A_x001A__x0001_s¸hw_x0003_ABú¢W\u0085w_x0003_A_x0016_¤\u0086;Ú\u0099_x0003_AÚ²¨\u0086ü7_x0003_AÛúï_x000C__x0015_p_x0003_A]_x001E_4ø7t_x0003_Asç!<d__x0003_A\u008eÊ.7&»_x0003_A\u0099_x0016_\u0090_x0018_\u0088¦_x0003_A\u009fl£F2P_x0003_A>_x0005_\u0099\u0082¶h_x0003_AîLá\u0089úg_x0003_A]eË_x0005__x001F_B_x0003_A'²:,\u0097?_x0003_A_x0003__x0006_î\u00940\tÀ®_x0006_A\t`_x001E_ó_x0006_A_x0006_A\u0085_x0018_$_x001B__x0015_G_x0006_A§\u0085\\bG×_x0006_A[_x0013_ÃÜ'­_x0006_A_x0008_\u00831,^h_x0006_A_x000B_äh_x000E_p\u0088_x0006_A`%wí\u008d\u0085_x0006_AÞN\u0081\u0094\u007f9_x0006_AÖO_x000E_´\"U_x0006_An¾_x001C_U4n_x0006_A\u009d2Õ·ù¬_x0006_A\u009aD9J\u007f'_x0006_A¦_*Je<_x0006_AÛm É_x0012_h_x0006_A÷;_x0015_\u0091x«_x0006_AöÑ!@Ì_x001E__x0006_AÍ\tv\u0098úK_x0006_AbæöóH^_x0006_A\"\u009e±z_x001B_\u0087_x0006_A\u0090I8/su_x0006_AÐ¹P_x0010_¤_x0018__x0006_A_x0004_m_x0001_P_x0005_°_x0006_AçSin3__x0006_A_x001C_üç~ô\u008d_x0006_A^¹WÅ¬e_x0006_AjK\u0092c_x0005_ô\tAxoe6:0_x0006_A\u009c\u0085¤x_x0002_V_x0006_AôÒ=ÑÑ\\_x0006_AðOÔ{_x0018_b_x0006_AarH\u008d_x0004__x0005_oî_x0005_A³2\u0096ÌÖ\\_x0005_AF\u009fý_x0007_§_x0016__x0005_Aä§J_x0017_\u008dB_x0005_A_x0006_òUw¨n_x0005_Aï\u0083Ëb÷×_x0005_A°È_x0011_x÷g_x0005_A\u0091_x0002_~\u0098F\u0088_x0005_A_x0001_q1w8»_x0005_AøÚ|ð_x0016_Y_x0005_A\u009e3å\u0087\u0088._x0005_A½ý\u009fZ\u007f[_x0005_Aþ©{9ú?_x0005_AéMür$í_x0005_Aa¼\u0089ðl³_x0005_A´tá1s&_x0005_A¦·ØÀl¥_x0005_A\u009d\u0098\u0088 Ôc_x0005_A_x001C_&À|J²_x0005_ADÍ_x0003_^_ô\tA_x0014_dgß_x0011_X_x0005_AÝì_x001A_\u008d\u008f\u008d_x0005_A_x0005_:Z%cr_x0005_Aþ\u0085â¸Lâ_x0005_A¯_x000C_WÕ9W_x0005_A¼äaß9H_x0005_A©\u009a©_x0006__x0016_i_x0005_Aì+èª\u0097\u0094_x0005_AüÁ¾Üñ£_x0005_A½Ô3\u009d q_x0005_A_x000F_\u009b\u008a_x000C_á·_x0005_A_x000E_\u008aÌ°¢Ì_x0005_A_x0001__x0002_Än\u009eèV}_x0002_A\u008dè\u0096ó_x0010_¾_x0002_Aâ\u0087V\\_x0019_P_x0002_A\u009frÁ©Qj_x0002_ALk´_x001B_<¤_x0002_A>í&S\\V_x0002_A]Åhê>ª_x0002_A«ñ0!hË_x0002_AÕ\u007fUL!¢_x0002_A7¹\u0096_x0012_ï\u009b_x0002_A\u0089_x000D_U4Ês_x0002_AÛC\u008fú_x0010_r_x0002_A9øÎ \u0093à_x0002_AÒ×Ò*Ç\u009a_x0002_A\u007fgåLÉd_x0002_A!Gç\u009e_x0013_\u009a_x0002_AÒ_x000B__x0003_\u009f/?_x0002_AÌ_x0006_KP\u0090^_x0002_AW½_x0004_ð,ñ\tAlv¶fîÌ_x0002_AAõØÂ_x000C_c_x0002_AZ_x0010_}Lí\u0096_x0002_A_x000D_Ã/@\u009f°_x0002_Ag­KÙ§~_x0002_A_x0013_Â*K\u0091k_x0002_A×[¯_x0010_ÆÎ_x0002_Aåæ^÷_x000F_W_x0002_A\u009cR¢ µ!_x0002_Aýaù\u0097K\u0089_x0002_A<_x0013_`+¯\u009e_x0002_A¤ê 5\u0089³_x0002_A_x0016_ñ\u009dx_x0001__x0002_\u0096Y_x0002_Aè,%÷½n_x0002_AïH_x0006_n_x0003_\u0086_x0002_A¨_x0002_&\u0090\"h_x0002_AQg\u009a£b#"}},{"$cut":{"chars":79716,"head":"dbe87c715774b2055ccc86fd47367ebf_x0001__x0002_µÝ¹_x000E_\"g_x000F_AÓ\u0081¥êð\u0087_x000F_Ay\u0085Nø\u0084\u0087_x000E_Aj:òù°c_x000F_AGÞ\u0091/ö\u007f_x000E_AÜ _x000C__x0001_\u00885_x000F_AÄù¡\u0083\u009bó_x000E_Aô¾âwÚð_x000E_Aus_x0006_\u0089ü\u0080_x000F_Aµýª5\u0089ñ_x000E_A\t£&È_x0013_7_x000F_A´6U<^â_x000E_Asxd_x001A_Øî_x000E_Ag-©Ïñr_x000F_A§·½\u009a\u0081R_x000F_A1)%ÆóÚ_x000E_AÏxõ¼_x001F_Ñ_x000E_A%ÐøÁò?_x000F_A\u0081\u0093_x0007_¼\u007f3_x000F_An\u008eì_x0017_ZÕ_x000E_A£_x000B_öÁb_x000D__x000F_A±\u0098,\u00910_x0013__x000F_AÑMzõ2P_x000F_AT_x0015_QÎ_x0014_²_x000F_A7Â±E¡\u0097_x000E_Ae_x0015__x0004_rÈn_x000F_A0KÓ_x0019_\u009d¡_x000F_A_x0004_\u0096À_x001C_\u0092b_x000F_Ao®_x000E_\u009f,ø_x000E_A§T\u0096_x0019_Í._x000F_A¤.¢\u0083Ý3_x000F_AxZÆ\u0097_x0003__x0004_áÚ_x000E_AÇ\u009dD\u0080ºÑ_x000E_AÆ:Âõàö_x000E_A¨¡kÙT_x001E__x000F_A\u0084Öæ&2\u007f_x000F_A\u0084_x0002_5_x000C_ÆÀ_x000E_AM3­­<_x0003__x000F_AkÉ\u0099Ò×$_x000F_A-·hi_x0018__x0011__x000F_A¢_!ú_x0001_a_x000F_A|Ä'_x0005_ß-_x000F_Aß³óõiN_x000F_A½ÃÙ«X\u008a_x000E_A¿ª#W_x0005_î_x000E_Ad_x0013_¶\u0083_x000E_U_x000F_A¿_x0006_XQ\u0083w_x000F_AÞ_x000B_\\}öñ_x000E_A Òz©\u0081H_x000F_AJº\u009eV4_x0015__x000F_A\u0094ê\u007f3ü_x0016__x000F_A/_x0018_bt^Ñ_x000F_A\u0091_x000D_ã{T®_x000E_A_x0017_NÀD%_x0008__x000F_A\tµ_x0006_\u0084Q#_x000F_A*O-¿ý¬_x000F_AÆ\u009fZ)Oó_x000E_AUC5\u0084>L_x000F_A _x0002_-tL\u0093_x000F_A¦Ý\\\u009f7ú_x000E_A\u009cþ_x0016_føh_x000F_Abÿ_x000C_9É%_x000F_A_x0018_¨ñaû¨_x000F_A_x0001__x0002_÷_x0004_\u0081*_x001B_\u0096_x000F_A_x0018_ÈÌIâ\"_x000F_AnEÜ\u0092\u009d\u008b_x000F_AVà\u0091¢ì)_x000F_A:ú#$ü%_x000F_A(\"_x0017_f*B_x000F_A\"Äx¬\u0093\u0099_x000E_A+#©XÙ÷_x000E_A¾Ò_x000F_ÃÑ'_x000F_A¶b\u009a|jñ_x000E_A9\u0084_x0002_ûlB_x000F_AËÑc_x001A_¸+_x000F_AüìËñÌF_x000F_AT¥#Ó(g_x000F_Aú_x0012_*ÃN\u0089_x000E_AØ?`\u008bøT_x000F_A\tOY±Op_x000E_A(á_x0001_\u0088_x0018_i_x000E_A\u0092\\ü§0õ_x000E_AÎd\u0085gæ/_x000F_A²OiòØã_x000E_AÀ«¶_x0005_cf_x000F_A}_x0019_½H<9_x000F_AbJ_x001C_z\u009a\u0094_x000E_A£V ñö/_x000F_AôÇå_x0004_;ý_x000E_Ak\u0088O´ñ¹_x000E_Aß\u00892_x0010_e-_x000F_A\u009dÈ¬_x0011_Sß_x000E_A_x000D__x0008_#_x000C_Ô\u008e_x000F_AÐ_x0007_ËCþÅ_x000E_AÃ«Òx_x0001__x0002_i§_x000E_AM¯_x0005_C!\u009b_x000F_A_x0014_W\u008a4aS_x000F_A\u008e\u008fÏÐ*S_x000F_AÊÒ¹?]ä_x000E_AÐ_x0007_¼d\u0098_x0015__x000F_A\u0096¾\u0098Mh_x0017__x000F_AÔ\u0097&°øÇ_x000E_AlJ©©¿D_x000F_A_x0019_²\t_x0013_Ì®_x000E_A«\u009cÕaH$_x000F_A7Ãµb}_x0005__x000F_AÏA$ G_x000B__x000F_A;Í¨fvÂ_x000E_A\u0086dÍÓJ*_x000F_A°WÈ\u0084Q_x0013__x000F_Aµê¶ß_x0008_à_x000E_A5W^\"\u0091E_x000F_A¥_x001C_ gý&_x000F_Azï~\u0097Õ,_x000F_AU_x0006_¼_x0001_\u0080o_x000F_A¤÷\u0092Ã _x000E__x000F_AÐ.Â¢ð+_x000F_A{»Ê#£C_x000F_AWò-\u0083aÖ_x000E_Ai_x001D__x0016_Ý q_x000F_A¶_x000D_\u0090_x000D_wØ_x000E_A oW_x0006_ô_x001C__x000F_A8·ß_x000C_s^_x000F_A\u008b_x001D_Æ~d\u0099_x000E_AH=`6\u0087_x0015__x000F_A±{ë_x000F_\\ÿ_x000E_A_x0002__x000B_\u008c_x0014_uñÄÖ_x000E_A_x0008_éª\u0091ª_x0008__x000F_AòäòtbÂ_x000F_ADaí_x0005_¹)_x000F_Aø¢R°br_x000F_Aö}\u008dóäØ_x000E_AµÙe _x001F_\u009f_x000F_AF_x000B_\u0093,I\u0082_x000E_A_x0007_Òh2\u009e\u009b_x000F_AúªùUæÈ_x000E_ACJ_x0004_=_x001B_û_x000E_A_x000E_§¡\u009ep_x0006__x000F_A^Êó_x0005_ê°_x000E_A\u0096R\u008dG_x0001_ä_x000E_AfÜ\u009eùù\t_x000F_Aó_x001F__x0003_\"ß5_x000F_Aeÿ_x001B__x0006__x0007_V_x000F_A~\u0087¿¥X_x0010__x000F_AÂ\u0083,_x0013_ø_x000C__x000F_AÓîÀ\u0080Òþ_x000E_A_x0015_>\u009b\u009e_x001C__x0014__x000F_AW)*\u008b\u0094Ï_x000E_AÇN_x001D_Â\u009fK_x000F_AÀH_x0012_ñ_x0002__x0005__x000F_A&~_x000F_«Ì\u0088_x000F_Aß\u0089ú\"TG_x000F_A_x0014_:(â{¶_x000E_A{¹KúÉ\u0095_x000F_A@µï¬_x0005_Ð_x000E_AÆ\u0086w÷Fº_x000E_A³QOß_x0007_Â_x000E_A¦!/Ë_x0001__x0002__x001C_D_x000F_AÛÊªJ&_x001D__x000F_AM\u0089\u0090ATÌ_x000E_A\u009d_-uBK_x000F_A\"¯/_x000D_¶\u0088_x000F_A9B[]_x000D_ó_x000E_A_x0013_ò_x000C_X_x0019__x0016__x000F_A_x0007_´_x0015__x000B__x0001_:_x000E_A4_x0003__x000C_ãð\u0081_x000F_A\u0091ëD\u0087\u0097»_x000E_AG9_x0001_M3-_x000F_A\u009e:ZÒÅ\u0081_x000F_A±\u0086ç·¶¨_x000E_AÅäW\u009d&Ø_x000E_A\u0092a\u008f\u0090_x0007_6_x000F_A¯è~_x0019_=_x0003__x000F_A¾¬JÀÈ}_x000F_AA\u0087\u008c_x0014_g_x000E__x000F_A\u009aDÄO_x0007_\u0099_x000E_A_x0014_Å\u008dl_x0019_k_x000F_Aê`¯&²\u0091_x000E_AØ¼\u009e\u0091x_x001C__x000F_A_x0016_+b Õ¶_x000E_A_x000F_(ö_\u008e_x0003__x000F_A_x000E_Ó¸?ú;_x000F_AD%\u008b8gð_x000E_A}_x0013_\u0093_x001D__x000B_\u0097_x000E_Aã_x0002_Õ/÷K_x000F_A3é\u009e_x0001_¡!_x000F_A_x0001_5èÍäâ_x000E_AQÃõÁúè_x000E_ALÅpË\u009a_x000D__x000F_A_x0002__x0004__x0004_¸\u0097_x000C_\u009e_x000C__x000F_Ab\u0087w[Èâ_x000E_AÂvA_x0010_\\\u009c_x000E_ADò\u008cI_x0004_Ö_x000E_A_x0014_½Aaöþ_x000E_A?lÃ¢»ð_x000E_A·_x001E_uo\u0087¸_x000E_A_x0002_}kQ\u0092N_x000F_A8èÖ!\u0097\u008f_x000F_AÃÞ\u0086pZC_x000F_A_x0003_£'º>_x000D__x000F_Ad_x000D_^ä_x0014_t_x000F_A4_x0013_ß7LL_x000F_AºOí-å_x0003__x000F_A_x0004_\u0094Æ_x000F_5!_x000F_AÁÉ_x0017_ëá>_x000F_AtK 7h\u0094_x000F_Aùa\u0086CFQ_x000F_Aäêô_x0010_n_x0005__x000F"}},{"$cut":{"chars":65934,"head":"e75b2b9923466c7e53577df2a130adc1_x0001__x0005_ÃÐÃ×°*_x0010_A±l0\u007f¿:_x0010_AWa\"7_x001B__x0016__x0010_A)µ@ûØ¹_x000F_A¤\u0094~o _x001E__x0010_A\u008cG¡\u0094GK_x0010_A»\u0085Ý§¸M_x0010_A¸\u0080_Õ­ã_x000F_A¬P_x0015_d¿²_x000F_AÍ_x000E_Ñ¶\u009fî_x000F_A_x001E_ó\u0095\u0083`´_x000F_A|\u0086Ã×_x0015_&_x0010_A 'p\u0084\u0088)_x0010_ATÉ\u008baù_x0007__x0010_AÅ_x0005_ÚLZè_x000F_A\u0082qTÁ\u008a=_x0010_A­lâê-y_x0010_AÖWãÅ­@_x0010_A_x000D__x001A_ úv_x0002__x0010_Aú_x0011__x000B_ý-c_x0010_AÃ!\u008e²D<_x0010_AÈ³ä$òG_x0010_A_x0013_©J)_x001D__x000D__x0010_A!_x001C_0\u008a3@_x0010_A\u0080w Ó?ö_x000F_AFú_x0012__x000C_\u009cÉ_x000F_A~ý\u008bifB_x0010_Ap¹¥;2x_x0010_A/È_x0003__x0014_\u0082·_x0010_A)\u009c_x0006_©_x0004_3_x0010_ATÁßÐ0,_x0010_Ai>\u0081M_x0006__x0007__x001D_,_x0010_A_x0003_ÆR_x001A_Îë_x000F_AöÕ½&ø$_x0010_A _x000E_$Õ_x001A_D_x0010_AÁÏ_x001C_Â7q_x000F_AÞr ùÔG_x0010_AH\u009d_x0002_ç.l_x0010_AZ{Æ_x0017_oà_x000F_A;8_x001E_Ç\u0085ð_x000F_AþÇ5:4÷_x000F_A¿Ë`h|L_x0010_A§Ê_x0011_\u0094!\u0096_x000F_A1D0ED·_x000F_Aü´Þ>A­_x000F_A¸ç=ºG¯_x000F_A;_x0002_Wµf_x0013__x0010_AëÏL¨Z³_x000F_A\u0097|\u0086mV_x0002__x0010_AM_x001F_\u00999\u0087_x0003__x0010_A5¼0Q\u0087Ü_x000F_A_x0006__x0004_´Ø¡_x0005__x0010_A_x0008_H|Jq3_x0010_A«ó_x0004_U\u0089^_x0010_A'<ps\u008cf_x0010_A_x0001_Õî9\u008bm_x0010_A»(½©Q_x001A__x0010_AåN)»~Þ_x000F_A~_x0010_èÊh:_x0010_A_x0002_\u0098Ù>Y\u0092_x0010_A¼_x001F_}u!_x000C__x0010_AËhwîä¥_x0010_A¨@3Ê\u008e¼_x000F_A_x0002__x0004_mËgA\u0089D_x000F_A}«O.&\u008d_x0010_AÄùLô\tn_x0010_Aû42_x0015_Î(_x0010_AØ÷_x0011_;[M_x0010_A\u009a+âØ®_x0005__x0010_Al\u008e;kß_x0012__x0010_A\u009c\u0096Ü¨¬ _x0010_A_x0003_DlKñk_x0010_A_x0017_Ö×r_x0019__x0019__x0010_A6\u008bEßäc_x0010_Ah1öÙÿ+_x0010_A\u0089ÇA¼ó£_x000F_AÍÃFUèw_x0010_AÔû=RÃ7_x0010_A\u0081V¯òW\u0084_x000F_A$»¿|5_x001D__x0010_Aß:xÖØ\u0083_x0010_AøâÂ°u{_x000F_A_x000D_õg_x001D_Æ_x001C__x0010_A÷l_x001D_¢À5_x0010_A\u0085Âï[_x0002__x000D__x0010_A_x001E_î¦ûâ8_x0010_A_x001B_BÐ©©K_x0010_Aî\t_x0010_¦>-_x0010_AÏHêf_x0013_ã_x000F_A\u0099\u0087\"UÉ_x000F__x0010_A\u0098>zîô\t_x0010_A\u009c_x0016_\u009fý'V_x0010_A_x0018_«(_x0016_Ä[_x0010_A.U\u009e±»Ç_x000F_Aþ_x0001__x0014_d_x0001__x0002_$_x0002__x0010_A_x0007_4kÝõN_x0010_Al_x0001_E\u0090Õß_x000F_A_x001E_·íd_x000B__x0019__x0010_AÍ\u0096\u0090\u008fn\u0095_x000F_A_x0004_Ó\u0080%ºl_x000F_A;3äÈÉM_x0010_A¤\u0088\u0096©_x0015_+_x0010_Af\u0097\u007f§v/_x0010_AÒ8[fÅY_x0010_Aiç{\"hä_x000F_A:k\tØq\u009d_x0010_A_x0007_\u00966\u008e]_x000F__x0010_AÝT»M_x0003_\u0084_x000F_Agn\u008c%_x000F_5_x0010_A\u0093yÀÃO_x0019__x0010_A`$ãij²_x000F_Aí(©,\":_x0010_AÆÇ$É3\u0084_x0010_Ajø\u0098ÊÁ_x0017__x0010_AÃÝ\u009aÉöH_x0010_AEÒ\u0091~/H_x0010_A¾_x000F_V\u0094\u009b[_x0010_A_x0010_×_x001B_\u009b_K_x0010_AúÜ:à\u0082_x0014__x0010_A\u007f_x000D__x0019_h_x001D_f_x0010_A5_x0012_/¹*;_x0010_AW\u009f§Á¿à_x000F_A¬\u009eÜ\u0088ÊÆ_x0010_A%m1ÚéE_x0010_A_x0019_d,\u007fIª_x0010_AÀ_x0015_§ÆË'_x0010_A_x0001__x0005_ÁÜ+\u008c±o_x000F_Af_x0002_hÏdö_x000F_A\u009e\u0093\u0090Z;Þ_x000F_Aþ\u0086$D¿Z_x0010_A#\u0095;i_x0010__x001D__x0010_A6\u009b¡tÉ\u0081_x0010_A9B\u009eÁZ_x001F__x0010_AMðd²B_x0007__x0010_AuÓ_x0011_H_x0010_l_x0010_AM\u0089_x000D_×\u008dG_x0010_AÝ\u009e_x0004_99Ã_x000F_AÆ/cÙÈÓ_x000F_A|_x001C_t8\u009fa_x0010_A¸ÎVv_x0005_(_x0010_Aí\u009c_x0003_\t\u009b9_x0010_A\u0099\u008bþR\u0086_x0006__x0010_A_x0018_3_x001D_-Y/_x0010_A·¾Å_x001F_©\u009b_x000F_A¯_x000E_@Ð\u0085P_x0010_AÿzÔ_x0019_$ÿ_x000F_A_x001F_?\u0086\u008a!Q_x000F_Aì.E_x001C_þ?_x0010_AÍ¿\u009dW^_x001A__x0010_AÖ*_x0003_gµ_x001C__x0010_AlsãÂwa_x0010_AO_x0014__x001A_Ë\u0081I_x0010_A\u0083dÇ_x000F_;8_x0010_A\u009c¸V\u0094Õ&_x0010_Aä¡øý(_x000B__x0010_A\u0092»q\u0091n_x000B__x0010_A\u0080_x001F_\u0083æs,_x0010_A_x0008_\u0098¢_x000E__x0001__x0002_\u008a$_x0010_A\u0090_x000F_õzäf_x000F_Aü¶X)5i_x0010_AÈ_x0013_©øy:_x0010_A\u0087\u008b\\û_x0013_S_x0010_A_x0004__x001F_\u0089:\u008dÄ_x000F_A_x0016__x000E_\u0082Ü\u0086Ë_x000F_A\u0083\t_x0013_Wfæ_x000F_AI\u0096ca#\u008b_x000F_A\u008cl3Q·_x0014__x0010_AÁhuL0_x0008__x0010_AÞ_x001B_;Lè_x001B__x0010_Aº¤½Ã_x001E_3_x0010_A ¥\u008en\u009e*_x0010_AZ\u0087GTå_x0013__x0010_AÌgRè1_x001C__x0010_A×>°\u009aï%_x0010_AÀUÍ\u0098$ _x0010_A6\u0089¥\"_x001C_3_x000F_A_x000E_ö £mS_x0010_AHÓ_x001A_\u0083\u0095_x0011__x0010_AÇ_x0015__x001C_;Ö\u008b_x0010_AOs»à\u008a»_x000F_A<_x0014_2Töß_x000F_As,PÓ_x0003_i_x0010_Axé~Ý\\f_x0010_A#Bs:'S_x0010_A_x001C_R_x0019_t×_x0004__x0010_A_x0015_ä*_¹_x0006__x0010_Aç¹×Ú\tP_x0010_ABx\u0084åñ`_x0010_A²_x0014_,\\¤6_x0010_A_x0002__x0003_K_x0005_·hs_x000F__x0010_Ao0-\u009b[_x0018__x0010_A_x0008_²!ÎôG_x0010_Aô_x001F_\u0080\u0081_x0004_î_x000F_AÍ#\u008eÕ`ª_x000F_A_x001E_¼_x0003_â_x0001_ì_x000F_AZhY¨¯Ô_x000F_A²O±3Ä_x0013__x0010_A_x0006_ÃY(_x000C__x001E__x0010_A¨ÞÅ@J>_x0010_A²ÞT?pZ_x0010_A_x0007_Ô®<j_x0013__x0010_A=_x001E_ZÈ,â_x000F_A\u0089~tBñ\\_x000F_AÞÐ÷­±_x0001__x0010_AÔ_x0005_Ü_x0018_Ã_x000C__x0010_A%_x001E__x0012_ef_x000"}},{"$cut":{"chars":54192,"head":"51777d91c190fc3ac184ee16b1af32c8_x0003__x0006_ =\u0099¢Àg¿À¨·\u00880`7ÔÀR2aüÞXÊÀ_x0012_GDX-\u0094ÛÀò_x0015_h_x001C__x000C_nÓÀÌ\u0097|mG½¹À6:¡ø_x0006_êÙÀ¢8è_x0017_ñÊÇÀ$1\u0085_x0018_4{±À\u0086\u009aÃ\u0085ý_x0002_ÊÀ¦Ñ\u009fæQ]ÈÀ0_x0001_Á>x±ÛÀäêf¹\u0094³ÝÀ_x0004_0\u0097Ý_x000D_`ºÀ\u0080uö\u008fc>ÚÀe/p\u0083\u008f>ÞÀ_x001F_6Ñÿ_x000B_ÈÒÀ´\\c_x000B_Ã#½ÀøÛÜª¼c¢ÀD<S:+fÂÀ\u008a\t#_x000E_Ø¶ÏÀ.¹[Ù_\u0094×ÀJ¡\u0083ÎÎ_x001B_ÅÀ_x0003_ä+_x0005_¹êvÀ\u0080Eü\u0096MãqÀíçÿ\u0092ãÓÝÀ_x0004_B}_x0019_¼_x001E_ßÀZ¡;BûpÀÀ*Ãõ _x0002_tÓÀhÃ_x0004_\u0095_x001C_#ÓÀ\u0080_x0017__x0005_¶ôH\u009bÀ´­\u0089ä_x0002__x0004_êD¿À\u009c@1\u008ep_x0002_ÃÀ\u008ecXµxeØÀr&p8øÒÕÀÐ\u009bÑêË_x000B_ÇÀp\u0082\tØ ¡\u009fÀZÚU_x0004_unÌÀ¼`_¯N½ÖÀGÊ\u0092^\u0084´ÚÀµF_x0001_Ñ£\u0091ÞÀà6E;rE¼À\u0098ûR³\u0096õÌÀÊ\u0080_x000F_Å\u0085rÆÀ,uÀ_x0013__x000D_¨¹ÀD\u0092\u0080_x001C_P?ÀÀ_x0011_ak+\u009aÂØÀ!û_x0016_Àí:ßÀ\u008aÄå_x0003_\u008d\\ÛÀàF_x001E_\u0095)t\u0084À1_x0016_9\u009dËMØÀ\u0090»#\u007f\u0098}¥ÀXï\"\u0095£ïÓÀ\u009c/_x001B_\u0081_x0011_\u0088ÛÀ@_x000B_0O¦´´À_x0010_¢S\u009eÀ\u0097\u009aÀ\u0080û\u008dÚ_\\\u009bÀ¾«_x0014_ò*_ÑÀ\"Vý~&jÌÀ _x0001__x0005_]Ø_x000F_\u0088Àxø*\\J\"¤À^a\u0081!A_x001C_ÁÀ0´ÙÏ_\u009d\u0094À_x0003__x0005_àöï¸ÈsÛÀ_x0004_®_x0011_<_x0010_Í¿À@fþU_x001B_ÀÃÀH(s%J-ÓÀ¬á*3\\/³À_x0010_Á_x000F_Å_x0010_\u0094½ÀàÁÊ\u0091 °¹ÀJã\u0084m\u0087?ÏÀ,m[iPFÇÀ.[\u008eP\u0088_x001A_ËÀ_x001C_ãf- _x0017_ÎÀ_x0002_ìíÔïÅÔÀT\u0084a²_x0008_\u009dÀÀ®é\u0083ÓÝ<ÝÀ\u0090_x0004_\\Ê±,°ÀJÞLüM\u0094ÔÀä_x0004_öV_x0001_¹ÇÀ\u009c£tµ«_x001F_ÔÀ \u0091\u0088HÑö­Àñ_x0019_AÐúYÜÀ>\u008b\u009e_á_x0012_ÍÀ\u0082_x001B__x001D_Q\u0081@ÞÀ_x0018_°_x0010_É¿\u0096ÂÀ5võn_x000E_6ßÀ,*_x001E_ýR÷ÚÀH\u0081;\u00846\u0091ÆÀæ_x001B_,\u0090_x000F_±ÏÀ$ï_x000D_\u0096¾_x0014_ËÀ¬Â´\u008dFÒ¶ÀÑ_x001A_ò_x000E_UüÖÀfm¹+\u008c_x0017_×ÀH®¾ë_x0002__x0003_Ê_x0003_ÅÀ>_x0004__x0013_\u0093>jÑÀ_x0002_\\Ñ_x0015_\u0093i\u0088Àò6|q¿.ÝÀ\u0080p{_x0016_«\u0098ÏÀ\u0083³`-ÜäÜÀ_x0016_û¹\u008b«ÑØÀòXÒåE-ÑÀÊa\u0080_x000C_G_x0004_×ÀædklÃ®ÄÀðR£_x0018_¿[\u0093Àl¥÷L\u0092êÕÀº¹/Fç&ÀÀpþª_x0001_§÷\u0098À¤ÄÇ_x0007_4_x0017_ÒÀ^=\u0099\u0095jäÐÀ°ã\u0086ßc¼ÔÀ¤:?\u009dÅ&ËÀ.Á[zI\u0094ÅÀlB_x0003_\u0093åUÊÀ²\u008c=´DÖÉÀ\u0090_x000B_Üè¸¼ÅÀ>_\u008fq_x001C_£ÚÀð_x001B_÷X«\u0080«À2\u0081\u0098Ó_x0007__x0002_ÖÀæªNÞv\u0081ßÀâ|oÌ?\u0084ÎÀ'iâ@¬«ÚÀ`2ÿh,;ÎÀ0n_x0011_6\u0093_x0016_\u0099ÀZï\u0087c!_x0004_ÐÀ\tWâ_x000B_ÎèÓÀ_x0002__x0003_B§C\u009c\u008b\u009b×Àü_x001A_ÊÜÍÿ³ÀÐ.«ÚyëÍÀ_x001A_>R_x0003_n`ÕÀy&Ç\u0091\u0093§ÙÀ«z\u0081\u0093\u007f·ÜÀ\u0088Ýu¹p@ÆÀ8NÝìîV·ÀAL}U=\u0089ÕÀ\u0094¨_x000D_w_x000B_Ý½À&äÅ(0HÓÀ_x0003_¥¸T&OÊÀ4SXtS=³ÀNâè^xoÞÀÀa\u008f\u0087ËößÀ,_x0011_ÏVu\u0087ÏÀ\u0097ñéò¢_x001C_×À_x0014_þ:À¢A×À_x0010__x0018_øÆ.\\¥ÀúWG_x0010_¢\u008bÀÀ\u009a¬l_x0004_Ä0ÖÀÚ_x0001_Rø\u0098qÏÀ_x0008_÷Â.\u0092½°À¼r\u0089*5ðÏÀ`\u009f«\u0095®C¬À|OpDMªÐÀ0\\jEÔü±Àp\u009aÊìV/ÔÀ_x001C_VÙ¶j8ÇÀ\u0091__x0017_84©ÝÀâLØ\u008cx±ÑÀN7Yè_x0002__x0003_Â\tÝÀPÝ>\u0097é'²ÀâUóÌhØÕÀ%\u0092x¬6äßÀöFO<GêÀÀÍ0[·õOÒÀ_x001C_tÞKîÄ»Àb±{éÖÍÄÀzÑsêlJÀÀ7\u0099//»Ú×À _x0001_Y¹_x0005_\u009e¸ÀôðÛé\u009cJÙÀ\u008a\u0095_x0003_^ò_x0004_ÕÀß\u0084ò°ß)ÜÀv\\Á\u0096q\u0099ÜÀH&E\u0095_x0006__x0002_»À ¶·z6õÔÀ\u0094É°É_x0002_®ÌÀì\u009e,ç¸÷ÕÀ6\u0098çW+Y×À0óºKâ8ÒÀ\u0080¼IoéZÀÀa_x000E_øhì\u0095ÜÀ$\u007f©X£ü²ÀiL¤_x000E_ç ÓÀPå\u0086|°[¡À<}ºæíýØÀ\u008d*EæÉ*ßÀÔ_x0016_¯?c\u0098ÖÀê¹¹_x0014_¾ÆÅÀ!_x001C_!\u009d\t'ßÀ\u007f5Ì×\u008cÆßÀ_x0002__x0003_ø8D¯¥_x001E_­À_x0002_ÅS*_x0004_k·ÀT_x001B_¾\u0086Á¤ÍÀýJ©ó¤\u0096ÝÀ³õ\u008e%­`ÙÀHQw\u009a_x0003__x0015_«ÀNeB¦Ä\u009bËÀÊ´|~ÚgÝÀlU\u0086¬_x0014_ÄÍÀ\u0094âäâSÿ½À(¬­w+Ë×ÀxÜM?_x001A_d¹À\u009e\u008c³_x0007_ ·ÅÀÐ3aÁq\"ªÀò¯\"§Z_x001C_ÑÀ\u0090Ö­½_x0001__x0014_ÞÀ|'è8Ý¸ÞÀ öMP\u008aú\u0089ÀXò6_x000F_c\\¤À\u0080\u0091_x0005_\u0097\u0082_x0011_\u0084Àº\u0098\u009dzÒ_x0010_ÜÀG{9W7\u009cÐÀ_x0010_7|_x000B_\\'ÒÀ°fM\u009b\u009eâÅÀ~Î<ÇéÂÆÀ:_x0012_Õ\u0082_x0011_µÛÀ\u0093]_x001B_ë_x0012_åÝÀBÍ\u0091 \u009bÄÙÀ_x0008_a_x0008_=\u009adÌÀ\\Ô§\u0080\u0087`ÎÀÒR§\u0090uãÖÀ0ðA®_x0001__x0003_²¾ÜÀe×\u0090þ_x001B__x0014_ÕÀÆ{±ºIXÞÀ_x0018_\u009eÆ¥7b­Àð_x0004_÷_x001A_dÒ¢À_x0001_\u0096÷iÖ_x0015_\u0093ÀÜé­¡V+ÕÀ_x0008_¿£]R5ÚÀN?S2F ÕÀ^\u0095\u0083\u008cÒ_x0006_ÞÀ_x0002_Xzä«_x000F_ÈÀ°ÑwÑjýÆÀZ\u0086_x0006_7_x0016_8ÍÀÐ\u0080÷\u0086Óì¥ÀÀÃº8#q\u0091À¼_x0017_íâáþ×ÀÌ_x000C_#¨Ö\\ÆÀ<ì\u0092Y_x001C_oÖÀP1-£î\\ÅÀp_x0014_\u0083û<\u008dÓÀTè_x0007_{¸\u0080ÜÀôB\u0083MÉB¹ÀáoÄ\u0092_x001E_?ÛÀ\u008c¤Ä_x0008_K\u0097ÄÀ6bó½q=×À®øÆ_x0002_Â\u0091ßÀr:òx\u0088sÙÀüDÝGð_x0006_ÔÀ\u008e_x0017_ÜY©`ÄÀn.w¿_x0002_wÚÀQ5_x001A_.m_x000B_ÝÀáþª8+­ÜÀ_x0003__x0004_\u009e_x0015__x0003_{c_x0019_ÕÀpó_x000C_¢=!ËÀñM\u0098Ü0ô×ÀØã·ÿ3¼®À\u009c_x000C_\u0097`_x001D__x001E_ÐÀâ.¶ïûóÔÀòZõ\u00820!ÚÀ\u009acpÑ+_x001F_ÝÀ_x0013_*\u0080ð¼wÓÀ_x0004_vGü7ÏßÀ_x0003_t_x001B_²)\u0095±Àø92Rg\u0094¦À\u0098tàÒ:u´ÀJ*j\u009fFpÒÀ<m*9ð²ÆÀ@ýf_x0001_iëÂÀ'_âÛ÷\u0097ÚÀ_x001C_+\tKg\u009d²À_x000F_¢\u0082(_x0003_\u0083ÝÀà\u007f\u0092@ñ:ÕÀ\u009c_x0005_\u0081\u0098LGÌÀu`\\úI\\ÑÀ\u008fG,¡ÚõÜÀôÏ{aíýÎÀîÆÅ\t\u0088ºÛÀK\u0095G0ÿ+ÝÀ /CÅ+\\ÞÀ_x0003_í/x_x0002_(\u0097À¾Æ8_x0017_!`ÞÀ®j ÂÇ_x0018_ÛÀ¬^=\u0081¬^×À;ylÎ_x0002__x0004_Ð\u0093ÞÀæÛG|Ã8ÀÀ_x0002_ÄÈ2`ç\u0097Àá_x0003_Ë½C1ÞÀúR7í'GÙÀ_x0002_L S:7ÙÀ_x0002_ùt)ú_x001C_\u008cÀÅëm\u0090+\u0095ÒÀhw¤1O¸ÐÀ°\u009aÄd·îÏÀ¸+_x000C__x0004_¼ ÌÀ_x001E_í\u0093\u0080\u0089`ÇÀE\\þ\u0094MyÜÀfu\u0096ynçÎÀP_x0018_x_x001F_ëýÛÀVP{û-qÍÀÊ\u0098áß\u0095\u0096ßÀÜ~q_x000D_\u0084_x0002_ÞÀ_x000C_Ô~\u0088ÑuÒÀÒä$_x0015__x0016_!ÔÀPîã£Þ¯ÛÀ\u008aÈ®ñ\u009csÐÀ \u0080\u0093S#Ì\u0081À \u0082çÕ\u009bFÊÀ\u009c·J_x0019_\u009f\u009cÇÀ`âf_x0015_\u0089â\u0090Àn(\u0084¨ÏwÑÀ¤ÄjAï_x001B_ÊÀ \u009b\u0082·\u008d\u009e¼À\u0088é|_x001B_c-ÄÀü}4_x0007_ÐqÞÀ_x0017__x0001_\u008fÝN¥ÞÀ_x0001__x0002_\u008c_x0007__x0013_î\u0080_x0017_ÜÀÔ\\c½~s½Àª_x000"}},{"$cut":{"chars":51348,"head":"dc3b22b4f3d2c879abfeaebc9c32af90_x0002__x000B_®_x001D_¥9_x0002_àÑÀfbUý_x001A__x0004_ÖÀ_x000B__x0007_D:Ò}ÍÀ\u0084\u0085ÀXlÓ×À.@\u007f¼_x0019_3ÆÀ@ñ\u0082\u0092ß.ÙÀÒãn½Í\tÈÀ,\u0095\u0092ï¸ºÉÀopP('ÛáÀ2¢>sý?ÐÀ¦t¥>w_x0017_àÀP77~Ðy£À¾ß_x000B_9¬SÚÀ:>_x0008__x0001_\u0082íÒÀT«_x0008_oÒSÓÀ E_x0014_¥hÔ­ÀÈè\u0089_x000B_yóÐÀ_x0003_Cdg`_x0017_ÖÀi·_x0006_±jÒÕÀ_x0012_\u0081\u0095$ËãÑÀ6Í_x000F_ä _x000D_ÂÀð_x001B_\u0083­^îÙÀ¯ø\u0083£í_x0002_àÀY_x001B_,+3\u008aãÀ8ÕòåÏ_x0014_»À\u0098hjý_þºÀ.ÛÞ\u0081¬ñàÀµ£t\u0095Z_x0005_áÀ\u0080_x0017_ÝÔ\u009fd À´ü~OHÝÚÀàá´¦m\u009a\u009eÀj }t_x0001__x0003_|ÞÜÀH_x0010_[(1MºÀ_x0008_¤3¥ôÛàÀ¶É¿\u0089r\tÐÀD×÷´Ë6ßÀxé_x001D__x0003_¤º±Àð\u0091_x001B__x001F_Åç¶À¨?NÖ\\\u009cÇÀ@Ï,R¢_x0001_°ÀÀ~Ú_x000C_\u0097EÆÀÚþ\u008dÌD_x0011_âÀD=ï]ÄÖ×À\\_x0003_O7¿Ñ½À8_x0005_8ý®4ÂÀh\u008b^YFa×Àñ¼ZÓk\u009fâÀ0ÿ_x001C_P\u00874ÞÀI¯ÈÇaûÖÀ@®\u0086_x001B_6_x000F_\u009cÀ¡R\u0085F_x0015_mÞÀ6W¬sê6ÏÀ¥J~Ì6ìßÀ!b¬_x0002_]_x000C_ÕÀ_x0006__x0002_¿*¶_x001C_áÀ\u0082»°1­\u0080ÞÀ:]\u009cà\u0096kÑÀ&þ)_x001A__x001F_óÍÀ`°Yº\u0090Í\u0092À®\u008d4µ,?ÔÀId¦ÔììÒÀÀ2óÛ\u0088¹\u0096Àç©Í_x0012_]vàÀ_x0003__x0005_8ã÷9:7ÜÀV_x0003_¡_x0001_ïÔÝÀÞI¾ô,ÝÙÀ6\u009c¿Å\\ÛÕÀ\u0090.Q\u008f8(ÎÀñ5½_x0001_5_x0001_ÑÀ@}\u0093F\u007f\u009a¦À,R°ÐÆ;ÒÀT[x°'îÍÀ0ãþ¯_x001F_9¤ÀÑÔT¿¦zÖÀ\u0094YbhÀçÀÀöSJ§Ø\u008fÐÀH_°TÌö¶Àj_x001E_dòëçßÀ_x000E__x0005_H\u008b­ÄÉÀ\u0086ú\u0084W5ÚáÀ\u0083_x0011_yhÝDÔÀ_x0010_0ÚóÝ_x0015_ÓÀ\u009cÄ¢¹î_x0011_ãÀ)\u0094r^_x001F_¬ãÀ_x0018_D\u0084¶A0°À_x0019_>ÇµÒjãÀ_x0002_\u0096\u007f_x001E_½RáÀ±\u009b 2\u008f.âÀ\u0080ôÌ\u009eQ_x000F_wÀ¼ù_x0004_Ïç_x0010_áÀ_x0003_ÈKÌÖA\u0081À_x0002_éÅ¯ðÞ×Àª~_Ë6ÿÇÀÒªÜ¿_x0018_gÕÀè±6%_x0004__x0005__x000C_G½ÀhXð)´ÓÚÀ_x0015_4ÕT\u009ciÐÀØv!_x0011_\u0083[ÂÀ|,Ö_x000D_ù_x0013_ÎÀ¾£Ã_x000E_Ê=ÝÀ³_x001D_°\u009a£máÀF\u0081R^r\u008bÄÀ8j âl_x001B_µÀÂö_x0003_°Å8ÀÀrB0w\u0084tËÀHóEy`òÆÀIBz\u0086GýØÀBÁbóÿbÈÀhÒ_x001D__x0003_^_x0013_ÔÀÑSd~ù_x001E_ÕÀ­'t\u0089R_x0016_ÒÀK_x0014_'ÈY°âÀ_x0004__x0001_\u009b69-iÀ_x001C__x001D__x0003_nèGÀÀÀ\t¢w÷\u008b\u009aÀ\u0082\u0087ý_x0016_ü¾ÓÀ_x000E_ê¾Ê?S×À#³¡\u0091ölàÀ\u0090ÔastJ»ÀÒÍ\u0094ËÝiÀÀôTK¾fâÉÀ_x001F_¨\u008c\u0089äèÕÀø.\u0099©1Y²À_x0002_£õM_x0014_ÂàÀ`:Åo)5\u0098À_x0004__x000C_dE6_x0011_¹À_x0003__x0004_ð®\u009c\u0090é¨ÅÀØkb¤ü\u009aÈÀ@t/_x0017_Ì¥¥À\u0080¿¼Ï\u0086\u0095ÒÀ9Ú_x001B_3\tÑÕÀÇéÙs2¿áÀPè\u008fm/ÐÅÀ\u0090u\u0080_\u008dè±À_x0003_\u0080_x000B_Ê¿<\u007fÀêZ½²­pÂÀ\u0086_x0016_I£@\u009dØÀº\u0089_x0008_kÿËÂÀ°_¡l_x0001_z°À\u0084^Zí\u0086gÒÀ_x0003_¶0ûðæ\u0086À_x0003_á1;¼6|ÀJ&ZS_x0012_NâÀ_x0005_+ç¥Ã_x0002_ãÀ®ç_x0010_\u009b÷_x0002_ØÀ\u0088Èzã_x0006_mÊÀ _x001D_»\u008eíÖºÀq4Ü_x000B_NøÖÀp@>?_x0004_\t´Àâ\u0085û)_x000B_ÆÕÀÆ\u008d+_x0016_ýòÒÀ _x0015__x001A_¯_x000F_J­ÀXóç_x000E_Ó\u008dÉÀ\u0089_x000F_Øvð\u0092ÖÀ\u0098\u0098V\u009fÅ\u0088×ÀÃ:\u0080ßçûâÀÖ\u0093P+ÄõÓÀÈÇêù_x0002__x0003_ÒXÏÀ±_x001D_veh_x000E_ãÀpâé\u0088åÞÞÀBñyxY-ãÀÆme¦\u008dAÓÀ_x000C_a:yJüÎÀ\u0090[#r\u007fô¸À8é\u0083m\u008e\u0094¶À\u0091Û\u008eRª_x001F_âÀ\u008ep[\u0083\u0092qÛÀ@\u0081©\u0097Á\u0094\u0093ÀÌÃv O\u009dËÀ\u0080§aT_x0005_q\u0080À£4\"õµÿÚÀèm®÷ï±ÉÀXwÛû_x0001_t¹ÀÂ_x0008_M*!RÙÀÀ¬ðÄ<h\u0091ÀÐáG>å>ªÀ_x0002__x0002_÷½u_x001B_ÊÀJ¿gÀü\u0085ÅÀÄ¢Ãaä-ÀÀ¶å_x0018_EtßØÀ_x0002_oªÙ=,¥À¨#·\u008f\u009eGÔÀþ_x0007_ø_x001D_©\u0082àÀdÅ\u009cø_x000F_°ÜÀ²Êrß¸³ÈÀ°ÇÒ\u0089ÄÊ£À¼_x0007_´P_x001D_N¿À_x0002_¨\u0082\u0081B3KÀàTú\u007f#_x0017_ãÀ_x0001__x0002_Â¸÷ÈôéØÀt¢\u0082fç\u0094àÀ¡. \u008dN\u0088àÀ\u0081raÊÝ,ÐÀ\\¢õ\u0087P\u0098ÃÀÝx½_x0016__x0008_oÒÀ\u008e\u0092^õ_x0019_®ÏÀ_x0012_»iwêúÀÀÉ#³Û#\u009a×À_x001E_{mhcmÁÀ0­_x001E_ß_x0015__x0007_ØÀ®6îé_x0006_~ÖÀPë\u0091Ë¨\u008f¨À_x0006_¾[\u0085 qÖÀÄã_x0001_\u0081,õ×Àx¾'w_x0014_ÛÈÀ gWçñ_x000E_­À¿?mX_x0004_yâÀ\u0090¨\u0088CÞñÑÀ_x0001_W_x0016_(_x0001_ª\u008eÀ\u0084_x001D_ð-(=¿Àòóÿl\u0093GáÀÈ\u007fò4ï¯ÈÀ_x000E__x001E_,ÍìþÏÀ(_x001E_XÂX\u0083¶À\u0085|@ÏäÙÓÀpPT\u0086_x000D_$ÙÀÃ_x001F_½ª¿lÑÀ\"Yé¸\u007f\u008bÐÀ°¯:\u0093CâÔÀ\u009a¥WÁ2\u0087ãÀA<}\u0081_x0001__x0004__x0002_ÈØÀv\u0086né_x0016_§àÀâ:>07¡âÀ_x001F_T§ÔÏ\u009dÝÀXo|Æ ,¼À6p\"Àê\u0093ÆÀÐÚï\u007fR©·À$!_x001B_s;ÆÖÀ,3_x0012_\u0082\u00946ÞÀðè±\u0081õ_x0012_âÀd\u0087>_x0003_\u007fÒÔÀ(!.±<h±À\u009e³¸\u0098G\u0085ËÀî¥èNý\u0097ËÀäJÍú¤)ÞÀWI\u0082g'\tÖÀàÇÙOþ©ÆÀl~ÆÕ|üÍÀð_x001B_±\u008c\u0086ÁÛÀ@'ô\u0087_x001F__x0017_±Àz_x0019_»ùï±ÞÀP\u009f'DÏH®ÀÎX¼H\u0092³àÀ\u0082½À¸üNØÀ~ÁÊY|tÁÀÒåºÂG°ÌÀú_x0001_Þ_x0008_ñ+ÞÀr¥O_x0017__x0011_&ÚÀà\u0098±1\u0098\u009aâÀÔ\u0094þU\u009eÀÀÀÖ\u0099ÔJ}_ÀÀ8\u008f._x000F_é¶³À_x0001__x0003_\u009dó\u0095x\u008dlãÀ\u0098\u0084_x0018__x000C_^þßÀ$Ö^:t>ÓÀÈ\u007fèË×ï²ÀZ®Uf-yÙÀP¹1\u0088<ûÆÀZGWA\u00906ÂÀ¤F(³~3ÌÀXS\\_x001E_\u0093_x0006_ÙÀ\u0094_x0012_Ì\u0090e\u009dÞÀD_x0005_6QÇ_x0014_ÊÀ Ç_x001A_ë\u0087\u007fßÀ_x0008_ïìa¦K´À`4\u0099<Ö_x000B_ÁÀ_x001D_\u00911_x001E_b£×Àfz_x0018_P+ÊßÀàAîf\u009bI©ÀüÈ>c!T¾À_x0001_{î\u0087¿®}ÀZÚsC\u0086_x0004_ÄÀ´ªØ°¯_x0004_¿ÀÂ_x0012_s\u0097_x001C_àÆÀ\u0082(_x0010_¸üµÊÀ_x0008_3_x0014_wàÜ²À@O¼½\u0082Ì\u008fÀ+Þ\u009f_x0007_\u0093_x0004_ÔÀ_x0010_ÇCø)þ£ÀRú(99\u0080àÀ8_x000B_dB\u0099®àÀ¸\u008aÕ¥Ë\u0092ÚÀ üôî.A°À :_x0002_0_x0002__x0003_\"_x0004_\u0097ÀÄpÛ(\u0089JØÀæ£\u008f\u008b\u008ccÃÀë_x0010_d ÔlØÀôü\u008aÂÇËâÀÑ_x0007_\u0083Ô³\u008eâÀñ^ê*_x0004_1ÛÀ¯Òc_x001A_\u0097\u009báÀÈ\u008e§~ÔÚµÀ°p\u0089Ç³{¡À\u0084}3_x0004_å×ÛÀ²\u008cê\u0097_x000D_`ÚÀñ_x0013_À\u0098#_x0007_ÝÀî\u0081C_£WÈÀ_x0017_Ün·f¶ÙÀ¸ña²¦_x0015_ÀÀ_x0013_G­÷´IâÀ\u0089h_x0001_Ð_x0002_ÍÞÀ°øïg©\u0089ÖÀ4ÔÝP]øâÀ¸0#ê_x001F_ª¹ÀJâ\u008döº\u0098ÀÀvÌ¯\u008a\u008aãâÀ&çúº@ÖËÀÐ\u0086a>_x001F_\u0090âÀÆIãöl_x0005_×À_x0008_2Y_x0019_O_x0010_¿À&çây;<ÌÀÔ{_x001E_\u0089ø_x0003_ÜÀâàÙBì]ÜÀ_x0018_£³+ã_x001F_´ÀâJTGÿ_x0003_ÎÀ"}},{"$cut":{"chars":71400,"head":"1d2fa932ed057d2f6b24f7c00f76962d_x0002__x0003_ãYéÅ_x0005_¤ÑÀ â_x0002_\u0094oï¬À¯Í×_x001C_JCâÀ_·6ÁC¶ÑÀ8íwë_x0018_\u007f¾À _x0015_L_x0007_5pÊÀzÁð¶N0ÏÀ\\\u009d&\u009d»ÆÍÀîtÏ5/êÇÀ\u0090\u0085\u0097[_x0015_W§À¬ô0ô*_x001B_ÙÀÕ[Ù_x001E_\u0087\u0099ÜÀnÖ_x001C_ã]_x000B_ÅÀ> b{_x0007__x0010_áÀ\u0092_x0003__x0006_2ð\u0089âÀìzP_x000C_ØOÝÀð_x0001_~P¹J·À_x0018_\u009a_x000B_KÑ¹ÝÀ°(Kv_x0013_K²À_x000D_(Qy\u00825ÖÀ_x0010_Õ_x0013_4ÅWÚÀ Ö\u0091_x001C_w_x001E_ÙÀ ö&O;\u0088\u0099ÀÔ_x001A_\u0094E3_x0011_áÀ÷[\u009b_x0018_¦7ÓÀèlðã\u008dÞ·ÀbÐiï\u008dÄÜÀ_x0008_ðÄ_x0012_cÍØÀ\u008f\u008fÝ\u009d¾\u0097ÒÀëÄPáª_x001A_àÀ9_x0010_gÛ²J×ÀP3@ï_x0002__x0004__x0003_3¨Àm)í_!_x0016_ÝÀ´_x0001_ÊÕY_x0015_ÜÀ\u0092Ð\t«åòàÀ\u0097rþ0»´ÕÀ\u0096ú\u0080A?îÉÀ\u008f_x001B_M¶¹ØáÀÚLm\u009eã_x0003_ÑÀ\\Æ_x0004_y_x0013_¾ÐÀ¾oâ0QñÓÀØ¶KÌÛÆ¶ÀØÀ\u0083²ç_x0001_µÀRY{Ä¬i×Àp\u0085ÿp¾À¹À\u0084\u0098÷_x0016_W\u0083ãÀ°þ\\Á§ç³Àÿ\u009bè`ê<×ÀÀ%_x0010_¿_x001D_'ÔÀZ_x0005__x001D_ÝX\u008cÜÀB\u0099_x0003_)&ËÛÀ@ó9ç8¨\u0083À_x0010__x0007_'_x0001__x0008__x0007_¬À4FÁ@ù&ÈÀp¢7ðNcãÀØ\u0097_x0017_Ù_x0013_@àÀ¼\u0097F_x0019_._x0008_ÅÀ@\u009b¤\u0081~è¢ÀÒ8#_x0014_\u0099QÞÀ¤Tÿ>\u0091\\ÍÀ _x0017_#\u0098)a¸ÀÑ\u0083Ú\u008ai-äÀ_x0017_}±P\u008f\tÔÀ_x0003__x0004_xËóI>¤ÁÀ8k\u0081ìñM¹À_x001E_Ø/Ú:ØâÀÊÿ¦_x0017_/ßàÀ1(UxY âÀ;ü9_x0004_}DÔÀæ_x001E_\u0095m!BÖÀÚµ_x001F__x0014_­ÛÃÀ._x0011__x000E_¥='äÀðKNÈ\u008f ãÀ.Ô\u0085ÒúèßÀî°\u008c\u0099ô?ÌÀ_x0003_@Å²­úzÀ_x0002_b>_x0005__x0008_²ÐÀ ~)_x0007_\u009fÿ¼Àü\u00885²_x0010_²ÍÀ°ZÊ_x001F_öÿ¢ÀôR¡ÿù_x001D_ÁÀ`áå¤-\u0082±À\u0088qª½VÝÍÀRRù\\ÆgãÀ_x0003_@_x001B_N>_x000D_BÀ\u0099ñ9 í_x001D_äÀ>¡{ë\u0088váÀ¬$)[\u0095fÇÀf_x0001_ÍËýóÌÀES_x0013_\u009dÈ\u0095ÐÀ\u0098_x001B_Y_x001F_}+¶À_x000B_\u00939úÁ\u0094ãÀ¾8¡ñ~¤áÀ|È\u0098tþ\u008cÁÀ¬Q\u0089\u007f_x0001__x0003_!<áÀ`_x0015__x0002_w×_x0005_âÀ©\u009b\u0085DøùÓÀÚ_x001B__x0007_0\u008c3×À:ä°a>AÛÀ_x001D_s74\u008cÌâÀf¡6\u009aë ÈÀÇèöbqgâÀÆ6O°´\u0087ÒÀh_x001E_Z¨k{ÍÀQ\u009c_x0015_¥_x0011_ýãÀ\u0095\u009fÑ}ì\u0093âÀLoß5cdÌÀÀ¦:Ö¥&¶À\u009e+v\u0091O\u0098×ÀÀöI)\u009fgáÀÈÂa¼_x0005_&ÃÀ_x0018_ózV_x001C__x0018_ÜÀ_x0013_ðy\u009a_x0002_ÄÓÀ_x0006_Ó*\u0096ù¡ÊÀ_x0008_1l:@X¾ÀØî<Ïg âÀÖ<Û\u008e_x0007_õ×À\u0098rhÐ¯\u009cÛÀ.7__x0014_®_x0005_ãÀÈ\u008dL£dÅ±Àc\u0086Î_x0014__x0002__x001A_áÀQØ\u0085mX}àÀAwÂåOWÝÀÎ*®gÅQàÀÐ\u009a¼ÔQ«¹À\u0080_x0003_\u008cØåë\u009dÀ_x0007__x0008_m4_x0004_;\u0082\\ÕÀd'_x0019_Þ\u0080_x0004_ÏÀh_x001B_²h\u008bÍ¼À°ìq\u0084ýÁÛÀ_x0006_ÂukA#ÍÀ®`õó¤càÀ\u0080&\u009aÔÊ©ÏÀªðø;#·àÀØÐ_x000B_(u\u008eÆÀ6ñ\u009b2_x0010_ÒÅÀ ½¨¼©%­Às°\\×­üÒÀ`æ\u0081ë´_¨ÀàÛÅÝY_x0002_¢Àp\u0094fßs>áÀºª_x0004_¡½_x000E_ÆÀÿÅÕS\u008c¦ÔÀiêSf,üáÀ\u0080ÛËÏ¦é«ÀÏàZÇ\u0082þÖÀ_x0001__x001A_¹¥æ_x001E_ÓÀàKO*\u007f_x0003_²À_x001F_êÐÐÊýàÀâT_x0005_§ÎéáÀÀ,ÍTI)\u0089À_x0018_ù-Jï_x000D_¾À_´w§QóãÀ¤éþ¼JëÛÀ\u0096|\u0090¾\u0088$ÛÀvÇ¯îÑaÜÀ«¥:ÕÊ_x0002_ÐÀ\u0097Aÿ8_x0002__x0003_{+ÚÀÊ?'\u007f@ºÈÀ\u0087ö\u0095uÔ_x0003_ÝÀ\u008c,_x000D_¸e0áÀ_x000B_05_x001D_§½ÜÀÎ_x0001_ÍqBMÙÀ\u0092\u0082Át]lÚÀß-\u0090.ÙjäÀhéÿrhíÃÀ(s;W´ ×À\u008a_x001E_\u0088_x0002_p\u0099ÉÀ°_x0002_¦Kî¿²ÀN_x0007_QLsNÏÀ\u0095\u009eèF_x001B__x0007_âÀ\u0080þµ´5ñxÀ\u0080\u009e7Ï2ñ\u0086À\u0089Mv-â_x000F_ßÀ*\u009ctòQ\u0089áÀ´\u0089³_\u0092öÎÀZ\u009fÜ&ÕXâÀ`¿æ:Û$²Àn~\u0086áô\u0098ÂÀg_x001A_\u0090PrxâÀ@x_x0014_±8\t¿ÀÀç\u00885^_x000F_ÛÀ5\u009d\u008e \u0086ëàÀDèÜ%aåÆÀÂ \u008c¯Á_x001A_ãÀ¾ÈÏ_x0017_R_x0013_ÅÀ9àîNÛÌÓÀ×NJªm_x0018_âÀÎM+_x0004_t$äÀ_x0004__x0006_Äµ_x0003__x0011_VëÍÀ2q#ø\u0099räÀ_x0004_¤jsªi¢À*t\u0091yÞ¯ÙÀÝÑbEÇýáÀ_x000D_×A¬¡øÝÀ*®¹@GÀáÀ&`§_x0019_­HÞÀ\\³K/¦[áÀ_x001E_®Ît\u009cÿÂÀ\u009f!\"ã¹ÏÙÀv\u007f_x0003__x0004_î}ÐÀ\u0083Ý/\u0083\u008a\u0081ÕÀüí¹aéÙÏÀg¥®Mh9ØÀõ_x001F__x0005_ñY¤ãÀ@ O_x001F_ûë ÀV^x-â_x000C_ÃÀzmÈ\u009añ¢ÄÀ¡h9_x0001__x0011__x0013_áÀ\u0080\u009dTÊ\u009cÐ\u0087Àþ­*_x0014_\u009d_x0013_ãÀüNH0É_x0001_âÀ\u0090[­æ.#¡À_x0002_u¨¤2¦ÛÀ_x001C_\u009e_x0002_qO_x001B_ÄÀ&ßÛW_x0017_\u0091ÍÀ¼õûY\"ðØÀ@_/_x000F_¬&\u0097Àõ,Ï_x000D_\u0095áãÀp0\"U\u009bìÙÀð\u0082]¹_x0001__x0003_¯oÔÀV\u0082Â×¾@×À\u008aÄ,¼CGÞÀ \u009cú_x0013_Î' ÀG½E\\ÝÓÓÀníM\u0097&ØÇÀn²çÅ_x001B_ÇáÀ\u0086Rª\u0087v1ÈÀ:\u0096sNííÝÀ0\u009b4ü:h­ÀôóÅ\u0095Tú×À`\u008fW½!¦ãÀ0_x0010_Þ_x0005__x001D_×µÀ*ô\u0095Á\"ÕÆÀQò_x0017_ä:æÑÀ¥xD_x000E_Ö\u0097àÀ6Úª0^\u0095ÎÀ_x0002_°Z¬ó½ßÀ_x001A__x001E_\u0094_x001B_GæàÀè_x0017_\u0082+½eÛÀÎ_x000E_g®#IßÀ0\u008f\u007fdÓ\u008a©ÀF¢\u0091_x001D_\u0095_x0012_×ÀÞ¢^µÑsÍÀ¬o\u0097(¦3ÔÀ\u008aÀôJ_x0013_ äÀ0\u0091úÂ\u0087ÿ´Àø¥ô«_x001B_Û¸ÀÀ.3_x001E_Ë$\u008aÀÞø_x000C_$ÛgÉÀn_x001F__x0010_NÒ7ÑÀG\u0084\u009ea_x0010_ò×À_x0002__x0005_@©T_x0005_~ç\u0096Àþ\u0085}Ü\u009cìãÀàyv1_x0003_kÉÀ0(MK\u0098ê©À\u0081S\u008f_x0012_ÅåÙÀ\u0096D_x0008__x0004_2dËÀÛÇ»B´_x000F_ÚÀ\u0095®q7>_x001F_ÞÀ\u009bíÖYeºÔÀnY sð=ÉÀ\u00803Ü£]\u0096\u0081À_x0017_t_x0010_\u0087_x0014__x000E_àÀ\u0088],zÄM¶À_x0007_òò$\u0088ÐÜÀ_x0004_ô\u0099a_x001F_mÑÀ_x0002__x001E_Ì0&\u0097\u009aÀ]~\u0082mÔ\u0096ÝÀM\u0097\u009bÁ:,ÝÀÀÕ^Ìá_x0011_\u0080Àn\t_x0002_hÓiÞÀF¹×ÔL'ÓÀÔ\u008a\u0096\u008eÝLÄÀ_x0007_?MÁ\\ÚãÀ0uÞo_x0001_Ó½ÀP_x0013_Q!Ð\t¡Àb¨\t_x0017_\u0084ªØÀà}\u008cÙ¶Ç\u0092À\u007f½?!à]äÀ_x0008__x000B_Ýã2fÝÀ\\Û¨\u0091_x001F_\u008câÀ­vCåpgÙÀ7è«_x0008__x0001__x0005__x0005_6ãÀP_x0010_DZ??ÖÀ\u008f_x0008__x000F_¤_x0002_(àÀ\u0080Ò³_x000F_\u009e}½À°\u008eO\u009d¸_x0017_µÀ\u0097^½¢wíÐÀ_x001D_Ô[ì\u0089_x0004_áÀ_x0008_q_x0016_C\u0082@âÀ<\t\u009fT_EãÀ3¯§ÝP<âÀú.¯\u0092XþâÀµò_x0015_ç#\u009aÛÀ'_x0014_g\u0095lsâÀµ |¥rDãÀà¢\u009c7f\u009a£À47¹úÚ\u0099ãÀ­XôL 'ÞÀl¿v¸_x0016_1ÐÀ_x0008__x0001_µQá_x0002_·À¿_Tï\u0081.ÖÀ\"D\u0086Í8lÈÀ.W[Å®eÂÀf«_x0015_Ò_x001D_àÝÀx^E®-_x0003_¾Àxgêãç\u009aµÀ*?ÙJèJÇÀ_x000E_»}zl$"}},{"$cut":{"chars":75510,"head":"86912dc44248507d06508bc1beea0c70_x0004__x0006_eo Á\\Ä_x0014_Atü\u0080Jb_x0011__x0015_A9¡w5øð_x0014_A\u0081[\u0085zÙÜ_x0015_A\u009a_x000F_z_x001B_\u0086\u0085_x0014_Arçäô\u009e_x0012__x0015_AË_x0004__x0003_Üdî_x0014_Aa{/_x0002_ðë_x0014_A\u008aJP²\u0082d_x0014_A\u0083%2Ô&Ð_x0014_AFYýÊ@ê_x0014_AßpÐ\u008aý_x0014__x0015_Aþ¿\u0098_x001B_b°_x0015_Aé ø\u009a1_x0015__x0015_A\u008e_x0005__x0018__x000E_ò±_x0014_A _x0001_ÈiÙU_x0015_A2di\u0087;\u009a_x0014_AÔ$¥´>ä_x0014_AèæÜÝ.å_x0014_Aø¨À\u00813%_x0015_A?_x0015_©\u007f I_x0015_A\tw¤Bs?_x0015_A\u009d¨_x0017_;_x000B_I_x0015_Ad\u0084·Ã¬Í_x0014_AÅ¤CK(\u008f_x0014_Aª.¦\u009a¥_x0016__x0015_AèG\u0089:æl_x0015_A\u0083t_x0007_W5û_x0014_AÝ_x0016_]_x0005_Oö_x0014_A\u0096EHCÜN_x0015_A%j@ï5_x0005__x0015_A^\u008boÁ_x0001__x0005_\u009f!_x0015_A_Ì¯y'\u008c_x0015_Aó\u0092_x0010_ë ~_x0015_AºÊèØð{_x0015_AL¦ø\u008b_x000C_\u0081_x0014_A_x0006_{³\u008d±Ã_x0014_AV_x0013_òÜ|\u008a_x0015_A±(½&\\Ô_x0015_A¤\u008a<\u0092øÆ_x0014_A\u0081_x000E_iK½Ê_x0014_AÇe[Wµ_x0002__x0015_A¿ë'ÒÚª_x0014_Aóuÿ}2\u0087_x0015_A­_x001B_=´I¹_x0015_A_x0016__x000F_UÕQÐ_x0014_A_x001F_¾Ùlî¦_x0014_AgªZ=\u008c°_x0014_A\u0087|5\u008a3à_x0014_A½Ý^áÏ³_x0015_AùÁ\u0080:Q\u0088_x0015_A_x0017_Bx\u0082_x001D_\u0086_x0015_AÞÜ\u008f\u009fÀÝ_x0014_A\u0086_x0018_6\u0085ßm_x0015_AdJÏ_x0004_ÔI_x0015_A¯¯@]ç\u008c_x0015_A_x0017_Ä»ªû_x0003__x0015_A\u0082Úð»qO_x0015_A\u008cÈ×ÁK±_x0015_AÃ_x0007_n:°ó_x0014_A§d_x0007_V¶n_x0015_A>,[\u0093©â_x0014_A_x0019_Ó_x000C_i¸O_x0015_A_x0002__x0003_Â_x001C_\u009aM_x0018_æ_x0014_A¿>8##ö_x0014_Ar\u0091BR_x0005_&_x0015_AyÛ_x0016_\u009e¿_x0016__x0016_A`çÆ_x001D_½_x0001__x0015_AË÷ìWü¬_x0015_A_x0015_»\u008eåÜD_x0015_A_x001E_´_x000B_ÞÁð_x0014_Aa­_x000B_\u0086§z_x0014_AAþï;)4_x0015_AË\u008cäÀJK_x0015_A3¾É_x000F_§s_x0014_A\u009dn#Ht\u0098_x0014_A©.ÛyÁ±_x0014_A\u008f\u0090\u009e_x001F_3>_x0015_AÖêä_x0017_ÃÁ_x0014_A]½_x000C_yÖ\u0097_x0014_Ae+\u008e\u0080î±_x0015_A_x0008_9q6g\u008b_x0015_A_x0018_&c_x0018_»_x0005__x0015_A=~{3Ôò_x0014_Aý·³Fq_x000F__x0015_AØå_x0019_á\u0082_x0007__x0015_AJdEf\u0093=_x0015_A\u0082ÈRp_x000C_T_x0015_AþÂkõïx_x0015_A\\,òö¸_x000E__x0016_AûN»<¿!_x0015_A\u008c2iI_x0001_ò_x0014_A_x0019_ó\u0098F\u0091Æ_x0014_Aû5_x0001_þ\\¡_x0014_A}~a¸_x0001__x0003_\u008f*_x0015_Aâ__x0012__x0002_Ì_x0001__x0015_A_x000C_5ÏsLg_x0015_AúÑô_x0005_\u008a\u0097_x0015_AÚÄ\u0098!\u0095_x0018__x0015_AC\u008a_x001D__x001D_ h_x0015_A\u007f½Ç¶Rã_x0015_A_x001B_Æ_x0014_Í9\u0081_x0015_A¥\u0093>B96_x0015_Aª_x0013_Ùb\u0093v_x0015_AÆ!Ê_x0004_U\u008b_x0014_A£Ü&«\u0082Õ_x0015_A·¦¼2ï¹_x0015_A\u0083Ç0hù`_x0015_A_x0008_×õ¸@ã_x0014_ACn_,/\u009d_x0014_AåJ«\u009c%0_x0015_AªspÍX£_x0015_AnÍÝ]÷ã_x0014_Ai._x000B_\u0082^\u0081_x0015_AUUi?Ba_x0014_A¦4[_x000D_MÞ_x0014_AÜ5bÞâ_x0001__x0015_A¾áå\u0087\u0090#_x0015_AO_x000B_\u0087\u0088î\u0093_x0015_AëLsÿÁ4_x0015_A¹_x0008_z_x0013_/÷_x0014_A?ê±7]r_x0014_A\\Ö0S4ë_x0015_Ap_x0004_äí\u0089p_x0015_AÈQ\u009cíkz_x0015_AÏÍ\u0089û/ë_x0014_A_x0002__x0005_\u0094ºÀûîh_x0015_A¾\u0082_x001E_1_ê_x0014_A4æ£Ou\u0080_x0014_A\u009fáÓ_\u0080_x0003__x0015_A\u008fF}F\u009fv_x0014_A¤\u0080¾\u0085á>_x0015_A_x0012_¹Ó×ÂÜ_x0014_A¾!t*Hó_x0014_A*\u0097~b\u009dµ_x0014_Aùs\u0091«\u0093Ã_x0014_AÁN¨5üU_x0015_AJHbâ¶Ó_x0015_A!µþÓh-_x0015_A_x0007_È_x0014_êgÆ_x0014_Aw\u0090_x000C_Ï)P_x0015_A_x0015_©6öõ\u0095_x0015_Aì Û_x001A_Ý\\_x0015_A_x0007_õ_x0013_´_x0018_A_x0015_Aw\u0092M06õ_x0014_A\u008eg_x000E_HÆ±_x0015_AÙÁ_x0001_7òb_x0015_A.xU¢_x001E_L_x0015_A_x0001_r;Ia]_x0014_AîR±×h©_x0015_A\u0082hUr\u008bÏ_x0015_Aë\u0086N\u00991_x0004__x0015_A_x0003_ö¹b\u008dü_x0014_Aõ7h¥\u0093 _x0015_Ak!S\u0080en_x0015_A©EÐ-»\u009c_x0014_A?\u0092ó0Ãx_x0015_AÜ_x0001__x000F__x0015__x0001__x0003_L\u0096_x0015_Ao««±\u008c_x0016__x0015_AÒ\u009e_x001E_bBJ_x0015_A¤F±¬KÕ_x0014_AQ\u009drF8¬_x0014_AÏoÊOMì_x0014_AXoi\u008cé\u0088_x0014_Aº¬¾\u0081#T_x0014_AÆ=\u0099.-2_x0015_A_x000C__x0013_Â4nÇ_x0014_Aß¯ùÒ·Æ_x0015_Aäþc@;þ_x0014_Aq\u0080p8ûT_x0015_Aº_x001B_É\u0096\u0089)_x0015_AF2T_x0011_\u009a_x0005__x0016_A×_x001F_Ô\u009dáâ_x0015_A¯q\u0099o]c_x0015_A¸iH\u0085¶_x0013__x0015_A±ÒÀä~A_x0015_AÎ§ÐÑÄ¢_x0015_AöÏl\u008cØ_x0005__x0015_AE*b·ú\u009d_x0015_AaJÿ-_x001E_»_x0014_A_x000E_0]\u0099ÈZ_x0015_Aôì©¶S\\_x0015_Aè7_x000C_e\u0093e_x0014_A$_x0011_´Ä_x0018_\u008b_x0014_A;Õ¹_x000F_}_x0019__x0015_Aë_x001D_w+£\u009a_x0015_A®§_x001D_8_x000C_ï_x0014_A_x0002_öÿ¡qÀ_x0014_A\u0090ÇLb¸_x0015__x0015_A_x0002__x0003_µ5øCÁ_x001A__x0016_A9qÎ]_x001E_`_x0015_AÄàd¶cD_x0015_Aî´@r&=_x0015_A_x000B_Õw'ó_x0019__x0015_Aæ£ÙÈzë_x0014_A=M­%\u008b_x0012__x0015_Adîh[â__x0015_AEó\u0080µ1b_x0015_AÀ\u0097sa\u0082½_x0015_Al_x001D_å*# _x0015_A\u0089_x0004_\\A\u0098Í_x0015_A\u00836Ç_x0015_@\u008b_x0015_Av\u00901'\u009f\t_x0015_AÞ\u009c_x0013_¿+_x0008__x0015_A@¬HLÐ|_x0015_Aûz:_x0013_å_x001A__x0015_A+Fæ¶¼_x0012__x0015_A6Â_x0001_øñî_x0014_A<MU\t\u0092i_x0015_A_x0001_,}rLþ_x0014_A0Ëãô°\"_x0015_AfõeR\u008a¥_x0015_Aïhæ\u009d\u0084._x0016_A½ó\u0091×mê_x0014_AiN-×ñ_x001E__x0015_Aô_z_x001B_\u0081_x001A__x0015_A\u00869_x001C_ð\u009b®_x0015_AëêA Ã\\_x0015_A*\"jB\u008að_x0014_A"}},{"$cut":{"chars":76326,"head":"276e3c3df381055163b2c807df6cce63_x0001__x0003_ÿã\u0085gcª_x0019_Aèé_x0005_Ç\u008cù_x0019_AVe\u0099_x000B__x0003_\u0099_x0018_A(Seú93_x0018_A_x000B_9f6#¦_x0019_A=_x0019_¿Q÷Ð_x0018_A`ßO|_x0004__x000B__x0019_A×§µ·³\\_x0018_A¸KE¼7Á_x0018_A2ÑD _x001B_ü_x0018_A\u009a}¥\u0084¹O_x0019_AÞ\u0089Q_x001F_Å0_x001A_Aõ?Û_x0002_\u0086ó_x0018_A»åNÛ¹î_x0019_Aµ_x000D_ÍÜ¯<_x0019_A15\u0087ø>ù_x0018_AÕ_x0007__x0008_Ø©W_x0018_A¾Û/_x001E_õE_x0018_A_7ì¨S_x0014__x0019_A<´Y_x0016_¡©_x0018_AîUfÿÍ\u0085_x0018_AÔ@TÒ]Z_x0019_A^$P_x0007_ô¾_x0018_AA_x0010_²×_x000C_\u0095_x0018_A_x000B_@x®<Q_x0019_AE_\u009esu¼_x0018_Aoa¬_x000B_(\u0092_x0019_A _x0014_\u0084ö\u009b*_x0019_Ac_x0019_\u009b_x000B_M\u007f_x0019_Aða'§'í_x0018_Aé®;$åH_x0018_A_x000E_t\u0088å_x0001__x0004_õw_x0018_Az_x000F_E\u0096¢Î_x0018_A\u0080v]á»·_x0018_A_x0016_4óJ_x000D_e_x0019_Az@s_x0007_6p_x0019_A±jÁË­á_x0018_AÜ®\u0087ï\u0090¥_x0019_A_x0004_\u008cÖ_x0006_##_x0019_A4Jãzx]_x0019_A8_x0001_Î¶{_x000E__x0019_Aµ_x0004_!\u008d¾Ø_x0018_ATèÚ_x0006_E`_x0018_A>D`\\>\u009e_x0018_AÐ¸¼ÙÖ2_x0018_Aï¾­ÿ]H_x0019_AfñlìÖ7_x0018_A_x0007_²\u0081\u0099ì _x0019_A\u008f52\u0084$_x0016__x0019_AruL_x0007_\u0093R_x0018_A\u0098\u008dÍÎº\u009b_x0019_Aßqþ_x0015__x0006_y_x0019_AÆòÝ2RG_x001A_A_x000E_úT_ò%_x0019_AÂ:a`Ñu_x0018_AqýS_x0001_J¥_x0019_A\u0081\u0090_x0011_úr7_x0019_A¬_x0015_÷_x000D_Þ/_x0019_AÄîT_x0003_\u0082_x0002__x0019_Al\u008fý;ì4_x0019_A2=Shî\u0091_x0018_A_x0002_ôqÏ¾\u0093_x0018_A÷ JþE!_x0019_A_x0001__x0002_ét%º\u009b(_x001A_A$åÆÁB§_x0018_AÚÒÝ,\u00889_x0019_A3ìa\u0081á\u008c_x0018_AÆ\u007fÖq*Ï_x0018_AZªÕÝf¶_x0018_AôDR£²\u0086_x0019_AB\u009eZ_x000B_\u0096^_x0018_A_x0013_Z`_x001C_CÔ_x0018_Aÿ%ý_x000F_\u009a;_x0019_A3_x0015_¯e\u008fM_x0019_AÉb*(¨Ð_x0018_A\u0083òxg_x0005_Ì_x0019_Að´ýr_x001C_¹_x0019_AÙ¤Y{Ö_x0018__x0019_A_x001D_]®»_x001D_>_x0018_Aíö_x0013_Uâ_x0012__x001A_A¸{üÜ\u0086í_x0018_A5Ïö_x0003_\u008aî_x0018_AxlF\u00963×_x0018_A´l_Hò\u0082_x0019_A!_x0006_F»vK_x0019_A¦àN\u0094u×_x0018_Aí5o9LÊ_x0019_A½{]\u0080U\u008a_x0018_A\u009b\u008e¢4Ü_x0008__x0019_As8ÉÒe6_x0019_AÃG_x0008_\u0082´\u0090_x0019_A\u007f(_x0015__x0013__x0011_\u0096_x0019_A$Ç+\u009d²£_x0018_AÓùé#½½_x0018_AÁ_x001C_z\u0098_x0002__x0004_jª_x0018_A o_x0003_§rî_x0019_ApÝXõÓ\u008f_x0018_Ah-_x0012__x0006_z_x000C__x001A_AQ$üÎßÉ_x0018_AÝ_x0010_Øw¤Õ_x0018_A\u0090  U¹\u0092_x0019_A_x000D_Üúß\u009fV_x0019_AßC2F_x000C_\u0091_x0019_A'\u0084ÂÁf\u0097_x0018_A°\u0092\u009c`8­_x0019_A\u0089ZyK_x0001_s_x0019_A)¹,LÅÍ_x0018_AA7\u0097Ä:_x0006__x0019_Ag âÇ5Ð_x0019_AñOøquF_x0018_AlÖ_x0016_fKª_x0019_AþHãsÕW_x0019_A8Ú\u0089Y_x0004_ó_x0018_A_x0004_C_x001C_ÙÍÛ_x0018_Ab_x0005_~ ÕÚ_x0019_AÀ\u0086\t­fM_x0019_A¹aÎ-úV_x0019_AþÚ¸`>\\_x0019_A_x000D_ùÿ¾_x000E_\u0098_x0019_A_x000B_¥Ð\"dü_x0019_Ak4á}_x000E_\u0086_x0018_AG_x0015_µ-¯_x0004__x0019_A\u009c\u0089>\u0080å;_x0019_A;ý_x001C__x0014_Ø\u0083_x0019_Aj¼0îLt_x0019_AÇC_x001F__x0003__x000D_¼_x0018_A_x0001__x0003_k(_x0012_AàÅ_x0018_A\u008c\"_x0010_\u009a@\u0085_x0018_AºCeÄRB_x0019_AswN$\u008fr_x0019_A_x000F_\u0096_x001B_*á\u0086_x0018_ArKÛs¿_x0013__x0019_AS±Ó_x000F_½C_x0019_AÔ¥ò÷ Ì_x0018_A_x001F_\u0082=ëà\u009a_x0018_A\"_x001C_?\u0090Ñc_x0019_A^À <g?_x0019_AZ)\u0091\u0084\u0081 _x0019_AAd87_<_x0019_A\u008e\u00996`Y&_x0019_AÆD¾í\u0096°_x0018_A_x0004_Ü\u0090_x0002_FÓ_x0019_AóÞg'ÑÑ_x0018_AÈ \u008c.ÀF_x0018_A_x0018_ñC4Ê\u0092_x0018_AþÊB\u009e_x0001_f_x0019_A[ÓÞCª\u008a_x0019_A_x001C__x0007_S?ÅÂ_x0018_AûáGÓå_x0014__x0019_AR_x000F__x001E_ÓÆ¶_x0018_A_x0006_DÇp\u0082\u008f_x0018_A\u009b´'\u0089¤ì_x0018_AÝ\u0090çz§\u0092_x0018_A^ï_x0004_\u0086&é_x0018_Au¼Å\u0095_x0012_l_x0018_A\tÅ_x0015_±Vn_x0018_A8\u009b_x001D_¹Æ_x0019__x001A_AãÐj\u009f_x0002__x0005_\u008dY_x0019_A¡\u008a5i9\u009b_x0019_AÜ8A³\u008d\u0085_x0019_AY\u0083æÞÖ_x0016__x0019_AöEú\u0097Ã\"_x0019_A~_û\u008eÅè_x0018_A_x0008_RéÊ_x0003_P_x0019_AÂ°é5_x001B_Ù_x0018_AÓ±D_x0014_Ó\u0096_x0018_Ac_x000E_4òÕ_x0001__x0019_AÊ_x000D_tE\u008c1_x0019_Aö\u0080Ú#½Õ_x0018_A,©c[Cì_x0018_A¹&ºì]©_x0019_Aþkä^8f_x0019_AÃT¬ôÒn_x0019_AH\u008eòGr!_x0019_A!$\u008e\u0090g\u0091_x0019_A~_x0013_­5ëY_x0019_A\u0090É»)_x0008_\u0089_x0019_A_x001E_ÎþEð_x001A__x0019_AÀãwì_x000B_u_x0019_AéÌ_x000F_¬¥\u008a_x0018_Afgu¶\u0080_x0004__x0019_A)\u0099A&hÏ_x0018_AE_x0004_æÅ_x0008_ê_x0019_A_x0011_/P~_x0008_¤_x0018_AÀþ.e¬È_x0018_Aâ  \u0093nß_x0018_Aë$¹(Iá_x0018_AyÑd[\u0090c_x0019_A&B}»ªÃ_x0018_A_x0001__x0004_\u008ea±nFÁ_x0019_Aó!\u0092_x0018_\u0087~_x0019_A\">_x0001_\u008c\u0093~_x0018_A¡ÓpK8Ç_x0018_A_x0018__x0001_Ü\u0080\u0084_x0012__x0019_AâJ\u009e\u0094tÚ_x0018_A§x_x0005_®2y_x0018_AäJç_x0019_)Ä_x0018_AO÷lÚ`k_x0019_A4\u008fl{\u0091à_x0018_A °)mñ3_x0019_A£_x0014_Á_x0002_¹ü_x0019_A<Ù·_x0012_\u008eØ_x0018_Aþ_x0004_\"é_x0011_'_x0019_AÛ\u009bp\u0087Ò-_x0019_AMµÇ°<_x0003__x0019_A\u0080^\t_x0006_æ4_x0018_AôHÐ³8Y_x001A_AÿÜ_x0011_\u009c_x000F_}_x0019_A_x0017__x000C_\u008b_à\u0081_x0019_Ah¬~_x0017_}Ó_x0018_A.ÛO\u0098f\u0095_x0018_AyÍ±4yÄ_x0018_Av-ØBÕÎ_x0018_Aþr\u008djmè_x0018_A÷;ú©â7_x0019_A¨_x001C_5¬D¹_x0018_A¬\u008cÁ\u008dD1_x0019"}},{"$cut":{"chars":52248,"head":"e751138c17ea7cf9771258d33fe66653_x0001__x0002_\u0090ÜF3F±p@,ß^r²B©@@Ã\u0093_x0010_\u008a\u008aeÀ²y<<_x000F__x0004_\u0092ÀØ³ f_x0003_Fu@ÔÀ\u0082;¤\u009a®@\u0094\u009a2/þlxÀu\u0083Þ86­\u0080@\u009a\u0092_x000F_½£æ\u0092@_x0004_»|¹2\u0090{@4_x000B__x001E_¸³²¢@ì¬gQ_x000F_Í¡@8Þ_x0007_Ò¨c©@}Gì_x001B_oH©@4JÝ\u0086!6\u0091@\u009a_x0015_F_x0008__x0010_Z£@Ð_x000E_ºÕx.\u0081À_x000B_µ+AEU\u008e@\u0098-Cu\u0081\u0086\u0093@LÊ_x0016_ÍÌ¿\u009d@{_x0008_©î\u0082_x0005_\u008d@ ÁFó\u0099r@@\u0082_x0007_åü:æ£@Ú@ZµÞ±\u009e@_x0001_áõ_x0018_\u008a\u0091b@`_x0013_\tX_\u008azÀø¾<÷ý³hÀ¢WL(aV\u009bÀ_x0014_¨\u008fg\u0084ù\u0086@\u009ea5_x000D_e\u008f\u0091@ðáÞ\u0099ð\u0096\u0088ÀàÊW_x0006__x0002__x0004_W;zÀ3H_x0007__x0002_6{\u009f@]\u0088ì\t1_x0016_\u008c@ \\ÁUi¦MÀøÓXÙPY @ì_x001C_R\u0087;\u0084\u0091ÀZ8àXöV\u0081@È97¶_x001A__x000C_z@äp6]\u0080­\u0091@\\¿AÛ\u008d_x0001_\u0095@_x0014_Ñh.+6\u0088@\u0090\u009d>³`llÀ_x001E_³¸(__x0003_\u0096@\u0083é9Ãë¾¦À\u0088_x001F_\u0094áM+\u0080@\u0080¾º\u008dí&\u0085@3vmº_x0004_L\u009a@öP²í@a¡@°lï«!t_@ é£_x001C_36\u0097@¨_x0017_ñ©AødÀ\u009c\u009d_x000D_#\u009d_x001E_¢@_x0018_m.\u0089\u0098\u0084 @f´`º+B\u0085ÀJP_x001C_D2B\u0084@M\u0080{,_x001D_Ú @þ»ß\u0084\u0083»\u0094@æÅfÃw{\u009c@Ü6_x0002_\u00856_x0001_\u009f@ã\u008fjk¸K\u009f@(Ö#_x0002_1\u0085£@®\u009d5_x001E_Á±\u0084@_x0001__x0002_àÎã_x001B_G'JÀJ¯\u0082ß©\u009f\u0080À9_x0017_ô\u0085'î\u0085@:q=dô7\u0090À_x0004_2{òD_x0016_§@8_x0017_f{_x0003_»\u0097@\u008c\u0090Õ¤*ï\u009f@K_x0016_ºÔj²¤@xi\u0095_x0015_Z\"j@ðG_x001D_Ô\u009cügÀ_x001A_\u0082Þ\u009a_x0002_-\u009b@_x0018_â©E_x0017_­eÀBëDg_x0014_g\u0089@\u0098-§_x0010_$á\u0094@_x0001_uÆ&Ö\u00991@c\u0097_x0003__x0008_¶\u008c\u0090@_x0019_äÕí¾S©@_x001C_f5_x0004_9_x0011_¡@¨Ó\u0097ÝaagÀª\u0088U\u0089(r\u0091À¿ö\u0083ÓX>\u0093@~_x0007_o_x000E_/}\u0098@\u0092PÖhÀê\u0080À_x001B_ï:Õ]æ\u0080@{¨_x000B_\u0087´F\u0089@_x0012_s\u0091_å³ @Ò·Å+Þi\u0084À_x0006_AÒ£\u008cI\u0098@Z[ÅM_x000F_æ²@Cm\\0Ù_\u0083@ùzo4z£\u008e@Ú\u008d_x001D__x001F__x0001__x0003_¥<\u0089ÀH ÎÆàj\u0082@úYië\u0093\u009b\u0089@28jrZ>§@_x0010_\u0080¤¦íórÀ_x0001_F_x0017_l&£;À¤zÔcSø\u0080@$F_x0015_Ú\u0082B\u0084ÀÇ_x001E__x0017_\u008e\u0099\u008d¦@wân&\u0096' @C=l_x0002_29\u0082@_x000E_qL.¼ô¥@0\u0096ÌE]¥¡@J;°rî.\u008dÀB\u009a\tÓÂ_x0016_\u0090@ã)\u0083jqm\u009a@=ª_x000F_\u0092\u0089C¥@@º^§_x000C_\"\u0084À 6_x0004_Ü¨«D@êX_|ÿ\u0095\u0081@);2J\u0083_x000F_\u009c@È¸\u0096rÏ_x001D_hÀ0²M­Pç§@Ù_x0019_7¹üd\u0085@´\u0083;´\u008d¸rÀ_x0003_\u009a\t\u007f¾ðt@¸]ý_x0018_oG\u0091ÀJIw8©)¢@_x000D_\u008f\u0085²KÜ\u0093@\u0084ÄZÔÖ§\u0086Àrþ\u0080½A3\u0096@v£G\u0084_x0010_B\u009c@_x0001__x0007_\u0080Ä_x001F_¼=\u0087K@Â_x0001_I_x0008__x001C__x0002_\u0095@T G|Á7\u009d@é_x0008_`¾)ì\u0084@ä_x0003__x0004_»_x0011_Î\u0096@8IX¿\u008f²vÀh=_x000D_÷¦\u0097gÀ@ç+_x0012__j\u0099@ö_x001C_/$3¤\u0099@¦¹ý\u0085\u0083Ù\u009c@6\u00923_x000E_\u0086v\u008d@ØÇ©§\u009aP£@\u0086;;'?¿\u0080À@¬öBtARÀ:Æ\u009f­+\u0093\u0099@0§\"©Æ~¡@\u0094a_x0012_`·G @ßB6\u0090ÛÄ¢@wª3î\u0094`\u0095@ú\":_x0018_,\t\u009b@v(_x0006_j\u0098u\u009f@Ük_x0017_ö\u009dU\u0097@^Q\t\u007f_x0005_m\u0090@_x0016__x001F_\u009bË\u007f©t@Ãò;_x000B_>_x001F_±@\u0084èý\u008frDw@`í_x0010__x001D_×Ê\u0082@ªh_x0013_® ¶}@_x001D__x000C_Û@ú\u0092\u0097@ÀZF»Ý_x001F_{À\u009c\u008bEÂL±\u008d@'»ab_x0001__x0003_ø~\u0083@_x001D_¡_x000D_ tô­@_x0003_N\u008a\u0081ï&v@À»¼«Ï_x0016_jÀ_x0015_\u0084x±!¡\u0080@r_x0005_\u0086äwà£@hl©\u007f\u0086!¤À$R\u008fc ¼yÀÈ_x0019_&µÐ_x0010_zÀu_x0015__x001E_«+L­À¤(Ort\u0082\u009b@âÑ½$g|¢@Ü_x001E_!_x0002_N\u0096\u0097@L1°[\u008dã¤@0_x0007__x001A__x0001_Wñq@¢,p\u008cOl\u0098@L´4\t(Ýy@[ØÞ\u0090\u008f¹\u008c@\u0092¥¯{&_x0017_­@¥cò_x001E_º¹\u0091@´>¬/_x0007_À`@ÍXhù£C\u0091@\u008aÕ<ö_x0016_Ý}@ÈËÁ)åri@\u0098ÒÛ6_x0003_Ôu@WNËúNØ¤@Pýð_x001A_»Â`ÀV\u0087rAÅñ©@JÎÈºêyq@_x0006_æ(\u009d¬Ë @\u0080¢Ä_x001F_$Q\u0090@wb!`,Æ\u009e@_x0001__x0006_Êy \u0086_x0015_U\u0095@\u0090w|_x000B__x0001_+\u009d@@´DÒd-\u0088@%X\u0090\t_x0003_\u009e @ý_x0005_ïïÊZ\u0095@`Î_x0017__x0015__x001F_öv@F0e¼4à\u0083@0_x0004_¿a_x0002_§sÀ×µîAº\u008a¨@_x0006_ºè©ÎÞ\u0094À_x0001_¡_x001F_òS_x0001_\u008eÀØië¨eÄo@\u008c\u0099_÷=_x0005_rÀ_x0001_Ë_x001E_\u0092µí_x001E_@\"\u0083Éh\tU\u009f@¹Ø^`\u009dt¤@\u0090_x0007__x000E_ôâÚW@_x0018__x0018_\u0086 Äú\u0099@ '_x0017_Ú_x000F_átÀ\u0090TÝ±|ï\u009e@&JÖ\u0086Áï\u0081ÀÅk_x0019_pÌ_x000B_\u0098@¾<ì_x0016__x000D_Ú\u0083@ê¾_x001C_\u008d\u00942\u009a@_x000F_jij{ ¢@_x0001_î¨_x001D_\u008f¦YÀ\"\u008d_x0005_fé£\u0097@\u0080DJ0'¡\u0097@d+Û¾\u0091\u0095\u0091ÀÆî;U;R @p¸háäðnÀ_x0004__x000E_¸ _x0005__x0006_üè\u0089À°å J¡\u0082nÀZÀ\u0099_x0004_ÿ¤¨@(\u009f_x0011__x0011_A){@\u0080\u008e_x0002__x0004_Ê\u009fN@¨%¦_x0018_b_x0003_¢@¼Mð!Zì\u0092@Ü¢+Éô×\u008e@î~0ÖÎ\u0091\u008b@¸_x0010_¼z;iz@_x0016__x000D_Ûéù¶\u0092ÀÈ_x0014_ÑH*]k@ìF¹qo·\u008dÀ\u0090: _x001A_á_x0016_¦@´®\u008fl½=\u007f@_x0004__x001A_6d#'\u0094@¿¿²c_x0003_R\u0098@é²^2x_x0005_\u0091@ZJ_x0018_ì_x0017_\u0090¤@@\u0092{ìþ\u009e¦@\u008bl_x0015_üW³\u0095@°áG\u009c_x0006_+nÀ¢þý_x000D_z\u0097¥@ è\u009b¬ïÊF@µ[Öö_x001C_\u009e\u008b@$*_x0015_äùra@\\_x0010_\u0086_x0003_OY\u008b@¥±¸\u0097Ñ6§@\u0080[D°Yã9@©_x0001_C<90\u0099@Ñ&õòV5\u0084@þ3®Âàò¤@_x0001__x0002_äX\u009f_x0010_¬m\u009e@\u0095-·_x0011_\u0084ý\u0084@n Z÷¶Òz@_x0001__x0018__x001F_½äf%@_x0010_ï\u0099«§¨~@D=\u0090\u0092ßÉ¤@C¢_x000C_Óò_x0018_®@ð_9öõÌiÀ[µqýOO\u0092@ÙÎ_x001B_\u008aÄc\u0099@êïÞG\u0086[\u0085@3_x0006_£ª/ì\u0081@´M¶æJú\u008bÀ°*±\u0097\t­oÀ°·\u0093ÛvÔ\u009a@$+f\u008fz\u0084¦@èú_x0007_n\u009c?¥@ø£[êñDbÀÓÏ@yf×\u0093@-)B\u0096#¯\u0094@ãªù_x0015_=ï\u0094@¶_x0013_)I\"Æ\u008a@éþ}6ûê¡@°ì_x000E_â\u0097\t\u0094@ÀÇþ\u009cµÐaÀ_x0012_<ý6Õ4\u0082ÀÐÀ\u009b\u0089â±¢@Â7\u0080\u0089&´|@ÀÉ_x0003_²(Ñj@_x001A_Hîvº\u0081 @¶;_x000E_øhG\u0092@F\u0099|B_x0001__x0002_VAp@Ì\u0095?µLV\u009d@´²à_x000F_\u008aÑ\u0092@ÃÜx¯Ð&\u0097@¼Ý_x001B_ôt\u0098\u008a@dGqá\u0095@\u0086@ïÐw_x0005_ÜO\u0094@È_x0017_9mÔ\u0095\u0093@¶x\u0087\u009bSz\u007f@ú¹c_x000E_÷)w@ð_x0014_C\u0080Æ6¡@×ÃêÜ3Q\u0095@\u008d:ËG_x001C_h @4TîbKR\u0085@\u0080u~_x0015_e\u008c\u0080@\u0098¸ß_x000B_h_x000E_\u0094@\u0095kl@_x000C_ø\u0098@å°ÖêáS\u0091@!\u0082\u009f³\u0082Í\u0090@¬¤'OA8vÀ\u0094¤à\"êXyÀf_x0003_«Sz2\u008aÀhÜ\u0098_x0010_Õç^@_x0018_\u0090\u0086±'µ @ýÆË\u009f"}},{"$cut":{"chars":54378,"head":"33852ac6ae3ab60e6cf84c19eeb89265_x0001__x0002_\u0092Mm`9Ì\u0098@\u0096\u0081ÚH¡B\u0097@4óÇ8_x0017__x0019_\u008f@Ö_x000F_AÑ3Ê£@À|³\u0090_x0013_ß\u0081À\u008d\u009fxDi\tª@_x000C_._x001E_@_x0015_¨\u0092@1ÕØUs_x0012_£@\u0080pª=ûêGÀù1b_x000D_|ý\u009e@_x0008__x0011_?1­\u008d\u008e@roMñÓ_x0006_~@\u009e _x001F_®¦­\u0095@:Ä\u0083Cp\u009e\u0080À\u0082\u0087k7§^ª@ª¬_x0006_&_x001F_ä\u0082@æËKcÓÙ\u0085À\u0095ø\u0096éYU«@Â¢êÛ\u0087>\u008d@h_x0002_Ì×x\u0084¢@_x0001_\u007fñ_J_x001A__x001D_@üñw_x000B_¤>¢@6\u008e_x0002_\u0083_x001A_Ò¡@T¥_x0008_Zð³\u009c@:|YÔAx\u009e@æôÁ*E_ @\u0099j´gÇ_x001C_¡@3;k_x0011_mÌ\u0082@\u0084\u009dÞ_x000E_­ö\u0090@\u0080Á\u0096\u008e6!>ÀØ^_x0018_\u0095\u0084Ai@?Î\u0080¶_x0001__x0003_k\u0083\u008e@&_x0017_ê¥'b\u0095@:î%*_x001B_d\u009e@dü\u0087l\u0095\u009a\u008e@ÚL_x0001_ÈPO\u0094@\u0080JEE!syÀLý/\\õ_x0002_\u0086@_x0016__åÕÃ\u0097¢@\u0090_x0005_\u0092;_x0005_å_@¬u¼AC\u008awÀz¾Û\u009d´\u0091¡@bîÔ[\u008eû\u009f@_x001B_-©\u008dÚB\u0093@çz^\u009d¹3\u0091@º_x001E_è/\u009c¸\u0088@x1~_x001A_Û_x000C_bÀð\u009aæÃ­^\u008dÀV_x0019_ê$û\u008d @õ í\u0092O»\u0094@\\\u0089Ñ³Àë¬@Ò\u0095(_x001F_¾£\u0090@ yØ$_x0007_\u0095BÀn&ÚÿûR\u0081ÀÌkM/Ûþ­@°t×E`]\u0089ÀÖ\u0085î_x0002_36\u0093À\u007fNµú^A\u008b@À³ã\u0088R\u0097YÀX\tô_x000F_\u009cß\u0090Àä\u009e£ù_x001B_G\u0085@p¨do\u0089mV@P\u0098I¼_x001E_½dÀ_x0002__x0006__x0002_7\u007fÓ±?a@H_x0004_dfÍm¦@å#_x0003__x0007_ÕÏª@<*_x001A_ÝC±\u0083À\u008c|ïØ|Ò{@v_x001A__x001F_\u009c§_x0015_p@D\u008f»Â¨ü\u009a@\u009d\u0081Éû«_x0007_©@ÒN|M´Õ\u0088@Ø²\u00810:P~@\u0092©\u0089UWò @_x001E__x0018_Õüér£@±=_x001D_û\u008e1\u0095@BfÌz¨µ£@\u0089\u0082VüL ®@`Û,×à6y@p_x0007_jL\u0096±¦@_x0001_Þ_x0011_Ê\u008f\\\u008d@\u0097_x0012_Y\u0087A\u008f\u0093@\u0094t1ùb¯\u0082@j\u0092°MØs\u009f@¾hò\u009cÖP®@\u0089¢_x0018_\u009fC®§@ª£)µS ¥@FÆ\u0097\u0096äl\u008b@}_x0015_Ò@Vg\u0083@dk]bÎØ\u0089@ðáð}=_x0016_£@X\u0095WÞM§¥@¶DÄ3oH\u0099@_x0014_Õb_x0005_\u009fï\u0082À¬^\u0096]_x0002__x0003_¥\u009c\u0093@\u0098*_x0015_\\zØ\u0091À$ÄÇ_x001C_fãs@_x0014_.\u007fhY\u008f\u008f@_x0002_\u008fzÁÛ\u009a_x0013_À?PË\u0089_x0011_°\u0093@s_x0001_ñ\u0086øk\u0094@DÜ\u008f§øÐ£@(\tP®\u0083\" @H\u008eçPÒâ\u0095@ V!(¶\u0091g@z-,o¤_x0008_\u0090@2«¶_x0003_&Äw@pF|v\u0087\u0087\u0092@ëpp_x000E_ó`¡@ 5+_x0011_Ó(iÀ´¦\u0092ôuÞ~@ìz_x0012_Àlö¡@çG(µëç\u008a@\u0093z\u009fk_x001E_Í\u0098@HÓåÍ(¯¦@Fî_x000D_Ô÷\"¤@Àtª1HÒlÀtøm0ù¦¨@°t,\u009a!ï[@ P\u0092Úø§\u0097@\u009e\u00963é_x0004_8\u0098@°¥_x0014__x001E_\u009a_x000F_«@ á\u0097ô+axÀâ_x000F_¨\u0095\u009fë\u0099@ªóaë#[©@Rà_x0019_È\u0086\u0082 @_x0001__x0002_w_x001E_á³'_x0011_\u0099@_x0012_Ãù_x001A_\u0094©\u009c@Tqru\u008e_x001C_£@ªÓ÷$_x0019_í}@ÐýYÖxÊ\\@Æ\u0083\u0094¨Q\u008e\u0092@°¸æÍ9Õ¦@7_x0006_$2¢Z¡@¾Y\u009fn_x0004_Ç\u0081@N\u008a!Ð,\u0085\u009e@ÑÎ_x0010_\u009b\t±\u009a@_x000B_Ëv\u0096,¼\u0084@¸øX_x0007_¶Î¢@Às_x000F_\u007f_x0007_XT@s'H_x0002_Ú\u0082\u0084@¢¹_x0013_8ý²´@_x0015_³O¯\u009c\u009e\u0099@_x000E_È)'¤[\u0093@Î#\u0087\u0087[²\u0091@½s{µDE\u009d@Fü#$«¡\u008f@È\u0080_x0016_g_x0005_Ø\u0097@\u0080§_x0002_E\u007f-\u0085ÀxÖQæ\u0098ò\u0098@_x0014_x_x0004_\u0090|\u0081£@k÷\t5!0 @Ll%²_x0014__x0019_\u009dÀ»ùO_x001D_[ \u0097@_x001A_HÌøÒE\u009e@\u0084Í­¤\u007f¼\u0083@Â4«_x000B_yU\u009b@F_0\u009c_x0001__x0002_Î_x0019_\u007f@\u009bo¤â ;\u0092@³\u0082¿Ú(õ\u008a@ _x0012_E8Ä#|@pä:3²_\u0080À°Ã_x0001_¿ªþS@\u0086 U\u0080Øt\u0096À_x000C_;\u0099B-Ç¢@ Ï^é\tóPÀ\\+?\u0085_x0007_So@&MK?\u0093%\u0084À\\ü >7\u008fw@úz\"\u0090Z\u0082\u0089@¯I$\u009f6¾¢@d\u009d¨¾¨ý§@P\u008b\u0080_x000C_72z@_x001A_×ÕÜ\u009fx\u009a@^ j_x001F_\u008c¾\u0094Àzñ4ËgA¢@j¡cp_x0008__x0011_\u009d@¼_x0018__x0019_ã_x0016_ñvÀ±\u0080Ï@DQ\u0095@A=_x0007_0ýÌ\u009d@np$LÞp\u0087@]ÓZ]\u009dÎ©@Þ_x001F_C÷\u008e\u0089\u0097@ÚNp|£w£@Îá6#Êº¥@°\u007f\u008e_x0006_\u009eaj@\u0080H\u00914\u009dñe@Ú\u008cËu_x001D_v¡@F½ÕsB¢\u0086À_x0005__x0008_¿FSÅð\u0084\u0090@_x0018_äÌÄÃó£@½í¯}\u009aa\u009d@ÐJ`¹-_x0006_\u0087@X\u009b%iíÒg@òþ\u0093_x0003__x0001_ò¡@\u0085J\u0092\u0094_x000E_2\u0083@f8sèH§\u009d@¸H#ç_x0018_à§@LLÅwÐ©¡@\u007fU\t®ÁQ¦@¾5Ähü_x0010_w@y_x001A_/E_x0007_´\u0081@_x001A_©O¬HÀ\u0087À}N\u008c~¯\u008f¦@b_x0005_é\u0089\u0090À\u0090ÀNÍ\u008b_x0002_ë_x0007_¥@$ß,Ã9ï\u008d@_x0014_[h1â\u0092\u009e@d\u008f|µ#?¦@ÂYÌo_x0014_Â\u0081À¶Ï_x0015_ô_x0012_\u0088\u009aÀØä\u007f\u009f=_x0004_o@_x0010_\u009e]IBóP@,,%_x000F_Yð\u0090@àuÐ\u0088ÑÓY@\u0080/Ä½ÐµWÀ,î_x0017_j6Y\u0099@ò ï¸ü>w@ëÉv\u0090\"ê\u0090@8ª_x0003_÷_x0015_ØmÀÌª\u0084#_x0002__x0003_@_x0004_¡@4·¾\u0090\u0088È\u0096@<+ÿ_x0016_3ò\u008d@.\u0086J\u008cý<¡@-Ü\u009e_x001A__x0006__x001A_\u0090@_x001E_9Uè=j\u0098@_x0010_q_x0002_~ç­ @_x0018_Þñ¤K{ @[sñ_x0004_a§\u0080@äùãËZ_\u0084@ÄGÊ-¬¼\u009e@f]ÇÅ%]s@_x001D_\u008bO÷_x0015_,ª@ÁµGU:û\u0085@£õm_x0015_L´¡@\u0080\u0090\u0088Z{2*Àÿ7öÿ;Â\u0095@\u0081ç ÿv_x000D_\u008d@xp_ñ_x000B_Ú\u0097@\t#Gìî'ª@t9_x001A_2Á)\u008d@\\{ºü\u0082v\u0088À=¬¤<Ð_x0010_\u0094@è¾@Ó\u0097[kÀH·PÑ_x0015_^bÀ_x0004_¾_x0002__x0004_þ\u007f¨@_x0001_N\u0091´\u008e_x0006_\u009e@\u0090À3ß÷ë¡@_x0002_Q?\u0098[¥j@*½\u0084\u0090È=\u0099@ýVy¯%_x0004_\u009f@\u008e6\u0086½ª¶\u0090@_x0001__x0006_à_x0003_²T¤DRÀB^¼e\u0085ä\u009f@_x001E_ÃSKCo£@_x0001_FüS_x0018_\u009cGÀÔI÷M_x000B_j\u009d@d×v1\u0089¾¦@_x001E_Þõ®\u007fÉ\u007f@_x000B_±Ù_x0018_,<\u009b@AÏ:ðÜê§@zuÔ_x0002_\u009fÛt@\u008dPÒ\u0081ä[¦@ÁúõÙ.)¡@ÔF8ÿC\u008dyÀiD¢Zj_x0007_¡@øéÐ\u007f4_x0018_\u0093Àt>Úö\u008dÔ\u0087@àsÌ(\u0091z~@`Ü±Õ\u0093`{@kM_x0013_QQ\t\u0095@÷2²`F_x0002_\u009a@[\u009f_x001A_XÛñ¦@T_x001E_©'\u008f$£@üm_x0004__x001F_;_x000B_\u0093@(Ô3ÑÌ¼\u008c@\u0091¡)¼\u0094R\u0098@_x0008_Iº\u008fá_x0005_x@Æ[5n÷9\u0096ÀùáÔbE9¢@àK¦1ôQg@\u0097s6\u0088hO\u0089@fcÁè\u009b\u0099\u0098À*@_,_x0001__x0002_\u0085¤\u0082@ê\u0098g÷b}\u0099À¨c\u008b_x000D_1î\u009b@¸{¶]¤Z\u0094À_x0006_ÍØ-£\u008cs@]hl³þk£@\\ö¼Ûy_x0015_\u0090@A\u0086×5mM¤@°HGð÷Éc@0_x0017_c¶øÀ\u008d@YÅkKòd\u008d@\u008eAE´g@\u0098@³0\u008bê\u0091M«@$F­:e_x0002_\u0083@(´Îâl­¢@ø\u0085\u009c5¤_x001E_fÀ'_x0002_C\u0082\u0091.¥@7´y\u0098¡S\u0085@X\u0082 ndçkÀ5eÿßmÄ\u009c@_x001E_\u0088Ûci¼\u0099@ \u008c_x001E__x0002_×¿jÀìîxk_x000C_Æ§@_x0013_ûHt_x0007_&\u008c@\u0080_x001B_Ç;Î\u0089^À-°1q\u0082ª\u0083@_x001C_%äTµÙª@ªt\u008b\u009c'¿\u0090@_x0016_\u008fÄ=_x001B_0\u0094@6oÓ\u008aRM\u008a@fhô}0_x000C_¤@\u009aªC\u009d]_x001A_¨@_x0002__x0004_êG­\u009eKz\u0097À)á+\t_x0011_e\u0090@b~,_x001A__x0001_*\u0080À@2$Q_x000F_M@ÀÙ_x0006_U1È¾\u0082@àÜà\u009fÅ_x0014_\u009bÀi#\u009cê"}},{"$cut":{"chars":112398,"head":"2fd894cde56ee31826480aa5d7f3bd69_x0002__x0003_2Ëà_x001F__x0014__x000F_\u0094@ÌÄ\u0083_x0019_\u0092j\u009f@_x0017_wUå_x000C_Ë\u0097@ M_x001D__x0016_Å?¤@T/æÙóÝ\u009d@¤°øC\u008dÞw@±§3\u009c+d\u0090@\tËî_x0014_¾b¢@Çú7èÐÞ£@´¢£'ÌØ\u0081À=}\u0081<Óý¢@¤\u0086eB\u0094\u008c\u0099@_x0014_Gê\u009f°\u0080}À\u0085|\u008eÑ\u0085_x0001_\u0095@®_x0010_\u008fb$m£@_x0003_jßòsî¦@Z¯_x000F_¾O¹¦@:_x000B_Ù±x_x001D_\u009c@¸ßu} Öl@¶bÃür_x0011_®@ÜLÁÁ<¾p@½_x001B_;9Áj\u0082@èçÔau_nÀ;¥Ü_x0008_Ó\u0091\u009a@_x001E_,_x000B_\u008e²Û\u009e@\u009fw-Ûºä¢@Äö¢R·_x0008_\u0094@\u0095\u0098®Dl_x0011_¡@_x000F__x001C_YDÔÙ\u0089@µ0:fû@¥@$i¾ê_x0007_Ö\u009c@\u0099?Aj_x0005__x0008_Qÿ\u0091@\"¥Ü_x0003_§k\u008f@_x0004_AÛn\u007f®qÀfÂqX:T¨@Â©Ð>½j©@q¨¼~_x0001_Ó\u0088@/_x0007_¯_x001D_WP\u0093@°\u0087û³¤\u0087°@`¿_x001E_\"ðil@k\u0082s\u008e©Á¦@pYM\u0099n³[@:ÒãYï.\u0084@@Êô\u008f_x001A_ïN@¨¢ÌU(èfÀ)ð¸#_x001A_j¢@_x0019_,@_x0001_À¿«@\u0080\u0082Ú¯O/©@_x0018_hGþB\u009b¡@1Hä_x0008_ñU\u0086@_x0014_[\u008bËù¢\u0081Àqº\u0090µÖ\u009f\u0089@VH\u008e4Gn¡@S|_x001F_h\u008e¤\u009a@Àh?=IZL@~ü\u008fùÞ_x0002_¦@_x000C__x0006_\u0096{ïk\u0098@1[_x001C_np¾¡@Av'E\u0088¤\u0097@¼Ù¹\u0081_x000E_j¥@_x0006_\u0099Æ_æÄ\u0097@t¶ó\u0080Á_x001C_\u0086@p´\u008eò_x0010_H¢@_x0003__x0006__x0004_{÷\tæ¾²@¢ZB_x000F_\u009bÝª@2ÿ\u009b_x0016_Fi¡@cÅ»l¾Ê\u0088@à\u008fÒV\u009dôO@_x0005_j_x0002_Ù_x0001_Ô¤@Ì_x0004_\u008aÞ_x0006_Ü\u0094À4\u0097wË_x001A_~\u009d@\u0094o{; _x001F_\u0091@E\u009dÍ6Ö¯¥@ô]_x000F_Ú\u009e_x0014_\u0095@èìWó[_x0017_ @\u0082_x001B_?_x0003_ýý\u0099@ï; ôí\u0082\u0092@Ê_x000E_.Ú_ü @ÎGñ~\u009d° @Þ¸±_x0006_\u008bÛ\u0092@÷_x001C_<­_x000F_\u0097\u0085@À£_x000F__x001D__x0007_a\u0092@°{Õý\u0091_x000D_jÀ6\u0086æ¿\u0088Ý\u0093@Èw_x001C_WK!`@\u0087»e_x001D_îh @\u0094_x0014_'\u0092üÎ¥@ÔÝ\u0092Ð¸_qÀ$­3\u0083~Û²@ßxd_¶_x0014_\u009d@\u0096¤/ _x001A_aª@å£ù\u007f\"õ\u0092@Va;»\u008fÊ­@ Ò5[Us\u0097@SéÆR_x0002__x0003_Öy\u0084@)¶\u008fÍoÛ\u009a@_x0017_¸8g_x001C_&\u0095@bÓ\u0092_x0017_±þ\u0084@\u0097xÐH¤Ñ\u009c@\u00810_x0007_ô2Æ§@5ÓÁz ´\u0081@FÀ0Ä?0\u009e@01í#&3\u009c@ÛbÝØË`\u0093@\u0085W¥S§â\u0087@ªûÕH\u0086\u0081¥@XÉxl\u0096 o@Y±¸É@Ü\u0098@\u0094_x0012__x0015_\u00941_x001F_µ@Úõ\u00888E®¤@_\u008f23]ç\u0087@_x0001_$zõz\t\u0088@Ä_x0007_*wÔÎ§@@¬ÛÏ\u008cö:@:zÀ _x000F_\u0085\u0086@\u0084\u0086^á¸i\u0083@ _x0007_\u008eÁÇ,\u0091@ôûå\u0095á4\u0090@H¼=ñ_x000B_H\u009a@|I0]ï¿}Àe\u009a_x000B__x0010_ì¶\u0096@\u0086Ý¼1ØÛ¦@¢A\u0083 þâ\u0093@_x0007_¬\u0092'1_x0013_\u0083@_x0014_\u0088r|>@y@_x0010_ç_x0019_oß:\u009e@_x0001__x0002_n-ÙÁ©£\u008c@ùÉ­J0_x0018_\u0089@`6á,\u008c_x0015_\u009c@Zá£Ö\u009dÖ¤@J¨¡(Ü\u009d©@x\u0084jñM\u007fg@_x0018_cÆxg4d@\u0094Ü~>NÚ\u0092@Ø=Oú\u007f\u0080¤@éRV@ü\u0099¢@ÿÉxÚ³Ã\u008b@20_x0014_ IB©@òèÆ¦\u0083Y¦@ér%¶Âµ\u009b@V\u0089þ{a?¡@Ô\u00813_x0002_¦\u0085\u0090@_x0015__x001E_A_x001B_}u\u0098@_x0014__x0018_{T&\u009d¥@í_x000E_BÔ¯m°@ôvç,C_x0016_\u0097@Ñ\"âZR¼\u0086@:d¤\u0093\",¢@+_x0018_=ÜF\\\u0095@\u009fáqa&\u0095\u0092@Æa_x000B_ÝÜÌ\u0098@_x0001_\"ÅQo_x0011_\t@_x0001_>úq,²{@_x0012_Æ¤v&_x0001_\u009d@Öú%§\u0097ñ\u009d@@°_x0008_AÂí\u0092@_x0003_Àc_x0012_3G\u0081@\u0080LÌÚ_x0001__x0004_\u0091ñ¥@Ïw[Ö_x0016_y­@\u0096Agä¤Å\u0096@ãì%\u0099éî\u0097@äé\u0080ë\u0096Ír@ð7Ïd5\u008c£@B_x0010_r°\u008a\u008c\u009d@ô\u00983¾_x0008_3\u0080@_x0008_içË¼\u009f}@YZ\u008bË.i\u0081@B_x001E_\u0086_x0018_°_x0016_\u009e@\u0080ªÕ(§P\u008dÀ_x0011_ï;À\u00903£@ðáÍ-\u009d\t«@\u008bD_x0012_VmB\u0081@À_x0006_çÉG\u0092P@äïuËí\u0099\u008c@Pª_ßÈù¤@\u0084ä&³_x001B_å¬@Ó.Ò;â_x000C_\u0094@ôóR±_x001F_ttÀlW2\u0092_x0015__x001D_\u009a@¾lW_x0006_rD\u0096@©\u009bÏ3\u0099\u009a @_x001C_n](_x0017_\u008e\u0096@Ô&è_x0003_ew}@\u009ft\u008b_x0015_R_x0010_\u0099@\u008e_x0016_4Oo%\u0090@\u0088ú\u0093_x000B__x0002_\u008e\u008fÀ2_\u0091_x0007_ËM¯@\u0099j_x0015_s_x000B_`¬@©_x0011_iz\u008f\u0082\u0096@_x0001__x0002_[\u008cs_x0018_Bk\u008c@¹OveÎI¥@¢í_x0018_%#\u008b¡@\u008få_x0003_k2\u009a\u0090@_x0004_ì_x0017_Ä[@s@SE_x0012_;¢_x000C_\u009d@\"7T¶;Ó§@XPÉE\u0097ø¢@°±J¶om\u009e@_x000C__x0003_d_x0005_~»\u009f@<ð_x0016_}mà\u0089@@zöV6ô7À×.~zÓ_x000B_\u008a@rÜâWpw\u0094@._x0019_Ê\u0085\u008d_x0019_\u0093Àæge7\u008d>²@_x001C_=\u0094¶F^ @È_x0002_\u0087(Òó\u0096À _x0001_\u0083|´gjÀðòÑú\u0088_x0003_iÀ²Èm_x0006_ë©¥@*³ÔL³_x0003_\u0093@Î­îT_x0011_.\u009f@{¥_x0004_GÈ_x0006_\u009f@HQÝ_x0001_/8\u0081@$\u0085«ôl_x0018_£@|fÌèD_x0012_{@ Ä\u008eVU¯`@Ä¼_x0007_1eB¡@Ìà[#_x000B_âª@ë\u009d?Þ¯_x0011_\u0086@\u008c»Ã_x001A__x0001__x0005_§+~@T_x0001_b ¼±\u0099@¡ Ü_x0016_(¸\u008d@%X_x0015__x000F__x0014_\u009a\u0095@´åI\u008cqA£@Á­rÍ¯\u008f\u009e@ÿImÓ«Ì¬@m_x0014_Ë¸!_x0018_\u0090@\u0093p\u0081\u0097ÁK\u0091@_x0007_î£_x0015_rj\u0093@0_x001B_g|S\u009en@ðrp¬Y·\u0097@h\u008cüpJ_x000E_¦@~\u008fÒv_x0007_\u008d«@ËkPK_x0003_c\u0089@XïV_x0014_½n\u0085ÀH8Ê¸W8©@2_x001E_/ÕÀð\u009e@p»_x001A_\u0089çv³@\u0083²_x0013_}\u0083F\u008c@â_x0002_Ù\u009bt?©@`akÂw,\u0098@I_x0006_'f82\u0088@-ªÑdë_x0004_©@¬\\cÚdd\u0082ÀsÃztÄª\u008b@ØÜÊÔ=åm@'_x0019_'Ax_x000B_\u0099@ÈZ!Ý_x0013_cr@F§áë É¦@H}\u00919è!²@W%ºÂ2þ£@_x0002__x0003_ äY¿û_x0013_\u009b@r_x000B_Á\u0094HÓ @ \u008b\u0088\u007f~t©@zº\u009f_¿¿\u0085@ËB¼ïJÓ\u009e@wõì×\u0093A\u0094@ó_x0001_Ø;ãì\u0096@ê»LÜk^¢@\u009a¦U®¥B¢@\u0088}\u008a£X\u0080fÀªêT'\u0087¤ @?0_x0017_Y6¿\u009a@ªzÞ&×Xª@_x0017__x0014_\u0088_x0010_\u008a\"¡@ê\u009ax_x0006_\u00896\u0092@\u0091r¾Í±¦\u009d@µú7]~_x0004_\u0085@ìÕú¼\u008fâ\u009e@\u0090D©âß\u009apÀx\u0098_x0008_ndr\u009a@´ÒÃó¹\u009b\u0087@Ã7êiÎô\u009c@Â\u0095sy\u0085Z\u0099@â\u009bÀ\u0084­_x0002_¢@6\u009b8L_x0005_#\u0087@¸\u009f\u009bÔÂ/}@+ÓÚÙW]\u0090@\u0088\u0097Ð¥_x0018_\u0096\u0096@_x000C_}[_x001F_\u0085g|@Ø­ì~¤Ò¦@jé_x0016_Ú\u008a%\u0098À_x001B__x0016_ÌA_x0002__x0004__x0004_x¢@½á\u00827ªé£@\u0098î\u009eN5%\u008f@SUù\u009a\u0080_x0017_\u0093@ï_x0015_Tª1°¡@$e,ªZ%\u0093@{WÅ|bÇ¡@_x0018_/Ä_x0003_c\\pÀ_x0006_Èzømd¢@r«\u008bö\u0084³\u0087@|ÏFDVG\u0080@¶Ô¶«ð1¡@jfÌ¯_x0004_ñ\u0089@¿:\u0096þ>å\u0099@\u008cÕÒM_x0013_8\u0090@_x0012_E_x000E_°¾P¦@ÐSýç~¨|@o_x0012_È_x000E_<G¡@ã(Z1äâ\u009f@\tÏºñ0_x000E_\u0092@xÒD©_x001D_ ®@´É}ÍÎ¨°@ZaÔ_x0004_\u0088,\u0095@¸öÒy}/a@ºÙ{ëD\u009b­@ú7¦ÞåY\u008d@ê½Æä_x0001_@\u008e@_x001C_÷ »(}\u0085@\u007f_x001F_:Òå\u0090\u0092@\u0080yÆÓ\u0086§\u0095@_x0005_\u0083_x000B_r"}},{"$cut":{"chars":225324,"head":"120c995fc85b80d7dbccc0dc9b1cb9a0_x0001__x0002__x0001__x0001__x0001__x0001__x0001__x0001__x0001__x0001__x0001__x0001__x0001__x0001__x0001__x0001__x0001__x0001__x0001__x0001__x0001__x0001__x0001__x0001__x0001__x0001__x0001__x0001__x0001__x0001__x0001__x0001__x0001__x0001__x0001__x0001__x0001__x0001__x0001__x0001__x0001__x0001__x0001__x0001__x0001__x0001__x0001__x0001__x0001__x0001__x0001__x0001__x0001__x0001__x0001__x0001__x0001__x0001__x0001__x0001__x0001__x0001__x0001__x0001__x0001__x0001__x0001__x0001__x0001__x0001__x0001__x0001__x0001__x0001__x0001__x0001__x0001__x0001__x0001__x0001__x0001__x0001__x0001__x0001__x0001__x0001__x0001__x0001__x0001__x0001__x0001__x0001__x0001__x0001__x0001__x0001__x0001__x0001__x0001__x0001__x0001__x0001__x0001__x0001__x0001__x0001__x0001__x0001__x0001__x0001__x0001__x0001__x0001__x0001__x0001__x0001__x0001__x0001__x0001__x0001__x0001__x0001__x0001__x0001__x0001__x0001__x0001__x0001__x0001__x0001__x0001__x0001__x0001__x0001__x0001__x0001__x0001__x0001__x0001__x0001__x0001__x0001__x0001__x0001__x0001__x0001__x0001__x0001__x0001__x0001__x0001__x0001__x0001__x0001__x0001__x0001__x0001__x0001__x0001__x0001__x0001__x0001__x0001__x0001__x0001__x0001__x0001__x0001__x0001__x0001__x0001__x0001__x0001__x0001__x0001__x0001__x0001__x0001__x0001__x0001__x0001__x0001__x0001__x0001__x0001__x0001__x0001__x0001__x0001__x0001__x0001__x0001__x0001__x0001__x0001__x0001__x0001__x0001__x0001__x0001__x0001__x0001__x0001__x0001__x0001__x0001__x0001__x0001__x0001__x0001__x0001__x0001__x0001__x0001__x0001__x0001__x0001__x0001__x0001__x0001__x0001__x0001__x0001__x0001__x0001__x0001__x0001__x0001__x0001__x0001__x0001__x0001__x0001__x0001__x0001__x0001__x0001__x0001__x0001__x0001__x0001__x0001__x0001__x0001__x0001__x0001__x0001__x0001__x0001__x0001__x0001__x0001__x0001__x0001__x0001__x0002__x0001__x0001__x0001__x0001__x0001__x0001__x0001__x0001__x0001__x0001__x0001__x0001__x0001__x0001__x0001__x0001__x0001__x0001__x0001__x0001__x0001__x0001__x0001__x0001__x0001__x0001__x0001__x0001__x0001__x0001__x0001__x0001__x0001__x0001__x0001__x0001__x0001__x0001__x0001__x0001__x0001__x0001__x0001__x0001__x0001__x0001__x0001__x0001__x0001__x0001__x0001__x0001__x0001__x0001__x0001__x0001__x0001__x0001__x0001__x0001__x0001__x0001__x0001__x0001__x0001__x0001__x0001__x0001__x0001__x0001__x0001__x0001__x0001__x0001__x0001__x0001__x0001__x0001__x0001__x0001__x0001__x0001__x0001__x0001__x0001__x0001__x0001__x0001__x0001__x0001__x0001__x0001__x0001__x0001__x0001__x0001__x0001__x0001__x0001__x0001__x0001__x0001__x0001__x0001__x0001__x0001__x0001__x0001__x0001__x0001__x0001__x0001__x0001__x0001__x0001__x0001__x0001__x0001__x0001__x0001__x0001__x0001__x0001__x0001__x0001__x0001__x0001__x0001__x0001__x0001__x0001__x0001__x0001__x0001__x0001__x0001__x0001__x0001__x0001__x0001__x0001__x0001__x0001__x0001__x0001_p§@_x0001__x0001__x0001__x0001__x0001__x0001__x0001__x0001__x0001__x0001__x0001__x0001__x0001__x0001__x0001__x0001__x0001__x0001__x0001__x0001__x0001__x0001__x0001__x0001__x0001__x0001__x0001__x0001__x0001__x0001__x0001__x0001__x0001__x0001__x0001__x0001__x0001__x0001__x0001__x0001__x0001__x0001__x0001__x0001__x0001__x0001__x0001__x0001__x0001__x0001__x0001__x0001__x0001__x0001__x0001__x0001__x0001__x0001__x0001__x0001__x0001__x0001__x0001__x0001__x0001__x0001__x0001__x0001__x0001__x0001__x0001__x0001__x0001__x0001__x0001__x0001__x0001__x0001__x0001__x0001__x0001__x0001__x0001__x0001__x0001__x0001__x0001__x0001__x0001__x0001__x0001__x0001__x0001__x0001__x0001__x0001__x0001__x0001__x0001__x0001__x0001__x0001__x0001__x0001__x0001__x0002__x0001__x0001__x0001__x0001__x0001__x0001__x0001__x0001__x0001__x0001__x0001__x0001__x0001__x0001__x0001__x0001__x0001__x0001__x0001__x0001__x0001__x0001__x0001__x0001__x0001__x0001__x0001__x0001__x0001__x0001__x0001__x0001__x0001__x0001__x0001__x0001__x0001__x0001__x0001__x0001__x0001__x0001__x0001__x0001__x0001__x0001__x0001__x0001__x0001__x0001__x0001__x0001__x0001__x0001__x0001__x0001__x0001__x0001__x0001__x0001__x0001__x0001__x0001__x0001__x0001__x0001__x0001__x0001__x0001__x0001__x0001__x0001__x0001__"}},{"$cut":{"chars":226176,"head":"92cd1cb9af44608318ee541f7d70c2e8_x0001__x0002__x0001__x0001__x0001__x0001__x0001__x0001__x0001__x0001__x0001__x0001__x0001__x0001__x0001__x0001__x0001__x0001__x0001__x0001__x0001__x0001__x0001__x0001__x0001__x0001__x0001__x0001__x0001__x0001__x0001__x0001__x0001__x0001__x0001__x0001__x0001__x0001__x0001__x0001__x0001__x0001__x0001__x0001__x0001__x0001__x0001__x0001__x0001__x0001__x0001__x0001__x0001__x0001__x0001__x0001__x0001__x0001__x0001__x0001__x0001__x0001__x0001__x0001__x0001__x0001__x0001__x0001__x0001__x0001__x0001_p§@_x0001__x0001__x0001__x0001__x0001__x0001__x0001__x0001__x0001__x0001__x0001__x0001__x0001__x0001__x0001__x0001__x0001__x0001__x0001__x0001__x0001__x0001__x0001__x0001__x0001__x0001__x0001__x0001__x0001__x0001__x0001__x0001__x0001__x0001__x0001__x0001__x0001__x0001__x0001__x0001__x0001__x0001__x0001__x0001__x0001__x0001__x0001__x0001__x0001__x0001__x0001__x0001__x0001__x0001__x0001__x0001__x0001__x0001__x0001__x0001__x0001__x0001__x0001__x0001__x0001__x0001__x0001__x0001__x0001__x0001__x0001__x0001__x0001__x0001__x0001__x0001__x0001__x0001__x0001__x0001__x0001__x0001__x0001__x0001__x0001__x0001__x0001__x0001__x0001__x0001__x0001__x0001__x0001__x0001__x0001__x0001__x0001__x0001__x0001__x0001__x0001__x0001__x0001__x0001__x0001__x0001__x0001__x0001__x0001__x0001__x0001__x0001__x0001__x0001__x0001__x0001__x0001__x0001__x0001__x0001__x0001__x0001__x0001__x0001__x0001__x0001__x0001__x0001__x0001__x0001__x0001__x0001__x0001__x0001__x0001__x0001__x0001__x0001__x0001__x0001__x0001__x0001__x0001__x0001__x0001__x0001__x0001__x0001__x0001__x0001__x0001__x0001__x0001__x0001__x0001__x0001__x0001__x0001__x0001__x0001__x0001__x0001__x0001__x0001__x0001__x0001__x0001__x0001__x0001__x0001__x0001__x0001__x0001__x0001__x0001__x0001__x0001__x0001__x0001__x0001__x0001__x0002__x0001__x0001__x0001__x0001__x0001__x0001__x0001__x0001__x0001__x0001__x0001__x0001__x0001__x0001__x0001__x0001__x0001__x0001__x0001__x0001__x0001__x0001__x0001__x0001__x0001__x0001__x0001__x0001__x0001__x0001__x0001__x0001__x0001__x0001__x0001__x0001__x0001__x0001__x0001__x0001__x0001__x0001__x0001__x0001__x0001__x0001__x0001__x0001__x0001__x0001__x0001__x0001__x0001__x0001__x0001__x0001__x0001__x0001__x0001__x0001__x0001__x0001__x0001__x0001__x0001__x0001__x0001__x0001__x0001__x0001__x0001__x0001__x0001__x0001__x0001__x0001__x0001__x0001__x0001__x0001__x0001__x0001__x0001__x0001__x0001__x0001__x0001__x0001__x0001__x0001__x0001__x0001__x0001__x0001__x0001__x0001__x0001__x0001__x0001__x0001__x0001__x0001__x0001__x0001__x0001__x0001__x0001__x0001__x0001__x0001__x0001__x0001__x0001__x0001__x0001__x0001__x0001__x0001__x0001__x0001__x0001__x0001__x0001__x0001__x0001__x0001__x0001__x0001__x0001__x0001__x0001__x0001__x0001__x0001__x0001__x0001__x0001__x0001__x0001__x0001__x0001__x0001__x0001__x0001__x0001__x0001__x0001__x0001__x0001__x0001__x0001__x0001__x0001__x0001__x0001__x0001__x0001__x0001__x0001__x0001__x0001__x0001__x0001__x0001__x0001__x0001__x0001__x0001__x0001__x0001__x0001__x0001__x0001__x0001__x0001__x0001__x0001__x0001__x0001__x0001__x0001__x0001__x0001__x0001__x0001__x0001__x0001__x0001__x0001__x0001__x0001__x0001__x0001__x0001__x0001__x0001__x0001__x0001__x0001__x0001__x0001__x0001__x0001__x0001__x0001__x0001__x0001__x0001__x0001__x0001__x0001__x0001__x0001__x0001__x0001__x0001__x0001__x0001__x0001__x0001__x0001__x0001__x0001__x0001__x0001__x0001__x0001__x0001__x0001__x0001__x0001__x0001__x0001__x0001__x0001__x0001__x0001__x0001__x0001__x0001__x0001__x0001__x0001__x0001__x0001__x0001__x0001__x0001__x0001__x0001__x0001__x0001__x0001__x0002__x0001__x0001__x0001__x0001__x0001__x0001__x0001__x0001__x0001__x0001__x0001__x0001__x0001__x0001__x0001__x0001__x0001__x0001__x0001__x0001__x0001__x0001__x0001__x0001__x0001__x0001__x0001__x0001__x0001__x0001__x0001__x0001__x0001__x0001__x0001__x0001__x0001__x0001__x0001__x0001__x0001__x0001__x0001__x0001__x0001__x0001__x0001__x0001__x0001__x0001__x0001__x0001__x0001__x0001__x0001__x0001__x0001__x0001__x0001__x0001__x0001__x0001__x0001__x0001__x0001__x0001__x0001__x0001__x0001__x0001__x0001__x0001__x0001__"}},{"$cut":{"chars":225570,"head":"c665e42971ce5a31ff6cb7dcbb2f944c_x0001__x0002__x0001__x0001__x0001__x0001__x0001__x0001__x0001__x0001__x0001__x0001__x0001__x0001__x0001__x0001__x0001__x0001__x0001__x0001__x0001__x0001__x0001__x0001__x0001__x0001__x0001__x0001__x0001__x0001__x0001__x0001__x0001__x0001__x0001__x0001__x0001__x0001__x0001__x0001__x0001__x0001__x0001__x0001__x0001__x0001__x0001__x0001__x0001__x0001__x0001__x0001__x0001__x0001__x0001__x0001__x0001__x0001__x0001__x0001__x0001__x0001__x0001__x0001__x0001__x0001__x0001__x0001__x0001__x0001__x0001__x0001__x0001__x0001__x0001__x0001__x0001__x0001__x0001__x0001__x0001__x0001__x0001__x0001__x0001__x0001__x0001__x0001__x0001__x0001__x0001__x0001__x0001__x0001__x0001__x0001__x0001__x0001__x0001__x0001__x0001__x0001__x0001__x0001__x0001__x0001__x0001__x0001__x0001__x0001__x0001__x0001__x0001__x0001__x0001__x0001__x0001__x0001__x0001__x0001__x0001__x0001__x0001__x0001__x0001__x0001__x0001__x0001__x0001__x0001__x0001__x0001__x0001__x0001__x0001__x0001__x0001__x0001__x0001__x0001__x0001__x0001__x0001__x0001__x0001__x0001__x0001__x0001__x0001__x0001__x0001__x0001__x0001__x0001__x0001__x0001__x0001__x0001__x0001__x0001__x0001__x0001__x0001__x0001__x0001__x0001__x0001__x0001__x0001__x0001__x0001__x0001__x0001__x0001__x0001__x0001__x0001__x0001__x0001__x0001__x0001__x0001__x0001__x0001__x0001__x0001__x0001__x0001__x0001__x0001__x0001__x0001__x0001__x0001__x0001__x0001__x0001__x0001__x0001__x0001__x0001__x0001__x0001__x0001__x0001__x0001__x0001__x0001__x0001__x0001__x0001__x0001__x0001__x0001__x0001__x0001__x0001__x0001__x0001__x0001__x0001__x0001__x0001__x0001__x0001__x0001__x0001__x0001__x0001__x0001__x0001__x0001__x0001__x0001__x0001__x0001__x0001__x0001__x0001__x0001__x0001__x0001__x0001__x0001__x0001__x0001__x0001__x0001__x0001__x0001__x0001__x0001__x0001__x0001__x0001__x0002__x0001__x0001__x0001__x0001__x0001__x0001__x0001__x0001__x0001__x0001__x0001__x0001__x0001__x0001__x0001__x0001__x0001__x0001__x0001__x0001__x0001__x0001__x0001__x0001__x0001__x0001__x0001__x0001__x0001__x0001__x0001__x0001__x0001__x0001__x0001__x0001__x0001__x0001__x0001__x0001__x0001__x0001__x0001__x0001__x0001__x0001__x0001__x0001__x0001__x0001__x0001__x0001__x0001__x0001__x0001__x0001__x0001__x0001__x0001__x0001__x0001__x0001__x0001__x0001__x0001__x0001__x0001__x0001__x0001__x0001__x0001__x0001__x0001__x0001__x0001__x0001__x0001__x0001__x0001__x0001__x0001__x0001__x0001__x0001__x0001__x0001__x0001__x0001__x0001__x0001__x0001__x0001__x0001__x0001__x0001__x0001__x0001__x0001__x0001__x0001__x0001__x0001__x0001__x0001__x0001__x0001__x0001__x0001__x0001__x0001__x0001__x0001__x0001__x0001__x0001__x0001__x0001__x0001__x0001__x0001__x0001__x0001__x0001__x0001__x0001__x0001__x0001__x0001__x0001__x0001__x0001__x0001__x0001__x0001__x0001__x0001__x0001__x0001__x0001__x0001__x0001__x0001__x0001__x0001__x0001__x0001__x0001__x0001__x0001__x0001__x0001__x0001__x0001__x0001__x0001__x0001__x0001__x0001__x0001__x0001__x0001__x0001__x0001__x0001__x0001__x0001__x0001__x0001__x0001__x0001__x0001__x0001__x0001__x0001__x0001__x0001__x0001__x0001__x0001__x0001__x0001__x0001__x0001__x0001__x0001__x0001__x0001__x0001__x0001__x0001__x0001__x0001__x0001__x0001__x0001__x0001__x0001__x0001__x0001__x0001__x0001__x0001__x0001__x0001__x0001__x0001__x0001__x0001__x0001__x0001__x0001__x0001__x0001__x0001__x0001__x0001__x0001__x0001__x0001__x0001__x0001__x0001__x0001__x0001__x0001__x0001__x0001__x0001__x0001__x0001__x0001__x0001__x0001__x0001__x0001__x0001__x0001__x0001__x0001__x0001__x0001__x0001__x0001__x0001__x0001__x0001__x0001__x0001__x0001__x0001__x0001__x0001__x0001__x0002__x0001__x0001__x0001__x0001__x0001__x0001__x0001__x0001__x0001__x0001__x0001__x0001__x0001__x0001__x0001__x0001__x0001__x0001__x0001__x0001__x0001__x0001__x0001__x0001__x0001__x0001__x0001__x0001__x0001__x0001__x0001__x0001__x0001__x0001__x0001__x0001__x0001__x0001__x0001__x0001__x0001__x0001__x0001__x0001__x0001__x0001__x0001__x0001__x0001__x0001__x0001__x0001__x0001__x0001__x0001__x0001__x0001__x0001__x0001__x0001__x0001__x0001__x0001__x0001__x0001__x0001__x0001__x0001__x0001__x0001__x00"}},{"$cut":{"chars":226194,"head":"6132400fd70093b5a38af08b2bb35586_x0001__x0002__x0001__x0001__x0001__x0001__x0001__x0001__x0001__x0001__x0001__x0001__x0001__x0001__x0001__x0001__x0001__x0001__x0001__x0001__x0001__x0001__x0001__x0001__x0001__x0001__x0001__x0001__x0001__x0001__x0001__x0001__x0001__x0001__x0001__x0001__x0001__x0001__x0001__x0001__x0001__x0001__x0001__x0001__x0001__x0001__x0001__x0001__x0001__x0001__x0001__x0001__x0001__x0001__x0001__x0001__x0001__x0001__x0001__x0001__x0001__x0001__x0001__x0001__x0001__x0001__x0001__x0001__x0001__x0001__x0001__x0001__x0001__x0001__x0001__x0001__x0001__x0001__x0001__x0001__x0001__x0001__x0001__x0001__x0001__x0001__x0001__x0001__x0001__x0001__x0001__x0001__x0001__x0001__x0001__x0001__x0001__x0001__x0001__x0001__x0001__x0001__x0001__x0001__x0001__x0001__x0001__x0001__x0001__x0001__x0001__x0001__x0001__x0001__x0001__x0001__x0001__x0001__x0001__x0001__x0001__x0001__x0001__x0001__x0001__x0001__x0001__x0001__x0001__x0001__x0001__x0001__x0001__x0001__x0001__x0001__x0001__x0001__x0001__x0001__x0001__x0001__x0001__x0001__x0001__x0001__x0001__x0001__x0001__x0001__x0001__x0001__x0001__x0001__x0001__x0001__x0001__x0001__x0001__x0001__x0001__x0001__x0001__x0001__x0001__x0001__x0001__x0001__x0001__x0001__x0001__x0001__x0001__x0001__x0001__x0001__x0001__x0001__x0001__x0001__x0001__x0001__x0001__x0001__x0001__x0001__x0001__x0001__x0001__x0001__x0001__x0001__x0001__x0001__x0001__x0001__x0001__x0001__x0001__x0001__x0001__x0001__x0001__x0001__x0001__x0001__x0001__x0001__x0001__x0001__x0001__x0001__x0001__x0001__x0001__x0001__x0001__x0001__x0001__x0001__x0001__x0001__x0001__x0001__x0001__x0001__x0001__x0001__x0001__x0001__x0001__x0001__x0001__x0001__x0001__x0001__x0001__x0001__x0001__x0001__x0001__x0001__x0001__x0001__x0001__x0001__x0001__x0001__x0001__x0001__x0001__x0001__x0001__x0001__x0001__x0002__x0001__x0001__x0001__x0001__x0001__x0001__x0001__x0001__x0001__x0001__x0001__x0001__x0001__x0001__x0001__x0001__x0001__x0001__x0001__x0001__x0001__x0001__x0001__x0001__x0001__x0001__x0001__x0001__x0001__x0001__x0001__x0001__x0001__x0001__x0001__x0001__x0001__x0001__x0001__x0001__x0001__x0001__x0001__x0001__x0001__x0001__x0001__x0001__x0001__x0001__x0001__x0001__x0001__x0001__x0001__x0001__x0001__x0001__x0001__x0001__x0001__x0001__x0001__x0001__x0001__x0001__x0001__x0001__x0001__x0001__x0001__x0001__x0001__x0001__x0001__x0001__x0001__x0001__x0001__x0001__x0001__x0001__x0001__x0001__x0001__x0001__x0001__x0001__x0001__x0001__x0001__x0001__x0001__x0001__x0001__x0001__x0001__x0001__x0001__x0001__x0001__x0001__x0001__x0001__x0001__x0001__x0001__x0001__x0001__x0001__x0001__x0001__x0001__x0001__x0001__x0001__x0001__x0001__x0001__x0001__x0001__x0001__x0001__x0001__x0001__x0001__x0001__x0001__x0001__x0001__x0001__x0001__x0001__x0001__x0001__x0001__x0001__x0001__x0001__x0001__x0001__x0001__x0001__x0001__x0001__x0001__x0001__x0001__x0001__x0001__x0001__x0001__x0001__x0001__x0001__x0001__x0001__x0001__x0001__x0001__x0001__x0001__x0001__x0001__x0001__x0001__x0001__x0001__x0001__x0001__x0001__x0001__x0001__x0001__x0001__x0001__x0001__x0001__x0001__x0001__x0001__x0001__x0001__x0001__x0001__x0001__x0001__x0001__x0001__x0001__x0001__x0001__x0001__x0001__x0001__x0001__x0001__x0001__x0001__x0001__x0001__x0001__x0001__x0001__x0001__x0001__x0001__x0001__x0001__x0001__x0001__x0001__x0001__x0001__x0001__x0001__x0001__x0001__x0001__x0001__x0001__x0001__x0001__x0001__x0001__x0001__x0001__x0001__x0001__x0001__x0001__x0001__x0001__x0001__x0001__x0001__x0001__x0001__x0001__x0001__x0001__x0001__x0001__x0001__x0001__x0001__x0001__x0001__x0001__x0001__x0001__x0001__x0001__x0002__x0001__x0001__x0001__x0001__x0001__x0001__x0001__x0001__x0001__x0001__x0001__x0001__x0001__x0001__x0001__x0001__x0001__x0001__x0001__x0001__x0001__x0001__x0001__x0001__x0001__x0001__x0001__x0001__x0001__x0001__x0001__x0001__x0001__x0001__x0001__x0001__x0001__x0001__x0001__x0001__x0001__x0001__x0001__x0001__x0001__x0001__x0001__x0001__x0001__x0001__x0001__x0001__x0001__x0001__x0001__x0001__x0001__x0001__x0001__x0001__x0001__x0001__x0001__x0001__x0001__x0001__x0001__x0001__x0001__x0001__x00"}},{"$cut":{"chars":225378,"head":"b283e53d70eef95291cf8cf89855a42f_x0001__x0002__x0001__x0001__x0001__x0001__x0001__x0001__x0001__x0001__x0001__x0001__x0001__x0001__x0001__x0001__x0001__x0001__x0001__x0001__x0001__x0001__x0001__x0001__x0001__x0001__x0001__x0001__x0001__x0001__x0001__x0001__x0001__x0001__x0001__x0001__x0001__x0001__x0001__x0001__x0001__x0001__x0001__x0001__x0001__x0001__x0001__x0001__x0001__x0001__x0001__x0001__x0001__x0001__x0001__x0001__x0001__x0001__x0001__x0001__x0001__x0001__x0001__x0001__x0001__x0001__x0001__x0001__x0001__x0001__x0001__x0001__x0001__x0001__x0001__x0001__x0001__x0001__x0001__x0001__x0001__x0001__x0001__x0001__x0001__x0001__x0001__x0001__x0001__x0001__x0001__x0001__x0001__x0001__x0001__x0001__x0001__x0001__x0001__x0001__x0001__x0001__x0001__x0001__x0001__x0001__x0001__x0001__x0001__x0001__x0001__x0001__x0001__x0001__x0001__x0001__x0001__x0001__x0001__x0001__x0001__x0001__x0001__x0001__x0001__x0001__x0001__x0001__x0001__x0001__x0001__x0001__x0001__x0001__x0001__x0001__x0001__x0001__x0001__x0001__x0001__x0001__x0001__x0001__x0001__x0001__x0001__x0001__x0001__x0001__x0001__x0001__x0001__x0001__x0001__x0001__x0001__x0001__x0001__x0001__x0001__x0001__x0001__x0001__x0001__x0001__x0001__x0001__x0001__x0001__x0001__x0001__x0001__x0001__x0001__x0001__x0001__x0001__x0001__x0001__x0001__x0001__x0001__x0001__x0001__x0001__x0001__x0001__x0001__x0001__x0001__x0001__x0001__x0001__x0001__x0001__x0001__x0001__x0001__x0001__x0001__x0001__x0001__x0001__x0001__x0001__x0001__x0001__x0001__x0001__x0001__x0001__x0001__x0001__x0001__x0001__x0001__x0001__x0001__x0001__x0001__x0001__x0001__x0001__x0001__x0001__x0001__x0001__x0001__x0001__x0001__x0001__x0001__x0001__x0001__x0001__x0001__x0001__x0001__x0001__x0001__x0001__x0001__x0001__x0001__x0001__x0001__x0001__x0001__x0001__x0001__x0001__x0001__x0001__x0001__x0002__x0001__x0001__x0001__x0001__x0001__x0001__x0001__x0001__x0001__x0001__x0001__x0001__x0001__x0001__x0001__x0001__x0001__x0001__x0001__x0001__x0001__x0001__x0001__x0001__x0001__x0001__x0001__x0001__x0001__x0001__x0001__x0001__x0001__x0001__x0001__x0001__x0001__x0001__x0001__x0001__x0001__x0001__x0001__x0001__x0001__x0001__x0001__x0001__x0001__x0001__x0001__x0001__x0001__x0001__x0001__x0001__x0001__x0001__x0001__x0001__x0001__x0001__x0001__x0001__x0001__x0001__x0001__x0001__x0001__x0001__x0001__x0001__x0001__x0001__x0001__x0001__x0001__x0001__x0001__x0001__x0001__x0001__x0001__x0001__x0001__x0001__x0001__x0001__x0001__x0001__x0001__x0001__x0001__x0001__x0001__x0001__x0001__x0001__x0001__x0001__x0001__x0001__x0001__x0001__x0001__x0001__x0001__x0001__x0001__x0001__x0001__x0001__x0001__x0001__x0001__x0001__x0001__x0001__x0001__x0001__x0001__x0001__x0001__x0001__x0001__x0001__x0001__x0001__x0001__x0001__x0001__x0001__x0001__x0001__x0001__x0001__x0001__x0001__x0001__x0001__x0001__x0001__x0001__x0001__x0001__x0001__x0001__x0001__x0001__x0001__x0001__x0001__x0001__x0001__x0001__x0001__x0001__x0001__x0001__x0001__x0001__x0001__x0001__x0001__x0001__x0001__x0001__x0001__x0001__x0001__x0001__x0001__x0001__x0001__x0001__x0001__x0001__x0001__x0001__x0001__x0001__x0001__x0001__x0001__x0001__x0001__x0001__x0001__x0001__x0001__x0001__x0001__x0001__x0001__x0001__x0001__x0001__x0001__x0001__x0001__x0001__x0001__x0001__x0001__x0001__x0001__x0001__x0001__x0001__x0001__x0001__x0001__x0001__x0001__x0001__x0001__x0001__x0001__x0001__x0001__x0001__x0001__x0001__x0001__x0001__x0001__x0001__x0001__x0001__x0001__x0001__x0001__x0001__x0001__x0001__x0001__x0001__x0001__x0001__x0001__x0001__x0001__x0001__x0001__x0001__x0001__x0001__x0001__x0001__x0001__x0001__x0001__x0001__x0002__x0001__x0001__x0001__x0001__x0001__x0001__x0001__x0001__x0001__x0001__x0001__x0001__x0001__x0001__x0001__x0001__x0001__x0001__x0001__x0001__x0001__x0001__x0001__x0001__x0001__x0001__x0001__x0001__x0001__x0001__x0001__x0001__x0001__x0001__x0001__x0001__x0001__x0001__x0001__x0001__x0001__x0001__x0001__x0001__x0001__x0001__x0001__x0001__x0001__x0001__x0001__x0001__x0001__x0001__x0001__x0001__x0001__x0001__x0001__x0001__x0001__x0001__x0001__x0001__x0001__x0001__x0001__x0001__x0001__x0001__x00"}},{"$cut":{"chars":225834,"head":"5be1024c12e462771f19b9aaba751a97_x0001__x0002__x0001__x0001__x0001__x0001__x0001__x0001__x0001__x0001__x0001__x0001__x0001__x0001__x0001__x0001__x0001__x0001__x0001__x0001__x0001__x0001__x0001__x0001__x0001__x0001__x0001__x0001__x0001__x0001__x0001__x0001__x0001__x0001__x0001__x0001__x0001__x0001__x0001__x0001__x0001__x0001__x0001__x0001__x0001__x0001__x0001__x0001__x0001__x0001__x0001__x0001__x0001__x0001__x0001__x0001__x0001__x0001__x0001__x0001__x0001__x0001__x0001__x0001__x0001__x0001__x0001__x0001__x0001__x0001__x0001__x0001__x0001__x0001__x0001__x0001__x0001__x0001__x0001__x0001__x0001__x0001__x0001__x0001__x0001__x0001__x0001__x0001__x0001__x0001__x0001__x0001__x0001__x0001__x0001__x0001__x0001__x0001__x0001__x0001__x0001__x0001__x0001__x0001__x0001__x0001__x0001__x0001__x0001__x0001__x0001__x0001__x0001__x0001__x0001__x0001__x0001__x0001__x0001__x0001__x0001__x0001__x0001__x0001__x0001__x0001__x0001__x0001__x0001__x0001__x0001__x0001__x0001__x0001__x0001__x0001__x0001__x0001__x0001__x0001__x0001__x0001__x0001__x0001__x0001__x0001__x0001__x0001__x0001__x0001__x0001__x0001__x0001__x0001__x0001__x0001__x0001__x0001__x0001__x0001__x0001__x0001__x0001__x0001__x0001__x0001__x0001__x0001__x0001__x0001__x0001__x0001__x0001__x0001__x0001__x0001__x0001__x0001__x0001__x0001__x0001__x0001__x0001__x0001__x0001__x0001__x0001__x0001__x0001__x0001__x0001__x0001__x0001__x0001__x0001__x0001__x0001__x0001__x0001__x0001__x0001__x0001__x0001__x0001__x0001__x0001__x0001__x0001__x0001__x0001__x0001__x0001__x0001__x0001__x0001__x0001__x0001__x0001__x0001__x0001__x0001__x0001__x0001__x0001__x0001__x0001__x0001__x0001__x0001__x0001__x0001__x0001__x0001__x0001__x0001__x0001__x0001__x0001__x0001__x0001__x0001__x0001__x0001__x0001__x0001__x0001__x0001__x0001__x0001__x0001__x0001__x0001__x0001__x0001__x0001__x0002__x0001__x0001__x0001__x0001__x0001__x0001__x0001__x0001__x0001_@\u009f@_x0001__x0001__x0001__x0001__x0001__x0001__x0001__x0001__x0001__x0001__x0001__x0001__x0001__x0001__x0001__x0001__x0001__x0001__x0001__x0001__x0001__x0001__x0001__x0001__x0001__x0001__x0001__x0001__x0001__x0001__x0001__x0001__x0001__x0001__x0001__x0001__x0001__x0001__x0001__x0001__x0001__x0001__x0001__x0001__x0001__x0001__x0001__x0001__x0001__x0001__x0001__x0001__x0001__x0001__x0001__x0001__x0001__x0001__x0001__x0001__x0001__x0001__x0001__x0001__x0001__x0001__x0001__x0001__x0001__x0001__x0001__x0001__x0001__x0001__x0001__x0001__x0001_@\u009f@_x0001__x0001__x0001__x0001__x0001__x0001__x0001__x0001__x0001__x0001__x0001__x0001__x0001__x0001__x0001__x0001__x0001__x0001__x0001__x0001__x0001__x0001__x0001__x0001__x0001__x0001__x0001__x0001__x0001__x0001__x0001__x0001__x0001__x0001__x0001__x0001__x0001__x0001__x0001__x0001__x0001__x0001__x0001__x0001__x0001__x0001__x0001__x0001__x0001__x0001__x0001__x0001__x0001__x0001__x0001__x0001__x0001__x0001__x0001__x0001__x0001__x0001__x0001__x0001__x0001__x0001__x0001__x0001__x0001__x0001__x0001__x0001__x0001__x0001__x0001__x0001__x0001__x0001__x0001__x0001__x0001__x0001__x0001__x0001__x0001__x0001__x0001__x0001__x0001__x0001__x0001__x0001__x0001__x0001__x0001__x0001__x0001__x0001__x0001__x0001__x0001__x0001__x0001__x0001__x0001__x0001__x0001__x0001__x0001__x0001__x0001__x0001__x0001__x0001__x0001__x0001__x0001__x0001__x0001__x0001__x0001__x0001__x0001__x0001__x0001__x0001__x0001__x0001__x0001__x0001__x0001__x0001__x0001__x0001__x0001__x0001__x0001__x0001__x0001__x0001__x0001__x0001__x0001__x0001__x0001__x0001__x0001__x0001__x0001__x0001__x0001__x0001__x0001__x0001__x0001__x0001__x0001__x0001__x0001__x0001__x0001__x0002__x0001__x0001__x0001__x0001__x0001__x0001__x0001__x0001__x0001__x0001__x0001__x0001__x0001__x0001__x0001__x0001__x0001__x0001__x0001__x0001__x0001__x0001__x0001__x0001__x0001__x0001__x0001__x0001__x0001__x0001__x0001__x0001__x0001__x0001__x0001__x0001__x0001__x0001__x0001__x0001__x0001__x0001__x0001__x0001__x0001__x0001__x0001__x0001__x0001__x0001__x0001__x0001__x0001__x0001__x0001__x0001__x0001__x0001__x0001__x0001__x0001__x0001__x0001__x0001__x0001__x0001__x0001__x0001__x0001__x0001__x0001__x0001__x0001__x0001__x0001__x000"}},{"$cut":{"chars":225282,"head":"33c46877941698dc1ad7dd8d3b9d0168_x0001__x0002__x0001__x0001__x0001__x0001__x0001__x0001__x0001__x0001__x0001__x0001__x0001__x0001__x0001__x0001__x0001__x0001__x0001__x0001__x0001__x0001__x0001__x0001__x0001__x0001__x0001__x0001__x0001__x0001__x0001__x0001__x0001__x0001__x0001__x0001__x0001__x0001__x0001__x0001__x0001__x0001__x0001__x0001__x0001__x0001__x0001__x0001__x0001__x0001__x0001__x0001__x0001__x0001__x0001__x0001__x0001__x0001__x0001__x0001__x0001__x0001__x0001__x0001__x0001__x0001__x0001__x0001__x0001__x0001__x0001__x0001__x0001__x0001__x0001__x0001__x0001__x0001__x0001__x0001__x0001__x0001__x0001__x0001__x0001__x0001__x0001__x0001__x0001__x0001__x0001__x0001__x0001__x0001__x0001__x0001__x0001__x0001__x0001__x0001__x0001__x0001__x0001__x0001__x0001__x0001__x0001__x0001__x0001__x0001__x0001__x0001__x0001__x0001__x0001__x0001__x0001__x0001__x0001__x0001__x0001__x0001__x0001__x0001__x0001__x0001__x0001__x0001__x0001__x0001__x0001__x0001__x0001__x0001__x0001__x0001__x0001__x0001__x0001__x0001__x0001__x0001__x0001__x0001__x0001__x0001__x0001__x0001__x0001__x0001__x0001__x0001__x0001__x0001__x0001__x0001__x0001__x0001__x0001__x0001__x0001__x0001__x0001__x0001__x0001__x0001__x0001__x0001__x0001__x0001__x0001__x0001__x0001__x0001__x0001__x0001__x0001__x0001__x0001__x0001__x0001__x0001__x0001__x0001__x0001__x0001__x0001__x0001__x0001__x0001__x0001__x0001__x0001__x0001__x0001__x0001__x0001__x0001__x0001__x0001__x0001__x0001__x0001__x0001__x0001__x0001__x0001__x0001__x0001__x0001__x0001__x0001__x0001__x0001__x0001__x0001__x0001__x0001__x0001__x0001__x0001__x0001__x0001__x0001__x0001__x0001__x0001__x0001__x0001__x0001__x0001__x0001__x0001__x0001__x0001__x0001__x0001__x0001__x0001_\u0088³@_x0001__x0001__x0001__x0001__x0001__x0001__x0001__x0001__x0001__x0001__x0001__x0001__x0001__x0002__x0001__x0001__x0001__x0001__x0001__x0001__x0001__x0001__x0001__x0001__x0001__x0001__x0001__x0001__x0001__x0001__x0001__x0001__x0001__x0001__x0001__x0001__x0001__x0001__x0001__x0001__x0001__x0001__x0001__x0001__x0001__x0001__x0001__x0001__x0001__x0001__x0001__x0001__x0001__x0001__x0001__x0001__x0001__x0001__x0001__x0001__x0001__x0001__x0001__x0001__x0001__x0001__x0001__x0001__x0001__x0001__x0001__x0001__x0001__x0001__x0001__x0001__x0001__x0001__x0001__x0001__x0001__x0001__x0001__x0001__x0001__x0001__x0001__x0001__x0001__x0001__x0001__x0001__x0001__x0001__x0001__x0001__x0001__x0001__x0001__x0001__x0001__x0001__x0001__x0001__x0001__x0001__x0001__x0001__x0001__x0001__x0001__x0001__x0001__x0001__x0001__x0001__x0001__x0001__x0001__x0001__x0001__x0001__x0001__x0001__x0001__x0001__x0001__x0001__x0001__x0001__x0001__x0001__x0001__x0001__x0001__x0001__x0001__x0001__x0001__x0001__x0001__x0001__x0001__x0001__x0001__x0001__x0001__x0001__x0001__x0001__x0001__x0001__x0001__x0001__x0001__x0001__x0001__x0001__x0001__x0001__x0001__x0001__x0001__x0001__x0001__x0001__x0001_\u0088³@_x0001__x0001__x0001__x0001__x0001__x0001__x0001__x0001__x0001__x0001__x0001__x0001__x0001__x0001__x0001__x0001__x0001__x0001__x0001__x0001__x0001__x0001__x0001__x0001__x0001__x0001__x0001__x0001__x0001__x0001__x0001__x0001__x0001__x0001__x0001__x0001__x0001__x0001__x0001__x0001__x0001__x0001__x0001__x0001__x0001__x0001__x0001__x0001__x0001__x0001__x0001__x0001__x0001__x0001__x0001__x0001__x0001__x0001__x0001__x0001__x0001__x0001__x0001__x0001__x0001__x0001__x0001__x0001__x0001__x0001__x0001__x0001__x0001__x0001__x0001__x0001__x0001__x0001__x0001__x0001__x0001__x0001__x0001__x0001__x0001__x0001__x0001__x0001__x0001__x0001__x0001__x0001__x0001__x0001__x0001__x0001__x0001__x0002__x0001__x0001__x0001__x0001__x0001__x0001__x0001__x0001__x0001__x0001__x0001__x0001__x0001__x0001__x0001__x0001__x0001__x0001__x0001__x0001__x0001__x0001__x0001__x0001__x0001__x0001__x0001__x0001__x0001__x0001__x0001__x0001__x0001__x0001__x0001__x0001__x0001__x0001__x0001__x0001__x0001__x0001__x0001__x0001__x0001__x0001__x0001__x0001__x0001__x0001__x0001__x0001__x0001__x0001__x0001__x0001__x0001__x0001__x0001__x0001__x0001__x0001__x0001__x0001__x0001__x0001__x0001__x0001__x0001__x0001__x0001__x0001__x0001__x0001__x0001__x000"}},{"$cut":{"chars":226068,"head":"05a18f21b42fb1aa428765ce2e4dd99c_x0001__x0002__x0001__x0001__x0001__x0001__x0001__x0001__x0001__x0001__x0001__x0001__x0001__x0001__x0001_\u0088³@_x0001__x0001__x0001__x0001__x0001__x0001__x0001__x0001__x0001__x0001__x0001__x0001__x0001__x0001__x0001__x0001__x0001__x0001__x0001__x0001__x0001__x0001__x0001__x0001__x0001__x0001__x0001__x0001__x0001__x0001__x0001__x0001__x0001__x0001__x0001__x0001__x0001__x0001__x0001__x0001__x0001__x0001__x0001__x0001__x0001__x0001__x0001__x0001__x0001__x0001__x0001__x0001__x0001__x0001__x0001__x0001__x0001__x0001__x0001__x0001__x0001__x0001__x0001__x0001__x0001__x0001__x0001__x0001__x0001__x0001__x0001__x0001__x0001__x0001__x0001__x0001__x0001__x0001__x0001__x0001__x0001__x0001__x0001__x0001__x0001__x0001__x0001__x0001__x0001__x0001__x0001__x0001__x0001__x0001__x0001__x0001__x0001__x0001__x0001__x0001__x0001__x0001__x0001__x0001__x0001__x0001__x0001__x0001__x0001__x0001__x0001__x0001__x0001__x0001__x0001__x0001__x0001__x0001__x0001__x0001__x0001__x0001__x0001__x0001__x0001__x0001__x0001__x0001__x0001__x0001__x0001__x0001__x0001__x0001__x0001__x0001__x0001__x0001__x0001__x0001__x0001__x0001__x0001__x0001__x0001__x0001__x0001__x0001__x0001__x0001__x0001__x0001__x0001__x0001__x0001__x0001__x0001__x0001__x0001__x0001__x0001__x0001__x0001__x0001__x0001__x0001__x0001__x0001__x0001__x0001__x0001__x0001__x0001__x0001__x0001__x0001__x0001__x0001__x0001__x0001__x0001__x0001__x0001__x0001__x0001__x0001__x0001__x0001__x0001__x0001__x0001__x0001__x0001__x0001__x0001__x0001__x0001__x0001__x0001__x0001__x0001__x0001__x0001__x0001__x0001__x0001__x0001__x0001__x0001__x0001__x0001__x0001__x0001__x0001__x0001__x0001__x0001__x0001__x0001__x0001__x0001__x0001__x0001__x0001__x0001__x0001__x0001__x0001__x0001__x0001__x0001__x0001__x0001__x0001__x0001__x0001__x0001__x0002__x0001__x0001__x0001__x0001__x0001__x0001__x0001__x0001__x0001__x0001__x0001__x0001__x0001__x0001__x0001__x0001__x0001__x0001__x0001__x0001__x0001__x0001__x0001__x0001__x0001__x0001__x0001__x0001__x0001__x0001__x0001__x0001__x0001__x0001__x0001__x0001__x0001__x0001__x0001__x0001__x0001__x0001__x0001__x0001__x0001__x0001__x0001__x0001__x0001__x0001__x0001__x0001__x0001__x0001__x0001__x0001__x0001__x0001__x0001__x0001__x0001__x0001__x0001__x0001__x0001__x0001__x0001__x0001__x0001__x0001__x0001__x0001__x0001__x0001__x0001__x0001__x0001__x0001__x0001__x0001__x0001__x0001__x0001__x0001__x0001__x0001__x0001__x0001__x0001__x0001__x0001__x0001__x0001__x0001__x0001__x0001__x0001__x0001__x0001__x0001__x0001__x0001__x0001__x0001__x0001__x0001__x0001__x0001__x0001__x0001__x0001__x0001__x0001__x0001__x0001__x0001__x0001__x0001__x0001__x0001__x0001__x0001__x0001__x0001__x0001__x0001__x0001__x0001__x0001__x0001__x0001__x0001__x0001__x0001__x0001__x0001__x0001__x0001__x0001__x0001__x0001__x0001__x0001__x0001__x0001__x0001__x0001__x0001__x0001__x0001__x0001__x0001__x0001__x0001__x0001__x0001__x0001__x0001__x0001__x0001__x0001__x0001__x0001__x0001__x0001__x0001__x0001__x0001__x0001__x0001__x0001__x0001__x0001__x0001__x0001__x0001__x0001__x0001__x0001__x0001__x0001__x0001__x0001__x0001__x0001__x0001__x0001__x0001__x0001__x0001__x0001__x0001__x0001__x0001__x0001__x0001__x0001__x0001__x0001__x0001__x0001__x0001__x0001__x0001__x0001__x0001__x0001__x0001__x0001__x0001__x0001__x0001__x0001__x0001__x0001__x0001__x0001__x0001__x0001__x0001__x0001__x0001__x0001__x0001__x0001__x0001__x0001__x0001__x0001__x0001__x0001__x0001__x0001__x0001__x0001__x0001__x0001__x0001__x0001__x0001__x0001__x0001__x0001__x0001__x0001__x0001__x0001__x0001__x0001__x0001__x0001__x0001__x0001__x0002__x0001__x0001__x0001__x0001__x0001__x0001__x0001__x0001__x0001__x0001__x0001__x0001__x0001__x0001__x0001__x0001__x0001__x0001__x0001__x0001__x0001__x0001__x0001__x0001__x0001__x0001__x0001__x0001__x0001__x0001__x0001__x0001__x0001__x0001__x0001__x0001__x0001__x0001__x0001__x0001__x0001__x0001__x0001__x0001__x0001__x0001__x0001__x0001__x0001__x0001__x0001__x0001__x0001__x0001__x0001__x0001__x0001__x0001__x0001__x0001__x0001_\u0088³@_x0001__x0001__x0001__x0001__x0001__x0001__x0001__x0001__x0001__x0001__x0001__x000"}},{"$cut":{"chars":226062,"head":"497cf8b640ae65884fcc016771609aab_x0001__x0002__x0001__x0001__x0001__x0001__x0001__x0001__x0001__x0001__x0001__x0001__x0001__x0001__x0001__x0001__x0001__x0001__x0001__x0001__x0001__x0001__x0001__x0001__x0001__x0001__x0001__x0001__x0001__x0001__x0001__x0001__x0001__x0001__x0001__x0001__x0001__x0001__x0001__x0001__x0001__x0001__x0001__x0001__x0001__x0001__x0001__x0001__x0001__x0001__x0001__x0001__x0001__x0001__x0001__x0001__x0001__x0001__x0001__x0001__x0001__x0001__x0001__x0001__x0001__x0001__x0001__x0001__x0001__x0001__x0001__x0001__x0001__x0001__x0001__x0001__x0001__x0001__x0001__x0001__x0001__x0001__x0001__x0001__x0001__x0001__x0001_LÝ@_x0001__x0001__x0001__x0001__x0001__x0001__x0001__x0001__x0001__x0001__x0001__x0001__x0001__x0001__x0001__x0001__x0001__x0001__x0001__x0001__x0001__x0001__x0001__x0001__x0001__x0001__x0001__x0001__x0001__x0001__x0001__x0001__x0001__x0001__x0001__x0001__x0001__x0001__x0001__x0001__x0001__x0001__x0001__x0001__x0001__x0001__x0001__x0001__x0001__x0001__x0001__x0001__x0001__x0001__x0001__x0001__x0001__x0001__x0001__x0001__x0001__x0001__x0001__x0001__x0001__x0001__x0001__x0001__x0001__x0001__x0001__x0001__x0001__x0001__x0001__x0001__x0001__x0001__x0001__x0001__x0001__x0001__x0001__x0001__x0001__x0001__x0001__x0001__x0001__x0001__x0001__x0001__x0001__x0001__x0001__x0001__x0001__x0001__x0001__x0001__x0001__x0001__x0001__x0001__x0001__x0001__x0001__x0001__x0001__x0001__x0001__x0001__x0001__x0001__x0001__x0001__x0001__x0001__x0001__x0001__x0001__x0001__x0001__x0001__x0001__x0001__x0001__x0001__x0001__x0001__x0001__x0001__x0001__x0001__x0001__x0001__x0001__x0001__x0001__x0001__x0001__x0001__x0001__x0001__x0001__x0001__x0001__x0001__x0001__x0001__x0001__x0001__x0001__x0001__x0001__x0001__x0001__x0001__x0001__x0001__x0001__x0001__x0001__x0001__x0001__x0002__x0001__x0001__x0001__x0001__x0001__x0001__x0001__x0001__x0001__x0001__x0001__x0001__x0001__x0001__x0001__x0001__x0001__x0001__x0001__x0001__x0001__x0001__x0001__x0001__x0001__x0001__x0001__x0001__x0001__x0001__x0001__x0001__x0001__x0001__x0001__x0001__x0001__x0001__x0001__x0001__x0001__x0001__x0001__x0001__x0001__x0001__x0001__x0001__x0001__x0001__x0001__x0001__x0001__x0001__x0001__x0001__x0001__x0001__x0001__x0001__x0001__x0001__x0001__x0001__x0001__x0001__x0001__x0001__x0001__x0001__x0001__x0001__x0001__x0001__x0001__x0001__x0001__x0001__x0001__x0001__x0001__x0001__x0001__x0001__x0001__x0001__x0001__x0001__x0001__x0001__x0001__x0001__x0001__x0001__x0001__x0001__x0001__x0001__x0001__x0001__x0001__x0001__x0001__x0001__x0001__x0001__x0001__x0001__x0001__x0001__x0001__x0001__x0001__x0001__x0001__x0001__x0001__x0001__x0001__x0001__x0001__x0001__x0001__x0001__x0001__x0001__x0001__x0001__x0001__x0001__x0001__x0001__x0001__x0001__x0001__x0001__x0001__x0001__x0001__x0001__x0001__x0001__x0001__x0001__x0001__x0001__x0001__x0001__x0001__x0001__x0001__x0001__x0001__x0001__x0001__x0001__x0001__x0001__x0001__x0001__x0001__x0001__x0001__x0001__x0001__x0001__x0001__x0001__x0001__x0001__x0001__x0001__x0001__x0001__x0001__x0001__x0001__x0001__x0001__x0001__x0001__x0001__x0001__x0001__x0001__x0001__x0001__x0001__x0001__x0001__x0001__x0001__x0001__x0001__x0001__x0001__x0001__x0001__x0001__x0001__x0001__x0001__x0001__x0001__x0001__x0001__x0001__x0001__x0001__x0001__x0001__x0001__x0001__x0001__x0001__x0001__x0001__x0001__x0001__x0001__x0001__x0001__x0001__x0001__x0001__x0001__x0001__x0001__x0001__x0001__x0001__x0001__x0001__x0001__x0001__x0001__x0001__x0001__x0001__x0001__x0001__x0001__x0001__x0001__x0001__x0001__x0001__x0001__x0001__x0001__x0001__x0001__x0001__x0002__x0001__x0001__x0001__x0001__x0001__x0001__x0001__x0001__x0001__x0001__x0001__x0001__x0001__x0001__x0001__x0001__x0001__x0001__x0001__x0001__x0001__x0001__x0001__x0001__x0001__x0001__x0001__x0001__x0001__x0001__x0001__x0001__x0001__x0001__x0001__x0001__x0001__x0001__x0001__x0001__x0001__x0001__x0001__x0001__x0001__x0001__x0001__x0001__x0001__x0001__x0001__x0001__x0001__x0001__x0001__x0001__x0001__x0001__x0001__x0001__x0001__x0001__x0001__x0001__x0001__x0001__x0001__x0001__x0001__x0001__x0001__x0001__x0001__"}},{"$cut":{"chars":226914,"head":"d863e94114771d1608881e8de4cc45e5_x0001__x0002__x0001__x0001__x0001__x0001__x0001__x0001__x0001__x0001__x0001__x0001__x0001__x0001__x0001__x0001__x0001__x0001__x0001__x0001__x0001__x0001__x0001__x0001__x0001__x0001__x0001__x0001__x0001__x0001__x0001__x0001__x0001__x0001__x0001__x0001__x0001__x0001__x0001__x0001__x0001__x0001__x0001__x0001__x0001__x0001__x0001__x0001__x0001__x0001__x0001__x0001__x0001__x0001__x0001__x0001__x0001__x0001__x0001__x0001__x0001__x0001__x0001__x0001__x0001__x0001__x0001__x0001__x0001__x0001__x0001__x0001__x0001__x0001__x0001__x0001__x0001__x0001__x0001__x0001__x0001__x0001__x0001__x0001__x0001__x0001__x0001__x0001__x0001__x0001__x0001__x0001__x0001__x0001__x0001__x0001__x0001__x0001__x0001__x0001__x0001__x0001__x0001__x0001__x0001__x0001__x0001__x0001__x0001__x0001__x0001__x0001__x0001__x0001__x0001__x0001__x0001__x0001__x0001__x0001__x0001__x0001__x0001__x0001__x0001__x0001__x0001__x0001__x0001__x0001__x0001__x0001__x0001__x0001__x0001__x0001__x0001__x0001__x0001__x0001__x0001__x0001__x0001__x0001__x0001__x0001__x0001__x0001__x0001__x0001__x0001__x0001__x0001__x0001__x0001__x0001__x0001__x0001__x0001__x0001__x0001__x0001__x0001__x0001__x0001__x0001__x0001__x0001__x0001__x0001__x0001__x0001__x0001__x0001__x0001__x0001__x0001__x0001__x0001__x0001__x0001__x0001__x0001__x0001__x0001__x0001__x0001__x0001__x0001__x0001__x0001__x0001__x0001__x0001__x0001__x0001__x0001__x0001__x0001__x0001__x0001__x0001__x0001__x0001__x0001__x0001__x0001__x0001__x0001__x0001__x0001__x0001__x0001__x0001__x0001__x0001__x0001__x0001__x0001__x0001__x0001__x0001__x0001__x0001__x0001__x0001__x0001__x0001__x0001__x0001__x0001__x0001__x0001__x0001__x0001__x0001__x0001__x0001__x0001_LÝ@_x0001__x0001__x0001__x0001__x0001__x0001__x0001__x0001__x0001__x0001__x0001__x0001__x0001__x0002__x0001__x0001__x0001__x0001__x0001__x0001__x0001__x0001__x0001__x0001__x0001__x0001__x0001__x0001__x0001__x0001__x0001__x0001__x0001__x0001__x0001__x0001__x0001__x0001__x0001__x0001__x0001__x0001__x0001__x0001__x0001__x0001__x0001__x0001__x0001__x0001__x0001__x0001__x0001__x0001__x0001__x0001__x0001__x0001__x0001__x0001__x0001__x0001__x0001__x0001__x0001__x0001__x0001__x0001__x0001__x0001__x0001__x0001__x0001__x0001__x0001__x0001__x0001__x0001__x0001__x0001__x0001__x0001__x0001__x0001__x0001__x0001__x0001__x0001__x0001__x0001__x0001__x0001__x0001__x0001__x0001__x0001__x0001__x0001__x0001__x0001__x0001__x0001__x0001__x0001__x0001__x0001__x0001__x0001__x0001__x0001__x0001__x0001__x0001__x0001__x0001__x0001__x0001__x0001__x0001__x0001__x0001__x0001__x0001__x0001__x0001__x0001__x0001__x0001__x0001__x0001__x0001__x0001__x0001__x0001__x0001__x0001__x0001__x0001__x0001__x0001__x0001__x0001__x0001__x0001__x0001__x0001__x0001__x0001__x0001__x0001__x0001__x0001__x0001__x0001__x0001__x0001__x0001__x0001__x0001__x0001__x0001__x0001__x0001__x0001__x0001__x0001__x0001__x0001__x0001__x0001__x0001__x0001__x0001__x0001__x0001_LÝ@_x0001__x0001__x0001__x0001__x0001__x0001__x0001__x0001__x0001__x0001__x0001__x0001__x0001__x0001__x0001__x0001__x0001__x0001__x0001__x0001__x0001__x0001__x0001__x0001__x0001__x0001__x0001__x0001__x0001__x0001__x0001__x0001__x0001__x0001__x0001__x0001__x0001__x0001__x0001__x0001__x0001__x0001__x0001__x0001__x0001__x0001__x0001__x0001__x0001__x0001__x0001__x0001__x0001__x0001__x0001__x0001__x0001__x0001__x0001__x0001__x0001__x0001__x0001__x0001__x0001__x0001__x0001__x0001__x0001__x0001__x0001__x0001__x0001__x0001__x0001__x0001__x0001_LÝ@_x0001__x0001__x0001__x0001__x0001__x0001__x0001__x0001__x0001__x0002__x0001__x0001__x0001__x0001__x0001__x0001__x0001__x0001__x0001__x0001__x0001__x0001__x0001__x0001__x0001__x0001__x0001__x0001__x0001__x0001__x0001__x0001__x0001__x0001__x0001__x0001__x0001__x0001__x0001__x0001__x0001__x0001__x0001__x0001__x0001__x0001__x0001__x0001__x0001__x0001__x0001__x0001__x0001__x0001__x0001__x0001__x0001__x0001__x0001__x0001__x0001__x0001__x0001__x0001__x0001__x0001__x0001__x0001__x0001__x0001__x0001__x0001__x0001__x0001__x0001__x0001__x0001__x0001__x0001__x0001__x0001__x0001__x0001__x0001__x0001__x0001__x0001__x0001__x"}},{"$cut":{"chars":222906,"head":"faaa1a4c37ffd09c3c89f66faddb43ab_x0001__x0002__x0001__x0001__x0001__x0001__x0001__x0001__x0001__x0001__x0001__x0001__x0001__x0001__x0001__x0001__x0001__x0001__x0001__x0001__x0001__x0001__x0001__x0001__x0001__x0001__x0001__x0001__x0001__x0001__x0001__x0001__x0001__x0001__x0001__x0001__x0001__x0001__x0001__x0001__x0001__x0001__x0001__x0001__x0001__x0001__x0001__x0001__x0001__x0001__x0001__x0001__x0001__x0001__x0001__x0001__x0001__x0001__x0001__x0001__x0001__x0001__x0001__x0001__x0001__x0001__x0001__x0001__x0001__x0001__x0001__x0001__x0001__x0001__x0001__x0001__x0001__x0001__x0001__x0001__x0001__x0001__x0001__x0001__x0001__x0001__x0001__x0001__x0001__x0001__x0001__x0001__x0001__x0001__x0001__x0001__x0001__x0001__x0001__x0001__x0001__x0001__x0001__x0001__x0001__x0001__x0001__x0001__x0001__x0001__x0001__x0001__x0001__x0001__x0001__x0001__x0001__x0001__x0001__x0001__x0001__x0001__x0001__x0001__x0001__x0001__x0001__x0001__x0001__x0001__x0001__x0001__x0001__x0001__x0001__x0001__x0001__x0001__x0001__x0001__x0001__x0001__x0001__x0001__x0001__x0001__x0001__x0001__x0001__x0001__x0001__x0001__x0001__x0001__x0001__x0001__x0001__x0001__x0001__x0001__x0001__x0001__x0001__x0001__x0001__x0001__x0001__x0001__x0001__x0001__x0001__x0001__x0001__x0001__x0001__x0001__x0001__x0001__x0001__x0001__x0001__x0001__x0001__x0001__x0001__x0001__x0001__x0001__x0001__x0001__x0001__x0001__x0001__x0001__x0001__x0001__x0001__x0001__x0001__x0001__x0001__x0001__x0001__x0001__x0001__x0001__x0001__x0001__x0001__x0001__x0001__x0001__x0001__x0001__x0001__x0001__x0001__x0001__x0001__x0001__x0001__x0001__x0001__x0001__x0001__x0001__x0001__x0001__x0001__x0001__x0001__x0001__x0001__x0001__x0001__x0001__x0001__x0001__x0001__x0001__x0001__x0001__x0001__x0001__x0001__x0001__x0001__x0001__x0001__x0001__x0001__x0001__x0001__x0001__x0001__x0002__x0001__x0001__x0001__x0001__x0001__x0001__x0001__x0001__x0001__x0001__x0001__x0001__x0001__x0001__x0001__x0001__x0001__x0001__x0001__x0001__x0001__x0001__x0001__x0001__x0001__x0001__x0001__x0001__x0001__x0001__x0001__x0001__x0001__x0001__x0001__x0001__x0001__x0001__x0001__x0001__x0001__x0001__x0001__x0001__x0001__x0001__x0001__x0001__x0001__x0001__x0001__x0001__x0001__x0001__x0001__x0001__x0001__x0001__x0001__x0001__x0001__x0001__x0001__x0001__x0001__x0001__x0001__x0001__x0001__x0001__x0001__x0001__x0001__x0001__x0001__x0001__x0001__x0001__x0001__x0001__x0001__x0001__x0001__x0001__x0001__x0001__x0001__x0001__x0001__x0001__x0001__x0001__x0001__x0001__x0001__x0001__x0001__x0001__x0001__x0001__x0001__x0001__x0001__x0001__x0001__x0001__x0001__x0001__x0001__x0001__x0001__x0001__x0001__x0001__x0001__x0001__x0001__x0001__x0001__x0001__x0001__x0001__x0001__x0001__x0001__x0001__x0001__x0001__x0001__x0001__x0001__x0001__x0001__x0001__x0001__x0001__x0001__x0001__x0001__x0001__x0001__x0001__x0001__x0001__x0001__x0001__x0001__x0001__x0001__x0001__x0001__x0001__x0001__x0001__x0001__x0001__x0001__x0001__x0001__x0001__x0001__x0001__x0001__x0001__x0001__x0001__x0001__x0001__x0001__x0001__x0001__x0001__x0001__x0001__x0001__x0001__x0001__x0001__x0001__x0001__x0001__x0001__x0001__x0001__x0001__x0001__x0001__x0001__x0001__x0001__x0001__x0001__x0001__x0001__x0001__x0001__x0001__x0001__x0001__x0001__x0001__x0001__x0001__x0001__x0001__x0001__x0001__x0001__x0001__x0001__x0001__x0001__x0001__x0001__x0001__x0001__x0001__x0001__x0001__x0001__x0001__x0001__x0001__x0001__x0001__x0001__x0001__x0001__x0001__x0001__x0001__x0001__x0001__x0001__x0001__x0001__x0001__x0001__x0001__x0001__x0001__x0001__x0001__x0001__x0001__x0001__x0001__x0001__x0001__x0001__x0001__x0001__x0001__x0002__x0001__x0001__x0001__x0001__x0001__x0001__x0001__x0001__x0001__x0001__x0001__x0001__x0001__x0001__x0001__x0001__x0001__x0001__x0001__x0001__x0001__x0001__x0001__x0001__x0001__x0001__x0001__x0001__x0001__x0001__x0001__x0001__x0001__x0001__x0001__x0001__x0001__x0001__x0001__x0001__x0001__x0001__x0001__x0001__x0001__x0001__x0001__x0001__x0001__x0001__x0001__x0001__x0001__x0001__x0001__x0001__x0001__x0001__x0001__x0001__x0001__x0001__x0001__x0001__x0001__x0001__x0001__x0001__x0001__x0001__x00"}},{"$cut":{"chars":220020,"head":"21edf6ce43ab052ea5b4200899a45a7e_x0001__x0002__x0001__x0001__x0001__x0001__x0001_\u0088³@_x0001__x0001__x0001__x0001__x0001__x0001__x0001__x0001__x0001__x0001__x0001__x0001__x0001__x0001__x0001__x0001__x0001__x0001__x0001__x0001__x0001__x0001__x0001__x0001__x0001__x0001__x0001__x0001__x0001__x0001__x0001__x0001__x0001__x0001__x0001__x0001__x0001__x0001__x0001__x0001__x0001__x0001__x0001__x0001__x0001__x0001__x0001__x0001__x0001__x0001__x0001__x0001__x0001__x0001__x0001__x0001__x0001__x0001__x0001__x0001__x0001__x0001__x0001__x0001__x0001__x0001__x0001__x0001__x0001__x0001__x0001__x0001__x0001__x0001__x0001__x0001__x0001__x0001__x0001__x0001__x0001__x0001__x0001__x0001__x0001__x0001__x0001__x0001__x0001__x0001__x0001__x0001__x0001__x0001__x0001__x0001__x0001__x0001__x0001__x0001__x0001__x0001__x0001__x0001__x0001__x0001__x0001__x0001__x0001__x0001__x0001__x0001__x0001__x0001__x0001__x0001__x0001__x0001__x0001__x0001__x0001__x0001__x0001__x0001__x0001__x0001__x0001__x0001__x0001__x0001__x0001__x0001__x0001__x0001__x0001__x0001__x0001__x0001__x0001__x0001__x0001__x0001__x0001__x0001__x0001__x0001__x0001__x0001__x0001__x0001__x0001__x0001__x0001__x0001__x0001__x0001__x0001__x0001__x0001__x0001__x0001__x0001__x0001__x0001__x0001__x0001__x0001__x0001__x0001__x0001__x0001__x0001__x0001__x0001__x0001__x0001__x0001__x0001__x0001__x0001__x0001__x0001__x0001__x0001__x0001__x0001__x0001__x0001__x0001__x0001__x0001__x0001__x0001__x0001__x0001__x0001__x0001__x0001__x0001__x0001__x0001__x0001__x0001__x0001__x0001__x0001__x0001__x0001__x0001__x0001__x0001__x0001__x0001__x0001__x0001__x0001__x0001__x0001__x0001__x0001__x0001__x0001__x0001__x0001__x0001__x0001__x0001__x0001__x0001__x0001__x0001__x0001__x0001__x0001__x0001__x0001__x0001__x0001__x0001__x0001__x0001__x0001__x0001__x0001__x0001__x0002__x0001__x0001__x0001__x0001__x0001__x0001__x0001__x0001__x0001__x0001__x0001__x0001__x0001__x0001__x0001__x0001__x0001__x0001__x0001__x0001__x0001__x0001__x0001__x0001__x0001_\u0088³@_x0001__x0001__x0001__x0001__x0001__x0001__x0001__x0001__x0001__x0001__x0001__x0001__x0001__x0001__x0001__x0001__x0001__x0001__x0001__x0001__x0001__x0001__x0001__x0001__x0001__x0001__x0001__x0001__x0001__x0001__x0001__x0001__x0001__x0001__x0001__x0001__x0001__x0001__x0001__x0001__x0001__x0001__x0001__x0001__x0001__x0001__x0001__x0001__x0001__x0001__x0001__x0001__x0001_\u0088³@_x0001__x0001__x0001__x0001__x0001__x0001__x0001__x0001__x0001__x0001__x0001__x0001__x0001__x0001__x0001__x0001__x0001__x0001__x0001__x0001__x0001__x0001__x0001__x0001__x0001__x0001__x0001__x0001__x0001__x0001__x0001__x0001__x0001__x0001__x0001__x0001__x0001__x0001__x0001__x0001__x0001__x0001__x0001__x0001__x0001__x0001__x0001__x0001__x0001__x0001__x0001__x0001__x0001__x0001__x0001__x0001__x0001__x0001__x0001__x0001__x0001__x0001__x0001__x0001__x0001__x0001__x0001__x0001__x0001_\u0088³@_x0001__x0001__x0001__x0001__x0001__x0001__x0001__x0001__x0001__x0001__x0001__x0001__x0001__x0001__x0001__x0001__x0001__x0001__x0001__x0001__x0001__x0001__x0001__x0001__x0001__x0001__x0001__x0001__x0001__x0001__x0001__x0001__x0001__x0001__x0001__x0001__x0001__x0001__x0001__x0001__x0001__x0001__x0001__x0001__x0001__x0001__x0001__x0001__x0001__x0001__x0001__x0001__x0001__x0001__x0001__x0001__x0001__x0001__x0001__x0001__x0001__x0001__x0001__x0001__x0001__x0001__x0001__x0001__x0001__x0001__x0001__x0001__x0001__x0001__x0001__x0001__x0001__x0001__x0001__x0001__x0001__x0001__x0001__x0001__x0001__x0001__x0001__x0001__x0001__x0001__x0001__x0001__x0001__x0001__x0001__x0001__x0001__x0002__x0001__x0001__x0001__x0001__x0001_\u0088³@_x0001__x0001__x0001__x0001__x0001_\u0088³@_x0001__x0001__x0001__x0001__x0001__x0001__x0001__x0001__x0001__x0001__x0001__x0001__x0001__x0001__x0001__x0001__x0001__x0001__x0001__x0001__x0001__x0001__x0001__x0001__x0001__x0001__x0001__x0001__x0001__x0001__x0001__x0001__x0001__x0001__x0001__x0001__x0001__x0001__x0001__x0001__x0001__x0001__x0001__x0001__x0001__x0001__x0001__x0001__x0001__x0001__x0001__x0001__x0001_\u0088³@_x0001__x0001__x0001__x0001__x0001__x0001__x0001__x0001__x0001__x0001__x0001__x0001__x0001__x0001__x0001__x0001__x00"}},{"$cut":{"chars":219720,"head":"5e5fcc6ae02ec013f1ee399374654854_x0001__x0002__x0001__x0001__x0001__x0001__x0001__x0001__x0001__x0001__x0001__x0001__x0001__x0001__x0001_\u0088³@_x0001__x0001__x0001__x0001__x0001__x0001__x0001__x0001__x0001__x0001__x0001__x0001__x0001__x0001__x0001__x0001__x0001__x0001__x0001__x0001__x0001_\u0088³@_x0001__x0001__x0001__x0001__x0001__x0001__x0001__x0001__x0001__x0001__x0001__x0001__x0001__x0001__x0001__x0001__x0001__x0001__x0001__x0001__x0001__x0001__x0001__x0001__x0001__x0001__x0001__x0001__x0001__x0001__x0001__x0001__x0001__x0001__x0001__x0001__x0001__x0001__x0001__x0001__x0001__x0001__x0001__x0001__x0001__x0001__x0001__x0001__x0001__x0001__x0001__x0001__x0001__x0001__x0001__x0001__x0001__x0001__x0001__x0001__x0001__x0001__x0001__x0001__x0001__x0001__x0001__x0001__x0001__x0001__x0001__x0001__x0001__x0001__x0001__x0001__x0001__x0001__x0001__x0001__x0001__x0001__x0001__x0001__x0001__x0001__x0001__x0001__x0001__x0001__x0001__x0001__x0001__x0001__x0001__x0001__x0001__x0001__x0001__x0001__x0001__x0001__x0001__x0001__x0001__x0001__x0001__x0001__x0001__x0001__x0001__x0001__x0001__x0001__x0001__x0001__x0001__x0001__x0001__x0001__x0001__x0001__x0001__x0001__x0001__x0001__x0001__x0001__x0001__x0001__x0001__x0001__x0001__x0001__x0001__x0001__x0001__x0001__x0001__x0001__x0001__x0001__x0001__x0001__x0001__x0001__x0001__x0001__x0001__x0001__x0001__x0001__x0001__x0001__x0001__x0001__x0001__x0001__x0001__x0001__x0001__x0001__x0001__x0001__x0001__x0001__x0001__x0001__x0001__x0001__x0001__x0001__x0001__x0001__x0001__x0001__x0001__x0001__x0001__x0001__x0001__x0001__x0001__x0001__x0001__x0001__x0001__x0001__x0001__x0001__x0001__x0001__x0001__x0001__x0001__x0001__x0001__x0001__x0001__x0001__x0001__x0001__x0001__x0001__x0001__x0001__x0001__x0001__x0001__x0001__x0001__x0001__x0001__x0002__x0001_\u0088³@_x0001__x0001__x0001__x0001__x0001__x0001__x0001__x0001__x0001__x0001__x0001__x0001__x0001__x0001__x0001__x0001__x0001__x0001__x0001__x0001__x0001__x0001__x0001__x0001__x0001__x0001__x0001__x0001__x0001__x0001__x0001__x0001__x0001__x0001__x0001__x0001__x0001__x0001__x0001__x0001__x0001__x0001__x0001__x0001__x0001__x0001__x0001__x0001__x0001__x0001__x0001__x0001__x0001__x0001__x0001__x0001__x0001__x0001__x0001__x0001__x0001__x0001__x0001__x0001__x0001__x0001__x0001__x0001__x0001__x0001__x0001__x0001__x0001__x0001__x0001__x0001__x0001__x0001__x0001__x0001__x0001__x0001__x0001__x0001__x0001__x0001__x0001__x0001__x0001__x0001__x0001__x0001__x0001__x0001__x0001__x0001__x0001__x0001__x0001__x0001__x0001__x0001__x0001__x0001__x0001__x0001__x0001__x0001__x0001__x0001__x0001__x0001__x0001__x0001__x0001__x0001__x0001__x0001__x0001__x0001__x0001__x0001__x0001__x0001__x0001__x0001__x0001__x0001__x0001__x0001__x0001__x0001__x0001__x0001__x0001__x0001__x0001__x0001__x0001__x0001__x0001__x0001__x0001__x0001__x0001__x0001__x0001__x0001__x0001__x0001__x0001__x0001__x0001__x0001__x0001__x0001__x0001__x0001__x0001__x0001__x0001__x0001__x0001__x0001__x0001__x0001__x0001__x0001__x0001__x0001__x0001__x0001__x0001__x0001__x0001__x0001__x0001__x0001__x0001__x0001__x0001__x0001__x0001__x0001__x0001__x0001__x0001__x0001__x0001__x0001__x0001__x0001__x0001__x0001__x0001__x0001__x0001__x0001__x0001__x0001__x0001__x0001__x0001__x0001__x0001__x0001__x0001__x0001__x0001__x0001__x0001__x0001__x0001__x0001__x0001__x0001__x0001__x0001__x0001__x0001__x0001__x0001__x0001__x0001__x0001__x0001__x0001__x0001__x0001__x0001__x0001__x0001__x0001__x0001__x0001__x0001__x0001__x0001__x0001__x0001__x0001__x0001__x0001__x0001__x0001__x0001__x0001__x0001__x0001__x0002__x0001__x0001__x0001__x0001__x0001__x0001__x0001__x0001__x0001__x0001__x0001__x0001__x0001__x0001__x0001__x0001__x0001__x0001__x0001__x0001__x0001__x0001__x0001__x0001__x0001__x0001__x0001__x0001__x0001__x0001__x0001__x0001__x0001__x0001__x0001__x0001__x0001__x0001__x0001__x0001__x0001__x0001__x0001__x0001__x0001__x0001__x0001__x0001__x0001__x0001__x0001__x0001__x0001__x0001__x0001__x0001__x0001__x0001__x0001__x0001__x0001__x0001__x0001__x0001__x0001__x0001__x0001__x0001__x0001__x0001__x0001__x0001__x0001__x0001__x0001__x0001__x0001__x0001__x"}},{"$cut":{"chars":225474,"head":"a6557b4fd15fef6ae006d3d0e66d7f78_x0001__x0002__x0001__x0001__x0001__x0001__x0001__x0001__x0001__x0001__x0001__x0001__x0001__x0001__x0001_\u0088³@_x0001__x0001__x0001__x0001__x0001_\u0088³@_x0001__x0001__x0001__x0001__x0001__x0001__x0001__x0001__x0001__x0001__x0001__x0001__x0001__x0001__x0001__x0001__x0001__x0001__x0001__x0001__x0001__x0001__x0001__x0001__x0001__x0001__x0001__x0001__x0001__x0001__x0001__x0001__x0001__x0001__x0001__x0001__x0001__x0001__x0001__x0001__x0001__x0001__x0001__x0001__x0001__x0001__x0001__x0001__x0001__x0001__x0001__x0001__x0001__x0001__x0001__x0001__x0001__x0001__x0001__x0001__x0001__x0001__x0001__x0001__x0001__x0001__x0001__x0001__x0001__x0001__x0001__x0001__x0001__x0001__x0001__x0001__x0001__x0001__x0001__x0001__x0001__x0001__x0001__x0001__x0001__x0001__x0001__x0001__x0001__x0001__x0001__x0001__x0001__x0001__x0001__x0001__x0001__x0001__x0001__x0001__x0001__x0001__x0001__x0001__x0001__x0001__x0001__x0001__x0001__x0001__x0001__x0001__x0001__x0001__x0001__x0001__x0001__x0001__x0001__x0001__x0001__x0001__x0001__x0001__x0001__x0001__x0001__x0001__x0001__x0001__x0001__x0001__x0001__x0001__x0001__x0001__x0001__x0001__x0001__x0001__x0001__x0001__x0001__x0001__x0001__x0001__x0001__x0001__x0001__x0001__x0001__x0001__x0001__x0001__x0001__x0001__x0001__x0001__x0001__x0001__x0001__x0001__x0001__x0001__x0001__x0001__x0001__x0001__x0001__x0001__x0001__x0001__x0001__x0001__x0001__x0001__x0001__x0001__x0001__x0001__x0001__x0001__x0001__x0001__x0001__x0001__x0001__x0001__x0001__x0001__x0001__x0001__x0001__x0001__x0001__x0001__x0001__x0001__x0001__x0001__x0001__x0001__x0001__x0001__x0001__x0001__x0001__x0001__x0001__x0001__x0001__x0001__x0001__x0001__x0001__x0001__x0001__x0001__x0001__x0001__x0001__x0001__x0001__x0001__x0001__x0001__x0001__x0001__x0001__x0002__x0001__x0001__x0001__x0001__x0001__x0001__x0001__x0001__x0001_\u0088³@_x0001__x0001__x0001__x0001__x0001_\u0088³@_x0001__x0001__x0001__x0001__x0001__x0001__x0001__x0001__x0001__x0001__x0001__x0001__x0001__x0001__x0001__x0001__x0001__x0001__x0001__x0001__x0001__x0001__x0001__x0001__x0001__x0001__x0001__x0001__x0001__x0001__x0001__x0001__x0001__x0001__x0001__x0001__x0001__x0001__x0001__x0001__x0001__x0001__x0001__x0001__x0001__x0001__x0001__x0001__x0001__x0001__x0001__x0001__x0001__x0001__x0001__x0001__x0001__x0001__x0001__x0001__x0001__x0001__x0001__x0001__x0001__x0001__x0001__x0001__x0001_\u0088³@_x0001__x0001__x0001__x0001__x0001__x0001__x0001__x0001__x0001__x0001__x0001__x0001__x0001__x0001__x0001__x0001__x0001__x0001__x0001__x0001__x0001__x0001__x0001__x0001__x0001__x0001__x0001__x0001__x0001__x0001__x0001__x0001__x0001__x0001__x0001__x0001__x0001__x0001__x0001__x0001__x0001__x0001__x0001__x0001__x0001__x0001__x0001__x0001__x0001__x0001__x0001__x0001__x0001_\u0088³@_x0001__x0001__x0001__x0001__x0001__x0001__x0001__x0001__x0001__x0001__x0001__x0001__x0001_\u0088³@_x0001__x0001__x0001__x0001__x0001__x0001__x0001__x0001__x0001__x0001__x0001__x0001__x0001__x0001__x0001__x0001__x0001__x0001__x0001__x0001__x0001__x0001__x0001__x0001__x0001__x0001__x0001__x0001__x0001__x0001__x0001__x0001__x0001__x0001__x0001__x0001__x0001__x0001__x0001__x0001__x0001__x0001__x0001__x0001__x0001__x0001__x0001__x0001__x0001__x0001__x0001__x0001__x0001__x0001__x0001__x0001__x0001__x0001__x0001__x0001__x0001__x0001__x0001__x0001__x0001__x0001__x0001__x0001__x0001_\u0088³@_x0001__x0001__x0001__x0001__x0001__x0001__x0001__x0001__x0001__x0001__x0001__x0001__x0001__x0001__x0001__x0001__x0001__x0002__x0001__x0001__x0001__x0001__x0001__x0001__x0001__x0001__x0001__x0001__x0001__x0001__x0001__x0001__x0001__x0001__x0001__x0001__x0001__x0001__x0001_\u0088³@_x0001__x0001__x0001__x0001__x0001__x0001__x0001__x0001__x0001__x0001__x0001__x0001__x0001__x0001__x0001__x0001__x0001__x0001__x0001__x0001__x0001__x0001__x0001__x0001__x0001__x0001__x0001__x0001__x0001__x0001__x0001__x0001__x0001__x0001__x0001__x0001__x0001__x0001__x0001__x0001__x0001__x0001__x0001__x0001__x0001__x0001__x0001__x0001__x0001__x0001__x0001__x0001__x0001__x0001__x0001__x0001__x0001__x0001__x0001__x0001__x0001__x0001__x0001__x0001__x0001__x0001__x0001__x0001__x0001__x000"}},{"$cut":{"chars":223968,"head":"30fb8586df50e9be71618e6141a4ecea_x0001__x0002__x0001__x0001__x0001__x0001__x0001__x0001__x0001__x0001__x0001__x0001__x0001__x0001__x0001__x0001__x0001__x0001__x0001__x0001__x0001__x0001__x0001__x0001__x0001__x0001__x0001__x0001__x0001__x0001__x0001__x0001__x0001__x0001__x0001__x0001__x0001__x0001__x0001__x0001__x0001__x0001__x0001__x0001__x0001__x0001__x0001__x0001__x0001__x0001__x0001__x0001__x0001__x0001__x0001__x0001__x0001__x0001__x0001__x0001__x0001__x0001__x0001__x0001__x0001__x0001__x0001__x0001__x0001__x0001__x0001__x0001__x0001__x0001__x0001__x0001__x0001__x0001__x0001__x0001__x0001__x0001__x0001__x0001__x0001__x0001__x0001__x0001__x0001__x0001__x0001__x0001__x0001__x0001__x0001__x0001__x0001__x0001__x0001__x0001__x0001__x0001__x0001_@\u009f@_x0001__x0001__x0001__x0001__x0001__x0001__x0001__x0001__x0001__x0001__x0001__x0001__x0001__x0001__x0001__x0001__x0001__x0001__x0001__x0001__x0001__x0001__x0001__x0001__x0001__x0001__x0001__x0001__x0001__x0001__x0001__x0001__x0001__x0001__x0001__x0001__x0001__x0001__x0001__x0001__x0001__x0001__x0001__x0001__x0001__x0001__x0001__x0001__x0001__x0001__x0001__x0001__x0001__x0001__x0001__x0001__x0001__x0001__x0001__x0001__x0001__x0001__x0001__x0001__x0001__x0001__x0001__x0001__x0001__x0001__x0001__x0001__x0001__x0001__x0001__x0001__x0001__x0001__x0001__x0001__x0001__x0001__x0001__x0001__x0001__x0001__x0001__x0001__x0001__x0001__x0001__x0001__x0001__x0001__x0001__x0001__x0001__x0001__x0001__x0001__x0001__x0001__x0001__x0001__x0001__x0001__x0001__x0001__x0001__x0001__x0001__x0001__x0001__x0001__x0001__x0001__x0001__x0001__x0001__x0001__x0001__x0001__x0001__x0001__x0001__x0001__x0001__x0001__x0001__x0001__x0001__x0001__x0001__x0001__x0001__x0001__x0001__x0001__x0001__x0001__x0001__x0001__x0001__x0001__x0001__x0001__x0001__x0001__x0001__x0002__x0001__x0001__x0001__x0001__x0001__x0001__x0001__x0001__x0001__x0001__x0001__x0001__x0001__x0001__x0001__x0001__x0001__x0001__x0001__x0001__x0001__x0001__x0001__x0001__x0001__x0001__x0001__x0001__x0001__x0001__x0001__x0001__x0001__x0001__x0001__x0001__x0001__x0001__x0001__x0001__x0001__x0001__x0001__x0001__x0001__x0001__x0001__x0001__x0001__x0001__x0001__x0001__x0001__x0001__x0001__x0001__x0001__x0001__x0001__x0001__x0001__x0001__x0001__x0001__x0001__x0001__x0001__x0001__x0001__x0001__x0001__x0001__x0001__x0001__x0001__x0001__x0001__x0001__x0001__x0001__x0001__x0001__x0001__x0001__x0001__x0001__x0001__x0001__x0001__x0001__x0001__x0001__x0001__x0001__x0001__x0001__x0001__x0001__x0001__x0001__x0001__x0001__x0001__x0001__x0001__x0001__x0001__x0001__x0001__x0001__x0001__x0001__x0001__x0001__x0001__x0001__x0001__x0001__x0001__x0001__x0001__x0001__x0001__x0001__x0001__x0001__x0001__x0001__x0001__x0001__x0001__x0001__x0001__x0001__x0001__x0001__x0001__x0001__x0001__x0001__x0001__x0001__x0001__x0001__x0001__x0001__x0001__x0001__x0001__x0001__x0001__x0001__x0001__x0001__x0001__x0001__x0001__x0001__x0001__x0001__x0001__x0001__x0001__x0001__x0001__x0001__x0001__x0001__x0001__x0001__x0001__x0001__x0001__x0001__x0001__x0001__x0001__x0001__x0001__x0001__x0001__x0001__x0001__x0001__x0001__x0001__x0001__x0001__x0001__x0001__x0001__x0001__x0001__x0001__x0001__x0001__x0001__x0001__x0001__x0001__x0001__x0001__x0001__x0001__x0001__x0001__x0001__x0001__x0001__x0001__x0001__x0001__x0001__x0001__x0001__x0001__x0001__x0001__x0001__x0001__x0001__x0001__x0001__x0001__x0001__x0001__x0001__x0001__x0001__x0001__x0001__x0001__x0001__x0001__x0001__x0001__x0001__x0001__x0001__x0001__x0001__x0001__x0001__x0001__x0001__x0001__x0001__x0001__x0001__x0001__x0001__x0001__x0001__x0002__x0001__x0001__x0001__x0001__x0001__x0001__x0001__x0001__x0001__x0001__x0001__x0001__x0001__x0001__x0001__x0001__x0001__x0001__x0001__x0001__x0001__x0001__x0001__x0001__x0001__x0001__x0001__x0001__x0001__x0001__x0001__x0001__x0001__x0001__x0001__x0001__x0001__x0001__x0001__x0001__x0001__x0001__x0001__x0001__x0001__x0001__x0001__x0001__x0001__x0001__x0001__x0001__x0001__x0001__x0001__x0001__x0001__x0001__x0001__x0001__x0001__x0001__x0001__x0001__x0001__x0001__x0001__x0001__x0001__x0001__x0001__x0001__x0001__"}},{"$cut":{"chars":226104,"head":"ff834c0c0d82a6381258cad9a09b9475_x0001__x0002__x0001__x0001__x0001__x0001__x0001__x0001__x0001__x0001__x0001__x0001__x0001__x0001__x0001__x0001__x0001__x0001__x0001__x0001__x0001__x0001__x0001__x0001__x0001__x0001__x0001__x0001__x0001__x0001__x0001__x0001__x0001__x0001__x0001__x0001__x0001__x0001__x0001__x0001__x0001__x0001__x0001__x0001__x0001__x0001__x0001__x0001__x0001__x0001__x0001__x0001__x0001__x0001__x0001__x0001__x0001__x0001__x0001__x0001__x0001__x0001__x0001__x0001__x0001__x0001__x0001__x0001__x0001__x0001__x0001__x0001__x0001__x0001__x0001__x0001__x0001__x0001__x0001__x0001__x0001__x0001__x0001__x0001__x0001__x0001__x0001__x0001__x0001__x0001__x0001__x0001__x0001__x0001__x0001__x0001__x0001__x0001__x0001__x0001__x0001__x0001__x0001__x0001__x0001__x0001__x0001__x0001__x0001__x0001__x0001__x0001__x0001__x0001__x0001__x0001__x0001__x0001__x0001__x0001__x0001__x0001__x0001__x0001__x0001__x0001__x0001__x0001__x0001__x0001__x0001__x0001__x0001__x0001__x0001__x0001__x0001__x0001__x0001__x0001__x0001__x0001__x0001__x0001__x0001__x0001__x0001__x0001__x0001__x0001__x0001__x0001__x0001__x0001__x0001__x0001__x0001__x0001__x0001__x0001__x0001__x0001__x0001__x0001__x0001__x0001__x0001__x0001__x0001__x0001__x0001__x0001__x0001__x0001__x0001__x0001__x0001__x0001__x0001__x0001__x0001__x0001__x0001__x0001__x0001__x0001__x0001__x0001__x0001__x0001__x0001__x0001__x0001__x0001__x0001__x0001__x0001__x0001__x0001__x0001__x0001__x0001__x0001__x0001__x0001__x0001__x0001__x0001__x0001__x0001__x0001__x0001__x0001__x0001__x0001__x0001__x0001__x0001__x0001__x0001__x0001__x0001__x0001__x0001__x0001__x0001__x0001__x0001__x0001__x0001__x0001__x0001__x0001__x0001__x0001__x0001__x0001__x0001__x0001__x0001__x0001__x0001__x0001__x0001__x0001__x0001__x0001__x0001__x0001__x0001__x0001__x0001__x0001__x0001__x0001__x0002__x0001__x0001__x0001__x0001__x0001__x0001__x0001__x0001__x0001__x0001__x0001__x0001__x0001__x0001__x0001__x0001__x0001_@\u009f@_x0001__x0001__x0001__x0001__x0001__x0001__x0001__x0001__x0001__x0001__x0001__x0001__x0001__x0001__x0001__x0001__x0001__x0001__x0001__x0001__x0001__x0001__x0001__x0001__x0001__x0001__x0001__x0001__x0001__x0001__x0001__x0001__x0001__x0001__x0001__x0001__x0001__x0001__x0001__x0001__x0001__x0001__x0001__x0001__x0001__x0001__x0001__x0001__x0001__x0001__x0001__x0001__x0001__x0001__x0001__x0001__x0001__x0001__x0001__x0001__x0001__x0001__x0001__x0001__x0001__x0001__x0001__x0001__x0001__x0001__x0001__x0001__x0001__x0001__x0001__x0001__x0001__x0001__x0001__x0001__x0001__x0001__x0001__x0001__x0001__x0001__x0001__x0001__x0001__x0001__x0001__x0001__x0001__x0001__x0001__x0001__x0001__x0001__x0001__x0001__x0001__x0001__x0001__x0001__x0001__x0001__x0001__x0001__x0001__x0001__x0001__x0001__x0001__x0001__x0001__x0001__x0001__x0001__x0001__x0001__x0001__x0001__x0001__x0001__x0001__x0001__x0001__x0001__x0001__x0001__x0001__x0001__x0001__x0001__x0001__x0001__x0001__x0001__x0001__x0001__x0001__x0001__x0001__x0001__x0001__x0001__x0001__x0001__x0001__x0001__x0001__x0001__x0001__x0001__x0001__x0001__x0001__x0001__x0001__x0001__x0001__x0001__x0001__x0001__x0001__x0001__x0001__x0001__x0001__x0001__x0001__x0001__x0001__x0001__x0001__x0001__x0001__x0001__x0001__x0001__x0001__x0001__x0001__x0001__x0001__x0001__x0001__x0001__x0001__x0001__x0001__x0001__x0001__x0001__x0001__x0001__x0001__x0001__x0001__x0001__x0001__x0001__x0001__x0001__x0001__x0001__x0001__x0001__x0001__x0001__x0001__x0001__x0001__x0001__x0001__x0001__x0001__x0001__x0001__x0001__x0001__x0001__x0001__x0001__x0001__x0001__x0001__x0001__x0001__x0001__x0001__x0001__x0001__x0002__x0001__x0001__x0001__x0001__x0001__x0001__x0001__x0001__x0001__x0001__x0001__x0001__x0001__x0001__x0001__x0001__x0001__x0001__x0001__x0001__x0001__x0001__x0001__x0001__x0001__x0001__x0001__x0001__x0001__x0001__x0001__x0001__x0001__x0001__x0001__x0001__x0001__x0001__x0001__x0001__x0001__x0001__x0001__x0001__x0001__x0001__x0001__x0001__x0001__x0001__x0001__x0001__x0001__x0001__x0001__x0001__x0001__x0001__x0001__x0001__x0001__x0001__x0001__x0001__x0001__x0001__x0001__x0001__x0001__x0001__x0001__x0001__x0001__"}},{"$cut":{"chars":224424,"head":"808de516b7c5295cd462681453bbd4ea_x0001__x0002__x0001__x0001__x0001__x0001__x0001__x0001__x0001__x0001__x0001__x0001__x0001__x0001__x0001__x0001__x0001__x0001__x0001__x0001__x0001__x0001__x0001__x0001__x0001__x0001__x0001__x0001__x0001__x0001__x0001__x0001__x0001__x0001__x0001__x0001__x0001__x0001__x0001__x0001__x0001__x0001__x0001__x0001__x0001__x0001__x0001__x0001__x0001__x0001__x0001__x0001__x0001__x0001__x0001__x0001__x0001__x0001__x0001__x0001__x0001__x0001__x0001__x0001__x0001__x0001__x0001__x0001__x0001__x0001__x0001_\u0088³@_x0001__x0001__x0001__x0001__x0001__x0001__x0001__x0001__x0001__x0001__x0001__x0001__x0001__x0001__x0001__x0001__x0001__x0001__x0001__x0001__x0001__x0001__x0001__x0001__x0001__x0001__x0001__x0001__x0001__x0001__x0001__x0001__x0001__x0001__x0001__x0001__x0001__x0001__x0001__x0001__x0001__x0001__x0001__x0001__x0001__x0001__x0001__x0001__x0001__x0001__x0001__x0001__x0001__x0001__x0001__x0001__x0001__x0001__x0001__x0001__x0001__x0001__x0001__x0001__x0001__x0001__x0001__x0001__x0001__x0001__x0001__x0001__x0001__x0001__x0001__x0001__x0001__x0001__x0001__x0001__x0001__x0001__x0001__x0001__x0001__x0001__x0001__x0001__x0001__x0001__x0001__x0001__x0001__x0001__x0001__x0001__x0001__x0001__x0001__x0001__x0001__x0001__x0001__x0001__x0001__x0001__x0001__x0001__x0001__x0001__x0001__x0001__x0001__x0001__x0001__x0001__x0001__x0001__x0001__x0001__x0001__x0001__x0001__x0001__x0001__x0001__x0001__x0001__x0001__x0001__x0001__x0001__x0001__x0001__x0001__x0001__x0001__x0001__x0001__x0001__x0001__x0001__x0001__x0001__x0001__x0001__x0001__x0001__x0001__x0001__x0001__x0001__x0001__x0001__x0001__x0001__x0001__x0001__x0001__x0001__x0001__x0001__x0001__x0001__x0001__x0001__x0001__x0001__x0001__x0001__x0001__x0001__x0001__x0001__x0001__x0001__x0001__x0001__x0001__x0001__x0001__x0002__x0001__x0001__x0001__x0001__x0001__x0001__x0001__x0001__x0001__x0001__x0001__x0001__x0001__x0001__x0001__x0001__x0001__x0001__x0001__x0001__x0001__x0001__x0001__x0001__x0001__x0001__x0001__x0001__x0001__x0001__x0001__x0001__x0001__x0001__x0001__x0001__x0001__x0001__x0001__x0001__x0001__x0001__x0001__x0001__x0001__x0001__x0001__x0001__x0001__x0001__x0001__x0001__x0001__x0001__x0001__x0001__x0001__x0001__x0001__x0001__x0001__x0001__x0001__x0001__x0001__x0001__x0001__x0001__x0001__x0001__x0001__x0001__x0001__x0001__x0001__x0001__x0001__x0001__x0001__x0001__x0001__x0001__x0001__x0001__x0001__x0001__x0001__x0001__x0001__x0001__x0001__x0001__x0001__x0001__x0001__x0001__x0001__x0001__x0001__x0001__x0001__x0001__x0001__x0001__x0001__x0001__x0001__x0001__x0001__x0001__x0001__x0001__x0001__x0001__x0001__x0001__x0001__x0001__x0001__x0001__x0001__x0001__x0001__x0001__x0001__x0001__x0001__x0001__x0001__x0001__x0001__x0001__x0001__x0001__x0001__x0001__x0001__x0001__x0001__x0001__x0001__x0001__x0001__x0001__x0001__x0001__x0001__x0001__x0001__x0001__x0001__x0001__x0001__x0001__x0001__x0001__x0001__x0001__x0001__x0001__x0001__x0001__x0001__x0001__x0001__x0001__x0001__x0001__x0001_\u0088³@_x0001__x0001__x0001__x0001__x0001__x0001__x0001__x0001__x0001__x0001__x0001__x0001__x0001__x0001__x0001__x0001__x0001__x0001__x0001__x0001__x0001__x0001__x0001__x0001__x0001__x0001__x0001__x0001__x0001__x0001__x0001__x0001__x0001__x0001__x0001__x0001__x0001__x0001__x0001__x0001__x0001__x0001__x0001__x0001__x0001__x0001__x0001__x0001__x0001__x0001__x0001__x0001__x0001__x0001__x0001__x0001__x0001__x0001__x0001__x0001__x0001__x0001__x0001__x0001__x0001__x0001__x0001__x0001__x0001__x0001__x0001__x0001__x0001__x0001__x0001__x0001__x0001__x0001__x0001__x0001__x0001__x0002__x0001__x0001__x0001__x0001__x0001__x0001__x0001__x0001__x0001__x0001__x0001__x0001__x0001__x0001__x0001__x0001__x0001__x0001__x0001__x0001__x0001__x0001__x0001__x0001__x0001__x0001__x0001__x0001__x0001__x0001__x0001__x0001__x0001__x0001__x0001__x0001__x0001__x0001__x0001__x0001__x0001__x0001__x0001__x0001__x0001__x0001__x0001__x0001__x0001__x0001__x0001__x0001__x0001__x0001__x0001__x0001__x0001__x0001__x0001__x0001__x0001__x0001__x0001__x0001__x0001__x0001__x0001__x0001__x0001__x0001__x0001__x0001__x0001__x0001__x0001__x000"}},{"$cut":{"chars":225618,"head":"8a411fa35674f11350ffed1102344035_x0001__x0002__x0001__x0001__x0001__x0001__x0001__x0001__x0001__x0001__x0001__x0001__x0001__x0001__x0001__x0001__x0001__x0001__x0001__x0001__x0001__x0001__x0001__x0001__x0001__x0001__x0001__x0001__x0001__x0001__x0001__x0001__x0001__x0001__x0001__x0001__x0001__x0001__x0001__x0001__x0001__x0001__x0001__x0001__x0001__x0001__x0001__x0001__x0001__x0001__x0001__x0001__x0001__x0001__x0001__x0001__x0001__x0001__x0001__x0001__x0001__x0001__x0001__x0001__x0001__x0001__x0001__x0001__x0001__x0001__x0001__x0001__x0001__x0001__x0001__x0001__x0001__x0001__x0001__x0001__x0001__x0001__x0001__x0001__x0001__x0001__x0001_\u0088³@_x0001__x0001__x0001__x0001__x0001__x0001__x0001__x0001__x0001__x0001__x0001__x0001__x0001__x0001__x0001__x0001__x0001__x0001__x0001__x0001__x0001__x0001__x0001__x0001__x0001__x0001__x0001__x0001__x0001__x0001__x0001__x0001__x0001__x0001__x0001__x0001__x0001__x0001__x0001__x0001__x0001__x0001__x0001__x0001__x0001__x0001__x0001__x0001__x0001__x0001__x0001__x0001__x0001__x0001__x0001__x0001__x0001__x0001__x0001__x0001__x0001__x0001__x0001__x0001__x0001__x0001__x0001__x0001__x0001__x0001__x0001__x0001__x0001__x0001__x0001__x0001__x0001__x0001__x0001__x0001__x0001__x0001__x0001__x0001__x0001__x0001__x0001__x0001__x0001__x0001__x0001__x0001__x0001__x0001__x0001__x0001__x0001__x0001__x0001__x0001__x0001__x0001__x0001__x0001__x0001__x0001__x0001__x0001__x0001__x0001__x0001__x0001__x0001__x0001__x0001__x0001__x0001__x0001__x0001__x0001__x0001__x0001__x0001__x0001__x0001__x0001__x0001__x0001__x0001__x0001__x0001__x0001__x0001__x0001__x0001__x0001__x0001__x0001__x0001__x0001__x0001__x0001__x0001__x0001__x0001__x0001__x0001__x0001__x0001__x0001__x0001__x0001__x0001__x0001__x0001__x0001__x0001__x0001__x0001__x0001__x0001__x0001__x0001__x0001__x0001__x0002__x0001__x0001__x0001__x0001__x0001__x0001__x0001__x0001__x0001__x0001__x0001__x0001__x0001__x0001__x0001__x0001__x0001__x0001__x0001__x0001__x0001__x0001__x0001__x0001__x0001__x0001__x0001__x0001__x0001__x0001__x0001__x0001__x0001__x0001__x0001__x0001__x0001__x0001__x0001__x0001__x0001__x0001__x0001__x0001__x0001__x0001__x0001__x0001__x0001__x0001__x0001__x0001__x0001__x0001__x0001__x0001__x0001__x0001__x0001__x0001__x0001__x0001__x0001__x0001__x0001__x0001__x0001__x0001__x0001__x0001__x0001__x0001__x0001__x0001__x0001__x0001__x0001__x0001__x0001__x0001__x0001__x0001__x0001__x0001__x0001__x0001__x0001__x0001__x0001__x0001__x0001__x0001__x0001__x0001__x0001__x0001__x0001__x0001__x0001__x0001__x0001__x0001__x0001__x0001__x0001__x0001__x0001__x0001__x0001__x0001__x0001__x0001__x0001_\u0088³@_x0001__x0001__x0001__x0001__x0001__x0001__x0001__x0001__x0001__x0001__x0001__x0001__x0001__x0001__x0001__x0001__x0001__x0001__x0001__x0001__x0001__x0001__x0001__x0001__x0001__x0001__x0001__x0001__x0001__x0001__x0001__x0001__x0001__x0001__x0001__x0001__x0001__x0001__x0001__x0001__x0001__x0001__x0001__x0001__x0001__x0001__x0001__x0001__x0001__x0001__x0001__x0001__x0001__x0001__x0001__x0001__x0001__x0001__x0001__x0001__x0001__x0001__x0001__x0001__x0001__x0001__x0001__x0001__x0001__x0001__x0001__x0001__x0001__x0001__x0001__x0001__x0001__x0001__x0001__x0001__x0001__x0001__x0001__x0001__x0001__x0001__x0001__x0001__x0001__x0001__x0001__x0001__x0001__x0001__x0001__x0001__x0001__x0001__x0001__x0001__x0001__x0001__x0001__x0001__x0001__x0001__x0001__x0001__x0001__x0001__x0001__x0001__x0001__x0001__x0001__x0001__x0001__x0001__x0001__x0001__x0001__x0001__x0001__x0001__x0001__x0001__x0001__x0001__x0001__x0001__x0001__x0001__x0001__x0001__x0001__x0001__x0001__x0002__x0001__x0001__x0001__x0001__x0001__x0001__x0001__x0001__x0001__x0001__x0001__x0001__x0001__x0001__x0001__x0001__x0001__x0001__x0001__x0001__x0001__x0001__x0001__x0001__x0001__x0001__x0001__x0001__x0001__x0001__x0001__x0001__x0001__x0001__x0001__x0001__x0001__x0001__x0001__x0001__x0001__x0001__x0001__x0001__x0001__x0001__x0001__x0001__x0001__x0001__x0001__x0001__x0001__x0001__x0001__x0001__x0001__x0001__x0001__x0001__x0001__x0001__x0001__x0001__x0001__x0001__x0001__x0001__x0001__x0001__x0001__x0001__x0001__x0001__x0001__x000"}},{"$cut":{"chars":224682,"head":"a35fe497fb7980f41ef3b5e1199803f0_x0001__x0002__x0001__x0001__x0001__x0001__x0001__x0001__x0001__x0001__x0001__x0001__x0001__x0001__x0001__x0001__x0001__x0001__x0001__x0001__x0001__x0001__x0001__x0001__x0001__x0001__x0001__x0001__x0001__x0001__x0001__x0001__x0001__x0001__x0001__x0001__x0001__x0001__x0001__x0001__x0001__x0001__x0001__x0001__x0001__x0001__x0001_\u0088³@_x0001__x0001__x0001__x0001__x0001__x0001__x0001__x0001__x0001__x0001__x0001__x0001__x0001__x0001__x0001__x0001__x0001__x0001__x0001__x0001__x0001__x0001__x0001__x0001__x0001__x0001__x0001__x0001__x0001__x0001__x0001__x0001__x0001__x0001__x0001__x0001__x0001__x0001__x0001__x0001__x0001__x0001__x0001__x0001__x0001__x0001__x0001__x0001__x0001__x0001__x0001__x0001__x0001__x0001__x0001__x0001__x0001__x0001__x0001__x0001__x0001__x0001__x0001__x0001__x0001__x0001__x0001__x0001__x0001__x0001__x0001__x0001__x0001__x0001__x0001__x0001__x0001__x0001__x0001__x0001__x0001__x0001__x0001__x0001__x0001__x0001__x0001__x0001__x0001__x0001__x0001__x0001__x0001__x0001__x0001__x0001__x0001__x0001__x0001__x0001__x0001__x0001__x0001__x0001__x0001__x0001__x0001__x0001__x0001__x0001__x0001__x0001__x0001__x0001__x0001__x0001__x0001__x0001__x0001__x0001__x0001__x0001__x0001__x0001__x0001__x0001__x0001__x0001__x0001__x0001__x0001__x0001__x0001__x0001__x0001__x0001__x0001__x0001__x0001__x0001__x0001__x0001__x0001__x0001__x0001__x0001__x0001__x0001__x0001__x0001__x0001__x0001__x0001__x0001__x0001__x0001__x0001__x0001__x0001__x0001__x0001__x0001__x0001__x0001__x0001__x0001__x0001__x0001__x0001__x0001__x0001__x0001__x0001__x0001__x0001__x0001__x0001__x0001__x0001__x0001__x0001__x0001__x0001__x0001__x0001__x0001__x0001__x0001__x0001__x0001__x0001__x0001__x0001__x0001__x0001__x0001__x0001__x0001__x0001__x0001__x0001__x0001__x0001__x0001__x0001__x0002__x0001__x0001__x0001__x0001__x0001__x0001__x0001__x0001__x0001__x0001__x0001__x0001__x0001__x0001__x0001__x0001__x0001__x0001__x0001__x0001__x0001__x0001__x0001__x0001__x0001__x0001__x0001__x0001__x0001__x0001__x0001__x0001__x0001__x0001__x0001__x0001__x0001__x0001__x0001__x0001__x0001__x0001__x0001__x0001__x0001__x0001__x0001__x0001__x0001__x0001__x0001__x0001__x0001__x0001__x0001__x0001__x0001__x0001__x0001__x0001__x0001__x0001__x0001__x0001__x0001__x0001__x0001__x0001__x0001__x0001__x0001__x0001__x0001__x0001__x0001__x0001__x0001__x0001__x0001__x0001__x0001__x0001__x0001__x0001__x0001__x0001__x0001__x0001__x0001__x0001__x0001__x0001__x0001__x0001__x0001__x0001__x0001__x0001__x0001__x0001__x0001__x0001__x0001__x0001__x0001__x0001__x0001__x0001__x0001__x0001__x0001__x0001__x0001__x0001__x0001__x0001__x0001__x0001__x0001__x0001__x0001__x0001__x0001__x0001__x0001__x0001__x0001__x0001__x0001__x0001__x0001__x0001__x0001__x0001__x0001__x0001__x0001__x0001__x0001__x0001__x0001__x0001__x0001__x0001__x0001__x0001__x0001__x0001__x0001__x0001__x0001__x0001__x0001__x0001__x0001__x0001__x0001__x0001__x0001__x0001__x0001__x0001__x0001__x0001__x0001__x0001__x0001__x0001__x0001__x0001__x0001__x0001__x0001__x0001__x0001__x0001__x0001__x0001__x0001__x0001__x0001__x0001__x0001__x0001__x0001__x0001__x0001__x0001__x0001__x0001__x0001__x0001__x0001__x0001__x0001__x0001__x0001__x0001__x0001__x0001__x0001__x0001__x0001__x0001__x0001__x0001__x0001__x0001__x0001__x0001__x0001__x0001__x0001__x0001__x0001__x0001__x0001__x0001__x0001__x0001__x0001__x0001__x0001__x0001__x0001__x0001__x0001__x0001__x0001__x0001__x0001__x0001__x0001__x0001__x0001__x0001__x0001__x0001__x0001__x0001__x0001__x0001__x0001__x0001__x0001__x0001__x0001__x0001__x0001__x0001__x0001__x0001__x0001__x0002__x0001__x0001__x0001__x0001__x0001__x0001__x0001__x0001__x0001__x0001__x0001__x0001__x0001__x0001__x0001__x0001__x0001__x0001__x0001__x0001__x0001__x0001__x0001__x0001__x0001__x0001__x0001__x0001__x0001__x0001__x0001__x0001__x0001__x0001__x0001__x0001__x0001__x0001__x0001__x0001__x0001__x0001__x0001__x0001__x0001__x0001__x0001__x0001__x0001__x0001__x0001__x0001__x0001__x0001__x0001__x0001__x0001__x0001__x0001__x0001__x0001__x0001__x0001__x0001__x0001__x0001__x0001__x0001__x0001__x0001__x0001__x0001__x0001__"}},{"$cut":{"chars":226788,"head":"7946e75e30d9a6d8dffbe1f9a1bbee2b_x0001__x0002__x0001__x0001__x0001__x0001__x0001__x0001__x0001__x0001__x0001__x0001__x0001__x0001__x0001__x0001__x0001__x0001__x0001__x0001__x0001__x0001__x0001__x0001__x0001__x0001__x0001__x0001__x0001__x0001__x0001__x0001__x0001__x0001__x0001__x0001__x0001__x0001__x0001__x0001__x0001__x0001__x0001__x0001__x0001__x0001__x0001__x0001__x0001__x0001__x0001__x0001__x0001__x0001__x0001__x0001__x0001__x0001__x0001__x0001__x0001__x0001__x0001__x0001__x0001__x0001__x0001__x0001__x0001__x0001__x0001__x0001__x0001__x0001__x0001__x0001__x0001__x0001__x0001_LÝ@_x0001__x0001__x0001__x0001__x0001__x0001__x0001__x0001__x0001__x0001__x0001__x0001__x0001__x0001__x0001__x0001__x0001__x0001__x0001__x0001__x0001__x0001__x0001__x0001__x0001__x0001__x0001__x0001__x0001__x0001__x0001__x0001__x0001__x0001__x0001__x0001__x0001__x0001__x0001__x0001__x0001__x0001__x0001__x0001__x0001__x0001__x0001__x0001__x0001__x0001__x0001__x0001__x0001__x0001__x0001__x0001__x0001__x0001__x0001__x0001__x0001__x0001__x0001__x0001__x0001__x0001__x0001__x0001__x0001__x0001__x0001__x0001__x0001__x0001__x0001__x0001__x0001__x0001__x0001__x0001__x0001__x0001__x0001__x0001__x0001__x0001__x0001__x0001__x0001__x0001__x0001__x0001__x0001__x0001__x0001__x0001__x0001__x0001__x0001__x0001__x0001__x0001__x0001__x0001__x0001__x0001__x0001__x0001__x0001__x0001__x0001__x0001__x0001__x0001__x0001__x0001__x0001__x0001__x0001__x0001__x0001__x0001__x0001__x0001__x0001__x0001__x0001__x0001__x0001__x0001__x0001__x0001__x0001__x0001__x0001__x0001__x0001__x0001__x0001__x0001__x0001__x0001__x0001__x0001__x0001__x0001__x0001__x0001__x0001__x0001__x0001__x0001__x0001__x0001__x0001__x0001__x0001__x0001__x0001__x0001__x0001__x0001__x0001__x0001__x0001__x0001__x0001__x0001__x0001__x0001__x0001__x0001__x0001__x0002__x0001__x0001__x0001__x0001__x0001__x0001__x0001__x0001__x0001__x0001__x0001__x0001__x0001__x0001__x0001__x0001__x0001__x0001__x0001__x0001__x0001__x0001__x0001__x0001__x0001__x0001__x0001__x0001__x0001__x0001__x0001__x0001__x0001__x0001__x0001__x0001__x0001__x0001__x0001__x0001__x0001__x0001__x0001__x0001__x0001__x0001__x0001__x0001__x0001__x0001__x0001__x0001__x0001__x0001__x0001__x0001__x0001__x0001__x0001__x0001__x0001__x0001__x0001__x0001__x0001__x0001__x0001__x0001__x0001__x0001__x0001__x0001__x0001__x0001__x0001__x0001__x0001__x0001__x0001__x0001__x0001__x0001__x0001__x0001__x0001__x0001__x0001__x0001__x0001__x0001__x0001__x0001__x0001__x0001__x0001__x0001__x0001__x0001__x0001__x0001__x0001__x0001__x0001__x0001__x0001__x0001__x0001__x0001__x0001__x0001__x0001__x0001__x0001__x0001__x0001__x0001__x0001__x0001__x0001__x0001__x0001__x0001__x0001__x0001__x0001__x0001__x0001__x0001__x0001__x0001__x0001__x0001__x0001__x0001__x0001__x0001__x0001__x0001__x0001__x0001__x0001__x0001__x0001__x0001__x0001__x0001__x0001__x0001__x0001__x0001__x0001__x0001__x0001__x0001__x0001__x0001__x0001__x0001__x0001__x0001__x0001__x0001__x0001__x0001__x0001__x0001__x0001__x0001__x0001__x0001__x0001__x0001__x0001__x0001__x0001__x0001__x0001__x0001__x0001__x0001__x0001__x0001__x0001__x0001__x0001__x0001__x0001__x0001__x0001__x0001__x0001__x0001__x0001__x0001__x0001__x0001__x0001__x0001__x0001__x0001__x0001__x0001__x0001__x0001__x0001__x0001__x0001__x0001__x0001__x0001__x0001__x0001__x0001__x0001__x0001__x0001__x0001__x0001__x0001__x0001__x0001__x0001__x0001__x0001__x0001_LÝ@_x0001__x0001__x0001__x0001__x0001__x0001__x0001__x0001__x0001__x0001__x0001__x0001__x0001__x0001__x0001__x0001__x0001__x0001__x0001__x0001__x0001__x0001__x0001__x0001__x0001__x0002__x0001__x0001__x0001__x0001__x0001__x0001__x0001__x0001__x0001__x0001__x0001__x0001__x0001__x0001__x0001__x0001__x0001__x0001__x0001__x0001__x0001__x0001__x0001__x0001__x0001__x0001__x0001__x0001__x0001__x0001__x0001__x0001__x0001__x0001__x0001__x0001__x0001__x0001__x0001__x0001__x0001__x0001__x0001__x0001__x0001__x0001__x0001__x0001__x0001__x0001__x0001__x0001__x0001__x0001__x0001__x0001__x0001__x0001__x0001__x0001__x0001__x0001__x0001__x0001__x0001__x0001__x0001__x0001__x0001__x0001__x0001__x0001__x0001__x0001__x0001__x000"}},{"$cut":{"chars":226224,"head":"3333cb991a11f2e77a6bfa737354b79c_x0001__x0002__x0001__x0001__x0001__x0001__x0001__x0001__x0001__x0001__x0001__x0001__x0001__x0001__x0001__x0001__x0001__x0001__x0001__x0001__x0001__x0001__x0001__x0001__x0001__x0001__x0001__x0001__x0001__x0001__x0001__x0001__x0001__x0001__x0001__x0001__x0001__x0001__x0001__x0001__x0001__x0001__x0001__x0001__x0001__x0001__x0001__x0001__x0001__x0001__x0001__x0001__x0001__x0001__x0001__x0001__x0001__x0001__x0001__x0001__x0001__x0001__x0001__x0001__x0001__x0001__x0001__x0001__x0001__x0001__x0001__x0001__x0001__x0001__x0001__x0001__x0001__x0001__x0001__x0001__x0001__x0001__x0001__x0001__x0001__x0001__x0001__x0001__x0001__x0001__x0001__x0001__x0001__x0001__x0001__x0001__x0001__x0001__x0001__x0001__x0001__x0001__x0001__x0001__x0001__x0001__x0001__x0001__x0001__x0001__x0001__x0001__x0001__x0001__x0001__x0001__x0001__x0001__x0001__x0001__x0001__x0001__x0001__x0001__x0001__x0001__x0001__x0001__x0001__x0001__x0001__x0001__x0001__x0001__x0001__x0001__x0001__x0001__x0001__x0001__x0001__x0001__x0001__x0001__x0001__x0001__x0001__x0001__x0001__x0001__x0001__x0001__x0001__x0001__x0001__x0001__x0001__x0001__x0001__x0001__x0001__x0001__x0001__x0001__x0001__x0001__x0001__x0001__x0001__x0001__x0001__x0001__x0001__x0001__x0001__x0001__x0001__x0001__x0001__x0001__x0001__x0001__x0001__x0001__x0001__x0001__x0001__x0001__x0001__x0001__x0001__x0001__x0001__x0001__x0001__x0001__x0001__x0001__x0001__x0001__x0001__x0001__x0001__x0001__x0001__x0001__x0001__x0001__x0001__x0001__x0001__x0001__x0001__x0001__x0001__x0001__x0001__x0001__x0001__x0001__x0001__x0001__x0001__x0001__x0001__x0001__x0001__x0001__x0001__x0001__x0001__x0001__x0001__x0001__x0001__x0001__x0001__x0001__x0001__x0001__x0001__x0001__x0001__x0001__x0001__x0001__x0001__x0001__x0001__x0001__x0001__x0001__x0001__x0001__x0001__x0002__x0001__x0001__x0001__x0001__x0001__x0001__x0001__x0001__x0001__x0001__x0001__x0001__x0001__x0001__x0001__x0001__x0001_LÝ@_x0001__x0001__x0001__x0001__x0001__x0001__x0001__x0001__x0001__x0001__x0001__x0001__x0001__x0001__x0001__x0001__x0001__x0001__x0001__x0001__x0001__x0001__x0001__x0001__x0001__x0001__x0001__x0001__x0001__x0001__x0001__x0001__x0001__x0001__x0001__x0001__x0001__x0001__x0001__x0001__x0001__x0001__x0001__x0001__x0001__x0001__x0001__x0001__x0001__x0001__x0001__x0001__x0001__x0001__x0001__x0001__x0001__x0001__x0001__x0001__x0001__x0001__x0001__x0001__x0001__x0001__x0001__x0001__x0001__x0001__x0001__x0001__x0001__x0001__x0001__x0001__x0001__x0001__x0001__x0001__x0001__x0001__x0001__x0001__x0001__x0001__x0001__x0001__x0001__x0001__x0001__x0001__x0001__x0001__x0001__x0001__x0001__x0001__x0001__x0001__x0001__x0001__x0001__x0001__x0001__x0001__x0001__x0001__x0001__x0001__x0001__x0001__x0001__x0001__x0001__x0001__x0001__x0001__x0001__x0001__x0001__x0001__x0001__x0001__x0001__x0001__x0001__x0001__x0001__x0001__x0001__x0001__x0001__x0001__x0001__x0001__x0001__x0001__x0001__x0001__x0001__x0001__x0001__x0001__x0001__x0001__x0001__x0001__x0001__x0001__x0001__x0001__x0001__x0001__x0001__x0001__x0001__x0001__x0001__x0001__x0001__x0001__x0001__x0001__x0001__x0001__x0001__x0001__x0001__x0001__x0001__x0001__x0001__x0001__x0001__x0001__x0001__x0001__x0001__x0001__x0001__x0001__x0001__x0001__x0001__x0001__x0001__x0001__x0001__x0001__x0001__x0001__x0001__x0001__x0001__x0001__x0001__x0001__x0001__x0001__x0001__x0001__x0001__x0001__x0001__x0001__x0001__x0001__x0001__x0001__x0001__x0001__x0001__x0001__x0001__x0001__x0001__x0001__x0001__x0001__x0001__x0001__x0001__x0001__x0001__x0001__x0001__x0001__x0001__x0001__x0001__x0001__x0001__x0002__x0001__x0001__x0001__x0001__x0001__x0001__x0001__x0001__x0001__x0001__x0001__x0001__x0001__x0001__x0001__x0001__x0001__x0001__x0001__x0001__x0001__x0001__x0001__x0001__x0001__x0001__x0001__x0001__x0001__x0001__x0001__x0001__x0001__x0001__x0001__x0001__x0001__x0001__x0001__x0001__x0001__x0001__x0001__x0001__x0001__x0001__x0001__x0001__x0001__x0001__x0001__x0001__x0001__x0001__x0001__x0001__x0001__x0001__x0001__x0001__x0001__x0001__x0001__x0001__x0001__x0001__x0001__x0001__x0001__x0001__x0001__x0001__x0001__"}},{"$cut":{"chars":221946,"head":"da9658791b059a24d983616fd428197e_x0001__x0002__x0001__x0001__x0001__x0001__x0001__x0001__x0001__x0001__x0001__x0001__x0001__x0001__x0001__x0001__x0001__x0001__x0001__x0001__x0001__x0001__x0001__x0001__x0001__x0001__x0001__x0001__x0001__x0001__x0001__x0001__x0001__x0001__x0001__x0001__x0001__x0001__x0001__x0001__x0001__x0001__x0001__x0001__x0001__x0001__x0001__x0001__x0001__x0001__x0001__x0001__x0001__x0001__x0001__x0001__x0001__x0001__x0001__x0001__x0001__x0001__x0001__x0001__x0001__x0001__x0001__x0001__x0001__x0001__x0001__x0001__x0001__x0001__x0001__x0001__x0001__x0001__x0001__x0001__x0001__x0001__x0001__x0001__x0001__x0001__x0001__x0001__x0001__x0001__x0001__x0001__x0001__x0001__x0001__x0001__x0001__x0001__x0001__x0001__x0001__x0001__x0001__x0001__x0001__x0001__x0001__x0001__x0001__x0001__x0001__x0001__x0001__x0001__x0001__x0001__x0001__x0001__x0001__x0001__x0001__x0001__x0001__x0001__x0001__x0001__x0001__x0001__x0001__x0001__x0001__x0001__x0001__x0001__x0001__x0001__x0001__x0001__x0001__x0001__x0001__x0001__x0001__x0001__x0001__x0001__x0001__x0001__x0001__x0001__x0001__x0001__x0001__x0001__x0001__x0001__x0001__x0001__x0001__x0001__x0001__x0001__x0001__x0001__x0001__x0001__x0001__x0001__x0001__x0001__x0001__x0001__x0001__x0001__x0001__x0001__x0001__x0001__x0001__x0001__x0001__x0001__x0001__x0001__x0001__x0001__x0001__x0001__x0001__x0001__x0001__x0001__x0001__x0001__x0001__x0001__x0001__x0001__x0001__x0001__x0001__x0001__x0001__x0001__x0001__x0001__x0001__x0001__x0001__x0001__x0001__x0001__x0001__x0001__x0001__x0001__x0001__x0001__x0001__x0001__x0001__x0001__x0001__x0001__x0001__x0001__x0001__x0001__x0001__x0001__x0001__x0001__x0001__x0001__x0001__x0001__x0001__x0001__x0001__x0001__x0001__x0001__x0001__x0001__x0001__x0001__x0001__x0001__x0001__x0001__x0001__x0001__x0001__x0001__x0001__x0002__x0001__x0001__x0001__x0001__x0001__x0001__x0001__x0001__x0001__x0001__x0001__x0001__x0001__x0001__x0001__x0001__x0001__x0001__x0001__x0001__x0001__x0001__x0001__x0001__x0001__x0001__x0001__x0001__x0001__x0001__x0001__x0001__x0001__x0001__x0001__x0001__x0001__x0001__x0001__x0001__x0001__x0001__x0001__x0001__x0001__x0001__x0001__x0001__x0001__x0001__x0001__x0001__x0001__x0001__x0001__x0001__x0001__x0001__x0001__x0001__x0001__x0001__x0001__x0001__x0001__x0001__x0001__x0001__x0001__x0001__x0001__x0001__x0001__x0001__x0001__x0001__x0001__x0001__x0001__x0001__x0001__x0001__x0001__x0001__x0001__x0001__x0001__x0001__x0001__x0001__x0001__x0001__x0001__x0001__x0001__x0001__x0001__x0001__x0001__x0001__x0001__x0001__x0001__x0001__x0001__x0001__x0001__x0001__x0001__x0001__x0001__x0001__x0001__x0001__x0001__x0001__x0001__x0001__x0001__x0001__x0001__x0001__x0001__x0001__x0001__x0001__x0001__x0001__x0001__x0001__x0001__x0001__x0001__x0001__x0001__x0001__x0001__x0001__x0001__x0001__x0001__x0001__x0001__x0001__x0001__x0001__x0001__x0001__x0001__x0001__x0001__x0001__x0001__x0001__x0001__x0001__x0001__x0001__x0001__x0001__x0001__x0001__x0001__x0001__x0001__x0001__x0001__x0001__x0001__x0001__x0001__x0001__x0001__x0001__x0001__x0001__x0001__x0001__x0001__x0001__x0001__x0001__x0001__x0001__x0001__x0001__x0001__x0001__x0001__x0001__x0001__x0001__x0001__x0001__x0001__x0001__x0001__x0001__x0001__x0001__x0001__x0001__x0001__x0001__x0001__x0001__x0001__x0001__x0001__x0001__x0001__x0001__x0001__x0001__x0001__x0001__x0001__x0001__x0001__x0001__x0001__x0001__x0001__x0001__x0001__x0001__x0001__x0001__x0001__x0001__x0001__x0001__x0001__x0001__x0001__x0001__x0001__x0001__x0001__x0001__x0001__x0001__x0001__x0001__x0001__x0001__x0001__x0001__x0001__x0001__x0001__x0001__x0001__x0002__x0001__x0001__x0001__x0001__x0001__x0001__x0001__x0001__x0001__x0001__x0001__x0001__x0001__x0001__x0001__x0001__x0001__x0001__x0001__x0001__x0001__x0001__x0001__x0001__x0001__x0001__x0001__x0001__x0001__x0001__x0001__x0001__x0001__x0001__x0001__x0001__x0001__x0001__x0001__x0001__x0001__x0001__x0001__x0001__x0001__x0001__x0001__x0001__x0001__x0001__x0001__x0001__x0001__x0001__x0001__x0001__x0001__x0001__x0001__x0001__x0001__x0001__x0001__x0001__x0001__x0001__x0001__x0001__x0001__x0001__x00"}},{"$cut":{"chars":219312,"head":"16dcc9f9b41a027dfae402f76148b932_x0001__x0002__x0001__x0001__x0001__x0001__x0001__x0001__x0001__x0001__x0001__x0001__x0001__x0001__x0001__x0001__x0001__x0001__x0001__x0001__x0001__x0001__x0001__x0001__x0001__x0001__x0001__x0001__x0001__x0001__x0001__x0001__x0001__x0001__x0001__x0001__x0001__x0001__x0001__x0001__x0001__x0001__x0001__x0001__x0001__x0001__x0001_\u0088³@_x0001__x0001__x0001__x0001__x0001__x0001__x0001__x0001__x0001__x0001__x0001__x0001__x0001__x0001__x0001__x0001__x0001__x0001__x0001__x0001__x0001__x0001__x0001__x0001__x0001__x0001__x0001__x0001__x0001__x0001__x0001__x0001__x0001__x0001__x0001__x0001__x0001__x0001__x0001__x0001__x0001__x0001__x0001__x0001__x0001__x0001__x0001__x0001__x0001__x0001__x0001__x0001__x0001__x0001__x0001__x0001__x0001__x0001__x0001__x0001__x0001__x0001__x0001__x0001__x0001__x0001__x0001__x0001__x0001_\u0088³@_x0001__x0001__x0001__x0001__x0001__x0001__x0001__x0001__x0001__x0001__x0001__x0001__x0001__x0001__x0001__x0001__x0001__x0001__x0001__x0001__x0001__x0001__x0001__x0001__x0001__x0001__x0001__x0001__x0001__x0001__x0001__x0001__x0001__x0001__x0001__x0001__x0001__x0001__x0001__x0001__x0001__x0001__x0001__x0001__x0001__x0001__x0001__x0001__x0001__x0001__x0001__x0001__x0001__x0001__x0001__x0001__x0001__x0001__x0001__x0001__x0001__x0001__x0001__x0001__x0001__x0001__x0001__x0001__x0001__x0001__x0001__x0001__x0001__x0001__x0001__x0001__x0001_\u0088³@_x0001__x0001__x0001__x0001__x0001__x0001__x0001__x0001__x0001__x0001__x0001__x0001__x0001__x0001__x0001__x0001__x0001__x0001__x0001__x0001__x0001__x0001__x0001__x0001__x0001__x0001__x0001__x0001__x0001_\u0088³@_x0001__x0001__x0001__x0001__x0001__x0001__x0001__x0001__x0001__x0001__x0001__x0001__x0001__x0001__x0001__x0001__x0001__x0001__x0001__x0001__x0001__x0002__x0001__x0001__x0001__x0001__x0001__x0001__x0001__x0001__x0001__x0001__x0001__x0001__x0001__x0001__x0001__x0001__x0001_\u0088³@_x0001__x0001__x0001__x0001__x0001__x0001__x0001__x0001__x0001__x0001__x0001__x0001__x0001__x0001__x0001__x0001__x0001__x0001__x0001__x0001__x0001__x0001__x0001__x0001__x0001__x0001__x0001__x0001__x0001__x0001__x0001__x0001__x0001__x0001__x0001__x0001__x0001_\u0088³@_x0001__x0001__x0001__x0001__x0001__x0001__x0001__x0001__x0001__x0001__x0001__x0001__x0001__x0001__x0001__x0001__x0001__x0001__x0001__x0001__x0001__x0001__x0001__x0001__x0001__x0001__x0001__x0001__x0001__x0001__x0001__x0001__x0001__x0001__x0001__x0001__x0001__x0001__x0001__x0001__x0001__x0001__x0001__x0001__x0001__x0001__x0001__x0001__x0001__x0001__x0001__x0001__x0001__x0001__x0001__x0001__x0001__x0001__x0001__x0001__x0001__x0001__x0001__x0001__x0001__x0001__x0001__x0001__x0001__x0001__x0001__x0001__x0001__x0001__x0001__x0001__x0001_\u0088³@_x0001__x0001__x0001__x0001__x0001__x0001__x0001__x0001__x0001__x0001__x0001__x0001__x0001_\u0088³@_x0001__x0001__x0001__x0001__x0001__x0001__x0001__x0001__x0001__x0001__x0001__x0001__x0001__x0001__x0001__x0001__x0001__x0001__x0001__x0001__x0001__x0001__x0001__x0001__x0001__x0001__x0001__x0001__x0001__x0001__x0001__x0001__x0001__x0001__x0001__x0001__x0001_\u0088³@_x0001__x0001__x0001__x0001__x0001__x0001__x0001__x0001__x0001__x0001__x0001__x0001__x0001__x0001__x0001__x0001__x0001__x0001__x0001__x0001__x0001_\u0088³@_x0001__x0001__x0001__x0001__x0001__x0001__x0001__x0001__x0001__x0001__x0001__x0001__x0001__x0001__x0001__x0001__x0001__x0001__x0001__x0001__x0001__x0001__x0001__x0001__x0001__x0001__x0001__x0001__x0001_\u0088³@_x0001__x0002__x0001__x0001__x0001__x0001__x0001__x0001__x0001__x0001__x0001__x0001__x0001__x0001__x0001__x0001__x0001__x0001__x0001__x0001__x0001__x0001__x0001__x0001__x0001__x0001__x0001__x0001__x0001__x0001__x0001__x0001__x0001__x0001__x0001__x0001__x0001__x0001__x0001__x0001__x0001__x0001__x0001__x0001__x0001__x0001__x0001__x0001__x0001__x0001__x0001__x0001__x0001__x0001__x0001__x0001__x0001__x0001__x0001__x0001__x0001__x0001__x0001__x0001__x0001__x0001__x0001__x0001__x0001__x0001__x0001__x0001__x0001__x0001__x0001__x0001__x0001__x0001__x0001_\u0088³@_x0001__x0001__x0001__x0001__x0001__x0001__x0001__x0001__x0001__x0001__x0001__x0001__x0001_\u0088³@_x0001__x0001__x0001__x0001__x0001__x0001__x0001__x0001_"}},{"$cut":{"chars":212862,"head":"de8bc34be13cf190ea5ec94b3fa43d64_x0001__x0002__x0001__x0001__x0001__x0001__x0001__x0001__x0001__x0001__x0001__x0001__x0001__x0001__x0001__x0001__x0001__x0001__x0001__x0001__x0001__x0001__x0001__x0001__x0001__x0001__x0001__x0001__x0001__x0001__x0001__x0001__x0001__x0001__x0001__x0001__x0001__x0001__x0001__x0001__x0001__x0001__x0001__x0001__x0001__x0001__x0001__x0001__x0001__x0001__x0001__x0001__x0001__x0001__x0001__x0001__x0001__x0001__x0001__x0001__x0001__x0001__x0001__x0001__x0001__x0001__x0001__x0001__x0001__x0001__x0001__x0001__x0001__x0001__x0001__x0001__x0001__x0001__x0001__x0001__x0001__x0001__x0001__x0001__x0001__x0001__x0001__x0001__x0001__x0001__x0001__x0001__x0001__x0001__x0001__x0001__x0001__x0001__x0001__x0001__x0001__x0001__x0001__x0001__x0001__x0001__x0001__x0001__x0001__x0001__x0001__x0001__x0001__x0001__x0001__x0001__x0001__x0001__x0001__x0001__x0001__x0001__x0001__x0001__x0001__x0001__x0001__x0001__x0001__x0001__x0001__x0001__x0001__x0001__x0001_\u0088³@_x0001__x0001__x0001__x0001__x0001__x0001__x0001__x0001__x0001__x0001__x0001__x0001__x0001__x0001__x0001__x0001__x0001__x0001__x0001__x0001__x0001_\u0088³@_x0001__x0001__x0001__x0001__x0001__x0001__x0001__x0001__x0001__x0001__x0001__x0001__x0001__x0001__x0001__x0001__x0001__x0001__x0001__x0001__x0001__x0001__x0001__x0001__x0001__x0001__x0001__x0001__x0001__x0001__x0001__x0001__x0001__x0001__x0001__x0001__x0001__x0001__x0001__x0001__x0001__x0001__x0001__x0001__x0001__x0001__x0001__x0001__x0001__x0001__x0001__x0001__x0001__x0001__x0001__x0001__x0001__x0001__x0001__x0001__x0001__x0001__x0001__x0001__x0001__x0001__x0001__x0001__x0001__x0001__x0001__x0001__x0001__x0001__x0001__x0001__x0001__x0001__x0001__x0001__x0001__x0001__x0001__x0001__x0001__x0001__x0001__x0001__x0001__x0001__x0001__x0001__x0001__x0002__x0001__x0001__x0001__x0001__x0001__x0001__x0001__x0001__x0001__x0001__x0001__x0001__x0001__x0001__x0001__x0001__x0001__x0001__x0001__x0001__x0001__x0001__x0001__x0001__x0001__x0001__x0001__x0001__x0001__x0001__x0001__x0001__x0001__x0001__x0001__x0001__x0001__x0001__x0001__x0001__x0001__x0001__x0001__x0001__x0001__x0001__x0001__x0001__x0001__x0001__x0001__x0001__x0001__x0001__x0001__x0001__x0001_\u0088³@_x0001__x0001__x0001__x0001__x0001__x0001__x0001__x0001__x0001__x0001__x0001__x0001__x0001_\u0088³@_x0001__x0001__x0001__x0001__x0001__x0001__x0001__x0001__x0001__x0001__x0001__x0001__x0001__x0001__x0001__x0001__x0001__x0001__x0001__x0001__x0001__x0001__x0001__x0001__x0001__x0001__x0001__x0001__x0001__x0001__x0001__x0001__x0001__x0001__x0001__x0001__x0001__x0001__x0001__x0001__x0001__x0001__x0001__x0001__x0001__x0001__x0001__x0001__x0001__x0001__x0001__x0001__x0001__x0001__x0001__x0001__x0001__x0001__x0001__x0001__x0001__x0001__x0001__x0001__x0001__x0001__x0001__x0001__x0001__x0001__x0001__x0001__x0001__x0001__x0001__x0001__x0001__x0001__x0001__x0001__x0001__x0001__x0001__x0001__x0001__x0001__x0001__x0001__x0001__x0001__x0001__x0001__x0001__x0001__x0001__x0001__x0001__x0001__x0001__x0001__x0001__x0001__x0001__x0001__x0001__x0001__x0001__x0001__x0001__x0001__x0001__x0001__x0001__x0001__x0001__x0001__x0001__x0001__x0001__x0001__x0001__x0001__x0001__x0001__x0001_\u0088³@_x0001__x0001__x0001__x0001__x0001__x0001__x0001__x0001__x0001__x0001__x0001__x0001__x0001__x0001__x0001__x0001__x0001__x0001__x0001__x0001__x0001__x0001__x0001__x0001__x0001__x0001__x0001__x0001__x0001__x0001__x0001__x0001__x0001__x0001__x0001__x0001__x0001__x0001__x0001__x0001__x0001__x0001__x0001__x0001__x0001__x0001__x0001__x0001__x0001__x0002__x0001__x0001__x0001__x0001__x0001_\u0088³@_x0001__x0001__x0001__x0001__x0001__x0001__x0001__x0001__x0001__x0001__x0001__x0001__x0001__x0001__x0001__x0001__x0001__x0001__x0001__x0001__x0001__x0001__x0001__x0001__x0001__x0001__x0001__x0001__x0001__x0001__x0001__x0001__x0001__x0001__x0001__x0001__x0001__x0001__x0001__x0001__x0001__x0001__x0001__x0001__x0001__x0001__x0001__x0001__x0001__x0001__x0001__x0001__x0001__x0001__x0001__x0001__x0001__x0001__x0001__x0001__x0001_\u0088³@_x0001__x0001__x0001__x0001__x0001__x0001__x0001__x0001__x0001__x0001__x0001__x0001__x0001__x0001__x0001__x0001__x00"}},{"$cut":{"chars":77088,"head":"81962709d3403aed5c521d1f176ba3bf_x0002__x0006_(N¤H.g_x0010_A@ã§Æàá_x000E_Aeë_x0016_ñ¯_x0005__x0010_A.þê_x0016_W:_x0010_Aoô\u0082AI5_x000F_A\u009c~¿]Þò_x000F_AÇ_x000F_ù\u008d\u0082\u0081_x0010_A \u0097_x001E_\u0091_x0017__x001D__x0010_Aa\u008bD_x000F_ª\u0093_x0010_AÄ~\u0081\u009d_x0001_S_x000F_A!{_x000D__x000C_>\u007f_x0010_Ajwú\u009c¸l_x0010_A~CÂ&µí_x000F_AÎ/eE=Ë_x0010_AE!@°Å\u0080_x0010_A\u009bëz30_x001F__x0010_Atä¦_x0013_2T_x0010_A_x000C_ëa_x001D_óP_x0010_A¤¨\u0085ÿK_x001D__x0010_A\tË¶ª*X_x000F_A_x000B_Wüu_x001F_+_x0010_A_x0003_/.þN©_x0010_A;'ªJôb_x0010_A\u0084_x0018_T\u009c \u0096_x0010_A7_x000D_\u0094Æ.+_x0010_A_x0013_ÖêÂG\u009c_x0010_Az!ÎF\u0094ü_x000E_A_x0004__x0004_¨íQ³_x000F_AË.?3_x0017_8_x0010_A\u009ce¾äÇî_x000F_AÐýß\u0080>_x001A__x0010_AèJq_x0016_\t_x000B_[_x0004__x0010_ABZ_x0006_£\u0081Î_x000F_A¿èÝ©\u009fÚ_x0010_Aß])SfO_x0010_Aó®c\"\u008e_x0011__x0010_Aý×LÎ¢_x0001__x0010_A=¥ïµ\u0086{_x0010_A\u009a_x0007_ùÅ_x0005_p_x0010_A\u0094po×\u0097¸_x000F_AY \u007f§vÕ_x000F_A\u0090ãðÔÈ´_x0010_Aj¡â±Ï\u0083_x0010_AÔ¡ÒÝÎ?_x0010_Aã<ÉGá_x000B__x0010_A_x0010_g&à\u0094\u0090_x0010_Aü_x0008_g\u0081%Ã_x000F_A_x000D_\t_x0011_Ø[ì_x000F_AÔÛ¢t_x0003_\u009d_x000F_Ac^}\u0082O°_x000F_A_x000E_\u008dÙæØ_x0006__x0010_A´¬0\u0081\u0089&_x000F_AÊM¼G÷_x0014__x0010_A,½RnKè_x000F_A\u008a(\"_x0008_QR_x0010_Aü8\u0097{Ô\u007f_x0010_Aß_x0003__x0011_Õ\u0099'_x0010_A6­+èÆç_x000F_A_x0002_¯í2ßi_x0010_Avmè×m\t_x0010_Aÿ_x0011_$`fN_x000F_A$ól®&q_x0010_A}òC_x0015_ò¯_x000F_A_x0001__x0002_Ìî\u009dßs\u0097_x000F_A\u0087=³´þX_x0010_A_x001F_ë_x0002_\u0091É+_x0010_AÔr\u007f_x0006_$ù_x000F_Aì\u0089+AXô_x000F_A\\_x001F_Z1·©_x000F_A#Ç~\u009eë)_x000F_A\"Ì4\u00935C_x0010_Aa¦ÉsÔÚ_x000F_A^\u009ee\u0097¦×_x000F_Aâ__x001E__x0007_¤¦_x0010_AJrA\u0087[I_x0010_A_x0018_ÄSX\u008cM_x0010_A÷\u008dñaZu_x0010_A÷_x000F_UÏ!§_x000F_AEjî`Mþ_x000F_Aß¤!®U_x0015__x0010_A_x000D__x0013_*\u0088W\"_x0010_A½t\"0ù[_x0010_A0]5ã7_x0019__x0010_A8*ÈÈÏ_x0004__x0010_A`_x000B_8\u0093»\u008b_x0010_AÁP3U1_x0016__x000F_AºuOIøc_x0010_A×å_x0006_\u0097S+_x0010_A'N_x001F_LJà_x000F_AµTw\u009dDg_x0010_Arî3_x0008_æÃ_x0010_A^`\u0094v\u0088T_x0010_A^,sp²L_x0010_AØX(.§G_x000F_A:vÃ×_x0001__x0005_6t_x0010_A|°\u0099_x001F_ø\u007f_x0010_Az[_x000C_\u009fbv_x000F_A\u009e_x000D_µÃÕ\u0087_x0010_Aöåb¡LÏ_x000F_Aé\u009c©ü\u0093n_x0010_A:³\u009f¾ÂÑ_x000F_A±cÌñú_x000E__x0010_A\u008cùä\u0091Í0_x0010_A_x0002__x0003_\u0080¼va_x0010_A\u0085Þæ~í_x000D__x0010_AèVÎË_x001D_í_x000F_A¢Fêô\u0095³_x000F_AÎìG(Áâ_x000F_AÂ_x0001_õD_x001D_·_x000F_Aï_x0015_\u0098© _x0018__x0010_Aj¤_x0006_UÌ._x0010_A°»_x0010_\u0096|\u0083_x0010_Aü\u009fí_x001E_ªm_x000F_AÄû\u009eZí¶_x0010_AÈÃxiA¹_x000F_AY\t_x0001_Õ.Y_x000F_AjÙ_x0004__x0002_[*_x0010_AqJF³L?_x0010_AIÜó\u008e\u0084_x000D__x0010_AJ3åÖ_x0016_r_x0010_As\u009c1áÖ\u008f_x000F_A¸Uß\u0094É\u0099_x0010_Aw_n\u008dÝ _x000F_A\u0085)b â÷_x000E_A?þ\u0093%ú^_x0010_A_x000E_}\u0090×_x0002_¤_x0010_A_x0005__x0006_þ_x001A_i\u0082E\"_x0010_A¡Q\u009f_x0006__x0015_Þ_x000E_A\u009d\u009bù®H´_x000F_A¼5Û¿}d_x0010_AV\u0084^\u0091_x001C_i_x0010_A8 µï<`_x000F_AlÞxét«_x0010_A\u0096ÁCÝ\u0092c_x000F_Aö¤º\u0090`L_x0010_AM\u0087fuPe_x0010_A_x0010_ÿË!\u0084Ñ_x0010_Ag4_x0003_á×m_x0010_Aì\u008b÷mSÃ_x000F_A_x0001_(ÔT_x0008_\u0091_x000F_A%¹ª{2z_x0010_AÌ>\u008f\u008ak_x0013__x0010_A7\tËÄ_x000F_c_x0010_Aç>/_x001B_D_x0016__x0010_A¤@_x001D_s\u0080>_x0010_A\u008dfÂF\\µ_x0010_A<kuáÀ_x0006__x0010_A«}Ëy}_x0018__x0010_A_x0017_Ã½oj\u0099_x0010_A_x0018_Nì_x0005_/\u0084_x000F_A~´I\\^#_x0010_A\u008b¡ _x0002_ÙV_x0010_A¢0¿\u0088´\u009d_x000F_Aq(¶Jñ+_x0010_Ay\"ã-î\u008c_x000F_A_x0004_Rý\u0089\u009cJ_x0010_Azó\u008c\u0082\u00917_x0010_AR7it_x0003__x0005_ó¤_x0010_A(\u0087[ñÉ(_x0010_A,_x000B_%Ü_x0004_,_x0010_A\u007f^·_x001F_¨G_x0010_A¶¢\u008a\u0099,_x000B__x0010_AÂ«_x001F_ý³¨_x0010_A²_x0014_Õ½\"Ï_x0010_Aº×ñcÐO_x0010_A\u009b_x0008_.­NÐ_x000F_A4=\u0082_x0001_I\u009a_x000F_A¦7$_x0006_\u008f:_x0010_Aeí3%÷\u007f_x000F_A`_x000B_¼\u008ff\u0089_x0010_AÜ\t§ø>ú_x000F_Aà)@\u0080æ_x0001__x0010_AtÝ>_x0002__x001B_a_x0010_Ah?]!Þ_x000B__x0010_AÀ9\u008cõKz_x0010_A»ÜåH_x0006_<_x0010_A\u0080Ç\u0081@5§_x0010_A_x0006_\u0094½_x001C_Fm_x0010_A»_x0003__x0008_ \u008e£_x000F_Ac°_x001F_xdQ_x0010_Aª9\u0094»_x0019__x0013__x0010_AOF\\P\u008e,_x0010_A:ÂL_x0014_N¢_x0010_A§»\t_x0002_¿ª_x0010_AZ\u00961ü®s_x0010_AÙÀ-)Sh_x0010_A3\\_x0017_\u00831­_x0010_Aãî_x0010_n\u009d!_x0010_A¸Ç\u009c\t\u0090;_x000F_A_x0001__x0002_q}ø3*e_x0010_AÐ5V·_x0010_»_x000F_A_x0013_\u008b«âÙ*_x000F_A_x000F_qW^_x0013_ö_x000F_A|\u008e'·R\\_x0010_AH£ü_x000D_¢\u007f_x000F_Aå\u0091\u009e¾ ¶_x0010_Au_x000D_ô\u0083_x000C_A_x000F_A\u008f_x0001_seûY_x000F_A¨<K _x0015_H_x0010_ArÞ©Ï_x001C__x001F__x000F_A¿úS¥`:_x0010_AÂÂ$o´Ñ_x000F_A_x0001_@9£r/_x0010_A5_x0017_¿©%\"_x0010_Aêìh Kò_x000F_A\u0096Ë__x0006_Y\"_x000F_AØ+)õ\u0082´_x000F_A¤ý_x0002_vU\u0095_x0010_A2-\u008cu\u0084\u008d_x0010_AýÎ}:Þæ_x000F_A_x0006_\u0090½ú\u008dß_x000F_A\u0089t7´¨ï_x000F_A_x000E_Ï$\t:U_x0010_A¢XÐ¨Ò3_x0010_A:×ÿìpx_x000F_A\u008bë-l\u00976_x0010_AÆ<#êÂÍ_x0010_A_x0010_}\u008c_x0003_d¢_x0010_Aºt"}},{"$cut":{"chars":75222,"head":"bf90d28074be4748e5045a42c9a0c957_x0002__x0003__x0008__x0014_§ñ_x000D_x_x0010_Aüó}w\u0098z_x0010_A}/Ùå)__x0010_A('\u0083ü¬/_x0010_A\u0081¡*ÖZ\u008b_x0010_AEØò¨ÂX_x0010_Aì\u0099\u008d\u0081WH_x0010_A\u009f\u0088´F7t_x0010_A=ã\u0080/XZ_x0010_AC\u009a\u008eBã»_x0010_A_x0003_Ö0åEn_x0010_A¸á\u008b_x0002_µ#_x0010_AËÎPf_x0005_$_x0010_Aþ,ò <~_x0010_A¶\u008f.% ©_x0010_A_x0016_Ç$ýhk_x0010_AS\u0085Ý3¯@_x0010_A_x0013_=.<r\u008e_x0010_AèK_x0011_ù\u0094I_x0010_A¡_x0011_ìÁZf_x0010_AÌ_x000E_\u0088IÕ\u0093_x0010_A³_x0018_\u007f\u0082PM_x0010_AÊ\u0087\u0096\u0083\u0098a_x0010_Au;_x000B_Î\"-_x0010_A£c¢s_x000C_\u008e_x0010_AÏ_x0001_\\<é_x001A__x0010_AË¥ÝLåC_x0010_A_x000B_\u0082Ë¤Ù\u0085_x0010_AÃý¹\tË\u0095_x0010_Aþ\u0091w÷x{_x0010_AÓ\u008c&çe^_x0010_A\u009a_x0015_ce_x0001__x0003_B\u0081_x0010_AÅ)Ão_x0016_P_x0010_A»²Øô\u00893_x0010_A\u0084þ:73d_x0010_A_x0002_^\u0081<¤Y_x0010_A\u0088\u008d@~¥W_x0010_AÖ±|¦\u009a1_x0010_A_x001F_ëã\u008aJY_x0010_AÐs¶«BT_x0010_A``_x0007_mB¥_x0010_A'_x0013_ù±á(_x0010_Aå_x000D_¿D_x001B_\u0082_x0010_A_x001E_²FA_x001D_,_x0010_A_x000E_1_\u009e%N_x0010_A_x000D__x001C_ú\u009f2p_x0010_AK<ßÄÂc_x0010_A\u0091S4d_x001B_¹_x0010_A\u009cG_x0017_ ã\u008f_x0010_A¤ _x0011_2$b_x0010_A\u0094\u007fíM! _x0010_A P1ÈÒI_x0010_A\u0099ø_x0004_)N\u0090_x0010_A/Ï_x0011_>,\u0080_x0010_AN«îb\u0090\u009c_x0010_AOÇ>;¯\u007f_x0010_A´W¹O_x000E_?_x0010_A²úÂ.²\u0097_x0010_Aè\u0098\u0095\\oE_x0010_AC_x0007_Q Ì\\_x0010_A\u0090àðóód_x0010_A£ÅPÍúq_x0010_Aû\u009eà4_x000C_h_x0010_A_x0003__x0006__x0019_uaï_x001E_~_x0010_Aí¬p_x0012_ 8_x0010_AsÆ:G^¡_x0010_AÊÎÿ3\u0084k_x0010_A\u0090_x0015_þ\"Á_x0008__x0010_AFq±a/e_x0010_A,\u00928÷4m_x0010_AÏ.¿]3\u008d_x0010_A9<_x0016_\u0089öX_x0010_A4¤\u009bXÞ!_x0010_A¥¾Ý\u0092_x000F_¬_x0010_AðÐ«l=\u0093_x0010_A_x0014_ÿ¶__x001E_]_x0010_A_x0001_ß\u0089_x001D_ÿ\u0086_x0010_A*p_x0002_¡ßS_x0010_A_x0015__x0019_ïBS[_x0010_AáÜc3Ë{_x0010_A±_x001E__x0015_Ã¤{_x0010_A£¯(_x001F_A«_x0010_AD_x0007_Êï\u009c_x001F__x0010_A\u0084táØ_x0017_À_x0010_AlÀÓ×gC_x0010_A°³¤6mr_x0010_A[_x0013__x000F_\u0082_x0005_c_x0010_AÚy\u009a_x0004_\u0087S_x0010_A_x000D_LM_x0012__x0008_=_x0010_A\u007f_x001B_Mû<Z_x0010_Aô_x0005_Ë\u0097_x0016_|_x0010_AÌ\u0080\u007f3þ\u008b_x0010_A\u009c\u008c_x0001_mô£_x0010_A  i_x0015__x001B_Z_x0010_A}Øl_x001F__x0006__x0007_iW_x0010_AuG\u009fÝap_x0010_ACÜ_x0003_ ¬B_x0010_A\u0090à³û5\u009d_x0010_A\u008c_x0001_ÿi_x0005_G_x0010_A_x0006_òlòÆm_x0010_A¸ððê\u0084?_x0010_A){\u0087v/P_x0010_AÞÁ80\u008fn_x0010_A _x0017_ÝÎH;_x0010_AóÓI@ì_x001E__x0010_A¹|ô;_x0004_0_x0010_A_x0018_W_x000E_¾_x001F_±_x0010_AbÛ_x000C_â1a_x0010_Aâ;_x0007_t_x000F__x0018__x0010_ASÅ_x0015__x000B_% _x0010_A»«sæ)_x0014__x0010_A#ÆV8_V_x0010_A×Îóaðu_x0010_A\u0091ð_x0004_`_=_x0010_ASg\u0080\u008aÓ·_x0010_Añ¤a_x000F_\u009a\u0085_x0010_AÈøÀ6\u0093;_x0010_A_x0002_\u0099TéÛd_x0010_A})u_x001F_4k_x0010_AÁ!×b_x001E_y_x0010_AÞv\u0089×Í\u0080_x0010_A_x0017_sL_x001E_¹\u0083_x0010_A\u009e_x000F_Ã_x001A_\u0093#_x0010_A\u008a#8Ætg_x0010_A¾\u0096Ð²é­_x0010_AìUV¥_x0010_w_x0010_A_x0002__x0003_¤_x0015__x001E_Ø\u00846_x0010_AÀWpý_x001F_`_x0010_AÎy?øÞI_x0010_AíZ'»©0_x0010_A±@!c\u0092\u0093_x0010_A1!åý°__x0010_AÒ_x0019_ÿü<f_x0010_AwµQ\u0098\u0081s_x0010_A`ôv\u008dþh_x0010_A\u0091ÀW¼\u0082._x0010_AºÖgÊJd_x0010_A,4Ö©Ý#_x0010_A\u0082qQ\u009döR_x0010_AD¶_x001F_Ã_x0019_g_x0010_AÙ\u008eTªb0_x0010_A_x0008_i^3±c_x0010_A\u0094:´w\u0081d_x0010_AÜOb_x0013_\u0080¥_x0010_A¿ÝR­\u0092}_x0010_A>\"q_x001E_a%_x0010_A^3à¶\u008e\u008b_x0010_A_x0007_¦º ¥Q_x0010_A·¥P_x000E_6U_x0010_AzÈµê_x001D_­_x0010_ARnÅ\u0084¥z_x0010_A¥Ká\u0099¤e_x0010_Au\u008c~ùô\u0096_x0010_A_x0001_\u009a\u008aâ\u0091B_x0010_Aéõí\u007fzE_x0010_A\u0082d8\u00828\u0085_x0010_AUJ_x0018_ßÄ\u009d_x0010_A,wëZ_x0001__x0003_\u0091\u0086_x0010_Ah÷\u0097ó=\u0082_x0010_A}á?òL,_x0010_A0_x0002_\u0090fµQ_x0010_AMèÕt\u0091\u0090_x0010_AÏ´U®¯U_x0010_A,Âíóê\u009b_x0010_Az_x001C_dA:+_x0010_A`C*n_x0011_d_x0010_A_x0019_¼~Ç\u0085P_x0010_A3\u0084³I®J_x0010_AN\u0092ç¸\u009d\u0082_x0010_AV¹ÙK_x0003_r_x0010_AÐðeºPU_x0010_A)_x0016_½\u008b\t\u007f_x0010_AÈ_x0013_\"\u0093D3_x0010_AE\u0094RwKx_x0010_A\u008a\u0096LuX_x0016__x0010_A\u009a$G¡õ±_x0010_Au_x0016_Üw'|_x0010_A%?cL\u0085{_x0010_AÐHÜ_x0004_y\u0095_x0010_Am\u008c[Æ'_x001E__x0010_A_x001C__x000E_¦ÁDa_x0010_A\u008c\u00943Óu^_x0010_A\u007f\u0097&zªm_x0010_AV`_x0005_ê_x001A_*_x0010_A\u008c×\u009bÌ°B_x0010_A\u0081^^RMU_x0010_A_x000D_G¶_x000E_@P_x0010_A,\u007f_x0015_\u0083\u009cE_x0010_AZU¤ò;D_x0010_A_x0006__x0007_8å¬­=\u009b_x0010_A_x0002_\u009b.Éî3_x0010_A½0øjh(_x0010_Aí?pÜ«n_x0010_A_x000D_È_x001F_Ó[\u0092_x0010_A_x0017_úf\u0080õ\u0098_x0010_A¹M¯\u009e_x000B_T_x0010_AI%\u008b_x0001_Ò`_x0010_A\u0086Ï5ì_x001E_®_x0010_A(¼zÃfE_x0010_A_x0015_\"<_x0007_P]_x0010_Ad@ôO£g_x0010_AHt\u0080·\u00954_x0010_A_x0003__x0005_\u009eæö@_x0010_Aö4F_x0011_þn_x0010_AÞ¹\u008c\u008aí\u008b_x0010_A#ïû¦^[_x0010_A2Z\\úQ¿_x0010_A_x0008__x001B_W²_x0011_g_x0010_A{\u0090\u0096,'\u0098_x0010_A\u008bF¿>\u0096`_x0010_AQ/á_x0001_y2_x0010_A«\\ÕÔ\u0099t_x0010_A\\\\wç_x0004_k_x0010_A@\u0099ûÖ_x0014_¾_x0010_A_x0017__x001D_Ä_x000D_jj_x0010_AbfJ?/m_x0010_Ak[äüÄo_x0010_A9@^i\u0085­_x0010_AÍw"}},{"$cut":{"chars":128964,"head":"701c544147c7926530275318bec20a12_x0007_\t©'ñ$íJ_x0011_AolÏà$U_x0011_A§u_x001D_\u0082¸e_x0011_Aå_x0013_\u009eÄbs_x0011_AuÏ\u0086_x0012__x000C_/_x0011_A×pN¸_x0017__x0001__x0011_A_x0019_lô\u008aÌ_x0001__x0011_Aæ+Ñ&_x0004_\u0092_x0011_AÚ)¿_x001D_Z9_x0011_A\"VOr¢)_x0011_AX#Ñ4_x0006_A_x0011_AkØ¢±¤K_x0011_A\u0081Zz©þ|_x0011_A_x0003__x0014_\u0086´\u008c\t_x0011_A£_x0008_¢@|_x001F__x0011_A/\\Äa_x0017__x000C__x0011_A_x0005_\u009d\u0096#â2_x0011_Aôðâlû_x001D__x0011_A½¿\u009cnc_x0005__x0011_A_x0014_¦íõ}\u0088_x0011_AkT.u_x000E_'_x0011_A\u0096\u0096îY§$_x0011_Aè\u0087ù\u00885N_x0011_Aø_x0016_ÿ¨_x0004_e_x0011_A½è_x0005_&§ò_x0010_AS__x0002_gü#_x0011_AÃl\u0089;Ç_x001D__x0011_ApWÀ¾a`_x0011_A_x0018_\tð_x0002_¿I_x0011_Aû³ò\u0086\u0092d_x0011_AÑ57\u008e\u009d}_x0011_Aã\u008cßQ_x0002__x0005_©0_x0011_A\u0092@.2(Ú_x0010_A&®H§CS_x0011_A ÜiÓ4;_x0011_A_x000C__x001C_Ø Ió_x0010_A´07ÜÕE_x0011_A\u0085\u0082È_x0003_md_x0011_A_x0001_¬é¨LL_x0011_A}\u0089³On\u0089_x0011_AU\u008eÂÙ÷)_x0011_AÓ´_x0011_ÜSã_x0010_A¹j*g\\ú_x0010_AkIÚuH\u0081_x0011_A¡_x0018_ÑMÉ\u008e_x0011_A_x0016_XdÐ`0_x0011_AîcQEÇ_x000B__x0011_Aµ_x0010_C§N/_x0011_Aô8Àc)ý_x0010_A\u008d)ÿÕnT_x0011_A-A_x000E_ØS_x0018__x0011_A\u0095l_x000F_\u0082£_x0014__x0011_Aq_x0007_â_x0004_«^_x0011_A_x0016_ÎA0vP_x0011_AW¹ìºq_x0004__x0011_A \u008cA_x0012_¼K_x0011_Ar_x001E_\u0083_x0002_\u0099T_x0011_A_x000F_oG=ð÷_x0010_Ag·\u008b#FD_x0011_A_x0018_f2¶àö_x0010_A_x0011_\u0092g^Å1_x0011_Aï¸+t_a_x0011_A¦\u008af_x000B_Ð\u0086_x0011_A_x0008_\tVòáM¨\u008b_x0011_Aàe6uï_x0017__x0011_Axó.¬k\u0090_x0011_A÷Æ?Híý_x0010_AÚ\u0088_x000F_jC_x001E__x0011_Aé_x0010_\u0086ÿú_x001F__x0011_AÔ¾x_x0013_?6_x0011_AÑ~¤¸·_x0007__x0011_AÞ\u0098§_x0016_Õb_x0011_A¡r\u007f®\u0093I_x0011_A{®«e_x0019_M_x0011_A\u009a\u009dÃÁõE_x0011_A¾Ç \u0093_x0010__x0005__x0011_AÈL\u0094H0\u0098_x0011_A¨s?}_x0012_\u008d_x0011_AA\u0095\tÁÃ_x0013__x0011_A_x0006_vS\u008c_x000C_}_x0011_A}åÛ;âg_x0011_Aâ_x0002_e_x0016_&:_x0011_A-_x0012_R¼Ë8_x0011_A_x001A_f-9_x0018_\\_x0011_A6R_x0003_u\u008f_x0007__x0011_A__x0003__x0004_ª$W_x0011_A,_x0001_§\u0087ë_x001E__x0011_A5{\u0096_x0007_\u0083C_x0011_A\u008a\u009fHaS)_x0011_Aùrº!%_x0005__x0011_AÆã6øµ_x0017__x0011_A\u0088\u0086¤G\u0092|_x0011_A&Å\u008fù­!_x0011_AÔoIë_x0010_+_x0011_A_x0015_O,__x0001__x0002_\u0098ô_x0010_AOW.ã0_x0012__x0011_Aß5_x0003_GBr_x0011_A\u0097\u008aº-\u008e5_x0011_AS¡á_x000C_àb_x0011_A]_x0004_\u009cN]_x001C__x0011_AÑ+\t_x0018_\u008b%_x0011_AH_x0005__x000D_=O_x001E__x0011_A_x001B_}IÄ R_x0011_Aº\u009aÂÂ\u0092+_x0011_Aä\u008b÷;kD_x0011_AÇgòå\u008ax_x0011_A5n·Ì_x0001_ü_x0010_AÏÊ°ÔX,_x0011_A_x001F_§_x001A_\u0083äI_x0011_AÈ´9h\u009an_x0011_A\u008cD_x0014_ª[þ_x0010_Ayâ_x001D_\"Æ1_x0011_AK:³/Ýÿ_x0010_AI7_x0005_\u0093À-_x0011_A0_x0007__x0018_¹ã`_x0011_Aß\\Jº7_x000C__x0011_AÃÍà±z_x0015__x0011_AÍÀMWÎU_x0011_AKh\u0082\u008cCw_x0011_AîÈ¬Ûë&_x0011_A\u0087À®\u009ebO_x0011_A{Ì_x0003_\u007f¥Ø_x0010_A\u008dý\u0093\u0085w\u0094_x0011_A_x0005_¹³\u009c )_x0011_A\u0092CF_x0012_ÚT_x0011_A_x000C_;¥K\u0097]_x0011_A_x0002__x0005_\u008fÀ!í0ð_x0010_A³Þ_x000C__x000D_:\u0080_x0011_A_x001D_Ì6\u008a}5_x0011_A\u0093¢Å\u0087\u0081ü_x0010_AÞè7/_x0003_\u008f_x0011_Aú\u0082¨\u0097óu_x0011_AëâÔ[ã)_x0011_AÂQ_ÑC9_x0011_AÀõÄ7\u0087H_x0011_A<^w+,B_x0011_Aâè\u0094¹E&_x0011_Aõ\u008fTÔ­9_x0011_Aê©²_x0011_þU_x0011_A¬FÌü  _x0011_A22ÂÑ_x0001_Ù_x0010_AÖ_x000E_\u009b¿\u0089D_x0011_Aå\u009c_x001D_.ºo_x0011_A\u008f\u0086ÔÁ\u0096D_x0011_A½]{w\u009cM_x0011_A_x000C_1^Ìºï_x0010_Aë\tFså[_x0011_Aèûp_x0002__x000F_ð_x0010_A\u008cS5_x0015__x0017_p_x0011_A«_x0015_rNX=_x0011_A\u008e_x0004_n\u0093TD_x0011_A\u0093^÷Ñ¼_x0019__x0011_A_x0016__x0014_ò_x0004_ _x001A__x0011_A_x0001_J£_x001E__x000E_6_x0011_A7eÀ§=_x001D__x0011_AÚ¥ê\u0099èY_x0011_A`äVö¼M_x0011_A»Oâ\u0099_x0004__x0005_ZE_x0011_AM£:´+_x000B__x0011_A_x0016_ÔKU\u009c_x0001__x0011_AR%/_x000B_ÞF_x0011_A,»éÒ_x001E_G_x0011_AZ_x001D_E_x0016_PS_x0011_A_x0014_ÆEÚG_x0012__x0011_A\u0092ÎXn_x0016__x001E__x0011_Ah[_x0014_þ_x0014_%_x0011_A_x000E_Qün\u0085'_x0011_A1\u0093ÜáÕC_x0011_A\u0091l ²ªE_x0011_A´ví\u0085f_x0001__x0011_A#_x0006_¬_x001D_ðt_x0011_A^ú2J_{_x0011_Ap_x0003_7lûH_x0011_A_x0004_ñtàsõ_x0010_AFô*;3\u0086_x0011_AüüÞ/V,_x0011_AfÛÉ÷U8_x0011_A\u0085¼VZ_x0017_!_x0011_AÿàO«å%_x0011_AkºDZÖ_x000D__x0011_A_x000F_ª´ý'Z_x0011_AR¢_x000D_Bv_x0014__x0011_A_x0017_\u0090\u0089r¿_x0012__x0011_Aa\u009c\u008d_x0002_¼x_x0011_A¯\u009cÁÒUI_x0011_A_x001A_]àéTl_x0011_AuFyÀùö_x0010_A_x0012_ú¡_x0005__x0016_r_x0011_Aô¥±_x001B_h!_x0011_A_x0001__x0002_t-í«+f_x0011_A_x001C_/XEáa_x0011_A±Ë\u008fîb_x001B__x0011_A\u0087\u009fò\u0086\u009a3_x0011_A_x0012_RÊ/_x0011_4_x0011_AÔA2ÐÐó_x0010_AÎñAà«F_x0011_AïÊm\u008c3[_x0011_AeUNØ++_x0011_AN\u008fs\"\u0096_x0017__x0011_As·B\u0093ï:_x0011_A\u0086\u007fï\u0098ö_x0017__x0011_A¸å.0_x0015_0_x0011_A\u008e\u0097Ï\u009a_x001B__x0018__x0011_Aé?°´ì_x001D__x0011_A\u009d'b}×_x000C__x0011_AT\u008aÈ_x0019_¼_x000D__x0011_ABU9ê_x000C_ö_x0010_A^\u008d\u0081\u0089=v_x0011"}},{"$cut":{"chars":227022,"head":"3ecf291e64b510c473630421460e726a_x0001__x0002__x0001__x0001__x0001__x0001__x0001__x0001__x0001__x0001__x0001__x0001__x0001__x0001__x0001__x0001__x0001__x0001__x0001__x0001__x0001__x0001__x0001__x0001__x0001__x0001__x0001__x0001__x0001__x0001__x0001__x0001__x0001__x0001__x0001__x0001__x0001__x0001__x0001__x0001__x0001__x0001__x0001__x0001__x0001__x0001__x0001__x0001__x0001__x0001__x0001__x0001__x0001__x0001__x0001__x0001__x0001__x0001__x0001__x0001__x0001__x0001__x0001__x0001__x0001__x0001__x0001__x0001__x0001__x0001__x0001__x0001__x0001__x0001__x0001__x0001__x0001__x0001__x0001__x0001__x0001__x0001__x0001__x0001__x0001__x0001__x0001__x0001__x0001__x0001__x0001__x0001__x0001__x0001__x0001__x0001__x0001__x0001__x0001__x0001__x0001__x0001__x0001__x0001__x0001__x0001__x0001__x0001__x0001__x0001__x0001__x0001__x0001__x0001__x0001__x0001__x0001__x0001__x0001__x0001__x0001__x0001__x0001__x0001__x0001__x0001__x0001__x0001__x0001__x0001__x0001__x0001__x0001__x0001__x0001__x0001__x0001__x0001__x0001__x0001__x0001__x0001__x0001__x0001__x0001__x0001__x0001__x0001__x0001__x0001__x0001__x0001__x0001__x0001__x0001__x0001__x0001__x0001__x0001__x0001__x0001__x0001__x0001__x0001__x0001__x0001__x0001__x0001__x0001__x0001__x0001__x0001__x0001__x0001__x0001__x0001__x0001__x0001__x0001__x0001__x0001__x0001__x0001__x0001__x0001__x0001__x0001__x0001__x0001__x0001__x0001__x0001__x0001__x0001__x0001__x0001__x0001__x0001__x0001__x0001__x0001__x0001__x0001__x0001__x0001__x0001__x0001__x0001__x0001__x0001__x0001__x0001__x0001__x0001__x0001__x0001__x0001__x0001__x0001__x0001__x0001__x0001__x0001__x0001__x0001__x0001__x0001__x0001__x0001__x0001__x0001__x0001__x0001__x0001__x0001__x0001__x0001__x0001__x0001__x0001__x0001__x0001__x0001__x0001__x0001__x0001__x0001__x0001__x0001__x0001__x0001__x0001__x0001__x0001__x0001__x0002__x0001__x0001__x0001__x0001__x0001__x0001__x0001__x0001__x0001__x0001__x0001__x0001__x0001__x0001__x0001__x0001__x0001__x0001__x0001__x0001__x0001__x0001__x0001__x0001__x0001__x0001__x0001__x0001__x0001__x0001__x0001__x0001__x0001__x0001__x0001__x0001__x0001__x0001__x0001__x0001__x0001__x0001__x0001__x0001__x0001__x0001__x0001__x0001__x0001__x0001__x0001__x0001__x0001__x0001__x0001__x0001__x0001__x0001__x0001__x0001__x0001__x0001__x0001__x0001__x0001__x0001__x0001__x0001__x0001__x0001__x0001__x0001__x0001__x0001__x0001__x0001__x0001__x0001__x0001__x0001__x0001__x0001__x0001__x0001__x0001__x0001__x0001__x0001__x0001__x0001__x0001__x0001__x0001__x0001__x0001__x0001__x0001__x0001__x0001__x0001__x0001__x0001__x0001__x0001__x0001__x0001__x0001__x0001__x0001__x0001__x0001__x0001__x0001__x0001__x0001__x0001__x0001__x0001__x0001__x0001__x0001__x0001__x0001__x0001__x0001__x0001__x0001__x0001__x0001__x0001__x0001__x0001__x0001__x0001__x0001__x0001__x0001__x0001__x0001__x0001__x0001__x0001__x0001__x0001__x0001__x0001__x0001__x0001__x0001__x0001__x0001__x0001__x0001__x0001__x0001__x0001__x0001__x0001__x0001__x0001__x0001__x0001__x0001__x0001__x0001__x0001__x0001__x0001__x0001__x0001__x0001__x0001__x0001__x0001__x0001__x0001__x0001__x0001__x0001__x0001__x0001__x0001__x0001__x0001__x0001__x0001__x0001__x0001__x0001__x0001__x0001__x0001__x0001__x0001__x0001__x0001__x0001__x0001__x0001__x0001__x0001__x0001__x0001__x0001__x0001__x0001__x0001__x0001__x0001__x0001__x0001__x0001__x0001__x0001__x0001__x0001__x0001__x0001__x0001__x0001__x0001__x0001__x0001__x0001__x0001__x0001__x0001__x0001__x0001__x0001__x0001__x0001__x0001__x0001__x0001__x0001__x0001__x0001__x0001__x0001__x0001__x0001__x0001__x0001__x0001__x0001__x0001__x0001__x0001__x0001__x0001__x0001__x0001__x0002__x0001__x0001__x0001__x0001__x0001__x0001__x0001__x0001__x0001__x0001__x0001__x0001__x0001__x0001__x0001__x0001__x0001__x0001__x0001__x0001__x0001__x0001__x0001__x0001__x0001__x0001__x0001__x0001__x0001__x0001__x0001__x0001__x0001__x0001__x0001__x0001__x0001__x0001__x0001__x0001__x0001__x0001__x0001__x0001__x0001__x0001__x0001__x0001__x0001__x0001__x0001__x0001__x0001__x0001__x0001__x0001__x0001__x0001__x0001__x0001__x0001__x0001__x0001__x0001__x0001__x0001__x0001__x0001__x0001__x0001__x00"}},{"$cut":{"chars":226152,"head":"d2b6bf346039ba81b06870f674156402_x0001__x0002__x0001__x0001__x0001__x0001__x0001__x0001__x0001__x0001__x0001__x0001__x0001__x0001__x0001__x0001__x0001__x0001__x0001__x0001__x0001__x0001__x0001__x0001__x0001__x0001__x0001__x0001__x0001__x0001__x0001__x0001__x0001__x0001__x0001__x0001__x0001__x0001__x0001__x0001__x0001__x0001__x0001__x0001__x0001__x0001__x0001__x0001__x0001__x0001__x0001__x0001__x0001__x0001__x0001__x0001__x0001__x0001__x0001__x0001__x0001__x0001__x0001__x0001__x0001__x0001__x0001__x0001__x0001__x0001__x0001__x0001__x0001__x0001__x0001__x0001__x0001__x0001__x0001__x0001__x0001__x0001__x0001__x0001__x0001__x0001__x0001__x0001__x0001__x0001__x0001__x0001__x0001__x0001__x0001__x0001__x0001__x0001__x0001__x0001__x0001__x0001__x0001__x0001__x0001__x0001__x0001__x0001__x0001__x0001__x0001__x0001__x0001__x0001__x0001__x0001__x0001__x0001__x0001__x0001__x0001__x0001__x0001__x0001__x0001__x0001__x0001__x0001__x0001__x0001__x0001__x0001__x0001__x0001__x0001__x0001__x0001__x0001__x0001__x0001__x0001__x0001__x0001__x0001__x0001__x0001__x0001__x0001__x0001__x0001__x0001__x0001__x0001__x0001__x0001__x0001__x0001__x0001__x0001__x0001__x0001__x0001__x0001__x0001__x0001__x0001__x0001__x0001__x0001__x0001__x0001__x0001__x0001__x0001__x0001__x0001__x0001__x0001__x0001__x0001__x0001__x0001__x0001__x0001__x0001__x0001__x0001__x0001__x0001__x0001__x0001__x0001__x0001__x0001__x0001__x0001__x0001__x0001__x0001__x0001__x0001__x0001__x0001__x0001__x0001__x0001__x0001__x0001__x0001__x0001__x0001__x0001__x0001__x0001__x0001__x0001__x0001__x0001__x0001__x0001__x0001__x0001__x0001__x0001__x0001__x0001__x0001__x0001__x0001__x0001__x0001__x0001__x0001__x0001__x0001__x0001__x0001__x0001__x0001__x0001__x0001__x0001__x0001__x0001__x0001__x0001__x0001__x0001__x0001__x0001__x0001__x0001__x0001__x0001__x0001__x0002__x0001__x0001__x0001__x0001__x0001__x0001__x0001__x0001__x0001__x0001__x0001__x0001__x0001__x0001__x0001__x0001__x0001__x0001__x0001__x0001__x0001__x0001__x0001__x0001__x0001__x0001__x0001__x0001__x0001__x0001__x0001__x0001__x0001__x0001__x0001__x0001__x0001__x0001__x0001__x0001__x0001__x0001__x0001__x0001__x0001__x0001__x0001__x0001__x0001__x0001__x0001__x0001__x0001__x0001__x0001__x0001__x0001__x0001__x0001__x0001__x0001__x0001__x0001__x0001__x0001__x0001__x0001__x0001__x0001__x0001__x0001__x0001__x0001__x0001__x0001__x0001__x0001__x0001__x0001__x0001__x0001__x0001__x0001__x0001__x0001__x0001__x0001__x0001__x0001__x0001__x0001__x0001__x0001__x0001__x0001__x0001__x0001__x0001__x0001__x0001__x0001__x0001__x0001__x0001__x0001__x0001__x0001__x0001__x0001__x0001__x0001__x0001__x0001__x0001__x0001__x0001__x0001__x0001__x0001__x0001__x0001__x0001__x0001__x0001__x0001__x0001__x0001__x0001__x0001__x0001__x0001__x0001__x0001__x0001__x0001__x0001__x0001__x0001__x0001__x0001__x0001__x0001__x0001__x0001__x0001__x0001__x0001__x0001__x0001__x0001__x0001__x0001__x0001__x0001__x0001__x0001__x0001__x0001__x0001__x0001__x0001__x0001__x0001__x0001__x0001__x0001__x0001__x0001__x0001__x0001__x0001__x0001__x0001__x0001__x0001__x0001__x0001__x0001__x0001__x0001__x0001__x0001__x0001__x0001__x0001__x0001__x0001__x0001__x0001__x0001__x0001__x0001__x0001__x0001__x0001__x0001__x0001__x0001__x0001__x0001__x0001__x0001__x0001__x0001__x0001__x0001__x0001__x0001__x0001__x0001__x0001__x0001__x0001__x0001__x0001__x0001__x0001__x0001__x0001__x0001__x0001__x0001__x0001__x0001__x0001__x0001__x0001__x0001__x0001__x0001__x0001__x0001__x0001__x0001__x0001__x0001__x0001__x0001__x0001__x0001__x0001__x0001__x0001__x0001__x0001__x0001__x0001__x0001__x0001__x0001__x0001__x0001__x0001__x0002__x0001__x0001__x0001__x0001__x0001__x0001__x0001__x0001__x0001__x0001__x0001__x0001__x0001__x0001__x0001__x0001__x0001__x0001__x0001__x0001__x0001__x0001__x0001__x0001__x0001__x0001__x0001__x0001__x0001__x0001__x0001__x0001__x0001__x0001__x0001__x0001__x0001__x0001__x0001__x0001__x0001__x0001__x0001__x0001__x0001__x0001__x0001__x0001__x0001__x0001__x0001__x0001__x0001__x0001__x0001__x0001__x0001__x0001__x0001__x0001__x0001__x0001__x0001__x0001__x0001__x0001__x0001__x0001__x0001__x0001__x00"}},{"$cut":{"chars":227094,"head":"da76bcd805830286fdfc3ea3fc046636_x0001__x0002__x0001__x0001__x0001__x0001__x0001__x0001__x0001__x0001__x0001__x0001__x0001__x0001__x0001__x0001__x0001__x0001__x0001__x0001__x0001__x0001__x0001__x0001__x0001__x0001__x0001__x0001__x0001__x0001__x0001__x0001__x0001__x0001__x0001__x0001__x0001__x0001__x0001__x0001__x0001__x0001__x0001__x0001__x0001__x0001__x0001__x0001__x0001__x0001__x0001__x0001__x0001__x0001__x0001__x0001__x0001__x0001__x0001__x0001__x0001__x0001__x0001__x0001__x0001__x0001__x0001__x0001__x0001__x0001__x0001__x0001__x0001__x0001__x0001__x0001__x0001__x0001__x0001__x0001__x0001__x0001__x0001__x0001__x0001__x0001__x0001__x0001__x0001__x0001__x0001__x0001__x0001__x0001__x0001__x0001__x0001__x0001__x0001__x0001__x0001__x0001__x0001__x0001__x0001__x0001__x0001__x0001__x0001__x0001__x0001__x0001__x0001__x0001__x0001__x0001__x0001__x0001__x0001__x0001__x0001__x0001__x0001__x0001__x0001__x0001__x0001__x0001__x0001__x0001__x0001__x0001__x0001__x0001__x0001__x0001__x0001__x0001__x0001__x0001__x0001__x0001__x0001__x0001__x0001__x0001__x0001__x0001__x0001__x0001__x0001__x0001__x0001__x0001__x0001__x0001__x0001__x0001__x0001__x0001__x0001__x0001__x0001__x0001__x0001__x0001__x0001__x0001__x0001__x0001__x0001__x0001__x0001__x0001__x0001__x0001__x0001__x0001__x0001__x0001__x0001__x0001__x0001__x0001__x0001__x0001__x0001__x0001__x0001__x0001__x0001__x0001__x0001__x0001__x0001__x0001__x0001__x0001__x0001__x0001__x0001__x0001__x0001__x0001__x0001__x0001__x0001__x0001__x0001__x0001__x0001__x0001__x0001__x0001__x0001__x0001__x0001__x0001__x0001__x0001__x0001__x0001__x0001__x0001__x0001__x0001__x0001__x0001__x0001__x0001__x0001__x0001__x0001__x0001__x0001__x0001__x0001__x0001__x0001__x0001__x0001__x0001__x0001__x0001__x0001__x0001__x0001__x0001__x0001__x0001__x0001__x0001__x0001__x0001__x0001__x0002__x0001__x0001__x0001__x0001__x0001__x0001__x0001__x0001__x0001__x0001__x0001__x0001__x0001__x0001__x0001__x0001__x0001__x0001__x0001__x0001__x0001__x0001__x0001__x0001__x0001__x0001__x0001__x0001__x0001__x0001__x0001__x0001__x0001__x0001__x0001__x0001__x0001__x0001__x0001__x0001__x0001__x0001__x0001__x0001__x0001__x0001__x0001__x0001__x0001__x0001__x0001__x0001__x0001__x0001__x0001__x0001__x0001__x0001__x0001__x0001__x0001__x0001__x0001__x0001__x0001__x0001__x0001__x0001__x0001__x0001__x0001__x0001__x0001__x0001__x0001__x0001__x0001__x0001__x0001__x0001__x0001__x0001__x0001__x0001__x0001__x0001__x0001__x0001__x0001__x0001__x0001__x0001__x0001__x0001__x0001__x0001__x0001__x0001__x0001__x0001__x0001__x0001__x0001__x0001__x0001__x0001__x0001__x0001__x0001__x0001__x0001__x0001__x0001__x0001__x0001__x0001__x0001__x0001__x0001__x0001__x0001__x0001__x0001__x0001__x0001__x0001__x0001__x0001__x0001__x0001__x0001__x0001__x0001__x0001__x0001__x0001__x0001__x0001__x0001__x0001__x0001__x0001__x0001__x0001__x0001__x0001__x0001__x0001__x0001__x0001__x0001__x0001__x0001__x0001__x0001__x0001__x0001__x0001__x0001__x0001__x0001__x0001__x0001__x0001__x0001__x0001__x0001__x0001__x0001__x0001__x0001__x0001__x0001__x0001__x0001__x0001__x0001__x0001__x0001__x0001__x0001__x0001__x0001__x0001__x0001__x0001__x0001__x0001__x0001__x0001__x0001__x0001__x0001__x0001__x0001__x0001__x0001__x0001__x0001__x0001__x0001__x0001__x0001__x0001__x0001__x0001__x0001__x0001__x0001__x0001__x0001__x0001__x0001__x0001__x0001__x0001__x0001__x0001__x0001__x0001__x0001__x0001__x0001__x0001__x0001__x0001__x0001__x0001__x0001__x0001__x0001__x0001__x0001__x0001__x0001__x0001__x0001__x0001__x0001__x0001__x0001__x0001__x0001__x0001__x0001__x0001__x0001__x0001__x0001__x0001__x0001__x0001__x0001__x0002__x0001__x0001__x0001__x0001__x0001__x0001__x0001__x0001__x0001__x0001__x0001__x0001__x0001__x0001__x0001__x0001__x0001__x0001__x0001__x0001__x0001__x0001__x0001__x0001__x0001__x0001__x0001__x0001__x0001__x0001__x0001__x0001__x0001__x0001__x0001__x0001__x0001__x0001__x0001__x0001__x0001__x0001__x0001__x0001__x0001__x0001__x0001__x0001__x0001__x0001__x0001__x0001__x0001__x0001__x0001__x0001__x0001__x0001__x0001__x0001__x0001__x0001__x0001__x0001__x0001__x0001__x0001__x0001__x0001__x0001__x00"}},{"$cut":{"chars":225162,"head":"7ce89dff7484585eb0d30cdd20f83e84_x0001__x0002__x0001__x0001__x0001__x0001__x0001__x0001__x0001__x0001__x0001__x0001__x0001__x0001__x0001__x0001__x0001__x0001__x0001__x0001__x0001__x0001__x0001__x0001__x0001__x0001__x0001__x0001__x0001__x0001__x0001__x0001__x0001__x0001__x0001__x0001__x0001__x0001__x0001__x0001__x0001__x0001__x0001__x0001__x0001__x0001__x0001__x0001__x0001__x0001__x0001__x0001__x0001__x0001__x0001__x0001__x0001__x0001__x0001__x0001__x0001__x0001__x0001__x0001__x0001__x0001__x0001__x0001__x0001__x0001__x0001__x0001__x0001__x0001__x0001__x0001__x0001__x0001__x0001__x0001__x0001__x0001__x0001__x0001__x0001__x0001__x0001__x0001__x0001__x0001__x0001__x0001__x0001__x0001__x0001__x0001__x0001__x0001__x0001__x0001__x0001__x0001__x0001__x0001__x0001__x0001__x0001__x0001__x0001__x0001__x0001__x0001__x0001__x0001__x0001__x0001__x0001__x0001__x0001__x0001__x0001__x0001__x0001__x0001__x0001__x0001__x0001__x0001__x0001__x0001__x0001__x0001__x0001__x0001__x0001__x0001__x0001__x0001__x0001__x0001__x0001__x0001__x0001__x0001__x0001__x0001__x0001__x0001__x0001__x0001__x0001__x0001__x0001__x0001__x0001__x0001__x0001__x0001__x0001__x0001__x0001__x0001__x0001__x0001__x0001__x0001__x0001__x0001__x0001__x0001__x0001__x0001__x0001__x0001__x0001__x0001__x0001__x0001__x0001__x0001__x0001__x0001__x0001__x0001__x0001__x0001__x0001__x0001__x0001__x0001__x0001__x0001__x0001__x0001__x0001__x0001__x0001__x0001__x0001__x0001__x0001__x0001__x0001__x0001__x0001__x0001__x0001__x0001__x0001__x0001__x0001__x0001__x0001__x0001__x0001__x0001__x0001__x0001__x0001__x0001__x0001__x0001__x0001__x0001__x0001__x0001__x0001__x0001__x0001__x0001__x0001__x0001__x0001__x0001__x0001__x0001__x0001__x0001__x0001__x0001__x0001__x0001__x0001__x0001__x0001__x0001__x0001__x0001__x0001__x0001__x0001__x0001__x0001__x0001__x0001__x0002__x0001__x0001__x0001__x0001__x0001__x0001__x0001__x0001__x0001__x0001__x0001__x0001__x0001__x0001__x0001__x0001__x0001__x0001__x0001__x0001__x0001__x0001__x0001__x0001__x0001__x0001__x0001__x0001__x0001__x0001__x0001__x0001__x0001__x0001__x0001__x0001__x0001__x0001__x0001__x0001__x0001__x0001__x0001__x0001__x0001__x0001__x0001__x0001__x0001__x0001__x0001__x0001__x0001__x0001__x0001__x0001__x0001__x0001__x0001__x0001__x0001__x0001__x0001__x0001__x0001__x0001__x0001__x0001__x0001__x0001__x0001__x0001__x0001__x0001__x0001__x0001__x0001__x0001__x0001__x0001__x0001__x0001__x0001__x0001__x0001__x0001__x0001__x0001__x0001__x0001__x0001__x0001__x0001__x0001__x0001__x0001__x0001__x0001__x0001__x0001__x0001__x0001__x0001__x0001__x0001__x0001__x0001__x0001__x0001__x0001__x0001__x0001__x0001__x0001__x0001__x0001__x0001__x0001__x0001__x0001__x0001__x0001__x0001__x0001__x0001__x0001__x0001__x0001__x0001__x0001__x0001__x0001__x0001__x0001__x0001__x0001__x0001__x0001__x0001__x0001__x0001__x0001__x0001__x0001__x0001__x0001__x0001__x0001__x0001__x0001__x0001__x0001__x0001__x0001__x0001__x0001__x0001__x0001__x0001__x0001__x0001__x0001__x0001__x0001__x0001__x0001__x0001__x0001__x0001__x0001__x0001__x0001__x0001__x0001__x0001__x0001__x0001__x0001__x0001__x0001__x0001__x0001__x0001__x0001__x0001__x0001__x0001__x0001__x0001__x0001__x0001__x0001__x0001__x0001__x0001__x0001__x0001__x0001__x0001__x0001__x0001__x0001__x0001__x0001__x0001__x0001__x0001__x0001__x0001__x0001__x0001__x0001__x0001__x0001__x0001__x0001__x0001__x0001__x0001__x0001__x0001__x0001__x0001__x0001__x0001__x0001__x0001__x0001__x0001__x0001__x0001__x0001__x0001__x0001__x0001__x0001__x0001__x0001__x0001__x0001__x0001__x0001__x0001__x0001__x0001__x0001__x0001__x0001__x0001__x0001__x0001__x0001__x0001__x0002__x0001__x0001__x0001__x0001__x0001__x0001__x0001__x0001__x0001__x0001__x0001__x0001__x0001__x0001__x0001__x0001__x0001__x0001__x0001__x0001__x0001__x0001__x0001__x0001__x0001__x0001__x0001__x0001__x0001__x0001__x0001__x0001__x0001__x0001__x0001__x0001__x0001__x0001__x0001__x0001__x0001__x0001__x0001__x0001__x0001__x0001__x0001__x0001__x0001__x0001__x0001__x0001__x0001__x0001__x0001__x0001__x0001__x0001__x0001__x0001__x0001__x0001__x0001__x0001__x0001__x0001__x0001__x0001__x0001__x0001__x00"}},{"$cut":{"chars":226968,"head":"30a15e38285c2b453a9b90eb89fffb4a_x0001__x0002__x0001__x0001__x0001__x0001__x0001__x0001__x0001__x0001__x0001__x0001__x0001__x0001__x0001__x0001__x0001__x0001__x0001__x0001__x0001__x0001__x0001__x0001__x0001__x0001__x0001__x0001__x0001__x0001__x0001__x0001__x0001__x0001__x0001__x0001__x0001__x0001__x0001__x0001__x0001__x0001__x0001__x0001__x0001__x0001__x0001__x0001__x0001__x0001__x0001__x0001__x0001__x0001__x0001__x0001__x0001__x0001__x0001__x0001__x0001__x0001__x0001__x0001__x0001__x0001__x0001__x0001__x0001__x0001__x0001__x0001__x0001__x0001__x0001__x0001__x0001__x0001__x0001__x0001__x0001__x0001__x0001__x0001__x0001__x0001__x0001__x0001__x0001__x0001__x0001__x0001__x0001__x0001__x0001__x0001__x0001__x0001__x0001__x0001__x0001__x0001__x0001__x0001__x0001__x0001__x0001__x0001__x0001__x0001__x0001__x0001__x0001__x0001__x0001__x0001__x0001__x0001__x0001__x0001__x0001__x0001__x0001__x0001__x0001__x0001__x0001__x0001__x0001__x0001__x0001__x0001__x0001__x0001__x0001__x0001__x0001__x0001__x0001__x0001__x0001__x0001__x0001__x0001__x0001__x0001__x0001__x0001__x0001__x0001__x0001__x0001__x0001__x0001__x0001__x0001__x0001__x0001__x0001__x0001__x0001__x0001__x0001__x0001__x0001__x0001__x0001__x0001__x0001__x0001__x0001__x0001__x0001__x0001__x0001__x0001__x0001__x0001__x0001__x0001__x0001__x0001__x0001__x0001__x0001__x0001__x0001__x0001__x0001__x0001__x0001__x0001__x0001__x0001__x0001__x0001__x0001__x0001__x0001__x0001__x0001__x0001__x0001__x0001__x0001__x0001__x0001__x0001__x0001__x0001__x0001__x0001__x0001__x0001__x0001__x0001__x0001__x0001__x0001__x0001__x0001__x0001__x0001__x0001__x0001__x0001__x0001__x0001__x0001__x0001__x0001__x0001__x0001__x0001__x0001__x0001__x0001__x0001__x0001__x0001__x0001__x0001__x0001__x0001__x0001__x0001__x0001__x0001__x0001__x0001__x0001__x0001__x0001__x0001__x0001__x0002__x0001__x0001__x0001__x0001__x0001__x0001__x0001__x0001__x0001__x0001__x0001__x0001__x0001__x0001__x0001__x0001__x0001__x0001__x0001__x0001__x0001__x0001__x0001__x0001__x0001__x0001__x0001__x0001__x0001__x0001__x0001__x0001__x0001__x0001__x0001__x0001__x0001__x0001__x0001__x0001__x0001__x0001__x0001__x0001__x0001__x0001__x0001__x0001__x0001__x0001__x0001__x0001__x0001__x0001__x0001__x0001__x0001__x0001__x0001__x0001__x0001__x0001__x0001__x0001__x0001__x0001__x0001__x0001__x0001__x0001__x0001__x0001__x0001__x0001__x0001__x0001__x0001__x0001__x0001__x0001__x0001__x0001__x0001__x0001__x0001__x0001__x0001__x0001__x0001__x0001__x0001__x0001__x0001__x0001__x0001__x0001__x0001__x0001__x0001__x0001__x0001__x0001__x0001__x0001__x0001__x0001__x0001__x0001__x0001__x0001__x0001__x0001__x0001__x0001__x0001__x0001__x0001__x0001__x0001__x0001__x0001__x0001__x0001__x0001__x0001__x0001__x0001__x0001__x0001__x0001__x0001__x0001__x0001__x0001__x0001__x0001__x0001__x0001__x0001__x0001__x0001__x0001__x0001__x0001__x0001__x0001__x0001__x0001__x0001__x0001__x0001__x0001__x0001__x0001__x0001__x0001__x0001__x0001__x0001__x0001__x0001__x0001__x0001__x0001__x0001__x0001__x0001__x0001__x0001__x0001__x0001__x0001__x0001__x0001__x0001__x0001__x0001__x0001__x0001__x0001__x0001__x0001__x0001__x0001__x0001__x0001__x0001__x0001__x0001__x0001__x0001__x0001__x0001__x0001__x0001__x0001__x0001__x0001__x0001__x0001__x0001__x0001__x0001__x0001__x0001__x0001__x0001__x0001__x0001__x0001__x0001__x0001__x0001__x0001__x0001__x0001__x0001__x0001__x0001__x0001__x0001__x0001__x0001__x0001__x0001__x0001__x0001__x0001__x0001__x0001__x0001__x0001__x0001__x0001__x0001__x0001__x0001__x0001__x0001__x0001__x0001__x0001__x0001__x0001__x0001__x0001__x0001__x0001__x0001__x0001__x0001__x0001__x0001__x0002__x0001__x0001__x0001__x0001__x0001__x0001__x0001__x0001__x0001__x0001__x0001__x0001__x0001__x0001__x0001__x0001__x0001__x0001__x0001__x0001__x0001__x0001__x0001__x0001__x0001__x0001__x0001__x0001__x0001__x0001__x0001__x0001__x0001__x0001__x0001__x0001__x0001__x0001__x0001__x0001__x0001__x0001__x0001__x0001__x0001__x0001__x0001__x0001__x0001__x0001__x0001__x0001__x0001__x0001__x0001__x0001__x0001__x0001__x0001__x0001__x0001__x0001__x0001__x0001__x0001__x0001__x0001__x0001__x0001__x0001__x00"}},{"$cut":{"chars":60420,"head":"87c460c1b945315984f85dfa0cde69b5_x0001__x0002__x0001__x0001__x0001__x0001__x0001__x0001__x0001__x0001__x0001__x0001__x0001__x0001__x0001__x0001__x0001__x0001__x0001__x0001__x0001__x0001__x0001__x0001__x0001__x0001__x0001__x0001__x0001__x0001__x0001__x0001__x0001__x0001__x0001__x0001__x0001__x0001__x0001__x0001__x0001__x0001__x0001__x0001__x0001__x0001__x0001__x0001__x0001__x0001__x0001__x0001__x0001__x0001__x0001__x0001__x0001__x0001__x0001__x0001__x0001__x0001__x0001__x0001__x0001__x0001__x0001__x0001__x0001__x0001__x0001__x0001__x0001__x0001__x0001__x0001__x0001__x0001__x0001__x0001__x0001__x0001__x0001__x0001__x0001__x0001__x0001__x0001__x0001__x0001__x0001__x0001__x0001__x0001__x0001__x0001__x0001__x0001__x0001__x0001__x0001__x0001__x0001__x0001__x0001__x0001__x0001__x0001__x0001__x0001__x0001__x0001__x0001__x0001__x0001__x0001__x0001__x0001__x0001__x0001__x0001__x0001__x0001__x0001__x0001__x0001__x0001__x0001__x0001__x0001__x0001__x0001__x0001__x0001__x0001__x0001__x0001__x0001__x0001__x0001__x0001__x0001__x0001__x0001__x0001__x0001__x0001__x0001__x0001__x0001__x0001__x0001__x0001__x0001__x0001__x0001__x0001__x0001__x0001__x0001__x0001__x0001__x0001__x0001__x0001__x0001__x0001__x0001__x0001__x0001__x0001__x0001__x0001__x0001__x0001__x0001__x0001__x0001__x0001__x0001__x0001__x0001__x0001__x0001__x0001__x0001__x0001__x0001__x0001__x0001__x0001__x0001__x0001__x0001__x0001__x0001__x0001__x0001__x0001__x0001__x0001__x0001__x0001__x0001__x0001__x0001__x0001__x0001__x0001__x0001__x0001__x0001__x0001__x0001__x0001__x0001__x0001__x0001__x0001__x0001__x0001__x0001__x0001__x0001__x0001__x0001__x0001__x0001__x0001__x0001__x0001__x0001__x0001__x0001__x0001__x0001__x0001__x0001__x0001__x0001__x0001__x0001__x0001__x0001__x0001__x0001__x0001__x0001__x0001__x0001__x0001__x0001__x0001__x0001__x0001__x0002__x0001__x0001__x0001__x0001__x0001__x0001__x0001__x0001__x0001__x0001__x0001__x0001__x0001__x0001__x0001__x0001__x0001__x0001__x0001__x0001__x0001__x0001__x0001__x0001__x0001__x0001__x0001__x0001__x0001__x0001__x0001__x0001__x0001__x0001__x0001__x0001__x0001__x0001__x0001__x0001__x0001__x0001__x0001__x0001__x0001__x0001__x0001__x0001__x0001__x0001__x0001__x0001__x0001__x0001__x0001__x0001__x0001__x0001__x0001__x0001__x0001__x0001__x0001__x0001__x0001__x0001__x0001__x0001__x0001__x0001__x0001__x0001__x0001__x0001__x0001__x0001__x0001__x0001__x0001__x0001__x0001__x0001__x0001__x0001__x0001__x0001__x0001__x0001__x0001__x0001__x0001__x0001__x0001__x0001__x0001__x0001__x0001__x0001__x0001__x0001__x0001__x0001__x0001__x0001__x0001__x0001__x0001__x0001__x0001__x0001__x0001__x0001__x0001__x0001__x0001__x0001__x0001__x0001__x0001__x0001__x0001__x0001__x0001__x0001__x0001__x0001__x0001__x0001__x0001__x0001__x0001__x0001__x0001__x0001__x0001__x0001__x0001__x0001__x0001__x0001__x0001__x0001__x0001__x0001__x0001__x0001__x0001__x0001__x0001__x0001__x0001__x0001__x0001__x0001__x0001__x0001__x0001__x0001__x0001__x0001__x0001__x0001__x0001__x0001__x0001__x0001__x0001__x0001__x0001__x0001__x0001__x0001__x0001__x0001__x0001__x0001__x0001__x0001__x0001__x0001__x0001__x0001__x0001__x0001__x0001__x0001__x0001__x0001__x0001__x0001__x0001__x0001__x0001__x0001__x0001__x0001__x0001__x0001__x0001__x0001__x0001__x0001__x0001__x0001__x0001__x0001__x0001__x0001__x0001_@\u008f@_x0001__x0001__x0001__x0001__x0001__x0001__x0001__x0001__x0001__x0001__x0001__x0001__x0001__x0001__x0001__x0001__x0001__x0001__x0001__x0001__x0001__x0001__x0001__x0001__x0001__x0001__x0001__x0001__x0001__x0001__x0001__x0001__x0001__x0001__x0001__x0001__x0001__x0001__x0001__x0001__x0001__x0002__x0001__x0001__x0001__x0001__x0001__x0001__x0001__x0001__x0001__x0001__x0001__x0001__x0001__x0001__x0001__x0001__x0001__x0001__x0001__x0001__x0001__x0001__x0001__x0001__x0001__x0001__x0001__x0001__x0001__x0001__x0001__x0001__x0001__x0001__x0001__x0001__x0001__x0001__x0001__x0001__x0001__x0001__x0001__x0001__x0001__x0001__x0001__x0001__x0001__x0001__x0001__x0001__x0001__x0001__x0001__x0001__x0001__x0001__x0001__x0001__x0001__x0001__x0001__x0001__x0001__x0001__x0001__x0001__x0001__x0001__x0001__x0001__x0001__"}},{"$cut":{"chars":52338,"head":"9548491ee58b87cd720ac3f972a6c469_x0001__x0002_ëÒ\u0090\u0091À\u0093ß@BãÃÉÝ-à@_x001E_îLå±\u0082Þ@\u0084Ñò&\u007f\u009eß@ãÚ×PÌÊÞ@Å_x001F_2_x0017_\u0092ªß@j\u0093_x001B_~fïÞ@ñènÿ\u0087$ß@ÏåïW\u0087)ß@_x0007_ ·Ç9³Þ@_x001A_áÜ\u008a9©ß@@_x0019_¼áÜ_x001D_à@­_x000D_j_x001E_C\u009eß@Ì_x000F__x001F_]ù\tà@Ær\u0091Îéµß@ÍÄÉ\u0092ô»ß@¸fÈD£_x0008_à@'»\u0097©übß@Aüe\u0097\u009bFß@´=Ì)\\ûß@eÂ_zÙJÞ@ÐÅ¹,è9à@\\_x000C_¿´ä3à@_x001F_\u008b_x0010_¥è=Þ@ò\u008f\u00890±oß@_x0011_Îætusß@ÞâÎ¹Ðzß@\u008382Ñ³\"Þ@_x0008_ÃðFÄtß@_x0016_Å\u0083´öMÞ@_x001B_Ò\u0089F(\u0092ß@¢@Ý\u008c_x0002__x0003_Rãß@_x001E_0/n­¶ß@}¯\u0080\u0090é_x001B_à@¤.0_x0005__èß@\"üéK\u009f\u0087ß@?E<>òÛÞ@Î\u008bí\u0083Û_x0016_à@('_x001D_~\u0097_x001F_à@\u008bªøÀ}aÞ@\u007f>\u0085B²ûÞ@ÖÅò0ÝXÞ@4\u0099_x001D_ZxÑß@:#\tþxAà@\u009cjñ]Æ×Þ@6T¹T ¾Þ@\u0089Å\u0083nÅ_x000E_à@Á\u009f_x001C_ Â:ß@v½_x0013_Í\u008bdß@\u0091`Æ¸¾_x0014_à@n)àÒ9®ß@\u008f\u0093³Ên_x0001_à@\u0094h;F\u0093\u0081ß@}ù$Æ¾_x001D_ß@_x000D_ÝùÒÏùß@²~\u0094÷\u009fnß@­_x001F_K\u007f}ÚÞ@BÃÁª·Aà@\u007f=Ô@ðêß@¦5ì_x0003_ô{ß@LôGàÊÌß@6(_x0014__x001A_é_x001E_à@\u0086k3\u0091_x0006_!à@_x0001__x0003_9RÏ¸_x0017__x000C_à@þ¶ñ2EXß@\u009b\t<>?(ß@WÇQ\u0089(}ß@©Ù\u009alÌ´Þ@ré½ö¡ìÞ@\"<+K_x000D__x000D_à@~ÀWÍ\u008dTß@²!2_x0012_\u0091½ß@ü2\u008b\tþùÝ@ÐÏ\u0096÷\u008bàß@Z\u0081\u0093)\u0096Pß@¡ª¤}\u0092ZÞ@ÈÞ_x0002_µê\u0082ß@\u009cO__x0001_å8à@¬\tm¥û±Þ@a°£¶Í_x000B_ß@_x0013_O_x0008_a\u0090Êß@P¤c_x001C__x001A_#à@ªv\u0084E\u009dwß@S¥å\"\u0084_x0003_à@*'ed{\u0081Þ@Ð?Ú£@xÞ@_x0002__x0018_ _x000E_£~ß@h¯_x0005__x0015_[âß@j¹\u009d·aîÞ@\t³>¤U_x0010_ß@õÜ°õNÈß@Põ0Y\u0087âß@rwì\u0084_x0013_mß@Dz\u0082D\u009c8à@\u008a`_x0018_í_x0005__x0006_\u0099+à@Æ8ÊPÃÕÞ@\u009a]ö=^\u0087ß@_x000F_½'_x0007_Üwß@Ñ¡_x0002_­æÁÞ@Aâ?]=-à@_x0005_÷×ÃË_x000D_ß@\u0080D_x0007_w\u008c_x0010_à@#0ILñ\u0099Þ@_x0007_Wñë_x000D_\u0084Þ@6_x0003_ô Á¶ß@6Ø ¼ÕÃß@ ÞE\u0088_x0018_Òß@Pæ_x0004_ß_x0001_\u009fß@¯ï\u0091fãDß@vã9õ¤ÛÞ@ÉÎ·ý¤Rà@Ýõ\u0081q4ÖÞ@[\"®a\u0088\u008eÞ@_x001A__x0014_Î'È0à@².qÊyIß@6Å\u009bËzòß@\u007fö.\u00803^à@>\u0099\u0090yóÃÝ@#´ßt5éÞ@-k Q\u0094fÞ@ª|üUºµÞ@2eÂõî¬ß@ xÛ_x001F_\u0086\u0089ß@ô¨\u0094»)¤Þ@ÒyUÖ].ß@\u0091\u0093ÙO*\\ß@_x0002__x0003__x0005_4'úùfÞ@\u0097§\u0081áÌbÞ@ù\u0081ì³@Rß@_x000B_hl\u0085ÑdÞ@kyc¹@×ß@S&`ó_x0015_pÞ@Þsúck\u0092ß@&C\u009aÜÜ(ß@O/\\¯._x001E_à@3_x000E_0Ô¯ºÞ@_x0013_÷Äí_x0010_¨ß@s8'#¦ËÞ@c5\\3PÁß@&Õ\u009bO1\u008fÞ@¼\u0095§µñáß@ê)rGU{Þ@T_x000E__x0018_\u009d®_x001F_à@t/s©_x0014_òß@ü<áv§_x0006_ß@¬ïB_x0015_kÀß@ Mº_x0003_\u007fìÞ@\u0082\u0083<\u008fr«Þ@z\u009fÅä^dß@QB¼P1_x0002_ß@ç×_x0002__x001F_P;ß@_x0003_Ê\u0082\u0088¹°Þ@\u0095_x0010_ÿ:6_x0001_à@µ\\\u008a_x0019_\u008f_x001B_à@_x0003_1d_x0002_.ÚÞ@êvtÁè\u008eÞ@·Ä\u0095ö9^ß@&ÿ\u0080ì_x0001__x0002__x001B_Úß@Äëd\u0099°Bß@»_x000D_AÿWDà@þxÃ9bÛÞ@®¾î«\u008dìß@#_x0004_N°<!ß@·ù>\u0089¦4Þ@\u008505Ð_x0013_PÞ@_x0004_ïJp\u008eKß@'\u009f_x0014__x0016_/'ß@¬ð°×oµß@Q_x001F_°_x0014_NÀÞ@É\u0094\u0084U?\u0088Þ@\u0093ÏaÚÃ_x0014_ß@`Y§*_x0004_nÞ@¹_x000D__£>_x0006_à@\t:_x001B_\u0085V\u0080Þ@n?\u009cf yÞ@Ðò_x0011_\u0080½5à@Êí_x0017_¾+_ß@C=³î_x0004_­ß@ò\u0082í2Z]Þ@ö\u009a5ëMÎß@\t³_x0002_\u007fÖØß@»¯Þõè_x0007_à@þìáÿPîÝ@ñhN÷¢PÞ@ZÎ0èÐ#à@Ò¯|ÉóRÞ@_x0015_\u0096¹.ï#à@ï¤y4\u0087_x0012_à@0Ë4+ÊîÞ@_x0001__x0003_\u0098 wt­Rß@_x001D__x0006_ú_x000B_Y³Þ@_x0017_\u009eA;mëÞ@²_x000C_L÷èäÞ@_x000E_¢FÆ©\"ß@¦_x0002_f^TØÞ@ZQ\u008fóþ_x001D_ß@\u0085GÀà\u0093Rß@hò_x001D_¡A_x0018_à@ÀÃèA\u0087xÞ@Kýmï¬Eß@à '\u0098GrÞ@X\u009b8º÷ðÞ@\u009fâàÇ_\u008eÞ@ìc,\u0083ÚþÞ@±\u008c×_x0001_d\u009aÞ@£;\u0081Ê_x0008_]ß@>ø_x0010_c_x000C_ÝÞ@¨O_x0017_\u0095Xaß@)Ó_x0011_Ó0¾ß@P_x0001_\u0082×4Aà@&`_x001A_«\u0086*à@Âü$Ý¹\u0090ß@5ÁuØw\u0093Þ@².ÖZ_x0019_¿Þ@ö+\u0093ë)eà@_x0004_uâkÈçÞ@_x0015_ïæ¿ùpß@í\u0091µ_x000F__äÞ@lËî\u0083\u0090\tà@®ç\u0098_x0005_HâÞ@Zí\u00983_x0002__x0003_d_x0008_Þ@¨ê­F7'à@\u0092Ã&\u008a_x001B_cß@_x000C_mÄ«E±Þ@§Þ\u008a\u0089H\u0081ß@fþ`¥öüß@Vææ\u007fv¹ß@Ð\u0086ÈÚáÀÞ@LS»ýZ»ß@dû\u0084-\u008d\u0097ß@M;xºð\u007fß@LÊúýsøÞ@uÏÕî\u0098Jà@«}_x000F__x000C_!ÃÞ@\u0087³`¶Ø`ß@\u009d~­¾G>ß@»äÒW\u0092¨Þ@@d¸ÿN_x0001_ß@]\u009a\u0092Ëk_x001A_ß@_x0001__x0001_rFz_x000E_ß@z+\u0095§dÎÞ@-ºø<\u009eyß@U>wºlÍÞ@á_x001A_¿¾¾$ß@GÚìÓ,gÞ@ö}-V\u009cðß@BÙ·\u008b×_x0004_à@Ü2§êç_x0015_à@\u009f´Á.M¶ß@â\u0086ìQ\u009b~Þ@qî;H\u0086)à@KØb_x0005_£_x0001_à@_x0001__x0002__x000F_ÅLÛ\u0082¬Þ@à1fâ³¨ß@g/\\ÔÔ_x001A_à@_x001E_\u0084\u009fN|Õß@qÃLM\u009frß@í\u0095Â5âEà@\u0082ÝZ\u0096{kÞ@c·¨£ñÆÞ@RàF_x0018_\u0095'ß@Í:H¨+gà@\u0086f_x0010_r\u0098·ß@­\u0099\u008b´Ð¬Þ@NâL q}Þ@Ø©X¤IºÞ@é|dú°_x0014_ß@\u008cå2¶>_x001D_à@\u007f_x0018_\u0093¦f9ß@èö9|s\u0088ß@É»bËéâß@¥â¿8Èaà@©Þkwæ÷ß@õ·\u008a»RÑß@gÎ\u0085ôñ\u009fÞ@\u0088ËÚ_x0002_Hbß@®í(ùY\u0096Þ@_x000C_|_x0013_ô_)ß@õ¸\u009c_x001F_¤¹ß@íF,^o!Þ@_x001C_ð_x0006_°\u0097\u0082ß@\u0085èÙ\u0086À\u0087ß@Å\u0093\u008b8uåÞ@¨~­X_x0001__x0002__x001C__x0019_à@\u0089´Á7«aß@^´C\u007fS\u0090ß@\u0082ã_x0006_5é\u0090Þ@ÚÈXMCYß@+_x000B_±¯_x0008_©ß@^\\¦6ÔÔß@8M}_x0018_]_x000F_à@²_x001C_1ÿùZß@\u009cqY\u0080(nß@\u009b»î n\u0086ß@_x0015_\"3\u0090ÈJß@¡_x0005_Ç¬_x0003_FÞ@ q]µÉêÞ@\u008d_x0002__x0005_å}ÕÞ@h_x001B_W\u0084\u0096êß@Í_x0014_U\"_x0010__x0015_ß@\u0096_x000B_qZx×Þ@_x0013_¶C\u0091Ã_x0007_ß@_x000F_³ßöK\u0085Þ@\u0094\u0097_úX\u009aß@WÛ\u0091\u0095\u009bµß@â\u0088ÉmxJß@¹sjZë}Þ@H3\u009a_x0007__x001D_ëß@w(_x001F_^I:ß@½¤HH.sß@¤öa\u0093Ò_x0001_à@_x000D_½_x000E_)0ÍÞ@\u0093_x0005_$ª\u0090_x0016_à@Q«Á3k©ß@,ãB8ÿ(ß@_x0002__x0007_=3_x001B_«(~ß@§\u009f_x001F_«¹uß@_x0007_IA¾V_x0019_à@ù_x0016_H\u0085\"øÝ@\u0083\u009d_x000C_(ß_x0005_à@3_f¢ö©ß@}^:Õk\tß@õ¼Û\u0083\u008aGÞ@_x0004_\u0097ÜeÄ_x0003_Þ@7kù_x001D_LÞß@÷6åÉÇãÞ@hUÙ_x0006_Ê_x0004_ß@ÚO_x"}},{"$cut":{"chars":53814,"head":"54f0ee6ba5f171518f2bb033aa72f86d_x0005__x0008_uL_x0019_l\u009cià@{%5é/Bà@RL_x0006_Ï¢Ëß@zÀ\u0081\u009a_x001B_Ãà@ÿ\u009c3Jçòß@ç7\u0093_x000B_·Ìß@þÆþ>_x0018_\u0081ß@;^K'\u00841ß@83ä­à_x0002_à@/Ç*_x0005_W²ß@\u007fêÝ_x0001_Qhß@Ø\u0092¯·ù¨ß@]\u0084\u009a~õÚÞ@`¨Ð/÷`à@¿æÄ\u0083§ÛÞ@L\\õè­mß@Tò_x0007_¤N@à@_x001C_Ë\u009aÇ\t}à@^ZÖeaUà@ðÃkpJ<à@xØ(JR\tà@xT&\u0096Cnà@W\u008c_x0004_!_x001F_oà@ßxäZDÏß@_x000E_ç_x0017_àµ%à@hYtNK\u0085ß@¹~ÔÏE¥ß@ñ&_x0003__x0012_¡çß@I·ôíÀ_x0011_à@g]?OOXß@nS3O}Zà@ï\u008eÊï_x0001__x0004_\u00975à@B\u007f\u0083Ï\u0084Qà@D¾:Òwbà@\u0094\u0089³ç­Nà@¸É\"%}?à@^ý<ÿK_x001A_à@Å&¢¬Jíß@Ñ\u0094þÜ_x000D_dà@_x0016_V×Èæ#à@ßiCJÿ\u0090à@ë\u0098âÀ_x0016_Hà@L_x0003_OÔx;à@HB_x0013__x0019_R_x0001_à@·ÅÐ^ÿpß@þ_x0006__x0012_­ %à@»\u0091Kòy_x0007_à@ª_x0006__x0004_ÕF¨à@wþ©â¹\u0082ß@\u0084gö_x0012_\u0086\u008dà@\u0094ï5_x000B_õkß@\u008aäV_x0011_Ô2ß@Ñ±4?ÙÇß@ô¿$îÖJà@:Wm©ú\u009fß@ÞÞ_x001F_-S«ß@J%Ö<ã5à@ \u009eñ\u009a\u008bíÞ@_x000D_çÖ§\u0089\u0083ß@_x001B__x000E_÷ ðBà@_x0002_ýðD_x0018_ïß@õ3ÃvHÈß@õ2\u0083ñ#_x0003_à@_x0001__x0002_\u0099\u009f`-B)à@o_x0001__x0007_®á_x0003_ß@¿_x0017_cÑc\"à@\u0084y?ê_x000D__x000E_à@Þ38_x001C_¸\u0080à@(¼_x0003_>¾}à@n\u0086Ýàï\u0080ß@ÐD-_x0007_>\u0083à@¾ÞiP²Öß@±Z_x0001_÷·Pà@\u008b_x0005_\u0093T_x0004_Úß@\u008c«i_x001E_ó®à@(\u009cU04ðß@É_x0004_ÑLÉtà@¯~1_x000C_]_ß@Ï`FfIüß@ã7TßGËß@_x0004__x0001_ýqì?à@½^a}_x0007_®ß@_x0016_\u007ft\u007f\u0082¬à@JnùO¬ÿß@\u0081\u0093È¢H)à@_x0002_0ë±ê¼ß@·)-\u009b_x0011_\\à@» ÿÁ\u0082_x0006_à@Z_x001C_\u0099ËÕBà@\u008b½Ô»ÌÄß@{µÕ\u0084ÅÁß@w_x0013_¥\u0095þ`ß@gnZ3á_x0017_ß@\tÙJ¨Ý_x000B_ß@Ý\\\\o_x0001__x0002_ýªà@l_x000E_«|KXà@\u0098MèÂièß@ôû_x001A_¿(_x0014_à@öI=CºÌà@KH´I_x000B_Qà@\u009fªÃ·Õ\u0084à@Í\u0083Jè_x0014_Kß@\u0084àô\u0080²`ß@_ü\u0098(àÊß@_x000E_o\u009b_x001F__x0010_íß@Ô%)\u0093Ë_x0005_à@:£sJ\u0082eß@_x000D_¶_x0008_9þ¿ß@§8ÏHÇjà@¼·_x0011_cÉfà@âiÑ·_x0002_+à@\u009côÃí_x000B_Þß@yk\u0080xenà@Pô!¹¿æß@\u0093,ñ\u009e?Gà@ðq_x0013_¨2*ß@¥¶_x001B_tÏWß@áI{v_x0017_là@®Fÿ×)\u0081à@ÐÈ_x0012_\u0083\u0086Óß@F§ö\u009bl¦ß@_x0001_\u0096~_x0007_j_x000B_à@Ý8Yóì$à@×\u0097óF\u0096aà@É¾K\u009bK?ß@\u0088\u008e$+\u0099~à@_x0002__x0003_'\u009c0\u0080;jß@L¬\u0081¯\u0080+à@i·\u0099æ*$à@åù`Q°rà@ê½_x0019_®¶\u0087à@_x0013_°l]%_x0015_ß@¸_x0005_\u0098'÷æà@³\u0083Å¦RïÞ@{vÑ\u0082_x0013_:à@_x000E_Ã ý3Sß@Ô\u0086Usâ\u008bà@ÈéAGº²ß@_x001E_Ëþ¥±_x0012_à@_x0008_]¡qzxß@]ýQC\u00815ß@ÊÝx\u0097;_x000C_à@þY.^«µà@éÚyóØúß@_x0003__x000E_6_x0019_`Rà@ó\u009a_x000B__x0006_äãß@\u0095\u009fK_x000D_²)à@GV³W\u008ejà@ûp_x0001_¹_x000E__x0006_à@~ÐQ_\u009fQà@_x0014_3ÎCJ_x0006_à@]\u009c_x0012__x000B_nHà@WzäÐÚëß@7=z9_x001F__x0012_à@_x0010_à_x0003_>eCà@äK{_x0014_h\u0083à@h²+¨ãPà@_x0013_G»æ_x0001__x0002__x0008_­à@wã_x000E_\u0092e'à@_x0014_IoòOEß@\u008b4³¼ÊZà@>®_x000D_þY\u008fß@ÜRã_x0006_Pîß@_x001B_\u0081r_x001B_`.à@\u0085;_x0019_\u0083Ò_x0002_ß@À\u008f?8\u0091_x0011_à@s6ì3½±ß@çNÛ·_x0016__x000B_à@o\u0094_x0017_7Àdß@_x001B_*Ëê_x000D_-à@-)\u008b\u009c¤\u0088ß@§_x000C_×5âoß@\u0080pµðã\u009eà@:Ì\u0083_x0019_<§ß@_x0016_3b\u009ff6à@ýoåu\u0089)ß@_x001C_(ÿÚI§à@\u0095\u0085Á,u\u0085à@_x0019_z\u0092h¶_x0018_à@\u0088ÔÃ.\u008b­ß@\u009f\u009aîÇ]_x0011_à@ê®_x0018_ûÀÁà@Fß3º<\u0087à@cy[Æì\u0080à@\u0086<½_x0014_J5à@Ísv6µ³à@\u008c#À@ÝLà@ÿ¿¸a¨\u008eà@'ÈØDîrà@_x0001__x0002_¡\tÂ£÷\u0084à@_x001B_\u0084u¥Í%à@\u0098ñr·\u0090ªà@_x0003_\t¤Ø_x0007_\u0082à@_x000E_oû4}³ß@5»¼\u008eJ\u0098ß@ß\u0081½^«<ß@û<®\u009f_x000D_Bà@+!ñÐý'ß@\u00986b´_x001C_[ß@::¢9Âèß@[_x0013_ó\u008cè+à@S_x0006_Û N$à@7R#\u0096ÚÜß@ >^ú_x000C_(à@ä¡\u00969M_x001E_à@\u0080Jó\u0084ùUà@Úlp\u0092ó_x0019_à@\u0097ùí\u009dÿuà@_x000D_í«ÂÏ'à@u»\u009a/µrà@è¯âº\u008e*à@Ð4_x0013_&UQà@vEÒ÷¨_x0008_à@WS_x0008_±ÿ¯à@\u0090wnâß_x001F_à@+&Ï\u007föjà@Io_x0019_ã¯\u0093ß@\u007fÄ©c¾!à@Ls½ûù·à@Y7_x0011_+g_x001C_à@3_x000C__x0012_s_x0001__x0003__x000D_¯à@Ð_x0002_ò\u009fá-à@Ôä\u0088_x0007_\u0088Ñß@¤\u009f$&ÖAà@3_x0012_\u009f]òéß@CÈ0{·Fà@5Sî_x0018_ô¿à@¦_x001F_¯\u0096å\u0098ß@;½_x0014__x001C_:Dà@¹|QK:_x000D_ß@uI®f#2à@Ó\u0085_x0014_¨ý_x000C_à@_x0019_¯\u0098\u0095\\_x001D_à@ù/_x0007_A=«ß@Ø_x000B_XCr-à@\u0083_x001E_Íü_x001C_'à@;EÚ¬_x0003_(à@®ð\u0097x¹Là@¸à?~ÿNà@ÅØ«\u0096\u0082`à@_x0019_o&\u0085C1à@_x000E_È}t<ªà@_x0015_\t\u008eøÂ6ß@hähNUCà@ì%\u0082\u008d_x001E_~à@e1D\tH\u009cà@]_x0019__x001B_N\u0087_x001D_à@Ú\u009d\u0096&N_x001B_à@8¨rÉ\u009dÉà@ ìÉ\":Xà@%\u0088_x0006_,Z\u0084ß@F\"ø\u009cS_x001C_à@_x0002__x0005_^ÀÎ_x0005__x0016__x0019_à@,Ì\u008d{_x0004_\u0087ß@¢nedï_x0011_à@a¿\u0096är_x0006_à@hmÞÉ\u0082Là@\u009b­nÞtºß@\u0095¼«\"éIà@ÄZ°_x001B_+\u0085à@*ó² Ulß@ý_x001A__x000B_ü:2à@ø_x0001_\u009d_x000F_¼­ß@øzßt0\u0096ß@º¾Pßò.à@n¶_x001E_A_x000D_\u0083à@MK_x000D_Æ_x0017_3à@ÇÏr\u0081'\u0086ß@_x000C_]Î8! à@ÜK._x000E__x0016__x0013_à@S­îù±\u0086à@c9Èg_x0011_êß@\u008c~{*=\u008eà@_x001A_|\t\u0090+Ìß@z 4_x000C_°\u0084à@\u0081_x000D_R\u0098_x0003__x0015_à@~ÒA_x001B_prà@Ê\u008f\u009b¥NAà@J\u0090b\u0099\u0088mß@\u009cãÖçB¤à@\\\u0086µ\u0093\u008fJà@'_x000D_E«ð_x0019_à@ þËçKcà@j_x0011_×Ú_x0001__x0002__x000D__x0002_à@ø\u009aÂ_x0005_J¶à@82\u009f]\u0091¸à@{]É\u0085\u009f5à@AªÎa_x0004_ à@\u009b\u008fbÉ\u0083zà@ç·vÔ_x0005_\u009fß@ñØ«P_x0014_,à@[Æª­U_x0007_à@f\u008a»ÐÃ*à@ª\u0087\u009fÒ¦¼ß@wK_x000B_.ÏHà@\u0098_x0019_³&\u0099_x0018_à@\u009c¸\\\u0095_x001C_xà@_x0016_¿)Ï¼\u009bà@x}2\u007f\u0084Ðà@R5_x000C_Üã_x0015_à@.~èÂ`\u0094à@à_x0001_ýIB{à@zIñ÷°¾à@È£\u0089_x0016_¹¼à@`ò\u0084&>_x0012_à@p-õÎV-á@H#ås\u0099Gà@Û\u0090·Õ6#à@[Ã\u009c¢Hûà@Ú\u0097¨_x0007_T\u0091ß@'6_x0017_-Írà@\u008büCL9&à@{ÌzÇëö"}},{"$cut":{"chars":51750,"head":"343d32741b0b3b2f95e07b713bc769c2_x0002__x0004_ÆTc3; ð@Q_x001B__x000D_\u008a+ðñ@³_x0005__x0003__x000F__x0016_\u008cñ@ÊQXÃ¡-ñ@}k_x0006_.âNñ@^·ÑÔ_x000B_´ñ@_x0018__x0013_ª_x0007_,óð@YPy\u009e^\u0095ñ@æ\"íI­Qñ@_x001A_U\u007fçQàð@~X§óì*ò@2î_x000E_É_x0013_¤ñ@Z_x0017_\u0096q òñ@ËLE_x0010_Á\u0094ñ@²_x001A_­£©\u008fð@Ó!4¬ï\u0084ñ@_x0001_UoèÆVñ@_x0011_ :ü_x0001_)ñ@Xã\u0083\u0088y:ð@¯_x0001_O_x0007_øOñ@\u0080HÐX\u0083=ñ@_x000C_L)Iaûñ@²5MeÄ_x0012_ñ@\u0099=¾.n ñ@à$É1<;ñ@t_x001A_}\u008aÇÒð@î _x001B_¸Ããð@ø¾o=y]ñ@_x001D_b½Êõwñ@R¬â_x000F_C\u0091ñ@^Ç_x0013__¥\u0085ñ@96\u0080_x000C__x0002__x0004_{/ñ@jtNÒZ´ñ@À{Å|ksð@Xrb5_x0016_Sð@eïÆÜÃañ@_x001C_\u0086\u0091/O\u0093ð@ºw¿¯_x0004_áð@ÈY\u0087ý\u0087\u0084ñ@\u0098_x0001_hj­£ñ@aäâ¼Ù³ñ@ú4&\u0090ëòñ@?¥¶·_x0003_\u0089ñ@¨<°;\u0081_x001C_ñ@ò¸+Ì<_x0004_ò@ýº\u0080Z9\u0096ð@y¯£Òjññ@\\íº#öDñ@¢=â\u0084¹Xñ@7\u0094Ga_x000C_0ñ@ðJn]UVñ@_x000C_ÖÆºV²ñ@ô_x0015_so\u009auñ@à~_x000B_ê,_x0003_ò@þ_x0019_m¸~Tñ@\u0090|3Ïn\"ñ@K_x000D_ç)Ä_x0018_ñ@=uZLöiñ@<\u0088_x001E_\tØGñ@j¢\u0097k\u007f\u009að@\"_x000B_|\u00894!ñ@´Ë(X\u009f!ñ@Chwê5_x0003_ñ@_x0004__x0005_«EcCíwñ@¬_x001F_N_x0012_J)ñ@.²_x000C_¯\u0090Sñ@Öy¯¾Í_x0003_ñ@å·öe\u0092Gñ@(Ô\u009fÿ´<ñ@Y&\u009f<\u0088¸ð@\u009bHß]_x001D_\u008dñ@\u0092¶:ÔZðñ@\u0092\u0090_x0017_Îl=ò@\u0093x\u0090é\u009a\u007fñ@©\\_x000E_IIªð@L.å·È­ñ@¯Ó\u009d_x0002_HJñ@±-ÌïeÂñ@_x001D_ç½$\u0088gñ@×ça%¥¹ñ@ûÝ\u0082·)\u009bñ@«Av7E=ñ@ï#[_x0018__x0016_Äð@\u0081x°_x0001_Õyð@+^ël\u0097iñ@P_x001F_ý«Âäñ@\u009aCãP\u0083§ñ@_x001F_X_x0005__x0005_\u008f¸ñ@\u008dý\"\u0094\u008bøð@ÿ_x0008_\u0094\u009c¿©ñ@;G¾³~Qñ@[ÿ_x0018_nÚ_x0008_ñ@¼V´\u00830ðð@\u0087roß¨\u009dñ@@ÞÞ1_x0002__x0004_<_x0006_ò@\u009c3_x000F__x0014_¥_x000D_ò@²jÔ´_x001A__x000C_ñ@a\u007fIS+:ñ@;\u008f\t_x001A_z_x0002_ñ@«ôc_x0019__x000D__x0001_ñ@ú\u0083\u007fÒÂpñ@_x0018_hÎ¾uiñ@Óæ\u0091ÚÄ¾ñ@_x0003_ÇÕC\u0090Õñ@¡\u0090k_x0006_²_x0001_ñ@àÞØ5\u008b¤ñ@-\u008f \u008a¢äð@é-¶ÍÔ\u0085ð@@EóºS_x0017_ñ@_x0013_¶\tr¸Êñ@£-ñüÍ\u0089ñ@ÉÇ4Äw¾ñ@\u0089rÒB_x0017_Bñ@ ÏR4É|ð@Z¸c$adñ@@_x001C_øY}\u0098ñ@f_x0005_É»³\u009dñ@0ª°`_x0019_áð@6¿»¢\u0089\u008fñ@k\u0097ÀÜ_x000B__x001C_ñ@X¼á\u0086½hð@Ä_x001C_t\u008dl²ð@7ÁäOã2ñ@*¨^z_x001B_qñ@|t>3_x0013__x0010_ð@×\u008dïõ_x0011_Øð@_x0001__x0003_õo\u00921Ð_x0013_ñ@Ý_x0010_êPì¨ñ@_x0005_wáå°_x000C_ñ@*\u009d5ðtqñ@ô0Ë³ _x0003_ñ@!å\u0087`*¡ñ@à_x0011_gÌ_x0003_³ñ@\u0080Í_x0003_éðÈð@é·\u0093] ½ñ@F÷E¼û_x001D_ñ@ï¡ðÒ;\u009bð@õÍ\u0097_x0006_%nñ@\u00949\u009c\u009dà,ñ@Ë3+9ýEñ@/hYn\u0097Eñ@h´Ýîá_x0018_ñ@§`À)Úµñ@¹\u008aýo.{ñ@X\u0099Ù¡ð5ñ@\u0083óp\u007f®Uñ@â\u0095ø¦J\u008bñ@îìPKâ_x000B_ñ@j¡_x0003__x0002_]Îñ@[Ììkõ\u0088ñ@%=eÿÿ©ñ@çr_x0006_Jt\u0095ñ@Cy®æ\u0092\u009añ@HMq(¸fñ@à¬_x0016_ç°_x000E_ò@ðp-_){ñ@¨j_x0010_yU¶ñ@m_p\\_x0006__x0008_Æàð@_x0004_ð_x000F_ª:\u0099ð@±£>(Ë®ð@»_x000C_n©Pâñ@õ\u008e[L¿\u007fñ@õ\u0082-ù]`ð@\u0084~è_x0002__x0016__x0005_ò@¦?\u0085r4ºð@(\u009d_x0014_ÔË¢ñ@_x000E_\u0088éÿòTð@¢8X>=èð@ê_x0003_\"þf\u009fñ@¡±ü_x001E_\u0097Êð@ï\u0086w\u0098V¿ð@\u0097»J¾Íåñ@\u009e:\u0092ÛW\u009cñ@L_x0011_\u0098òÍ3ñ@Ð;49ð#ñ@iú\u007f_x0011_\u0081âñ@_x0006_bê,(¢ñ@\u0080÷1_x001A_ 9ñ@\u0090\u0082Q\u00922½ð@¬ïb~Åèñ@_x000C_ÍÊta_x0001_ò@³ÆC_x001F_±*ñ@¢_x000B_P×U+ò@_x0010_*ünò9ñ@|²£uÉäð@{D«\u0096]\u008eñ@\\\u009a¬Rn\u009eñ@\u0086â$_x0007_Ñxñ@_x000F_q ¿U_x0010_ñ@_x0001__x0003_°²vÊÓLñ@_x000C_G-_x001B_Û_x0015_ò@pªÇK_x0012_Þð@¬ç°\\]µñ@c_x0018__x0002_LsØñ@$#¸çS_x001F_ñ@Ý_x000E_`_x000F_\\»ð@à_x001A_­\u008ck_x0001_ñ@¿_x0003__x001A_É_x0005_çð@_x001E_c_x000D_\t\u00914ñ@Ø_x0011_ÆÔmÎð@î£/TÌ5ñ@ñ\u0091¹5&cñ@¢_x0019__x0002_\u0097_x000E_Ùñ@\u0096ø\u007f¥õÆñ@¬Þ_x0001_¿_x0001_Ññ@a}ãlÀ§ñ@á5\"Rk©ñ@ÅQé\u0088\u008d\u008fñ@\u008b.ÞÚÂDñ@;_x001F_P\u0094¹5ñ@úrÀG\u0099õð@î2_x0011_LFUð@Mö'*\u009c´ð@eþ\u009bõ_x0018_\u0094ñ@hÄVS#uñ@üã4_x0011_u¾ñ@T\u009bjì.Ãð@§¨_x001C_çí_ñ@DíôBà«ñ@\u0099Và¸_x001A__x0007_ñ@±jº\u0085_x0003__x0006_\u0093mð@\\+ô?uèñ@ñÎ_Å_x0007_\u0099ñ@PsÉ_x0017_ùañ@â°ót5\u0084ñ@\u008cý_x0001_)¶_x001F_ñ@a\u0094-ªÀ_x0004_ñ@äNU¹Õ¯ð@ÂP©}¼Zñ@Z_x001D_0'\u008f¶ð@ã\u0089_x001C_éå¼ñ@î{ùÇ\u0084[ñ@_x0008_½vÓÄìñ@ÄÇ·A_;ñ@{z¨.-\u009bñ@ª¨[\u0086³ýñ@ÒÝwEl ñ@Í\u0095¾\u009eÐpñ@\"\u008aæÕ7=ñ@0E_x000C_¢\u0096µñ@ÎöY?×°ð@> _x001A_ÂÝ²ñ@{_x0006_B§Ùnñ@Ù_x0006_®æJVñ@xì_x0019_Å)¸ð@q° _x0005_ñØñ@%`¦Nò#ñ@_x0013__x0002_hDÜ½ð@_x000B_Ê1_x0012_¥\u008eñ@Ú\u008a_x0018_¡½7ñ@_x000B_éöËh_x0007_ñ@øÖ\u0097_x0002_\u009btñ@_x0001__x0003_\\_x0008_:7_x0004_¥ñ@RQþ2çÅñ@M\u0080ÐN7Lñ@_x000F__x001E_a÷»úñ@!\u0094·y5_x0004_ò@öf¹ÿ!_x0018_ñ@û\u0080|_x0010__x0002_7ñ@,_x001A_¹;3Êñ@XÓz\u008cq¨ñ@ã¶Ö¤ºùñ@iæ_x000E_¾\u009a\u0085ñ@\u0091l\t_x0017__x0016_fð@¨æT°)¶ñ@ä\u007f_x001F_ÏÓ\u0094ñ@¡3¾¶l_x0002_ò@ô\u0090ÆCnÕñ@:Â&_x001D_Ð\u0096ð@e}_x0008_ÈTXñ@_x0013_×_x0019_\u007f¥\\ñ@U>M_x001E_\u008b$ñ@\u0084_x0004_¹%`·ð@(Ü_x0019_Á]_x001A_ñ@\u0092\"\u0087òúàð@l_\u0088\u009d¶²ñ@\u0092B«\\$,ñ@_x0003__x0001_Ä\u009d}½ñ@@ç_x0003_kz\u0085ð@($iÛceñ@ÏÏ@é\u008e/ñ@ÃI_x001B__x000D_I¸ñ@_x0011_\u007f\u0088>\u0097\u0090ñ@ä\u0085¥J_x0002__x0004_¾Eñ@¾à³_x001B_+àð@ªÈÀ\u0081ó«ð@8üÚ_x001E_m_x000B_ñ@\u00948\u0092ê_x0011_õð@ð¾í_x0012__x000C_ßñ@_x0002_#ß=\u0085Zñ@¦Ä\u0088»èÉñ@¿~\u009b'Dùð@Ôze^B\u009bñ@ú»XËërñ@Þ¢í?Ä\u008dð@ø°l:ùnñ@÷\u0083\u0081Å_x001D_Üñ@<ço°ª¾ñ@\u008d_x001D_êæ_x0013_vñ@ùL_x0015_\u00911_x0011_ò@._x000D_ÈIIYð@{Ül\u0097\u00971ñ@_x000B_WcâÁ\u0098ñ@\u009c3-_\u0091Bñ@\u007f\t\u00840ÿ#ñ@_x0013_.nÁþ6ñ@÷ô\u008e_x001C_8Rñ@_ö_x0014_b>pñ@ _x000C_²Ø\u0098ëð@_x0008_ó_x0003_w(_x0006_ñ@_x0008__x001E_S\u0080\u0097)ñ@_x0008_ô\u009a=\u0092\u009eñ@"}},{"$cut":{"chars":74286,"head":"90765b9a6a059e056761b108ecedc6a8_x0001__x0003_ß\"{LJ_x0017_ñ@QJ<_x0002_@Ùñ@_x0018_¹%Íðbñ@7\u0083®_x0018_§\u009að@ñb¸ñ¡ýð@²!Î\u009eÔ2ð@x\u0084ÀÒµ¶ð@_x0018_d\u0097ÌS\u009cñ@*\u009c¹HÚÍñ@éö!sæ\u0089ñ@Àoôt!þð@îº\u0086_x001C_\u0098.ñ@_x001F_x_x001E_º_x000C_\u0096ð@</ç¦cuñ@gQkþ¥Îñ@\u008a_x001D_-/øÖð@á³GÙ@ðñ@j'2£ûEñ@\u0095Z&\u0080P\u0094ñ@ ö·Î\u008f4ñ@Ç\u009b:_x0013_5vð@\\-_x0005_þÝæñ@t_x001B_ØÎ\u0096_x0010_ò@³@\u0097râôð@NæÌ}\u0088*ñ@ëb_x0017_\u008b\u008d_x000E_ñ@°_x0013_qÆæ6ð@°ê_x0012_F_x0001_Añ@3­8®moñ@\u009c\u008fºâdºñ@¾, :\u0085Áñ@Ê96á_x0002__x0003_Çfñ@_x0016__x000F_*Ý_x000E_Ûñ@4&ãÈäêñ@Z.Iöblð@_x0011_úv_x0008_\u0089èñ@_x0017__x0001_\u008f\u008c[1ñ@ÉÖV©_x000C_;ñ@\u009c+\u008a<Ûºð@ÿ\u0096\u008fWX_x001C_ñ@äÔ_x0005_\u00967Iñ@püÛÖÌ2ñ@\u008b#ø¤ Gñ@_x001B_+@X_x001F_)ñ@¶\u0081_x000E_VæIñ@\u007f_x0018_R\u008fMæð@ñ í_x0019_$Áñ@Û·)hf½ñ@¼ëE¢\u0086ºñ@>°_ÿÈJñ@¿\u0097\\iÊ\u008fñ@\u008cy`f§ºñ@_x001D_|hí¹\u0088ñ@{,4g¯_x001E_ñ@_x001F_?+zB²ð@\u009a\u009f2öe_x000E_ñ@,ÿ/Gwöñ@ð·h_x0015_2Íñ@_x0014__x0013_7ÓDõñ@z&¡ô\u0081Ùñ@¯\u008a?½¹\u0097ñ@\u0092ýhµ_x000B_bñ@F°åÐí¡ñ@_x0002__x0004_\\ïð\u0096¸Êñ@Ê\u0083\\GËÇð@ei_x0006_`wWñ@\u008b/\u0097eóÄð@\u0080³_x0016_âôÚð@x$è\\)cñ@_x0018_ëXÐ¦¶ñ@!3Ñ_x0013_Ö_x0018_ñ@_x0012_3n^)|ð@á2¥ÓÉðð@òSò_x001A__x0018_1ñ@à/_x0011_<'\u0098ñ@ÓÁ¡Ç\u0098Àð@Æ!yV\u008bðð@Ä;¸ÆóLð@à=_x000C_óìßñ@_x0016_8\u009fIÝßð@_x001C_O\u0095tj%ò@\u0088i\u009bgº:ð@Ï_x0004_\u0083?%¸ñ@_x0001__x0003_\u0086%\u0082åð@\u008d±b+DHñ@âºÆ\u0082_x0004_¿ñ@ë¬lÁe-ñ@ññÝ.¸Êñ@\u00831-Ò-ôñ@\u009e\u0092_x0010_²9\u008dñ@T\u009cjæØãñ@.=Üóu_x0019_ñ@\u0090|_x0011_,î_x000D_ñ@M¦\u0086Kj½ñ@I¬Ð\u0096_x0002__x0003_Áøð@_x0004_$=ò0+ñ@®\u0094K%\u0093ðñ@ÛãyÌCìñ@E¸3ûaÆð@xdìè_x001E_Åð@ måHUìð@À_x0001_bÅ]'ñ@\u0094_x000F_f`P\tñ@\u0096Bï\u0085\u009e\u0088ñ@é_x001D_\u0083_x0016_Ó«ñ@]_Ücj3ñ@c_x000F__x001B_£_x0007_Vñ@è_x0019_÷]aãñ@w-oññ\\ñ@Ü\"-N\u008b\u0087ñ@oc:_x0010_äeñ@9×ÎTZ_x0016_ñ@½\u008d\u009b\u009c÷Zñ@\u009bÓ\u008b\u008fãÉñ@·û¼I_Ûð@È9_x0004_ÿ\u008b2ñ@_x0013_bIÔ¸[ñ@&_x0017_P_x0002_/Êð@_x001A_\u009d¥½±eñ@\u0097ã_x0006_\u0095Ñóñ@©\u0087\u008aø_x0004_Uñ@_\"_x0013_yÔ\u009cñ@b_x001A__x0013_öH\u0095ñ@÷_x0011_U_x0003_öOñ@ó\u0082©$&_x0019_ñ@_x0006_E©ã=Pñ@_x0001__x0002_8¤Yx}\u0096ñ@î_x0014_-\u0086Î\u0090ñ@\u008dX_x0012_ö\u009bEñ@Ózk\u0084úèñ@áWîþ\u009b\\ñ@É½U_x000B_Æ_x0015_ð@+¬Ä¾\u009d\u008að@_x001F_¤rb¡/ñ@¤\u0087\u0091al2ñ@2@¬Áf¾ð@@w\u009eÔ¸_x001F_ò@U_x0006_\u009a=ÙÍñ@\u008dº_x000D_b\u0085]ñ@\u0086\u0084\u0091@_x0012_×ð@ýÏýÆW_x0007_ñ@Æ\u0086÷¶ãYñ@j_x0018_]¬¿Óñ@føP©Ñ_x0004_ñ@táb_x0005__x0015__x0013_ò@Ü2\u0097_x000F_ò<ñ@¸¶\u0080Ea¶ñ@\u0085Âr³_x0017_Sñ@4µ9_x0014_´\u009añ@\u008dPã_x0003_\u009fSñ@+M\u0087_x0016_ñÇð@Ák_x0017_7±Gñ@¸£ü¨Ëcñ@á£3ÇFÎñ@*o_x001F_Ï,¾ñ@_x001D_³§Øå\u008cñ@¼JD×\u0088\u0090ñ@+þ¸l_x0001__x0003_a_x0014_ñ@|ãgÏåêñ@;_x0005_,ÃòËñ@¦'õ\u008c(=ñ@=ù²iëÙñ@8'<¼\u0087<ñ@ç¥vP_x000D_¢ñ@Òù~|ï_x0006_ò@öÁ¶Ý©Êñ@_x000E_$q­eÈñ@>ç*O_x000F_õð@\u009f_x001D_\u0099L_x0006_¶ñ@äò^\u0093\u0082Lñ@¢Ñ\u008c\u0095\u009fØñ@ú¤ÇKp_x0011_ñ@Zç(pÙ\u0091ð@×Í_x0006__x0018_\u0095Óð@H5îÿ{_x0002_ñ@_x0010_TÖc\u0096<ñ@Ø'Í±ðîð@\u0083_x000F_æY¸ëð@l8Ja¢0ñ@ë\u009e\u008a\u0087\u0095\u009dñ@¾¶ðN«_x000D_ñ@¶¯c;¶çð@_x0004_Õ-0}ºð@Ö¯®Vé_ð@ª.¶±_x0017_åð@Áã4ö_x0019_\u009fñ@_x0017__x000C_a-kjñ@ä¯*\u008b·_x001B_ð@Xne\u0094ê'ñ@_x0002__x0004_\u0094#\u0096 ¬·ñ@\u0096\u0083 ¯HÎñ@_x0010_¹ß`\u0082åñ@_x0002__x0003_%|3\u0098ñ@QÙ\u009b­w\u0090ñ@oÈßû¬\u0091ñ@yUR_x000E_©Gñ@ \u0084ß_x0019_jÝð@¾Õ+_x0001_(xñ@.5þ\\üCñ@¡È®wAXñ@xßG÷\u008d¼ð@`\u0096µ\u008b_\u008dñ@j7Ö_x0018_\u009böñ@Âë¦-£íð@ëñKÄ_x0008_\u0088ñ@{\u008c\u0083E<öð@\u009f9x_x0008_\u008b\u008cñ@}gËV#wñ@¾+T9\u0089_x001D_ñ@Ê¶g_x000F_&\u0099ð@\u0094ÑhË\u008fiñ@U\u0091jÚ\u0087Dñ@\u0081æd_x0011_\"Óð@qgÂ\u0092Û¬ð@c_x001C_©ì4&ò@Eew\u009b_x0012_­ñ@'I`\u0097_x0016_\u009eñ@_x0017_©¥\u008cëIð@ /#¦_x000D_2ñ@þç¢_x001A_Q_x001A_ñ@\t7®Ú_x0002__x0004_Q_x000D_ò@\u009fqÎ \u0090añ@\u008ciõ_x000F_{\u009dð@_x0016_[±\u009d÷_x001F_ñ@Ó$\u0090_x001A__x001E_oñ@431U·\u0081ñ@×Y\u0093NÐHð@W!æ<y\u0091ñ@{Â60ã§ñ@ÐBÂ\u009dýhñ@d_x001D_!,öcñ@_x001B_%ï\u0088_x0006_Ïð@mØ_x0008_vãTð@h_x0015_®_x0018_zGñ@ÊmÄ¼sÚñ@Ût\u008c\u0080\u0097_x001E_ò@Ë~\u009a'oÑñ@\u0097J_x001C_Ì>Êñ@_x0006_s\u0088ÇªOñ@¸\u0085VÒ\u009d\u009dñ@#Øv_x0008_\u0089Ãñ@\u0084¢ Güýñ@Ð\u009eÿxs´ñ@\u0090ÓÓüwoð@/_x0005_P¥_x0003_Ëñ@½ö³q|®ñ@ö_x0001_x`-úñ@u÷/;W´ð@ì0.'®_x0006_ñ@\u009cp<)a3ñ@üú/Ç\u0098Uñ@G_x001A__x0008_½Ûôð@_x0002__x0004_#)!Ó;µð@òm0_x0008_óWñ@]É¼åªÃñ@¿£n_x0001__x0014_6ò@äDPXRiñ@ç55^ÆÛð@íªÐU\u0093{ñ@\u009a8ö]\u009eáñ@j'_x0015_ä7\u0096ñ@_x0003__x0016_1¡x\u0085ñ@_x0019_T¼®3£ñ@ÉÁ\u0097u_x0010_¨ñ@ÒY\u0089Û\u0080Sñ@È»\u0082ð\u009e$ñ@\u009fñ}²ÊÐñ@\u0087Nûÿ\u0080Bñ@¡À7ô_x0005_\u0096ñ@ÔàÊÈ\u0085æð@PÍ\u009ayO\u0085ñ@èN\u0087jÈ~ñ@ÓWÞéGóð@ó¦Ñ¼Ràñ@ééãZæoñ@ÈyÀT(¡ñ@Ò\u008e\u0087Ñ_x0017_®ð@]5\u0082«_x001E_Vñ@Î:\u0096 Ú_x0002_ñ@<¶_x0010_Ëm\u0093ð@_x0001_\u007feÚ&mð@ÝµL\u0099¡Ûñ@§1\u009a8D\u008eñ@$ßd_x0006__x0001__x0002_2xñ@°_x001F_Þ\\jÙñ@É7Ø\u009cE±ñ@ï^¿_x000C_¶½ð@_\u0092ç$uqñ@\u0096A\"Ç\u007f=ñ@g\u009b'ª _x001E_ñ@_x0003_;=;\u007fkñ@^_x0012_Úw÷_x0014_ñ@Ñ\u0088Æ_x0003_l\u009fñ@\u0088\u0093FþDãñ@1\u0096\u009a\"\u009erñ@óMþ§a¼ñ@ßc\u009döý_x0013_ñ@ü\u009d&ã\u008b4ñ@ôÈ_x0001_<ì\u009dñ@_x0001_ñ¡y\u00971ð@ËÞäÚ?Úñ@\u008c¡l^V¥ñ@3Ö\u0085µ\u0091Øñ@+\u0083_x001E_âJÞð@_x001A_\t\u0083±_x0011__x0019_ñ@Vº¤£\t_x001C_ò@TJBÒé­ð@Ëf#_x000F_W_x0014_ò@JXÌ7øáð@w¯8_x000E_Xcñ@8_x0019_Pldzñ@øXr\"_x000F_pñ@\u0096_x000C__x0007_Úúöð@ò\u008e|ãÔ5ð@\\!ð_x001C_\u0099Dñ@_x0002__x0004_¼D±_x000B_\u008e\u008eñ@È\u009a_x0017_ðª@ñ@V7Bëäeñ@³\u0084U\u009dUlñ@éyA_x0017_c\u0087ñ@_x000E_Ö_x0017_#É\u008bð@0¨D§¾\u008bñ@½ó\u0081\u0091qQñ@3_x001D_¦_x0017_\u008dÌñ@\u0080\u008f_x001A_¦"}},{"$cut":{"chars":75744,"head":"79e1daf447058508cf898fb567230fa5_x0005_\t_x0011_±zsmY_x0017_Ak\u0086_x0008_õ\u0085·_x0017_A_x0002_Ã\u008cS F_x0017_A,_x0016_\u0088\u0092JÂ_x0016_A[À3Øüd_x0017_AÍ_x0017_à_x001E_º\u0091_x0016_Aæ=_x001E_ïln_x0017_A\u0085å_x0006_\u0092k=_x0017_A*YM+\u008fà_x0017_A%\u0098´§ýu_x0016_A\u00963_x0004_µ¬j_x0017_A3g_x0003_w\t¼_x0017_AÁ}êÁä#_x0017_A_x0003_(YôH>_x0017_AåÓ_x0004_\u0089_x0008_³_x0016_A\u0099^©_x0015_q_x000F__x0017_AOh\u0088þ¹Z_x0017_AWÓ·ÚI1_x0018_A\u008cáØ_x0019_=´_x0016_A¦_x000E_®J4M_x0017_A÷_x0012_Z|õò_x0016_A4ñï\"'Û_x0016_A\u0096\u009cµ2âÉ_x0016_A_x0010_Dæ_x0013_D_x0003__x0018_A\u009dz²¸¤\u008d_x0017_A­uÊRóí_x0016_Aþ_x0018_\u0083o%:_x0017_Aï ÂC¨Y_x0017_A\u0084KW_x0001_RT_x0017_A_x0007_f.§õÇ_x0016_A2P!*Äð_x0016_A\"ñz_x0010__x0003__x0004_ë_x000F__x0017_Aõ_x0014_(c\"î_x0016_Axâ ¬Öí_x0016_A_x0001_\u009bEð_x0018_+_x0017_AÑá_x0015__x000E_5í_x0016_A{×¤µÂF_x0017_Aw_x0016_[Ã_x0005_)_x0018_AnÉ_x0005_ÉÌ\t_x0017_A\u0088´nþ_x0017__x0005__x0017_Ai\u00826Kum_x0017_A4\u0086mþ¸\u0088_x0017_A| ­4\u0087Ù_x0016_A¾NÍöã\u0087_x0016_AèE\u0091zl_x0002__x0018_AàXÃ\u0082wô_x0016_A\u009e[ïìS\u0097_x0017_A_x0018_Ö={ul_x0016_AS\u008b_x001F_÷î_x000F__x0017_A_x0011_Üôlâí_x0016_A\u008aÌR©û\u0099_x0017_A£À¾\u0089ùæ_x0017_A_x0015_Ï\u0080g\"_x0002__x0017_A_x001F_s3TN©_x0016_A1<\u009dL\u009e\u0094_x0016_A¬U¡Æîû_x0017_A¾$_x0016_\u0084£q_x0017_Akü*\u0082\u008bÚ_x0017_A½_x000D_à\u008d;­_x0016_A\u009b_x001A_*þ\u0080¿_x0017_A´ûz\u0099t_x0015__x0017_A_x001C_\u0091ëG\u008bö_x0017_AØnj\u0098K\"_x0017_A_x0001__x0005_+­Ë¾8n_x0017_AÌ_x0011_;=¼ñ_x0016_Aj4µ'\u0094\u0085_x0017_A½6öG_x001F_Ý_x0016_A\u009b'\u0092X´§_x0017_Ay¼\u0086_x0001_|}_x0016_A_x000B_I>týÒ_x0016_AÔ\u009biWH¦_x0017_AQ\u008e¤\u008f<î_x0016_Aß\u008a_x0016_Ö©¾_x0016_A_x000E_(M_x000F_¢ÿ_x0016_AÔÕ÷_x0002_^­_x0016_AsbÝ\u008cÐ:_x0017_A«\u0096¨eV_x0013__x0017_AØß_x000B_ØË>_x0017_A\u008cËp_x0019_mX_x0016_Aè$\u0098oL:_x0017_A£\u0081_x0003_2Ð¢_x0017_A_x001B_KÂÄ+N_x0017_Adÿ÷\u008bôD_x0017_Aë\u009dê ÁÍ_x0017_A>_x000D_\u008aÆw\u008e_x0016_AÙ¨ê_x0007_ìl_x0016_A\u008e\u008fì¯¯l_x0017_A\u009b¬_x0005_Ô¢­_x0016_A\u0096|]._x001A_._x0017_A®¶¬j)y_x0016_A½aC1{\u009e_x0016_AþÌx¾bØ_x0016_Aõð_x0016_âÄ\u0091_x0016_A_x0019_±BjNº_x0017_A_x0004_PJz_x0001__x0005_\"Ô_x0017_A{LlÊ_x0002_!_x0018_AE¦%\u0094¤¾_x0016_AcÖÎ_x0006_È_x001E__x0017_A_x000F_·»¸7_x0019__x0017_Aü7_x001D__x0003_»_x0013__x0018_Av\u0084Iædê_x0016_A$-ß±ì_x0019__x0017_A_x0001_ó_x0001_¢õú_x0017_AïCÞæA_x001A__x0017_A\t\u0085j_x0004_\u0099Ë_x0017_A_x0016_ïU\u0091Ny_x0017_AíÎ2ý×æ_x0016_Ar³1_x0003_°Y_x0017_A¢eÐ\u008bl¤_x0017_AÈ\u009e\u008e_x000B_}T_x0017_AìÁ_x0011_S\u0083_x001E__x0017_A_x001F_Ö÷_x0010_ß#_x0017_AÛ×\u0094¢°\u009a_x0017_AN×ðÅ\u009c7_x0017_AY+@®e§_x0016_A_x000F_¨×Ô I_x0017_AQÎ\u008dûÉ1_x0017_AÅ¾_x001A_¥°_x001C__x0018_AHÂÂ¯9ý_x0016_AM_x0015_i£\u0083 _x0017_A_x0001_[äDXx_x0016_AÈp\u0083\"_x0003_<_x0017_A _x0014_\t4¸_x001F__x0017_A|/À)ðê_x0017_A_x0015_ý¡ \u008e°_x0017_AB³\u009aJøé_x0017_A_x0002__x0006_×ÅPcs«_x0017_A\u0087\u0089Íg?«_x0017_A\u0080$ì«4,_x0018_A_x0013_Î\u0088ós_x0005__x0018_Ag6_x000C_\u008e1Ä_x0017_A\u009bO0Öæ¼_x0016_A_x0007_\u0081 Ó¶_x0011__x0017_A0è²#×D_x0017_AZ¯\u009d${`_x0017_A\u0096_x0010_®](´_x0016_A\u0093{\u0094b_x0007_Í_x0016_AîÞIÌÄÉ_x0017_Aÿºk»\u0089_x0001__x0017_A_x001D_\u0087_x0003__x0014_\u0092I_x0017_Ah\u0090}_x0019_:_x001B__x0018_AXt3Ú4U_x0017_A&Ï_x0019_Ó\u0086\u0084_x0017_A_x0017_Cä*H_x0013__x0017_Aþ\u00800Ø\u0080_x0004__x0017_AÍ|r-8_x0010__x0018_A\u00866ýQüQ_x0017_A¬Aéy_x0007_§_x0016_A_x0003_¿2a¸Í_x0016_AW´ãÝVl_x0017_A0ýø`_x0013_/_x0017_A\u008bc½úêÒ_x0016_A_z9_x0014_@Ã_x0017_ACr\u0083­\u0087È_x0016_AªÍz\">_x0012__x0018_A_x001C_\\D\u0093OL_x0017_A4#×V!_x000F__x0018_A\u0082*\u00900_x0001__x0002_¯f_x0017_A\u0090Â\u008bÛ`ß_x0017_A\u0092ÄÂå_x0014_$_x0017_AÌ_x0018_{_x0012__x000D_w_x0017_A_x0012_Z_x001F_ ¹\"_x0017_A00_x0017_c<T_x0017_A_x0002_ßN_x000B__x0011_Î_x0016_AÕ$\u0097\u0093_x0006_·_x0016_A_x0003_f\\ë£É_x0016_A¶_x0018_ø\u0095éä_x0016_A.Ã}@\u008fì_x0016_A¼éxòM1_x0017_A=áÇ\u0085VË_x0016_AÃ4g\u008b\\{_x0017_Aë_x0002_)êH­_x0017_AÁÁôHïx_x0017_Anµ¬×_x0014_^_x0017_AE¨2âÇÇ_x0016_A²M°_x001E_Ãu_x0016_AeûN\u0088áG_x0017_Aú_x001C__x0003_g\u0091*_x0018_A»\t·¼YÏ_x0016_AËÌ¶\u0080ö4_x0017_Aiÿ'ö?_x0018__x0017_A\u0081C\u0099\u007fEO_x0017_Ao§ÂÌ\u009eV_x0017_A¦\u0097_x001B_^BÀ_x0017_AÐe\u0098)O_x0013__x0018_A¿ñ+AÍ\u008a_x0016_A\u0097í\u0083_x0005_¡®_x0017_AV¹\u0083´Üè_x0017_AýuÉ\u009f\u0091Þ_x0016_A_x0001__x0005__x0013_\u0093_x0014__x0018_Ñá_x0016_A_x0001_P .\u0085Á_x0017_AX\u008dõªÂî_x0017_AhhI_x000B_]Æ_x0016_A\u0080\u0087ÆÂç\u0086_x0017_ANÔ4É_x0015_å_x0016_A_x001E_¥\u0098ú(Õ_x0016_Aªv_x0018__x000F_®/_x0018_A_x000F_¼Þ P1_x0017_AÄx_x000B_î_x0008_\u0085_x0016_AË\u008b¹²ûÎ_x0016_A\u0094\u0086_x0013__x0007_m\u0082_x0016_A2¡ÐÆÒÌ_x0016_AÏm¦\u0086wÛ_x0016_A*Ó±²_x0004_Í_x0016_Aâ\u0092\u007fÌe;_x0017_AHÇ#\u0086_x0007_\u008d_x0016_A\u0091+,W°²_x0017_ADÈS_x000E_\"_x001B__x0017_A|g_x001D_Ã;ï_x0016_A¤_x0003_\u0095à¼v_x0017_A,-Ðjb¡_x0017_A9f\u0096-±_x0002__x0017_AuÎàÆ*G_x"}},{"$cut":{"chars":77160,"head":"f018a76ed18923359c35f86e60a7a762_x0001__x0002_^5£b¨¦_x0015_A_\tjT3÷_x0014_A>JLõÕ\t_x0015_A_x001C_¼)º\u008eÔ_x0014_A\u009cÉ5\u009eÍÆ_x0015_A_x000F_*`L\u0096&_x0015_AmNªÄ_x001A_\u007f_x0015_A¶Ô@\u009b>\u0085_x0014_A_Ü_x000E__x0018_Ò\u008e_x0014_A_x001F_\u008e\u0083_x0003_ÃT_x0015_A _x0004_é\tH¨_x0015_A\u0096_x0002_çU\u008fx_x0015_AÉõ)\u0084l¾_x0014_A_x0004_\u0080à¢Ê6_x0015_AK\u008f\u009aý\u008dº_x0014_Aµ @\u00925è_x0014_A2\u0097½*¦_x0012__x0015_A)aÝ\u0084#]_x0015_A\u008fn\u009aô\u0092\u0084_x0015_AÞ_x0019_+_x000B_å\u0094_x0014_AjùãÕ8ê_x0014_AÃçb*_x001D_î_x0014_AûÒ¥¹¼ü_x0015_A)SÐé_x001F_H_x0015_A¢ã\u0089à=\u0089_x0015_A¿vZÜ¤\u009e_x0015_Aã_x0016_¼¿J\u009d_x0014_A((_x0006__x0007_ÿO_x0015_A_x000C_!®Õm\u008d_x0014_A\u009dZÖ$Ê\u008c_x0015_A£r<00ß_x0014_Ap\u0099\u0097\u008b_x0001__x0002_§\u0099_x0014_Aíß\u0098\u009eë´_x0014_A\u007f_x0003_ºÄüQ_x0015_Aí7°\t3í_x0014_AlÄ¾\u0089\u0089\u008d_x0014_A\u008aÙ0`$_x0014__x0015_A·_x0012_\u0083\u009ev\u0093_x0015_Aè\u008a_x001C__x0017_Éù_x0014_AJD´Ð\u008f\u009b_x0014_Ao_x0008_\u008b)íY_x0015_A\u008b_î\u0083\u009c:_x0015_A_x001E_s\u008c\u009a\u0098B_x0015_AÄ\u0083_x001F_JÅ\u0089_x0015_Aõ_x0013_6_x0005_Ð$_x0015_A\u0081_x000E_-Y\u0095ø_x0015_A_x0012_GÊ§ÃT_x0015_Aä!\u00844¿_x0019__x0015_Að´}Ô_x0003_)_x0015_A_x001C_©]\u009di\u0086_x0015_AóRB¡_x0018_s_x0015_A2Æ_x0018_\u0081&\u0081_x0015_AWkTec²_x0015_A\u009dâ®Z_x001A__x0005__x0015_A¶\u0089|(p5_x0015_A_x0012__x0018_¢ð£Ð_x0015_A·;Ô_x0002_\u009e_x000E__x0015_A @HB\u0089t_x0015_AHÕÌ=\u0099ß_x0014_A\"?Ë\u009be\u0083_x0015_AiÄ·³Òÿ_x0015_AÏ7_x0013_¦_x0014_³_x0015_A+_x001F__x001C_¥_x0003_\u008d_x0014_A_x0002__x0003_>ëp\u0084¢_x000D__x0015_AÍÛ_x0006_òú _x0015_AñwØú_x0018_Ò_x0014_A9Z\u0094¶nö_x0015_A%09OÉr_x0015_A{³\u0080{$Õ_x0014_A\u0094_x0008_æ5Éß_x0014_ACÈ\u0092å¾d_x0015_A_x001D_\u0097ç'¥(_x0015_Aa¸_x000D_\u008bh$_x0015_A_x0001_\u0080¤ªÀÏ_x0015_A_x001C_\\_x0018_Può_x0014_A_x0014_¿\tÐøb_x0015_Aêvs*\u009a\u0081_x0015_Aåù_x001F_Íf1_x0015_A~°a6KL_x0015_AÂPEèn\u0095_x0015_Aþô{´½×_x0014_AÂf_x0006_9CÏ_x0014_A<Ö\u0098Ô)Ó_x0014_A_x0006__x000B_\u009b¦þÞ_x0014_A7-ÓF6\u007f_x0015_AT_x0006__x000B_¦_x001F_\u0083_x0015_Apú\\_x0011_\u0097è_x0014_Aê\u0089É\\}ë_x0014_AN W`&U_x0015_A¢ðâe\u008f2_x0015_A_x0015_O[¤y_x0019__x0015_A_x0015_V±ývÏ_x0014_A%Ø«n%¬_x0015_Aï<m_x0005__x0007_C_x0015_A¬Ìü\u0082_x0003__x0004_\u0085X_x0015_Aö\u0087^6Û_x0001__x0016_AI4Ä°\\ø_x0014_A[7BS@Ò_x0014_Arø£¾Ç½_x0015_A<ù+*pÎ_x0014_A¬_x001C__x0010_-<g_x0015_A\u0097Ø<[d¾_x0014_A)ÍYüÂå_x0014_A{_x0011_Äp\u008a_x0013__x0015_A¤ûÎÙ[Ð_x0015_A\u0092\u009c_x0008_84_x001B__x0015_A|Ly9@D_x0015_Aµ/[\u009bú÷_x0014_A\u0091Áw\u0095_x0002_z_x0015_A$ò£_x0002_õ_x0007__x0015_A@~\tsz\\_x0015_AÜÍ_x0014_à_x0002_y_x0015_A_x0018__x0012_i·FÚ_x0015_A_x0018_®_x0016_  \u0082_x0015_A\u0081\tgÏsÇ_x0014_A¢y©\u0082wo_x0015_A4¿é¤±x_x0015_A\u0093Ã_x0012_¸\u0080_x000D__x0016_A)q1çDn_x0015_A\u0091+@_x0002_\u008d_x0014__x0015_Ab£_x0012_\u008a\u008c1_x0015_A\u0083¸ºcpr_x0015_A§n~P_x0002_§_x0014_A\\HíÓ_x0004_m_x0015_Ac\u0087_x0012_Soà_x0014_Aë\u009b\u0089L#_x001B__x0015_A_x0007_\tuñb_x0012_<¨_x0014_AK}_x0002_Á)o_x0015_Ac_x000E_?v³\\_x0015_Aÿ\u0091JC\u008b¡_x0014_AÕÙ>g\u0094\u0088_x0014_AM6%¹Ìú_x0015_A`sà±Y°_x0014_Aî_x0004_\u0089F5£_x0014_AÊf)_x000F_¶V_x0015_AãÊ²^ï÷_x0014_AEû_x000D_\"_x0006_e_x0015_A_x0006_Í³9_x0014_\u0086_x0015_A\u0093_x0002__x0007_0\"s_x0015_AÀh)c\u0096_x0005__x0015_AÎÊ;ä¹n_x0015_AÜm_x001C_ÞÔß_x0014_AÃ{^uç_x0003__x0015_Aô_x0016_à\u008c_x0019__x001D__x0015_A´_x000E__x0018_}_x000C_Ã_x0014_AÍC|²>6_x0015_A½3«-vé_x0015_AÒjÓ_x0002_*h_x0014_A3Ø#_x0005__x000C__x0019__x0015_AÖ\u009fÄ%>\u0098_x0015_A¾\u0089_x0008__x0013_;£_x0014_A_x0017_1áákë_x0015_Aµ_x001E_ð4h_x0001__x0015_A\u0082ÂU1ø×_x0014_A\u009aðE_x0005_T_x0006__x0015_A_x001D_ñº\u009eê_x0006__x0015_AÉ<\u008føZÉ_x0015_Am¯1/_x0001__x0002_®\u009b_x0014_A¶QoÏë\u0081_x0014_A\\\u0081\u008a#:`_x0015_A3#~z«ù_x0014_A_x0012_å_x0019_ÆÇn_x0015_A\u009e}æs_x001E_j_x0015_A0½?ìeÈ_x0014_AÂ_yN']_x0015_Ahµ\u0082U\u0089_x000B__x0015_Ap_x001E_£|4V_x0015_Ar+\u0086A¼º_x0014_A°\u009dÓ[m_x001B__x0015_AÄQÈÖ-À_x0015_A\u0094¿q\"@\u009c_x0015_A\u0081\u0099\u008a\u0080\"Û_x0014_AÔ«ú\u009aOà_x0015_A+i¦V;\u0085_x0015_Asv\u009cAâ3_x0015_Ai,|\u009bZZ_x0015_Apy¼{î·_x0014_A²_x001A__x001E_¢4V_x0015_Aß +ê­t_x0015_AÙ_x001C_y\u008bW\"_x0015_A>õ_x0016__x001B_^f_x0015_Ar\u0096×O_x0017_6_x0015_A\u0085¤¸cï©_x0015_A+Ó~/Bï_x0015_A/p_x001C_W_x0006_O_x0015_A «ZÁÃ\u0085_x0015_A5\u0097&kä°_x0014_A\u0098HÙý@·_x0014_A;È+UYö_x0014_A_x0001__x0003_V\u0096´£*¦_x0014_AÓbLP7¯_x0014_A\u0086Oé_x001F_pn_x0015_A\u0087,^Ïz\u0095_x0014_A_x001C_\u0085SÂâÒ_x0014_AÊî·\u0083n5_x0015_A6ÛÓ_x0001_Âê_x0015_A>S;_x0018__x000F_ _x0015_Anã_x0015_\u009ek_x0008__x0016_AMî\u0082\u0082hØ_x0015_AEqÆXþ\u0099_x0014_AbØº¾!â_x0014_AC_x0007__»¬_x001E__x0015_AFô\u009f(ñ\u0092_x0014_A_x0014_×_x001D_ÁtÌ_x0015_A\u0088Ú jtÔ_x0014_AÜ`_x0011_\u0098[´_x0015_Ae_x0006_F¼\u0088_x0010__x0015_ADTIÁ_á_x0014_Ag³\u0082°w_x0015__x0015_AWÊ_x000E_ï\u0082¨_x0015_AC\u0099ù_x0001_&\u009f_x0014_Aé¢ãàÁ¸_x0014_AÒÊÒa\u0090â_x0014_ACûð0Ü\u009a_x0014_A\u0083\u009fºPAÞ_x0014_AÌÛ_x0001"}},{"$cut":{"chars":62022,"head":"3b942f4d5d4d88a74922d04be91fd106_x0001__x0005_§qê&¡È_x0017_A\u0083_x0002_\u0096k°w_x0017_A@D`Ó!í_x0016_A<9~´ª_x001F__x0017_A_x0003_Þö_x0015_ ¥_x0017_Au_x0010_ÞÉA_x001B__x0017_A¬ª¸_x0011__x000C_`_x0017_A_x000C_O\u0082½^Ì_x0016_A\u0084Ó_x0008__x000C_\u009b¸_x0016_Aæ_x0001_|K·à_x0016_A¹\u009f2Ø_x000E_t_x0017_A_x0011_,|ýði_x0017_A\u0091CKÄßZ_x0017_AÌÂ\u009f8Ù_x0016__x0017_A\u008bnÔãüc_x0017_Ar\"t_x0003_\u0088\u0080_x0016_A¾#µ_x0006__x001E_k_x0017_AmÉ\u008f%\u0092_x0012__x0017_A/¼Ùv¯*_x0017_A2_x0014__x0004__x001A_¿_x0013__x0017_A_x0017_SÕ\u008bèª_x0017_Aé\u009e²üxÓ_x0016_Aã´¤È@Û_x0016_Ag\u008e1c\u0092Ê_x0016_A_x0006_\u0096g)Ø\u0082_x0016_A\u0085É_x000E_LLü_x0016_AwóFÃ«ì_x0016_AêUJòDè_x0016_AÛ1åÜõÊ_x0016_Aâõ¨S_x000C_`_x0016_A_x0018_¡_x0006__©[_x0017_AÎ\u0095öl_x0002__x0003_Û\u009d_x0017_A¨\u0086\u0097ÀÚ_x0017__x0017_AHL_x000C_SÊ!_x0017_A]\u008aª_x0001_|_x0017__x0017_AÐL_x0005_Y_o_x0016_A½O|_x0016_\u0092Ú_x0016_A$Aß¤:é_x0016_A1/a?rÔ_x0016_A°n¶ã\u009f_x0004__x0017_A\u0090\u009e[Gij_x0017_A»_x0013_å¶V=_x0017_A³\u0094lUôÒ_x0016_A¿¹\u009e5V\u0089_x0017_A_x0004__x0014_*ê\u0095_x0001__x0017_A@Ah'Ö÷_x0016_AªåÒ¼t\u008a_x0017_A\u0080_x0014_`ö_x0008_e_x0016_AâígU\u008c8_x0017_AûaÝSñ*_x0017_A_x0004_\u008bå0õ½_x0016_AóÕ\u008b\u008aàß_x0016_AWd@µP_x000D__x0018_ATT_x000C_Á­r_x0017_AÁò B\u00887_x0017_AÕd\u009fbÎ^_x0017_Aß@Ç_x001E_\u009b_x000D__x0017_A½Ü;9â©_x0016_A_x0006_Z \u009e|r_x0017_A]·Ö\u008bL\u0092_x0016_AÝd0Q\u0099\u0084_x0017_A­ø\u0099B$x_x0016_AzÓ\u009f/»¼_x0016_A_x0001__x0003_Ò¸_x0013_²\u0084E_x0017_A\tù{ÙGR_x0017_An_x001E_\u007f!@,_x0017_AAi\u007fm_x001B_¢_x0017_AH×ÌÓú¯_x0016_A¢Õ¸Äº_x001D__x0018_A¼B'\u008f\u0087«_x0016_AæÍw\u008eã_x0011__x0017_As\u0091_x001E_¬ã\u0086_x0017_AÙAgÛÇè_x0017_Ay_x000C_;iG_x0002__x0018_AÏ´F_x0010_\u0080¡_x0016_A\u008eìT5OÁ_x0017_A_x0008_\u0098>æ'_x001F__x0017_Aç_x0010_E·4\u008f_x0016_A[@xaù|_x0017_AÄÓ\u0091>§Z_x0017_A\u009bº\\5_x0011_·_x0017_A°),ºÉ-_x0017_AshCbÊµ_x0017_A¶d_x0018_D\u0080,_x0017_Aô\u009d_x0008_m_x0011_Ù_x0017_A\u0088r_x000D_³ÀF_x0017_A vK¯\u0090¹_x0016_Aâ5y\u009d\u008aÂ_x0017_AõØ_x000D_ß_x001C_Ö_x0017_Ag¹¦íZd_x0017_A\u0084´\u0094*©_x0008__x0017_ATÌÍ²Û_x000E__x0017_AVäà@E\u0095_x0017_A_x0003_¹\u0091¬$\u0087_x0017_ArA_x000E_k_x0001__x0005_q\u0089_x0017_A¢gâÚìÇ_x0017_AÆ_x0017__x0004_::¨_x0016_A!\u0097\\PÙç_x0016_AÆ\u0091\u009f,Ù\u008b_x0016_A_x0006_(§\u0090¦±_x0017_A\t*ó_x001D_'ö_x0016_A»WctÞ\u0083_x0017_A_x0002_!\u009fjõÃ_x0016_A:\u008a\u008f_x0018_à\u008a_x0017_A¤\u009d_¦I¼_x0017_AÔtÓUú_x0008__x0018_A¥\u008c£ü¸Ú_x0017_A&\u009f¾)g_x0006__x0017_AÓ12¿A_x0008__x0017_AöNÃ_x0015__x0017_Û_x0016_A\u009cb§1,F_x0017_A´_x0008_aõx_x0002__x0017_Aô;_x000F_[h\u009c_x0016_AF\u00895\u008f2©_x0017_A<ÔùîÚ\u0092_x0017_A_x0003_W_x0012_\u008e|\u0080_x0016_A\u0098ñ·i×Á_x0016_A_x0015_ôhÄ¿Á_x0016_Aæ_x0006_ß_x001D_÷·_x0016_A_x000D_ð\u0099%ú&_x0017_A­\u0093c3_x001D_,_x0017_A~\"uÓÏ_x000D__x0017_A7_x0001_ ·Sû_x0016_AeÉ-ª\u0090~_x0017_A/\u0087q}_x0003_4_x0017_AVÌmyÐ°_x0017_A_x0003__x0005_\u0089³l\u009dRÊ_x0016_AI\"·ìà}_x0017_Ab\u007fá«Ù\u0098_x0017_A[3=7J\u0098_x0017_A0_x001F_Yï\u009fÝ_x0017_AW\u0098_x0010_s_x001D_!_x0017_AZÞçÉ\u009c0_x0017_A4@ÙB_x000E_Y_x0017_A\u0082_x0011_h\u0095¢f_x0017_AìoïË1 _x0017_Aj_x000E__x0004_¥¯\u009b_x0016_Au\u009dN\".±_x0017_AùÌ¢nK¹_x0017_A_x0015_ð\u008d\u0097°V_x0017_A_x0010__x000C_\u009báL\t_x0017_A_ÐFÖ\u0095\\_x0016_A\u0087P_x0016_úÊ¨_x0016_AÃ@\u0091_ÀÖ_x0016_AS\u0095½VäØ_x0016_AMt\u0098Ú0É_x0016_Að¿?_x001F_Zþ_x0017_A_x0014_\u009b#_x0010_zË_x0016_Asª\u00998¶å_x0016_AÍ\u008c`v_x0007_i_x0017_A_x0004_ÇáÖPD_x0017_AòJC¢\"_x0001__x0018_A··Ù _x0002_©_x0016_AÀO\u0086%×/_x0017_A¨\u0088\u0081_x0017_Aõ_x0016_A¢væÚ_x0011_ë_x0016_A}\u008a\u0088²Oð_x0016_A»Ç3h_x0001__x0004_\u008d3_x0017_A_x0001__x0007_Ï_x0005_Ë\u0090_x0016_AÃ_x0002_:öO$_x0017_A!øÂ<S*_x0018_AsßXïæ_x0012__x0017_A_x0010_Ä\u009c\u0090º>_x0017_A\u0089\u0092ã)àá_x0016_Aû]_x0007_ÔÛ×_x0016_A_x000C_£\u008f'Ç]_x0017_A!ä©t\u0098W_x0017_A×Ð_x0008_\u0087#Ì_x0016_A_x000E_ÝdM2ª_x0017_AÒW\u0080~\u0088_x000F__x0017_AD_x0003_¨\u008eÝB_x0017_AYÚ\u0089\u0099B8_x0017_A{\u0089N¨Õ0_x0017_ANÚhË\u009b_x0003__x0018_ABÕ]_x0016_ó_x0008__x0017_A÷ \u008b¿[,_x0017_A±ïYYÁ·_x0016_A³ð\u009a_x001F_\u008eÞ_x0016_Aì\u008e0¶ÉD_x0018_A»&é\u007f_x001C_Û_x0016_ABÍã\u007fw7_x0017_AY\u0080;ì)i_x0017_A/0\u0084s»å_x0016_A*_x0002_\u0083Y~þ_x0016_A_x0010_r_x0010_\u0080\u0085i_x0017_Atä_x0019_e;f_x0017_A1_x0018_ð^L¶_x0016_Aê}Àp®X_x0017_A_x000B_\u0093_x001B__x0010_\u0085à_x0016_A_x0002__x0004_QÑI_x000E__x0018_à_x0016_AåÁ}çe`_x0017_AlòY:#\u008d_x0017_A~]}[S?_x0017_AZ\u009b1cå\u0090_x0016_A#z8Í'ô_x0017_AÊPK_\u0095!_x0017_Ad_x001A_QºuØ_x0016_AÜ_x001E_sÛ\u0089\u0081_x0017_A+¿_x000D_ù­q_x0016_AãV>>_x0015_Ñ_x0016_AÑÉ_x0014_NÎ%_x0017_Aì\u0087_x000D_\u0091ÕÂ_x0016_AEOY0³®_x0017_AÈ\u0098Xå_x000E_\u0092_x0016_A{ª_x0003_J^_x0015__x0017_AÅø¤_x0001_i\u0099_x0017_AÉY\u009fÏ\u0096Ä_x0016_A£{à<Ù-_x0017_AãËQ_x0016_ÇP_x0017_A\u008dLÓF\u007fw_x0016_A¬T1¾õ~_x0017_AÖXì_x001A_ö\u009c_x0016_Aò_x000F_n\u009aGq_x0017_A÷ï¢\u0083Â_x0016__x0017_A6u&ÕÒÁ_x0016_A9_x001B_±~ð_x0007__x"}},{"$cut":{"chars":111798,"head":"d2dd657134d811c29cf6bc1b13f72d8f_x0001__x0004_q7_x0003_E}_x001B_1Aí_Àä¶y1APÄ_x0019_Ó%\u00801A°Ä_x0005_nO{1A_x0017_²Â0_x001B_W1A\u008bóàHäx1Aÿ\u009aâ!òz1A*ê¨_x0017_¡21A_òøL_x000E_¥1A_x0012_0\u0095\u008aw\u00861A_x000F_ÚÚ¿p\u008b1A+U_x0003_{²\\1AËrÂÞ>Y1Aþ!¦_x0008_Ax1AË:\u0091£°?1AFM|;ËG1AE9A!\u008dn1A[ë%nÚd1A!\u0096e\u0094ò\u008d1A_x0013_ÝÕ¨? 1A(À_x0003_Aäu1A§VD_x000B_Ýn1Ac\t*sØ\u008d1Aéd_x0003_Å»Z1Aú\u009a(i\u008ek1A(Cä_x0002_\u009di1AèÔ_x0007_8ûÆ1A_x000F_+vÕòå1Aý3û_x000B__x0012_\u00851A\u0082²ã_x0014_ß_x000D_1ALKÒDkf1A\u0089Ê'´_x0001__x0003_ð91AÌ[}ñ\"R1AÑ$äûL\u00921A_x0006_°yô'\u00841A'\têÚ\u009eb1A½\u008eÉa\u0096U1A_x0016_ò_x0016_Ó\u0091¼1A|\u0092_x000F_\u0092_x001E_\u00851AÒÙm\u008fJ,1AÝ-9AHB1AfyÍlã_x0013_1AL\u008e\"\u0089Wm1Aì\u0099+kFR1A6\u008e#7_x0002_a1A_x0003_,ôß\u0094>1Apd¬_x0016_ÚD1A\u009fÓÎ\u009aul1A,\u009eÖ\u0086:n1AzH|j_x000F_f1AÀÆÏV8\\1Aæ~Ó\u0089ê_x0005_1AìÙmW_x0012_t1A2·ÑKøg1Aø¸À7\u008ei1A\u0080!{ß8©1AlÛãáj\u00961A$´ËKìL1A\u0098N\u0084Ë_x001C_\u00861Ah1ü½ëñ1A4×r3É&1Ac­²rû`1A¨7·\u0082_x0017_\u007f1A_x0001__x0003_T´Òã¥i1AÂ?Yõa\u00861Al?ÝGv\u00941Ahìh¢«\u00801A]\u009a;\u0096Íh1ArHf_x0007_D\u008f1A\"Õ*üÕ`1Aeû¨X$-1Açª\u0093F_x0006_o1AR`\u009c_x0012_ÚW1ABó%á­\u00991A vyX\u009cG1At\t½MÉZ1AÖ_x001F_£mÅT1A_x0012__x000E_Fq¯Ý1A_x0011_¡£F_x0011_\u00811AöQ_x000D_Q/u1A_x0002__x0014__x001E_híd1AÂÉæQÈ_x000E_1A_x000E_ªSòÍk1Adð1wãq1AN3Éþ4ý0A_x0018_1\u008ePû_x0018_1A½Á^ãP]1A1\u0097_x0019_Ü\u0080¶1A½ÅRBÇ¯1A¼\tÈ\u00926x1A*uè\u009aÃX1A_x0010__x0008__x0015_þ\u008c41A%ííX?l1A8_x0006_îìCq1A_x001A__x0019__x000E__x000F__x0001__x0003__x0017_³1A_x0010_ì|\u008d^]1A6\u0094F\u009aK21Aüßo\u008a&Y1Ay\u008cÌ\u0084AH1AVË_x0015_\u0085_x0018_]1A_x0002_Õ3âü¯1A®\u0084\u0084_x0002_|/1A£\u0090_x0017_½FE1A+ãRJfr1A®Å°®¥h1AN\u0094«Iï;1A¤hÁÒí\u00961Aj6\u009fM8\u00841A?\u0081[_x0013_¸ñ0A@¼\u0080üO\u00921A\u008e_x0005_gÉ{¼1Aj@:_x001D_AQ1A_x0001_\u008c¿²w[1Apþ\u008aW7b1AàQÝ±=]1Aª9éN}w1A\u0097f4HõM1AÕ_x001D_\u008aeív1A{CÛ\u009bq¥1A\u009d\u0089,\u0090¤_x001B_1A\u0082z±#\u0098\u00971AN(_x0001_\u009aWP1Ab9×HåÂ1A\u0081æB©_x0002_L1A\u0092_x0008_d©e\u00861A_x0004_×¬\u0085;l1A_x0001__x0007__x0016_å¯3)61A]#¹_x0005_Ôb1A\"z³\u0087ÆT1A÷´@K_x0010_\u00951A_x000E_\u008b5v6'1A\u0086×_x000F_÷³i1A¼_x0001_Ù\u0088¸S1A×\u0082\u008fë\u009bA1A³ÀÔ{\u0097¦1Aà\u008bì!JW1Aö_x0002_®mnf1AÍêþ_x0019_Ñ,1A`_x0004_Ó_x0001_E-1AF_x0018_Æ,òZ1AhL²ÏI_x0018_1A_x001A_°_x000C_[ô=1AÃ\u0088\u0086_x0006_­y1A»:\u0097\u0095Ä¥1Aî£ç¹\u0080R1AN\"Ca)¶1AõÙÒ!Åº1AÛ[Qáw+1AdK\u0094i+s1A½q+éÍ{1Añ{lNi81A\u009d_x0003_jhË~1A\u0092\u0080rxDÕ1AV\u0085q_x000E_¹¬1AÂó_x0001_\u009c£.1A¡U¤\u009aÊË1AÚ4N_x0018_\u0082h1AÿUh¦_x0001__x0003_\u008c­1A¡¬\u0091û={1A\u008b)ç_x0011__x001F_01A2Ö\u0082PÝ\u008b1A\u008cZ\u008e¡8\u00831AV\u009a¨Jùä0A]Kw\u0096Â@1A_x001F_æ¹l=\u009c1A\u0099¢Ù>\u009fB1AÞ_x001E__x001D_´Çµ1Al7è9]¯1AX\"_x0019_H?n1A~r\u009b\u0099_x000C_\\1A¾ü\u0080ëc[1AQ!àÑ%U1AÖ0_x0014_KèE1A^°f0±m1Aà\u0085Ãü¬$1A¢mÍùÓo1A\u0086\u008a4®\u0080Ë1A°Q1vö\u00801AR;\u0084Ã_x0011__x001B_1A\"\u008bÞxNE1AuìÇ³_x0005__x0017_1AýÃ_x0013_u\u008731A¦ jß\u009e01AZÃGªÜq1AÎ~µ/\u008f]1AhÑéiuw1A\u0098ÒK3|R1Aõ_x000F__x0002_ÙbY1A\u0088â$ßlZ1A_x0001__x0002_@kw´\u0087\u009d1AöB_x000F_*è\u009d1A;³ùÚÁ-1A í%l8¾1Aj'\u0094ãäJ1AoKî_x0018_p\\1AêÕ&¯h\u00801AÃ_x0015__x0007_\u0084Gw1A_x000D_æN_x0001_ØR1A_x0017__x0018__x0007_³\u008cf1A5u\u009dª×H1A_x0004__x0018_®\u0085f¡1Aî©_x001C_)_x0004__x001D_1A°®U54_x0005_1AýòÆ__g1Azp¬_x0001_¨j1Aî\u0091_x0010__x000E_{\u009c1A¸^_x0013_ÚÐ\u008d1A_x0005_\u008f2ewg1A3\u008dIziv1AÿAN­\u008f31A\u0082Ð^õ\u0090\u00991AXfØ<2\u00831Aç\\KG_x001E_Q1AhUhÌ\u0088f1AåJ4Ð\u008e71AA_x0002_/\u008e\u0096#1AÜ\u0091v'©_x0017_1AË_x0005__5#¾1AÈ¤Ð¥ª\u00871Aß_x0019_¬þ R1A¦Q¤p_x0002__x0003_É®1A_x0012_¢$ááI1AN\u008b©îå_x000B_1AòS_x0014_\u008d÷\u00861A3Ù\u007f_x000E_6z1A_x0016_¦Ýß\u0082\u009b1AWC¯\u0085_x0005_h1A§w.àR£1A§_x0017_xFq>1ALÿ[\u0091óK1A_yuêÛb1A\u0096]j=«©1A\u0086Äí_x000D_Õ(1A´ø0´´)1Að2\u0091ïãs1APÊ\u0098¾_x0012_ 1A:_x000F_Ýå~=1AÂî\u009d~\u007fr1Aoð¯ÂÃ\u00851A_x0017__x0019_1A\u0098_x001F_1A¦_x0001_\u0088¤E\u00901AÑ\\Ïº&t1A¨éHDMx1A\u0090Î\u0093ºÓp1A\u0085ÎØì_x0018_61A\t=¿Ró\u00871AÄYù_x0008_\u0086´1Ap»º°ú_x0007_1Aîù&\\;\u008e1Axáõ¥_x0004_j1A'rðÀÉ}1ANü4VAy1A_x0001__x0002_u\u0086óÍ¤\u00831AvH1ÅÇU1A#\u0091U#\u0093w1AN¤×b-U1Aé¾:ã_x0001_\u009a1Aë9á\u0098\u008021A*®-?_x0007_Q1AnÙ_x0001_ýÎ\u00991A_x0006_\u00949¼Po1A\u0098K\u0098»ô\u00811Aü_x001C_à\u009a¯B1Ad¯zø\u0087Q1A\u0085]>\u007fµK1A9\u0082v÷ã}1A{\"úñöS1A\u008e\u009c8_x0004_\u009a_x001A_1Aà_mAdd1A¦x?_x0017_¢\u00921AzîÐìÇy1A«_x0013_\u008d_x000D_ís1A`_x0016_\u0097_x0007_¹\u00991At\u0089&A_x0003_\u00891A7_x001C__x0005_\u0095çU1A<\u009dP¯ÏÀ1A_x0003_¬ù*ih1Aé¡·í³¨1Aôã·\u008f_x001A_\u00901AZ_x001F_i\u0096_x0007__x001E_1Aò/\u0092TØm1A_x001C_sÏ&Î\u00841APj\u009cdöÃ1A4_x001B_a]_x0002__x0003_Æ\u009c1A>¶*|@n1AFÃã»0M1A§øô\u008e_r1Aêù#4àN1AÎvqp_x001C_D1A\u0093X_x0005_\u009c(N1AÈÓs_x0013_ü/1AÌg&\u009eTO1A_x001A_J³\u009e\u0083I1A8tYè\u009dP1A/â/\u009b\t\u009c1A=¸áøªh1Aä_x001C_KPÍ\u007f1A4_x0001_ØÀH\u009f1A\u008d\u0095ð½\u0085w1A8_x0019__x0005_·[/1Aö|Æ=Fj1Aÿ9eÌ<N1AÞ\u0093j#_x0016_C1AÉ\u0094\u0082*Ê\u009c1A¸\u0091ÄkÍ11Aws\u0095Ø_x0001__x0012_1A((_x0016_\u0098½_x0003_1Av_x0001_nô+e1AðéL\u008a ]1AT_x001A_` ß¥1AÒ¥_\u007f #1Aeô\u00808ß\u008f1A0Ì\u008b_x001B_pN1A\u0090¯eë$21A\u008c_x0016_×\u0083\u0091S1A_x0002__x0003__x0008_[Ü'_x0014_\u00801A§\u0092kÊUZ1A§\u008aÈ_x001B_üÛ0Aª.¥Rîø0Aºa\u0092_x001D_Y_x0015_1A¶Ñ`X½\u008a1Ayg¡¥_x0011_V1A_x001A_G¡_x0014__x0019_u1A_x0016_W\u009a\tKQ1Aê\u0085$rsb1Aæ/sj\u0083a1Aÿ\u008a·È~F1A_x001D_£\u008ecji1A_x0017_YöÏ×¬1AT[Ï+#I1AS±xo\u009be1A_x0014_wYûÀV1AîO \u0085\\C"}},{"$cut":{"chars":108546,"head":"7992897cfacde2fe56c4da4c582c3602_x0001__x0002_Ì\u0097_x0017__x0001_\u0088Â_x001D_AÌ\u0097_x0017__x0001_Èá_x001D_AÌ\u0097_x0017__x0001_\u0088Â_x001D_AÌ\u0097_x0017__x0001_\u0088Â_x001D_AÌ\u0097_x0017__x0001_\u0088Â_x001D_AÌ\u0097_x0017__x0001_¨_x0010__x001E_AÌ\u0097_x0017__x0001_¨_x0010__x001E_AÌ\u0097_x0017__x0001_¨_x0010__x001E_AÌ\u0097_x0017__x0001_\u0088Â_x001D_AÌ\u0097_x0017__x0001_\u0088Â_x001D_AÌ\u0097_x0017__x0001_\u0088Â_x001D_AÌ\u0097_x0017__x0001_\u0088Â_x001D_AÌ\u0097_x0017__x0001_\u0088Â_x001D_AÌ\u0097_x0017__x0001_\u0088Â_x001D_AÌ\u0097_x0017__x0001_¨_x0010__x001E_AÌ\u0097_x0017__x0001_\u0088Â_x001D_AÌ\u0097_x0017__x0001_\u0088Â_x001D_AÌ\u0097_x0017__x0001_\u0088Â_x001D_AÌ\u0097_x0017__x0001_\u0088Â_x001D_AÌ\u0097_x0017__x0001_\u0088Â_x001D_AÌ\u0097_x0017__x0001_\u0088Â_x001D_AÌ\u0097_x0017__x0001_¨_x0010__x001E_AÌ\u0097_x0017__x0001_¨_x0010__x001E_AÌ\u0097_x0017__x0001_\u0088Â_x001D_AÌ\u0097_x0017__x0001_\u0088Â_x001D_AÌ\u0097_x0017__x0001_\u0088Â_x001D_AÌ\u0097_x0017__x0001_\u0088Â_x001D_AÌ\u0097_x0017__x0001_\u0088Â_x001D_AÌ\u0097_x0017__x0001_¨_x0010__x001E_AÌ\u0097_x0017__x0001_\u0088Â_x001D_AÌ\u0097_x0017__x0001_\u0088Â_x001D_AÌ\u0097_x0017__x0001__x0001__x0002_\u0088Â_x001D_AÌ\u0097_x0017__x0001_\u0088Â_x001D_AÌ\u0097_x0017__x0001_\u0088Â_x001D_AÌ\u0097_x0017__x0001_\u0088Â_x001D_AÌ\u0097_x0017__x0001_\u0088Â_x001D_AÌ\u0097_x0017__x0001_\u0088Â_x001D_AÌ\u0097_x0017__x0001_\u0088Â_x001D_AÌ\u0097_x0017__x0001_¨_x0010__x001E_AÌ\u0097_x0017__x0001_¨_x0010__x001E_AÌ\u0097_x0017__x0001_\u0088Â_x001D_AÌ\u0097_x0017__x0001_¨_x0010__x001E_AÌ\u0097_x0017__x0001_¨_x0010__x001E_AÌ\u0097_x0017__x0001_\u0088Â_x001D_AÌ\u0097_x0017__x0001_Èá_x001D_AÌ\u0097_x0017__x0001_\u0088Â_x001D_AÌ\u0097_x0017__x0001_¨_x0010__x001E_AÌ\u0097_x0017__x0001_\u0088Â_x001D_AÌ\u0097_x0017__x0001_\u0088Â_x001D_AÌ\u0097_x0017__x0001_\u0088Â_x001D_AÌ\u0097_x0017__x0001_\u0088Â_x001D_AÌ\u0097_x0017__x0001_¨_x0010__x001E_AÌ\u0097_x0017__x0001_¨_x0010__x001E_AÌ\u0097_x0017__x0001_\u0088Â_x001D_AÌ\u0097_x0017__x0001_\u0088Â_x001D_AÌ\u0097_x0017__x0001_\u0088Â_x001D_AÌ\u0097_x0017__x0001_\u0088Â_x001D_AÌ\u0097_x0017__x0001_\u0088Â_x001D_AÌ\u0097_x0017__x0001_\u0088Â_x001D_AÌ\u0097_x0017__x0001_\u0088Â_x001D_AÌ\u0097_x0017__x0001_\u0088Â_x001D_AÌ\u0097_x0017__x0001_¨_x0010__x001E_AÌ\u0097_x0017__x0001_\u0088Â_x001D_A_x0001__x0002_Ì\u0097_x0017__x0001_\u0088Â_x001D_AÌ\u0097_x0017__x0001_\u0088Â_x001D_AÌ\u0097_x0017__x0001_\u0088Â_x001D_AÌ\u0097_x0017__x0001_\u0088Â_x001D_AÌ\u0097_x0017__x0001_\u0088Â_x001D_AÌ\u0097_x0017__x0001_\u0088Â_x001D_AÌ\u0097_x0017__x0001_\u0088Â_x001D_AÌ\u0097_x0017__x0001_¨_x0010__x001E_AÌ\u0097_x0017__x0001_Èá_x001D_AÌ\u0097_x0017__x0001_\u0088Â_x001D_AÌ\u0097_x0017__x0001_\u0088Â_x001D_AÌ\u0097_x0017__x0001_¨_x0010__x001E_AÌ\u0097_x0017__x0001_¨_x0010__x001E_AÌ\u0097_x0017__x0001_\u0088Â_x001D_AÌ\u0097_x0017__x0001_\u0088Â_x001D_AÌ\u0097_x0017__x0001_¨_x0010__x001E_AÌ\u0097_x0017__x0001_\u0088Â_x001D_AÌ\u0097_x0017__x0001_\u0088Â_x001D_AÌ\u0097_x0017__x0001_¨_x0010__x001E_AÌ\u0097_x0017__x0001_\u0088Â_x001D_AÌ\u0097_x0017__x0001_È^_x001E_AÌ\u0097_x0017__x0001_H\u0097_x001F_AÌ\u0097_x0017__x0001_\u0088Â_x001D_AÌ\u0097_x0017__x0001_\u0088Â_x001D_AÌ\u0097_x0017__x0001_\u0088Â_x001D_AÌ\u0097_x0017__x0001_\u0088Â_x001D_AÌ\u0097_x0017__x0001_¨_x0010__x001E_AÌ\u0097_x0017__x0001_\u0088Â_x001D_AÌ\u0097_x0017__x0001_¨_x0010__x001E_AÌ\u0097_x0017__x0001_\u0088Â_x001D_AÌ\u0097_x0017__x0001_¨_x0010__x001E_AÌ\u0097_x0017__x0001__x0001__x0002_\u0088Â_x001D_AÌ\u0097_x0017__x0001_\u0088Â_x001D_AÌ\u0097_x0017__x0001_¨_x0010__x001E_AÌ\u0097_x0017__x0001_\u0088Â_x001D_AÌ\u0097_x0017__x0001_\u0088Â_x001D_AÌ\u0097_x0017__x0001_¨_x0010__x001E_AÌ\u0097_x0017__x0001_Èá_x001D_AÌ\u0097_x0017__x0001_\u0088Â_x001D_AÌ\u0097_x0017__x0001_\u0088Â_x001D_AÌ\u0097_x0017__x0001_\u0088Â_x001D_AÌ\u0097_x0017__x0001_\u0088Â_x001D_AÌ\u0097_x0017__x0001_\u0088Â_x001D_AÌ\u0097_x0017__x0001_\u0088Â_x001D_AÌ\u0097_x0017__x0001_È^_x001E_AÌ\u0097_x0017__x0001_\u0088Â_x001D_AÌ\u0097_x0017__x0001_\u0088Â_x001D_AÌ\u0097_x0017__x0001_\u0088Â_x001D_AÌ\u0097_x0017__x0001_\u0088Â_x001D_AÌ\u0097_x0017__x0001_\u0088Â_x001D_AÌ\u0097_x0017__x0001_¨_x0010__x001E_AÌ\u0097_x0017__x0001_H _x001E_AÌ\u0097_x0017__x0001_\u0088Â_x001D_AÌ\u0097_x0017__x0001_¨_x0010__x001E_AÌ\u0097_x0017__x0001_¨_x0010__x001E_AÌ\u0097_x0017__x0001_\u0088Â_x001D_AÌ\u0097_x0017__x0001_¨_x0010__x001E_AÌ\u0097_x0017__x0001_\u0088Â_x001D_AÌ\u0097_x0017__x0001_\u0088Â_x001D_AÌ\u0097_x0017__x0001_\u0088Â_x001D_AÌ\u0097_x0017__x0001_\u0088Â_x001D_AÌ\u0097_x0017__x0001_¨_x0010__x001E_AÌ\u0097_x0017__x0001_\u0088Â_x001D_A_x0001__x0002_Ì\u0097_x0017__x0001_\u0088Â_x001D_AÌ\u0097_x0017__x0001_\u0088Â_x001D_AÌ\u0097_x0017__x0001_¨_x0010__x001E_AÌ\u0097_x0017__x0001_\u0088Â_x001D_AÌ\u0097_x0017__x0001_\u0088Â_x001D_AÌ\u0097_x0017__x0001_Èá_x001D_AÌ\u0097_x0017__x0001_¨_x0010__x001E_AÌ\u0097_x0017__x0001_\u0088Â_x001D_AÌ\u0097_x0017__x0001_¨_x0010__x001E_AÌ\u0097_x0017__x0001_\u0088Â_x001D_AÌ\u0097_x0017__x0001_\u0088Â_x001D_AÌ\u0097_x0017__x0001_\u0088Â_x001D_AÌ\u0097_x0017__x0001_\u0088Â_x001D_AÌ\u0097_x0017__x0001_\u0088Â_x001D_AÌ\u0097_x0017__x0001_\u0088Â_x001D_AÌ\u0097_x0017__x0001_\u0088Â_x001D_AÌ\u0097_x0017__x0001_\u0088Â_x001D_AÌ\u0097_x0017__x0001_\u0088Â_x001D_AÌ\u0097_x0017__x0001_\u0088Â_x001D_AÌ\u0097_x0017__x0001_\u0088Â_x001D_A"}},{"$cut":{"chars":100512,"head":"3353d6e913f57c8258237f679142e29f_x0001__x0002_¶ø_x0014__x0001_|ì_x001F_A[|_x0002__x0001_Þ_x0005_ A[|_x0002__x0001_N_x001D_ A[|_x0002__x0001_N_x001D_ A¶ø_x0014__x0001_|ì_x001F_A¶ø_x0014__x0001_|ì_x001F_A¶ø_x0014__x0001_|ì_x001F_A¶ø_x0014__x0001_|ì_x001F_A¶ø_x0014__x0001_|ì_x001F_A[|_x0002__x0001__x001E_% A¶ø_x0014__x0001_|ì_x001F_A¶ø_x0014__x0001_|ì_x001F_A[|_x0002__x0001_N_x001D_ A¶ø_x0014__x0001_|ì_x001F_A¶ø_x0014__x0001_|ì_x001F_A[|_x0002__x0001_N_x001D_ A[|_x0002__x0001_N_x001D_ A¶ø_x0014__x0001_|ì_x001F_A¶ø_x0014__x0001_|ì_x001F_A¶ø_x0014__x0001_|ì_x001F_A[|_x0002__x0001_N_x001D_ A¶ø_x0014__x0001_|ì_x001F_A¶ø_x0014__x0001_|ì_x001F_A¶ø_x0014__x0001_|ì_x001F_A¶ø_x0014__x0001_|ì_x001F_A¶ø_x0014__x0001_|ì_x001F_A¶ø_x0014__x0001_|ì_x001F_A¶ø_x0014__x0001_|ì_x001F_A[|_x0002__x0001_N_x001D_ A¶ø_x0014__x0001_|ì_x001F_A[|_x0002__x0001_N_x001D_ A[|_x0002__x0001__x0001__x0002_N_x001D_ A¶ø_x0014__x0001_|ì_x001F_A[|_x0002__x0001_^D A¶ø_x0014__x0001_|ì_x001F_A[|_x0002__x0001_N_x001D_ A¶ø_x0014__x0001_|ì_x001F_A¶ø_x0014__x0001_|ì_x001F_A¶ø_x0014__x0001_|ì_x001F_A¶ø_x0014__x0001_|ì_x001F_A¶ø_x0014__x0001_|ì_x001F_A¶ø_x0014__x0001_|ì_x001F_A[|_x0002__x0001_N_x001D_ A[|_x0002__x0001_N_x001D_ A¶ø_x0014__x0001_|ì_x001F_A¶ø_x0014__x0001_|ì_x001F_A[|_x0002__x0001_^D A[|_x0002__x0001_^D A¶ø_x0014__x0001_|ì_x001F_A[|_x0002__x0001_N_x001D_ A[|_x0002__x0001_N_x001D_ A¶ø_x0014__x0001_|ì_x001F_A¶ø_x0014__x0001_|ì_x001F_A[|_x0002__x0001_N_x001D_ A¶ø_x0014__x0001_|ì_x001F_A¶ø_x0014__x0001_|ì_x001F_A[|_x0002__x0001_N_x001D_ A¶ø_x0014__x0001_|ì_x001F_A¶ø_x0014__x0001_|ì_x001F_A¶ø_x0014__x0001_|ì_x001F_A¶ø_x0014__x0001_|ì_x001F_A¶ø_x0014__x0001_|ì_x001F_A[|_x0002__x0001_Þ_x0005_ A_x0001__x0002_¶ø_x0014__x0001_|ì_x001F_A¶ø_x0014__x0001_|ì_x001F_A¶ø_x0014__x0001_|ì_x001F_A¶ø_x0014__x0001_|ì_x001F_A¶ø_x0014__x0001_|ì_x001F_A¶ø_x0014__x0001_|ì_x001F_A¶ø_x0014__x0001_|ì_x001F_A¶ø_x0014__x0001_|ì_x001F_A¶ø_x0014__x0001_|ì_x001F_A[|_x0002__x0001_N_x001D_ A[|_x0002__x0001_N_x001D_ A¶ø_x0014__x0001_|ì_x001F_A¶ø_x0014__x0001_|ì_x001F_A¶ø_x0014__x0001_|ì_x001F_A¶ø_x0014__x0001_|ì_x001F_A¶ø_x0014__x0001_|ì_x001F_A¶ø_x0014__x0001_|ì_x001F_A[|_x0002__x0001_N_x001D_ A¶ø_x0014__x0001_|ì_x001F_A¶ø_x0014__x0001_|ì_x001F_A¶ø_x0014__x0001_|ì_x001F_A¶ø_x0014__x0001_|ì_x001F_A[|_x0002__x0001_N_x001D_ A¶ø_x0014__x0001_|ì_x001F_A¶ø_x0014__x0001_|ì_x001F_A¶ø_x0014__x0001_|ì_x001F_A[|_x0002__x0001_N_x001D_ A[|_x0002__x0001_N_x001D_ A¶ø_x0014__x0001_|ì_x001F_A[|_x0002__x0001_N_x001D_ A[|_x0002__x0001_Þ_x0005_ A¶ø_x0014__x0001__x0001__x0002_|ì_x001F_A[|_x0002__x0001_N_x001D_ A[|_x0002__x0001_N_x001D_ A¶ø_x0014__x0001_|ì_x001F_A¶ø_x0014__x0001_|ì_x001F_A¶ø_x0014__x0001_|ì_x001F_A[|_x0002__x0001_î, A[|_x0002__x0001_N_x001D_ A[|_x0002__x0001_N_x001D_ A¶ø_x0014__x0001_|ì_x001F_A¶ø_x0014__x0001_|ì_x001F_A¶ø_x0014__x0001_|ì_x001F_A[|_x0002__x0001_N_x001D_ A[|_x0002__x0001_N_x001D_ A¶ø_x0014__x0001_|ì_x001F_A[|_x0002__x0001_N_x001D_ A[|_x0002__x0001_^D A¶ø_x0014__x0001_|ì_x001F_A¶ø_x0014__x0001_|ì_x001F_A¶ø_x0014__x0001_|ì_x001F_A¶ø_x0014__x0001_|ì_x001F_A[|_x0002__x0001__x001E_% A¶ø_x0014__x0001_|ì_x001F_A¶ø_x0014__x0001_|ì_x001F_A[|_x0002__x0001_N_x001D_ A[|_x0002__x0001_N_x001D_ A[|_x0002__x0001_N_x001D_ A¶ø_x0014__x0001_|ì_x001F_A[|_x0002__x0001_N_x001D_ A¶ø_x0014__x0001_|ì_x001F_A¶ø_x0014__x0001_|ì_x001F_A¶ø_x0014__x0001_|ì_x001F_A_x0001__x0002_¶ø_x0014__x0001_|ì_x001F_A¶ø_x0014__x0001_|ì_x001F_A¶ø_x0014__x0001_|ì_x001F_A[|_x0002__x0001_N_x001D_ A¶ø_x0014__x0001_|ì_x001F_A¶ø_x0014__x0001_|ì_x001F_A[|_x0002__x0001_N_x001D_ A¶ø_x0014__x0001_|ì_x001F_A¶ø_x0014__x0001_|ì_x001F_A¶ø_x0014__x0001_|ì_x001F_A¶ø_x0014__x0001_|ì_x001F_A¶ø_x0014__x0001_|ì_x001F_A¶ø_x0014__x0001_|ì_x001F_A¶ø_x0014__x0001_|ì_x001F_A¶ø_x0014__x0001_|ì_x001F_A¶ø_x0014__x0001_|ì_x001F_A¶ø_x0014__x0001_|ì_x001F_A[|_x0002__x0001_N_x001D_ A¶ø_x0014__x0001_|ì_x001F_A¶ø_x0014__x0001_|ì_x001F_A[|_x0002__x0001_N_x001D_ A¶ø_x0014__x0001_|ì_x001F_A¶ø_x0014__x0001_|ì_x001F_A¶ø_x0014__x0001_|ì_x001F_A[|_x0002__x0001_N_x001D_ A¶ø_x0014__x0001_|ì_x001F_A[|_x0002__x0001_N_x001D_ A¶ø_x0014__x0001_|ì_x001F_A¶ø_x0014__x0001_|ì_x"}},{"$cut":{"chars":68136,"head":"43aefda4238d1197cbbb7a6739d0841a_x0001__x0002_\u009fY_x0012__x0001_Rà7A\u009fY_x0012__x0001_ÊÌ7A\u009fY_x0012__x0001_ªû7A\u009fY_x0012__x0001_\"è7A\u009fY_x0012__x0001_ÊÌ7A\u009fY_x0012__x0001_\u0092ÿ7A\u009fY_x0012__x0001_Úó7A\u009fY_x0012__x0001_Rà7A\u009fY_x0012__x0001_Rà7A\u009fY_x0012__x0001_ÊÌ7A\u009fY_x0012__x0001_ÊÌ7A\u009fY_x0012__x0001_ÊÌ7A\u009fY_x0012__x0001_Úó7A\u009fY_x0012__x0001_ÊÌ7A\u009fY_x0012__x0001_Rà7A\u009fY_x0012__x0001_Rà7A\u009fY_x0012__x0001_Rà7A\u009fY_x0012__x0001_Â÷7A\u009fY_x0012__x0001_ÊÌ7A\u009fY_x0012__x0001_ÊÌ7A\u009fY_x0012__x0001_Â÷7A\u009fY_x0012__x0001_ÊÌ7A\u009fY_x0012__x0001_ÊÌ7A\u009fY_x0012__x0001_b_x0007_8A\u009fY_x0012__x0001_Rà7A\u009fY_x0012__x0001_ÊÌ7A\u009fY_x0012__x0001_ÊÌ7A\u009fY_x0012__x0001_Rà7A\u009fY_x0012__x0001_Úó7A\u009fY_x0012__x0001_Rà7A\u009fY_x0012__x0001_Rà7A\u009fY_x0012__x0001__x0001__x0002_Rà7A\u009fY_x0012__x0001_Â÷7A\u009fY_x0012__x0001_Rà7A\u009fY_x0012__x0001_\"è7A\u009fY_x0012__x0001_Úó7A\u009fY_x0012__x0001_Rà7A\u009fY_x0012__x0001_ÊÌ7A\u009fY_x0012__x0001_Úó7A\u009fY_x0012__x0001_ÊÌ7A\u009fY_x0012__x0001_ÊÌ7A\u009fY_x0012__x0001_Rà7A\u009fY_x0012__x0001_Úó7A\u009fY_x0012__x0001_Úó7A\u009fY_x0012__x0001_Rà7A\u009fY_x0012__x0001_Rà7A\u009fY_x0012__x0001_ÊÌ7A\u009fY_x0012__x0001_Rà7A\u009fY_x0012__x0001_Rà7A\u009fY_x0012__x0001_ÊÌ7A\u009fY_x0012__x0001_ÊÌ7A\u009fY_x0012__x0001_ÊÌ7A\u009fY_x0012__x0001_ÊÌ7A\u009fY_x0012__x0001_ÊÌ7A\u009eY_x0012__x0001__x0002_i8A\u009fY_x0012__x0001_Rà7A\u009fY_x0012__x0001_ÊÌ7A\u009fY_x0012__x0001_Úó7A\u009fY_x0012__x0001_Rà7A\u009fY_x0012__x0001_Úó7A\u009fY_x0012__x0001_ÊÌ7A\u009fY_x0012__x0001_Rà7A\u009fY_x0012__x0001_ÊÌ7A_x0001__x0002_\u009fY_x0012__x0001_ÊÌ7A\u009fY_x0012__x0001_ÊÌ7A\u009fY_x0012__x0001_Rà7A\u009fY_x0012__x0001_ÊÌ7A\u009fY_x0012__x0001_ÊÌ7A\u009fY_x0012__x0001_Úó7A\u009fY_x0012__x0001_ÊÌ7A\u009fY_x0012__x0001_Rà7A\u009fY_x0012__x0001_Rà7A\u009fY_x0012__x0001_ÊÌ7A\u009fY_x0012__x0001_Â÷7A\u009fY_x0012__x0001_b_x0007_8A\u009fY_x0012__x0001_ÊÌ7A\u009fY_x0012__x0001_Rà7A\u009fY_x0012__x0001_Rà7A\u009fY_x0012__x0001_Rà7A\u009fY_x0012__x0001_Rà7A\u009fY_x0012__x0001_Rà7A\u009fY_x0012__x0001_Rà7A\u009fY_x0012__x0001_\u009aÔ7A\u009fY_x0012__x0001_\u0082U8A\u009fY_x0012__x0001_ÊÌ7A\u009fY_x0012__x0001_ÊÌ7A\u009fY_x0012__x0001_Úó7A\u009fY_x0012__x0001_Rà7A\u009fY_x0012__x0001_ÊÌ7A\u009fY_x0012__x0001_ÊÌ7A\u009fY_x0012__x0001_ÊÌ7A\u009fY_x0012__x0001_ÊÌ7A\u009fY_x0012__x0001_ÊÌ7A\u009fY_x0012__x0001_Rà7A\u009fY_x0012__x0001__x0001__x0002__x0002_ì7A\u009fY_x0012__x0001_Rà7A\u009fY_x0012__x0001_Â÷7A\u009fY_x0012__x0001_\"è7A\u009fY_x0012__x0001_ÊÌ7A\u009fY_x0012__x0001_Rà7A\u009fY_x0012__x0001_ÊÌ7A\u009fY_x0012__x0001_\u009aÔ7A\u009fY_x0012__x0001_ÊÌ7A\u009fY_x0012__x0001_ÊÌ7A\u009fY_x0012__x0001_ÊÌ7A\u009fY_x0012__x0001_ê_x001A_8A\u009fY_x0012__x0001_Rà7A\u009fY_x0012__x0001_Rà7A\u009fY_x0012__x0001_\u0082U8A\u009fY_x0012__x0001_ÊÌ7A\u009fY_x0012__x0001_ÊÌ7A\u009fY_x0012__x0001_Rà7A\u009fY_x0012__x0001_Rà7A\u009fY_x0012__x0001_\"è7A\u009fY_x0012__x0001_Úó7A\u009fY_x0012__x0001_Rà7A\u009fY_x0012__x0001_ÊÌ7A\u009fY_x0012__x0001_Rà7A\u009fY_x0012__x0001_Rà7A\u009fY_x0012__x0001_:ä7A\u009fY_x0012__x0001_Rà7A\u009fY_x0012__x0001_Rà7A\u009fY_x0012__x0001_Rà7A\u009fY_x0012__x0001_ÊÌ7A\u009fY_x0012__x0001_Rà7A\u009fY_x0012__x0001_Rà7A_x0001__x0002_\u009fY_x0012__x0001_ÊÌ7A\u009fY_x0012__x0001_ÊÌ7A\u009fY_x0012__x0001_Úó7A\u009fY_x0012__x0001_b_x0007_8A\u009fY_x0012__x0001_ÊÌ7A\u009fY_x0012__x0001_ÊÌ7A\u009fY_x0012__x0001_\"è7A\u009fY_x0012__x0001_ÊÌ7A\u009fY_x0012__x0001_ÊÌ7A\u009fY_x0012__x0001_Rà7A\u009fY_x0012__x0001_\u009aÔ7A\u009fY_x0012__x0001_ÊÌ7A\u009fY_x0012__x0001_Rà7A\u009fY_x0012__x0001_Â÷7A\u009fY_x0012__x0001_Úó7A\u009fY_x0012__x0001_Rà7A\u009fY_x0012__x0001_Rà7A\u009fY_x0012__x0001_\u009aÔ7A\u009fY_x0012__x0001_\u009aÔ7A\u009fY_x0012__x0001_ÊÌ7A\u009fY_x0012__x0001_b_x0007_8A\u009fY_x0012__x0001_úA8A\u009fY_x0012__x0001_ÊÌ7A\u009fY_x0012__x0001_Rà7A\u009fY_x0012__x0001_Rà7A\u009fY_x0012__x0001_Rà7A\u009fY_x0012__x0001_Rà7A\u009fY_x0012__x0001_Rà7A\u009fY_x0012__x0001_ÊÌ7A\u009fY_x0012__x0001_\u009aÔ7A\u009fY_x0012__x0001_úA8A\u009fY_x0012__x0001__x0001__x0002_ÊÌ7A\u009fY_x0012__x0001_Rà7A\u009fY_x0012__x0001_ÊÌ7A\u009fY_x0012__x0001_Rà7A\u009fY_x0012__x0001_Rà7A\u009fY_x0012__x0001_ÊÌ7A\u009fY_x0012__x0001_ÊÌ7A\u009fY_x0012__x0001_Rà7A\u009fY_x0012__x0001_Rà7A\u009fY_x0012__x0001_ÊÌ7A\u009fY_x0012__x0001_\u009aÔ7A\u009fY_x0012__x0001_\"è7A\u009fY_x0012__x0001_Rà7A\u009fY_x0012__x0001__x0002_i8A\u009fY_x0012__x0001_òï7A\u009fY_x0012__x0001_ÊÌ7A\u009fY_x0012__x0001_ÊÌ7A\u009fY_x0012__x0001_Rà7A\u009fY_x0012__x0001_\"è7A\u009fY_x0012__x0001_ÊÌ7A\u009fY_x0012__x0001_\u009aÔ7A\u009fY_x0012__x0001_Rà7A\u009fY_x0012__x0001_Rà7A\u009fY_x0012__x0001_ÊÌ7A\u009fY_x0012__x0001_Rà7A\u009fY_x0012__x0001_Rà7A\u009fY_x0012__x0001_Úó7A\u009fY_x0012__x0001_úA8A\u009fY_x0012__x0001_Rà7A\u009fY_x0012__x0001_ÊÌ7A\u009fY_x0012__x0001_Úó7A\u009fY_x0012__x0001_Úó7A_x0001__x0002_\u009fY_x0012__x0001_Rà7A\u009fY_x0012__x0001_Rà7A\u009fY_x0012__x0001_b_x0007_8A\u009fY_x0012__x0001_Rà7A\u009fY_x0012__x0001_Rà7A\u009fY_x0012__x0001_ÊÌ7A\u009fY_x0012__x0"}},{"$cut":{"chars":54084,"head":"88666ccf7abfbe9cd62eff09ab61b0f6_x0001__x0003__x001D_(n¥à_x0012_ð@ÄËül×;ð@½9ÜC\u008b{ð@\u0090ªÅh\u0098½ï@rB6»p#ñ@°vC_x0019_cpñ@_x0016_¬ì¼\u0083üð@Ç_x0002_00Ó²ð@ÏÉÌ\u008e0{ñ@³\u00948 \u00950ñ@\u009cÿ_x001A_¥Û_x0011_ï@)2óY«jñ@\u009eþDpÃÜð@Â>4_x0017_Ôãï@ëu_x000C_£dÛî@#\u0090\u009e._x000D_ãï@m\u0099c\u0093á_x0007_ñ@\u008a^\u0098D­\u0095ð@÷²\u008aT~1ð@l¯2äOÛð@,I=!\\\u0088ð@UZ\u0088_x0012_¿-ñ@qÎ_x0003_\u0085÷°ð@:m_x0013_à Îð@\u0097\u008fB©áfñ@wîBèÍ\u008dð@õÇîbkWð@ k^^_\u009cð@lmÒ99_x001A_ñ@÷(\u0098Ù.£ð@_x000D_×_x0018_\u007fÞÍð@)_x001B_k,_x0002__x0003_îòð@Z__x0018_:z\u0091ð@G\u0084dðÝlð@ÂY\u0097øÖTñ@ýøU9D\u0086ð@Å\u009bXy5Rð@_x000D_\u0086úº©dð@3_x0001_ºVËOñ@ãÈä\u0089Í_x000E_ñ@i\u0097J_x000D_´7ð@_x0007_;_Q55ð@ÁG_x0011__x001D__x0003_íð@\u0090}3\u0082³Ñð@-_x0011_s-öÌð@Ì7Q\\®«ð@t_x0018_¦K³óð@ÔäGT¨ªð@Ä8ìZ,ñð@À)Ìn\u0086Eñ@_x0005_&½ì\u0090Hð@kñ_x0006_\u0094%\u008bñ@Ø\u0083\u0099_x001D_«þï@¶_x0010_ÐH_x0010__x0010_ñ@kÞ0\u0085>_x0002_ñ@ÿU{ÞÏ;ð@_x000B_Ø_x0011_\u0092\tßð@±FYª¦Áð@z\tet\u008bFï@¿\u009eã¦|\u0088ð@ú3ÝP·ñð@ÂÎ4d_x001B__x001F_ñ@ª¤¾K\u0085/ð@_x0001__x0002_t!HV4\u0088ð@N2a¦wDñ@ù\u0089_x0017_ýræð@ñO%7¯_x001F_ñ@LùÎ¢D_x0012_ñ@\u0095Ó²çØ_x0005_ð@X×\u0092U\u008apñ@¤kk\u0099}úð@Ú_x0003_÷S_x0010_\u008eð@-T_x0012__x000D_{ßð@³SöÐ_x0013_àð@Àâñ²iLð@D·õ)\u008fÞï@_x000E_Ó\u00990ûpñ@$_x001B_ß¿öið@_x0014_\u007fk¬Ð_x0017_ð@÷+_x0004__x0016_Rtð@kNx¬Êzð@B_x0012__x0018_Ôðcñ@Ý_x001A_¬£\u0091~ñ@MÑÁ¿`Õð@íèÔ¥Séï@zoáÝsùð@T_x000C_z=ú\u0098ð@¶±c\\7­ð@6ÂG\\_x001F_\u0097ð@}.SÃ®?ñ@_x0012_\u008btõ;Êð@_x001B_G.\u0091R\u009cñ@ÙÐ?Ë¬\tñ@¨_x0018_\u008c¥\u007fçð@Rm´f_x0001__x0002__x0001_lñ@UlúúÙVð@Ä\u0091\u0095k&Øð@´\u0098;à_x000D__x0004_ð@\u0088\u009eºÑKùð@êMÚKáÃð@\tÝ¦Âà_x001A_ñ@ê#Ñ\u00824Qñ@·1â\u008d\u009fÒï@àô_x0011_,!åð@aZYñy_x0004_ð@\u0089Ñ«¥÷_x0004_ñ@ÓDH \u008dÈð@ÆÊ_x0015_­·îð@\u0092P^G_x001B_Dñ@\u0084#\u0090Ð74ñ@,½\u007f¡ÔÄð@¹\taáMËð@Þ\u0085Æ<`_x001A_ñ@T\u008c´_x000D_O5ï@0o6¬_x0017_mñ@|@ÇI$êð@V^_x0017_U_x0008_·ð@°P_x0003__x001D__x0004__x0008_ñ@½óªÇ9$ñ@\u0098ïCmµ4ñ@-'\u009eìWÁð@<Ï÷ÑÄRñ@!_x0001_¥Mß\u0080ð@\"µÊTªRñ@\u0090&â_x0016_Ñ'ð@<B\u0098Xi-ð@_x0001__x0002__x001C_ÚÜ_x0017_(\u0086ð@HÛ\u009bÀ\u0090-ð@2Hïú±\u0091ï@õ·?Ã_x0019__x0017_ñ@ *Ã¸_x0005_\u008dñ@u¼íG¢:ñ@ÝÃ)\u0093ÂLð@n\u0090ï©\u0092_x000F_ñ@÷Æ\u0080a\u008c+ð@ØÀ#øc£ð@x±\u0095æP¢ð@z{\u0086¾¶Ãð@Þ_x0016_z\u008eo^ñ@aJ_x0014_\u0088_x0003_§ð@bµî>\u009f/ñ@\u009dg2ÐGiñ@Î\u009e_x001F_vÆ¹ð@SOµÝûçï@aàH+V\u0082ð@£_x0006_Öh\u0080_x0013_ð@\u0092­?\u0097¾±ð@¹Uó\u0092'\u0088ð@\u007fªÝó÷Xð@îX§\u009c_x0016_¹ð@^\u0083\u008a¡lTñ@_x0012_T&(·Eñ@êUÉ?Û$ð@\u008a´\u0089\u0087ìAñ@_x001C_?_x000D_«_x001A_Ãð@åÃ~\u0083\u0081Áð@¢ü)Úì$ñ@Ò}YU_x0007__x0008_ø>ð@·_x0006_®ì÷Hñ@¯\u008b4\u008cè\u008cð@p<À\u0095_x0002__x000C_ñ@t»Þ_x0013_qfñ@*\u0095\u0096\u0095è\u0094ð@¾\u009dý\u008a\u0085\u008að@Í\u008b²°\u0090Äð@¼¿\u0087ðí¸ð@u\u0092_x001E_dñÆð@®ÜÏ«ÈÖð@\u0082³xB_x0014_Üð@m_x0001_Æ_x0005_\u0080½ð@\u0085Ò8í{åð@*\u0094Ð3B\u009að@ùF\"\u0096%Bñ@d=CèX6ñ@\u0087öùâ5_x0007_ð@K_x001B_iPëgð@ìÓ<\"$\u009fð@5?Ï\u0098~âð@Ð_x0016_t}_x0013_xñ@\u007fãMqºÀð@_x0015__x001D_³èn%ñ@¯îfâ/Gð@g_x0004_ycï%ð@_x0006_\u008d\u009dC_x000B_Gð@'_x000F__x0017_Ìê¿ð@à«_\u0084dáð@FÑ_x0017_2ª\u0088ð@¯§¹\u0094_x0010__x0016_ñ@_x0003_Ã7S_x0017_Rï@_x0004__x0005_\u0084¦\u0097%ýDï@÷\u008erÀ`«ð@\u008c_x0010_ø/ú\u009eð@Â_x000C_¤\u0096û©ð@w}°]_x001E_çð@`íÀO\u0091Xð@L\u0096_x0002_\u0081Ò¶ð@æ\u0088\u0084\u009f\\Üð@¸·\u009cQl¥ï@ãæ_x001A_\u0096_x0014_Oñ@\u009d9V\u007f\tið@ÿ\u0093\u009açÒ1ð@È\u008a\u0093|>Ãð@&KMuóîð@Q_x0001_Ò²híð@(Ö\u008aGJ\u0095ð@T¿¥_x000E__x001A_±ï@\u0080sQ_x0013__x0004_tð@àä_x0018_\u0098_x0005__x001F_ñ@Ù+ÑZL]ð@NÉaÎ_x0019_\u0098ð@êu\u008e\u0081¯_ð@\u0091>\u0084\u0095¨_x0001_ñ@3ïví_x0008_*ñ@m\u0099\u009c|'²ð@ra¹IN\u0088ï@îVc¢W?ð@_x0016_å\u0089\u0092WÔï@\u008cL¡K_x0003__x001C_ð@åèÌ\u008aò¹ð@qj$¹S\u008dð@i{Aî_x0001__x0002_YIð@ª_x000B__x0004_ {\u0081ñ@µõ\"\u009bÊ_x0001_ð@¶¹ÚÑû_x0019_ñ@âC¼%êsð@ÐæSA²oð@ß_x0012_ hl ñ@\u008dë¤_x000E_\u009d(ð@\u009f\u008a7\u008c¶tñ@«\u007f¢,\u007fÆð@¬_x0005_ìÉéØï@RÁ\u0083.°\u0090ð@ºGhz\u009f\u0091ð@è¿Æû\u0094ûð@õÿîö_x001A_@ñ@ÊW\u0088Jª\u0085ð@îµ¥\u008b£Åð@_x0015_YÓ`ä¾ð@[gÁS\u0090³ð@\u0081ÙO_x000D__x0018_©ð@KkpNþÁð@³b¥Ó\u009e_x000E_ñ@n©XÕÅØð@²´1JÚ\u0081ð@hÿS\u0098²\u0099ð@M\u009fî_x000D_\u0089_x0004_ñ@³¾]_x000E_è}ï@7rÎ\u0087´gð@º_x000B_c6/*ñ@¿òK_x0001_\u0096añ@]ucÚe\u009fð@å!uÁ\u0084lð@_x0004__x0005_XÉÅ+A8ð@Ê´__-\u008fð@s\u0090\u0097!\u0087©ð@\u0099eð¼_x0018__x0002_ñ@Ì\u00891_x001C_o,ð@¯ÞË_x0017_Jxñ@RxP\u007f¹ôð@\u0088ì_x0006_¨_x001F_?ñ@_x0017_xP¯\tòð@Cy8`.ìð@s\"îwç_x0001_ñ@\u0088\t?_x000E_:\u0099ñ@\u0099ãÞ2}Oð@\u008f¤ÂTfèð@_x0014__x001B_$ÖS]ñ@\u0094wÞý,_x001D_ñ@t5È²g\u009dð@±­\u0085à\u0080Bð@s\u008cv_x0019_Qtñ@_x000E_®\u0089A_x000E_\u0094ð@üý\u0098¡ éð@1bb9\u0086lï@Õ Ú\u0083ø\u0089ð@#Mù\u0089_x0016_¬ð@ª_x0002_@P|±ð@'o\u0097E_x0004_£ð@_,¬v_x0003_êð@Õâ¤ÕòBð@ïw_x0012_±¯¤ð@Ú)SZq¢ð@8°_x0008_Axæï@cÚ\\,_x0002__x0003_-sð@_x001D_\\\u0094)àÙð@$xvk\"çï@ç\u0091Â\u0096ÂÔð@@\u0085h\tÏÃï@\u008f]Âó{ëî@_x000E_\u009aÀ\"\u008b`ñ@íG_x0005_fb_x0001_ñ@`ÖÆÐ_x0011_ýð@\u008e_x000D_Ã/j:ð@-éÌ_x0003_G®ð@á¥_x000E_`_x0004_¤ð@V+ ±*cð@åyÌ_x001A_áºð@ÛöÈ_÷\u0091ð@¥Â^Å\u009a8ð@\u0085£ ß¤ÿï@³àªú\u0085 ñ@³\u0082=â_x0002_8ñ@_x0012_ä\u009c½evð@¼X_x0017__x0001__x0018_ûð@7¶LÉ>Áð@üâPyftð@\u009f\t)Þêøð@âç.X3_x0017_ñ@\\t¢_x001B_sêð@xô_x0018_\u00982¬ð@µ_x0010__x000C_Y_x0018_äð@\u008bìÄ(a¸ï@\u00930Ü¿oìð@á_x0002__x0013_Ä¾oñ@Y¶Ì1\u008e_x0008_ð@_x0001__x0002_$_x001C_+UÆæð@Í\u0095z\u0097 ÿð@bLU_x0005_Ï\u008eð@\u0081Wo\u0083L/ð@\u0086:[-à#ñ@_x0001_v\u008d\"·mñ@,\u008d­\u0080qÑð@rv±\u009b\u0096_x001A_ð@úÈîí¤\u008að@Ý_x000C_7_x001F_-rñ@Õ¹\u007f³-_x000F_ð@åËÞ¯üuð@Ùû%B_x0005_\u009cï@D\u0082"}},{"$cut":{"chars":52098,"head":"3094da371453bfa25682d49cdeac2581_x0003_\t,®lgu_x0015_ï@Ãä*¸÷Wð@ù1}\u0085_x0001_êï@vö^_x0004_ÿ²î@ÜF|Nãaï@{4ÿ­P3ï@_x0014_­½_x001D_ÛUð@_x0005_Yçu3,î@_x001D_¸áPÚ/ï@åã_x000E_3\"_x0008_î@\u0098Àl\u009e\u008d\u0085ï@<hx(»_x001E_ð@\u009có_x0015_¡ÊVð@þ_x0012_2>_x0013__x0018_ï@,UI\u0094ø\\ð@f[_x0006_W  ï@ùu_x0010_½®[ð@ÊÖ\u009f,\u008e_x0007_ð@_x0003_-_x0007_\u0085ãÍî@A¤_x0002_\u009aü\u0081ï@D(NU7Oï@º_x001F__x001D_Lyöï@RÅ_x000C_ûAÀï@\u0092ÿ\u008aYËÆï@¿(\u008aÀGÌî@\u0093§öúÆ\u0094ï@³<hS\"\u008fï@Êº\u008cÞ\u008b9ð@Õ_x001C_Sð}jî@ÙÞ\u0082§Koî@ms·tGÐï@Üz È_x0005__x0006_afð@5øJe$3ð@`(ÜZ=$î@_x0001_9Pw$_x0001_ð@vïmøµ\u0098ð@0Î*v¢4ï@8Õ2\u0091ïEî@æÛE_x001C_w|î@¢zö_x001E_\u0081íî@K;,åpBî@àn#g\u0092\u0088ð@yd\u009c_x001D__\u0081ð@\u008c3îlã{ï@Géuè2)ð@ðA§_x000B_\u0087\u008dð@\u008b_x001F_Q«´µï@¬;u\u0087I\u0090ï@\u008f[³}ÕKð@t£2ÜÅ¼î@ï_x001E_m_x0003__x0004_¸î@ðüÀ*Ü_x000C_ð@¯¶¡2_x0004__x000E_ð@¨\u0083Pv_x000C_Tï@Lõ'\u0091\u0085_x0002_ï@ikØ\u0085Ú·ð@NóF~T¤ð@ôü_x001A_É_x001F_¦î@Ý5¥_x001F_ç î@®Ë\u0088Í Îï@_x001D_èø\u0081Y#ð@òGhI²_x0010_ð@?Ç4Eûªï@_x0001__x0002_ÿrÂ[³,ð@Qá\tÅ0èï@à`_x000C_ù_x0012_\u0092î@_x0001_Mq8ù\u0097ð@,~§IØ(ð@²\u0089c!ù¨ï@Kó²æt_x0017_ð@,{\u007f~f'ð@*_x000F_{älüï@Î\u0094gè<uî@¾I(5°\u0094í@0ÞÏûíßï@_x001E_\u008d\u0089©V6ï@_x000C_Xí_x0014_\u008bÉî@ÜãgD\u008e_x0012_ð@ºZ Ã_x001C_Ëí@Ë8_x0017_·e_x0013_ð@ý¤ÏW37ð@_x000E_mø8\u0082Ýî@x}{/_x001F_$ð@[\u0080_x001F_MÒ¸î@\u008aRo®³\u0090ð@\u00911]_x0008_1\u0096ï@ÀÞ3»\u008e_x001D_ï@\"¯_x0005_ù_x000E_fî@[Ä_x0006_îÁ(ï@*Þ¨A@¼ï@wØ}Ä\u0088_x0002_ð@\u0080\u009bÿ³²\u0098ï@ëèD>¶£ð@rxF¸ô\u009cï@|°_x000F_ý_x0001__x0007__x001E_=ð@](\u0089h\u008f_x001A_ð@ì_Áð\u008b_x0003_ð@QØ1õ1#î@Í_x0001_ô\u0089²êî@cl_x0006_Æ¹rï@v8_x0006_\u009dèûî@·_x000C_Ý8\u0084_x0002_ð@ô3­·_x001E_ýï@®»`k}¬î@ùEa\u0099Ýäï@Y­Ñ_x0011_=Óï@\u009b6_x0010_°Æoï@àGö¸7£ï@G_x0004_ø_x0014__x000F__x001D_ð@MAþÔ\u008b_x000C_ð@:|\u0097©Oãî@ôäÈNbñî@¬Ãn\u009c_x0008_®ï@_x0011_¡ÆÂ)øî@þÆ9*Nvð@õ_x0005_\u0096ç\u0082{ð@Õ\u008aC_x0003_H&ð@]¥ëGÁ3ð@ì#bºýöí@~à°B\u0089_x0001_ï@_x001D_Ge!_x0006_Ùï@3ÀÌ¹\u008fªï@õä_x0004_\u0098û=ð@)ä_x000F_UV£ï@\u0089Cç\u007f½fð@_x0003_í\u0080\u0082½Xð@_x0002__x0003_N_x0004_²W\u0095\u0092ï@$àÆ]ñ`î@¾®>@_x0001__x0015_ï@Ã¼XÛ'qð@\u009aê\u0090å±_x0011_ð@z_x0016_ô_x001E_Ö\u0093î@Q\u008fs3\u009c#ð@_x0018_ª?É¥dð@\u0093þm'Ì\u008cï@\u008d|_x000D_\u0095_x0007_«î@_x0018_¸u\"Þsð@vøp\u0087A¡î@_x001B_©9°Qiî@\u0094n\u008a(\u0081Mï@,\u0081N¯:_x000F_ð@TõG\tj\u0098î@£\u0095\u009fôçkï@û\u0091tr:îï@·(ÚÅ_x0006_Uð@\u0090uU}ñUð@1\u0097¶UYóï@Àç^çÖnï@Tn\u0096¼_x0012_ÿï@G8²^¬mï@ª_x001F_+_x001E_­_x0004_ð@_x001E_¯T1_x001C_Rï@î±çÿp\u007fï@f]_x0015_\u009fµ~ï@p_x001A_õ_x001F_ø\u009bî@\u008e\u0093ÐÂ Ðí@ê6-æþ*ï@à\\á÷_x0001__x0004_Þ\u009fï@_x0006_\u0087\u0095[_x001A_\"ï@\u008e_x0001_Ü= +ï@´Ch\u009cï]ï@t_x0006_Ç²\u0093Åï@/ß_x0013__x0016_\u0080_x0001_î@\u0084_x000B__x0018_§Ñcð@ú%ôLÌèí@Y_x000E_ÙVthð@_x0002_F<ÔµEï@_x001D_ïË_x0014_¬aï@ÇèB_x0011_\u0088\u0092î@_x0003_&i_x0011_ò_x001A_ð@WS.G_x0004__x0010_î@ÌÀ6'_x0005_,ð@>[\u008e¤Ãîî@µHh«qßï@\u0095\u0099hêÈçï@ÜWå£ø_x000F_ð@è38pÔ)ð@ÒKK\u0085)Tð@&_x001A_\u009a_x0012_`<ï@\u0099%hx?\u009fð@ÖìaÜó{ð@¹Èò§s_x0016_î@\u0092Ñ \u008bò\u008bï@zõ\\âÖüï@R©«\u0090ð£î@\u0097\u0096_x001E_Û_x0005_eï@\u0082\u0096S)%%ð@\u009aö_x0006_Ä\u0091Vï@_x0013_æÜÕ\u0082¶î@_x0001__x0002__x001B_Oä¥G/ð@¸^2)>÷î@¢<_x000E_â\u0096\tð@«B¿CÚ\u0085ï@mãO)ýýí@\\èýü*Õî@z_x001F_ô}.|ï@Sc ±\u0086Yð@¹çÄ´0Rð@±Z#Í)kï@>f©_x0005_\\hð@]\u008c_x0014_\u009eÔ±î@ Â\u0091¶Yòï@½2³\u0089¬§î@I\u0088_x001E_Å _x0013_î@ê_x0005__x0005_éÚ;ð@?ÛvSëpï@L7Qè#}ï@a<Äï<Gð@¤\u008bÓx\u0085åï@|_x0010_@_x0015_\u0085ôî@\u008c\t_x0014_3°¨ï@QLê3_x000F_\u0083ï@ÔVä/Ø¯ï@«08\u008cf_x0010_ï@_x0001_®¬³§,ï@9<ÂB_x0010_)ï@_x000F_ú\u008e÷T\u008eï@í¼ìgªRï@¤ ¿k°_x001E_ï@\u0094d\u009c\u008cÙFð@¸\u0084Îu_x0001__x0002_<ÿî@\u00829Gé¥_x0010_ð@#\u0080_x0005_ï_x0014_.ð@_x0005_t_x0014_òªAð@þx=_x0007_eVð@¯+_x0007_\u008cí=ï@´áÑv6Wî@ÆInû_x0011__x0012_ð@çDí\u0088j_x001C_ð@¬Õæ_x000D_R\u0099î@xußø_x001C_>ð@\u0092\u0088\u0092GÍÂï@÷ü¡5Ý_x0014_ð@\u0093µ¨\u0085ùxï@2y]®P\u0095ï@\u008cù\u008bÌ_x001E_/ð@Ð_x001E_ET\u0087òï@õ_x0014_1¨²_x001C_ð@ôþ2\u009d_x001E_\u0090ð@_x001B__x000E_\u008b_x000D_-±ð@ù\u008aá\u0089:oí@\t% $P»î@\u0096®éb¦±ï@P½ÎVZ_x0013_ð@\u0096Õ$b\u0089÷ï@_x0017_ñå3û_ï@\u008fAÛy_x001A_Að@_x000B_\u0096Â\tÞ_x0011_ð@_x0014_Ëx[­åï@ðÙ¾\u0084\u0092¡ð@T­1¤È\u009aï@<}°«PKï@_x0001__x0002_\u009a_x0008_j7BÔï@«Eå\u009eË_x000D_ï@\u009f._x0016_k~¡ï@:W¸¤snï@òå_x001D_ÒÍ\u008fî@¶è8^U_x001B_ð@MOè\u0099&_x0008_ð@t»\u0082R_x0005_Dî@D½×¸s\u008bð@óüæÏ%_x0005_ð@øð\u008fD*<ï@à\u0091²\u0090\u008asð@:\u0085X_x000D__x000F_Qï@ÂóOÆnAð@Ò_x0008_DQ\u009a±î@X»q\u009bx=ð@î_x0015_%Ë_x001E_Ñî@\u0089Çª\u008eÐzï@Ê®_x001C_¤h\u009eð@Äæ®Þä\u008eî@_x0004__x001B_Ê)I`î@±òuÄØ_x001A_ð@»5\u0092Gö\u0085ð@p?Ï^Æ´î@\u007fÓW'iôï@b\u008co\"_x001F_mð@ý\u0081\u007f!6Ãï@}\u009a\u0097&q-ð@_x0005_\u0092Õ\u0097äúî@.Ô¢_x000C_#Ëî@N_x0001_\u0085ùºUï@sú§³_x0002__x0003__x000B_Ðî@\u0085\u008dIc\u008aÈî@Ïy98D_x0012_ð@®<ÉXÄ\u0087ð@\u009f´²ÉDÑí@ê²_x000D_Tâ_x0001_ð@'`Ùù_x0017_5ð@\u0081¤ç_x0019_Ó_x0007_ð@OägTüÖî@9Jt%ñÊï@__x0013_\u009c©\u0082Hî@)_x0004_Ð_x0011_ñÿî@_x001F__x000D__x0003_°î'ð@å\u009b~_q$ð@g\u0089çñ_x0011_Üî@æ[\u007fauÉï@\u0080ÚôIÃæí@¾@\"óÏôï@«ëÃ\u0098Ë3ð@_x0003_0âp6`ð@)Ö\"t_x0017_¶ï@¤2/_x0014_évð@_x000E__x001D_²O_x0017_\u0095ð@êü_x000C_£Éyð@íñüÓNåî@Ýq\u0081ýÞÃî@b¶í_x001D_°rð@\u008aþÄð½Sð@\u008d_x001B_cÅ=©ï@S\u009coß|7ð@,z\u0090ZÓ_x0019_ð@ù\u0081ÞSß_x001B_ï@_x0001__x000"}},{"$cut":{"chars":66144,"head":"ee4bb5b7a2e4f1c5e84b05bcd9c4dc06_x0004__x0005_\u0099ìÒ'*_x0001_ô@9=¯ß«yõ@=\u0081;_x0014__x0012_aõ@_x001A_\"_x000B_t\u0085¶ô@Í-\u007fª_x0002_\u0085õ@ups_x000F_ðöô@k¢%_x0003_\u009e½õ@¶\u0099_x0008_\u0097q\u0081õ@;+ýU+èó@iJô\u0099_x0006_Íô@_x001E__;â\u0082þõ@5Ud§²Eõ@\u0088¾·\u0095\u0098Îô@}¾ýµå%ô@Nf¼ÃL_x000E_õ@E8ñ»¡òô@óu¸+Y¸ô@_x0005_ßg)\u0091eó@+£äEàÎô@¹\u0083\u0085\u009fÙ÷ô@é_x0018_}\u008e\u0082vô@]ù³¤Âqô@z/.Ñzìó@3Á\u008fÛ~!ô@Yr±U!Kõ@\u009d%Ò¯[¯õ@/·u\u0093\u0099Êô@\u00932\u00855¨Hô@!_x001E_Ôº\u008d²õ@.áNÊ{\u0091ô@L _x001A_³çéó@\u009a_È]_x0001__x0003_òGõ@7\u0092¿uvlô@\\ç\u009e;Å_x0018_ô@½oÊOp\u009fõ@è_x001B_pÞ,\tô@Ö³\u009c^cSõ@oÔç KÜô@&t\u0098j·éô@~_x0001_Z+Ú¨õ@ÛqtBJâô@qä^Üv\u0086ô@\u0095®\u0096H±@õ@\u009dá\u0084_x0019_¤_x0011_õ@l9Ë«\u008e£õ@_x000E_Á'Äúàó@\"Eü\u0093\u0099»õ@U\u0086ú »:õ@_x0004_uøÌú\u0081ô@_x000E_Jø¤_x0006__x001F_ô@\ti _x0002_\u0080_x000E_õ@Iè¢0_x0003_Êô@\u0088\u0092±sJßô@hÅ~ò`>õ@Þ\u009d_x0006_KPøõ@\u0085_x0003_;F¦1õ@¸_x0013_ª\u0089{\u0080ô@Ý¥E*\u0086]õ@H7û_x000F_\u009dÈõ@Ø«eU_x0019__x0015_õ@(É´Ù49õ@n\\¿u_x0002_%õ@t_x0014_58g\u0093õ@_x0002__x0003_\u009do ÅºÛô@ÔçÞ5\u0081Nõ@_x0018_è\"¥¶_x001E_õ@c\u008aÒàÎ|õ@\u008c*\u00829óÙô@Üd_x0014_KÜ\u0085õ@\u0094\u009ae\u0094JÛô@w_x0016_tÊ_x001F_âó@_x0012_¨<È%ýó@À\u008a7_x0001_¡\u0096ô@fë7¸¼êó@1\u00802=\u0090Zõ@]ä\u0085®¦Êõ@_x0016_<_x0001_G·êô@_x001D_BFÐ^Xô@\u008b§E._x001E_:ô@9)\u0098_& õ@\u0080\u0091éÊ9\u0090õ@ÜÆÅ_x000E_;_x0005_õ@\u008fYÕ>F®õ@\u009e;éuvoô@úö¢³_x001A_\u0093ó@[ó_x0014_j\u008c´õ@_x0005_Å\u0086H,´ô@´\u0091>vJZô@=ÔÎÇ\u0098\u0099õ@_x001A__x0011_1éGªõ@U\u0082Ô_x0016_ädõ@ìÑ\\óÆkô@tä}Ïß\u0089õ@ê_x0010_ñÞøÂô@Ö3Ç\"_x0002__x0007_¾tô@\u0092l\u008f¾}@õ@C\u0080Ñ0{ÿô@ªáU_x001E_\u0085ðô@3-â\u0088F{õ@Ý|L\\¶;ô@¥\u0085¹t6\u0084ô@5_x001F_3\u0084ë¬õ@á\u0086#çO%õ@\u0082YÆ)Xzô@ªt_x001F_\u0092êMõ@_x001C_¼¥èYøó@J·\u0085\u009b_x0002_Ýó@_x0005_\u0086p_x0003_ú\u008cô@ÐÅ_x000C_ Q\u0085ô@_x0010_R_x0001_æÖ§ô@âÂv¢Ëåô@\u0096âz\u0095×\u0092õ@ 0À¡å8ô@§»/ \\_x0006_õ@æ¡WÓùzô@­_x000B_ÿQ_x0006_Xõ@^\u008bñ\u007fCèô@¿(e±CÙõ@â_x0012_;3ÄÛõ@±çá¤òCô@ÜcÑÆQïô@_x0004__x0015__x0004_ElÎõ@_x0019_\u0091\u008d\u0098Ç¿õ@¾yí¦\u0081Ùô@_x0013_Ç\u008cÓp\u0085õ@§_íþñ_x001B_õ@_x0001__x0004_Nì×+k\u0098ô@\u008d÷î×Ø_x0013_õ@»\u0082l_x0016_zÞô@^_x000D_Ä_x0005_\u007f\u0080õ@õ±<+Ëuõ@´Lb*_x0003__x0017_õ@v÷öçÆ~õ@¹ª_x0007_ Ë_x0014_õ@&\u009d\u008fC\u0083Jô@²ÐR_x000C_¨\u0089õ@nü_x0007_\u0087m\u009aô@_x001C_+ ]\u008a_x001F_ô@$Ñ.p7'õ@\u0094Ã°_x001B_­\"õ@pH%('\u0093ô@ªënµ\u009f®ô@µZO_x0010_)\u0083õ@NÂ¦irúô@½kä_x0011_ÞÔô@_x000B_6Ù×¨jô@ô­óìzèó@)´øÿ_x0019_àô@î_x000C_*§9]õ@àÛiuª«ô@>\u008doð\u007f¾ô@4C_:\u0083·ô@Å5CØÜSõ@\u0092_x0015_|\u0096\u008a_x0002_õ@_x0011_4#_x0016_}¥õ@WÆ_x0003_\u008aÃ§ó@(¶\u0083_x001A_ó\u0083ô@WSå¸_x0003__x0004_Ì\u0097õ@_x0014__x001D__x000B_¥V*ô@´àà¼¦\u009bõ@_x001A__x0013__x001C_º\u0092\u0083ô@\u008cHo\u0089ajô@7¹·Îò/ô@#\u008a_x0018_çL\u0084ô@°e¦5ËÜõ@Ã_x0003_,:tÄô@¢ö6Ì_x001A_zô@÷Hw·<Tõ@\u0091\u0097é{Ó®ô@\u009e5}5¥úõ@Æ_x0003_4_x001D_Z|õ@i¬_x0017_=mÏó@¸8\u0082:gôó@N\u007fÞ»_x000D_5õ@zI¹|s_x0017_ô@â_x001D_«\u0097XÓó@_x0001_|T_x0002_²rô@)R+ÅÞâô@j_x0006_<çìBô@þkop¨_x001D_õ@>_x0001_H\u008b_x0003_\u0090õ@\u0096Ee\u0089_x0018_¢ô@_x0015__x0014_\u008b\u009dñÄô@_x001C_îïæ_¾õ@L\u0097Ú<¡\u0091õ@\u0083 &s×Éô@mp_x0007_BHòó@Á¦Îé\\:õ@´ÄÍ\u008f¸Àô@_x0001__x0002_A\u0097Yî3£õ@ÝÉÞM_x0008_Lõ@_x001F_ËÚ³Ùqõ@9Ò\u007fª\t_ô@½Þ\u007fà-\u009fõ@`ýéø_x000C_\u0086õ@\u008fÊA5·_x0008_õ@·CöìJAõ@úèáÖOyõ@î_x0002_øßj/õ@¦§acýÉó@ó\u0096°érLõ@åÃ\u0085\u0096_x0002_¸ô@¬_x0017_]_x001D_Ü#ô@ñä_x001B_Å_x001F_Æõ@¹h\u00976EMõ@ßÇêfW\u0096ô@Î\u0099\u009aGi_x001D_ô@\u008a\u0098Èã_x0008_Tõ@&\u009eY_x0001_\u0090nô@v/«_x001E_peõ@ñ\u009dô\t¬Äô@\u009dún¬ç_x0010_ô@á¸ýÕ6Êô@çOMâÎ¡õ@8Ào_x0004_ë>õ@®/Ù×\u009e_x0017_õ@ù\u008bé_x0014_jÒô@#_x0001_Ù@ÿzõ@Þ?»Ò³@ô@_x0008_EÊ@W¶õ@h_x0010_-Ì_x0002__x0003__x0019_\u008fô@}üª\u0092¤\u009cõ@A§g_x0005_]\tõ@A¿c8-°ô@­å\u0090\u009d_x001A_{ô@Î)F_x001A_~Ïõ@êhÊ@µÝô@$lÉ\u009ehæô@ð¼0\u0087)ïõ@äP!O_x0018_\u0099õ@/_x0016_yÔáîô@\u0097*;¬_x0011_\u0097õ@Åj¡r\u0084\u0090ô@ôYÕ½ò¨ô@£7\u0091\u0081Dàõ@7_x0005_kE7\u007fõ@êØ~i3êô@_x001A__x0010_Vc¯ìô@\\õ¼Nc»õ@VÅtZ£ñõ@\"=_x0011_ËN;õ@\u0099T\tì\t_x000E_õ@kì_x0004_7g7ô@*_x000F_\u008a2,Îõ@\u0094?\u0090ß\"\\ô@ê««*p\u007fõ@(\u0099ù7w\u009bô@ðýö\u0087«­ô@_x001B_1É±t_x0003_õ@\u0085_x0001_m§ß_x0001_ö@Uµ²­¤Bõ@U(V%X#õ@_x0001__x0002_þHQ|vOô@Ú_x0001_yêã?ô@éþ}\u0082íÐô@À_x0018__x0007_Qýaô@ek×ø\u0085_x0019_ô@_x0013_SdecIõ@\u0092B\u008c\u0092#©ô@º9\u0096í_x0011_?õ@2jÔÏ0Áõ@\u0085Ç\u0089e_x001C__x0010_ô@\u0096úc,²÷ô@Ã¤ãÃ!×õ@\u0093Ñu)\u008eÂô@¤ \u0097S_Øó@Ð^Dùl\u0083ô@ì_x0015_\u0098\u0089¶Ôó@´öÅÎ+_x001D_ô@\u0096p\u008b\u0091V\u007fô@\u0094_x000B_Ï¬µlô@_x001A_º\u009cÁaÌó@\u009bzõ.·/õ@çþ\"R_x001D_Xô@­ó(Áºoô@¿\u008d²_x000D_©^õ@\\ÑºþO0ô@â_KDEÕô@éI\u0093®Ó^õ@¢83¸_x0006_ëó@;&®\u0099çãõ@Dû·üòÞô@&_x0015_3Ø_x0006_dó@5_x0013_,Ì_x0001__x0002_Gµõ@X¼ ¯\u0088rõ@\u0090n\u0080_x0019_D-õ@¦ølg\t!õ@÷\u008a\u0098ãª\tö@BºjVçàõ@_x001A__x0006_ÍÓÄîó@_x001E_Å»;wëó@óm×@ìçõ@\u0081È_x000D__x000F_\u007fçô@*µª\u007f2@ô@X&\u008eÎæ\u007fõ@ _x0010_ÀÔd\u0091ô@\tÁ¡_x001E_¿íô@\u0098+p\u0097WNõ@\u0080\u0080±³·hô@ÎÖ,Ô~ëô@_x0019_Ê¥\u0087a_x000C_õ@À\u0092_x000B_Ð*\u0098ô@_x0010_c_x0017_àBîô@+\u0081.g°ró@D¼5X¾cô@\u009a<Ì_x0010_«æó@¨dã:ö|ó@\tá_x0018_\u009fÅËô@ª>_x000C_\u008dÙ*õ@Y¬{\u0084=¹ô@5%Xy_x0012_Zô@àF\u0092»\u0089\u009cõ@\u0094_x0019_@Fæëõ@ò®b_x000E_ûãô@F{N¬\u0090uõ@_x0003__x0004_£ÐÂñ¿7õ@\u009e­\u008c}l\u0098ô@X¸B1ð_x001F_õ@ø_x0001_àÛÐ_x0005_ô@ìÃ®Á_x000E_\"õ@\u0080O\"wLõó@_x0015_k¹\u0093QÀô@a¬âñ[\u0083õ@\u0087SýÊÊÆô@\u008bË_x0003__x0016_\u0095þô@«kîÂ!ûô@Jÿxè_x0017_{õ@\u0094ºÉÔ\u008fòô@>{\t¯\t¥ô@ònÜ_x0008_\u009aT"}},{"$cut":{"chars":52206,"head":"f321831f9375afbc1976b1b333d9dd16_x0001__x0002_\u0085k\u0092ïf_x0005_·@2r;5Ê_x001C_¸@*)xÕóÏ·@[øeÈØ\u008c·@Î=_x0011_e$\u008c¸@ý;´\\K\u008c·@B%2Q¼Ý·@_x000D_w\u009e«a\u0088·@ó_x0006_Ú©»K·@\u008e_x001D_H÷%½¶@_x0017__x0003_\u0091\u0094uc·@s'ÃzÝM·@Æ§¬{6_x0006_·@\"½¥__x0004__x0007_¸@ì÷'Nã³¶@ý±³1\u0084Ç·@eÕtE_x0014_W·@\u0085.\u0080_x0013_ú³·@_Á!&¸Ë·@ 0©ëÂs·@bË·Ãèº¶@»=Òê½1·@îé=\u0080çã¶@ü*%\u009eìe·@_x001A_#¤óâÁ·@ÝÂ>\u0087k¨·@Ü<]\u009dm\u0087·@\u008a1ªª«ì¶@\u0097ld_x0001_Ro·@_x0008_ë\u008a2o\u0094·@tO)nH!·@às±S_x0001__x0005_ÄÃ·@à_x0015_¾_x0012__x0005_h·@LE_x0001_q_x000B_c·@/\u0086_x0019__x001F_L(¸@¿r´\u0090p\u007f¶@¾cï\u0099_x001B__x0004_·@_x0019_\u0092ÑÛo6·@§uX¢áÁ¶@ÎÉùÿ\u0092#¸@|\u008f_x0003_Ì-W·@JRª18m¸@wÌ\u008aI§}¶@_x001B__±!@ì¶@3èvÒª#¸@®ë-eÖ~·@_x0012_N\u0082#bÈ¶@ó\u0099_x0002_c_x0017_À¶@\u009b0Ü¡Ü_x0003_¸@á>^_x0014_£\u0092·@É¾A\u0093_x0003_ ¶@)k\u0087b¨_x001A_·@\u0088-gÖ_x0015_j·@@\u009bÅ¢ _x001C_¸@T\u0095p«Fv·@Wè\tö¼¬·@0·_x0018_!#Ê¶@ý_x001A_ïOc_x0007_·@pxmð5r·@eéô0³µ·@\u0087.ï_x0012_IW·@9pîçÏX¸@\u009e±ú\\¢Á·@_x0002__x0003_\tÌSG7%¸@\u009fÎzj7,·@\u0085+_x0013_°_x0015_f·@Å\u0093í_x0018_à_x000F_·@ª\u0098_x0006_åeV·@Ú¤aÌ\u0080°·@\u0097¶\u0084ý\u0082-¸@<ü¦58Ñ¶@*£_x000D_ï_x0002_~·@\\\u008dKÊ%_x0013_·@i©Ö\u008aO_x001B_·@\u0096=³×XÞ¶@FÂDShQ·@¯ÕÜ\u0087K0¸@ÖLEÖ#­·@¶38Öæ¹·@_x001E_h_x0015_ _x0008_\t·@éñ\u009ey_x000B_\u0087·@Ð\u0097d%\u009d[·@_x001F_rn²\u0099î·@NXrIU½·@_\u0085nPÄð¶@×_x000C_¼ÙF¯·@+MåÜÓ±·@f\u0097_x0001_­¬\u0082·@þú¬_x001A_xo·@Æ\u0092\u007fmuû¶@ÑZÝÞÚ\u0087·@q!>\u0096©Ô¶@M»¬®\u008f_x000B_¸@l¸ÀPj®·@çÕÈÍ_x0001__x0002_K'·@v\u0081À'\u009cÙ·@ä£\u008a\u0093_x0019_ã¶@!_x001D__x0001_\u0089y×·@ÆDnhÀ\u0095·@ÔN£tz_·@Tp_x0003_@\"Î¶@b5RB\u0088K·@I\u008b<|³ý·@\u009a²\u0087=Wc·@_x0001_I\u009f_x0014_ a·@³÷6éúè·@_x0010_@\u0082æq\u0089·@|äâj°_x0017_¸@ \u0093\u0090\u009c}Ñ¶@Q¾\u0097©_x000D__x0012_¸@a@\u00988£\u0086·@O8\u0080§ ¾·@¡RGeü:·@£aKJ8þ¶@ONe_x0005__x001C_)·@\u008b\u008d8ßTÐ·@\u0092.JáÂ¼¶@åô\u0097½}Ó·@\u009dL`rCÑ·@_x0007_\u008c?¿/M·@ÿ\u008f_x000E_ß*È¶@\u007f.\u009d\u0086ÙÎ·@µñ\u0098ÇÚ¡·@D_x000C__x001F_)ªL·@$jp¬QÃ·@ÃÂ-\u008fÕú·@_x0002__x0003__x0011_µõ>JÍ¶@2g\u008c%ñ\u0094·@P\u0080ð\u0081I_x001E_·@§!#¥!µ¶@àÈÆOÚê·@_x0007_gC\u0099tw·@'÷=5_x001B_E·@T_x0004_ÇL³ä·@?T&ÙmÊ¶@_x000E_ÙB_x0019_\u0087Ë·@_x001B_(_x000C__x0012_´ø·@°j\u008e©Y5¸@ Mc\u0081¿F·@\u008bþ XÆô¶@¿ÒeÓ\u0085,·@q¸\tà\u0081}·@_x0004_#?\u0082\u0099\t·@\"µ_x001B_WH[·@_x0018_:­\u007f\u008f¨·@;f_x0019_¾eq·@5&×ÔP_x001A_·@;\u0081êÚ\u0093_x0016_·@_x001A_qÒÓi\u008a·@'_x0018_xh_x0004_è¶@<$|]¦ª·@ãJ_x0001_Xlú¶@ùè6~_x0007_F·@\u008c\u0086ª_x0018_·)¸@>v\u0083!HÉ·@f¦_x000F_Nß3·@YÊô_x001D_\u007fæ·@Û\u0082øµ_x0002__x0003_?o·@ÒÁ.LMQ¶@üÎ\u0095óô_x0011_·@¾°×¢Æb¸@ºÌ_x0013_&Ñ¸·@[\u0084FqëÌ¶@Ü_x0015_Ñ\u009d¤0·@\u0098\u0096_x0004_å·_x001C_·@ö_x0018_°=_x0008_Í·@_x0016_q_x000B_Ë\u0086_x0007_¸@\u0088(lÅ\u0091¿¶@C¡Ó¢]ï¶@KûXC²2·@Î¿qÜ_x001C_Õ·@¯_x0019__x0004_['<·@(\u0084_x0006_Û_x0012_×¶@%U\u0094_x000E_Ô¨·@z|5Ø¤.·@£\u00899¦±ü¶@Y§ü\u0094Z~·@\u0097 úÞ_x0017_Û·@¯å>\u008e\u008b­·@î_x000E_6âè\u009c·@_x000B_-YèÊ_x0018_·@0!àc±±·@íÒ_x000E_+\tw·@fh\u0084Q\u009bz·@ß\u008b¤\u0092X_x0001_¸@_x0001_©VAÈ_x0010_·@Ü¿_x001F_ç\u0091è·@ÐáÞ&°©·@£ùb_x0014_â>·@_x0001__x0002_Â\u008b_x000E_Fd|¶@*ø_x0006_Þ_x0004_à·@æ\\¸È\u009d®·@Ëg\u0089_Òö¶@à\\iS_x0011_z·@åÑ©5ÞÓ·@®uÑþ\u0083±·@³µ_x0015_>2`·@\u0085î¬\u0093\u0098%·@û~©¿Ü×¶@Ã\u008c¥}\u0081§·@=¯Uçíß¶@ÿÌemÑñ¶@LH{'_x000F_>·@´bwuûÚ·@bÓ#M\u0085ð¶@%±­_x001F_\u008aÜ¶@\u0088\"\u0085_x0018_Ú³·@ÈôH`Ü-·@n;%}õ&¸@Y{PO_x0014_Ú·@ªÑÉ\u0085À+·@>7P_x0013_yÚ·@ó´ªÆå]·@PÒlèê÷·@üÓâþEü¶@¤QÙT«_x0012_·@»Idã_x0015_p·@iä1Ö\u0088ë¶@d!\u009f\u009c\u0082l·@ Ô\u0097_x000D_×#·@\u0089ýûj\t_x000E_:_x0008_·@Ä^þæ_x0006__x0005_·@Ëìnç[¢·@¡£â|_x000B_\u0097·@ÿ_x0003_é·}<¸@Ò_x001B_<\u0098¡_x0014_·@\u0087Òì_x001B_»ë·@®\u0098\u0081_x0014_©_x0007_·@Êsq®õ½¶@_x0019_Ç\u009a\\ª\u0098·@4³ÍK|N·@.eîSLÅ·@î_x0008_Ü^_x0005_Q·@_x000D_q\u009b_x001A_7ä·@U¡\u0084_x000F_å¶·@_x0006_r\u0097¹=ò¶@\u0098/K­Ý_x001A_¸@ý_x0008_0è_x0004_3·@*+hüd_x000E_·@_x0002_Ë\u0092V§~·@Ã\u009da¤Ìb·@Ìhr_x001F_8å¶@ò_x0001_Á¥ýÐ¶@æ\u0083|ÓZ2·@®+¡ÎH\u0085·@G_x0001_\u0092H¡Þ·@±¯\u009a_x001A_Ù+¸@$?_x0015__x000C_À_x000B_¸@dLDdom·@N´ÔËí_x001C_¸@WÚ\t?áò¶@F\u008cWùY¤·@_x0001__x0004_»ÆÒê\u008dÔ¶@\u007f¾4\u0095ðÜ·@_\u0083Ó#G.·@_x0018__x0015_Â/M_x0018_¸@¿tO´Y8·@\u0081æ_ª\u009dË¶@­ Eäï·¶@fücy+\t·@_x000D_¤CÑ|%·@lÍ\u008b`Þj¸@\u0087éº,\u0086_x0014_·@¤2ðFkÛ·@Á*ß)Åi·@|\u007f\u008b·-z·@j\u008dx\u0092*Q·@ýøÓiLe·@ÕDQ\u007f_x0005_0¸@_x000B_jºI¹\u0096¶@+_x000E_ËC\u0094«·@_x000B_ê³*Å\t·@M§TÅÏ··@k±\u008b=\u0092~·@\u0081¨=E_x0002_S·@ã\u0093%¡_x0003_Ü·@ÂµçCÿr·@DòñWÍÑ·@l_x0002_Éì8°·@©Sq+á_x0010_¸@\u0084|ÙÂ)Í·@Ù×Do\u0086r·@ÓBúsød¸@Ååíà_x0001__x0003__x0007_\u009d·@$\u0090/d\u0080y·@pÓ_x000F_¡I\u009d·@_x000D_\u0088(\u008fÃ;·@ø\u0099¤_x0003_Éj·@,§xklè¶@_x0015_ÆR_x0006_1_x0014_¸@\u0083R\tÕò\u0088·@7\u0091ò\u0085õ\u007f·@ð\u0081\u0097\u0098Dè·@ ßW\u008a§Ù·@_x0011_´\u0080R5 ¸@îq7z_x0004_i·@w¾sDtª¶@_x0015_\u0083_x000E_²_x0018_Î¶@3_x000C__x000D_ÇäÙ·@_x0015_\t\u009c·ï§·@\u0089_x0014_p²Ø^·@Â9ó_x0019_R_x0006_·@\u009e/cØ,®·@!_x000D_{þ%_x001F_·@`^»ò\u0080È·@aÂE¯ä¶¶@?Ð/áFk·@_x001F_J_x0018__x000B_ý\u0087·@Ël§_x001E_ì\u0091·@¤ô3(EÉ¶@s½£*ZJ·@¹ ÀJ½¹¶@_x0005_N\u008ewp_x0012_·@\u0095¡%_x0002_2_x0014_·@û[D­EÚ·@_x0002__x0007_\u009cNâ_x000D_îE·@Ò\u0089\u008cÊ\u0081\u007f·@È_x0019_i\u0082\u0081Ã·@_x000C_:Kªè%·@ãriýÀ_x0002_·@HBAÅ!_x000C_·@Ê8¦_x001C_\u009aÓ·@^K\u00976._x0005_·@_x0002_â\\ÁnR·@G¡ÕbIí¶@_x001E_'Û\u007f[K·@"}},{"$cut":{"chars":53664,"head":"3b7fc6dfe7504dc95fc850c8a2f4cff7_x0001__x0004__x0019_°¥±ð=·@Y\u0095°¤à§·@ã_x0016_7»_x0015_\u0086¶@\u0087O\u009a\u008aÌ2·@í_x0011_Ì\u00899½·@Uâ\u0097ß\u0095Ò·@Dï\u0098\u0080_x0016_J·@{X^ð¢_x0010_·@\u009f]U\u007fîú·@å_x001E_=\u0083\u0085 ¸@X\u008e\u0097_x0003__x0005_Ö·@Ñ\u008d,º´}¸@N\u009f\u0095×i~·@AÖQÚ\u009f/·@=G»_x0014_æÄ·@¾_x0008_j\u009dx£·@÷_x0008_Æ\u0099î4·@M\u0089Ü\u0098â\u0096·@\u009fX_x000E_Î_x0012_\u009f·@â¾nÈ\u0099Ö·@_x0008_·\u0089xb\u0090·@W£_x0010_üÃ\u008f·@ÉT\u00933Øá·@ß\u008dA9¦[·@Ò\u009c?|~È¶@_x0002_3}Ý¤å·@µ1­`_x001F_M·@\u0093 çÝf.·@ö_x0005_\u0088`_x000D_A¸@\u009a_x000D_\u008cÆIw·@Ã_x0015_Ó\u0096k¡·@\u0083/\u0098\\_x0005__x0006_è6¸@ö\u0091%\u009d\u0093t·@Ù4§U\u007fè·@»é__x0010_÷\u0091·@ÏÇC_x0014_j_x0001_·@_x0011_¡ö¾{Ô¶@\u0087U_ûI×·@_x001A_näbh)¸@\u0096÷_x001A_'Cf¸@¼gs2¬ÿ¶@_x0014_>_x000B_=BÏ·@_x0016_VØ«Ué·@ú_x0008_Ë\u0085\u0080½·@³l\u009dÞ6_x0008_·@Wc·\u0095_x0015_ ·@¢£_x0003_UN~·@ò>=õà_·@®ö_x0010_þ-t·@<Ý¶_x0015__x0002_Ë·@2@FM»Z·@Î?Å¦ëÐ¶@ViÝÑ¥\u009f·@\u008dÁi\t«1·@_x0003_×_x0017__²\u008c·@6¦v²õú¶@_x0010_\u0080_¼\u008aå·@}ç_x000C_¬ê_x0012_¸@×Ú½\u0086ÛD·@«£RÕ£0·@\u0082²Cv¹ì¶@H_x0004_Èã\u0087*·@È81Eã\u0086·@_x0001__x0002_,¾_x000D_H ÿ·@G_x000B_Vfçß·@P_x0008_]'7ñ·@£M\u0085¹§ì¶@\u0089÷\u009d®§$·@US\u0080Ö©4·@\u0080\u009f0;)á·@_Nmëõ\u008b·@;¢0¿e_x0016_·@0[uC\u0089\u0085¶@\u007f,É\u009cÎ3·@ÜÕY\u0099ã ·@ô¬Ø\u0097Tç¶@C#ä§¤Þ¶@_x0018_K\u009e\u0099&²·@Í£,ý_x000E_¨·@ü\u0098\u0081\u008d\u009cÜ¶@Iõøógô·@t¸EÙá¨·@ÖôÆVÌG·@\u008f_x0008__x0001_s_x000B_Â·@Åk_x0018_ÁÎ\u008e·@ñ%äð-§·@¬_x0006_;t_Ò·@\u0093æÔ<a ·@Ïþ\u0080gº\u0096·@ü7íÈáÕ·@§ù9¸Á··@ü0.\u009d_x0019__x0012_·@¶èX·#Ü¶@\u008eÄ¯_x0004_*\u0088·@Çê_x0010_-_x0007__x0008_Ôu¸@Yñ¿K_x001F_\u0086·@\u0089®@0Çò·@èkÄ\u0087:\u009e·@/*Ï|Qm·@Ø\u008bs_x0016_×E·@_:£\u008b_x0016_\u008f·@ºW¦Ó\u0091³¶@_x001A_J¤_x001D_n_x0005_·@Ó\u008aÅ\u0099Zf·@_x0012_`_x001C__x0004_t ¸@²\u0084ì\u009b=ö·@_Ú_x0014_°\u008c_x001F_·@_x000C__\u009b¾_x0015_\"·@·n_x0002_ý\u008c_x0003_·@yH_x000D_·º£·@\u0085\u0082¾_x001E_^\u008d·@_x001D_i_x001D_3Ú(¸@òKãþ¯\u009a·@_x0012_aÊ_x0004_±B·@ã]ô`¯%·@Ã£MÝéâ¶@\u0096Ä\u0097\u0087\u0093_x0005_·@ÿuïDL_x0005_·@8ß_x0001_1¯^·@\u008c0néL@·@_x0006_n#0\u0086_x0019_¸@\u008b§25T²¶@\\¿\u008d9 ò·@ßø±_x0007_ÆN¸@0-¬S+®¶@_x000D_s\u009eS®Ù¶@_x0002__x0003_BCÝ_x0001_®_x000C_¸@_x0015_E6_x0007_õ_x000C_¸@ù_x0005_Äj\u0082\u0098·@s¹+îa\u0091·@\u009a£\u009få\\_x0016_¸@_x0018_DkoCl·@»^\u0088@\u0087_x0016_·@Ýd;ûìÍ·@L|X$_x0019__x001F_·@»\u008f¸_x001A_\u009dÛ¶@2_x0010_\u0096Ä%··@_x000C__x0002__x0015_\u009bª_x0018_·@\u009d7Æ&\u009f6·@éÔxÈ¡R·@üK._x0004_Zo·@:vK^'¡·@\t¨ (\t_x000E_¸@tèz´4Ç·@6¥æ¹\u009c ·@f³ål_x0012_¤¶@_x0016_@p3«<¸@Tm¼\u0090È*·@D-Ðx\u008f\u0084·@_x0010_ûõâæ_x000D_·@õð¶_x0007_\u00919·@ù_x0004_?¸Þ>·@¦\u009a\u0086²ÖÑ·@à}ùzé$·@ÓÒ_x0015_uOü¶@nË¹éó²¶@ôDØÄ´_x0002_·@U_x000F_ëã_x0002__x0003_ìª·@Ü²\u008ei_x0005__x0008_·@2û®\u0097Ce·@èGDÄÞ_x0005_¸@,+%_x0015_'_x0014_·@iÄØüN_x000F_·@\u0080ñ_x001D_½Zq·@õ\t7¿wN·@àÑ^qú#¸@îýÂì[\u0099·@_x0006_N_x000C_Ð\u0092_x000C_·@ãB(v\u0090\u0098·@NFCi\u009c\u0088·@5/èÂ°Ê¶@ò^\"\u009eå5·@\u0098Cxé_x001F_ð¶@q_x0001_Áý+m·@\u0091X'C¥F·@­#Û:_²·@û\u0091$Åä\t·@y\u0085\u009bfÂr¸@ÉÅè·kL¸@T\u0092\u0091w\u0083^·@_x000C__x0013_i\u008c^j·@\u0085b~sÞå¶@\u009e\të¢¢D·@Û%yr©o·@°oÌ¼ á·@r\u0099_x0015_ö\u0086\"·@\u0099\u0084]¶_x001D__·@Õ£ÿ\u0092\u0090ó·@Ì¡±_x001C_tÌ¶@_x0002__x0005_¢­\u0092ÿ\u008dV·@âÆeU+Ä·@\u0096\u0080I_x001A__x0001_\u009c·@B_x0017_I\u0089Ú7·@ tæO 9·@}þJ\u0089_x0006_2·@_x0002_\u007f/)\u0080ù¶@_x0013_Zx\u007fêO¸@P_x000D_(<*à·@\u008f__x0003_0A³·@_x000F_PÆqã,¸@ã\u0095²³ÁB·@æ_x0008_\u0088(éñ¶@j,B\u0097\u0082_x0005_¸@¥­å_x001B_\u009dý·@í4Û¯_x0019_\\·@QÞó²nà·@8Ð×Ë ö¶@Ù*Uê;¥·@t\u009a_x0004_mf-·@ûn4Á_x001D_¸¶@¸ï½G¾_x0014_·@:ýêþÙ8·@jâ(_x0016_?¤·@u¡xG á¶@Îë_x0008_\u009dr%·@¥L\u0095«3*·@_x0017_Óà\u007f\u0099Ô·@ÚóQ4_x0008__x000E_·@­_x0011_ç\u007f\u009f_x001D_¸@_x0002_]Î\u009c_x0018_¶·@_x0008_æó0_x0001__x0003_=_x0017_·@eÜ_x0016_ÿò£·@öJü\u0095ð¥·@_x001A_\u009e_x0002_:\u009bZ·@_x0008__³ycH·@8æº_x0005_D_x0003_¸@Ö·¦RC\t·@âLãùSå·@ª\u007f-(ÉÃ·@ª§\u008eY­\u009d·@ËSåd_x000D_\\·@¢od\u008b?©·@|T9°_x0002_î·@\u0080Wü6ë­·@oí5@çh·@\u0094*P\u0098O_x000D_·@_x0006_tßn5V·@\u0085ß«_x0019_£²·@½ë¿ª\u0085ç¶@Z=`®½°¶@ºeª6DË·@L_x0008_Ì]o\u008b·@\u008dê~qÃÍ·@­ñ_x001D_¿_x0007_õ¶@mâ_x0011_®±`·@\u0087 ì\u009a_x000E__x001A_·@û\u0090_x0012_7ïi·@Áxh\u0094°Ú·@±'êÙ\u0081T·@_x0016_B0çð\u007f¶@_x0014_i\u0083µf?¸@lW¢\u0084W3·@_x0001__x0002_\u0098ä\u0086\u0084\"_x0019_¸@y\u008dÌK5ò·@\u0094¹U\"öÚ·@aþ\u0096áÕü¶@«~èb§\u009e·@ø­uÙÊ2¸@\u009b¾Ä,S½·@N¬¶¹\u0090\u0087·@@²Ê¢·Ã¶@1èóÆ\"È¶@æ_x000C_Eóf\u0082¶@K\u0083ä\u008c_x0001_\u009b·@]NK$\tþ·@L\t'\u009d\u009c_x000D_·@%_x000C_ç¾ZS·@É]äþn\u009e·@B\u0095E1rV·@\u0094\u008d\u009e\u009cä\u0094·@B\u0093\u0084\t£®·@ó_x0005__x0012_)®_x001A_¸@úÕÁ)G\u0084·@ð­\u009fËRã¶@N+\u0084×fÏ¶@ëÝ\u009f:8h·@^fßøÚ¨¶@K_x0001_\u0090\u008dp\u008c·@jTëÁQJ¸@ßÊO1;_x0016_¸@³ÆÎ¡³Ó¶@_x001A_\u0080á\u0098bG¸@_x0013_2j\u0081[Ô·@\u0097¤PÉ_x0001__x0004_\u009b§·@\u0090o_x0016_éçÒ¶@ëå_x0012_Ñlà¶@j®Wt_x000B_z·@8}áä_x0006_(·@X_x0005_ÓË_x000B_W·@Lî'ñ_x0018_Ì·@_x001F_'WÕ~È·@¨ht_x0005_6»·@½\u0097F2_x0008_ê¶@háF\u008c\u008cê·@ga_x0008_®p®·@~K_x0011_k_x001D_Õ·@s_x0002_n\u009fÎÏ·@¿ð\u0081ëA\u008c·@½4\u008dÄ¢¦¶@_x0007__x000B_mM__x0002_·@o%x\\Ì4¸@*_x001E_nÆº+¸@_x0017_\u007f_x0008_\u0087°>·@Cq\u0086ÝpL·@ëÐ\u009b'\u0087Þ¶@;TZâÞ\u009f·@f\u0096þK\\\u009b·@awC\u0096¶\u0092·@%ìØ·_x001B__x0019_·@\u0080\u0083_x0010_\u009c/(·@_x0013_@Ü,I³·@_x0003_3LÓÇ«·@=7Ë?j_x0011_·@NM\u0080 Ò¯·@Ìy_x000C__x0001_Ú_x0002_·@_x0002__x0003_\u008c\u007fÁf^5·@\u0097_x0018_\u0090\u009a ´·@eø\u008d¢°_x0012_·@à#[\u0099 ô·@_x0015_0_x001C_ÍJä·@{4_x00"}},{"$cut":{"chars":50646,"head":"aa05f5e0e4a78b8693442896c59d33ed_x0001__x0002_ã=¼\u0086_x0002_w·@ç\"9\\U/¸@ÍåmF[¨¶@_x001C_¢'óÙ\u008d·@=_x0019_ì\u0085\u009fr·@¤7YÑQ_x001F_·@ÿ`_x0010_ÿ_x0001__·@¥\u008f_x0001_*-î·@V¦$á\tÀ·@\u009a_x0019_¤\u0084¡l·@¥ô\u0088ÓÞH¸@F|§ÃèL¸@«Éð*0ó¶@\u0097_x0011__x000C_`w\u0099·@\u009cè\u008aJ¼\u0089·@\u0083~ä³pm·@4´Täßñ·@_x000C_G}ÒÐ¹·@+z\u009eÞés·@7¤\u0090Ðû_x0007_·@¢­'^÷\u009e¶@mcY\u008epU·@__x0005_\u0081¾%c·@J®7Ý\u0086@¸@ð_x000F_Ú{é%·@\u0086f2!B_x001E_·@r\u0087_x0014_Y4U¸@Bs]Î~·¶@_x001B__x0005_ådG¢·@_x000B_Èj³²\u009e·@_x0003_V)´þÊ·@+íï»_x0001__x0003_´{·@ô¼_x0002_,\u0093º·@ð2¾M]C·@» \u007f(ºe·@}mììÉ_x000B_¸@øµÝ_x0001_`\u0094·@$:/à\u009e ·@hw¢¡¾r·@_x0005_²I\u009aKÕ·@yñ\u008fì_x000B_\u0083·@_x0011_5a\u0086f~·@@_x0003__x001B_\"®_x0018_¸@È¶j¯{_x0015_¸@ÄÓõº.P·@øßi\u009eÜz·@i¸ +í}·@ëöÀ±|a·@_x001E_¨ø¡i5·@c_x001B_\u0089Ñ^\u009d·@Rü\u008cS-¤·@\u008b}@ï_x0018__x0011_·@T_x0003_\"A_x000F__x000E_·@_x0016_\u0093L¨·G¸@ëê\u009aybñ¶@Ð%uhÊA·@xâ_x0001_¹_x0006__x0013_·@O_x001D_ª(Bª¶@ÎÒ\\^Ý\u0087·@t=Ótg=·@_x000D_\u0086jM\u008eï¶@eë\"ÐÏW·@x.f0d_x001A_¸@_x0005__x0006_æ\\_x0003_=)C·@àÄv_x001F__x0008_M·@_x0006_;¦Ó3\u0094·@Na­\u0096\u0088_x001E_¸@-këùeN·@9æ_x0006_ÜÝû¶@\u0089\u0096NÂNù·@*k<U¬b·@è_x0006_ê;+ë·@ú6Z¼\u008e²¶@c<b\u0092'Í·@º7\u0087r_x0004_?¸@w-¤_x0011__x000F_þ·@Àý Û\u0081_x000B_·@_x0004_Y]õg_x0008_·@\u008cêjS®5¸@¬û-ê_x001D_~·@~i°Á_x001A_T¸@½ë)_x0002_7-¸@ãÌþ_x001C_)\u0092·@è[¯_x0019_\"\\·@h_x0005_ýjPF·@öÑOù\u0095Ü·@÷KÑ¸uÁ·@ñç_x001D_Ú®\u009d·@Ç\u007f zì¨·@x¼]_x000E_a_x001F_·@\u0081°&ÙT¨·@°½_x001C_B£n·@_x0011_ý\u009bÓ:\u0088·@Õ®J&l\\·@9ãm_x0001__x0001__x0003_¼å¶@9 ¦e¦_x001B_·@nýHê»,·@_¼µábr·@kIÔ,u?·@\u0089Á\u009f:\u0085ï·@[\"=_x000F_\u0086À·@çñ_x0005_j4r·@_x0010_\u009c/ïçe·@¨lFý1m·@§ÐÊwø\u0088¸@Y_x0004_½[pB¸@üÎØq\tê·@^_x000F__x0012_4\u009a¤·@_x0002_îòmv6¸@ØÁ®»\u0091P·@ú×,>ó»·@\u008aÛÞºg_x0019_·@û4Ìk_x001D__x0006_·@ñ/-ëM}·@ú_x0013_PÒÉB·@Ä_x0001__x001D_7\u0097\u0099·@ä_x0006_n\tê_x0008_·@x\u008f!\u0088?y·@Ýä\u009fòôB·@à.ô&\u009d_x0011_·@÷Í_x0017_ÑFÃ·@îû<?%_x0004_·@\u008b_x001D_9¬\u0098_x0013_·@I.+èã§·@\u0090W´_x000E_ö\u0085·@_x001F_\"ÈÌ\u0099\u0082·@_x0001__x0002_\u0095Ó2yf_x001D_·@\u0098ÏÏ£\u0093_x001E_·@þÄ\u009b´UC¸@_x0002_Wk\u007f_x001B_æ·@f\u008b£ºÀi·@õÊ_x001E_\u009eö_x0015_·@·©4\u008bªq·@CfV¢_x0016_õ·@ë_x0004_Q\u0091pÏ¶@ø_x0015_ìÍvø·@\u0097E\u0094o¥0·@´¿ZõÚ\"·@4\u0096»#\\¸·@[}Ú/R¶¶@ËIá®Âì·@\u0092M%rH\u009d·@\u009c_x000B_+_x000E_©ú¶@H¨'ñ\u0086Ä·@\u0092ÂK\u009d&»·@ç\u0085»¿/A·@t\tÅ\u0082Õ(·@_x0012_\u008eÝ»b¥¶@!1â\u008f(«¶@¢S¸bÅ«¶@OÆñÇ6B·@|­_x0016_\u0086Ì*¸@ÁRh-%d·@\u0081³_x0003__x001F_ ¤·@¦_x000C_\u0094m«7¸@&h_x001A_\u008b¥ñ¶@ÑµÀ.\u0090W·@_x0011_\u0084:_x0005__x0002__x0003_]B·@_x0001_*#_x0002_L\u0097·@Æ`_x0017_þhp·@kË·ÿð#·@¹æ¬Ã\u0099²·@4<GT\u0082j·@\u007f_x001F_òÚ\u0097«·@\u0091}MY+4¸@\u0091\u0081fòèC·@\u00991_x0010_<Gä·@?;8ÔÜ\u008b¶@æ¯]«©@·@<ZU\tn\u0092·@_x0005__x0006_\u009a{\u008eÝ¶@£ìs`4.¸@l»\u0088â\tB·@½®b\u00912n¸@3_x0018__x001D_N!®¶@U\tñÀ\u009bÅ¶@' äwNÿ¶@ú:lË\u0085½·@B_x0007_%SX\u008f·@ñî_x0019_\u0080\u0098\u0090¶@W\u008e_x000B_\u0094k)·@þ\u00838°dÐ·@$ùá¬ p·@_x001D_k#Åh··@ä\u00922ûð··@\u0091¶_x001E_Ì\u009cw·@+_x0015_ËT~æ¶@è\u0092\u0085_x0001_Ü\u0098·@Ô5Ã¾O_x000B_·@_x0001__x0003_ï½óCv_x000B_¸@â_x0006__x0002_¸ûÕ·@_x0004_â:È\"k·@>6áÄ\u008b_x0003_¸@Èôî[_x0015_Ð·@~A\u009c_x000F_f§·@TcæÞÈ¸·@óÿä5LC·@à\u0086î=CÌ¶@\u009aG[\u0096Z#·@2 ûå½¼·@c6éÇ!_x0018_·@_x0010_ø^Ù²w¸@_x0018_^y¦_x000D_£¶@w\u009a\u0082\u0090âª·@_/'ok_x0018_¸@$_x0017_vV¸\u008d·@T\u009d¤õ_x0015_\u0097·@sØá\"/£·@?½§Q(ç·@cÅ\u007fXâÜ¶@\u0098úì¦_x001A_Ñ¶@\u0083\u008f\u008fm-Á·@{_x0011_\u008c:P»·@.¿å[\u0085>·@k\\ý\u0091¨_x0001_¸@iHV#_x0012_\u009b·@.S°R\u009c\u008f·@!÷\u0091´K³·@0õyüþé¶@Úðîf¢´¶@5¼Õ\u0089_x0001__x0002_!··@'ÉÍn ü·@ßU\u009bâÑ©·@¬úêj\u0080Ç·@\u009d·u\u0085óÅ¶@£_x001E_®·rÂ·@u[_x0018_ãs£·@_x0016_rÀ\u007f<Ö·@\t}![Ko·@¯Öûðõ_x0006_¸@gôlî+¿·@¸U\u0081ð=w·@4`#Ðä@¸@\u007fó­xnÅ·@ð¼ì>OÅ·@· ùÿ³\u0084·@Í`Áx\u0095_x0015_·@°@î\u0098üÄ¶@W/v\u0085_x0015_\\¸@É_x0015_\u008a\\Vu·@Í\u009bÌn_x0019__x0013_¸@\u0083nºÕÒ[·@µ']Ì\u008f\u0084·@_x001C_\u0084_x0003_¶¼3¸@\u008aºÒxó5·@gÃ_x0014_àû_x0004_¸@¯ÆiI8Ù¶@O°5_x0004_Æ_x0010_¸@m_x0003_(y;\u009a·@aÕY\u0086GÛ¶@}9\u008fá\u007fÒ¶@69òÔ_x0002_c·@_x0001__x0002_²ðp_x001B_LÔ·@Å_x0015_¢ü`¡·@È²ÞY\u008e\u0091¶@é\u008b8<$\u009e·@ìø6J@\u008b·@°µñþK~·@2c÷g_x0012_j·@[]<Ö®_x0016_·@mN´rÛ9¸@¶*Í_x001C_wÝ¶@`\u0085_x0016__x0011__x000F_\u008b¶@T_x0019_= _x001E_É¶@\\¹¦\u0095Â¿¶@¨;á÷x\u009f·@Fà_x000C_\" [·@{öM\u0098ó+¸@~¤\u0096_x001F__x0010_÷¶@_x0013_Æ\u0081*_x0012_È·@NÞUdVÃ¶@Ý©û_x001F_¢¿·@=Soà\u0084\u0092·@D`¿Z¼b·@~y\u0098_x000E_¸H·@£°jÜ¶$·@Ä*Tç\u008b8·@ôXßÓm|·@,à\u0094¿ºÅ·@»h?WáÍ·@~Ò_x000B_-\u0090É·@=TÁ°\u0080\u0094¶@)C_æö!·@Ä©Ðk_x0001__x0003_\u009bt·@_x000B_\"9_x0005_?K·@_x000D__x0007_í{\u0084_x0001_·@%\u0096!ýfx·@½z\u008e@_x0004_¨·@*_x001E__x000D_e»\u009a¶@R\u0086¹\u009c1ñ·@ä\u008a\u0091'æÀ·@£Ô+\"R«·@£_x0005_½u_x0006_ö·@_x0001_ÌÙgË\u008a·@±¶#H­8·@¢\u0098µM/_x0014_·@ª_x000B_ÀaZ\u0093·@¸@*%\u0084ý·@Æ±_x0016_³÷\u0097·@_NÂ¿Óº¶@¼_x001B_÷@¹Ó·@\u0084¼²]Dâ·@IÒ´²Mç·@_x0014_u0\u008fn¡¶@_x0007_\u0093;6»_x000D_¸@å¿v\\_x000F_Â·@úCû#Ù\u0099·@oèÅÄ\u0083f·@`\u0093<í²_x0012_¸@Ò\u0084G\u0080§<·@Ùõ_x0014_àpÄ¶@Õ_x0016_+3ÑÏ·@2%¥ºh\u0084·@ì_x0002_¼ï\u0081`·@.ªÿ·éã¶@_x0003__x0004_6_x0001_º¾So·@\u009fp_x0011_\u009b\u0093 ¶@]c_x001C_ef_x000B_·@L\u008cL_x0003_~\u0096·@Ð¿3õ[(¸@x3«_x0011_«Û¶@\u009c_x0012_·½<K¸@_x0005_¤\u0097öw\u0097¶@\u009f_x0001_µ,A\u0087·@-s\u0099d\u0094ï·@h6Ø\u008a!Å·@o\u0099À¢E_x0006_·@\u0091)+Í\u009a^·@'D"}},{"$cut":{"chars":52056,"head":"eb03b4fa819909f4a843ba60fae3dc54_x0001__x0003_\u0080\u0097ê_x0002_^\u0096Ñ@:_x001D_c«M\u0086Ñ@Z\u0086_x001C_Z>åÑ@j\"_x0018__x0019_>\u0085Ñ@­o_x0001_ñÁ¼Ñ@._x0019_é,_x001C_ÐÑ@HäÜ_x0008_µ\u0096Ñ@ò_D_x0016_ðÊÑ@põ\u0093âåuÑ@ªþêôV«Ñ@¾*¬dæ\u0080Ñ@é\u008c_x0013_¶\u0097UÑ@t_x0002_TH\u0089_x0011_Ò@Ãã\u0082(»\u008fÑ@È.íI_x001A_¤Ñ@d\u0086\u007f_x0010_ñµÑ@czè_x0016__x001F_§Ñ@Ñ_x001D_\u0085øú_x0006_Ò@ághÓz\u0099Ñ@Rà¦½¦\u009fÑ@-ï0mÉ\u007fÑ@Mýþ¢_x0013_ºÑ@jÓ\u0090\"Ò\u009fÑ@&%à² \u0080Ñ@ïït¾¿àÑ@±þ\u0085õÅ\u008dÑ@ám_x001B_ð\u0093\u009aÑ@y_x0001_ðÅå\u0080Ñ@¢8ÓW\u0090~Ñ@¶\u009dY>ðoÑ@Qm(_x001D_!ãÑ@\u0091ô_x001D__x0019__x0003__x0004_\u008byÑ@J¶_x0008_äÈ\u008aÑ@¡·Âñ\u0082eÑ@Ö\u009cØ\"ý_x0006_Ò@ú\u008ddéylÑ@©½%ï©YÑ@&_x0018_¼|x­Ñ@\u008f_x0005_³Î·¥Ñ@*:ü]Ì\u0080Ñ@²lµÔ_x0001_~Ñ@¤>¼·t°Ñ@©_x000B_ÛÇ¼\u0082Ñ@5jck5\u0085Ñ@¨fÊ%_x001D_\u0097Ñ@ó__x0002_\u007f_\u0084Ñ@\u0099ã\u008d\u0099\u0092ûÐ@\u0093°aT$\\Ñ@Ô ñûÃ\u0084Ñ@T¼\u0097È\u0085}Ñ@\u0086_x0013_1\u009dr<Ñ@Ü¢/~\u0096FÑ@_x0010__x0012_!_x001B_È±Ñ@E\u0081dÓa½Ñ@ÖÎÏÎ¿¥Ñ@6(9@l$Ñ@ù\u0095_x001F_&ýÑÑ@K\u0087\u008a?çKÑ@þT\u008aç_x000F_×Ñ@ðÍé2¨°Ñ@F[Ds_x001D_¹Ñ@\u008dæ\u0086F;ªÑ@\u00873¬6ßyÑ@_x0004__x0006_Üe6jpòÑ@+:_x001A_ æyÑ@Æ²Hè_x000E_ÛÑ@}ÓÊ\u0080ù\u0097Ñ@´z_x0006_ýO§Ñ@?·gõÄ|Ñ@VjyV(\u008cÑ@Í\u008aÞÆé\u0081Ñ@Èù,_x0019_u¬Ñ@^uZ \u008bÄÑ@_x0005_Ô+(\u0097£Ñ@P,ðYgnÑ@_x0013_\u007f±×\u0098UÑ@L_x000C_ê_x000F_0ùÑ@¢Â_x0016_Ú<ºÑ@_x000B_£dÝL\u008bÑ@ÂrG_x0003_ñ\u0081Ñ@î_x000D_o0®LÑ@(Ì¥\u007fçÂÑ@\u008e9_x000F_³_x001E_\u007fÑ@_x0001_ù!3\"¸Ñ@±åo\u008c\u008aªÑ@_x0002_\u0082_x000F_þP\u0099Ñ@C8_x0002__x0012_\u009ekÑ@¶[å\u0087+ØÑ@7(_x0003_\tÎ»Ñ@ÎT_x0008_J´\u0094Ñ@ªð\u008d:þ\u0086Ñ@ö^Öo6ªÑ@í]\u0081\u0080Å\u0099Ñ@Fô\u0083_x0001_Æ¥Ñ@º>Òÿ_x0001__x0002_\u008d±Ñ@·þ<\u0086¢éÑ@\u0098\u008fÜ\u0087\u009c\u008cÑ@U­a\u009b_x0011_\u0091Ñ@p_»'èµÑ@Ì_x0007_¨\u009c,aÑ@\u0091©,5@¥Ñ@á¡1jd¢Ñ@\u0084îÌµá\u0099Ñ@\u009e­$Þ\u0082·Ñ@È°JºøzÑ@1øÐ\u0092â¸Ñ@\u008e_x0016_õ;D\u0085Ñ@KW_x0007_uÙpÑ@­\u0089Bõ\u0085ÙÑ@FºÇ`\u008b§Ñ@\u0080Qâ@È°Ñ@_x0004_'VMsâÑ@pýTzTtÑ@_x001A_¨_x0019_7Ô\u0097Ñ@I_x0008_b\u0091DÂÑ@_x0006_T\u0082=ázÑ@Ð_x0016_y²á<Ñ@Zü²c9}Ñ@w\u009edá\u009fÇÑ@Ä×¼¤\"qÑ@°\u009b¬´_x0001_ÙÑ@Ï)þ[_x0010_\u0090Ñ@\u0091\u008f·9ý\u0089Ñ@qÆy7Ö\u0094Ñ@u°\u008c_x001E_ª\u009fÑ@Ù8z\u009b:ºÑ@_x0003__x0004_e_x0001_\u0081YyPÑ@±Á»Ç¡\u0095Ñ@]UrQ³ÃÑ@£­D_x0002__x0008_\u009bÑ@¯ç¬ðl\u008eÑ@$qá85_x0003_Ò@º%$Bj£Ñ@_x0006_~1¦¬_x0002_Ò@\u0092_x0008_nV^ÙÑ@ì0_jþXÑ@:¬¥Á_x001B_\u0087Ñ@\u0087ôõ\u0085_x000E_\u0090Ñ@²ÏPÒ_x001D_®Ñ@\u008d_x001D_\u0093^~_x0002_Ò@Ôä_x000B_ìX\u0099Ñ@êP»m\u008e²Ñ@vÐ\u0097#ðãÑ@_x0003_9t'ÎÍÑ@âÑ4*\u008dÃÑ@\u008aÝÃ\u009cuUÑ@×Þ_x0003__x001B_ÇzÑ@èúd\u009f yÑ@6·ñ_x0014_ÕvÑ@4_x0010_³æ³\u0087Ñ@HØ_x000B_RÜQÑ@|'_x0001__x0002_. Ñ@ÀÍ_x000B_|9\u009dÑ@]Äx@_kÑ@ìqÆ[Ô¿Ñ@Ç\t_HÆqÑ@P\"¥X_x0016_\u0093Ñ@[IÙf_x0001__x0003_ÔíÑ@\u0091P\u0096\u009a,\u0084Ñ@\u0094H¾[_x0010_vÑ@\u0099\u0095â2\u008acÑ@ô_x001B_.ÆÏGÑ@ú²ôÉ§½Ñ@ø\u0084Rb_x000D_ÚÑ@@7óxa\u0083Ñ@Ij0_x0002_÷ïÑ@4\u0086ä$¢µÑ@_x0010_\u009dSøÞ%Ñ@v_~ÞÎ\u008dÑ@Aò5\u008bömÑ@_x001A__x0002_ºÇ-µÑ@2xe_x001B_¨¨Ñ@¢\u0083\u00937Ô\u008cÑ@\u008cM'_x0015_ÓAÑ@\u0097\u0095\u0083ÆRzÑ@_x0014__x000F__x0010_\u0084A\u0097Ñ@\u0091Ê·¥/ZÑ@\u0092ë_x0010_ÂS\u0099Ñ@\u008cÒí6é}Ñ@_x0002_&ýöåqÑ@Ý,x©Z\u0094Ñ@\u008dÊ\u009c7ÆÆÑ@Ê_x0013_7WT\u0097Ñ@\u0099_x0013__x000D_ô³¼Ñ@6p¥Zå¸Ñ@_x001B_\u0099Ó)ö\u0094Ñ@ãLü\u008d{\u0082Ñ@0Ñ¡ÈÁ\u0089Ñ@\u0099Ï-2ç\u0089Ñ@_x0002__x0003_\u0099H4l_x0006_\u007fÑ@¨5,2¥ Ñ@Êìªë0pÑ@^_x001F_P_x000F_TTÑ@_x0001_E\u0086\u0085´\u008bÑ@õðÄÚ\t©Ñ@t§ÁÊrlÑ@XÄV$éùÑ@mO&WnÛÑ@_x000D__x0007_^_x001F_µ°Ñ@\u008d_x0012_Ý7\u0086\u008eÑ@ndÊ¬,nÑ@E!\u008e°\tµÑ@DãuµPiÑ@xõ¿OAÏÑ@CùÉå¡\u0099Ñ@îä«ðÄªÑ@«.)\u0088!¶Ñ@z_x0004_·\u008c\u0082IÑ@ñ³2_x001A_\u009b\u009eÑ@U_x0003_x\u0087´øÑ@Ê_x0011_Ò´_x0013_}Ñ@ÈæÊ\u0096_x0016_ÉÑ@\\\u009fùq\u0094\u008bÑ@û$\u0088ør³Ñ@|\u008d:l,VÑ@_x0012_è`ùh±Ñ@_x0018_[_x001E_¨\u0087´Ñ@ù+E_¡¶Ñ@6Å«Ç[jÑ@âðÊoìQÑ@B\u009e^\u008f_x0003__x0005_à_x000B_Ò@µ>n3=~Ñ@ÇmØ\u0099_x000B_¢Ñ@¸@P`p¦Ñ@Aüåú&\u009eÑ@_x0003__x0010_©_x0001__x001F__x0014_Ñ@¾ì©Wd­Ñ@Ê_x0005_\u0087_x0014_îÜÑ@ÓðÓfitÑ@õ ÑZ7\u008eÑ@ã¢_x0019__x000D_;ãÑ@_x0004_\u0085º_x0013_Ü\u007fÑ@@/ë_x0011_/ºÑ@eNmþ\u008eÒÑ@þH_x0016_Y±[Ñ@\u0083¼\u0092oùgÑ@_x0011__x0004_±rEÍÑ@Ñ_x0004_\u009cG#uÑ@}\u009ar¸MeÑ@\\+|\\\u0083|Ñ@à1\u008e_ÍYÑ@~Èá\u0093_x0010_ÜÑ@£¼60î\u009aÑ@Ýä\u0084Y_x0012_ÎÑ@dÝÿÕ\u008fWÑ@vJQ*7uÑ@DWð_x0015_\u008b®Ñ@Î³_x001B_Új_Ñ@a_x0002_b_x0017_q\u0081Ñ@b_x0014_¿½²\u0088Ñ@2R\u0088zÝ?Ñ@R3ßæ\u0093êÑ@_x0002__x0004_g«\u009bõ\u0092ÀÑ@,\u0096_x001B_3×«Ñ@ä(ç_x001B_¹hÑ@Ü¤¹\u0087êxÑ@gðòH\u0093hÑ@»_x000C_Ðq±ÍÑ@\u0091ð$\u0083Ô\u0094Ñ@Ã¢Î×\u0081nÑ@ÎÈ_x0018_Bê¬Ñ@\u0098Ü_x0017_Õ×;Ñ@8C_x0017_¶ÔVÑ@m½´\u0089¼^Ñ@ÕZ_x000F_T_x0012_àÑ@û?_x0016_zñÒÑ@\u0093Ê\tp?oÑ@'j_x0001_Éø\u008bÑ@\u008cÔÃÎfÜÑ@_x000B_#H=_x001C_óÑ@yÜZÖ`rÑ@\u009fj¶òæ\u0087Ñ@_x000F_\u0098\u0084:T\u0095Ñ@ß_x0013_%\u009b¼\u009aÑ@:v«ð(BÑ@\u009c_x0008_?m\u007f\u009cÑ@¿l©ãy\u0084Ñ@Ð^êñ§ôÑ@f$ÁiÑ¦Ñ@~y_x0015_Ç5QÑ@HòS&Û\u0099Ñ@.á²ã\u0089vÑ@hÄâ:i½Ñ@°h,_x0003__x0001__x0002_eeÑ@kN3SàåÑ@¶~Õ_x0016_ZVÑ@_x0007_×2×d8Ñ@³\u0092\u0099_x0001_\u0083íÑ@Hâô5è1Ñ@+\u0095´_x000F_\u009aCÑ@$\u009bÑ?9çÑ@¤w\u009e÷_x0005_\u0087Ñ@¨n±³¤ÐÑ@fåf\u0086\u008c¿Ñ@o)Æ+ë\u0083Ñ@ì\u0097¥|QvÑ@_x0019_Y\u009e¤]ÞÑ@_x0014_±_x0003_í_x0002_«Ñ@¾_x0015__x0013_î«èÑ@Ï`ÛÂuàÑ@_x0012_>\u0098\u0085ü\u0086Ñ@76\u008b_x0016_\u009f[Ñ@¡Ý5´ÉÖÑ@¯íÖA²[Ñ@8/Ôg\u008ctÑ@üpëÇå\u007fÑ@Ø<Î}_x0016_ÌÑ@í<.o\u0091\u009fÑ@[t·Å7aÑ@¥\u0081f_x0012_kiÑ@.~Fði!Ñ@ÖÁÙ_x0006_% Ñ@\u009bHal\u009d\u009dÑ@\u0080³Ù\u009füºÑ@Ør$\u009aamÑ@_x0006__x0007_y:õ)_x001C__x001E_Ñ@fE_x0018_âÛÏÑ@-HJc~\u008eÑ@©¨Ò³4ÍÑ@È\u009f&}¿ÜÑ@\u008f1LÃ\u009f\u0090Ñ@ÁÎðâ}ÔÑ@\u0084F_x0018__x0001_lvÑ@\u0096=\u009c\u0092Î\u008aÑ@Lø´_x001F_\u0088\u0082Ñ@êa ô×µÑ@_x0002_\u008f_x0006_þ¦0Ñ@_x0006_%J ·_x0007_Ò@N_x0002__x0003_\u008bÇ]Ñ@öhÏScåÑ@õRÒÁ.\u0092Ñ@¼·L1«\u008fÑ@c¿Mr_x0004_¼Ñ@ Z¹Ð$\u007fÑ@p£RHÖ¡Ñ@ó¬×ZI<"}},{"$cut":{"chars":50298,"head":"801c7522c1a76d422100265443349774_x0003_\t®úúë_x0016_Wö@_x0002_ö\u0089F_x0007_\u008aö@33M³]1ö@\u008cÎv³_x0001_Ìö@U_x0006_\u0088m\u009fÎö@;_x0003_×Ãu\u009bö@Æ\u009bg¿ã\u0080ö@Ö\u0093T\u009d_x0005_fö@­\u00993æåEö@E_x0011_iáq\u0084ö@Ý_x001A_åûû7ö@@ùZêOPö@4ÚD\u008eâ_x0004_ö@QD§UM^ö@*0­\u008cóEö@\u008aåZR_x001D_\u009bö@G¾áÚê¸ö@õ\u0084#.Å\u0085ö@\u008c[¸ñÞ\u0095ö@jÎ_x0008_F:Çö@Ýñ¨Ç_x0001_\u0090ö@ò_x001D_.`\u008f\u009fö@\u009boº¹Û0ö@\u0081\u0083U°_x001B_ãö@\u0088_x0004_«míëõ@À_x0016_ÉÎl\tö@__x001B__x000F_¦¥/ö@¥:Þ¾2èö@\u009c_x0008_¢\u0096A}ö@A3\u0095ÍÔ_x001D_ö@_x0017_ºøü_x0017_\u0095ö@\u0086u±\u009d_x0002__x0003_®¯ö@q\u0089^w÷!ö@äÁ_x0006__x001A_·<ö@¸È²ÆmÀö@\u008aDv6pjö@Ø]j\u0092\u009c¶ö@:\u009a~a{¢ö@_x0013_èÄÚ¼ªö@ç+è\u0096´\u0095ö@²Ø\u0094Dîþö@½ÚYè§¬ö@~IÄI{Ðö@f(Ñ\u0088éRö@EúÃù1sö@·Nxc£=ö@[ äcjòö@\u009dß>*_x001C_Èö@_x0004_\u0083\u0088vþ\u0095ö@_x0001_f%_x0010_ø¸ö@,zÑôÅ\u009dö@¾m\u009a¢hýõ@ËsN_x0011_ü¹ö@ù§\u0083\u0098§\u0083ö@äS_x001B_`Ô$ö@õAcp_x0013_Ìö@8Z_x0018_Aq,ö@\u008eã¨_x0012__x0003_ªö@Ñ¦[*ûºö@º6q_x0005_¬\u0081ö@N\u0090·ëëgö@\u0080­)?2Âö@)õ@ãÀ=ö@_x0001__x0004_Ã\u009buHMÊö@\u0098/Ñëànö@GYÖ½ßMö@ÁlN\u0080~`ö@ª(_x0010_#´¥ö@_x000B_âüÇû_x001B_ö@tkªFpaö@_x0010_°Z\u0097WÀö@·K_x0008__x0018_cÃö@_x0004_õãQ_x0008_9ö@°\u0085£\u009fu@ö@òÁ17!Çö@æ6¾=;ùö@QA\u0097\u008f:Ìö@93!±ÆCö@\u0091_æ0_x0011_èö@#\u009a·T_x0012_Gö@4ËU$à¿ö@_x0014_¤_x0002_ÝiOö@\u0096aEl=Èö@ÃO\u007f¬p«ö@3è<&_x0010_Þö@:;È\u0097ö­ö@~_x0015_\u008fÊAwö@¨_x0012_L_x0014_,»ö@Q~°¸Ó\u009aö@\u0090_x0003__x0007_\u0086_x0014_lö@\u0094¯¡îø¬ö@?#j Uáö@_x0015_]É¶\tÄö@¶\u00892_x0017__x000D_yö@vhG\u0083_x0001__x0002_oñö@í¬souZö@\u008d~'iÖìö@\u0088º%ä\u0093±ö@Tþà_x001B_V¦ö@vúµpÂøõ@' _x001D_@ñ0ö@é\u0091PNKhö@ç µ§_x000D_]ö@Ã*²_x0011__x001E_gö@^ÛÃ²_x000D_.ö@*_x000E_sÀ\u0087Õö@$(Ãjô\u008fö@CähBq¢ö@Çê_x0011_\u0094\u0093¦ö@\u0093/\u009aT¥8ö@KvÍü#Xö@å_x000B_1\u0087\u009biö@~;\u008d_x000E_\u009bçö@\u0089ÌHÚÐ¤ö@Rî\u008f\"¨ìõ@_x0019_ýÖÎô4ö@w£Õ¬\u0099\u008bö@_x001D_kKZY\u009aö@Ý\u0099ç²\u008frö@_x000B_ÜéLº\u008cö@X\u008fï_x001E__x0006_\u0081ö@¶c@¦x4ö@_'wÖ ¬ö@y\u008eúÄv_x000F_ö@\t S\u008d×óö@k\u0091HÊ¦\u008eö@_x0004__x0005_\u008eïÍK_x0001_Mö@B_x0002_Ãµ\u008eRö@_x0003_öwº_©ö@8±6ÉF_x001D_ö@i®§q\u009fÁö@#x\u009f×\u009d·ö@_x000D_·ùc«¤ö@Ì\u0096_x0006_Èùuö@>_x0010_Rá\u009füö@\u0085}_x000B_Aß|ö@eb8XC§ö@¢\u008cFB÷_x000D_ö@ÆÜîê¡sö@/_x0003_<îà9ö@ø\u009c2k³[ö@î8´\u0085GÏö@9C_x000F_í¼0ö@®³_x001F__x0012__x000D_ìö@ý\\_x0005_ÿ\u0090Àö@~\u0097Áû©@ö@_Ù\u008e,³\u0090ö@¥kûB\u008f5ö@æG¯=¨ºö@4\u0093TJ\u009f§ö@ý=íã,_x0019_ö@º´ô\u0097ÿ5ö@_x001B_M!\u009cÇ\u0082ö@\"oÒç\u007fFö@À\u0088í_x0011_^\u009bö@\u0092Qó¿c}ö@/44_x0018_Ò\u0085ö@þ´)\\_x0001__x0002_Þ\u008fö@_x0011_q_x0016_\\Ó}ö@Ê\u0097xë_x000F__x0001_÷@\u009cÄÒ_x0016_{¡ö@´e_x001A_z\u0085Wö@«q\u0092¯u\u0094ö@bÜ?¯\u0084\u007fö@º_x0001_ãª_x0019_Xö@½ºVWrÝö@/f96ªkö@Çê_x001C__x001F_[Íö@¿ãûÐë¼ö@¢lO.ÎÓö@¨>aH\u009abö@/Ù5]à­ö@û_x0003_@¹/Ñö@@a\u0097æfêö@æ\u0082ÿÀk*ö@X_x000C_µª_x001E_\u009cö@èx\u009b¸K·ö@Æ\u0082ßîÌ©ö@\u0096&§¿Ðxö@¥ù_x001E_\u008871ö@¤»lü\t\u0096ö@º_x0004_of3Ïö@z\u009aD_x0018_>Bö@\"\u009aU\u0081y©ö@ÔÎ©ØûGö@¬¿!ØÄQö@¾'ü_x0014_]\u0091ö@³Ñ4÷¾_x0007_÷@\u0085\u0093rz_x0019_Àö@_x0001__x0002_¼-\u009cÁ\u009a\u0091ö@_x0019_ârå\u008bÓö@4/[ñoæö@\u009cSà ÿ1ö@Öã\u0095/â\u0098ö@\u0097+Ï\u009cý¦ö@uÄ·ô3_x0004_ö@¥\u0094R_x0007_\u009dÃö@Â*ÉK_x001B_~ö@\u009e}_x0006_\u0087ðÃö@ºüÅ\u00854Õö@×ªöf\u009d_x0002_ö@×I{éÃWö@g3\u0092}ü­ö@0Ë<W¨rö@ùÿ\u008få£Ñö@ê_x001A_ ³Ñyö@\u0095Ydð\u0095\\ö@]ö÷_x0019_Á\u0096ö@»Ò8_x001A_!¿ö@C?_x0018_·Ò\u0087ö@/ÛõM}4ö@P2\u008f$ðÕö@îÀ_x0003_L&fö@ÉÅ_x0007_¶ÅIö@Rìàºc\u0087ö@±i a \u008dö@³ÜÐÃc\u008bö@b3\u0095Å\t_x001A_ö@ôZ_x0004_ÎT_x0001_÷@rFï_x0005_82ö@\t»ßÝ_x0001__x0003_mÊö@×ó5=·åö@â\u0090G\u0089È_x001A_ö@x®#Â:?ö@\u0091å\u009bSZèö@Ýó~½6¡ö@qÄÎ®_x000C_mö@\u007fr1à\u0094Ãö@¢ ¶\u009f&Fö@üpî_x0004_5Áö@*ôò¿_x0016_\u0080ö@bKU·\u0082_x0002_ö@~T\u0087×_x001A_Tö@c_x001E_ðæ\u0095«ö@Þ|63N¨ö@äý\u0084\u0099Jmö@ÅÙN%k[ö@ô9_x0006_E«öö@ø\u0093n_x0010_û`ö@Õ=³,§\u0089ö@°\u008a\u009f$+eö@eÒý\u0091¤®ö@zIM\u0099\"µö@.k_x0007__x000B__x0010_sö@_x0006_ñ)æÔ¾ö@ïq\u0095+E\u0087ö@*n(ð©Gö@pb}±WÃö@_x0003_º\u0085_x001A_õáö@_x000B_À=×¥_x001A_ö@²,ÿÎ\u0099¥ö@FÀ-îVÆö@_x0003__x0004_ÛÛ _x0018_Â¤ö@_x0001__x0008_\u0084âkBö@¹v\u009c{Î¿õ@ÛÝµ_x0005__x0007_rö@èuv_x001D_vøõ@$V$Èó\u0093ö@µ\\Ä£Q\u008fö@åç©e=aö@£ª\u0083´ìðö@aÜ_x001B__x0008__x001B_Úö@9Ù½Ï_x0012__x0013_ö@>®û¾_x000E_Ñö@îÝ\u007fÃ¯ªö@¼Ç\u0085Mð¦ö@H\u0093'þ\u008d\u0094ö@­&Ø\u008eUÿö@(\t\u0093!¸\u0092ö@b]b_x001C_ð\u009fö@&\u009808z\u009aö@Ï_x000E_¥?#6ö@¸·¬.aªö@î\u0098V×Ýpö@2=ÇW®uö@\u0098)Â¤möõ@n\u0083:\u008cECö@Jôv_x0011__x001E_\u009eö@µ_x0003_t_x0011_±\u0082ö@_x0004_R [_x0013_ïö@ÍJ%Wïeö@'È­_x0007__x0002__x0014_ö@\u0086«_û<\u009bö@_x0011_ÀPå_x0001__x0002_{\u008bö@_x001A_\u0093uÚ\u0090_x0005_÷@_x000E_ÙºÁC3ö@äÁñ\u0083\u0090pö@þÕ¨#a¬ö@\u0083¿I­F:ö@eû>)¸Ãö@_x0016_v\u0083°Å«ö@X_x001D_+Ë2¦ö@_x0005_°Äôùìö@­oÐqg ö@cæ`_x000B_N¢ö@P¡ì\u009c¶rö@WW¤\u0095z\u0087ö@Þl²\u0096\u0082ùö@ù0)Îa~ö@\u009cªäò{Hö@=¬ï±*Øö@2\u0084_x001B_\"\u0087²ö@k_x001E_\u0094_x001D_âfö@-Oÿ\u0089B½ö@\u009e>Õ*³]ö@QI¶Ç£%ö@ÑÒ&{_x0011_±ö@O5\u0096\\_x0004_}ö@§Ü_x000D__x001F_=_x0003_÷@m_x001F__x000F__x001D_µ£ö@ ÌFÞ0Tö@_x000C_Þ¥E¬\u0085ö@¦þ¥gê\u0087ö@BÂ_x001F_\u0086¼oö@n\u008fR_x001D_\u007f\u0088ö@_x0002__x0004_p²_x000C_»-Rö@Âm¢¶_x0017_óõ@­\u009f¥bõåö@e_x0013_ê]±°ö@Ø_x0003_\u0096È+\u0081ö@x_x001F_3@-Ùö@£d\u0098±_x001A_½ö@v_x000C_Õ2\u0081|ö@Ü×É=«\u0095ö@Q\u0095æ\u0082ò\u0090ö@¸º¦R_x000E_\u0086ö@\u0090\u009dâ&þ{ö@Ê¡ï_¡dö@Ü_x000E_Ê\u0081ÛÕö@Ï\u0088_x000D_\u0084Gµö@_x000E_Õ$ºÌ_x0014_ö@ØAÄèuâö@)¨a \u0082_x0003_ö@_x0001_\u009b\u008eÈÝmö@Ñ_x0011_ñ}\u008cºö@"}},{"$cut":{"chars":54300,"head":"32cc246719b6afebc28a6dc94b99fbc6_x0001__x0002_îa\u0080\u009d:_x001A_÷@_x001D_*_x0016_\u0091}¿ö@9þl«|\u0086ö@H©\u0094æ'\u0091÷@&t2Ó¦E÷@Ûf\u0084È]C÷@\u0086÷Ô_x000D_Mìö@Î$9XdR÷@\"\u0081\u0083Sªl÷@\u00866_x001D__x0004_ÀB÷@_x0013_Á _x0012_ßÿö@Ø_çkþ\u0080÷@¤Ê\u0080\u009aÊÜö@Ç3\tªÀ÷ö@'ô`aé¸ö@b Ê\u007fGáö@\u0091Æµ?=(÷@¢úõ¸»`÷@Á¥\u009f,ÓN÷@_x0012__x0001__x000D_\u0088ôëö@sKç\u0095æ¦ö@)¦}\\ÛL÷@G·ËSVD÷@_x0001_dl¼ ¿ö@ê@_x001B_\u0084³!÷@¬Ôf_x0012_ùU÷@_x0015__x001C_Ïb\u0096B÷@\u009c\u0093we\u008eY÷@,Ûh@aüö@\u0090,\u0080å·¶÷@J[à÷!\u0083÷@ª¤Á_x001A__x0001__x0002_ÑT÷@Òiâ £6÷@ÕÜo\u0097+çö@_x001D_\u008fRI_x0017_R÷@Â©±_x0005_y\"÷@ê¾Âhv}÷@¯_x0015_`=_x000F_W÷@Ø\u009a\\Õýðö@ 2_x0017_Ô·_x0001_÷@:ïü1°\u0094÷@c4_-ñ,÷@]xÂxó.÷@Wë_x000E_½Ëèö@k~ü\u008e_x0019_ùö@¤_x000B_c_x0011__x000F_\t÷@_x0017_¼T¡\u0081èö@háÑV¹k÷@ù_x0014_Ó×Ø_x001A_÷@\u0087ÇI_x000E_À$÷@_x001D_.~ùí\t÷@ÄtBSª\u0082÷@§\u00877>_x001D_þö@(í5_x0019_Â\u008aö@¶-¡~$u÷@_x001E_Ã\\ô\u0089_x001D_÷@E(K_x0004__x001D__x000B_÷@=Õ\u0089jc^÷@Ê_x001A_\u0087+$¸ö@ÀªØlTüö@?_x001D_`nXÕö@Õøaxø_x0008_÷@_x001C__x0005__x000D__x000F_c\u008a÷@_x0002__x0003_\u008f_x000F_+ëI®ö@OL'_x001F_\u008c_x0001_÷@¼÷þ©2°ö@À\u0096\u009d\u0082u_x0010_÷@bí{Ð>_x0010_÷@õ¥a\u008d_x001C_l÷@WBx\u0087,£ö@a_x0004_øÁå_x0007_÷@'Ô!P`´÷@_x0008_u_x000F_I\u0088\u0093÷@_x0011_z«J Þö@ëb¦Ö¹^÷@Ã`\u0099Äñ¿ö@(/u_x0004_eÔö@3Yª7aëö@$Æ|t\u0085µö@þíQÀñ_x001F_÷@þ\u0090\u009d\u0098_x0005_\u008eö@\u0090:mæVa÷@\u0092_x0008_QOÚ7÷@íïº_x000E_\u0085l÷@\u008d_x0011_ú²&9÷@_x001C_A5_x0015_yèö@´d;_x0011_ß\u008c÷@GÃÅÕTÍö@Ü=¶|\u009cr÷@X»c/Ê9÷@ÉÐ_x001C__¶Íö@!\u009f\u009d%9f÷@SÃ 2#ýö@6Hà.\u0095_x000B_÷@DEªú_x0001__x0004_±úö@íð¥\u0095Z\u0095÷@_x0010_DÅÔ4_x000D_÷@\u009cñ$pé4÷@T>Ä¯mÔö@_x001E_Õm®Q_x0018_÷@h_x001E_¬\u009cr\u0091ö@^Âqâ_x0001_×ö@½\u0085\u009fcL¢÷@)ü\u0081\u008cîòö@\u009cüd¸6!÷@y·»K\u0095Åö@_x0001_ÿ§Ü_x0013_'÷@ñ_x001E_'^(£÷@H{ìõ_x000D_ÿö@¡ªÃÛ\u009a¦÷@L÷D_iÏö@Æ\u009b>J\u009aC÷@kÅÂµÝD÷@\u007f\u0086WB(\u0094ö@\u008bêM|·u÷@¶i°_x0001_¹_x0002_÷@¯%»_x000C__x0011_\u0093ö@È\u0087iÒù)÷@Asâ_x0017__x0003_\u0095ö@¦²¬V´p÷@ÇÎh@í\u0086÷@µp¢_x0019_Ã\u0092ö@)ÍzèËòö@v×s\u0091·Óö@_x000F_àN*_x0007_e÷@SXo±áàö@_x0001__x0004_Ü_x0005_²ò¶÷ö@+Ðì_x0019__x001E_´ö@Íôb\u0085_x0010_Ãö@_x0015_qêbàH÷@\u0085Ú :]éö@V·pÐ_x0010_wö@ãF_x0003_Õê:÷@ß_x0010_\u0097_x001C_ª\u009eö@(ì\u007fÖ0Óö@5méá\u0086ºö@ôÐz}¸3÷@}iø¶·¸ö@G_x0005_ÈAÇ\u009eö@Ï·`dh_x0003_÷@\u008d¨<`\u0088áö@çV¹w\u0088_x0011_÷@æ\u008eú_x0008__x0019_D÷@=â10âÍö@`c#_x0002_u_x0008_÷@owÆ\u008a_x0018_V÷@ÄÅì_x0013_Ç ÷@¨,K_x0012_ç\u0096ö@_x001A_R2\u0096X,÷@\u009e_x001A__x0011_³ç\u008cö@_x0014_å^ ¿e÷@_x0016__x0002_X\u0083=_x001C_÷@_x001D_îÀ_x000F__x001D_/÷@\u0096÷j~\u007f\u009dö@]åÚ0Òn÷@Ó¸\u0093_x0002_\u009f|÷@®4_x001A_¦ºM÷@§Ï` _x0002__x0010_}ùö@\u0086K\u00927®_x0010_÷@\u0080\u0082\u0098Z{\u0089÷@ÏøñJ¶_x000C_÷@l¦´/eÄö@Bè/9²2÷@ô_x000C_p\u00843õö@K£_x001C_à)0÷@v\u008d_x0007_³Ä\t÷@R_x0019_<\u008edîö@_x0014_f\u008aBÅ\u0097ö@lhaW_x000F_~÷@¬p_x0003_ö¢)÷@;Í_x0013_Úº\u008c÷@ú\u008ar·Ã\u0085÷@_x0004_­_x000E_]&t÷@$0_x000F_4g:÷@_x0001_¸Ì_x0008_àI÷@_x0005_BPµñ²ö@Û!é6Â¿ö@s³I_x000D_ª¢÷@Ä_x0005_É½ô¾ö@P\\\tÎ\u0085\u0087÷@ì§Ð_x0006_\u0080b÷@\u0084\u008f\\i¯nö@8_x0018_§yB_x0012_÷@Í$îlM_x000B_÷@c°é_x000B_Ëf÷@p_x000D_W\u009asÖö@Oz¹\u008aóp÷@ù,Ü°+§ö@wd«°Ìêö@_x0001__x0005_k\u0083°%_x000C__x0008_÷@\u0095_x0001_'¤P/÷@#°\u008b_x0008__;ö@Q\u0091ç_x001C__x000F_s÷@\u008a\u009a\u00973LÞö@_x001C_ªKrØ_x0007_÷@`ù`_x0002_^ýö@\tÁ]üq¨ö@ê_x000C__x000B_/\u0094?÷@\u0083®É¶,©ö@õ,\"o4Ëö@H_x0013_ÇzV_x000B_÷@\u008bìil@Èö@_x000E__x0011__x0004_CØ¬ö@Ð¼.Îc7÷@ÎÙ¸_x0010_\u0095\u0083ö@\tX\u0082\u008e\u0092`÷@È_x0014_/u+àö@Ç_x0018_Å&:\u0087÷@õ±1®`_÷@_x0007__x001F__x000D__x0003_º_x000E_÷@¬Æ_x001B_0¯Ìö@Ø_x0011_ooTÑö@ðr_x0012__x000D_\u0084¥ö@lÀ\u009a_x0013__x0019_q÷@\u009d¨ò\u009eb(÷@_x0001_ì4_x001D_Þt÷@^y¨_ñ\\÷@´oj_x001B_ÿÕö@Ò&_x0008_Nqb÷@\u0095\u009bV\u0088{íö@b_x0001_} _x0003__x0005_W¬ö@\"[\u0080_x0003_c_x0017_÷@õø_x0002_à\u0097¨ö@A_x0004_\u0095'æ\u008f÷@²/Kß_x0018__÷@å\u009fs8\u0087«ö@NþýA¦2÷@Åà\"'ªÕö@ñ¸y[í$÷@2_x0013_KÞÔ_x0016_÷@Y07ä¯g÷@O­ßqvX÷@¡+_x001B__x0005__x0004_sö@3\u0088!Ü=M÷@_x001C_8|_x001A_\u0089½ö@\u0084àß¾~_x000C_÷@ÌOG®¢_x0016_÷@Må¨&Þ\u0099ö@H_x001D__x0005_é»-÷@Ö;_x0001_\u0086Ææö@y9/!_x0007__x0005_÷@rïí\u0097\\l÷@â[ÂÞ\u009b\u007fö@\u0083õ´DËa÷@\u0084FfÂm\u0090ö@­=_x0019_\u0095\u0090_x001D_÷@óÇ_x000D_S§4÷@G_x001A__x000F_®_x0007__x001A_÷@\u0093\u0088þ_x0006_\u0083Ãö@¥_x0017_C){S÷@+¼ä_x0002_Â±ö@\u008bÝîå;\\÷@_x0002__x0004_§\u008fèT]\\÷@u_x0011__x0003_1nÌö@÷\u009d\u009e_x0002_MÀö@z\u0085!*æM÷@ó¼oÃ\u0092U÷@3-¥\u009c_$÷@_x0003_\u008ak{¨\"÷@A;[dõ_x001B_÷@ßî_x0013_ _x0003_(÷@àÅ;RfÇö@ðí?õåæö@WÎ_x0003_´õs÷@\u009cÐr3¶ñö@_x0017_\u0083\u008b_x0011_M?÷@_x0017_í¡Ô¯uö@¥_x000F_©Wÿ]÷@t-T±30÷@\u008440\u008c_x0011_n÷@JM½­ù\u0080ö@y-Ô-_x0001_\u008f÷@qb[_x0006_.òö@\u0097_x0016_ÒGö_x0006_÷@1ã¬\u009dË_x0014_÷@ÿ×á0_x001A_ìö@_x001F_>_x0006_4¤\u0095÷@\u0098_x0019_:Ûg_x0002_÷@ ÜO1è>÷@º\u0085ÚdX_x0012_÷@\u0085>êé\"O÷@°*u¶H\u009a÷@{\u0081~ïèõö@æTÎ-_x0001__x0003_Kùö@#_x0002_ÛÔL§÷@sl§Xgºö@RêÈéú-÷@H!;*5ïö@\u009c_x0006_ëÔ_x0014_f÷@cÝ\u0087uG2÷@¼Tw°MÃö@.<l@^\u008dö@Þ_x0006_\u0080ï\u0094\\÷@_x0001_b_x0005_ìf'÷@_x0018_½],_x000F__x0006_÷@q7mK_x000F_§ö@Ù×\u0082Oúf÷@Ý®äP.D÷@b\u0085W_x0002__x000F_òö@ïx¶ÿ\u0088=÷@¥Mú-r&÷@ß0_x001F_\u008b}=÷@hÏ:\u0086ùK÷@D±RÅYv÷@\u0089ð*²_x0016_d÷@ë«ß%\u007f!÷@"}},{"$cut":{"chars":67620,"head":"2a917f28bfd4812141a51b5816607218_x0002__x0007_3_x0017_I_x0003_6`_x0011_Aú¯w\u0084_x001C_^_x0011_Aý?{_x0019__x0001_k_x0011_A®ì®M_x0006_E_x0011_A±U>_x0019_a._x0011_A_ì_x0011_j\u009az_x0011_A÷\u0090ôV_x001C_e_x0011_Aù\u0089'q_x0004_L_x0011_AÒ\u0085É\t !_x0011_A\u0082R_x000C__x0001_»_x001E__x0011_A¨£ò\u0092U_x0010__x0011_A-CÆy\u0081\u0094_x0011_A\u008cË¯_x0010_vB_x0011_AÅ1á´¸l_x0011_Adþ@t{_x0006__x0011_A_x0016__x0001_îlÑd_x0011_AÜ_x0005__x0001_°au_x0011_Aj_x0019_Ìi\u0083T_x0011_A\u0091X=_x000E_äw_x0011_Aþ_x001E_qâ³Q_x0011_A_x0016_?~\u0091©+_x0011_Aø\u0094ðµÐ}_x0011_AÈð7·¸C_x0011_A\u0097_x0019_p\u008d<_x0010__x0011_Ad<_x0008_IXE_x0011_Ay¤LXM/_x0011_APÊ1_x001F_H2_x0011_A\t_x0018__x001C_æ.R_x0011_Aè6v\u0096²,_x0011_Aà\u0086\u0096Ä_x001D_R_x0011_APÔj­÷k_x0011_A0é_x001E_K_x0003__x0005_ÀY_x0011_A¶õah_x0013_\u009d_x0011_A\u009f´N«pv_x0011_Aú_x001C_~oj,_x0011_A_x0005_Ö_x0004_*\u009dW_x0011_AÜD\u0091h_x0018_=_x0011_A;&´o\u008a;_x0011_AJ_x0002_}ëék_x0011_A_x0012_|øYüv_x0011_A _x0018_iä\u0098X_x0011_A_x000B_2Ð\u0084f:_x0011_AF_x000B_·Ú$\u008f_x0011_AÊ\u009fZBG7_x0011_Aò.DéÜ+_x0011_Aí\u0096[\u0091Õ$_x0011_A_x0012_Æ_x0010_Ê#r_x0011_A_x001A__x0007_nÖ:4_x0011_Am\u0086÷V\u00831_x0011_AVÌCã\u008d8_x0011_A¸\u0086;_x0013_t6_x0011_AÞ\u008dåò/y_x0011_A3¤\u009b_x0001_/B_x0011_A%_x0002__x000B_´`I_x0011_A_x0002_º_x000B_=_x0018_k_x0011_AEN_x0017_Él:_x0011_AJQGõ-w_x0011_Ad@_x001B_yÑ\u0091_x0011_AÆâ\u0093n|c_x0011_A*_x000F_ÿþ\u009cE_x0011_Aöás\u0095\u009cM_x0011_A\u0093_x001C_Ïú_x0005_e_x0011_A\u009f.ÅN\u0085a_x0011_A_x0001__x0002_©eÒ\u0092ª_x001C__x0011_AÄ\u009dÜ\u009d_x0005_:_x0011_AÈ4_x0016_4Ù\\_x0011_AyÃa\u0081Áx_x0011_AD_x0018_¡\u008f}_x001D__x0011_A\u0086XyùÊ2_x0011_A´ö\u0096!<_x0016__x0011_A,q)\u008bz&_x0011_Ab>\u008d_x0010_ft_x0011_A\u009f°ú5Õp_x0011_Aêä_x000B_y!K_x0011_A¦#\u0083º<w_x0011_A-_x000F__x001D_I1W_x0011_AJÀ-\u0095æA_x0011_ArE._x001C_Þt_x0011_AXY¤ê©T_x0011_AÉ¨6_x0016_\u0089$_x0011_AlGp4à\u009c_x0011_A)÷ITC1_x0011_AV&cê£G_x0011_A%2\"\u009a×m_x0011_AyºÇÌ1K_x0011_A_x0012_\u0082h_x000F_ðF_x0011_A¥(ZhÙG_x0011_AiñC»4i_x0011_A_x0008_(SÁge_x0011_A_x001E_\u009côª.'_x0011_AöGÊ_x0012_¬E_x0011_ApÍÝh\u008f\u0080_x0011_A0¹\u008a_x0011_ªt_x0011_AµÑ_x001E_g·_x000C__x0011_A\u0096T%_x000E__x0002__x0003_\u0090N_x0011_AÔ¾ó8­_x001E__x0011_A\u0093_x000E_\u009aß<j_x0011_Aâ=½_x0017_uC_x0011_A|ðZ\u0088ým_x0011_A&©ü!Ø1_x0011_Aô\u008e2VÙG_x0011_A\t¡M\u008fE~_x0011_Aí~Ã÷¤_x001C__x0011_A,°_x0016_f\u0096:_x0011_A8äþÎhD_x0011_Av_x000E_äÂ_x0001_u_x0011_A¬´,_x0015_\u009f@_x0011_Ad×\\*\u009aL_x0011_A¹_x0014_AÒÚ._x0011_A³¯«nÞd_x0011_A_x0016_\u0096¶;\u0081<_x0011_AÓë/ê\u0084__x0011_Aø_x0013_÷2_x000E__x000B__x0011_A\u009aÛ_x0007_ØÿA_x0011_A°Ç\u0081X_x001B_#_x0011_A±Íg(`g_x0011_AØ©0\"ñp_x0011_AQÓxÇa8_x0011_A 0L;}U_x0011_AôSúBL0_x0011_Ap\u009eÎí$_x0018__x0011_AôHr¨z{_x0011_A\u0090¿\u0089º¥H_x0011_Aó*ûF_x001D_z_x0011_AQ|¹_@\"_x0011_Aêü\\Í\u0083<_x0011_A_x0001__x0003_@_x0016__x001F_\u0094³g_x0011_A¢7à¦\th_x0011_A­øÅµÚ(_x0011_Aëèi'÷_x0014__x0011_Ag\u007f·K_x001A_?_x0011_A\u0090\u0097Ö\u009a0n_x0011_AÄ9\u0095ö{@_x0011_Aò_x0016_á¶æ/_x0011_APG_x000F_P*c_x0011_A¼÷}_x0002_-;_x0011_AþAÙç[J_x0011_A_x001C_G)³Å,_x0011_Axb©JËl_x0011_Aæ_x0005_^\u0083\u0086w_x0011_A_x0008_\u0098»\u0092þR_x0011_A>\u0089þä\u009fe_x0011_A¦rZ_x0005__x000B_t_x0011_A_x001E_Ô\\_x0008__x000B_3_x0011_AÎWOà_x001A_M_x0011_A\u0080æÚÅcL_x0011_Aê_x0013_knrg_x0011_AN\u009bB«/o_x0011_A\u009b_ðë_x000C_K_x0011_AÎ\u0096_x0008_¢BM_x0011_A\u009e6\u00810A[_x0011_A\u009bôuä_M_x0011_A\u0082E¬)Ç7_x0011_AÚÑ\\j0_x001F__x0011_A\u009e^ÿ¹´6_x0011_AY\u0086_x=o_x0011_A\\{Äö¾?_x0011_Aäaòh_x0001__x0002_oN_x0011_AM(¦m_x001E_k_x0011_A¦EEÕ8G_x0011_A_x001A_aQ>Æ3_x0011_A.\u008e#è\u00887_x0011_A²H%¡_x000E_]_x0011_A¤)Ç\u0087H{_x0011_A\u008eY_x001D_2lC_x0011_AÓ1Ï²ÊK_x0011_A\u00881\u009f\u009e_x0004_j_x0011_Ai×¿_x001F_\u0084d_x0011_A~mää7<_x0011_AD!M¶\u0093R_x0011_A^ÇV_x001C_o;_x0011_A_x0010_äúHF<_x0011_A´¹¾åªR_x0011_A&\u008a3_x0005_Ç<_x0011_A.ÌAfwU_x0011_Aª'+\u008cõw_x0011_A5Cx_x001B_¬n_x0011_Af\\TW÷_x0008__x0011_Aés/³/p_x0011_A³_x001B_J7[7_x0011_AO!rmaQ_x0011_A\u0080õà_x001A_~R_x0011_A>ä_x0006_\u0080V/_x0011_A¸b¼ªµ@_x0011_A_x001F_wÓ}_x001F_t_x0011_AbG¬®|[_x0011_A\"\\Ä6¥i_x0011_A¼G\u0080£¶\u0086_x0011_A£\u0098JÆ¸P_x0011_A_x0001__x0002_\u008d_x0002_S|_x0004_0_x0011_AO1)² \u0082_x0011_Aâ^_x001C_¡­b_x0011_Aá\u007f_x0018_6R9_x0011_A~ìs]ht_x0011_A`O\u008a±_x001D_y_x0011_A_x000F_ôüoÖe_x0011_A{ã\u0091v»n_x0011_AÃNÅËm?_x0011_Ad_x001E_¿y\u0080d_x0011_AÞ´ýe&U_x0011_A1×Hm\u0087ì_x0010_A½\u009e_x0012_z\u008dO_x0011_Ay©ªk½_x001A__x0011_A\u00810gÎe6_x0011_AÜ\u009f:\u0090_x0010_,_x0011_Ajý\u0086\u0084¶p_x0011_AJf\u008dÃK-_x0011_A_x0012__x0008_Þ_x0018_\u0089^_x0011_Axía\u008c_x001C_B_x0011_A_x0004_¿\u0095_x0016_'<_x0011_AwýB\u0082±[_x0011_AND;_x000C_\u0087u_x0011_A\u007fÃ_x0019_UÚz_x0011_AºÑ_x0012_\u0086ã__x0011_A.5t\u008bB@_x0011_A\u0084R#¾èZ_x0011_A²åÅÑé8_x0011_Aq×âzûV_x0011_Ab_x0014_"}},{"$cut":{"chars":53256,"head":"088c9289c8aee2119366e4b0465fde74_x0002__x0004_\u009f¶èÛ1ð©@ÔæsJø#ª@)\u009dwI\u009c|ª@\u009eè#\u0082Ôô©@?Ð¨Ö_x000C_á©@ EIêUæ©@ê_x0013__x000B_}¾Oª@LWd_x0003_%Ú©@0_x001B_è\u0095^É©@\u0081pÚ[­ö©@xðê²@Ô©@\u009d_x0006_Û ð_x0014_ª@¸NS@\u0085Bª@\u0094?Ò÷ð_x0004_ª@\u0087ø`k_x0007_Î©@ÌÓ¹\u008fíù©@ _x0013__x000E_|\u0087Ë©@_x000D_\u009fâjLÎ©@W®°³cÈ©@â_x0019_\u0083q§í©@I-0º\u0086Ù©@_x001B_¿¡¾_x000B__x0001_ª@-h)¥5ý©@*2i(æÚ©@/èÆ¼ò_x0003_ª@SþüHÃ_x001F_ª@7_x0019_¾[\u0098_x000E_ª@àu¬\u0085\u0089î©@Pv5\u009aÖ_x001C_ª@9Ó¦BÕÉ©@æÔøù«_x001D_ª@I&Bæ_x0003__x0004_|_x0006_ª@mBôÃÆfª@xÊª1\u009dà©@`§µIm_x0014_ª@íÛåØÑ_x0001_ª@\u008f {1_x0008_Dª@`_x000B__x0019_v¿ì©@_x0018_<+O$_x0003_ª@®ÒËÞ²É©@c,_x0006_3Æè©@MÉö#ÒØ©@(Ù:\u0091é1ª@/züèÒß©@Ü\u0098_x0007_*\u008aÑ©@ÀOÜ­?gª@6á\u0083éÌ_x0002_ª@ÀÎÝ\u0091©è©@_x0001_0©\u008f´Ò©@®9yöÍý©@\u008dFu6)ô©@\u0085!ó_x0014_MÚ©@Ñ¯)9\u0088(ª@\u009a `}ª$ª@8-®Xã_x000D_ª@ì;~®eÈ©@\u0087\u0090&×¡Ô©@6£WN\u0089Í©@_x001A_^\"I\u0089_x0017_ª@¢N=ce_x000C_ª@*t`_x001A_áLª@pó1ó\tö©@iìfÅPá©@_x0002__x0005_¸V[_x0011_µí©@å¨ó¶ÖÎ©@\u0087rl_x0003_\u0093Lª@\u009c¼Ù_x001C__x0003_Ì©@áµùÜ+ß©@_x0018_  \tÅbª@\u0086Ï,lÿ\u0089ª@b!y9ó!ª@;_x0007_:_x001D_\u00942ª@Màü>ïý©@RP6Ô\u009cÍ©@¢Ed,\u009fÙ©@_x001C_ÅPÇ_x000D_ø©@Ùí9\u0098ÇÔ©@_x000C__x0001__x0013_b\u009aÖ©@ÓÃOmùÝ©@4·±¢úØ©@×u\u009cßMÈ©@EXì_x0011_-é©@2f_x0006__x001F_ÊÛ©@©2Ïm\u0094é©@6%_x0004_et×©@\u0082\u008e\u0096\u0088ôÿ©@MQ\u0096_x0010_zÔ©@É!_x0008_×ªæ©@¤ÈÒ\u0090\u009cé©@£ÇØªWÞ©@\u008d÷l\u0093FÙ©@\\}5%àÙ©@vdeëk%ª@*1ÞÐùã©@#ÑÚÔ_x0001__x0002_3_x0003_ª@¹a0z_x0008_Ë©@ÉßµÝ\u0085Ö©@f_x001E__x0003_q}_x0008_ª@é\u009bG_x000D_Ðã©@\u009b¬sÜ`÷©@mWé÷®Õ©@_x001C_\u0090\u0084_x0011__x0012_ê©@è£ª£_x001D_Bª@©_x0017__x001E_\u009a\u0091ó©@,°\u009942Ü©@)\u0085þH\u009bë©@¹óêW¶ð©@æ?³\u009cÅæ©@dBiÏó4ª@ÇùT_x0001_IÑ©@r-ë\u0093®Ë©@Ì\u0081ÐÅ\u00858ª@_x0016_\u0091\u007f£_x000B_Ì©@:wå_x0004__x0014__x0010_ª@M?¨;4á©@\"ã¬'gË©@ìá½w¨é©@Ñ-d_x0010_Å_x000D_ª@jÇsS\u0098_x0011_ª@°Âhú¬È©@ûYø\u00949_x0005_ª@Õ_x0006_BÅxÝ©@Á½;<þØ©@þS¬:_ð©@ _x001B_\u0094a\u0090_x0007_ª@ñ%5_x000F_eÉ©@_x0001__x0002_\u008eª&µËÒ©@\u0088,\u009c>uò©@OÛÊ2¥Gª@\u00916@;mÉ©@¥_x001E__x000B_\u009e¤áª@v_x0018_)'7â©@÷#,ÃPÏ©@?*i¹åà©@Ò/¦q~á©@$¿&P\u008eò©@­\\_x001D_Iåé©@a>zZ¯ã©@Å¡HåD_x0003_ª@s_x0006_TîgÎ©@\u008b\u0084\u0099a_x000D_}ª@è<Ùz\u007fbª@·F\u009d_x0012_ü\tª@_x0019__x0007_S4!â©@P$_x0018_\u0081_x0006__x000F_ª@$u¡m_x0003_ì©@_x0002_SûÂbñ©@´ùã+GÈ©@»ÉzÜEá©@Ex_x000F_\u0091jô©@_x000E_Í¥s_x0018__x000E_ª@R¡_x0010_CI_x0001_ª@_x0011_Ì(´ÇÛ©@wÞ_x0001_N\u008dÕ©@ùì¼sêæ©@ÒÛïÁ_x0013__x001D_ª@£s_x001E_n¢_x0018_ª@Nûë³_x0002__x0003_^Ô©@:+_x0014_ 7Ë©@ü_x0014_õ¥_x0003_ó©@ïy[I§ì©@J·_x001F_|Ç×©@R\u0093_x0013_ê_x000F_È©@¦]¾³y_x0003_ª@/ûüúYÍ©@ý_x0006_W\u009bì9ª@~Þ5\\_x0018_Î©@_x001B_»æX_x000F_Qª@§Õy\u0091uÜ©@S©\u009f0Á_x0018_ª@c9i\u009bÕ_x001B_ª@9o\u0080\u008fé5ª@JÒ_x0016_ðMë©@ÿßÌüË¬ª@ºM¬¦Äë©@Ä\u0091uF3Ï©@Lð¶g_x000F__x0004_ª@¼\u0093±\u0083\"!ª@_x001F__x0018_×â_x0015__x0001_ª@_x0018_}êÉÐÎ©@_x0011_-¡5à\"ª@º'×D>é©@N\u0098ú#_x0013_ã©@T_x000C_!;_x0010__x001B_ª@»8Õ\u0098FÞ©@¨ü_x0017_,IÐ©@Ë\u009cß+A_x0010_ª@M_x000D_£_x0010_O_x000D_ª@#v¿(þÌ©@_x0004__x0006_O\u0099Ï:§Ë©@6_x0010_«ãòþ©@_x0005_%è2(Ù©@²ø\u009fÛSÉ©@çdy3_x0006__x0005_ª@Ý\u009ei{ÅÜ©@\t\u0099 _x001E_%ê©@½_x000B_¿Æ²ä©@\\£¥òÆÚ©@8;_x000E__x001A__x001E_Ú©@î²»R²Î©@iM\u0095Õ_x0007_Ñ©@6Ö\"\u0083Úã©@_x0006_\u009aúé4_x0001_ª@ þ_x0007_KÀ!ª@_x0011_\u0090·j\u0091Ù©@_x000B_`_x001D_í2vª@ú\u0085Û8\u0087é©@¿\u008cúH\u0089ê©@Ý1|_x0004_áí©@â¢:_x0002_Ç_x000E_ª@\u0087¶\u008d_x0007_ëä©@v_x0019_8zôð©@ò_x0017_0¶RÈ©@|\u0083M¯!§ª@_x0015_³°^ùÎ©@¯Øb\u0084­_x0012_ª@vÉüþºþ©@_x001C__x001B_S<JÏ©@oÌkç¥Î©@V\u0088Ük\u009a_x0003_ª@Tê¿_x000F__x0003__x0004_ñGª@ì¸V_x0010_¦_x0003_ª@ _x0004_ó\u009cÀJª@Ñ_x0008_ä\\¶É©@\u0094,J¡½ß©@ÈÍª\u008c\u007fê©@«_x0010_\"\u0097_x0017__x001C_ª@X_x0015_6EªÊ©@ïn_x0007_19Ý©@äíbÐ²eª@67IT\u009d$ª@Øß_x001E_\u0095¾_x0004_ª@½\u009d\u008d_x000E_#Ê©@ßË0MIÍ©@_x0013_o_x000D__x001A_¼=ª@_x0014_\u007f0gIæ©@8ÇLÐ×ô©@¹é¦\u0090»1ª@\u0081XO|d_x0001_ª@Ð\u0081{ú\u009fÜ©@_x0006_û×1§ß©@A+Nv'_x0011_ª@ÞPã\t¾ò©@q$X`§xª@3¿h_x0002_Ö]ª@óªe\u008fZÿ©@sö_x001A_x¼å©@CI·Ð\u0092_x001D_ª@\u0090_x0015__x0002_½£_x0012_ª@ªÁ\u0093ïî_x0019_ª@ô1_x000F_w 1ª@/¢]Áh8ª@_x0002__x0003_¨/Ó6G\"ª@¦¯»\u008fÙï©@\u0083é_x0005__x000C_#Î©@¤.ÓÍ\u0091Ü©@+ÞSt'Dª@8¢Ï\u0089L&ª@;G¬õ\u0082Ì©@ÙëòFoÈ©@ßJù_x001D_ûù©@ùÿaü_x0008_rª@ÄÂ®úêê©@w9¯ÚÂê©@\u0086{_x0013_i¦þ©@%+a\u0085§î©@Ucfv\u0096â©@\u0094z·J\u009aù©@NÀeK\"ß©@\u0092\u008d\u009aÔ\u009fø©@\u009fÃW_x0004_ñè©@@Ã\u0087A¢_x0003_ª@_x0003_;\u0099¸ù_x000D_ª@¨mÁL1æ©@_x0011_Ëð¶Fò©@®_x0017_µ\u0087t_x0001_ª@¼µ_x0001_õËé©@_x0007_ü¿þUÑ©@ON÷_x0002_·ñ©@Æmàl'â©@\u0081ñkª_x000B_ÿ©@x\u0093??E#ª@¢®_x0017_¹r`ª@Ûë}\u0098_x0002__x0005_ö_x0017_ª@_x0004_\u009dÂä¤_x0019_ª@¦óÝkÿFª@R\u0093ÎdL_x0018_ª@É_x0001_m\u0097[Õ©@v_x0012__x0002_\u0092¿á©@É\u0092ûßYú©@\"#\u008f;9_x0019_ª@X¡NbY)ª@_x0010_|_x0017_wÍÏ©@_x000C_øq-zþ©@\u008f5_x0012_Ä_x001D_ü©@[\u0083_x000D_\u0085Sî©@Ä\u0092\u008d\u0083_x0004_9ª@\u0085Þ\u009bü}Î©@/n a[_x0007_ª@{â_x0019_íêÖ©@Ãß¶JGô©@°i_x0017_Ù¥ñ©@ÑÈö)_x0006_#ª@à\u0089ÏÏx_x0012_ª@g[_x0013__x0018_µØ©@_x0006__x0003_°ÿ_x0016_Ñ©@Qê\u009a\u0089Î(ª@¤Z_x0013_ö\u009a\u0082ª@Òê+ÈÍØ©@ª,_x001D_É\u009cä"}},{"$cut":{"chars":53448,"head":"47b24fb37d8753964bc387077e6e702b@A_x0001__x0013_@@_x0002__x0013_@@_x0003__x0013_@@_x0004__x0013_@@_x0005__x0013_@@_x0006__x0013_@@_x0007__x0013_@@_x0008__x0013_@@\t_x0013_@@A_x0013_@@_x000B__x0013_@@_x000C__x0013_@@_x000D__x0013_@@_x000E__x0013_@@_x000F__x0013_@@_x0010__x0013_@@_x0011__x0013_@@_x0012__x0013_@@_x0013__x0013_@@_x0014__x0013_@@_x0015__x0013_@@_x0016__x0013_@@_x0017__x0013_@@_x0018__x0013_@@_x0019__x0013_@@_x001A__x0013_@@_x001B__x0013_@@_x001C__x0013_@@_x001D__x0013_@@_x001E__x0013_@@_x001F__x0013_@@ _x0013_@@!_x0013_@@\"_x0013_@@#_x0013_@@$_x0013_@@%_x0013_@@&_x0013_@@'_x0013_@@(_x0013_@@)_x0013_@@*_x0013_@@+_x0013_@@,_x0013_@@-_x0013_@@._x0013_@@/_x0013_@@0_x0013_@@1_x0013_@@2_x0013_@@3_x0013_@@4_x0013_@@5_x0013_@@6_x0013_@@7_x0013_@@8_x0013_@@9_x0013_@@:_x0013_@@;_x0013_@@<_x0013_@@=_x0013_@@>_x0013_@@?_x0013_@@_x0001__x0002_@_x0013__x0001__x0001_A_x0013__x0001__x0001_B_x0013__x0001__x0001_C_x0013__x0001__x0001_D_x0013__x0001__x0001_E_x0013__x0001__x0001_F_x0013__x0001__x0001_G_x0013__x0001__x0001_H_x0013__x0001__x0001_I_x0013__x0001__x0001_J_x0013__x0001__x0001_K_x0013__x0001__x0001_L_x0013__x0001__x0001_M_x0013__x0001__x0001_N_x0013__x0001__x0001_O_x0013__x0001__x0001_P_x0013__x0001__x0001_Q_x0013__x0001__x0001_R_x0013__x0001__x0001_S_x0013__x0001__x0001_T_x0013__x0001__x0001_U_x0013__x0001__x0001_V_x0013__x0001__x0001_W_x0013__x0001__x0001_X_x0013__x0001__x0001_Y_x0013__x0001__x0001_Z_x0013__x0001__x0001_[_x0013__x0001__x0001_\\_x0013__x0001__x0001_]_x0013__x0001__x0001_^_x0013__x0001__x0001___x0013__x0001__x0001_`_x0013__x0001__x0001_a_x0013__x0001__x0001_b_x0013__x0001__x0001_c_x0013__x0001__x0001_d_x0013__x0001__x0001_e_x0013__x0001__x0001_f_x0013__x0001__x0001_g_x0013__x0001__x0001_h_x0013__x0001__x0001_i_x0013__x0001__x0001_j_x0013__x0001__x0001_k_x0013__x0001__x0001_l_x0013__x0001__x0001_m_x0013__x0001__x0001_n_x0013__x0001__x0001_o_x0013__x0001__x0001_p_x0013__x0001__x0001_q_x0013__x0001__x0001_s_x0013__x0001__x0001_ýÿÿÿt_x0013__x0001__x0001_u_x0013__x0001__x0001_v_x0013__x0001__x0001_w_x0013__x0001__x0001_x_x0013__x0001__x0001_y_x0013__x0001__x0001_z_x0013__x0001__x0001_{_x0013__x0001__x0001_|_x0013__x0001__x0001_}_x0013__x0001__x0001_~_x0013__x0001__x0001__x0003__x0006_\u007f_x0013__x0003__x0003_\u0080_x0013__x0003__x0003_Â_x0017_·xì£¬@¢ùÌRlwª@_x001C_!Xê\u009bÓ©@>+\u0083_x0019_¿é©@­ê¯ÃóÒ©@9\\uÞNØª@~Ü_x000E_};Fª@úSú\u008bb ª@±ª>4 'ª@\u008cg18Ûê©@:Ê\u009fÓð\u0094ª@µ É\u0091ç8«@¼_x0017_$ \u009c_x000C_ª@¹3«ì\u009cå©@Ô;O+3ý©@)úZFÝ.«@_x0005__x0010_½\u0083Ç4ª@À\u0084_x0015_\u009aoFª@8nö16Ö©@_x000F_ñPRo «@Y\u008e±_x0014_º1ª@:s\";qÖª@_x0004_!.ÒÂ_x000F_ª@\u008d5ÜDêâ©@Ã\u009c4A._x0002_«@\u008fâ_x000F_>\u0080Èª@´\u0095_x0001_2'á©@?_x0019_\u0094ó/Åª@¼U_x0007__x0013_ñÏ©@ê\u0091æ6x¶ª@\u0083Á­R_x0001__x0003_Åùª@:°lE\u0097tª@¨Câ\u0093\u0086ÿ©@tò_x001E_Ö\u0095Ö©@\u008fËd+sæ©@=Í¶Ôw\"ª@ ²Æ_x0005_i_x0005_ª@º\u0090äRASª@\u0083ý_x0004_ e\u0080ª@Üf1_x0006_Ü_x0018_ª@2êË_x0002_\u008bÍª@ÁàÈt_x001A_ì©@t\u0083_x0015_&\u008fÛ©@5Å°¤tã©@$ã\u0099\u008d_x0003__x0003_ª@ªâ\u009bß°ì©@f½GÓÐÓª@pM{þ¿ÿª@+\u0083\u008bñ_x0003_²ª@·¹¹9©_x0003_ª@z\u009dÑ[\\°ª@5_x000F_Ú»÷Fª@èÎãÂ\u0096Ù©@;¸\u0097®[Yª@½÷ÞÛJ_x0006_ª@_x001E_´\u009a_x000C_;F¬@Ç\u0092_x001C_×ì{ª@¦«ì¬åã©@R±_x0015_ÁÞMª@XD§_x0007_ó_x000C_ª@³³@ÍÃ¼ª@_x0007_8)¿ç9ª@_x0001__x0004__x0007_½{J\u0087ð©@ \u008cn´k_x0003_ª@m_x001E_\u0094æ7{ª@%5Þ%ñ»ª@Éh\"¢ü+«@A<PÝ8±ª@_x001D_ÖTãÀ\"ª@\u009a·_x001D_à^å©@oiÄäo*ª@\u0091v\u0099.N\u009a«@\u0098[<HÈ_x0012_«@Dë¡_x0001_,Ö©@2Øf_x000C_Þí©@u>p_x0006_Îmª@3\u009f\u009c¸_x0004_¶ª@\u009el7_x0012__x0001_Ï©@¤3È\u008b~\u0082ª@ì_ül8uª@\u009a_x000D_s¸\u0093Lª@x§ñ³ðÐª@É)_x0002_\u0093üô©@dî/_x000D_º'ª@ÈE<yPõ©@\u009ef¨\u008ft?ª@ÿÉ:Yu}ª@D\u0086_x000E_×z\u0091ª@Ò§_x000F_\u009dÀ_x0007_ª@ßU_´²:«@\u008c\u0085BL_x001C__x001F_ª@¦ñ÷Ísuª@_x000E_A~¿_x0007_ä©@\u0084_x0013_¢?_x0002__x0003_+¼ª@O\u0098ßª:)«@Íþ_x0016_5Ò_x0002_ª@\u0088\u0099j\u009eqð©@&\u009fj_x0018__x0012__x001B_ª@\u0096\u0095f_x000E_e_x0001_ª@\u008bo_x0001_ñã_x0010_ª@^ÜN\u008b_x001D_Qª@TYÖ5þ\u008aª@A_x000D_WNÐ_x000B_¬@,TÙÉ_x000D_Û©@{Û^T­Ë©@\u0094_x0006__x001A_¦¨É©@_x0004_ª®*èWª@ûüR'É×©@àø\u009eÆêaª@áXÂ\u008c'`ª@£µÈdëÒ©@/\u009b:÷2_x0017_ª@oG-¾«2«@\"\u009cÌ_x000C_-v«@&\u008fù\u0085_x0018_:ª@½@LÄ_x0015_%ª@ÊÇ_x0002_ß»£ª@ì7ubÖ_x0015_ª@n+_x0017_\u0087Tã©@ê7\u0091dM¬ª@\"r¡I¶vª@@·\u0097_\u0097Þª@háV_x0013_\u0088F«@èì(@tÌ«@.|8ì@qª@_x0002__x0003_\"|Té£_x000E_«@\u0084_x000B_$Rm\u0089ª@[\u008c9´_x000F_æ©@\u009e¢ËÅÃaª@ºµmÏMÉª@_x0012_h²þ{_x0018_ª@Õ^¸\u0089ç_x0005_ª@K_x000F__x0008_\u0085mÐª@7_x0018_¿Òww«@\u009f_x001E_Ö·_x001E_wª@_x0003_Mk\u009f\u009b£ª@_x000C_û¼ºX<ª@\u0087»_x0007_\u0096\u009e@«@ß_x0016_ö¡¥Nª@¨ô;]_x0013__x000C_ª@£¡nf÷_x0013_"}},{"$cut":{"chars":51342,"head":"c84d214621692d7f9e6be0c91a9f757f_x0001__x0006_å£tÈ­aª@Hh\u0082\u0081;\"ª@\u0084ª_x000D_\u0095_x0019_ÿª@ÓÓ>.pMª@ÑQ_x000D__x001C_\u008fñ©@\u0089_T_x0003_g1ª@ÇØÓ\u008dßdª@/\u008b_x001A__x0007__x0007_Xª@Sk_x0019_\u0083\u0097ê©@Ó_x0001_p«n_x0017_«@7Üãx_x0015_Rª@\u009b­m_ìÉ©@ \u0089ûù_x0017_*ª@G\"_x0003_ã,ý©@ø;\u0088¬\u009eÛ©@T_x0011_>_x000B_Rý©@c_x000E_ºëØ]ª@Vfÿ4Á)ª@ü\u0081\u0081\u0093_x0004_9ª@à±kr`æ©@oØ8\u009fÅðª@XõîÅb_x0003_ª@´&\u0084¶ä\u0093«@*¿íþÙ_x000B_ª@1\u009bý_x0017__\u009d«@_x0005_¹y\u0099\u009c\u0097ª@òtÁ§_x0005_í©@\u0099_x0003_·¤_x0013_Ú©@¯êÜã\u0090#ª@e_x0002_+Ê_x000B_Èª@öìú¬þÝ©@\u007fÉÚS_x0001__x0002__x0014_$ª@Ãn_x0001_äÄÞ©@îeÂ_x000D_~\u008d«@¢oeÅÿûª@\u0095¼ë¢ê\\ª@gÅ\u008e1\u007fØ©@_x0014_ÃÇÐ\u0096Ãª@_x000D_k_x0004_JÉJ«@Ü\u008c_x0016_ñS_x0018_ª@c\u0086s²o_x0004_ª@i\u0086Aî_x0018__x0018_ª@vÆ_x000E_û\u0099ñª@_x0018_5T\u0081_x0006_ç©@\u0090ËW_x0010__x0014_æ©@aÉ\u0098t_x0012_Fª@t.*ÃÒt«@\u008f|\t¿~_x0006_ª@ô\u009dí\u008a\u0093í©@Ú_x0014_Ç_x000B_õSª@hÁ9\u008d\tÔ©@9Bkö¨®ª@n_x0002__x0011_;_x001A_E«@-ì\u0094Ç\u0098\u008b«@$ÅÓ÷#_x0008_ª@±·W\u0089 Ù©@f_x0013_·ËãZª@Ö£æÜ\u0097P«@\u0081ÕPPç_x0014_ª@÷_x000D_¶,ËVª@=@\u007flY]ª@ßå_x0002_ªËß©@âý_x0010_¯gZ«@_x0001__x0003_ó\u008d!Íß:«@M\u0087\u008aìåWª@±é¿-\u008dmª@«\u0089¬ï\u008e\u0089ª@¹×_x0002_ë°Ì©@BÌ§\u0080J_x0014_ª@´-_x0004_Ë¹\u0094ª@!>¤_x000C_Ï{«@h\u008f&gè_x001F_ª@_x000F_µÙ\u0095\u008d¸«@ê\u0096Fnh3ª@\u0085Bï\u009dúÎ©@\u009fÐ_x000D__x001D_ õ©@q­ã\u0095´ ª@,;;_x0015_É$ª@_x001C_x¡U\u007fSª@V\u0096\u008bU¬­ª@X(¤\tdí«@A\u009aö_x0007_qT«@jl¸_x001C_¯¨ª@ç§\u0091Î/-ª@_x000B_ÍÄ=Vè©@5KÇô_x0014_å©@é\u0083\u007fw\u009c(«@_x0016_' #0Mª@èvZ«Ç_x0013_ª@öÅ=ÇO_x0019_ª@\u008dÑ}ÄÀ¤ª@\u0083úì_x0008_ØÐ©@)aÜíè÷©@çëâôý «@\u0085`³÷_x0006__x0007_B±ª@Sª\u0081{pò©@ðWrÁ\u009e_x000E_ª@æ\u009aæ$Å_x0018_ª@,Ü#vWsª@ch_x0005_WwÝ«@ñô\u009e\u0093\u008eï©@d_x000F_}\u0093º¬ª@\u0081­\u008d\t_x000E_@ª@_x001E_æ_x0001_?\u0082ð«@=²_x0013__x0012_i%ª@f\u0081ð\u008d2÷ª@^¤F\u009dóâ©@\u0098pM·ð+«@ë\u009d_x0017_\u0099_x0005_bª@Æº»±ýÃª@8vT¿0Iª@2uç{\u0085_x0019_ª@_x0004_?!Ç\u008d?ª@¿üÉ_x0003_\\í©@ß_x0017_°Owã©@]/¸Ê\u007fÖ©@TÖ\u0083_x0017_ûTª@_x0008_¦oÌ£Ö©@roÕG_x0004_â©@÷±òH ¡ª@¼_x0003_ì_x000B_ªfª@_x0015_u³¤T=¬@Dpb_x001D_l4ª@ª\u0080¾_x0002_'7ª@O©@)Ànª@ñ±\u009aMÜà©@_x0004__x0005_JáT_x0001_FÇª@ð¨8ÕÈ_x001D_ª@À\u0085_x001E_Srÿ©@\u0082­BÉà_x0005_ª@tôÞÏ _x0001_ª@_x0017_/öÕ__x0007_ª@OÿfÞù_x0003_ª@Õ9\u008e²±)ª@Þª\u0095ag_x001D_ª@\u008eoÈ¨Sí©@Ã¼_x0003_¸Å¼«@_x0013_6Á\u0086$1ª@x_x000D_Ï\u0080»»ª@ÁÕ%_x001A_{_x0010_ª@_x0018_î#pq_x0003_«@¥\u008a³\u0080L:¬@6# )}_ª@îTIï?íª@~®\u0081*8û©@XTË_x0016_3Ö©@¯7¯¬Lå©@j:68­Ù©@Ê\"\u0089ÿHÙ©@5LK±>Û©@±Ù,\u0087\u0091óª@\u0087\u0089_x0013_UÖhª@Vú>¼+_x0002_ª@³_x0012_ûÂÍ^ª@\u0097\u008cÎå8_x0016_ª@%ë\u008f5;_x0010_ª@_x0018_ð\u009c3tÙ©@d©K\u009e_x0001__x000F__x000D__x0011_«@À¾ãàeà©@(\u0092¥$ -«@õ_x0014__x0002_\u0080r8ª@=rLüô\"«@_x001A_Þ_x0011_\u008eõð©@_x0014_\u0093RQTú©@ÕÞ\u00908dFª@¤ù(î-{«@F¿UªÙQª@î\u008aQ=õ¾ª@_x000B_\u009f+M÷_x0006_ª@_x000E_{Sp\u0099_x0006_ª@JE$\u0095Wê©@ç\u0089ág³_x000C_ª@_x0007_q%£~o«@ÇÏTI_x0011_õ©@±Ò_\u0082\tÅª@_x0010_3Á5&ú©@³Êÿl_x0005_qª@«\t\tQNøª@i\u008e-®°eª@4_\u0096ì_x0003_Òª@ùo_x000D_på9¬@~\u0093î_x0007_´Ê©@_x0008_º+¢_x0004_é©@5B\u009b`Ð_x0001_«@D0¢Y·Úª@Fè½`jñ©@\\Å_x0005_÷ÔÆª@^®_x001A_¶gÍ©@ÎeS$_x0012_oª@_x0001__x0002_N_x001A_íôÊG«@Ã6_x0014_¯}ä©@¤Í_x0004_Êjaª@_x001D__x0019__x000D_ÛT\u008eª@%Ri_x0013_û4«@_x000C__x0005_ÿ'Äæ©@nM5ÛdÔ©@ºYâ 4'ª@_x0003__x0018_%+)]ª@\u009d8P\u0088Ótª@}_x0005_bU§Hª@Aå£W·\u0088ª@ö\u0094J_x0012_xzª@Ú%×jOá©@ûn¢PË¶ª@\u0097nà_x000E__x0012_ô©@_x0002_ÜÜ'_x000B__x0004_ª@ºÔ|b\u009aIª@\u008aNö\\=)«@\u009eÅµ_x000F_\u0085Ô©@ü!êÄ_x001B_\u008bª@\u0093_x0013_xó°dª@¯Ñ~z_x001D_\u0098ª@\u009c_x0008__x0018_Q_x0016__x0007_ª@°õJ2ÿÕ©@²ö¶_x001A__x0007_ö©@Õ@ìdøÖª@D_x0001_#i_x0018__x000C_ª@\u0097_x0013__x000E_\u0092Ûñ©@\u007f_x000D_w-0Kª@­EA_x0015_óIª@D_x0019_\u0096h_x0002__x0003_¾Aª@zqÖÕã;«@_x001B_¯ÊðYÕ©@A_x001F_Ã\u0098î\u0088¬@dµ\u009b-³Ô©@èâ\u0089ß)åª@V\u00816³ý\u0085«@\u0083Ù§\u0082_x0001_1ª@úQðÊA?ª@àæ+_x000F_fgª@4O\u007f{_ «@:_x000C_ÑÝYrª@¤ßè[ïQª@'8zvmá©@P§¬«Suª@lÛ-ÑbÉ©@æ _x0019_*7Ü©@^º_x0011_+Ý-ª@_x000B_\u0090¤©_x0017_>ª@¼5\u0087»_x001F__x0008_«@\u009ds#_x0015_XCª@èÈ\u009d4ÀB«@tãméÈ5ª@_x0005_L9;8_ª@±ñS\u0085Ñ_x0002_ª@îJ`Û,9ª@eÜx[W©«@sw\u0093Yv\tª@·0`}_x001B_õª@>»0_x000E_Qgª@_x0006_¹9Ì Hª@_x001F_\u0093\u007f\\Dæª@_x0003_\ttð_x0006_^»_x0007_ª@Ã7ýÆH_x0001_ª@Ò©=_x001A_1\u008c«@PC\u008aVë_x001E_ª@;@«_x000F_í_x0008_«@W_x0006__x0001__x0018_ÅÀ«@?dÆ\u0088¹_x0005_ª@_x000C_ì\u0080§ì\u008fª@s\u009c\u0092\" yª@°_¸%P\u0087«@pá_x001E_¶Nyª@_x001B_®_x0008_A_x0012_-ª@\u0083u\u0080I*à©@_x0006_\u0086g8\u0097ôª@g×T\u009dî_x0003_ª@ìÿd_x0007_s½ª@ò*Õ<Ó ª@\u0083ÛÎ_x001C_c_x0010_ª@\u008cjÃûY£«@h\u009faï»>ª@n¾Í\"_x001C_Õ©@_x0008_`_x0008_£w@ª@º,òé_x001F__x0002_ª@¨¬Xç2\t«@Ï_x000B_góì4ª@E¬¶\u0082_x0011_x«@³\t`_x000F__x0004_©ª@¢1âýè8ª@v©½ýÃbª@~\u0094_x001D_¼Ïøª@Gò\u009dÖùüª@`\u0098éÎ_x0001__x0003_¨Ì«@\u0096¹_x001C_v\u0096-«@?Rxew:ª@=X£¨\"_x0001_¬@³\u0089qêÍ?ª@T 0\u0080¾î©@éË\u007fÀï_x0011_ª@ìR\u008d\u00897B«@I] ö¿Oª@\u0083Ö_x001C_)_x0006_â¬@GÎöULzª@\u0080g~Ï_x0006_<ª@A.4Q\u0092Çª@lA_x000C_\u0083k5ª@W±\u008a¤WÒª@_x0007_F¿ÜÈø©@ý\u0085,_õÛª@ìgà\u0085\u0099Sª@_x000C_\u009a^£G:ª@._x001F_þS +ª@_x0019_\u008aå{\"û©@=v_x0018_WU,ª@\u0091\u0085 _x001E__x0002_ó©@©ØP}.lª@E\u008dö½8_x000"}},{"$cut":{"chars":76848,"head":"d4b3d0361e3bd5a3d7fd00800948014c_x0001__x0003_Bp_x001A_UÌÌÃ@î_x0011_¡ëÇñÃ@y'\u009b\u0094¢+Ä@f_x001B_:µÒ\u0080Ã@_x0010__x001C_^\\©®Ã@\"~!cc\u0096Ã@VbWê¥ËÃ@±\u008dÛ²yªÃ@8ºË~åzÃ@BUHa}ÉÃ@_x0001__x0016_¨ü#ÝÃ@´m_x0004__x0002__x0019_»Ã@×V|tb_x0007_Ä@(õm_x0005_þøÃ@(\u0087\u0098À\u0087\u0092Ã@'Òæ_x0013_ôùÃ@ÿï»ÊZÐÃ@Ü_x0007_Q_x0010_Ë~Ã@_x0001_ôq\u0099\u0099\u0099Ã@_x0016_F_x0015_\u0099~zÃ@1*n\u0090X°Ã@_x001C_tP_x0014_;\u008bÃ@ôJL}Ä\u008fÃ@?\u007fWò\u0096¡Ã@>_x0017_ÐôÚÔÃ@_x0014_U§!¿%Ä@\u0090\t®õv\u0096Ã@_x0002_ë\u008b½$ÉÃ@_x000F_Øªw÷uÃ@_x0018_ \u009axÕ\u0080Ã@º\u0086_x0016_¯3ÛÃ@²VJ_x0008__x0001__x0002_2ØÃ@FevµY\u0091Ã@_x0005_\u0082_x0007_\u008c½õÃ@Â_x0016_`õ³\u0086Ã@èf, JíÃ@Ðaç55\u0098Ã@\u008b\"qâ{kÃ@%\u0091_x001B_^7àÃ@ð\u0087R\u0082_x0002_²Ã@Ú\u0087\u0093è\u0081_x000C_Ä@Æ±6Xv\u0093Ã@ªõá(\u008anÃ@Z»%\\_x001C__x001B_Ä@þ_x0014_Dy¾_x0006_Ä@_x0002__x0017__x000F_ÏÓ÷Ã@é_x0007__x001E_ã&ÃÃ@_/ö`>¿Ã@\\¥t¶\u0081ÌÃ@\u0084_x0004_²_x0012_b\u009cÃ@RWËAZøÃ@òð¦­jéÃ@_x0018_?¯È_x0018_vÃ@ÞñdÎß÷Ã@TIÔ·\u0081jÃ@\u008f_x0007_x|ùÀÃ@$ÉÜ\u009c4ÌÃ@_x0017_¥@õÔAÄ@Í_x001B__x0012_X{©Ã@R\u00832÷uãÃ@_x0003_Í\u0082_x0010_\u008b¢Ã@²\u008f_x000B_¹s*Ä@_x000E_\u009b\u009eZ¦îÃ@_x0003__x0005_E}óëË+Ä@3_x0001_\u0095Ñì\u0098Ã@\"éßDî\u0091Ã@\u0086À\u009c\u0095Ù¸Ã@r_x0015_g\u0083|ßÃ@«é\u009ai_x0007_ÃÃ@>À_x000D_\u009b©ì_x000F_A%_Qlu=_x0010_A\u0085ûÒ\u008eÜT_x0010_A{¹\\ì\u0099Q_x0010_A\"ÛS=\u0099W_x000F_A!Â_x001A_Õ~'_x0010_Aü_x001F_M5Ú_x0018__x0010_AÔ_x0002__x000B_ÀqÛ_x000F_A0MÛë_x0014_Ù_x000F_Aðî_x0001_sP5_x0010_A\\_ëÎ,U_x0010_AWÆ_x0017__x0019__x0004__x0001__x0010_AÛh¼_x0016_\u0092R_x0010_A_x0001_«þ¤V\u0087_x0010_A°É¨Ø_x0005_|_x0010_Aâ>FQÃ÷_x000F_A¾8Ý×\u0099¯_x0010_AóÀ1<\u009aÔ_x000F_AHixs1Ê_x0010_A8áÒìn\u0092_x0010_Ae/_x0005_X(_x0015__x0010_A\u0086áJGÀÎ_x000F_A*{±V]q_x0010_AÌ\u009c_x0005_\u0096îÛ_x000F_A_x0012_\u0097ø1\u0095F_x0010_A¢×cÿ_x0001__x0003_+_x0003__x0010_AYÆ÷¢3-_x0010_Ap_x0019_>\u009baÎ_x0010_AhÂV\u008f\u007f±_x0010_AôaJÁd\u0096_x000F_Aî¸~_x000F_(4_x0010_A¢ß_x0019__x000B_?+_x0010_AÎÑ¥_x001C_\\Ü_x0010_A_x0002_«ú÷ç\u0095_x000F_A\u0092_x0003_\u0084%Øú_x000F_AÜu.µé_x0011__x0010_ABð¤_x001A_\u0087c_x0010_Aè~Ôa_x0016_I_x0010_Ai_x0015__x000B_\u00880\u0080_x0010_AE_x0018__x0010_@qM_x0010_A\u0094øÒ\u007fÎW_x0010_AêÆ¿_x000C_¡/_x0010_ABd«æ(i_x0010_AÍß\u008b\u009c\u0087#_x0010_AãEÜþÍë_x000F_A_x0018_Lü5]_x001F__x0010_A^\tMa.\u008c_x0010_A'iùé Ò_x000F_Aæd\u009bIÕ_x0019__x000F_A¢SBCXp_x0010_AcöºÊw¨_x000F_AUeþ\u007f_x000D__x001D__x0010_AÓÔ`_x0003_ö'_x0010_A\u008bÛ_x000B_R¯\u009e_x0010_A\u009dÎ?ðy0_x0010_A_x001C_\u008f×\u0098f_x0017__x0010_A\u009b-ÄVÎ,_x0010_A_x0001__x0002_âµø\u009bO\u0092_x0010_A\u008d\u008el&_x001B_t_x0010_A\u0081_x0013__x0001__x0001_\u0082_x0013__x0001__x0001_\u0083_x0013__x0001__x0001_\u0084_x0013__x0001__x0001_\u0085_x0013__x0001__x0001_\u0086_x0013__x0001__x0001_\u0087_x0013__x0001__x0001_\u0088_x0013__x0001__x0001_\u0089_x0013__x0001__x0001_\u008a_x0013__x0001__x0001_\u008b_x0013__x0001__x0001_\u008c_x0013__x0001__x0001_\u008d_x0013__x0001__x0001_\u008e_x0013__x0001__x0001_\u008f_x0013__x0001__x0001_\u0090_x0013__x0001__x0001_\u0091_x0013__x0001__x0001_\u0092_x0013__x0001__x0001_\u0093_x0013__x0001__x0001_\u0094_x0013__x0001__x0001_\u0095_x0013__x0001__x0001_\u0096_x0013__x0001__x0001_\u0097_x0013__x0001__x0001_\u0098_x0013__x0001__x0001_\u0099_x0013__x0001__x0001_\u009a_x0013__x0001__x0001_\u009b_x0013__x0001__x0001_\u009c_x0013__x0001__x0001_\u009d_x0013__x0001__x0001_\u009e_x0013__x0001__x0001_\u009f_x0013__x0001__x0001_ _x0013__x0001__x0001_¡_x0013__x0001__x0001_¢_x0013__x0001__x0001_£_x0013__x0001__x0001_¤_x0013__x0001__x0001_¥_x0013__x0001__x0001_¦_x0013__x0001__x0001_§_x0013__x0001__x0001_¨_x0013__x0001__x0001_©_x0013__x0001__x0001_ª_x0013__x0001__x0001_«_x0013__x0001__x0001_¬_x0013__x0001__x0001_­_x0013__x0001__x0001_®_x0013__x0001__x0001_¯_x0013__x0001__x0001_°_x0013__x0001__x0001_±_x0013__x0001__x0001_²_x0013__x0001__x0001_³_x0013__x0001__x0001_´_x0013__x0001__x0001_µ_x0013__x0001__x0001_¶_x0013__x0001__x0001_·_x0013__x0001__x0001_¸_x0013__x0001__x0001_¹_x0013__x0001__x0001_º_x0013__x0001__x0001_»_x0013__x0001__x0001__x0001__x0002_¼_x0013__x0001__x0001_½_x0013__x0001__x0001_¾_x0013__x0001__x0001_¿_x0013__x0001__x0001_À_x0013__x0001__x0001_Á_x0013__x0001__x0001_Â_x0013__x0001__x0001_Ã_x0013__x0001__x0001_Ä_x0013__x0001__x0001_Å_x0013__x0001__x0001_Æ_x0013__x0001__x0001_Ç_x0013__x0001__x0001_È_x0013__x0001__x0001_É_x0013__x0001__x0001_Ê_x0013__x0001__x0001_Ë_x0013__x0001__x0001_Ì_x0013__x0001__x0001_Í_x0013__x0001__x0001_Î_x0013__x0001__x0001_Ï_x0013__x0001__x0001_Ð_x0013__x0001__x0001_Ñ_x0013__x0001__x0001_Ò_x0013__x0001__x0001_Ó_x0013__x0001__x0001_Ô_x0013__x0001__x0001_Õ_x0013__x0001__x0001_Ö_x0013__x0001__x0001_×_x0013__x0001__x0001_Ø_x0013__x0001__x0001_Ù_x0013__x0001__x0001_Ú_x0013__x0001__x0001_Û_x0013__x"}},{"$cut":{"chars":75066,"head":"8317cd05c67983ecfccc8f6559a042a5_x0001__x0005__x0007_¯J£ê|_x0010_A\u0090_x0018_M\u008226_x0010_AC×âN\u009bP_x0010_Aû¬,&ß_x0019__x0010_A/ Ã·~t_x0010_AÜ¦_x0011_þÙw_x0010_A©+¨Iþ\u0081_x0010_Aú2½\u0085C{_x0010_AzÉñ°pa_x0010_AW\u0080Í.-j_x0010_A_x0012_ùTåÛQ_x0010_AX¯.W_x0015_(_x0010_A_x000B_Q\u009côýo_x0010_Aæ¿qÑû!_x0010_A§ÒÙ_x001C_îB_x0010_Aú_x001A__x0016__x001E_ðD_x0010_AÃFI®\u0090Å_x0010_AÊÜ\u008bS²m_x0010_A_x0001__x0011_$\u0084<_x0004__x0010_A=R_x0014_8¥F_x0010_AÌ*_x0004_\u0088\u008b4_x0010_AW\u0089!s÷_x001D__x0010_Aö7ãÈê\u0080_x0010_Að_x000C_S¡t6_x0010_AÚ¯7Z_x0002_H_x0010_AIÿ\u0085zó_x001E__x0010_AÜºæ7w1_x0010_Aò!~EA\u0097_x0010_Aý\u0098_x0003_N£8_x0010_A·vEjÏT_x0010_A\u00977{_x0014__x0006_\u0095_x0010_AÇ%¢Î_x0002__x0003_Á\u009e_x0010_A«ý&m'H_x0010_AÑ\u008du$²\u0087_x0010_A×_x0001_îÓ_x0008_,_x0010_A/JÇ\u0080+_x001F__x0010_Aï!¯+»o_x0010_A$;_x000D_m_x001A_3_x0010_Aùe_x001A_õ\u0090\u008a_x0010_AÉ\u009f_x0017__x0006_~Q_x0010_A,T_x001C__x000C_í__x0010_Am§¥øÜ0_x0010_AÚ_x0007_1Úõ\u008f_x0010_A_x0002_Ôº\u0083Ø}_x0010_A`_x0017__x0001_$M\u0094_x0010_A&ì_x0018_\u0094Ãk_x0010_AD\u008a<õÀ\u008a_x0010_A\"\"ºL·@_x0010_Aîs°þ¡T_x0010_A¹\u007fÚà£\u0082_x0010_AïÔ:Jw¹_x0010_A²È\u008enOy_x0010_A\u0080È\\f¹\u0096_x0010_Aä]¨ h\u0097_x0010_A4y3W_x001B_X_x0010_A£~'¼©\u009d_x0010_A_x0003_ iìwM_x0010_A½ÜÆ¸3E_x0010_A_x0008_'\u0091L\u0082x_x0010_A¦°_x0012__x0012_y¯_x0010_A_x0018_W°&F:_x0010_AÔ­_x0002_ZíV_x0010_Aÿ\u0096Ã_x001C_íg_x0010_A_x0003__x0004_%_x0011_\u0089wöb_x0010_AºSnº_x0017_\u0086_x0010_AVé[¤¸~_x0010_AZA÷~q\u0098_x0010_A_x0010_H?\u0098ñp_x0010_A\u0082x\u00907¼\u0095_x0010_A¨8'¾x'_x0010_Ap<Oaøs_x0010_Aâs_x0014_ôÊ¢_x0010_A&\\¼êv\u0096_x0010_AJÇ¾,Jy_x0010_A\\V¤Ô³p_x0010_Ap|&q¸_x001F__x0010_A_Â_x0010_Þàb_x0010_A\u008b_x0018__x0018_&Ã_x001B__x0010_Aëüb[Õ\u008e_x0010_AÎ'Ê[_x0002_g_x0010_AXË\u0097Á·,_x0010_Asòß_x000F_]}_x0010_A©ç8\u008b\u0090¡_x0010_A¨\u008f\u0098µ¹©_x0010_Aå_x001E_á_x0003_5 _x0010_A_x000D_\u008d q_x0010__x0019__x0010_A\u0089Dñ­E_x000D__x0010_Av¡._x0001_Þ@_x0010_A\u008e_x0008_GSE5_x0010_AÃÃz_x0012_Ôf_x0010_A_x0007_Â£ò~K_x0010_A\u0086<\u009f\u008b­f_x0010_AX\u0097øJóP_x0010_AÍ¥àò¶X_x0010_A\u0087µ·\u0094_x0002__x0003__x0003_·_x0010_AgfþÇ\u008cy_x0010_Af¡_x0018_E¨\u0080_x0010_AÁo-_x0003_s`_x0010_Aû_x0017_ABê?_x0010_A\u0082Ø9ó²[_x0010_A\u0084#\u0095ú½­_x0010_A§däá_x0014_L_x0010_Aäía@\u0094G_x0010_AË©iy-[_x0010_A\u0087j(U_x0017_\u008d_x0010_AC2!Ð$\u0090_x0010_A¨®VÕÓ\u008b_x0010_Az_¯_x0003_«D_x0010_AQ\u0089TjÁ__x0010_A\"m®3>\u0089_x0010_AèÏ8ÏÉf_x0010_Aô\u008c\u0088úä\u0098_x0010_AÃ_x0006_\"_x0001_¾;_x0010_A>Ú°£\u009fX_x0010_AêO_x000C_¡UO_x0010_AÏ_x0003_Z¹_x0017_¤_x0010_Ae®\u0088\u0090_\u009b_x0010_AÆK_]¬c_x0010_Aøb \u0090by_x0010_A ·wÒ~M_x0010_A»e§xËr_x0010_A_x0018_¤L¦Êc_x0010_AOÅC_x0018_¯C_x0010_Aó>K\u009c\u0087C_x0010_A_x0008_Ãd\u0091ß\u008c_x0010_A*$Ã_x0002_Yx_x0010_A_x0001__x0003_\u0086#\\ø\u00930_x0010_A.ç\u008e¾Ô\u0083_x0010_AD\u009br\u0093õS_x0010_AîÍÃ_x000B_\u008bz_x0010_A_x0006_2gÒVa_x0010_A_x0007_\u0092úsïz_x0010_Aà\u008e2£»F_x0010_A_x000D_\u009a_x000C_Ø¹g_x0010_AbÀÊA_x0005_o_x0010_A²\u009e=ì¸N_x0010_Az*yK\u0084\u0085_x0010_A_x0001_±qÿPG_x0010_A\u0080D²\u008aÓH_x0010_A_x000F_µUÐ½}_x0010_Aàö!_x0002_w\u009d_x0010_A\u0085|ýSÃK_x0010_A×_\"_x000B_YW_x0010_AQ«z_x0005_\u0086_x0003__x0010_A_x0011__x001E_\u0086_x000D_N6_x0010_A7ª\u0089C\u009b\u0092_x0010_ABöAÍ_x0012_@_x0010_AÃ¤½ã8r_x0010_A\u0093Ûñ\u008eýA_x0010_Agåý\u008fá\u0080_x0010_As9úÁ)&_x0010_A\u0095?\u0091Z_x001C_\u0090_x0010_AìpyôÊ\u008f_x0010_Ap²f¸\u0082_x000E__x0010_ArÝ<s¼£_x0010_A\u009a_x001C__x001E_C_x000B_J_x0010_A~+\u008d\u0096_x0016_q_x0010_A§_x000C_a]_x0001__x0002_>c_x0010_Av_x0016_bCEM_x0010_A\u0097Ú®Ï_x0003_\u0086_x0010_AXMë&¨K_x0010_APlaFà7_x0010_A_x0014_\u009c\u0092ßN°_x0010_A_x0004__x0014_ßQú[_x0010_Az_x0006_I½(¤_x0010_AÝËùM\u0094\u008e_x0010_A\u00859.¸ÐW_x0010_Aï\u0088ÆF6>_x0010_A([\u0087ë\u008aO_x0010_A{X@+ü\u008d_x0010_AÀ§0_x0006__x0017_U_x0010_A\u008f¢_x0012_â\u008a7_x0010_A;FÆeà__x0010_AXñe\u009dR{_x0010_Aôë\u0093#*k_x0010_A6Eø1 \u008f_x0010_AÁÐÃ_x0011_«i_x0010_AÒÈ)ÍøZ_x0010_Apl÷õ\u008dx_x0010_AµZF_x001E_\u0089\u0098_x0010_A_x0010_\u009b&>?\u0088_x0010_AúáË^:n_x0010_A_x001D_f¿\u0089_x000E_\u0099_x0010_A8\u00965¸_x0015_T_x0010_A_x0017_ÆÊã5=_x0010_A4hÙÎ&O_x0010_A}Ú*Å#y_x0010_A³B_x000C_ÇÞ\u009b_x0010_A=\u0090ªª;:_x0010_A_x0002__x0003_Ö¸Ì'Ir_x0010_Aë\u0083m­X{_x0010_A_x0014_\u008d_x001B_hÇ%_x0010_A_x0006_¤7Ès?_x0010_A$é_x0016_©_x000E_a_x0010_AV¥\u0083·cc_x0010_As\u007f&´ê\u008a_x0010_A\u009cÕ_x0002_ôé\u008f_x0010_A-\u008fIËY_x001F__x0010_A\u0090$R\u009cpx_x0010_A{­\u009a_x0011_ây_x0010_AA&k.\u0098@_x0010_A\u0099¾_x000D_\u0084\u0094±_x0010_Aèø«W_x0016_N_x0010_A\u0083µ_x0006_L_x0004_w_x0010_A?4jx(\"_x0010_AÃ~ä¬6\u009c_x0010_AAÞdP_x001B_V_x0010_A\u0097_x001A__x000D_N\u0097\u0088_x0010_AM\u008c_x001D_r!z_x0010_AúI_x0013_\u0098_x001E_\u008c_x0010_AÖ\u0087\u007fÈ\u0086r_x0010_A©×_x001D_ÙÉU_x0010_A¸_x0019__x001E_¾¡U_x0010_AmË_x000B_H³\u0082_x0010_A\\i_x001D_\"\u008ag_x0010_A>*dÐw/_x0010_AÖ\u0082¯8{p_x0010_A¢¡_x0001_fõU_x0010_AgQ\u009c\u0081_x001A_\u0083_x0010_A\u009f3Gõ53_x0010"}},{"$cut":{"chars":71664,"head":"572674f3d3d7f5082e88465f8b028e3c_x0001__x0002_2Î¨´´Í_x0010_AØÏú)ü¨_x0010_A÷ú£_x000D_£þ_x0010_A\u009c_x0014_\u008f\u009c½\u0088_x0010_A\u0088öÕ¿k\u0099_x0010_Aõ§V±\u009bq_x0010_AØ+_x000D_6yÖ_x0010_A\u0096l}Ï&)_x0011_A_x001D_*ÂL<_x0007__x0011_AQ$N\u0099_x0013__x0003__x0011_Acîèó\u0081_x0014__x0011_A¨3ý<_x000C_ã_x0010_A_x0013_ì(Ö_x000D_\u0085_x0010_A/T\u0093°¿\u0094_x0010_A¹_x001D_Û&q¤_x0010_A^#°/o_x000B__x0011_A¥.º¬\u0096Ó_x0010_A,KÈðQü_x0010_AÖ\u009cÁþÅµ_x0010_A\u0092¡_x0004__x0019_gé_x0010_AQ_x0018_j¤\u0087Ý_x0010_A\"i6XYò_x0010_A\u009dh\u0087\u008b_x001A_À_x0010_Aj\\¾_x000F_¸_x0017__x0011_Ax=x Æ_x0007__x0011_A_x0015__x0004_\u0094Ù¥§_x0010_A>_x0006_\u0085Ï®´_x0010_A«Zþl4\u009b_x0010_AË\u0093ú\"¦¤_x0010_A_x001E_ÑV_x0012_éâ_x0010_A¦ÿ_x000F_5ãð_x0010_Aõ5^ô_x0001__x0002_ª¤_x0010_A\u009fr_x001E_6ñÎ_x0010_Aì\u009cVu·¼_x0010_AÉB\u008bé_x0001_¿_x0010_A]ö4j¿\"_x0011_Að\u0085\u0099_x0007__x0016_ _x0011_A¬_x0002_ \u0086±ß_x0010_A¸õ¯É\"¬_x0010_AkEèX|\u008f_x0010_A\u0081&,_x0011__x000D_¢_x0010_Aà_x0011_ ¨Jû_x0010_AM©_x0010_Ô*ï_x0010_A=üä¨´_x000B__x0011_Asá_x0011_ÛD\u0084_x0010_A\u0081Ç8\u0095ùð_x0010_AòÇÜ\u0089J\u009f_x0010_Aß\t_x0013_\u009b\u0089Î_x0010_Aã\u009a}²\tü_x0010_A°±Ù_x0017_Y½_x0010_A_x0004_Ú\u0089_x0018_)¯_x0010_A_x0017_PPg\u0098\u009b_x0010_A\u0089@©$ã¼_x0010_A|g\u008bq¤ý_x0010_Aï\u0089Þ_x0001_ÛÄ_x0010_Af_x001C_#ãèä_x0010_Aa\u0097_x0002_°\u0095z_x0010_A¬{.E_x001E_Ò_x0010_AK\\lÄ¦Î_x0010_A~ÊÍ¨`¡_x0010_Ag¡B_x0004_·\u0093_x0010_A\u0094º_x000D_L\u0098_x0006__x0011_A«_x001A_Ó)_x0014_\u009c_x0010_A_x0001__x0003_u0Èî\u008fï_x0010_ArKÎ ÎÇ_x0010_Aø¹.T_x0018_Ç_x0010_A\u0084¸Q\u0091;Ù_x0010_AL\u0089_x0015_\u0095f¤_x0010_Añíi±í©_x0010_Aiý=\u009aø·_x0010_A\u008eØö~_x0019_ã_x0010_Ayá%_x0007_fö_x0010_A_x001E_µ²í7Ê_x0010_Aq_x0012__x0019_\u007f\u009b_x0015__x0011_A²Éß_x001C_`|_x0010_AÖ_ù7Ú_x0001__x0011_A@pùW£\u0091_x0010_A~\u009e/á\u0094Ù_x0010_AsÁx_x000F_î\u009d_x0010_A_x000E_²Ìax\u007f_x0010_A°ûgUÞ­_x0010_A³*ÛíÃí_x0010_Aü´_x0005_\u008f\u0093Ä_x0010_A¤eGÇ\u0092ç_x0010_A~è_x0006_`J°_x0010_Axê¡[··_x0010_Aã\u0090Þ_x000F_í»_x0010_AH\u0083g\u0092ó¶_x0010_A¦\u0091]µI»_x0010_A61_x0016_³T_x0005__x0011_AhM¹ã(¢_x0010_A@N4Â\u0087_x0015__x0011_A­èn_x0002_)§_x0010_A2ZXS_x001B_×_x0010_APhé×_x0002__x0003_õª_x0010_A&¦ï»_x001B_Ö_x0010_A\u009bÜ_x0015_¢ïÅ_x0010_A_x0001_¨1pRÔ_x0010_AÊ¨å¼%ä_x0010_A­\u0085Ú\u0092Úæ_x0010_A&7_x000F_à»¤_x0010_A}àz\u009cË_x000F__x0011_AÂ;Ø¢_x0003_ç_x0010_ANHo³¾Ð_x0010_AwÊÀJ¢ñ_x0010_APY+_x0004_B_x001E__x0011_Aù\u0089\u0095\u0093ßº_x0010_A\t4túàà_x0010_AÂÝ_x0014_|T\u0095_x0010_Ambjµ_x0005_¶_x0010_AcÍF_x000E_:È_x0010_Agã_x0010_×Ùê_x0010_A_x001A_=|<L_x000B__x0011_A_x0017_Ú\u0087rUâ_x0010_A\\\u008b¾ì_x001E_£_x0010_AÀ\u0084\u0083á!«_x0010_A\u0081\u009dé³>×_x0010_AµlÃ\u0086=®_x0010_A»° KFp_x0010_AÍ_ê?Ý²_x0010_AD_x001E_¯.\u0096Ã_x0010_Ab\u0099â3Ë¯_x0010_A\u0097$XS÷ì_x0010_AÑâ.¢çÏ_x0010_A'\u008a\u0093·nw_x0010_A_N@Û_x0007_ó_x0010_A_x0006__x0007_÷Rþª_x0019_¶_x0010_AÄýfÜ_x0004_®_x0010_A\u009d\u0081éIs\t_x0011_A\u008fá$8ßè_x0010_A_x001F_\u0092_x0001_1ûÿ_x0010_A_x0003_i£Ô\"Õ_x0010_A#\u0083'V?å_x0010_AÖ]#í_x0005_Æ_x0010_A!MD¿F\u009e_x0010_A>x!c?Ë_x0010_A_x0004_H\u0082³_x0016_Ï_x0010_AÙÑ^;­¬_x0010_A)«_x000E_\u0096ÏÝ_x0010_A¦Üªóo±_x0010_A×@ÖJ¦á_x0010_Aô_x001C__x0012__x0001_[Ú_x0010_AJ8!³â_x0007__x0011_A\u0098JÙJ« _x0010_A¦:4Ë\u008d*_x0011_A\u008cj_x0008__x001C_#Ê_x0010_A_x001E_\u0094_x0007_\u009eêÏ_x0010_ACè*_x0002_@ú_x0010_A°\t_x0003_àÑý_x0010_AËYö_x0012_ÇÈ_x0010_A¦¸¬_x0015_8±_x0010_A_x001B_ØMË_x0015_¼_x0010_A\t¬_x0019_W_¦_x0010_AL_x001C_q/æà_x0010_A\u009e\u0099Ü6¸\u0086_x0010_A[_x0008_¬Õß\u0082_x0010_AV*#e^\u008c_x0010_A_x001B_¿}ù_x0001__x0003_>_x001E__x0011_A\u0089Dwx\u009b\u0090_x0010_A_x001F_\u00917 UÞ_x0010_A\u008dºY_x0007_×È_x0010_A¶x\\\\£\u009d_x0010_Aü¯\u0083_x0002_Ô\u0081_x0010_AÇ\u0089IË¼Þ_x0010_A¡ÚR_x0018_à©_x0010_A_x0007_Râãn¬_x0010_AÒbt'gò_x0010_A»¡K¸¶Ã_x0010_A¼¿²»ÆÚ_x0010_Ay\u009aX!_x001F__x0014__x0011_A\u0094Ñ1_x0001_}G_x0011_A¼Ê\u00953_x001F_e_x0011_Aj\u0094Á\u009bW1_x0011_A§Â-\u0083á_x0008__x0011_AñÍm_x0003__x0007_\u0095_x0011_AR_x0017_.y_x0001_\u0084_x0011_A¬\u008d¿¯!_x001E__x0011_AÞ·®ÿí__x0011_AÞïg\u0086|_x0004__x0011_A_x001B_k£ôM`_x0011_A¹mF½Vj_x0011_Aà\u0094)þcN_x0011_A½¡_x0006_ßß5_x0011_AÝ&k¯ù_x0015__x0011_A\u008eÌ\u0093èv`_x0011_AF¹,_x0016_D$_x0011_AË\u0085¶ªç\u0096_x0011_Ab©\u0092T\u0087[_x0011_AA_x0018_,»_x0016_f_x0011_A:; \u0095YO©g_x0011_A_x0004__x0007_Ð±\u009af_x0011_A_x0013_Þ¦=,$_x0011_A_x0001__x0014_::_x0002__x0014_::_x0003__x0014_::_x0004__x0014_::_x0005__x0014_::_x0006__x0014_::_x0007__x0014_::_x0008__x0014_::\t_x0014_::;_x0014_::_x000B__x0014_::_x000C__x0014_::_x000D__x0014_::_x000E__x0014_::_x000F__x0014_::_x0010__x0014_::_x0011__x0014_::_x0012__x0014_::_x0013__x0014_::_x0014__x0014_::_x0015__x0014_::_x0016__x0014_::_x0017__x0014_::_x0018__x0014_::_x0019__x0014_::_x001A__x0014_::_x001B__x0014_::_x001C__x0014_::_x"}},{"$cut":{"chars":50610,"head":"3c0405b26e311819be6bef03dbf0cacd_x0002__x0003_O¦_x0006_í_x0014_7)A\u0087ºÔAPI)A`æDÄ:_x000B_)A@E×_x0013_ j)A}«_x0010_Äjõ(AöP}¨6X)AìêÞ(_x0001__x0012_)A_x0011_;-Úé_x0015_)AÏ\u00830Þ{W)A_x0002_¬*y\u00998)A¶m\u0094 _x0005_õ(A_x0010_8¢ÁÁE)A\u0085\u0080\u0085±O3)A¢$Ô`\u009d;)A:ñé´Ùd)AíâÝ>MC)Aõ¶GÃ>I)A _x001F_Þ-è!)AÍ@&ö}W)A|5WÜ¤R)A\u0098sÐå_x000E_Ø(A¬òSÌ¾þ(A\u0093è¤»n2)A'a÷\u009f04)A<ÿ_x0019_Ë\u0098H)AG_x001C_¢Ãy-)A_x0010_ô¯JqV)A_x0019_\u0087¨â\u0089_x0019_)A:´W\u00987.)Az_x0005__x0007_\u0098Û_x0002_)Ax®AgÒ_x0016_)A_x0012_\\-_x001C__x0001__x0003__x0004_k)A©wò Óä(A\u009e³â&\u008d()AØw­4ä_x0018_)A\u0080m'k_x001E_\")AýQò\u009aÁm)AN \u008c¶u_x0014_)Ad\u0087_x000F_zÑ\\)AÏf_x0006_«rN)AÇ\u0096ÄÝú6)A l$\u0082PB)A\u009a\\Ô|¢I)AnlRÄ\"V)A2\u0086\u0084\u0096\u0096I)A(8\u008aÖ\u008a2)A¾_x001B_á\tËH)AÌÍ_x0004_\u009dÓs)AfA\u008c_x0002_î_x001A_)AU_x001E_D[â_x0008_)AQD!\u009cu3)A_x0016_8Un\u0094&)A\u009e'_x0002_¾þk)AÀaÑÒ)_x0012_)A´_x0001_ù¼_x001B_q)A_x0019_6;5ZD)Aa!j·z,)A _x001C_ÙlËJ)A¦µt_x000C__x000C_Z)A¨?ÑJ\u0091')AÇI:L\u0085V)AÃúó?/+)A\u009c·6\u0090/\")A_x0001__x0002_p){Û\u008f,)A\u0084\\\u0081æY_x001B_)A_x0003_»úð\u007f_x0011_)A_x001C_n\u0099ì_x001F_S)A\u009d?L\u0090Ún)A_x000E_»\u008e\u009e¾\u0090)A_x001D_DÇ]o_x000B_)A\"©Ö(_x000C_@)A_½7ëû9)A\u0084fÑ6aC)A¨\u009b_x000D_¨áF)AÎ\u0083A\u0094¶&)A7\u0091t Ss)A_x000C_çW\u0086­G)AÇï_x0002_Õ¡C)AÐ_x0013_©º8b)A_x0013_Â½V½-)AØc\u0094ã\u008a_x001C_)A\\_x0004_BP/^)A/ÍÂ_x0003_\u0080:)Aúá´\u0086\u008bÿ(AÿÂ\u0090ä_a)A\u008c=Ð¹âF)A|5rW\u008d_x0001_)A¶²:_x0013_&_x001F_)A ©\u009az¨H)A_x001E_\u0099+_x0017_TL)A½*ßc$_x0006_)A_x0007__x0019_KÀ\u0098_x001B_)A~nµ|Ò_x0013_)A(ðw_x0012_ë0)A\u0084ìã _x0002__x0007__x000E_[)A\u0097\u0092]_x000F_>3)A¸_x0003_ä(?Z)A_x0008_²àÄ_x0002__x001E_)AoD_x0004_&Ð_x0007_)Ags_x000B_A\\O)A\u0093\u0080üt_x000E_0)Aøa_x000E_&_x0013__x0010_)A_x0001_\u0087OÙ\u008f_x001E_)A\u0098i_x0005_Jíê(A_x0006_5DÚþL)Az¿\u008eLû6)A_x001F_w\u0099_x0003__x000D_g)A_x000E_£Y\u0097»\u0080)A\u0087á\u0087ï=3)AÐ\\\u0085¼ò|)A\u009d_x0002_\u0096êG/)A_x0002_¸§6_x0005__x001D_)AØ»7 ¬K)A _x0018_\u0089DÙ_x001E_)A\t\u0096Ã_x0003_/&)A¾\u0080_x0018_¢Ð+)AÁ6Ény})A_x0002_À_x001E_U,z)A8å[î_x000F_á(A_x0007_LF¨Ã-)AÎ\u0084÷\u0098_x0003_<)A~\"ÂÚ_x0007_+)A\u009eyÈû\u0091Z)Aîð8Eb$)AX\u008ds\t\u0098_x0017_)A²~I_x001B_¡<)A_x0001__x0002__x000C_ù«_x001D_Èÿ(A\u009dð_x0012_Ö)R)A$tÓbÃ4)A _x0014__x0007_S4))AÔBø?=d)AÐÕzh²>)A@|EP\u0097_x001A_)AhÜ[5_x001C_M)A_x0001_\u0086~1[5)A:\"_x000C__x001A_*_x001E_)A_x000E_Ý\u008d\u008a\u0092S)A_x0014_Ò_x001C_Z=ô(A_x0011__x0014_ÜùÁD)A¡Êò\u0083\u008f8)A\u0087ü\u0087m\u007fM)A_x0014__x001B_*ól_x0015_)AÞ©ºÚ\u008eQ)A\u008e´Ê\u009cÆ$)AÉ}ÍLl;)Aÿï\u0091_x0003_¾ø(AÚ\u008dÂ¤ÎK)AtÚ_x0001_ì%_x000E_)A>\u009eh_x001F_\u009f$)A\"'_x0015_÷<$)A¨_x0013__x001F__x0010_!_)A`ü¡_x0016_½M)A.Õ,±6g)Aô\u0094è\u008a_x0010_))A ]_x001D_É_x0013__x0005_)AJS(-Ae)A\u0090>_x000C_\u009c6@)A¤z\u009a\u009b_x0002__x0003_2ü(AH\u0080I4??)A\u0086¡_x001A_j'K)A=Z\u0092E9%)A _x0001__x0019_Nöø(AÒu_x001E_PÛe)A\u0098²K\u0097\u0082_x0003_)Ab®\"#\u0097')AµS\u0093É\u009fM)AÔÛ_x001C_Þ´R)AÂ_x000F_\u0090ù÷-)Aø\u0094\u0089\u0099ÀH)A²I\u0091²é_x0002_)AØÈú[U:)AL_x0011_;êÉ])AHx|q\"d)AÖà\tµ_x0019__x0005_)Ajêò`Q!)AÜ³\u0091zÓ&)A\u009f\u0083ö^ÁO)Az [hù&)AÜbvÖ³?)Aæ\u009fön¾Q)Aß\u008dLÍBÿ(AÎ}ÁoÑ>)A\u0084MÛé&A)A\u0096\u0084WÁÛb)A^_x000E_Îéeî(AnÏuõË_x0004_)A _x0006_¡5kà(AIü`%£ )A_x0004_9Ñ\u0084t_x001D_)A_x0002__x0005_|1__x000D_u_x000F_)Ad\u0092vJá_x0018_)AÊo&\u0092_x0001_B)AújÍ_x000C_T])Aª\u0096§zýI)A\u008c\u008f_x0012_ýrP)A_x0018__x001B_Ã§\u0090Y)A_x0016_£ÕSãU)A?i»$_x0007__x001F_)Aú~cè5$)A®îB#ß')A7°ïÁõ_x000F_)A/¨Ìu\u008fQ)AêèO@\u0099-)AÐî_x0005_Æù4)A´\u0094_x001D_ôÒ7)AßÂ\u009a_x0018_fP)AÍÒÁ'¦X)A_x0004_qlÔ^_x000E_)AP\u00987ì'O)A_x0003_ÜÜ_x0006_ø&)A\u0095Jqo_x0016__x0014_)A\u008cé_x0011_o{@)AN_x0019_ìNÑ_x0007_)A¾\u0090Æ\u008aR2)AÍ0¡È\u0097*)A/bë_x0017_úm)ArF_x0015_\\m#)A\u0080º_x001C_[æ&)ARã5Ú_x0012_K)A~ÏyµË8)A\u0084£Â¦_x0003__x0005_g#)AÉ\u0080uc»_x0008_)Af,©®X$)AÍoÐ&í3)A_x001C_(o\u0087_x001F_E)AÔÈ\u0088Ø¾_x0019_)A§´Ô_x0003_¯=)A\u008eC%¤â$)A\u0092øÄÚot)Ar´Îr³8)A_x0018_\u009d¦_x0008__x0013_C)A_x001E_ÒfUË<)A_x001C_p¸H\u00932)Aþ\u0084·Ã\u0094,)AmSì~Ä[)A\u0094_x001B_Ã¥Yò(A_x0008_~\u0091þ\u009b1)Aä´\t4Ùí(A­@¤°ñ_x0008_)A_x0002_M9é¦L)Aì¯Ãìk_x001D_)A{_x0014_\u0096ââH)AÆÏ|À2_x000F_)AG\u0095\tÒ!_x0001_)A_x0008_\u0098­_x0002_l1)A_x001E_u§0_x0008_w)A_x001F_a*ü\u0084_x000B_)Aøe_x000C_0¹G)AúòÒ\u008c_x0008_A)A$`\u009dÿêe)A_x0007_²ÂDâ8)A_x0004_*1É_x000F_k)A_x0002__x0008_ÌëhÖ!r)A¸\u0089\u008bÚMå(A\u0086º\u0096³_x001B_B)AA_x001C_²_x001C_Ö8)Az,I_ª:)Aòcãð}4)A_x001E_k\u007f¼ñÿ(Aà_x0003_Dõ=X)AnBËñõ1)A_x000B_\u0094:¡Ä_x0017_)A.¬ÒªÙ;)AØ\u00838\u0096_x001D_,)A\u0092Ð_x0005_?_x0004_{)A\u0095°_x0001_@Ø%)AÎ\u0094`§Çb)AB_x0002_SHõ_x0003_)A_x0006_­Æì|`)A_x001F_l\u008e{k_x0018_)Aâà \u0080¤_x0007_)Aiîþä_x000B__x001E_)Aæ_x000F_Á\u0097\u009f')A°ÖbÅ9_x0004_)Aè\u0084¦_x0019__x0001_A)AHB¢ù_x001C__x001D_)A(ªGs¢6)Az_x0001_pm\u008eW)A\u0087_x000F_H_x0011__x0017__x000F_)A\u0090ø_x0007_a¸F)A\u0092;pb_x0014__x001D_)Aj_x001A_\\]$_x0006_)AÂª \u008dg_x001A_)Aò|ú\u0081_x0001__x0002_VQ)AÝ_x0001_ôýDC)Að\u0088¤ÝMN)A\tè¦_x000F_«{)Aµ6³6_x001A_7)A<\u009f{\u0085 F)AÚûrì2~)A\u0081_x000C_ñ¶øK)AÚK_x0002_ês_x0014_)A>Qtt#5)Añ_|_x000E__x000F_G)AH_x001"}},{"$cut":{"chars":53574,"head":"ce4e7b97d8163d8546f5c6ee9eb99e0c_x0001__x0003_t¡\u0094]ljà@_x0014_%8¨º\u0094à@_x000E_Pþ\u0097\u0091Öà@s®Ð§\u0089©à@_x000B_yy¹5Õà@¡j_x0018_\u008b?Ôà@Y§°<k¬à@¸\u0085\u0087ÀbÐà@8\u0095ðølâà@Í\u0099)è\u0098Ôà@Áfy'Nvà@j\u0091_x0010_ó®§à@Êõs\u007fÕ{à@_x0006_­\u0091\u008e½Ðà@Á±W\u0088Ù¨à@n{WÅgáà@ü¯\"»\u008aÞà@_x0002_Í·èì¯à@pKë\u0082¿±à@Ww_x000F_Ï_x0018_¤à@è&_x000E_õöÚà@Ü_x0004_XâC\u0099à@ã>_x0008__x0019_\u0083¤à@ý%¨eRÇà@`¨ÒM_x000C_Äà@ù\u0087¡ò\u008fâà@H\"Î«&àà@\u0081_x001A_ö\u0095åÄà@î¡_x0016_Ù(£à@Kêñ÷µÄà@ÄC^\u008bá\u0089à@_x000E_\u0082\u0097Ú_x0002__x0005_Wdà@_x0012__x0003_s£¥Ðà@\u007fáû&_x001F_½à@ö\u009eô)OÓà@ãJþArÊà@h1h±\u008dÕà@Õh_x0004_ÿ¬¦à@ÆAÁ¶B\u0098à@ë?Pè§Xà@!_x001D_d_x000B_´ßà@³XÞ·/Ñà@\\{_x0007_cvÃà@Kúà\"\u008c½à@E0>0\u0081Ìà@ò2ÚÄö\u0099à@,¨_x0014_éö\u009bà@Ah_x0001_DVÞà@_x0010_m\tLtÕà@Ê_x0002_teî\u009dà@~¾ó_x0004__x0012_\u0093à@­0@­è\u0098à@£eÃÚ_x0013_áà@Óli)sÅà@L÷\u008a×Þ¾à@â_x001A_\u0093ö\u009d¦à@\u0089³Ð1ÀÞà@PNÎ\u0084ÈÐà@öü\u0086O¬áà@`³Iw\tÝà@Âh#LGáà@=ùé\u0096_x0004_Íà@oFhÌÀÕà@_x0001__x0002_©I\u009bi¸¼à@=Ör©pâà@ôÖ\u0098w_x0015_Êà@_x0017_Ì\u0097\u007f.ºà@'{¢x\u008c·à@+1_x0001_FÏÕà@mµè­ÓÆà@\u009c®Å_x0006_7¿à@C_x0001_,2\u008cÉà@>~ýfnià@\u008a´\u00809tÙà@Õ3;_x0004_¬¡à@X$Iæ±\u009eà@Ö\u0082\u0097\u0094jÐà@u¼r\u009bkÁà@É\u0088~\u0082\u0085»à@U8\u0092çt±à@¥_x0008__x0011_Ï_x000F_¦à@â\u0081î\u009fvâà@j_x0012_Ú._x000C_Ìà@_x0014__x0004_ÁYmÝà@¥ê\u0086BËÈà@¥\u0095ë_x0008_×Óà@ÝÝ¢\u009a`Ñà@âËòÿÊÆà@ð\u0086+I©Áà@r\u008d5n/\u0096à@_x0016_%!_x0013_b¸à@Ó_x0016_æÎØ\u009eà@Ùj#ì_x001D_Âà@ê<\u0093ÇSÞà@i_x0004_Ã\u008c_x0002__x0003_C\u008cà@\u0086_x001D_O$\u0089àà@_x0011_n\u009eÂ_x0017_kà@ ¯D¢+Ôà@\u0090ï\u0087\"_x0019_©à@Ã#-\u008d\u0080¢à@íAýK\"¾à@Ï·´\\³ºà@ý_x0011_9>³Åà@_x0013_®Ô£#¹à@m­\u00885Gºà@Q_x000F_êª®¯à@_x0001_\u009d\u0096f_x000B_Ðà@\u008a!¢\u0080_x0011_Äà@_x0002_Ufxyºà@,_x0007_PuÇÄà@-ÆÀ\u009a_x001D_Îà@HCÈÛø±à@_x000E_\u0081d7(¢à@\u0099_x001C_`Ô_x000D_Ýà@%Çï@CÞà@^9¾9%Øà@~âþâ_x000C_Îà@ÁFOÍ\u008fÄà@Ê_x0018_@)\u007fÚà@äD\u0086m\u0097Ñà@±ôá_x0002__x0006_qà@¿sÑÞXÒà@¾_x000C_àÒ=Òà@ê ­_x0019_4½à@s{\u009eÝS\u009fà@ûrû²ÆÙà@_x0003__x0004_()\u0095\u0081_x0008_Ûà@áqøºL©à@\u0098÷_x000E_}\u009bÉà@ \u0096_x0011_q_x0013_âà@ºZ6Ø§àà@5_x0016_ÁwjÙà@Ô_x000B_½±¶Ðà@Ù\u0088ÝÏ\u0093´à@ó{ëÒÀÈà@<\u009fÄIÞ¨à@ý[yPgÍà@\u0095\u0090ÙÜ_x001B_Øà@[_x0008_ðSÄyà@_x0019__x001C_ÅÇÍµà@\u009a_x0008_¶\u007f_\u0098à@õt(_x0002_zâà@MAt\u0092â·à@\u0093_x000F_\u0098\töÜà@êÐÑç\u009bÖà@ê\u0092ð_x001B_ù©à@´ú÷\u0097_x0015_Zà@__x0001_û\u0099V½à@S_x001D_á:×Äà@?_x0005__x000E_qvàà@yY¦w_x0016_Ëà@·¹?5\u0093àà@Åd_x000D_½_x0008_Çà@·\u0093_x001B_cåÙà@Qo\u0085Ý\u009f´à@\u009a©ß7W·à@3¾§MLËà@²\u0086_x0003_ä_x0001__x0002_\u0082¨à@\u0096ò2_x0010_½¿à@ßKI]_x0017_Æà@ñ:F¿\u007f\u0094à@üYöì1Òà@8#åÁóÓà@\u009a>\u0081\\ùÜà@\u009eÖ\u0095\u0082ñÜà@õ¸\\,`Èà@O_x000D_²^ð³à@ê¶rTPØà@¢Â´,DÀà@\u0094K÷_x0004_¿©à@tLJJ]Üà@\"\u0082æ²*Üà@O¥Ë_x0005__x001C_¸à@f_x0007_«ÐÿÞà@{%îsÃßà@É\u009c^_x0015_HÈà@o\u0087G¢¬Úà@&¦CB_x0018_áà@OWim_x0010_Åà@ç\\¬8R¾à@_x000D__x0005__x0005_a¬«à@zy1:¢×à@}Û_x0019_ÛjÊà@Ïe|!¨©à@£\u008eä\u0086\u0089×à@bµ·ñ\u007fªà@Ç¸ä_x0015_U¥à@E­8>|¡à@\u0080Ðób<àà@_x0001__x0002_éø#]¦¥à@å5_£\u009d»à@\u0084r_x001E_y¯¤à@ò\u0081~lá\u008eà@Ø¿5{çÀà@\u0081®À![Ëà@F&oEPÖà@èmÞ_x001F_Ý\u0081à@ðVÎïÒ\u0085à@_!é_x0008__x0013_\u009eà@rtÌ©ç\u0097à@ÄÌb·\u0094«à@\u0096_x0019_¸d<\u008eà@ÙùIK\u0092Èà@ÉÐ'Ï.\u009cà@¼Z\u009aòA¯à@ìÄ_x0005_¦CÓà@áªË<¿Àà@lb÷·\u0090wà@Û§N_x0014_PÃà@HðÝZÏÔà@\\_x000C__x0018_Þ\u0082¼à@\u009e_x000C_wS\u0086¸à@g÷ªªÑ×à@x&HZiâà@Ûí5y­¾à@_x0005_WÍß_x0011_¿à@Iõ¦\u0090\u007fÒà@¯#©\u009dÑ¼à@ôÅ\u008b1Ñàà@\u0096_/1¾Äà@c\u008fçÜ_x0002__x0004_\u0081ßà@v_x0008_6}dÙà@ñ\u0095\u008bkÄ¤à@ôCA£ÇÊà@_x000C_<ò\u0088Z\u0081à@_x0010_~5Ù\u008e¨à@\u0085Ü_x0001_êú«à@\u0097æwÜ\u0080Åà@þ_x000E_Àb Ñà@\u0090a\u008a}_x000D_Ãà@>_x000F_:ä<\u0098à@Z\u008dZR`Ðà@E'!ö2­à@Z_x0014_\u009e\u008aX\u0093à@B)h»aÆà@+ó³2½ºà@ªÒ\u0088s,Àà@>\u0098ÿ×n×à@s«e\u0095\u0093Ùà@c.ã¦Ü­à@gpk{Îªà@®_x001B_À\u0081_x0011_\u008aà@³ÈF÷_x0010_áà@ì¯UØü¤à@PÙ}\u008cE±à@_x0003_QÎ».«à@².Çg/Åà@%mUÝÂÎà@6*\u0084Jû¡à@Ô9Sf_x0002_\u008fà@dá_x0006__x0006__x000F_¤à@Ø_x0008_V¯b©à@_x0002__x0003_^_x001B__x000B_pf½à@½o_x0013_´:Òà@ÓzÐó¸\u008eà@ÓQòx\u0096Ðà@æfË5+×à@½_x0011_ß_x0018_çÍà@cF\\ÉtÖà@h_x0016__x000B_çSgà@¤\u008bu\u0099àÆà@\u0096\u0088K¨Ð¾à@\u0094æËòmµà@£'¹ë¥¶à@¡ÀIjGÊà@ô3ÚLoºà@\u008aµ÷\u009búÕà@_x0001_EGq\u0082Ðà@ºã!_x0004_B²à@KLQÊâKß@\u0099wN[êdß@_x001F_·£?¶©ß@_x0001__x0015__x0012_åd=ß@_x000D_iCÿ_x000D_ÚÞ@å.n\u0094\u0092'à@\u0098i\u009eýÕ×ß@x\t}_x001D_zTÞ@H_x0004_Ö\u0092¬oÞ@EcV_x0016_G\tß@.Ë'ñV_x0001_à@ùÌ,_x0003_\u0087$à@~¿îº\t_x001C_Þ@Oà¹Ó\u008a­Þ@m_x0002__x0002_ª_x0002__x0005_\u0085\u009cÞ@¿\u009cpW\u0088±ß@-å\u0080_x001E_Úrß@(yKè-\u0084ß@Ñå°_x0014_Â\u0099ß@_x0011_H\tf]½Þ@Ü_x0018_ù^Ì<ß@z_x0002_¤ô_x0011_ÅÞ@&#6å\u0092{ß@\u0095\u0092¬_x0004_\u0094¡ß@¾(ù_x0010_õ°ß@¸CÒ¤Ü_x000D_Þ@rYSÿÏíÞ@É_x0003_\u0087G\u0086ùß@S\u008bDn\u009d·Þ@2òp»Ä&à@_x0011__x0007_äª\u0093Øß@øk_x0003_ó\u008b»Þ@G\u0097_x0006_¾\t_x0016_ß@\u0091\u008e_x0007_\u0089ø\\ß@z0¦¾t?ß@\u0097\u009e_x0011__x0005__x0001_HÞ@/\u008bâÜV\u0092Þ@æwXw`\u0093ß@ú ½\u009d©_x001A_à@\u0096VìêøKß@Mî@ÍK\u0099ß@¹\u008c_x001C_ÃDÓß@Z]\u008að_x0008_«Þ@¯\u0088:´\"pÞ@2p_x0016_vÔÖß@S\u0084\u009bUVðß@_x0003__x0004_Y:àfóÚÞ@_x0002_°_x0013_\u009b\u008cåÞ@_x001F_zî=_x0008_/ß@³\u009aë_x0011_¼'ß@_x0001_<_x000E_ûÖ_Þ@\u0081_x0014__x0003__x0003_\u0082_x0014__x0003__x0003_\u0083_x0014__x0003__x0003_\u0084_x0014__x0003__x0003_\u0085_x0014__x0003__x0003_\u0086_x0014__x0003__x0003_\u0087_x0014__x0003__x0003_\u0088_x0014__x0003__x0003_\u0089_x0"}},{"$cut":{"chars":52572,"head":"0d14c1f4e9ef8c850e67c516349832cd_x0002__x0004_y3ERð_x0010_à@Ë\u008e_x0001_Î%\u0095à@/éc\u009d+Ôß@\u0088­ \u0089_x0004_)à@Õä³³\u0097sà@vV×\u008dïpà@u¬´ä\u009agà@\\KÃ6ëNà@qÀ_x000C_«,Ýß@@Ö>U\\\u0089à@¯¥_x0004_Tø&à@ u1Ý\u0086­à@?_x0012_ÃyqKà@¸\u0096lÝ_x0013_\u0091ß@Ãôi¾¿\u0089ß@\u0084\u0085_x0003_pr£ß@\u009dG7±_x000E_*ß@]ý¬Da*à@\u0084_x0008_\u0097*©\u0094ß@_x0012_ï_x000E_¦í¾ß@ºZßUAÕß@ïúþ_x0004_a_x0016_ß@÷Ab/Ê à@\u0085Ðï(\u007f4à@\u008dð\u0092\u0087lÖß@_x0004_&_x0011_\u009b^-ß@w§ Ëá§ß@\u0095\u0086 ¬Ý\tà@:fÏÊ:ÿß@£þ$ä\u008düß@~_x0008__x000F_¾\"þß@\u0093[\u008cà_x0005__x0007__x0003__x0018_à@mè¨\u0090\u009d*à@Zê\u0099Ë«ëß@f?55_x0010_$à@\u0084ØÒ\u0089_x000D_Eà@z_x001D__x001E_-æ_x0003_à@i}_x0004_Æ%_x0008_ß@!b®_x0003_£Rà@ÿýN8¬bà@!É\u0086º\u0085¬ß@ìÌ2_x0003_9_x0011_à@_x001B_æ_x000E__x0007_\u0087=à@_x001C_M1_x0006_öäß@Ë¥ïm4sà@Ö\u0096S_x000D_Ïcà@9L_x0012__x0019_&Ñß@­\u0092AÏª1à@Dw\u008ciItà@þÚÍ8¿Íß@ºD+4ò\u0099à@yÀ\u0086,^fà@úÃ_x0013_\u0092óHß@<Û·qhÄà@\u0088\u0099E_x0002_Ý4à@=º­5_x001B_Jà@û\u0098»_Lèß@½}ün{¥à@aH4b_x001A_>à@Ã!fÕ8Mà@;_x000B_¼¥y_x0015_à@ñ_x0001__x001D_\u0095Ì\u008eß@\u0082ÿâ[Ï[à@_x0002__x0006_í_x001B_,_x001D__x0001_#ß@Ä_x0003__x000C_øßùß@\u0094Û\u0095bweà@at}DÂIà@Ñô©¶ê=à@³PÂ®î\u0086ß@þ{i¥¼_x0001_à@YWö_x0017_\u0093\u0081ß@qÄ_x0006_ÀÖ~ß@\u0099\u0090m S\u009eß@7§Ë\u008cZôß@;\u0095>\u0083nXà@Løo´jTà@\u007fåU_x0002__x0002_´ß@Sá ßCrà@\u0088G³;\u0093/ß@¾\u0080ìþeTß@»y?_x0019_\u008b\u0086à@\\¤Ò]_x0008_µß@ö|·_x0001_T;à@÷_x0008_Ë_x0012_â°à@M+¬H\u0081@ß@Ô¤Á_x0004_A_x000F_à@\\óóå.Ãß@>ðëÕ!Tà@_x0017_Ò³_x0005_È\tà@©t<§0^à@\u0097\"MË\u0086_x0001_à@¤Ù#ÉÇ\u0094à@{\u0092_x0014_\u008b®¨à@_x0018_>[\u0097ö_x0001_à@va\u0098\\_x0003__x0006_3Çß@÷?eS!bß@È\\oRT,à@\u008cÃ^_x0012_Ý2à@Åx¦9}íß@ßI\"\u0081Æ#ß@_x0005_:y×_x0010__x0007_à@ø\u0089Í_x0015_Lmà@/!h_x0011_|hß@v×Je§kà@h*H­_x0001_|ß@9\u0093M}\u0093«ß@}Ûü\u008c©_x0016_à@ºÑZ&_x0007_?à@\u0084_x0001__x0002_à­_x001C_ß@\u008b;ñ\u0096å>à@ã\u0091\u008a$:8ß@z\u00899\u009dY_x000F_à@Ä!13ü|ß@^_x0018_\u009b\u008d\u009bJà@\u0092êÁc<mà@ú_x001A__x0006_\u0093L`à@ÙÝ~@\u009e´ß@·\u0088ßÙ\u0084+ß@d'l3:\u008fß@\u0080a1á_x0018_Nà@ò,_x001F_Ô«_x000F_à@\u008cJ_x001C_\u0084\u0086Pà@_x0004_ä\u009fø¬¥à@\u0093\u0084ÖÊ\u0089Jß@\u0098`ð\u008c²|à@«î\tvt\u0097ß@_x0003__x0004_iÈ£_x0013_âjß@àö+®#0ß@©ãá6+¹Þ@ð±ìv_x001B_Wß@È\u0092G¿vcß@Âô1\u008c\u00927à@£öÿV_x0012_Ùß@%\u0081->Ù<à@_x001B_¿Á..uà@ÜÐ\u0090«Syà@­´êgP_x001F_à@¡ÿ_x000F_äG\u009bß@£DÞB\u009b_x0005_à@Îpl¹qsà@!>ñ\u0095ooß@_x000B_¿%_x001F_kyà@\u0086!\\U`#à@õ+_x001F_Åë_x0001_à@_x000F__x0019_ø_x000B_\u0098\u007fß@e6__x0016_{]à@_x001B_¡4rÅCà@`dúýóÁß@_x0012_\u009eÊ.yåÞ@¯§ûò2_x0005_à@6_x001C__x0011_³\u007f_x0002_à@mª6ugvß@_x0008_ah_x001B_\u0084Òß@\u0088\u0098ÎVG_x0018_à@rä\u0088ºçfà@Î(+3_x0006_cß@GånU¨äß@)ß@ñ_x0001__x0004_½_x001B_à@hk2¯»¾ß@\u0088\u0084(\"pãß@Ñ_x001F__x001F_\u0092áÎß@_x0012_ìi_x001D__x0012_Òà@ðYR-üvà@é_x0002_^Mh_x0014_à@\u008b\u009dúÄF_x000B_à@Ò¡4?\u0086Dà@ò#òî\u0088_x000E_à@&0vÕu_x0004_à@ââr©_x0019_±à@BÈYa_x0019_ à@y4Ñ­(eà@,â\u0088_x0008_D_x000D_à@wà`lú<à@íBè\t¾_x0002_à@sg\"$_x0011_íÞ@®\tQ_x0003_N~ß@êä¥ÑQÚß@¤_x0008_\u0085_x001C_ÒEà@[A¸­í~à@\u0087\u009aº\u008aÝQß@Ù:_x0016_¨ë_x0002_à@j\u0094es\u009a_x000B_à@ÿ\u0081_x0008_rNbà@»Æ SõWà@\u0097ìOm_x000F_Gà@ÅôÆÎ¤Éß@_x001E_¹-ð\u00801à@Á\u0089\u0084sÑ0ß@_x000E_&\u0081%Z_x0002_à@_x0002__x0003_à¦_x000D_.e5à@NÖÇXMüÞ@\u0087\u0093\u0087²6\\à@HF_x0012_·Ì,à@ç'¶þ8\u0086à@©_x0018_«Ñ,4à@_x000B_9Îb\u008aSà@£Òå_x0016_÷þß@uÝ_x0014_Û\u0086¢à@\u008eÁ\u007f¯È[ß@¸\u008e#ch9à@_x0010_ï \u009e²ìß@ _x001F__x001E_y_\u009eà@ý\u009cÚ_x0019_Ûàß@vxÁ_x0018__x001D_\u0099à@Ë4_x0004__x0007_ÁØß@ïàº_=Fà@èÝ\u009cD#Sà@_x0004_mÝu\u009a_x0002_à@2ù­e_x001A_úß@+A\u007f¨?aà@BxýGZ¸à@¼û\u0080_x0001_&¾à@\u0095W*_x0012_ALß@cZ\u0093_x001F_\u0092ìß@&¦!_x0001_\u009e_x001E_à@g¿\\¬LùÞ@\u0082\u008aù3_x0016__x001E_à@ëù¿Óé\tà@\"q¦Ü®Rß@_x000C_UÅä_x0019_Và@8\u0091\u009f\u0098_x0001__x0004_±4à@D_x0018_ù{_x0003_Eß@C_x0011_OBÕ\u0090ß@Ýu{_x0011_ªqà@ø:'¾\u0087Tà@\u0091X÷u=âÞ@Ãe³6\u008fyß@ó_x000F_j;¹_x001A_ß@s_x0016_é\u008a\u0082Ûß@í\u0089Ô\u009cÂãß@Ñ²BÄ_x0014_*à@ç(]_x001E_Ø\\ß@rà!7¾_x0007_à@R\u0092A6_x0002__x0006_à@-ÓÊ¬Ò\u009cà@õæÑ\u0094Ô\u0087à@_x000E_ï%Õ²_x0014_ß@vm½úÉÓà@,íÀÂgÞß@åp$m9zß@\"Sæeh³à@SFv\u0087\u009b÷ß@\u008byØ\u008a\u009aÝÞ@n\u009cÜâºvà@I=cålñß@h\u009dÊIÕ]à@-?Ú¦[Øß@\u009fV¶ü¼*ß@¡VM \u008c)à@\u0098Çücâqà@*{û\u0098ð4à@_x0016_b_x0003_|_x0012_Wà@_x0001__x0002_;À\u0097e¶_x0015_à@¹\u0090{o\u0085\u0088à@øI\u008cNóÕß@_x0008_æ¥¦´ûß@²-_x0007_v®Cß@\u0094OES\u0097·à@\u0094oôª\u008bHà@\u0088ðõÑ&)à@*àW\u0089+8à@ûkÅçY_x0010_ß@\u008dM¿è%Bß@ _x001E_²p_x0019_Gà@b¡_x0012_õ'òÞ@\\ÏUÐ\u008f°ß@_x0005_\u0089N_x000B__x0011__x000B_à@Ä\u009f_x000D_a¼Êß@õ(;@zIà@ù\u0090w\u00963_x0001_à@¶\u009bmÈõ_x001E_à@ÒN$Y-\u008dà@ñg_x0002_\u0089\u007fÊÞ@»b<\u0085n:ß@?âÿÃ0#à@«\u009ecÃ_x001E_Cß@ñK»Wó\u0083ß@ÊK_x0008_õ\u0097<à@¹y\u0083_x001F__x001C__x001B_à@_x0019_ÔË<_x0002__à@_x000E_Å¹Kþçß@Bh¤Æ_x0006_zà@:á*Á\u0087_x0006_ß@Ê4ör_x0001__x0002_\u009b,à@)\u007fÚ_x0005_-\u0090ß@_x001D_à^\u009f_x001E_\u009dß@«\u0095Ãú\u0097'à@Ù£?\u0099\u009c§ß@B®¿_x001A_¯gß@\u0094ð»\u0087_x0016_Uà@ÈK³³¿(à@ÍK_x0013_.ñ\u0082à@lõ6åq_x0003_à@d¿_x000D__x0016_Ã\u0081ß@¶òe»´´à@)_x0018_m{\u0082_x0017_à@j|-_x0006_\\Nà@Ct×._x0002_­ß@F×Göm_x0013_à@¿â/aîXà@Ãÿ9°u*à@q_x0019_Íéô_x000F_à@ñyHtJ_x001A_à@ê\u0087\u009ctq?à@à==ö:\u0089ß@YÖý,c_x0012_à@+\u0082_x000B_\u0094Ê\u0098ß@_x0012_/ËÀ\"]ß@ed,°<'à@ó%ÊçèUà@n_x001B_»ð&ìß@y¶Vóy»ß@_x0010__x001B_\u0092ïO/à@ÔÁ^D¨\u009dß@_x0011_ø"}},{"$cut":{"chars":54066,"head":"dd9cb485fbbc589d497dd82e1faee481_x0005__x0008_\u008e2_óm\u0080à@?\u0081_x0017_Ø¶;à@»#\u008c^\u0087_x0001_á@_x000C_¿·_x0005_2´à@_x0001_¥_x001D_\u009dU¼ß@¡gA°>\u0088à@±ÿ±{[}à@\u009dd¶Èé_x000C_à@_x0014__x0016_¹ïP_x0003_á@5!($Úôß@53V#\u008cñß@\u008eá+®Úuà@Ûv³#MÑà@_x0019__x0002_\u009dén_x0004_à@-_x0006_:\u0088ù'á@'¾gû\u0093#à@Õ®i«_x000E_gà@\u009a\u0099_x000B_âê\u008bà@_x0002_Y®Ç!Zà@¾,pBü_x000D_à@ä\u007fïÂ^gà@ù\u0098íÿ`\u0099à@ç-`ªÉWà@Ï5q@®üà@¼÷Cgùià@/}>&Îëà@_x0011_,¬mÌ{à@_x001C_O_x0010_Æäóà@Hª#C[eà@l7ê_x0012_ø\u009cà@\u008fv\u0086|Càà@_x0007__x0015_`«_x0002__x0003_E_x0005_á@_ØºäI(à@Â±7\u0082ë½à@ÿÆ\u0094ü¡ºà@´ÒXû_x001E_oà@{ó:!ÜQà@\u008d¸ÞÃ\u0097Aà@=_ôT¼\u0093à@¯ÐÑ¤\u008d¿ß@\u008ex\u0089ÿsåß@\\Þ½ºG!á@\u008aøa05\u0082à@\u0094\u008ben\u0086%á@À\u0099¿\u008f_x0008_\\à@_x0018_\u008e\u008d,¾\u009cà@ÿZ_x001F_ãuBá@v_x0008_ù÷ÄÑß@ÓÂ_x0012_ÜUÁà@ÿ?º_x0018_\u0088¢à@©NL_x001C_¡¹à@]ÿÅ]·=à@\u0083Pÿ,OÎß@êðg{¸,à@©_x001C_B\u0086ï©à@Ö_x0004__x0015_8G\u0099à@wç×y\\xà@_x0001_h_x0006_ôO4à@_x001C_Gõßt9à@o\u008cñð\u00971à@:µ_x000F_u£Éà@ar´o­Òà@ü\u008d½_x0018_\u0089­à@_x0001__x0006_ _x001D_|*µ»à@_x0016_ªYaW9à@\u0094m_x0002__x0004_\u008e\u0083à@\u0091ÄÒ°¼[à@È_x001D_ì_x0005_±1à@X\u008f3ý,\"à@Jk%D\u0097\u0080à@\u009a_x0013_U_x0003_óÄà@9_x0011_ÆUÙ³à@c6i±'bà@><_x0008_³y5à@è\u0096+_x0013_ömà@¬ú\"\u0090é\\à@\u009f_x0006_õ_x0008_sqà@ê\t+6²]à@Í¡»¥F_x0014_à@-Üª_x0007_K\u009aà@\u0081Ä_x0008_*_x0016_÷à@_x001D_Î_x0002_µ\u009f,à@\u0096\u0081DÃ\u009cêà@w«£t^¹à@g¬Àáü_x0016_à@ªR\u009e\t_©à@_x000B_ÈðÑuïß@w\u0092¶_x0004_\u0081\u009fà@\u009fmÔ\u008e´xà@^vp ¢·à@\u0086ý-_x0016_â_x0003_á@ ;`\u0084µ~à@¿n_x001A_Ô©cà@z3/z'zà@¾U_x001A_r_x0002__x0004_\u0081Hà@/\u0099¾Hs±à@M&zf£yà@\\¤\u0093ü²?à@_x0006_\u0085vb_x0001_\u0093à@¸\\²_x0008_\u0091Cà@^qÒj\u0083_x0016_à@_x0010_x¼;fìà@ØJ_x000D_;¬Èà@jãc\u0098_x000D__x001F_á@¦\u0089\u0085h_x000B_\u0095à@ÞÓÍ¸\u0086\u009dß@y6ÂÞ_x0013__x0006_à@ëw\u0091_x0007_´_x000F_à@%µ#\u009dóyà@W_x000B_Q_x0018_#äà@\u0097ðwãê9à@Ï\u009d×câãà@Ó\u0096T·Y_x001D_á@._x0018__x001E__x000F_\u0091µà@û©)\u009d5\u0084à@î1\u0099\"_x000F__x001D_à@_x0018_õ*Ò_x001E_\u009dà@Ú­ùá7¦à@_x0012_@_x0013_ª+¾à@á0td-\u0085à@\u008d[Ö¡H¢à@óñÄì_x000D_zà@\u0083*>_x0003_\u0091fà@o\u0090W]uZà@ö0_x000C_¦Þ±à@_x001E_wÕam)á@_x0003__x0005_hÍ²\u009d~!á@_x0014_¦Tú-çà@_x000E_²!J\u009a_x0004_á@IáÜåþ¿à@YÂ\u008bM\u008a_x0010_á@<_x0011_R>ú·à@_x0011_Ø_x0003_\u0082_x0019_¡à@é|æ÷XIà@ü@C-ÿ\u0085à@8!_x001E_GäÇà@¯%_x0006_ú_x0013__x0002_à@N_x0004_lm_óà@vsË_x0001_Dlà@_x001B_±v[³_x0006_á@¿Oxäslà@Ð_x0017_0Ã£\u009aà@ÀMI¹ pà@\u0098@\u009e_x001E_q'à@P_x0013_,\t\u0088\u008dà@¾\u0081CD_x0002_\u0082à@&?¯_x0002_ù²ß@i_x0002__x001F_V°öà@Åq_x0014_sO\u0097à@F}à\u0085J\u0090à@ú\u0099ùö®Àà@ØÇ_x0004_\u009aC_x001F_à@Ãûov_x0007_]à@VFÂ±\u0095¼à@£.ô_x001B_Àùà@ØÛÅ9_x0018_;à@OÔy à´ß@AZR_x0015__x0007__x0008_lðß@\u009b\u009få_x0013___x0002_á@ð<<\u008a_x001F_Åà@¼r~¦9Ãà@dëJZµ_x0001_á@;\u0082\u008exÎ_x000B_à@8lóõ3ìà@NgÔOQ`à@ª\u0095Ñîoºà@\u0091¢wÉ\u0092¸à@7û£?Ü\u0083à@Cô1ØzÒà@\u0093_x0010_C\u009aÙ@à@çã1ºÆ:á@Ë4×-ådà@_öà¤lÝà@Â§óÎ±Qà@½´~>¸\u0099à@¦wjâÃlà@úQÓ_x0003_Æ3à@¸?©Ý_x0006_\u009aà@\u008e_x0012__x0005_l\t¶à@Ó83x¤¿à@©¬¤(f\u009aà@0{¢j=Zà@20\u009báQ_x000C_à@»*ûÑùÇà@ô\u0084é\u008ch³à@l_x000D_!z_x001C_`à@Iå_x0010_UFÅà@gro_x001B_3¸à@_x0007_Cî_x0004_½_x0002_á@_x0002__x0005_p`àÎ%_x000D_á@]Ic_x000F_ÈÛà@R_x0013_ÊàxWà@°\u008cTÜRjà@â_x001E_Í¥D à@^ÍA_x000F_ð_x0004_á@[ù_\u0083\u008bVà@_x000F_è÷HV\"à@y$3\u008b\u008c\u0098à@_x000C_\u008bªãZ_x0001_à@(çR¤ãçà@e\u009f¨\u0090j\u0093à@ijä/\\Dà@lÀpÀö\u009bà@fO2_x0012__x000C_|à@t«\\\u008a¢Äà@'Ã6_x001B_÷}à@Ýh:\u009fñ_x0018_á@_x000C_ÙÇù6\u0092à@\u0086yî»\u009c«à@¯_x0002__û\u009axà@_x0003__x0015_\\½3¯à@\u0088Þ©k\u0089©ß@õA»¼>uà@WÝ°ö\u0092Ôà@V°|G~@à@ð³>u¦óà@?Á*ðvéà@futTõÖà@ßR û_x000E__x000C_á@AàîG¡\u008eà@fÇ¡r_x0001__x0002_\u008b\u0082à@_x000E_µpÓ^\u009dà@p÷ÖJh\tà@xQ>_x0018_5Éà@\u009cf Â¯ßß@¸ên\u009d\u009b<à@_x0006_«¬\u009fìéà@IÔ¿Q_x0004_'à@ÂW_x0015_ÃBßà@)_x000F_7ô-9à@Cï_x0004_ù»àà@*¼ÇVÚkà@_x001D_\u009aj14¡à@T\u0096l(õÙà@\\O\u0094Ø_Ãà@Â&_x001F_Çe:à@/Ê\u008fPª\u0099à@_x0004_Ø½¿[_x0011_á@©\u0087Àcê_x0010_á@_x0002_*Ra_x001F_Jà@_x0016_â\u0085§C¤à@8¼ù5¯{à@BÞ_x0005_Î\u0083_x0013_à@ì{_x0013_Æ_x001B_*à@`\u009cE`DÎà@ËfGÚ\u009cdà@XÞ\u00864ú8à@å®]=j\u009cà@Y&&µx_x0015_á@e¶Ök\u009c6à@å[_x000E_WFãà@?þh_x000F_ºðà@_x0001__x0003_Ôü_x001D_Þ\u0087Ià@fæ{_x0004_²dà@[j_x000D_©\u008cÆà@Tµ]_x001A_êXá@ñ3¬à¨_x0002_à@Í?\u0085sJèß@Áß¸²}Öà@Ül\u009e\u0094\u009aåà@¼é_x0016_D½\u008fà@Z+^ôMÏà@i¦5\u008c\u0098Ãà@z/_x0013_¨\u0093 à@\u0086aðí+_x001C_á@q\u0098Æ_x001E_§Là@dÜßY_x000C_Ìß@_x0011_rb\u0082_x001B_¨à@&^Q¢nùß@DýkðÄ¯à@Ôry»Üßà@^_x0008_$\u0091Y\u009eà@_x0013_ß­F]tà@\u0084E%i\u008a3à@Ñú HG]à@ú-j£_x0017_Pà@ö\u0094½ÙÏwà@Ù;ø#_x0010_\u008dà@,_x0006_íÎ¡Xà@Yi_x0006_ð_x000F__x0016_á@P_x0003_\"\u009eõ\u0088à@\u009d/ç£<tà@]r\u008fO_÷à@fCÈ\u0092_x0001__x0002_\tïà@À\u007fZ[_x0010_\u0080à@\u007fâÓqdûà@õ;'\u009bÕ_x0007_á@ì_x0004__x0010_$­_x000E_à@>)jt_x000B_áà@&7Óx/\u008bà@:E5q_x0014_ýà@\u0085D_x0013_4çvà@ôR¯¬Ä\u0096à@_x0011_¬_x0003_Î_x000C_uà@PQuÈålà@[_x001C_Eë_x001F_©à@\"EZ_x001D_nRà@¤^N5Ê÷à@Ù\u0083[®S\u0093à@\u008a_x000F__x0002__x000E_*­à@\u0092_x0018_ÙÀø#à@fæö·rxà@gÄ¶NQ\u0083à@cÕßDnÀà@¥\u0094\u0099ÄFUà@0Õ\u0083|'ýà@\u008e_x000E_ò\u009fsÆß@ °$Âg_x0005_á@Åû3A\u00880à@Þ~°ï\u008f à@Øm¯\u007f_x0012_äà@\u0092Ll\tS,à@R\u008fp_x000C_\u008d×à@{¶°U<'à@ü\u0090å¶ö¼ß@_x0001__x0006_K\u009b!v.Ðà@ôd_x000D_¶5mà@"}},{"$cut":{"chars":52050,"head":"3c7aa004aef3d9bd45831def7f0212dd_x0003__x0005_\u009d4¥\u0081_x0004_«ÛÀ$|OÚµ°¾ÀêÊ_x001C_¼_x000B_\u0099ÓÀÂ ÷ïvÈÏÀÞ´þÔ\u0082àÈÀ\u0090'[-\u0090b\u0098À_x0003_ý\u0093g\u0099:qÀ_x0008_q_x0008_¯ ÔÓÀ=\u009eÏ>È_x0017_ÔÀ_x0012_>_x000B_ÏÂ_x0008_ËÀB ­\u0094_x000B_ÀÞÀÄu\u0081[étÐÀ\u009f_x001C_M1D\u0097ßÀ9 1-\u0084_x0004_ÒÀ[_x0014__x0004_À`&ÑÀªà4cR_x000E_ÎÀ_x0003_I;ÍWÉ¦ÀPß0/_x000B_¸ÖÀø_x0003_>D^A´À¼EQhtÃÄÀ.Ä_x000F__x0015_±Ñ×Àt;Ï_x001E_33·À\u009eþÕ_x001B_wwÊÀ\u007f\u00975 knÜÀ \u0098ë)JÆ\u0085À¼ßUÖDÁÝÀ¼@¤ )2ÙÀ^r_x001D_@1EØÀ_x001A_|¸ÿ_x0002__x0003_ÍÀ\u0080,\u0084<(®µÀb\u008d¨¬Ü\u0096ÛÀA+_x0001_>_x0001__x0002_\u007f0ØÀÌú_x0014_ ÇdÇÀ_x0011_ªAãåÚÞÀÌ\u0084LÕ\u007f\u008cÏÀKÐT`8_x0005_ÓÀÅÉaøN\u009f×À_x0019_^\u009fûýsÔÀR\u0082ü\u009a\u0098\u008dØÀÔ_x0015_þ?Ê\u0095´ÀÞ\u008f'\u0095ÉòÐÀ@_Zì>]\u008bÀLä\\\u008bß·ÈÀDß-_x001E_ðÈÝÀÖcÄ×)^ÏÀôI.þôyËÀàZÕQ´_x001C_©À\"PÏy}\u0092ÎÀ¾+_x0008_¢DkÉÀÌN©%aB¸ÀÀôé.]ßÐÀàÓ»DN3«À=_x0010__x0016_þ\u0088ÀÙÀt\u0098_x0001_-LvÄÀ¿\"oæÃ\u0092ÐÀ \\·5_x0013_±\u0096À¨\u009b Î-¥ÂÀÓ û\u007fW¿ÙÀfû¤ÕÃ3ÊÀÐJ\u008eÈ\u0087B\u009aÀ¼dÓÔ4îÖÀvl_x0004_ \u0082¦ÔÀ^N\u008bå}èÑÀ_x0002__x0003_fX¹/ðÕØÀÖ\u0085_x0018_\u0090_ºßÀÐ_x001B_Ç¢*\u0093ÚÀDÄÌÌ_x001F_E×Àh_x0002_e\u00959\u008bªÀÚ¾nvdäÔÀ_x0016_YÏ\u0084Ë\u009cÎÀ*Ù\u009cô\u009f\u009bÒÀ¨ÀÌñâ\u0090ÁÀÄWO\u0093³FÞÀ¶%×h%_x0001_ØÀN0ä§\u008e\u008eÅÀ£À_x001B_´'ÐÑÀ_x0012_Ôj_x001C_YOÄÀIzp_x000C_\u0089_x0001_ÚÀ\u0098¼ø7_x0011_s³À¬C:¸6|·À(Þõ_x0012_»?¶À ÿÒR6\u0094ÕÀa_x0005_\u0087P\u008e_x0007_ØÀ~+_x001A_?¡fÑÀ¤'âj¸-ÎÀN_x0010_ñÝÈóËÀ´fVÕq\u0099ÀÀÈÒÇ\u009d_x000F_úÃÀÌDÖÁS·ÉÀ_x001C_áõå_x0016_\u0082ÔÀÀÙÁ\u008f¬;ÜÀ_x0018_ø\u008b\u008a\u009b#ÔÀp_x0006_6lïÉ¯À_x001E_\u0085pmeÇ×À\"\u009cÚÕ_x0004__x0007_\u0082QÁÀ\\>Ä\u0084_x0016_0ÇÀÈ\u0089JW\"iÎÀNäøl\u0092åÙÀD`TÌ_x0003_+ÍÀÚâc¦i?ÜÀí\u009dÎ[¹QÝÀÒÓ\u00969oEËÀÎ»\u0089_x0005_ø0ÍÀ\u0090oôýwï\u0091ÀÒ·§{_x001A_¾ÎÀ\u0090&Dï\u0099f·À_x0002__x0001_$_x0015_\u008dþÓÀ\u008e©ÐFùþÔÀD\tRM\u0081_x0007_ØÀ_x001A__x0005_þÝ\\#ÜÀpO$¼_x001D_¯ À§b_x0012_\u008dÞíÙÀÈ\u0093\u0083'n¥ÉÀ_x0014__x0001__x001A_Â©§×À_x0006_$F_x0018_KâØÀf\u0094.Ñ9%ØÀ¥©¬_x0019_\u0087ZÝÀtíEr\u0097$¾ÀzP¨F?WÃÀL\u0096\\ brÚÀþ³ñëU°ÂÀ$\u007f\u0083Î~SØÀÕ\"_x0010_\u0085è§ÝÀdò_x0003_] Ú¹ÀØÞä|¡ò»Àv_x0012_\u009a_x0004_ï)ÒÀ_x0001__x0002_ðÅ_x001C_h7_x001E_«ÀÀ¶_x001B_×õ\u0090ºÀ#_x000D_>4e/ÒÀ_x001E_çÿÏ\u0099EÄÀò#\u0090Ö<_x0002_ÙÀº\u008fD\tº!×Àâ(U\u0089ÜÐÎÀ _x0012_7\u0083\"_x0016_®À_x0012_\u0091þ;ÕlÄÀ&_x0004_\u008c\u0098Î_x001F_ÍÀð\u0098\u0098åj_x0004_¨Àê«µØ\u009b,ÅÀ_x0014_Ì¼\u009a\u009fë²À W _x001A_ _x0016_ÙÀ@}FÃ,èÄÀ¸/_x0004_×%\u0084¸ÀØ\"úò°ÀÒÀx[O_x0005_ü$£À_x001A__x0014_eúÜ!ÛÀ`o_x0011_¸ê{ßÀÊeJZn_x0001_ÕÀ_x001C_¿êU-\u008e¸À0\u008c«½Ë_x001B_ÍÀ\u0098äè{$7°À6\u0085ä_x0013_HªØÀ_x0002_Å3ª§)ÂÀ9_x0004_\u008fÙ_x001A_/ÙÀ(±8þÎ\u0092¯À<_x0003_\u0092á-3¸ÀO_x0007_q_x000E__x0010_IÚÀ0¹n³D\u008a¢À_x0018__x0008__x0017_\\_x0002__x0007__x0003__x000D_¶À¬j_x0005__x0004_mëÜÀ_x001E__x0001_ø\u00989£×ÀS_x001D__x001E_\u008cæfÜÀÙP \\T+ÔÀr0à»¸\u0096ÕÀÈÁXjè ËÀÔà_x0004_\u008bzÜÔÀ9yÓÃø×ÓÀH~ö\u008e,z¯À\u009c_x001F_X_x0014_o\u0099ÛÀhÇ\u0088Nçæ«Àô­P]\u009f\u0097°Àà\tïZN_x0002_¦À'Î\u00823´¾ØÀ\u007fnÅsi9ÚÀPË\u007fETñÊÀ\u0088_x001A_Õq)Í²À\u0092­3}¯ÐÈÀDI«È_x000B_$ÖÀ\u009f_x0016_\u009cdr_x0012_ÝÀ~\u007f\"Ø\u008feÔÀ¼ZK_x0016_«UßÀÐ¢s#\u0082\\ÕÀ\u009f\u008f\u0099_x0004_ó\u0097ÒÀ\u0085\u009aq\u0097\u0099_x0014_ÝÀT\u008a\u0089à³!¼À;\u0081>&h_x0008_ÓÀ_x0002_â\u009d\u0087¶_x001A_GÀ\u008d}ÔèÜZÙÀ¸3_x0006_~ü_x0013_¢À_x000C_ª_x0015_e_x0008_5ÒÀ_x0001__x0003_Ô%`)aï×Àè:¬\u008e6°ÈÀ°TóÏè<ÐÀÈáö_x0010_p_x0001_ÈÀý5EzjøÑÀx%«<OÓÄÀå_x0004_vØ}_x0011_ÑÀp1â_x001D_Ä}³Àr_x0006_õ3XùÖÀ\u0098Ù1\u0091\u0096K×Àhu/h\t_x001B_ºÀ_x0002_®â:g|ÉÀÛÓGRh_x000C_×ÀÖ_x000D__x0016_h_x001F_\u0085ÑÀx\u0098>C_x001F_,ÚÀ\u0088¾Ée´´×ÀZË\u009dÎ]_x000E_ÊÀ¤_x0005_ù­äU²Àî\u009f X¶\\ÉÀ\u0093_x0019__x0018_\u008fá\u0084ÚÀcß=\u00804øÔÀt\u0099\u008fË¬LÔÀ\u0093¨×tiÊÒÀlH[sà\u0080ÁÀº\u008e_x0006_k4`ÍÀ\u0090(¦£òðÑÀTiz_x0003_jBÝÀÀd\u008c1»Î¡Àaw£\u0088B\u008dÜÀ¿Ã\u0087_x0011__x0002__x000F_ÛÀ+ce¢a_x000D_ÞÀ¼(uÅ_x0004__x0007_\u0081nÎÀH_x001A_\u009c5å\u0085¥À\u0098Cê¦_x0010__x0008_ÏÀ|_x0001_}GBö½ÀÀâN\u0083ôâ\u0092Àà_x001D_\u008eg_x0003_W\u008dÀôv_x0006_J_x000D_1ËÀ²\u0090ÚÕ¼\u008aÁÀä\u009d/ _x000D_éÖÀðEýD_x0018_GÑÀZµ_x0014_³_x0015_4ÒÀ¨-_x0004__x0005_+ô®Àú&è_x0004__x0008__x0002_ÛÀ\u0098_x001E_\u009c_x0012_\u008eô·À£\\æà_x0016_ûÙÀ\u0097×èfQ ÛÀ\u0082=à_x0012__x0010_à×À !>ÐDHÁÀî«o_x001E_e_x0008_ÙÀ_x0016__x0008_9 _x0010_öÉÀFÚ \u0084¹_x0007_ÐÀ_x001B_Ë\u009b`Ô_x000D_ÔÀ\u0088_x000E_2%d¶¨À\u0092_x000D_<¦ëlÒÀxïAH_x000B_¿ÏÀ\u0098_x0013_C¹^« Àä~^d+DÙÀ=D¥Ê_x001E_æÖÀ\u0098_x001C_¶r\u0081Þ®À\u0086¯\"6\u007fSÞÀ_x001C_K_x001D_OÚ-ÒÀX9ù,\u0081|ÄÀ_x0001__x0003_Çåuu\u0082\u0086ÞÀ \"TÖÒL\u008eÀq\u0082\"_x001B__x0008_IÛÀ¨\u0099aÈ7ñ±À°¹ß_x0013_Ä\u0088£À_x0004_,@§_x0015_û¶ÀNj\u0086^>åÚÀ\u009e¦­,çiÙÀñînf_x000D__x000B_ÞÀ0ûÌn(÷¤À\u009a¦_x0018__x0005_n\u0082ÄÀð_x0001_\u008bpgà¯À\u009c®GÂÌ\u008a²À_x001A_\u008dÃ\u0093Q_x0016_ÂÀîÑÊ_x0003_ÂpÊÀ_x0001__x0018_­.¾x.Àx_x0019_«§ñBÅÀ$\u008f¢j_x000E_ÞÉÀúÖñ_x000E_úbØÀ_x0002__x000E_u\"Y_x0010_ÀÀ #Ùú§Å\u0082Àø\u0084>æª£ÆÀ\u008eß¸ñu_x000D_×À^$ÿ»\u0096<ÑÀ_x001A_½_x0003_ß_x0001_ÇÆÀ­ñª8Õ\u0089ÒÀpÒëZ-*\u0098Àæ\u008fï97ÛÈÀ&]ÙÛöªÔÀ\u0086©ÊPÂ\u009bÝÀl2Ñ¯_x0017_}ÑÀ¼¤\u0095n_x0004__x0005_\u0099_x0015_²À_x0005_v_x000B__x0002_¹\u0082ÆÀd%PÃD\u0091ÕÀà_x0017_ü=û_x001D_ÞÀt_x0019_}cB\u0082ÉÀzÒKðdôÖÀ©õ\u0086ÀF¦ÒÀT\u0091#\u0088Á¥ÜÀ_x000D_³<DÞ\u0099ÖÀ&MÌ ©\u0084ÒÀ ó_x000E__x0014_Vp\u0097À_x0008_×fÌ\u008azÈÀô!_x0017_\u009dÜKÈÀ&é\u0098ä\u0091\u0091ÉÀ\u009d¿åá\"ÎÚÀû\u009dÀ5xÁ×ÀD?¤{\u009c­ÙÀ\u0095\u0099_x000B_YÓþÞÀâ\u008aN*_x000E_5ÓÀü_x000F_Æî­ëÎÀp¹©\u0090íl"}},{"$cut":{"chars":53514,"head":"4f153ab8dd29a790320e0b51e68edbd1_x0004__x0005_¨_x000E_÷_x0002_3ïÕÀ¶&3UáÌÊÀíS¤_x0011_,¹âÀZC½_x0019_\u0093ûàÀT²h_x0008__ÎËÀî_x0007_¦L´\u008eÃÀ\u0080ÿÓ=Æ¿\u0084Àe%yG\u0083_x0011_áÀø¯\u0096ÝèU´À ´\u009co!k¨À8{\u0092ðÄ_x000D_µÀA#\u0089-þ#áÀ_x0004_­\u0097\\/¶cÀ\u0080×>ðÖ_x001D_¤À\u009aØz¤ý\"ÚÀ8_x000D_\u0084û_x0018_íÊÀ6aY×_x0014_¶ÛÀh |ÔþNÓÀ}«ZI}_x0010_ÕÀ_x0004__x001E_°\u008f¾L£À_x0004_\u0099y¨ÆhÆÀ _x000F_Õ\u0098÷æ×À_x0004__x0012_ú¯«DrÀPÓ¸\u009bÌn©À\u0088B¦_x0003_#0áÀÞìâK\u009f ßÀ¨=Ýè=\u0088ßÀ_x0001_V¬\u0097\u009e´àÀFvà\u009f¬«ÂÀÊ*\u0098­K_x0002_ÁÀ_x001A_\u0088V¼\u0094õàÀÀ³z¤_x0001__x0002_\u0093äáÀ¨®_x0013_Ä\u0091\u008aÝÀÂ~n]\u0087ÓâÀ\u008a&¡Ë¬óÓÀ`_x0016_­-+_x0004_»À+°Ð¹©_x0007_âÀpj_x000E_(Ú\"¨À _x0014_òþ\u008cÁÉÀö\u008fz;qPàÀ_x0010_NÍ*Û\u0085ÔÀ3KÆ\u0083ÁYØÀ\"2_x001A_\"\u0090·ÕÀ_x0018_¢×W^\u0098ÐÀ\u008cB»di9ÃÀÄ#¸õ_x001A_\u0085ÜÀ`ÅqýWç\u0091À\u0084\u0099v¿bÉÓÀuÉáj\u0083wÚÀÿ\u0091\u0092Ä_x0002_=ÑÀ~eÕ0\u008f½×ÀÚÎÌ]wmÞÀ_x0008_­_x0002_\u008b48²À\u008c_x0010_`_x0018_I_x001E_ÚÀ(\u0090­àÌJàÀ_x0002_±_x0017__x0019_ñ¤ÖÀ8\u0089V\u0086«ãßÀOº±9_x001F_:ÕÀV°Å;_x0004_VÓÀä­#e\u008a\u0092ÄÀ^Ò\u009dñrÇÞÀ¡(_x0016_®äsßÀÓ`z\u0081>,àÀ_x0002__x0003_²=__x0008_#vÅÀ°bL\u0096óÄ¡Àh\u0091U~|9âÀ¸NÞcõ_x000B_¾À{ªü5ò'âÀÿ¨_x001B_±¥%ÖÀ\u008aÕ_x000F__x0019_*É×À_x0002_ÕÎÂpo³ÀÁ_x0010_ïß-_x000D_ÑÀ_x0004_\u0093Ö.P_x0007_ÒÀè³¤_x0011_ýtÆÀÛ'(²í'ãÀ\u0080æeXí¿ºÀ@ð1:_x0001_j\u009bÀÄRª[`5ßÀDEÈ_x001E_\u009c¢ÔÀø{!:[¾ÒÀGÛøÛ*âáÀÏv_x0008_ý­ÃáÀóýâ_x0010_y²ÔÀhr_x001D_ëMÓÀÀÖJÜÇ±·ÀÀûH_x0016_r\u008ceàÀD,²A_x001F_#ÌÀÓ\u0095ëëL\u0092ßÀ_x001B_¸$\u008e&\u008fâÀpæ_x0006_n£º¤À_x0006__x000B_§ÛmwÖÀ_x0008_®gÎJöºÀ4û\u008fIhøÌÀ_x001C_ _x0013_â©\\ÌÀó«b\u0083_x0002__x0003_g*àÀ&Tãb\u009d_x0015_ÝÀs)}¹\u0091ÄÕÀ\u0088Ð_x000D_ \u0084\u0091³À_x001E__x0003_\u0098\u0085\u009f¸ÞÀ¢W{@\u0084.ÉÀúN\u008c_x001A_w^ßÀ\u0088<_x0006_|}ÉÁÀÀ\u0090ýÆ\u009fÌÇÀ¤z¤>}\u0091ÝÀ_x0001_\u0086¿«_x001D_íÙÀëdót_x0011_×ÕÀ§FÀ|ÄeáÀi}16êäÜÀ\u0091\u008cmVÊ¹àÀFK_x001D_\u0082×_x0014_áÀ`e\u0086YØ<²À:F\u009dÕFUÙÀNé_x0008_uo_x0006_ÝÀ`ó7Y_x0015_z\u009fÀØ3ºE¢_x001C_×À~Üê\t ;ÕÀF¨!_x001B_ÒÓÞÀNÃ^ÅÊ_x0005_àÀÜ\u0099±þ\u008b_x0007_ÐÀ>ô7T_x0001_ÃÖÀÖ_x0010_øjeFÅÀ_x0018_=_x001C_\u009e_x0003_æÅÀ+Id\u009e_x001D_íÒÀÂ|_x0010_@\u0091\tÝÀ\u0080\u009f[ù\u0091ÇxÀ>À÷¿\u007f¦ÑÀ_x0002__x0003_lJyî0Ì½ÀìoÐlV\u009e¾Àú^LUX_x001A_ÚÀø\u0082f<\\þÝÀæk2áB¶ÂÀ`(öJgÒ\u0095ÀÒ\u009d\u009f(e¥ÊÀjÔÏ\u0096R:ÎÀ:Ú¾:Þ¸ÙÀ\u0086§ëÂ¤¬ÊÀ¦_x0001__x0003_¿_x0013_¬âÀÂ#è®c\u008bÛÀ_x000C_úi\u009bÈqÂÀ`¸n\u0081_x0004_¨\u009aÀBo,_x0013_ÀrÈÀòæ86_x0019_õÝÀ\u0080Ï\u0097b\u0082\u0094¼À_x0002__x0002_\u0096¡5R»Àxª\u0085l÷\u009eÀÀ_x0008_h_x0010_èG\u0086ÄÀ_x000E_ßÇ\u008e_x0005_IÄÀ_x0008_ÏÙ¢_£ÆÀÖG<prÊâÀijý_x0006_\u008a\u0097ÒÀ_x0010_À\u008d\u007f?°·ÀvÕLÀüÙÂÀ_x001C_ô_x0010_ð>\u009a×Àe°øÍVbÙÀTükg6ÖÈÀ\u00858ûÆ\u0092\u0083áÀÄ_x000D_ª¶B?ÖÀ\u0082_x001F_Æ^_x0001__x0005_\u007fTßÀ_x000D_³_x0017_\u0097_x0019_uÐÀÆ_x000F_!fy_x0002_ÔÀtöK¬\u0085N×À\u0094_x0003__x0008_\u008b8ØáÀ:3Ð\u008fQ3ãÀÀ_x0005_,Á\u008bV\u008aÀ_x0012_f_x0001_Ì²íÝÀú\u0090¯`üÔÜÀ¸Ú±#ôÜ¸À_x0001_\u009bÜ¬_x001A_½\u007fÀ×_x0011_\u008c°ÏmßÀ·_x0001_®v_x000E__x0004_áÀV»\u008c=_x000F_°ßÀÐ_x0010_O¹_x0013_$ÞÀ _x0011_µ_x0013_drÄÀ@±:8Ff\u0087ÀNòL-ÉþÎÀ_x0001_g3*\u0098cØÀ\u0091Û g0\u0082áÀ_x0001_gxtj_x000F_ßÀ¥5µ_x0001_ß\u0086âÀÙ_x0019_\u008d_x001C_Á1áÀÈ+çeë\\µÀü\u0095á¿Â\u0093âÀ0_x0004_£\u009c\u0091¾®À|\u009dN_x0018_¼[ÂÀJ\u0099ª_x0010_Yß×À\u00867Ù/x_x0004_àÀê¾O_x0012_Ì_x001A_ÄÀt_x0006_B\u008d_x000D__x0005_ÔÀÍ_x0006_\u0087Q\u0084@ÐÀ_x0001__x0002_\tÓNÿmuÞÀÆ\u009eR¤_x0011_\u0096áÀX}xØ\u0086ñÜÀðÎû_x001D__x000B_`§À`õyÎèS©À_x0008_'\u0084*K_x0001_¸À_x0002_>*\u0097R@ÊÀÄ@\u0091è¶÷àÀU[LÁ\u0096HáÀî\u008c_x001F_kµZÆÀ_x0002_ò_x0018_Á6|ÐÀ´_x0013_û$U;ÚÀO_x0019_>¦½ÂÕÀ»\u0089%_x000B_±\u0087ÐÀ_x0006_·Ýx+xÌÀä·Ö_x0002_\u008cãâÀ°\u009b¤¯/´ÏÀÍ,ñal¸ÝÀ4¢,_x0008_Ñ\u0088ÑÀùÁ®áÂ\u0098ÖÀ°\u0086CåÀ<®ÀIï_x0019_5\u0094¯àÀÈûEãèd±ÀTd\u0083¬@8àÀ_x000D_Q_x0002_ü¾ýßÀ_x0001_ý¥,áâÔÀä¦EúàZßÀ\u008aì|¼X)ÑÀÈé¿ZTNºÀ¶\u0095Vû[ÌàÀ¬hÆE_x0011_\u009aËÀ°\u0080ò\u0085_x0002__x0003_O½ÛÀö;!\u0081ä\u008aÁÀÆ\u0081B*3fÒÀ_x0002_ày_x0001__x0013_cuÀî1õ/Õ\u0094ÃÀ°_x0004_ÜiË_x001F_·ÀF9+Ñ÷D×À$:ºä_x000F_\u0092ÝÀT\u009720ä_x001A_áÀð^Òs_ §À-_x000F_æÓ/ñÛÀ\u008c_x0007_Lù\u0088ßÙÀ@þÞ_x001D_ØÂØÀñA'V¬v×À4_x001B_sØY\u009dÏÀâ]¤_x001D_\u0083iÙÀ´_x000C_wJdÍÛÀ_x0017_ñsdw-ÔÀ_x0012_C\u0085.Ø5ÆÀÆ_x0005_KÉ\u0093iÛÀ.\u0083v_x0019_>zÓÀÀ!_x0001_´!_x001E_¥À8\u0096ÁËù ÉÀ.µÏ\u009a\u0085©ÚÀ_x0016__x0004_éÁ¡_x0007_áÀÈ¨;\td`áÀu«¹/\u0088¤ÜÀâ3Þ¼\u009d_x0007_ÙÀ_x001C_p4R\u009aj×À&\u007fÞçè´ßÀT³×XÿÓßÀD\u0089TïG\u009cÞÀ_x0004__x0005_¤>°\u0088ü_x000D_ÐÀF#\u008bOk\u0087ÊÀ\u009el\u009a­P¼ÜÀ_x0007_õ$Þ}!ÜÀÝéZ´v¸ÖÀ '_x0015_)Ö1¬À_x0008_Y_x0001_\u007f_x000F_üÔÀìSà_ÛzÕÀÂbÄíL@ÝÀÂÞ°ÏCQÓÀ_x0013__D\u0098ï\u008fÓÀÀ_x001C_Ì\u009c±_x0001_³À\u0080Bíq}Þ¯À_x001A_Çj=øzÛÀ`\u009b_x0005_\u0080_x0013__x0002_ÃÀ\u0098}[\u0098yEàÀ.^_x0003_æ÷KÝÀ³«¯\u0095_x0008_#ÒÀ|_x0015_.±_x0002_=×À_x0018_î î\\¨»À@£Ç?Ì~\u0096Àú£´kñáÇÀpsúO4\u0088¥À_x0012_á+\u008b\u0094zÏÀä`éã_x001B_³ÁÀX«CÐF1ÃÀ¾ð^ø2\u0099ØÀà\"±¿BùÛÀØm{¯è_x0015_ßÀ¥­_x0002_âUÛÔÀ\u0080£êÈª\u0095\u009dÀr^µæ_x0001__x0004__x001E_,ãÀ»_x000D_ü_x0018_\u0089ôÞÀ×!_x0003_h>ÿßÀo\u009ef¯\u0094_x001E_ßÀà::`ÆÊ¤ÀHgÈÝ\u0094SÇÀ_x0001_7xàA\u0084\u0092Àú\"_x0010_Ý¹OÙÀ_x0014_¥Ü\u0089\u0085×ÔÀ\u009c+i\u0089¡zÊÀvÚ(\u0084_x001A_æÑÀ\u008dñT\u0085h_x001D_ÝÀ©_x0016_Ý_x001A_éÍÖÀÐ]$i\u0081_x0018_£Àu_x000D_ûJ:\u008cÒÀò9ó±mzÝÀ¹ñ­¼èûâÀ°_x000D_ÎÞ_x0018_\u008cÆÀ_x001A_ò\u0086\u0086U8ÄÀþ_x0005_(_x0002_þ\u0085×Àù\u0097Q¬\u009d\u0085ÚÀ´µ­ ¹~ÅÀJÅ(ZbGàÀ¸ú×_x000D_(=³ÀÞ}N\u009c©\u0094àÀMY_x0004_hÀn×À\u0080F¿ºVÃ"}},{"$cut":{"chars":52098,"head":"8e93620be9eebbdf35d54ad412ec1037_x0001__x0004_ö\u007fU ÍJÉÀb#_x0018__x001A_7_x001B_âÀ_x0013_ÉäU_x001B_tÔÀ_x000E_\u008cñrH³ÔÀ|¡âÚ\u0098_x0014_ÚÀØ*}Å' ÀÀ Ã_x0019_\u0094C¯·À\u0084_x000E_Fö_x0006_\u0081ÄÀÀÀÈ_x001B_×8ãÀZú¼lX.ÍÀ\u008cs\u009bZ_x0002_yäÀ¤I\u0086'\u009dßÁÀ\\L*·_x000F_ áÀ ³G_t\u0095 À\u009eJH\u009f\u0092\u0097ßÀ_x001A_Y_x0003_\u0094³ïÊÀ_x0001_\u008b\u008bCy¹¸À_x0001_ñ\u009d\u0087 \u0091pÀsìÚ|þ_x001B_ØÀ­é>¸x_àÀæø. äDÚÀ<Ç_x0013_p_x0013_ÂÙÀ\u0080ÝüÌ÷^\u0091Àâ3µºè\u0088àÀÃê\u0081L¹>äÀHs\u0094Øö,ºÀNo\u007f_x0006_\u0088·ØÀ®ûîlÉ\u0087ÝÀüØÄ\u009f¢ÍÀÀ05_x000D_IÆyªÀ\u0092Å#_x0005_e\u0084ÏÀàF9_x0015__x0002__x0004_\u0088ô·À`ÿê_x0014_,>¿À8¿HJáÖÁÀ=çSå\u009e\u0089ÑÀR\u0096H]Î!àÀ¼\u0081ö_\u0099ÉÛÀÈ1H±\u0090øµÀ_x000D_\u008b[}_x0006_óÕÀJ_x0018__x001C_]ªiÏÀ*F\u008f_x001C_â_x001D_ÃÀÝÄ¤9`nÜÀ\u0080ì\u0081_x0016__x0002_A³À`nwø­(\u009bÀÎH®î\u008fJàÀf¤µ_x0006_@gØÀ`(_x0003__ó\u008d¨À<­r{Ô\u0080àÀë_x0014_SoJV×ÀÐÓ&]p1ßÀèa²Þ\u008bººÀ]_x0001_3L\u0099ÒáÀè_x0012_-\u008bm5ÀÀÎðA9DXäÀ_x0015_ÍÉ{ØÐâÀF_x0002_Ìì§DØÀnM?\u009bõ\u0085ÃÀ\\_x001E_\u0083_x0015_¦;âÀè­\u0095UÓ_x0001_ÎÀ{E|é_üÒÀ_x0018_|§;\u0098_x0018_¿Ààk¢L_x000D_Õ£Àbâp\u0090¿TßÀ_x0001__x0002_®\tjU×_x001E_ÈÀí_x001C_:]r_x001E_äÀ\u0080áNôþU|À\u008e\u0091\u0088ýO5ÙÀ°_x001C_,êM\u008bµÀ8_x0002_-JPØÕÀ0_x0015_¬_{Ö³ÀØ­r¾ÓbäÀ\u008aä\u0090n\u0083þÐÀ»VAæ_x0013_1äÀ{Ø¹ÔH\tãÀ`mm\u008f,¨´À\u0097Ø¹ô®ØãÀ¾#ã\u0083}FÈÀ:_x0003__¨J_x000B_ãÀ\u009eá´öíjÐÀ¢ö&Ý\u0092nØÀ\u0093=^øeèàÀ\u008cÀºäÛ^ÎÀ_x0010_cØû¿\u0092¢À`0Óÿñ_x0013_¼À<<_x0017_\u0085/\u0087ÐÀ\u008eà\"Èg¢ÇÀ\u0090x_x000D_\u0099_x001A_;ÚÀaT d%qØÀí7W\u008bnYäÀÉ\\Ê+_x000E_wØÀ¶À1®ÏEäÀ*\u0086_x001F__x0013_z_x0017_ÄÀÐ+\u00859Ô6·À¨_x0011_^_x0006_(_x0010_àÀàI_x001C_\u0081_x0001__x0002_\u009aûÅÀt ä§\u0084_x001E_áÀDc>¨óêÚÀòg¶ÿ8§áÀkE\u0081¬°*ÒÀv_x000B_hE¾êËÀÐ\u0081x_x001B_ò¼»ÀnÂ_x0018_Z\u007fXÄÀçj6\u0096¡õâÀðÉÅ_x0008_p.àÀ\u0080\u008e§,í±\u0088À_x0002_u/\u00867\u0087ÑÀ³HlâÅ-äÀéj^ºÃ_x000D_ÓÀ pT-=§\u0097À_x0001_Áªo\u0088G\u0092Àzì\u0083\u0094åýÝÀÔ¬¸\u009cnÒÆÀâ¾·p_x0002_QÚÀ(e_x000C_m\u009d9²Àp]ÄN_x0008_\u009dÍÀr\u0088§c~_x0003_ÍÀ_x0001_ËFv;*½À¦¾e\u008b_x001B_RÜÀ¸\u0099M\u0089_x0003_\u0089¹ÀpÉ¾Å¶_x0001_ÌÀöio§k_x000D_áÀ.ÁQØ·aÚÀ¥_x0004_±¸«\u009dÐÀ=äæ!_x0015_\u0090àÀ\u008aB6t¼ÿáÀvkXß_x0001_ÁÈÀ_x0001__x0004_dnÅüÛ!ÀÀ_x0001_f_x001D_\\\u0093!TÀ$_x0012_0g_x000F_ûÃÀ\\_x0010_\u0087NBñÄÀ \u008aýÏ3B\u0094ÀH_x0016_ïN\u0090Ï·ÀD¼<ùð_x0003_ÆÀ_x0002__p¡ºÈÅÀb\\\u0086\u008eç\u009eàÀa¢ä\u0084\u008dîáÀ\u0088áK¬ê¼ÐÀÛ=6¶\u0090pâÀ\u009a_x0005_Jcö_x0016_ÂÀRúÕ\u0087\u0084_x0013_ÊÀ2(¯è»;äÀ_x0001_&È^S­QÀØú\\QtLÃÀc¦íTf*àÀ@ã¹mªTäÀl\u0091cÀøìÕÀ­Ísi_x001E_«ÔÀ~_x001A__x0002_\u008b_x001E_\u0081ÙÀ|_x0004_½¸§ÈàÀÂbí_x0007_µ_x0008_ÇÀ}ï\u0092µl%ÚÀ_x0014_a.=5íÔÀT éëÓ÷áÀ\u0090ÕÙ_x0003_~ÇÐÀ_x0001_Ö_x0013_Ør©^À\\ÈS_x001B_\u008f_x0006_ÞÀ_x0010__x000E__x0003_\u0097ksÜÀT\u0093Ç_x000B__x0005__x0006_&'ãÀ_x0008_L_x0003_ÎVò¿À_x0008_³}3ÝßáÀ\u0084O\u0095\u0087­=ÄÀpÂ¸_x0004_{à¥Àçãò_ã4àÀ\u0094Â×_x0011_¨vàÀH¤,Ô\u0080}¼Àä:Hwi`àÀÍ(_x0008_?\u0082úÑÀ_x0005_Ýj\t\u008d>rÀz_x001E_¡¯ÎtÌÀÉ\u008c_x0017_Å_x0016_OÛÀ _x0012_\u0093w_x0007_yÝÀ!1\u009fÁ\u0080_x0015_ÖÀ¤_x0004_\u0082_x001B_:zÃÀ´â_x0004_?z@ÂÀ3P_x0017_rïFØÀ;_x001C_\t!_x0001_}ÕÀ·©<QýçÒÀÊ\u008fPjÐGÜÀ¨UªÅ \u009fßÀY_x000E_\u008a¶­£×Àªh!kÑ\tÚÀ_x0008_²iyÇøÀÀãÈ¸Uí}âÀÎÙ_x001E_À_x0010_'ßÀ\u009e_x001B_Î¢.îÆÀè\u0081o©\u0090úÉÀ_x0018_ZÀ´§æâÀÜc\u0091]p_x0002_àÀfà_x000B_ãc_x000F_ÞÀ_x0002__x0004_0)«Êy_x000C_ËÀ~_x0016_<\u008a_x001A_\u008fÐÀÀóè_x0016_M\u0087£À`n_x0011_µÞ\u008a\u009dÀ_x000E_Rê@Ó÷ÃÀêå\u008fNÖ\u0099ßÀy_x0011_¢ c¥ÐÀúÒVÅ\u0096õàÀ_x000D_Á÷ß_x0008_?ÓÀDÒÞR\u0097áÊÀ_x0010_q\u0086°{TªÀ^\u0091F¸þ$ÅÀÌì_x0010_ÌSoÏÀÿfs/æCÜÀ_x0008_<\tw?P³À\u0088\"«£_x0012_³ÜÀEµ&._x0005_bÒÀ¶\u0083}_x0018__x000B_êÐÀÄý_x0019_Z\u0095»ÍÀÂôé=ëªàÀ¤¥*Øû`ÜÀv_x0002_®Ñø§âÀ_x0003_û¡i_x001F_IÕÀò_x0002_\u008b¨\u0099_x0005_ËÀ\u0080bU\u009c,àyÀ\u009a_x0018__x0001_5W`ÄÀq\u0084_x0001__x0016_Ö_x0005_ÔÀ_x0010_ÛÌd \u0081­ÀPº\u0082T_x0012_r´À\u00801rr^Ú\u0080ÀÕ±\u0099~ó_x0016_äÀ9¬_x0015_±_x0001__x0003_ñ_x0017_áÀ_x000F_\u0083i?ó_x0002_âÀ_x001F_l+_x0007_N,àÀºÂ\" :_x0011_ÑÀ_x0016_\u007f_x0017_@fÕàÀ`³Ò4ZäÀÀ_x0001_yj×\u009dÎÞÀÆãî\"iAäÀôgÝm_x000F_§ÑÀfúÃÅ\u008b_x0005_áÀ\u0094<î8RªÌÀÞFs\u0087¨\u008bÑÀ_x0005__x0015_\u0088AÖ@ÔÀú¸\u0088Ç_x0016_¢ßÀxÂ\u0083K¥Í²À]_x0013_mÓ%ÞÓÀµ_x0012_k\\¤¿ÚÀx;ih{<ÏÀiüÆûRJÖÀ\u0080 ó_x001E_Z_x0010_ÈÀ_x0004_à`kÚ\u0084ÓÀ¾\u0093\u0081á\u009f\u009fÝÀÅB¥\u008er_x0012_âÀ²®¥_lpÊÀR@Y\u009aÀ¿áÀèfm_x0016_À_x0014_ÆÀ\u0096\u0099@ÆíVÜÀ#%;\u009fA§ÒÀ0Z×«NG®Àüã_x0001_Q_x001B_ñßÀ6x_x000C__x0001_¹øâÀª_x0008_O@°\u008eÙÀ_x0005__x0007_món_x001B_bÎÐÀn5\u0081_x0003_égÔÀ(\u008f_x001B_ÞÍïÇÀª«a²cxÒÀ_x0006_\u009e¥Ê_x0006_\u0082àÀLµ®æ[\u008cÔÀ-_x001B_IÓ\u009bxàÀ\u0083=\u0081$\u0097\u0097ØÀ|Ø!V-aÖÀÜ|¤k\u0080üâÀiá_x0010__x0019_²ÏâÀØ<_x0001_=To¼À*¦§;_x001B_ûÝÀ_x0007_\u0084_x0004_ëÚ_x001A_ÛÀà.Vë,o¸Àd@\u0087ó_x0017_xÀÀ\u008d\u0082Ï6\u0090±ÞÀ'qòm_x000F_»ÒÀ_x000F_\u008a_x001C_ð_x0013_\u008aãÀNp[oÜ\u0087ÖÀÇ§Åã¶\u0098áÀo³_x000F_çøâÞÀH:Ç±u*ÀÀÀ×ÂH_x0002_UÊÀ_x0005_\u009bl\u008fzßÅÀëcrX@vÑÀ_x000E_©¾_x0004_äÝáÀg³\u0089\u0083l­áÀUÞ\u0098!_x0014_NâÀ.¤(c¿5ÆÀ\u0084,_x001D_\u0096¦ÆÝÀøçð¢_x0001__x0002_C/×À euÍ_x0011_ñÛÀ\u0080µVº_x0016_G\u0099À\u0086\u008c_x0007_!ð\u009câÀ¨_x0003_\u009d¢\u009fPÁÀ\u009e²·Ò÷ßÜÀ&AyÖ3¨ÅÀ¦(\u0083ùó|ãÀ¨:_x0007_-V_x0013_ÜÀ_x0018_aCz_üßÀD®7Ùí=ÅÀ¦#®\u0086µúÇÀbñ­úE±ØÀìc«PsÈßÀm@/\u0088AnÛÀàÄ\t_x0017_iaÁÀÎ\u0085ñ×):ÐÀü\u008dõÛ_x0006__x0016_ÛÀ1ÇÜpðÖ×ÀÌ_x001E_h+\u0081ZßÀÇn_x000F_ÏêÊàÀ`ýÍJü_x001E_ãÀð=¹Ù:\u0093ßÀ_x0008_s¾D-*ÕÀè·\u0087c&üÛÀ:½\u0086öo@ÙÀ"}},{"$cut":{"chars":53082,"head":"be65dfbe89c429a8cdbdf3cdc400a499_x0001__x0004_å\u009d \u009c>ºêÀx_x000B_|X_x0007_ÁïÀ·\u008a·pæÃñÀI_x001E_Û_x0005_P\u0083ñÀÅ\u0096E%³-ôÀ&*:·§\u007fçÀø_x0008_²×CµóÀ_\u009f6[ä²öÀwzãsl_x001B_çÀ°\u0095\u008fQ¿ÖðÀÐË_x0002__x0005_2*ñÀ_x0018_\u0094_x0003_ººÜöÀÍÂè]¥^éÀ I<«k_x0016_öÀ\u0088\u0087_x0004_8\\_x0001_îÀ\u0095õYM¤\\âÀ=-=ä$EïÀïGP\u008eú_x0011_ñÀ^L\u0098\u0095ÔzôÀ\u0090\u0086­(/¢áÀM\u009c$\u0091ÓpðÀÄ\u008f¡írÆÝÀ\u0089\u0090¬ÓË3ìÀQ}Î\u0092fìðÀv]BRîAòÀëA\u0099&_x001F_úðÀ'ðb\u0081Ò6ñÀ~¾,ÆuAÙÀNÀR\u007f*\u0085÷ÀÉÐ¢\u009aB_x0006_ðÀü\u0095_x0012_÷¼¼ÎÀCw«Á_x0007_\t*éØÀX_x0005_\u0096êü_x0014_óÀHÌ_x001B_|J\tðÀ¸7_x0004_A9\u0097èÀÂ+_x0006_t_x0010_#×À\u0093Û\u0093\u0080\u009cöëÀ~ñkì'2ðÀn.ëË8ÚçÀj°äáõ\u0081êÀ\u008eD_x000C_=VQàÀ,\u009e²ëP¬íÀä_x0002_»HÂGôÀ_x0010_¿¸Éã.ãÀ\u0094¶é¹Ý°ïÀü\u009bV_x0003_=góÀ1@fûíIîÀ_x001C_âeyÉ±óÀn¡¼F_x0014__x001F_ëÀÜ57¢¬{ñÀ_x0008__x0013_ÑÄ_x0001_;àÀ@\"*zAæãÀÈ A\u009a¤ÁóÀr¤\u0089%\u009b\u0083öÀ_x0017_ïÇ%_x000C_döÀ\u0093ÍP_x000E_W_x0004_ùÀ_x0019_ÍÌA\u009bJêÀP_x0006_|Y-\u008bíÀ1\u007fAë\u009bÝóÀgQt_x0016_ü8òÀ°?\u0099ø\u008f\tãÀ\u008c«_x0015_]©_x001A_éÀ_x0016__x0012_l_x0004_¹ ßÀ_x0003__x0006_ºtf¤â$õÀÏE8G_x0008_(óÀ'´\u008a@í çÀ!¸jI½\\éÀ\u0095ÎAÎ\u0090ØçÀîYú C_x001A_âÀ_x000E_*3³kîôÀ&I²U_x001E_ÞèÀ¤\u0087U,ô9ëÀ°Lþü5EãÀ_x0002_÷ë1jÆöÀ_x000B_)fiYåðÀ\u0086C¸_x0008_\u008büîÀ³\u0091ñÞv_x0010_îÀæ9<+VÂåÀõ¼B_x0012_±^äÀÔÝ¸\u0089ªþäÀ¸\u0085î%¶\u0082æÀ_x0010_}ºÛÄ_x000B_ðÀW_x0017_\u008e\u008d¯âäÀ\u008fIÊg¡qÔÀR\u0093S3k#òÀx`_x0006__x0004_á?óÀå_x001A_\u007f_x0002_\u0090\u008döÀZÒ2ôb¾ÛÀZ\u0096cF¾eæÀ©mðA\u009fRòÀd«0\u0088ãñÎÀ_x0001_\u0089Òw\u0080\u009dôÀ_x000E__x001A_%_x0014_ÏwïÀól·»_x0005_WôÀú2êÅ_x0004__x0005__x0003__x0015_êÀ`Ë£Î¯EèÀ\u009aDa_M&âÀ¾_x000C_ PICçÀLÑKr¡\u009dÏÀÔu$S)3çÀd{\u008b\u009b]8æÀ¼Ê0\u0091N$íÀ&¢Y\u0088P¶çÀzÃM\u009dR_x000B_óÀe_x001D_7¥ÜªóÀ\u0088~\u009bÏ\u0096IïÀ_ûoÁ\u0096\u0082ÕÀ´&´\th3úÀs%Çi0ÖÚÀÂªuè]\u009eáÀÀ±F«)YãÀÌí\u0098Â\u009c¦òÀp,_x001E_g_x0014__x0002_²À\u0095w_x0019_`Ü{æÀòH_x0006__x0018_~2âÀê\u0080µ&ÝÿêÀbr{U\u007f\u0098òÀ\u009cn\u0092%I©âÀ^\u009aH._x000F_½èÀ\"Ó|_x0001_AËèÀ\u009bR_x0018_¨|ÈéÀàÕé_x0002_ÖªéÀ_x001F_x _x0014_QvÐÀ_x0013_Y_x0005_AZ\u0096íÀ,\u007fâ½_x0003_wöÀ Åä\u0087¨\tãÀ_x0004__x0005_|²_¼§êòÀ8yÿX_x0002__x0003_÷Àþ_x0005_¬ÛKëðÀ\u008e|²ÿ_x0007_lçÀ¨_x0011_²eÈ_x0011_ùÀ\u0094y¹Ã+\u008cîÀ`ß\u009d \u0090 øÀ|rðê_x001F_\u009fòÀ'Ê\u0094²;ßïÀòB®ÍîäòÀBB;=_x0001_\u0090ôÀh5÷_x0017_?ùëÀ¹[Ù\u009a#£ñÀ\u00964Fÿ_x0004_×ùÀò¿øÍ³@éÀ?í­_x0008_J'óÀ|_x0008_ðÀ\u009aÀèÀB`\u008e\u0085,_x0019_ôÀØ\u008f_x0008_£)ýÍÀ#¢\u009ff×àãÀ_x0017_Ùïû\u0089©àÀÜæØ_x0004_ð2ÜÀ\u0084ñì\u0097 ÄèÀ0_x0001_´î¸WõÀ_x001F_áþHËEñÀÖìÏÁiæðÀ*H\u009dÒB½íÀ¶_x001E__x0005_·õ\u008bòÀ\u009eöEé½_x0004_ðÀ\u008bâkGßG÷À_x0002_\u0095\u0096*_x0005_ªòÀäQ´_x0019__x0001__x0005__x001D_\u0085óÀ_x0011_\u009e_x001B__x000E_ËÚéÀè,£\u009eÖ2ðÀâð9¶æÃùÀ~¦C~\u0086\u0080øÀPÔm\u008fäÃñÀ_x0003_ÂÍîb!êÀüÌ7`_x0017_ÛñÀö\u008dM_x000C_\u008c¾úÀT©\u0087Þ©8ðÀdÔ:Ow\u008aòÀT ÔnÍ_x000D_ðÀé_x0006_q§Ç\u009eáÀ\"\u008fæhB_x0008_æÀ¶/÷ó\\vñÀ²LCzäÞíÀv.4¢_x0001_DâÀhr+_x0016_÷þøÀ¸êH/«_x0010_ñÀ^_x0018__x000B_MÏ\u0083âÀsX> kwôÀlEþ_x0002_\u008dBøÀ¸_x0004_\u0096\u0099åÉéÀ¼­\u0099@]_x0014_ûÀ_x0002_Ðh:Ã?ûÀ_x0004_\tõu_x0016_]÷À\u0085_x001B__x0013_Ò_x000D__x0017_ßÀ¢\u0090<_x001D_5¤äÀ^T_x001C_*\u0092_x0012_õÀ7_x001A_ÁR\u0089\u0098èÀ®_x001C_\u009dS\u009a;øÀ\u0090ÿÒÓÑ9÷À_x0002__x0006_²)H¦öòìÀ´¦·æë\u0089éÀ^]¼{õÏèÀôÞpq³_x000C_èÀ\u009f`_x0008_,c6áÀ_x0001__x0007_~Ó¬\u0080÷À_x0011_Wxæ\u008fvïÀæi*r\u009fÍôÀ_x001F_AÑù\u008c5äÀ×¢Ø­ç@òÀÔ_x0005_\u00874(¸ëÀ\u0099\u0099§qÆ\u0082íÀ\u0098_x0012_«ÅÚ_x0014_ðÀ\\=Ój_\u0099ïÀË_x0008_\u0082Q¾¿ðÀwHýï_x0003_\u0092îÀ_x000C_tÂñ6FñÀàJ0R\u009e·ðÀ\u0082_x0003__x000C_E_x0004_\u008eõÀïGÜ\u0095\u0086°òÀhú@_x0016_\u009d\u008aïÀ\u0090\u0089\u009d\u009e%ÖòÀèÂy\u009eÍÅïÀ_x000E_þH_x0014_õ0òÀâÿm_x0013_}YòÀt'¦\u007fø¨öÀ<Þ_x0001_ÝT]ìÀ\u0087Íðé_x0003_ióÀçúÇE_x001C_+öÀúGÐj'®ëÀ\u008eÖú­B)ôÀ© _x0013_Ø_x0001__x0005_VÃóÀpuÎß_x0014_JçÀ2¥éÏR\u009aåÀø_x000C_7û\u008dMóÀ_x0004_È^\u0094_x000C_ð×ÀnË:_x001E_YÄàÀ®®w®\u008aÖÛÀ°Nc_x0004_P\u009eæÀ_x0002_ \u0093Ø*RôÀ\u0090Ðê_x0003_.^òÀÒ¬.¨_x001D_róÀL¶ÃK\u009fVéÀ\u0090_x0019_¾à/¨ñÀ\u0098ÁÕ\u009c\u0090_x000D_ÞÀ\u0097§c0_x0004_OñÀ\u0085µË«Ö_x0018_ÝÀ_x000D_°\u0098ýAÃíÀ-©éHzZóÀ\u0090;TVðCÑÀ_x0010_\"\u0098üeDìÀ_x0013_Þ¿ò_x0010_VÐÀÎNU_x000B_K½ñÀç_x000F_úIì9íÀÌþù¨2zñÀF¸MG0ÊëÀ_x001C_£\\aG_x000F_ñÀn©)m\u009c_x000C_ìÀ¬_x0014_ÐaÝ\u0080àÀÚ[ùjÆÂøÀÎ_x0011_XÚ¨¡òÀ_x0010_d}D\u009b\u0080àÀ\u0099{½úþ\u0080ßÀ_x0001__x0006_X_x0001__\u008f_x0012_yïÀý_x0014_år\u0098bõÀ²_x0016_E_x000E_WÍñÀý_x000B_Kr?_x0006_÷À_x000E_\u009a_x000F_{\u00869ñÀvI_x0015_ßî\u0097íÀ_x0003_\u009e\u008f_x0002_\u0087MÙÀ{ \u0084×_x0007_}ðÀo_x0003_©\u0099öÔæÀ,ÏC._x0014_åîÀ\u008f¬IËç_x0001_ðÀ±:o£î\u0080äÀ\u008a\u009a\u008cH@ÜòÀXßt­R<åÀ_x001F_Ð4\u009feçêÀCQ_x0012__x000E_´_x0007_ÔÀ`¹Ë¬Ñ\u0092ðÀaEÁ\u0097ñâòÀbô\u0094]Q_x0015_õÀ_x0008_I\u0080Û_x001C_HìÀ`q¶_x0005_µäðÀRå®¸úÓçÀãÅ~È_x000C__x0017_îÀÝï©þ¦_x001B_óÀõ¨¸4æ\u0089êÀx\tO_x001C_?\u0090ðÀºÌ¯\u0083_x0017_dåÀg\u0086¦|GjôÀ%Ú@ÌþaéÀ-½_x0014_}}\u0098ïÀ\u008e<,ôÙ_x0004_ìÀ$eÜ^_x0001__x0006_@EòÀÏ;\u008amñ_x0011_çÀ¥eÛÔ·6õÀJp\u0086_x0016_ËÐëÀø¿±\u008a\u0081×ïÀB7C¢v¦óÀ\u009a\u008e\u0082klQçÀªJë·y±ðÀ÷ñn¼}_x0001_äÀä\u009b\u0082_x001A_\u009bÝàÀàa;8î\u0080àÀJ\u009aõÝù»äÀ7£_x0002_\u008b\u008cyëÀn\u0085_x0010_ùD~ðÀAÂt½_x001A__x0003_õÀYXf`ºÚâÀØ7z¯r5õÀü*R*ÙÑêÀBYÞ_x001F__²éÀ\u0092_x0019_ë?<¦æÀ\u008f]ì_x0004_âxðÀ÷K_x0001__x0005_ò|öÀn\u0088´ÙXDîÀÇ=Q_x0013_%\u0081öÀábhveÆëÀxQr$Ò_x0006_öÀ\u0088¸ÎJÝ_x0001_ðÀè_x0003_Þ}× ÷ÀEwÏìçfðÀ¨÷ÀakÉôÀÜQá±¯\u0082ôÀþ\u009f"}},{"$cut":{"chars":51276,"head":"8e4411c6889b7350dc013e68d6f424b8_x0001__x0002_ÚÝî\u0089U-\u009f@\u00929_x0011_ê\u009cÊØÀFdXeñ_x001C_ÞÀ7\\_x000E_×\u0099è³Àµ¯\u009e·k1ª@á[²\u0091ç\u0084Ð@®ç\u0081\u00826c Àw_x0002_\u0093Hë@¸@^r \u0087y\u008d©À´Ä´K×u²@\u0097²Û4¢MÕÀ\u0096!\u009aÔBðÈÀµÝ&ñÔ_x0001_¦@Ë²Ú2_x0013_eÁ@=Æ?:C¬¶@{_x0016_øê_x0019_·ÙÀò¿ßÔ¸_x0005_Â@rê\u0096\u0099w}t@_x0015_f7ómá´À4ú\u008f\u0087­ßÇÀ\u0098¦Î\u008bè\u0084ÛÀ\u00946\u009bú\u009d¯×À T±ÀKÞÅÀ_ò_x0004_ðÌ¤\u0094@ Ï¸N¶¨ÊÀK}Þ¸JñàÀ_x001E_;_x0014_vJ\u009b\u009eÀùæ_x001D__x0014_aOÒ@Ôgr«R@ºÀö±w³®_x0002_ÒÀâ`2°;JÊÀë2\u0088è_x0002__x0005_UÊâÀQ*/ä9n½À;¾\u007f\u0093\u009b-\u0096Àñs}_x000B_3e±@§ðd2ø¡ÎÀ_x0016_S÷EI¤Á@\u009fº´ûÞ\"Î@2¬I,g_x001E_ÑÀÒd´@Â_x0008_\u0093@Ó\u0092fÈ¯ýÙÀ\u0081_x000F__x0001_F)\u0088 @k\u0084ÁÝÂI½@\u008a\t!_x001B_c$ÄÀàS\u0086D8-\u0096@{¿³¸Éò\u009a@¤í|\t\u0095{ÚÀ_x0018_sA?)lÇÀH_x0003_ñ_x000E_\t{ÑÀ_x000D__x0008__x000B_UZÚÓÀny\u0089_x0005_4_x0013_ÆÀZ\u0093_x0006__x000C__x0004_øßÀ_x0008_î\u0096\u009a_x0005_\u0091âÀ~÷_x0010_)Û¡ÌÀ\u009dIH_x001E__x0005_\u0091\u008b@Å$_x001A_­\u0098â°ÀS òÊ\u009d;\u0097@EG #'ÏÉÀOsÍ`d\u009cv@S=É¿þ\u0081Ì@@\u009fê# FÁÀ;_x0004_ìÑè§ÝÀõ_x000D_íUA_x001C_\u008bÀ_x0001_\tò¾Aò  ÄÀÇcÓ»_x0007_òÕÀÃ¡!öÑÏÔÀ®:J_x0008_fFÐÀ\\_x001D_Z<Ñ9¿@\u009a:ó¢÷\u0096ÍÀjiÛ_x0003_ÅôÒÀÃú÷ÓC³³À83$^D\u009e´ÀæP_x0005_ð\u0083\u008cÓÀìÂ\u009alHBÁÀ?K_x0018_\u008f!_x0019_ÑÀJGå1\u0084\u008aÏÀÔÈ0É5Ó±À[Í\u0095\u0085_x0012_õ²@\u0093I_x0001__r\u0087¼À6\u008e_x0018__x0004_`\u0099ÅÀêè\u0085_x0001_y¼\u009b@\u0087)_x0002_\u009f»\u0093\u0093ÀÍh\u0093R\u0094ÿ×À\u008bfA­\u008a¢ÂÀ/\u008eêºò\u0092ÔÀ@µ°]µ\u0098ÑÀ\u0095í-¨_x0017_\u0081ºÀ2_x0013_>_x0010_Ô_x0001_ÐÀà_x0004_ö»Êl±ÀzY5\u0083TS±À_x001A_þ\u008b\u0088}¼¸À_x0014_R'åå_x0011_Ì@Ð>-_x0006_Ça¿@e\u008c.OîwÐ@l0_x000B_T_x0001__x0005_qsÀÀ¢FéÕÀ²ÀÀ6§n}Îé ÀQõÎ'_x001A_ëÒÀLÎÙ±\u0097ÑÍÀ¸B²\u007fÄ_x0002_ÐÀ`z\u0096,·_x0008_²Àlâ\u0080KëØÛÀ·¯\u0096_x0018_¸_²@\u0093ç¹_x0008_WkËÀä¼OìµÊÂÀ0§ùº±QnÀ`_x0010_\u0091B\u0093¬ÂÀD»ZÇ¾\u009aÛÀ\u0089b(\u0084_x001E_Ó\u0089ÀB4þ¡b_x001A_\u0089@ð}3®ös±@y_x001D_yè\u008fÖÒÀz^Y2Å_x0017_ÕÀîèg\u0087°´ÔÀ¬\u008bø7_x0006_Z\u009e@¤^øÆÊPÔÀû\u0091ÀÎZSÉÀç½Ûì_x000D_]Å@$Z^8\u0096¸ÝÀæ×£¡_x0003_ã»@_x000C_´á¶_x0019_oÔÀ÷/<u¨ðÁÀ_x0010_\u008a·ßï\u0085°ÀyHézø£\u009d@\u008aÓ¦Ô\u009aºÑÀ@ X_x0004_Z3ãÀ_x000C__x000E_`µ\u0097¥éûÖÀ\u008eÉÚQø_x0019_¾ÀæY+z_x0010_3±À´_x0017_ §@_x000D_²À+Pv÷äkÇÀXRÖr\u0099ÀÔÀc\u0089cÕ\u009b_x0012_ØÀª_x0017_MîòáÄÀ¤6_x000B_Àu·¯@H¥÷e;×¯@\u0088ï×\tÃ_x0008_¿Àî²]Ö/óÁÀ«\"¡5Zö§@_x0004_a_x001D_\u0084°|ÌÀ±¥Ù_x000D_Ã_x000B_ÔÀý<¬S\u008a$ÐÀ_x0001_Ã_x0019_ÎDHÒÀãõù\u0088_x000D__x0002_ÉÀ¢u½ÿ_x001B_äÖÀÙû­ä_x000C__x0003_®À_x0003_²l\u008e«±ãÀì*N8_x001B_?ÀÀ5M\u0095%_x0007_&p@4D*/_x0006_Y¾@î²)_x000C_@¨Ä@Ä\u0089Å_x0002_\u009e\u0084¨@i®_x0005_a)ñÑÀßÞírâ»ÄÀÍ4ÐOgk¼@_x001A__x0007_[\u0092£´°@\"7.«\u008cÆÎÀ>¡_x0018_V_x0002__x0004_Y!\u0095@_x000F_\u008aË\u008bØ_x0019_\u008a@£\u0092_x0011_Ü\u0092ÏÀ@·ºä³Ä_x0010_ÈÀ%_x0004_ýó·_x0001_NÀC_x0015_<\u0088T\u0080¦@\u009c*/¹ÑzÃ@I^h»¬_x000E_ÐÀ6_x0015_q_x001F_ÆAÒÀ°)Y_x0010_ÙuÜÀÇ®VÎ{£Ä@³J\u0080Óß\u0088ÃÀì#«_x0011_»\u009c\u009eÀ_x0011_û«&ÞÕ\u0087ÀX:ä©ÆOÄÀm_x000F_yW_x0002_^ÆÀ(_x0019_êbz¿ÍÀ+èS`ëy³À¨_x0002__x0007_\u007f\u0081jÈÀ\u0083-VÆQZ½À\u0094'\tt§Õ¾@IxÌ\u0082@l\u009bÀáòL.­×ëÀ÷¬ÿ\u008c3>Ô@ G_x001A_xi¸¦À\u0090Ró~yÜÑÀý\u0094g,ý½¸À _x0019_ÑüëÔ¥Àz\u007f_x0019_o SÖÀ1Üã¼A_x001D_¤Àh\u009a¦\u0092éa®À¸f?å\u008a_x0003_Ã@_x0001__x0002_ÝEç\u00935|ÂÀ©Í\u009cÆºRÒÀ(÷â\u008aÙ\"ÃÀ\u0092²¯Ûú÷áÀÚ!ï0Ä_x001C_É@Ð»º*Í_x000C_ÛÀJ_x0010_à)B\u008aáÀªÒ&\u00904ÞÌÀQ]I\u0086_x0015_ÁÂÀ3_x0005__x0016_l\\§ÆÀW5£DOc\u0082@ ÝÇãï\u0087ÔÀ\u00935Bm_x0013_\u0080ÔÀ`:ê«ÎbÈÀÓÈ§PjáÉÀ\u0098\u009c{kíúÖÀ\u0089æ_x0002_F0c\u0097@\u0085_x0018_NW){Â@W*;ÄÄVÓÀ\u0085_x001B_£³§ïÀ@~_x001E_?L_x0015_\u008fÓÀ\u0082\u0088½Rm¾Ä@Ðqq3»R²À÷w_x0015_#Æp´@l%)ní6§ÀRâ_x0019__x001A_®üÄÀC_x0017_ì©êUÓÀ$\u0089'éß0¸À\u008c\tz/\u0081RÃÀÄy_x0019__x0005_)\u0091ÁÀÐ#Üùä ÛÀÈÓF_x0005__x0001__x0002_>¥ @Øâ_x0002_\u0087Ú¿ÑÀ'*°Â4·ÄÀ%wLæ6\u0090Ê@ÀA«\\V@´À}ÀÅÜc\u0097\u009f@émU\u0085vp\u0097ÀÙ)ÊÏþ¬¸@\u0081b\u0081ëáÉÓÀ\u009bÚâØ\u00884ÉÀ_x0004_»ä<_x0001_HÇÀu *_x001E_./z@e|¡\u0084çPÐÀfÄ®_x001B_NwÂÀw\\\u0085¿\u009fý³@\u0082¸ÿ4X@ @_ÑV/ÄåËÀ<à\u0089_x001C_G9µ@ñ'_x000C_Ò_x000B_×£@ImJ}¸M±À$\u009e_x0005_u_x0018_ À@ÑÙBÍiÖ¼Àã\u008e_x001B_\u009e îÈÀ\u0090»æñHNÒÀú³HÐl\u0091ªÀNÒñ_x0006_\u0088{ÒÀ_x0004_%H\u0089I_x0010_ÂÀF»SörÒÂ@ù_x001E_/ù\u0081+ßÀKÅýõ:,ÒÀ)´Ó\u008diú¾@_x0018_\u0083¾_x0002_\u008d_x0002_×À\t_x000B_¯·_x001C_oå&ºÀ¹þ÷Á¯%ÀÀúIÄ\u0096_x0007_yÉÀf_x0008_å¬_x000D_éÍÀ\\_x000E_´ÌóoÀÀ%CþQ-½ØÀ_x000D_úß2T¯âÀ_x0002_Ï\u009cHþKÒÀ´f¯ú[\u009a\u0091ÀÝ=\"{}{¾@!_x0001_íðAùÒÀÿu²éÂÚ²@9\u0096G_x0015_s+ÔÀÅ\u0098¿\u0086åOÑÀ/§\u0085Ë_x0005_¯ÊÀ\u009bÑ_x000C_\u0095_x0014_¥ÈÀ×°«³}\u008a¿@­}Q\u009döâÈÀK\u009ac&ººÉÀvh\u009a_x001F__x0003_ÇÎÀ_x0004_9ÒyTÔf@Ë²Òª)}À@ÊQB_x0013_T\u0089£À\u009aSã_x0019_J$\u0091@bß|ñÕÝÛÀ\u0095<_x0006_ª\u009eXÑÀFºP\u0094«ÉáÀ\\mZ®NÊÞÀÂ_x0013_Â\u0080_x0001_\u0087ÓÀðÒ,5ë¢¸@Ê6\u0086\u0083/HÍÀL´#._x0003_\tì`ÊÀ;Õf/K¼¡@\u0083\\ûý\u008aØÝÀÉÂvlLÑ\u0095@\u008e$;\u0080h@¸À_x0003_í_x001B_;}_x0019_ÎÀ²h_x0017__x0004_\u0093\u007f¨À_x0006_%ÿ\u007f¤aÁ@.\u0091W_x0005_Æ:½@äØ_x0007_3«²ÒÀ+_äj\u0091_x0010_À@_x0018_H\u0099«Ý!ÉÀ¦Åt\u0081~_x0015_ÅÀ_x0016_ø\u008dj_x0010_:äÀ\u0090C_x0001_\u00934ö\u008f@¦üÀÍ\u0094Ò´ÀÅÄp\\æÅ»À\u008f½\u009b$a_x001C_ÍÀäè2.ëô\u0097À,y\u008f~FrÆ@Ëkì=g_x0001_gÀ\u009fÇ\u0090_x001B__x0011_º­Àþ²_x0002_õ\u0093vÙÀ\u0098&e\u0086¾¿ÓÀÔ\u009b9_x0008_Ñ\"ÑÀöL/\u0094Y_x0007_ÐÀ_\u0084cë_x0008__x001A_\u008d@_+E÷.fÜÀz_x0002_S«_x001E__x0018_·ÀCÝø]?ø³@Âe_x001E_0_x0015_åÑÀ1¡Päú+ÑÀ_x0001__x0003_B½\u0090þ_x0004_\u009a¼À±ýnû[Y´@´#\u0096\u008dhõ×À#±_x000D_\u0080_x0014_?ÍÀ_x000C_u÷¼G¶ËÀçR|^_x0014_-ÑÀ<~'\u0085jû|@ö-"}},{"$cut":{"chars":53502,"head":"380a4720e4f54cdfa1c2c03c317b4247_x0002__x0004_¢)Ì\u0082@ãÐÀ5`3ùê_x0016_ºÀ$Ëì1\u008c(ÖÀ4_x001B_N(Å\u008bÑÀÎ\u008cÚ7`\u008eáÀ(ºÒ5í²ÒÀ\"\u0084÷\u0096ÔBÏÀé;\u0095_x0014_§vÕÀ#\u0097þ\u0085ê_x000B_ÆÀå_x0004_ð\tFgËÀ£hs&_x0014__x0004_»@_x000E_X¹y`÷ÃÀ_x0016_R®~K\u009aÕ@Ág°\u0080ëÿËÀ@\u008fk\u009e!¬ØÀéÞvÜ,t¡ÀAÓ_x000C_\u0087[âÝÀ\u007f²\u0081ú¢OÛÀn©\tKÔE¡À{5I?C<ÍÀîA_x0019_¾\u008b!·ÀêüI_x0003_¬\u0088ÍÀ/Ê \u00922l·À/À_x0017_O\u008fÌÂÀ¼_x000B_¼õ\u009aÛ²ÀÔª_x001F_N_x0001_{ÛÀÎ-_x0004_xÖï¸ÀðÜ_x0013_f@4Æ@ÐØ_x001B_T|>\u0090ÀÞbWúZ_x0016_ÖÀÄ½_x001A_`gïÒÀ_x0004_)½é_x0004__x0005_òd»À.h\"¥_x001E_¾\u008f@á¥þqx{Æ@f<i\u008afJ×À_x000E_É_x0012__x0011_Û\u008d²@ðÞ2_x001A_Ò#È@&Â§H@_x0006_$@Ù¡fôüýÌ@'½Ìmç_x0016_Ç@3_x000E_È_x001D_r»×ÀÅ±rA_x000E_\u009fÙÀ¾ï©_x000E_ebÍÀ_x0015_ª5_x0002_\u009cÿÂÀ_x0004__x0014_)¿_x0011_ÌÄ@¿ßAT©××À_x0017_ÔøD\u0094fÍ@_x001F_rØ­X\u0088£@9^È\u0083gìÍÀ´ãÄP_x0011_E«@I@ÕÛ\u0084mÃÀ)\u0091XgE_x0001_µ@_x0013_\u0088¸l\u0082*ÄÀ¶á»w|\u0085×ÀTâÎ`Ä¦§@_x001F_F_x0019_#yçÔÀN_x001C_N_x0017_ÙdÅÀ\u009e¤\u008d\u0090d,äÀÀ¢A_x0003_¿#ÈÀ_x0012_\u0088ö^g\u0087áÀq'ú»cS«Àñ\u0096_x000B_ÑÏmÜÀ/4þ\u0094fÚÇÀ_x0001__x0006_otC\u0089Î\u0096Ñ@_x0005_iV;RäÓ@2\u009fgüb$ÓÀv_x0018_t_x000C_ë-ÞÀ_x0004_U×C!;ÑÀ_x000F__x000D_\u0085_x001C_Ë?ÞÀqÔ\u009a¤_x000E_äÆÀÙC\u009cìÿîµÀÌ_x0013_\u0087 õJÛÀ_x001C_»1Ìõ_x0001_ÕÀ_x001B_,£æÚE·À,_x0018_|*'uÓÀ_x0011_k_x0003_\u0093_6ÛÀ_x0011_àÔ_x0014_ó­ÃÀ>U\u00956^;ÔÀåÙ5\u0094^¯æÀX»\u009c\u0083_x001A_$®ÀÖ\u008bÖIÊ_x000B_§À_x001C_`4¥_x0011_¶ÒÀOÓy!_x001E_IåÀ8Êµ¡mi·À)÷îb_x0019__x0002_®ÀxÐHYA²¤@T\u009cà\u0093_x0015_üÊÀºT¼Dà\u007fÅÀ}úñÃâ.ÉÀ[\u0095ÿi(RÒÀ_x0004_@\u007f_x000B_\u0089(\u0083ÀCÃ!Ã_x001E_ÊÐÀW\"@ÑÍ\u009aÄ@$O_x000B_©qwÉÀ_x000F_\u009f;Ì_x0002__x0003__x000E_,Å@\u008c_x000F_®QßÅâÀ_x0016_\u00970\u0098|»½@\u0083_x0001_¥c\u0084|ÛÀ_x000F_\u007foøty½À_x0004_\u009e>9ö8ÍÀ_x0010_ñ\u0082òiUÐÀY©\u0089&ÎìÏÀ\u0098ß±Øu_x0014_àÀ_x000D_º_x0008_×\u008dýº@dA\u0089¡_x0017_z\u0089@$-:Ó1jÉÀx<çÇ\u008d)µ@Ã_x0002_åÊÚz©@\u008fk6g!J¾@\u007f\u0080\u008aï_x000E_e[Àp±Rî=_x001F_ À_x0006_Ã\u00818vPÊÀ\u0093Z._x0017_a/Ì@Ý:ãB¥_x0006_ª@ú^VëVØ¸ÀÉ_x000F_:ÀÑX®@û_x000D_×\u0096Õ#\u008bÀ\u009b\u009a¤{u_x000D_¤À2ü\u0084¬!ÞØÀ_x0008_ö¬_x0002_â\t»@£v _x001E_¡iÃÀô(õ?o]ÙÀÞNu<_x0007_ìÃ@wªÑ°;\u0080ÝÀ\u0093 ©Àò_x0010_\u008f@Ý4ã:)½±À_x0001__x0002_D»êÙÆJÝÀÔ&yëûFØÀê\u007f\u0081Äb-´Àëæ;oXéÖ@·_x000F_ \u0085\u008c\u009cÕÀWÒ_x0001__x0011_\u0082ïÞÀc\"_x001C_Çö\u008d¾ÀÔ_x0007_SÂo_x0018_ÇÀlS î«\u0090¹ÀÐd2\u0095\u008b½ÅÀe\u009dÏâYµÎÀ'\u009cW4\u008d_x0002_¶À¯\u0084jc¾\tÓÀ£\u0083ÏT7LÁÀ++\u0093o\u0097ÈÛÀeÐ\u008f\u0098\u0093ôÔÀ\u0094_x001A_ôÉ_x0002_hÆÀ´_x0016_ç×ÊpÖÀu2ùÇáD¸À#R_x0012_\u0093\u0092ë×ÀÆö|h»ÕàÀEp_x0005_k÷.*À\u008b'6ázÑ«À¢H_x0001_k:ã\u0084À\u0086y¦%ÕKÖÀ*\u0084\t\u0083y\u007fÑÀmS\u0080_x0004_ÚÜ±À5K3Ý³ôÊ@¦ÿk\u0087_x0001_ó\u0099ÀãÒ²:+÷ÍÀÖ¹ûp[bªÀC_x001B__x001D_@_x0001__x0003__x001C_sÂ@ÞL)ÓúãÈÀép_x0005_ío9Å@f09ý_x000E_¹ÈÀ_x001C_¢ð×jIÃ@LL¤HÌßÔÀh\u0098-\"[Ç¨@®\u0095w6µ\t\u009bÀ_*Î\u008eW$ÈÀÓ _x001F_Å\u0086¿ÆÀ\u008e\"¼,îsÁÀÃ?ð õøÑÀay0\u009aó²°Àµ1\u008b)¢°ÃÀÆÉØWû<ÊÀÉþfe_x0003_2ÇÀêmÂÒTà\u009eÀ\u0088¹\u007f÷ÁÄÕÀX*H_x001F_\u0092v¼ÀT\u008a²$å!¨Àj¶Å:± áÀÎh\u009aÕvýãÀ¦z_x000E__x001B__x0013_\u008eÉÀM·_x0010_ey/ÊÀ4\u008eëUÔ%­Àú²\u0090_x0011_þËÖÀÊÙn_x0002_º/ÒÀV[L®>\u0094ªÀtÙÚR\u0082\u0081ÎÀ/ðoóp~ÇÀ¯Ý\u0094E}fÑÀå_x0010_TðXÍÞÀ_x0002__x0006_âzÔ 6Z¸À\u008c\u0088Og\u008a_x0003_ÐÀf7aSÇà¤@UÝ\u009d_x0005_\u00989ÏÀ\u0096mì¤åî¸À&B5b[\u008bÝÀ­_x0012_pªJ_x0003_ÏÀ$R¢\\ÃmìÀea«_x001A_PèàÀâØ\u0093Ã­ÚËÀ)_x001F_p(Ë_x0004_ÙÀI_x0001_(ê\u0091fÍÀY#ô_x0011_r_x0004_²@b`\u009e=_x001C_÷ßÀ©\u009eã|RD²ÀºeujÒ\u0080\u0097ÀÞÌ\u0092ËÌ_x0015_Ê@ÈÈÛäX£ºÀ\u009aëÀy\u0085I»@¦Õîå\u008a¤ÓÀ|ØB_x0012_¾Q¯@\u0099(\u0084å_x0015_¸©@wK¶_x001C_¦S®ÀF6µ/\u008c-ÍÀºóïÉ4_x0014_«Àý¥êi;êÝÀg_x0014_\u0093~ÚB·À3co ´_x001D_µ@_x001C_gû_X_x0005_×ÀT_x0016_n\u0094@ÔÓÀ_x0019_Àÿ\\ï\\ÙÀììæ6_x0003__x0004_\u0090¡äÀªxQðitÝÀ/G_x001A_Q ëÐÀ¬Qs\u0083\u00860ÐÀ*?^Ì¡\u0091\u0097ÀÜ]\u0098»mCÖÀ^ØãØs¡¿ÀÍÏqºÎÀÆ@l_x0014_r;H\u0094²À\u008aÔr¯\u008d%¦ÀEI\u0098ÖÎf¡Àj_x000C_jà_x0007_\u0082ÏÀ@Åo¶_x0016_w\u009aÀ\u009eúl\u0083¢¬ÙÀ_x0006_éj\u008f\u0093DãÀ\u0082\u0087_x0003_U\u0088Ù\u009cÀ9s\u0094_x0001_L  À\u008c\u0082õX,ÝÈÀ*I\u008b³EÙ¾Ànð#ïn¨²@°ÛÌÞX(ÍÀX¬\u0092zö\u008dÞÀ_x000E_\u009e\u0096Ð¨3³À_x001C_OÅCk(¥À\u008eÑó\u008au'ÕÀÙH\u0081\u009cYiÞÀ³\u009d\u0085\\\u009eôÁ@²\u0085TÙ¶#ÐÀ_x001A__x001F_\u00986ò_x000E_ÂÀ_x0016_l\u0084²_x0002_?¢@¦gCä\u0082_x0011_Ã@%Ji\u008d5«¶À_x0001__x0003_±u$ÿ_x000C_õ¬@x\u0082<J3÷ÒÀ4©Du\u0097I ÀÃÎ\u0096±T·Ç@Ø´\u008b§_x0018_\"\u009d@iª?º2ýÑÀ³\teá{©\u0098Àþ°fJ\u0096\u007fÊ@fþÔ7_x001E_Y§À_x0013_KÔ\u009c7ìÑ@\u0089S\u008bR°_x0007_ÓÀ\u0088ä_x0016_\\¯_x0013_µÀé°_x0012_Åx¬°@ò\u0083®¼Î_x000D_Ç@D-Î_x0014_w_x0002_³@~;_x0006_*\u009dîÃ@?Íb\u008f]@ÃÀ!rî_x0015_á·ÒÀç×þ_x0006_{_x001C_¬Àl±?\u008fÆ\u0080ÆÀJgÊ_x0014__x001D_-ÉÀZ_x001B_y'\u0097¼ØÀ:\u009a¨_x0005_\u0088¿²À©zC2cÓÃÀV_x001C_´ØZ¾ÔÀFóñ®59Ð@âIq=Ua\u0088À\u0083-Zâ_x0007_M¸À1\u0096v_x001C__x000E_«Ã@_x000F_xD]C)°@_x0017_Gî\u0084 e§@³=å\u0081_x0001__x0002_ÛÐ¹Àv§\u0083kC\u0080ËÀn}[c3_x0003_ÖÀªSt\u009c_x000E_\\ÛÀôÏ©\u007f\u0088àtÀÙÊ3T\u009bÆÑÀbvv¨E>ªÀÎgû _x0004_i¤À­m00µ\u0082ÑÀcû_x0007_\u0081\u0087ñ\u0096Àn¥_x0002_vHnØÀþ·=_x0007_?_x001A_ÈÀ ¬ZÁ´iàÀgDÓU éÈ@p\u0091_x0018_Ã6;ÌÀ.lù,å_x0001_ÌÀ_x0012_¿åiÎDÒÀ¤ ÃÄâZ¸ÀÝ@¿tå\u0091\u009b@ä4y\u0099i\u0088²À_;%:Û0\u008e@Nb÷_x0001_­\u009d´@_x0017_®ºÆ£%\u009b@P²¶_x001E_Õ©\u0094@Ê9«/9C\u009bÀ\u0086fY_x0001_M¹ÆÀQàáD^ëÓÀ|r__x001F_J_x0014_±@9âÄÅV}ÑÀ|\\_x0006__x0016_¦\u0080¬ÀÅv}_x001C_ÎÃµÀöÄáá\u0088ÓºÀ_x0001__x0003_mõfæ°ÂÌÀo;-yÝÝ¬À÷¾\u0092:_x0010_°tÀ¨ioñeÐÓÀHÀ\u008b &a\u0098@N;ÀòßeÒÀBÝéNéZ«À_x0010_å0\\¡ÐÎÀð6\"VÉu"}},{"$cut":{"chars":63048,"head":"978119883741441d9da96a941ae245f2_x0005__x0006_sÿ\u0092yi\u0082àÀ&q\u0086_x0001_zúÙÀ2¶f\u0081\u0099HÈÀ\\5`£0\u0080ÂÀ7Ú±ÜûxÑÀý7²_x0004_¸_x0003_ðÀ_x0016_C;q_x000B__x000C_àÀ\u009b_x0004__x0003_Z²\u0087ÕÀC¹~)#ä³@ L Ó~^ØÀ_x000E_\u0086·¬­Ù¾ÀÎ\u008evm\u0094\u0080ÖÀdü\u009ey_x001B_\u009cÚÀÓ_x001A__x0002_¦\u008cÏèÀÈ,ö_x0010_ä\u008bÚÀåÃçº\u008fuÍÀ\u0098_x0006_W¢\u0085à\u009fÀ¨A°L¹ÊÓÀÚ.­L_x0011__x0004_íÀù.°Ùp¬èÀýË_x0012_q\u009bZàÀp\u0092_x0005_× w´ÀÌ¼ßµõ#ìÀ_x0008__x0018_ÂÎî·ÝÀpM{¹òä\u009fÀt\u008f_x0018_\u0092ÌèÄÀb'N$Ï_x0017_åÀ_x0007__x0015_u¾æ\u0097ØÀ_x0017_P_x0002_\u0083,S·@(G¿\u0090_x0007__\u009d@_x0002_ïxgAóßÀ \u0083\u009cI_x0005__x0007_TÑ²Àû ¯:ù_x001F_ßÀ@êÁTz_x0003_ÑÀL¾zíw@©@_x0006_}\u008f_x0018_ö_x0016_ÕÀ0_x0014_¼\u008e RæÀ\u0092\u009dw¿¬xäÀÑ¦uð\"~ÛÀüKà\u0090ÒñèÀÖleNÓ\u009e»À_x&U_x0001__x0004_ÝÀ-Ó\u008b_x0011_*_x0010_ÚÀÞFJò9/ãÀv÷\u0084½VæåÀ_x001B_©\u0098\tÄãÄÀ<3@¨\u0086ýàÀ_x001B__x000C_go?OäÀÜDt_x000E_\u0097_x001D_ÛÀ§\u008b\u008bû\tA¥ÀÀ_x0006_Äå¡1ÕÀ_x0002_;¦Æ_x001D_0äÀ¼\u009d_x0003_f[\u009fÅÀþp\u00809wUÞÀe\u008a{\u008aiÛÐÀ]gæcÃ_x0019_½@_x0016_þ¸\"KôÐ@\"BÉ&À\u009bÐÀt_x0001_í_x0003_k¯ÅÀÞÅcQíáÐÀÐ\u0085µ_x000B_-ÎâÀ\u0090X\u0091\u009b¥\u0098ÓÀ2Ñ_x0011__x0010_50ãÀ_x0002__x0003_ÀÇj×?\u0088ÎÀo\u0084ÇG¸\u0094ÛÀöBè_x0001_H¤²À_x0001_ÿÏ9¾ÅáÀ8äÀ~MÎÔÀz'Äl_x0007_ÐØÀ?5ØæÝ\u0082­À­ä½#¡Û¾ÀçÊ»_x001D__x001B_£ÒÀ Ï­MÔ^ÓÀ\u008d\u008eóÝ\u0086\u0094ÞÀÑN:¶ÄZÚÀãõ_x0002_|\u0083Õ¾@f_x0011_«\u0090PhßÀôtL®]cìÀ_x0004_Û_x001A_ÂÊ;ÄÀ`tdÈä\u008eË@\u009e\u008c}ê\u0090=½@_x0008_\u008dÙò4¬åÀ¨àÄ«jÉåÀü303>ËÕÀ|Õ·h­»ãÀÍ\u0085¨\u009a´_x0006_¶À[ÚäjÍ\\Ç@P£\u009f\tä_x0010_ÓÀ±I\u0087v¡\u007fäÀ¬ÎH\u009aÈ|áÀ_x0016_´¾É\u008eqÔÀkçÏ¢øõÝÀ\u0092ÖÆlð¦ÌÀ_x0004_!*¾¥(¿À¹Ê²\u0081_x0001__x0004__x0011_wÐÀ~\u0098\u009d[Å\u008aÕÀ\u009bñ34_x000D__x0003_ÜÀd(PL_x0010_ÚÄÀ\u009aðõ´6¬ÌÀ0_x0006_ãëß÷ÚÀ\u00992\u0088?\u0086_x001A_ÍÀ_x001E_\u0095\u0096µÃ\u009cÒÀ÷\\×1ÿ|ÝÀL51_o\u009cØÀZ_x0011_àÏ1×³@\tI°$èAÓÀà\u0091c)ôlØÀ}7êÑ\u007fi²@_x0018_\u009c¼ÁÇ\u008fàÀ$_x0002_\u0095ô·ß¿@Èis¸_x000D_HëÀ~ðEx_x000D_%ÉÀ=J¶\t\u008a\u0095ÑÀ}02_x000C_T\u0096ÏÀÉ·\u0091_§PÕÀ4_x0019_Á´´¨ïÀ¸_x000B_ô\té_x0007_½À'¨-'rñÉÀ´Ç\u0082íÈ\u0088àÀ&wX-±b·Àÿ_x0012_AB_x001A_æàÀ¦í[&÷°éÀ®1_x0018_ýÌr¶À îÛ\u008a\u0082Ô»ÀÒÀ\u007f\u0098Ü\u009fâÀ¦_j\"ø¿ìÀ_x0002__x0005_A_x0008_ÇÌ7ðË@ô2\u0099M_x000C_ÌÎ@#KêfÂ«ÒÀÖ²_x000C_G<`ÙÀ}VT*øJÞÀOðº_x0003_\u009a@àÀxª\u0084o@@çÀ_x0013_ô_x000D_/Ò÷½@-:ß|_x0007_7·À¤_x000D_|è·SÚÀñÊ_x0001_Ðx£×ÀØ'¨¤'ºÐ@Hù_x001B_Õ\u007f&ÓÀúÊPfFÍÂÀºRÑº5¡ÖÀV_x0010_¯½6 ³@èØó\u0086=h¡@X_x000F__x001C_ùëýÌÀÕn®&'0£Àm\u0094_x0019_8Î¸ÍÀ×V67 ~âÀÀ6¹ùP¨\u009eÀ\u0086W':9\u009càÀ¢_x001D_ì_x0019_n·ãÀÔA=u×_x0004_àÀñ÷_x0002_\"5ÿÕÀ®ÒÎ\u008f5ÝÞÀä'_x0019_ÄøêÐÀs_x0014_\tÂ3\u008aÂ@\u009aø»©vMÃÀS\u0098¸éÛï¸ÀFèUû_x0001__x0002_ëç¹ÀyÁ_x0002_6\u0092ëÌ@ºï_x001F_ç(_x000E_³À_x0010__x0011__x0016_Þ/\u0093ÄÀ_x0002_P¦9\u008d\u0086ÙÀÊ\u0099­§_x000F_QÒÀ\u0092\u0099~\u009b.©ÄÀ\u008ejb%\u0096´ÔÀñ>æ\u0095ó_x0017_éÀt_x001F__x000E_3©½ÚÀ$_x0002_\u009c°\u0087x×À3\u008e ø$è×À°ú-Kä²áÀ(õ_x0004_úºrÅÀãÊ(À\u009cÇÙÀ¯ï~ÌzÿàÀN-_x0012_ÒËDÑÀJ°\u0095\u0084çJÙÀ\u008cÖ\u007fÉ_x001E_þßÀUI_x0008_ÓÄ\u0097ÏÀ\u0087ø_x0002_ø¶Ê´Àe\\-{PRÛÀàÅÑo¡è¿Àõ\u0085\u009a_x0001_\u008eëØÀ¤¹\u008d¿l¢ÞÀ:èMmé¼ÐÀÖi´7y¸¡ÀèÌoy\u0093_x0011_ÚÀo}_x0006_¶ÝSáÀà©`\u0085GÍ®À_x0018_÷¦&_x000F_TßÀà\u0095\u0092{Ð_x0014_­@_x0001__x0002__x001A_Ë_x0014_\u0087|iÇÀ\u0087_x0010_V'/2ÍÀ_x0001_\u008dÈéÓÍ¦À\u008e¨\\\u0086ª4ÛÀ_x0001_\u0094o_x000F_¾\u0087Î@\u0080íÝru\u0086£@ç_x0012_âPè3ÁÀ!ÄA½\u008b_x000E_\u0099ÀÔ_x0002_Á\u0097i¿×ÀÁ©Îÿ} ÌÀ_x001D_ ívq©àÀ(uU~c\u0080\u008c@Ì_x0007__x0007__x001D_*ÉâÀo]\u0086RÁ$±ÀÀe_x0008_^âýf@5®¡/\u0091máÀ\u008còÝÝå+ÜÀ\u009f\u0097÷J_x001C_ZÝÀ7W´\u009cB_x0012_äÀi{Îù7ºÙÀz4­QÜ_x001C_×ÀT\u008e>\u007f\u008bÜÝÀ¾_x000C__x0013_aä\tÖÀ18\u008a%D8ìÀr_x001A__x0002_s7YìÀ_x0004_¶_x0004_­79Ñ@´P¯¼lèçÀ\u0098_x0006_wf\u0086N½À\u0082¿æ_x0011_²á¿Àx\u0082ÛÂYFæÀpss4\u008eë À_x0006_DM[_x000C__x000D_{©ÍÀ¸_x001F_\u0086\u0082À\tËÀ5hF\u009aÖÒÖÀÇ_x0013_b¥=ÏÑ@è\u008b\u009fÁpGÝÀr\u0081¶\\ö7æÀëÍ_x0019_¼¾\u0088ïÀ\u0088r\u009eÓR<ÁÀ \u0082B\u0096_x000B_\u0085ÏÀà<õÕêks@_x0002_.ÛÚxxÊÀÀMÒ_x0011_,ËÚÀ|\u0095OÔ_x000F_\\åÀT¼\\±_x001D_HÂÀ \u009b_x0001_tAIoÀ_x001C_XHé_x0016_«Ã@÷Dx\u0095Ä\u0096ÞÀr­ñø_x0005__æÀ_x0008_x¼½\u0095_x0004_sÀB,ã-T\u008fÌÀ_x000F_¤_x0003_8@\u0090ßÀ8_x0013_\u0089Õ&_x0005_ÜÀa3ÎÎ)_x0011_ÒÀóÿ&vT?·Àiÿ\u0082_x0010_\u0080ÙÜÀ\"V<_x0007_½7ÀÀGæ\t\u008eæ\u0084æÀØ:E÷\\>ÏÀaåU_x0012_÷ã\u009dÀD_x0011_]^è¬\u0095@ü¯*Ò_x001A_¡¯@_x0006_S_x001B_­°\\¯À_x0001__x0002_ _x001A_Pò¯_x001B_ÒÀ\u009fYÁ\u0098ÂôÊÀ,Ô_x0011_=Á³¹@ØøOS.ý»À\u008d\u0087{\u008eA\u0096ÒÀ¦á_Hìb¤@)o»ê&Ìz@Õu²âN6ËÀ3,Ã\u0083_x001E_\u0083ÙÀC7_x0005_¼\u008có«@øè_x0016_K4-\u009f@&zR«®¶½@ô\u0083×¢'_x0010_²Àâ©\u0092ïÀµËÀ^ûÚBÇ4æÀ¥­\u0091Á­g×@°Ïÿ_x0007__x0016_¿ÓÀ÷»âKwÓáÀ$Ð\u008dl¬YÃÀ üå\u008f_x0006_\u0092\u0093@¡\u007fécZdáÀ Q=ÛñöâÀjÅØH_x0015_vËÀøî¨Pd\u0081ÑÀ«\u008aÃQ\u0099\u0094ÐÀ¤IÉt|_x001B_ªÀæ\u0087>Lç~¾À¢n$Òè?òÀð\tØÓ\u008dÂº@¿\u0095ª\u0087+_x0008_¿À;_x0006_ÙÖÔNÒÀ¨¢\\*_x0002__x0003_\u0095#ÑÀ\u008d_x0015_\u0085-Å³ÊÀ\u0083_x0001_ê×DëèÀ_x0003_nsf8\u007fÜÀ_x001E_¨HxÈ6ÐÀþâ\u0084°þòØ@§Ûd \u009bBÆÀ\u0086LáðZ_x0001_äÀÖ\u0081W_x0005_\u0094ÅßÀV®\u008c<aäÕÀ~TÀÏý\u0096Ñ@_x001E_WPqÍ£çÀ¨¾_x0011_h\u0089_éÀÌÎgÇÊ`ÓÀ¢¬àFx¢ÛÀ3p\u0087\u0088_x0015_äÒÀ\u0087zH\u0090BÛÊÀø³ù_x001A_b5äÀ¢6õ_x001A_ÑoäÀÛ_x0010_\u009f\u009d_x000C_ÆÜÀ|ÑbT\u0085\u009dÐÀ¢EÖªÆ_x0010_ãÀFñî¢øÓ¯@\u008a_x0001_ÍwM\u008bÚÀìÑM\u0081_x001C_ÝÒÀÜ\u0088_x0019_#ý_x0015_ÜÀ×\\Ï\u007f?\u0094äÀ_x0010_\u008eÁ\u0097_x000F_õ\u0085@Ý¡Ût3²±À\u0088,Ã\u0093l£\u0084@¢¹ë¯/\u0082ËÀC_x0015_±)®¹ÜÀ_x0003__x0006_°tC¡ îèÀq_x0016_ÝÉjyÒÀ§áâÐ\u0080æÞÀ\u009eÊ_x000F_\u008dá@ÓÀ_x0006_\u0088¨É\u0083ÿâÀô?ÒxÅªÍÀ\u009c!M$\\&ÙÀÀÀJ_x0006_é_x0"}},{"$cut":{"chars":76590,"head":"fcff57e00c34f88a7e761138b08f955b_x0003__x0004__x0004_ã¿_x001B_ú$_x0015_AæÙ\\_x0015_äÉ_x0014_Akñn\u0089U_x000C__x0015_A-O2)ê¤_x0014_A¾6z\u0094_x000E_\u009c_x0014_A_x0018_ÌO\u0092a_x000E__x0015_A|_x0004_/¦s\u0099_x0014_A_x001F_Þ5Â­g_x0014_A?Ý\u008di6¿_x0014_A¹\u0099Èð§_x0005__x0016_A>ÆH\u0089BA_x0015_A·_x000B_UÈ:p_x0015_Aé\u008f)­\u0097\u007f_x0015_A\u0090\"F>_x0006_ê_x0015_A\u0096árE(_x000D__x0015_A9\u009eZ³E_x001F__x0016_AZ2ÍZ_x0004__x0002__x0015_AWÎ[üÝT_x0015_A·pñ_x0015_p~_x0015_AnñÆråÀ_x0014_A&À_x001F_*é_x0005__x0015_A\u0088Õbµ\u009c\u0089_x0015_AÕÏ_x001E_\u009bhí_x0014_A:±\u0095î\u0084\u0097_x0015_AI__x0001_f\u0081÷_x0014_A+/ÆõØd_x0015_AÙ\u0096S_x0015_\u008em_x0015_Amèá;\u0084é_x0014_A°_x000B_\tàEQ_x0015_A,\u0094_x0015_E2_x0018__x0016_A|®>@1#_x0015_A_x0011_Ì_x0002_~_x0003__x0004_î%_x0016_A\\I¿\u009cà¦_x0014_Aq8A_x000F_-°_x0015_A_x0001_âLå4d_x0015_A:é8_x0002_é+_x0015_AX£mP\t¬_x0015_A%#¯`w¨_x0014_A8üp\u009eÄ_x000C__x0015_AÛ_x000C_#a¯Ú_x0015_A\u0096¢\u0089ýØ\u008b_x0014_AJ¸U\u008biÍ_x0014_A_x000B_X_x001D_62}_x0014_AP½_x0010_8\"±_x0014_Aø«\u0092\u0096\u009a_x0014__x0015_AµR.è¦\u009b_x0015_Aç°Óp$W_x0015_AÑôn\u008bdû_x0014_Aü_x0014_¬¤GF_x0015_A[ËÛzäF_x0015_AD_x000F_ú.ëJ_x0015_A\u007fMPÃ¶§_x0014_Að÷\t\u0095×ò_x0014_A_x0004_É´_x000F_ý_x0016__x0015_A_x0004_Y{_x0001_½_x0015__x0015_Aá¥ú_x0013_ _x0014__x0015_Aoõ_x0006_bû}_x0015_Aî\u009b_x0003_À÷B_x0015_AcÙ_x001D_Ö¶a_x0015_AÇ@d\u0080ÈS_x0015_Aé\u0092\u008e_x001F_ú\u0093_x0015_APÞS?ÑÛ_x0014_A\u008f_x000C_dÄü_x000F__x0015_A_x0002__x0003_éì\u0096\u0094\u0099Y_x0015_A%1_x0004_·\u009fò_x0014_A¾8a_x000D_¶ó_x0015_AUù\u0097÷\u009fÏ_x0015_AÐ,ae\u0096?_x0015_A\u0085\u008b7\u007f÷_x001E__x0015_AMt\u0095åÀ¦_x0015_A5JÞ\u009eÏe_x0015_A&¥êØ\u0090¹_x0015_A\u009d{{_x001F_k8_x0015_A_x0013_äø\u009bÔx_x0015_A_x001F_Á^5_x0016_Å_x0015_A_x0013_Ê³À`_x001A__x0015_A\u009cq¸w%g_x0015_AÅ<BJ[t_x0015_A\\R±WCv_x0015_A³µ\u009b\u008b,\u0083_x0015_A\u009dâ_x0001_pð_x0017__x0015_A,_x0019_ø¯Wí_x0014_A\u008c\u009eÿï\u0082\u007f_x0015_A¿&-_x0004_'_x0008__x0015_A¯ó6<_T_x0015_A­U¡ ¤_x000F__x0015_A?Ð7´w\u0094_x0014_A&#C°_x0012_¤_x0015_AJ¤ELÅ«_x0015_AREa[³¸_x0014_A÷ÜÓ[_x001D__x000F__x0015_AÆ\u0086_x000C_%_x001F_-_x0015_Aå2_x000E_R u_x0015_A\u009f|_x000F_åvÛ_x0015_Af_x001D_Án_x0001__x0002_Þ\u0087_x0015_AÂ2]«õ\u008a_x0014_A:DSbÂ\u0089_x0015_A\u0094\u0098f\u007fìÀ_x0015_A.2]²_x0001__x0008__x0015_A=Ã 6 ê_x0014_A´\u0080\u009cï<M_x0015_A_x0006_M_x0017_Ð`þ_x0014_A\u007f\u0084f_x0012_\u0099\u0080_x0015_A\u008bÙ\u0098_x0010__x0003_\u0085_x0014_AOò_x0013__x0007_\u0084Ý_x0014_Aì\u009cÙ\u0092\u009d\u008a_x0014_AFjÆ_x0007_\u0081_x0015__x0015_A&Dô2_x0007_¬_x0014_AuÕÏ5_x001D_e_x0015_AD!ksÑZ_x0015_A²Eó\u0084,;_x0015_A_x0002_*Ô_x0004_ËÏ_x0014_Au,¼á4\u0089_x0015_A_x000D_s\u0096JÍÆ_x0014_Aá¦_x000B_þë _x0015_Aq@ùx!\u0083_x0014_A\\?_x000C_+ö¶_x0014_AæX\u0086,ys_x0015_ACCý_x000C_\t\u0088_x0015_A½Èê\u0087_x0007_t_x0015_A¸üï¦Wû_x0014_A÷_x001C__x0016_Ñ.\u009b_x0014_A¥ñóqw¡_x0015_Ahi}H_x0006_'_x0015_A\\±Z_x0017_\u008d`_x0015_AO½¬_x001C_,,_x0015_A_x0005__x0006_Þô<ÙHÏ_x0014_A'ÄØDRM_x0015_A±6_x0007_\u0091\u009aë_x0015_AÖ+lú^_x000F__x0015_A.)Åú/þ_x0015_AvçÏZ_x0001_\u009a_x0015_Aø p'Ô{_x0014_Að_x0006_°ùÄ\u0092_x0015_Ap_x001B_Æä_x0007_þ_x0014_A_x001B_Cd\t+õ_x0014_Alò\u0097å½ô_x0014_Aç©×Ìp¹_x0015_A¥_x0014_ÿ /½_x0014_A·â ²~)_x0015_A\u0093:¯¨ê_x0002__x0016_AâEAnnÎ_x0014_AG\u0083Ûþ¨\u0087_x0015_AÇ´æ_x000C_h7_x0015_AR0Æ_x0003_\u0094`_x0015_A_x0008_¦\u009c_\t\u008b_x0014_Auã\u009bS\u0099\u0093_x0014_AÀKòÁe_x0015__x0015_Am\u0088±_x0004_ÁÛ_x0014_AOóäÀ~Õ_x0015_AË0AÕOË_x0015_A\u0081_x000F_0\u008f_x0011_ê_x0014_A_x0010_\t{\u008bÚ\u008a_x0014_AÙAyÐÑU_x0015_Ajaf#Çf_x0015_A«_x0012_r_x0015_8¼_x0014_Añ¢aZæI_x0015_AJUªO_x0002__x0005_My_x0015_Aàê_x0003_\u0090<!_x0015_A~\u009fo}ÂC_x0015_Ap¦s»Î_x0011__x0016_A°x1z¼4_x0015_A´\tY\u0099ã\u0096_x0015_A_x000F_6>õ¹\u009b_x0014_A\u0080 ì_x000D_\"8_x0015_AË¸SÐ<\u0097_x0015_A\u0082¬ßÊAÎ_x0015_AþàéÙ\u0080_x000B__x0015_AdK¹\u009cW\u0098_x0014_Aù\u0083,ïJH_x0015_Af\u008dÐÅO_x0004__x0016_ANÉô+*y_x0015_A_x0013_N¢J_x0008_\u0082_x0015_A\u008d+'~çr_x0015_AbËu\\_x0011_~_x0015_A`ãB\u0082Ú_x000F__x0015_A¯\u0089ozd3_x0016_A©U\u007fú\u0085\u0088_x0015_A_x0013_á_x001A_\u0093[9_x0015_A\u0093\u008eg\u009aJÂ_x0014_A_x0015__x0005_(eýÛ_x0014_Aqqi&8x_x0015_AÕ%\u008c-Ã\u0095_x0014_A\u009dý_x0001_ª¨H_x0015_AÞ\u009fFÓ^]_x0015_A_x000D_Þ r\\_x0008__x0015_A\u0094oy\u0088*²_x0015_Aê6jè\u009aª_x0014_A@î|\u0083ëý_x0014_A_x0002__x0004_D_x001B_6>}¯_x0015_AvqÄØ\u0082¶_x0015_Agó8Ï+O_x0015_A+_x0003_¿N§A_x0015_APóí©ªö_x0014_A_x000E_®ã©¾\u009c_x0015_AzÏJ\u0083ü\u0084_x0015_Aái\u0085%8a_x0015_AÚBí_x0018_\u009b\u008a_x0014_A\\j{Ày,_x0016_Ar\u008a>µÞz_x0014_A\u0082½\u0093ìÂÄ_x0015_Aûð¹Úñµ_x0015_A´\u008f\\µÍ±_x0014_Aã }­u}_x0015_AoH(_x0014_\u009b±_x0014_A\u009a} \u0086\u009dÔ_x0015_A\u008fcë,\u0084_x0018__x0015_AçÆ ®_x0014_?_x0015_AW\u0091a¾Ü³_x0014_A¢\u0088_x0016_sp_x0011__x0015_Afïl\">b_x0015_A-4~`T\u008a_x0015_A\u0098ôqäö/_x0015_AQ8ñ®&f_x0015_A{Í_x0004_½¢þ_x0015_A¥¯%_x001C_é°_x0014_A/¦_x0001_u_x0015_Î_x0015_Aë?%\u0083z¼_x0014_A\u008fLmøëÜ_x0014_AW÷/®_x"}},{"$cut":{"chars":63894,"head":"5bb2363768237ff8816877d4fc525e8d_x0001__x0002_û_x0017__x001A_\u00896³_x0017_A­Qÿ0BÏ_x0016_A£_x001B_~¯Ì\u0085_x0017_AÌ\u0090°Ì_x000E_;_x0017_A.-õÈ_x0012_i_x0016_A_x0012__x000D_úL\u0085Ì_x0016_A×d_x0016_Çsk_x0017_A5ê_x001D__x0019__x000C_±_x0017_APðÂ\u0097\tñ_x0016_AÈ×`è\u0090L_x0018_AË_x001C_3³ûý_x0016_A)¢\u0086Ï_x0006_\u0097_x0017_A_x000B_i\u0095,»E_x0017_A*\u0098D_x0002_@%_x0017_A³\u0087 :\u0089Û_x0016_AÑu\u0090½7_x0001__x0017_AÑF+ZAÏ_x0016_Aù\u0097<t)Å_x0016_A\u0080_x0001_1_x0013_Oò_x0016_AÁ_x001D_È_x000C_å·_x0016_A5HÑ+·3_x0017_Aµ*]\u0089f_x000F__x0018_AÙwm@µ\u009a_x0017_Añ\u009d\u0091Å¶P_x0017_A(\u008fóÇ'æ_x0016_A_x0012_Ó_x001F_:Y _x0017_A\u0091qå\u008b\u0086ò_x0016_AÒ\u008ay8âu_x0017_A÷Õ0PÉ¬_x0016_A\\Oò»íV_x0017_Aß|;_x000B_dÃ_x0016_A]§í}_x0005__x000F_#B_x0017_A\u008c¼\u009ad\u009a6_x0017_A·Uøÿ`©_x0017_A\u0082|ù\u0086\u0097ô_x0016_Acl~\u0098¦u_x0016_A)\tHiÈ¹_x0016_A7,ã´·6_x0017_A\u0093\u0093\u009b\u008d_x0004_5_x0017_Aé×Qò7Ê_x0016_AÖÙzÎ»\u0095_x0016_AÄ\u007f\u0087ß_x001F_;_x0017_A\u0092#Õ\u009d_x001F_d_x0017_A`ÂÙ\u0090Ne_x0017_A\"ú+°Ãå_x0017_Aã_x0003_4\u0089Æ,_x0017_A_x000E_£\u007f¹4\u009b_x0016_AQæ:6_x000D_\u0081_x0017_A_x001A__x000E_\u0088+_x0014__x0015__x0017_Aù_x0017_¶_x001F_\u0082\u0080_x0016_AÎ_x001A_2D=Ø_x0017_A7ô¥{_x0008_Ã_x0016_AN«ZwpÇ_x0016_AdëÉäf\t_x0018_AB_x001B__x000B__x0016_\u009f_x0006__x0017_A¾\u0098\tJ\u009f_x0017__x0017_AÖ\u008fÌ±¼Ü_x0016_Ac\u009cñïÍ@_x0018_A_x0011__x0007_\u0080ó\u0090ä_x0016_A_x0001_\u0091ù+ßR_x0017_A_x0002_\u00845´_x000C_¸_x0016_A_x001E_\u0097$\u0082öñ_x0017_A\u008a4\u009f\u008f[Ã_x0016_A_x0002__x0003_ÿ'TmÛ-_x0017_A\u0087p\u0083@Bw_x0016_A \u0089ÖpìÉ_x0017_A·\u008cªýþ4_x0017_A\u0083ldý{_x0011__x0017_AÖHÝu-Ë_x0016_A\u0082u_x000B_Îü_x000C__x0017_A8nÃ_x0017_/\u008f_x0016_A?â\".?ñ_x0016_ARûï_ì'_x0017_AðQÜ_x0004_DV_x0016_A_x0008_\u0086mí\u008d\u0080_x0016_AB+&ëSW_x0017_AXÛ\u008eC£2_x0018_A_x0012__x0012_´~}\u0096_x0017_Anî©\u009euù_x0016_Ao\u0082B>\u008d÷_x0017_A`.^Âû×_x0017_A± Å\u009d\u0097¤_x0016_A\u009f¡5´_x0003__x0005__x0017_A³m_x0004_÷/+_x0017_A½^ÇZg¥_x0016_Aí_x000D_uõ®B_x0018_A |oði\u0090_x0017_Aj_x001C_ü`/Ç_x0016_A×·\u0095v\u0095\t_x0017_A9mÍ)$\u0092_x0016_AEÑy\u0099´ì_x0016_A0Éù¨Âá_x0016_A_x0001_e\u008fã5S_x0017_AÓRÌ_x000E_5£_x0017_AçÉïV_x0002__x0006_O`_x0017_AF_x000B_ ñry_x0017_Al\"_x0007__x0002_~w_x0017_AüÝ\u0099_x0003_ÆZ_x0016_AZOÖ_x0011_\u0085_x0013__x0017_Aê©a_x0017_t\u0095_x0017_A§Ü\u0097¯àÒ_x0016_A®ân¿vû_x0016_Ag#·$a_x0001__x0017_Aè_x0018_5)nØ_x0016_A_x0017_ ¿pL¾_x0017_A\u008f¿\u008c\u0087½{_x0017_Aç\u0089ØÝ\u009ed_x0017_A\u0082_x0017_8yþ_x001F__x0017_AÞ_x0001_HU±¯_x0016_A\u0083\u009d§\u009b_x0017_\u009b_x0017_A\u009bU2î\u0080k_x0017_A£(\u0098b_x0016_&_x0017_A_x000B_\u0086ÎNX\u0084_x0017_A\u0092\u009bp_x0004_e@_x0017_AÚ@_x0018_\u00900\u007f_x0017_A\u0080i4ñ[<_x0017_Aé_x0015_\u0090Fx\u009c_x0017_AYù\u0087=9m_x0017_A(µqJ\u009f\u0097_x0016_AG_x0010_O×=_x0018__x0018_A®ã\u008c_x0011_u\u0094_x0016_AªiÇm_x0005_;_x0017_A¡Bb\u009dtá_x0016_AÕ\u0081®\u0096\t_x000D__x0017_AEÐPÀº\u008e_x0017_A­Õ@ôX_x001A__x0017_A_x0004__x0005_´êàbhy_x0016_AûÙÄ½w\u0098_x0016_A\u0083²\u0095soö_x0016_A\u009eì°>Y\u0093_x0016_A:ÜiÅ_x0006__x0012__x0017_A_x0001_V§·\u0087á_x0016_Aï³Î!Ô9_x0017_A8½K\u009arª_x0017_A5:¼=Bñ_x0016_Av.Û7Co_x0017_AB_x001D_ÞÈf%_x0018_AO1[çö_x0014__x0018_A\u009b»_x0018_;\u007f)_x0016_AË\u0098A_x0001_;M_x0016_A\u009fg__x0010_Ðê_x0017_AÄ5á¯O_x0005__x0017_A4_x0015_4;É\u008a_x0017_A]£Á¯ø\u0080_x0017_AåÚ¯_x0002_Ø\u0099_x0017_A±:\u0080Æñà_x0017_AåÞ¨_x0001_ÇT_x0017_A²\u009eþj7V_x0017_AË=ÏTÂÏ_x0017_A\u009cdu\u0090_x0002_Í_x0017_A_\u0086ï2_x0001_b_x0017_A\u0090«eÇ(ó_x0016_A¯ð_x001B__x0008_íÕ_x0016_A_x0011_MÎ-¨:_x0017_A_x0006_[\u008d\u0095ò\u0089_x0016_A_x0013_x1T½o_x0017_A^©_x0003_Æ\u0098_x001D__x0017_AK_x0008_·\u009c_x0001__x0003_­L_x0016_Aºô[+\u009a_x0001__x0017_A\u0092ñæhH·_x0016_A\u009c_x0007_ðK\u008d]_x0017_Al«î±aÌ_x0017_AÙç\u0094_x001C_B\u0091_x0017_Acºµ\u008c¦î_x0016_AU$Ï¼ºË_x0016_A_x001E_s%±ä§_x0016_A_x0002_Ï_x001B_÷³^_x0016_A_x0006__x0013_\u0084_x000D_Ì®_x0016_Aä^\u0096fº¢_x0016_AË>¯ä_x0016_V_x0018_A\u0085ÞN]¨,_x0017_A#Ü_x0001_4íi_x0017_A_x000F_Ý._x000F_Ã_x001F__x0018_AL¾òk=Ç_x0017_AQ¯\u0086*3¥_x0016_Aí_x0012_ÒsN\u0099_x0016_Aö_x0006_Éläæ_x0017_A .5_x0015__x000E_O_x0017_AÕ;µ·\u0093Æ_x0016_A_x0010__x0017_\u008bÛ\u0091Î_x0017_AÏ}|»¶_x0011__x0017_AîÍ_x0005__x0013__x0012_z_x0017_A'ß\u009f.z(_x0017_AD7_x0013_\u009eBH_x0017_A_x000E_\u0096B¬]\u0084_x0016_AãýoÿE×_x0016_Aö7á\u0087«\u009a_x0017_A»¼úå%+_x0018_A§Ö_x0016_\u00882\u0099_x0017_A_x0002__x0005_8_x001C_%©â._x0017_A9xF_x000B_ú_x0017__x0017_A2_x001C_«õÒ¿_x0016_A¬\u0095\u0093¢Þ\u0097_x0016_AE_x0011_½Bÿ\u008d_x0016_A\u0089á½É­I_x0017_Aá+Ûxu\u0098_x0017_A'Ãí\u0081?r_x0016_Aî5ó_x001C_°_x0005__x0017_AFäÕ_x001F_e5_x0017_AìþË7VU_x0017_AsÞ¾ØP_x001B__x0017_A5õ\u009c_x0002__x000E_¯_x0017_A_x001D_À{àÊ_x001D__x0017_A³_x0008_wÐ_x0004_V_x0017_A?¿\u0097¯\u008fý_x0016_AB\u0091\u0086@kî_x0016_AU#;ññö_x0016_A¤©#'_x0008_\u0093_x0017_A_x0008_<ëåÚÌ_x0017_A\u008e<×_x000C_1_x0003__x0018_AÛ_x0014_%KwG_x0017_A`\u0086\u008aaÜà_x0016_AZC\u008b\u009fbÂ_x0016_A_x000D_Ô_x0010__x0007__x000B_\u0085_x0016"}},{"$cut":{"chars":107544,"head":"bf5920418067c59ad7f9bdf51972fc68_x0001__x0004_D_x000F__x0005_C\u009b\u00861AS\u009f_x0002_u\u007fÅ1A\u0092ìg\u0097oh1Aký_x000E_xâh1Ajy_x0012_ý;\u00931AÙ6Y!E\\1AÒÄ8\u007fª£1Afj`\u009f_x000B_\u009d1AN\u009bçÕ_x0016_\u00841Aú$t¿¡L1A°ÓÙ+ýu1A'ð\u0096-ä81A_x0019_k_x0003_ÁF[1Afû_x0014_x¤\t1AýQ·4ã;1AF_x0008_óM7}1A;_x0006_3Þ_x0001_R1AÅ´'Râ¥1A0ïTm\u009aH1A0_x0002_\u0080Ø\u0089I1A\u0090\u0080 -\u0088l1A\u009f\u0094^0ç\u00811Aã Öc]<1AÈã #Ï{1A>]\u0092eç\u00821A_x000E_=®ª5_x000F_1A¾\u0081Wí\u0085#1Aî+{¬ò¶1AË`2U\u0097¬1A_x0013_;_x000B_0vn1Aä:4ß7c1AáÈûq_x0003__x0005_\u0096D1AUDî\u009aÜ\u00891Aê\u00907¶^'1AY8ql^~1A\u009cuû\u009b.\u009c1A±ÈÝó\u009dR1AË\u0090íÉ@#1Aùu\u0087q_x0015_<1A\u0097mP\u009dÞ\u007f1A_x0014_[\u008e\u007fJX1AN\u007f\u0088áJ\u009a1A¦O!\u0097¢\u007f1Ayn[_x0014_y\u009c1A\u0080×À>À\u009e1A49\u009f_x001A_ÞN1ALqÅ\u0090Ôe1AäÕäI¢\u00831A_x000E_èJ_x0017__x0002_Ù1A%µõ,9e1A\u0082¬|.Õ\\1A±\u0089>´_x001A_Y1A\u0086\u008e´gÜÚ1A\u009a¸\u0080\u0089N­1A_x0008_yò\u0090Áq1A\\\u0090JñÈg1AÙkå¶T01A]yk0#91A\u009cvl§_x0004_51A_x001A__x001E_F\u009a \\1A^åÏù\u008b_x0001_1AÞA>MH²1A²^n\u009bÉÃ1A_x0001__x0002_gr¸!_x0012_D1AA\u0087qK Å1Aê)<a(^1AØî\u0082\u0087ÓL1Aìë_x0003__x0011_Ã(1Ai\u00914\u0082bX1Av_x001D_2f]j1AÑÇ_x001A_¤ `1A±÷Ô\u009f_x0008_\u00931A:¿Q¨à!1ApÕV®ya1AÅp¬Ø}\u00891Aü½ÔKX\u00851A_x0007_\u009ddìjg1A¬_x0019_¬ÄÄT1A_x001C_¯<\u0093_x0019_p1A\u0091èàHúV1Aþup@QD1A±\u009cÛ­\u009551A_x0015__x0007_\u0083YÌc1AZ1\u008eFüf1A\u009e_x0018_àk´r1AÃWj_x001A_ f1A´ÄW_x0002_8ì0AÂÁ\u0082Æ\u0096t1A(Þ_x001B_gÐ 1Ahxæ\u0094X\u009c1A_x001E_Í±ÚÔ_1AÝ_x0016_^7\u0088c1AJ_x0004_\u009fi_x000D_61A|Ô!\u0082OA1A«Éy£_x0001__x0002_ÍM1A}®¿_¨e1Aþ´\u0084½W\u00901Aè¤QU_x001F_*1AÍn_x0004_ê´\u00831Affê_x0018_ó\u00811A\u0088ññØAy1A\u009c£\u0091¾²51AxåkÄ~\u009a1A\u008e_x0013_\u008fY\u0094c1Ab\"c_x0018__ü0A´÷Ø=_x0016_'1AÚò(F¸I1A\"V³Ö­_x0002_1A\u00877ÊC®J1A_x0006_èN\u008aIi1Aj\u0081\u0092³\u0087y1A¯¾¨æ`\u008d1Awc$êß_1Ag,¿\u009da\u00801AíOBÃ!.1A_x001E_6|\u0096l\u009b1Aãgùq°\u00881Ab\u009fq2\u0085Y1AytÔ\u0096\u009aR1A_x0018_\u0082F\u0082°Q1Ap­Y\u008cbþ0Aú¹_x001A_¹·f1AÖÏ;~\u0091_x0014_1A_x0018_\u0090}>_x0002_m1Awn`ÄÎf1A\u009b«_x000E_½'61A_x0001__x0002_²zhz:V1AdçSèý°1ACCX&_x0012_¯1A_x0006_¹_x0019_äJX1A»\u0092_x0010_\u0096\"\u008c1A\u009dànÿ\u0095Û1Ao%õC_x0007__x0013_1Aþ#ÅÐKº1A1ü\u0082Uúv1AûÑ?á\u008d_x001A_1Aæ=U_x0001_·±1A¬õµ\u0091Âp1Ao%ò\u008a_x0010__x001F_1A\u0097_x000F_úâM\u009b1AIÿ+@\u009d'1A_x001B_\u008b_x000B_Ew\u009b1AÀ\u0088(_x000D_Íi1A_x0004_²°àÖZ1AõÝ\u0089\u009f¶M1AâÊHB\tA1Af\u0090\u0091\u008d®¥1A²£½ÊK*1AÉcy\u009d\u009dl1A_x001A_dg_x0010_ k1A¶uÃ<J>1AéÃsî¶51Az6¼_x0017_y91AÀdÅ_x000C_n\u009a1A_x001C_6È_x0011_Ô^1A$¸²_x000C_\u009a(1Aöwø8ûn1Aë\u0091v_x001D__x0003__x0005_%_x000E_1AÜ@²¢¦u1AÛgwÈ_x0016_51A\u009býû$qF1A;æý\u009d®_x001B_1Av ÉöÃ51A\u0080ÎQÏ¦¿1AäWK\u0086_x0005_?1A\u0094|\tàëÇ1A\u0098nW_x0010_S`1AÌDHgå21A\u0091G\u0092:âf1AðºÒ#\u0092H1Añ P×\u0085\u008e1AÇ\u008a¸Jv¤1A_x0010__x001F__x001B_Îô41AþX3=_x0004_\u008d1A\u008côB[)_x0002_2Aí±\u0096q_x0007_\u00831A_x0017_gÔ]OÁ1A<´)m@q1A_x000B__x0006_^2b\u00871A_x0001_Ú\u0085Úe²1A \u0083I\u0081\u0088\u00881A\u0094CÜ\u0084î_x001C_1AÎ7ýH¯z1A\u0090Ìsø©P1A\u009bîAàfq1A\u0080S\u0089Ë\u007f_x001D_1AÎ)/x¼T1AÞú86p\u00881A_x0012_óÀ2þÀ1A_x0002__x0003_HÉÁV\u008dY1A_x000D_maÁ$/1A_x000C_F{TH\u00831Aê_x001C_ø1Í\"1Aª,¹g\u009e÷1Acãëáýº1A0öÐ¶¿_x0008_1AÇ\u008eÂý\u0093r1A¥_øZ\u008bs1AÌ_x0019_Ä¯Æ%1A7W_x0004_íÕc1AÉ*=4ÚT1A Ô>\u008eÙ`1A±µEÈÇ¢1AQÖðj(:1A;àzåë\u00951A8øw7uX1Aj_x0004_úÌX\u008f1Aó_x0017_q/ÄQ1ANH7ð:\u00991AWw?Â_x0001_{1Aàa_x0007__x001B_Àk1A´xfV©I1ABM\u0084·_x0002_b1A®3û_x000C_\u009fM1Au6KÅ\u008a\u008f1A\u0088\u007fná\u0093l1A_x000C_uM®vt1AS®*úÞ\u008e1A¥<íl$B1AD_x0003_f_x000B_oØ1A\u009b¶Æn_x0006__x0007_< 1A\u0090®ú\u0082ÓX1A_x001A__x000D__x0017__x000D_GÄ1AÙ.#f$W1A\u0094rSH_x001B_:1Aw\u0092ù`\u0080O1AÊ\u0085r(_x0013_81A\u0094_x0012_Y_K<1Aw.í½Du1AN_x0016__x0016_\u009a\u007f§1A_eQÎ¯\u008a1A÷U_x0005_,H^1Aéô(\u0088¸<1A\u0096_x0005_»x\u0080%1AÕHëá¨\u007f1Aª_x0003_çH\u0082S1A¶_x0015_{KÍU1Ai\u008d<_x0002__x001E_½1Aã_x000C_áO\u0098&1AT¦{¾\u0097j1AQÂHÍ¨î1A_x0012_k¸² K1A_x001E_\u0081_x0014_ÒÜa1A ^¸Òe_x001C_1ARì_x0001_d_k1Aù7×}n:1AbÜÞ÷\u0085_x0013_1AwL\u0091Ò'81AÍß\u0088Ñ¯_x0004_1AlÜ0\u008f\u009c\u00801Aþj­oxB1A_x001E_\u0084¯=*21A_x0001__x0002_xÃÐótö0Aô_x0019_¸\u0098ÿL1A:´Üí4B1Aê\u0085_x0003_¹5-1A¢_x000C_ÍÌ\u009d\\1AûÅ_x0012_\u009d¦¹1AÛ1ye¦91AÔ¤_x000C_{À;1A\u009ad\u0098_x0015__x0015_\u00881AÛ,\u0096ïz«1A_x001E_FI_ö\u00951A´æCYÔå0A?ÿl¢â_x001B_1A\u008fo«ãÓ\u00861AØ\u0087zÁ\u0097î1A¹ogqMi1Aq7_x0003_E}_x001B_1Aí_Àä¶y1APÄ_x0019_Ó%\u00801A°Ä_x0005_nO{1A_x0017_²Â0_x001B_W1A\u008bóàHäx1Aÿ\u009aâ!òz1A*ê¨_x0017_¡21A_òøL_x000E_¥1A_x0012_0\u0095\u008aw\u00861A_x000F_ÚÚ¿p\u008b1A+U_x0003_{²\\1AËrÂÞ>Y1Aþ!¦_x0008_Ax1AË:\u0091£°?1AFM|;_x0001__x0004_ËG1AE9A!\u008dn1A[ë%nÚd1A!\u0096e\u0094ò\u008d1A_x0013_ÝÕ¨? 1A(À_x0003_Aäu1A§VD_x000B_Ýn1Ac\t*sØ\u008d1Aéd_x0003_Å»Z1Aú\u009a(i\u008ek1A(Cä_x0002_\u009di1AèÔ_x0007_8ûÆ1A_x000F_+vÕòå1Aý3û_x000B__x0012_\u00851A\u0082²ã_x0014_ß_x000D_1ALKÒDkf1A\u0089Ê'´ð91AÌ[}ñ\"R1AÑ$äûL\u00921A_x0006_°yô'\u00841A'\têÚ\u009eb1A½\u008eÉa\u0096U1A_x0016_ò_x0016_Ó\u0091¼1A|\u0092_x000F_\u0092_x001E_\u00851AÒÙm\u008fJ,1AÝ-9AHB1AfyÍlã_x0013_1AL\u008e\"\u0089Wm1Aì\u0099+kFR1A6\u008e#7_x0002_a1A_x0004_,ôß\u0094>1Apd¬_x0016_ÚD1A_x0001__x0002_\u009fÓÎ\u009aul1A,\u009eÖ\u0086:n1AzH|j_x000F_f1AÀÆÏV8\\1Aæ~Ó\u0089ê_x0005_1AìÙmW_x0012_t1A2·ÑKøg1Aø¸À7\u008ei1A\u0080!{ß8©1AlÛãáj\u00961A$´ËKìL1A\u0098N\u0084Ë_x001C_\u00861Ah1ü½ëñ1A4×r3É&1Ac­²rû`1A¨7·\u0082_x0017_\u007f1AT´Òã¥i1AÂ?Yõa\u00861Al?ÝGv\u00941Ahìh¢«\u00801A]\u009a;\u0096Íh1ArHf_x0007_D\u008f1A\"Õ*üÕ`1Aeû¨X$-1Açª\u0093F_x0006_o1AR`\u009c_x0012_ÚW1ABó%á­\u0099"}},{"$cut":{"chars":108996,"head":"0aa69c1e3538a9558b54687909eae2b4_x0001__x0002_Ì\u0097_x0017__x0001_¨_x0010__x001E_AÌ\u0097_x0017__x0001_\u0088Â_x001D_AÌ\u0097_x0017__x0001_\u0088Â_x001D_AÌ\u0097_x0017__x0001_\u0088Â_x001D_AÌ\u0097_x0017__x0001_\u0088Â_x001D_AÌ\u0097_x0017__x0001_¨_x0010__x001E_AÌ\u0097_x0017__x0001_¨_x0010__x001E_AÌ\u0097_x0017__x0001_¨_x0010__x001E_AÌ\u0097_x0017__x0001_\u0088Â_x001D_AÌ\u0097_x0017__x0001_\u0088Â_x001D_AÌ\u0097_x0017__x0001_¨_x0010__x001E_AÌ\u0097_x0017__x0001_\u0088Â_x001D_AÌ\u0097_x0017__x0001_\u0088Â_x001D_AÌ\u0097_x0017__x0001_\u0088Â_x001D_AÌ\u0097_x0017__x0001_\u0088Â_x001D_AÌ\u0097_x0017__x0001_¨_x0010__x001E_AÌ\u0097_x0017__x0001_H _x001E_AÌ\u0097_x0017__x0001_\u0088Â_x001D_AÌ\u0097_x0017__x0001_¨_x0010__x001E_AÌ\u0097_x0017__x0001_\u0088Â_x001D_AÌ\u0097_x0017__x0001_\u0088Â_x001D_AÌ\u0097_x0017__x0001_\u0088Â_x001D_AÌ\u0097_x0017__x0001_\u0088Â_x001D_AÌ\u0097_x0017__x0001_¨_x0010__x001E_AÌ\u0097_x0017__x0001_\u0088Â_x001D_AÌ\u0097_x0017__x0001_¨_x0010__x001E_AÌ\u0097_x0017__x0001_\u0088Â_x001D_AÌ\u0097_x0017__x0001_\u0088Â_x001D_AÌ\u0097_x0017__x0001_\u0088Â_x001D_AÌ\u0097_x0017__x0001_\u0088Â_x001D_AÌ\u0097_x0017__x0001_\u0088Â_x001D_AÌ\u0097_x0017__x0001__x0001__x0002_¨_x0010__x001E_AÌ\u0097_x0017__x0001_\u0088Â_x001D_AÌ\u0097_x0017__x0001_\u0088Â_x001D_AÌ\u0097_x0017__x0001_¨_x0010__x001E_AÌ\u0097_x0017__x0001_\u0088Â_x001D_AÌ\u0097_x0017__x0001_\u0088Â_x001D_AÌ\u0097_x0017__x0001_\u0088Â_x001D_AÌ\u0097_x0017__x0001_¨_x0010__x001E_AÌ\u0097_x0017__x0001_È^_x001E_AÌ\u0097_x0017__x0001_\u0088Â_x001D_AÌ\u0097_x0017__x0001_\u0088Â_x001D_AÌ\u0097_x0017__x0001_\u0088Â_x001D_AÌ\u0097_x0017__x0001_\u0088Â_x001D_AÌ\u0097_x0017__x0001_Èá_x001D_AÌ\u0097_x0017__x0001_\u0088Â_x001D_AÌ\u0097_x0017__x0001_È^_x001E_AÌ\u0097_x0017__x0001_\u0088Â_x001D_AÌ\u0097_x0017__x0001_\u0088Â_x001D_AÌ\u0097_x0017__x0001_\u0088Â_x001D_AÌ\u0097_x0017__x0001_\u0088Â_x001D_AÌ\u0097_x0017__x0001_\u0088Â_x001D_AÌ\u0097_x0017__x0001_\u0088Â_x001D_AÌ\u0097_x0017__x0001_¨_x0010__x001E_AÌ\u0097_x0017__x0001_¨_x0010__x001E_AÌ\u0097_x0017__x0001_\u0088Â_x001D_AÌ\u0097_x0017__x0001_È^_x001E_AÌ\u0097_x0017__x0001_\u0088Â_x001D_AÌ\u0097_x0017__x0001_¨_x0010__x001E_AÌ\u0097_x0017__x0001_\u0088Â_x001D_AÌ\u0097_x0017__x0001_¨_x0010__x001E_AÌ\u0097_x0017__x0001_\u0088Â_x001D_AÌ\u0097_x0017__x0001_H _x001E_A_x0001__x0002_Ì\u0097_x0017__x0001_\u0088Â_x001D_AÌ\u0097_x0017__x0001_¨_x0010__x001E_AÌ\u0097_x0017__x0001_\u0088Â_x001D_AÌ\u0097_x0017__x0001_\u0088Â_x001D_AÌ\u0097_x0017__x0001_\u0088Â_x001D_AÌ\u0097_x0017__x0001_\u0088Â_x001D_AÌ\u0097_x0017__x0001_\u0088Â_x001D_AÌ\u0097_x0017__x0001_\u0088Â_x001D_AÌ\u0097_x0017__x0001_\u0088Â_x001D_AÌ\u0097_x0017__x0001_\u0088Â_x001D_AÌ\u0097_x0017__x0001_\u0088Â_x001D_AÌ\u0097_x0017__x0001_¨_x0010__x001E_AÌ\u0097_x0017__x0001_¨_x0010__x001E_AÌ\u0097_x0017__x0001_\u0088Â_x001D_AÌ\u0097_x0017__x0001_\u0088Â_x001D_AÌ\u0097_x0017__x0001_\u0088Â_x001D_AÌ\u0097_x0017__x0001_\u0088Â_x001D_AÌ\u0097_x0017__x0001_\u0088Â_x001D_AÌ\u0097_x0017__x0001_\u0088Â_x001D_AÌ\u0097_x0017__x0001_\u0088Â_x001D_AÌ\u0097_x0017__x0001_È^_x001E_AÌ\u0097_x0017__x0001_\u0088Â_x001D_AÌ\u0097_x0017__x0001_¨_x0010__x001E_AÌ\u0097_x0017__x0001_¨_x0010__x001E_AÌ\u0097_x0017__x0001_\u0088Â_x001D_AÌ\u0097_x0017__x0001_È^_x001E_AÌ\u0097_x0017__x0001_¨_x0010__x001E_AÌ\u0097_x0017__x0001_\u0088Â_x001D_AÌ\u0097_x0017__x0001_\u0088Â_x001D_AÌ\u0097_x0017__x0001_¨_x0010__x001E_AÌ\u0097_x0017__x0001_¨_x0010__x001E_AÌ\u0097_x0017__x0001__x0001__x0002_\u0088Â_x001D_AÌ\u0097_x0017__x0001_¨_x0010__x001E_AÌ\u0097_x0017__x0001_¨_x0010__x001E_AÌ\u0097_x0017__x0001_\u0088Â_x001D_AÌ\u0097_x0017__x0001_¨_x0010__x001E_AÌ\u0097_x0017__x0001_\u0088Â_x001D_AÌ\u0097_x0017__x0001_¨_x0010__x001E_AÌ\u0097_x0017__x0001_\u0088Â_x001D_AÌ\u0097_x0017__x0001_\u0088Â_x001D_AÌ\u0097_x0017__x0001_\u0088Â_x001D_AÌ\u0097_x0017__x0001_\u0088Â_x001D_AÌ\u0097_x0017__x0001_\u0088Â_x001D_AÌ\u0097_x0017__x0001_\u0088Â_x001D_AÌ\u0097_x0017__x0001_\u0088Â_x001D_AÌ\u0097_x0017__x0001_\u0088Â_x001D_AÌ\u0097_x0017__x0001_\u0088Â_x001D_AÌ\u0097_x0017__x0001_\u0088Â_x001D_AÌ\u0097_x0017__x0001_\u0088Â_x001D_AÌ\u0097_x0017__x0001_\u0088Â_x001D_AÌ\u0097_x0017__x0001_\u0088Â_x001D_AÌ\u0097_x0017__x0001_\u0088Â_x001D_AÌ\u0097_x0017__x0001_H\u0097_x001F_AÌ\u0097_x0017__x0001_\u0088Â_x001D_AÌ\u0097_x0017__x0001_\u0088Â_x001D_AÌ\u0097_x0017__x0001_\u0088Â_x001D_AÌ\u0097_x0017__x0001_\u0088Â_x001D_AÌ\u0097_x0017__x0001_\u0088Â_x001D_AÌ\u0097_x0017__x0001_\u0088Â_x001D_AÌ\u0097_x0017__x0001_\u0088Â_x001D_AÌ\u0097_x0017__x0001_\u0088Â_x001D_AÌ\u0097_x0017__x0001_\u0088Â_x001D_AÌ\u0097_x0017__x0001_\u0088Â_x001D_A_x0001__x0002_Ì\u0097_x0017__x0001_¨_x0010__x001E_AÌ\u0097_x0017__x0001_¨_x0010__x001E_AÌ\u0097_x0017__x0001_\u0088Â_x001D_AÌ\u0097_x0017__x0001_¨_x0010__x001E_AÌ\u0097_x0017__x0001_\u0088Â_x001D_AÌ\u0097_x0017__x0001_\u0088Â_x001D_AÌ\u0097_x0017__x0001_¨_x0010__x001E_AÌ\u0097_x0017__x0001_¨_x0010__x001E_AÌ\u0097_x0017__x0001_\u0088Â_x001D_AÌ\u0097_x0017__x0001_\u0088Â_x001D_AÌ\u0097_x0017__x0001_\u0088Â_x001D_AÌ\u0097_x0017__x0001_\u0088Â_x001D_AÌ\u0097_x0017__x0001_¨_x0010__x001E_AÌ\u0097_x0017__x0001_\u0088Â_x001D_AÌ\u0097_x0017__x0001_\u0088Â_x001D_AÌ\u0097_x0017__x0001_¨_x0010__x001E_AÌ\u0097_x0017__x0001_¨_x0010__x001E_AÌ\u0097_x0017__x0001_\u0088Â_x001D_AÌ\u0097_x0017__x0001_¨_x0010__x001E_AÌ\u0097"}},{"$cut":{"chars":87624,"head":"c88f74399673f97d56664312cf4a773a_x0001__x0002_[|_x0002__x0001_N_x001D_ A¶ø_x0014__x0001_|ì_x001F_A[|_x0002__x0001_N_x001D_ A[|_x0002__x0001_N_x001D_ A[|_x0002__x0001_N_x001D_ A¶ø_x0014__x0001_|ì_x001F_A¶ø_x0014__x0001_|ì_x001F_A¶ø_x0014__x0001_|ì_x001F_A¶ø_x0014__x0001_|ì_x001F_A¶ø_x0014__x0001_|ì_x001F_A¶ø_x0014__x0001_|ì_x001F_A[|_x0002__x0001_N_x001D_ A¶ø_x0014__x0001_|ì_x001F_A¶ø_x0014__x0001_|ì_x001F_A¶ø_x0014__x0001_|ì_x001F_A[|_x0002__x0001_N_x001D_ A¶ø_x0014__x0001_|ì_x001F_A¶ø_x0014__x0001_|ì_x001F_A¶ø_x0014__x0001_|ì_x001F_A¶ø_x0014__x0001_|ì_x001F_A[|_x0002__x0001_N_x001D_ A¶ø_x0014__x0001_|ì_x001F_A¶ø_x0014__x0001_|ì_x001F_A¶ø_x0014__x0001_|ì_x001F_A[|_x0002__x0001_N_x001D_ A¶ø_x0014__x0001_|ì_x001F_A[|_x0002__x0001_N_x001D_ A¶ø_x0014__x0001_|ì_x001F_A¶ø_x0014__x0001_|ì_x001F_A¶ø_x0014__x0001_|ì_x001F_A¶ø_x0014__x0001_|ì_x001F_A¶ø_x0014__x0001__x0001__x0002_|ì_x001F_A¶ø_x0014__x0001_|ì_x001F_A¶ø_x0014__x0001_|ì_x001F_A[|_x0002__x0001_î, A[|_x0002__x0001_N_x001D_ A¶ø_x0014__x0001_|ì_x001F_A¶ø_x0014__x0001_|ì_x001F_A¶ø_x0014__x0001_|ì_x001F_A¶ø_x0014__x0001_|ì_x001F_A[|_x0002__x0001__x001E_% A¶ø_x0014__x0001_|ì_x001F_A[|_x0002__x0001_Þ_x0005_ A¶ø_x0014__x0001_|ì_x001F_A¶ø_x0014__x0001_|ì_x001F_A¶ø_x0014__x0001_|ì_x001F_A[|_x0002__x0001_N_x001D_ A¶ø_x0014__x0001_|ì_x001F_A¶ø_x0014__x0001_|ì_x001F_A[|_x0002__x0001_N_x001D_ A[|_x0002__x0001_Þ_x0005_ A¶ø_x0014__x0001_|ì_x001F_A¶ø_x0014__x0001_|ì_x001F_A¶ø_x0014__x0001_|ì_x001F_A¶ø_x0014__x0001_|ì_x001F_A¶ø_x0014__x0001_|ì_x001F_A¶ø_x0014__x0001_|ì_x001F_A¶ø_x0014__x0001_|ì_x001F_A¶ø_x0014__x0001_|ì_x001F_A¶ø_x0014__x0001_|ì_x001F_A[|_x0002__x0001_N_x001D_ A[|_x0002__x0001_N_x001D_ A¶ø_x0014__x0001_|ì_x001F_A_x0001__x0002_¶ø_x0014__x0001_|ì_x001F_A¶ø_x0014__x0001_|ì_x001F_A¶ø_x0014__x0001_|ì_x001F_A[|_x0002__x0001_î, A¶ø_x0014__x0001_|ì_x001F_A¶ø_x0014__x0001_|ì_x001F_A¶ø_x0014__x0001_|ì_x001F_A¶ø_x0014__x0001_|ì_x001F_A¶ø_x0014__x0001_|ì_x001F_A¶ø_x0014__x0001_|ì_x001F_A[|_x0002__x0001_î, A[|_x0002__x0001_N_x001D_ A¶ø_x0014__x0001_|ì_x001F_A¶ø_x0014__x0001_|ì_x001F_A¶ø_x0014__x0001_|ì_x001F_A¶ø_x0014__x0001_|ì_x001F_A[|_x0002__x0001_N_x001D_ A¶ø_x0014__x0001_|ì_x001F_A¶ø_x0014__x0001_|ì_x001F_A¶ø_x0014__x0001_|ì_x001F_A¶ø_x0014__x0001_|ì_x001F_A¶ø_x0014__x0001_|ì_x001F_A¶ø_x0014__x0001_|ì_x001F_A¶ø_x0014__x0001_|ì_x001F_A[|_x0002__x0001_Þ_x0005_ A¶ø_x0014__x0001_|ì_x001F_A¶ø_x0014__x0001_|ì_x001F_A¶ø_x0014__x0001_|ì_x001F_A¶ø_x0014__x0001_|ì_x001F_A¶ø_x0014__x0001_|ì_x001F_A¶ø_x0014__x0001_|ì_x001F_A¶ø_x0014__x0001__x0001__x0002_|ì_x001F_A¶ø_x0014__x0001_|ì_x001F_A¶ø_x0014__x0001_|ì_x001F_A¶ø_x0014__x0001_|ì_x001F_A[|_x0002__x0001_N_x001D_ A¶ø_x0014__x0001_|ì_x001F_A¶ø_x0014__x0001_|ì_x001F_A[|_x0002__x0001_~_x0015_ A¶ø_x0014__x0001_|ì_x001F_A¶ø_x0014__x0001_|ì_x001F_A¶ø_x0014__x0001_|ì_x001F_A¶ø_x0014__x0001_|ì_x001F_A[|_x0002__x0001_N_x001D_ A[|_x0002__x0001_N_x001D_ A¶ø_x0014__x0001_|ì_x001F_A¶ø_x0014__x0001_|ì_x001F_A[|_x0002__x0001_>s A¶ø_x0014__x0001_|ì_x001F_A[|_x0002__x0001_N_x001D_ A¶ø_x0014__x0001_|ì_x001F_A¶ø_x0014__x0001_|ì_x001F_A¶ø_x0014__x0001_|ì_x001F_A[|_x0002__x0001_N_x001D_ A¶ø_x0014__x0001_|ì_x001F_A¶ø_x0014__x0001_|ì_x001F_A¶ø_x0014__x0001_|ì_x001F_A[|_x0002__x0001_N_x001D_ A¶ø_x0014__x0001_|ì_x001F_A[|_x0002__x0001_î, A¶ø_x0014__x0001_|ì_x001F_A[|_x0002__x0001_N_x001D_ A¶ø_x0014__x0001_|ì_x001F_A_x0001__x0002_¶ø_x0014__x0001_|ì_x001F_A[|_x0002__x0001_N_x001D_ A¶ø_x0014__x0001_|ì_x001F_A¶ø_x0014__x0001_|ì_x001F_A¶ø_x0014__x0001_|ì_x001F_A¶ø_x0014__x0001_|ì_x001F_A¶ø_x0014__x0001_|ì_x001F_A¶ø_x0014__x0001_|ì_x001F_A[|_x0002__x0001_N_x001D_ A¶ø_x0014__x0001_|ì_x001F_A[|_x0002__x0001_N_x001D_ A¶ø_x0014__x0001_|ì_x001F_A¶ø_x0014__x0001_|ì_x001F_A¶ø_x0014__x0001_|ì_x001F_A¶ø_x0014__x0001_|ì_x001F_A[|_x0002__x0001_N_x001D_ A[|_x0002__x0001_N_x001D_ A¶ø_x0014__x0001_|ì_x001F_A¶ø_x0014__x0001_|ì_x001F_A¶ø_x0014__x0001_|ì_x001F_A¶ø_x0014__x0001_|ì_x001F_A¶ø_x0014__x0001_|ì_x001F_A¶ø_x0014__x0001_|ì_x001F_A¶ø_x0014__x0001_|ì_x001F_A[|_x0002__x0001_N_x001D_ A[|_x0002__x0001_î, A¶ø_x0014__x0001_|ì_x001F_A¶ø_x0014__x0001_|ì_x001F_A[|_x0002__x0001_\u009eà A¶ø_x00"}},{"$cut":{"chars":120558,"head":"053b20328ca57d53cd8d24df6688209d_x0002__x0003_ÒN_x0015_²>µ AçD;ù\u0088· A\u0080¤60f¨ Af\u008f\u0083ûc\u009b A_x0017_\t\u009a\u0086!x AÔ\u008d0¨äi A>Ï2j_x0004_\u0096 A¤5á\u007f9\u0090 AÛ$Å`õo A´_x000E_ê_x0011_¡\u0090 A¤k+³å\u0086 A%ÜØZÄd A_x0002_g_x0007_ÿ¢\u0081 AÀM\u009fÓÛ\u0094 AÎ¨j_x0012__x001D_£ A2X'G\u0086\u0094 A\u009c\u008dñ_x000D_Xy Ao±´\u0096\u007f  Aúb3\u009f5\u008e A vB_x0004_\u0080\u007f Atyr\u008d2\u0088 ANó\u009cdÕÄ AÂ0'>1¦ A^Û,¼\u007f\u0085 A\u0092§@_x001E__x0018_º A|Åå_x0007_¹\\ Aa_x0006_mì_x0015_£ A._x0013_µu\u0083\u0099 AÊ_ßDñ¯ Af;\u0091£w\u009e Aë\u0085_x0012_1ñ{ A7s_x000F__x0001__x0001__x0003_]\u0090 AQ½_x000E_:³\u009e Aê_x0003_O·\u0092¡ Aà_x0008_\u009a_x0018_G\u008a A¢ì_x0003_xÞ~ AB¤Ñv´\u009b A ·ª_x0016_W± A_x0012_01È\u008a} A·_x0005__³3\u0087 AÝÒ®êN\u009e AÜ_x0019_í_x0002_.\u0089 A uÎÓ L AZÐÿ{þ~ AnÀý_x000F_ÿ~ ApÒ¯Þg\u009c Ah_x0008_\u0080g_x0002_w Aúâ\u0081#@e A>\u0083\u0091ßÛÁ A\u0099x`&_x0004_¤ AÝ¬_x000E_\u0095õÂ AÄ\u0099¢ ~\u008d A¹Á±ø9Ó Aþ_x001A_²Ô»¾ AE*ä\u00800\u009e A_x0010_Ñã\tµ\u0092 Aãl¿|P¡ AÁ<\u009b÷\u0095\u009d AÈKS9\u0088\u0094 Aµ,ë³%\u0092 AÂY^\u0089êc A\u0088_x0012_ó¾\u0081© AÐÚêE_x000C_Ç A_x0001__x0003_\u0094Ô´Â_x000F_î AY_x0008_Ã_x0008_ß~ A<|ôRèÇ A~w_x001D_P[z A{_x0008_d\u0086x\u008d A~Hs\u0090õ\u0089 A\u0096ºo_x0002_g³ A|Ú\u008bOö¹ AÎ£¡_x0017_=­ A_x0010_Â\u0098åä\u009c A\u0087w{E-À A.]·dí¤ A¦\u00880eç\u0083 A_x001A_å\u0093ù²t A®ÿ\u0092õÈ¼ A\u0086?2¯k¢ A¤ñò*ï\u0082 A^\u0083ûïé¯ AÃå_x0001_t\u0089m A\u008e¼Z\u0081Ûo A¶ë\u00946_x000F_\u0092 AÌ9´¬_x001C_\u009a A_x0014__x000F_ÔçC\u007f A¶¡«_x000B_À\u0083 AjSFIuÃ A_x0001_åx\u009a³¬ AÓ{ -¬\u0097 AÞ7_x0007_U@\u0094 A}\u0080Á7\\§ A\\ú_x0018__x001D_Ü­ A[{u^É\u009c Au\u0092\ta_x0001__x0002_ôÌ A`0ð6.Â Aò=é|¤\u009e A\u0084Yu_x0002_?\u0080 AÂLiêD« AF,7i_x0011_\u0081 A,Öò[/\u0091 Ax_x0003__x001F_`+¼ AòÚ_x001B_«\t\u0080 Aòï«å¹\u008d A(_x000B_×º_x000B_¹ AâH9Ôb\u0091 A~ë\u0093àî\u0099 A7&÷]_x001E_| A\u0089¼`ú_x0010_p A~syñÇ¬ AvÙ<ÁP\u008d A_x0006_MçîU¥ AXtów¿\u0091 A%\u009aZu-i Aj¾_x001F_BÞt A\\nÅ¥ç¬ A¿Qa_x0007_\\\u0083 AÊîûï]n A¶\u0093ÖB{t A6_x0017_hn\u009f] A½\u009a½h\u0080\u0095 Aû\u009e­i_x0017_p ANIi\u0083¹¡ A3_x000B_7à\u009a\u0089 A¼i%ÂC] A\u0086_x0012_Fz_x000E_¦ A_x0001__x0002_J_x000F_S_x0012_.À AÞ\u009eu#ö\u009d A_¾¯C{¢ AäïÑA\u008cb A\u0093 _x000E_®d£ AÍZêÑ_x0003_\u0087 A+_x000E_G¿\u0086Á AòApºe\u0089 A«a\u008a±ýc A`©¯Ùq\u0092 Aàg=Ã-Ç A\u0088\u008f\u0084«û_ A\u009a_x000C_jþÂ  A[_x001B_áå2³ A_x0010_î­³\u009f\u0090 AÄov_x000F_¾\u009b A5\u007f_õ\u009c\u009a A\u0088%Õfzá A,ÄYZYá Aæ}º_x0014_\u009e\u009f A6\u00842\u008bPÁ A\u0093¾I­Ð\u008f Aûcé­õ\u0087 A¨°e_x0005_e\u009f Aª\u0091_x0017_®_x0005_³ AY#CûJ\u008b A¼JLI_x0012_\u0090 Aà®/Í{n Aôì­zÝ¡ Aj_x001A_Wô_x0005_È A\u009cIY»6\u0083 A3Üh-_x0001__x0002_\u008e£ A_x001A_©q½\u0086\u008a AMëx_x000C_\u0097\u0089 A/_x0016_9_x0001_£\u008d A\u0088_x000E_7¤-² AL\u0097´ð\u0086° A\\ñ\u008f4D  A\u0092Ý»i½¤ AÍå~¼#\u009d A\u0092V\u007fsh« A#÷C_x0010_²\u008e Ab$ü§\u009b\u009d A_x0006_C\u008càÁ¤ A\"/#Êê¹ A!¶\u008bFms Aç¿8y\u0088Ñ AH5\u009d\u0097\u0085¤ ALÔÀ.=¸ An;àAc¾ Axlªðµ\u0081 A<\u0089_x0012__x0013_âk Aâ&_x0018_¥F\u009b A\u009cÍÎTBm A_x0004_}\u0096·©\u008e Aâ{¸B_x0017_\u0099 A\u0086\u0098ï_x0017_3\u009b A#(@­²¢ Aá1>»_x0011_Æ AÜÏ2!þ® AìE\u0089´\u0081¨ AÀ«_x0015_J\\} A_x0011__x0013_\u0097$Êº A_x0002__x0003_pÄGÕì\u009b AØ_x0015_VU{® A\"¸÷_x001B__x0007_\u0087 Aí¬[EÍ\u0084 A\")_x001C__x0003_Î\u0082 AÄs\u009e\u009dQÁ Ab_x0008_R\u009fv\u009d AØ\u008eÞöÃ¨ Aþ\u0085³¨\"¼ Ap¸\u0089^G© A\u0083ur²_x001D_\u0082 Akø\u0087C}\u008e Añ¸_x0019_Aû\u008c A±sýtø\u0094 Aö#\u0089ÌÛ^ AÌ_x000C_ä1AÅ A\u009c\u009cµ\u0097\u0083\u0093 A_x000B__x001B_\u008e¿_x000D_£ Aâ`\u0087·j· A\u0089{\u008eU¸« AÐ_x0017_\u00960Ò\u009c A`©s_x0005_\u0095\u009a A_x0003_[\u0085g-\u0086 A1Î\u0087ñC\u009c ABÕþöß\u0097 A8\\ÄZ_x0001_\u009c AËèáBäÆ A\u008e\u0080_x0006_TÈ\u0091 A*úxØîx AJô\u0091ë/\u007f A_x001F__x000D_½o\u0080Ã A\u0098i1_x000F__x0001__x0002_r\u0091 Aî_x001D_í+_x0019_´ A_x0014__x000E_X\u008b\u007fÉ AË\u0080\u0089½½\u008e A,¯Ðeíp Aó]¢µ_x000D_\u007f A_x0012_d_x000D__x0012_\u008c\u0098 AP\u0092,v_x0003_\u0088 A2f\u0085#Ö\u0095 AÖ)k\u0099B­ A\u0082|_x0003__x0004_²« AÊ&_x0016__x0011_À\u0080 A_\u0082üT_x0008_° AÑ­ÎÜ_x0007_a A+y&\u0099½º A_x000B_ô¬w_x000F_\u0081 AbWë\u0097Ö\u0093 A\u009c3¶\"Ó¸ A\u0084'_x0019__x000D_\u0080\u008e A_x001C_'¼Ô\u0091ª A¬I Êö¥ A¯UòXu\u009c A¸@Ð_x001F_4\u009e AÓ\u009b\u009eUË\u0093 A\u009c_x0011_mì_x0005_§ A_x0004_ò¨Pr° A9õ°û_x001F_\u009b Aö_x0016_æëÛ\u0087 Atóy_x0013_\u008eÆ A¾ÀU±_x0006_\u009d A_x001D_\u009b\u008ai#  AER_x0019_:¹¡ A_x0001__x0003_o9j\u0092é\u0099 A\u0092_x0011_ÁÅ!Ú AD+%Å_x001D_\u0098 A_x0018_PuÐV\u008f AÊö_x0011_·µ\u0098 At_x0005_ñzê\u009c A\\ûi¼}n AP\"ÿ\u0097b² A\u0099¾}éQ¹ A5.aCN© A?Öaéâ® AÄ_x0014_\u0083H5¦ A;RØ_x000B_\u0090m A_x001E__x000D_÷\u007fK\u0089 A\u00835É-Ö¨ A@Ò¥0(³ A_x0002__x0008_¡êÜ¨ A9\u0089t?Ù\u0096 AÓÄ@Þ_x000D_² Aú_x0015_±1/\u009b A@¸Y\u0098>q A6H_x0019_((| Aàt-\u0094õ\u0089 Aä¿Õ\u008f^À Aí\u008bäör² Aà;_x001C_øh\u0099 A:\u008fT©8´ Abþ_x0010__x000B_.\u009e A\u009c\tlH_x000F_\u0096 Aæ¶ð\u0092\u0090Á A,_x0018_ñN_x000B_\u0083 A¹Ú_x0015_?_x0005__x0006_\u0082Á A`\u009a¼[¥Û AÂø_x000C_J_x0007_\u0099 A1úkc¡¦ A6ÆF_x0002_ÿ\u0081 Aúæ^:¿\u009f AÊl\u008füÁ\u009b AüLË_x0007_òx AÜ¸M\\_x0003_\u0084 Aå6Ó\u0084ûp A\u0086dÛÍýt Añþ_x0010_(À¤ A\u0095*_x0010_é¼] Ae2 Ì_x0002_\u009f A7ÈUþ\u009e¡ AM¯[1¢Å A_x0007_\u008f_x0004_}_x0004_{ A_x0008_6\u009bWü¶ A¯AÈÚl\u0086 A>Ú\u008cK\u008b¡ AZ6ZHG\u0080 A¡_x0011_n¸_x000E_\u0093 A_x0006_\u0085\\ôvµ A¶_x0004_\u0081rj\u009a AöÚ_x0011_1Äh Aá_x0018_õ\u0087_x0001_r A_x0008_Ä¹~8§ A·pÆðÛl ADq_x000F_NK  A:É6\\s§ Aþ(\u0082f»Ä A_x001C_÷þÜûp A_x0001__x0003_(\"ôR7\u0090 A_x0008_:n%'\u0097 Aõ(·¦û\u0099 AÒ°XB_x0016_Ø Aé\u0088Ó\u00838³ A¡²ýs_x0013_\u0091 ArÞ_x0013_®\u008fs A7¤zÐpÅ Aú6\u0093\u0084sp AÖJ£áë\u009f Al_x000D_v_x0002_¢n AÓI¾x\u009f| A¢S\u0098TE\u009c A_x0014_\u0094_x001E_>\u0099û A¼P\u008f_x0011_ÝÃ A¨ôîT_j AÒÒ"}},{"$cut":{"chars":216936,"head":"304f3662c2b408f2090705ff52cf8c22_x0001__x0002__x0001__x0001__x0001__x0001__x0001__x0001__x0001__x0001__x0001__x0001__x0001__x0001__x0001__x0001__x0001__x0001__x0001__x0001__x0001__x0001__x0001__x0001__x0001__x0001__x0001__x0001__x0001__x0001__x0001__x0001__x0001__x0001__x0001__x0001__x0001__x0001__x0001__x0001__x0001__x0001__x0001__x0001__x0001__x0001__x0001__x0001__x0001__x0001__x0001__x0001__x0001__x0001__x0001__x0001__x0001__x0001__x0001__x0001__x0001__x0001__x0001__x0001__x0001__x0001__x0001__x0001__x0001__x0001__x0001__x0001__x0001__x0001__x0001__x0001__x0001__x0001__x0001__x0001__x0001__x0001__x0001__x0001__x0001__x0001__x0001__x0001__x0001__x0001__x0001__x0001__x0001__x0001__x0001__x0001__x0001__x0001__x0001__x0001__x0001__x0001__x0001__x0001__x0001__x0001__x0001__x0001__x0001__x0001__x0001__x0001__x0001__x0001__x0001__x0001__x0001__x0001__x0001__x0001__x0001__x0001__x0001__x0001__x0001__x0001__x0001__x0001__x0001__x0001__x0001__x0001__x0001__x0001__x0001__x0001__x0001__x0001__x0001__x0001__x0001__x0001__x0001__x0001__x0001__x0001__x0001__x0001__x0001__x0001__x0001__x0001__x0001__x0001__x0001__x0001__x0001__x0001__x0001__x0001__x0001__x0001__x0001__x0001__x0001__x0001__x0001__x0001__x0001__x0001__x0001__x0001__x0001__x0001__x0001__x0001__x0001__x0001__x0001__x0001__x0001__x0001__x0001__x0001__x0001__x0001__x0001__x0001__x0001__x0001__x0001__x0001__x0001__x0001__x0001__x0001__x0001__x0001__x0001__x0001__x0001__x0001__x0001__x0001__x0001__x0001__x0001__x0001__x0001__x0001__x0001__x0001__x0001__x0001__x0001__x0001__x0001__x0001__x0001__x0001__x0001__x0001__x0001__x0001__x0001__x0001__x0001__x0001__x0001__x0001__x0001__x0001__x0001__x0001__x0001__x0001__x0001__x0001__x0001__x0001__x0001__x0001__x0001__x0001__x0001__x0001__x0001__x0001__x0001__x0001__x0001__x0001__x0001__x0001__x0001__x0002__x0001__x0001__x0001__x0001__x0001__x0001__x0001__x0001__x0001__x0001__x0001__x0001__x0001__x0001__x0001__x0001__x0001__x0001__x0001__x0001__x0001__x0001__x0001__x0001__x0001__x0001__x0001__x0001__x0001__x0001__x0001__x0001__x0001__x0001__x0001__x0001__x0001__x0001__x0001__x0001__x0001__x0001__x0001__x0001__x0001__x0001__x0001__x0001__x0001__x0001__x0001__x0001__x0001__x0001__x0001__x0001__x0001__x0001__x0001__x0001__x0001__x0001__x0001__x0001__x0001__x0001__x0001__x0001__x0001__x0001__x0001__x0001__x0001_@\u008f@_x0001__x0001__x0001__x0001__x0001__x0001__x0001__x0001__x0001__x0001__x0001__x0001__x0001__x0001__x0001__x0001__x0001__x0001__x0001__x0001__x0001__x0001__x0001__x0001__x0001__x0001__x0001__x0001__x0001__x0001__x0001__x0001__x0001__x0001__x0001__x0001__x0001__x0001__x0001__x0001__x0001__x0001__x0001__x0001__x0001__x0001__x0001__x0001__x0001__x0001__x0001__x0001__x0001__x0001__x0001__x0001__x0001__x0001__x0001__x0001__x0001__x0001__x0001__x0001__x0001__x0001__x0001__x0001__x0001__x0001__x0001__x0001__x0001__x0001__x0001__x0001__x0001__x0001__x0001__x0001__x0001__x0001__x0001__x0001__x0001__x0001__x0001__x0001__x0001__x0001__x0001__x0001__x0001__x0001__x0001__x0001__x0001__x0001__x0001__x0001__x0001__x0001__x0001__x0001__x0001__x0001__x0001__x0001__x0001__x0001__x0001__x0001__x0001__x0001__x0001__x0001__x0001__x0001__x0001__x0001__x0001__x0001__x0001__x0001__x0001__x0001__x0001__x0001__x0001__x0001__x0001__x0001__x0001__x0001__x0001__x0001__x0001__x0001__x0001__x0001__x0001__x0001__x0001__x0001__x0001__x0001__x0001__x0001__x0001__x0001__x0001__x0001__x0001__x0001__x0001__x0001__x0001__x0001__x0001__x0001__x0001__x0001__x0001__x0001__x0001__x0001__x0001__x0001__x0001__x0001__x0001__x0001__x0001__x0001__x0001__x0001__x0001__x0002__x0001__x0001__x0001__x0001__x0001_@\u008f@_x0001__x0001__x0001__x0001__x0001__x0001__x0001__x0001__x0001__x0001__x0001__x0001__x0001__x0001__x0001__x0001__x0001__x0001__x0001__x0001__x0001__x0001__x0001__x0001__x0001__x0001__x0001__x0001__x0001__x0001__x0001__x0001__x0001__x0001__x0001__x0001__x0001__x0001__x0001__x0001__x0001__x0001__x0001__x0001__x0001__x0001__x0001__x0001__x0001__x0001__x0001__x0001__x0001__x0001__x0001__x0001__x0001__x0001__x0001__x0001__x0001__x0001__x0001__x0001__x0001__x0001__x0001__x000"}},{"$cut":{"chars":80052,"head":"dd07d4541e586fdb793386c9de04ee98_x0001__x0007_f<ì~S\u0097ï@_x0006__x0014_(v\u0080ªï@v¾\u009b\u008f¨_x0003_ð@Kü\u0087ªÐ¼ï@l\u0094_x0001_\u008e_x001E_Ñï@°_x001C_Câ_x0008_Iï@{dtE_x000F_¾ï@80Åz_x0001_­ï@\"¸¥ê¤Îï@ÎúÊF°_x001C_ï@Êv¹ý\u0097¤ï@_x0007_¬ÈQM»ï@_x0003_\u00933¶¡¾ï@^T¡¼Y_x0005_ï@ÚS«¡\u0097_x0008_ï@»\\_x0015_GÁ\u009dï@ý\u0091*\u008e6\u0085ï@^_x0004_ãª®Uï@!-çh\u0099_x0010_ð@Òù_x0011_t_¿ï@UÎîÇA\u0082ï@zò\u0089_x000D__x0002_¾ï@\u009cÛTj/Zð@/d\u0088¼Xäï@j\u0080>Ì_x0013_Ùî@êòá_x0002_ì\u009bï@ªÉp\u007fð\"ð@º4àÄ\u0088íï@_x0012_T_x0016_§q_x000E_ð@ºA_x0005_\u0089½¬ï@ºð\u008dï^¿ï@±_x0007_ãÛ_x0002__x0003_\u008f_x0014_ð@2&'Î\u0085_x0019_ð@û\"_x0016__x0010__x0015_Ñî@¹¶ÿ·3æï@/Q6p\u0081Àï@h\u0088v\u009c°¢ï@16\u008a¶g6ï@bè_´¯\u0084ï@.¸X=_x0004_Éï@\u0098S\u0090ò_x0007_<ï@°ïè*¨àï@`²Ø\u009bkCï@è_x0002_4!_x0007_Óî@ü¯{}\u0088)ð@ê\u009a^ø\u008c°ï@;­ª_x0017_âòï@b_À_x001B_bøî@«\u009eÎHÐþî@M'XÔ_x0008_Ãï@%9$\u0088\u0096/ð@ü\u009avíX_x000C_ð@P_x0015__x000E_ñ_x0001_)ð@¤V_x0014_Ñ\u0086_x0007_ð@½·\u008c\u0082yðï@êp\u0087£×­ï@Zï_x0004_\"Vjï@4càU_x001B_\"ï@Ìã©è½_x0006_ï@C×åÝÓ_x0016_ð@øc®g²½ï@Àöyó3¦ï@ÃPB£ñÉï@_x0002__x0003_:\u007fð_x0018_ý1ð@_x001E_<q\u0092k:ï@rÅ_x0017_)/1ð@/òÅ7ýòï@BpÉÖÑWð@\u0099\u0088®#MUï@x=º7¹iï@\u0098£K^Ë_x001B_ð@&²tñy²ï@¸âÚØH0ï@\\\u009d¥_x0010__x0003_Õï@Ú÷p\u0098Å_x0001_ð@]<\u0092yßoï@c\u00828\u0098¢lï@b~´*NKð@ÀGßc³ ð@¢¨\u0082Ê_x0010_Gï@_x000D_V!i_x001B_)ð@û®\u0097Á_x0014_\tð@öó\u008fm_x0008__x001E_ð@_x0006_\u009d_x001C_Ôw½ï@'FMëo­ï@_x0002_^´áÞ\u0080ï@_x0004_ýÏ¦t1ð@)Âí½_x000D_\u0081ï@¢'\u0085q ±ï@(\u009b¡ ØÁï@PnæMÓ3ð@6\\_x000E_9:\\ð@¤ÈçP\u009dûï@Äd9k.8ð@b@Ç\u0085_x0007_\tánï@_x000C__x0007_ºmÊ\u009fï@_x001E_&kËrÈï@Â±_x001E_íùªï@<÷\u0081®çrï@_x001A_Ußù_x0005_üï@¶_x0017_°_x0006_¦æï@ðì²Z\u0084\"ï@Cø¡9{\u0085ï@V@ÙºµYï@_x0017_3_x0019_xË_x0004_ð@_x0003_¡÷\u009c8%ð@QCMu\u008d²ï@_x001C_¿Ô%\u0085¾î@­©_x0008_~|_x0003_ð@ôEjNà}ï@ÕëG®¿ïî@tuFË_x0015_øï@ ûÎ«¤Ûî@ò#TËN÷î@QCÆòTÐï@¦Ez<ÑIð@PMª\u0096¹×ï@PÎæ\"\u009bþï@¤_x0018_WUrÞï@_x0016_\u009cê¯9ûï@\u008dV\u008a\u0092Åèï@ì1¯y5èï@DÃ7_x0002_.¿ï@Æ_x0019_,DÃÇï@¼·\u0099\u0094Ï\u0089ï@_x0007__x0001__x0008_¢_x0005_yï@_x0002__x0007_ÔIÜ\u0085õ&ð@c\u0099»Âò]ï@Ä¾_x0013_@\u009eOð@6YÈ\u008d¦Îî@_x0002__x0012_Ön\u0092òï@åFk_x0005_\u00902ï@÷{\u0091p\u009eéï@pú^^@_x0013_ð@úã_x0018_\u008a¾Jð@.\u0098$Øù9ð@_x0018_\u0081¨U$6ï@¤:Ë_x0006_W_x000F_ð@_x0015_£9_x0001_K_x0013_ï@U¤_x0008_ÒZ£ï@\u0098@FRêùï@î_x0012__x0006_\u008e_x000C_eï@T#Ju_x0013_\u0089ï@lÆü'ABï@Pôg^Àñï@èí¦_x0003_ÅQï@\u009a_x0010_^óûAð@\"cþ½Õ7ð@´_x0004_\u008b­\u0093Cð@w^ª`_x001E__x000C_ï@\u009aèv\u0099-pï@6ÇÊN«ßï@\u0084û°_x0018_<Úî@bTÌa{ ï@P]v'«ûï@È¾ó¯å'ð@74°Zá¾ï@nÏ}\u0099_x0003__x0004_\u008c\\ï@\u0084ð\u0081\u0086zÙï@r\u008bºsDOï@\u0081ß5_x0002__x0012_»ï@\u00850\u0088g¤ñï@_x000C_&ILÔåï@\"/CóZËï@Y!ùO_x0017__x001F_ð@NôèI\u0099dð@Aðh_x0003_\u008dòï@lç\u008fÎ³´ï@_x0014_½à!u4ð@XMx]»Hð@_x000E_S²^ñhï@_x0013_n_x000F_¸\u00996ð@å+XªÆ_x001F_ï@R¬`_x000D_xeï@\u0086eÃ\u0092¤_x0010_ð@®\u0094\u0081¶\t\u0093ï@2Íý³_x001E_\u0099ï@¸ ÌtE?ð@8\u009e\u0083)B-ï@ßß\u0087'Ïàï@¬_x0011_/\u0093°#ï@L©vo³æî@\u0090\u007f\u0085¬igï@jGNb\u0087ÿî@,ú\u0097im¹ï@_x0010_\u0087\"Bùiï@\u0084x.\u0093M_x0001_ð@:Mòî_¡ï@ö_x0013_#_x0011_*\u0087ï@_x0001__x0005_\u0086@¶ÁV¡ï@\u009aÜdgßëï@_x0001_*_x001C_U¦_x0004_ð@\u008dø§ðT$ð@_x0018_g_x000B_~0}ï@_x0016_\u009e:@è\u0082ï@ð¯åNJ«ï@¼\u0084Úyª\u008dï@:\u009dè@k:ï@<òY\u008f¢_x0002_ï@Zø_x0012_þ\u009cXï@è)îÏ-Wï@É_x0014_ÿa¥(ð@±r_x000F__x0003_³_x001D_ð@«_x0016_/uôIð@\u00972ÕÓ|Ñî@C\u007f»&Ä_x0012_ð@\u0096\u0082cë~Øï@\u0094I¥Õ_x0006_8ï@x'\u008fNjdï@# Ë½'Uï@\u0090_x001E_Y¢\u0084_x0017_ð@¥$vÑ_x000D_>ð@\u008e=é.¿íï@²¸\u0094~îñï@ÉÞº\u0094>0ð@@PG\u0096ÌÊï@¤:,¹ë\u0096ï@:\u0083µÏ\u00873ð@bÄs­M)ð@^\u00904\\%¢ï@_x0008_\u0093Äb_x0001__x0003_f'ð@_x001A_½G8øHð@`UT´ºæï@Ì_x0007_\u008eË_x000C_Uï@ßi\u008d%\u009bVï@ýe© Ä°ï@4Ì_x0011_*X\u008cï@\u009164ÃÅ%ð@\tàèÂQ_x001E_ï@\u0084ç)\u009fÍ;ï@2~ªØ\u0087_x0005_ð@r|\u009d«:ðï@F_x0011_î\u0084U7ð@L¬â\u0094,¾ï@¥_x000E_=ÿ\u0097Æï@Ò0·]«%ð@û9ëxÃ#ð@\u008c\u0082#IÆ3ï@°7\u0093>àÀï@ÅQ£_x000E_²þï@_x0006_¿+bN¬ï@ô\u0091\u00855:ñï@_x0011_¥\u008fHP§ï@#¢CyÍÊï@_$rX1_x0017_ð@×_x001C_Üh Äï@Að\u0088ú;_x0015_ï@ _x0011_ß¼\u008dèï@_x001D_8_x0002_\u009a½\u008cï@%´óâ\u008bøï@å\u0089ãÀ_x001A_üï@\u008bå[R6_x001D_ï@_x0001__x0003_\u009am#WS\u009fï@3\u008bÁðyæï@\u0094_x0002_\u009dYw!ð@r\u008db_x0004_¬$ð@z`¥\u009fðvï@X\\Ï_x0010_/_x001E_ð@aÇÆ\u008f2æï@,z·£×Xï@P, ÿShï@Bj\u0094Ìryï@ÔC\u0088zE¿î@_x000E_8_x0010_Á\u009c¹ï@\u008a.N,S_ï@åbÝ_x0001__x0010_/ð@j)L\u0083ÒÝï@_x0002_îú&_x0017__x0002_ð@_x0011_­®\u008fù¤ï@Hµu\u0099»_x0007_ð@3±\u009a1_x000B_\u0095ï@\u0099{bWý­ï@(Y<¼cNï@)ZU_x000F__x0013_Tï@Âw¸òÏIð@ÜD\u009b¯ÝGï@ÀlP_x001A_.ºï@,\u0082ëô­Âï@_x0011_\u0088\\8-Ûî@n7aÜ*Êï@_x000B_:\u008aâ÷zï@n Yò\u009eRï@>¶\tmÙ_x0010_ð@~÷æô_x0003__x0005__x001A__x0014_ð@Èéù_x0002_t-ï@Øb_x0001_YÚ-ð@ÆHØ4Âdï@ô9q§{Øï@_x0012_Gø_x0016_³.ð@Î_x000E_å¥\u008e_x0001_ð@üîmèê,ï@:qæ\u009cÝ¬ï@\u008a¯_x0004_ø\u0086Jï@\u009bsFGö?ð@·êñt -ï@áµ<pÞ'ï@ApPaRäï@jiO\u009b_x000E_éï@Z*OÄ\u0095ïï@`Og«ÍÂï@P_x0016_Wõ\u0081³ï@4yhuF7ð@îPL\u009f2öï@á\u008eùxqÄï@4Ñúb¿þî@ÔPX0r_x0010_ð@3»8\u0080ö!ð@v\u0083_x0016_z\t_x0018_ð@¶Ð¤\u007f\u008f\u0084ï@bõ_x0007_\u008aENð@Ï49\u0086®\u009fï@Âô(¼_x0004_ßï@@J¹q¸úî@äjG;aäî@$5\u0090#G\u0092ï@_x0001__x0003_%Ò_x0010_°_x000F_Êï@e_x0008_\u0088úC_x0002_ð@âX×.\u0084Uï@õ\u0091\u0099lvJð@_x0002_\u0080µ\u009d7_x000B_ð@þ®_x0007_óªÝï@²åL\u0084Fèî@\\·ýñ\u0085ñï@_x0003_R0\u009eV\u0094ï@]:rÒOSï@\u009d<8þ@~ï@Å_x0012_+À>`"}},{"$cut":{"chars":74574,"head":"687ba53aa6cd71b0c99dc8e7de269667_x0001__x0002__x001A_\u0090½_x001E_°_x0004__x001C_A_x001A_\u0090½_x001E_°_x0004__x001C_A_x001A_\u0090½_x001E_ð _x001C_A_x001A_\u0090½_x001E_ÐR_x001C_A_x001A_\u0090½_x001E_ð _x001C_A_x001A_\u0090½_x001E_ÐR_x001C_A_x001A_\u0090½_x001E_°_x0004__x001C_A_x001A_\u0090½_x001E_°_x0004__x001C_A_x001A_\u0090½_x001E_°_x0004__x001C_A_x001A_\u0090½_x001E_ÐR_x001C_A_x001A_\u0090½_x001E_°_x0004__x001C_A_x001A_\u0090½_x001E_ÐR_x001C_A_x001A_\u0090½_x001E_°_x0004__x001C_A_x001A_\u0090½_x001E_°_x0004__x001C_A_x001A_\u0090½_x001E_°_x0004__x001C_A_x001A_\u0090½_x001E_ÐR_x001C_A_x001A_\u0090½_x001E_ÐR_x001C_A_x001A_\u0090½_x001E_pÙ_x001D_A_x001A_\u0090½_x001E_°_x0004__x001C_A_x001A_\u0090½_x001E_pb_x001C_A_x001A_\u0090½_x001E_°_x0004__x001C_A_x001A_\u0090½_x001E_°_x0004__x001C_A_x001A_\u0090½_x001E_°_x0004__x001C_A_x001A_\u0090½_x001E_pb_x001C_A_x001A_\u0090½_x001E_°_x0004__x001C_A_x001A_\u0090½_x001E_ÐR_x001C_A_x001A_\u0090½_x001E_°_x0004__x001C_A_x001A_\u0090½_x001E_°_x0004__x001C_A_x001A_\u0090½_x001E_°_x0004__x001C_A_x001A_\u0090½_x001E_°_x0004__x001C_A_x001A_\u0090½_x001E_ÐR_x001C_A_x001A_\u0090½_x001E__x0001__x0002_°_x0004__x001C_A_x001A_\u0090½_x001E_ð _x001C_A_x001A_\u0090½_x001E_°_x0004__x001C_A_x001A_\u0090½_x001E_°_x0004__x001C_A_x001A_\u0090½_x001E_ÐR_x001C_A_x001A_\u0090½_x001E_°_x0004__x001C_A_x001A_\u0090½_x001E_°_x0004__x001C_A_x001A_\u0090½_x001E_°_x0004__x001C_A_x001A_\u0090½_x001E_pÙ_x001D_A_x001A_\u0090½_x001E_°_x0004__x001C_A_x001A_\u0090½_x001E_°_x0004__x001C_A_x001A_\u0090½_x001E_°_x0004__x001C_A_x001A_\u0090½_x001E_ð#_x001C_A_x001A_\u0090½_x001E_°_x0004__x001C_A_x001A_\u0090½_x001E_ð _x001C_A_x001A_\u0090½_x001E_°_x0004__x001C_A_x001A_\u0090½_x001E_°_x0004__x001C_A_x001A_\u0090½_x001E_°_x0004__x001C_A_x001A_\u0090½_x001E_ÐR_x001C_A_x001A_\u0090½_x001E_°_x0004__x001C_A_x001A_\u0090½_x001E_ÐR_x001C_A_x001A_\u0090½_x001E_pb_x001C_A_x001A_\u0090½_x001E_°_x0004__x001C_A_x001A_\u0090½_x001E_°_x0004__x001C_A_x001A_\u0090½_x001E_ð#_x001C_A_x001A_\u0090½_x001E_ÐR_x001C_A_x001A_\u0090½_x001E_ÐR_x001C_A_x001A_\u0090½_x001E_ÐR_x001C_A_x001A_\u0090½_x001E_°_x0004__x001C_A_x001A_\u0090½_x001E_°_x0004__x001C_A_x001A_\u0090½_x001E_°_x0004__x001C_A_x001A_\u0090½_x001E_ÐR_x001C_A_x0001__x0002__x001A_\u0090½_x001E_°_x0004__x001C_A_x001A_\u0090½_x001E_°_x0004__x001C_A_x001A_\u0090½_x001E_°_x0004__x001C_A_x001A_\u0090½_x001E_°_x0004__x001C_A_x001A_\u0090½_x001E_°_x0004__x001C_A_x001A_\u0090½_x001E_°_x0004__x001C_A_x001A_\u0090½_x001E_°_x0004__x001C_A_x001A_\u0090½_x001E_°_x0004__x001C_A_x001A_\u0090½_x001E_°_x0004__x001C_A_x001A_\u0090½_x001E_°_x0004__x001C_A_x001A_\u0090½_x001E_°_x0004__x001C_A_x001A_\u0090½_x001E_°_x0004__x001C_A_x001A_\u0090½_x001E_°_x0004__x001C_A_x001A_\u0090½_x001E_°_x0004__x001C_A_x001A_\u0090½_x001E_ð#_x001C_A_x001A_\u0090½_x001E_°_x0004__x001C_A_x001A_\u0090½_x001E_°_x0004__x001C_A_x001A_\u0090½_x001E_ÐR_x001C_A_x001A_\u0090½_x001E_°_x0004__x001C_A_x001A_\u0090½_x001E_°_x0004__x001C_A_x001A_\u0090½_x001E_°_x0004__x001C_A_x001A_\u0090½_x001E_°_x0004__x001C_A_x001A_\u0090½_x001E_ÐR_x001C_A_x001A_\u0090½_x001E_°_x0004__x001C_A_x001A_\u0090½_x001E_°_x0004__x001C_A_x001A_\u0090½_x001E_°_x0004__x001C_A_x001A_\u0090½_x001E_°_x0004__x001C_A_x001A_\u0090½_x001E_°_x0004__x001C_A_x001A_\u0090½_x001E_ÐR_x001C_A_x001A_\u0090½_x001E_ÐR_x001C_A_x001A_\u0090½_x001E_°_x0004__x001C_A_x001A_\u0090½_x001E__x0001__x0002_°_x0004__x001C_A_x001A_\u0090½_x001E_°_x0004__x001C_A_x001A_\u0090½_x001E_°_x0004__x001C_A_x001A_\u0090½_x001E_°_x0004__x001C_A_x001A_\u0090½_x001E_ð#_x001C_A_x001A_\u0090½_x001E_°_x0004__x001C_A_x001A_\u0090½_x001E_°_x0004__x001C_A_x001A_\u0090½_x001E_ÐR_x001C_A_x001A_\u0090½_x001E_ÐR_x001C_A_x001A_\u0090½_x001E_°_x0004__x001C_A_x001A_\u0090½_x001E_°_x0004__x001C_A_x001A_\u0090½_x001E_ð#_x001C_A_x001A_\u0090½_x001E_°_x0004__x001C_A_x001A_\u0090½_x001E_ÐR_x001C_A_x001A_\u0090½_x001E_°_x0004__x001C_A_x001A_\u0090½_x001E_°_x0004__x001C_A_x001A_\u0090½_x001E_°_x0004__x001C_A_x001A_\u0090½_x001E_°_x0004__x001C_A_x001A_\u0090½_x001E_°_x0004__x001C_A_x001A_\u0090½_x001E_°_x0004__x001C_A_x001A_\u0090½_x001E_ð#_x001C_A_x001A_\u0090½_x001E_ÐR_x001C_A_x001A_\u0090½_x001E_°_x0004__x001C_A_x001A_\u0090½_x001E_°_x0004__x001C_A_x001A_\u0090½_x001E_°_x0004__x001C_A_x001A_\u0090½_x001E_°_x0004__x001C_A_x001A_\u0090½_x001E_°_x0004__x001C_A_x001A_\u0090½_x001E_ÐR_x001C_A_x001A_\u0090½_x001E_ÐR_x001C_A_x001A_\u0090½_x001E_°_x0004__x001C_A_x001A_\u0090½_x001E_ÐR_x001C_A_x001A_\u0090½_x001E_ÐR_x001C_A_x0001__x0002__x001A_\u0090½_x001E_°_x0004__x001C_A_x001A_\u0090½_x001E_°_x0004__x001C_A_x001A_\u0090½_x001E_ÐR_x001C_A_x001A_\u0090½_x001E_°_x0004__x001C_A_x001A_\u0090½_x001E_°_x0004__x001C_A_x001A_\u0090½_x001E_°_x0004__x001C_A_x001A_\u0090½_x001E_pb_x001C_A_x"}},{"$cut":{"chars":51150,"head":"afd7bd42dbf43e0db0da5c2d5d6cdd9a_x0002__x0003_\u0094'¼_x0002_\u0095M»À,¼Z_x0010_\u0099iÓÀ+Ð\u0097Û_x0019_iÀÀ\u008d(Õ8¿cÉÀ%±_x0010_<*_x000E_ÖÀT_x0005_>_x0005_bÊÖÀqWÉôÈg´ÀD_x0001_¥«_x0015_\"ÉÀ\u009bC_x0012__x001E_#¤ÑÀù_x0019_\u0088\"«_x001C_Á@\u009aÀlQÖÞÝÀU%ï\u0093\u0088MÅÀîÜgh4RÃ@:føû2\u008c¾ÀÅ\u0087,09D»ÀË\u0085P\u008aÞ_x000D_¬ÀåkË¡\u008d/±ÀJü\u0086¸Ì%´@Õø7»_x0011__x0012_ãÀâáJÕ_x000D_Y¹ÀõÊ>Wdâ¾@\u0094â÷\u0098$Sº@¹\u009cÁ\u008atc¸À%r@Å_x0001_\u0092¦ÀçjóEqRÒÀäE¦I_x0013_PÙÀ¶ö\u00936¢íÆ@\u0095³Ü££ø\u008bÀ8­lx\u009eTÕÀ¯+\u0086þqÁÂ@Í\u0097oÇ4_x001E_ÁÀÀj,Æ_x0007_\t}\u008eÙÀ&«_x0002__x000E_Âw²Àöd_x0013_ê¡<\u0086ÀÙÆÿó*nËÀ\u007f¿ôí_x001C_¤Â@ë°kÒ|½ÕÀÄ\u0098+Ôñ|v@\"CAÅÐh·@÷Ä\u0094è_x0011_\u009a|À\u0094k\u0097á\u008døÃÀÐ!Á_x0007__x0002_5ÑÀÞ_x0012_ôKèøm@\u0097@Ô¡_x001D__x0003_¥@Í\"OEc_x0001_ÏÀÊ¢\u0097<-ãÂÀ_x0004_ô_X¿gÄÀïNvÈ<FÆÀÈ8^Ý_x001F__x001D_«À_x0018_´\u0089\u0090î_x001C_ÚÀ_x000F_k{TÌÒÁÀQ_x0010_Ê\u00825uÅÀÞá_x001F_Ã_x000F_¥ÛÀ_x001C_HÈ_x0005_ä)±Àz\u008fB_x001F_¿\u0087âÀ9ñÆr+êÙÀØ®_x0008_Å\u0088W½Àµ_x0003_I\u0081_x000B_MÅ@øð_x000E_Å\u0094\u0095ÑÀuÝ[°Ì!ØÀ_x0006_µ¬u<_x0005_×À\u0084\u0098ê_x0019_H\"±Àj^L\u0093þæ¡@_x0001__x0003_\u0099åï[-±ÉÀ\u0081:°oð·Å@¦)M_x0018_äHÊÀ\u0097hi:kd£Àr\u0088n\u008awqÊÀ4q_x0013__x001C_\u007f½ÊÀÀN¤ÒÅ±\u0098À\u0081Oì½\u0082_x0007_ÞÀÄ²Zv_x001B_ÇÒÀGeÉ_x0004_-,Ç@þHO3R+´@6_x000D_í9Éh±À_x0019_\u009føû\u0090\u008a§ÀÑÝ¾±lÔÄ@_x0011_|Ñ³÷6ÕÀÛ×dLXãÖÀ3ï_x0005_:ãl¤À ¦\u0096t_x0002_ÃÄÀ\u009d\u009a6âIN·@_x001E_D_x0007_\t\u00948ØÀ\u0098íJDÈ ½ÀB\t\u0091&Íæ¥@Ì¤\u0098\u0086e\u0083ßÀ$\u009c;_x0010_o§áÀ\u008b\u008a¯¼¤ËãÀ_x0001_Ì`_x0006_\u0084SÆÀ~_x001D_clë\u0088¿À\u0086HR| VÊÀÞ\u0083kh(\u009cÅÀuì\u0083P\u0087wÏ@_x0004_6_x0001_è1ÔÖÀÝâÛ_x000E__x0001__x0008_¶ñßÀ~¸öh_x001E_ÉÆÀæ_x0002_¡uÎu¿Àx\u0098su²öµÀwPÈZ_x0006_ì\u0089@ð)J¤É_x0012_°À\t_x0019_·nH°¦À¥÷â#èjÀ@N\u0097^_x0005_©/ÖÀ\u0096:_x0018_Ö_jÒÀ_x000F_\u0098î\u008f0P´Àeª_x0003_q#z´À§Ð1_x001E_µtÈÀÍ=ÔfsÜ§@_x0007_\u0081&_x0004__x0005_}ÖÀl_x0010_n_x000C_m:ÞÀn\u0095É\u0093ã¿ÓÀîvÖ]´\u007fÞÀP3¯\u0089/£×ÀQú·Ü\u0090¼ÛÀ6nª¥ºÁÓÀ÷®DC³åÐÀwV/ýdR¼ÀÐ_&j¯y×À_x0007_:S\u008eM\\âÀÈ8\u008d$àxÜÀûîÂRókÉÀ:\"7s<\u007f\u0090À$G\u0093¨H=ÑÀU_x000D_|a°\u009dåÀB\u0081_x0005__x0015_¶?¦À_x001E_)_x001C_´ØB±À_x0001__x0003_ár_x0011_ö¬WÉ@èÔ\u0086/k\u008eÄ@Ôaî­]KÒÀ$ûÒq¬_x0007_ÓÀ\u0097_x000D_S¼ôfËÀ\u0088Eù\u009c_x0008_OØÀqS\u0093_x000D_\u009c-µÀ\u0097Íâ¼\u008eY­@_x0002_%Î_x0003__x0005_)¥@³9ëÑbSºÀ\u008dØ*\u0089\u0088¬ÉÀ\u0090\u0093K\u009c_x000C_+ÒÀ_x0008_Wy_x000F_Úú½À e ÜìÁÒÀt?ß.\u0097K¼ÀbOÊô¡'ßÀR0[\u008b¼\u0080¾À_x0011_8×¡_x0006_@âÀ\u008f\u0099_x0016_¦p\u0089ØÀª(== MÞÀ\u00978Ë\u008c_x001E_\u009eÙÀøìö_x0011_¸/¶@ª>¥u\u0090·ÂÀ%_x001B_D0ç\u0093ÒÀ\tÁLåÂøÝÀåÉ­_x0008__x0018_\u008f­Àéü_x0010_\u0080s5ÉÀ\u0092SÐu²ÖÃÀ\u008f\u0081\u0091x7ïÃÀóÝÙô\t¿ÐÀ_x0005_ì\u0090Q_x0002_\u0096Ì@ÔlL__x0003__x0005_w\u0091áÀ«jImß]¸@7ØbÇ}àÔÀ_x0016_¦¬/£_x001E_¿@_x0003_FíÎ_x0004_\u0095Ê@_x0004__x001F_V0ç>»@ª\u0096Î¥\\_x0007_ÝÀù_x001D_3ÏH_x0008_ÙÀË¾\u009a_x000E_a£ÚÀ_x001C_D\u008f{à\u0086áÀ_x000C_þ±\u007f­ÓÃÀï_x0019_ls±_ÈÀH_x0016__x000D_`_x001C_¢ÀÀs_x0017_¯êÅFÐÀt}£t_x001E_DáÀÔµÔC_x0016__x001E_©@GÖ_x0017_']þÀÀ|\u0091\u0089\u008c_x0016_F²@ó¨¼¶õ\u008f¬À_x001D_\u0091r_x0010_ó²Ñ@\u009f\u0089º¥ý_x0011_kÀî\u008dÙ_x0008_Õ¼\u0096À\u009aGá¬Ò_x0016_ÏÀ\u008b\u0088N±_x0006_5ÏÀAlÇDÚ\u008bÏÀTóØT/Z¶ÀÝMo;/ÂÉÀMH@¾AòÂÀPB\u0083¯Í ²@1y\u0081_x0008_âÂÇÀò\u0080Æô_x001F_¢\u0084@_x0002_¼õp¸_x0001_ÒÀ_x0001__x0002_\u0085 áñ \u007f¹Àa\u0098\túMÆh@.S£Àg;Å@l_x001C_D_x0013_{Â\u0088@_x0016_Â\u009cÊ¦ÀÐÀ_x0002_.qãåæÈÀf6_x001C_ü\u0088vÁÀ$_x000D_%<õTÇÀæà\u0095¼*r­@FI>^_x000D_¯ÈÀênZêíàÄ@\u0088R§_x0011_+6ÞÀµÿ/âR\u009a³À÷Qú\u0084_x0001_³ÓÀü_x0003_é'­?¥@ý\u008aØ_x000D_\u0099U»Àå'\u009dèû\u008cÈÀ\u0082÷MØB(·À<=\u0082`_x0012_>µÀíÚÄ¨Î_x0017_É@x±\t\u0090 \u009bÒÀàGf_x0005_ã+ËÀÜqkÉ'/ÃÀÜÿ_x0008_Â_x001D_\u0086³À=Y­\u009a\u007f7\u0098Àªý:¯Ë_x0010_À@\u0091§Ä×mn\u009bÀþê_¸\u0086ßÃ@xp_x000D_oÚÄ»À= û3_x0007__x0003_\u009eÀ\u0094\u0092ð`­_x000C_ÎÀ4ó_x0003_Ê_x0001__x0002_øÎÐÀé¶<_x000D_~·eÀÿ:\u008f* P\u009aÀv\u008daOî±ØÀ\u007f\u0096rNB_x0014_ÒÀ_x000B_+sQÝå«@Þ_x000F_í!©ú­ÀdjEî>IÇÀäT\u0095\\=«ÖÀw s}\u007fnzÀ%\tÀ\u009cå=ÑÀ¬É¹\u009dÕ?×À|x_x0013__x0015_4dÒÀ\u0098äÁ\u009düéÍÀkf¾0vçÞÀ@L\u009c§®¼ÍÀÍÈpÒª\u0091ÏÀ F_x000C_9®_x001C_ÕÀ_x000E_o¼üF8ÈÀ_x0010_\u0093H4w#Ç@\u0088-ç\u008eö\u0083ÀÀÀÃéÞ¦ßÒÀo3 _x001A_\u0093P\u0098À(ÿ!_x0003_$fØÀV[~#\u0099_x0002_\u008dÀl_x000C_»­S_x0011_\u0093@ã±ÀËà2º@Ý\t²yÓ+\u0086ÀÞk\u0088_x001D__x0004__x000E_²À_x000B_çÛ²_x0012_ áÀ6f~\u0096M!²ÀÉ_x0008_\t\u007f\u0085m @_x0001__x0003_²1\u0096øjþÈÀò$¤\u008a´üÓÀFt9l\u0096CÚÀv_x0019_\u009cb,_x000E_ÐÀIvëO\u0083/ßÀ-\u008e^_x000D_¯¸àÀ_x0002_\\z_x0014_î\u0091ÑÀÔ¤fL\u007fÛ\u009cÀ4·_x0008_w¥Ó»À_x000F_R_x0011__x000D_ù_x0016_q@È}õ¯]¹°À»_x0002_\u008e_x001A_\u0085@Ã@¼\u008eæã\u009eÿÔÀ\u009dF_x0017_oB¯ÚÀ¯\u008e\u00936>l¬À³%ø¡\u0081 ºÀxgýmW\u0093ÂÀrk&ãÑèÑÀl0´\u0098Ö\u0080ÏÀÁB~\u007fQMÛÀjSÀ­µ4ÁÀ\"í_x0018_ÇñìÊÀ\u0080ðJæµ¹ÝÀJ«DÊ_x001B_H¹ÀÌuº\u009dg>ÒÀ:âË\u0080ôg¶@n§U½\u0093_x001D_ÑÀ_x0001_c_x0014_ñ%ý\u0097À´¿Ý:R_x0004_ À¢íÁ\u0082ã_x000F_¾À\u0086÷Æ¥ÕÊÀ@´R_x001B_\u0094_x0003__x0004_ò*×ÀºÛ±ô_x0017_-\u009d@ö_x0018__x0012_ ¬_x000B_ÒÀs¸ç­6Í\u008b@6+¤_x0001__x001A_\u0090ÙÀ\u009a_x0019_D\u0085q>æ?o2Ý,;\u0097Ò@\u0093_x0017_G_x0018_Ýæ¸À\u00986Pªµ9ÝÀÔ_x0011_ç_h\u0082¡À\u0098Þ¢èIQ¬À¼qU{ó\u008b¯Àûqù\u0084\u0083åº@Fu_x0002_ÚR±Ì@Ôú\u0092;t\u009b¿ÀÁj )Ý0ÁÀ\u008dk\u009c/\u0080_x001E_ÎÀ_x000F_ØìÐ\u00932©À_x0004_Ó_x001D_!_x0005_å\u0089@½)_x0008_[`É\u0082À\u0087ub\u0084\u0098nÄÀ$yë\u008b_x0016_ÈÃÀ¥ñ[O¶\u0080áÀasm0eÇÕÀÃj_x0014_ÏSrÐÀ_x0016_Mw`_x000D_GÐÀ0\u0085ÐÆ\u008dsÙÀ\u0092\u0095Ãò\u009aJ×À¼n\u0081Ö\u0092ÛÓÀºçJ\u0082Æ\tÂ@JMt«ÐÐµÀbPÊî÷_ À_x0001__x0002_Í\u0095\u0087K(ýÏÀ_x0002_s"}},{"$cut":{"chars":53514,"head":"931c932a7e309c380b5ca971d28bc255_x0001__x0003__x0011_Þ\u007f_x000C_\\p¼À8Ä_x0017_\u0097Rõ¬Àf\u009f_x0003__x0015_?a×ÀL®LîÃ(²@¬²þ^âôÐÀF\u0096QB?]ÕÀ|#_x000D_¦\u009e_x0013_ÆÀ_x0005_ÓïdSzÉ@U\u009cË2á?ÔÀ7E)TLzÇÀ\u007f_x0002__x0017_°¦5ÇÀ´\u0087ô«Ä¦ÓÀ_x001D_iã_x0005_\\!ÐÀí\u0088Öd\u0094[¶À.<­ã°ò\u009eÀZÔ\u0086ª0©ÐÀ\u0096\u0081Ä{«¾´ÀÀ_x0015_Æ>}¢ÜÀ_x0002_\u007fË\u0085\u009di¥À\u008cóÊÊlaàÀk/_x000E_s\u0081àÝÀ×_x0017_º\u009fÖ¨°@ºÇÊ\u0088JÆÀÀ\u009c_x001B_\u009a¨_x001C_ýÈÀÍTbêºä»ÀÖ\u009a}\u008fV¯åÀ\u009bü\u009cÐc8Æ@q_x0017_cK'dÀ@Þ\u0098^É÷\u009fÓÀ¡ñ·þµdËÀÕæW&¬¿¸@c^!ê_x0002__x0003_~BÏÀbõ_x0003_~hLÓÀ\u0088,Z\u009a_x001E_ÔÐÀ_x0010_Gd7_x001B__x0014_W@ûq_x001B_F\téÉÀ4HÂ!t_x0014_ÐÀ4³\u008b>o5\u009d@s'o<Ã_x001E_ÁÀªÁ?\u0080»uÇÀnxëÔ¼BÃÀ\u0086wß\u009dÒ_x000F_»À\u00908\u0089jIb±À~ÿ&_x0004_Í[×Àð\u0086:_x0006_('ÉÀç¢\"dÍÂÙÀ·mþ_x000B__x0007_ýÃÀÁÓ\u0080²º2³À[I/ê\u0095\u008c²À_x0018_eRqÖ>µÀ_x000C_&tú?[ØÀo._x0008_ä\tÀ@@«ïÚ\u0099_x0011_s·ÀÑNP\u008a\u0089\u0082°À\u009e.á(û?¿@Úô\u009bS¤4ÏÀ´\"©²wHÁÀwb\u009dl_x001E_ê±@_x0016_,×ÿs\u0094Â@íY_x0019_©'J½À±QXÖf3ÍÀ¸\u0087_x001D__x0001_\u008aaÂÀ_x0017_SöË_x0004_çÁÀ_x0002__x0004__x000E_§Dr¹?ÑÀ-_x001D_þ_x0007_+_x0018_ÚÀ\u009awÏ_x0003__x0010_ñ´À\u009bókãÞ\u007fÓÀ«¿3M¶¨³@_x0002_Ä¸ j_x000C_\u0080@_x0012__x000C_U¹½Ó²@üd\u009bôú¡¾@í¨TsôÇÈ@³ÝñÓsoµ@C®\u008c\u0090\u0098°µÀ~Sø»16âÀW94ÝCA©À\u0085ÀÎ\u0082|_x001B_ÓÀ_x0010_÷±\u009bùOÔÀ®°IWH)£À_x0007__x001F_{_x0005_+EÅÀ§³×VÀuÓÀåQ²ÌØ\u0092Ä@Ë\u0096_x0001_Áç0\u009b@_x001E_\u0084_x001F_§ÌA¼À_x0016_\u008f@Ë{\u009d¡À×_x0018_¼fz\u0090Ä@ùÐ1èûò«@ð_x000C_zhÊÕÔÀ²¯&\u009c\u007f§ØÀèÌ{ÙWÝ\u0097@ræhFÐ\u0091Ä@C+QO$\u008fÎ@a¢\u0094<úXáÀÎÐ¬i¯_x0005_ÈÀm)6S_x0001__x0004_eÔÝÀGU¼Û>8ÔÀî\u0092³pîÃÅÀE»Í_x0017_5¡ÕÀ|öpR8F«À¿ïn¨_C¬@aÏiÔ_x0002_­°@LCt kÎÇÀ$I¢\u0095«××ÀÝ·0\u009b\u009d_x0008_¤@_x0010_(\u0091¡¬*ÑÀ_x000B_9\u0080ãô_x0013_ÑÀ¼X±s¶ÚÉÀÄ´&Ô.ü¸ÀÞH¿_x0001_Ó:±@«éyx\u0095ÊÀÀÐv_x0010_²18\u0083@\u009cÀ_x0003_¶n\u0083ÑÀ*ÒG_x0010_ÎøÊÀo\u009fl êE\u009aÀÓ_x0001_ÔõQaÂÀ!_x0017__x0003_¹qûÐÀ>_x0014_R<\u008dwÙÀÜAvÜ_x0013_É¿À±b_x0003_\tôiÓÀ_x0016_)\u0092\u0087z_x001F_¶@_x0002__x0003__x0011_YV,ÔÀ\u0094Å_x001C_ás\u0096¿ÀÚ_x001D_\u009a_x0012_52»@TmÞ\u0096åz¸@´\u009c²rÿ\u0087°@m_x0014_\u008a\u0088\u0080 ½À_x0004__x0006_ ûoû_x001E_z\u009d@-@¦_x0014_\u0082÷¿@_x0002_ÎD}ß)ªÀ\tÜÜKd\u0094ØÀ_x0003_?Sàö£ÚÀ£ô_x0003_CÑ¯ÀÀæ1_x000F_¢Ã\u0086½Àóûu\u0091\u0087\u0096ÖÀ_x000D_Ý_x0004_b_x001C_}ÞÀ\t\u008e;@²$Æ@>lï[%\u0080äÀ½Xø»_x0019_\u0091¡À_x001D_ô\u008d\u009d_x000F__x0010_ÒÀ¼ò¨\\ô_x0011_z@_x0005_\"C¯²øÖÀîW\u00802ÃþÐÀSÆ%Øl=ÆÀ8_x0001__x0014_åµ_x000E_ÃÀ\u0099M§Ä£_x000D_±@\u009ez9_x000F_|¼ÏÀæv®_x001C_t1ÛÀº£ÎÂ+hÁÀ{ìFè»`ÑÀ_x0016_üÑ$_x001C_\u0099¾@\\uÊ\u0094_x0018__x000E_ÔÀ·\t\u009d7yð×À\u008aw*\u008díEØÀ\u008eÁ_x0007_/½¥ËÀäý\u0084û×zÒÀ»caô_x000B_¡ºÀ¦èò\u0080_x0012__x0015_¹À4_x0001_¿d_x0002__x0003_0·Ã@Ó\u0097Zð_x0014_èÓ@\u007f_x001F_Ç¦Þ½¶@»ÓþÕ±\\ÅÀ\u008b¼Hb%\u0086ÐÀD¼/CÝÏ\u009d@W_x0006__x0008_<ßY¾@\u0080Î_x0015_zIoÒÀsMûä/ýÁÀ ¸_x0010__x0008_Ñ_x0011_\u008dÀêÄ½\u0095¥_x0014_\u0081@³_x0015_ýò\u00811\u0099@_x0001_³Ng¸gÒÀù°-\u008ceWª@v_x001C_Vqb`Ë@Ü/µ{Ó(ÄÀ_x000E_Ý_x0004_\u009b\u009e_»@öÏé_x0013_ úÓÀ_x000D__x000D_\u0093ºµf½@\u0085È&«\u0096_x0019_ÇÀ§6Öêx\u0099ÖÀµÇ÷ò<rÍÀ\u0090ó\u0086ËH¨ÓÀ_x001E_Zé» ^¤ÀÛ_x0012_¥ÄY\u0094ÝÀ_x000C_¶¸#¾\u0081²À¹D­»Æ_x000F_¶ÀW\u0091ý¸_x0018__x001B_Î@\u009a³¾6_x0003__x000D_´À\u0088íÓ\u008a_x001C_÷\u0092À~É=!\u009bK¸@5È_x0017_y_x0010_*»@_x0001__x0003_9\u008e¨¯Ä|ÝÀÄ\u0092m\tÔFÊ@³­\u009ei_x0006_AÕÀfGÎ'iËÁÀ\u009bÍºö`_x0012_ÉÀSÍÒ±Á\u0082ÖÀ\u0087§¼­_x0014_¦¢À½%¢Òï=¨À÷S\u0091½\u008c\u009aßÀúËÛ\t{_x0019_£@Ü\u0093}_x001C_fDÀÀÉIOJ\u0091¹¹Àys¸(!pÄÀ_x0012_ßv`_x000B__x0019_ÌÀéý\u00858»\u0092ÍÀw:\u007f\u008c\u0084çÕÀ8j_x0014_\u0087wÅáÀ_x0012_«VÂN\u009a\u008bÀ_x001D_¹Ibì8ÊÀ)ãâ_x0019_Èò\u0086@_x0015_ÈD\u0081ÀQ·@^¸_x0018_6?_x0011_§@Ù5\u008fâ&\tÕÀ¨&\u008f.\u009aãÓÀe@_x001F_ÎÍFÆÀ`_x001B_ZQ\u0097aÀÀ>Ü«\u0082\u0099âÑÀ_x0013_s_x0018__x0002_}¸µÀº\u008a¾JÞn°@:g^¿CµËÀSU\t\u0094 TÑÀì\u0098\u0083_x0010__x0004__x0006_Î_x000E_ÓÀ\u0092d\u0098%_x0012_&ªÀÁ\u009b±¢_x0003__x0002_\u0093@Ý_x0006_ßê\u0083_x0008_¿À\u009c¸p£_x0014_Û\u009bÀ½Å²:Ö¸¿@\u0087ªnãy6¹À_x0011_31x_x0018_LÒÀ\u0084BTÉ<¥Æ@5hÜ_x000E_LÓË@_x0012_ò_x000D_Ý)´´À)ðÑªÁ]ÛÀÐ4£_x0015_n3½À{Ûp×YvÙÀpø_x0016_u6ÍÄÀD>_x0001_RMH»@|\u008aá´¾Y¤ÀûE%\"nØÛÀr(g_x001A_\u0084Y°ÀÓû\\_x0012_6_x0005_ÇÀ_x0018_8ü%,VËÀr_x0018_»\u0098_x0010_\u0094ÐÀ6_x0015_\u009aå·åÑÀN\"¬üI³\u0091À£\u0080_x001B_ÚOiÈÀ)_x000F_µÜ@C\u0084Àì |^áÌÞ@4Ë//\u008brâÀð)ßÂ\u0095!ÉÀ :_x0014__x0010_[0Ï@V\u008e ¿i¼¿ÀÁU\u007fîO±ÂÀ_x0001__x0005_ö]{«óè½À_x000D_ Eµë\\Ä@lmÐ %uÓÀ_x0004_ßö\u0088[\u008fÅÀYw\u0097\u009bÁ½µÀ_x0012_\u009a*ÎH ÌÀB_x0007_xZþjÅÀ4hª\u0095ÔìÏÀ\u0082ìùÝ\u008eÆ¼@_x0019_J×åNe¯À~ô\u0095v`_x001D_ÀÀR9\u0099~ÛJ»À4 ±±_x0007_v¹À3êb}#sÔÀ9ãÃ©>ÃÐ@ô¯ \u008c\u0096Ú¸@_x0004__x0002_\u008d\u008a_x0003_xÒÀ­_x0006_5\u008cny×À\u009c)_x0016_î³\u008b @réc\u008b\u0094óÁ@Ïªëpé_x0017_ÊÀ\u009a.\u0092_x000D_úgÆÀÄ$\u0087r4_x0019_ÒÀ³¤P\u0091¿ÒÌÀ°ç×\u008dm?ÒÀ_x0011_É_x0015_õ?¡ÓÀÇß<-\u0096ÛÓÀ×\u008eÙY_x000E_õÈÀà\u008bs©E!ÁÀ_x0012_Vá«Kï×À­PÐ]Yd\u0082À&ó\u0087«_x0002__x0005_\"_x0007_vÀÎðÏlá_x000B_ÚÀMd\u009d!_x000B_\u0084³@â¨\u007fÜ\u007f£ÈÀÀû\"¼_x000B_#ÓÀº_x0018_Õ!µ~\u0090À\u0082|\tE_x0001__x0014_\u0092@V_x0019__x0016_°r_x001D_Å@8f¿_x000C_(r×À¶ÿ¶ðÜÈÐÀ@Vy_x0013_ËÎÅ@\\z_x000B_ìÿ.ÔÀ|þj_x0014_¸Û¥À\u008bÞ%¥¤ÕzÀ_ËÙ\u008fvXÉÀÐÀQéØ\u008bªÀ\u008eO_x000B__x0003_èåÚÀß_x0012_Ý\u0089 1ÔÀBa>_x001B_£NÔÀ\u0085HöüÂ@ÜÀ£¥s©ÐÁÛÀbÑ\u0080_x0015_á_x0004_ÛÀÈFO__x0011_5±Àã¾¶T9.¤@æ\u0081¥ìºÞÅÀÛt®\u009f\u0087¨ÉÀÜ¡êþP\u008eâÀÍ1\u009c?aË´@ýÚKÛe_x0001_·@V¹bÍñv"}},{"$cut":{"chars":75726,"head":"c19e71b3d68efba7f518b5fe3e116eee_x0001__x0006_fåê_x000C_mÈÅÀ;\u0093_x0008_«.£_x0017_A{\u0090?W_x0001_>_x0017_AÆ_x0012_n\u0087´ñ_x0016_AY]PDW¼_x0016_Ax\u0086_x0013__x0005_Ä\u009e_x0017_A_x000F_UJÂfP_x0017_A_x000E_\u0097ï~]¿_x0016_AêU\u0081\u0081Wo_x0017_A³_x0007_æd\u0081Ê_x0017_Aé³r#vÐ_x0016_A\u0089Ý_x0005_¶\u007fB_x0017_A)=_x000C_^iý_x0016_A\u0096_x000D__x0004_¨\u0088._x0017_A_x0003_¬ÜR7y_x0017_ATv;ü­\u008b_x0017_A¥¼_x000B_ÉHk_x0017_A\u0086QS_x000B_5æ_x0016_A_x001E_R²3QT_x0016_A/_x0002_ñ@«\u0085_x0017_A\u0089_x0002_ÔìËò_x0016_A\u0087û`\u0080X$_x0017_Ac\u0096_x0010_À\u0088y_x0017_A6<«ÿ\u0086\u008c_x0016_A¸BnyÉ\u0097_x0017_A|s_x001F_+_x001C_9_x0017_A±n(H\u0080á_x0017_Amµ<\u009dÏ\u0097_x0017_AÝ_x001C_Z.0_x0007__x0017_Aç¡_x0001_~_x0013_/_x0017_A\u0095\u008cU\u0087z{_x0018_A_x001C_\u0099_x0001_\u008a_x0001__x0006_)ð_x0016_A_x0001__x000C_Ö\u0096'x_x0017_A$z]W3è_x0017_Aý1ZIKd_x0017_A\u009eSìtF£_x0017_Aî©¡oKï_x0016_Að_x0014__x0002__x0012_ò_x0007__x0017_A\u0080á_x0004_ÙîO_x0016_A~_x0005__x0016_Æ^ÿ_x0016_AÌ\u00829ñòÎ_x0016_A¹¤±\u0089(\u0092_x0016_A\tç\u0099\u0085gü_x0016_AÄ¹so_x001B_v_x0017_APá¯Áõ_x0008__x0017_A¡J_x0015_\u008bd´_x0017_AC_x0012_ýsçÿ_x0017_A_x0001_=Eåç8_x0017_AT(\t}_x0019_¥_x0016_Aóõ_x001B_7\u0098\u0082_x0017_AncVÂ\u0099\u008b_x0017_Ag_x0016_Í¸¯¨_x0016_A\u009egá´_x0019_*_x0017_A\u0087ô:Øb\u0083_x0016_Au_x0008__x0012_éå/_x0017_A_x001C_ëÅ&©Ï_x0016_A_x0003_þi|NH_x0017_AOïb^JÝ_x0017_A¬:¡É_x0006_¨_x0016_A_x0010_\u009bãg[±_x0017_A$ùyã³[_x0017_A÷±c^D\u0084_x0016_A8¼þ_x0016_E\u0097_x0017_A_x0001__x0003_9RÒ\u0086óh_x0017_A>§t_x000B_¼Ò_x0016_Aäw_x0004_\t8,_x0017_At_x000C_A÷Ít_x0017_AaúRÿ¦ü_x0016_A\\²ÉÂÐÍ_x0016_Ar[`\u0085ÁÁ_x0016_Aå\u009d\u0090_x0008_\u008a\u009b_x0017_A{_ì7_x0016__x0016__x0017_AÝ>)X9²_x0017_Ay\u0093_x001E_­1r_x0017_AB9YÄ)÷_x0016_A_x0014_wY:&½_x0017_A]fÈ-_x000C_\u0090_x0017_A>í_x000C_\u0082\u009a\u008b_x0017_A_x0001_þa\u008eg~_x0016_AÃ\u0082\u008aþðè_x0017_AùÕr`\u0096e_x0017_A_x0001_FE\u009e_x0012_\u0088_x0017_A³_x0008_öH¨î_x0016_A´|ÇDÎp_x0017_AB\u0094\u008cNÏT_x0017_A\u0082,KÐ¸Â_x0016_A_x0002_óÿ\u008e½e_x0016_Ak®¡Z}G_x0017_AØ=²è9_x0001__x0017_A\tº÷ó_x0016_._x0017_A`q_x000F_ÐÁ\u009a_x0017_APYê[©×_x0016_AlPÄ_x0008_%R_x0017_AÌ_x001D_<\u0086¶_x000C__x0018_Aûóôå_x0001__x0002_à\u0090_x0017_A7Ô~\u0088°{_x0017_A\\­$\u009c_x001C_Ê_x0017_A\u0092_x0019_{\"_x000F__x0003__x0017_Ao9\u008dRÓÉ_x0016_A\u0086­²_x000D_ï\t_x0017_A¤dR%_x0010_¬_x0016_A\u0080\u0088Æ{:Ö_x0016_ADªÈqXì_x0016_AÑ\u008bø_x001F_\u009fò_x0016_AïG®_x0015_zC_x0017_A\u0084ì2±GÕ_x0017_A>7Rx\u009a]_x0017_AÖZ`3µâ_x0016_At.[{\u0093\u0087_x0016_AÙ\u007fûX»¡_x0016_A?ã_x0012_\"âÖ_x0017_A\u0095\u0094«¦~_x001D__x0017_A\u0096Pÿd\u0086¤_x0016_A_x0008_-\u009b_x001C_«_x0014__x0017_AßAii\u0082Ô_x0016_A¬Eø5@×_x0016_A0DèVïO_x0017_AF'ìALî_x0016_AÆ\u0099YÃó\u008e_x0016_AO1¸²\u009b\u008d_x0017_Aª\u009d¥£ÕV_x0017_AÞ_x001F_â\u008ahù_x0016_ACývî°\u0092_x0017_An\u0087¬3\u009f®_x0017_AALf_x000C_Z2_x0017_Ai_x001B_\u0098Ì_¤_x0016_A_x0004__x0005_zïÖ¤ÎÅ_x0016_A_x0018_qxBÎ\u008b_x0017_A_oõI¾f_x0017_AdËJ9];_x0017_A\u008e-ýý,Þ_x0017_AÁÑEÿ&_x0006__x0017_AÙ\u0087_x0011_^\u0085¸_x0017_A+¤íÝa1_x0017_Aò\u0095Äh\u0083_x001F__x0017_A´Ë\u0095²Ù¦_x0017_A µnÈc:_x0017_AH\u0090\u0095åµE_x0017_AôIÞkµw_x0017_A_x0008_Ä\t¢è©_x0016_A$\u008d_x001E_A]k_x0017_A_x001E_c{_x0019_µÑ_x0017_AÖ)aÇ$__x0017_A_x000B_\u0091)Ü/_x001C__x0017_AB_x0012_Ñ,_x0002_\u008d_x0016_A\u0098jrÍ,Î_x0016_A×_x0001_1_x0006_@Ü_x0016_A_x000D_Õ_x0001__x0002_-6_x0017_AQMüã_x0018_ô_x0016_AÒ{_x001A_ý/#_x0017_A<X^|\u0082É_x0016_AÉ_Yh_x0003__x000F__x0017_AjÔÆ\u0084_x0013_[_x0017_A\u009dD¡ð?Ü_x0016_A_x0017__x0005_mÉ_x001E_Ò_x0017_A\"¼Ãº\u0099Z_x0017_AYóÃbVÕ_x0016_A¬_x0015_/*_x0002__x0005_òÚ_x0016_AZ_x0002_Ö\u0096:\u0085_x0017_A²{Õ\u0080²½_x0016_AäÕò_x001B_Ü _x0016_A\u0087T£\u008cB\u0096_x0017_Aßöqk\u0090Ó_x0016_AQý1\u0095\u0098x_x0017_A\u00886_x000F_i\"\u009a_x0016_A\u0093;_x0004__x0006_\u0098Y_x0017_Aò'_x0002_\u0096An_x0017_A\u009aà)_x0012__x0012__x0003__x0017_A$_x0004_íG\u0083\u008e_x0016_Aa¤U_x0013_\u0080÷_x0017_A³9\u009a_x0006_Ep_x0017_A¨_x0012_#+(G_x0016_AËè¼¤È\u0087_x0016_AÈø±_x0011_À\\_x0018_A\u0080áËÌý\u0093_x0016_A_x0008_ýY_x0001__x0011_\u0094_x0017_A_x0008__x000B_°\u007fçä_x0016_Aø=8¿Úè_x0016_AÌ=_x0005__x0017_]É_x0016_AXÆ_x0015_¥µÓ_x0017_A×ô\u00931T6_x0017_Aô^t\u0085Éø_x0016_A&t\u0091Þz»_x0016_AHo+8Ìa_x0017_AnÚL\t¨_x000B__x0017_A3Þ)<³w_x0017_AÒ\u00924êø\\_x0017_AÀÞWâÂà_x0016_Aº_@ù¦°_x0016_A_x0007__x0008__x0002_¹ÁÉg×_x0017_A\u0084^¼®_x001C_Í_x0016_A\u008b4b_x0011_½-_x0017_AÚÂXæÛ2_x0017_Aè¨^G i_x0016_A\u009a\u0089÷W^\u007f_x0017_AÞ(\u0095\u0089\u0083_x0014__x0017_AÇì\u0092\u0084 \u009a_x0017_Aëq6¡_x000B_Â_x0016_A\\t&_x000F_©D_x0016_A_x0005__x0006_%;×|_x0016_A«\u008c'hÂ¶_x0017_A\u008a´µm§\u0093_x0016_AkYm\u0090éà_x0016_A7J4¼âÍ_x0016_AgÐp_x0001_iR_x0017_A¼\u0098y\u0097¨ö_x0016_AåPØp_x0003__x001C__x0018_A^_x0012_\u0090_x0015_ñ_x0007__x0017_A=_x0016_g9\u009d·_x0016_Al£{ê+R_x0017_Að\u0082oÔa_x000D__x0017_AÁ`kêÂô_x0017_AZ\u0090Ù_x000F_Wò_x0016_A\u008bI_x0004_õy_x0017__x0017_AuIµÍ\u0089/_x0018_A \u0092_x0007_\u009c>_x0"}},{"$cut":{"chars":77286,"head":"067435e7b2e04e91b198673df8385b17_x0002__x0004__x0017__x000F__x0010_î:u_x0015_AòáU_x0006__x0016__x0003__x0016_AÀÝ_x0011_|E_x001D__x0016_A¢\u0081ÃÂÓø_x0015_AÐ1ÂÙ¯!_x0015_A»_x0001_ìJ\u0085É_x0015_A\"*O:4\u0088_x0015_A[ë³_x001D_wº_x0015_Aê\u0093´Ä­w_x0015_Ar_x001F_ÝãTÐ_x0014_Av*½ÇÀû_x0014_A\u009dv+\u009a_x0010_ù_x0014_A\u0092Ô*F_x0010_\u009b_x0014_A\u0085¥6\u007fq½_x0015_Aje\u009c\u008ci¿_x0014_A¶\u0097_x0001_G¶Þ_x0014_Aå_x001B_ºm_x001B_H_x0015_A'_x001F_c_)\u0092_x0015_A0¼ u}¬_x0015_A_x0001_ßu_x001B_\"Ö_x0014_AÓ¨7õ\u0081Å_x0014_A»vØÎËÑ_x0015_A.FSÞ0g_x0015_A_x000C_ò¨wÉ\u0092_x0015_AO¯y\u0083Q-_x0015_A­_x0010_\u0097\u0093\u0082À_x0015_A¡_x0013_3_x001A_ö»_x0014_A?Í\u008f¢%_x001A__x0016_AIÛ$\\_Ð_x0014_A{tiÞñw_x0015_AlÌ²cN)_x0015_AO?Ç\u0083_x0003__x0004_¢\u008e_x0015_A\u0095Q++íâ_x0014_AË\u0096\u008eä\u008a­_x0015_Aû¼õ¢Ô´_x0014_Ahó¯\u0082Û°_x0014_A\u0083ì_x0007__x0014_íB_x0015_A\u009a^\\ù_x000E__x0006__x0015_A_x0014_yK\u0083¯u_x0014_A±ºÁ_x0016_g\u007f_x0014_A°_x0019__x0018__x0008_ð_x0002__x0015_AÝÀ½m_x000D_ô_x0014_AÄª¥ö'l_x0014_Aã¢ÏX_x000B_À_x0014_Ag\u008dì\u0095\u0097Y_x0015_AV\u008a\u008ed¦Í_x0014_A5Ä_x0004_\u0080&â_x0014_A®ÑUK8_x0005__x0016_AW_x000D__x0014_«â\t_x0015_AÓV}X{ó_x0014_AÓô_x0007_s\u0088È_x0015_A\u0086h_x0014_kJ_x000C__x0015_Aj~\u009fC«\u0099_x0015_A±_x0005_n\u009d§\u009a_x0014_A½w_x0001_'Ö¡_x0015_A¬{4j§_x001B__x0015_AÜ$t~të_x0014_AýmÕ9\u0086_x0010__x0015_ADÐÀ­4ó_x0014_A_x0019__x0018__x0002_ÃÚ_x001E__x0015_A_x0015_¹§Üj+_x0015_A_x000D_øÉý\u009d8_x0015_A\u009b_x0005_Ê\u0085Ã<_x0015_A_x0001__x0007_ÿü\u0088?ò_x001E__x0015_A_x0011__x0019_Th,9_x0015_A§p½²%j_x0015_A\u0093èX\u0089£ì_x0014_A\u009dê_x0017_BR¾_x0015_A\u0087ë_x0014_û\u0095¸_x0015_Ay~½©¡7_x0016_Aþ3ÊtÆ¿_x0014_A_x001B__x0015_SXc}_x0015_A®Sú_x001A_X'_x0015_Aò_x0010_øÔ]Ï_x0014_A&`¼@§Ã_x0014_A\u0095@_x001B_ÈY«_x0015_AQ_x0015_Í\"_x001F_þ_x0014_AX_x0012_ÞD¤@_x0015_A%_x0005_Zý¡_x001A__x0015_AOe_x0006_éi_x0013__x0015_A_x001A_\u00915ÖùÇ_x0014_AÀ_x0012_\"01\u0081_x0014_A\u0088)5Z® _x0014_A\u0085\u007f¹cpý_x0014_A\u0091+<_x0006_×Ë_x0015_AD¤K_x0004_PÂ_x0014_A\u0080>!opÔ_x0014_A\u0089æa¸ìm_x0015_AºÙÎ;_x0004_Å_x0014_A¸_x001C_\u0089¥ïi_x0015_ACàÑF^_x001D__x0015_AÜEïWãª_x0015_AOîÇ©_x0002__x000F__x0015_A_x0002_¹2_x0003_¢\u0097_x0015_AX_x000D_s\u0092_x0002__x0003_PÄ_x0015_A^_x001D_\u0087_x000C_¨E_x0015_A_x0007_Wÿ_x0010__x001D_Õ_x0014_A_x0014_:ø<èÂ_x0015_Að¯¦\u00992ü_x0014_A_x0014_}dÑ]&_x0015_Aï¥9AÝs_x0015_A>_x0006_^I\u0098Y_x0015_A*%\u009d3(ä_x0014_A²\u0081÷áíp_x0014_AjeEgá¬_x0015_A³à\u0085_x001F_v¥_x0014_Aí]äÏ¨º_x0014_A.\u009cÄe\u008f:_x0015_A@\u009aøç\u0097ö_x0014_AS8¾\u0095¯¹_x0015_A\u0082µI¦{\"_x0015_Aûj¯<ê\u0082_x0015_Au= \u009eHð_x0014_A´\t2©ñÌ_x0015_A©^_x0006__x0017_-M_x0015_A\u0098¸\u009eNë\u009d_x0014_AÑ æR×Ï_x0015_AhKGïØ_x0005__x0015_A_$ñ\u0080\u008c,_x0015_A²_x0001_\u0090ß÷2_x0015_AÁãHÖcú_x0014_A¡Õ|öU_x000E__x0015_A)\u009e8ó_x001D_t_x0014_ATÁBi§¤_x0015_AAÇ!ºÅ'_x0015_A1_x0008_Ú\u0089º_x001D__x0015_A_x0001__x0004_oú¥\u009efî_x0014_AW_x0019_|vÑÌ_x0014_Að_x0015_µF[Z_x0015_A_x000D_?/¥^ç_x0014_Aë7ù2®ý_x0014_A¾_x000C_»yì×_x0015_Ah¬_x0003_¶a¤_x0014_A±Ê+\u008f_x0003_C_x0015_A¹°_x0007_YôA_x0015_AH\u0083á\u0099â\u0080_x0015_AÌCÍÃCO_x0015_A»S¸Ä\u008a_x0001__x0015_AoÅ38üÉ_x0015_A\u0080_x0010_Ë_x0014_P*_x0015_A¢L°ô)0_x0015_Aò_x0005_ø#>_x000D__x0015_A\u0095\u009fíJ_x0004__x0017__x0015_A¸_x0008_1`1\u009d_x0014_A.ø\u0090\u009d\u0086_x001B__x0016_A\u00868\u0092Ëåü_x0014_AãX¨u²_x0003__x0015_AÍÚ\"­z_x0014__x0015_A°p%_x0011_P³_x0014_A_´µ\u009c_x0014_Û_x0014_AKã7¶m_x0011__x0015_A<}l_x0002__x000E_æ_x0015_AU%.U/­_x0015_AI\u009e_x0006_}9á_x0015_A\u0080ÖõRíÆ_x0014_A\u0094åÙËE'_x0015_AÚ\u0085\u008b\u009d_x000E_¹_x0015_AÞ]|»_x0002__x0003_§Ô_x0014_AþS\u0094_x0016_P´_x0014_A;¼â\u009a\u009c;_x0015_AÆ\u0096êÍx3_x0016_AXjáü÷_x001E__x0015_Apûù ²Y_x0015_Añ,p\u008d{½_x0014_AÆJÎ_x0002_´#_x0015_AD±â_x000E__Ä_x0014_A3^_ñd(_x0015_Ag_x0016_â_x0004_o¢_x0015_AÂ­xz/Ø_x0014_A\u008eI\u0085\u0097Q·_x0014_AkÛãb°Ù_x0014_A\u00967_x001E__x0008_2_x0013__x0015_A÷2jÛ¶z_x0015_A\u0097_x001F_EH¤\u009b_x0015_Ae}oyyn_x0014_A_x0018_\u009b\u0087ø®´_x0014_A_x0019__x001F_\u0091\u0091ù\u008b_x0015_Aé_x0013_,_x001F_\u0084_x000E__x0015_A\u009f\u008dòeU_x001D__x0015_Aß¶Wºæý_x0014_As_x001B_<\u008a\u0099W_x0015_A\u009b_x001E_\u0085_x0006__x0010__x0001__x0016_Aío_x0010_Î\u009dD_x0015_AM\u008cÛ\u008f\u0085±_x0014_Aîá\u0093»!Ô_x0014_AÓ_x000B_\u0088êUV_x0015_A3«×h_x0003_\u0097_x0015_A_x000D_r_x0004_W 0_x0015_Ai_x0010_U¥Ä_x001C__x0015_A_x0007__x000B_¢h\u007fx_x001C_¨_x0015_A_x001F_¯¨&\u0091Ð_x0014_A,¸_x0004_ûw_x000C__x0015_A=-\u0088_x001E_¡\u0089_x0015_A\u0083_x000C_×J_x0018_ _x0015_A_x0006_\u0090L¢G@_x0015_A_x0001_\u008c_x0001_²Ða_x0015_A¦\u008c_x000F_<ÀÀ_x0014_A&\u0092\u007f_x0004_J _x0015_Aò3»å£Ò_x0014_A¼R®Ç°\u008e_x0015_A>û4¬`õ_x0014_AP fÍõ`_x0015_A27\u0096T|Ý_x0014_A_x0004__x0013_]9ýb_x0015_Aô¦Åê#_x000F__x0016_A\u0083±´\u0089ÊÜ_x0014_Aâ¿_x0003_\u0084Þ¹_x0015_A_x0008__x0014_@\u0085b=_x0015_A\u0086\u0096ê\u0083Jo_x0015_A\u00868\u009bï+\u0097_x"}},{"$cut":{"chars":90294,"head":"4ad7a8d66049a7808897b14d58290397_x0002__x0005_cC\u0097_x0006_\"÷_x0018_AÒ\t\u0087_x000E_ø2_x0019_A²FØ]t\u0082_x0019_A;`e?< _x0019_A9_x0013_5Ûù¶_x0019_Akz&\u0089$ô_x0018_AIüÕ\u0080_x0004_®_x0018_A_x0019_>7v_x0018_[_x0019_A_x000D_äâ\\\u009aX_x0019_AÔ;^Ò\u009dX_x0019_AË\u0088fù\u009a_x0010__x0019_A_x000B_GZápv_x0018_Aè_x0004_Í_x001D_Â/_x0019_Aq{_x001D_u;Ã_x0018_A_x0014__x001B_?O­\u0090_x0018_AÜ]æAgå_x0018_AëU õ\"\"_x0019_AµKo)\u008að_x0019_AêT\u0089AÂ\u0099_x0019_A¨Ã©_x0003__x0014_\u0082_x0019_AÍ\u0097g\u0097­î_x0018_Au±_x000B_ÿ_x0001_\u007f_x0019_A \u0097 §cý_x0019_ANTê%\u008b0_x0019_A;_x0019_â_x001B_Z`_x0019_AM¬¸\u0099Ý4_x0019_A\u0096§)D¦u_x0018_A\u009fü_x0012_Ü;¦_x0019_Ac\u009f\u0085_x000F_v_x000E__x0019_A=jU)(ú_x0019_A\\ø\u009dLtæ_x0019_A\\Gwt_x0001__x0003_\u008d£_x0019_AE\u008a\u008a&^±_x0018_AòÛ\u0080«Mg_x0019_A=_x001B__x001D_HxÏ_x0018_A£M_x0011_\u00962s_x0019_A_x0018_\u007f2\u0091,D_x0019_A_x0019_´Å¯_x0007_8_x0019_A\u0089\u0082_x001E__x0015_%\u007f_x0018_Axçî:Vå_x0018_AÍÄ_x001F_ Ï\u0087_x0019_A_x0019_½¿_x001E_\u0096²_x0019_A¶%p_x0003_5_x001E__x0019_A+µ_x000C_rþý_x0018_AÝ_x0010_oîH¨_x0018_AÁ\u0096ý_x0005_Dú_x0018_A/T\\·B\u008c_x0019_A1_x0015_÷FtW_x0018_A:ëf¡E\u0096_x0019_A¦X×ÎtÆ_x0019_ADåzçÒ,_x0019_A_x0016_o¨ü<T_x001A_AJê¡\u0087áC_x001A_A\u009aïâ1N,_x0019_A\u009f_x000C_÷ØÚj_x0019_AR_x001D_AJ\u009f!_x0019_AV\u008c_x0005_poé_x0019_A$f`Kfµ_x0019_A³\u009aëa«\t_x0019_A\u0082NboÏd_x0018_A_x0017_\u0088_x0002_a_x0008_O_x0018_A\u0096éÜh_x0014_ò_x0019_A\u008e_x0012_\u0091_x0008_7g_x0018_A_x0001__x0002_\u0083Ë [(3_x0019_A¸/\u008an°=_x0019_AÓ´§\\d)_x0019_A®ÓãØ=¥_x0018_AÎ5b_ËL_x0019_A}ØV§ìÖ_x0019_Aà:ö_x0008_jÎ_x0018_A_x0007_b¯\u0087T_x001E__x0019_A^3_x0001_sHÀ_x0019_A2½9ý_x0004_6_x0019_A\u0086å¬sÃÇ_x0019_A\u0097\tA¦z\u0093_x0018_A\u0098Cåî`4_x0019_AÖas_x0001__x0018_â_x0019_Ap d\u0086üÆ_x0018_AvÒ\u0098#Ôa_x0019_A_x0012_\\»D¡è_x0018_Ah¾=FA:_x001A_A_x0018_e_x0017_ò{ð_x0018_A%Vk\u008a:_x000C__x001A_Aµg©ü\u0082\u0094_x0019_A®1jÃ[¶_x0018_A¹*­é¹í_x0018_A\u009c\u008b-í÷8_x0019_AÁ/\u0085_x0013_ÿY_x0019_A_x0005_á\u0082û(E_x001A_AÏU!_x0016_¶\u0086_x0019_Afä¥´£Ö_x0018_A©öXAïý_x0019_AÔ_x0010_Õ¨\u009dK_x001A_A_x0015_Åó\u008dº\u0088_x0019_Aß_x000E_8>_x0002__x0004_»Ø_x0018_A_x000C_KØ\u009c_x0007__x001F__x0019_AF.§ug_x0011__x0019_A\u0091¤ë_x000C_'ú_x0018_A\u0082z\u0090NI__x0019_A|Ì¨_x000B_\u009fA_x0019_A{²U?S¢_x0018_A_x0008__x001D_õ¨_x0004_÷_x0016_AË_x0010_\u0084|£à_x0016_A©ùê_x000F_S³_x0016_Aºl¢_x001E_¨{_x0017_A¬c\u008cI¿[_x0017_AËs c~ê_x0016_AÈê}_x0001__x000C_¾_x0017_ASº_x0013_\u0093è\u0080_x0017_Avk\u008fþ¤\u007f_x0017_A:GÊ_x0016_b_x0018__x0017_A\u0084\u008bS·Ë²_x0016_A_x0008_}\u0096\tÐ+_x0017_AMçé_x0003_ë{_x0017_Acu:\tîâ_x0016_A\u008e.b[N\u009d_x0017_A·?õVÙ\u0080_x0017_A0%\u008bê_x0012_h_x0017_AãÓ±\\\u008fm_x0017_A/Fy|\u0094)_x0017_AÁ1\u0096%:ð_x0017_A6nJa=æ_x0016_A9V1õBA_x0016_ANLõk(*_x0017_Aþ\u009b&Öô_x0012__x0017_Aä\u008d]\u009b\u0092_x0014__x0018_A_x0002__x0003_sÈ)º_x001B_d_x0016_A7pp8_x0003__x0014__x0017_A_x0013_Î_x0010_ðÛ»_x0017_A_x0016_ÈN _x0008_9_x0017_A7+Û_x0002_/Ý_x0016_A·¹ ^R¾_x0016_Aü¤ÓÈÔ\u008c_x0016_A¾«¼U_x0001_Ì_x0016_Aâ`×~}F_x0017_Ay÷\u0091._x0013_Ù_x0016_A3_x000C_ÞÚ¦\u0081_x0017_ALGZ&²ç_x0016_Am\u0081\u0080×\u0088\u007f_x0017_Aî$_x0007_\u0097\u0090ú_x0016_AGáÛf\u0097\u0082_x0016_A\u009cèM\u0085_x000E_\u009a_x0016_A\u009a©_x0013_\u0092Æº_x0016_AÕ¸«ã´Ö_x0017_AUâIA[ì_x0016_AFa\u008cP(m_x0017_A\u009fÛòÌ\"Ã_x0016_A\u0096#Vüµ\u0089_x0016_A½~ªo:Û_x0016_A]$ê\u0098a2_x0017_A\u009apù§Ëü_x0016_AÁ\u0080\tX:_x001C__x0017_A5_x0001__x0006_|_x001A_J_x0017_A_x000F_ß}\u0091ðT_x0017_Aùß\u009dbpb_x0017_A:DY¼Û\u009b_x0016_A}% Ó0º_x0016_A\u0090Ejï_x0004__x0005_´í_x0017_A-_x0001_Ùç»_x0005__x0018_A{ÙîW­g_x0017_Aò¶+MH$_x0017_A_x0002_òÝ_x0002_q£_x0016_Ap>´¦¹Ë_x0016_Aæè {\u0090i_x0016_A'<õ\u008d\\®_x0016_A_x0014_\"_x0010_(_Ü_x0016_A-ÎÉ_x001D_#Ê_x0016_AK0o¿Üå_x0016_ACg< Åý_x0016_AkéÁ\u0089¨¾_x0016_A\u009dÔg\"\\°_x0016_A\u0094\u0093\u008a^P\u008f_x0016_Ai{C^¼s_x0017_A\u007f\u0086\u009dãm._x0017_AôØë,_x000E_Ö_x0017_AÏgF®N`_x0017_A\u0085\u009f>ÿÞ_x001D__x0017_Acbè_x0005_\u0095\u0085_x0017_A*Þ\u008aÆ\"\u008b_x0017_AÓ !èD_x0013__x0017_Aó&\u0094ùfÜ_x0016_A!&+Z\u0092¥_x0016_AFÃ\u0083\u008a8\u0088_x0017_A\u0093ód\u0087_x0015_\u008a_x0017_AI_x0001_/õÈ_x000F__x0017_A\u009bc_x0007_ÜãÕ_x0017_A\u009e\u0085´º'|_x0017_AfÛ]nÙ_x0003__x0017_A½Ü\tMYÁ_x0016_A_x0002__x0003_b\u008dF\u0093\u009b%_x0017_A²MGiT_x0005__x0017_A`ëÆÜ=_x0019__x0017_A@Á_x001E_z\u0088Þ_x0016_A\u008aÕò{è_x0016__x0017_AÌÜ\u0080ô}ª_x0016_A\u0090Ý_x001C_¼6Ê_x0017_A_x0010_Z-á\t4_x0017_A09<£²\u007f_x0016_An_x0001_ÖB_x0010_þ_x0017_A4\"ï_x0018_@_x001A__x0017_A½T\u008fJé¢_x0016_A¼;ÜøW¢_x0016_Ah\u0083wôCÑ_x0016_AÂ\t~S|\u009f_x0017_A\u0085N\t«\u0099|_x0017_AÌh\u0087×\u0084_x0016__x0017_AV_x0011_ëT\u0096>_x0017_AßÙÇ¦\u0097¨_x0016_A½·j\u0090Áü_x0016_A\u0099\u008f_x0014_d^Z_x0017_AI¡¥¯×õ_x0017_AþáE£¸à_x0016_A=9Yº!×_x0016_A\u0091xò!ê\u009c_x0017_A*\u009dÐëÇ'_x0017_A\u0085_x0001_øæÁµ_x0017_A}8'\u0094\u0083_x000E__x0017_AÎþÝï_x0016_T_x0017_Aþ_x0001_ÈySÌ_x0017_A _x000C_\u008cÉ»h_x0017_AÉÐ¢I_x0001__x0004_  _x0018_A\u0096Ó_x00"}},{"$cut":{"chars":117132,"head":"204c6c6ab6eb69b599bf1567816025aa_x0001__x0002__x001A_\u0090½_x001E_°_x0004__x001C_A_x001A_\u0090½_x001E_ÐR_x001C_A_x001A_\u0090½_x001E_ð#_x001C_A_x001A_\u0090½_x001E_°_x0004__x001C_A_x001A_\u0090½_x001E_°_x0004__x001C_A_x001A_\u0090½_x001E_°_x0004__x001C_A_x001A_\u0090½_x001E_°_x0004__x001C_A_x001A_\u0090½_x001E_°_x0004__x001C_A_x001A_\u0090½_x001E_°_x0004__x001C_A_x001A_\u0090½_x001E_°_x0004__x001C_A_x001A_\u0090½_x001E_ÐR_x001C_A_x001A_\u0090½_x001E_°_x0004__x001C_A_x001A_\u0090½_x001E_°_x0004__x001C_A_x001A_\u0090½_x001E_°_x0004__x001C_A_x001A_\u0090½_x001E_pÙ_x001D_A_x001A_\u0090½_x001E_°_x0004__x001C_A_x001A_\u0090½_x001E_ÐR_x001C_A_x001A_\u0090½_x001E_°_x0004__x001C_A_x001A_\u0090½_x001E_°_x0004__x001C_A_x001A_\u0090½_x001E_°_x0004__x001C_A_x001A_\u0090½_x001E_°_x0004__x001C_A_x001A_\u0090½_x001E_°_x0004__x001C_A_x001A_\u0090½_x001E_°_x0004__x001C_A_x001A_\u0090½_x001E_°_x0004__x001C_A_x001A_\u0090½_x001E_°_x0004__x001C_A_x001A_\u0090½_x001E_°_x0004__x001C_A_x001A_\u0090½_x001E_°_x0004__x001C_A_x001A_\u0090½_x001E_ÐR_x001C_A_x001A_\u0090½_x001E_°_x0004__x001C_A_x001A_\u0090½_x001E_ÐR_x001C_A_x001A_\u0090½_x001E_°_x0004__x001C_A_x001A_\u0090½_x001E__x0001__x0002_°_x0004__x001C_A_x001A_\u0090½_x001E_°_x0004__x001C_A_x001A_\u0090½_x001E_ÐR_x001C_A_x001A_\u0090½_x001E_°_x0004__x001C_A_x001A_\u0090½_x001E_°_x0004__x001C_A_x001A_\u0090½_x001E_°_x0004__x001C_A_x001A_\u0090½_x001E_°_x0004__x001C_A_x001A_\u0090½_x001E_°_x0004__x001C_A_x001A_\u0090½_x001E_ÐR_x001C_A_x001A_\u0090½_x001E_ÐR_x001C_A_x001A_\u0090½_x001E_ÐR_x001C_A_x001A_\u0090½_x001E_°_x0004__x001C_A_x001A_\u0090½_x001E_ð#_x001C_A_x001A_\u0090½_x001E_°_x0004__x001C_A_x001A_\u0090½_x001E_°_x0004__x001C_A_x001A_\u0090½_x001E_°_x0004__x001C_A_x001A_\u0090½_x001E_ÐR_x001C_A_x001A_\u0090½_x001E_°_x0004__x001C_A_x001A_\u0090½_x001E_ÐR_x001C_A_x001A_\u0090½_x001E_°_x0004__x001C_A_x001A_\u0090½_x001E_°_x0004__x001C_A_x001A_\u0090½_x001E_ÐR_x001C_A_x001A_\u0090½_x001E_°_x0004__x001C_A_x001A_\u0090½_x001E_°_x0004__x001C_A_x001A_\u0090½_x001E_°_x0004__x001C_A_x001A_\u0090½_x001E_°_x0004__x001C_A_x001A_\u0090½_x001E_°_x0004__x001C_A_x001A_\u0090½_x001E_°_x0004__x001C_A_x001A_\u0090½_x001E_°_x0004__x001C_A_x001A_\u0090½_x001E_ÐR_x001C_A_x001A_\u0090½_x001E_°_x0004__x001C_A_x001A_\u0090½_x001E_°_x0004__x001C_A_x0001__x0002__x001A_\u0090½_x001E_°_x0004__x001C_A_x001A_\u0090½_x001E_ÐR_x001C_A_x001A_\u0090½_x001E_°_x0004__x001C_A_x001A_\u0090½_x001E_ÐR_x001C_A_x001A_\u0090½_x001E_°_x0004__x001C_A_x001A_\u0090½_x001E_°_x0004__x001C_A_x001A_\u0090½_x001E_°_x0004__x001C_A_x001A_\u0090½_x001E_°_x0004__x001C_A_x001A_\u0090½_x001E_°_x0004__x001C_A_x001A_\u0090½_x001E_°_x0004__x001C_A_x001A_\u0090½_x001E_°_x0004__x001C_A_x001A_\u0090½_x001E_°_x0004__x001C_A_x001A_\u0090½_x001E_°_x0004__x001C_A_x001A_\u0090½_x001E_°_x0004__x001C_A_x001A_\u0090½_x001E_°_x0004__x001C_A_x001A_\u0090½_x001E_°_x0004__x001C_A_x001A_\u0090½_x001E_ÐR_x001C_A_x001A_\u0090½_x001E_ÐR_x001C_A_x001A_\u0090½_x001E_°_x0004__x001C_A_x001A_\u0090½_x001E_°_x0004__x001C_A_x001A_\u0090½_x001E_°_x0004__x001C_A_x001A_\u0090½_x001E_°_x0004__x001C_A_x001A_\u0090½_x001E_ÐR_x001C_A_x001A_\u0090½_x001E_°_x0004__x001C_A_x001A_\u0090½_x001E_ÐR_x001C_A_x001A_\u0090½_x001E_ÐR_x001C_A_x001A_\u0090½_x001E_°_x0004__x001C_A_x001A_\u0090½_x001E_°_x0004__x001C_A_x001A_\u0090½_x001E_ÐR_x001C_A_x001A_\u0090½_x001E_°_x0004__x001C_A_x001A_\u0090½_x001E_ÐR_x001C_A_x001A_\u0090½_x001E__x0001__x0002_°_x0004__x001C_A_x001A_\u0090½_x001E_°_x0004__x001C_A_x001A_\u0090½_x001E_°_x0004__x001C_A_x001A_\u0090½_x001E_pÙ_x001D_A_x001A_\u0090½_x001E_ÐR_x001C_A_x001A_\u0090½_x001E_°_x0004__x001C_A_x001A_\u0090½_x001E_°_x0004__x001C_A_x001A_\u0090½_x001E_°_x0004__x001C_A_x001A_\u0090½_x001E_°_x0004__x001C_A_x001A_\u0090½_x001E_°_x0004__x001C_A_x001A_\u0090½_x001E_°_x0004__x001C_A_x001A_\u0090½_x001E_ÐR_x001C_A_x001A_\u0090½_x001E_°_x0004__x001C_A_x001A_\u0090½_x001E_pb_x001C_A_x001A_\u0090½_x001E_ÐR_x001C_A_x001A_\u0090½_x001E_°_x0004__x001C_A_x001A_\u0090½_x001E_°_x0004__x001C_A_x001A_\u0090½_x001E_°_x0004__x001C_A_x001A_\u0090½_x001E_ÐR_x001C_A_x001A_\u0090½_x001E_ÐR_x001C_A_x001A_\u0090½_x001E_ÐR_x001C_A_x001A_\u0090½_x001E_ÐR_x001C_A_x001A_\u0090½_x001E_pb_x001C_A_x001A_\u0090½_x001E_°_x0004__x001C_A_x001A_\u0090½_x001E_°_x0004__x001C_A_x001A_\u0090½_x001E_°_x0004__x001C_A_x001A_\u0090½_x001E_°_x0004__x001C_A_x001A_\u0090½_x001E_°_x0004__x001C_A_x001A_\u0090½_x001E_°_x0004__x001C_A_x001A_\u0090½_x001E_°_x0004__x001C_A_x001A_\u0090½_x001E_°_x0004__x001C_A_x001A_\u0090½_x001E_°_x0004__x001C_A_x0001__x0002__x001A_\u0090½_x001E_°_x0004__x001C_A_x001A_\u0090½_x001E_ÐR_x001C_A_x001A_\u0090½_x001E_°_x0004__x001C_A_x001A_\u0090½_x001E_°_x0004__x001C_A_x001A_\u0090½_x001E_°_x0004__x001C_A_x001A_\u0090½_x001E_°_"}},{"$cut":{"chars":104310,"head":"090913a46baf72cc6a891cde33202684_x0001__x0002_Ì\u0097_x0017__x0001_è/_x001E_AÌ\u0097_x0017__x0001_\u0088Â_x001D_AÌ\u0097_x0017__x0001_H\u0097_x001F_AÌ\u0097_x0017__x0001_\u0088Â_x001D_AÌ\u0097_x0017__x0001_\u0088Â_x001D_AÌ\u0097_x0017__x0001_\u0088Â_x001D_AÌ\u0097_x0017__x0001_\u0088Â_x001D_AÌ\u0097_x0017__x0001_\u0088Â_x001D_AÌ\u0097_x0017__x0001_\u0088Â_x001D_AÌ\u0097_x0017__x0001_¨_x0010__x001E_AÌ\u0097_x0017__x0001_\u0088Â_x001D_AÌ\u0097_x0017__x0001_\u0088Â_x001D_AÌ\u0097_x0017__x0001_\u0088Â_x001D_AÌ\u0097_x0017__x0001_\u0088Â_x001D_AÌ\u0097_x0017__x0001_\u0088Â_x001D_AÌ\u0097_x0017__x0001_\u0088Â_x001D_AÌ\u0097_x0017__x0001_\u0088Â_x001D_AÌ\u0097_x0017__x0001_\u0088Â_x001D_AÌ\u0097_x0017__x0001_Èá_x001D_AÌ\u0097_x0017__x0001_hn_x001E_AÌ\u0097_x0017__x0001_¨_x0010__x001E_AÌ\u0097_x0017__x0001_¨_x0010__x001E_AÌ\u0097_x0017__x0001_Èá_x001D_AÌ\u0097_x0017__x0001_\u0088Â_x001D_AÌ\u0097_x0017__x0001_\u0088Â_x001D_AÌ\u0097_x0017__x0001_\u0088Â_x001D_AÌ\u0097_x0017__x0001_\u0088Â_x001D_AÌ\u0097_x0017__x0001_\u0088Â_x001D_AÌ\u0097_x0017__x0001_¨_x0010__x001E_AÌ\u0097_x0017__x0001_è/_x001E_AÌ\u0097_x0017__x0001_\u0088Â_x001D_AÌ\u0097_x0017__x0001__x0001__x0002_\u0088Â_x001D_AÌ\u0097_x0017__x0001_H _x001E_AÌ\u0097_x0017__x0001_\u0088Â_x001D_AÌ\u0097_x0017__x0001_\u0088Â_x001D_AÌ\u0097_x0017__x0001_\u0088Â_x001D_AÌ\u0097_x0017__x0001_\u0088Â_x001D_AÌ\u0097_x0017__x0001_\u0088Â_x001D_AÌ\u0097_x0017__x0001_\u0088Â_x001D_AÌ\u0097_x0017__x0001_\u0088Â_x001D_AÌ\u0097_x0017__x0001_\u0088Â_x001D_AÌ\u0097_x0017__x0001_\u0088Â_x001D_AÌ\u0097_x0017__x0001_È^_x001E_AÌ\u0097_x0017__x0001_\u0088Â_x001D_AÌ\u0097_x0017__x0001_¨_x0010__x001E_AÌ\u0097_x0017__x0001_\u0088Â_x001D_AÌ\u0097_x0017__x0001_\u0088Â_x001D_AÌ\u0097_x0017__x0001_\u0088Â_x001D_AÌ\u0097_x0017__x0001_\u0088Â_x001D_AÌ\u0097_x0017__x0001_\u0088Â_x001D_AÌ\u0097_x0017__x0001_\u0088Â_x001D_AÌ\u0097_x0017__x0001_\u0088Â_x001D_AÌ\u0097_x0017__x0001_\u0088Â_x001D_AÌ\u0097_x0017__x0001_\u0088Â_x001D_AÌ\u0097_x0017__x0001_\u0088Â_x001D_AÌ\u0097_x0017__x0001_Èá_x001D_AÌ\u0097_x0017__x0001_\u0088Â_x001D_AÌ\u0097_x0017__x0001_\u0088Â_x001D_AÌ\u0097_x0017__x0001_\u0088Â_x001D_AÌ\u0097_x0017__x0001_¨_x0010__x001E_AÌ\u0097_x0017__x0001_\u0088Â_x001D_AÌ\u0097_x0017__x0001_\u0088Â_x001D_AÌ\u0097_x0017__x0001_\u0088Â_x001D_A_x0001__x0002_Ì\u0097_x0017__x0001_\u0088Â_x001D_AÌ\u0097_x0017__x0001_\u0088Â_x001D_AÌ\u0097_x0017__x0001_\u0088Â_x001D_AÌ\u0097_x0017__x0001_\u0088Â_x001D_AÌ\u0097_x0017__x0001_\u0088Â_x001D_AÌ\u0097_x0017__x0001_\u0088Â_x001D_AÌ\u0097_x0017__x0001_\u0088Â_x001D_AÌ\u0097_x0017__x0001_\u0088Â_x001D_AÌ\u0097_x0017__x0001_\u0088Â_x001D_AÌ\u0097_x0017__x0001_\u0088Â_x001D_AÌ\u0097_x0017__x0001_\u0088Â_x001D_AÌ\u0097_x0017__x0001_\u0088Â_x001D_AÌ\u0097_x0017__x0001_\u0088Â_x001D_AÌ\u0097_x0017__x0001_¨_x0010__x001E_AÌ\u0097_x0017__x0001_\u0088Â_x001D_AÌ\u0097_x0017__x0001_\u0088Â_x001D_AÌ\u0097_x0017__x0001_\u0088Â_x001D_AÌ\u0097_x0017__x0001_\u0088Â_x001D_AÌ\u0097_x0017__x0001_\u0088Â_x001D_AÌ\u0097_x0017__x0001_\u0088Â_x001D_AÌ\u0097_x0017__x0001_\u0088Â_x001D_AÌ\u0097_x0017__x0001_\u0088Â_x001D_AÌ\u0097_x0017__x0001_¨_x0010__x001E_AÌ\u0097_x0017__x0001_\u0088Â_x001D_AÌ\u0097_x0017__x0001_\u0088Â_x001D_AÌ\u0097_x0017__x0001_\u0088Â_x001D_AÌ\u0097_x0017__x0001_\u0088Â_x001D_AÌ\u0097_x0017__x0001_¨_x0010__x001E_AÌ\u0097_x0017__x0001_¨_x0010__x001E_AÌ\u0097_x0017__x0001_\u0088Â_x001D_AÌ\u0097_x0017__x0001_¨_x0010__x001E_AÌ\u0097_x0017__x0001__x0001__x0002_\u0088Â_x001D_AÌ\u0097_x0017__x0001_\u0088Â_x001D_AÌ\u0097_x0017__x0001_\u0088Â_x001D_AÌ\u0097_x0017__x0001_¨_x0010__x001E_AÌ\u0097_x0017__x0001_\u0088Â_x001D_AÌ\u0097_x0017__x0001_\u0088Â_x001D_AÌ\u0097_x0017__x0001_¨_x0010__x001E_AÌ\u0097_x0017__x0001_\u0088Â_x001D_AÌ\u0097_x0017__x0001_H _x001E_AÌ\u0097_x0017__x0001_H _x001E_AÌ\u0097_x0017__x0001_\u0088Â_x001D_AÌ\u0097_x0017__x0001_\u0088Â_x001D_AÌ\u0097_x0017__x0001_¨_x0010__x001E_AÌ\u0097_x0017__x0001_¨_x0010__x001E_AÌ\u0097_x0017__x0001_\u0088Â_x001D_AÌ\u0097_x0017__x0001_\u0088Â_x001D_AÌ\u0097_x0017__x0001_\u0088Â_x001D_AÌ\u0097_x0017__x0001_\u0088Â_x001D_AÌ\u0097_x0017__x0001_\u0088Â_x001D_AÌ\u0097_x0017__x0001_\u0088Â_x001D_AÌ\u0097_x0017__x0001_\u0088Â_x001D_AÌ\u0097_x0017__x0001_è/_x001E_AÌ\u0097_x0017__x0001_\u0088Â_x001D_AÌ\u0097_x0017__x0001_\u0088Â_x001D_AÌ\u0097_x0017__x0001_\u0088Â_x001D_AÌ\u0097_x0017__x0001_¨_x0010__x001E_AÌ\u0097_x0017__x0001_¨_x0010__x001E_AÌ\u0097_x0017__x0001_\u0088Â_x001D_AÌ\u0097_x0017__x0001_¨_x0010__x001E_AÌ\u0097_x0017__x0001_\u0088Â_x001D_AÌ\u0097_x0017__x0001_\u0088Â_x001D_AÌ\u0097_x0017__x0001_\u0088Â_x001D_A_x0001__x0002_Ì\u0097_x0017__x0001_¨_x0010__x001E_AÌ\u0097_x0017__x0001_¨_x0010__x001E_AÌ\u0097_x0017__x0001_¨_x0010__x001E_AÌ\u0097_x0017__x0001_\u0088Â_x001D_AÌ\u0097_x0017__x0001_\u0088Â_x001D_AÌ\u0097_x0017__x0001_\u0088Â_x001D_AÌ\u0097_x0017__x0001_È^_x001E_AÌ\u0097_x0017__x0001_\u0088Â_x001D_AÌ\u0097_x0017__x0001_\u0088Â_x001D_AÌ\u0097_x0017__x0001_\u0088Â_x001D_AÌ\u0097_x0017__x0001_\u0088Â_x001D_AÌ\u0097_x0017__x0001_¨_x0010__x001E_AÌ\u0097_x0017__x0001_\u0088Â_x001D_AÌ\u0097_x0017__x0001_\u0088Â_x001D_AÌ\u0097_x0017__x0001_\u0088Â_x001D_AÌ\u0097_x0017__x0001_\u0088Â_x001D_AÌ\u0097_x0017__x0001_È^_x001E_AÌ\u0097_x0017__x0001_\u0088Â_x001D_AÌ\u0097_x0017__x0001_¨_x0010__x001E_AÌ\u0097_x0017__x0001_\u0088Â_x001D_AÌ\u0097_x0017__x0001_\u0088Â_x001D_AÌ\u0097_x0017__x0001_\u0088Â_x001D_AÌ\u0097_x0017"}},{"$cut":{"chars":72426,"head":"095bd8802ec55f76392f1c404eba597e_x0001__x0003_ýj_x000E__x0001_r¬!Aýj_x000E__x0001_\"é Aýj_x000E__x0001_\"é Aýj_x000E__x0001_2_x0010_!Aýj_x000E__x0001__x0012_Â Aýj_x000E__x0001__x0012_Â Aýj_x000E__x0001__x0012_Â Aýj_x000E__x0001_\"é Aýj_x000E__x0001__x0012_Â Aýj_x000E__x0001__x0012_Â Aýj_x000E__x0001__x0012_Â Aýj_x000E__x0001__x0012_Â Aýj_x000E__x0001_\"é Aýj_x000E__x0001__x0012_Â Aýj_x000E__x0001_r¬!Aýj_x000E__x0001__x0012_Â Aýj_x000E__x0001__x0012_Â Aýj_x000E__x0001_Âø Aýj_x000E__x0001__x0012_Â Aýj_x000E__x0001__x0012_Â Aýj_x000E__x0001__x0012_Â Aýj_x000E__x0001__x0012_Â Aýj_x000E__x0001_\"é Aýj_x000E__x0001__x0012_Â Aýj_x000E__x0001__x0002__x0018_!Aýj_x000E__x0001__x0012_Â Aýj_x000E__x0001__x0012_Â Aýj_x000E__x0001__x0012_Â Aýj_x000E__x0001_\"é Aýj_x000E__x0001__x0012_Â Aýj_x000E__x0001_òð Aýj_x000E__x0001__x0001__x0002_²Ñ Aýj_x000E__x0001__x0012_Â Aýj_x000E__x0001__x0012_Â Aýj_x000E__x0001_\"é Aýj_x000E__x0001_Âø Aýj_x000E__x0001__x0012_Â Aýj_x000E__x0001__x0012_Â Aýj_x000E__x0001__x0012_Â Aýj_x000E__x0001__x0012_Â Aýj_x000E__x0001_\"é Aýj_x000E__x0001__x0012_Â Aýj_x000E__x0001__x0012_Â Aýj_x000E__x0001__x0012_Â Aýj_x000E__x0001__x0012_Â Aýj_x000E__x0001__x0012_Â Aýj_x000E__x0001__x0012_Â Aýj_x000E__x0001_\"é Aýj_x000E__x0001_\"é Aýj_x000E__x0001__x0012_Â Aýj_x000E__x0001__x0012_Â Aýj_x000E__x0001__x0012_Â Aýj_x000E__x0001_\"é Aýj_x000E__x0001__x0012_Â Aýj_x000E__x0001__x0012_Â Aýj_x000E__x0001_\"é Aýj_x000E__x0001__x0012_Â Aýj_x000E__x0001_2_x0010_!Aýj_x000E__x0001__x0012_Â Aýj_x000E__x0001__x0012_Â Aýj_x000E__x0001__x0012_Â Aýj_x000E__x0001__x0012_Â Aýj_x000E__x0001__x0012_Â A_x0001__x0002_ýj_x000E__x0001__x0012_Â Aýj_x000E__x0001__x0012_Â Aýj_x000E__x0001__x0012_Â Aýj_x000E__x0001__x0012_Â Aýj_x000E__x0001_\"é Aýj_x000E__x0001__x0012_Â Aýj_x000E__x0001__x0012_Â Aýj_x000E__x0001__x0012_Â Aýj_x000E__x0001__x0012_Â Aýj_x000E__x0001_\"é Aýj_x000E__x0001__x0012_Â Aýj_x000E__x0001__x0012_Â Aýj_x000E__x0001__x0012_Â Aýj_x000E__x0001__x0012_Â Aýj_x000E__x0001__x0012_Â Aýj_x000E__x0001_\"é Aýj_x000E__x0001_\"é Aýj_x000E__x0001__x0012_Â Aýj_x000E__x0001__x0012_Â Aýj_x000E__x0001__x0012_Â Aýj_x000E__x0001__x0012_Â Aýj_x000E__x0001__x0012_Â Aýj_x000E__x0001__x0012_Â Aýj_x000E__x0001__x0012_Â Aýj_x000E__x0001__x0012_Â Aýj_x000E__x0001__x0012_Â Aýj_x000E__x0001__x0012_Â Aýj_x000E__x0001_\"é Aýj_x000E__x0001__x0012_Â Aýj_x000E__x0001__x0012_Â Aýj_x000E__x0001__x0012_Â Aýj_x000E__x0001__x0001__x0002_2_x0010_!Aýj_x000E__x0001__x0012_Â Aýj_x000E__x0001__x0012_Â Aýj_x000E__x0001__x0012_Â Aýj_x000E__x0001_\"é Aýj_x000E__x0001_\"é Aýj_x000E__x0001_\"é Aýj_x000E__x0001__x0012_Â Aýj_x000E__x0001__x0012_Â Aýj_x000E__x0001_\"é Aýj_x000E__x0001__x0012_Â Aýj_x000E__x0001_\"é Aýj_x000E__x0001__x0012_Â Aýj_x000E__x0001__x0012_Â Aýj_x000E__x0001__x0012_Â Aýj_x000E__x0001__x0012_Â Aýj_x000E__x0001__x0012_Â Aýj_x000E__x0001__x0012_Â Aýj_x000E__x0001__x0012_Â Aýj_x000E__x0001__x0012_Â Aýj_x000E__x0001__x0012_Â Aýj_x000E__x0001__x0012_Â Aýj_x000E__x0001_²Ñ Aýj_x000E__x0001_²Ñ Aýj_x000E__x0001__x0012_Â Aýj_x000E__x0001__x0012_Â Aýj_x000E__x0001__x0012_Â Aýj_x000E__x0001__x0012_Â Aýj_x000E__x0001__x0012_Â Aýj_x000E__x0001__x0012_Â Aýj_x000E__x0001__x0012_Â Aýj_x000E__x0001_\"é A_x0001__x0002_ýj_x000E__x0001__x0012_Â Aýj_x000E__x0001__x0012_Â Aýj_x000E__x0001_²Ñ Aýj_x000E__x0001__x0012_Â Aýj_x000E__x0001_\"é Aýj_x000E__x0001__x0012_Â Aýj_x000E__x0001_òð Aýj_x000E__x0001__x0012_Â Aýj_x000E__x0001__x0012_Â Aýj_x000E__x0001__x0012_Â Aýj_x000E__x0001__x0012_Â Aýj_x000E__x0001__x0012_Â Aýj_x000E__x0001__x0012_Â Aýj_x000E__x0001__x0012_Â Aýj_x000E__x0001__x0012_Â Aýj_x000E__x0001__x0012_Â Aýj_x000E__x0001__x0012_Â Aýj_x000E__x0001__x0012_Â Aýj_x000E__x0001__x0012_Â Aýj_x000E__x0001_\"é Aýj_x000E__x0001__x0012_Â Aýj_x000E__x0001__x0012_Â Aýj_x000E__x0001__x0012_Â Aýj_x000E__x0001__x0012_Â Aýj_x000E__x0001__x0012_Â Aýj_x000E__x0001__x0012_Â Aýj_x000E__x0001__x0012_Â Aýj_x000E__x0001_\"é Aýj_x000E__x0001_\"é Aýj_x000E__x0001_\"é Aýj_x000E__x0001_\"é Aýj_x000E__x0001__x0001__x0002_\"é Aýj_x000E__x0001_\"é Aýj_x000E__x0001_\"é Aýj_x000E__x0001__x0012_Â Aýj_x000E__x0001__x0012_Â Aýj_x000E__x000"}},{"$cut":{"chars":51822,"head":"ced019e3948bd96fea510ff3818217dd_x0003__x0004_Ä¨è_x001F_\\xò@\u008b{-­\u008fyò@¨«-XË\u0096ò@z|·_x0006_ª_x0012_ò@_)\u008c°­Òñ@\"×w3sÒò@7\u009föw«\u0089ò@u_x0012_ ÙÆÅò@Û\u009dÃ\u008bÒÈñ@z_x000C_´_x0001_ÞQò@_x0007_âÜV'_x0002_ó@VWRØõ¬ò@}W_x0008_Ì\u0099·ò@n_x000C_1ô«\u0082ò@am2©G\u009fò@êJ\u009f\u0085_\u009bò@\u0088²ºJ¢¨ò@râwHx\u0093ò@d<_x001E_m]_x0006_ò@8~¾\u0084wvò@¼æÖ¾`Ôò@Yãx½_x0011_ðñ@\u009b÷_x000E_¤_x0010_©ñ@ÉÅh}âfò@Þ\u009cúVg$ò@Ch_x0014_ü0\u0086ò@¬ioÍB9ò@\u008c_x0001_+ú÷øñ@_x0019_«_Ü=\u008eò@\u008e!_x0006_O¼rñ@_x0005_aaæl«ò@\u0087Hª6_x0001__x0003__x000D_Aò@yO p²\u008fò@À_x0007_\t1\u0094êñ@*Ò;T_x0005_¥ñ@\u009cüÍu¤ôñ@_x000D_$_x001B_Y¿óñ@_x0001_\u0098_x0019_®_x0006_Éñ@ò_x000F_±Ã¯¢ò@\u0090\u009cÃE=\u0094ò@[5å\u0097_x0001_Ýñ@ú_x0011__x0003__x0018_×Üñ@ØZªò°qò@Ú\u008bó_x001D__x000D_Èò@_x0001__x0012_L×Y>ò@A9ã5¶\u0096ñ@ÄT­ëÃÏò@\u0094ÔìÒ_x001C_Dò@_x0001_ñ^\u009f_x000D_½ñ@\u0096ü\u0099\u00919\u0092ò@#j_x000E_\u0091\u0086ôò@ä_x001B__x000F_I\u0088£ñ@§\u0082:Ä9Rò@2©3Á]Éñ@_x0001_ké1ÿëñ@UÀ)1Ã§ñ@_x001D_\u0080nCÿ¿ñ@¶*·h%8ò@_x0011_Þ_x0002_w·Rò@éB\u009e¾Å\u0082ò@Ñ\u009b<üè\u009bñ@_x001A_0ôO^_x0008_ò@Ä{ì\u0097»Åñ@_x0002__x0003_;oèY\u009dßñ@ÚËÃïègò@«®\u0082³Êiò@$ôº}ðÚñ@­_x0015_+6*xò@\u0086(_x001C_I1_x000E_ò@_x000C_æ_x0010_g\u009d\u0099ñ@\tðÝEE¨ò@7c(ûú\u0097ñ@_x000E__x0018_ÎïHyò@_x0003_¢_ô_x001B_¸ñ@é{vPI²ñ@ònUkóóñ@\u0090¾B2\u009a¾ò@îÆÉV8:ñ@¤èNR\u0080~ñ@\\\u0095ôá\u009ePò@*öO\u0093$Ùñ@Ê'øN¸qñ@Øvw{\u0093êñ@_x001A_z0_x0003_Ê\u008eñ@ö{¤é\u0098_x0019_ò@\u009d\u0090íiº+ò@aöµJ\u00914ò@Àfë._x0006_`ò@XoS\t\u009f_x0017_ñ@ø§0¶w\u009añ@/\u0080<ùµ1ñ@Ñåú_x0001__x0002_\tñ@Ü¿¾_x001D_²Zò@ %|_x0014_\u0091 ò@æ_x0012_rJ_x0001__x0002_5sñ@\u009c_x001C_\u0096_x001A_Liñ@}Ö¾úm_x001B_ò@ÝF_x001C_ß\u0082\u009dò@õcqÖÊ_x000C_ò@ýl\u009e°ëöñ@nYÔ¦ _x0011_ò@À­i©b_ñ@ÿ\u0082ã\u0088G\u0098ñ@Ç|_x001D_ERÑñ@_x0011_\u008afdç­ò@°X_x0017_ñt¡ò@jó:â©4ñ@e±{8ÓÑñ@_x0017_Ëýæíþñ@/å}}Í_x000D_ò@`_x0005_\u008d¥ã«ñ@'ñçãïªò@\u0087ðÐ_x001A_2\u008fñ@Ø°Ò<._x0019_ò@¹_x001C_ÑÕá_x0002_ñ@\u009clj\u0081_x000C_-ñ@O0Lý_x001A_¦ñ@\u0090_x0007_øA \u0089ò@®)_x0003_þá_x001F_ò@X²jIîáò@Ð¨_x0015_ò¤Êò@Á#¯&JDñ@é¿_x001F_:_x0016_¤ò@\u008a\u008eýÊ_x0012__x000B_ò@f®±n_x0018_Éñ@\u0087. ®º\u009fñ@_x0001__x0002_\u007f;ÒîOVò@TYµÍ*xñ@\u0094(\u009eÃ<dò@4b<]MHò@V_x000B_¥\u0088')ò@\u00998\"Î)^ò@ä´­¸7\u009aò@Òø5\u0092_x000D_lò@î]'\u0088zïñ@L§C_x0012_&\u0085ñ@5Q\u009eb_x0019_´ñ@\u0081\u009bÓª_x0019_aò@-\u0084øÅÖÊñ@Â\u007fsZ\u009fZò@amI±_x001D_°ñ@_x000B_f[«TTò@_x0003_âG6î±ò@\u0098àLW\u0089æò@%\u0096$\u0087GØò@}tÙúo_x0001_ò@ÉqSf_x0003_vò@²\u009f_x0004_\u0091}_x0019_ò@ã!3A¸_x0002_ò@Éæ§fc²ò@IkM»[4ò@ÃwDÁõ_x001A_ò@=gY9-pò@÷\u00916µð_x0008_ó@\u007f_x0007_ìsZ[ò@\u009ec1urÇñ@¦C=\u0097Kôñ@£vOG_x0001__x0003_SÊò@Kn_x0011_ÉD_x001A_ò@\u0088£÷à_x0001__x001A_ò@J_x0014_iñ_x001D_\\ò@_x0018_ø\u009d\u008d'ññ@!3\u009f@ioñ@_x0008_\u0080_x0007_$½Zò@\u0091Â*ç/jò@$+_x0010__x000F__x0008_\u0087ò@À\u009d×Ö\u0088çñ@*\\\\\u0090®ëñ@½¦¶\u008f£Nò@_x000E__x0012_!ÆËÒò@mtéD(^ò@³ÔÁÃ_x0003_âñ@yóàDÕçñ@.\\3ãs_x0005_ò@;²¬ô¥'ò@eË\u0090__x000E__x001C_ñ@o|´\u0086_x0010_Äò@ÔRVû_x0018_qñ@¾\u0081È_x0010_¥¸ò@~m<\u00930Yñ@K8½Hyxñ@}#\u008b_x0016_®:ò@´´\u00984_x0002_3ñ@{\u0090Ö*7¡ñ@z2¦ECíò@\u0082L(\u008e\u008ahñ@äô\u009ffÀFò@[¦ÒJbgò@w+ÜH_x000F_Éñ@_x0002__x0004_\u009a¡¥_x000B_¼\u0084ò@lÞZ\u0090\u009e©ò@\u008dÔL._x0001__ò@P!_x0017_§_x001D_Åò@®\u009dwrñVò@öCÏ?ÀÉò@\u0083KÏ_x0012_\u0096Gñ@ÏúR\u0097_x000F_Gò@k»)\u0083Ï¯ò@eÄÍÔ\u008flñ@} \u0082_x0015_7\u0095ñ@_x0005_; üÉhò@_x001F_'ÂY§¥ò@Þú~É1_x0015_ò@9_x000B_¼\u007f_x001A_\u008eò@DG·ac?ñ@_x0012_É®!>²ñ@WÝ _x0018__x0018_¾ò@[:\u0092¶¼:ò@^5àv\u009a\u008bñ@ÓZeñó9ò@În_x0003_Ò¿\u0093ò@-C*{_\u0085ò@/\u0098U[æ\u0081ò@¨ßßD\u0099sò@\t_x0011_RÎ§iò@GqÅ¡Aÿò@8¤ ÒÚ´ò@pÄæ._x0017_\u0092ò@]P!\u008a~Hñ@\u008bñr¥ºBò@í\u009aÙÓ_x0006__x0008_%_x0008_ò@²rHZÇrò@Æ\u008dj_x0001_±'ò@úÒØ\\_x001A_zñ@#_x001C_®õgàò@¼c\\óÍÙò@_x0017_\u0090.\u008bÑêñ@IãÀvÁ¥ñ@¸N.}gÔñ@Å­_x0002_\u009f7­ñ@_x0004__x0003_=\u0083ÈXò@ü\u0089\u0081LÈTò@\u009b;ñ£Â¬ñ@\u0089\"bÎ_ññ@\u0089ºáG\u0082\u009dò@ÉK^\u0083_x000E_0ò@\u0085¸7òhkò@ëºñÛSªñ@Îßâq8äò@4\u0089J%\u0083\u0087ò@L\u009bôÖ«ÿñ@2_x0007__x0018__x0008_®wò@\u0087¥q\u0093_x001B_¨ò@\u0099ÜQ¨\u008eòñ@a_x0013_2õ_x000C_¾ò@{xÇ_x0005__x0001_4ò@eÕÆÀÛÙñ@Ë \u009d\u0086ZÄò@`_x000D_L7¦\u0097ò@\u0081CoQzïð@Ð_x0002_\u0093\u0091\t_x0006_ò@°U\u0090ÒÔ_x0014_ò@_x0003__x0005_b&ÂD\u0087¤ñ@|_x0017_\u0090!ünò@v0_x000F_|ó|ò@E\u0098~\u009c_\u0094ñ@u\u008cÍ_x0019_/~ò@\tu\u009e\u008bZ¤ò@_x0002_ch\u007fê;ñ@q9¨îÔ¨ò@r\u0085_x001E_Q_x000E_Çñ@ioÂ#ÂOò@¢\u008e _x0002__x000B_­ñ@U_x0001_Âr{Bò@/_x0013_9¡vMò@\u0099\u009a Ü_x0013_æò@DÇ+Æ\u00919ò@y¸_x001E_\u0083\u0091¢ñ@4ºÊ_x000D_!õñ@D$ Dÿiò@uê^_x000C_01ò@\u0080ù\u0095î¼¼ñ@qbÉ\u0097^_x0004_ñ@_x0007_þÁº\u0082kò@r_x001E_\tóu|ò@Çw3 ß\u0085ò@èm!øXdò@èÓ|Å\u0084¡ñ@ô;yÇõCñ@x²\u0080t\\\u0094ò@rñ\u0089Ø\u0089\u0097ò@_x0013_¾ÎªWÿñ@gú¹ë_x0004_\u0089ò@\u008d±óÏ_x0002__x0003_ã¹ñ@mñå_x000F_¶_x0019_ò@×¯_x0015_,_x0005_iò@þi~÷_x0002_\u0089ò@0Ïß{_x0011__x0019_ó@¶0»ç\u0082~ò@ÿ¾ï_x0001_A\u008aò@`6W\u008aÂ$ò@rµûûò_ñ@w²\u008a_x0015__x001D_\u0099ñ@ú\u0084_x0018_qõ(ò@ï?_x0006_ÍÖÍò@\u0089±¦V_x001E_zò@¸ÿ~dcßñ@_x000D_7_x0012__x000D_\u0096Ûò@_x0015_r\u009d´«\\ò@7¶7½òpò@\u008cc¾_x0006_Ë\u0081ò@Ë\u0093û_x0008_W÷ð@*ö`_x000E__x001B_pñ@\u0081¥5îMïñ@_x000D_£k_x0019_±¦ñ@_x0005_¯_x0011_¶£vð@ _Xyf\u009fñ@»Ø\u0085¨_x0018_Ýñ@¤L_x0010_Ï\\_x000B_ñ@Ö!ÝØV[ñ@õunØá)ñ@_x001D_\u0097_x0005__x001D_-ðñ@È)\u0091Âñ¼ñ@_x001F_0Vq\u008a_x000F_ñ@¤»U½¯Íñ@_x0002__x0003_¦_x0002_ÈxV#ñ@3\u0095_x0007_\u0088æ»ñ@_x0005"}},{"$cut":{"chars":53688,"head":"9f6538af1e40ed01d39155bc49a72eee_x0001__x0004_÷_Nè»µñ@¬]\u0093º_x0012__x0007_ñ@¢n=XX_x0001_ñ@·Á\u0089_x0016_\u008aïð@Ó_x0002_uÝ_½ñ@Ù¨¼ð@Cñ@#_x0004__x000B_ðÊ¶ñ@'í\u008dkÈÝð@F\u0094:ÑÄtñ@2?²Îï_x0016_ò@K\u0087\u009dñXßð@(8\u0089\"yYñ@\u0080»©!Þ_x001F_ñ@\u008dÆÔ_x0003_'®ñ@(þ>¯ê&ñ@JJÂ_x0001_Ò£ð@¢!j\u008d\u009e\u008bð@\u0094_x0001_¸íP_x0017_ò@Ç(ÇL_x0019_ßñ@çË_x0017_ËaÏð@.|1AÕ\u008eñ@\u0092óÝDñ!ñ@¤u©_x001E_áÌð@;q:_x001A__x0004_Kñ@NøÌË\u0087pñ@#\u0087¥Ùwbð@ýo\u009dÎ_x001F_`ñ@*+\u0081¹bVñ@ßé\u0092Ù3\u0090ñ@\u0080²ÛmÁ\u009cñ@¬qt\u0093O[ñ@â)Ý¼_x0003__x0004_ãÆñ@Ì\u0096qTÒ\u009cñ@hÁiÛ\u0089¸ñ@yæ_x0007_|\u007fUñ@i_x0008_7_x0002__¢ð@¨£]ò\u0087@ñ@?_x001C__x0003_UO¼ñ@Íè/¬Ézð@?=ß\u009bhâñ@_x0016_øÐÕ\t ñ@h^K_x001A_Bpð@ç_x0016_y_x001E_\u0099Ëñ@B\u0097_x0003_³Ï÷ð@\tYZ¡\u008e4ð@B+\u0093Ó\u0096íñ@â\u0087`u\u009e_x0019_ñ@\u009d_x0008_Êé[´ñ@ÐU1~\u008eqñ@vt\u008e_x0011_\u009c\u0081ñ@°²$ü_x0008_:ñ@\\èÐPd\u0085ð@\u008c_x001D_çz Èð@Þ9£\u0085Z\u0081ñ@¨$\u0083ÓÓÛð@_x001C__x0004_¤f\u0093Pñ@R«#_x0019_\\¢ñ@°\u0098òJú_x0001_ò@:Û\u0099T´Þð@[½_x0001_É\"ßñ@_x000E_~¤hû®ñ@Ð`Z[ Cñ@´\u009d°Ü1wñ@_x0002__x0003_\u009e/&_x001A_W}ñ@\u008erG«@Úñ@É\u008e_x0011_4_x0005_Çñ@`00­µpð@°@\u0091Ç¸nñ@qóé\u008d&zñ@\u0091nt<GÁñ@íR_x0005_)\u0087_x001C_ñ@\u0097ºÒ\u0096³Ùñ@(ê\u0093ïÚ\u008bð@\u0097K£\u0093Þhð@_x001A_\u0086ð\u0090\u009a_ñ@SñØ­Õ_x000C_ò@G¡p 7\u0087ñ@eOå__x000B__x000D_ñ@.\u008aà¶\u008f­ñ@+_x001B_Á¹iúð@ê8Í_x0004_¤_x0018_ñ@²µÁ_x0001__x0005_¬ñ@¯¡9Ý_x000D_,ñ@j\u0098Ìázsð@êâÐ\u0099Qªñ@*dö\u0091vÏð@b_x000E_ä_x0014_`_x0018_ñ@í6·\"ÿ6ñ@]\u0099_x0016_\u0090¿Ôð@_x0014_s`[=_x0018_ò@¥8¼ÃºOñ@ÄÐKR®îñ@\u0088(ùÇaÞð@_x0017_s\u0086@.¢ñ@ü%|ä_x0001__x0003_«_x0019_ñ@\u0093Ê+¡ 9ñ@_x0007__x0014__x000F_dÙQñ@Ë\u0091FU.Ëñ@M& \u0082û$ò@î¨V!Q¿ñ@ç\u00976¿\u0084ýð@\u0081%Yª¹bð@\u0083¹N­gÎñ@%_x0007_¢Û}Ûñ@e_x0004_~ÚMÝñ@¢Êíèx]ñ@×E\u0087\u009dnúñ@$\u0080¦³¶rñ@_x0008__x0002__x001C_'\u0097_x0003_ñ@_x0002_p¾é\u0095Zñ@á±÷Uí_x001A_ñ@Q_x0018_\u00908YÊñ@ÀÍ\u008e&1àñ@~_x000B_WÃòÄð@_x0016_8ì>Q*ñ@J0]på_x0016_ñ@Ò_x0012__x000C_ØÏÒñ@Þ×´\u008e¿Iñ@fe!_x0017_9¡ñ@:\u0092;½aõð@Òø¨P;.ñ@ã(ÆÐ\u0082Nñ@¸½âFh\tò@\tDæLZWñ@\\6)Û\u00895ñ@lrH¸Æ¶ð@\t_x000B_Ñ¼Ñ¡uÉð@_x0007__x0013_ó_x001B_ºDñ@b\u0093_x0016_½É\u0092ñ@\u00899ozu«ñ@ú\u008dG\u0083\u0099\\ñ@¨Îº_x0008_ÀÊð@Rõ°_x0006_¶_x0011_ò@-Cè©_\u009eð@ÝåÒ©ÍÒð@F\u008brS\u0096}ñ@¡ÖÌ\u008b\u0084Öð@°VCäë¯ñ@1_x0015_\u008aÅH_x0004_ñ@HA]_x0015_#Ûñ@o Ïìnbð@5§\u009fDäsñ@_x000C_R_x0003_*Àxñ@^°/È_x001D__x000E_ñ@_x0015__x0002__x0003_ö_x0005_9ñ@ï_x0014_Ôm%¼ñ@A\"ÊéÛÒñ@#_x0018__x0004__x0019_\"³ð@m_x001C_~XRÀñ@úmÜûA\u009eñ@_x0007_ï74\u008a_x000C_ñ@_x0005_*>H\u0096_x000D_ñ@&Ï:ÁZäð@,p\u009f_x0001_\u009cÇñ@µßz_x000B_ÄTñ@÷\u0083_x000E_º_x000C_ûñ@!$G\u008dZ_x0013_ñ@pÆh_x001D__x0001__x0002_ùãñ@»\u0092¿_x001E_¬üð@%)Æb~Yð@_x000D__x001E_gw>]ñ@\u0081ÎSÃ_x0012_Óð@½©·î«Oñ@\u0083Úâ`=±ñ@zÍª\u009cáãñ@_x0017_ãq_x0018__x0011_]ñ@v>ÛÿÏ_x0014_ñ@oýò\u0087_x0005_¹ñ@î/\u009c/ÎÖð@â2V¦b\u0084ñ@þÄË¡_x001B_Xñ@\u0092_x0006_\u008dHûÿñ@\u009e\u009cîæ_x0007_Mñ@ÀK\u008eu_x0002_\u0096ñ@9B_x001A_\u009dt_x001A_ñ@|_x0012_×\u0092_x001D_sñ@\u0081v\u0093¼g^ñ@6HF»v\u008dñ@_x0015_9WF\u008b_x001A_ò@,¢ f¤\u009añ@_x0018_ü_x0004_Á_x0008_\u0082ñ@=ißÎ°\u0095ñ@bM«nÞ¥ñ@_x000C__x0018_\u0095_x0010_ø\u008cð@_x0015__x000D__x0019_îyÞñ@_x001A__x0015_.ù¨Hñ@Ò7\u0081áþCñ@\u008dÃ'pw*ñ@\u00922,È\u0096÷ð@_x0001__x0004_0\u0090éO\u0094Öñ@¬+o[AÅð@\u0082þ¨è8ñð@\u0099Ò\u0087¿\u0082\u0089ñ@|L{q_x001C_àñ@ïfý\u0090\u009fKñ@¿ÞE_x0003_°Tð@D\u0095®ìp·ð@®n_x0017_H°\u0099ð@¯\u0084ú\u0085;iñ@E\u009cú_x0014_XOñ@_x0007__x0002_$°'­ð@_x0010_\u0093Ù¥ÍÏð@z¾S^päð@._x0010_Ð^_x001B_\u008bð@6£N\u0083ë\u0085ñ@7Ã_x0005_¨M¡ñ@_x0019_÷l_x001D_Ã\u0093ñ@.¢Jñ\u0082åñ@_x0001_e®'±_x0011_ò@\u007f\u0094j¾7\u008eð@_ûçã·_x001D_ñ@®øsu_x0014_çñ@H<I°»{ñ@H¼!UÒ_x000B_ñ@_x0018_\u009e_x0008_¯a9ñ@_x0007_æ+\u0085hÞñ@\u009aTfC_x000C_\u009añ@\u008c_x0016_!_x0018_\u0094_x001A_ñ@Å¾6_x0012_Ã_x0014_ò@FXJiu_x001B_ò@\u008bß\u0083¾_x0001__x0003__x000D_©ñ@QL¾ Ï¢ñ@º_x0005_õÂ\u008eñð@_x001B_»öÿ_x0010_Üð@_x0008_\u0097lÈç\u008bð@!c[14_x0003_ò@`J\u009f{\u008b'ñ@éë\u0081§%?ñ@Rkle_x0001_Ëñ@\u0084\u008d_x001C_\u0095\u0083èð@uÏÚakSñ@_x000C_µéõ^\u0083ñ@7!©_x0002_²*ñ@\u0093GÙ_u*ñ@\u008e\u0086P_x000C_\u0092ûñ@_x0008_úÒT¯ ñ@po_x001A__x0005_¿Jñ@_x000C_£]_x0013_]¯ð@:B\u008f¥À¢ñ@¾7 !MÈð@¯2¡\u008cÕ\u008cñ@\u0090\u0088:Å­ûð@£L+\u00948%ñ@Xô½ó_x0011__x0001_ò@zì\u0084p4sð@ð_x001E_ç8ôwñ@T$_x000E_áû:ñ@Dj\"ê¥uñ@¼»\u0086_x0014__x001C_&ñ@ªZT\u0094\u0099Iñ@Ê_x000B__x0010_V\u0086cñ@_x0012_ár_x0019_<[ñ@_x0002__x0006_h_x0017_ñ\"Õ\u0096ñ@úRkÏOCñ@ç·wwãßñ@_x0002_¿w\\_x000E_<ñ@ÚÛ7âõdñ@Î³_x0017_Kñwð@ñÔª\tèÏð@óK4_x0006_>_x0008_ñ@;¡_x0013_\tÝÀñ@I°Ï_x001E_'/ñ@_x001C_a\u008cù_x0004_\u0085ð@_x0016_)lfûcñ@a\u0085_x0005_1w¨ñ@À\u0082\u007f¡¤^ñ@vp¸¨_x0018_bñ@ÿ­Ð¤çùð@¥\u0085_x001B_0;;ñ@¯\u008c®|_x0018__x0006_ò@ _x0011_ ±\u0092bñ@}YJÖá7ñ@ec?qÅqñ@¬p\u0083Àá\u0080ñ@\u007fÉ±_x0017_4©ñ@pè\u008fá\u008dWñ@¾\u0091Ì­+éñ@_x0003_U_\u008c\u009f\u0091ñ@GÇ_x0016_<!\u0090ñ@_x000B__Çû£#ñ@ð\u0097_x0001_$_x001B_æð@»./¥EÜñ@Cg_x0004_Á_x0007_\u009cñ@Û¯ç@_x0004__x0006_ÊLñ@Y6/æàzñ@áRÜ-fµñ@_x0003__x0005_£÷Ç²ð@0Ò\u009c_x0002_=8ñ@_x0002_Ý_x0015_/ê\u0096ñ@dK\u008b\u008ar»ñ@2_ôß+_x000D_ñ@âÃ6\u0094»]ñ@_x000C_±RJ_x001F_Ãð@Â\u0097{v_x001E_¼ñ@_x0016_C\u008a_x000F__x0007_úð@ZAî_x001E_\u009b,ñ@â\u007fð`Î\u0080ð@\u00956_x0014_¡×åñ@(rK_x0016_Î^ñ@ªK\u0092Ô¨Hñ@~[\u0083\u008f_x0004_×ð@Èñ%*ø2ñ@òöU_x0019__x0011_¡ñ@á_x0013_dóë/ð@\u009c_x001B_rfä,ñ@öxÆæ\u0090±ð@~Çý§\u009cêñ@_æÿÞØáð@\u0094_x0001__x000F"}},{"$cut":{"chars":51414,"head":"10a9b731d129beb02e0e57e2f91563a9_x0001__x0002_Üª_x001C__x001E_ÁÁö@Zac²_x0015_Zõ@_x001D_Ò¥Lîmö@\u009eb4ù=Çö@KÛg_x0010_hÁõ@á|ÌC \u008eö@¶f_x0004__x000B_ \u0092ö@O\u0093å[\u0093E÷@*\u0080_x0007_.ò«ö@W»¶\u0085g_x0019_÷@_x001F_Eä$y¬ö@Xô½_x0004_|zõ@Ï\u0091ÈR|_x0010_÷@sçc_x0016_ý_x0003_ö@\u0098Ô\u0093#=Öõ@Î·ÂhTºõ@K¶?\u0096Rm÷@\"_x000F_\u0083Àu9÷@r\u0089;z\u008b_x0016_÷@\u009bI'\u008a\u009a\u0097õ@ÂÕ_®½_x0010_÷@Ó!\u0091å\u0087¤õ@øND\u0089\u0085\u0081ö@zB®b\u009cs÷@kïX\u0084_x000B_Èö@7.d4û¡ö@\u0095ðÚ:ðjö@_x0015_ÑU ®$÷@¿\u0090\u009cÖQ¾õ@j\u0097\u0096êoÀõ@ù~åJ_x001C_'ö@%_x0018_g._x0003__x0005__x0002_oö@\t_x0017_Ó¬ë_x0019_ö@_x001C_\u0096,\u008c1^ö@â/_x000B__x0003_N\u0091õ@ã\u0091\"¢u¸ö@a/Î)ë_x0016_÷@\u0086g_x0016__x000B_­3ö@§ÆTC|)÷@-\u0092_x0017_8äüö@mñÝp²Ôõ@\u0096Ï[\u0099ã´ö@¹á9tèn÷@ÓAÄ¯®Æõ@Nj_x000B_:_x000F_W÷@é\u00966ÞÌÌõ@\u0082åLëR1õ@¼ñ[Ä_x0001_\u0093ö@\u0088Êç!V\u0089õ@_x001D_iNVÁ7÷@3ì\u0092\u0088Õòö@\u00868¥¼¹1õ@ ÆÔ;¾tõ@tÅÎØÆíõ@\u0097ÍWM+_x0018_ö@Â/úvP0ö@_x0012_OÏÈ×qõ@\u008bQ\u0098¾3_x0006_÷@5Ýa/×zö@_x0007_¢bNÑ\u009fö@\u009f)Å_x000B_UOö@¸\u0084G\u0080Èõõ@&#_x0004_óï\u009bõ@_x0005__x000B_S\u009fí#ã*÷@h_x0002_j®ÌNõ@_x0003_Dý\u0083_x0008_ðö@ÒÌçõ(L÷@Â\u0082_x0011_t·~ö@É¸P{{Èö@b¡¤ÕëÄö@_x0004_á¶_x000D_Ýqö@Ê,+ó_x000F_T÷@\u0081t'ÓL&ö@\u008e%_x000E__x0006_³5õ@_x000C_S\"ø`_x0005_÷@ UQ\u009d}aö@¦\u0091_x0005_¹å ö@PßÅ\u009b¿Xö@>d\tuPðö@\u008bòÌVÞD÷@_x000F__x000B_\u008aý_x000F_õö@;_x0013__x001E_×Ø_x0001_õ@dx¹\u009fêÚõ@?È4¤\u00966÷@Ü:ôTÏÊö@¨k_x001A_¿ÈÂö@_x0005_>_x0006_\u0086>_x001C_ö@_x0004_ugô¨-ö@PM_x001B_!\u0088¢õ@NõPþÅÐö@7Ô\u0080¹îHö@\u0098¿\u0087Êüñõ@tx<ºA_x0012_÷@\u0096&\u008b8íàõ@_x0007_\u0084>*_x0002__x0003__x0003_¼ö@$¹æ\u0082_x0001_¶ö@\u0091\u009aùã_x000D_úõ@_x0012__x0015_È<m\u0093õ@_x0016__x001A_¹Î$Õõ@qV_x000B__x001E_®¿ö@á­_x001A_+\"Ñö@2a&õ^5ö@ºÞú­_x0018_âö@ÉlR_x001F_X_x0006_÷@\u0084\u008e@\u0083\u0096_x0006_ö@Ú¢ð\u009bi¼õ@ñ_x0016_U_x000F_}_x0008_ö@sÑT_x0010_»\\÷@Ù¡_x0005_/% ö@àÛ_x001C__x0013_$s÷@\u0082)LöÐlö@xòNáÉ¾ö@\u0080_x0004_ç_x0006_µ'ö@\u0094$_x0005_¡3pö@_x0006_«ïMWPõ@Ðex8Ò3÷@\u008cÌ.G_x0016_)ö@ü1\tñÀrö@\u0096_x0017__x0014__x0014_ß¬õ@AèÔ\u0081\t_÷@_x000E_à*ï\u0095\u0087ö@_x000D_æ¯@Øæö@c(×!Ì²õ@6^\u008eÈeãö@_x0001_¬¨\u0089T+ö@q*_x001A_Ó´_x0016_ö@_x0001__x0003_okÅ_x000E_¥+÷@yß±\u0086­,ö@<X_x0002_\u008a§)õ@·{!\u00890\u008f÷@i\u009a&é¶\u0087ö@ò8ÑA\\\u0097õ@'Aî\u0097â\u0086ö@_x001A_+K\u009fsuõ@t\u009f_x000C_0ê.ö@£Ãtq·Ëö@\"ÇåR¦\t÷@ãöO¤\u0095?ö@÷ûU@\u008eæö@_x0001_\u0085\"Õå7ö@ÔýN\u0084³Àõ@×_x0012__x000E_q&ùõ@F-«½,¸õ@\u009d_x0001_ÿÐ_x0006_«ö@æ_x0016_ìëX\u009fö@_x0018_\\r_x000F_Æ_x0005_õ@\u00893,Ú\u007f¤ö@KÙÿóò_x0013_÷@v\u009a^\u0088d_x0016_ö@_x0012_eU¦Æ,õ@7ÿm!'Âö@õ7[ê£\u0087ö@í_x0005_\u0081ê½$ö@Í$@í¯üö@»_x0003_Ä_x0003_2_x0010_ö@4ßèYs_x0010_÷@oó×MÉGö@NxBÖ_x0001__x0003_\u0084³ö@íçÈ\u0098¦­õ@\u0095Ýcµë§ö@÷ÞHeôsö@u¢\u008d#SÎö@le\u009aÙ\u009c»ö@+8\u0083_x0019_õàö@dî_x0003_\u008a\u0087Æö@»R\u009brÿ\u009dõ@î~Ì\u0085_x000F_èö@ßl\u009c*|9ö@0ÕÇ_x0014_Îùô@ªµ45¡Wö@_x001F_å¢_x0017_\u0089\"÷@é·\u0081B_x001D_øö@h_x0010_´_x0016_\u0092Gö@q+_x0005_í#»ö@K3a; Òõ@\u008f\u009dó¢J_x0017_÷@%\u008c¸$¶]÷@\u0088F3.h}ö@Ò§.ÁÀÇö@\u0096_x001C_÷_x0005_Z6ö@\u0093n\u0087Ø4_x0007_ö@ÍÇõ\u0091-8ö@\u0092VfKæûô@_x0014_Ù®\u009e_x001E_Cõ@\u008b\\\u0096A_x0011__x001F_÷@rÂÅ_x0002_¾Îö@w_x0015_KHäx÷@\u0088¬)øÑbö@ðöÂ_x001A_f$ö@_x0001__x0003_ÀÅ¶P´pö@Î¼2#_x0008_\u0087õ@úÎÓÈ¢0ö@¿+Þ'_x0016_÷ö@«\u009b\u008e(=Mö@>QGÎüHö@ÎqHÜ!\u0089ö@Îm_x0010_Ì_x0013__x0019_õ@Ý\u008bCñ)\u0092ö@SÅv\u0081©|õ@zô\u009f\u007fÜÐõ@»\u009b\u0082T¹\\ö@&¤îí¤<÷@_x000C__x0011_¼\t¹=ö@_x0014_á(Üºbö@o\u007fk÷_x0002_)÷@_x0017_vøí#ìö@_x0014_Î\u008cß,²ö@\u0092\u0090Ï1¬\u0095õ@ø3$ÃPõö@B ÈÈÅE÷@_x0013_Cµ_x0017_+\u0097ö@_x000C_êãc\u0089\u009eõ@_x001B_\u0087£_x0005_à,÷@êÔ _x001B__x0011_c÷@Ñß\u0090\u008e,òö@_x001A_k\u0091\u008eü\u0095õ@È\u008c\u007f[_x0002__x0006_ö@]³^l\u0085ùõ@à#n 1_x0014_õ@l¾_x0012_ù$Íö@erÉF_x0001__x0002_@7ö@6»ê°\u009d_x001A_÷@U\u0090Äo$0ö@_x0006_°±ÊÙüö@¬%\u0096º­,÷@¯×p¯\u0099ýõ@5H«Àó~õ@Èévyx\u0094ö@¶Ñ¬ïÙØö@\u00962N\u009eéïö@Fs\u0098ëù_x000B_÷@|_x0008_ï\u009bCÏõ@ìÎè¶ùáö@ã0à²n×õ@¯õ°_x0005_cøö@\u008a+dwÔVö@_x0012_kÿÂH ö@¬ú\u0084­\u008e<ö@\u009aè±y*p÷@{¥_x000F_\\=Ýõ@³ý¿|ZLõ@¤:\u0082\u0099\u008f9ö@<Xr_x000C_ø_x0016_ö@_x0011_ãßÑ*Ûõ@¸0ÚÙ¡_x0013_÷@²L¡\u008eË_x0003_÷@\\\u0086l\u007f§·õ@çPÍá\u0091\u0094ö@û=¨Ð\tîõ@ß_x0010_\u0089féæö@ v&r_x0015__x0001_÷@_x0017_-Í\u008au_õ@_x0001__x0002_Þd­E*òõ@¶'¶D=*÷@Ç!=j\u0081\u0080ö@6YÊ\u008an`ö@$_x001C_È\u0089»l÷@\u009c\u009e¶Jÿ\u0081ö@#_x0001_ÕÃ]nö@ºH\u0084m`9ö@Ù»\u009b\u0094£ýö@VÓ%à_x0011_\u0091ö@Â_x000F_\u0084ß`_x000D_ö@_x0011_\u008f#QKñö@ønR\u009f£Ýö@±ÇeQshö@\u0091¯_x0002_Åçqö@å;_x0005_ÖÞ-õ@Yú;\u0096\u009a+÷@²w\u0097]=»ö@Qð°_x0006_M\u0086õ@_x001A_ØÜNÙB÷@U5Hw:Óõ@WÑù8®^ö@40\u008bÝ+\u0089ö@ni_x000C_-ãýõ@\u0093Àý?÷¿ö@\u008d\u008eçZÑ\u009cö@_x001E_$É\u008eë<ö@\u008eð{v^¶ö@æ\u0090q_x000D_#¨ö@_x0004_r\u0084¶\u0083§ö@*\u0091ò8[ôõ@_x001A_Ã3»_x0002__x0004_ì\tö@Íö1)¦ûö@ó_x0013_P£_x0003_rõ@Aú[¨ç\u009dö@´º_x0003_´\u0087²õ@_x0016_&ís:_x0005_ö@\u0086È%êÕ\u0081ö@\"ÿFÆÙ_x001D_÷@Û\"9Ã_x0014_Åõ@³[§¥h»õ@_x0016_}ü®1(õ@\u0088PÑ©bWö@È»ÿÀ;äö@´_x0001_÷2D,ö@ù\u009bK¼_x0014_\u0094ö@\u0086\u009cùPæ4ö@\u009a_x0014_Ò_x0014_6.õ@]âu_x0002_Ý·ö@ã\u0080W$\u0089ßö@&ê\\¦_x0019_;ö@u\u0082¦¤Yàõ@\u0097_x0004__x000D_ë¾Iö@\u008d$Bð¼\u0088õ@_x0019_\u0094~$^µö@gyÃ\u0084V\u0081÷@èðEÉò\u0099õ@Ø\u009e¢0£_x001A_÷@_x001C_ô#h]\\ö@\u0097ÿm_x0010_\u009abö@ûéû×^\u0092ö@©¶\u0094\u008b\u0082Aõ@Dw_x0008_Óæ·ö@_x0001__x0004_·\u009cWÀÚ_x000B_ö@¸\u009djh_x000B__x0014_ö@Çº\u0090]}åö@_x0007_í_x0003_\u0098_x0002_x÷@QI¼SÚ¨ö@_x0016"}},{"$cut":{"chars":53856,"head":"eeb37ec7accf82e2f0afbf238cf6a0be_x0007__x0008_!|à_x0001_Xb÷@ÓgËÚ§_x0014_÷@ù4\u00894\u009fn÷@\u008cAUo½º÷@Ö_x001D_· Æ@÷@_x0006_o_x001F_Ýnÿö@4è_x0002_\u0082ëX÷@\u008eUÃÌ?\u0097÷@î_x0016_w«=F÷@ö_x0005_rêz)÷@\u008cgo· Ë÷@ÕÏÐ \u0089\u008b÷@E;¨\u0098ä&÷@:u¦¤x¼ö@e.Þ\u008c _x0003_÷@£\u008c7\u008ewùö@®q\u0090.p¦÷@Æ­_x0008_Å\u0082\u0099÷@\u009aÔÙ{\u0086j÷@Ìî²øF\"÷@4×\u0094à\u0089_x0011_÷@ñ_x0006__x0018_\u008f_x001B__x0016_÷@bi\u0080ºÕi÷@Ô\u0093Ì\u009dG\u0090÷@Ò*ZÐ\u00871÷@}=\u0095ãª\u009e÷@ö´®_FL÷@Ð\u009bUðª_x000D_÷@\u0080\u0086©_x001A_'~÷@WÂ_x001E_Õ_x0004_ª÷@céåOé\u0081÷@çZDY_x0003__x0004_ö`÷@_x0007_eòÝ×a÷@_x0016_%0iÇJ÷@LÈ\u007føüH÷@_x000C_¨ºÍ7§÷@?Ý_x0010_\u0087º\u0091÷@õøS\u008aú2÷@DL_x0005__x0004_lª÷@J_x0014_¦^Xy÷@êø_x000C_`¿\u008c÷@Ô£X,\tB÷@e\u0094Û<?+÷@ýkHQ@d÷@W\u00885ç½À÷@0_x001A__x0005_,_x001A_]÷@9\u009d*Z\u0092F÷@WÛ_x0016_·_x0011_©÷@»>\u0086A&_x0018_÷@_x0004_c+Wf\u0088÷@#Þéû\u0087×ö@ï4t\u0088e\u0092÷@ýçÁ\u0080:¨÷@|\u009cº_x000E_FS÷@0aûÅ\u008e*÷@u*ê\u0091¦¬÷@_x000E_` &_x0001_ôö@)_x0002__x001E_¥Áw÷@_Su Á\u008a÷@½Á*+_x000E_¤÷@ÈA_x001D_¬\u0097_x001E_÷@_x0016_U¤_x0010_j]÷@L\u007f\u0083_x001E_¯\u0081÷@_x0001__x0002_ÑvuÍ\u0083o÷@_x000C_[_x001A_l_x0002_°÷@\u008dõ_x0007_\u009eÀ\u009a÷@6|3¡%P÷@~\u009bâô]\u0087÷@'Kº:_x000F_c÷@\u0094À_x001C_©-Øö@d6l}o\u0096÷@çXH\"|¾÷@^­\u0084.iw÷@\u0090_x000D_/¶Ò7÷@\u0096<½<\u0088d÷@X«B_ÿ¿÷@¼(ëYi×ö@_x0015_ø¤\"_x001F_\u008e÷@gï\u009bíüôö@S~Y_x000E_N%÷@³?Õé¿¶÷@_x0004_ãÕõ>_x000F_÷@\u008cí_x001D_VUâö@\u008bëÝ>Uûö@ðá_x000D_àÈ®÷@\u007f\u00924õÐe÷@\u0097\u0098,«¯f÷@Ua9\u0094=8÷@º_x0012_\u008c_x000E_k\u0099÷@£¿ëÊU\u0082÷@Cº\u009c§a'÷@©-[\u0081aG÷@Év³öô\u0093÷@»+½\\ÏE÷@ `\u009bû_x0001__x0004_å9÷@êdR¨\u0082_x001A_÷@`ñGÇ+²÷@mÒ¥²É¶÷@Ü\u009døÂ/¢÷@ô_x0015_J\u0089$/÷@ýöiÝSm÷@kà_x0005_\u008f,]÷@eH_x000B_<Ò®÷@_x0002_ê¿´:îö@°_x001A_®\u0099jZ÷@Ë\u0088_x001A_'¥¹÷@\u0087\u0090Oµé7÷@§\u0086½¨©X÷@\u008a\u0099\u0092\u009f_x0003_#÷@ë±\u0087 \tÖö@*ê\u008aíØ<÷@\u0098_x0005_\u008b,2~÷@s©Ì\"7Ç÷@BÙ«_x0003_\u008db÷@âlÃM_x0017_P÷@\u0096\u008dY_x001A_\u009e<÷@8Ìd\u008c_x001D_¨÷@\u00935x¼SC÷@\u007fË\u008a_¡_x0003_÷@P¤QÃ_x001F_h÷@J«\tÄ&Ãö@\u008d\u0088«\u0081½]÷@áY53ã_x0012_÷@:_x0018_ðl«\u0081÷@Î\u009d_x0015_úe\u008a÷@´²\u00851\u0091\u008e÷@_x0004__x0007_Æsú¡_x000D_¼÷@_x0017_\u0096ÿiÿh÷@â8mK¾\u0094÷@\u008aóÇ\\\u0090óö@¾÷Ô_x001E_®g÷@ªº?zIX÷@9Gl¯}]÷@Ô d\u009dàúö@_x0007_ÅsZ\u0088g÷@ÔÍÀ¥4>÷@\u009a_x0003_kO_x001E_×÷@êAIg¶­÷@M\u0098vÔ²_x000E_÷@oqÌsÓA÷@^³\u0094\u009c&_x001E_÷@0Øì_x0006_Q©÷@ñ_x0002_úÜÖ_x0004_÷@kÓZp;_x0017_÷@gð_x0017_Üô\u0097÷@/ß4$y.÷@;´\u0082t_x0001_\u0096÷@wW_x0019_ÜHJ÷@l_x0012_*\u0098_x000C_6÷@÷Á´¹@l÷@HÖ1_x000B_×¼÷@\\¨²5¹S÷@\u008c)w¤ëæö@{Ì\"ÿ\u008ac÷@w_x0016_}Â_x0019_óö@¤6\u0085ë\"ßö@^ô\u0088§\u008b_x000F_÷@_x0005_¢ÂÜ_x0004__x0006__x000C_\u0081÷@)\"=DÙ\u0095÷@;\u0082N@B&÷@gKG_x0012_É\u0095÷@ÀÓRüíZ÷@_x001F_RÃ\u0095BN÷@¤fpõÒZ÷@å5©\u0084>:÷@0@\u007f$fK÷@ýÆ©VøZ÷@_x001D_uÿ\u0093ëf÷@\u0080_x0015_ñq_x0002_\u0080÷@\u0094pTÝ¥|÷@¬H[\u0097:\u009c÷@vtL\u0085_x0014_M÷@_x001F__x0007_ó~¡\u0099÷@KÊ×\u00896[÷@_x000E_2ÌÚ*.÷@ÿo{\u008b\u009b:÷@\u009e³bÐ3\u0096÷@\u008e\u0092\u009b\u008a\u008dH÷@õÜ_x000E_q#\u0099÷@)ä\";À¹÷@\t!_x000C__x0005_\u008cm÷@=_x0003_ÏàK¤÷@ÿ_x0007__x0017_'·|÷@_x0003_9Y8î´÷@¾_x001A_\u009eÌ\u008c8÷@_x0012_<)Àôåö@\u0082_x0001_k9_x0012_\u0083÷@_x001E_´VÑ&2÷@n«F÷_x0017_t÷@_x0002__x0005_\u009eÖ!uÀ_x0018_÷@ÐÊ_x0002_ÆÏ1÷@B_Óv¿\u0085÷@ÿ=_x0003_K.\u0099÷@\u008f6s$_x000B_\u009dö@«î/¿¾\u0080÷@%ÁØ\u0099K_x0017_÷@rFÃi\u0080@÷@BªX_x0002__x001F_V÷@_x000D_í|V©\u007f÷@ÄUû\u008ea=÷@Î\u0090[µÌ_x0005_÷@ÜV_x0001_+Ý_x0004_÷@\u0081æ\u0088¿)ûö@ù_x0005_øGÐd÷@×áî\u0089û_÷@À¶ÿ\u008c_x0017_a÷@ìº¬pÛ}÷@uW-íÌ¡÷@GÓs´\u0087_x0011_÷@_x000F_7_x0011_Á_x0012_h÷@¸2rÉ$A÷@|\u008b^\u0093_x0006__x0010_÷@¹áÆC<Y÷@_x001C_ßV_x0003_¥z÷@Ò_ê_x0002__x001E_âö@I0&x7i÷@\u008bY\u009a6bK÷@ì_x0007_TÚ¶ûö@\u008bÓñé,¼÷@nÎ_x001D_*_x0018_®÷@²_x0006_f\t_x0002__x0004__x000E__x001C_÷@ÌV\u008c?_x0015_Åö@´\u0084Ê_õ:÷@_x0007_´_x0002_<\u0089F÷@_x0006_í¼E_x0013_d÷@\"_x000B_\u0097VZ_x0018_÷@wûLh\u0089\u008c÷@|Owu1^÷@Ò>ÏBY\u009b÷@AÍ5\u008d}}÷@\u0094\u009aæC¹_x001A_÷@\u0089bëî\u0087º÷@P_x001B_8ï_x0007_h÷@ÛË×Ùåöö@ñn]_x0015_99÷@©]_x000F_\u009fù_x0019_÷@2gjt~<÷@¶]¹i£V÷@ßåE?_x001D_\u0080÷@º_x0013_2_x0019_ËE÷@ö\u0097_x0001_?`,÷@ñ_à\u0082ìM÷@ô\u0084Ür:²÷@Òë\t¢º]÷@È²\u007f«V\u007f÷@»_x0003__x000C__x0014_Æ ÷@#å_x001E_{>¤÷@vïÍ×o_x0012_÷@3°\u0091ÛW¶÷@h³Ôì\u0085I÷@ª_x0002__x001C_·õ\u0097÷@_x0003_P\u0092T\u0089òö@_x0001__x0002_bÎÜ_\t_x0015_÷@&©ßO\u009eV÷@E¿JÎ\u0090J÷@4u+\u008e#É÷@ý÷v>n@÷@Ï#\u0088p,\u0080÷@_x0017_\u007f_x001F_Óü¢÷@_x0013_\u0086\u008bQS¶÷@\u0084aÉ\u008d*.÷@\u0088¯_x001C_·ÆV÷@\u008d<saÖ\u0081÷@2o_x001C__x0010_8?÷@Jé;x>æö@H_x0004_\u0084¼ê®÷@»ÿv_x0010_\u0099\u008d÷@òö­¦_x001B_\u0083÷@Ï¨¿\u0093_*÷@_x0004_¦\u0089ÏÀ¤÷@&Ø\u009f³_x0005_\u009c÷@«_x000E__x000C_\u008bö_x0014_÷@|\u008359^È÷@\u009câ©·7³÷@J\"!O_x000D_óö@{ÎqÆá*÷@Ûf_x000B_Ww¬÷@äõv\u0083Í§÷@æ\u009cëç¶º÷@_x001A_¸\u008d£ê^÷@ÞN_x0016_R\u009ft÷@¬_x0019_¹!_x001A_²÷@òæÐ\\·Y÷@_x0017_ÅÊü_x0001__x0003_F\u0082÷@\t\u008e\u008f¦E\u0093÷@Ïh0A\u009a_x0010_÷@J°<_x0001_¦@÷@1\u007fÏ>_x0001_§÷@;DÐ\u0097_x0003_Z÷@_x000C_\u0092âtþ3÷@\u0099¡\u0084\u008a@£÷@_x001D_Ì\\\u008b®V÷@y\u0099\u0086\u0094Ô)÷@>À_x001A_f\u008b1÷@\u0093±\u008f=Y)÷@_x001E_\u009b\u008c'_x000C_\u0098÷@f_x0014_çPT®÷@BE¢½þ£÷@üóÏ©£P÷@6_x0019_ts!\u007f÷@÷_x000B_\u0091\u009a\t2÷@0Z]6wB÷@=¼\u0097¯WÝö@\u009b7å]\u0082{÷@t\u0098é©¥Ñö@çNÄ\u0091Ña÷@_x000D_ÇLòM_x0002_÷@>êõ¿Á¨÷@_x0018_\u008d¹¯_x0005_u÷@Ë¶à·½¿÷@_x000D_¡OtÅ_x001E_÷@Nø´_x0017_$\u0089÷@cDáç_x000C_±÷@ü¿W\"\u009a\u0099÷@_x0010_çó_x0006_WÞö@_x0003__x0004_-èx\u009fWr÷@M_7Bú§÷@oÖP`ö\u008d÷@õÈ_x0003_\t_x0019_y÷@_x0017_\u0093`\u008fÆ¼÷@"}},{"$cut":{"chars":56874,"head":"d2820f57073159403682017755267446_x0001__x0005_\u009céo±R\u008c÷@_x0003_\u009amx_x000E__x0005_ø@_x001A_\u0090\"R\u0093¡ø@ÚÀ°úå2ø@i\u009f®_x001F_W_x000B_ø@ÅÛé!e\"ø@1¢\u009e;_x001B_Ã÷@×%Å$RNø@na\u0089e\u0087\tø@+_x0012_$ËäOø@\u0080æ9jæØ÷@Íë_x001F_@´Æ÷@Ò\u008aB\u0098(Ú÷@X_x000D__o Y÷@R\u009dýØi_x0015_ø@ÍÎ_x001F__x0003_<@ø@ÝX\u008a¼\u009cKø@\u008bL\u0085¾öû÷@_x000E_èG'n*÷@)\u008fJ_x0005__x0002_\u0084÷@1#ØmPí÷@btÄ+Ø_x0011_ø@¯<_x0003_ì\u0090#ø@!ñ _x0005_é\u008c÷@6sÄ2·lø@f¯~p\u008d>÷@­\u0088Yxtæ÷@°*hç|þ÷@w\u009a!ô\u0081×÷@³\u009aNµ\u0095_x0010_ø@\"_x0008_¿!4;ø@O¡_x0004_7_x0001__x0003_\"_x0006_ø@®-_x0010_/_x000D_É÷@&ó>øj\tø@Fåf]·ÿ÷@ÜÄgù!\u008a÷@V\u0099_x0002__x0015_õu÷@P{Ø~÷\u0099÷@à\u0097,æLz÷@¿_x001E_íôÿy÷@cáß\u009cÎ_x000C_ø@G_x0016_\u0093T\u009b©÷@_x0013__x0001_\u008fÙØì÷@\u0095\u0084Õ_x000D_´\u009b÷@'N\u0092`kn÷@\u0086ªÑR`Ä÷@¶\u008f¬ë\u009a_x0010_ø@m?ó®\u008a{÷@*_x0007_íæOË÷@Píã&!_x0002_ø@Õ\u009bc\u009aoÛ÷@Ü~P\u0098_x001B_Æ÷@Y\u0093ò©_x000D_gø@lãgÔ\u008d\u009d÷@ÒC|½«C÷@Lh_ê_x001C_ö÷@\u0085°´ÛX:ø@*3_x000C_UáPø@\u008fE\u009bý_x0005_§÷@5óVÚ_x0012_Î÷@_x0019_`]6óØ÷@ì)U_x001B_·k÷@Þ_x0013_áNû!ø@_x0002__x0003_\u0097\u008e'}¾v÷@_x000D_¥n\u009d_x0002_\u009f÷@_x001F__x0014_V¦·û÷@Ï\u0082]s¯\u0085ø@¤¿^|(Wø@2+eM\u0084r÷@4\u0084Ó(\u0085ý÷@ñ\u0083\u0090Õ\u008f=÷@\u008eäÞ=§_x001D_ø@+ÿÎ&ûã÷@já\u00940\u007f=ø@÷ÍR\u00981©÷@¾21\u00811\"ø@\u0095_x0001_`-\\¢÷@ÞÑ±SýÖ÷@j\u0095\"D_x0005_»÷@\u0082\u0088É¾\u009aî÷@H)Ú0Ã´÷@©\u0091¾\u0083z\u0083÷@«Öï&Áä÷@¹m|\u008cn_x0002_ø@T¥Úiua÷@r\u0083¹K¬)ø@ù1.\u009f§\u009d÷@A»_x0001_yý\u009f÷@E:3Ñ_x000F_\u0094÷@¤_x0019_Pá\u0087×÷@'_x0002__x000D_\u008cP´÷@]¸\u009a_x001B_õ«÷@\u0098¬sU]Å÷@ÉvA­_x001B_ø÷@_x0017_qµó_x0002__x0003_Óæ÷@þlÔ4­û÷@Ö5º\u0081Ûú÷@_x000E_Zm_x0008_%\u009f÷@á®\u0094§9Á÷@\u0087l¸i_x0005_3ø@BÌ+fòNø@³_x0015_<_x000F_}Æ÷@çbãvñg÷@&Ï\",\u008a_ø@nj_x000B_n9¤÷@_x0007_±\u008a®_x000E__x0017_ø@_x001C_BÚ=\u0085ÿ÷@ñ\u0086Í÷¯ÿ÷@_x0017_ºÙ\u0096Óí÷@.°|_x001D_µ\u0081÷@r(\u009f±_x000D_:ø@\u009c t\u0096_x0008_2ø@Ãø\"âÎ2ø@è\u008e¢É.mø@$ùH¡_x000E_hø@_x0010_Sp7\u0094_x0001_ø@(§õà­ü÷@(-ÿËG¡÷@¸æ_x001D_OÕa÷@_x001C_Í_x0007__x0017_v[ø@í_x000B_\u009b%,5ø@\u007f\u008d>z/t÷@2«\u008b?_x0015_¹÷@@_x001A_éãR¬÷@!jgØ_x000C_Mø@\u0096\u0092_x000E_v«\u0089÷@_x0001__x0004__x0004_õ\u009a»\u0086p÷@Uôvì\u009b.ø@º\u008eÍ¹E.ø@üò_x001E_8¢[ø@'Ã&æ¾À÷@O¥é=²_x001D_ø@VÚ ¡\u0093´÷@\u0084Q{Æ_x0018_Fø@Ùg_x0001_6X!ø@_x0012_\u008eq9cõ÷@\u0099Z_x000E_yO_x0003_ø@jÿîÑ\u0087U÷@z\u007fó\u00969*ø@§Ð°©¶\u007f÷@*ì>ßQ|÷@O_x000F_;Bþ_x0004_ø@Ñ_x0002_¡P\thø@Ò_x0002_#_x001B_³Ê÷@Çt_£§r÷@_x0013_ï:\u0091_x0015__x0004_ø@.úS£<Ø÷@w03h;8ø@_x0008_s´xù\u0094÷@\u0089\u009aÛs¯\u0096÷@\u0092_x000F_\u008bX©2ø@µÚo_x001B_{d÷@:_x000F_m¢K_x000E_ø@\u008a_x001F_¸{\u009a§÷@P O®\u008c-ø@à\u008e)_x001A_Éù÷@_x0002_wPÜ\u00929÷@_x0008__x0015_aC_x0002__x000C_¥aø@Rká\u007f+×÷@2_x0010_x¸¬Iø@_x0006_Â\u007f\u0093_x001E_Fø@\u009e[\u0095Ùw>÷@-Î5\té\u0097÷@_x0007__x0008_ñn«@ø@þ·Çs6bø@\u009c\u0081Wf\u0098_x0013_ø@Q|_x0011_<_x0005_O÷@\u0081_x000B_lö\u008f`ø@'\u0082>\"­_x0003_ø@òGé¿_x0013_Ï÷@_x0017_×,_x0013__x0015_`ø@èlkYVK÷@b_x0001_ÓR5­÷@E\u0089y\u0091beø@\u009b_x001C_Õ\u009d#9ø@ÃÜ¨\u0085¥÷÷@ü_ÔxÆ\"ø@H_x0013_¿\u009c´®÷@!_x0011_Æ_x0015_s\u009f÷@_x0004_p\u0081Eù,ø@_x000D_¨è¸_x001E_ð÷@ºglÜéÿ÷@\u009b_x0013_´oÛü÷@_x0014_¸ñªÅ\u008fø@._x0007_ô-¤o÷@_x0015__x0004_ê¨ºý÷@E²_x0005_á¡Y÷@O\u0081\u0092\u0087{[ø@:_x0008_T÷_x000E_eø@_x0002__x0005_)ö\u00810Üz÷@C\u0081±_x0001_M\u0083ø@n\u0089å_x0019_ÔÀ÷@RÙÞlõÇ÷@wº\u009bÈ¦{÷@ÇK®å_x0012_\u009a÷@Æ_x001C_;5Ï÷÷@à_x001F__x0015_VOå÷@æà¿\u008f¨ä÷@\u0093_x0010_rxádø@ðäU\u009a_x0005_×÷@ª¤_x0004_r_x0018_æ÷@DP_x000B_¿ò\u0083ø@z\u0094_x001E_!_x0011_|÷@llàè°_x001D_ø@³\u009eyñ»±÷@Aþ_x0005_Þ_x0008_¢÷@\u009c(Y¸@T÷@_x0019_Ð«IÑ¿÷@\u0084üÞ§~W÷@_x000C_æ 6\u0099þ÷@ºùÇLB¢÷@_x0003_âÂ$\u0080ü÷@\u007f9 I¥5ø@\u0082Ý_x001E_ë$Ð÷@\u0098ÙÇ_x0010_U«÷@÷Spn¤_x000D_ø@¯º_x0011_ã]fø@1\u008aI\u008b\u008c\"ø@ý$möÌ\u0087÷@Æ_x0010_#Ï=&ø@Ö°³e_x0003__x0005_\u009b·÷@B\u0098¬qVLø@_x000C_J_x0013_ßõ_x0014_ø@ÝWû0'-ø@Ê^Ñ_x0013_}é÷@&Ö­Â\u007fk÷@_x0003_¹Dó\u0097g÷@çý`\u0093_x000D_\u0086÷@mÍú\u0092÷m÷@±Ä¼Ë_x000F_|ø@ÒÀ×\u0087+_x0014_ø@S!ap*>ø@éý$/_x000E_¬÷@\tv_x0018_\u0088eeø@BÆbÃØ*ø@|Ykcî¯÷@Dh3m¡aø@\u0081=1«õ¸÷@Ð¡=\u008b\u009ei÷@\"ûïßô_x001D_ø@_x000D_Þ·_x000F_tjø@_x0004_$,¥{º÷@§*¾\u008fPQø@ _x0002_+ûà ÷@´ùWàW1ø@¶óx\u009e0d÷@_x0001_p3kOµ÷@\u0087¶y\u0083ÚOø@t+U¨5\u0091÷@\u0083p(\u008f±~÷@aÛzhÁ4ø@ó -/_x001B_§÷@_x0001__x0002_AA¿m¼_x0008_ø@_x0008_báq0Õ÷@ÛÕ\u008eîÀAø@ônÅ!ÃA÷@\u0094\u0083º{Ç\u009e÷@Ø«Ë\u0082Êð÷@\u008a^ù8Fsø@\u0089×ªl#¨÷@ÓVÍÿ_x001E_Ò÷@p6_x000F_\u009d\u008c\u0093÷@ö¤ez\\\u0097÷@ý©\u0097-e±÷@>6\u008a_x0013_µ³÷@DºÄ àKø@êìèÔnÚ÷@Ê\u0096ôß\u009eX÷@,Êä\u008dÇ}ø@_x0010_\u009aõ\u009f7Í÷@Xº¼\u0082õ_x0014_ø@B_x0004_b\tP_x0014_ø@8B¥n§\u009f÷@§_x0001_³&äD÷@@¥_x000E_Á\u009a_x0015_ø@Y\u0085_x0016_=´lø@\u0085ÉóÀZ\u0099÷@_x0010_®õQ­Vø@\u0088M©\u0093Ù1ø@D·_x0010_!ø)ø@Y³ÖåÚzø@_x001D_kìë_x000C_\tø@»Ùþ_9\u0090÷@_x001B_ùbB_x0001__x0002_\u009f9ø@_x001F_\u0087-½S5ø@#LÓÒ_x0007_²÷@ÃZ\u0082Ôª·÷@ÐFÀl4Wø@RÍwñ_x0013_,ø@5\u0097_x0012_¿_x001E_H÷@_x0007_\u008aîöY\\ø@BwÀwkï÷@\u0082ü>¢üÕ÷@_x001E__x0013_m\u0095æC÷@Ò_x0017_g°o_x0003_ø@\u0080ÿÕYâ¤÷@\u009d#_x001A_aå_x000E_ø@\u0092×~_x000E__x001D_<ø@\u009bhÅ®-\u0086÷@\u0080_x000D_e³_x0012__x0002_ø@o\u0097Oái:÷@\u0091èû_x0013__x000F_î÷@_x000F_)_x001D_ âö÷@ie\u009eµJË÷@\u0085_x0008_l´k\u0092÷@\u0090é_x0003_0Y&÷@Æ[ÜQ«è÷@ÊJÊ2w~÷@­\u0082\u008fkå'ø@?\u0085nù-Ï÷@\u009dË_x0006_\u0096ïÚ÷@8\u0085¨\u008f_x001C_7÷@eR\"_x0004_\"9ø@_x0002__x0003_?_¤_x0002_ø@\u0098\u009f_x0015_\u0099¾_x0003_ø@_x0002"}},{"$cut":{"chars":76704,"head":"7dd4e533c1936d78e590bb8709d78cc6_x0003__x0006_tþ¸¢Ft_x0012_An\u009fH@.º_x0012_A_x001D_ËçLF`_x0012_A/Ôüü9E_x0012_AæZ(6ñÊ_x0012_A\u009eè_x001B__x0001_FÛ_x0012_AÀJÿHuy_x0012_AU\u0082|~Á\u0085_x0012_Aêh|#_x000D_\u009d_x0012_AlÆ_x0005_Äwð_x0011_A=}ø¸òB_x0012_AÚN|aÉ_x0010__x0012_A²qz5m\u0092_x0012_A\u0097û[\u009d\u0085_x0010__x0012_AQ¤_x001F_Í÷|_x0012_A^oC\u0087®\u0089_x0012_A\\\u0081ËAX(_x0012_Aq»AöÓ_x0005__x0012_AÕFÂ£|°_x0012_ApÛ¹Ï\u008d\u0080_x0012_A\u0086ÅÞb^©_x0012_A\u009e_x001E_ÒËï½_x0012_A\u008c/¼@ëº_x0012_AQÔKüz\u008f_x0012_A\u0094_x000E_åÒ\tä_x0011_AÈ^_x000E_\u0098_x0004_z_x0012_A¼yh\u0081 à_x0011_A\u0092_x001D_Kû3{_x0012_A\u0081ÖÍMõM_x0012_A\u0087\u0099Å\u0099;£_x0011_A_x0002_wÉh_x001F_<_x0012_A)Q{W_x0005__x0006_í½_x0012_A·_x0012_\t®\u009a\u0090_x0012_A×_x0008_® \u008a_x0010__x0012_A¥y¥_x0007_îç_x0011_A{Ï_x000D_4XL_x0012_A_x0011_s\u0093,Cd_x0012_A,û&\u0090_x0001_n_x0012_A±2_x000C_b_x0018_À_x0011_Aâ{Ó×÷]_x0012_Av¬y¾U\u0097_x0012_A\u0099òüÁÜ¤_x0012_A6ÑX¾[_x0002__x0012_A]_x0004_o~_x001E_ì_x0011_AX\u0096þÙd\u0089_x0012_A]âeZrj_x0012_A\u009b^1Mì-_x0012_A\u0092\u009cåÍÝÑ_x0011_AÊjX¯Ì_x0008__x0012_A\u0087_x001E_&T\u009eF_x0012_A¾\u009aç¦_x000F_?_x0012_AyB\u0080^t_x0002__x0012_Aæ_x0006_n\u008fúY_x0012_AYkág¡&_x0012_AÆM_x0011_\t*y_x0012_A\u008c¤\u0097\u0093\u0087*_x0012_Aä_x0007_¤VÈF_x0012_A²\u009eè\u0080·\u0088_x0012_A5_x001D_çà¯\u0094_x0011_A¢ñÐ3r#_x0012_AÖx;\u008b\\¶_x0011_A_x000C_©_x0003_Né _x0012_A=(¥j±Ö_x0011_A_x0001__x0005_®\u009dZ_x0008_#ò_x0011_AtòÀ&d1_x0012_Apã/3ú\t_x0012_AÚ_x000D_éýË _x0012_A_x0004_kZvt\u0086_x0012_A×¾ÀMÀ(_x0012_AKmî4¯Ç_x0012_A®ê\u0082W ¢_x0012_A÷Ni_x0004_î_x0015__x0012_A_x0014_»_x001B_\u0087âJ_x0012_AËBtA3_x0017__x0012_A\u009er\u008e§;Ó_x0011_A\u008fí_x0003_(\u008d¥_x0011_A k+i©Þ_x0011_A*ä\u0086¨èý_x0011_A\u0094Ük®S_x0008__x0012_A°[¢\u0089É_x0008__x0012_Aê\u008ar_x0003_ôJ_x0012_AOMt\u0091a_x000F__x0012_AðXZÍ'±_x0012_Aå_x000C_þ\u0084iO_x0012_Ae{pîÐ¯_x0012_AuË?\u0086³_x0014__x0012_A3ºb¨1\u0084_x0012_A9\u008dr\u0084×_x0017__x0012_Aø)o_x0011_äP_x0012_Aëvg)Ý·_x0012_A,]Á-÷_x0002__x0012_A_x0018_\u009f³_x0003_É¥_x0012_A0ä\u0085_À_x0003__x0012_Ag8²Ù\u0098¯_x0012_Ap_x000C_ñ\u008b_x0006__x0008_áÙ_x0012_Aª.Ò&(w_x0012_AR¹îY;\u0089_x0012_AP|_x0011_K¶_x0014__x0012_A_x0001_Ò¦¹ÎÚ_x0011_Ab\u009bàr \u0098_x0012_Aì+Ã_x000D_^ï_x0011_AýÞ{ú_x0004__x001E__x0012_A_x0001_¬U| å_x0011_AÞ\u0099\u0097\u009eý\u0080_x0012_A\u008e_x0001_z_x0010_'l_x0012_AB_x000B_d\u008c\u0098V_x0012_A\\!ù_x0007_dD_x0012_AØ\u009dÆ¢óu_x0012_A_x001E_¦ªÅJå_x0011_Ap_x001F_³US\"_x0012_A:YÚHü_x0012__x0012_AeÖã'îï_x0011_A\u0082È_x0008_\u0083Ö_x0002__x0012_A;Mààx7_x0012_A§ÿ_x0005_P_x000D_]_x0012_Az\u0082Ð¦7_x001C__x0012_AF_x0017_T4þ«_x0012_Aþ\u0090½ð¡ª_x0012_AüFýöCb_x0012_A^rvf¢¿_x0011_A¤8 K¬_x0003__x0012_A_x001C_\u008bQ\u0083\u009d\"_x0012_AØDRgcI_x0012_Aj'`_x001F_JH_x0012_AÞ\u0080p³üE_x0012_Aæ_x0018_ù_x000E_Í\u0080_x0012_A_x0001__x0003_\u0096Ëíê\u0087}_x0012_Aa%\u008b«j\u008d_x0012_A¯_x000C_Î(Y_x001D__x0012_A_x0012_\u0096Éæ×¸_x0012_ARïVðZ¶_x0012_A_x001C_r¬¸X@_x0012_AA_x0011_-ôKF_x0012_A]B%'ê¬_x0012_A\u0087â\u009buyÚ_x0011_A\u0094súa£â_x0012_A¼ñò_x001D_¶_x0011__x0012_AR}_x0016_]KP_x0012_A\u009cË8ÛÉL_x0012_A*;HË\u008b¦_x0012_Aè­\"¼ló_x0011_Aça¿û4\u008d_x0011_A\u008f_x0014_ö¤]8_x0012_AóàñYV\u008d_x0012_A¸<_x000F__x0012__x001C_l_x0012_A«ì|{\u007f\u009f_x0012_AUUÁn_x0002_á_x0011_A£Õs|\u0090'_x0012_AË/Ë\u008f_x0008_W_x0012_AÎT_x001C_¯ôá_x0012_A×wvû__x0015__x0012_A_x0010_!bëÒÜ_x0011_AâH@ÖVë_x0011_At\u0095U£ò\u008d_x0012_A®Í7_x0017_ai_x0012_Aì\u009bf¯ \u009f_x0012_A}ÇçÐÚø_x0011_AOÏ(÷_x0003__x0005_ûæ_x0011_A|ÝedÿÔ_x0011_ATþ\u0087_x0011_À\u0093_x0012_Aw%ï¾_x001D_\u0094_x0012_Aò\u007fíõa^_x0012_AÜ_x001A_\u009eFÆë_x0011_A¥Û_x0012_÷ /_x0012_AÎÀ|4\u0090è_x0011_A2çeµ¹q_x0012_A½|\u008c¸\u0090o_x0012_A)l\u007f®èÖ_x0011_ANw\u0090¨ã+_x0012_A¢7/s_x000B__x0008__x0012_A_x001B_ÍÃ_x0010_+P_x0012_Aux\u0090\u0087âÔ_x0011_A_x0001_(S$û!_x0012_A_x0002__x001B_¾ÿ_x0004_³_x0012_A;B\u0098Ñ=\u008a_x0012_AcüAg_x001F_ _x0012_A\u0085¨4\u0088Å:_x0012_AË_x0004_]ü8_x0006__x0012_AÐHGç;X_x0012_A\u009dFY_x0017_NË_x0012_A¡È\u009dØ=Ä_x0011_AÒ¬á2Øâ_x0011_A\u009c¾é_x000B_ò¬_x0012_A \u009dÙ*Ê\u0098_x0012_A_x0006_+Íbvç_x0012_A_x001B_ÒòI\u009a_x0007__x0012_A^xÄÿä\u008d_x0012_A»í'5È¸_x0011_AùÒÀJ\\Z_x0012_A_x0004_\t_x000D_`+]\tN_x0012_A_x0007_;\u0098/_x0008_I_x0012_A¤K_x0011_ªßo_x0012_Aò)PæD¡_x0011_A_x000E_\u0099\u008fûcÓ_x0012_A\u0092ãn÷b_x000C__x0012_A,uB_x001E_ør_x0012_A_x0015_\u009e.Sô`_x0012_AÐY\u008e¢B_x001B__x0012_A9qÓé_x0001__x0019__x0012_AïæMÊ\u0083,_x0012_A1_x0006_ÅW\u0096È_x0012_A\u008fó^Zú\u0093_x0012_A>UeWeR_x0012_AØr?\u0083¼X_x0012_A\u0089Æ2Â2_x0011__x0012_A¾ _x0004_bð²_x0011_AL²§\u008dÀR_x0012_A¯\u009c¢_x000D_£6_x0012_AvTS$W³_x0012_A_x0007__x0016_\u0085Ró³_x0011_Aø«þa_x0016_¢_x0012_Aù¬ÓM_x000D_^_x0012_A¯\u0085õB1^_x0012_Aâ\u0090pÞ=¹_x0012_Aì\u009cú_x0002_g¨_x0012_A\u0096e¹>\u009d_x000E__x0012_A_x0005_\u0090k\u0088 _x0003__x0012_A¯Ýjx¯»_x0012_A_x0014_>Ù_x0015_¹^_x0012_A\u0094ÜÝ\u0090Ñ©_x0012_AL*È\u008f"}},{"$cut":{"chars":76116,"head":"cf2569b24cb936aec2c6ac2b480866ff_x0001__x0002_uBï;_x0011_;_x0012_A\u0080´½»\u009ba_x0012_AÜr\u0087à2\u0096_x0012_A\u007fëQ\"Ñh_x0012_AÚöHô4[_x0012_A_x001F_DWý\u0097V_x0012_A=»£_x000F_ü\"_x0012_A_x0017_Ä\\5)+_x0012_Ar_x0002__x0019_ÀJ!_x0012_A@ý\u009bl_x001F_E_x0012_AD]_x0005_B×D_x0012_A7¢\t\u008f}j_x0012_A-d\u0099Îµ,_x0012_AÍöEÕ²u_x0012_A\u008e,_x001F_JJU_x0012_AW½Iu\u0090d_x0012_A§ix_x000C_GF_x0012_Aö_x0016__x0006_N©z_x0012_A_x0014_®÷47\u008c_x0012_A\u0090ú,\u0084ý4_x0012_Ab\u0096\u008fª§\u008b_x0012_AP\u008do@!n_x0012_A_x000E_2¨_x000E_Yi_x0012_AbIeÛ¬_x000B__x0012_A_x0003__x0004_ÒÕy\u0098_x0012_ABv_x0001_ÅQP_x0012_Aö|a ak_x0012_Aey_x0006__x000E_\u0090\u0080_x0012_AH_x0014_6_x0014_ÙO_x0012_AúõfVn\u0097_x0012_AºêI6L$_x0012_A\u008b9ËÂ_x0001__x0002_(5_x0012_A´æÎåÊ1_x0012_AK_x001E_#_x0019_Û°_x0012_A±Åa£(n_x0012_Af¦\u009c~\u0091*_x0012_A¦_x0005_\u0085¨<`_x0012_AØb\u009b5 \u0094_x0012_A~\u008eIùAU_x0012_A®\u0086¼Ñ]_x001F__x0012_A\u008bÄJËâ\u0087_x0012_ACòÍJå_x001A__x0012_Aµð\u0094ù_x001F_P_x0012_A¨\u008a÷\u009b\u0094\t_x0012_A_x000C__x0010_4eï¡_x0012_AN>°PÅ@_x0012_A_x0012_±F\"·K_x0012_AÇt^$÷b_x0012_AÌ¥*ï\\u_x0012_AÙS=ï\u0081g_x0012_A\u0084t®H_x001A_e_x0012_A\u0096¢µµ\u0097_x000F__x0012_A)\u0087tµ _x001D__x0012_AO\u0082ÑÅâI_x0012_A\"Æ)è\u008dI_x0012_A\u0096ß\u0096|q[_x0012_A,ò\u0080D_x001E_£_x0012_Ac%\"C\u007f_x0014__x0012_A|<_x0019_¤aQ_x0012_A_x0011_\u008a[«_x001A_X_x0012_AÊU_x0007_R¤\u0096_x0012_A_x0014_\t$_x000D_áx_x0012_AZúÜ>_x0016_\u008d_x0012_A_x0002__x0003_\u0093ûÁ_x0005_d²_x0012_A¦\u0090å~_x0002_n_x0012_AcÑ\u008f_x0002_¼__x0012_AB®<_x0005__x0011_`_x0012_AiÂ²\"Å_x0017__x0012_AÈ\u0089ý\u0098@s_x0012_A\t_x0001_\u009eQ50_x0012_A_x000E_oï ;6_x0012_AàÞg_x0014_*\"_x0012_A0²0 _x0006__x001A__x0012_A?ÿs\u0082_x0015_,_x0012_Aäå-%r\u0089_x0012_Amn_x0016_T_x0001_M_x0012_A_x0001_Ø_x0015_¯ìK_x0012_AÉ!_x0010_Ö~2_x0012_A` éWÞK_x0012_A®Î¨Òs]_x0012_AÓ%\u007f\u0099]`_x0012_A°0!Ûâ}_x0012_AÎ_x0015_:X_x0003__x001F__x0012_A[ðME\tP_x0012_AçGÁ»@Z_x0012_A°g`³Z_x0013__x0012_A,V¤_x001F_á<_x0012_AcwvU\u00802_x0012_A\u0087òaËÌ_x0017__x0012_A__x0011_R¼Y{_x0012_A_x0012_TÔ>&\u0094_x0012_A\u0080@\u0083Ï¼u_x0012_A_x000D_uçÍð_x0007__x0012_A_x000E_¦¬x&k_x0012_A_x0002__x0010_&K_x0001__x0002_}O_x0012_AÐ\u009bX®Ì\u008b_x0012_AÈ±\u0086é\t_x0015__x0012_Ag«d+\u008f__x0012_A\u008a[òªî\u0097_x0012_A_x0018_:ï²¢R_x0012_A[\u009eÀ]E_x000F__x0012_Aª_x0010_X\u008fõN_x0012_ASØZ]Ã\u0085_x0012_A_x000E_I_x0019_^ó/_x0012_AW_\u0093v\u0091\u0082_x0012_A_x000E_l\u008f _x0004_u_x0012_A_x0011_ØÏL*O_x0012_An_x001E_8Ü¦\u0080_x0012_An~ÃÁ\u0097._x0012_A+´ÚN)<_x0012_Ae»GèMQ_x0012_AÆhK_x0008_\u009fj_x0012_A_x000B_\u0094>\u009b_x0006_W_x0012_AZ¢u_x0010_÷:_x0012_A±_x0017__x0013_·Ê\u0090_x0012_A_x001A_z6NKP_x0012_A_x000B_Zý¿¨j_x0012_A/\u008aj»,*_x0012_AÏÙÃ_x0016_½a_x0012_AÓÒcJ¢P_x0012_AöjgjÅV_x0012_A>8L_x0014_\u0083y_x0012_AQ_x0004_§9\u009de_x0012_A¼aÚ\u0085ÚF_x0012_A_x001B_-}é`p_x0012_A.\u0095#)K\u0089_x0012_A_x0005__x0006_ê_x001E__x0002_>ô\u009b_x0012_Ag_x000F_\u0084­_x0012_\u0092_x0012_A÷ã_x0001_ê¢a_x0012_AÜ¼4×sA_x0012_A\u0093¡w_x0010_Ý;_x0012_Aÿ_x0005__x001A_÷_x000D_)_x0012_A\u008eýÊrs\u008b_x0012_AÁ«_x0011_\u0098Cm_x0012_AJ_x0007_\u009b½'_x0007__x0012_A\u0084ý@½íø_x0011_AhFÂpY;_x0012_A[°\u009bJ\u0082\u0083_x0012_A_x0007_§HM÷H_x0012_AÇhòö\u00959_x0012_A=Ñ±ØÖx_x0012_A_x0016_zgøÛR_x0012_A`-x\u007fÄC_x0012_AAgtrVI_x0012_A«cùy_x0001_}_x0012_AaÍ!;â'_x0012_AòA2\u0094\u0086_x0004__x0012_AS\u0081ÿ\u009f®\u0099_x0012_Aælµ_x0008_Te_x0012_Axºa_x001E_:«_x0012_AêË\u008eÓ\u009e\u009f_x0012_Aë CîÌL_x0012_AÜ¡Ü\u0082tJ_x0012_A\u0090Pøè#\u009b_x0012_A)Aù\u009dÛj_x0012_A\u0086_x0012_M\u0090)R_x0012_Aî¨÷P_x0017_<_x0012_A¶J_x0003_\u009c_x0001__x0008__x000C_!_x0012_A_Ä:Ð©p_x0012_A$Âüw¦\u0097_x0012_A×&Éèz6_x0012_A²__x0016_Àæ3_x0012_A\\ë_x0007_a\u008c<_x0012_AO\u0080_x0004_7}\u0091_x0012_A_x001E_FÒ_x0004_Ù_x000E__x0012_A\u0093I_x0007_F6k_x0012_AWàï\u008b\u0093}_x0012_A Ê=¿;_x0006__x0012_A\\\u0086:rl\u0088_x0012_A/m>_x0003_\u008eú_x0011_A\u008b\u008cÿhÆ_x0005__x0012_A_x0007_î\u008f_x001F_ÑE_x0012_AZ2Á\u0097è0_x0012_A\u008fù¹5¦,_x0012_A(¾Üu3 _x0012_AÏ½\u00938\u009eQ_x0012_AX¥É\u008b\u0086N_x0012_A\u007f2¯ð_x0003_\u009d_x0012_A_x0016_|}êò\u0093_x0012_AÃ_x0012_1_x001B_\u008f=_x0012_A_x0002_\u009d_x0001_>\u009fY_x0012_Aß:\u007fÂ_x0010__x0012__x0012_A_x0007__x0011_Ê¤}\u0088_x0012_AÄ÷#àÔ[_x0012_A&\u0096æ9)\u009c_x0012_AÍ\u0099_x0014_±\u00911_x0012_A\u009a\u0095\u0086\u0089Ð\u009d_x0012_A¸'_x0005_÷ß._x0012_Aa<3í_x0007_j_x0012_A_x0003__x0004__x0006_B(_x0002_Ú\u009a_x0012_AãJç_x001A_SB_x0012_A_x001D_P\u0083\u0087ª¡_x0012_AÎ_x001A__x001F_ÊM@_x0012_Aþ­ç°cG_x0012_A_x0007__x0005_áÇã?_x0012_A\u0087â\u009b_x0005_>g_x0012_A£}_x000E__x000E_0\u0091_x0012_Aø¿_x001E_W´_x000E__x0012_A%¥D\u0091n\u009e_x0012_A_x001E_bÇ8¹/_x0012_A_x0010_j»,\u0095E_x0012_A¸èÎ\u0098\u0090u_x0012_APx÷[\u008cP_x0012_AÜë\u009bÌj@_x0012_A)®h2]__x0012_A½^Hø;c_x0012_AÉ¤\u0091¨00_x0012_Aù\u0088_x0007_÷·L_x0012_A\u0084_x0019_C`Ã\u0091_x0012_AêèA_x001E__x000C_f_x0012_AîlÏVÀu_x0012_A«ù_x0001_Iâj_x0012_A`f_x001B_iùa_x0012_A"}},{"$cut":{"chars":74820,"head":"44dfe5345d3d49c1f863b69711c5eba5_x0001__x0002_9çÅá _x001B__x0013_A_x001C_r\u008bN_x000B_9_x0013_Aý'Ýa_x001A_0_x0013_AHÿ\u0094-#m_x0013_A\u00824wÅ_x0001_\u0094_x0013_A>¹LWµ__x0013_A6_x0013_gN¹_x001A__x0013_A\u009c\u009bµ_x0014_\u008dO_x0013_AÒc]°VG_x0013_Añ$_í]m_x0013_A¯5:P%_x001B__x0013_Ab`\u00812\u00829_x0013_A\u009dú]þ3I_x0013_A\u0091\u0087Ý6\u0097i_x0013_A«UÞ$_x0010_:_x0013_Aü\u009d>Ê¯~_x0013_AN+\u0096QÓi_x0013_AKÃ+:O_x0001__x0013_AºÄV²\u0088q_x0013_A\u0089)\u0083_x0016_p_x001F__x0013_AA¹öö_Z_x0013_AÕÇë_x001F_\u00885_x0013_Af_x001E_Z.j\u0096_x0013_Aü\u0080_x0014_ïò[_x0013_A_x001C_¥\u009b_x001C__x0018__x0011__x0013_A}\u009d\u0093À8i_x0013_AI_x0016__x0017_¦0?_x0013_A\u008e\u0092ÿÊ¦}_x0013_AØÊê\u0090qî_x0012_A­\u0084ø\u0088äl_x0013_AÓ!\u0082·Í%_x0013_Aë_x001D__x0010_x_x0001__x0004__x0007_a_x0013_A_x0002__x0006_A_x0019_\u0083;_x0013_ATWn_x001F_\u0096w_x0013_A_x0008_öÜ|g\u009c_x0013_A\"_x0014_þ_x001C_úø_x0012_A7¬;ÔX_x0014__x0013_AVYà_x001D_hF_x0013_A_x0007_q_x0008_Ê_x0012_\\_x0013_A=ØÊjA_x0006__x0013_A/ÔzVwV_x0013_A\u009bðÕ\u009e$\\_x0013_AÅ_x0004__x0007__x0002_ö£_x0013_A`_x0003_\u009b\u0093\u007f@_x0013_A6~ñò\u009f¬_x0013_AÊn_x000E_Aÿ0_x0013_Aûëí¯X_x0007__x0013_A¦_x0017__x0015_È\u0080D_x0013_A\u0093IÃÐÐJ_x0013_A\u009d\u009f@©-\u0090_x0013_Aò_x001E_^C9\u0088_x0013_ADwS5Ý3_x0013_A\u0080&©Lf)_x0013_A/Åæ5Ü{_x0013_A\u009d²ê?j$_x0013_A_x001D_¿h%-#_x0013_A_x0005_(\u009dà_x0003_O_x0013_ACÝ_x000C_Ja(_x0013_AsÄ_x000B_ëSr_x0013_A_x0008_×¸w/@_x0013_AÜu#\u009e=_x0006__x0013_A_x001B_Â\u0096¥¹-_x0013_Añ½\u00966_x0018_5_x0013_A_x0002__x0003_ÜD_x0013_\u008cÏ\u0082_x0013_Aâ]«mtI_x0013_At¹Ä_x0001_\u009cb_x0013_A\u0093e\u0085_x0011_¡}_x0013_A\u009eÛJ_x0018_\u0098I_x0013_Aü\u0097¶_x000C_\u00812_x0013_A_x0002__x000F_EÎÛ=_x0013_A_x0004_ï7-á_x0013__x0013_A¾¼_x0012_¦±t_x0013_AM_x0001_&Q\u008bR_x0013_A.`·\u0090\u009d\u0082_x0013_A_x001A_î¥a¥\u009d_x0013_AZÊ\u0095Ú_x0019_G_x0013_Ad\u009d£xS\u008a_x0013_AQÎ_x001A_èè<_x0013_A_x0006_\u0089÷\u008c·%_x0013_AÜNçÓ»_x0018__x0013_A\u0080C4Ï]K_x0013_A\u0082í\u0091l\u007fS_x0013_A_x0018__x0013_éàÂ_x0012__x0013_A>m*Ì©J_x0013_A1\u0093ÂË\u0094_x0001__x0013_Aå¤U°ýV_x0013_AÙ ÒÄØC_x0013_A\u008e*!kùn_x0013_A\u0086\u009c\u0098F&\u007f_x0013_A¥ìÁ\u0095£_x000E__x0013_A\u0089Tå\u0087ýY_x0013_A<ÜCRK\u0096_x0013_AÄù_x0007_\u0084¿:_x0013_AûWZ¡Q\u0086_x0013_A ¥\u008eO_x0001__x0002_Z?_x0013_AÄ~â\u0097æa_x0013_A$_x0016_D_x0019_Æ`_x0013_A2_¸_$\u008b_x0013_A¶\u0098Äs¾¤_x0013_AF\u0092!\u0096c\u008e_x0013_A6rÕ]Á÷_x0012_A_x0019__x0005_w=ÛW_x0013_AA'}5þ_x0011__x0013_Aþª¨þ\u0082_x0010__x0013_Aõ3\"Mj[_x0013_A\u008d\u0096ý_x001A_)\u0094_x0013_AÕ_x001C_ªê\u0082÷_x0012_Ac6@îÀe_x0013_A \u0090u9\u0097î_x0012_AN>@jXI_x0013_A`I½\u009eãO_x0013_A_x0005_®\u00917ø=_x0013_AK\u0081¾Ú~__x0013_A1_x0007__x0011__x000D_|_x001B__x0013_A]'Å{ÅH_x0013_A\u0081aS\u0096Zj_x0013_AJ_x0010_`\u0092\u0082U_x0013_A\u0085bø\u0089Ùg_x0013_A<!Rµ/\u008d_x0013_A\u0086G^!À#_x0013_AB¥._x0012_Am_x0013_AÆ¨Po\t(_x0013_A@?&Ý¢6_x0013_Af(£÷öo_x0013_A2_x0003_\\~kB_x0013_A\u0092¦ô¨Ò-_x0013_A_x0005__x0007_\u009aä0_x0008_\u009d_x001D__x0013_A(\u0085b_x000B_I\\_x0013_Aâ_x0003_\u0090Ò+`_x0013_A|17\u0096jg_x0013_AZhrÉ\u0089;_x0013_Az\u0096\u009d\u009d_x0017_I_x0013_A³\u007f_x0015_ï¼ç_x0012_A¤½rÎdq_x0013_A½\u00833\u008dº?_x0013_A_x0001_ò¾åG_x0001__x0013_AÊ« _x0001_J3_x0013_A+_x0019__x001C_Óæv_x0013_Aþ@«ò`]_x0013_A¢_x0010_N_x000C_§n_x0013_Aþñ¡-_x000C_ò_x0012_A\"ôN\u0090Äs_x0013_A\u0080\u0089A>ç\u008b_x0013_A'·g±Ã&_x0013_A\u007fÓ©ß_x0008_\t_x0013_AÚ^_x0010_U_x0005_ _x0013_AôÕ_x0016_ÙU8_x0013_AôÒ&j_x0002_r_x0013_A ·\u008cÆá:_x0013_A\u009cQQ,\u0084\u0086_x0013_A_x0005__x0003_>4íK_x0013_AÌ\u008c¦±¡,_x0013_A\u0091è£Jp?_x0013_A_x0005_ÅGb_x001F_D_x0013_Aº¯_x0018_\u009f\u008a_x0001__x0013_Aìâ\u009c_x001F__x0001_!_x0013_A+_x0004__x000D_\u008bË\u0083_x0013_AR|_x0006_\u0094_x0001__x0005_Ð\u0093_x0013_AÁ´Péå!_x0013_A´Ð¤_x0002__x0007_0_x0013_AlV_x000C_øÒU_x0013_AzÔï\u008b_x0019_y_x0013_A\u0081m²\u008e«<_x0013_A~A_x0015__x0017__x0010_C_x0013_Av\u009e\u009c\u0086½n_x0013_Ad½À#P&_x0013_A7·ùp_x001D__x001A__x0013_AYA\u0097_x000E_FW_x0013_AåîÕ_x0003_er_x0013_AòÙ_x0006_ÑÐ'_x0013_A\u0086ð\u009ea»,_x0013_AÒ_x0014_ýo_x0011_/_x0013_A\u0093_x0004__x0011_©\u009a\u0088_x0013_A³âmo_x0001__x0017__x0013_A~%ðëri_x0013_AÄù&Jy<_x0013_AvÞ$_x0010_ý\"_x0013_AZ¨ÎY\u0097_x0005__x0013_A\u0089¦z\u0093\u009e_x0015__x0013_AÿbÇ\u0091÷%_x0013_ATB_x0019_!\u009d_x0014__x0013_AfH\u0094\u0097¸\u0088_x0013_Ah¼ÀAML_x0013_A\u0082aPC\u009d_x0012__x0013_A°;_x001E_hÓ\u0081_x0013_AA>\u007fª\u0093?_x0013_A\u0096\u008d_x001A_wáì_x0012_A_x0011__x0017_õÍ_x0013_s_x0013_Aã;ö:p=_x0013_A_x0004__x0006_¾Êô8_x0002_=_x0013_A.V¸\u0098E/_x0013_A KÜc´$_x0013_A¼íþaºc_x0013_A\u0088|\",_x0002__x000B__x0013_A\u0094_x0003_pô\u0090o_x0013_A_x001C_\u0092\tßwq_x0013_A\u0089W1Å4h_x0013_A\u0090lR\u008cGL_x0013_A_x0014_ë×\u008e5A_x0013_Agðn£Û<_x0013_AY)¾g\u009aH_x0013_A\u0085\u008cjé_x000D_]_x0013_A´\u008b\u0080¸lX_x0013_AzZôoà/_x0013_A\u008cc ÝiT_x0013_A\u0084_x001E_}*_x0014_\u009b_x0013_AºrïÐ/y_x0013_A)\u008b+H_x001E_v_x0013_Aû_x0015_[Ä_x0005_\u008f_x0013_A9J\u008a}R-_x0013_Aé\u009e¥?ìå_x0012_A®´©\u008cÔn_x0013_A\u0082dg_x001"}},{"$cut":{"chars":74922,"head":"1392fea06342892366c4b4cbceb4d445_x0002__x0005_Úç\u0083ÊMÁ\tA¹ã¢×Wï_x0008_AÎ,Ö²Öî\tATH]xoQ_x0008_A_x0008_çÀ\u008f_x0006_z_x0006_Aº\u007f<\"_x0003_»_x0006_A\u0090\t\u00891Ðþ_x0005_AÇ§l\u008b\u0080Ö\tA<~¸|_|_x0005_A,\\$_x001C_Û_x0001__x0007_APÅ¢\"\u0098¹_x0008_AmI_x0002_ÑQ_x000E__x0008_A_x0002_á~×\u0091õ_x0008_A:_x001C__x001C_=@§_x0008_AÀc\u0097&\u0082Ñ_x0006_Así®²î\u0083_x0006_AXcâ^_x0011_V_x0007_A,uéÞÍ\u0086_x0008_A|Y¾G\u008ap_x0008_A½C\"ò`_x001C__x0008_AÕORé¼×_x0006_A­D+¶þ\u007f_x0007_A\u008aåÐß5\u009b_x0006_AÕ«wô\u0098(_x0005_A\u008cº;_x0010__x0006__x0004__x0005_A\u0092/8Â5O_x0005_A\u0086ù¥'Á_x0017__x0008_AµT}_x0013_à_x000C__x0007_A´³yìpÑ_x0007_A(\u0093Þz_x0012_¨_x0006_Aâ¿\u0087_x0002_üó_x0008_AD#\u0099\u0097_x0001__x0002_Qÿ_x0008_AÐZe\u009f¡\u0095_x0008_ASµ7_x000F_§J_x0002_AXå_x001F_\u008f\u0089`_x0002_AtÂ`\u0087\u009f_x0012__x0007_AX=Â¦YÍ_x0008_A_x001E_3T;*f_x0007_Að&ýÌ`ø_x0008_A_x0004__x0014_5ñ_x0011_ß_x0007_A\u0080_x001A_i{\u0091÷_x0006_Aò³|C©x\tA}rIi¢_x000C__x0007_A\u0099 \t[öS\tA$)\u0086\u009e4x_x0007_A:U\u0087Ô_x0016_Ù_x0006_Aë¦ß·_x0017_5_x0007_Ap=ÇPÝ0_x0008_Aw\u0092-BÝ2\tAZMNÕK\u0083_x0007_Aþ0W_x000C_\u008aq_x0006_A2É~£:î_x0006_Ao\u0092\u009a0u_x000E__x0008_Aìèù_x0013_õÁ_x0008_A2ì8QÝ¡_x0007_Ao\u0096\u008dX\u009fä\tA*\u009döiq\\_x0008_A\u0093S\u007fpï_x0017__x0008_AæÌ\u0083ÃaÂ_x0006_ADF\u0085ÏÕ°_x0006_Aÿ´Q\u0088b_x0006__x0008_AÈÜfê_x000E_j_x0006_A_x000B_ììåÝ±\tA_x0002__x0003_4âÄ_x0016_Ù\u0087_x0003_AªøTì¯\u0096\tA_x0016_HñøÁ>_x0008_A_x000E_}zéaß_x0008_A¿d|\"è \tA\u007f\u0096Psßì_x0006_A`|2\u0098)ú\tA\u008aj\u0094êß½_x0006_A'òÖ&ã~_x0007_A\u009fò<Òý­_x0008_AT£Ö\u0081äõ_x0008_A/¥·mP|_x0006_AÐ_x0002_iu¶\u009d_x0008_A_x0019_\u0093N§÷É_x0006_A¸nÝÙ¤Ä_x0006_A¶ü\u009fnÚô_x0006_A\u0081¤ý_x0002_\u009b]_x0003_A\u0089¯_x0002_p_x0012_§_x0006_AI_x0004_½F~._x0007_AVP_x0005_ÿÒh_x0007_A¼þ_x001F_÷j\u0091_x0006_AíÓõ_x0015__x0008_b\tA\u0097_x0001_]«=r_x0003_Aþ:ñ;ÏQ_x0006_A\u0087ª\u0090¹\u00996_x0007_A\u0096êþ\u009fÁd_x0007_A_x0007_\u0085úì_*_x0003_A_x000F_¯¯\u008b^Ó_x0007_A@>Êí\u009c¯_x0008_A8¹m_x0016_ò¨_x0008_AÊ¾S¶-ê_x0008_A¦grë_x0005__x000C_I_x0002_\tA\u008eÝ-v_x0014_Æ_x0006_A¹©_x000B_¾\u0081T_x0008_A£GK½_x001D_Ì_x0006_Aw<Ý«Û\u008b_x0008_A§_x0016__x000B_\u008b²\u009c_x0006_AÖ\u009eÄz\u0099_x001C__x0007_A8\u0090Pb?_x001F__x0008_A\\ªÜ\u0084<¼_x0007_AmÍCJ(\t_x0007_AHÑy/^d_x0008_Ad_x0001_¥±ñQ_x000C_A\u0098ê_x000C_»Ã_x0013_\tAÃ¼Q$_x0002_ó_x0008_A4_x000E_õ© \u0086_x000C_Afwá@&I_x0008_A\u0099;_x0004_ _x0003_\u0090_x0008_A'ÌGÆâß\tA_x0002__x0012_Yö\\_x0016_\tA®\u009d¦q\u0083¦_x0006_A¨_x0017__x0012_>\u0089k_x0006_AÔãl_x001C_±~_x0006_A_x0015_¹_x0006_0\"R\tA-¸$\u008f¡Ô_x0008_A\u008föBG²¿_x0007_A0_x001A_\u009dá²o_x0008_A_x000B_R~b(M_x0008_ACêV\u0094ú\u0088_x000C_A_x0010_´6_x0013_E\u0095_x0008_Aj_x000C_n·_x000E_×\tAØ3\u0086_x000E_Ú\u008c_x0007_A\u009a}¤ÿSd\tA_x0001__x0002_®BÚBÉ\u0097_x0006_A_x0016_Ï5N\u0096Õ_x0007_A\u0081öY\u009eÖ{_x0007_ArUÏs1/_x0002_Aã\u0086pe Z\tAÐÍ6¼_x0013_o_x0008_Aû;z_x0011_<¡_x0006_AÞ.ö\u0087ã)_x0008_Azå ¦_x0011_\u008f_x0008_A;A|ÒIÁ_x0007_A)³Ñ\u009bHÆ_x0007_A_x000E_AP_x0002_r;_x0008_AedÑ´³É\tA=»ÉòÇ`\tA\"\u0092ÍF\u008dm_x0006_AtÀãË®]\tA\u009b_x001C_/ùÍÜ_x0007_A. <Õ_x0002_ë_x0008_A¢_x000B_0»\u0094ø\tA\u0090îquÑ_x000D__x0008_Ax_x0004_K\u0084Hu_x0007_A?#(*_x0006_i_x0008_AY_x001D_Òuø\u0093_x0007_Aò\u0095ÿZÅÕ_x0007_A\"ô_x001A__x001D_B²\tA\u0080_x001B_úîÃÑ_x0007_A=×ØúVx_x0007_AÈûÂÿ_x0007_Ñ_x0008_A_x0012_åUÎÕ²_x0006_A³\u00951\u0098-]_x0008_A¹r'=Õ¾\tAÏ\u0093_x000F_ã_x0001__x000B_R_x001D_\tAâøb\u0080¸+_x000B_A\u008dëòÛ&\u0092_x0007_A¤x_x0002_¡Þg_x0007_A_x000E_\u009eTq>i_x0008_Aâ¤Ø*EÓ_x0006_AK_x001E_'Øn\u0091_x0006_AM\u0086Q\u0080g¾_x000B_Ar\u0089\u0093¿úQ_x0008_A_x001B_ %8È¾\tAì\u0086k\u0086B#_x0008_A\u0080çÖ_0d\tA\u009f_x0019_s$®Á_x0007_A\u0086{l\u0095_x0003_Q_x0006_AÞY9|\tÇ_x0007_A\u008aùÚ!¦_x0010__x0008_A£f\u008bk\u0081)\tAæ`ã<×K\tAC_x0005_¤^µ«_x0008_A\u0082efõ)j_x0008_A;ê¤_x0014_Ôc_x000B_A¨Óm¹cÿ_x0007_Ao7_x0008_Þì_x0006__x0007_A¸høÒÿÊ\tA`3_x000B_n'_x0003__x0007_Aá_x001B_·y_x001E_o_x0008_A_x0018_\"G~ÆI_x0008_A/õÙ?rÁ\tA_x000B_>z5Ö\u0091_x0008_A8\u0096Ø_x0004_6_x0012__x0008_A\u008e/¶á_x0002_×_x0006_A¶èä_x001E_Ã%_x0007_A_x0001__x0005_?qÀ_x0019_ôÁ_x0008_A\u0082bñïj\u0091_x0007_A!`­\u0085Î\u0099_x0006_A{IA°&Í_x0008_A©4älQu_x0007_A_x0003_®:_x001A_º_x000C__x0005_A\u00803±JÑv\tAh\u009cè\u0082z@_x0005_A@\u0088L¶v_x0012__x0005_A\"ÎwïÇÖ_x0007_AK²\u0090_x0012_´:_x0007_A×_x0002_\u0096_x001D__x0006_\u0084_x0006_A_x0011_\u0099JëÒM_x0007_AJË_x0004_Ø&,_x0008_A&\u0092ÍË_x0015_k_x0008_Aî^\u009eû\u009eW_x0007_A©_x0012_B_x001C_\u0098Ü_x0005_AÄ\u0092Ø_x0015__x0007_î\tAÆÂ\u0095oÓA_x0007_Aê\\PC®_x0005__x0005_AnªGó}·_x0007_A\u0083¬AU\u0093þ_x0007_A_x0012_\"çø_x0001_ð\tAò,º½Yl\tA\u00825¦|_x001C_I\tAB_x0008_\u0086Âcö_x0007_AF_x0016_\u0084¥\u0090_x001F__x0008_AÎ\u0099\",0\u0098_x0008_Ao\u0084õæ¥_x001C_\tAz:­¥Ã_x0006__x0005_A_x0002_\u0093³9 í_x0007_A&ão\u0083_x0001__x0002_êØ_x0006_A¡«_x0015_õ®_x0004__x0008_A_x0012_áÙ¥qå_x0007_AÄ=Â_x001A_³æ_x0007_A¢]µò\u0083æ_x0006_Aj_x0013_F\u008fër_x0007_A)K\u009f\u0084_x0019_|_x0008_AÉFf_x0004_aò_x0006_Am_x001D_ÔÚè5_x0006_Aªñ²¨¸®_x0007_AäÊSJÑù"}},{"$cut":{"chars":77778,"head":"ddb6b6ac0f1ec45c7ee879a1392c0c43_x0001__x0002_\u009a\u00952T_x000D_¦_x000F_AÄRU\u0093_x0005_\u0085_x000E_A\u009eC©>\u0093__x000D_A7_x0006_ \u0089_x000C_q_x000C_Afé°|ÈP_x000F_A{×6<Xó_x000E_A_x0006_\u009eñLW\u008f_x000F_A´îáH1Â_x000E_Aåý_x001B_(Â\u0082_x000E_A_x001A_,n\u0094µÊ_x000E_A4_x000F_ÿ\u0087à{_x000D_A\u0094ø¶Äy\u007f_x000F_Ap¢\u0090±dß_x000F_A£\u0089Ðú)I_x000E_AKBÔoÈ/_x000F_AnúÊ#};_x000C_AÄ¹*ª\u008cð_x000B_A\"Ý\u0084\u0089 z_x000C_AÌÿ_x000E_Sð]_x000F_A¦\u0085I_x000C_\u009f_x0006__x0010_A4¿ì°ÜÎ_x000C_AnÉgt_x000F_È_x000E_AE_x0007_½\u0085ôÔ_x000C_A\u0085Û_x0001_@ÇP_x000B_A\u0084\u008bMl\u0099·_x0002_A,íJ½(1_x000C_A_x0010_¶_x0001_ª¸4_x000B_AVÒ_x001A_\u0086lÚ_x000E_AØvåbOQ_x000F_A&óN`\u008bÐ_x000C_A_x001E_àUo\u0087o_x000D_A°\u0089« _x0002__x0003_Hm_x000C_Ae\u008eËù¥_x0019__x000E_A<-å\\ÿ¡_x000B_A,\u008a/\u0088è\u0092_x000E_A_x0007_ÛFqÜ×_x0003_A!ÊPx§Ù_x000B_A_x001D_Û!D\"û_x000C_A_x0015_Ç±\u007fÄ¢_x000B_A\u0094]æ_x0019_ü'_x000F_AMßëý_x0017__x0018__x000F_A¦Jºû_\u0085_x000B_Ak¡_x0003_Ñ\u0095û_x000D_AÖJÉ+þO_x0003_A+ã\u0089_x0004_\u007f6_x000C_Ad\u0084?ç!N_x000F_AÖ¹\u0080\u0080ô$_x000E_AZ\u0094Ô\u0084g*_x000C_A_x0003_3Ý·_x0001_ï_x000B_Attc0y,_x000F_A_x0004_0±Wì\u008a_x000E_A<¥CÓ¶n_x000F_AHüý ¥E_x000D_AhQ$XèF_x000E_A|à\u008e5\u0080¡_x000B_AøàNÏA\u009c_x000B_A_x0017_0._x001C_fã_x000E_A\u0083æoHÛ¶_x000E_A#æ_x001F_`Iª_x000B_A'ô\u009fØIi_x000E_A\u0094\u0095NL±£_x000D_A©³Ý\\_x000E_Þ_x000C_Aýúº\u009eâ\u008f_x000F_A_x0004__x0011_\u0090\u0090;T¦Ü_x000D_AK_x0002_ß\u0094\u0080È_x000D_Aß_x0018_u_x0013_\u0082¡_x000C_AIÀ=Ëª\u0088_x000C_Aqª\u0084`SÚ_x000E_A®ûîp_x0013__x000F__x0010_A#q_x0018_\u0084tT_x000C_AëïanMõ_x000D_AÇ_x0006_¥\u0086o\t_x000E_A^_x0003_£_x0007_½Æ_x000C_AEãWÕO{_x000F_A\"_x000F__x000B_ù£î_x000E_A3´2_x0008__x0016__x0014__x000C_A\u007f»)_x0005_G~_x000F_A\u0094\u0091¼$A#_x000C_A£Ð_x0010_Û_x0006_î_x000F_AO\tùz_x000D_z_x000C_A_x0004_Ò;ÈÏü_x000F_A\\L\u009b_x000C__x001A_I_x000E_A\u0095_x001D_4\u008e_x0015_#_x000E_A\u009a èjò\u0091_x000D_A_x0005_¦_x0011_°_x001A_´_x000C_Aíb-·\u0082\u0081_x000D_A_x0001__x0014__x001C_k~l_x000E_AJ>úFR_x0019__x000B_A\u0089O/>_x000E_'_x000D_A_x0012_ÃsÒH]_x000E_Aðè_x000D_Ôc£_x000C_Aò\u0085x\u0081á\u008a_x000C_A\u0082\\BêØU_x000E_A_x000D__x001B_¾\u0082»Ô_x000D_AÄ]\u009dÍ_x0004__x0005_Ê)_x000B_A_x0001_äÙ]_x001A_n_x000D_AÄm\u0088½ø\u0098_x000E_A;_x0003_ªøtû_x000D_A\u0085ï,k_x000D_ï_x000D_AÞ_x0016_\u0095U_x000B_¶_x000B_Aê?¶V\u0087þ_x000F_A.>\u0096\u0081fø_x0005_AÓ¶_x0017_{µ/_x000F_A~\u009c\u009aX_x0011_i_x000C_AÆ\u0099¶3¬\u007f_x000F_ALîI_x0002_\u008eæ_x0005_A7Z¾lèõ_x000B_A_x001E_R£ÝGZ_x000D_A8x+8üm_x000B_AFâ5yÆÏ_x0005_A1^o«þF_x000D_A2$J_x0016_2_x000F__x000D_AVh)6\u0084__x000C_A¹\u008a\u0093_x001F_ÀØ_x000D_A_x0001_üFÐÝ{_x000D_A_x0018_U6)\u009fZ_x000B_A\u0082_x0011_rö¸)_x000F_A\u008b\u0090\u0081ØÏ´_x000E_A\u00874÷^_x001F__x0019__x000F_A¡¨Zë_x0015_\u0097_x000B_AÚ¥³h¤i_x000B_A¥ñ\u0082_x000C_&5_x000B_A!²tWh\"_x000B_A\u009eä­_x0007_|I_x000D_AÌû'r P_x000C_AñEÜØèÕ_x000C_A_x0001__x0006__x000B_|N7Ì\u0093_x000B_A(o¼\\à;_x000E_AwTÞ_x001F_?G_x000C_A\u0096Ò\u0095_x0010_oí_x000B_AT_x0001__x0010_±_x000C__x0018__x000E_AdcÁý_x0011_O_x000C_Aô_x0004_ÕYH_x0018__x000C_A8)ºqVæ_x000E_A_x000E_ÇØ_x0017_1Þ_x000E_A §I\u009d_x0002_%_x000F_Aí\u00840\\\u0084g_x000C_A\u0098_x0005_ý\u008c_x0008_u_x000D_A,\u0081_x001B__x001D_\u0093\u008b_x000B_A\u009f\u009ewþþz_x000E_A¨u{R]ð_x000C_A\\AB 'Þ_x000B_A\u0080ª³º=_x0013__x000E_A]Ø\u007f\u0097ì7_x000D_A\u0090Ó_x0019_i|_x0007__x000F_AÒv\u008e¥ô\u009d_x000E_A_x0010_·3~sé_x000E_A©©\u0097_x000E_|b_x000C_Aik\u0090_x0001_\u008e¬_x000E_A _x0014_\t\"n_x0014__x0010_AÆ_x0003_`_x0006_\u008bR_x000B_A¨£±,_x0010_\u008b_x000C_A`+¿aS'_x000F_AÅI[ÑI\u008b_x000D_Ah\u009e\u00855_x0013__x0016__x000B_A\u0098q)ÂÜ§_x000E_A\\ÐÄ\u008a¥_x0005__x000B_Av\u009c_x0011_¾_x0005__x0006_F@_x000E_ACÄ\u0085_x001A_ôM_x000E_Am_x0003_^1ÀL_x000D_AÑ\u008aá]¨ñ_x000F_AÝTFxmè_x000C_A%[Ì_x0019_Î&_x000B_Aî_x0019__ª÷C_x000C_A\u009f\u009a_x001C_W_x0004_à_x000D_AdlìO±í_x000C_A\u0096³\"~5\u0083_x0006_A_x0001_­_x0019_)Þ>_x000D_A­~&²mÂ_x000C_A_x0002_GO_x0003_\"_x0001__x000D_AïÇqÌéi_x000E_AÂI£¸ú¤_x000B_A_x001A__x0019_õ\u008cç\u0094_x000E_AF=\u008dwws_x000F_A5áÚûû;_x000C_AâÁ¨E_x001E_\u0099_x000E_A_x0003_ÛY_x000D_\u008eï_x000F_ANñn\u008a+(_x000F_AÑ-ª_x001B_3c_x000F_A\u0087\u007fr\u0081{á_x000B_A_x000D_\u009b_x0018_\u0083¿_x0017__x000F_A¬o\u009bqÇ\u0092_x000F_A6_x000F_\u0096ÜÞä_x0006_A¢_x0004_«K_x0014_W_x000F_A_x000E_û _x001C_\u0094ý_x000B_AuÉ°k\u0094-_x000E_Aàb=»_x001F_Õ_x000D_AN­WÃ_x001E_^_x000C_A2æ\u008aKè[_x000C_A_x0001__x0002_\\ZÍ_x0003_Ý\u0086_x000D_A_x0011_<ò,QU_x000D_An±åo_x0005_Ó_x0002_A\u0094v!_x0002_~\u009a_x000D_A» \u009a\u008däû_x000E_Aæ_x0003__x0014_Ì_x0005_v_x000C_A¼_x001A__x0013_ËÆÓ_x000C_A_x001C_t¬Á=ã_x000B_AÍòÓçæÚ_x000B_A* A®°n_x000C_A©_x001A_¿QÂ_x000E__x000C_A_x0019_\u0099ÚØ½a_x000F_A\u0093åÒRè\u0081_x000C_Að%1\u008eõH_x000D_A$ÝKXo£_x000B_AæØE\u009d\u0098r_x000F_A=z\u009dã\u0084\u0088_x000C_A\u009cÕ_x0015_¶r'_x000C_A_x0008_ÿI_x000F_²P_x000C_A\u00826¿«*þ_x000E_Aÿú4úêD_x000B_A\u0093ÜÉÈ(:_x000B_A{}\\'$\u0088_x000C_A8w\u0082_x001"}},{"$cut":{"chars":94338,"head":"668a188d6739e18711d582e4b4f8fa32_x0005__x0008_\u007f\u0087;Kó@_x000E_Aþg1á\u0088s_x000D_AÊ\u0092U\u008b|\u0095_x000E_Ay\u008fÔ/Læ_x000C_A\u0083Ð§÷_x0006_\u0080_x000B_A_x0016_o7LÄ'_x0010_A/p^¹\u0096X_x000F_A\u0096?\u0083!Òr_x000E_AÎ\u009dÐJDr_x000B_A_x001B_\u008d\u009a¸,\u0080_x0010_An\u0094_x000B_iÚÇ_x0008_A5`ÞyqF_x000C_AÆ_x001D__x000D_Ç8ý_x000F_A_x001E_\tZèLÈ_x000C_AÆ«z/87_x000F_AÖ\t+½¯â_x000E_AL¸y¨_x0001_é_x000C_Aö_x000C_îßÙ_x0013__x0010_A?_x0001_C\u0083øË_x0008_Ad_x0007_¤h$_x000F__x000D_A_x0018_4ý\u0083_x0011_o_x000D_AgÈëa¿E_x000D_A[· Õ\u008b\u008d_x000C_AçÐ_x0007_ïM<_x0010_A_x0019_8p·_x0004_ç_x000D_AYÉd©_x0017_!_x000F_AÚÒ|]b_x0003__x000C_A|+õw\u0085o_x000F_ASå\u008b®_x0002_|_x000C_A¨YL_x0017_p_x0002__x0010_Abý õ?ÿ_x000D_A\u008añLÓ_x0001__x0005_Ñu_x000B_Aü%´_ùk_x000F_A?\u0089Ç_x001D_¢_x0002__x000F_AÂiÎ_x0008_:Ì_x000D_A\t_x0017_\u0091ÈB_x0002__x000C_A3m\u0082\u009e_x000C_³_x000E_A_x0005__x000E_tFré_x000B_A_x001C__x0008_8ÁyO_x000C_A\u0091¬_x001E_qkK_x000D_A_x001A_ÑRN\u0091ÿ_x000B_Al_x0003_~K\u008f1_x000F_AÖDÊÀ_x0002_Ð_x000C_A£Ìö/#\u0088_x000D_AZ¸V_x0002_ùy_x000D_A\u0082_x0019__x0018_X_x001C_`_x000B_AÔÜ¿&Ùà_x000E_Aø\u0081_x000F_L_x0003_{_x000F_A\u0095,Ï`\tC_x0010_A2nV©Ki_x000F_Atw\u0081\u0085À¢_x000D_A_x001F_ÑØx×\u009c_x000D_A/_x0002__x0013_\t_x0007_$_x0010_Ab\u0094Ký«/_x000B_Aê½° \u0088'_x000E_Aw-_x0019_èd\"_x0010_A\u0084rµÊ§&_x000D_AmÃ\u009b~ßR_x000E_An÷_x0017_>§_x0006__x000C_AÇs½ÓW_x0003__x000D_A\u0090;ì½­P_x000D_A_x0017_\u008f@Y_x0016__x001E__x000E_A\u0086èR\u008d_x0004_ó_x000F_A_x0001__x0006_2\u0099\u0086_x001C_\u0098K_x000C_AÔÀ að_x0004__x0010_A\t_x0018_c\u0095Çy_x000C_AX¥5\u00800W_x000D_A_x0004_Dú\u0094&9_x0010_A`×à\u0090¡o_x000C_Aâ\u009a±;*ä_x000C_AWnMøë´_x000F_A¤\u008b´ 8´_x000C_A¯{q_x0003_¥u_x000E_AËFà_x0010_©ä_x000E_A_x0016__x0012__x0004_!Gâ_x0006_Aaâ\u008d_x0011_\\_x0013__x0010_Ah÷_x0002_H\u008a?_x000F_AÀNzò#_x0005__x000D_A\u0083÷ïY½\"_x0010_A\u0080\"´Ðûp_x000B_AÔ\u0087±J»ä_x000B_AÙ~ G¸à_x000B_A_x0004_báOÕ°_x000C_A_x001C_é_x0002_Áæo_x000C_Anºeö²\u008d_x000D_AægåJ_x0008_y_x000B_AìK§\u008eQ«_x000F_A_x0008_\u009b\u007fçåº_x000F_Aþ6L\u0098äÌ_x000D_AÎ)ù[Ò\u0080_x000B_A\u0096·_x0015_Ó(_x0006__x000C_A_x0015_×_x0003_ø_x000E_Ü_x000B_AfÖÏþ×W_x000B_AF\u009cDúÿ_x0013__x000C_A[¦_x001D_y_x0002__x0003__x000F___x000D_AêÖhàÌ\u0092_x000B_A\u008d\u0081_x0018_¨ã¦_x000B_AEDßÅ>_x0011__x0010_Ak¨Ý_x0001_~Ã_x000B_Ae*Ï\u009dÒ|_x000B_A*~ÃÁ___x000E_A\u0080IKñ/_x0015__x000F_A$ Ä5MÊ_x000D_A\u0096ö·yAc_x000E_A\u0091tÞ_x000F_îª_x000F_Aå_x0005_ë_x000B__x000E_²_x000C_Ap\u0081PÒ\t\u0084_x000F_A\u0080UÇ^eÆ_x000F_AÅ²\u0092ÓïJ_x000F_A@\u008c£WcÀ_x000B_Aëe\u0088àÝ¼_x000E_Ar\t¦_x0014_·_x0002__x000E_AÀ°ÅØÐO_x000B_Aû#ªèÌ\u0084_x000C_A_x001B_å_x0003_ß»®_x000E_A(Q_x000F_j_x0005_=_x000D_A_x001B_p¯¤G<_x0010_A`WÇ0pU_x000E_A½0Ø¸R\u008a_x000E_AN#ä$°°_x000C_A#ó\u0098#¿Ç_x000E_A%ý6 5ù_x000C_A\u0080M¡!I_x0001__x000F_Aè¢_x0007_\u0082b_x0018__x000E_A\u0082|õ_x001F_W_x000C__x000D_A^\u009f\u0088Äû·_x000B_A_x0001__x0004_$Ç,:ã_x001C__x000C_A_x001E_¯72ö¢_x000F_AÛö5]5ç_x000F_A¨t\u0086_x0004_\u008a\u0089_x000B_AöÔà!Ç\u009b_x000E_A>ZéË_x0016_G_x000D_AK¶Ø\u009e,Û_x000C_Aü&!_x0003_±å_x000D_A©{\\_x0002_úî_x000B_A£,;³\u0082¾_x000E_AtÁ_x001A_&y_x0015__x000F_Abt\u007fé_x0003__x001E__x000D_A-Ç&_x0010_ìo_x0004_A\u008a¸x<¾®_x000F_Ahs\u0087É_x0003_·_x000F_A)\u0083Ã°ôë_x000F_A¬Ù(u[Y_x000F_A¸}³0)_x000B__x000C_AôT\u0080\u0089\u0082¾_x000D_A\u0098Ë®[é6_x000F_AØáËÇð\u008e_x000C_AÕ½ØK_x0017_2_x000F_A8j>,_x0004_8_x000F_AÑÖ£nÆá_x000C_AêuDö¡\u0094_x000E_A¾H_x0010_ë_x000E_>_x0010_A{©_x0005_¼>¢_x000D_A.f\u0086_x0014_\u0087_x0005__x000E_AþP×)÷g_x000D_A\u008fü¿ÖXK_x000D_A\u0089ºÓO£u_x000E_Aq¥_x0003__x0006__x0001__x0002_\u0081'_x0010_Aà¥dyy _x000C_Aºx0æÎË_x000F_AøA@\u0094CT_x000F_A¾\u0091 Ö¨t_x000D_Ajè_x0008_©Í´_x000C_AÜ<`.¬µ_x000D_AÑ\u009dÙ×ßi_x000F_A²~<ò¾ö_x000F_A{__x0010_öu\u0097_x000F_A\u0090/_x001A_(2¤_x000C_A(ÿÞ\u0090_x000B_`_x000D_ALì\\\u009e*\u0095_x000F_AÊÇëó\u008f\u0087_x000F_Aw\u009f5\u008e_x0002_ü_x000B_A8ù\u009bù_x000F__x0019__x0010_Af'9Ëïô_x000B_A3ìÃÃLà_x000E_Af_x000E__x001B__x0018_¾Ê_x000F_Aê_x001D_\u0096ìø\u009a_x000F_A\u008fÉ³_x000C_Ë_x000D__x0010_A ÎÍä_x0008_2_x000F_A<28Éù\u009f_x000B_AX\u0084úê·¡_x000B_A+Í_x000D_\u0090ß\u0088_x000F_AScø_x0015_8 _x000E_AR\u009c0¹°\u0087_x000D_AçN\u0090IÑè_x000D_AïÑoP5_x0014__x000D_A¦K XT§_x000E_A x6_x001F_\u0082f_x000E_APH«_x0011_PÌ_x000C_A_x0003__x0004_jú«[îr_x000E_A\"R+²­E_x000C_AL_x000D_|±À\u008c_x000F_AØ_x0006_î48ò_x000D_A\u0082ÈÖu\u009e_x000E__x000F_AT³[L)O_x000C_AÑ_x0002_à\u0088û#_x000E_Az»3Z&Ø_x000E_Aâq\u008d_x0015_5×_x000C_AÜTU\u0091uO_x000D_A°«-\u0083Ø¥_x000F_AN>#_x0001_@Ã_x000B_AÊG\u0082Õ_x001A__x0014__x000D_AÞ_x0002_\u0080È_x0011__x0015__x0010_AÚWÖ\tÀÁ_x000B_AÀF¬\u009f\u0095Û_x000B_Ad\u0090z_x0018_Õ\u0082_x000C_Aa_x001F_\u0092®\u0083 _x000B_A\u009fø\u008e)aé_x000D_A+K\u0081Q¦ø_x000F_AÌ¡ý¿òÁ_x000C_A_x0007_!;@_x0010_â_x000C_Aö\u009d\u0098_x0011__x0007_u_x000E_A6<\u0084¿ã_x0010__x000E_AR÷Å_x0007_\t\u0093_x000D_AP\u0095_x"}},{"$cut":{"chars":100938,"head":"43120b997be4fc3871da8afdf427f03e_x0003__x0004_8_x0014__x0003__x0003__x0003_=@RiskMean($K8)/1000_x0003__x0003__x0003__x0003__x0003__x0003__x0003__x0003__x0003__x0003__x0003__x0003__x0002__x0003__x0003__x0003_H8_x001E__x0003__x0003__x0003_=@RiskPercentile($K8,95%)/1000_x0003__x0003__x0003__x0003__x0003__x0003__x0003__x0003__x0003__x0003__x0003__x0003__x0002__x0003__x0003__x0003_K8&_x0003__x0003__x0003_='Risk Summary'!D$7+'Risk Summary'!D$8_x000F__x0003__x0003__x0003_2025_x0001_D8_x0001_K3_x0001_Risk_x0003__x0003__x0003__x0003__x0003__x0003__x0003__x0003__x0002__x0003__x0003__x0003_F9_x001D__x0003__x0003__x0003_=@RiskPercentile($K9,5%)/1000_x0003__x0003__x0003__x0003__x0003__x0003__x0003__x0003__x0003__x0003__x0003__x0003__x0002__x0003__x0003__x0003_G9_x0014__x0003__x0003__x0003_=@RiskMean($K9)/1000_x0003__x0003__x0003__x0003__x0003__x0003__x0003__x0004__x0005__x0004__x0004__x0004__x0004__x0004__x0002__x0004__x0004__x0004_H9_x001E__x0004__x0004__x0004_=@RiskPercentile($K9,95%)/1000_x0004__x0004__x0004__x0004__x0004__x0004__x0004__x0004__x0004__x0004__x0004__x0004__x0002__x0004__x0004__x0004_K9&_x0004__x0004__x0004_='Risk Summary'!F$7+'Risk Summary'!F$8_x000F__x0004__x0004__x0004_2026_x0001_D9_x0001_K3_x0001_Risk_x0004__x0004__x0004__x0004__x0004__x0004__x0004__x0004__x0003__x0004__x0004__x0004_F10_x001E__x0004__x0004__x0004_=@RiskPercentile($K10,5%)/1000_x0004__x0004__x0004__x0004__x0004__x0004__x0004__x0004__x0004__x0004__x0004__x0004__x0003__x0004__x0004__x0004_G10_x0015__x0004__x0004__x0004_=@RiskMean($K10)/1000_x0004__x0004__x0004__x0004__x0004__x0004__x0004__x0004__x0004__x0004__x0004__x0004__x0003__x0004__x0004__x0004_H10_x001F__x0004__x0004__x0004_=@RiskPercen_x0002__x0004_tile($K10,95%)/1000_x0002__x0002__x0002__x0002__x0002__x0002__x0002__x0002__x0002__x0002__x0002__x0002__x0003__x0002__x0002__x0002_K10&_x0002__x0002__x0002_='Risk Summary'!H$7+'Risk Summary'!H$8_x0010__x0002__x0002__x0002_2027_x0001_D10_x0001_K3_x0001_Risk_x0002__x0002__x0002__x0002__x0002__x0002__x0002__x0002__x0003__x0002__x0002__x0002_F11_x001E__x0002__x0002__x0002_=@RiskPercentile($K11,5%)/1000_x0002__x0002__x0002__x0002__x0002__x0002__x0002__x0002__x0002__x0002__x0002__x0002__x0003__x0002__x0002__x0002_G11_x0015__x0002__x0002__x0002_=@RiskMean($K11)/1000_x0002__x0002__x0002__x0002__x0002__x0002__x0002__x0002__x0002__x0002__x0002__x0002__x0003__x0002__x0002__x0002_H11_x001F__x0002__x0002__x0002_=@RiskPercentile($K11,95%)/1000_x0002__x0002__x0002__x0002__x0002__x0002__x0004__x0002__x0002__x0002__x0002__x0002__x0002__x0002__x0003__x0002__x0002__x0002_K11&_x0002__x0002__x0002_='Risk Summary'!J$7+'Risk Summary'!J$8_x0010__x0002__x0002__x0002_2028_x0001_D11_x0001_K3_x0001_Risk_x0002__x0002__x0002__x0002__x0002__x0002__x0002__x0002__x0003__x0002__x0002__x0002_F12_x001E__x0002__x0002__x0002_=@RiskPercentile($K12,5%)/1000_x0002__x0002__x0002__x0002__x0002__x0002__x0002__x0002__x0002__x0002__x0002__x0002__x0003__x0002__x0002__x0002_G12_x0015__x0002__x0002__x0002_=@RiskMean($K12)/1000_x0002__x0002__x0002__x0002__x0002__x0002__x0002__x0002__x0002__x0002__x0002__x0002__x0003__x0002__x0002__x0002_H12_x001F__x0002__x0002__x0002_=@RiskPercentile($K12,95%)/1000_x0002__x0002__x0002__x0002__x0002__x0002__x0002__x0002__x0002__x0002__x0002__x0002__x0003__x0002__x0002__x0002_K12'_x0002__x0002__x0002_='Risk_x0002__x0004_ Summary'!D$9+'Risk Summary'!D$10_x0010__x0002__x0002__x0002_2025_x0001_D12_x0001_K3_x0001_Risk_x0002__x0002__x0002__x0002__x0002__x0002__x0002__x0002__x0003__x0002__x0002__x0002_F13_x001E__x0002__x0002__x0002_=@RiskPercentile($K13,5%)/1000_x0002__x0002__x0002__x0002__x0002__x0002__x0002__x0002__x0002__x0002__x0002__x0002__x0003__x0002__x0002__x0002_G13_x0015__x0002__x0002__x0002_=@RiskMean($K13)/1000_x0002__x0002__x0002__x0002__x0002__x0002__x0002__x0002__x0002__x0002__x0002__x0002__x0003__x0002__x0002__x0002_H13_x001F__x0002__x0002__x0002_=@RiskPercentile($K13,95%)/1000_x0002__x0002__x0002__x0002__x0002__x0002__x0002__x0002__x0002__x0002__x0002__x0002__x0003__x0002__x0002__x0002_K13'_x0002__x0002__x0002_='Risk Summary'!F$9+'Risk Sum_x0002__x0004_ma"}},{"$cut":{"chars":84669,"head":"6518edb0d3c694229d24874e50f7d74a_x0002__x0003__x0002__x0015__x0002__x0002_\u0080=@RiskMean($K14)/1000_x0002__x0002__x0002_\u0080_x0002__x0002__x0002__x0002__x0002__x0002__x0002__x0002__x0002__x0002__x000D__x0002__x0002__x0002__x0007__x0002__x001F__x0002__x0002_\u0080=@RiskPercentile($K14,95%)/1000_x0002__x0002__x0002_\u0080_x0002__x0002__x0002__x0002__x0002__x0002__x0002__x0002__x0002__x0002__x000D__x0002__x0002__x0002__x0003__x0002_'_x0002__x0002_\u0080='Risk Summary'!H$9+'Risk Summary'!H$10_x0010__x0002__x0002_\u00802027_x0001_D14_x0001_K3_x0001_Risk_x0002__x0002__x0002__x0002__x0002__x0002__x0002__x0002__x0002__x0002__x000E__x0002__x0002__x0002__x0005__x0002__x001E__x0002__x0002_\u0080=@RiskPercentile($K15,5%)/1000_x0002__x0002__x0002_\u0080_x0002__x0002__x0002__x0002__x0002__x0002__x0002__x0002__x0002__x0002__x000E__x0002__x0002__x0002__x0006__x0002__x0015__x0002__x0002_\u0080=@RiskMean($K1_x0002__x0003_5)/1000_x0002__x0002__x0002_\u0080_x0002__x0002__x0002__x0002__x0002__x0002__x0002__x0002__x0002__x0002__x000E__x0002__x0002__x0002__x0007__x0002__x001F__x0002__x0002_\u0080=@RiskPercentile($K15,95%)/1000_x0002__x0002__x0002_\u0080_x0002__x0002__x0002__x0002__x0002__x0002__x0002__x0002__x0002__x0002__x000E__x0002__x0002__x0002__x0003__x0002_'_x0002__x0002_\u0080='Risk Summary'!J$9+'Risk Summary'!J$10_x0010__x0002__x0002_\u00802028_x0001_D15_x0001_K3_x0001_Risk_x0002__x0002__x0002__x0002__x0002__x0002__x0002__x0002__x0002__x0002__x000F__x0002__x0002__x0002__x0005__x0002__x001E__x0002__x0002_\u0080=@RiskPercentile($K16,5%)/1000_x0002__x0002__x0002_\u0080_x0002__x0002__x0002__x0002__x0002__x0002__x0002__x0002__x0002__x0002__x000F__x0002__x0002__x0002__x0006__x0002__x0015__x0002__x0002_\u0080=@RiskMean($K16)/1000_x0002__x0002__x0002_\u0080_x0002__x0002__x0002__x0002__x0002__x0002__x0002__x0002__x0002__x0003__x0002__x0002__x000F__x0002__x0002__x0002__x0007__x0002__x001F__x0002__x0002_\u0080=@RiskPercentile($K16,95%)/1000_x0002__x0002__x0002_\u0080_x0002__x0002__x0002__x0002__x0002__x0002__x0002__x0002__x0002__x0002__x000F__x0002__x0002__x0002__x0003__x0002_(_x0002__x0002_\u0080='Risk Summary'!D$11+'Risk Summary'!D$12_x0010__x0002__x0002_\u00802025_x0001_D16_x0001_K3_x0001_Risk_x0002__x0002__x0002__x0002__x0002__x0002__x0002__x0002__x0002__x0002__x0010__x0002__x0002__x0002__x0005__x0002__x001E__x0002__x0002_\u0080=@RiskPercentile($K17,5%)/1000_x0002__x0002__x0002_\u0080_x0002__x0002__x0002__x0002__x0002__x0002__x0002__x0002__x0002__x0002__x0010__x0002__x0002__x0002__x0006__x0002__x0015__x0002__x0002_\u0080=@RiskMean($K17)/1000_x0002__x0002__x0002_\u0080_x0002__x0002__x0002__x0002__x0002__x0002__x0002__x0002__x0002__x0002__x0010__x0002__x0002__x0002__x0007__x0002__x001F__x0002__x0002_\u0080=@Risk_x0002__x0003_Percentile($K17,95%)/1000_x0002__x0002__x0002_\u0080_x0002__x0002__x0002__x0002__x0002__x0002__x0002__x0002__x0002__x0002__x0010__x0002__x0002__x0002__x0003__x0002_(_x0002__x0002_\u0080='Risk Summary'!F$11+'Risk Summary'!F$12_x0010__x0002__x0002_\u00802026_x0001_D17_x0001_K3_x0001_Risk_x0002__x0002__x0002__x0002__x0002__x0002__x0002__x0002__x0002__x0002__x0011__x0002__x0002__x0002__x0005__x0002__x001E__x0002__x0002_\u0080=@RiskPercentile($K18,5%)/1000_x0002__x0002__x0002_\u0080_x0002__x0002__x0002__x0002__x0002__x0002__x0002__x0002__x0002__x0002__x0011__x0002__x0002__x0002__x0006__x0002__x0015__x0002__x0002_\u0080=@RiskMean($K18)/1000_x0002__x0002__x0002_\u0080_x0002__x0002__x0002__x0002__x0002__x0002__x0002__x0002__x0002__x0002__x0011__x0002__x0002__x0002__x0007__x0002__x001F__x0002__x0002_\u0080=@RiskPercentile($K18,95_x0002__x0003_%)/1000_x0002__x0002__x0002_\u0080_x0002__x0002__x0002__x0002__x0002__x0002__x0002__x0002__x0002__x0002__x0011__x0002__x0002__x0002__x0003__x0002_(_x0002__x0002_\u0080='Risk Summary'!H$11+'Risk Summary'!H$12_x0010__x0002__x0002_\u00802027_x0001_D18_x0001_K3_x0001_Risk_x0002__x0002__x0002__x0002__x0002__x0002__x0002__x0002__x0002__x0002__x0012__x0002__x0002__x0002__x0005__x0002__x001E__x0002__x0002_\u0080=@RiskPercentile($K19,5%)/1000_x0002__x0002__x0002_\u0080_x0002__x0002__x0002__x0002__x0002__x0002__x0002__x0002__x0002__x0002__x0012__x0002__x0002__x0002__x0006__x0002__x0015__x0002__x0002_\u0080=@RiskMean($K19)/1000_x0002__x0002__x0002_\u0080_x0002__x0002__x0002__x0002__x0002__x0002__x0002__x000"}}]

{"sheet":"Study Table","index":9,"n_rows":56,"n_cols":11,"rows_kept":56,"cut":false,"hidden":false,"merged":[[52,1,55,1],[52,2,55,2],[40,1,43,1],[40,2,43,2],[44,1,47,1],[44,2,47,2],[48,1,51,1],[48,2,51,2],[30,1,30,7],[32,1,35,1],[32,2,35,2],[36,1,39,1],[36,2,39,2],[23,1,26,1],[23,2,26,2],[1,1,1,7],[3,1,6,1],[3,2,6,2],[7,1,10,1],[7,2,10,2],[11,1,14,1],[11,2,14,2],[15,1,18,1],[15,2,18,2],[19,1,22,1],[19,2,22,2]]}
[null,"A","B","C","D","E","F","G"]
[null,"P-NORM Risk Summary ($000,000)",null,null,null,null,null,null,null,"Source Data"]
[null,"Study Section","Risk Title","Fiscal Year","Forecast","5th Percentile","Mean","95th Percentile",null,"ProForma","Risk"]
[1,"4.1.2.1.1","CGS Operations and Maintenance (O&M)",2025,{"$f":"J4/1000","v":381.84234097999996},{"$f":"_xll.RiskPercentile($K4,5%)/1000","v":{"$error":"#NAME?"}},{"$f":"_xll.RiskMean($K4)/1000","v":{"$error":"#NAME?"}},{"$f":"_xll.RiskPercentile($K4,95%)/1000","v":{"$error":"#NAME?"}},null,{"$f":"'Risk Summary'!C$6","v":381842.34097999998},{"$f":"'Risk Summary'!D$6","v":{"$error":"#NAME?"}}]
[{"$f":"A4+1","v":2},null,null,2026,{"$f":"J5/1000","v":348.98504602000003},{"$f":"_xll.RiskPercentile($K5,5%)/1000","v":{"$error":"#NAME?"}},{"$f":"_xll.RiskMean($K5)/1000","v":{"$error":"#NAME?"}},{"$f":"_xll.RiskPercentile($K5,95%)/1000","v":{"$error":"#NAME?"}},null,{"$f":"'Risk Summary'!E$6","v":348985.04602000001},{"$f":"'Risk Summary'!F$6","v":{"$error":"#NAME?"}}]
[{"$f":"A5+1","v":3},null,null,2027,413.66616600999998,{"$f":"_xll.RiskPercentile($K6,5%)/1000","v":{"$error":"#NAME?"}},{"$f":"_xll.RiskMean($K6)/1000","v":{"$error":"#NAME?"}},{"$f":"_xll.RiskPercentile($K6,95%)/1000","v":{"$error":"#NAME?"}},null,{"$f":"'Risk Summary'!G$6","v":413666.16600999999},{"$f":"'Risk Summary'!H$6","v":{"$error":"#NAME?"}}]
[4,null,null,2028,380.97351395999993,{"$f":"_xll.RiskPercentile($K7,5%)/1000","v":{"$error":"#NAME?"}},{"$f":"_xll.RiskMean($K7)/1000","v":{"$error":"#NAME?"}},{"$f":"_xll.RiskPercentile($K7,95%)/1000","v":{"$error":"#NAME?"}},null,{"$f":"'Risk Summary'!I$6","v":380973.51395999995},{"$f":"'Risk Summary'!J$6","v":{"$error":"#NAME?"}}]
[5,"4.1.2.1.2","U.S. Army Corps of Engineers (Corps) and Bureau of Reclamation (Reclamation) O&M",{"$f":"D4","v":2025},459.05203002000007,{"$f":"_xll.RiskPercentile($K8,5%)/1000","v":{"$error":"#NAME?"}},{"$f":"_xll.RiskMean($K8)/1000","v":{"$error":"#NAME?"}},{"$f":"_xll.RiskPercentile($K8,95%)/1000","v":{"$error":"#NAME?"}},null,{"$f":"'Risk Summary'!C$7+'Risk Summary'!C$8","v":459052.03002000006},{"$f":"'Risk Summary'!D$7+'Risk Summary'!D$8","v":{"$error":"#NAME?"}}]
[6,null,null,{"$f":"D5","v":2026},{"$f":"J9/1000","v":487.58600008999997},{"$f":"_xll.RiskPercentile($K9,5%)/1000","v":{"$error":"#NAME?"}},{"$f":"_xll.RiskMean($K9)/1000","v":{"$error":"#NAME?"}},{"$f":"_xll.RiskPercentile($K9,95%)/1000","v":{"$error":"#NAME?"}},null,{"$f":"'Risk Summary'!E$7+'Risk Summary'!E$8","v":487586.00008999999},{"$f":"'Risk Summary'!F$7+'Risk Summary'!F$8","v":{"$error":"#NAME?"}}]
[7,null,null,2027,523.03900008000005,{"$f":"_xll.RiskPercentile($K10,5%)/1000","v":{"$error":"#NAME?"}},{"$f":"_xll.RiskMean($K10)/1000","v":{"$error":"#NAME?"}},{"$f":"_xll.RiskPercentile($K10,95%)/1000","v":{"$error":"#NAME?"}},null,{"$f":"'Risk Summary'!G$7+'Risk Summary'!G$8","v":523039.00008000003},{"$f":"'Risk Summary'!H$7+'Risk Summary'!H$8","v":{"$error":"#NAME?"}}]
[8,null,null,2028,549.12900010999999,{"$f":"_xll.RiskPercentile($K11,5%)/1000","v":{"$error":"#NAME?"}},{"$f":"_xll.RiskMean($K11)/1000","v":{"$error":"#NAME?"}},{"$f":"_xll.RiskPercentile($K11,95%)/1000","v":{"$error":"#NAME?"}},null,{"$f":"'Risk Summary'!I$7+'Risk Summary'!I$8","v":549129.00011000002},{"$f":"'Risk Summary'!J$7+'Risk Summary'!J$8","v":{"$error":"#NAME?"}}]
[9,"4.1.2.1.3","Conservation Expense",2025,75.032249010000015,{"$f":"_xll.RiskPercentile($K12,5%)/1000","v":{"$error":"#NAME?"}},{"$f":"_xll.RiskMean($K12)/1000","v":{"$error":"#NAME?"}},{"$f":"_xll.RiskPercentile($K12,95%)/1000","v":{"$error":"#NAME?"}},null,{"$f":"'Risk Summary'!C$9+'Risk Summary'!C$10","v":75032.249010000014},{"$f":"'Risk Summary'!D$9+'Risk Summary'!D$10","v":{"$error":"#NAME?"}}]
[10,null,null,2026,{"$f":"J13/1000","v":71.389524009999988},{"$f":"_xll.RiskPercentile($K13,5%)/1000","v":{"$error":"#NAME?"}},{"$f":"_xll.RiskMean($K13)/1000","v":{"$error":"#NAME?"}},{"$f":"_xll.RiskPercentile($K13,95%)/1000","v":{"$error":"#NAME?"}},null,{"$f":"'Risk Summary'!E$9+'Risk Summary'!E$10","v":71389.524009999994},{"$f":"'Risk Summary'!F$9+'Risk Summary'!F$10","v":{"$error":"#NAME?"}}]
[11,null,null,2027,71.389524009999988,{"$f":"_xll.RiskPercentile($K14,5%)/1000","v":{"$error":"#NAME?"}},{"$f":"_xll.RiskMean($K14)/1000","v":{"$error":"#NAME?"}},{"$f":"_xll.RiskPercentile($K14,95%)/1000","v":{"$error":"#NAME?"}},null,{"$f":"'Risk Summary'!G$9+'Risk Summary'!G$10","v":71389.524009999994},{"$f":"'Risk Summary'!H$9+'Risk Summary'!H$10","v":{"$error":"#NAME?"}}]
[12,null,null,2028,92.517698999999993,{"$f":"_xll.RiskPercentile($K15,5%)/1000","v":{"$error":"#NAME?"}},{"$f":"_xll.RiskMean($K15)/1000","v":{"$error":"#NAME?"}},{"$f":"_xll.RiskPercentile($K15,95%)/1000","v":{"$error":"#NAME?"}},null,{"$f":"'Risk Summary'!I$9+'Risk Summary'!I$10","v":92517.698999999993},{"$f":"'Risk Summary'!J$9+'Risk Summary'!J$10","v":{"$error":"#NAME?"}}]
[13,"4.1.2.1.4","Power Services Transmission Acquisition and Ancillary Services",2025,95.897798989999998,{"$f":"_xll.RiskPercentile($K16,5%)/1000","v":{"$error":"#NAME?"}},{"$f":"_xll.RiskMean($K16)/1000","v":{"$error":"#NAME?"}},{"$f":"_xll.RiskPercentile($K16,95%)/1000","v":{"$error":"#NAME?"}},null,{"$f":"'Risk Summary'!C$11+'Risk Summary'!C$12","v":95897.798989999996},{"$f":"'Risk Summary'!D$11+'Risk Summary'!D$12","v":{"$error":"#NAME?"}}]
[14,null,null,2026,{"$f":"J17/1000","v":95.897799989999996},{"$f":"_xll.RiskPercentile($K17,5%)/1000","v":{"$error":"#NAME?"}},{"$f":"_xll.RiskMean($K17)/1000","v":{"$error":"#NAME?"}},{"$f":"_xll.RiskPercentile($K17,95%)/1000","v":{"$error":"#NAME?"}},null,{"$f":"'Risk Summary'!E$11+'Risk Summary'!E$12","v":95897.79999},{"$f":"'Risk Summary'!F$11+'Risk Summary'!F$12","v":{"$error":"#NAME?"}}]
[15,null,null,2027,97.944299999999998,{"$f":"_xll.RiskPercentile($K18,5%)/1000","v":{"$error":"#NAME?"}},{"$f":"_xll.RiskMean($K18)/1000","v":{"$error":"#NAME?"}},{"$f":"_xll.RiskPercentile($K18,95%)/1000","v":{"$error":"#NAME?"}},null,{"$f":"'Risk Summary'!G$11+'Risk Summary'!G$12","v":97944.3},{"$f":"'Risk Summary'!H$11+'Risk Summary'!H$12","v":{"$error":"#NAME?"}}]
[16,null,null,2028,100.03599998999999,{"$f":"_xll.RiskPercentile($K19,5%)/1000","v":{"$error":"#NAME?"}},{"$f":"_xll.RiskMean($K19)/1000","v":{"$error":"#NAME?"}},{"$f":"_xll.RiskPercentile($K19,95%)/1000","v":{"$error":"#NAME?"}},null,{"$f":"'Risk Summary'!I$11+'Risk Summary'!I$12","v":100035.99999},{"$f":"'Risk Summary'!J$11+'Risk Summary'!J$12","v":{"$error":"#NAME?"}}]
[17,"4.1.2.1.5","Fish & Wildlife Expenses",2025,{"$f":"J20/1000","v":297.62623134000006},{"$f":"_xll.RiskPercentile($K20,5%)/1000","v":{"$error":"#NAME?"}},{"$f":"_xll.RiskMean($K20)/1000","v":{"$error":"#NAME?"}},{"$f":"_xll.RiskPercentile($K20,95%)/1000","v":{"$error":"#NAME?"}},null,{"$f":"'Risk Summary'!C$13+'Risk Summary'!C$14","v":297626.23134000006},{"$f":"'Risk Summary'!D$13+'Risk Summary'!D$14","v":{"$error":"#NAME?"}}]
[18,null,null,2026,309.26111736000001,{"$f":"_xll.RiskPercentile($K21,5%)/1000","v":{"$error":"#NAME?"}},{"$f":"_xll.RiskMean($K21)/1000","v":{"$error":"#NAME?"}},{"$f":"_xll.RiskPercentile($K21,95%)/1000","v":{"$error":"#NAME?"}},null,{"$f":"'Risk Summary'!E$13+'Risk Summary'!E$14","v":309261.11736000003},{"$f":"'Risk Summary'!F$13+'Risk Summary'!F$14","v":{"$error":"#NAME?"}}]
[19,null,null,2027,317.19084636999997,{"$f":"_xll.RiskPercentile($K22,5%)/1000","v":{"$error":"#NAME?"}},{"$f":"_xll.RiskMean($K22)/1000","v":{"$error":"#NAME?"}},{"$f":"_xll.RiskPercentile($K22,95%)/1000","v":{"$error":"#NAME?"}},null,{"$f":"'Risk Summary'!G$13+'Risk Summary'!G$14","v":317190.84636999998},{"$f":"'Risk Summary'!H$13+'Risk Summary'!H$14","v":{"$error":"#NAME?"}}]
[20,null,null,2028,325.17358122000007,{"$f":"_xll.RiskPercentile($K23,5%)/1000","v":{"$error":"#NAME?"}},{"$f":"_xll.RiskMean($K23)/1000","v":{"$error":"#NAME?"}},{"$f":"_xll.RiskPercentile($K23,95%)/1000","v":{"$error":"#NAME?"}},null,{"$f":"'Risk Summary'!I$13+'Risk Summary'!I$14","v":325173.58122000005},{"$f":"'Risk Summary'!J$13+'Risk Summary'!J$14","v":{"$error":"#NAME?"}}]
[21,"4.1.2.1.6","Interest Expense and Earnings Risk",2025,183.92406779999996,{"$f":"_xll.RiskPercentile($K24,5%)/1000","v":{"$error":"#NAME?"}},{"$f":"_xll.RiskMean($K24)/1000","v":{"$error":"#NAME?"}},{"$f":"_xll.RiskPercentile($K24,95%)/1000","v":{"$error":"#NAME?"}},null,{"$f":"'Risk Summary'!C$15+'Risk Summary'!C$16","v":183924.06779999996},{"$f":"'Risk Summary'!D$15+'Risk Summary'!D$16","v":{"$error":"#NAME?"}}]
[22,null,null,2026,214.4854063998535,{"$f":"_xll.RiskPercentile($K25,5%)/1000","v":{"$error":"#NAME?"}},{"$f":"_xll.RiskMean($K25)/1000","v":{"$error":"#NAME?"}},{"$f":"_xll.RiskPercentile($K25,95%)/1000","v":{"$error":"#NAME?"}},null,{"$f":"'Risk Summary'!E$15+'Risk Summary'!E$16","v":214485.4063998535},{"$f":"'Risk Summary'!F$15+'Risk Summary'!F$16","v":{"$error":"#NAME?"}}]
[23,null,null,2027,220.40055833428201,{"$f":"_xll.RiskPercentile($K26,5%)/1000","v":{"$error":"#NAME?"}},{"$f":"_xll.RiskMean($K26)/1000","v":{"$error":"#NAME?"}},{"$f":"_xll.RiskPercentile($K26,95%)/1000","v":{"$error":"#NAME?"}},null,{"$f":"'Risk Summary'!G$15+'Risk Summary'!G$16","v":220400.55833428202},{"$f":"'Risk Summary'!H$15+'Risk Summary'!H$16","v":{"$error":"#NAME?"}}]
[24,null,null,2028,222.4198919766414,{"$f":"_xll.RiskPercentile($K27,5%)/1000","v":{"$error":"#NAME?"}},{"$f":"_xll.RiskMean($K27)/1000","v":{"$error":"#NAME?"}},{"$f":"_xll.RiskPercentile($K27,95%)/1000","v":{"$error":"#NAME?"}},null,{"$f":"'Risk Summary'!I$15+'Risk Summary'!I$16","v":222419.8919766414},{"$f":"'Risk Summary'!J$15+'Risk Summary'!J$16","v":{"$error":"#NAME?"}}]
[]
[]
[null,"A","B","C","D","E","F","G"]
[null,"P-NORM Risk Summary ($000,000)"]
[null,"Study Section","Risk Title","Fiscal Year","Forecast","5th Percentile","Mean","95th Percentile"]
[1,"4.1.2.1.1","CGS Operations and Maintenance (O&M)",2025,381.84234097999996,369.34282033273553,380.57066628480896,392.79169797654242]
[2,null,null,2026,348.98504602000003,337.50353420672667,347.6036170903522,358.75086849750551]
[3,null,null,2027,413.66616600999998,400.15409423080462,412.49997425865564,425.82762177287873]
[4,null,null,2028,380.97351395999993,368.43412305646166,379.69742879356329,391.86001598894029]
[5,"4.1.2.1.2","U.S. Army Corps of Engineers (Corps) and Bureau of Reclamation (Reclamation) O&M",2025,459.05203002000007,459.05203002000007,460.80017816814683,465.05203002000007]
[6,null,null,2026,487.58600008999997,487.58600008999997,489.33600008998059,493.58600008999997]
[7,null,null,2027,523.03900008000005,523.03900008000005,524.78714822816755,529.03900008000005]
[8,null,null,2028,549.12900010999999,549.12900010999999,550.87900010998089,555.12900010999999]
[9,"4.1.2.1.3","Conservation Expense",2025,75.032249010000015,71.101540261233311,74.457005796015764,77.35737968427226]
[10,null,null,2026,71.389524009999988,67.676614263466192,70.84468156161455,73.591690420356542]
[11,null,null,2027,71.389524009999988,67.670269730479859,70.844713571306755,73.580862282816156]
[12,null,null,2028,92.517698999999993,87.607151930455174,91.796768715136423,95.480680558363275]
[13,"4.1.2.1.4","Power Services Transmission Acquisition and Ancillary Services",2025,95.897798989999998,93.811855349004176,95.616594455487459,97.162181856725766]
[14,null,null,2026,95.897799989999996,93.861812124875996,95.645477443250542,97.20248129542091]
[15,null,null,2027,97.944299999999998,95.765155066402443,97.873228585992962,99.85349064593683]
[16,null,null,2028,100.03599998999999,97.767124485406598,99.961489577082133,101.9967615828524]
[17,"4.1.2.1.5","Fish & Wildlife Expenses",2025,297.62623134000006,290.79260006121348,298.99498234461998,307.22351331938552]
[18,null,null,2026,309.26111736000001,296.30749459817133,300.70524284076316,305.12735929895871]
[19,null,null,2027,317.19084636999997,303.86268905544915,308.41342677373137,312.98967394849041]
[20,null,null,2028,325.17358122000007,311.58957172694704,316.17246664528625,320.72293948234585]
[21,"4.1.2.1.6","Interest Expense and Earnings Risk",2025,183.92406779999996,185.38350853392467,200.29818179578663,215.23496810362209]
[22,null,null,2026,214.4854063998535,216.1786542363069,234.54322817334602,252.91168980097882]
[23,null,null,2027,220.40055833428201,221.20047242645109,240.57417406096621,259.49382341840857]
[24,null,null,2028,222.4198919766414,223.7266500710528,243.40081304176871,263.49244580082399]

{"sheet":"Reference","index":10,"n_rows":15,"n_cols":1,"rows_kept":15,"cut":false,"hidden":false,"merged":[]}
[]
[]
["Tab Color Coding"]
["Pro Forma and Accrual to Cash"]
["Sumary Sheet (Aggregation of Pro Forma, ATC, and Risk Models)"]
["Expense Model"]
["Output"]
["Other"]
[]
["Cell Color Coding"]
["SME Input"]
["Worksheet Formula"]
["@Risk Output"]
["Linked to Summary"]
["@Risk Formula"]